{"text_format":"1","workbook":"xlsx","n_sheets":4,"sheets":["Instructions","Sheet1","Sheet2","StandingOrder"],"not_rendered":{"charts":0,"images":3,"macros":1,"external_links":0,"defined_names":10,"comments":2,"pivot_tables":0},"unopened":[],"bounds":{"document_bytes":16777216,"sheet_cells":100000,"rows_first":2000,"rows_last":500,"rows_between":2000,"halvings":0,"cell_chars":16384,"cell_head_chars":4096},"cells_cut":0,"cells_raw":0,"read":"whole","date_system":"1900"}

{"sheet":"Instructions","index":0,"n_rows":16,"n_cols":1,"rows_kept":16,"cut":false,"hidden":false,"merged":[]}
["Simple instructions on how to use the excel OF:"]
["Notes"]
["~ Enter the ship to and bill to information for the customer that you're creating the list for "]
["~ Enter the qty of LB books/LB sets/ebooks/etc that your customer wants in the \"QTY\" column (column A)"]
["~ You'll notice that in the fields next to the bill to area, you'll find the \"Summary\" box - here is where you'll see (at a glance) a quick summary of the products ordered - these fields are dynamically updated as new qtys are added to the overall file"]
["~ Under the summary box, you'll find a manilla colored box where you can enter any notes, instructions, etc that you see fit"]
["~ When done entering your qtys, please go up to the top of the excel file and click the \"Order Summary\" button"]
["~ The file will automatically remove all NON-SELECTED titles and only list the titles with a QTY chosen (you can always go back and add more titles by clicking \"Clear Summary\" at the top above the Bill to, and it'll bring back all titles)"]
["~ Once completed, click the \"Finalize Order\" button above the Bill to box and wait about 5-10 seconds, and you'll see \"Sheet2\" will open up a printer-friendly version of the order will appear. This version is ready to be sent as a final order/proposal to customers/customer service"]
["~ Please make sure to adjust the print area for this form so that it only prints the pages you want printed"]
["~ You can click on the top row of the notes box on this page - click and hold - and then you can drag this box to the bottom of your title listing - thus enabling the notes to also print out"]
[]
["A few quick tips on this excel OF:"]
["~ The titles are listed here as they appear on the 2020 catalog(s)"]
["~ Row 22 is the header row - you can use this row to sort or filter out specific types of data, to make this OF easier to navigate. For instance, if you want to ONLY DISPLAY the library bound books, go to cell G22, click on the box in the bottom right portion of the cell, and deselect \"Select All\" and then select \"Library Bound Book\" and close out of the menu - now your excel file will only display the print books. This function/capability is available for any column in Row 22."]
["~ If you find any issues or have any ideas on how we can make this more user friendly, please be sure to let us know"]

{"sheet":"Sheet1","index":1,"n_rows":2595,"n_cols":38,"rows_kept":2595,"cut":false,"hidden":false,"merged":[[6,6,6,10],[7,7,7,10],[8,7,8,10],[9,7,9,10],[10,7,10,10],[11,7,11,10],[12,7,12,10],[13,7,13,10],[14,7,14,10],[15,7,15,10],[16,7,16,10],[17,7,17,10],[19,7,19,10],[6,13,6,21],[16,13,16,14],[17,13,17,14],[11,13,11,14],[12,13,12,14],[13,13,13,14],[14,13,14,14],[15,13,15,14],[7,15,7,21],[8,15,8,21],[9,15,9,21],[10,15,10,21],[11,15,11,21],[13,15,13,21],[14,15,14,21],[7,13,7,14],[8,13,8,14],[9,13,9,14],[10,13,10,14],[19,13,19,14],[12,28,12,29],[12,30,12,31],[8,26,8,27],[9,26,9,27],[12,25,12,27],[19,15,19,21],[13,25,13,27],[13,28,13,29],[13,30,13,31],[14,28,14,29],[14,30,14,31],[15,15,15,21],[16,15,16,21],[17,15,17,21],[12,15,12,21],[6,25,6,31],[7,26,7,27],[11,25,11,27],[10,28,10,29],[10,30,10,31],[11,28,11,29],[11,30,11,31],[7,28,7,31],[8,28,8,31],[9,28,9,31]]}
[]
[]
[]
[]
[]
[]
[null,null,null,null,null,null,"Ship to",null,null,null,null,null,null,"Bill to",null,null,null,null,null,null,null,null,null,null,null,"Summary"]
[null,null,null,null,null,null,"School/Library:",null,null,null,null,null,null,"School/Library:",null,null,null,null,null,null,null,null,null,null,null,null,"Print",null," eBooks"]
[null,null,null,null,null,null,"Attention:",null,null,null,null,null,null,"Attention:",null,null,null,null,null,null,null,null,null,null,null,"# of Books",{"$f":"SUMPRODUCT(((Table1[Product Type]=\"Library Bound Book\")\n+(Table1[Product Type]=\"Library Set\")\n+(Table1[Product Type]=\"Paperback Book\")\n+(Table1[Product Type]=\"Single Copy Set\"))*(Table1[Subtotal QTY]))","v":0},null,{"$f":"SUMPRODUCT(((Table1[Product Type]=\"eBook\")+(Table1[Product Type]=\"eBook Set\"))*(Table1[Subtotal QTY]))","v":0}]
[null,null,null,null,null,null,"Title:",null,null,null,null,null,null,"Title:",null,null,null,null,null,null,null,null,null,null,null,"Subtotal",{"$f":"SUMPRODUCT(((Table1[Product Type]=\"Library Bound Book\")\n+(Table1[Product Type]=\"Library Set\")\n+(Table1[Product Type]=\"Paperback Book\")\n+(Table1[Product Type]=\"Single Copy Set\"))*(Table1[Subtotal]))","v":0},null,{"$f":"SUMPRODUCT(((Table1[Product Type]=\"eBook\")+(Table1[Product Type]=\"eBook Set\"))*(Table1[Subtotal]))","v":0}]
[null,null,null,null,null,null,"Street Address:",null,null,null,null,null,null,"Street Address:",null,null,null,null,null,null,null,null,null,null,null,null,null,null,"Book Subtotal",null,{"$f":"AA10+AC10","v":0}]
[null,null,null,null,null,null,"City:",null,null,null,null,null,null,"City:",null,null,null,null,null,null,null,null,null,null,null,"(if applicable)",null,null,"Library Processing"]
[null,null,null,null,null,null,"State:",null,null,null,null,null,null,"State:",null,null,null,null,null,null,null,null,null,null,null,"9% S&H (12% for Alaska & Hawaii) - FREE on all orders over $500",null,null,"Shipping & Handling",null,{"$f":"IF(AE11<500,(AE11*0.09),(\"0.00\"))","v":0}]
[null,null,null,null,null,null,"Zip:",null,null,null,null,null,null,"Zip:",null,null,null,null,null,null,null,null,null,null,null,"(if applicable)",null,null,"Tax"]
[null,null,null,null,null,null,"Contact Name:",null,null,null,null,null,null,"Contact Name:",null,null,null,null,null,null,null,null,null,null,null,null,null,null,"GRAND TOTAL",null,{"$f":"AE11+AE12+AE13+AE14","v":0}]
[null,null,null,null,null,null,"Phone:",null,null,null,null,null,null,"Phone:"]
[null,null,null,null,null,null,"Fax:",null,null,null,null,null,null,"Fax:",null,null,null,null,null,null,null,null,null,null,null,null,"Notes"]
[null,null,null,null,null,null,"email:",null,null,null,null,null,null,"email:"]
[]
["**TITLES HIGHLIGHTED YELLOW ARE COMING SOON**",null,null,null,null,null,"PO# (if needed)",null,null,null,null,null,null,"Rep Name:",null,"mikewhite@booklookindiana.com"]
[]
["QTY","Spring 2022 GH Page #","GH Full 2022 Page #","Spring 2022 KH Page #","KH Full 2022 Page #","Catalog Subject","Series","Title","ISBN","eCommerce Weblink","ePointPlus Weblink","Imprint","Product Type","# of Books","© Date","Season","Binding Type","Trim","Contributor Type","Contributor","ATOS","Points","DRA","EIL","GRL","Lexile","Reading Level","Interest Level","Description","Language","List Price","School & Library Price","Dewey","Page Count","eCommerce Hyperlink","EPP Hyperlink","Subtotal QTY","Subtotal"]
[null,"5, 7",5,null,null,"Current Issues","Opposing Viewpoints","Opposing Viewpoints (Fall 2022)","978-1-5345-0901-6",null,null,"Greenhaven Publishing","Library Set",6,"2023","August 2022","Library","6.000 X 9.000",null,null,null,null,null,null,null,null,"Grade 10 - 12","Grade 9 - 12","First introduced more than 40 years ago, Opposing Viewpoints still sets the standard for current-issue studies. With almost 300 volumes covering nearly every controversial contemporary topic, Opposing Viewpoints is the leading source of current-issue materials for libraries and classrooms. Each book delivers pro/con expert opinions selected from highly respected and often hard-to-find sources and publications.","English",298.8,239.04,null,"176 pp.","https://greenhavenpublishing.com/9781534509016",null,{"$f":"Table1[[#This Row],['# of Books]]*Table1[[#This Row],[QTY]]","v":0},{"$f":"Table1[[#This Row],[QTY]]*Table1[[#This Row],[School & Library Price]]","v":0}]
[null,null,5,null,null,"Current Issues","Opposing Viewpoints","Opposing Viewpoints (Fall 2022)","978-1-5345-0902-3",null,null,"Greenhaven Publishing","Single Copy Set",6,"2023","August 2022","Paperback","6.000 X 9.000",null,null,null,null,null,null,null,null,"Grade 10 - 12","Grade 9 - 12","First introduced more than 40 years ago, Opposing Viewpoints still sets the standard for current-issue studies. With almost 300 volumes covering nearly every controversial contemporary topic, Opposing Viewpoints is the leading source of current-issue materials for libraries and classrooms. Each book delivers pro/con expert opinions selected from highly respected and often hard-to-find sources and publications.","English",208.8,167.1,null,"176 pp.","https://greenhavenpublishing.com/9781534509023",null,{"$f":"Table1[[#This Row],['# of Books]]*Table1[[#This Row],[QTY]]","v":0},{"$f":"Table1[[#This Row],[QTY]]*Table1[[#This Row],[School & Library Price]]","v":0}]
[null,"5, 7",5,null,null,"Current Issues","Opposing Viewpoints","America’s Infrastructure and The Green Economy","978-1-5345-0879-8",null,null,"Greenhaven Publishing","Library Bound Book",1,"2023","August 2022","Library","6.000 X 9.000","Compiled by","Eamon Doyle",null,null,null,null,"Z",null,"Grade 10 - 12","Grade 9 - 12","Once a model of innovation and a sparkly future for the rest of the world, America’s infrastructure is outdated and crumbling. The US lags behind much of the world in internet access, bridge and highway safety, modern airports, and new energies. What will it take to restore America’s infrastructure and take it to the next level? Some point to the green economy as a solution to lifting America out of a stagnant job market while rebuilding and modernizing its infrastructure. But can it drive and sustain the economic growth needed to maintain America’s competitiveness on the global stage?","English",49.8,39.840000000000003,"363/.0973--dc23","176 pp.","https://greenhavenpublishing.com/9781534508798",null,{"$f":"Table1[[#This Row],['# of Books]]*Table1[[#This Row],[QTY]]","v":0},{"$f":"Table1[[#This Row],[QTY]]*Table1[[#This Row],[School & Library Price]]","v":0}]
[null,"5, 7",5,null,null,"Current Issues","Opposing Viewpoints","America’s Infrastructure and The Green Economy","978-1-5345-0878-1",null,null,"Greenhaven Publishing","Paperback Book",1,"2023","August 2022","Paperback","6.000 X 9.000","Compiled by","Eamon Doyle",null,null,null,null,"Z",null,"Grade 10 - 12","Grade 9 - 12","Once a model of innovation and a sparkly future for the rest of the world, America’s infrastructure is outdated and crumbling. The US lags behind much of the world in internet access, bridge and highway safety, modern airports, and new energies. What will it take to restore America’s infrastructure and take it to the next level? Some point to the green economy as a solution to lifting America out of a stagnant job market while rebuilding and modernizing its infrastructure. But can it drive and sustain the economic growth needed to maintain America’s competitiveness on the global stage?","English",34.799999999999997,27.85,"363/.0973--dc23","176 pp.","https://greenhavenpublishing.com/9781534508781",null,{"$f":"Table1[[#This Row],['# of Books]]*Table1[[#This Row],[QTY]]","v":0},{"$f":"Table1[[#This Row],[QTY]]*Table1[[#This Row],[School & Library Price]]","v":0}]
[null,"5, 7",5,null,null,"Current Issues","Opposing Viewpoints","COVID-19 and the Changing Way We Live and Work","978-1-5345-0873-6",null,null,"Greenhaven Publishing","Library Bound Book",1,"2023","August 2022","Library","6.000 X 9.000","Compiled by","Kathryn Roberts",null,null,null,null,"Z",null,"Grade 10 - 12","Grade 9 - 12","Anyone who lived through the year 2020 is unlikely to forget the life changes brought about by COVID-19. National lockdowns were instituted. Businesses closed. Parents worked from home and kids went to school virtually. People became sick and died. As the dust settled, some things went back to the way they were, but others may have been changed for the long term. The virus’s impact on our daily lives included spotlighting societal ills such as income disparities, inaccessible health care, and outdated infrastructure. What will post-pandemic life look like, and can lessons be learned from this terrible experience?","English",49.8,39.840000000000003,"362.1962/414--dc23","176 pp.","https://greenhavenpublishing.com/9781534508736",null,{"$f":"Table1[[#This Row],['# of Books]]*Table1[[#This Row],[QTY]]","v":0},{"$f":"Table1[[#This Row],[QTY]]*Table1[[#This Row],[School & Library Price]]","v":0}]
[null,"5, 7",5,null,null,"Current Issues","Opposing Viewpoints","COVID-19 and the Changing Way We Live and Work","978-1-5345-0872-9",null,null,"Greenhaven Publishing","Paperback Book",1,"2023","August 2022","Paperback","6.000 X 9.000","Compiled by","Kathryn Roberts",null,null,null,null,"Z",null,"Grade 10 - 12","Grade 9 - 12","Anyone who lived through the year 2020 is unlikely to forget the life changes brought about by COVID-19. National lockdowns were instituted. Businesses closed. Parents worked from home and kids went to school virtually. People became sick and died. As the dust settled, some things went back to the way they were, but others may have been changed for the long term. The virus’s impact on our daily lives included spotlighting societal ills such as income disparities, inaccessible health care, and outdated infrastructure. What will post-pandemic life look like, and can lessons be learned from this terrible experience?","English",34.799999999999997,27.85,"362.1962/414--dc23","176 pp.","https://greenhavenpublishing.com/9781534508729",null,{"$f":"Table1[[#This Row],['# of Books]]*Table1[[#This Row],[QTY]]","v":0},{"$f":"Table1[[#This Row],[QTY]]*Table1[[#This Row],[School & Library Price]]","v":0}]
[null,"5, 7",5,null,null,"Current Issues","Opposing Viewpoints","Genetic Engineering and Gene Therapy","978-1-5345-0871-2",null,null,"Greenhaven Publishing","Library Bound Book",1,"2023","August 2022","Library","6.000 X 9.000","Compiled by","Avery Elizabeth Hurt",null,null,null,null,"Z",null,"Grade 10 - 12","Grade 9 - 12","Scientific advances such as the Human Genome Project and CRISPR technology have led to astounding developments in modern genetics. Scientists are now able to manipulate genes to affect everything from our food to our health to our pets. These advances have been exciting, and there is no doubt that they have benefited society, even saving lives. But what if someone takes genetic engineering too far and the results are not helpful but instead dangerous? There are moral and ethical considerations inherent in the manipulation of genes, and these will undoubtedly grow as the science continues to advance.","English",49.8,39.840000000000003,"615.8/95--dc23","176 pp.","https://greenhavenpublishing.com/9781534508712",null,{"$f":"Table1[[#This Row],['# of Books]]*Table1[[#This Row],[QTY]]","v":0},{"$f":"Table1[[#This Row],[QTY]]*Table1[[#This Row],[School & Library Price]]","v":0}]
[null,"5, 7",5,null,null,"Current Issues","Opposing Viewpoints","Genetic Engineering and Gene Therapy","978-1-5345-0870-5",null,null,"Greenhaven Publishing","Paperback Book",1,"2023","August 2022","Paperback","6.000 X 9.000","Compiled by","Avery Elizabeth Hurt",null,null,null,null,"Z",null,"Grade 10 - 12","Grade 9 - 12","Scientific advances such as the Human Genome Project and CRISPR technology have led to astounding developments in modern genetics. Scientists are now able to manipulate genes to affect everything from our food to our health to our pets. These advances have been exciting, and there is no doubt that they have benefited society, even saving lives. But what if someone takes genetic engineering too far and the results are not helpful but instead dangerous? There are moral and ethical considerations inherent in the manipulation of genes, and these will undoubtedly grow as the science continues to advance.","English",34.799999999999997,27.85,"615.8/95--dc23","176 pp.","https://greenhavenpublishing.com/9781534508705",null,{"$f":"Table1[[#This Row],['# of Books]]*Table1[[#This Row],[QTY]]","v":0},{"$f":"Table1[[#This Row],[QTY]]*Table1[[#This Row],[School & Library Price]]","v":0}]
[null,"5, 7",5,null,null,"Current Issues","Opposing Viewpoints","Peoples on the Move: The Immigration Crisis","978-1-5345-0875-0",null,null,"Greenhaven Publishing","Library Bound Book",1,"2023","August 2022","Library","6.000 X 9.000","Compiled by","Lita Sorensen",null,null,null,null,"Z",null,"Grade 10 - 12","Grade 9 - 12","Immigration has been a hot button topic in the United States for many years. More recently, other western nations have grappled with their own migrant crises. The issue has divided conservatives and liberals and has possibly fueled nationalist sentiment in the US and countries in western Europe. While most would agree that there certainly is an immigration crisis, they can’t agree on solutions. What exactly defines an immigration crisis and what humanitarian problems do these crises create? What is the responsibility of the international community to solve them? How can countries help migrants without compromising their own integrity?","English",49.8,39.840000000000003,"325.73--dc23","176 pp.","https://greenhavenpublishing.com/9781534508750",null,{"$f":"Table1[[#This Row],['# of Books]]*Table1[[#This Row],[QTY]]","v":0},{"$f":"Table1[[#This Row],[QTY]]*Table1[[#This Row],[School & Library Price]]","v":0}]
[null,"5, 7",5,null,null,"Current Issues","Opposing Viewpoints","Peoples on the Move: The Immigration Crisis","978-1-5345-0874-3",null,null,"Greenhaven Publishing","Paperback Book",1,"2023","August 2022","Paperback","6.000 X 9.000","Compiled by","Lita Sorensen",null,null,null,null,"Z",null,"Grade 10 - 12","Grade 9 - 12","Immigration has been a hot button topic in the United States for many years. More recently, other western nations have grappled with their own migrant crises. The issue has divided conservatives and liberals and has possibly fueled nationalist sentiment in the US and countries in western Europe. While most would agree that there certainly is an immigration crisis, they can’t agree on solutions. What exactly defines an immigration crisis and what humanitarian problems do these crises create? What is the responsibility of the international community to solve them? How can countries help migrants without compromising their own integrity?","English",34.799999999999997,27.85,"325.73--dc23","176 pp.","https://greenhavenpublishing.com/9781534508743",null,{"$f":"Table1[[#This Row],['# of Books]]*Table1[[#This Row],[QTY]]","v":0},{"$f":"Table1[[#This Row],[QTY]]*Table1[[#This Row],[School & Library Price]]","v":0}]
[null,"5, 7",5,null,null,"Current Issues","Opposing Viewpoints","The New Censorship","978-1-5345-0881-1",null,null,"Greenhaven Publishing","Library Bound Book",1,"2023","August 2022","Library","6.000 X 9.000","Compiled by","Gary Wiener",null,null,null,null,"Z",null,"Grade 10 - 12","Grade 9 - 12","Censorship has taken many forms throughout the course of history, but the digital age has presented a unique set of issues. Although free speech is upheld as a constitutional right in America, cancel culture and other forms of censorship have quickly taken hold thanks to the power of social media and the echo chambers it creates. Twitter’s ban of Donald Trump, attempts to stop teaching critical race theory, and the protests of controversial speakers on college campuses are all examples of censorship in our society today. Is it still possible to strike a balance between free speech and strong convictions?","English",49.8,39.840000000000003,"363.310973--dc23","176 pp.","https://greenhavenpublishing.com/9781534508811",null,{"$f":"Table1[[#This Row],['# of Books]]*Table1[[#This Row],[QTY]]","v":0},{"$f":"Table1[[#This Row],[QTY]]*Table1[[#This Row],[School & Library Price]]","v":0}]
[null,"5, 7",5,null,null,"Current Issues","Opposing Viewpoints","The New Censorship","978-1-5345-0880-4",null,null,"Greenhaven Publishing","Paperback Book",1,"2023","August 2022","Paperback","6.000 X 9.000","Compiled by","Gary Wiener",null,null,null,null,"Z",null,"Grade 10 - 12","Grade 9 - 12","Censorship has taken many forms throughout the course of history, but the digital age has presented a unique set of issues. Although free speech is upheld as a constitutional right in America, cancel culture and other forms of censorship have quickly taken hold thanks to the power of social media and the echo chambers it creates. Twitter’s ban of Donald Trump, attempts to stop teaching critical race theory, and the protests of controversial speakers on college campuses are all examples of censorship in our society today. Is it still possible to strike a balance between free speech and strong convictions?","English",34.799999999999997,27.85,"363.310973--dc23","176 pp.","https://greenhavenpublishing.com/9781534508804",null,{"$f":"Table1[[#This Row],['# of Books]]*Table1[[#This Row],[QTY]]","v":0},{"$f":"Table1[[#This Row],[QTY]]*Table1[[#This Row],[School & Library Price]]","v":0}]
[null,"5, 7",5,null,null,"Current Issues","Opposing Viewpoints","The Power of Protest","978-1-5345-0877-4",null,null,"Greenhaven Publishing","Library Bound Book",1,"2023","August 2022","Library","6.000 X 9.000","Compiled by","Avery Elizabeth Hurt",null,null,null,null,"Z",null,"Grade 10 - 12","Grade 9 - 12","After what could only be described as decades of apathy, more Americans than ever have taken to the streets to protest social and political injustice. Recent protests of note have been the Women’s March, which began after Donald Trump’s inauguration in 2017, and Black Lives Matter demonstrations after the police killing of George Floyd in 2020. Engagement is important, but can protests actually drive change? Are peaceful demonstrations more effective than violent protests? Can movements make a difference without powerful leaders? And how have the internet and social media changed the game?","English",49.8,39.840000000000003,"323/.0420973--dc23","176 pp.","https://greenhavenpublishing.com/9781534508774",null,{"$f":"Table1[[#This Row],['# of Books]]*Table1[[#This Row],[QTY]]","v":0},{"$f":"Table1[[#This Row],[QTY]]*Table1[[#This Row],[School & Library Price]]","v":0}]
[null,"5, 7",5,null,null,"Current Issues","Opposing Viewpoints","The Power of Protest","978-1-5345-0876-7",null,null,"Greenhaven Publishing","Paperback Book",1,"2023","August 2022","Paperback","6.000 X 9.000","Compiled by","Avery Elizabeth Hurt",null,null,null,null,"Z",null,"Grade 10 - 12","Grade 9 - 12","After what could only be described as decades of apathy, more Americans than ever have taken to the streets to protest social and political injustice. Recent protests of note have been the Women’s March, which began after Donald Trump’s inauguration in 2017, and Black Lives Matter demonstrations after the police killing of George Floyd in 2020. Engagement is important, but can protests actually drive change? Are peaceful demonstrations more effective than violent protests? Can movements make a difference without powerful leaders? And how have the internet and social media changed the game?","English",34.799999999999997,27.85,"323/.0420973--dc23","176 pp.","https://greenhavenpublishing.com/9781534508767",null,{"$f":"Table1[[#This Row],['# of Books]]*Table1[[#This Row],[QTY]]","v":0},{"$f":"Table1[[#This Row],[QTY]]*Table1[[#This Row],[School & Library Price]]","v":0}]
[null,7,6,null,null,"Current Issues","Opposing Viewpoints","America's Changing Demographics","978-1-5345-0601-5",{"$f":"HYPERLINK(Table1[[#This Row],[eCommerce Hyperlink]],\"Book Weblink\")","v":"Book Weblink"},null,"Greenhaven Publishing","Library Bound Book",1,"2020","January 2020","Library","6.000 X 9.000","Edited by","Martin Gitlin",null,null,null,null,"Z",null,"Grade 10 - 12","Grade 9 - 12","Thanks to a declining birth rate, upticks in immigration, and evolving gender roles, America looks much different from the way it did 100, 50, or even 25 years ago. Aging baby boomers are putting stress on the current health care system. Young people have different values and priorities from those of previous generations. Unequal distribution of wealth has created a greater economic divide than ever before. How will America's shifting demographics affect the country's future? Through diverse viewpoints, this fascinating volume explores the many factors that contribute to what it means to be an American and how that might change in this century.","English",49.8,39.840000000000003,"304.60973--dc23","200 pp.","https://greenhavenpublishing.com/9781534506015",null,{"$f":"Table1[[#This Row],['# of Books]]*Table1[[#This Row],[QTY]]","v":0},{"$f":"Table1[[#This Row],[QTY]]*Table1[[#This Row],[School & Library Price]]","v":0}]
[null,7,6,null,null,"Current Issues","Opposing Viewpoints","America's Changing Demographics","978-1-5345-0600-8",{"$f":"HYPERLINK(Table1[[#This Row],[eCommerce Hyperlink]],\"Book Weblink\")","v":"Book Weblink"},null,"Greenhaven Publishing","Paperback Book",1,"2020","January 2020","Paperback","6.000 X 9.000","Edited by","Martin Gitlin",null,null,null,null,"Z",null,"Grade 10 - 12","Grade 9 - 12","Thanks to a declining birth rate, upticks in immigration, and evolving gender roles, America looks much different from the way it did 100, 50, or even 25 years ago. Aging baby boomers are putting stress on the current health care system. Young people have different values and priorities from those of previous generations. Unequal distribution of wealth has created a greater economic divide than ever before. How will America's shifting demographics affect the country's future? Through diverse viewpoints, this fascinating volume explores the many factors that contribute to what it means to be an American and how that might change in this century.","English",34.799999999999997,27.85,"304.60973--dc23","200 pp.","https://greenhavenpublishing.com/9781534506008",null,{"$f":"Table1[[#This Row],['# of Books]]*Table1[[#This Row],[QTY]]","v":0},{"$f":"Table1[[#This Row],[QTY]]*Table1[[#This Row],[School & Library Price]]","v":0}]
[null,null,6,null,null,"Current Issues","Opposing Viewpoints","Athletes, Ethics, and Morality","978-1-5345-0410-3",{"$f":"HYPERLINK(Table1[[#This Row],[eCommerce Hyperlink]],\"Book Weblink\")","v":"Book Weblink"},null,"Greenhaven Publishing","Library Bound Book",1,"2019","January 2019","Library","6.000 X 9.000","Edited by","Martin Gitlin",null,null,null,null,"Z",null,"Grade 10 - 12","Grade 9 - 12","Athletes have a unique power in our world today. Their astronomical salaries, enviable lifestyles, and celebrity have tremendous influence over young people. This is reflected in advertising dollars as well as merchandise and ticket sales. For every athlete who uses their platform for charitable, political, and social good, there are many whose unethical or even criminal behavior sends the wrong message. What is the responsibility of athletes to their fans, to their teams, and to their leagues? How much responsibility do we hold for holding them in such high esteem? The viewpoints in this volume explore this complicated issue.","English",49.8,39.840000000000003,"796.01--dc23","200 pp.","https://greenhavenpublishing.com/9781534504103",null,{"$f":"Table1[[#This Row],['# of Books]]*Table1[[#This Row],[QTY]]","v":0},{"$f":"Table1[[#This Row],[QTY]]*Table1[[#This Row],[School & Library Price]]","v":0}]
[null,null,6,null,null,"Current Issues","Opposing Viewpoints","Athletes, Ethics, and Morality","978-1-5345-0431-8",{"$f":"HYPERLINK(Table1[[#This Row],[eCommerce Hyperlink]],\"Book Weblink\")","v":"Book Weblink"},null,"Greenhaven Publishing","Paperback Book",1,"2019","January 2019","Paperback","6.000 X 9.000","Edited by","Martin Gitlin",null,null,null,null,"Z",null,"Grade 10 - 12","Grade 9 - 12","Athletes have a unique power in our world today. Their astronomical salaries, enviable lifestyles, and celebrity have tremendous influence over young people. This is reflected in advertising dollars as well as merchandise and ticket sales. For every athlete who uses their platform for charitable, political, and social good, there are many whose unethical or even criminal behavior sends the wrong message. What is the responsibility of athletes to their fans, to their teams, and to their leagues? How much responsibility do we hold for holding them in such high esteem? The viewpoints in this volume explore this complicated issue.","English",34.799999999999997,27.85,"796.01--dc23","200 pp.","https://greenhavenpublishing.com/9781534504318",null,{"$f":"Table1[[#This Row],['# of Books]]*Table1[[#This Row],[QTY]]","v":0},{"$f":"Table1[[#This Row],[QTY]]*Table1[[#This Row],[School & Library Price]]","v":0}]
[null,7,6,null,null,"Current Issues","Opposing Viewpoints","Automation of Labor","978-1-5345-0506-3",{"$f":"HYPERLINK(Table1[[#This Row],[eCommerce Hyperlink]],\"Book Weblink\")","v":"Book Weblink"},null,"Greenhaven Publishing","Library Bound Book",1,"2020","August 2019","Library","6.000 X 9.000","Edited by","Rachel Bozek",null,null,null,null,"Z",null,"Grade 10 - 12","Grade 9 - 12","There have been many benefits to automation, including affordable pricing and accessibility of goods through mass marketing, but its impact on the workforce also has the potential to cripple society. While automation saves billions of dollars for corporations, it also eliminates jobs from the workforce. Advancements in artificial intelligence mean that manufacturing jobs are not the only sector to fall victim to job displacement; experts predict that many white-collar jobs soon will be carried out by computers. In this resource, experts predict how the labor market will be restructured and how humans can successfully adapt to these changes.","English",49.8,39.840000000000003,"331.25--dc23","200 pp.","https://greenhavenpublishing.com/9781534505063",null,{"$f":"Table1[[#This Row],['# of Books]]*Table1[[#This Row],[QTY]]","v":0},{"$f":"Table1[[#This Row],[QTY]]*Table1[[#This Row],[School & Library Price]]","v":0}]
[null,7,6,null,null,"Current Issues","Opposing Viewpoints","Automation of Labor","978-1-5345-0507-0",{"$f":"HYPERLINK(Table1[[#This Row],[eCommerce Hyperlink]],\"Book Weblink\")","v":"Book Weblink"},null,"Greenhaven Publishing","Paperback Book",1,"2020","August 2019","Paperback","6.000 X 9.000","Edited by","Rachel Bozek",null,null,null,null,"Z",null,"Grade 10 - 12","Grade 9 - 12","There have been many benefits to automation, including affordable pricing and accessibility of goods through mass marketing, but its impact on the workforce also has the potential to cripple society. While automation saves billions of dollars for corporations, it also eliminates jobs from the workforce. Advancements in artificial intelligence mean that manufacturing jobs are not the only sector to fall victim to job displacement; experts predict that many white-collar jobs soon will be carried out by computers. In this resource, experts predict how the labor market will be restructured and how humans can successfully adapt to these changes.","English",34.799999999999997,27.85,"331.25--dc23","200 pp.","https://greenhavenpublishing.com/9781534505070",null,{"$f":"Table1[[#This Row],['# of Books]]*Table1[[#This Row],[QTY]]","v":0},{"$f":"Table1[[#This Row],[QTY]]*Table1[[#This Row],[School & Library Price]]","v":0}]
[null,null,6,null,null,"Current Issues","Opposing Viewpoints","Big Pharma and Drug Pricing","978-1-5345-0176-8",{"$f":"HYPERLINK(Table1[[#This Row],[eCommerce Hyperlink]],\"Book Weblink\")","v":"Book Weblink"},null,"Greenhaven Publishing","Library Bound Book",1,"2018","January 2018","Library","6.000 X 9.000","Edited by","Pete Schauer",null,null,null,null,"Z",null,"Grade 10 - 12","Grade 9 - 12","Americans pay among the highest prices for prescription drugs, thanks to government legislation and the powerful pharmaceutical lobbies. The effect has been disastrous, with many citizens obtaining cheaper medicine from Canada, and others forgoing it altogether at the risk of their health. These crippling prices are set by \"big pharma,\" at the insistence of those who support free trade. Consumers call the pharmaceutical companies greedy and selfish, but these companies also enact change, through scientific research, curing of diseases, and community outreach. What is the answer to this complex issue? Readers will learn about the conflicts and potential solutions in this compelling volume.","English",49.8,39.840000000000003,"338.4/361510973--dc23","208 pp.","https://greenhavenpublishing.com/9781534501768",null,{"$f":"Table1[[#This Row],['# of Books]]*Table1[[#This Row],[QTY]]","v":0},{"$f":"Table1[[#This Row],[QTY]]*Table1[[#This Row],[School & Library Price]]","v":0}]
[null,null,6,null,null,"Current Issues","Opposing Viewpoints","Big Pharma and Drug Pricing","978-1-5345-0182-9",{"$f":"HYPERLINK(Table1[[#This Row],[eCommerce Hyperlink]],\"Book Weblink\")","v":"Book Weblink"},null,"Greenhaven Publishing","Paperback Book",1,"2018","January 2018","Paperback","6.000 X 9.000","Edited by","Pete Schauer",null,null,null,null,"Z",null,"Grade 10 - 12","Grade 9 - 12","Americans pay among the highest prices for prescription drugs, thanks to government legislation and the powerful pharmaceutical lobbies. The effect has been disastrous, with many citizens obtaining cheaper medicine from Canada, and others forgoing it altogether at the risk of their health. These crippling prices are set by \"big pharma,\" at the insistence of those who support free trade. Consumers call the pharmaceutical companies greedy and selfish, but these companies also enact change, through scientific research, curing of diseases, and community outreach. What is the answer to this complex issue? Readers will learn about the conflicts and potential solutions in this compelling volume.","English",34.799999999999997,27.85,"338.4/361510973--dc23","208 pp.","https://greenhavenpublishing.com/9781534501829",null,{"$f":"Table1[[#This Row],['# of Books]]*Table1[[#This Row],[QTY]]","v":0},{"$f":"Table1[[#This Row],[QTY]]*Table1[[#This Row],[School & Library Price]]","v":0}]
[null,null,6,null,null,"Current Issues","Opposing Viewpoints","Black Lives Matter","978-1-5345-0289-5",{"$f":"HYPERLINK(Table1[[#This Row],[eCommerce Hyperlink]],\"Book Weblink\")","v":"Book Weblink"},null,"Greenhaven Publishing","Library Bound Book",1,"2019","August 2018","Library","6.000 X 9.000","Edited by","Martin Gitlin",null,null,null,null,"Z",null,"Grade 10 - 12","Grade 9 - 12","In 2012, a seventeen-year-old African American boy named Trayvon Martin was murdered in cold blood by a neighborhood vigilante. When the murderer was acquitted, shockwaves ran through African American communities across the United States. The frustration over the perceived lack of value of African Americans in the United States spurred #BlackLivesMatter. The activist group mobilized as a rash of killings of unarmed African Americans by police seemed to plague the country. But many whites didn't understand their cause and responded with \"All Lives Matter.\" The viewpoints in this resource ask important questions regarding race in the United States.","English",49.8,39.840000000000003,"323.1196/073--dc23","200 pp.","https://greenhavenpublishing.com/9781534502895",null,{"$f":"Table1[[#This Row],['# of Books]]*Table1[[#This Row],[QTY]]","v":0},{"$f":"Table1[[#This Row],[QTY]]*Table1[[#This Row],[School & Library Price]]","v":0}]
[null,null,6,null,null,"Current Issues","Opposing Viewpoints","Black Lives Matter","978-1-5345-0290-1",{"$f":"HYPERLINK(Table1[[#This Row],[eCommerce Hyperlink]],\"Book Weblink\")","v":"Book Weblink"},null,"Greenhaven Publishing","Paperback Book",1,"2019","August 2018","Paperback","6.000 X 9.000","Edited by","Martin Gitlin",null,null,null,null,"Z",null,"Grade 10 - 12","Grade 9 - 12","In 2012, a seventeen-year-old African American boy named Trayvon Martin was murdered in cold blood by a neighborhood vigilante. When the murderer was acquitted, shockwaves ran through African American communities across the United States. The frustration over the perceived lack of value of African Americans in the United States spurred #BlackLivesMatter. The activist group mobilized as a rash of killings of unarmed African Americans by police seemed to plague the country. But many whites didn't understand their cause and responded with \"All Lives Matter.\" The viewpoints in this resource ask important questions regarding race in the United States.","English",34.799999999999997,27.85,"323.1196/073--dc23","200 pp.","https://greenhavenpublishing.com/9781534502901",null,{"$f":"Table1[[#This Row],['# of Books]]*Table1[[#This Row],[QTY]]","v":0},{"$f":"Table1[[#This Row],[QTY]]*Table1[[#This Row],[School & Library Price]]","v":0}]
[null,null,6,null,null,"Current Issues","Opposing Viewpoints","Campaign Finance","978-1-5345-0411-0",{"$f":"HYPERLINK(Table1[[#This Row],[eCommerce Hyperlink]],\"Book Weblink\")","v":"Book Weblink"},null,"Greenhaven Publishing","Library Bound Book",1,"2019","January 2019","Library","6.000 X 9.000","Edited by","Kathryn Roberts",null,null,null,null,"Z",null,"Grade 10 - 12","Grade 9 - 12","Even before the controversy of the 2016 U.S. presidential election, it was clear that the nation's political campaign system is deeply flawed. With political action committees, special interest groups, and ultra-wealthy donors buying and selling candidates, Americans end up with representatives who may be more beholden to top donors than to the American people. Would campaign finance reform level the playing field and give Americans the best candidates for the job, or is it a losing proposition that we must accept? The opposing perspectives in this volume will encourage readers to make up their own minds on this polarizing issue.","English",49.8,39.840000000000003,"324.7/80973--dc23","200 pp.","https://greenhavenpublishing.com/9781534504110",null,{"$f":"Table1[[#This Row],['# of Books]]*Table1[[#This Row],[QTY]]","v":0},{"$f":"Table1[[#This Row],[QTY]]*Table1[[#This Row],[School & Library Price]]","v":0}]
[null,null,6,null,null,"Current Issues","Opposing Viewpoints","Campaign Finance","978-1-5345-0433-2",{"$f":"HYPERLINK(Table1[[#This Row],[eCommerce Hyperlink]],\"Book Weblink\")","v":"Book Weblink"},null,"Greenhaven Publishing","Paperback Book",1,"2019","January 2019","Paperback","6.000 X 9.000","Edited by","Kathryn Roberts",null,null,null,null,"Z",null,"Grade 10 - 12","Grade 9 - 12","Even before the controversy of the 2016 U.S. presidential election, it was clear that the nation's political campaign system is deeply flawed. With political action committees, special interest groups, and ultra-wealthy donors buying and selling candidates, Americans end up with representatives who may be more beholden to top donors than to the American people. Would campaign finance reform level the playing field and give Americans the best candidates for the job, or is it a losing proposition that we must accept? The opposing perspectives in this volume will encourage readers to make up their own minds on this polarizing issue.","English",34.799999999999997,27.85,"324.7/80973--dc23","200 pp.","https://greenhavenpublishing.com/9781534504332",null,{"$f":"Table1[[#This Row],['# of Books]]*Table1[[#This Row],[QTY]]","v":0},{"$f":"Table1[[#This Row],[QTY]]*Table1[[#This Row],[School & Library Price]]","v":0}]
[null,7,6,null,null,"Current Issues","Opposing Viewpoints","Cancel Culture","978-1-5345-0759-3",{"$f":"HYPERLINK(Table1[[#This Row],[eCommerce Hyperlink]],\"Book Weblink\")","v":"Book Weblink"},null,"Greenhaven Publishing","Library Bound Book",1,"2022","August 2021","Library","6.000 X 9.000","Compiled by","Lita Sorensen",null,null,null,null,"Z",null,"Grade 10 - 12","Grade 9 - 12","Deciding not to support a person or corporation you find objectionable is nothing new, but recently, this practice has made headlines and been rebranded as \"cancel culture.\" This may be attributed to the #MeToo movement and political divisiveness prevalent in the United States at this time. Whatever the reason, we now see major figures suddenly being \"canceled\" for their actions. The diverse viewpoints in this volume attempt to understand this phenomenon in the context of the current moment of social awareness. Readers will decide whether or not canceling someone is a form of censorship or mob mentality.","English",49.8,39.840000000000003,"302.23/1--dc23","176 pp.","https://greenhavenpublishing.com/9781534507593",null,{"$f":"Table1[[#This Row],['# of Books]]*Table1[[#This Row],[QTY]]","v":0},{"$f":"Table1[[#This Row],[QTY]]*Table1[[#This Row],[School & Library Price]]","v":0}]
[null,7,6,null,null,"Current Issues","Opposing Viewpoints","Cancel Culture","978-1-5345-0757-9",{"$f":"HYPERLINK(Table1[[#This Row],[eCommerce Hyperlink]],\"Book Weblink\")","v":"Book Weblink"},null,"Greenhaven Publishing","Paperback Book",1,"2022","August 2021","Paperback","6.000 X 9.000","Compiled by","Lita Sorensen",null,null,null,null,"Z",null,"Grade 10 - 12","Grade 9 - 12","Deciding not to support a person or corporation you find objectionable is nothing new, but recently, this practice has made headlines and been rebranded as \"cancel culture.\" This may be attributed to the #MeToo movement and political divisiveness prevalent in the United States at this time. Whatever the reason, we now see major figures suddenly being \"canceled\" for their actions. The diverse viewpoints in this volume attempt to understand this phenomenon in the context of the current moment of social awareness. Readers will decide whether or not canceling someone is a form of censorship or mob mentality.","English",34.799999999999997,27.85,"302.23/1--dc23","176 pp.","https://greenhavenpublishing.com/9781534507579",null,{"$f":"Table1[[#This Row],['# of Books]]*Table1[[#This Row],[QTY]]","v":0},{"$f":"Table1[[#This Row],[QTY]]*Table1[[#This Row],[School & Library Price]]","v":0}]
[null,null,6,null,null,"Current Issues","Opposing Viewpoints","Corporate Farming","978-1-5345-0051-8",{"$f":"HYPERLINK(Table1[[#This Row],[eCommerce Hyperlink]],\"Book Weblink\")","v":"Book Weblink"},null,"Greenhaven Publishing","Library Bound Book",1,"2018","August 2017","Library","6.000 X 9.000","Edited by","Avery Elizabeth Hurt",null,null,null,null,"Z",null,"Grade 10 - 12","Grade 9 - 12","Corporate farms have solved so many of the world's problems. In addition to making healthy food accessible and affordable to more people, they provide jobs in communities that sorely need them. Questions must be answered. Do corporations have too much power over food? Do they benefit from unfair tax breaks? Are their profit-driven practices hurting the environment, perhaps irreparably? What does their success mean for the family farmer? This thought-provoking volume tackles these questions, providing readers with analysis that will lead to their own intelligent opinions.","English",49.8,39.840000000000003,"338.1--dc23","208 pp.","https://greenhavenpublishing.com/9781534500518",null,{"$f":"Table1[[#This Row],['# of Books]]*Table1[[#This Row],[QTY]]","v":0},{"$f":"Table1[[#This Row],[QTY]]*Table1[[#This Row],[School & Library Price]]","v":0}]
[null,null,6,null,null,"Current Issues","Opposing Viewpoints","Corporate Farming","978-1-5345-0049-5",{"$f":"HYPERLINK(Table1[[#This Row],[eCommerce Hyperlink]],\"Book Weblink\")","v":"Book Weblink"},null,"Greenhaven Publishing","Paperback Book",1,"2018","August 2017","Paperback","6.000 X 9.000","Edited by","Avery Elizabeth Hurt",null,null,null,null,"Z",null,"Grade 10 - 12","Grade 9 - 12","Corporate farms have solved so many of the world's problems. In addition to making healthy food accessible and affordable to more people, they provide jobs in communities that sorely need them. Questions must be answered. Do corporations have too much power over food? Do they benefit from unfair tax breaks? Are their profit-driven practices hurting the environment, perhaps irreparably? What does their success mean for the family farmer? This thought-provoking volume tackles these questions, providing readers with analysis that will lead to their own intelligent opinions.","English",34.799999999999997,27.85,"338.1--dc23","208 pp.","https://greenhavenpublishing.com/9781534500495",null,{"$f":"Table1[[#This Row],['# of Books]]*Table1[[#This Row],[QTY]]","v":0},{"$f":"Table1[[#This Row],[QTY]]*Table1[[#This Row],[School & Library Price]]","v":0}]
[null,7,6,null,null,"Current Issues","Opposing Viewpoints","Development, Land Use, and Environmental Impact","978-1-5345-0510-0",{"$f":"HYPERLINK(Table1[[#This Row],[eCommerce Hyperlink]],\"Book Weblink\")","v":"Book Weblink"},null,"Greenhaven Publishing","Library Bound Book",1,"2020","August 2019","Library","6.000 X 9.000","Edited by","Srijita C. Pal",null,null,null,null,"Z",null,"Grade 10 - 12","Grade 9 - 12","In the past quarter-century, the total area of developed land in the United States increased by nearly 50 percent. Such a shift comes with substantial environmental, economic, and social impacts. Conflicts arise over regulation, with advocates concerned about the harm excessive development does to the environment and critics charging that urbanization is a natural shift in the market. The diverse perspectives in this resource strive to address the tough questions that arise from this important issue.","English",49.8,39.840000000000003,"333.73/13--dc23","176 pp.","https://greenhavenpublishing.com/9781534505100",null,{"$f":"Table1[[#This Row],['# of Books]]*Table1[[#This Row],[QTY]]","v":0},{"$f":"Table1[[#This Row],[QTY]]*Table1[[#This Row],[School & Library Price]]","v":0}]
[null,7,6,null,null,"Current Issues","Opposing Viewpoints","Development, Land Use, and Environmental Impact","978-1-5345-0511-7",{"$f":"HYPERLINK(Table1[[#This Row],[eCommerce Hyperlink]],\"Book Weblink\")","v":"Book Weblink"},null,"Greenhaven Publishing","Paperback Book",1,"2020","August 2019","Paperback","6.000 X 9.000","Edited by","Srijita C. Pal",null,null,null,null,"Z",null,"Grade 10 - 12","Grade 9 - 12","In the past quarter-century, the total area of developed land in the United States increased by nearly 50 percent. Such a shift comes with substantial environmental, economic, and social impacts. Conflicts arise over regulation, with advocates concerned about the harm excessive development does to the environment and critics charging that urbanization is a natural shift in the market. The diverse perspectives in this resource strive to address the tough questions that arise from this important issue.","English",34.799999999999997,27.85,"333.73/13--dc23","176 pp.","https://greenhavenpublishing.com/9781534505117",null,{"$f":"Table1[[#This Row],['# of Books]]*Table1[[#This Row],[QTY]]","v":0},{"$f":"Table1[[#This Row],[QTY]]*Table1[[#This Row],[School & Library Price]]","v":0}]
[null,7,6,null,null,"Current Issues","Opposing Viewpoints","DNA Testing and Privacy","978-1-5345-0500-1",{"$f":"HYPERLINK(Table1[[#This Row],[eCommerce Hyperlink]],\"Book Weblink\")","v":"Book Weblink"},null,"Greenhaven Publishing","Library Bound Book",1,"2020","August 2019","Library","6.000 X 9.000","Edited by","Barbara Krasner ",null,null,null,null,"Z",null,"Grade 10 - 12","Grade 9 - 12","Home DNA testing companies, such as 23 and Me and AncestryDNA, are at peak popularity, fulfilling our desires to know where we come from and what our future might look like. Questions have arisen about who owns test results and whether testing companies have the right to sell customers' data to pharmaceutical companies and other outlets. Yet home DNA tests have been credited with catching criminals, such as the Golden State Killer. Containing viewpoints from diverse voices in the field, this volume helps readers to examine the controversies surrounding home DNA tests.","English",49.8,39.840000000000003,"614/.1--dc23","176 pp.","https://greenhavenpublishing.com/9781534505001",null,{"$f":"Table1[[#This Row],['# of Books]]*Table1[[#This Row],[QTY]]","v":0},{"$f":"Table1[[#This Row],[QTY]]*Table1[[#This Row],[School & Library Price]]","v":0}]
[null,7,6,null,null,"Current Issues","Opposing Viewpoints","DNA Testing and Privacy","978-1-5345-0501-8",{"$f":"HYPERLINK(Table1[[#This Row],[eCommerce Hyperlink]],\"Book Weblink\")","v":"Book Weblink"},null,"Greenhaven Publishing","Paperback Book",1,"2020","August 2019","Paperback","6.000 X 9.000","Edited by","Barbara Krasner ",null,null,null,null,"Z",null,"Grade 10 - 12","Grade 9 - 12","Home DNA testing companies, such as 23 and Me and AncestryDNA, are at peak popularity, fulfilling our desires to know where we come from and what our future might look like. Questions have arisen about who owns test results and whether testing companies have the right to sell customers' data to pharmaceutical companies and other outlets. Yet home DNA tests have been credited with catching criminals, such as the Golden State Killer. Containing viewpoints from diverse voices in the field, this volume helps readers to examine the controversies surrounding home DNA tests.","English",34.799999999999997,27.85,"614/.1--dc23","176 pp.","https://greenhavenpublishing.com/9781534505018",null,{"$f":"Table1[[#This Row],['# of Books]]*Table1[[#This Row],[QTY]]","v":0},{"$f":"Table1[[#This Row],[QTY]]*Table1[[#This Row],[School & Library Price]]","v":0}]
[null,7,6,null,null,"Current Issues","Opposing Viewpoints","Domestic Terrorism","978-1-5345-0695-4",{"$f":"HYPERLINK(Table1[[#This Row],[eCommerce Hyperlink]],\"Book Weblink\")","v":"Book Weblink"},null,"Greenhaven Publishing","Library Bound Book",1,"2021","August 2020","Library","6.000 X 9.000","Compiled by","Gary Wiener",null,null,null,null,"Z",null,"Grade 10 - 12","Grade 9 - 12","We think we know it when we see it, but what is domestic terrorism exactly? Part of the confusion may stem from the fact that there is hesitancy among top federal agencies to define it. Starting with the reasons why this is so, this volume explores whether serious concerns about domestic terrorism are justified, if there are situations when domestic terrorism is justified, and how politicians and the media may be stoking domestic terrorism. Your readers will evaluate which efforts could lead to the prevention of domestic terrorism incidents.","English",49.8,39.840000000000003,"363.3250973--dc23","176 pp.","https://greenhavenpublishing.com/9781534506954",null,{"$f":"Table1[[#This Row],['# of Books]]*Table1[[#This Row],[QTY]]","v":0},{"$f":"Table1[[#This Row],[QTY]]*Table1[[#This Row],[School & Library Price]]","v":0}]
[null,7,6,null,null,"Current Issues","Opposing Viewpoints","Domestic Terrorism","978-1-5345-0694-7",{"$f":"HYPERLINK(Table1[[#This Row],[eCommerce Hyperlink]],\"Book Weblink\")","v":"Book Weblink"},null,"Greenhaven Publishing","Paperback Book",1,"2021","August 2020","Paperback","6.000 X 9.000","Compiled by","Gary Wiener",null,null,null,null,"Z",null,"Grade 10 - 12","Grade 9 - 12","We think we know it when we see it, but what is domestic terrorism exactly? Part of the confusion may stem from the fact that there is hesitancy among top federal agencies to define it. Starting with the reasons why this is so, this volume explores whether serious concerns about domestic terrorism are justified, if there are situations when domestic terrorism is justified, and how politicians and the media may be stoking domestic terrorism. Your readers will evaluate which efforts could lead to the prevention of domestic terrorism incidents.","English",34.799999999999997,27.85,"363.3250973--dc23","176 pp.","https://greenhavenpublishing.com/9781534506947",null,{"$f":"Table1[[#This Row],['# of Books]]*Table1[[#This Row],[QTY]]","v":0},{"$f":"Table1[[#This Row],[QTY]]*Table1[[#This Row],[School & Library Price]]","v":0}]
[null,6,6,null,null,"Current Issues","Opposing Viewpoints","Educational Equity","978-1-5345-0845-3",{"$f":"HYPERLINK(Table1[[#This Row],[eCommerce Hyperlink]],\"Book Weblink\")","v":"Book Weblink"},null,"Greenhaven Publishing","Library Bound Book",1,"2022","January 2022","Library","6.000 X 9.000","Edited by","M. M. Eboch",null,null,null,null,"Z",null,"Grade 10 - 12","Grade 9 - 12","If children are the future, the importance of educating them cannot be overvalued. Why, then, is access to quality education in the US consistently under debate? The US is known as the Land of Opportunity, but the truth is that many children are unable to meet their potential simply because of educational inequities. The viewpoints in this resource examine the difference between equality and equitability; issues such as funding disparities, impacts of gender, race, and socioeconomic status, and lack of resources; and what can be done to ensure that every student has a chance to succeed, regardless of their background.","English",49.8,39.840000000000003,"379.2/60973--dc23","200 pp.","https://greenhavenpublishing.com/9781534508453",null,{"$f":"Table1[[#This Row],['# of Books]]*Table1[[#This Row],[QTY]]","v":0},{"$f":"Table1[[#This Row],[QTY]]*Table1[[#This Row],[School & Library Price]]","v":0}]
[null,6,6,null,null,"Current Issues","Opposing Viewpoints","Educational Equity","978-1-5345-0844-6",{"$f":"HYPERLINK(Table1[[#This Row],[eCommerce Hyperlink]],\"Book Weblink\")","v":"Book Weblink"},null,"Greenhaven Publishing","Paperback Book",1,"2022","January 2022","Paperback","6.000 X 9.000","Edited by","M. M. Eboch",null,null,null,null,"Z",null,"Grade 10 - 12","Grade 9 - 12","If children are the future, the importance of educating them cannot be overvalued. Why, then, is access to quality education in the US consistently under debate? The US is known as the Land of Opportunity, but the truth is that many children are unable to meet their potential simply because of educational inequities. The viewpoints in this resource examine the difference between equality and equitability; issues such as funding disparities, impacts of gender, race, and socioeconomic status, and lack of resources; and what can be done to ensure that every student has a chance to succeed, regardless of their background.","English",34.799999999999997,27.85,"379.2/60973--dc23","200 pp.","https://greenhavenpublishing.com/9781534508446",null,{"$f":"Table1[[#This Row],['# of Books]]*Table1[[#This Row],[QTY]]","v":0},{"$f":"Table1[[#This Row],[QTY]]*Table1[[#This Row],[School & Library Price]]","v":0}]
[null,null,6,null,null,"Current Issues","Opposing Viewpoints","Feminism","978-1-5345-0291-8",{"$f":"HYPERLINK(Table1[[#This Row],[eCommerce Hyperlink]],\"Book Weblink\")","v":"Book Weblink"},null,"Greenhaven Publishing","Library Bound Book",1,"2019","August 2018","Library","6.000 X 9.000","Edited by","Avery Elizabeth Hurt",null,null,null,null,"Z",null,"Grade 10 - 12","Grade 9 - 12","Nearly a half-century after the women's liberation movement, women have achieved things that their grandmothers might only have dreamed. Now that women work in boardrooms, executive suites, and top government positions, as well as in the home, some believe that the fight has been won. For others, the perception that women are on equal footing with men is dangerous. Through diverse perspectives, this enlightening volume explores the current debates on feminism's front, including the pay gap, violence against women, substandard health care, reproductive rights, and representation in government.","English",49.8,39.840000000000003,"305.42--dc23","176 pp.","https://greenhavenpublishing.com/9781534502918",null,{"$f":"Table1[[#This Row],['# of Books]]*Table1[[#This Row],[QTY]]","v":0},{"$f":"Table1[[#This Row],[QTY]]*Table1[[#This Row],[School & Library Price]]","v":0}]
[null,null,6,null,null,"Current Issues","Opposing Viewpoints","Feminism","978-1-5345-0292-5",{"$f":"HYPERLINK(Table1[[#This Row],[eCommerce Hyperlink]],\"Book Weblink\")","v":"Book Weblink"},null,"Greenhaven Publishing","Paperback Book",1,"2019","August 2018","Paperback","6.000 X 9.000","Edited by","Avery Elizabeth Hurt",null,null,null,null,"Z",null,"Grade 10 - 12","Grade 9 - 12","Nearly a half-century after the women's liberation movement, women have achieved things that their grandmothers might only have dreamed. Now that women work in boardrooms, executive suites, and top government positions, as well as in the home, some believe that the fight has been won. For others, the perception that women are on equal footing with men is dangerous. Through diverse perspectives, this enlightening volume explores the current debates on feminism's front, including the pay gap, violence against women, substandard health care, reproductive rights, and representation in government.","English",34.799999999999997,27.85,"305.42--dc23","176 pp.","https://greenhavenpublishing.com/9781534502925",null,{"$f":"Table1[[#This Row],['# of Books]]*Table1[[#This Row],[QTY]]","v":0},{"$f":"Table1[[#This Row],[QTY]]*Table1[[#This Row],[School & Library Price]]","v":0}]
[null,7,6,null,null,"Current Issues","Opposing Viewpoints","Gender in the 21st Century","978-1-5345-0593-3",{"$f":"HYPERLINK(Table1[[#This Row],[eCommerce Hyperlink]],\"Book Weblink\")","v":"Book Weblink"},null,"Greenhaven Publishing","Library Bound Book",1,"2020","January 2020","Library","6.000 X 9.000","Edited by","M. M. Eboch",null,null,null,null,"Z",null,"Grade 10 - 12","Grade 9 - 12","Once we understand that gender is distinct from sex, a whole world of possibilities open up, along with the potential for confusion. Shifting attitudes about the roles of men and women have allowed younger generations to refuse to be pigeonholed into conventional gender norms. As a result, the 21st century seems ripe for a gender revolution. The viewpoints in this volume approach gender from a variety of perspectives, providing readers with food for thought about where gender comes from, how we can make sense of its importance, and where it might be headed.","English",49.8,39.840000000000003,"305.3--dc23","176 pp.","https://greenhavenpublishing.com/9781534505933",null,{"$f":"Table1[[#This Row],['# of Books]]*Table1[[#This Row],[QTY]]","v":0},{"$f":"Table1[[#This Row],[QTY]]*Table1[[#This Row],[School & Library Price]]","v":0}]
[null,7,6,null,null,"Current Issues","Opposing Viewpoints","Gender in the 21st Century","978-1-5345-0592-6",{"$f":"HYPERLINK(Table1[[#This Row],[eCommerce Hyperlink]],\"Book Weblink\")","v":"Book Weblink"},null,"Greenhaven Publishing","Paperback Book",1,"2020","January 2020","Paperback","6.000 X 9.000","Edited by","M. M. Eboch",null,null,null,null,"Z",null,"Grade 10 - 12","Grade 9 - 12","Once we understand that gender is distinct from sex, a whole world of possibilities open up, along with the potential for confusion. Shifting attitudes about the roles of men and women have allowed younger generations to refuse to be pigeonholed into conventional gender norms. As a result, the 21st century seems ripe for a gender revolution. The viewpoints in this volume approach gender from a variety of perspectives, providing readers with food for thought about where gender comes from, how we can make sense of its importance, and where it might be headed.","English",34.799999999999997,27.85,"305.3--dc23","176 pp.","https://greenhavenpublishing.com/9781534505926",null,{"$f":"Table1[[#This Row],['# of Books]]*Table1[[#This Row],[QTY]]","v":0},{"$f":"Table1[[#This Row],[QTY]]*Table1[[#This Row],[School & Library Price]]","v":0}]
[null,7,6,null,null,"Current Issues","Opposing Viewpoints","Genetically Modified Foods and the Global Food Supply","978-1-5345-0687-9",{"$f":"HYPERLINK(Table1[[#This Row],[eCommerce Hyperlink]],\"Book Weblink\")","v":"Book Weblink"},null,"Greenhaven Publishing","Library Bound Book",1,"2022","August 2021","Library","6.000 X 9.000","Compiled by","Avery Elizabeth Hurt",null,null,null,null,"Z",null,"Grade 10 - 12","Grade 9 - 12","On the surface, it seems that genetically modified foods or GM foods are a reasonable defense against world hunger and malnutrition. They may offer solutions to other global problems as well. Critics argue that GM foods are unsafe and potentially hazardous to human health. They also claim that the engineering of GM foods harms the environment. So what is the truth? The curated essays in this volume present viewpoints from different sides of the debates surrounding genetically modified foods and a shrinking food supply.","English",49.8,39.840000000000003,"664--dc23","176 pp.","https://greenhavenpublishing.com/9781534506879",null,{"$f":"Table1[[#This Row],['# of Books]]*Table1[[#This Row],[QTY]]","v":0},{"$f":"Table1[[#This Row],[QTY]]*Table1[[#This Row],[School & Library Price]]","v":0}]
[null,7,6,null,null,"Current Issues","Opposing Viewpoints","Genetically Modified Foods and the Global Food Supply","978-1-5345-0686-2",{"$f":"HYPERLINK(Table1[[#This Row],[eCommerce Hyperlink]],\"Book Weblink\")","v":"Book Weblink"},null,"Greenhaven Publishing","Paperback Book",1,"2022","August 2021","Paperback","6.000 X 9.000","Compiled by","Avery Elizabeth Hurt",null,null,null,null,"Z",null,"Grade 10 - 12","Grade 9 - 12","On the surface, it seems that genetically modified foods or GM foods are a reasonable defense against world hunger and malnutrition. They may offer solutions to other global problems as well. Critics argue that GM foods are unsafe and potentially hazardous to human health. They also claim that the engineering of GM foods harms the environment. So what is the truth? The curated essays in this volume present viewpoints from different sides of the debates surrounding genetically modified foods and a shrinking food supply.","English",34.799999999999997,27.85,"664--dc23","176 pp.","https://greenhavenpublishing.com/9781534506862",null,{"$f":"Table1[[#This Row],['# of Books]]*Table1[[#This Row],[QTY]]","v":0},{"$f":"Table1[[#This Row],[QTY]]*Table1[[#This Row],[School & Library Price]]","v":0}]
[null,null,6,null,null,"Current Issues","Opposing Viewpoints","Gentrification and the Housing Crisis","978-1-5345-0412-7",{"$f":"HYPERLINK(Table1[[#This Row],[eCommerce Hyperlink]],\"Book Weblink\")","v":"Book Weblink"},null,"Greenhaven Publishing","Library Bound Book",1,"2019","January 2019","Library","6.000 X 9.000","Edited by","Marcia Amidon Lusted",null,null,null,null,"Z",null,"Grade 10 - 12","Grade 9 - 12","Urban populations are on the rise, fueling a welcome rejuvenation of U.S. cities, many of which have been decaying since the suburban boom of the mid-twentieth century. But such renewal has resulted in the displacement of original residents, who can no longer keep pace with rising rents. Gentrification is often blamed for contributing to the housing crisis, but what about the improvements it has brought to America's cities? The diverse perspectives in this volume explore the different effects of gentrification and imagine solutions for accommodating everyone in this changing urban landscape.","English",49.8,39.840000000000003,"307.3/4160973--dc23","200 pp.","https://greenhavenpublishing.com/9781534504127",null,{"$f":"Table1[[#This Row],['# of Books]]*Table1[[#This Row],[QTY]]","v":0},{"$f":"Table1[[#This Row],[QTY]]*Table1[[#This Row],[School & Library Price]]","v":0}]
[null,null,6,null,null,"Current Issues","Opposing Viewpoints","Gentrification and the Housing Crisis","978-1-5345-0435-6",{"$f":"HYPERLINK(Table1[[#This Row],[eCommerce Hyperlink]],\"Book Weblink\")","v":"Book Weblink"},null,"Greenhaven Publishing","Paperback Book",1,"2019","January 2019","Paperback","6.000 X 9.000","Edited by","Marcia Amidon Lusted",null,null,null,null,"Z",null,"Grade 10 - 12","Grade 9 - 12","Urban populations are on the rise, fueling a welcome rejuvenation of U.S. cities, many of which have been decaying since the suburban boom of the mid-twentieth century. But such renewal has resulted in the displacement of original residents, who can no longer keep pace with rising rents. Gentrification is often blamed for contributing to the housing crisis, but what about the improvements it has brought to America's cities? The diverse perspectives in this volume explore the different effects of gentrification and imagine solutions for accommodating everyone in this changing urban landscape.","English",34.799999999999997,27.85,"307.3/4160973--dc23","200 pp.","https://greenhavenpublishing.com/9781534504356",null,{"$f":"Table1[[#This Row],['# of Books]]*Table1[[#This Row],[QTY]]","v":0},{"$f":"Table1[[#This Row],[QTY]]*Table1[[#This Row],[School & Library Price]]","v":0}]
[null,6,6,null,null,"Current Issues","Opposing Viewpoints","Green Politics","978-1-5345-0843-9",{"$f":"HYPERLINK(Table1[[#This Row],[eCommerce Hyperlink]],\"Book Weblink\")","v":"Book Weblink"},null,"Greenhaven Publishing","Library Bound Book",1,"2022","January 2022","Library","6.000 X 9.000","Edited by","M. M. Eboch",null,null,null,null,"Z",null,"Grade 10 - 12","Grade 9 - 12","Green parties began to take route in Europe in the 1970s and soon spread to other parts of the globe. This political ideology is rooted in environmentalism, nonviolence, and social justice. In the United States, the Green Party has failed to make a mark on national politics, like all third parties, and under the current election system it seems unlikely that will change. The viewpoints in this resource debate the issues and relevance of the Green Party, ways in which it can promote its agenda without candidates in office, and how it can it achieve success.","English",49.8,39.840000000000003,"320.58--dc23","200 pp.","https://greenhavenpublishing.com/9781534508439",null,{"$f":"Table1[[#This Row],['# of Books]]*Table1[[#This Row],[QTY]]","v":0},{"$f":"Table1[[#This Row],[QTY]]*Table1[[#This Row],[School & Library Price]]","v":0}]
[null,6,6,null,null,"Current Issues","Opposing Viewpoints","Green Politics","978-1-5345-0842-2",{"$f":"HYPERLINK(Table1[[#This Row],[eCommerce Hyperlink]],\"Book Weblink\")","v":"Book Weblink"},null,"Greenhaven Publishing","Paperback Book",1,"2022","January 2022","Paperback","6.000 X 9.000","Edited by","M. M. Eboch",null,null,null,null,"Z",null,"Grade 10 - 12","Grade 9 - 12","Green parties began to take route in Europe in the 1970s and soon spread to other parts of the globe. This political ideology is rooted in environmentalism, nonviolence, and social justice. In the United States, the Green Party has failed to make a mark on national politics, like all third parties, and under the current election system it seems unlikely that will change. The viewpoints in this resource debate the issues and relevance of the Green Party, ways in which it can promote its agenda without candidates in office, and how it can it achieve success.","English",34.799999999999997,27.85,"320.58--dc23","200 pp.","https://greenhavenpublishing.com/9781534508422",null,{"$f":"Table1[[#This Row],['# of Books]]*Table1[[#This Row],[QTY]]","v":0},{"$f":"Table1[[#This Row],[QTY]]*Table1[[#This Row],[School & Library Price]]","v":0}]
[null,null,6,null,null,"Current Issues","Opposing Viewpoints","Hacking and Freedom of Information","978-1-5345-0178-2",{"$f":"HYPERLINK(Table1[[#This Row],[eCommerce Hyperlink]],\"Book Weblink\")","v":"Book Weblink"},null,"Greenhaven Publishing","Library Bound Book",1,"2018","January 2018","Library","6.000 X 9.000","Edited by","Marcia Amidon Lusted",null,null,null,null,"Z",null,"Grade 10 - 12","Grade 9 - 12","We know there are white hat hackers and black hat hackers, but what about the gray area in between? Some hackers consider themselves activists and have justified their cyberattacks on media, political figures, universities, and even governments as a search for truth. Is information indeed free in a democracy? Does uncovering secrets that the public may have a right to know justify security breaches? Are WikiLeaks and the Anonymous group providing an important service to citizens, or are they traitors? Through a progression of authoritative viewpoints, readers will learn that there are no easy answers to this debate.","English",49.8,39.840000000000003,"364.16/8--dc23","208 pp.","https://greenhavenpublishing.com/9781534501782",null,{"$f":"Table1[[#This Row],['# of Books]]*Table1[[#This Row],[QTY]]","v":0},{"$f":"Table1[[#This Row],[QTY]]*Table1[[#This Row],[School & Library Price]]","v":0}]
[null,null,6,null,null,"Current Issues","Opposing Viewpoints","Hacking and Freedom of Information","978-1-5345-0184-3",{"$f":"HYPERLINK(Table1[[#This Row],[eCommerce Hyperlink]],\"Book Weblink\")","v":"Book Weblink"},null,"Greenhaven Publishing","Paperback Book",1,"2018","January 2018","Paperback","6.000 X 9.000","Edited by","Marcia Amidon Lusted",null,null,null,null,"Z",null,"Grade 10 - 12","Grade 9 - 12","We know there are white hat hackers and black hat hackers, but what about the gray area in between? Some hackers consider themselves activists and have justified their cyberattacks on media, political figures, universities, and even governments as a search for truth. Is information indeed free in a democracy? Does uncovering secrets that the public may have a right to know justify security breaches? Are WikiLeaks and the Anonymous group providing an important service to citizens, or are they traitors? Through a progression of authoritative viewpoints, readers will learn that there are no easy answers to this debate.","English",34.799999999999997,27.85,"364.16/8--dc23","208 pp.","https://greenhavenpublishing.com/9781534501843",null,{"$f":"Table1[[#This Row],['# of Books]]*Table1[[#This Row],[QTY]]","v":0},{"$f":"Table1[[#This Row],[QTY]]*Table1[[#This Row],[School & Library Price]]","v":0}]
[null,null,6,null,null,"Current Issues","Opposing Viewpoints","Harm Reduction: Public Health Strategies","978-1-5345-0413-4",{"$f":"HYPERLINK(Table1[[#This Row],[eCommerce Hyperlink]],\"Book Weblink\")","v":"Book Weblink"},null,"Greenhaven Publishing","Library Bound Book",1,"2019","January 2019","Library","6.000 X 9.000","Edited by","Barbara Krasner ",null,null,null,null,"Z",null,"Grade 10 - 12","Grade 9 - 12","The war on drugs has done little to curb drug use. Accidental drug overdose is the second-leading cause of injury-related deaths for young people. Enter harm reduction, a philosophy that accepts the idea that drug use is inevitable and that making it safer is a more realistic approach. But is harm reduction merely enabling dangerous and potentially deadly behavior? Does distributing clean needles to drug addicts send the wrong message? Is abstinence the only way to stop people from engaging in risky behavior? Experts on several sides of the debate offer perspectives on this fascinating issue.","English",49.8,39.840000000000003,"362.290973--dc23","176 pp.","https://greenhavenpublishing.com/9781534504134",null,{"$f":"Table1[[#This Row],['# of Books]]*Table1[[#This Row],[QTY]]","v":0},{"$f":"Table1[[#This Row],[QTY]]*Table1[[#This Row],[School & Library Price]]","v":0}]
[null,null,6,null,null,"Current Issues","Opposing Viewpoints","Harm Reduction: Public Health Strategies","978-1-5345-0437-0",{"$f":"HYPERLINK(Table1[[#This Row],[eCommerce Hyperlink]],\"Book Weblink\")","v":"Book Weblink"},null,"Greenhaven Publishing","Paperback Book",1,"2019","January 2019","Paperback","6.000 X 9.000","Edited by","Barbara Krasner ",null,null,null,null,"Z",null,"Grade 10 - 12","Grade 9 - 12","The war on drugs has done little to curb drug use. Accidental drug overdose is the second-leading cause of injury-related deaths for young people. Enter harm reduction, a philosophy that accepts the idea that drug use is inevitable and that making it safer is a more realistic approach. But is harm reduction merely enabling dangerous and potentially deadly behavior? Does distributing clean needles to drug addicts send the wrong message? Is abstinence the only way to stop people from engaging in risky behavior? Experts on several sides of the debate offer perspectives on this fascinating issue.","English",34.799999999999997,27.85,"362.290973--dc23","176 pp.","https://greenhavenpublishing.com/9781534504370",null,{"$f":"Table1[[#This Row],['# of Books]]*Table1[[#This Row],[QTY]]","v":0},{"$f":"Table1[[#This Row],[QTY]]*Table1[[#This Row],[School & Library Price]]","v":0}]
[null,7,6,null,null,"Current Issues","Opposing Viewpoints","Human Migration","978-1-5345-0599-5",{"$f":"HYPERLINK(Table1[[#This Row],[eCommerce Hyperlink]],\"Book Weblink\")","v":"Book Weblink"},null,"Greenhaven Publishing","Library Bound Book",1,"2020","January 2020","Library","6.000 X 9.000","Edited by","Barbara Krasner ",null,null,null,null,"Z",null,"Grade 10 - 12","Grade 9 - 12","People around the world move from their homes for different reasons. Some seek opportunity. Others are fleeing dangerous conditions or have been displaced by environmental disasters. How welcoming should countries be toward immigrants and refugees, and what value do such migrants add to their new surroundings? The diverse viewpoints in this resource explore the benefits and shortcomings of strict immigration policies and open borders, how immigrants can sustain countries and how they can create larger problems, and what the international community is or is not obligated to do to help.","English",49.8,39.840000000000003,"325.73--dc23","200 pp.","https://greenhavenpublishing.com/9781534505995",null,{"$f":"Table1[[#This Row],['# of Books]]*Table1[[#This Row],[QTY]]","v":0},{"$f":"Table1[[#This Row],[QTY]]*Table1[[#This Row],[School & Library Price]]","v":0}]
[null,7,6,null,null,"Current Issues","Opposing Viewpoints","Human Migration","978-1-5345-0598-8",{"$f":"HYPERLINK(Table1[[#This Row],[eCommerce Hyperlink]],\"Book Weblink\")","v":"Book Weblink"},null,"Greenhaven Publishing","Paperback Book",1,"2020","January 2020","Paperback","6.000 X 9.000","Edited by","Barbara Krasner ",null,null,null,null,"Z",null,"Grade 10 - 12","Grade 9 - 12","People around the world move from their homes for different reasons. Some seek opportunity. Others are fleeing dangerous conditions or have been displaced by environmental disasters. How welcoming should countries be toward immigrants and refugees, and what value do such migrants add to their new surroundings? The diverse viewpoints in this resource explore the benefits and shortcomings of strict immigration policies and open borders, how immigrants can sustain countries and how they can create larger problems, and what the international community is or is not obligated to do to help.","English",34.799999999999997,27.85,"325.73--dc23","200 pp.","https://greenhavenpublishing.com/9781534505988",null,{"$f":"Table1[[#This Row],['# of Books]]*Table1[[#This Row],[QTY]]","v":0},{"$f":"Table1[[#This Row],[QTY]]*Table1[[#This Row],[School & Library Price]]","v":0}]
[null,7,6,null,null,"Current Issues","Opposing Viewpoints","Hunting and Conservation","978-1-5345-0693-0",{"$f":"HYPERLINK(Table1[[#This Row],[eCommerce Hyperlink]],\"Book Weblink\")","v":"Book Weblink"},null,"Greenhaven Publishing","Library Bound Book",1,"2021","August 2020","Library","6.000 X 9.000","Compiled by","Marcia Amidon Lusted",null,null,null,null,"Z",null,"Grade 10 - 12","Grade 9 - 12","Although hunting and conservation may appear to be at odds, the truth is that many great conservation efforts have been propelled by hunters. For example, the U.S. National Park System was created in large part to the efforts of hunters. So how does hunting benefit conservation today? Critics argue that hunting encourages poaching, animal cruelty, and can lead to extinction. Proponents counter that hunting encourages sustainability and controls animal populations, and that hunting for sustenance is more ethical than buying commercial meat. The diverging perspectives that comprise this volume provide readers with a comprehensive view of the controversies surrounding this topic.","English",49.8,39.840000000000003,"639/.1--dc23","176 pp.","https://greenhavenpublishing.com/9781534506930",null,{"$f":"Table1[[#This Row],['# of Books]]*Table1[[#This Row],[QTY]]","v":0},{"$f":"Table1[[#This Row],[QTY]]*Table1[[#This Row],[School & Library Price]]","v":0}]
[null,7,6,null,null,"Current Issues","Opposing Viewpoints","Hunting and Conservation","978-1-5345-0692-3",{"$f":"HYPERLINK(Table1[[#This Row],[eCommerce Hyperlink]],\"Book Weblink\")","v":"Book Weblink"},null,"Greenhaven Publishing","Paperback Book",1,"2021","August 2020","Paperback","6.000 X 9.000","Compiled by","Marcia Amidon Lusted",null,null,null,null,"Z",null,"Grade 10 - 12","Grade 9 - 12","Although hunting and conservation may appear to be at odds, the truth is that many great conservation efforts have been propelled by hunters. For example, the U.S. National Park System was created in large part to the efforts of hunters. So how does hunting benefit conservation today? Critics argue that hunting encourages poaching, animal cruelty, and can lead to extinction. Proponents counter that hunting encourages sustainability and controls animal populations, and that hunting for sustenance is more ethical than buying commercial meat. The diverging perspectives that comprise this volume provide readers with a comprehensive view of the controversies surrounding this topic.","English",34.799999999999997,27.85,"639/.1--dc23","176 pp.","https://greenhavenpublishing.com/9781534506923",null,{"$f":"Table1[[#This Row],['# of Books]]*Table1[[#This Row],[QTY]]","v":0},{"$f":"Table1[[#This Row],[QTY]]*Table1[[#This Row],[School & Library Price]]","v":0}]
[null,null,6,null,null,"Current Issues","Opposing Viewpoints","Identity Politics","978-1-5345-0174-4",{"$f":"HYPERLINK(Table1[[#This Row],[eCommerce Hyperlink]],\"Book Weblink\")","v":"Book Weblink"},null,"Greenhaven Publishing","Library Bound Book",1,"2018","January 2018","Library","6.000 X 9.000","Edited by","Elizabeth Schmermund",null,null,null,null,"Z",null,"Grade 10 - 12","Grade 9 - 12","In an age of divisiveness, perhaps more than America has seen in decades, identity politics has taken its share of the blame. Those who have cheered on progressive ideology often write off detractors as racists, homophobes, and misogynists. And those who rail against political correctness often feel their own voices are not being heard or, worse, are being censored. Do identity politics come at a cost to national empathy and unity? Or do they reflect and address legitimate discrimination? Through multiple perspectives, readers will learn why this topic has become a hot button issue.","English",49.8,39.840000000000003,"306.2--dc23","216 pp.","https://greenhavenpublishing.com/9781534501744",null,{"$f":"Table1[[#This Row],['# of Books]]*Table1[[#This Row],[QTY]]","v":0},{"$f":"Table1[[#This Row],[QTY]]*Table1[[#This Row],[School & Library Price]]","v":0}]
[null,null,6,null,null,"Current Issues","Opposing Viewpoints","Identity Politics","978-1-5345-0180-5",{"$f":"HYPERLINK(Table1[[#This Row],[eCommerce Hyperlink]],\"Book Weblink\")","v":"Book Weblink"},null,"Greenhaven Publishing","Paperback Book",1,"2018","January 2018","Paperback","6.000 X 9.000","Edited by","Elizabeth Schmermund",null,null,null,null,"Z",null,"Grade 10 - 12","Grade 9 - 12","In an age of divisiveness, perhaps more than America has seen in decades, identity politics has taken its share of the blame. Those who have cheered on progressive ideology often write off detractors as racists, homophobes, and misogynists. And those who rail against political correctness often feel their own voices are not being heard or, worse, are being censored. Do identity politics come at a cost to national empathy and unity? Or do they reflect and address legitimate discrimination? Through multiple perspectives, readers will learn why this topic has become a hot button issue.","English",34.799999999999997,27.85,"306.2--dc23","216 pp.","https://greenhavenpublishing.com/9781534501805",null,{"$f":"Table1[[#This Row],['# of Books]]*Table1[[#This Row],[QTY]]","v":0},{"$f":"Table1[[#This Row],[QTY]]*Table1[[#This Row],[School & Library Price]]","v":0}]
[null,null,6,null,null,"Current Issues","Opposing Viewpoints","Immigration Bans","978-1-5345-0059-4",{"$f":"HYPERLINK(Table1[[#This Row],[eCommerce Hyperlink]],\"Book Weblink\")","v":"Book Weblink"},null,"Greenhaven Publishing","Library Bound Book",1,"2018","August 2017","Library","6.000 X 9.000","Edited by","Elizabeth Schmermund",null,null,null,null,"Z",null,"Grade 10 - 12","Grade 9 - 12","Recent world events have brought the issue of immigration to the forefront of media and journalism, cultural debates, and political campaigns. Calls for regulation are criticized as racist and xenophobic by some and deemed necessary by others. This resource addresses important questions surrounding the issue: How do immigration bans affect different groups? How can nations reconcile humanitarian and security concerns for refugees? How much of the nation’s economy depends on immigrant labor? And finally, do increased border controls and deportations actually work?","English",49.8,39.840000000000003,"325.73--dc23","232 pp.","https://greenhavenpublishing.com/9781534500594",null,{"$f":"Table1[[#This Row],['# of Books]]*Table1[[#This Row],[QTY]]","v":0},{"$f":"Table1[[#This Row],[QTY]]*Table1[[#This Row],[School & Library Price]]","v":0}]
[null,null,6,null,null,"Current Issues","Opposing Viewpoints","Immigration Bans","978-1-5345-0057-0",{"$f":"HYPERLINK(Table1[[#This Row],[eCommerce Hyperlink]],\"Book Weblink\")","v":"Book Weblink"},null,"Greenhaven Publishing","Paperback Book",1,"2018","August 2017","Paperback","6.000 X 9.000","Edited by","Elizabeth Schmermund",null,null,null,null,"Z",null,"Grade 10 - 12","Grade 9 - 12","Recent world events have brought the issue of immigration to the forefront of media and journalism, cultural debates, and political campaigns. Calls for regulation are criticized as racist and xenophobic by some and deemed necessary by others. This resource addresses important questions surrounding the issue: How do immigration bans affect different groups? How can nations reconcile humanitarian and security concerns for refugees? How much of the nation’s economy depends on immigrant labor? And finally, do increased border controls and deportations actually work?","English",34.799999999999997,27.85,"325.73--dc23","232 pp.","https://greenhavenpublishing.com/9781534500570",null,{"$f":"Table1[[#This Row],['# of Books]]*Table1[[#This Row],[QTY]]","v":0},{"$f":"Table1[[#This Row],[QTY]]*Table1[[#This Row],[School & Library Price]]","v":0}]
[null,null,6,null,null,"Current Issues","Opposing Viewpoints","Interpreting the Bill of Rights","978-1-5345-0293-2",{"$f":"HYPERLINK(Table1[[#This Row],[eCommerce Hyperlink]],\"Book Weblink\")","v":"Book Weblink"},null,"Greenhaven Publishing","Library Bound Book",1,"2019","August 2018","Library","6.000 X 9.000","Edited by","Avery Elizabeth Hurt",null,null,null,null,"Z",null,"Grade 10 - 12","Grade 9 - 12","The first ten amendments to the U.S. Constitution were written to safeguard individual liberties and limit government power. Was the Bill of Rights necessary, or did it open up a can of worms the framers didn't intend? Throughout the course of U.S. history, amendments have been subject to various interpretations, often to the point of contention. In this informative anthology, readers will be exposed to the complex issues of interpreting a document that was created more than two hundred years ago.","English",49.8,39.840000000000003,"342.7303--dc23","200 pp.","https://greenhavenpublishing.com/9781534502932",null,{"$f":"Table1[[#This Row],['# of Books]]*Table1[[#This Row],[QTY]]","v":0},{"$f":"Table1[[#This Row],[QTY]]*Table1[[#This Row],[School & Library Price]]","v":0}]
[null,null,6,null,null,"Current Issues","Opposing Viewpoints","Interpreting the Bill of Rights","978-1-5345-0294-9",{"$f":"HYPERLINK(Table1[[#This Row],[eCommerce Hyperlink]],\"Book Weblink\")","v":"Book Weblink"},null,"Greenhaven Publishing","Paperback Book",1,"2019","August 2018","Paperback","6.000 X 9.000","Edited by","Avery Elizabeth Hurt",null,null,null,null,"Z",null,"Grade 10 - 12","Grade 9 - 12","The first ten amendments to the U.S. Constitution were written to safeguard individual liberties and limit government power. Was the Bill of Rights necessary, or did it open up a can of worms the framers didn't intend? Throughout the course of U.S. history, amendments have been subject to various interpretations, often to the point of contention. In this informative anthology, readers will be exposed to the complex issues of interpreting a document that was created more than two hundred years ago.","English",34.799999999999997,27.85,"342.7303--dc23","200 pp.","https://greenhavenpublishing.com/9781534502949",null,{"$f":"Table1[[#This Row],['# of Books]]*Table1[[#This Row],[QTY]]","v":0},{"$f":"Table1[[#This Row],[QTY]]*Table1[[#This Row],[School & Library Price]]","v":0}]
[null,7,6,null,null,"Current Issues","Opposing Viewpoints","Labor Unions and Workers' Rights","978-1-5345-0595-7",{"$f":"HYPERLINK(Table1[[#This Row],[eCommerce Hyperlink]],\"Book Weblink\")","v":"Book Weblink"},null,"Greenhaven Publishing","Library Bound Book",1,"2020","January 2020","Library","6.000 X 9.000","Edited by","Avery Elizabeth Hurt",null,null,null,null,"Z",null,"Grade 10 - 12","Grade 9 - 12","Labor unions have been a part of the United States ever since the Industrial Revolution, when laborers had to fight for safe working conditions and fair wages. But are unions still necessary today? Critics argue that labor unions stifle economic growth and harm workers more than they help. Supporters say unions are essential in ensuring that corporations don't take advantage of their labor force. This volume examines the labor force and its changing needs from the Industrial Revolution to the present, presenting diverging perspectives on the effectiveness of labor unions to ensure the safety and welfare of the American worker.","English",49.8,39.840000000000003,"331.880973--dc23","176 pp.","https://greenhavenpublishing.com/9781534505957",null,{"$f":"Table1[[#This Row],['# of Books]]*Table1[[#This Row],[QTY]]","v":0},{"$f":"Table1[[#This Row],[QTY]]*Table1[[#This Row],[School & Library Price]]","v":0}]
[null,7,6,null,null,"Current Issues","Opposing Viewpoints","Labor Unions and Workers' Rights","978-1-5345-0594-0",{"$f":"HYPERLINK(Table1[[#This Row],[eCommerce Hyperlink]],\"Book Weblink\")","v":"Book Weblink"},null,"Greenhaven Publishing","Paperback Book",1,"2020","January 2020","Paperback","6.000 X 9.000","Edited by","Avery Elizabeth Hurt",null,null,null,null,"Z",null,"Grade 10 - 12","Grade 9 - 12","Labor unions have been a part of the United States ever since the Industrial Revolution, when laborers had to fight for safe working conditions and fair wages. But are unions still necessary today? Critics argue that labor unions stifle economic growth and harm workers more than they help. Supporters say unions are essential in ensuring that corporations don't take advantage of their labor force. This volume examines the labor force and its changing needs from the Industrial Revolution to the present, presenting diverging perspectives on the effectiveness of labor unions to ensure the safety and welfare of the American worker.","English",34.799999999999997,27.85,"331.880973--dc23","176 pp.","https://greenhavenpublishing.com/9781534505940",null,{"$f":"Table1[[#This Row],['# of Books]]*Table1[[#This Row],[QTY]]","v":0},{"$f":"Table1[[#This Row],[QTY]]*Table1[[#This Row],[School & Library Price]]","v":0}]
[null,null,6,null,null,"Current Issues","Opposing Viewpoints","Mandatory Minimum Sentences","978-1-5345-0295-6",{"$f":"HYPERLINK(Table1[[#This Row],[eCommerce Hyperlink]],\"Book Weblink\")","v":"Book Weblink"},null,"Greenhaven Publishing","Library Bound Book",1,"2019","August 2018","Library","6.000 X 9.000","Edited by","H. Craig Erskine, III",null,null,null,null,"Z",null,"Grade 10 - 12","Grade 9 - 12","Is it fair to remove judicial discretion when sentencing criminals for certain crimes? This volume presents a wide diversity of opinions from an array of experts on the impact of mandatory minimum sentencing on crime, including the \"three strikes\" law. Readers are asked to examine the inherent fairness of mandatory sentences. Are they discriminatory? Do they usurp judicial power and result in overcrowded prisons? Or do they protect children and deter repeat offenders? Experts also weigh in on alternatives to mandatory sentences.","English",49.8,39.840000000000003,"345.73/0772--dc23","200 pp.","https://greenhavenpublishing.com/9781534502956",null,{"$f":"Table1[[#This Row],['# of Books]]*Table1[[#This Row],[QTY]]","v":0},{"$f":"Table1[[#This Row],[QTY]]*Table1[[#This Row],[School & Library Price]]","v":0}]
[null,null,6,null,null,"Current Issues","Opposing Viewpoints","Mandatory Minimum Sentences","978-1-5345-0296-3",{"$f":"HYPERLINK(Table1[[#This Row],[eCommerce Hyperlink]],\"Book Weblink\")","v":"Book Weblink"},null,"Greenhaven Publishing","Paperback Book",1,"2019","August 2018","Paperback","6.000 X 9.000","Edited by","H. Craig Erskine, III",null,null,null,null,"Z",null,"Grade 10 - 12","Grade 9 - 12","Is it fair to remove judicial discretion when sentencing criminals for certain crimes? This volume presents a wide diversity of opinions from an array of experts on the impact of mandatory minimum sentencing on crime, including the \"three strikes\" law. Readers are asked to examine the inherent fairness of mandatory sentences. Are they discriminatory? Do they usurp judicial power and result in overcrowded prisons? Or do they protect children and deter repeat offenders? Experts also weigh in on alternatives to mandatory sentences.","English",34.799999999999997,27.85,"345.73/0772--dc23","200 pp.","https://greenhavenpublishing.com/9781534502963",null,{"$f":"Table1[[#This Row],['# of Books]]*Table1[[#This Row],[QTY]]","v":0},{"$f":"Table1[[#This Row],[QTY]]*Table1[[#This Row],[School & Library Price]]","v":0}]
[null,7,6,null,null,"Current Issues","Opposing Viewpoints","The #MeToo Movement","978-1-5345-0597-1",{"$f":"HYPERLINK(Table1[[#This Row],[eCommerce Hyperlink]],\"Book Weblink\")","v":"Book Weblink"},null,"Greenhaven Publishing","Library Bound Book",1,"2020","January 2020","Library","6.000 X 9.000","Edited by","M. M. Eboch",null,null,null,null,"Z",null,"Grade 10 - 12","Grade 9 - 12","#MeToo gained much-needed traction when celebrities began sharing their horrifying experiences in an effort to bring down a powerful studio mogul. Revelations of sexual harassment are often met with smearing and victim blaming, but many believe the Hollywood spotlight has a real chance of effecting change. Still, many feel threatened by this movement. Has #MeToo gone too far? Is its mission clear? Has it failed to include more marginalized groups? Will it be abandoned when Hollywood moves on to its next cause? This volume presents diverse viewpoints that unpack the goals, triumphs, and shortcomings of this relatively young movement.","English",49.8,39.840000000000003,"362.883--dc23","200 pp.","https://greenhavenpublishing.com/9781534505971",null,{"$f":"Table1[[#This Row],['# of Books]]*Table1[[#This Row],[QTY]]","v":0},{"$f":"Table1[[#This Row],[QTY]]*Table1[[#This Row],[School & Library Price]]","v":0}]
[null,7,6,null,null,"Current Issues","Opposing Viewpoints","The #MeToo Movement","978-1-5345-0596-4",{"$f":"HYPERLINK(Table1[[#This Row],[eCommerce Hyperlink]],\"Book Weblink\")","v":"Book Weblink"},null,"Greenhaven Publishing","Paperback Book",1,"2020","January 2020","Paperback","6.000 X 9.000","Edited by","M. M. Eboch",null,null,null,null,"Z",null,"Grade 10 - 12","Grade 9 - 12","#MeToo gained much-needed traction when celebrities began sharing their horrifying experiences in an effort to bring down a powerful studio mogul. Revelations of sexual harassment are often met with smearing and victim blaming, but many believe the Hollywood spotlight has a real chance of effecting change. Still, many feel threatened by this movement. Has #MeToo gone too far? Is its mission clear? Has it failed to include more marginalized groups? Will it be abandoned when Hollywood moves on to its next cause? This volume presents diverse viewpoints that unpack the goals, triumphs, and shortcomings of this relatively young movement.","English",34.799999999999997,27.85,"362.883--dc23","200 pp.","https://greenhavenpublishing.com/9781534505964",null,{"$f":"Table1[[#This Row],['# of Books]]*Table1[[#This Row],[QTY]]","v":0},{"$f":"Table1[[#This Row],[QTY]]*Table1[[#This Row],[School & Library Price]]","v":0}]
[null,7,6,null,null,"Current Issues","Opposing Viewpoints","The Blockade of the Gaza Strip","978-1-5345-0508-7",{"$f":"HYPERLINK(Table1[[#This Row],[eCommerce Hyperlink]],\"Book Weblink\")","v":"Book Weblink"},null,"Greenhaven Publishing","Library Bound Book",1,"2020","August 2019","Library","6.000 X 9.000","Edited by","Martin Gitlin",null,null,null,null,"Z",null,"Grade 10 - 12","Grade 9 - 12","Ever since Israel ended its occupation of Gaza in 2005, Islamist group Hamas and other militant groups in Gaza have created conflicts with Israel. In 2007, Israel instituted a blockade of the Gaza Strip, restricting border crossings and access to necessities such as food, water, and power. Israel maintains that the intent of the blockade is to eliminate Hamas' ability to launch rockets into Israel. The Palestinians charge that the blockade effectively weakens Hamas and constitutes suffering and human rights violations among Gaza's citizens. In this informative and provocative resource, essay authors share their unique perspectives on this contentious issue.","English",49.8,39.840000000000003,"956.04--dc23","176 pp.","https://greenhavenpublishing.com/9781534505087",null,{"$f":"Table1[[#This Row],['# of Books]]*Table1[[#This Row],[QTY]]","v":0},{"$f":"Table1[[#This Row],[QTY]]*Table1[[#This Row],[School & Library Price]]","v":0}]
[null,7,6,null,null,"Current Issues","Opposing Viewpoints","The Blockade of the Gaza Strip","978-1-5345-0509-4",{"$f":"HYPERLINK(Table1[[#This Row],[eCommerce Hyperlink]],\"Book Weblink\")","v":"Book Weblink"},null,"Greenhaven Publishing","Paperback Book",1,"2020","August 2019","Paperback","6.000 X 9.000","Edited by","Martin Gitlin",null,null,null,null,"Z",null,"Grade 10 - 12","Grade 9 - 12","Ever since Israel ended its occupation of Gaza in 2005, Islamist group Hamas and other militant groups in Gaza have created conflicts with Israel. In 2007, Israel instituted a blockade of the Gaza Strip, restricting border crossings and access to necessities such as food, water, and power. Israel maintains that the intent of the blockade is to eliminate Hamas' ability to launch rockets into Israel. The Palestinians charge that the blockade effectively weakens Hamas and constitutes suffering and human rights violations among Gaza's citizens. In this informative and provocative resource, essay authors share their unique perspectives on this contentious issue.","English",34.799999999999997,27.85,"956.04--dc23","176 pp.","https://greenhavenpublishing.com/9781534505094",null,{"$f":"Table1[[#This Row],['# of Books]]*Table1[[#This Row],[QTY]]","v":0},{"$f":"Table1[[#This Row],[QTY]]*Table1[[#This Row],[School & Library Price]]","v":0}]
[null,null,6,null,null,"Current Issues","Opposing Viewpoints","The Fifth Estate: Extreme Viewpoints from Alternative Media","978-1-5345-0177-5",{"$f":"HYPERLINK(Table1[[#This Row],[eCommerce Hyperlink]],\"Book Weblink\")","v":"Book Weblink"},null,"Greenhaven Publishing","Library Bound Book",1,"2018","January 2018","Library","6.000 X 9.000","Edited by","Kathryn Roberts",null,null,null,null,"Z",null,"Grade 10 - 12","Grade 9 - 12","The influence of what is known as The Fifth Estate, which is viewpoints and journalism generated outside of the mainstream press, has risen thanks to the emergence of blogs and social media. How effective are these alternate sources in raising public consciousness, changing government policy, and stirring grassroots movements? Are they held to the same standards as mainstream journalism? In this age of fake news, WikiLeaks, and the president's so-called war on the press, readers will find the varied and provocative viewpoints that are explained in this book incredibly relevant and enlightening.","English",49.8,39.840000000000003,"302.23--dc23","208 pp.","https://greenhavenpublishing.com/9781534501775",null,{"$f":"Table1[[#This Row],['# of Books]]*Table1[[#This Row],[QTY]]","v":0},{"$f":"Table1[[#This Row],[QTY]]*Table1[[#This Row],[School & Library Price]]","v":0}]
[null,null,6,null,null,"Current Issues","Opposing Viewpoints","The Fifth Estate: Extreme Viewpoints from Alternative Media","978-1-5345-0183-6",{"$f":"HYPERLINK(Table1[[#This Row],[eCommerce Hyperlink]],\"Book Weblink\")","v":"Book Weblink"},null,"Greenhaven Publishing","Paperback Book",1,"2018","January 2018","Paperback","6.000 X 9.000","Edited by","Kathryn Roberts",null,null,null,null,"Z",null,"Grade 10 - 12","Grade 9 - 12","The influence of what is known as The Fifth Estate, which is viewpoints and journalism generated outside of the mainstream press, has risen thanks to the emergence of blogs and social media. How effective are these alternate sources in raising public consciousness, changing government policy, and stirring grassroots movements? Are they held to the same standards as mainstream journalism? In this age of fake news, WikiLeaks, and the president's so-called war on the press, readers will find the varied and provocative viewpoints that are explained in this book incredibly relevant and enlightening.","English",34.799999999999997,27.85,"302.23--dc23","208 pp.","https://greenhavenpublishing.com/9781534501836",null,{"$f":"Table1[[#This Row],['# of Books]]*Table1[[#This Row],[QTY]]","v":0},{"$f":"Table1[[#This Row],[QTY]]*Table1[[#This Row],[School & Library Price]]","v":0}]
[null,7,6,null,null,"Current Issues","Opposing Viewpoints","The Future of Space Exploration","978-1-5345-0502-5",{"$f":"HYPERLINK(Table1[[#This Row],[eCommerce Hyperlink]],\"Book Weblink\")","v":"Book Weblink"},null,"Greenhaven Publishing","Library Bound Book",1,"2020","August 2019","Library","6.000 X 9.000","Edited by","Avery Elizabeth Hurt",null,null,null,null,"Z",null,"Grade 10 - 12","Grade 9 - 12","The excitement surrounding space exploration seems to have waned in the decades since the mid-twentieth century's thrilling \"race to space.\" Is there still purpose in exploring other planets? If so, who should be tasked with this endeavor and what complications might arise from it? The viewpoints in this resource address important issues surrounding this topic, such as the merits of privatizing space exploration, seeking extraterrestrial life-forms, the economics and politics of space exploration, and the possibility of militarizing space.","English",49.8,39.840000000000003,"629.40973--dc23","176 pp.","https://greenhavenpublishing.com/9781534505025",null,{"$f":"Table1[[#This Row],['# of Books]]*Table1[[#This Row],[QTY]]","v":0},{"$f":"Table1[[#This Row],[QTY]]*Table1[[#This Row],[School & Library Price]]","v":0}]
[null,7,6,null,null,"Current Issues","Opposing Viewpoints","The Future of Space Exploration","978-1-5345-0503-2",{"$f":"HYPERLINK(Table1[[#This Row],[eCommerce Hyperlink]],\"Book Weblink\")","v":"Book Weblink"},null,"Greenhaven Publishing","Paperback Book",1,"2020","August 2019","Paperback","6.000 X 9.000","Edited by","Avery Elizabeth Hurt",null,null,null,null,"Z",null,"Grade 10 - 12","Grade 9 - 12","The excitement surrounding space exploration seems to have waned in the decades since the mid-twentieth century's thrilling \"race to space.\" Is there still purpose in exploring other planets? If so, who should be tasked with this endeavor and what complications might arise from it? The viewpoints in this resource address important issues surrounding this topic, such as the merits of privatizing space exploration, seeking extraterrestrial life-forms, the economics and politics of space exploration, and the possibility of militarizing space.","English",34.799999999999997,27.85,"629.40973--dc23","176 pp.","https://greenhavenpublishing.com/9781534505032",null,{"$f":"Table1[[#This Row],['# of Books]]*Table1[[#This Row],[QTY]]","v":0},{"$f":"Table1[[#This Row],[QTY]]*Table1[[#This Row],[School & Library Price]]","v":0}]
[null,7,7,null,null,"Current Issues","Opposing Viewpoints","Marriage","978-1-5345-0768-5",{"$f":"HYPERLINK(Table1[[#This Row],[eCommerce Hyperlink]],\"Book Weblink\")","v":"Book Weblink"},null,"Greenhaven Publishing","Library Bound Book",1,"2022","August 2021","Library","6.000 X 9.000","Compiled by","Lita Sorensen",null,null,null,null,"Z",null,"Grade 10 - 12","Grade 9 - 12","Marriage is an age-old institution whose purpose has changed in recent times. No longer do families arrange unions for economic and social reasons; today, most Westerners marry for love. Still, the median age for first marriage has risen steadily over the years, and 32 percent of adults have never been married. The viewpoints in this volume explore how marriage fits into our changing society, including issues of same-sex marriage, domestic violence, women's equality, and children and divorce. Readers will analyze the wedding industry, and the Unmarried Equality Movement, which is the movement for single people to attain equal rights to married people.","English",49.8,39.840000000000003,"306.81--dc23","176 pp.","https://greenhavenpublishing.com/9781534507685",null,{"$f":"Table1[[#This Row],['# of Books]]*Table1[[#This Row],[QTY]]","v":0},{"$f":"Table1[[#This Row],[QTY]]*Table1[[#This Row],[School & Library Price]]","v":0}]
[null,7,7,null,null,"Current Issues","Opposing Viewpoints","Marriage","978-1-5345-0766-1",{"$f":"HYPERLINK(Table1[[#This Row],[eCommerce Hyperlink]],\"Book Weblink\")","v":"Book Weblink"},null,"Greenhaven Publishing","Paperback Book",1,"2022","August 2021","Paperback","6.000 X 9.000","Compiled by","Lita Sorensen",null,null,null,null,"Z",null,"Grade 10 - 12","Grade 9 - 12","Marriage is an age-old institution whose purpose has changed in recent times. No longer do families arrange unions for economic and social reasons; today, most Westerners marry for love. Still, the median age for first marriage has risen steadily over the years, and 32 percent of adults have never been married. The viewpoints in this volume explore how marriage fits into our changing society, including issues of same-sex marriage, domestic violence, women's equality, and children and divorce. Readers will analyze the wedding industry, and the Unmarried Equality Movement, which is the movement for single people to attain equal rights to married people.","English",34.799999999999997,27.85,"306.81--dc23","176 pp.","https://greenhavenpublishing.com/9781534507661",null,{"$f":"Table1[[#This Row],['# of Books]]*Table1[[#This Row],[QTY]]","v":0},{"$f":"Table1[[#This Row],[QTY]]*Table1[[#This Row],[School & Library Price]]","v":0}]
[null,null,7,null,null,"Current Issues","Opposing Viewpoints","Mass Incarceration","978-1-5345-0045-7",{"$f":"HYPERLINK(Table1[[#This Row],[eCommerce Hyperlink]],\"Book Weblink\")","v":"Book Weblink"},null,"Greenhaven Publishing","Library Bound Book",1,"2018","August 2017","Library","6.000 X 9.000","Edited by","Rebecca Aldridge",null,null,null,null,"Z",null,"Grade 10 - 12","Grade 9 - 12","The number of Americans who live behind bars has increased by 550 percent over the last 40 years. This has been the result of aggressive tough-on-crime legislation that had more harmful effects than lawmakers could have foreseen. Experts now see the problem but disagree on the solutions. Does incarceration limit crime, or does it simply feed into a cycle of problems that harm society and create a criminal class? Are sentences and rehabilitation programs that avoid prison time effective? This compelling volume tackles tough questions from many different angles.","English",49.8,39.840000000000003,"365'.973--dc23","296 pp.","https://greenhavenpublishing.com/9781534500457",null,{"$f":"Table1[[#This Row],['# of Books]]*Table1[[#This Row],[QTY]]","v":0},{"$f":"Table1[[#This Row],[QTY]]*Table1[[#This Row],[School & Library Price]]","v":0}]
[null,null,7,null,null,"Current Issues","Opposing Viewpoints","Mass Incarceration","978-1-5345-0043-3",{"$f":"HYPERLINK(Table1[[#This Row],[eCommerce Hyperlink]],\"Book Weblink\")","v":"Book Weblink"},null,"Greenhaven Publishing","Paperback Book",1,"2018","August 2017","Paperback","6.000 X 9.000","Edited by","Rebecca Aldridge",null,null,null,null,"Z",null,"Grade 10 - 12","Grade 9 - 12","The number of Americans who live behind bars has increased by 550 percent over the last 40 years. This has been the result of aggressive tough-on-crime legislation that had more harmful effects than lawmakers could have foreseen. Experts now see the problem but disagree on the solutions. Does incarceration limit crime, or does it simply feed into a cycle of problems that harm society and create a criminal class? Are sentences and rehabilitation programs that avoid prison time effective? This compelling volume tackles tough questions from many different angles.","English",34.799999999999997,27.85,"365'.973--dc23","296 pp.","https://greenhavenpublishing.com/9781534500433",null,{"$f":"Table1[[#This Row],['# of Books]]*Table1[[#This Row],[QTY]]","v":0},{"$f":"Table1[[#This Row],[QTY]]*Table1[[#This Row],[School & Library Price]]","v":0}]
[null,7,7,null,null,"Current Issues","Opposing Viewpoints","Mass Shootings","978-1-5345-0689-3",{"$f":"HYPERLINK(Table1[[#This Row],[eCommerce Hyperlink]],\"Book Weblink\")","v":"Book Weblink"},null,"Greenhaven Publishing","Library Bound Book",1,"2021","August 2020","Library","6.000 X 9.000","Compiled by","Martin Gitlin",null,null,null,null,"Z",null,"Grade 10 - 12","Grade 9 - 12","Since 2016, the United States has experienced an average of nearly one mass shooting per day. Is this the new normal, or can something be done to prevent these slaughters? America seems divided about how to stop mass shootings. While some point to stricter gun control as a solution, others urge a focus on mental health and improvement of social factors that contribute to disenfranchisement. Meanwhile, the shootings continue while the country's leaders are at a standstill. The diverse viewpoints in this volume will help your readers explore the topic of mass shootings, their causes and effects, and potential solutions for eliminating them.","English",49.8,39.840000000000003,"363.330973--dc23","176 pp.","https://greenhavenpublishing.com/9781534506893",null,{"$f":"Table1[[#This Row],['# of Books]]*Table1[[#This Row],[QTY]]","v":0},{"$f":"Table1[[#This Row],[QTY]]*Table1[[#This Row],[School & Library Price]]","v":0}]
[null,7,7,null,null,"Current Issues","Opposing Viewpoints","Mass Shootings","978-1-5345-0688-6",{"$f":"HYPERLINK(Table1[[#This Row],[eCommerce Hyperlink]],\"Book Weblink\")","v":"Book Weblink"},null,"Greenhaven Publishing","Paperback Book",1,"2021","August 2020","Paperback","6.000 X 9.000","Compiled by","Martin Gitlin",null,null,null,null,"Z",null,"Grade 10 - 12","Grade 9 - 12","Since 2016, the United States has experienced an average of nearly one mass shooting per day. Is this the new normal, or can something be done to prevent these slaughters? America seems divided about how to stop mass shootings. While some point to stricter gun control as a solution, others urge a focus on mental health and improvement of social factors that contribute to disenfranchisement. Meanwhile, the shootings continue while the country's leaders are at a standstill. The diverse viewpoints in this volume will help your readers explore the topic of mass shootings, their causes and effects, and potential solutions for eliminating them.","English",34.799999999999997,27.85,"363.330973--dc23","176 pp.","https://greenhavenpublishing.com/9781534506886",null,{"$f":"Table1[[#This Row],['# of Books]]*Table1[[#This Row],[QTY]]","v":0},{"$f":"Table1[[#This Row],[QTY]]*Table1[[#This Row],[School & Library Price]]","v":0}]
[null,null,7,null,null,"Current Issues","Opposing Viewpoints","Net Neutrality","978-1-5345-0297-0",{"$f":"HYPERLINK(Table1[[#This Row],[eCommerce Hyperlink]],\"Book Weblink\")","v":"Book Weblink"},null,"Greenhaven Publishing","Library Bound Book",1,"2019","August 2018","Library","6.000 X 9.000","Edited by","Kathryn Roberts",null,null,null,null,"Z",null,"Grade 10 - 12","Grade 9 - 12","Is a free and open internet a hallmark of democracy? Net neutrality advocates are fighting for government regulation and protection of this relatively new frontier. They believe that the internet is now a basic human need and argue that defined rules are essential to the protection of customers and to the encouragement of innovation. Detractors worry that too much government oversight discourages innovation and investment. The viewpoints in this informative anthology are written by experts with a variety of perspectives about a complex topic that encompasses many fields, including technology, business, and the Constitution.","English",49.8,39.840000000000003,"384.3/3--dc23","200 pp.","https://greenhavenpublishing.com/9781534502970",null,{"$f":"Table1[[#This Row],['# of Books]]*Table1[[#This Row],[QTY]]","v":0},{"$f":"Table1[[#This Row],[QTY]]*Table1[[#This Row],[School & Library Price]]","v":0}]
[null,null,7,null,null,"Current Issues","Opposing Viewpoints","Net Neutrality","978-1-5345-0298-7",{"$f":"HYPERLINK(Table1[[#This Row],[eCommerce Hyperlink]],\"Book Weblink\")","v":"Book Weblink"},null,"Greenhaven Publishing","Paperback Book",1,"2019","August 2018","Paperback","6.000 X 9.000","Edited by","Kathryn Roberts",null,null,null,null,"Z",null,"Grade 10 - 12","Grade 9 - 12","Is a free and open internet a hallmark of democracy? Net neutrality advocates are fighting for government regulation and protection of this relatively new frontier. They believe that the internet is now a basic human need and argue that defined rules are essential to the protection of customers and to the encouragement of innovation. Detractors worry that too much government oversight discourages innovation and investment. The viewpoints in this informative anthology are written by experts with a variety of perspectives about a complex topic that encompasses many fields, including technology, business, and the Constitution.","English",34.799999999999997,27.85,"384.3/3--dc23","200 pp.","https://greenhavenpublishing.com/9781534502987",null,{"$f":"Table1[[#This Row],['# of Books]]*Table1[[#This Row],[QTY]]","v":0},{"$f":"Table1[[#This Row],[QTY]]*Table1[[#This Row],[School & Library Price]]","v":0}]
[null,null,7,null,null,"Current Issues","Opposing Viewpoints","Online Filter Bubbles","978-1-5345-0175-1",{"$f":"HYPERLINK(Table1[[#This Row],[eCommerce Hyperlink]],\"Book Weblink\")","v":"Book Weblink"},null,"Greenhaven Publishing","Library Bound Book",1,"2018","January 2018","Library","6.000 X 9.000","Edited by","Paula Johanson",null,null,null,null,"Z",null,"Grade 10 - 12","Grade 9 - 12","Every time we check our feeds we create safety bubbles around ourselves. Thanks to technological algorithms, we are living an increasingly narrow existence, one in which the news we read, the products we purchase, and the people we interact with are tailor-made for each of us. We might feel informed and comfortable, but we are isolating ourselves from anything outside our bubble. Are online filters just an efficient way to connect, or do they spell the end of democracy? Anyone who has read this book will understand the potential dangers of a society whose assumptions are never challenged.","English",49.8,39.840000000000003,"025.04--dc23","208 pp.","https://greenhavenpublishing.com/9781534501751",null,{"$f":"Table1[[#This Row],['# of Books]]*Table1[[#This Row],[QTY]]","v":0},{"$f":"Table1[[#This Row],[QTY]]*Table1[[#This Row],[School & Library Price]]","v":0}]
[null,null,7,null,null,"Current Issues","Opposing Viewpoints","Online Filter Bubbles","978-1-5345-0181-2",{"$f":"HYPERLINK(Table1[[#This Row],[eCommerce Hyperlink]],\"Book Weblink\")","v":"Book Weblink"},null,"Greenhaven Publishing","Paperback Book",1,"2018","January 2018","Paperback","6.000 X 9.000","Edited by","Paula Johanson",null,null,null,null,"Z",null,"Grade 10 - 12","Grade 9 - 12","Every time we check our feeds we create safety bubbles around ourselves. Thanks to technological algorithms, we are living an increasingly narrow existence, one in which the news we read, the products we purchase, and the people we interact with are tailor-made for each of us. We might feel informed and comfortable, but we are isolating ourselves from anything outside our bubble. Are online filters just an efficient way to connect, or do they spell the end of democracy? Anyone who has read this book will understand the potential dangers of a society whose assumptions are never challenged.","English",34.799999999999997,27.85,"025.04--dc23","208 pp.","https://greenhavenpublishing.com/9781534501812",null,{"$f":"Table1[[#This Row],['# of Books]]*Table1[[#This Row],[QTY]]","v":0},{"$f":"Table1[[#This Row],[QTY]]*Table1[[#This Row],[School & Library Price]]","v":0}]
[null,7,7,null,null,"Current Issues","Opposing Viewpoints","Party Politics","978-1-5345-0685-5",{"$f":"HYPERLINK(Table1[[#This Row],[eCommerce Hyperlink]],\"Book Weblink\")","v":"Book Weblink"},null,"Greenhaven Publishing","Library Bound Book",1,"2021","August 2020","Library","6.000 X 9.000","Compiled by","Avery Elizabeth Hurt",null,null,null,null,"Z",null,"Grade 10 - 12","Grade 9 - 12","The establishment and evolution of political parties in the United States can be more than a little confusing to today's students. This anthology of essays offers a diverse array of perspectives that explore America's political parties. What purpose do political parties serve? Do they encourage corruption? Why are there only two major parties, and is that why the country is so divided? Given today's volatile political climate, can the United States come together and transcend party politics? Viewpoints written by experts in the field attempt to address these questions, while chapter prefaces and viewpoint introductions provide context.","English",49.8,39.840000000000003,"324.273--dc23","176 pp.","https://greenhavenpublishing.com/9781534506855",null,{"$f":"Table1[[#This Row],['# of Books]]*Table1[[#This Row],[QTY]]","v":0},{"$f":"Table1[[#This Row],[QTY]]*Table1[[#This Row],[School & Library Price]]","v":0}]
[null,7,7,null,null,"Current Issues","Opposing Viewpoints","Party Politics","978-1-5345-0684-8",{"$f":"HYPERLINK(Table1[[#This Row],[eCommerce Hyperlink]],\"Book Weblink\")","v":"Book Weblink"},null,"Greenhaven Publishing","Paperback Book",1,"2021","August 2020","Paperback","6.000 X 9.000","Compiled by","Avery Elizabeth Hurt",null,null,null,null,"Z",null,"Grade 10 - 12","Grade 9 - 12","The establishment and evolution of political parties in the United States can be more than a little confusing to today's students. This anthology of essays offers a diverse array of perspectives that explore America's political parties. What purpose do political parties serve? Do they encourage corruption? Why are there only two major parties, and is that why the country is so divided? Given today's volatile political climate, can the United States come together and transcend party politics? Viewpoints written by experts in the field attempt to address these questions, while chapter prefaces and viewpoint introductions provide context.","English",34.799999999999997,27.85,"324.273--dc23","176 pp.","https://greenhavenpublishing.com/9781534506848",null,{"$f":"Table1[[#This Row],['# of Books]]*Table1[[#This Row],[QTY]]","v":0},{"$f":"Table1[[#This Row],[QTY]]*Table1[[#This Row],[School & Library Price]]","v":0}]
[null,7,7,null,null,"Current Issues","Opposing Viewpoints","Personhood","978-1-5345-0765-4",{"$f":"HYPERLINK(Table1[[#This Row],[eCommerce Hyperlink]],\"Book Weblink\")","v":"Book Weblink"},null,"Greenhaven Publishing","Library Bound Book",1,"2022","August 2021","Library","6.000 X 9.000","Compiled by","Gary Wiener",null,null,null,null,"Z",null,"Grade 10 - 12","Grade 9 - 12","It might seem unnecessary to define what a person is, but the issue of personhood has been a longstanding source of debate. The scope of personhood has been questioned in many applications, including human slavery, right to life and right to end life, animal rights, bioethics, corporate rights, and theology. It is believed the question will arise again as robots and artificial intelligence become more sophisticated and ingrained in our culture. What makes a person, and who gets to define personhood? Viewpoints in this volume address this fascinating topic from a number of angles.","English",49.8,39.840000000000003,"128--dc23","200 pp.","https://greenhavenpublishing.com/9781534507654",null,{"$f":"Table1[[#This Row],['# of Books]]*Table1[[#This Row],[QTY]]","v":0},{"$f":"Table1[[#This Row],[QTY]]*Table1[[#This Row],[School & Library Price]]","v":0}]
[null,7,7,null,null,"Current Issues","Opposing Viewpoints","Personhood","978-1-5345-0763-0",{"$f":"HYPERLINK(Table1[[#This Row],[eCommerce Hyperlink]],\"Book Weblink\")","v":"Book Weblink"},null,"Greenhaven Publishing","Paperback Book",1,"2022","August 2021","Paperback","6.000 X 9.000","Compiled by","Gary Wiener",null,null,null,null,"Z",null,"Grade 10 - 12","Grade 9 - 12","It might seem unnecessary to define what a person is, but the issue of personhood has been a longstanding source of debate. The scope of personhood has been questioned in many applications, including human slavery, right to life and right to end life, animal rights, bioethics, corporate rights, and theology. It is believed the question will arise again as robots and artificial intelligence become more sophisticated and ingrained in our culture. What makes a person, and who gets to define personhood? Viewpoints in this volume address this fascinating topic from a number of angles.","English",34.799999999999997,27.85,"128--dc23","200 pp.","https://greenhavenpublishing.com/9781534507630",null,{"$f":"Table1[[#This Row],['# of Books]]*Table1[[#This Row],[QTY]]","v":0},{"$f":"Table1[[#This Row],[QTY]]*Table1[[#This Row],[School & Library Price]]","v":0}]
[null,null,7,null,null,"Current Issues","Opposing Viewpoints","Pesticides and GMOs","978-1-5345-0414-1",{"$f":"HYPERLINK(Table1[[#This Row],[eCommerce Hyperlink]],\"Book Weblink\")","v":"Book Weblink"},null,"Greenhaven Publishing","Library Bound Book",1,"2019","January 2019","Library","6.000 X 9.000","Edited by","Yea Jee Bae",null,null,null,null,"Z",null,"Grade 10 - 12","Grade 9 - 12","In a world in which so many are hungry, scientific advances in agriculture can have a substantial impact. Pesticides and GMOs help ensure that more of us can enjoy nutritious produce, but do they do more harm than good? From fears of causing cancer to the future of small and family farmers, there are enough questions about pesticides and GMOs to fuel their critics. Yet the list of benefits is hard to ignore. The diverse viewpoints from authoritative voices in the field will provide readers with a full picture of this complex topic.","English",49.8,39.840000000000003,"628.5/29--dc23","200 pp.","https://greenhavenpublishing.com/9781534504141",null,{"$f":"Table1[[#This Row],['# of Books]]*Table1[[#This Row],[QTY]]","v":0},{"$f":"Table1[[#This Row],[QTY]]*Table1[[#This Row],[School & Library Price]]","v":0}]
[null,null,7,null,null,"Current Issues","Opposing Viewpoints","Pesticides and GMOs","978-1-5345-0439-4",{"$f":"HYPERLINK(Table1[[#This Row],[eCommerce Hyperlink]],\"Book Weblink\")","v":"Book Weblink"},null,"Greenhaven Publishing","Paperback Book",1,"2019","January 2019","Paperback","6.000 X 9.000","Edited by","Yea Jee Bae",null,null,null,null,"Z",null,"Grade 10 - 12","Grade 9 - 12","In a world in which so many are hungry, scientific advances in agriculture can have a substantial impact. Pesticides and GMOs help ensure that more of us can enjoy nutritious produce, but do they do more harm than good? From fears of causing cancer to the future of small and family farmers, there are enough questions about pesticides and GMOs to fuel their critics. Yet the list of benefits is hard to ignore. The diverse viewpoints from authoritative voices in the field will provide readers with a full picture of this complex topic.","English",34.799999999999997,27.85,"628.5/29--dc23","200 pp.","https://greenhavenpublishing.com/9781534504394",null,{"$f":"Table1[[#This Row],['# of Books]]*Table1[[#This Row],[QTY]]","v":0},{"$f":"Table1[[#This Row],[QTY]]*Table1[[#This Row],[School & Library Price]]","v":0}]
[null,null,7,null,null,"Current Issues","Opposing Viewpoints","Politics and Journalism in a Post-Truth World","978-1-5345-0415-8",{"$f":"HYPERLINK(Table1[[#This Row],[eCommerce Hyperlink]],\"Book Weblink\")","v":"Book Weblink"},null,"Greenhaven Publishing","Library Bound Book",1,"2019","January 2019","Library","6.000 X 9.000","Edited by","Martin Gitlin",null,null,null,null,"Z",null,"Grade 10 - 12","Grade 9 - 12","Fake news. Alternative facts. Even before those terms were coined, we had already moved to a \"post-truth\" reality. Due to a number of driving forces, we have evolved into a society that values emotion and personal belief more than it does objective facts. More Americans are willing to believe false stories as long as they match up with their own personal and political beliefs. How will this affect our elections, journalistic standards, and news habits? Can we ever go back? The diverse viewpoints in this volume attempt to explain and predict the state of our union.","English",49.8,39.840000000000003,"070.4/49320973--dc23","176 pp.","https://greenhavenpublishing.com/9781534504158",null,{"$f":"Table1[[#This Row],['# of Books]]*Table1[[#This Row],[QTY]]","v":0},{"$f":"Table1[[#This Row],[QTY]]*Table1[[#This Row],[School & Library Price]]","v":0}]
[null,null,7,null,null,"Current Issues","Opposing Viewpoints","Politics and Journalism in a Post-Truth World","978-1-5345-0441-7",{"$f":"HYPERLINK(Table1[[#This Row],[eCommerce Hyperlink]],\"Book Weblink\")","v":"Book Weblink"},null,"Greenhaven Publishing","Paperback Book",1,"2019","January 2019","Paperback","6.000 X 9.000","Edited by","Martin Gitlin",null,null,null,null,"Z",null,"Grade 10 - 12","Grade 9 - 12","Fake news. Alternative facts. Even before those terms were coined, we had already moved to a \"post-truth\" reality. Due to a number of driving forces, we have evolved into a society that values emotion and personal belief more than it does objective facts. More Americans are willing to believe false stories as long as they match up with their own personal and political beliefs. How will this affect our elections, journalistic standards, and news habits? Can we ever go back? The diverse viewpoints in this volume attempt to explain and predict the state of our union.","English",34.799999999999997,27.85,"070.4/49320973--dc23","176 pp.","https://greenhavenpublishing.com/9781534504417",null,{"$f":"Table1[[#This Row],['# of Books]]*Table1[[#This Row],[QTY]]","v":0},{"$f":"Table1[[#This Row],[QTY]]*Table1[[#This Row],[School & Library Price]]","v":0}]
[null,6,7,null,null,"Current Issues","Opposing Viewpoints","Poverty, Prosperity, and the Minimum Wage","978-1-5345-0847-7",{"$f":"HYPERLINK(Table1[[#This Row],[eCommerce Hyperlink]],\"Book Weblink\")","v":"Book Weblink"},null,"Greenhaven Publishing","Library Bound Book",1,"2022","January 2022","Library","6.000 X 9.000","Edited by","Avery Elizabeth Hurt",null,null,null,null,"Z",null,"Grade 10 - 12","Grade 9 - 12","The US federal hourly minimum wage has been stuck at $7.25 for more than a decade, even though both inflation and productivity have risen steadily. Experts say an hourly wage of $24 is in keeping with inflation, although even a raise to $15 per hour would succeed in lifting nearly one million Americans out of poverty. Some states and cities have done just that, but a gridlocked Congress has prevented it from happening on the federal level. This resource asks the question: In one of the world’s richest countries, why are so many workers unable to cover basic living expenses?","English",49.8,39.840000000000003,"331.2/3--dc23","176 pp.","https://greenhavenpublishing.com/9781534508477",null,{"$f":"Table1[[#This Row],['# of Books]]*Table1[[#This Row],[QTY]]","v":0},{"$f":"Table1[[#This Row],[QTY]]*Table1[[#This Row],[School & Library Price]]","v":0}]
[null,6,7,null,null,"Current Issues","Opposing Viewpoints","Poverty, Prosperity, and the Minimum Wage","978-1-5345-0846-0",{"$f":"HYPERLINK(Table1[[#This Row],[eCommerce Hyperlink]],\"Book Weblink\")","v":"Book Weblink"},null,"Greenhaven Publishing","Paperback Book",1,"2022","January 2022","Paperback","6.000 X 9.000","Edited by","Avery Elizabeth Hurt",null,null,null,null,"Z",null,"Grade 10 - 12","Grade 9 - 12","The US federal hourly minimum wage has been stuck at $7.25 for more than a decade, even though both inflation and productivity have risen steadily. Experts say an hourly wage of $24 is in keeping with inflation, although even a raise to $15 per hour would succeed in lifting nearly one million Americans out of poverty. Some states and cities have done just that, but a gridlocked Congress has prevented it from happening on the federal level. This resource asks the question: In one of the world’s richest countries, why are so many workers unable to cover basic living expenses?","English",34.799999999999997,27.85,"331.2/3--dc23","176 pp.","https://greenhavenpublishing.com/9781534508460",null,{"$f":"Table1[[#This Row],['# of Books]]*Table1[[#This Row],[QTY]]","v":0},{"$f":"Table1[[#This Row],[QTY]]*Table1[[#This Row],[School & Library Price]]","v":0}]
[null,7,7,null,null,"Current Issues","Opposing Viewpoints","Privilege in America","978-1-5345-0603-9",{"$f":"HYPERLINK(Table1[[#This Row],[eCommerce Hyperlink]],\"Book Weblink\")","v":"Book Weblink"},null,"Greenhaven Publishing","Library Bound Book",1,"2020","January 2020","Library","6.000 X 9.000","Edited by","Gary Wiener",null,null,null,null,"Z",null,"Grade 10 - 12","Grade 9 - 12","The word \"privilege\" gets thrown around a lot during discussions of inequality in America, whether it be about race, gender, or wealth. But how serious an issue is privilege, really? Is it manufactured by marginalized groups? Should those with marked advantages feel threatened? America prides itself on democratic ideals and advancement through merit and hard work. Are these ideals based on a lie? If so, what practical solutions can be undertaken to level the playing field? Presenting a wide variety of perspectives from authoritative voices, this volume unpacks a complex issue that many are uncomfortable confronting.","English",49.8,39.840000000000003,"303.3--dc23","200 pp.","https://greenhavenpublishing.com/9781534506039",null,{"$f":"Table1[[#This Row],['# of Books]]*Table1[[#This Row],[QTY]]","v":0},{"$f":"Table1[[#This Row],[QTY]]*Table1[[#This Row],[School & Library Price]]","v":0}]
[null,7,7,null,null,"Current Issues","Opposing Viewpoints","Privilege in America","978-1-5345-0602-2",{"$f":"HYPERLINK(Table1[[#This Row],[eCommerce Hyperlink]],\"Book Weblink\")","v":"Book Weblink"},null,"Greenhaven Publishing","Paperback Book",1,"2020","January 2020","Paperback","6.000 X 9.000","Edited by","Gary Wiener",null,null,null,null,"Z",null,"Grade 10 - 12","Grade 9 - 12","The word \"privilege\" gets thrown around a lot during discussions of inequality in America, whether it be about race, gender, or wealth. But how serious an issue is privilege, really? Is it manufactured by marginalized groups? Should those with marked advantages feel threatened? America prides itself on democratic ideals and advancement through merit and hard work. Are these ideals based on a lie? If so, what practical solutions can be undertaken to level the playing field? Presenting a wide variety of perspectives from authoritative voices, this volume unpacks a complex issue that many are uncomfortable confronting.","English",34.799999999999997,27.85,"303.3--dc23","200 pp.","https://greenhavenpublishing.com/9781534506022",null,{"$f":"Table1[[#This Row],['# of Books]]*Table1[[#This Row],[QTY]]","v":0},{"$f":"Table1[[#This Row],[QTY]]*Table1[[#This Row],[School & Library Price]]","v":0}]
[null,6,7,null,null,"Current Issues","Opposing Viewpoints","QAnon and Other Conspiracy Theories","978-1-5345-0839-2",{"$f":"HYPERLINK(Table1[[#This Row],[eCommerce Hyperlink]],\"Book Weblink\")","v":"Book Weblink"},null,"Greenhaven Publishing","Library Bound Book",1,"2022","January 2022","Library","6.000 X 9.000","Edited by","Kathryn Roberts",null,null,null,null,"Z",null,"Grade 10 - 12","Grade 9 - 12","QAnon appeared to be yet another laughable and fairly innocuous conspiracy theory whose popularity was made possible by the powers of the digital age. But it soon became clear that its followers, legitimized by President Donald Trump, were dead serious, going so far as storming the US Capitol after Trump lost his reelection bid. The viewpoints in this resource explore the conditions that allow for such conspiracy theories to begin and take hold in an educated society, and why these theories have gone from fringe element to the mainstream, even being taken seriously by some members of the US government.","English",49.8,39.840000000000003,"320.97309/05--dc23","176 pp.","https://greenhavenpublishing.com/9781534508392",null,{"$f":"Table1[[#This Row],['# of Books]]*Table1[[#This Row],[QTY]]","v":0},{"$f":"Table1[[#This Row],[QTY]]*Table1[[#This Row],[School & Library Price]]","v":0}]
[null,6,7,null,null,"Current Issues","Opposing Viewpoints","QAnon and Other Conspiracy Theories","978-1-5345-0838-5",{"$f":"HYPERLINK(Table1[[#This Row],[eCommerce Hyperlink]],\"Book Weblink\")","v":"Book Weblink"},null,"Greenhaven Publishing","Paperback Book",1,"2022","January 2022","Paperback","6.000 X 9.000","Edited by","Kathryn Roberts",null,null,null,null,"Z",null,"Grade 10 - 12","Grade 9 - 12","QAnon appeared to be yet another laughable and fairly innocuous conspiracy theory whose popularity was made possible by the powers of the digital age. But it soon became clear that its followers, legitimized by President Donald Trump, were dead serious, going so far as storming the US Capitol after Trump lost his reelection bid. The viewpoints in this resource explore the conditions that allow for such conspiracy theories to begin and take hold in an educated society, and why these theories have gone from fringe element to the mainstream, even being taken seriously by some members of the US government.","English",34.799999999999997,27.85,"320.97309/05--dc23","176 pp.","https://greenhavenpublishing.com/9781534508385",null,{"$f":"Table1[[#This Row],['# of Books]]*Table1[[#This Row],[QTY]]","v":0},{"$f":"Table1[[#This Row],[QTY]]*Table1[[#This Row],[School & Library Price]]","v":0}]
[null,7,7,null,null,"Current Issues","Opposing Viewpoints","Racial Discrimination and Criminal Justice","978-1-5345-0771-5",{"$f":"HYPERLINK(Table1[[#This Row],[eCommerce Hyperlink]],\"Book Weblink\")","v":"Book Weblink"},null,"Greenhaven Publishing","Library Bound Book",1,"2022","August 2021","Library","6.000 X 9.000","Compiled by","Marty Gitlin",null,null,null,null,"Z",null,"Grade 10 - 12","Grade 9 - 12","The Black Lives Matter movement has shined a light on the frequently unequal treatment of African Americans by the U.S. justice system. This has led to some adverse reactions, including the protest slogans All Lives Matter and Blue Lives Matter. The viewpoints in this volume examine the truths regarding the justice system and people of color in the United States. Do the police have a problem when it comes to racial discrimination? Is the court system biased against people of color? Can gang violence be curbed without racial profiling? Experts from the field offer very different perspectives on this important topic.","English",49.8,39.840000000000003,"364.3/400973--dc23","176 pp.","https://greenhavenpublishing.com/9781534507715",null,{"$f":"Table1[[#This Row],['# of Books]]*Table1[[#This Row],[QTY]]","v":0},{"$f":"Table1[[#This Row],[QTY]]*Table1[[#This Row],[School & Library Price]]","v":0}]
[null,7,7,null,null,"Current Issues","Opposing Viewpoints","Racial Discrimination and Criminal Justice","978-1-5345-0769-2",{"$f":"HYPERLINK(Table1[[#This Row],[eCommerce Hyperlink]],\"Book Weblink\")","v":"Book Weblink"},null,"Greenhaven Publishing","Paperback Book",1,"2022","August 2021","Paperback","6.000 X 9.000","Compiled by","Marty Gitlin",null,null,null,null,"Z",null,"Grade 10 - 12","Grade 9 - 12","The Black Lives Matter movement has shined a light on the frequently unequal treatment of African Americans by the U.S. justice system. This has led to some adverse reactions, including the protest slogans All Lives Matter and Blue Lives Matter. The viewpoints in this volume examine the truths regarding the justice system and people of color in the United States. Do the police have a problem when it comes to racial discrimination? Is the court system biased against people of color? Can gang violence be curbed without racial profiling? Experts from the field offer very different perspectives on this important topic.","English",34.799999999999997,27.85,"364.3/400973--dc23","176 pp.","https://greenhavenpublishing.com/9781534507692",null,{"$f":"Table1[[#This Row],['# of Books]]*Table1[[#This Row],[QTY]]","v":0},{"$f":"Table1[[#This Row],[QTY]]*Table1[[#This Row],[School & Library Price]]","v":0}]
[null,7,7,null,null,"Current Issues","Opposing Viewpoints","Religion in Contemporary Society","978-1-5345-0762-3",{"$f":"HYPERLINK(Table1[[#This Row],[eCommerce Hyperlink]],\"Book Weblink\")","v":"Book Weblink"},null,"Greenhaven Publishing","Library Bound Book",1,"2022","August 2021","Library","6.000 X 9.000","Compiled by","Avery Elizabeth Hurt",null,null,null,null,"Z",null,"Grade 10 - 12","Grade 9 - 12","Religion is on the decline in the United States, as the religiously unaffiliated segment climbs to more than 25 percent of the overall population. This is likely due to demographic shifts, but it may also be influenced by factors such as mass migration from rural to urban areas and the advancement of isolating technology. Additionally, many are discouraged by what they consider outdated stances and exclusiveness of many religions. Given these changes, what place does religion have in contemporary society? Can it adjust with the times? Diverse experts in the field tackle this timely topic for interested readers.","English",49.8,39.840000000000003,"200.973--dc23","200 pp.","https://greenhavenpublishing.com/9781534507623",null,{"$f":"Table1[[#This Row],['# of Books]]*Table1[[#This Row],[QTY]]","v":0},{"$f":"Table1[[#This Row],[QTY]]*Table1[[#This Row],[School & Library Price]]","v":0}]
[null,7,7,null,null,"Current Issues","Opposing Viewpoints","Religion in Contemporary Society","978-1-5345-0760-9",{"$f":"HYPERLINK(Table1[[#This Row],[eCommerce Hyperlink]],\"Book Weblink\")","v":"Book Weblink"},null,"Greenhaven Publishing","Paperback Book",1,"2022","August 2021","Paperback","6.000 X 9.000","Compiled by","Avery Elizabeth Hurt",null,null,null,null,"Z",null,"Grade 10 - 12","Grade 9 - 12","Religion is on the decline in the United States, as the religiously unaffiliated segment climbs to more than 25 percent of the overall population. This is likely due to demographic shifts, but it may also be influenced by factors such as mass migration from rural to urban areas and the advancement of isolating technology. Additionally, many are discouraged by what they consider outdated stances and exclusiveness of many religions. Given these changes, what place does religion have in contemporary society? Can it adjust with the times? Diverse experts in the field tackle this timely topic for interested readers.","English",34.799999999999997,27.85,"200.973--dc23","200 pp.","https://greenhavenpublishing.com/9781534507609",null,{"$f":"Table1[[#This Row],['# of Books]]*Table1[[#This Row],[QTY]]","v":0},{"$f":"Table1[[#This Row],[QTY]]*Table1[[#This Row],[School & Library Price]]","v":0}]
[null,null,7,null,null,"Current Issues","Opposing Viewpoints","Sanctuary Cities","978-1-5345-0299-4",{"$f":"HYPERLINK(Table1[[#This Row],[eCommerce Hyperlink]],\"Book Weblink\")","v":"Book Weblink"},null,"Greenhaven Publishing","Library Bound Book",1,"2019","August 2018","Library","6.000 X 9.000","Edited by","Marcia Amidon Lusted",null,null,null,null,"Z",null,"Grade 10 - 12","Grade 9 - 12","As part of his crackdown on illegal immigration, President Trump's vow to defund sanctuary cities, cities and counties that protect low-priority immigrants from deportation, has stirred up a hornet's nest of controversy. Are sanctuary cities legal? Should the federal government infringe on states' rights? Why should illegal immigrants be protected? Do sanctuary cities threaten national security and community safety? Do they encourage illegal immigration? These are among the many complicated questions posed in this enlightening anthology, in which diverse viewpoints address the swirling issues of immigration, federal vs. states' rights, and America's moral responsibility as a democracy.","English",49.8,39.840000000000003,"325.73--dc23","200 pp.","https://greenhavenpublishing.com/9781534502994",null,{"$f":"Table1[[#This Row],['# of Books]]*Table1[[#This Row],[QTY]]","v":0},{"$f":"Table1[[#This Row],[QTY]]*Table1[[#This Row],[School & Library Price]]","v":0}]
[null,null,7,null,null,"Current Issues","Opposing Viewpoints","Sanctuary Cities","978-1-5345-0300-7",{"$f":"HYPERLINK(Table1[[#This Row],[eCommerce Hyperlink]],\"Book Weblink\")","v":"Book Weblink"},null,"Greenhaven Publishing","Paperback Book",1,"2019","August 2018","Paperback","6.000 X 9.000","Edited by","Marcia Amidon Lusted",null,null,null,null,"Z",null,"Grade 10 - 12","Grade 9 - 12","As part of his crackdown on illegal immigration, President Trump's vow to defund sanctuary cities, cities and counties that protect low-priority immigrants from deportation, has stirred up a hornet's nest of controversy. Are sanctuary cities legal? Should the federal government infringe on states' rights? Why should illegal immigrants be protected? Do sanctuary cities threaten national security and community safety? Do they encourage illegal immigration? These are among the many complicated questions posed in this enlightening anthology, in which diverse viewpoints address the swirling issues of immigration, federal vs. states' rights, and America's moral responsibility as a democracy.","English",34.799999999999997,27.85,"325.73--dc23","200 pp.","https://greenhavenpublishing.com/9781534503007",null,{"$f":"Table1[[#This Row],['# of Books]]*Table1[[#This Row],[QTY]]","v":0},{"$f":"Table1[[#This Row],[QTY]]*Table1[[#This Row],[School & Library Price]]","v":0}]
[null,6,7,null,null,"Current Issues","Opposing Viewpoints","Space Exploration and the Search for Life Beyond Earth","978-1-5345-0841-5",{"$f":"HYPERLINK(Table1[[#This Row],[eCommerce Hyperlink]],\"Book Weblink\")","v":"Book Weblink"},null,"Greenhaven Publishing","Library Bound Book",1,"2022","January 2022","Library","6.000 X 9.000","Edited by","Avery Elizabeth Hurt",null,null,null,null,"Z",null,"Grade 10 - 12","Grade 9 - 12","Is there intelligent life elsewhere in the universe? It seems unlikely that Earth’s inhabitants are the only ones. Those who claim to have witnessed UFOs and alien life are often dismissed as crackpots, yet the search for extraterrestrial intelligence has been conducted by scientists ever since technological advancements allowed for it. The viewpoints in this resource explore what it would mean on a practical level to find other intelligent life forms, how important space exploration is in general, whether governments or private enterprise should fund such searches, and other relevant issues.","English",49.8,39.840000000000003,"576.8/39--dc23","176 pp.","https://greenhavenpublishing.com/9781534508415",null,{"$f":"Table1[[#This Row],['# of Books]]*Table1[[#This Row],[QTY]]","v":0},{"$f":"Table1[[#This Row],[QTY]]*Table1[[#This Row],[School & Library Price]]","v":0}]
[null,6,7,null,null,"Current Issues","Opposing Viewpoints","Space Exploration and the Search for Life Beyond Earth","978-1-5345-0840-8",{"$f":"HYPERLINK(Table1[[#This Row],[eCommerce Hyperlink]],\"Book Weblink\")","v":"Book Weblink"},null,"Greenhaven Publishing","Paperback Book",1,"2022","January 2022","Paperback","6.000 X 9.000","Edited by","Avery Elizabeth Hurt",null,null,null,null,"Z",null,"Grade 10 - 12","Grade 9 - 12","Is there intelligent life elsewhere in the universe? It seems unlikely that Earth’s inhabitants are the only ones. Those who claim to have witnessed UFOs and alien life are often dismissed as crackpots, yet the search for extraterrestrial intelligence has been conducted by scientists ever since technological advancements allowed for it. The viewpoints in this resource explore what it would mean on a practical level to find other intelligent life forms, how important space exploration is in general, whether governments or private enterprise should fund such searches, and other relevant issues.","English",34.799999999999997,27.85,"576.8/39--dc23","176 pp.","https://greenhavenpublishing.com/9781534508408",null,{"$f":"Table1[[#This Row],['# of Books]]*Table1[[#This Row],[QTY]]","v":0},{"$f":"Table1[[#This Row],[QTY]]*Table1[[#This Row],[School & Library Price]]","v":0}]
[null,null,7,null,null,"Current Issues","Opposing Viewpoints","The Politics of Water Scarcity","978-1-5345-0054-9",{"$f":"HYPERLINK(Table1[[#This Row],[eCommerce Hyperlink]],\"Book Weblink\")","v":"Book Weblink"},null,"Greenhaven Publishing","Library Bound Book",1,"2018","August 2017","Library","6.000 X 9.000","Edited by","Susan Nichols",null,null,null,null,"Z",null,"Grade 10 - 12","Grade 9 - 12","Clean water is something we take for granted. It’s there when we turn on our taps to fill a glass, take a shower, or wash our hands. But for many of the world’s citizens, water is a precious commodity. Many don’t have access to clean water. Others must use the same water for drinking, cooking, and cleaning. Is access to clean water a human right? Should water be provided by governments or private entities? Will water become a commodity of the rich? And how are our environmental practices affecting the world’s supply of water?","English",49.8,39.840000000000003,"333.91'16--dc23","192 pp.","https://greenhavenpublishing.com/9781534500549",null,{"$f":"Table1[[#This Row],['# of Books]]*Table1[[#This Row],[QTY]]","v":0},{"$f":"Table1[[#This Row],[QTY]]*Table1[[#This Row],[School & Library Price]]","v":0}]
[null,null,7,null,null,"Current Issues","Opposing Viewpoints","The Politics of Water Scarcity","978-1-5345-0052-5",{"$f":"HYPERLINK(Table1[[#This Row],[eCommerce Hyperlink]],\"Book Weblink\")","v":"Book Weblink"},null,"Greenhaven Publishing","Paperback Book",1,"2018","August 2017","Paperback","6.000 X 9.000","Edited by","Susan Nichols",null,null,null,null,"Z",null,"Grade 10 - 12","Grade 9 - 12","Clean water is something we take for granted. It’s there when we turn on our taps to fill a glass, take a shower, or wash our hands. But for many of the world’s citizens, water is a precious commodity. Many don’t have access to clean water. Others must use the same water for drinking, cooking, and cleaning. Is access to clean water a human right? Should water be provided by governments or private entities? Will water become a commodity of the rich? And how are our environmental practices affecting the world’s supply of water?","English",34.799999999999997,27.85,"333.91'16--dc23","192 pp.","https://greenhavenpublishing.com/9781534500525",null,{"$f":"Table1[[#This Row],['# of Books]]*Table1[[#This Row],[QTY]]","v":0},{"$f":"Table1[[#This Row],[QTY]]*Table1[[#This Row],[School & Library Price]]","v":0}]
[null,7,7,null,null,"Current Issues","Opposing Viewpoints","The Prison Industrial Complex","978-1-5345-0691-6",{"$f":"HYPERLINK(Table1[[#This Row],[eCommerce Hyperlink]],\"Book Weblink\")","v":"Book Weblink"},null,"Greenhaven Publishing","Library Bound Book",1,"2021","August 2020","Library","6.000 X 9.000","Compiled by","Lita Sorensen",null,null,null,null,"Z",null,"Grade 10 - 12","Grade 9 - 12","The United States boasts the highest incarceration rate in the entire world. Perhaps not coincidentally, mass incarceration has been a financial boon to the private prison industry. Privatization of prisons is seen by some as a solution to state governments' budget problems, but the mission of these for-profit companies is not necessarily aligned with the reform system. The diverse perspectives in this volume examine the history of private prisons in the United States, whether they are more concerned with rehabilitation or financial profit, and what impact they have on criminal justice laws and society at large.","English",49.8,39.840000000000003,"365/.973--dc23","176 pp.","https://greenhavenpublishing.com/9781534506916",null,{"$f":"Table1[[#This Row],['# of Books]]*Table1[[#This Row],[QTY]]","v":0},{"$f":"Table1[[#This Row],[QTY]]*Table1[[#This Row],[School & Library Price]]","v":0}]
[null,7,7,null,null,"Current Issues","Opposing Viewpoints","The Prison Industrial Complex","978-1-5345-0690-9",{"$f":"HYPERLINK(Table1[[#This Row],[eCommerce Hyperlink]],\"Book Weblink\")","v":"Book Weblink"},null,"Greenhaven Publishing","Paperback Book",1,"2021","August 2020","Paperback","6.000 X 9.000","Compiled by","Lita Sorensen",null,null,null,null,"Z",null,"Grade 10 - 12","Grade 9 - 12","The United States boasts the highest incarceration rate in the entire world. Perhaps not coincidentally, mass incarceration has been a financial boon to the private prison industry. Privatization of prisons is seen by some as a solution to state governments' budget problems, but the mission of these for-profit companies is not necessarily aligned with the reform system. The diverse perspectives in this volume examine the history of private prisons in the United States, whether they are more concerned with rehabilitation or financial profit, and what impact they have on criminal justice laws and society at large.","English",34.799999999999997,27.85,"365/.973--dc23","176 pp.","https://greenhavenpublishing.com/9781534506909",null,{"$f":"Table1[[#This Row],['# of Books]]*Table1[[#This Row],[QTY]]","v":0},{"$f":"Table1[[#This Row],[QTY]]*Table1[[#This Row],[School & Library Price]]","v":0}]
[null,7,7,null,null,"Current Issues","Opposing Viewpoints","The US Military","978-1-5345-0756-2",{"$f":"HYPERLINK(Table1[[#This Row],[eCommerce Hyperlink]],\"Book Weblink\")","v":"Book Weblink"},null,"Greenhaven Publishing","Library Bound Book",1,"2022","August 2021","Library","6.000 X 9.000","Compiled by","Avery Elizabeth Hurt",null,null,null,null,"Z",null,"Grade 10 - 12","Grade 9 - 12","Since 1973, when the draft ended, involvement in the U.S. military has been voluntary. The makeup of the men and women who serve America today has evolved over the subsequent decades. This volume explores many issues pertaining to the U.S. military, such as what segment of the population is serving, how that translates to patriotism and politicization, and the military-industrial complex. Readers will survey the treatment of women and transgender servicepeople, how the country treats its veterans and addresses their special needs, and many other important considerations.","English",49.8,39.840000000000003,"355.00973--dc23","200 pp.","https://greenhavenpublishing.com/9781534507562",null,{"$f":"Table1[[#This Row],['# of Books]]*Table1[[#This Row],[QTY]]","v":0},{"$f":"Table1[[#This Row],[QTY]]*Table1[[#This Row],[School & Library Price]]","v":0}]
[null,7,7,null,null,"Current Issues","Opposing Viewpoints","The US Military","978-1-5345-0754-8",{"$f":"HYPERLINK(Table1[[#This Row],[eCommerce Hyperlink]],\"Book Weblink\")","v":"Book Weblink"},null,"Greenhaven Publishing","Paperback Book",1,"2022","August 2021","Paperback","6.000 X 9.000","Compiled by","Avery Elizabeth Hurt",null,null,null,null,"Z",null,"Grade 10 - 12","Grade 9 - 12","Since 1973, when the draft ended, involvement in the U.S. military has been voluntary. The makeup of the men and women who serve America today has evolved over the subsequent decades. This volume explores many issues pertaining to the U.S. military, such as what segment of the population is serving, how that translates to patriotism and politicization, and the military-industrial complex. Readers will survey the treatment of women and transgender servicepeople, how the country treats its veterans and addresses their special needs, and many other important considerations.","English",34.799999999999997,27.85,"355.00973--dc23","200 pp.","https://greenhavenpublishing.com/9781534507548",null,{"$f":"Table1[[#This Row],['# of Books]]*Table1[[#This Row],[QTY]]","v":0},{"$f":"Table1[[#This Row],[QTY]]*Table1[[#This Row],[School & Library Price]]","v":0}]
[null,7,7,null,null,"Current Issues","Opposing Viewpoints","Toxic Masculinity","978-1-5345-0504-9",{"$f":"HYPERLINK(Table1[[#This Row],[eCommerce Hyperlink]],\"Book Weblink\")","v":"Book Weblink"},null,"Greenhaven Publishing","Library Bound Book",1,"2020","August 2019","Library","6.000 X 9.000","Edited by","Barbara Krasner ",null,null,null,null,"Z",null,"Grade 10 - 12","Grade 9 - 12","Since the emergence of the #MeToo movement, the term \"toxic masculinity\" has been used as an insult, a defense, and a lazy explanation of society's ills. What is toxic masculinity? Is it inherently a condemnation or is it a nuanced labeling of the limitations of gender roles? Written by diverse authors from a variety of perspectives, the essays in this enlightening resource explore the state of masculinity today, whether toxic masculinity actually exists, how it affects others, and how changes in men's and women's roles may or may not be something to fear.","English",49.8,39.840000000000003,"305.31--dc23","176 pp.","https://greenhavenpublishing.com/9781534505049",null,{"$f":"Table1[[#This Row],['# of Books]]*Table1[[#This Row],[QTY]]","v":0},{"$f":"Table1[[#This Row],[QTY]]*Table1[[#This Row],[School & Library Price]]","v":0}]
[null,7,7,null,null,"Current Issues","Opposing Viewpoints","Toxic Masculinity","978-1-5345-0505-6",{"$f":"HYPERLINK(Table1[[#This Row],[eCommerce Hyperlink]],\"Book Weblink\")","v":"Book Weblink"},null,"Greenhaven Publishing","Paperback Book",1,"2020","August 2019","Paperback","6.000 X 9.000","Edited by","Barbara Krasner ",null,null,null,null,"Z",null,"Grade 10 - 12","Grade 9 - 12","Since the emergence of the #MeToo movement, the term \"toxic masculinity\" has been used as an insult, a defense, and a lazy explanation of society's ills. What is toxic masculinity? Is it inherently a condemnation or is it a nuanced labeling of the limitations of gender roles? Written by diverse authors from a variety of perspectives, the essays in this enlightening resource explore the state of masculinity today, whether toxic masculinity actually exists, how it affects others, and how changes in men's and women's roles may or may not be something to fear.","English",34.799999999999997,27.85,"305.31--dc23","176 pp.","https://greenhavenpublishing.com/9781534505056",null,{"$f":"Table1[[#This Row],['# of Books]]*Table1[[#This Row],[QTY]]","v":0},{"$f":"Table1[[#This Row],[QTY]]*Table1[[#This Row],[School & Library Price]]","v":0}]
[null,6,7,null,null,"Current Issues","Opposing Viewpoints","Trumpism and the Future of the Republican Party","978-1-5345-0837-8",{"$f":"HYPERLINK(Table1[[#This Row],[eCommerce Hyperlink]],\"Book Weblink\")","v":"Book Weblink"},null,"Greenhaven Publishing","Library Bound Book",1,"2022","January 2022","Library","6.000 X 9.000","Edited by","Gary Wiener",null,null,null,null,"Z",null,"Grade 10 - 12","Grade 9 - 12","Donald Trump entered the political arena by relentlessly questioning the legitimacy of President Barack Obama. He had become famous—and infamous—as a businessman and TV personality, and his rise to the presidency was shocking and polarizing. Trump’s bombastic campaign and tumultuous term in the White House revealed a changing Republican party. Swept up in a populist surge, the Party of Lincoln seemed poised to become eclipsed by hateful rhetoric and wild conspiracy theories rather than solid conservative policies. This resource explores the Trump phenomenon and asks what is the future of the Republican party, with or without Donald Trump?","English",49.8,39.840000000000003,"324.2734--dc23","176 pp.","https://greenhavenpublishing.com/9781534508378",null,{"$f":"Table1[[#This Row],['# of Books]]*Table1[[#This Row],[QTY]]","v":0},{"$f":"Table1[[#This Row],[QTY]]*Table1[[#This Row],[School & Library Price]]","v":0}]
[null,6,7,null,null,"Current Issues","Opposing Viewpoints","Trumpism and the Future of the Republican Party","978-1-5345-0836-1",{"$f":"HYPERLINK(Table1[[#This Row],[eCommerce Hyperlink]],\"Book Weblink\")","v":"Book Weblink"},null,"Greenhaven Publishing","Paperback Book",1,"2022","January 2022","Paperback","6.000 X 9.000","Edited by","Gary Wiener",null,null,null,null,"Z",null,"Grade 10 - 12","Grade 9 - 12","Donald Trump entered the political arena by relentlessly questioning the legitimacy of President Barack Obama. He had become famous—and infamous—as a businessman and TV personality, and his rise to the presidency was shocking and polarizing. Trump’s bombastic campaign and tumultuous term in the White House revealed a changing Republican party. Swept up in a populist surge, the Party of Lincoln seemed poised to become eclipsed by hateful rhetoric and wild conspiracy theories rather than solid conservative policies. This resource explores the Trump phenomenon and asks what is the future of the Republican party, with or without Donald Trump?","English",34.799999999999997,27.85,"324.2734--dc23","176 pp.","https://greenhavenpublishing.com/9781534508361",null,{"$f":"Table1[[#This Row],['# of Books]]*Table1[[#This Row],[QTY]]","v":0},{"$f":"Table1[[#This Row],[QTY]]*Table1[[#This Row],[School & Library Price]]","v":0}]
[null,null,7,null,null,"Current Issues","Opposing Viewpoints","Uber, Lyft, Airbnb, and the Sharing Economy","978-1-5345-0048-8",{"$f":"HYPERLINK(Table1[[#This Row],[eCommerce Hyperlink]],\"Book Weblink\")","v":"Book Weblink"},null,"Greenhaven Publishing","Library Bound Book",1,"2018","August 2017","Library","6.000 X 9.000","Edited by","Rachel Bozek",null,null,null,null,"Z",null,"Grade 10 - 12","Grade 9 - 12","Something remarkable emerged as a result of the Great Recession of the early twenty-first century: a sharing economy. Among the loss of jobs and mortgages and uncertainty about the future, people got creative with the way they earned and spent their money. Democratic platforms like Uber and Airbnb have skyrocketed in popularity, prompting tighter government regulations. Are they the answer to an economy increasingly controlled by giant corporations? Or are they just a different way for people to profit from and exploit struggling workers? Readers learn more from viewpoints written by today’s experts.","English",49.8,39.840000000000003,"339.4'7--dc23","208 pp.","https://greenhavenpublishing.com/9781534500488",null,{"$f":"Table1[[#This Row],['# of Books]]*Table1[[#This Row],[QTY]]","v":0},{"$f":"Table1[[#This Row],[QTY]]*Table1[[#This Row],[School & Library Price]]","v":0}]
[null,null,7,null,null,"Current Issues","Opposing Viewpoints","Uber, Lyft, Airbnb, and the Sharing Economy","978-1-5345-0046-4",{"$f":"HYPERLINK(Table1[[#This Row],[eCommerce Hyperlink]],\"Book Weblink\")","v":"Book Weblink"},null,"Greenhaven Publishing","Paperback Book",1,"2018","August 2017","Paperback","6.000 X 9.000","Edited by","Rachel Bozek",null,null,null,null,"Z",null,"Grade 10 - 12","Grade 9 - 12","Something remarkable emerged as a result of the Great Recession of the early twenty-first century: a sharing economy. Among the loss of jobs and mortgages and uncertainty about the future, people got creative with the way they earned and spent their money. Democratic platforms like Uber and Airbnb have skyrocketed in popularity, prompting tighter government regulations. Are they the answer to an economy increasingly controlled by giant corporations? Or are they just a different way for people to profit from and exploit struggling workers? Readers learn more from viewpoints written by today’s experts.","English",34.799999999999997,27.85,"339.4'7--dc23","208 pp.","https://greenhavenpublishing.com/9781534500464",null,{"$f":"Table1[[#This Row],['# of Books]]*Table1[[#This Row],[QTY]]","v":0},{"$f":"Table1[[#This Row],[QTY]]*Table1[[#This Row],[School & Library Price]]","v":0}]
[null,null,7,null,null,"Current Issues","Opposing Viewpoints","Violent Video Games and Society","978-1-5345-0072-3",{"$f":"HYPERLINK(Table1[[#This Row],[eCommerce Hyperlink]],\"Book Weblink\")","v":"Book Weblink"},null,"Greenhaven Publishing","Library Bound Book",1,"2018","August 2017","Library","6.000 X 9.000","Edited by","Gloria G. Adams",null,null,null,null,"Z",null,"Grade 10 - 12","Grade 9 - 12","The video game industry is big business, and with the improvement of Virtual Reality technology, video games will only become more realistic and immersive. Fears abound that they drive their players to commit violent acts. While many people believe the games desensitize kids to violence, others argue that there has been no scientific connection between aggressive behavior and video games. Is immersion in violent video games a bridge to committing real-life acts of violence, demeaning women, and bullying? Or can video games actually help troubled kids, by providing them with a safe outlet for their aggression and a way to work out their frustrations?","English",49.8,39.840000000000003,"794.8--dc23","192 pp.","https://greenhavenpublishing.com/9781534500723",null,{"$f":"Table1[[#This Row],['# of Books]]*Table1[[#This Row],[QTY]]","v":0},{"$f":"Table1[[#This Row],[QTY]]*Table1[[#This Row],[School & Library Price]]","v":0}]
[null,null,7,null,null,"Current Issues","Opposing Viewpoints","Violent Video Games and Society","978-1-5345-0055-6",{"$f":"HYPERLINK(Table1[[#This Row],[eCommerce Hyperlink]],\"Book Weblink\")","v":"Book Weblink"},null,"Greenhaven Publishing","Paperback Book",1,"2018","August 2017","Paperback","6.000 X 9.000","Edited by","Gloria G. Adams",null,null,null,null,"Z",null,"Grade 10 - 12","Grade 9 - 12","The video game industry is big business, and with the improvement of Virtual Reality technology, video games will only become more realistic and immersive. Fears abound that they drive their players to commit violent acts. While many people believe the games desensitize kids to violence, others argue that there has been no scientific connection between aggressive behavior and video games. Is immersion in violent video games a bridge to committing real-life acts of violence, demeaning women, and bullying? Or can video games actually help troubled kids, by providing them with a safe outlet for their aggression and a way to work out their frustrations?","English",34.799999999999997,27.85,"794.8--dc23","192 pp.","https://greenhavenpublishing.com/9781534500556",null,{"$f":"Table1[[#This Row],['# of Books]]*Table1[[#This Row],[QTY]]","v":0},{"$f":"Table1[[#This Row],[QTY]]*Table1[[#This Row],[School & Library Price]]","v":0}]
[null,null,7,null,null,"Current Issues","Opposing Viewpoints","Western Democracy at Risk","978-1-5345-0173-7",{"$f":"HYPERLINK(Table1[[#This Row],[eCommerce Hyperlink]],\"Book Weblink\")","v":"Book Weblink"},null,"Greenhaven Publishing","Library Bound Book",1,"2018","January 2018","Library","6.000 X 9.000","Edited by","Avery Elizabeth Hurt",null,null,null,null,"Z",null,"Grade 10 - 12","Grade 9 - 12","America's founding principles have long been held up as model of success to the rest of the world. Somewhat suddenly however, these principals don't seem as solid as they once did. Globalization has created economic growth, but has also widened the gap between rich and poor. A rising conflict between multiculturalism and nationalism has fragmented western populations and caused a surge of nativism. Fake news and filters undermine free speech and a free press. Political parties have fragmented, and election tampering is a valid concern. The viewpoints in this resource address the current state of western democracy.","English",49.8,39.840000000000003,"320.9182/1--dc23","208 pp.","https://greenhavenpublishing.com/9781534501737",null,{"$f":"Table1[[#This Row],['# of Books]]*Table1[[#This Row],[QTY]]","v":0},{"$f":"Table1[[#This Row],[QTY]]*Table1[[#This Row],[School & Library Price]]","v":0}]
[null,null,7,null,null,"Current Issues","Opposing Viewpoints","Western Democracy at Risk","978-1-5345-0179-9",{"$f":"HYPERLINK(Table1[[#This Row],[eCommerce Hyperlink]],\"Book Weblink\")","v":"Book Weblink"},null,"Greenhaven Publishing","Paperback Book",1,"2018","January 2018","Paperback","6.000 X 9.000","Edited by","Avery Elizabeth Hurt",null,null,null,null,"Z",null,"Grade 10 - 12","Grade 9 - 12","America's founding principles have long been held up as model of success to the rest of the world. Somewhat suddenly however, these principals don't seem as solid as they once did. Globalization has created economic growth, but has also widened the gap between rich and poor. A rising conflict between multiculturalism and nationalism has fragmented western populations and caused a surge of nativism. Fake news and filters undermine free speech and a free press. Political parties have fragmented, and election tampering is a valid concern. The viewpoints in this resource address the current state of western democracy.","English",34.799999999999997,27.85,"320.9182/1--dc23","208 pp.","https://greenhavenpublishing.com/9781534501799",null,{"$f":"Table1[[#This Row],['# of Books]]*Table1[[#This Row],[QTY]]","v":0},{"$f":"Table1[[#This Row],[QTY]]*Table1[[#This Row],[School & Library Price]]","v":0}]
[null,8,8,null,null,"Current Issues","Introducing Issues with Opposing Viewpoints","Introducing Issues with Opposing Viewpoints (Fall 2021)","978-1-5345-0827-9",{"$f":"HYPERLINK(Table1[[#This Row],[eCommerce Hyperlink]],\"Book Weblink\")","v":"Book Weblink"},null,"Greenhaven Publishing","Library Set",7,"2022","August 2021","Library","6.500 X 9.250",null,null,null,null,null,null,null,null,"Grade 7 - 10","Grade 7 - 12","Influenced by the highly acclaimed Opposing Viewpoints collection, this set promotes issue awareness and critical thinking. Extremely user-friendly and accessible, it offers a wealth of information at a lower reading level in a bright, engaging package. This appealing combination helps more students grasp the controversies of our increasingly complex world to develop evidence-based opinions. Your readers will be analyzing fascinating topics, including food security, living in a surveillance era, the process of impeachment, and the executive privileges and powers of the American presidency. Features include: Fact boxes to provide students with statistical information about the topics discussed. Photographs and graphics engage readers and assist in comprehension. Guided reading and critical-thinking questions for each viewpoint assist students in understanding how viewpoint authors develop arguments.","English",301,240.8,null,"120 pp.","https://greenhavenpublishing.com/9781534508279",null,{"$f":"Table1[[#This Row],['# of Books]]*Table1[[#This Row],[QTY]]","v":0},{"$f":"Table1[[#This Row],[QTY]]*Table1[[#This Row],[School & Library Price]]","v":0}]
[null,8,8,null,null,"Current Issues","Introducing Issues with Opposing Viewpoints","Introducing Issues with Opposing Viewpoints (Fall 2021)","978-1-5345-0832-3",{"$f":"HYPERLINK(Table1[[#This Row],[eCommerce Hyperlink]],\"Book Weblink\")","v":"Book Weblink"},null,"Greenhaven Publishing","Single Copy Set",7,"2022","August 2021","Paperback","6.500 X 9.250",null,null,null,null,null,null,null,null,"Grade 7 - 10","Grade 7 - 12","Influenced by the highly acclaimed Opposing Viewpoints collection, this set promotes issue awareness and critical thinking. Extremely user-friendly and accessible, it offers a wealth of information at a lower reading level in a bright, engaging package. This appealing combination helps more students grasp the controversies of our increasingly complex world to develop evidence-based opinions. Your readers will be analyzing fascinating topics, including food security, living in a surveillance era, the process of impeachment, and the executive privileges and powers of the American presidency. Features include: Fact boxes to provide students with statistical information about the topics discussed. Photographs and graphics engage readers and assist in comprehension. Guided reading and critical-thinking questions for each viewpoint assist students in understanding how viewpoint authors develop arguments.","English",205.1,164.15,null,"120 pp.","https://greenhavenpublishing.com/9781534508323",null,{"$f":"Table1[[#This Row],['# of Books]]*Table1[[#This Row],[QTY]]","v":0},{"$f":"Table1[[#This Row],[QTY]]*Table1[[#This Row],[School & Library Price]]","v":0}]
[null,8,8,null,null,"Current Issues","Introducing Issues with Opposing Viewpoints","Executive Privilege and the Powers of the Presidency","978-1-5345-0797-5",{"$f":"HYPERLINK(Table1[[#This Row],[eCommerce Hyperlink]],\"Book Weblink\")","v":"Book Weblink"},null,"Greenhaven Publishing","Library Bound Book",1,"2022","August 2021","Library","6.500 X 9.250","Compiled by","M. M. Eboch",null,null,null,null,"Z",null,"Grade 7 - 10","Grade 7 - 12","The Founding Fathers took great pains to set up a government with three equal branches with the intent of limiting the powers of any one branch. Yet the executive branch possesses powers, known as executive privilege, which can be invoked to withhold information from the other branches in certain matters. But what happens when presidents use executive privilege to hide wrongdoing? How much does the public deserve to know? In this volume, experts make their cases both against and in support of executive privilege and project how it might be expanded or limited in the future.","English",43,34.4,"346.73/06--dc23","120 pp.","https://greenhavenpublishing.com/9781534507975",null,{"$f":"Table1[[#This Row],['# of Books]]*Table1[[#This Row],[QTY]]","v":0},{"$f":"Table1[[#This Row],[QTY]]*Table1[[#This Row],[School & Library Price]]","v":0}]
[null,8,8,null,null,"Current Issues","Introducing Issues with Opposing Viewpoints","Executive Privilege and the Powers of the Presidency","978-1-5345-0796-8",{"$f":"HYPERLINK(Table1[[#This Row],[eCommerce Hyperlink]],\"Book Weblink\")","v":"Book Weblink"},null,"Greenhaven Publishing","Paperback Book",1,"2022","August 2021","Paperback","6.500 X 9.250","Compiled by","M. M. Eboch",null,null,null,null,"Z",null,"Grade 7 - 10","Grade 7 - 12","The Founding Fathers took great pains to set up a government with three equal branches with the intent of limiting the powers of any one branch. Yet the executive branch possesses powers, known as executive privilege, which can be invoked to withhold information from the other branches in certain matters. But what happens when presidents use executive privilege to hide wrongdoing? How much does the public deserve to know? In this volume, experts make their cases both against and in support of executive privilege and project how it might be expanded or limited in the future.","English",29.3,23.45,"346.73/06--dc23","120 pp.","https://greenhavenpublishing.com/9781534507968",null,{"$f":"Table1[[#This Row],['# of Books]]*Table1[[#This Row],[QTY]]","v":0},{"$f":"Table1[[#This Row],[QTY]]*Table1[[#This Row],[School & Library Price]]","v":0}]
[null,9,8,null,null,"Current Issues","Introducing Issues with Opposing Viewpoints","Animal Testing","978-1-5345-0717-3",{"$f":"HYPERLINK(Table1[[#This Row],[eCommerce Hyperlink]],\"Book Weblink\")","v":"Book Weblink"},null,"Greenhaven Publishing","Library Bound Book",1,"2021","January 2021","Library","6.500 X 9.250","Compiled by","M. M. Eboch",null,null,null,null,"Z",null,"Grade 7 - 10","Grade 7 - 12","Medical research using animal testing has contributed to many important treatments and cures for humans. Few people are interested in harming animals, but this practice seems preferable to using ourselves as test subjects. However, this practice meets with strong and rational opposition from animal rights groups and others. This volume presents important questions and provides divergent viewpoints on the ethics of testing on animals and whether there are viable alternatives. Collected viewpoints explore the reasons that companies and researchers use animals to test their products and treatments, the harm and benefits of animal testing, and options for animal-free tests. This essential addition to your collection will help your readers form intelligent opinions on this controversial topic.","English",43,34.4,"179/.4--dc23","120 pp.","https://greenhavenpublishing.com/9781534507173",null,{"$f":"Table1[[#This Row],['# of Books]]*Table1[[#This Row],[QTY]]","v":0},{"$f":"Table1[[#This Row],[QTY]]*Table1[[#This Row],[School & Library Price]]","v":0}]
[null,9,8,null,null,"Current Issues","Introducing Issues with Opposing Viewpoints","Animal Testing","978-1-5345-0716-6",{"$f":"HYPERLINK(Table1[[#This Row],[eCommerce Hyperlink]],\"Book Weblink\")","v":"Book Weblink"},null,"Greenhaven Publishing","Paperback Book",1,"2021","January 2021","Paperback","6.500 X 9.250","Compiled by","M. M. Eboch",null,null,null,null,"Z",null,"Grade 7 - 10","Grade 7 - 12","Medical research using animal testing has contributed to many important treatments and cures for humans. Few people are interested in harming animals, but this practice seems preferable to using ourselves as test subjects. However, this practice meets with strong and rational opposition from animal rights groups and others. This volume presents important questions and provides divergent viewpoints on the ethics of testing on animals and whether there are viable alternatives. Collected viewpoints explore the reasons that companies and researchers use animals to test their products and treatments, the harm and benefits of animal testing, and options for animal-free tests. This essential addition to your collection will help your readers form intelligent opinions on this controversial topic.","English",29.3,23.45,"179/.4--dc23","120 pp.","https://greenhavenpublishing.com/9781534507166",null,{"$f":"Table1[[#This Row],['# of Books]]*Table1[[#This Row],[QTY]]","v":0},{"$f":"Table1[[#This Row],[QTY]]*Table1[[#This Row],[School & Library Price]]","v":0}]
[null,9,8,null,null,"Current Issues","Introducing Issues with Opposing Viewpoints","Celebrity Culture","978-1-5345-0721-0",{"$f":"HYPERLINK(Table1[[#This Row],[eCommerce Hyperlink]],\"Book Weblink\")","v":"Book Weblink"},null,"Greenhaven Publishing","Library Bound Book",1,"2021","January 2021","Library","6.500 X 9.250","Compiled by","Lisa Idzikowski",null,null,null,null,"Z",null,"Grade 7 - 10","Grade 7 - 12","We have entered a time when celebrities are so valued that they are more respected and powerful than anyone else. It began with movie and sports stars, but as a result of the preponderance of reality shows that change nobodies into stars with immense clout, celebrity has been democratized. YouTube stars and Instagram influencers are the latest to rise to celebrity status, and they have more power than many of us know. This curation of perspectives explores the advantages to celebrity, how advances in media technology have impacted fame, and the dangers inherent in a rising celebrity culture.","English",43,34.4,"306--dc23","120 pp.","https://greenhavenpublishing.com/9781534507210",null,{"$f":"Table1[[#This Row],['# of Books]]*Table1[[#This Row],[QTY]]","v":0},{"$f":"Table1[[#This Row],[QTY]]*Table1[[#This Row],[School & Library Price]]","v":0}]
[null,9,8,null,null,"Current Issues","Introducing Issues with Opposing Viewpoints","Celebrity Culture","978-1-5345-0720-3",{"$f":"HYPERLINK(Table1[[#This Row],[eCommerce Hyperlink]],\"Book Weblink\")","v":"Book Weblink"},null,"Greenhaven Publishing","Paperback Book",1,"2021","January 2021","Paperback","6.500 X 9.250","Compiled by","Lisa Idzikowski",null,null,null,null,"Z",null,"Grade 7 - 10","Grade 7 - 12","We have entered a time when celebrities are so valued that they are more respected and powerful than anyone else. It began with movie and sports stars, but as a result of the preponderance of reality shows that change nobodies into stars with immense clout, celebrity has been democratized. YouTube stars and Instagram influencers are the latest to rise to celebrity status, and they have more power than many of us know. This curation of perspectives explores the advantages to celebrity, how advances in media technology have impacted fame, and the dangers inherent in a rising celebrity culture.","English",29.3,23.45,"306--dc23","120 pp.","https://greenhavenpublishing.com/9781534507203",null,{"$f":"Table1[[#This Row],['# of Books]]*Table1[[#This Row],[QTY]]","v":0},{"$f":"Table1[[#This Row],[QTY]]*Table1[[#This Row],[School & Library Price]]","v":0}]
[null,9,8,null,null,"Current Issues","Introducing Issues with Opposing Viewpoints","AI, Robots, and the Future of the Human Race","978-1-5345-0659-6",{"$f":"HYPERLINK(Table1[[#This Row],[eCommerce Hyperlink]],\"Book Weblink\")","v":"Book Weblink"},null,"Greenhaven Publishing","Library Bound Book",1,"2020","January 2020","Library","6.500 X 9.250","Edited by","Lisa Idzikowski",null,null,null,null,"Z",null,"Grade 7 - 10","Grade 7 - 12","The term \"artificial intelligence\" was introduced in 1956. Today's AI is accomplishing the original goal of mirroring human thought processes; it's designed to independently adapt to and learn from new data. AI involves programming machines and robots to automatically complete complicated tasks. The opportunities to simplify and enhance daily life that these machines offer could make them instrumental in advancing the development of humankind. However, concerns about what can be accomplished through robotics, the extent to which humans can control sophisticated AI, and the impact robots and AI will have on labor, warfare, and health must also be considered. This volume presents thoughtful, well-researched essays that help readers analyze this topic and develop their own intelligent viewpoints.","English",43,34.4,"303.48/3--dc23","120 pp.","https://greenhavenpublishing.com/9781534506596",null,{"$f":"Table1[[#This Row],['# of Books]]*Table1[[#This Row],[QTY]]","v":0},{"$f":"Table1[[#This Row],[QTY]]*Table1[[#This Row],[School & Library Price]]","v":0}]
[null,9,8,null,null,"Current Issues","Introducing Issues with Opposing Viewpoints","AI, Robots, and the Future of the Human Race","978-1-5345-0658-9",{"$f":"HYPERLINK(Table1[[#This Row],[eCommerce Hyperlink]],\"Book Weblink\")","v":"Book Weblink"},null,"Greenhaven Publishing","Paperback Book",1,"2020","January 2020","Paperback","6.500 X 9.250","Edited by","Lisa Idzikowski",null,null,null,null,"Z",null,"Grade 7 - 10","Grade 7 - 12","The term \"artificial intelligence\" was introduced in 1956. Today's AI is accomplishing the original goal of mirroring human thought processes; it's designed to independently adapt to and learn from new data. AI involves programming machines and robots to automatically complete complicated tasks. The opportunities to simplify and enhance daily life that these machines offer could make them instrumental in advancing the development of humankind. However, concerns about what can be accomplished through robotics, the extent to which humans can control sophisticated AI, and the impact robots and AI will have on labor, warfare, and health must also be considered. This volume presents thoughtful, well-researched essays that help readers analyze this topic and develop their own intelligent viewpoints.","English",29.3,23.45,"303.48/3--dc23","120 pp.","https://greenhavenpublishing.com/9781534506589",null,{"$f":"Table1[[#This Row],['# of Books]]*Table1[[#This Row],[QTY]]","v":0},{"$f":"Table1[[#This Row],[QTY]]*Table1[[#This Row],[School & Library Price]]","v":0}]
[null,9,8,null,null,"Current Issues","Introducing Issues with Opposing Viewpoints","America's Urban-Rural Divide","978-1-5345-0661-9",{"$f":"HYPERLINK(Table1[[#This Row],[eCommerce Hyperlink]],\"Book Weblink\")","v":"Book Weblink"},null,"Greenhaven Publishing","Library Bound Book",1,"2020","January 2020","Library","6.500 X 9.250","Edited by","Bridey Heing",null,null,null,null,"Z",null,"Grade 7 - 10","Grade 7 - 12","The divisive 2016 presidential election suggested the presence of a rift between residents of urban areas and those in rural communities, with fundamental differences in beliefs and values between the two. While the election spurred renewed interest in this divide, the divergence in the perspectives and priorities of urban and rural communities has existed throughout American history. This volume explores how the urban-rural divide came to exist, how it impacts politics, whether technology has decreased or increased this sense of division, and what can be done to unify Americans.","English",43,34.4,"307.70973--dc23","120 pp.","https://greenhavenpublishing.com/9781534506619",null,{"$f":"Table1[[#This Row],['# of Books]]*Table1[[#This Row],[QTY]]","v":0},{"$f":"Table1[[#This Row],[QTY]]*Table1[[#This Row],[School & Library Price]]","v":0}]
[null,9,8,null,null,"Current Issues","Introducing Issues with Opposing Viewpoints","America's Urban-Rural Divide","978-1-5345-0660-2",{"$f":"HYPERLINK(Table1[[#This Row],[eCommerce Hyperlink]],\"Book Weblink\")","v":"Book Weblink"},null,"Greenhaven Publishing","Paperback Book",1,"2020","January 2020","Paperback","6.500 X 9.250","Edited by","Bridey Heing",null,null,null,null,"Z",null,"Grade 7 - 10","Grade 7 - 12","The divisive 2016 presidential election suggested the presence of a rift between residents of urban areas and those in rural communities, with fundamental differences in beliefs and values between the two. While the election spurred renewed interest in this divide, the divergence in the perspectives and priorities of urban and rural communities has existed throughout American history. This volume explores how the urban-rural divide came to exist, how it impacts politics, whether technology has decreased or increased this sense of division, and what can be done to unify Americans.","English",29.3,23.45,"307.70973--dc23","120 pp.","https://greenhavenpublishing.com/9781534506602",null,{"$f":"Table1[[#This Row],['# of Books]]*Table1[[#This Row],[QTY]]","v":0},{"$f":"Table1[[#This Row],[QTY]]*Table1[[#This Row],[School & Library Price]]","v":0}]
[null,9,8,null,null,"Current Issues","Introducing Issues with Opposing Viewpoints","Cults, Sects, and New Religions","978-1-5345-0667-1",{"$f":"HYPERLINK(Table1[[#This Row],[eCommerce Hyperlink]],\"Book Weblink\")","v":"Book Weblink"},null,"Greenhaven Publishing","Library Bound Book",1,"2020","January 2020","Library","6.500 X 9.250","Edited by","M. M. Eboch",null,null,null,null,"Z",null,"Grade 7 - 10","Grade 7 - 12","Recently, cults have been a source of fascination, with various television shows, movies, and books portraying them in lurid detail. However, cults have existed since ancient history, and many new religious movements have proven to be harmless. What distinguishes a cult from a sect, and how do these new religious movements become accepted? What strategies are in place to prevent dangerous cults from forming, and how do these cults recruit members to begin with? Should cults and sects be granted the right to religious freedom? This volume explores the history of unorthodox religious groups and the debates surrounding them.","English",43,34.4,"209--dc23","120 pp.","https://greenhavenpublishing.com/9781534506671",null,{"$f":"Table1[[#This Row],['# of Books]]*Table1[[#This Row],[QTY]]","v":0},{"$f":"Table1[[#This Row],[QTY]]*Table1[[#This Row],[School & Library Price]]","v":0}]
[null,9,8,null,null,"Current Issues","Introducing Issues with Opposing Viewpoints","Cults, Sects, and New Religions","978-1-5345-0666-4",{"$f":"HYPERLINK(Table1[[#This Row],[eCommerce Hyperlink]],\"Book Weblink\")","v":"Book Weblink"},null,"Greenhaven Publishing","Paperback Book",1,"2020","January 2020","Paperback","6.500 X 9.250","Edited by","M. M. Eboch",null,null,null,null,"Z",null,"Grade 7 - 10","Grade 7 - 12","Recently, cults have been a source of fascination, with various television shows, movies, and books portraying them in lurid detail. However, cults have existed since ancient history, and many new religious movements have proven to be harmless. What distinguishes a cult from a sect, and how do these new religious movements become accepted? What strategies are in place to prevent dangerous cults from forming, and how do these cults recruit members to begin with? Should cults and sects be granted the right to religious freedom? This volume explores the history of unorthodox religious groups and the debates surrounding them.","English",29.3,23.45,"209--dc23","120 pp.","https://greenhavenpublishing.com/9781534506664",null,{"$f":"Table1[[#This Row],['# of Books]]*Table1[[#This Row],[QTY]]","v":0},{"$f":"Table1[[#This Row],[QTY]]*Table1[[#This Row],[School & Library Price]]","v":0}]
[null,null,8,null,null,"Current Issues","Introducing Issues with Opposing Viewpoints","Capitalism and Moral Responsibility","978-1-5345-0576-6",{"$f":"HYPERLINK(Table1[[#This Row],[eCommerce Hyperlink]],\"Book Weblink\")","v":"Book Weblink"},null,"Greenhaven Publishing","Library Bound Book",1,"2020","August 2019","Library","6.500 X 9.250","Edited by","Lisa Idzikowski",null,null,null,null,"Z",null,"Grade 7 - 10","Grade 7 - 12","Capitalism has been touted as the superior political and economic system, as evidenced by the success of the United States and many other countries around the globe. Is capitalism immoral by nature of its requirements, which include inequality, consumption, and greed, or are those simply unfortunate byproducts? Can capitalism fit in with religion? The divergent viewpoints in this resource explore the tenets of capitalism and whether or not it is at odds with the development of a just and moral society.","English",43,34.4,"174/.4--dc23","120 pp.","https://greenhavenpublishing.com/9781534505766",null,{"$f":"Table1[[#This Row],['# of Books]]*Table1[[#This Row],[QTY]]","v":0},{"$f":"Table1[[#This Row],[QTY]]*Table1[[#This Row],[School & Library Price]]","v":0}]
[null,null,8,null,null,"Current Issues","Introducing Issues with Opposing Viewpoints","Capitalism and Moral Responsibility","978-1-5345-0577-3",{"$f":"HYPERLINK(Table1[[#This Row],[eCommerce Hyperlink]],\"Book Weblink\")","v":"Book Weblink"},null,"Greenhaven Publishing","Paperback Book",1,"2020","August 2019","Paperback","6.500 X 9.250","Edited by","Lisa Idzikowski",null,null,null,null,"Z",null,"Grade 7 - 10","Grade 7 - 12","Capitalism has been touted as the superior political and economic system, as evidenced by the success of the United States and many other countries around the globe. Is capitalism immoral by nature of its requirements, which include inequality, consumption, and greed, or are those simply unfortunate byproducts? Can capitalism fit in with religion? The divergent viewpoints in this resource explore the tenets of capitalism and whether or not it is at odds with the development of a just and moral society.","English",29.3,23.45,"174/.4--dc23","120 pp.","https://greenhavenpublishing.com/9781534505773",null,{"$f":"Table1[[#This Row],['# of Books]]*Table1[[#This Row],[QTY]]","v":0},{"$f":"Table1[[#This Row],[QTY]]*Table1[[#This Row],[School & Library Price]]","v":0}]
[null,null,8,null,null,"Current Issues","Introducing Issues with Opposing Viewpoints","Cultural Appropriation","978-1-5345-0566-7",{"$f":"HYPERLINK(Table1[[#This Row],[eCommerce Hyperlink]],\"Book Weblink\")","v":"Book Weblink"},null,"Greenhaven Publishing","Library Bound Book",1,"2020","August 2019","Library","6.500 X 9.250","Edited by","M. M. Eboch",null,null,null,null,"Z",null,"Grade 7 - 10","Grade 7 - 12","A white celebrity boasts dreadlocks in an Instagram post. Fashion models strut down a runway wearing Native American headdresses. A fraternity brother dons blackface as part of his Halloween costume. What do these things have in common? They are acts of cultural appropriation, the oftentimes innocent but nonetheless offensive practice of emulating the culture of a people with less power and privilege. When does appreciation cross the line to become appropriation? The viewpoints in this volume address what constitutes cultural appropriation, how it hurts those it seeks to celebrate, and how to be inspired by a culture without insulting it.","English",43,34.4,"303.48/2--dc23","120 pp.","https://greenhavenpublishing.com/9781534505667",null,{"$f":"Table1[[#This Row],['# of Books]]*Table1[[#This Row],[QTY]]","v":0},{"$f":"Table1[[#This Row],[QTY]]*Table1[[#This Row],[School & Library Price]]","v":0}]
[null,null,8,null,null,"Current Issues","Introducing Issues with Opposing Viewpoints","Cultural Appropriation","978-1-5345-0567-4",{"$f":"HYPERLINK(Table1[[#This Row],[eCommerce Hyperlink]],\"Book Weblink\")","v":"Book Weblink"},null,"Greenhaven Publishing","Paperback Book",1,"2020","August 2019","Paperback","6.500 X 9.250","Edited by","M. M. Eboch",null,null,null,null,"Z",null,"Grade 7 - 10","Grade 7 - 12","A white celebrity boasts dreadlocks in an Instagram post. Fashion models strut down a runway wearing Native American headdresses. A fraternity brother dons blackface as part of his Halloween costume. What do these things have in common? They are acts of cultural appropriation, the oftentimes innocent but nonetheless offensive practice of emulating the culture of a people with less power and privilege. When does appreciation cross the line to become appropriation? The viewpoints in this volume address what constitutes cultural appropriation, how it hurts those it seeks to celebrate, and how to be inspired by a culture without insulting it.","English",29.3,23.45,"303.48/2--dc23","120 pp.","https://greenhavenpublishing.com/9781534505674",null,{"$f":"Table1[[#This Row],['# of Books]]*Table1[[#This Row],[QTY]]","v":0},{"$f":"Table1[[#This Row],[QTY]]*Table1[[#This Row],[School & Library Price]]","v":0}]
[null,null,8,null,null,"Current Issues","Introducing Issues with Opposing Viewpoints","Ethics in Journalism","978-1-5345-0568-1",{"$f":"HYPERLINK(Table1[[#This Row],[eCommerce Hyperlink]],\"Book Weblink\")","v":"Book Weblink"},null,"Greenhaven Publishing","Library Bound Book",1,"2020","August 2019","Library","6.500 X 9.250","Edited by","M. M. Eboch",null,null,null,null,"Z",null,"Grade 7 - 10","Grade 7 - 12","With a 24-hour news cycle, the desperate need to attract viewers and increase revenue, and the pressure of being the first to print, news organizations have had to undergo a rapid evolution. Whether they've been able to maintain their integrity during this transition is a matter of debate. In this resource, a wide spectrum of contributors addresses the importance of journalistic ethics, the challenges journalists face today, and what's at stake for newspeople when charges of \"fake news\" are lobbed at them.","English",43,34.4,"174/.907--dc23","120 pp.","https://greenhavenpublishing.com/9781534505681",null,{"$f":"Table1[[#This Row],['# of Books]]*Table1[[#This Row],[QTY]]","v":0},{"$f":"Table1[[#This Row],[QTY]]*Table1[[#This Row],[School & Library Price]]","v":0}]
[null,null,8,null,null,"Current Issues","Introducing Issues with Opposing Viewpoints","Ethics in Journalism","978-1-5345-0569-8",{"$f":"HYPERLINK(Table1[[#This Row],[eCommerce Hyperlink]],\"Book Weblink\")","v":"Book Weblink"},null,"Greenhaven Publishing","Paperback Book",1,"2020","August 2019","Paperback","6.500 X 9.250","Edited by","M. M. Eboch",null,null,null,null,"Z",null,"Grade 7 - 10","Grade 7 - 12","With a 24-hour news cycle, the desperate need to attract viewers and increase revenue, and the pressure of being the first to print, news organizations have had to undergo a rapid evolution. Whether they've been able to maintain their integrity during this transition is a matter of debate. In this resource, a wide spectrum of contributors addresses the importance of journalistic ethics, the challenges journalists face today, and what's at stake for newspeople when charges of \"fake news\" are lobbed at them.","English",29.3,23.45,"174/.907--dc23","120 pp.","https://greenhavenpublishing.com/9781534505698",null,{"$f":"Table1[[#This Row],['# of Books]]*Table1[[#This Row],[QTY]]","v":0},{"$f":"Table1[[#This Row],[QTY]]*Table1[[#This Row],[School & Library Price]]","v":0}]
[null,null,8,null,null,"Current Issues","Introducing Issues with Opposing Viewpoints","The Effectiveness of Alternative Medicine","978-1-5345-0421-9",{"$f":"HYPERLINK(Table1[[#This Row],[eCommerce Hyperlink]],\"Book Weblink\")","v":"Book Weblink"},null,"Greenhaven Publishing","Library Bound Book",1,"2019","January 2019","Library","6.500 X 9.250","Edited by","Lisa Idzikowski",null,null,null,null,"Z",null,"Grade 7 - 10","Grade 7 - 12","Western medicine has not traditionally respected or accepted alternatives such as acupuncture and homeopathic remedies. Many cultures around the globe, however, champion what we call alternative medicine. Why are some so quick to dismiss alternative options while others believe they can almost work miracles? Is it simply a matter of educating doctors and patients? Are such therapies rigorously tested and regulated? The viewpoints in this resource explore the potential benefits and dangers of alternative therapies, providing readers with provocative questions to consider.","English",43,34.4,"610--dc23","120 pp.","https://greenhavenpublishing.com/9781534504219",null,{"$f":"Table1[[#This Row],['# of Books]]*Table1[[#This Row],[QTY]]","v":0},{"$f":"Table1[[#This Row],[QTY]]*Table1[[#This Row],[School & Library Price]]","v":0}]
[null,null,8,null,null,"Current Issues","Introducing Issues with Opposing Viewpoints","The Effectiveness of Alternative Medicine","978-1-5345-0479-0",{"$f":"HYPERLINK(Table1[[#This Row],[eCommerce Hyperlink]],\"Book Weblink\")","v":"Book Weblink"},null,"Greenhaven Publishing","Paperback Book",1,"2019","January 2019","Paperback","6.500 X 9.250","Edited by","Lisa Idzikowski",null,null,null,null,"Z",null,"Grade 7 - 10","Grade 7 - 12","Western medicine has not traditionally respected or accepted alternatives such as acupuncture and homeopathic remedies. Many cultures around the globe, however, champion what we call alternative medicine. Why are some so quick to dismiss alternative options while others believe they can almost work miracles? Is it simply a matter of educating doctors and patients? Are such therapies rigorously tested and regulated? The viewpoints in this resource explore the potential benefits and dangers of alternative therapies, providing readers with provocative questions to consider.","English",29.3,23.45,"610--dc23","120 pp.","https://greenhavenpublishing.com/9781534504790",null,{"$f":"Table1[[#This Row],['# of Books]]*Table1[[#This Row],[QTY]]","v":0},{"$f":"Table1[[#This Row],[QTY]]*Table1[[#This Row],[School & Library Price]]","v":0}]
[null,null,8,null,null,"Current Issues","Introducing Issues with Opposing Viewpoints","Charter Schools and School Vouchers","978-1-5345-0355-7",{"$f":"HYPERLINK(Table1[[#This Row],[eCommerce Hyperlink]],\"Book Weblink\")","v":"Book Weblink"},null,"Greenhaven Publishing","Library Bound Book",1,"2019","August 2018","Library","6.500 X 9.250","Edited by","Pete Schauer",null,null,null,null,"Z",null,"Grade 7 - 10","Grade 7 - 12","In an attempt to correct the perceived failures of public schools came the notion of \"school choice.\" One solution is charter schools: independent, privately run but publicly funded schools that now enroll more than three million students across forty-three states. Another is vouchers, which allow parents to use state dollars at their school of choice. But evidence of vouchers' success is scant, and many argue that they violate the First Amendment. What happens to public school systems when tax dollars go instead to alternative choices? The viewpoints in this anthology examine the debates surrounding education for our future generations.","English",43,34.4,"379.1/11--dc23","120 pp.","https://greenhavenpublishing.com/9781534503557",null,{"$f":"Table1[[#This Row],['# of Books]]*Table1[[#This Row],[QTY]]","v":0},{"$f":"Table1[[#This Row],[QTY]]*Table1[[#This Row],[School & Library Price]]","v":0}]
[null,null,8,null,null,"Current Issues","Introducing Issues with Opposing Viewpoints","Charter Schools and School Vouchers","978-1-5345-0356-4",{"$f":"HYPERLINK(Table1[[#This Row],[eCommerce Hyperlink]],\"Book Weblink\")","v":"Book Weblink"},null,"Greenhaven Publishing","Paperback Book",1,"2019","August 2018","Paperback","6.500 X 9.250","Edited by","Pete Schauer",null,null,null,null,"Z",null,"Grade 7 - 10","Grade 7 - 12","In an attempt to correct the perceived failures of public schools came the notion of \"school choice.\" One solution is charter schools: independent, privately run but publicly funded schools that now enroll more than three million students across forty-three states. Another is vouchers, which allow parents to use state dollars at their school of choice. But evidence of vouchers' success is scant, and many argue that they violate the First Amendment. What happens to public school systems when tax dollars go instead to alternative choices? The viewpoints in this anthology examine the debates surrounding education for our future generations.","English",29.3,23.45,"379.1/11--dc23","120 pp.","https://greenhavenpublishing.com/9781534503564",null,{"$f":"Table1[[#This Row],['# of Books]]*Table1[[#This Row],[QTY]]","v":0},{"$f":"Table1[[#This Row],[QTY]]*Table1[[#This Row],[School & Library Price]]","v":0}]
[null,null,8,null,null,"Current Issues","Introducing Issues with Opposing Viewpoints","Classified Intelligence and Leaks","978-1-5345-0357-1",{"$f":"HYPERLINK(Table1[[#This Row],[eCommerce Hyperlink]],\"Book Weblink\")","v":"Book Weblink"},null,"Greenhaven Publishing","Library Bound Book",1,"2019","August 2018","Library","6.500 X 9.250","Edited by","Lisa Idzikowski",null,null,null,null,"Z",null,"Grade 7 - 10","Grade 7 - 12","Experts often disagree about how much and what kind of intelligence should be considered classified. In addition, there can be benefits to leaking intelligence, a practice that is done by insiders with some regularity. Do citizens have a right to know about all government activities, or is security of higher value? What happens when leaks affect the safety of journalists and diplomats around the world? Who decides when a leaker is a \"whistleblower\" or a \"traitor\"? Readers of this captivating volume will learn about the issue from a diverse array of viewpoints.","English",43,34.4,"352.3/79--dc23","120 pp.","https://greenhavenpublishing.com/9781534503571",null,{"$f":"Table1[[#This Row],['# of Books]]*Table1[[#This Row],[QTY]]","v":0},{"$f":"Table1[[#This Row],[QTY]]*Table1[[#This Row],[School & Library Price]]","v":0}]
[null,null,8,null,null,"Current Issues","Introducing Issues with Opposing Viewpoints","Classified Intelligence and Leaks","978-1-5345-0358-8",{"$f":"HYPERLINK(Table1[[#This Row],[eCommerce Hyperlink]],\"Book Weblink\")","v":"Book Weblink"},null,"Greenhaven Publishing","Paperback Book",1,"2019","August 2018","Paperback","6.500 X 9.250","Edited by","Lisa Idzikowski",null,null,null,null,"Z",null,"Grade 7 - 10","Grade 7 - 12","Experts often disagree about how much and what kind of intelligence should be considered classified. In addition, there can be benefits to leaking intelligence, a practice that is done by insiders with some regularity. Do citizens have a right to know about all government activities, or is security of higher value? What happens when leaks affect the safety of journalists and diplomats around the world? Who decides when a leaker is a \"whistleblower\" or a \"traitor\"? Readers of this captivating volume will learn about the issue from a diverse array of viewpoints.","English",29.3,23.45,"352.3/79--dc23","120 pp.","https://greenhavenpublishing.com/9781534503588",null,{"$f":"Table1[[#This Row],['# of Books]]*Table1[[#This Row],[QTY]]","v":0},{"$f":"Table1[[#This Row],[QTY]]*Table1[[#This Row],[School & Library Price]]","v":0}]
[null,null,8,null,null,"Current Issues","Introducing Issues with Opposing Viewpoints","Commercial Space Exploration","978-1-5345-0359-5",{"$f":"HYPERLINK(Table1[[#This Row],[eCommerce Hyperlink]],\"Book Weblink\")","v":"Book Weblink"},null,"Greenhaven Publishing","Library Bound Book",1,"2019","August 2018","Library","6.500 X 9.250","Edited by","M. M. Eboch",null,null,null,null,"Z",null,"Grade 7 - 10","Grade 7 - 12","Space missions were part of the mythology of the twentieth century. Today, space exploration has changed dramatically, including the exciting possibility of commercial space exploration. In this fascinating anthology, expert viewpoints explore the potential of space tourism, robot astronauts, and colonizing Mars. But is commercial space travel sustainable? Should average citizens take such risks to their personal safety? Is talk of commercial space exploration merely a gimmick, or is it the future? Experts disagree, but readers will be able to reach their own conclusions after reading the diverse opinions on the subject.","English",43,34.4,"338.0999--dc23","120 pp.","https://greenhavenpublishing.com/9781534503595",null,{"$f":"Table1[[#This Row],['# of Books]]*Table1[[#This Row],[QTY]]","v":0},{"$f":"Table1[[#This Row],[QTY]]*Table1[[#This Row],[School & Library Price]]","v":0}]
[null,null,8,null,null,"Current Issues","Introducing Issues with Opposing Viewpoints","Commercial Space Exploration","978-1-5345-0360-1",{"$f":"HYPERLINK(Table1[[#This Row],[eCommerce Hyperlink]],\"Book Weblink\")","v":"Book Weblink"},null,"Greenhaven Publishing","Paperback Book",1,"2019","August 2018","Paperback","6.500 X 9.250","Edited by","M. M. Eboch",null,null,null,null,"Z",null,"Grade 7 - 10","Grade 7 - 12","Space missions were part of the mythology of the twentieth century. Today, space exploration has changed dramatically, including the exciting possibility of commercial space exploration. In this fascinating anthology, expert viewpoints explore the potential of space tourism, robot astronauts, and colonizing Mars. But is commercial space travel sustainable? Should average citizens take such risks to their personal safety? Is talk of commercial space exploration merely a gimmick, or is it the future? Experts disagree, but readers will be able to reach their own conclusions after reading the diverse opinions on the subject.","English",29.3,23.45,"338.0999--dc23","120 pp.","https://greenhavenpublishing.com/9781534503601",null,{"$f":"Table1[[#This Row],['# of Books]]*Table1[[#This Row],[QTY]]","v":0},{"$f":"Table1[[#This Row],[QTY]]*Table1[[#This Row],[School & Library Price]]","v":0}]
[null,null,8,null,null,"Current Issues","Introducing Issues with Opposing Viewpoints","Data Mining","978-1-5345-0196-6",{"$f":"HYPERLINK(Table1[[#This Row],[eCommerce Hyperlink]],\"Book Weblink\")","v":"Book Weblink"},null,"Greenhaven Publishing","Library Bound Book",1,"2018","January 2018","Library","6.500 X 9.250","Edited by","M. M. Eboch",null,null,null,null,"Z",null,"Grade 7 - 10","Grade 7 - 12","In this tech-obsessed day and age, there is no such thing as true security, unless you have no digital footprint whatsoever and live entirely off the grid. A smartphone, a laptop, an online shopping account, all of these things leave users vulnerable to data mining. The viewpoints in this resource debate data mining and whether it's a danger to society or, ultimately, a boon that will only help our technology-driven world grow more efficient. Readers will learn about the benefits of data mining as well as the pitfalls that come with security breaches.","English",43,34.4,"006.3/12--dc23","120 pp.","https://greenhavenpublishing.com/9781534501966",null,{"$f":"Table1[[#This Row],['# of Books]]*Table1[[#This Row],[QTY]]","v":0},{"$f":"Table1[[#This Row],[QTY]]*Table1[[#This Row],[School & Library Price]]","v":0}]
[null,null,8,null,null,"Current Issues","Introducing Issues with Opposing Viewpoints","Data Mining","978-1-5345-0277-2",{"$f":"HYPERLINK(Table1[[#This Row],[eCommerce Hyperlink]],\"Book Weblink\")","v":"Book Weblink"},null,"Greenhaven Publishing","Paperback Book",1,"2018","January 2018","Paperback","6.500 X 9.250","Edited by","M. M. Eboch",null,null,null,null,"Z",null,"Grade 7 - 10","Grade 7 - 12","In this tech-obsessed day and age, there is no such thing as true security, unless you have no digital footprint whatsoever and live entirely off the grid. A smartphone, a laptop, an online shopping account, all of these things leave users vulnerable to data mining. The viewpoints in this resource debate data mining and whether it's a danger to society or, ultimately, a boon that will only help our technology-driven world grow more efficient. Readers will learn about the benefits of data mining as well as the pitfalls that come with security breaches.","English",29.3,23.45,"006.3/12--dc23","120 pp.","https://greenhavenpublishing.com/9781534502772",null,{"$f":"Table1[[#This Row],['# of Books]]*Table1[[#This Row],[QTY]]","v":0},{"$f":"Table1[[#This Row],[QTY]]*Table1[[#This Row],[School & Library Price]]","v":0}]
[null,null,8,null,null,"Current Issues","Introducing Issues with Opposing Viewpoints","The Electoral College and the Popular Vote","978-1-5345-0193-5",{"$f":"HYPERLINK(Table1[[#This Row],[eCommerce Hyperlink]],\"Book Weblink\")","v":"Book Weblink"},null,"Greenhaven Publishing","Library Bound Book",1,"2018","January 2018","Library","6.500 X 9.250","Edited by","Lisa Idzikowski",null,null,null,null,"Z",null,"Grade 7 - 10","Grade 7 - 12","What is the Electoral College, and do the American people really need it? Should the popular vote determine the winner in any given presidential election? This anthology examines the origin and purpose of the Electoral College and offers balanced arguments for and against its use in the general election process. Readers will see how the Electoral College and popular vote can function harmoniously together, as well as examples supporting the viewpoint that the system has broken down and doesn't reflect the popular will.","English",43,34.4,"324.6/3--dc23","120 pp.","https://greenhavenpublishing.com/9781534501935",null,{"$f":"Table1[[#This Row],['# of Books]]*Table1[[#This Row],[QTY]]","v":0},{"$f":"Table1[[#This Row],[QTY]]*Table1[[#This Row],[School & Library Price]]","v":0}]
[null,null,8,null,null,"Current Issues","Introducing Issues with Opposing Viewpoints","The Electoral College and the Popular Vote","978-1-5345-0274-1",{"$f":"HYPERLINK(Table1[[#This Row],[eCommerce Hyperlink]],\"Book Weblink\")","v":"Book Weblink"},null,"Greenhaven Publishing","Paperback Book",1,"2018","January 2018","Paperback","6.500 X 9.250","Edited by","Lisa Idzikowski",null,null,null,null,"Z",null,"Grade 7 - 10","Grade 7 - 12","What is the Electoral College, and do the American people really need it? Should the popular vote determine the winner in any given presidential election? This anthology examines the origin and purpose of the Electoral College and offers balanced arguments for and against its use in the general election process. Readers will see how the Electoral College and popular vote can function harmoniously together, as well as examples supporting the viewpoint that the system has broken down and doesn't reflect the popular will.","English",29.3,23.45,"324.6/3--dc23","120 pp.","https://greenhavenpublishing.com/9781534502741",null,{"$f":"Table1[[#This Row],['# of Books]]*Table1[[#This Row],[QTY]]","v":0},{"$f":"Table1[[#This Row],[QTY]]*Table1[[#This Row],[School & Library Price]]","v":0}]
[null,null,8,null,null,"Current Issues","Introducing Issues with Opposing Viewpoints","Cosmetic Surgery","978-0-7377-7233-3",{"$f":"HYPERLINK(Table1[[#This Row],[eCommerce Hyperlink]],\"Book Weblink\")","v":"Book Weblink"},null,"Greenhaven Publishing","Library Bound Book",1,"2015","January 2015","Library","6.500 X 9.500","Edited by","H. G. Robert",null,null,null,null,"Z",null,"Grade 7 - 10","Grade 7 - 11","This collection of essays provides a lively debate on the topic of cosmetic surgery. Essays answer provocative questions such as whether the selfie trend increases demand in plastic surgery and whether cosmetic surgery should be condemned by Feminists. Essay sources include the American Academy of Facial Plastic and Reconstructive Surgery, Jenna Goudreau, Katja Keuchenius, and Richard J. Poupard.","English",43,34.4,"617.9/52","136 pp.","https://greenhavenpublishing.com/9780737772333",null,{"$f":"Table1[[#This Row],['# of Books]]*Table1[[#This Row],[QTY]]","v":0},{"$f":"Table1[[#This Row],[QTY]]*Table1[[#This Row],[School & Library Price]]","v":0}]
[null,null,8,null,null,"Current Issues","Introducing Issues with Opposing Viewpoints","Cyberbullying","978-0-7377-7234-0",{"$f":"HYPERLINK(Table1[[#This Row],[eCommerce Hyperlink]],\"Book Weblink\")","v":"Book Weblink"},null,"Greenhaven Publishing","Library Bound Book",1,"2015","January 2015","Library","6.500 X 9.500","Edited by","Lauri S. Scherer",null,null,null,null,"Z",null,"Grade 7 - 10","Grade 7 - 11","This volume explores whether cyberbullying is a serious problem. It also covers how cyberbullying should be punished. Finally, this volume discusses how cyberbullying can be prevented. Across three chapters readers will be navigated through opposing viewpoints on each topic, so that they can benefit from more than one intelligent opinion during analysis. Is cyberbullying an epidemic? Should it be treated as a crime? Should parent's be criminally liable for kids' cyberbullying? Provide your readers with the answers. Essay sources include the Southwest Times Record, Raychelle Cassada Lohmann, Gabriella Fuller, and Kelly McBride.","English",43,34.4,"302.34/302854678","144 pp.","https://greenhavenpublishing.com/9780737772340",null,{"$f":"Table1[[#This Row],['# of Books]]*Table1[[#This Row],[QTY]]","v":0},{"$f":"Table1[[#This Row],[QTY]]*Table1[[#This Row],[School & Library Price]]","v":0}]
[null,null,8,null,null,"Current Issues","Introducing Issues with Opposing Viewpoints","Adoption","978-0-7377-6918-0",{"$f":"HYPERLINK(Table1[[#This Row],[eCommerce Hyperlink]],\"Book Weblink\")","v":"Book Weblink"},null,"Greenhaven Publishing","Library Bound Book",1,"2014","January 2014","Library","6.500 X 9.500","Edited by","Jacqueline Langwith",null,null,null,null,"Z",null,"Grade 7 - 10","Grade 7 - 11","The issues surrounding adoption continue to be debated. This assembly of essays looks at how adoption should be viewed, what types of adoption should be encouraged, and at what policies should govern adoption. Essay sources include the National Council for Adoption, American Adoptions, Ethan Epstein, Stephanie Pappas, and Joyce Bahr. One essayist states that adoption is a social good while another takes a look at the dark side of adoption. One essayist claims that transracial adoptions should be encouraged while another presents reasons why it should not be. By reading a sequence of intelligent but divergent views on each topic, readers will be able to think critically about their own opinions and where they fit into the debates.","English",43,34.4,"362.7340973","136 pp.","https://greenhavenpublishing.com/9780737769180",null,{"$f":"Table1[[#This Row],['# of Books]]*Table1[[#This Row],[QTY]]","v":0},{"$f":"Table1[[#This Row],[QTY]]*Table1[[#This Row],[School & Library Price]]","v":0}]
[null,null,8,null,null,"Current Issues","Introducing Issues with Opposing Viewpoints","Antibiotics","978-0-7377-6919-7",{"$f":"HYPERLINK(Table1[[#This Row],[eCommerce Hyperlink]],\"Book Weblink\")","v":"Book Weblink"},null,"Greenhaven Publishing","Library Bound Book",1,"2014","January 2014","Library","6.500 X 9.500","Edited by","Mary E. Williams",null,null,null,null,"Z",null,"Grade 7 - 10","Grade 7 - 11","The issues surrounding antibiotics continue to be debated. This assembly of essays and articles looks at whether antibiotics are harmful, how antibiotics should be used, and what should be done to stop the spread of drug-resistant bacteria. The viewpoints are selected from a wide range of sources and publications, which allows the reader to activate higher-level critical thinking and reading skills. Essay sources include the U.S. Food and Drug Administration, Deseret News, Statesman.com, and the Infectious Diseases Society of America.","English",43,34.4,"615.3/29","136 pp.","https://greenhavenpublishing.com/9780737769197",null,{"$f":"Table1[[#This Row],['# of Books]]*Table1[[#This Row],[QTY]]","v":0},{"$f":"Table1[[#This Row],[QTY]]*Table1[[#This Row],[School & Library Price]]","v":0}]
[null,null,8,null,null,"Current Issues","Introducing Issues with Opposing Viewpoints","Autism","978-0-7377-6920-3",{"$f":"HYPERLINK(Table1[[#This Row],[eCommerce Hyperlink]],\"Book Weblink\")","v":"Book Weblink"},null,"Greenhaven Publishing","Library Bound Book",1,"2014","January 2014","Library","6.500 X 9.500","Edited by","Lauri S. Scherer",null,null,null,null,"Z",null,"Grade 7 - 10","Grade 7 - 11","This collection of essays will serve as a fantastic primer to the subject of Autism. Essays explore the issues surrounding autism by placing opinions from a wide range of sources in a pro versus ​con format, featuring articles that express various perspectives on this topic. Because readers are presented with a variety of viewpoints, this book is also a great resource for report-writing and research. Across three chapters, readers will evaluate what causes it, whether it is a serious problem, and how it can be reduced, treated, or cured. Stellar essay sources include the Pesticide Action Network North America, Penn State, PRWeb, and the Centers for Disease Control and Prevention. ","English",43,34.4,"618.92/85882","136 pp.","https://greenhavenpublishing.com/9780737769203",null,{"$f":"Table1[[#This Row],['# of Books]]*Table1[[#This Row],[QTY]]","v":0},{"$f":"Table1[[#This Row],[QTY]]*Table1[[#This Row],[School & Library Price]]","v":0}]
[null,null,8,null,null,"Current Issues","Introducing Issues with Opposing Viewpoints","Depression","978-0-7377-6921-0",{"$f":"HYPERLINK(Table1[[#This Row],[eCommerce Hyperlink]],\"Book Weblink\")","v":"Book Weblink"},null,"Greenhaven Publishing","Library Bound Book",1,"2014","January 2014","Library","6.500 X 9.500","Edited by","David M. Haugen",null,null,null,null,"Z",null,"Grade 7 - 10","Grade 7 - 11","Use this collection of essays to help readers understand various issues relating to depression. Across three chapters, readers will evaluate the seriousness of depression, the causes, and what treatments should be used to address depression. Essays are arranged in a pro versus con format so that readers benefit from more than one intelligent opinion on each topic. This volume provides useful charts, graphs, and engaging fact boxes that provide at-a-glance information and questions that focus on vocabulary and reading comprehension. Further research is encouraged through annotated bibliographies, websites, and organizations to contact.","English",43,34.4,"616.85/27","144 pp.","https://greenhavenpublishing.com/9780737769210",null,{"$f":"Table1[[#This Row],['# of Books]]*Table1[[#This Row],[QTY]]","v":0},{"$f":"Table1[[#This Row],[QTY]]*Table1[[#This Row],[School & Library Price]]","v":0}]
[null,null,8,null,null,"Current Issues","Introducing Issues with Opposing Viewpoints","Drug Legalization","978-0-7377-6275-4",{"$f":"HYPERLINK(Table1[[#This Row],[eCommerce Hyperlink]],\"Book Weblink\")","v":"Book Weblink"},null,"Greenhaven Publishing","Library Bound Book",1,"2014","January 2014","Library","6.500 X 9.500","Edited by","Noël Merino",null,null,null,null,"Z",null,"Grade 7 - 10","Grade 7 - 11","This volume explores many aspects of drug legalization through a sequence of pro versus con essays. Across three chapters, readers will evaluate if the current prohibition on drugs is working, how drug legalization would impact society, and how public policy on drugs should be reformed. Essay sources include the U.S. Drug Enforcement Administration, The Christian Science Monitor, John P. Walters, John McWhorter, and Gustin L. Reichbach.","English",43,34.4,"362.29/156","128 pp.","https://greenhavenpublishing.com/9780737762754",null,{"$f":"Table1[[#This Row],['# of Books]]*Table1[[#This Row],[QTY]]","v":0},{"$f":"Table1[[#This Row],[QTY]]*Table1[[#This Row],[School & Library Price]]","v":0}]
[null,null,9,null,null,"Current Issues","Introducing Issues with Opposing Viewpoints","Factory Farming","978-0-7377-7235-7",{"$f":"HYPERLINK(Table1[[#This Row],[eCommerce Hyperlink]],\"Book Weblink\")","v":"Book Weblink"},null,"Greenhaven Publishing","Library Bound Book",1,"2015","January 2015","Library","6.500 X 9.500","Edited by","Lauri S. Scherer",null,null,null,null,"Z",null,"Grade 7 - 10","Grade 7 - 11","With the global population numbers exploding, humans have a need to mass produce our food supply. This volume takes a pro versus con, debate-style look at several controversies and issues relating to factory farming. Is factory farming necessary to meet the demand for food? Is factory farming humane? Is factory farming safe? These three questions are answered in this book. Essay sources include Southern Poverty Law Center, Sian Lewis, and Michael Greger.","English",43,34.4,"636","128 pp.","https://greenhavenpublishing.com/9780737772357",null,{"$f":"Table1[[#This Row],['# of Books]]*Table1[[#This Row],[QTY]]","v":0},{"$f":"Table1[[#This Row],[QTY]]*Table1[[#This Row],[School & Library Price]]","v":0}]
[null,null,9,null,null,"Current Issues","Introducing Issues with Opposing Viewpoints","Fast Food","978-0-7377-6922-7",{"$f":"HYPERLINK(Table1[[#This Row],[eCommerce Hyperlink]],\"Book Weblink\")","v":"Book Weblink"},null,"Greenhaven Publishing","Library Bound Book",1,"2014","January 2014","Library","6.500 X 9.500","Edited by","Lauri S. Scherer",null,null,null,null,"Z",null,"Grade 7 - 10","Grade 7 - 11","Increased consumption of fast food has created a 250 percent increase in obese teens between 1980 and 2008, according to the National Institutes of Health. We know a fast food diet is bad for us, but we love it. This must-have volume doesn't preach or load readers up with bland facts. It provides a series of pro versus con essays that debate issues relating to fast food. Across four chapters, readers will evaluate whether fast food is harmful, how it should be marketed, and whether restrictions should be placed on fast foods. Essay sources include the Physicians Committee for Responsible Medicine, Center for Science in the Public Interest, and the Los Angeles Times.\n\n","English",43,34.4,"642/.1","144 pp.","https://greenhavenpublishing.com/9780737769227",null,{"$f":"Table1[[#This Row],['# of Books]]*Table1[[#This Row],[QTY]]","v":0},{"$f":"Table1[[#This Row],[QTY]]*Table1[[#This Row],[School & Library Price]]","v":0}]
[null,8,9,null,null,"Current Issues","Introducing Issues with Opposing Viewpoints","Food Security","978-1-5345-0801-9",{"$f":"HYPERLINK(Table1[[#This Row],[eCommerce Hyperlink]],\"Book Weblink\")","v":"Book Weblink"},null,"Greenhaven Publishing","Library Bound Book",1,"2022","August 2021","Library","6.500 X 9.250","Compiled by","M. M. Eboch",null,null,null,null,"Z",null,"Grade 7 - 10","Grade 7 - 12","More than 25 percent of the world's population experiences moderate or severe levels of food insecurity. The United States is not exempt: 35 million Americans do not have regular access to food that is safe and nutritious. The viewpoints in this volume address how this is possible in such a rich and resourceful nation. They also explore why so many urban and rural areas are now considered food deserts. Readers will examine the paradox of the obesity epidemic and the government's responsibility to feed its citizens. The side effects of a hungry population, particularly children and seniors are assessed. Readers are challenged to evaluate and consider solutions for ensuring food security.","English",43,34.4,"363.80973--dc23","120 pp.","https://greenhavenpublishing.com/9781534508019",null,{"$f":"Table1[[#This Row],['# of Books]]*Table1[[#This Row],[QTY]]","v":0},{"$f":"Table1[[#This Row],[QTY]]*Table1[[#This Row],[School & Library Price]]","v":0}]
[null,8,9,null,null,"Current Issues","Introducing Issues with Opposing Viewpoints","Food Security","978-1-5345-0800-2",{"$f":"HYPERLINK(Table1[[#This Row],[eCommerce Hyperlink]],\"Book Weblink\")","v":"Book Weblink"},null,"Greenhaven Publishing","Paperback Book",1,"2022","August 2021","Paperback","6.500 X 9.250","Compiled by","M. M. Eboch",null,null,null,null,"Z",null,"Grade 7 - 10","Grade 7 - 12","More than 25 percent of the world's population experiences moderate or severe levels of food insecurity. The United States is not exempt: 35 million Americans do not have regular access to food that is safe and nutritious. The viewpoints in this volume address how this is possible in such a rich and resourceful nation. They also explore why so many urban and rural areas are now considered food deserts. Readers will examine the paradox of the obesity epidemic and the government's responsibility to feed its citizens. The side effects of a hungry population, particularly children and seniors are assessed. Readers are challenged to evaluate and consider solutions for ensuring food security.","English",29.3,23.45,"363.80973--dc23","120 pp.","https://greenhavenpublishing.com/9781534508002",null,{"$f":"Table1[[#This Row],['# of Books]]*Table1[[#This Row],[QTY]]","v":0},{"$f":"Table1[[#This Row],[QTY]]*Table1[[#This Row],[School & Library Price]]","v":0}]
[null,null,9,null,null,"Current Issues","Introducing Issues with Opposing Viewpoints","Gay Marriage","978-0-7377-6923-4",{"$f":"HYPERLINK(Table1[[#This Row],[eCommerce Hyperlink]],\"Book Weblink\")","v":"Book Weblink"},null,"Greenhaven Publishing","Library Bound Book",1,"2014","January 2014","Library","6.500 X 9.500","Edited by","Lauri S. Scherer",null,null,null,null,"Z",null,"Grade 7 - 10","Grade 7 - 11","Should gay marriage be legal? What effect would gay marriage have on families? What effect would gay marriage have on society? These three questions are answered across three chapters full of compelling essays that represent divergent views for every answer. By benefitting from more than one viewpoint, readers will be able to form their own intelligent opinions on this important topic.\n","English",43,34.4,"306.84/8","128 pp.","https://greenhavenpublishing.com/9780737769234",null,{"$f":"Table1[[#This Row],['# of Books]]*Table1[[#This Row],[QTY]]","v":0},{"$f":"Table1[[#This Row],[QTY]]*Table1[[#This Row],[School & Library Price]]","v":0}]
[null,null,9,null,null,"Current Issues","Introducing Issues with Opposing Viewpoints","Globalization and Free Trade","978-1-5345-0191-1",{"$f":"HYPERLINK(Table1[[#This Row],[eCommerce Hyperlink]],\"Book Weblink\")","v":"Book Weblink"},null,"Greenhaven Publishing","Library Bound Book",1,"2018","January 2018","Library","6.500 X 9.250","Edited by","Lisa Idzikowski",null,null,null,null,"Z",null,"Grade 7 - 10","Grade 7 - 12","Where does the United States fit in the global marketplace? Just how much are we exporting to, and importing from, other nations, and shouldn't those goods and services be regulated? The viewpoints in this anthology introduce readers to the pros and cons of globalization and the pitfalls involved with free trade. Readers will learn about trade restrictions, taxes, and tariffs, as well as topics like foreign investments, outsourcing, and why it may be better to keep business interests and industry within U.S. borders.","English",43,34.4,"382/.71--dc23","120 pp.","https://greenhavenpublishing.com/9781534501911",null,{"$f":"Table1[[#This Row],['# of Books]]*Table1[[#This Row],[QTY]]","v":0},{"$f":"Table1[[#This Row],[QTY]]*Table1[[#This Row],[School & Library Price]]","v":0}]
[null,null,9,null,null,"Current Issues","Introducing Issues with Opposing Viewpoints","Globalization and Free Trade","978-1-5345-0273-4",{"$f":"HYPERLINK(Table1[[#This Row],[eCommerce Hyperlink]],\"Book Weblink\")","v":"Book Weblink"},null,"Greenhaven Publishing","Paperback Book",1,"2018","January 2018","Paperback","6.500 X 9.250","Edited by","Lisa Idzikowski",null,null,null,null,"Z",null,"Grade 7 - 10","Grade 7 - 12","Where does the United States fit in the global marketplace? Just how much are we exporting to, and importing from, other nations, and shouldn't those goods and services be regulated? The viewpoints in this anthology introduce readers to the pros and cons of globalization and the pitfalls involved with free trade. Readers will learn about trade restrictions, taxes, and tariffs, as well as topics like foreign investments, outsourcing, and why it may be better to keep business interests and industry within U.S. borders.","English",29.3,23.45,"382/.71--dc23","120 pp.","https://greenhavenpublishing.com/9781534502734",null,{"$f":"Table1[[#This Row],['# of Books]]*Table1[[#This Row],[QTY]]","v":0},{"$f":"Table1[[#This Row],[QTY]]*Table1[[#This Row],[School & Library Price]]","v":0}]
[null,9,9,null,null,"Current Issues","Introducing Issues with Opposing Viewpoints","Gun Control and the NRA","978-1-5345-0663-3",{"$f":"HYPERLINK(Table1[[#This Row],[eCommerce Hyperlink]],\"Book Weblink\")","v":"Book Weblink"},null,"Greenhaven Publishing","Library Bound Book",1,"2020","January 2020","Library","6.500 X 9.250","Edited by","Joellen McCarty",null,null,null,null,"Z",null,"Grade 7 - 10","Grade 7 - 12","School shootings and mass gun violence have brought the gun control debate to national attention, and according to a 2018 survey, 57 percent of Americans believe that stricter gun laws are necessary. However, the same survey found that 42 percent of Americans live in gun-owning households, indicating that gun ownership is deeply embedded in American life. How can the right to gun ownership and the necessity of reducing gun violence be reconciled? Is the NRA a necessary protector of civil liberties, or does it stand in the way of effective legislation? This volume will help readers examine these contentious questions.","English",43,34.4,"363.330973--dc23","120 pp.","https://greenhavenpublishing.com/9781534506633",null,{"$f":"Table1[[#This Row],['# of Books]]*Table1[[#This Row],[QTY]]","v":0},{"$f":"Table1[[#This Row],[QTY]]*Table1[[#This Row],[School & Library Price]]","v":0}]
[null,9,9,null,null,"Current Issues","Introducing Issues with Opposing Viewpoints","Gun Control and the NRA","978-1-5345-0662-6",{"$f":"HYPERLINK(Table1[[#This Row],[eCommerce Hyperlink]],\"Book Weblink\")","v":"Book Weblink"},null,"Greenhaven Publishing","Paperback Book",1,"2020","January 2020","Paperback","6.500 X 9.250","Edited by","Joellen McCarty",null,null,null,null,"Z",null,"Grade 7 - 10","Grade 7 - 12","School shootings and mass gun violence have brought the gun control debate to national attention, and according to a 2018 survey, 57 percent of Americans believe that stricter gun laws are necessary. However, the same survey found that 42 percent of Americans live in gun-owning households, indicating that gun ownership is deeply embedded in American life. How can the right to gun ownership and the necessity of reducing gun violence be reconciled? Is the NRA a necessary protector of civil liberties, or does it stand in the way of effective legislation? This volume will help readers examine these contentious questions.","English",29.3,23.45,"363.330973--dc23","120 pp.","https://greenhavenpublishing.com/9781534506626",null,{"$f":"Table1[[#This Row],['# of Books]]*Table1[[#This Row],[QTY]]","v":0},{"$f":"Table1[[#This Row],[QTY]]*Table1[[#This Row],[School & Library Price]]","v":0}]
[null,null,9,null,null,"Current Issues","Introducing Issues with Opposing Viewpoints","Homelessness","978-0-7377-3851-3",{"$f":"HYPERLINK(Table1[[#This Row],[eCommerce Hyperlink]],\"Book Weblink\")","v":"Book Weblink"},null,"Greenhaven Publishing","Library Bound Book",1,"2014","January 2014","Library","6.500 X 9.500","Edited by","Noël Merino",null,null,null,null,"Z",null,"Grade 7 - 10","Grade 7 - 11","This volume explores many aspects of homelessness. Readers will evaluate the causes of homelessness, the effectiveness of government programs that target homelessness, and how new legislation will impact this situation. Readers are presented with opinions from a wide range of sources in a pro versus con format. Essay sources include The Christian Science Monitor, Policy Priorities, Melinda Henneberger, and Michelle Chen.","English",43,34.4,"362.5/92","144 pp.","https://greenhavenpublishing.com/9780737738513",null,{"$f":"Table1[[#This Row],['# of Books]]*Table1[[#This Row],[QTY]]","v":0},{"$f":"Table1[[#This Row],[QTY]]*Table1[[#This Row],[School & Library Price]]","v":0}]
[null,null,9,null,null,"Current Issues","Introducing Issues with Opposing Viewpoints","Human Rights","978-0-7377-6924-1",{"$f":"HYPERLINK(Table1[[#This Row],[eCommerce Hyperlink]],\"Book Weblink\")","v":"Book Weblink"},null,"Greenhaven Publishing","Library Bound Book",1,"2014","January 2014","Library","6.500 X 9.500","Edited by","Lauri S. Scherer",null,null,null,null,"Z",null,"Grade 7 - 10","Grade 7 - 11","This essential volume examines what constitutes a human right, what constitutes a human rights violation, and how the United States should protect human rights. Readers are presented with a wide range of sources in a pro versus ​con format so they benefit from more than one viewpoint on each topic. Essay sources include Zhao Shanchu, Chris Coons, Robert Greenberg, Rachel Meeropol, and Pablo Solon.","English",43,34.4,"323","144 pp.","https://greenhavenpublishing.com/9780737769241",null,{"$f":"Table1[[#This Row],['# of Books]]*Table1[[#This Row],[QTY]]","v":0},{"$f":"Table1[[#This Row],[QTY]]*Table1[[#This Row],[School & Library Price]]","v":0}]
[null,null,9,null,null,"Current Issues","Introducing Issues with Opposing Viewpoints","Hunting","978-1-5345-0422-6",{"$f":"HYPERLINK(Table1[[#This Row],[eCommerce Hyperlink]],\"Book Weblink\")","v":"Book Weblink"},null,"Greenhaven Publishing","Library Bound Book",1,"2019","January 2019","Library","6.500 X 9.250","Edited by","Lisa Idzikowski",null,null,null,null,"Z",null,"Grade 7 - 10","Grade 7 - 12","Hunting game has been a way of life for humans for two million years. Today, people around the world hunt both as a source of food and for sport. While its critics argue that hunting is barbaric and a rich man's sport, its supporters defend the activity in terms of tradition, culture, and population control. Of course, there are still societies around the world that depend on hunting to survive. But for the rest, can hunting ever be justified? The diverse perspectives in this volume will surprise students who may already have made up their minds on the subject.","English",43,34.4,"639/.1--dc23","120 pp.","https://greenhavenpublishing.com/9781534504226",null,{"$f":"Table1[[#This Row],['# of Books]]*Table1[[#This Row],[QTY]]","v":0},{"$f":"Table1[[#This Row],[QTY]]*Table1[[#This Row],[School & Library Price]]","v":0}]
[null,null,9,null,null,"Current Issues","Introducing Issues with Opposing Viewpoints","Hunting","978-1-5345-0481-3",{"$f":"HYPERLINK(Table1[[#This Row],[eCommerce Hyperlink]],\"Book Weblink\")","v":"Book Weblink"},null,"Greenhaven Publishing","Paperback Book",1,"2019","January 2019","Paperback","6.500 X 9.250","Edited by","Lisa Idzikowski",null,null,null,null,"Z",null,"Grade 7 - 10","Grade 7 - 12","Hunting game has been a way of life for humans for two million years. Today, people around the world hunt both as a source of food and for sport. While its critics argue that hunting is barbaric and a rich man's sport, its supporters defend the activity in terms of tradition, culture, and population control. Of course, there are still societies around the world that depend on hunting to survive. But for the rest, can hunting ever be justified? The diverse perspectives in this volume will surprise students who may already have made up their minds on the subject.","English",29.3,23.45,"639/.1--dc23","120 pp.","https://greenhavenpublishing.com/9781534504813",null,{"$f":"Table1[[#This Row],['# of Books]]*Table1[[#This Row],[QTY]]","v":0},{"$f":"Table1[[#This Row],[QTY]]*Table1[[#This Row],[School & Library Price]]","v":0}]
[null,null,9,null,null,"Current Issues","Introducing Issues with Opposing Viewpoints","Immigration and Travel Restrictions","978-1-5345-0423-3",{"$f":"HYPERLINK(Table1[[#This Row],[eCommerce Hyperlink]],\"Book Weblink\")","v":"Book Weblink"},null,"Greenhaven Publishing","Library Bound Book",1,"2019","January 2019","Library","6.500 X 9.250","Edited by","M. M. Eboch",null,null,null,null,"Z",null,"Grade 7 - 10","Grade 7 - 12","Restrictions on immigration and visitation have been in place for decades in the name of security and public health, but recently they have become a point of contention, particularly in the United States and many European nations. As terrorist attacks have proliferated around the world, security restrictions have tightened, resulting in an outcry that travel bans are discriminatory and racist. Is it better to be safe than sorry? Are travel bans such as Executive Order 13769 more about politics than security? A wide array of authoritative voices offers their perspectives on this timely and far-reaching debate.","English",43,34.4,"304.8/73--dc23","120 pp.","https://greenhavenpublishing.com/9781534504233",null,{"$f":"Table1[[#This Row],['# of Books]]*Table1[[#This Row],[QTY]]","v":0},{"$f":"Table1[[#This Row],[QTY]]*Table1[[#This Row],[School & Library Price]]","v":0}]
[null,null,9,null,null,"Current Issues","Introducing Issues with Opposing Viewpoints","Immigration and Travel Restrictions","978-1-5345-0483-7",{"$f":"HYPERLINK(Table1[[#This Row],[eCommerce Hyperlink]],\"Book Weblink\")","v":"Book Weblink"},null,"Greenhaven Publishing","Paperback Book",1,"2019","January 2019","Paperback","6.500 X 9.250","Edited by","M. M. Eboch",null,null,null,null,"Z",null,"Grade 7 - 10","Grade 7 - 12","Restrictions on immigration and visitation have been in place for decades in the name of security and public health, but recently they have become a point of contention, particularly in the United States and many European nations. As terrorist attacks have proliferated around the world, security restrictions have tightened, resulting in an outcry that travel bans are discriminatory and racist. Is it better to be safe than sorry? Are travel bans such as Executive Order 13769 more about politics than security? A wide array of authoritative voices offers their perspectives on this timely and far-reaching debate.","English",29.3,23.45,"304.8/73--dc23","120 pp.","https://greenhavenpublishing.com/9781534504837",null,{"$f":"Table1[[#This Row],['# of Books]]*Table1[[#This Row],[QTY]]","v":0},{"$f":"Table1[[#This Row],[QTY]]*Table1[[#This Row],[School & Library Price]]","v":0}]
[null,8,9,null,null,"Current Issues","Introducing Issues with Opposing Viewpoints","Impeachment","978-1-5345-0807-1",{"$f":"HYPERLINK(Table1[[#This Row],[eCommerce Hyperlink]],\"Book Weblink\")","v":"Book Weblink"},null,"Greenhaven Publishing","Library Bound Book",1,"2022","August 2021","Library","6.500 X 9.250","Compiled by","Lisa Idzikowski",null,null,null,null,"Z",null,"Grade 7 - 10","Grade 7 - 12","Although we associate impeachment with U.S. presidents, it can pertain to government officials at the state or federal level. In addition, it exists in many countries around the world. In its entire history, the United States has impeached its president only three times, but some experts wonder if that number is likely to grow as the country and its leaders become more divided. Will impeachment be used as a political tool, and is the ensuing chaos worth it? The viewpoints in this volume examine impeachment, offer interpretations of the Founding Fathers' intentions, and question whether there is a better way.","English",43,34.4,"342.73/068--dc23","120 pp.","https://greenhavenpublishing.com/9781534508071",null,{"$f":"Table1[[#This Row],['# of Books]]*Table1[[#This Row],[QTY]]","v":0},{"$f":"Table1[[#This Row],[QTY]]*Table1[[#This Row],[School & Library Price]]","v":0}]
[null,8,9,null,null,"Current Issues","Introducing Issues with Opposing Viewpoints","Impeachment","978-1-5345-0806-4",{"$f":"HYPERLINK(Table1[[#This Row],[eCommerce Hyperlink]],\"Book Weblink\")","v":"Book Weblink"},null,"Greenhaven Publishing","Paperback Book",1,"2022","August 2021","Paperback","6.500 X 9.250","Compiled by","Lisa Idzikowski",null,null,null,null,"Z",null,"Grade 7 - 10","Grade 7 - 12","Although we associate impeachment with U.S. presidents, it can pertain to government officials at the state or federal level. In addition, it exists in many countries around the world. In its entire history, the United States has impeached its president only three times, but some experts wonder if that number is likely to grow as the country and its leaders become more divided. Will impeachment be used as a political tool, and is the ensuing chaos worth it? The viewpoints in this volume examine impeachment, offer interpretations of the Founding Fathers' intentions, and question whether there is a better way.","English",29.3,23.45,"342.73/068--dc23","120 pp.","https://greenhavenpublishing.com/9781534508064",null,{"$f":"Table1[[#This Row],['# of Books]]*Table1[[#This Row],[QTY]]","v":0},{"$f":"Table1[[#This Row],[QTY]]*Table1[[#This Row],[School & Library Price]]","v":0}]
[null,null,9,null,null,"Current Issues","Introducing Issues with Opposing Viewpoints","Incarceration of Minors","978-1-5345-0570-4",{"$f":"HYPERLINK(Table1[[#This Row],[eCommerce Hyperlink]],\"Book Weblink\")","v":"Book Weblink"},null,"Greenhaven Publishing","Library Bound Book",1,"2020","August 2019","Library","6.500 X 9.250","Edited by","Martin Gitlin",null,null,null,null,"Z",null,"Grade 7 - 10","Grade 7 - 12","Approximately ten thousand children are imprisoned in adult correctional facilities in the United States on any given day. Children as young as thirteen have received life sentences in prisons far from their family and community, vulnerable to abuse and neglect. These are often the same conditions that led them there in the first place. What is the most effective method of dealing with youth offenders? Should they be tried as adults and incarcerated with adult prisoners? Is money better spent on education and rehabilitation? This resource tackles these difficult questions through diverse perspectives written by authorities on the subject.","English",43,34.4,"365/.420973--dc23","120 pp.","https://greenhavenpublishing.com/9781534505704",null,{"$f":"Table1[[#This Row],['# of Books]]*Table1[[#This Row],[QTY]]","v":0},{"$f":"Table1[[#This Row],[QTY]]*Table1[[#This Row],[School & Library Price]]","v":0}]
[null,null,9,null,null,"Current Issues","Introducing Issues with Opposing Viewpoints","Incarceration of Minors","978-1-5345-0571-1",{"$f":"HYPERLINK(Table1[[#This Row],[eCommerce Hyperlink]],\"Book Weblink\")","v":"Book Weblink"},null,"Greenhaven Publishing","Paperback Book",1,"2020","August 2019","Paperback","6.500 X 9.250","Edited by","Martin Gitlin",null,null,null,null,"Z",null,"Grade 7 - 10","Grade 7 - 12","Approximately ten thousand children are imprisoned in adult correctional facilities in the United States on any given day. Children as young as thirteen have received life sentences in prisons far from their family and community, vulnerable to abuse and neglect. These are often the same conditions that led them there in the first place. What is the most effective method of dealing with youth offenders? Should they be tried as adults and incarcerated with adult prisoners? Is money better spent on education and rehabilitation? This resource tackles these difficult questions through diverse perspectives written by authorities on the subject.","English",29.3,23.45,"365/.420973--dc23","120 pp.","https://greenhavenpublishing.com/9781534505711",null,{"$f":"Table1[[#This Row],['# of Books]]*Table1[[#This Row],[QTY]]","v":0},{"$f":"Table1[[#This Row],[QTY]]*Table1[[#This Row],[School & Library Price]]","v":0}]
[null,8,9,null,null,"Current Issues","Introducing Issues with Opposing Viewpoints","Income Inequality","978-1-5345-0719-7",{"$f":"HYPERLINK(Table1[[#This Row],[eCommerce Hyperlink]],\"Book Weblink\")","v":"Book Weblink"},null,"Greenhaven Publishing","Library Bound Book",1,"2022","August 2021","Library","6.500 X 9.250","Compiled by","M. M. Eboch",null,null,null,null,"Z",null,"Grade 7 - 10","Grade 7 - 12","Income inequality, which is the income gap between rich and poor, has widened steadily for the past fifty years in the United States. This gap affects women, immigrants, and racial and ethnic minorities most, and it can create problems that ripple through many aspects of our lives for generations to come. Why does income inequality exist, how does it affect our society, and how can we address it? The wide-ranging viewpoints in this volume explore these questions and provide important explanations and context for this complicated issue.","English",43,34.4,"339.2/20973--dc23","120 pp.","https://greenhavenpublishing.com/9781534507197",null,{"$f":"Table1[[#This Row],['# of Books]]*Table1[[#This Row],[QTY]]","v":0},{"$f":"Table1[[#This Row],[QTY]]*Table1[[#This Row],[School & Library Price]]","v":0}]
[null,8,9,null,null,"Current Issues","Introducing Issues with Opposing Viewpoints","Income Inequality","978-1-5345-0718-0",{"$f":"HYPERLINK(Table1[[#This Row],[eCommerce Hyperlink]],\"Book Weblink\")","v":"Book Weblink"},null,"Greenhaven Publishing","Paperback Book",1,"2022","August 2021","Paperback","6.500 X 9.250","Compiled by","M. M. Eboch",null,null,null,null,"Z",null,"Grade 7 - 10","Grade 7 - 12","Income inequality, which is the income gap between rich and poor, has widened steadily for the past fifty years in the United States. This gap affects women, immigrants, and racial and ethnic minorities most, and it can create problems that ripple through many aspects of our lives for generations to come. Why does income inequality exist, how does it affect our society, and how can we address it? The wide-ranging viewpoints in this volume explore these questions and provide important explanations and context for this complicated issue.","English",29.3,23.45,"339.2/20973--dc23","120 pp.","https://greenhavenpublishing.com/9781534507180",null,{"$f":"Table1[[#This Row],['# of Books]]*Table1[[#This Row],[QTY]]","v":0},{"$f":"Table1[[#This Row],[QTY]]*Table1[[#This Row],[School & Library Price]]","v":0}]
[null,null,9,null,null,"Current Issues","Introducing Issues with Opposing Viewpoints","Internet Journalism and Fake News","978-1-5345-0195-9",{"$f":"HYPERLINK(Table1[[#This Row],[eCommerce Hyperlink]],\"Book Weblink\")","v":"Book Weblink"},null,"Greenhaven Publishing","Library Bound Book",1,"2018","January 2018","Library","6.500 X 9.250","Edited by","Kathryn Roberts",null,null,null,null,"Z",null,"Grade 7 - 10","Grade 7 - 12","Blogs, Twitter, Facebook, Tumblr, Wikipedia...there are endless sources for information on the Internet. But who can you trust to give you the truth? The catch-all of \"fake news\" has journalists, politicians, and information junkies alike worried about integrity, veracity, and legitimate sourcing. This collection of authoritative but diverse viewpoints tackles what constitutes fake news, where the term originated, and how it is often used to further politicize the media. Readers will also find discussions of propaganda and whether information disseminated by the American government is the only \"real\" news.","English",43,34.4,"808/.06607--dc23","120 pp.","https://greenhavenpublishing.com/9781534501959",null,{"$f":"Table1[[#This Row],['# of Books]]*Table1[[#This Row],[QTY]]","v":0},{"$f":"Table1[[#This Row],[QTY]]*Table1[[#This Row],[School & Library Price]]","v":0}]
[null,null,9,null,null,"Current Issues","Introducing Issues with Opposing Viewpoints","Internet Journalism and Fake News","978-1-5345-0275-8",{"$f":"HYPERLINK(Table1[[#This Row],[eCommerce Hyperlink]],\"Book Weblink\")","v":"Book Weblink"},null,"Greenhaven Publishing","Paperback Book",1,"2018","January 2018","Paperback","6.500 X 9.250","Edited by","Kathryn Roberts",null,null,null,null,"Z",null,"Grade 7 - 10","Grade 7 - 12","Blogs, Twitter, Facebook, Tumblr, Wikipedia...there are endless sources for information on the Internet. But who can you trust to give you the truth? The catch-all of \"fake news\" has journalists, politicians, and information junkies alike worried about integrity, veracity, and legitimate sourcing. This collection of authoritative but diverse viewpoints tackles what constitutes fake news, where the term originated, and how it is often used to further politicize the media. Readers will also find discussions of propaganda and whether information disseminated by the American government is the only \"real\" news.","English",29.3,23.45,"808/.06607--dc23","120 pp.","https://greenhavenpublishing.com/9781534502758",null,{"$f":"Table1[[#This Row],['# of Books]]*Table1[[#This Row],[QTY]]","v":0},{"$f":"Table1[[#This Row],[QTY]]*Table1[[#This Row],[School & Library Price]]","v":0}]
[null,null,9,null,null,"Current Issues","Introducing Issues with Opposing Viewpoints","Intersectionality and Identity Politics","978-1-5345-0424-0",{"$f":"HYPERLINK(Table1[[#This Row],[eCommerce Hyperlink]],\"Book Weblink\")","v":"Book Weblink"},null,"Greenhaven Publishing","Library Bound Book",1,"2019","January 2019","Library","6.500 X 9.250","Edited by","M. M. Eboch",null,null,null,null,"Z",null,"Grade 7 - 10","Grade 7 - 12","In America's melting pot, as the spectrum of power broadens to include different religions, races, genders, and sexual orientations, a complicated reality emerges: Americans don't always fit into one simple category. It is generally agreed that embracing all parts of our complex identities is a positive development, and politicians have taken notice. But who benefits from identity politics? Do they unwittingly divide us? Are they causing unneeded stress in the country? The perspectives in this volume explore intersectionality and identity politics as an emerging force in our culture.","English",43,34.4,"320.0973--dc23","120 pp.","https://greenhavenpublishing.com/9781534504240",null,{"$f":"Table1[[#This Row],['# of Books]]*Table1[[#This Row],[QTY]]","v":0},{"$f":"Table1[[#This Row],[QTY]]*Table1[[#This Row],[School & Library Price]]","v":0}]
[null,null,9,null,null,"Current Issues","Introducing Issues with Opposing Viewpoints","Intersectionality and Identity Politics","978-1-5345-0485-1",{"$f":"HYPERLINK(Table1[[#This Row],[eCommerce Hyperlink]],\"Book Weblink\")","v":"Book Weblink"},null,"Greenhaven Publishing","Paperback Book",1,"2019","January 2019","Paperback","6.500 X 9.250","Edited by","M. M. Eboch",null,null,null,null,"Z",null,"Grade 7 - 10","Grade 7 - 12","In America's melting pot, as the spectrum of power broadens to include different religions, races, genders, and sexual orientations, a complicated reality emerges: Americans don't always fit into one simple category. It is generally agreed that embracing all parts of our complex identities is a positive development, and politicians have taken notice. But who benefits from identity politics? Do they unwittingly divide us? Are they causing unneeded stress in the country? The perspectives in this volume explore intersectionality and identity politics as an emerging force in our culture.","English",29.3,23.45,"320.0973--dc23","120 pp.","https://greenhavenpublishing.com/9781534504851",null,{"$f":"Table1[[#This Row],['# of Books]]*Table1[[#This Row],[QTY]]","v":0},{"$f":"Table1[[#This Row],[QTY]]*Table1[[#This Row],[School & Library Price]]","v":0}]
[null,null,9,null,null,"Current Issues","Introducing Issues with Opposing Viewpoints","Juvenile Crime","978-0-7377-6925-8",{"$f":"HYPERLINK(Table1[[#This Row],[eCommerce Hyperlink]],\"Book Weblink\")","v":"Book Weblink"},null,"Greenhaven Publishing","Library Bound Book",1,"2014","January 2014","Library","6.500 X 9.500","Edited by","Jacqueline Langwith",null,null,null,null,"Z",null,"Grade 7 - 10","Grade 7 - 11","This must-have collection of essays explores the causes of juvenile crime, how the justice system should treat juvenile offenders, and how juvenile crime can be reduced. The essays share more than one viewpoint so that readers can benefit from a balanced offering. Essay sources include the U.S. Drug Enforcement Agency, Iowa State University News Service, Annie E. Casey Foundation, and Jessica Wilde.","English",43,34.4,"364.360973","120 pp.","https://greenhavenpublishing.com/9780737769258",null,{"$f":"Table1[[#This Row],['# of Books]]*Table1[[#This Row],[QTY]]","v":0},{"$f":"Table1[[#This Row],[QTY]]*Table1[[#This Row],[School & Library Price]]","v":0}]
[null,9,9,null,null,"Current Issues","Introducing Issues with Opposing Viewpoints","Legalization of Marijuana","978-1-5345-0669-5",{"$f":"HYPERLINK(Table1[[#This Row],[eCommerce Hyperlink]],\"Book Weblink\")","v":"Book Weblink"},null,"Greenhaven Publishing","Library Bound Book",1,"2020","January 2020","Library","6.500 X 9.250","Edited by","M. M. Eboch",null,null,null,null,"Z",null,"Grade 7 - 10","Grade 7 - 12","As of 2018, thirty-three states and the District of Columbia have legalized marijuana in some form, either broadly allowing its recreational use or limiting it to medical applications. However, the conditions under which marijuana should be legalized, if at all, are hotly debated. Some assert that it should only be allowed for medicinal purposes, while others argue that attempting to prohibit it is futile and that it would be better to legalize it, which would enable the regulation and taxation of it. Concerns about marijuana's availability to minors and its relationship to crime and addiction are explored in this volume.","English",43,34.4,"344.7304/233--dc23","120 pp.","https://greenhavenpublishing.com/9781534506695",null,{"$f":"Table1[[#This Row],['# of Books]]*Table1[[#This Row],[QTY]]","v":0},{"$f":"Table1[[#This Row],[QTY]]*Table1[[#This Row],[School & Library Price]]","v":0}]
[null,9,9,null,null,"Current Issues","Introducing Issues with Opposing Viewpoints","Legalization of Marijuana","978-1-5345-0668-8",{"$f":"HYPERLINK(Table1[[#This Row],[eCommerce Hyperlink]],\"Book Weblink\")","v":"Book Weblink"},null,"Greenhaven Publishing","Paperback Book",1,"2020","January 2020","Paperback","6.500 X 9.250","Edited by","M. M. Eboch",null,null,null,null,"Z",null,"Grade 7 - 10","Grade 7 - 12","As of 2018, thirty-three states and the District of Columbia have legalized marijuana in some form, either broadly allowing its recreational use or limiting it to medical applications. However, the conditions under which marijuana should be legalized, if at all, are hotly debated. Some assert that it should only be allowed for medicinal purposes, while others argue that attempting to prohibit it is futile and that it would be better to legalize it, which would enable the regulation and taxation of it. Concerns about marijuana's availability to minors and its relationship to crime and addiction are explored in this volume.","English",29.3,23.45,"344.7304/233--dc23","120 pp.","https://greenhavenpublishing.com/9781534506688",null,{"$f":"Table1[[#This Row],['# of Books]]*Table1[[#This Row],[QTY]]","v":0},{"$f":"Table1[[#This Row],[QTY]]*Table1[[#This Row],[School & Library Price]]","v":0}]
[null,null,9,null,null,"Current Issues","Introducing Issues with Opposing Viewpoints","Masculinity in the Twenty-First Century","978-1-5345-0361-8",{"$f":"HYPERLINK(Table1[[#This Row],[eCommerce Hyperlink]],\"Book Weblink\")","v":"Book Weblink"},null,"Greenhaven Publishing","Library Bound Book",1,"2019","August 2018","Library","6.500 X 9.250","Edited by","M. M. Eboch",null,null,null,null,"Z",null,"Grade 7 - 10","Grade 7 - 12","As gender norms have changed over the decades, the definition of masculinity has evolved, leading to some confusion, unmet expectations, and an unknown future. Today's man can feel comfortable displaying emotion and empathy. Does this shift mean that the role of man is no longer dominant in our society? Is there an inevitable path to irrelevance? The diverging viewpoints in this thought-provoking resource will challenge readers' assumptions about gender roles and ask them to consider how those roles will evolve as the century progresses.","English",43,34.4,"305.31--dc23","120 pp.","https://greenhavenpublishing.com/9781534503618",null,{"$f":"Table1[[#This Row],['# of Books]]*Table1[[#This Row],[QTY]]","v":0},{"$f":"Table1[[#This Row],[QTY]]*Table1[[#This Row],[School & Library Price]]","v":0}]
[null,null,9,null,null,"Current Issues","Introducing Issues with Opposing Viewpoints","Masculinity in the Twenty-First Century","978-1-5345-0362-5",{"$f":"HYPERLINK(Table1[[#This Row],[eCommerce Hyperlink]],\"Book Weblink\")","v":"Book Weblink"},null,"Greenhaven Publishing","Paperback Book",1,"2019","August 2018","Paperback","6.500 X 9.250","Edited by","M. M. Eboch",null,null,null,null,"Z",null,"Grade 7 - 10","Grade 7 - 12","As gender norms have changed over the decades, the definition of masculinity has evolved, leading to some confusion, unmet expectations, and an unknown future. Today's man can feel comfortable displaying emotion and empathy. Does this shift mean that the role of man is no longer dominant in our society? Is there an inevitable path to irrelevance? The diverging viewpoints in this thought-provoking resource will challenge readers' assumptions about gender roles and ask them to consider how those roles will evolve as the century progresses.","English",29.3,23.45,"305.31--dc23","120 pp.","https://greenhavenpublishing.com/9781534503625",null,{"$f":"Table1[[#This Row],['# of Books]]*Table1[[#This Row],[QTY]]","v":0},{"$f":"Table1[[#This Row],[QTY]]*Table1[[#This Row],[School & Library Price]]","v":0}]
[null,null,9,null,null,"Current Issues","Introducing Issues with Opposing Viewpoints","Media Bias","978-0-7377-7236-4",{"$f":"HYPERLINK(Table1[[#This Row],[eCommerce Hyperlink]],\"Book Weblink\")","v":"Book Weblink"},null,"Greenhaven Publishing","Library Bound Book",1,"2015","January 2015","Library","6.500 X 9.500","Edited by","Ebonie Ledbetter",null,null,null,null,"Z",null,"Grade 7 - 10","Grade 7 - 11","The essential volume examines the facets of media bias. Readers will evaluate whether it matters and whether it is polarized into liberal and conservative issues. Readers will explore whether big business plays a part, and how media bias impacts society. Essays also debate the best ways to fight media bias. Full-color photographs, charts, graphs, and images supplement the essays.","English",43,34.4,"302.23/0973","160 pp.","https://greenhavenpublishing.com/9780737772364",null,{"$f":"Table1[[#This Row],['# of Books]]*Table1[[#This Row],[QTY]]","v":0},{"$f":"Table1[[#This Row],[QTY]]*Table1[[#This Row],[School & Library Price]]","v":0}]
[null,null,9,null,null,"Current Issues","Introducing Issues with Opposing Viewpoints","Mexico","978-0-7377-7237-1",{"$f":"HYPERLINK(Table1[[#This Row],[eCommerce Hyperlink]],\"Book Weblink\")","v":"Book Weblink"},null,"Greenhaven Publishing","Library Bound Book",1,"2015","January 2015","Library","6.500 X 9.500","Edited by","Julia Garbus",null,null,null,null,"Z",null,"Grade 7 - 10","Grade 7 - 11","America's relationship to its southern neighbor is incredibly complicated. Thousands of Mexicans make up an integral part of our infrastructure, that our citizens keep \"off the books.\" Several thousands more come to America legally, to make a better life for themselves and their families. This compelling collection of essays debates what the future may hold for Mexico. This volume also explores the challenges and opportunities for Mexico, including how the country and the U.S. should approach the drug war. Essay sources include PR Newswire, The Canadian Press, Amnesty International, Rodrigo Aguilera, and Mary Wakefield.","English",43,34.4,"330.972","144 pp.","https://greenhavenpublishing.com/9780737772371",null,{"$f":"Table1[[#This Row],['# of Books]]*Table1[[#This Row],[QTY]]","v":0},{"$f":"Table1[[#This Row],[QTY]]*Table1[[#This Row],[School & Library Price]]","v":0}]
[null,null,9,null,null,"Current Issues","Introducing Issues with Opposing Viewpoints","Organic Food and Farming","978-0-7377-6926-5",{"$f":"HYPERLINK(Table1[[#This Row],[eCommerce Hyperlink]],\"Book Weblink\")","v":"Book Weblink"},null,"Greenhaven Publishing","Library Bound Book",1,"2014","January 2014","Library","6.500 X 9.500","Edited by","Lauri S. Scherer",null,null,null,null,"Z",null,"Grade 7 - 10","Grade 7 - 11","This must-have book provides a compendium of opinion on organic food and farming, including issues related to safety, environmental effects, and social elements. What is the nature of organic food? Is organic farming good for the environment? How safe is organic food? Readers find the answers here, with essay sources including Zak Solomon, Christie Wilcox, and Agence France-Presse.","English",43,34.4,"641.3/​02","136 pp.","https://greenhavenpublishing.com/9780737769265",null,{"$f":"Table1[[#This Row],['# of Books]]*Table1[[#This Row],[QTY]]","v":0},{"$f":"Table1[[#This Row],[QTY]]*Table1[[#This Row],[School & Library Price]]","v":0}]
[null,9,9,null,null,"Current Issues","Introducing Issues with Opposing Viewpoints","Patriotism","978-1-5345-0665-7",{"$f":"HYPERLINK(Table1[[#This Row],[eCommerce Hyperlink]],\"Book Weblink\")","v":"Book Weblink"},null,"Greenhaven Publishing","Library Bound Book",1,"2020","January 2020","Library","6.500 X 9.250","Edited by","Sabine Cherenfant",null,null,null,null,"Z",null,"Grade 7 - 10","Grade 7 - 12","Patriotism refers to devotion to one's country, and as such it is often considered essential to a cohesive national identity. However, with concerns about xenophobia, nationalism, and chauvinism on the rise, the question of what role patriotism plays in these problematic exclusionary beliefs and practices must be examined. This volume considers various viewpoints on what defines patriotism, how it originated as a concept, and the ways in which it both helps and hinders nations. It examines patriotism through the lens of contemporary political and social issues around the world.","English",43,34.4,"323.6/50973--dc23","120 pp.","https://greenhavenpublishing.com/9781534506657",null,{"$f":"Table1[[#This Row],['# of Books]]*Table1[[#This Row],[QTY]]","v":0},{"$f":"Table1[[#This Row],[QTY]]*Table1[[#This Row],[School & Library Price]]","v":0}]
[null,9,9,null,null,"Current Issues","Introducing Issues with Opposing Viewpoints","Patriotism","978-1-5345-0664-0",{"$f":"HYPERLINK(Table1[[#This Row],[eCommerce Hyperlink]],\"Book Weblink\")","v":"Book Weblink"},null,"Greenhaven Publishing","Paperback Book",1,"2020","January 2020","Paperback","6.500 X 9.250","Edited by","Sabine Cherenfant",null,null,null,null,"Z",null,"Grade 7 - 10","Grade 7 - 12","Patriotism refers to devotion to one's country, and as such it is often considered essential to a cohesive national identity. However, with concerns about xenophobia, nationalism, and chauvinism on the rise, the question of what role patriotism plays in these problematic exclusionary beliefs and practices must be examined. This volume considers various viewpoints on what defines patriotism, how it originated as a concept, and the ways in which it both helps and hinders nations. It examines patriotism through the lens of contemporary political and social issues around the world.","English",29.3,23.45,"323.6/50973--dc23","120 pp.","https://greenhavenpublishing.com/9781534506640",null,{"$f":"Table1[[#This Row],['# of Books]]*Table1[[#This Row],[QTY]]","v":0},{"$f":"Table1[[#This Row],[QTY]]*Table1[[#This Row],[School & Library Price]]","v":0}]
[null,9,9,null,null,"Current Issues","Introducing Issues with Opposing Viewpoints","Physician-Assisted Suicide","978-1-5345-0715-9",{"$f":"HYPERLINK(Table1[[#This Row],[eCommerce Hyperlink]],\"Book Weblink\")","v":"Book Weblink"},null,"Greenhaven Publishing","Library Bound Book",1,"2021","January 2021","Library","6.500 X 9.250","Compiled by","M. M. Eboch",null,null,null,null,"Z",null,"Grade 7 - 10","Grade 7 - 12","Physician-assisted suicide is legal in nine U.S. states and the District of Columbia. It is not without controversy, even in the states where Physician-assisted suicide laws have been passed. Proponents believe that it's a matter of liberty, that the terminally ill have the right to choose how their lives will end. Opponents argue that such laws make the terminally ill vulnerable to medical errors and abuse, and they believe that the laws devalue life. The viewpoints in this volume examine physician-assisted suicide from many angles, providing readers with a comprehensive approach to this challenging topic.","English",43,34.4,"179.7--dc23","120 pp.","https://greenhavenpublishing.com/9781534507159",null,{"$f":"Table1[[#This Row],['# of Books]]*Table1[[#This Row],[QTY]]","v":0},{"$f":"Table1[[#This Row],[QTY]]*Table1[[#This Row],[School & Library Price]]","v":0}]
[null,9,9,null,null,"Current Issues","Introducing Issues with Opposing Viewpoints","Physician-Assisted Suicide","978-1-5345-0714-2",{"$f":"HYPERLINK(Table1[[#This Row],[eCommerce Hyperlink]],\"Book Weblink\")","v":"Book Weblink"},null,"Greenhaven Publishing","Paperback Book",1,"2021","January 2021","Paperback","6.500 X 9.250","Compiled by","M. M. Eboch",null,null,null,null,"Z",null,"Grade 7 - 10","Grade 7 - 12","Physician-assisted suicide is legal in nine U.S. states and the District of Columbia. It is not without controversy, even in the states where Physician-assisted suicide laws have been passed. Proponents believe that it's a matter of liberty, that the terminally ill have the right to choose how their lives will end. Opponents argue that such laws make the terminally ill vulnerable to medical errors and abuse, and they believe that the laws devalue life. The viewpoints in this volume examine physician-assisted suicide from many angles, providing readers with a comprehensive approach to this challenging topic.","English",29.3,23.45,"179.7--dc23","120 pp.","https://greenhavenpublishing.com/9781534507142",null,{"$f":"Table1[[#This Row],['# of Books]]*Table1[[#This Row],[QTY]]","v":0},{"$f":"Table1[[#This Row],[QTY]]*Table1[[#This Row],[School & Library Price]]","v":0}]
[null,9,9,null,null,"Current Issues","Introducing Issues with Opposing Viewpoints","Prescription Drugs","978-1-5345-0725-8",{"$f":"HYPERLINK(Table1[[#This Row],[eCommerce Hyperlink]],\"Book Weblink\")","v":"Book Weblink"},null,"Greenhaven Publishing","Library Bound Book",1,"2021","January 2021","Library","6.500 X 9.250","Compiled by","M. M. Eboch",null,null,null,null,"Z",null,"Grade 7 - 10","Grade 7 - 12","Americans spend more than 460 billion dollars on prescription drugs annually, according to the Department of Health and Human Services. Not all of this medication is helping us. Unnecessary and improper use of medication is responsible for an extremely high number of hospital visits and deaths each year. In addition, the cost of many medications can be prohibitive. Are we taking too many drugs? Why are prescription drugs in the United States so expensive? Does the pharmaceutical industry work for our best interest? The perspectives in this volume delve into the many facets of the controversies pertaining to prescription drugs.","English",43,34.4,"615.5/8--dc23","120 pp.","https://greenhavenpublishing.com/9781534507258",null,{"$f":"Table1[[#This Row],['# of Books]]*Table1[[#This Row],[QTY]]","v":0},{"$f":"Table1[[#This Row],[QTY]]*Table1[[#This Row],[School & Library Price]]","v":0}]
[null,9,9,null,null,"Current Issues","Introducing Issues with Opposing Viewpoints","Prescription Drugs","978-1-5345-0724-1",{"$f":"HYPERLINK(Table1[[#This Row],[eCommerce Hyperlink]],\"Book Weblink\")","v":"Book Weblink"},null,"Greenhaven Publishing","Paperback Book",1,"2021","January 2021","Paperback","6.500 X 9.250","Compiled by","M. M. Eboch",null,null,null,null,"Z",null,"Grade 7 - 10","Grade 7 - 12","Americans spend more than 460 billion dollars on prescription drugs annually, according to the Department of Health and Human Services. Not all of this medication is helping us. Unnecessary and improper use of medication is responsible for an extremely high number of hospital visits and deaths each year. In addition, the cost of many medications can be prohibitive. Are we taking too many drugs? Why are prescription drugs in the United States so expensive? Does the pharmaceutical industry work for our best interest? The perspectives in this volume delve into the many facets of the controversies pertaining to prescription drugs.","English",29.3,23.45,"615.5/8--dc23","120 pp.","https://greenhavenpublishing.com/9781534507241",null,{"$f":"Table1[[#This Row],['# of Books]]*Table1[[#This Row],[QTY]]","v":0},{"$f":"Table1[[#This Row],[QTY]]*Table1[[#This Row],[School & Library Price]]","v":0}]
[null,null,9,null,null,"Current Issues","Introducing Issues with Opposing Viewpoints","Privacy","978-0-7377-6927-2",{"$f":"HYPERLINK(Table1[[#This Row],[eCommerce Hyperlink]],\"Book Weblink\")","v":"Book Weblink"},null,"Greenhaven Publishing","Library Bound Book",1,"2014","January 2014","Library","6.500 X 9.500","Edited by","Lauri S. Scherer",null,null,null,null,"Z",null,"Grade 7 - 10","Grade 7 - 11","Use this brilliant collection of essays as an essential primer for helping students understand privacy. This book considers the state of privacy, the relationship between privacy and security, and the relationship between privacy and technology. Across three chapters, readers are treated to more than one viewpoint on each topic, allowing them to exercise their critical thinking skills. Is privacy dead and overrated? Is the Government's metadata program safe and sound? Does social media threaten privacy? Help your readers with the answers to these questions and several more.","English",43,34.4,"323.44/80973","120 pp.","https://greenhavenpublishing.com/9780737769272",null,{"$f":"Table1[[#This Row],['# of Books]]*Table1[[#This Row],[QTY]]","v":0},{"$f":"Table1[[#This Row],[QTY]]*Table1[[#This Row],[School & Library Price]]","v":0}]
[null,null,9,null,null,"Current Issues","Introducing Issues with Opposing Viewpoints","School Shootings","978-1-5345-0572-8",{"$f":"HYPERLINK(Table1[[#This Row],[eCommerce Hyperlink]],\"Book Weblink\")","v":"Book Weblink"},null,"Greenhaven Publishing","Library Bound Book",1,"2020","August 2019","Library","6.500 X 9.250","Edited by","Lisa Idzikowski",null,null,null,null,"Z",null,"Grade 7 - 10","Grade 7 - 12","Since 2009, there have been 288 school shootings in the United States. This is an alarming statistic for one of the safest, richest, and most powerful countries in the world. Whenever one of these senseless tragedies occurs, activists and political leaders attempt to push their agendas, calling for stricter gun control, or tighter security, or even for arming teachers. This valuable resource, containing diverse viewpoints written by authoritative voices, explores why school shootings seem to be an epidemic, their potential causes, and what can be done to stop them.","English",43,34.4,"371.7/82--dc23","120 pp.","https://greenhavenpublishing.com/9781534505728",null,{"$f":"Table1[[#This Row],['# of Books]]*Table1[[#This Row],[QTY]]","v":0},{"$f":"Table1[[#This Row],[QTY]]*Table1[[#This Row],[School & Library Price]]","v":0}]
[null,null,9,null,null,"Current Issues","Introducing Issues with Opposing Viewpoints","School Shootings","978-1-5345-0573-5",{"$f":"HYPERLINK(Table1[[#This Row],[eCommerce Hyperlink]],\"Book Weblink\")","v":"Book Weblink"},null,"Greenhaven Publishing","Paperback Book",1,"2020","August 2019","Paperback","6.500 X 9.250","Edited by","Lisa Idzikowski",null,null,null,null,"Z",null,"Grade 7 - 10","Grade 7 - 12","Since 2009, there have been 288 school shootings in the United States. This is an alarming statistic for one of the safest, richest, and most powerful countries in the world. Whenever one of these senseless tragedies occurs, activists and political leaders attempt to push their agendas, calling for stricter gun control, or tighter security, or even for arming teachers. This valuable resource, containing diverse viewpoints written by authoritative voices, explores why school shootings seem to be an epidemic, their potential causes, and what can be done to stop them.","English",29.3,23.45,"371.7/82--dc23","120 pp.","https://greenhavenpublishing.com/9781534505735",null,{"$f":"Table1[[#This Row],['# of Books]]*Table1[[#This Row],[QTY]]","v":0},{"$f":"Table1[[#This Row],[QTY]]*Table1[[#This Row],[School & Library Price]]","v":0}]
[null,null,9,null,null,"Current Issues","Introducing Issues with Opposing Viewpoints","Self-Advocacy and Disability Rights","978-1-5345-0425-7",{"$f":"HYPERLINK(Table1[[#This Row],[eCommerce Hyperlink]],\"Book Weblink\")","v":"Book Weblink"},null,"Greenhaven Publishing","Library Bound Book",1,"2019","January 2019","Library","6.500 X 9.250","Edited by","M. M. Eboch",null,null,null,null,"Z",null,"Grade 7 - 10","Grade 7 - 12","People with disabilities, both physical and developmental, are an often-overlooked segment of civil rights movements. In fact, these individuals are among the most powerless in our society, even with organizations and professionals dedicated to fighting on their behalf. The self-advocacy movement seeks to empower the disabled to take control of their own lives. Through education about rights, laws, and \"the system,\" disabled adults and teens, as well as the parents of disabled children, can have agency over their lives. The viewpoints in this volume offer guidance and opinions from different perspectives.","English",43,34.4,"323.3/70973--dc23","120 pp.","https://greenhavenpublishing.com/9781534504257",null,{"$f":"Table1[[#This Row],['# of Books]]*Table1[[#This Row],[QTY]]","v":0},{"$f":"Table1[[#This Row],[QTY]]*Table1[[#This Row],[School & Library Price]]","v":0}]
[null,null,9,null,null,"Current Issues","Introducing Issues with Opposing Viewpoints","Self-Advocacy and Disability Rights","978-1-5345-0487-5",{"$f":"HYPERLINK(Table1[[#This Row],[eCommerce Hyperlink]],\"Book Weblink\")","v":"Book Weblink"},null,"Greenhaven Publishing","Paperback Book",1,"2019","January 2019","Paperback","6.500 X 9.250","Edited by","M. M. Eboch",null,null,null,null,"Z",null,"Grade 7 - 10","Grade 7 - 12","People with disabilities, both physical and developmental, are an often-overlooked segment of civil rights movements. In fact, these individuals are among the most powerless in our society, even with organizations and professionals dedicated to fighting on their behalf. The self-advocacy movement seeks to empower the disabled to take control of their own lives. Through education about rights, laws, and \"the system,\" disabled adults and teens, as well as the parents of disabled children, can have agency over their lives. The viewpoints in this volume offer guidance and opinions from different perspectives.","English",29.3,23.45,"323.3/70973--dc23","120 pp.","https://greenhavenpublishing.com/9781534504875",null,{"$f":"Table1[[#This Row],['# of Books]]*Table1[[#This Row],[QTY]]","v":0},{"$f":"Table1[[#This Row],[QTY]]*Table1[[#This Row],[School & Library Price]]","v":0}]
[null,null,9,null,null,"Current Issues","Introducing Issues with Opposing Viewpoints","Self-Driving Cars","978-1-5345-0363-2",{"$f":"HYPERLINK(Table1[[#This Row],[eCommerce Hyperlink]],\"Book Weblink\")","v":"Book Weblink"},null,"Greenhaven Publishing","Library Bound Book",1,"2019","August 2018","Library","6.500 X 9.250","Compiled by, Compiled by","Lisa Idzikowski, Pete Schauer",null,null,null,null,"Z",null,"Grade 7 - 10","Grade 7 - 12","Once they were the stuff of science fiction, but almost out of nowhere, self-driving cars have become a reality. Experts suggest that driverless cars will appear on our roads within five to twenty years, and Uber has already piloted a self-driving car program in select cities. Driverless cars are undoubtedly cool, but are they safe? Why do we need self-driving cars? Is it a case of technology creating a \"need,\" or will they actually provide a benefit to society? This fascinating and timely volume offers a diverse array of perspectives written by experts on this twenty-first-century subject.","English",43,34.4,"388.3/42--dc23","120 pp.","https://greenhavenpublishing.com/9781534503632",null,{"$f":"Table1[[#This Row],['# of Books]]*Table1[[#This Row],[QTY]]","v":0},{"$f":"Table1[[#This Row],[QTY]]*Table1[[#This Row],[School & Library Price]]","v":0}]
[null,null,9,null,null,"Current Issues","Introducing Issues with Opposing Viewpoints","Self-Driving Cars","978-1-5345-0364-9",{"$f":"HYPERLINK(Table1[[#This Row],[eCommerce Hyperlink]],\"Book Weblink\")","v":"Book Weblink"},null,"Greenhaven Publishing","Paperback Book",1,"2019","August 2018","Paperback","6.500 X 9.250","Compiled by, Compiled by","Lisa Idzikowski, Pete Schauer",null,null,null,null,"Z",null,"Grade 7 - 10","Grade 7 - 12","Once they were the stuff of science fiction, but almost out of nowhere, self-driving cars have become a reality. Experts suggest that driverless cars will appear on our roads within five to twenty years, and Uber has already piloted a self-driving car program in select cities. Driverless cars are undoubtedly cool, but are they safe? Why do we need self-driving cars? Is it a case of technology creating a \"need,\" or will they actually provide a benefit to society? This fascinating and timely volume offers a diverse array of perspectives written by experts on this twenty-first-century subject.","English",29.3,23.45,"388.3/42--dc23","120 pp.","https://greenhavenpublishing.com/9781534503649",null,{"$f":"Table1[[#This Row],['# of Books]]*Table1[[#This Row],[QTY]]","v":0},{"$f":"Table1[[#This Row],[QTY]]*Table1[[#This Row],[School & Library Price]]","v":0}]
[null,8,9,null,null,"Current Issues","Introducing Issues with Opposing Viewpoints","Service, Emotional Support, and Therapy Animals","978-1-5345-0799-9",{"$f":"HYPERLINK(Table1[[#This Row],[eCommerce Hyperlink]],\"Book Weblink\")","v":"Book Weblink"},null,"Greenhaven Publishing","Library Bound Book",1,"2022","August 2021","Library","6.500 X 9.250","Compiled by","M. M. Eboch",null,null,null,null,"Z",null,"Grade 7 - 10","Grade 7 - 12","Animals provide support to humans on a daily basis. Service animals are rigorously trained to assist the visually impaired and people with life-threatening medical conditions. Therapy animals are trained to provide comfort to those in need. Emotional support animals give their owners companionship and therapy. While some of these animals have been scientifically proven to be indispensable, the value of others is dubious. The viewpoints in this volume explore the expanding world of assistance animals, shedding light on how they do and do not enhance our lives.","English",43,34.4,"362.4/0483--dc23","120 pp.","https://greenhavenpublishing.com/9781534507999",null,{"$f":"Table1[[#This Row],['# of Books]]*Table1[[#This Row],[QTY]]","v":0},{"$f":"Table1[[#This Row],[QTY]]*Table1[[#This Row],[School & Library Price]]","v":0}]
[null,8,9,null,null,"Current Issues","Introducing Issues with Opposing Viewpoints","Service, Emotional Support, and Therapy Animals","978-1-5345-0798-2",{"$f":"HYPERLINK(Table1[[#This Row],[eCommerce Hyperlink]],\"Book Weblink\")","v":"Book Weblink"},null,"Greenhaven Publishing","Paperback Book",1,"2022","August 2021","Paperback","6.500 X 9.250","Compiled by","M. M. Eboch",null,null,null,null,"Z",null,"Grade 7 - 10","Grade 7 - 12","Animals provide support to humans on a daily basis. Service animals are rigorously trained to assist the visually impaired and people with life-threatening medical conditions. Therapy animals are trained to provide comfort to those in need. Emotional support animals give their owners companionship and therapy. While some of these animals have been scientifically proven to be indispensable, the value of others is dubious. The viewpoints in this volume explore the expanding world of assistance animals, shedding light on how they do and do not enhance our lives.","English",29.3,23.45,"362.4/0483--dc23","120 pp.","https://greenhavenpublishing.com/9781534507982",null,{"$f":"Table1[[#This Row],['# of Books]]*Table1[[#This Row],[QTY]]","v":0},{"$f":"Table1[[#This Row],[QTY]]*Table1[[#This Row],[School & Library Price]]","v":0}]
[null,null,9,null,null,"Current Issues","Introducing Issues with Opposing Viewpoints","Sexually Transmitted Diseases","978-0-7377-6928-9",{"$f":"HYPERLINK(Table1[[#This Row],[eCommerce Hyperlink]],\"Book Weblink\")","v":"Book Weblink"},null,"Greenhaven Publishing","Library Bound Book",1,"2014","January 2014","Library","6.500 X 9.500","Edited by, Edited by, Edited by","David M. Haugen, Michael Chaney, Susan Musser",null,null,null,null,"Z",null,"Grade 7 - 10","Grade 7 - 11","Utterly shocking but true, one in four teens has an STD. It is essential that children are fully educated about STDs so that they can make wise decisions about their own health and future. This collection of essays explores many aspects of sexually transmitted diseases. Across three chapters, readers will evaluate what contributes to the spread of STDs, what education programs address the spread of STDs, and whether government regulation would reduce infection rates. Do virginity pledges work? Does binge drinking increase a woman's risk of contracting an STD? Would mandatory testing reduce infection rates? Give your readers a book that answers these questions and more for them.","English",43,34.4,"616.95/1","136 pp.","https://greenhavenpublishing.com/9780737769289",null,{"$f":"Table1[[#This Row],['# of Books]]*Table1[[#This Row],[QTY]]","v":0},{"$f":"Table1[[#This Row],[QTY]]*Table1[[#This Row],[School & Library Price]]","v":0}]
[null,null,9,null,null,"Current Issues","Introducing Issues with Opposing Viewpoints","Student Protests","978-1-5345-0574-2",{"$f":"HYPERLINK(Table1[[#This Row],[eCommerce Hyperlink]],\"Book Weblink\")","v":"Book Weblink"},null,"Greenhaven Publishing","Library Bound Book",1,"2020","August 2019","Library","6.500 X 9.250","Edited by","Martin Gitlin",null,null,null,null,"Z",null,"Grade 7 - 10","Grade 7 - 12","Few would argue that students have the right to protest, but what forms of protest are acceptable? From the Vietnam War era to the more recent National School Walkout, students have used walkouts as a form of protest. Yet some teachers and administrators admonish such efforts because they waste precious class time and detract from learning. Others believe that, while peaceful protest is always the best first step, violence is an acceptable option when all else fails. Through balanced and respectful viewpoints, this resource examines the ways students can make their voices heard in an effort to create change.","English",43,34.4,"371.8/10973--dc23","120 pp.","https://greenhavenpublishing.com/9781534505742",null,{"$f":"Table1[[#This Row],['# of Books]]*Table1[[#This Row],[QTY]]","v":0},{"$f":"Table1[[#This Row],[QTY]]*Table1[[#This Row],[School & Library Price]]","v":0}]
[null,null,9,null,null,"Current Issues","Introducing Issues with Opposing Viewpoints","Student Protests","978-1-5345-0575-9",{"$f":"HYPERLINK(Table1[[#This Row],[eCommerce Hyperlink]],\"Book Weblink\")","v":"Book Weblink"},null,"Greenhaven Publishing","Paperback Book",1,"2020","August 2019","Paperback","6.500 X 9.250","Edited by","Martin Gitlin",null,null,null,null,"Z",null,"Grade 7 - 10","Grade 7 - 12","Few would argue that students have the right to protest, but what forms of protest are acceptable? From the Vietnam War era to the more recent National School Walkout, students have used walkouts as a form of protest. Yet some teachers and administrators admonish such efforts because they waste precious class time and detract from learning. Others believe that, while peaceful protest is always the best first step, violence is an acceptable option when all else fails. Through balanced and respectful viewpoints, this resource examines the ways students can make their voices heard in an effort to create change.","English",29.3,23.45,"371.8/10973--dc23","120 pp.","https://greenhavenpublishing.com/9781534505759",null,{"$f":"Table1[[#This Row],['# of Books]]*Table1[[#This Row],[QTY]]","v":0},{"$f":"Table1[[#This Row],[QTY]]*Table1[[#This Row],[School & Library Price]]","v":0}]
[null,null,9,null,null,"Current Issues","Introducing Issues with Opposing Viewpoints","Synthetic Drugs","978-0-7377-6929-6",{"$f":"HYPERLINK(Table1[[#This Row],[eCommerce Hyperlink]],\"Book Weblink\")","v":"Book Weblink"},null,"Greenhaven Publishing","Library Bound Book",1,"2014","January 2014","Library","6.500 X 9.500","Edited by","Mary E. Williams",null,null,null,null,"Z",null,"Grade 7 - 10","Grade 7 - 11","This book explores many aspects of synthetic drugs, including whether synthetic drug abuse is a serious problem, what the best way to prevent synthetic drug abuse is, and whether some synthetic drugs should be used therapeutically. Essay sources include the U.S. Drug Enforcement Administration, Scripps Research Institute, Office of National Drug Control Policy, and Drug Policy Alliance. Can Ecstasy harm the brain? Is synthetic Marijuana dangerous? Is outlawing drugs counterproductive? Readers will decide for themselves.","English",43,34.4,"362.29/​9","136 pp.","https://greenhavenpublishing.com/9780737769296",null,{"$f":"Table1[[#This Row],['# of Books]]*Table1[[#This Row],[QTY]]","v":0},{"$f":"Table1[[#This Row],[QTY]]*Table1[[#This Row],[School & Library Price]]","v":0}]
[null,null,9,null,null,"Current Issues","Introducing Issues with Opposing Viewpoints","Taxes and Society's Priorities","978-1-5345-0192-8",{"$f":"HYPERLINK(Table1[[#This Row],[eCommerce Hyperlink]],\"Book Weblink\")","v":"Book Weblink"},null,"Greenhaven Publishing","Library Bound Book",1,"2018","January 2018","Library","6.500 X 9.250","Edited by","Caleb Bissinger",null,null,null,null,"Z",null,"Grade 7 - 10","Grade 7 - 12","The 45th President of the United States has admitted to not paying his full tax burden, so why should the average citizen fork over their hard-earned money? What purpose do taxes serve? Where does the money go? This collection discusses the history and details of taxation and how tax dollars fund everything from public schools to parks to improving infrastructure. Readers will get a sense of how society thrives through regular taxation. But they will also hear how taxation can trap hard-working Americans and hold them back.","English",43,34.4,"336.200973--dc23","120 pp.","https://greenhavenpublishing.com/9781534501928",null,{"$f":"Table1[[#This Row],['# of Books]]*Table1[[#This Row],[QTY]]","v":0},{"$f":"Table1[[#This Row],[QTY]]*Table1[[#This Row],[School & Library Price]]","v":0}]
[null,null,9,null,null,"Current Issues","Introducing Issues with Opposing Viewpoints","Taxes and Society's Priorities","978-1-5345-0276-5",{"$f":"HYPERLINK(Table1[[#This Row],[eCommerce Hyperlink]],\"Book Weblink\")","v":"Book Weblink"},null,"Greenhaven Publishing","Paperback Book",1,"2018","January 2018","Paperback","6.500 X 9.250","Edited by","Caleb Bissinger",null,null,null,null,"Z",null,"Grade 7 - 10","Grade 7 - 12","The 45th President of the United States has admitted to not paying his full tax burden, so why should the average citizen fork over their hard-earned money? What purpose do taxes serve? Where does the money go? This collection discusses the history and details of taxation and how tax dollars fund everything from public schools to parks to improving infrastructure. Readers will get a sense of how society thrives through regular taxation. But they will also hear how taxation can trap hard-working Americans and hold them back.","English",29.3,23.45,"336.200973--dc23","120 pp.","https://greenhavenpublishing.com/9781534502765",null,{"$f":"Table1[[#This Row],['# of Books]]*Table1[[#This Row],[QTY]]","v":0},{"$f":"Table1[[#This Row],[QTY]]*Table1[[#This Row],[School & Library Price]]","v":0}]
[null,null,9,null,null,"Current Issues","Introducing Issues with Opposing Viewpoints","Teen Driving","978-0-7377-4943-4",{"$f":"HYPERLINK(Table1[[#This Row],[eCommerce Hyperlink]],\"Book Weblink\")","v":"Book Weblink"},null,"Greenhaven Publishing","Library Bound Book",1,"2014","January 2014","Library","6.500 X 9.500","Edited by, Edited by","Mary E. Williams, Lauri S. Friedman",null,null,null,null,"Z",null,"Grade 7 - 10","Grade 7 - 11","The issues surrounding teen driving continue to be debated and will be in the future. This book looks at the risks involved with teen driving, discusses strategies that would make teen driving safer, and examines the current laws for teen drivers.","English",43,34.4,"629.28/308350973","112 pp.","https://greenhavenpublishing.com/9780737749434",null,{"$f":"Table1[[#This Row],['# of Books]]*Table1[[#This Row],[QTY]]","v":0},{"$f":"Table1[[#This Row],[QTY]]*Table1[[#This Row],[School & Library Price]]","v":0}]
[null,null,9,null,null,"Current Issues","Introducing Issues with Opposing Viewpoints","The Next Mass Extinction","978-1-5345-0194-2",{"$f":"HYPERLINK(Table1[[#This Row],[eCommerce Hyperlink]],\"Book Weblink\")","v":"Book Weblink"},null,"Greenhaven Publishing","Library Bound Book",1,"2018","January 2018","Library","6.500 X 9.250","Edited by","M. M. Eboch",null,null,null,null,"Z",null,"Grade 7 - 10","Grade 7 - 12","According to scientists, an asteroid wiped out the last of the dinosaurs approximately 66 million years ago. This is just the most recent major extinction event our planet has experienced. There have been at least five, along with numerous minor events, and more could be on the way. The voices in this balanced anthology discuss whether claims of mass extinction can really be substantiated, the impact of these events, when another large-scale extinction may occur, and whether humans would survive a cataclysmic event designed to reboot the Earth.","English",43,34.4,"304.2--dc23","120 pp.","https://greenhavenpublishing.com/9781534501942",null,{"$f":"Table1[[#This Row],['# of Books]]*Table1[[#This Row],[QTY]]","v":0},{"$f":"Table1[[#This Row],[QTY]]*Table1[[#This Row],[School & Library Price]]","v":0}]
[null,null,9,null,null,"Current Issues","Introducing Issues with Opposing Viewpoints","The Next Mass Extinction","978-1-5345-0278-9",{"$f":"HYPERLINK(Table1[[#This Row],[eCommerce Hyperlink]],\"Book Weblink\")","v":"Book Weblink"},null,"Greenhaven Publishing","Paperback Book",1,"2018","January 2018","Paperback","6.500 X 9.250","Edited by","M. M. Eboch",null,null,null,null,"Z",null,"Grade 7 - 10","Grade 7 - 12","According to scientists, an asteroid wiped out the last of the dinosaurs approximately 66 million years ago. This is just the most recent major extinction event our planet has experienced. There have been at least five, along with numerous minor events, and more could be on the way. The voices in this balanced anthology discuss whether claims of mass extinction can really be substantiated, the impact of these events, when another large-scale extinction may occur, and whether humans would survive a cataclysmic event designed to reboot the Earth.","English",29.3,23.45,"304.2--dc23","120 pp.","https://greenhavenpublishing.com/9781534502789",null,{"$f":"Table1[[#This Row],['# of Books]]*Table1[[#This Row],[QTY]]","v":0},{"$f":"Table1[[#This Row],[QTY]]*Table1[[#This Row],[School & Library Price]]","v":0}]
[null,8,9,null,null,"Current Issues","Introducing Issues with Opposing Viewpoints","The Surveillance State","978-1-5345-0803-3",{"$f":"HYPERLINK(Table1[[#This Row],[eCommerce Hyperlink]],\"Book Weblink\")","v":"Book Weblink"},null,"Greenhaven Publishing","Library Bound Book",1,"2022","August 2021","Library","6.500 X 9.250","Compiled by","Lisa Idzikowski",null,null,null,null,"Z",null,"Grade 7 - 10","Grade 7 - 12","Many have argued that at least since the September 11th terrorist attacks, the United States has become a surveillance state. Others have countered that the government has the public's best interest in mind. But what is the truth? How does a government and its law enforcement prioritize the safety of its citizens without infringing on their privacy? The diverse viewpoints in this volume address the questions of whether the United States is operating under a surveillance state, whether we can have safety without surveillance, and whether it's too late to turn back from our present tech-heavy situation.","English",43,34.4,"323.44/820973–dc23","120 pp.","https://greenhavenpublishing.com/9781534508033",null,{"$f":"Table1[[#This Row],['# of Books]]*Table1[[#This Row],[QTY]]","v":0},{"$f":"Table1[[#This Row],[QTY]]*Table1[[#This Row],[School & Library Price]]","v":0}]
[null,8,9,null,null,"Current Issues","Introducing Issues with Opposing Viewpoints","The Surveillance State","978-1-5345-0802-6",{"$f":"HYPERLINK(Table1[[#This Row],[eCommerce Hyperlink]],\"Book Weblink\")","v":"Book Weblink"},null,"Greenhaven Publishing","Paperback Book",1,"2022","August 2021","Paperback","6.500 X 9.250","Compiled by","Lisa Idzikowski",null,null,null,null,"Z",null,"Grade 7 - 10","Grade 7 - 12","Many have argued that at least since the September 11th terrorist attacks, the United States has become a surveillance state. Others have countered that the government has the public's best interest in mind. But what is the truth? How does a government and its law enforcement prioritize the safety of its citizens without infringing on their privacy? The diverse viewpoints in this volume address the questions of whether the United States is operating under a surveillance state, whether we can have safety without surveillance, and whether it's too late to turn back from our present tech-heavy situation.","English",29.3,23.45,"323.44/820973–dc23","120 pp.","https://greenhavenpublishing.com/9781534508026",null,{"$f":"Table1[[#This Row],['# of Books]]*Table1[[#This Row],[QTY]]","v":0},{"$f":"Table1[[#This Row],[QTY]]*Table1[[#This Row],[School & Library Price]]","v":0}]
[null,9,9,null,null,"Current Issues","Introducing Issues with Opposing Viewpoints","Transportation Infrastructure","978-1-5345-0723-4",{"$f":"HYPERLINK(Table1[[#This Row],[eCommerce Hyperlink]],\"Book Weblink\")","v":"Book Weblink"},null,"Greenhaven Publishing","Library Bound Book",1,"2021","January 2021","Library","6.500 X 9.250","Compiled by","Lisa Idzikowski",null,null,null,null,"Z",null,"Grade 7 - 10","Grade 7 - 12","In the past several U.S. presidential elections, candidates have promised to fix the country's transportation. A strong transportation system is the base of a society's economic stability and development. It can impact its health, wealth, and growth. Why then, are so many of the roads, bridges, and rail systems virtually unchanged from the last century? When will the country's transportation infrastructure catch up to the technology, living habits, and needs of a twenty-first-century population? The viewpoints in this volume explore the importance of transportation infrastructure, why it seems so difficult to maintain, and hopes for its future.","English",43,34.4,"388.0973--dc23","120 pp.","https://greenhavenpublishing.com/9781534507234",null,{"$f":"Table1[[#This Row],['# of Books]]*Table1[[#This Row],[QTY]]","v":0},{"$f":"Table1[[#This Row],[QTY]]*Table1[[#This Row],[School & Library Price]]","v":0}]
[null,9,9,null,null,"Current Issues","Introducing Issues with Opposing Viewpoints","Transportation Infrastructure","978-1-5345-0722-7",{"$f":"HYPERLINK(Table1[[#This Row],[eCommerce Hyperlink]],\"Book Weblink\")","v":"Book Weblink"},null,"Greenhaven Publishing","Paperback Book",1,"2021","January 2021","Paperback","6.500 X 9.250","Compiled by","Lisa Idzikowski",null,null,null,null,"Z",null,"Grade 7 - 10","Grade 7 - 12","In the past several U.S. presidential elections, candidates have promised to fix the country's transportation. A strong transportation system is the base of a society's economic stability and development. It can impact its health, wealth, and growth. Why then, are so many of the roads, bridges, and rail systems virtually unchanged from the last century? When will the country's transportation infrastructure catch up to the technology, living habits, and needs of a twenty-first-century population? The viewpoints in this volume explore the importance of transportation infrastructure, why it seems so difficult to maintain, and hopes for its future.","English",29.3,23.45,"388.0973--dc23","120 pp.","https://greenhavenpublishing.com/9781534507227",null,{"$f":"Table1[[#This Row],['# of Books]]*Table1[[#This Row],[QTY]]","v":0},{"$f":"Table1[[#This Row],[QTY]]*Table1[[#This Row],[School & Library Price]]","v":0}]
[null,8,9,null,null,"Current Issues","Introducing Issues with Opposing Viewpoints","Universal Basic Income","978-1-5345-0805-7",{"$f":"HYPERLINK(Table1[[#This Row],[eCommerce Hyperlink]],\"Book Weblink\")","v":"Book Weblink"},null,"Greenhaven Publishing","Library Bound Book",1,"2022","August 2021","Library","6.500 X 9.250","Compiled by","M. M. Eboch",null,null,null,null,"Z",null,"Grade 7 - 10","Grade 7 - 12","During the 2020 Democratic primary campaign, candidate Andrew Yang's policy of universal basic income was something many Americans had never heard of. Yang's background as a tech entrepreneur likely influenced his platform, as he projected that within the next decade 1 of every 3 workers would be at risk of losing their jobs to new technologies. Basic income has been debated and piloted in countries around the world since the 1960s. Readers will evaluate whether a country that prides itself on the merits of hard work, automation, and a drastically evolving labor force could change that.","English",43,34.4,"331.2/3--dc23","120 pp.","https://greenhavenpublishing.com/9781534508057",null,{"$f":"Table1[[#This Row],['# of Books]]*Table1[[#This Row],[QTY]]","v":0},{"$f":"Table1[[#This Row],[QTY]]*Table1[[#This Row],[School & Library Price]]","v":0}]
[null,8,9,null,null,"Current Issues","Introducing Issues with Opposing Viewpoints","Universal Basic Income","978-1-5345-0804-0",{"$f":"HYPERLINK(Table1[[#This Row],[eCommerce Hyperlink]],\"Book Weblink\")","v":"Book Weblink"},null,"Greenhaven Publishing","Paperback Book",1,"2022","August 2021","Paperback","6.500 X 9.250","Compiled by","M. M. Eboch",null,null,null,null,"Z",null,"Grade 7 - 10","Grade 7 - 12","During the 2020 Democratic primary campaign, candidate Andrew Yang's policy of universal basic income was something many Americans had never heard of. Yang's background as a tech entrepreneur likely influenced his platform, as he projected that within the next decade 1 of every 3 workers would be at risk of losing their jobs to new technologies. Basic income has been debated and piloted in countries around the world since the 1960s. Readers will evaluate whether a country that prides itself on the merits of hard work, automation, and a drastically evolving labor force could change that.","English",29.3,23.45,"331.2/3--dc23","120 pp.","https://greenhavenpublishing.com/9781534508040",null,{"$f":"Table1[[#This Row],['# of Books]]*Table1[[#This Row],[QTY]]","v":0},{"$f":"Table1[[#This Row],[QTY]]*Table1[[#This Row],[School & Library Price]]","v":0}]
[null,null,9,null,null,"Current Issues","Introducing Issues with Opposing Viewpoints","Voting Rights and Voter ID Laws","978-1-5345-0365-6",{"$f":"HYPERLINK(Table1[[#This Row],[eCommerce Hyperlink]],\"Book Weblink\")","v":"Book Weblink"},null,"Greenhaven Publishing","Library Bound Book",1,"2019","August 2018","Library","6.500 X 9.250","Edited by","M. M. Eboch",null,null,null,null,"Z",null,"Grade 7 - 10","Grade 7 - 12","In 1965, the Voting Rights Act ensured that Americans would no longer be denied the right to vote because of their color. Fifty years later, debates over voting rights have re-emerged. Proponents of stricter laws say they are simply attempting to reduce incidents of voter fraud. Critics argue that the proposed restrictions are discriminatory against minority and low-income voters, and rig the contests in favor of one party. The viewpoints in this important resource address the accomplishments of the 1965 Voting Rights Act, whom voting laws hurt, and whether or not the United States needs voting ID laws.","English",43,34.4,"342.73/072--dc23","120 pp.","https://greenhavenpublishing.com/9781534503656",null,{"$f":"Table1[[#This Row],['# of Books]]*Table1[[#This Row],[QTY]]","v":0},{"$f":"Table1[[#This Row],[QTY]]*Table1[[#This Row],[School & Library Price]]","v":0}]
[null,null,9,null,null,"Current Issues","Introducing Issues with Opposing Viewpoints","Voting Rights and Voter ID Laws","978-1-5345-0366-3",{"$f":"HYPERLINK(Table1[[#This Row],[eCommerce Hyperlink]],\"Book Weblink\")","v":"Book Weblink"},null,"Greenhaven Publishing","Paperback Book",1,"2019","August 2018","Paperback","6.500 X 9.250","Edited by","M. M. Eboch",null,null,null,null,"Z",null,"Grade 7 - 10","Grade 7 - 12","In 1965, the Voting Rights Act ensured that Americans would no longer be denied the right to vote because of their color. Fifty years later, debates over voting rights have re-emerged. Proponents of stricter laws say they are simply attempting to reduce incidents of voter fraud. Critics argue that the proposed restrictions are discriminatory against minority and low-income voters, and rig the contests in favor of one party. The viewpoints in this important resource address the accomplishments of the 1965 Voting Rights Act, whom voting laws hurt, and whether or not the United States needs voting ID laws.","English",29.3,23.45,"342.73/072--dc23","120 pp.","https://greenhavenpublishing.com/9781534503663",null,{"$f":"Table1[[#This Row],['# of Books]]*Table1[[#This Row],[QTY]]","v":0},{"$f":"Table1[[#This Row],[QTY]]*Table1[[#This Row],[School & Library Price]]","v":0}]
[null,null,9,null,null,"Current Issues","Introducing Issues with Opposing Viewpoints","Witch Hunt or Justice?: Accusations Against Public Figures","978-1-5345-0426-4",{"$f":"HYPERLINK(Table1[[#This Row],[eCommerce Hyperlink]],\"Book Weblink\")","v":"Book Weblink"},null,"Greenhaven Publishing","Library Bound Book",1,"2019","January 2019","Library","6.500 X 9.250","Edited by","M. M. Eboch",null,null,null,null,"Z",null,"Grade 7 - 10","Grade 7 - 12","Perhaps more than any other time in history, it is easy to be heard. This includes speaking out against people in the public eye. But is going straight to the court of public opinion a fair and just way to punish someone? Do public figures have a right to certain protections? Is due process sacrificed when public figures are accused so publicly? Perhaps more importantly, is the severity of the punishment ultimately diminished as a result? Diverse perspectives approach this relatively new phenomenon from a number of angles.","English",43,34.4,"303.3/8--dc23","120 pp.","https://greenhavenpublishing.com/9781534504264",null,{"$f":"Table1[[#This Row],['# of Books]]*Table1[[#This Row],[QTY]]","v":0},{"$f":"Table1[[#This Row],[QTY]]*Table1[[#This Row],[School & Library Price]]","v":0}]
[null,null,9,null,null,"Current Issues","Introducing Issues with Opposing Viewpoints","Witch Hunt or Justice?: Accusations Against Public Figures","978-1-5345-0489-9",{"$f":"HYPERLINK(Table1[[#This Row],[eCommerce Hyperlink]],\"Book Weblink\")","v":"Book Weblink"},null,"Greenhaven Publishing","Paperback Book",1,"2019","January 2019","Paperback","6.500 X 9.250","Edited by","M. M. Eboch",null,null,null,null,"Z",null,"Grade 7 - 10","Grade 7 - 12","Perhaps more than any other time in history, it is easy to be heard. This includes speaking out against people in the public eye. But is going straight to the court of public opinion a fair and just way to punish someone? Do public figures have a right to certain protections? Is due process sacrificed when public figures are accused so publicly? Perhaps more importantly, is the severity of the punishment ultimately diminished as a result? Diverse perspectives approach this relatively new phenomenon from a number of angles.","English",29.3,23.45,"303.3/8--dc23","120 pp.","https://greenhavenpublishing.com/9781534504899",null,{"$f":"Table1[[#This Row],['# of Books]]*Table1[[#This Row],[QTY]]","v":0},{"$f":"Table1[[#This Row],[QTY]]*Table1[[#This Row],[School & Library Price]]","v":0}]
[null,10,10,null,null,"Current Issues","At Issue","At Issue (Fall 2021)","978-1-5345-0829-3",{"$f":"HYPERLINK(Table1[[#This Row],[eCommerce Hyperlink]],\"Book Weblink\")","v":"Book Weblink"},null,"Greenhaven Publishing","Library Set",7,"2022","August 2021","Library","6.000 X 9.000",null,null,null,null,null,null,null,null,"Grade 10 - 12","Grade 9 - 12","This set provides single topic focus on fascinating issues including policing in America, the media's influence on society, the rise of the wellness culture, and the politicization of the supreme court. Each volume provides a wide range of opinions on its featured controversial subject. Primary and secondary sources from many perspectives and sources including journals, newspapers, books, websites, and government agencies allow a saturated analysis of each topic. Features include: Curated selections of contemporary articles that guide students in considering all sides of controversial issues. Viewpoint introductions assist readers in understanding the key arguments made by each viewpoint. Volume introductions provide students with unbiased knowledge of the topic's historical and political context.","English",282.8,226.24,null,"128 pp.","https://greenhavenpublishing.com/9781534508293",null,{"$f":"Table1[[#This Row],['# of Books]]*Table1[[#This Row],[QTY]]","v":0},{"$f":"Table1[[#This Row],[QTY]]*Table1[[#This Row],[School & Library Price]]","v":0}]
[null,10,10,null,null,"Current Issues","At Issue","At Issue (Fall 2021)","978-1-5345-0830-9",{"$f":"HYPERLINK(Table1[[#This Row],[eCommerce Hyperlink]],\"Book Weblink\")","v":"Book Weblink"},null,"Greenhaven Publishing","Single Copy Set",7,"2022","August 2021","Paperback","6.000 X 9.000",null,null,null,null,null,null,null,null,"Grade 10 - 12","Grade 9 - 12","This set provides single topic focus on fascinating issues including policing in America, the media's influence on society, the rise of the wellness culture, and the politicization of the supreme court. Each volume provides a wide range of opinions on its featured controversial subject. Primary and secondary sources from many perspectives and sources including journals, newspapers, books, websites, and government agencies allow a saturated analysis of each topic. Features include: Curated selections of contemporary articles that guide students in considering all sides of controversial issues. Viewpoint introductions assist readers in understanding the key arguments made by each viewpoint. Volume introductions provide students with unbiased knowledge of the topic's historical and political context.","English",201.6,161.35,null,"128 pp.","https://greenhavenpublishing.com/9781534508309",null,{"$f":"Table1[[#This Row],['# of Books]]*Table1[[#This Row],[QTY]]","v":0},{"$f":"Table1[[#This Row],[QTY]]*Table1[[#This Row],[School & Library Price]]","v":0}]
[null,null,10,null,null,"Current Issues","At Issue","America's Infrastructure","978-1-5345-0416-5",{"$f":"HYPERLINK(Table1[[#This Row],[eCommerce Hyperlink]],\"Book Weblink\")","v":"Book Weblink"},null,"Greenhaven Publishing","Library Bound Book",1,"2019","January 2019","Library","6.000 X 9.000","Edited by","Lisa Idzikowski",null,null,null,null,"Z",null,"Grade 10 - 12","Grade 9 - 12","Engineers argue that inadequate maintenance of roads, bridges, airports, waterways, and other critical aspects of infrastructure along with underinvestment have created an infrastructure crisis in the United States. Many politicians agree with this claim and are attempting to take action. However, we are faced with the issue of which projects are most essential and how to fund them. Is the state of America's infrastructure that dire compared to the rest of the world? Are these efforts to improve it a cynical ploy from politicians to gain attention and ensure reelection? This volume considers the many perspectives of this pressing issue.","English",40.4,32.32,"363.60973--dc23","128 pp.","https://greenhavenpublishing.com/9781534504165",null,{"$f":"Table1[[#This Row],['# of Books]]*Table1[[#This Row],[QTY]]","v":0},{"$f":"Table1[[#This Row],[QTY]]*Table1[[#This Row],[School & Library Price]]","v":0}]
[null,null,10,null,null,"Current Issues","At Issue","America's Infrastructure","978-1-5345-0409-7",{"$f":"HYPERLINK(Table1[[#This Row],[eCommerce Hyperlink]],\"Book Weblink\")","v":"Book Weblink"},null,"Greenhaven Publishing","eBook",1,"2019","January 2019",null,null,"Edited by","Lisa Idzikowski",null,null,null,null,"Z",null,"Grade 10 - 12","Grade 9 - 12","Engineers argue that inadequate maintenance of roads, bridges, airports, waterways, and other critical aspects of infrastructure along with underinvestment have created an infrastructure crisis in the United States. Many politicians agree with this claim and are attempting to take action. However, we are faced with the issue of which projects are most essential and how to fund them. Is the state of America's infrastructure that dire compared to the rest of the world? Are these efforts to improve it a cynical ploy from politicians to gain attention and ensure reelection? This volume considers the many perspectives of this pressing issue.","English",40.4,32.32,"363.60973--dc23","128 pp.","https://greenhavenpublishing.com/9781534504097",null,{"$f":"Table1[[#This Row],['# of Books]]*Table1[[#This Row],[QTY]]","v":0},{"$f":"Table1[[#This Row],[QTY]]*Table1[[#This Row],[School & Library Price]]","v":0}]
[null,null,10,null,null,"Current Issues","At Issue","America's Infrastructure","978-1-5345-0443-1",{"$f":"HYPERLINK(Table1[[#This Row],[eCommerce Hyperlink]],\"Book Weblink\")","v":"Book Weblink"},null,"Greenhaven Publishing","Paperback Book",1,"2019","January 2019","Paperback","6.000 X 9.000","Edited by","Lisa Idzikowski",null,null,null,null,"Z",null,"Grade 10 - 12","Grade 9 - 12","Engineers argue that inadequate maintenance of roads, bridges, airports, waterways, and other critical aspects of infrastructure along with underinvestment have created an infrastructure crisis in the United States. Many politicians agree with this claim and are attempting to take action. However, we are faced with the issue of which projects are most essential and how to fund them. Is the state of America's infrastructure that dire compared to the rest of the world? Are these efforts to improve it a cynical ploy from politicians to gain attention and ensure reelection? This volume considers the many perspectives of this pressing issue.","English",28.8,23.05,"363.60973--dc23","128 pp.","https://greenhavenpublishing.com/9781534504431",null,{"$f":"Table1[[#This Row],['# of Books]]*Table1[[#This Row],[QTY]]","v":0},{"$f":"Table1[[#This Row],[QTY]]*Table1[[#This Row],[School & Library Price]]","v":0}]
[null,null,10,null,null,"Current Issues","At Issue","Are Graphic Music Lyrics Harmful?","978-0-7377-7376-7",{"$f":"HYPERLINK(Table1[[#This Row],[eCommerce Hyperlink]],\"Book Weblink\")","v":"Book Weblink"},null,"Greenhaven Publishing","Library Bound Book",1,"2016","January 2016","Library","6.000 X 9.000","Edited by","Noah Berlatsky",null,null,null,null,"Z",null,"Grade 10 - 12","Grade 9 - 12","This book explores issues related to graphic music lyrics. It covers topics such as intent as a standard, violent lyrics and aggression, and the effects of violent music lyrics. It examines whether sexual music harms children and women. It also discusses \"Bro Country\" music, and whether it is harmful.","English",40.4,32.32,"363.4","104 pp.","https://greenhavenpublishing.com/9780737773767",null,{"$f":"Table1[[#This Row],['# of Books]]*Table1[[#This Row],[QTY]]","v":0},{"$f":"Table1[[#This Row],[QTY]]*Table1[[#This Row],[School & Library Price]]","v":0}]
[null,null,10,null,null,"Current Issues","At Issue","Are Graphic Music Lyrics Harmful?","978-0-7377-7621-8",{"$f":"HYPERLINK(Table1[[#This Row],[eCommerce Hyperlink]],\"Book Weblink\")","v":"Book Weblink"},null,"Greenhaven Publishing","eBook",1,"2016","January 2016",null,null,"Edited by","Noah Berlatsky",null,null,null,null,"Z",null,"Grade 10 - 12","Grade 9 - 12","This book explores issues related to graphic music lyrics. It covers topics such as intent as a standard, violent lyrics and aggression, and the effects of violent music lyrics. It examines whether sexual music harms children and women. It also discusses \"Bro Country\" music, and whether it is harmful.","English",40.4,32.32,"363.4","104 pp.","https://greenhavenpublishing.com/9780737776218",null,{"$f":"Table1[[#This Row],['# of Books]]*Table1[[#This Row],[QTY]]","v":0},{"$f":"Table1[[#This Row],[QTY]]*Table1[[#This Row],[School & Library Price]]","v":0}]
[null,null,10,null,null,"Current Issues","At Issue","Are Graphic Music Lyrics Harmful?","978-0-7377-7377-4",{"$f":"HYPERLINK(Table1[[#This Row],[eCommerce Hyperlink]],\"Book Weblink\")","v":"Book Weblink"},null,"Greenhaven Publishing","Paperback Book",1,"2016","January 2016","Paperback","6.000 X 9.000","Edited by","Noah Berlatsky",null,null,null,null,"Z",null,"Grade 10 - 12","Grade 9 - 12","This book explores issues related to graphic music lyrics. It covers topics such as intent as a standard, violent lyrics and aggression, and the effects of violent music lyrics. It examines whether sexual music harms children and women. It also discusses \"Bro Country\" music, and whether it is harmful.","English",28.8,23.05,"363.4","104 pp.","https://greenhavenpublishing.com/9780737773774",null,{"$f":"Table1[[#This Row],['# of Books]]*Table1[[#This Row],[QTY]]","v":0},{"$f":"Table1[[#This Row],[QTY]]*Table1[[#This Row],[School & Library Price]]","v":0}]
[null,11,10,null,null,"Current Issues","At Issue","Athlete Activism","978-1-5345-0635-0",{"$f":"HYPERLINK(Table1[[#This Row],[eCommerce Hyperlink]],\"Book Weblink\")","v":"Book Weblink"},null,"Greenhaven Publishing","Library Bound Book",1,"2020","January 2020","Library","6.000 X 9.000","Edited by","Gary Wiener",null,null,null,null,"Z","1250L","Grade 10 - 12","Grade 9 - 12","While Colin Kaepernick's 2016 protests reignited the debate surrounding athletes and political activism, the relationship between the two is a longstanding tradition. The athletic field has long been a site for protests against racism, hosting key events in the fight for equality, such as legendary African American baseball player Jackie Robinson's 1947 induction into the MLB. Recent protests have expanded to issues like sexism, LGBT rights, and immigration, and have made use of social media and other modern developments. This volume examines the controversies surrounding athlete activism as well as its place in history and contemporary politics.","English",40.4,32.32,"306.4/83--dc23","128 pp.","https://greenhavenpublishing.com/9781534506350",null,{"$f":"Table1[[#This Row],['# of Books]]*Table1[[#This Row],[QTY]]","v":0},{"$f":"Table1[[#This Row],[QTY]]*Table1[[#This Row],[School & Library Price]]","v":0}]
[null,11,10,null,null,"Current Issues","At Issue","Athlete Activism","978-1-5345-0636-7",{"$f":"HYPERLINK(Table1[[#This Row],[eCommerce Hyperlink]],\"Book Weblink\")","v":"Book Weblink"},null,"Greenhaven Publishing","eBook",1,"2020","January 2020",null,null,"Edited by","Gary Wiener",null,null,null,null,"Z","1250L","Grade 10 - 12","Grade 9 - 12","While Colin Kaepernick's 2016 protests reignited the debate surrounding athletes and political activism, the relationship between the two is a longstanding tradition. The athletic field has long been a site for protests against racism, hosting key events in the fight for equality, such as legendary African American baseball player Jackie Robinson's 1947 induction into the MLB. Recent protests have expanded to issues like sexism, LGBT rights, and immigration, and have made use of social media and other modern developments. This volume examines the controversies surrounding athlete activism as well as its place in history and contemporary politics.","English",40.4,32.32,"306.4/83--dc23","128 pp.","https://greenhavenpublishing.com/9781534506367",null,{"$f":"Table1[[#This Row],['# of Books]]*Table1[[#This Row],[QTY]]","v":0},{"$f":"Table1[[#This Row],[QTY]]*Table1[[#This Row],[School & Library Price]]","v":0}]
[null,11,10,null,null,"Current Issues","At Issue","Athlete Activism","978-1-5345-0634-3",{"$f":"HYPERLINK(Table1[[#This Row],[eCommerce Hyperlink]],\"Book Weblink\")","v":"Book Weblink"},null,"Greenhaven Publishing","Paperback Book",1,"2020","January 2020","Paperback","6.000 X 9.000","Edited by","Gary Wiener",null,null,null,null,"Z","1250L","Grade 10 - 12","Grade 9 - 12","While Colin Kaepernick's 2016 protests reignited the debate surrounding athletes and political activism, the relationship between the two is a longstanding tradition. The athletic field has long been a site for protests against racism, hosting key events in the fight for equality, such as legendary African American baseball player Jackie Robinson's 1947 induction into the MLB. Recent protests have expanded to issues like sexism, LGBT rights, and immigration, and have made use of social media and other modern developments. This volume examines the controversies surrounding athlete activism as well as its place in history and contemporary politics.","English",28.8,23.05,"306.4/83--dc23","128 pp.","https://greenhavenpublishing.com/9781534506343",null,{"$f":"Table1[[#This Row],['# of Books]]*Table1[[#This Row],[QTY]]","v":0},{"$f":"Table1[[#This Row],[QTY]]*Table1[[#This Row],[School & Library Price]]","v":0}]
[null,null,10,null,null,"Current Issues","At Issue","Banned Books","978-1-5345-0075-4",{"$f":"HYPERLINK(Table1[[#This Row],[eCommerce Hyperlink]],\"Book Weblink\")","v":"Book Weblink"},null,"Greenhaven Publishing","Library Bound Book",1,"2018","August 2017","Library","6.000 X 9.000","Edited by","Marcia Amidon Lusted",null,null,null,null,"Z","1280L","Grade 10 - 12","Grade 9 - 12","It may sound shocking, but even in this current age, books are banned all around the globe. What makes a book inappropriate, even dangerous for public consumption, and who has the power to deem it so? Some governments ban books as a form of censorship. Schools and districts can ban books they consider too racy or inappropriate for their students. Does banning books take away our liberties, attempt to erase history, and impose an agenda? Is the practice actually in our best interest, depending on the circumstance? This balanced volume helps readers to examine this nuanced issue.","English",40.4,32.32,"363.31--dc23","88 pp.","https://greenhavenpublishing.com/9781534500754",null,{"$f":"Table1[[#This Row],['# of Books]]*Table1[[#This Row],[QTY]]","v":0},{"$f":"Table1[[#This Row],[QTY]]*Table1[[#This Row],[School & Library Price]]","v":0}]
[null,null,10,null,null,"Current Issues","At Issue","Banned Books","978-1-5345-0076-1",{"$f":"HYPERLINK(Table1[[#This Row],[eCommerce Hyperlink]],\"Book Weblink\")","v":"Book Weblink"},null,"Greenhaven Publishing","eBook",1,"2018","August 2017",null,null,"Edited by","Marcia Amidon Lusted",null,null,null,null,"Z","1280L","Grade 10 - 12","Grade 9 - 12","It may sound shocking, but even in this current age, books are banned all around the globe. What makes a book inappropriate, even dangerous for public consumption, and who has the power to deem it so? Some governments ban books as a form of censorship. Schools and districts can ban books they consider too racy or inappropriate for their students. Does banning books take away our liberties, attempt to erase history, and impose an agenda? Is the practice actually in our best interest, depending on the circumstance? This balanced volume helps readers to examine this nuanced issue.","English",40.4,32.32,"363.31--dc23","88 pp.","https://greenhavenpublishing.com/9781534500761",null,{"$f":"Table1[[#This Row],['# of Books]]*Table1[[#This Row],[QTY]]","v":0},{"$f":"Table1[[#This Row],[QTY]]*Table1[[#This Row],[School & Library Price]]","v":0}]
[null,null,10,null,null,"Current Issues","At Issue","Banned Books","978-1-5345-0071-6",{"$f":"HYPERLINK(Table1[[#This Row],[eCommerce Hyperlink]],\"Book Weblink\")","v":"Book Weblink"},null,"Greenhaven Publishing","Paperback Book",1,"2018","August 2017","Paperback","6.000 X 9.000","Edited by","Marcia Amidon Lusted",null,null,null,null,"Z","1280L","Grade 10 - 12","Grade 9 - 12","It may sound shocking, but even in this current age, books are banned all around the globe. What makes a book inappropriate, even dangerous for public consumption, and who has the power to deem it so? Some governments ban books as a form of censorship. Schools and districts can ban books they consider too racy or inappropriate for their students. Does banning books take away our liberties, attempt to erase history, and impose an agenda? Is the practice actually in our best interest, depending on the circumstance? This balanced volume helps readers to examine this nuanced issue.","English",28.8,23.05,"363.31--dc23","88 pp.","https://greenhavenpublishing.com/9781534500716",null,{"$f":"Table1[[#This Row],['# of Books]]*Table1[[#This Row],[QTY]]","v":0},{"$f":"Table1[[#This Row],[QTY]]*Table1[[#This Row],[School & Library Price]]","v":0}]
[null,null,10,null,null,"Current Issues","At Issue","Bilingual Education","978-0-7377-7392-7",{"$f":"HYPERLINK(Table1[[#This Row],[eCommerce Hyperlink]],\"Book Weblink\")","v":"Book Weblink"},null,"Greenhaven Publishing","Library Bound Book",1,"2016","January 2016","Library","6.000 X 9.000","Edited by","Noël Merino",null,null,null,null,"Z",null,"Grade 10 - 12","Grade 9 - 12","This informative edition explores debates related to bilingual education. It covers the successes and failures of bilingual education. It examines the popularity of dual-language learning programs, and how they can help close the learning gap for immigrant students. It covers some failures of a bilingual education programs. It covers language immersion, and gradual immersion for immigrants.","English",40.4,32.32,"370.117/​50973","96 pp.","https://greenhavenpublishing.com/9780737773927",null,{"$f":"Table1[[#This Row],['# of Books]]*Table1[[#This Row],[QTY]]","v":0},{"$f":"Table1[[#This Row],[QTY]]*Table1[[#This Row],[School & Library Price]]","v":0}]
[null,null,10,null,null,"Current Issues","At Issue","Bilingual Education","978-0-7377-7624-9",{"$f":"HYPERLINK(Table1[[#This Row],[eCommerce Hyperlink]],\"Book Weblink\")","v":"Book Weblink"},null,"Greenhaven Publishing","eBook",1,"2016","January 2016",null,null,"Edited by","Noël Merino",null,null,null,null,"Z",null,"Grade 10 - 12","Grade 9 - 12","This informative edition explores debates related to bilingual education. It covers the successes and failures of bilingual education. It examines the popularity of dual-language learning programs, and how they can help close the learning gap for immigrant students. It covers some failures of a bilingual education programs. It covers language immersion, and gradual immersion for immigrants.","English",40.4,32.32,"370.117/​50973","96 pp.","https://greenhavenpublishing.com/9780737776249",null,{"$f":"Table1[[#This Row],['# of Books]]*Table1[[#This Row],[QTY]]","v":0},{"$f":"Table1[[#This Row],[QTY]]*Table1[[#This Row],[School & Library Price]]","v":0}]
[null,null,10,null,null,"Current Issues","At Issue","Bilingual Education","978-0-7377-7393-4",{"$f":"HYPERLINK(Table1[[#This Row],[eCommerce Hyperlink]],\"Book Weblink\")","v":"Book Weblink"},null,"Greenhaven Publishing","Paperback Book",1,"2016","January 2016","Paperback","6.000 X 9.000","Edited by","Noël Merino",null,null,null,null,"Z",null,"Grade 10 - 12","Grade 9 - 12","This informative edition explores debates related to bilingual education. It covers the successes and failures of bilingual education. It examines the popularity of dual-language learning programs, and how they can help close the learning gap for immigrant students. It covers some failures of a bilingual education programs. It covers language immersion, and gradual immersion for immigrants.","English",28.8,23.05,"370.117/​50973","96 pp.","https://greenhavenpublishing.com/9780737773934",null,{"$f":"Table1[[#This Row],['# of Books]]*Table1[[#This Row],[QTY]]","v":0},{"$f":"Table1[[#This Row],[QTY]]*Table1[[#This Row],[School & Library Price]]","v":0}]
[null,null,10,null,null,"Current Issues","At Issue","Caffeine","978-0-7377-7380-4",{"$f":"HYPERLINK(Table1[[#This Row],[eCommerce Hyperlink]],\"Book Weblink\")","v":"Book Weblink"},null,"Greenhaven Publishing","Library Bound Book",1,"2016","January 2016","Library","6.000 X 9.000","Edited by","Amy Francis",null,null,null,null,"Z",null,"Grade 10 - 12","Grade 9 - 12","Caffeine consumption has become commonplace amongst young adults in recent years, with many teens, up to 80 percent, eagerly reaching for coffee or energy drinks on a regular basis. Caffeinated substances are legal, widely used by society, and often touted as having health benefits, yet many teenagers fail to realize that caffeine is also a drug. When misused it can lead to dependency or abuse. This informative anthology examines the various degrees of caffeine use, outlining a variety of perspectives on topics such as caffeine and cognitive performance, caffeine as an addictive substance, and the complexities of caffeine regulation.","English",40.4,32.32,"613.8/​4","216 pp.","https://greenhavenpublishing.com/9780737773804",null,{"$f":"Table1[[#This Row],['# of Books]]*Table1[[#This Row],[QTY]]","v":0},{"$f":"Table1[[#This Row],[QTY]]*Table1[[#This Row],[School & Library Price]]","v":0}]
[null,null,10,null,null,"Current Issues","At Issue","Caffeine","978-0-7377-7625-6",{"$f":"HYPERLINK(Table1[[#This Row],[eCommerce Hyperlink]],\"Book Weblink\")","v":"Book Weblink"},null,"Greenhaven Publishing","eBook",1,"2016","January 2016",null,null,"Edited by","Amy Francis",null,null,null,null,"Z",null,"Grade 10 - 12","Grade 9 - 12","Caffeine consumption has become commonplace amongst young adults in recent years, with many teens, up to 80 percent, eagerly reaching for coffee or energy drinks on a regular basis. Caffeinated substances are legal, widely used by society, and often touted as having health benefits, yet many teenagers fail to realize that caffeine is also a drug. When misused it can lead to dependency or abuse. This informative anthology examines the various degrees of caffeine use, outlining a variety of perspectives on topics such as caffeine and cognitive performance, caffeine as an addictive substance, and the complexities of caffeine regulation.","English",40.4,32.32,"613.8/​4","216 pp.","https://greenhavenpublishing.com/9780737776256",null,{"$f":"Table1[[#This Row],['# of Books]]*Table1[[#This Row],[QTY]]","v":0},{"$f":"Table1[[#This Row],[QTY]]*Table1[[#This Row],[School & Library Price]]","v":0}]
[null,null,10,null,null,"Current Issues","At Issue","Caffeine","978-0-7377-7381-1",{"$f":"HYPERLINK(Table1[[#This Row],[eCommerce Hyperlink]],\"Book Weblink\")","v":"Book Weblink"},null,"Greenhaven Publishing","Paperback Book",1,"2016","January 2016","Paperback","6.000 X 9.000","Edited by","Amy Francis",null,null,null,null,"Z",null,"Grade 10 - 12","Grade 9 - 12","Caffeine consumption has become commonplace amongst young adults in recent years, with many teens, up to 80 percent, eagerly reaching for coffee or energy drinks on a regular basis. Caffeinated substances are legal, widely used by society, and often touted as having health benefits, yet many teenagers fail to realize that caffeine is also a drug. When misused it can lead to dependency or abuse. This informative anthology examines the various degrees of caffeine use, outlining a variety of perspectives on topics such as caffeine and cognitive performance, caffeine as an addictive substance, and the complexities of caffeine regulation.","English",28.8,23.05,"613.8/​4","216 pp.","https://greenhavenpublishing.com/9780737773811",null,{"$f":"Table1[[#This Row],['# of Books]]*Table1[[#This Row],[QTY]]","v":0},{"$f":"Table1[[#This Row],[QTY]]*Table1[[#This Row],[School & Library Price]]","v":0}]
[null,null,10,null,null,"Current Issues","At Issue","Campus Sexual Violence","978-1-5345-0018-1",{"$f":"HYPERLINK(Table1[[#This Row],[eCommerce Hyperlink]],\"Book Weblink\")","v":"Book Weblink"},null,"Greenhaven Publishing","Library Bound Book",1,"2017","January 2017","Library","6.000 X 9.000","Edited by","Elizabeth Schmermund",null,null,null,null,"Z",null,"Grade 10 - 12","Grade 9 - 12","Sexual assault on the campuses of universities and private schools appears to be on the rise. Alcohol and fraternities are easy targets, but the issue is much more complicated. Despite attempts made by administrators to define consent clearly, it can be a legal gray area. Students condemned by a school’s excessively broad definition of sexual assault can be branded rapists long after graduation. Victims must face their attackers on campus because administrators prefer to keep incidents out of the hands of law enforcement. Through balanced viewpoints, this powerful anthology addresses the complexities of an issue that has important social repercussions.","English",40.4,32.32,"363.7’0560973--dc23","184 pp.","https://greenhavenpublishing.com/9781534500181",null,{"$f":"Table1[[#This Row],['# of Books]]*Table1[[#This Row],[QTY]]","v":0},{"$f":"Table1[[#This Row],[QTY]]*Table1[[#This Row],[School & Library Price]]","v":0}]
[null,null,10,null,null,"Current Issues","At Issue","Campus Sexual Violence","978-1-5345-0010-5",{"$f":"HYPERLINK(Table1[[#This Row],[eCommerce Hyperlink]],\"Book Weblink\")","v":"Book Weblink"},null,"Greenhaven Publishing","eBook",1,"2017","January 2017",null,null,"Edited by","Elizabeth Schmermund",null,null,null,null,"Z",null,"Grade 10 - 12","Grade 9 - 12","Sexual assault on the campuses of universities and private schools appears to be on the rise. Alcohol and fraternities are easy targets, but the issue is much more complicated. Despite attempts made by administrators to define consent clearly, it can be a legal gray area. Students condemned by a school’s excessively broad definition of sexual assault can be branded rapists long after graduation. Victims must face their attackers on campus because administrators prefer to keep incidents out of the hands of law enforcement. Through balanced viewpoints, this powerful anthology addresses the complexities of an issue that has important social repercussions.","English",40.4,32.32,"363.7’0560973--dc23","184 pp.","https://greenhavenpublishing.com/9781534500105",null,{"$f":"Table1[[#This Row],['# of Books]]*Table1[[#This Row],[QTY]]","v":0},{"$f":"Table1[[#This Row],[QTY]]*Table1[[#This Row],[School & Library Price]]","v":0}]
[null,null,10,null,null,"Current Issues","At Issue","Campus Sexual Violence","978-1-5345-0037-2",{"$f":"HYPERLINK(Table1[[#This Row],[eCommerce Hyperlink]],\"Book Weblink\")","v":"Book Weblink"},null,"Greenhaven Publishing","Paperback Book",1,"2017","January 2017","Paperback","6.000 X 9.000","Edited by","Elizabeth Schmermund",null,null,null,null,"Z",null,"Grade 10 - 12","Grade 9 - 12","Sexual assault on the campuses of universities and private schools appears to be on the rise. Alcohol and fraternities are easy targets, but the issue is much more complicated. Despite attempts made by administrators to define consent clearly, it can be a legal gray area. Students condemned by a school’s excessively broad definition of sexual assault can be branded rapists long after graduation. Victims must face their attackers on campus because administrators prefer to keep incidents out of the hands of law enforcement. Through balanced viewpoints, this powerful anthology addresses the complexities of an issue that has important social repercussions.","English",28.8,23.05,"363.7’0560973--dc23","184 pp.","https://greenhavenpublishing.com/9781534500372",null,{"$f":"Table1[[#This Row],['# of Books]]*Table1[[#This Row],[QTY]]","v":0},{"$f":"Table1[[#This Row],[QTY]]*Table1[[#This Row],[School & Library Price]]","v":0}]
[null,null,10,null,null,"Current Issues","At Issue","Can Diets Be Harmful?","978-0-7377-7394-1",{"$f":"HYPERLINK(Table1[[#This Row],[eCommerce Hyperlink]],\"Book Weblink\")","v":"Book Weblink"},null,"Greenhaven Publishing","Library Bound Book",1,"2016","January 2016","Library","6.000 X 9.000","Edited by","Amy Francis",null,null,null,null,"Z",null,"Grade 10 - 12","Grade 9 - 12","Low-carb, paleo, gluten-free, and fad diets come and go. Which ones are harmless, and which should be avoided by adults and children? Editor Amy Francis pries the lid off the confusing issue of what we should and should not be eating for good health, by assembling ten interesting essays that support both sides to the debate.","English",40.4,32.32,"613.2/​5","80 pp.","https://greenhavenpublishing.com/9780737773941",null,{"$f":"Table1[[#This Row],['# of Books]]*Table1[[#This Row],[QTY]]","v":0},{"$f":"Table1[[#This Row],[QTY]]*Table1[[#This Row],[School & Library Price]]","v":0}]
[null,null,10,null,null,"Current Issues","At Issue","Can Diets Be Harmful?","978-0-7377-7626-3",{"$f":"HYPERLINK(Table1[[#This Row],[eCommerce Hyperlink]],\"Book Weblink\")","v":"Book Weblink"},null,"Greenhaven Publishing","eBook",1,"2016","January 2016",null,null,"Edited by","Amy Francis",null,null,null,null,"Z",null,"Grade 10 - 12","Grade 9 - 12","Low-carb, paleo, gluten-free, and fad diets come and go. Which ones are harmless, and which should be avoided by adults and children? Editor Amy Francis pries the lid off the confusing issue of what we should and should not be eating for good health, by assembling ten interesting essays that support both sides to the debate.","English",40.4,32.32,"613.2/​5","80 pp.","https://greenhavenpublishing.com/9780737776263",null,{"$f":"Table1[[#This Row],['# of Books]]*Table1[[#This Row],[QTY]]","v":0},{"$f":"Table1[[#This Row],[QTY]]*Table1[[#This Row],[School & Library Price]]","v":0}]
[null,null,10,null,null,"Current Issues","At Issue","Can Diets Be Harmful?","978-0-7377-7395-8",{"$f":"HYPERLINK(Table1[[#This Row],[eCommerce Hyperlink]],\"Book Weblink\")","v":"Book Weblink"},null,"Greenhaven Publishing","Paperback Book",1,"2016","January 2016","Paperback","6.000 X 9.000","Edited by","Amy Francis",null,null,null,null,"Z",null,"Grade 10 - 12","Grade 9 - 12","Low-carb, paleo, gluten-free, and fad diets come and go. Which ones are harmless, and which should be avoided by adults and children? Editor Amy Francis pries the lid off the confusing issue of what we should and should not be eating for good health, by assembling ten interesting essays that support both sides to the debate.","English",28.8,23.05,"613.2/​5","80 pp.","https://greenhavenpublishing.com/9780737773958",null,{"$f":"Table1[[#This Row],['# of Books]]*Table1[[#This Row],[QTY]]","v":0},{"$f":"Table1[[#This Row],[QTY]]*Table1[[#This Row],[School & Library Price]]","v":0}]
[null,null,11,null,null,"Current Issues","At Issue","Celebrities in Politics","978-1-5345-0518-6",{"$f":"HYPERLINK(Table1[[#This Row],[eCommerce Hyperlink]],\"Book Weblink\")","v":"Book Weblink"},null,"Greenhaven Publishing","Library Bound Book",1,"2020","August 2019","Library","6.000 X 9.000","Edited by","Lisa Idzikowski",null,null,null,null,"Z","1390L","Grade 10 - 12","Grade 9 - 12","From campaigning for politicians, to speaking out on political issues, to running for public office, celebrities around the world have long played an active role in politics. Their presence in the public sphere often helps them make this leap, but is the fact that we recognize their names and faces enough to make them trustworthy political figures? The diverse viewpoints in this volume explore what role celebrities should play in politics, discuss the phenomenon of making the transition from celebrity to politician, and investigate the place of contemporary media culture in this pattern.","English",40.4,32.32,"306.2--dc23","128 pp.","https://greenhavenpublishing.com/9781534505186",null,{"$f":"Table1[[#This Row],['# of Books]]*Table1[[#This Row],[QTY]]","v":0},{"$f":"Table1[[#This Row],[QTY]]*Table1[[#This Row],[School & Library Price]]","v":0}]
[null,null,11,null,null,"Current Issues","At Issue","Celebrities in Politics","978-1-5345-0520-9",{"$f":"HYPERLINK(Table1[[#This Row],[eCommerce Hyperlink]],\"Book Weblink\")","v":"Book Weblink"},null,"Greenhaven Publishing","eBook",1,"2020","August 2019",null,null,"Edited by","Lisa Idzikowski",null,null,null,null,"Z","1390L","Grade 10 - 12","Grade 9 - 12","From campaigning for politicians, to speaking out on political issues, to running for public office, celebrities around the world have long played an active role in politics. Their presence in the public sphere often helps them make this leap, but is the fact that we recognize their names and faces enough to make them trustworthy political figures? The diverse viewpoints in this volume explore what role celebrities should play in politics, discuss the phenomenon of making the transition from celebrity to politician, and investigate the place of contemporary media culture in this pattern.","English",40.4,32.32,"306.2--dc23","128 pp.","https://greenhavenpublishing.com/9781534505209",null,{"$f":"Table1[[#This Row],['# of Books]]*Table1[[#This Row],[QTY]]","v":0},{"$f":"Table1[[#This Row],[QTY]]*Table1[[#This Row],[School & Library Price]]","v":0}]
[null,null,11,null,null,"Current Issues","At Issue","Celebrities in Politics","978-1-5345-0519-3",{"$f":"HYPERLINK(Table1[[#This Row],[eCommerce Hyperlink]],\"Book Weblink\")","v":"Book Weblink"},null,"Greenhaven Publishing","Paperback Book",1,"2020","August 2019","Paperback","6.000 X 9.000","Edited by","Lisa Idzikowski",null,null,null,null,"Z","1390L","Grade 10 - 12","Grade 9 - 12","From campaigning for politicians, to speaking out on political issues, to running for public office, celebrities around the world have long played an active role in politics. Their presence in the public sphere often helps them make this leap, but is the fact that we recognize their names and faces enough to make them trustworthy political figures? The diverse viewpoints in this volume explore what role celebrities should play in politics, discuss the phenomenon of making the transition from celebrity to politician, and investigate the place of contemporary media culture in this pattern.","English",28.8,23.05,"306.2--dc23","128 pp.","https://greenhavenpublishing.com/9781534505193",null,{"$f":"Table1[[#This Row],['# of Books]]*Table1[[#This Row],[QTY]]","v":0},{"$f":"Table1[[#This Row],[QTY]]*Table1[[#This Row],[School & Library Price]]","v":0}]
[null,null,11,null,null,"Current Issues","At Issue","Childhood Obesity","978-0-7377-7404-7",{"$f":"HYPERLINK(Table1[[#This Row],[eCommerce Hyperlink]],\"Book Weblink\")","v":"Book Weblink"},null,"Greenhaven Publishing","Library Bound Book",1,"2016","January 2016","Library","6.000 X 9.000","Edited by","Tamara Thompson",null,null,null,null,"Z",null,"Grade 10 - 12","Grade 9 - 12","Childhood obesity has tripled in the United States since the 1970s, leaving many of America's children vulnerable to long-term physical and mental health issues. In an attempt to understand what is responsible for these swelling statistics, a number of health professionals, school administrators, government officials, and cultural experts have examined the possible culprits. This informative edition explores a number of those perspectives, urging readers to use essays and articles as the basis for further inquiry and individual assessment. This book examines the role of government, the responsibilities of parents, the health care costs of childhood obesity, fast food and food marketing, as well as physical activity as it relates to childhood obesity.","English",40.4,32.32,"618.92/​398","120 pp.","https://greenhavenpublishing.com/9780737774047",null,{"$f":"Table1[[#This Row],['# of Books]]*Table1[[#This Row],[QTY]]","v":0},{"$f":"Table1[[#This Row],[QTY]]*Table1[[#This Row],[School & Library Price]]","v":0}]
[null,null,11,null,null,"Current Issues","At Issue","Childhood Obesity","978-0-7377-7627-0",{"$f":"HYPERLINK(Table1[[#This Row],[eCommerce Hyperlink]],\"Book Weblink\")","v":"Book Weblink"},null,"Greenhaven Publishing","eBook",1,"2016","January 2016",null,null,"Edited by","Tamara Thompson",null,null,null,null,"Z",null,"Grade 10 - 12","Grade 9 - 12","Childhood obesity has tripled in the United States since the 1970s, leaving many of America's children vulnerable to long-term physical and mental health issues. In an attempt to understand what is responsible for these swelling statistics, a number of health professionals, school administrators, government officials, and cultural experts have examined the possible culprits. This informative edition explores a number of those perspectives, urging readers to use essays and articles as the basis for further inquiry and individual assessment. This book examines the role of government, the responsibilities of parents, the health care costs of childhood obesity, fast food and food marketing, as well as physical activity as it relates to childhood obesity.","English",40.4,32.32,"618.92/​398","120 pp.","https://greenhavenpublishing.com/9780737776270",null,{"$f":"Table1[[#This Row],['# of Books]]*Table1[[#This Row],[QTY]]","v":0},{"$f":"Table1[[#This Row],[QTY]]*Table1[[#This Row],[School & Library Price]]","v":0}]
[null,null,11,null,null,"Current Issues","At Issue","Childhood Obesity","978-0-7377-7405-4",{"$f":"HYPERLINK(Table1[[#This Row],[eCommerce Hyperlink]],\"Book Weblink\")","v":"Book Weblink"},null,"Greenhaven Publishing","Paperback Book",1,"2016","January 2016","Paperback","6.000 X 9.000","Edited by","Tamara Thompson",null,null,null,null,"Z",null,"Grade 10 - 12","Grade 9 - 12","Childhood obesity has tripled in the United States since the 1970s, leaving many of America's children vulnerable to long-term physical and mental health issues. In an attempt to understand what is responsible for these swelling statistics, a number of health professionals, school administrators, government officials, and cultural experts have examined the possible culprits. This informative edition explores a number of those perspectives, urging readers to use essays and articles as the basis for further inquiry and individual assessment. This book examines the role of government, the responsibilities of parents, the health care costs of childhood obesity, fast food and food marketing, as well as physical activity as it relates to childhood obesity.","English",28.8,23.05,"618.92/​398","120 pp.","https://greenhavenpublishing.com/9780737774054",null,{"$f":"Table1[[#This Row],['# of Books]]*Table1[[#This Row],[QTY]]","v":0},{"$f":"Table1[[#This Row],[QTY]]*Table1[[#This Row],[School & Library Price]]","v":0}]
[null,null,11,null,null,"Current Issues","At Issue","Civil Disobedience","978-1-5345-0065-5",{"$f":"HYPERLINK(Table1[[#This Row],[eCommerce Hyperlink]],\"Book Weblink\")","v":"Book Weblink"},null,"Greenhaven Publishing","Library Bound Book",1,"2018","August 2017","Library","6.000 X 9.000","Edited by","Elizabeth Schmermund",null,null,null,null,"Z","1320L","Grade 10 - 12","Grade 9 - 12","Civil disobedience, the refusal to obey certain laws, is a method of protest famously articulated by philosopher and writer Henry David Thoreau in his 1849 essay “Civil Disobedience.” Thoreau believed that protest became a moral obligation when laws collided with conscience. Since then, civil disobedience has been employed as a form of rebellion around the world. But is there a place for civil disobedience in democratic societies? When is civil disobedience justifiable? Is violence ever called for? Furthermore, how effective is civil disobedience?","English",40.4,32.32,"303.6'1--dc23","144 pp.","https://greenhavenpublishing.com/9781534500655",null,{"$f":"Table1[[#This Row],['# of Books]]*Table1[[#This Row],[QTY]]","v":0},{"$f":"Table1[[#This Row],[QTY]]*Table1[[#This Row],[School & Library Price]]","v":0}]
[null,null,11,null,null,"Current Issues","At Issue","Civil Disobedience","978-1-5345-0066-2",{"$f":"HYPERLINK(Table1[[#This Row],[eCommerce Hyperlink]],\"Book Weblink\")","v":"Book Weblink"},null,"Greenhaven Publishing","eBook",1,"2018","August 2017",null,null,"Edited by","Elizabeth Schmermund",null,null,null,null,"Z","1320L","Grade 10 - 12","Grade 9 - 12","Civil disobedience, the refusal to obey certain laws, is a method of protest famously articulated by philosopher and writer Henry David Thoreau in his 1849 essay “Civil Disobedience.” Thoreau believed that protest became a moral obligation when laws collided with conscience. Since then, civil disobedience has been employed as a form of rebellion around the world. But is there a place for civil disobedience in democratic societies? When is civil disobedience justifiable? Is violence ever called for? Furthermore, how effective is civil disobedience?","English",40.4,32.32,"303.6'1--dc23","144 pp.","https://greenhavenpublishing.com/9781534500662",null,{"$f":"Table1[[#This Row],['# of Books]]*Table1[[#This Row],[QTY]]","v":0},{"$f":"Table1[[#This Row],[QTY]]*Table1[[#This Row],[School & Library Price]]","v":0}]
[null,null,11,null,null,"Current Issues","At Issue","Civil Disobedience","978-1-5345-0063-1",{"$f":"HYPERLINK(Table1[[#This Row],[eCommerce Hyperlink]],\"Book Weblink\")","v":"Book Weblink"},null,"Greenhaven Publishing","Paperback Book",1,"2018","August 2017","Paperback","6.000 X 9.000","Edited by","Elizabeth Schmermund",null,null,null,null,"Z","1320L","Grade 10 - 12","Grade 9 - 12","Civil disobedience, the refusal to obey certain laws, is a method of protest famously articulated by philosopher and writer Henry David Thoreau in his 1849 essay “Civil Disobedience.” Thoreau believed that protest became a moral obligation when laws collided with conscience. Since then, civil disobedience has been employed as a form of rebellion around the world. But is there a place for civil disobedience in democratic societies? When is civil disobedience justifiable? Is violence ever called for? Furthermore, how effective is civil disobedience?","English",28.8,23.05,"303.6'1--dc23","144 pp.","https://greenhavenpublishing.com/9781534500631",null,{"$f":"Table1[[#This Row],['# of Books]]*Table1[[#This Row],[QTY]]","v":0},{"$f":"Table1[[#This Row],[QTY]]*Table1[[#This Row],[School & Library Price]]","v":0}]
[null,null,11,null,null,"Current Issues","At Issue","Corporate Corruption","978-0-7377-7364-4",{"$f":"HYPERLINK(Table1[[#This Row],[eCommerce Hyperlink]],\"Book Weblink\")","v":"Book Weblink"},null,"Greenhaven Publishing","Library Bound Book",1,"2016","January 2016","Library","6.000 X 9.000","Edited by","Sarah Armstrong",null,null,null,null,"Z",null,"Grade 10 - 12","Grade 9 - 12","Twelve detailed essays were assembled by editor Sarah Armstrong, to help students obtain a balanced understanding of corporate corruption. Students will read whether global efforts against corruption are working, whether corporate profiteering is a source of environmental violence, and whether corporate rights work against the individual's rights.","English",40.4,32.32,"364.16/​8","104 pp.","https://greenhavenpublishing.com/9780737773644",null,{"$f":"Table1[[#This Row],['# of Books]]*Table1[[#This Row],[QTY]]","v":0},{"$f":"Table1[[#This Row],[QTY]]*Table1[[#This Row],[School & Library Price]]","v":0}]
[null,null,11,null,null,"Current Issues","At Issue","Corporate Corruption","978-0-7377-7628-7",{"$f":"HYPERLINK(Table1[[#This Row],[eCommerce Hyperlink]],\"Book Weblink\")","v":"Book Weblink"},null,"Greenhaven Publishing","eBook",1,"2016","January 2016",null,null,"Edited by","Sarah Armstrong",null,null,null,null,"Z",null,"Grade 10 - 12","Grade 9 - 12","Twelve detailed essays were assembled by editor Sarah Armstrong, to help students obtain a balanced understanding of corporate corruption. Students will read whether global efforts against corruption are working, whether corporate profiteering is a source of environmental violence, and whether corporate rights work against the individual's rights.","English",40.4,32.32,"364.16/​8","104 pp.","https://greenhavenpublishing.com/9780737776287",null,{"$f":"Table1[[#This Row],['# of Books]]*Table1[[#This Row],[QTY]]","v":0},{"$f":"Table1[[#This Row],[QTY]]*Table1[[#This Row],[School & Library Price]]","v":0}]
[null,null,11,null,null,"Current Issues","At Issue","Corporate Corruption","978-0-7377-7365-1",{"$f":"HYPERLINK(Table1[[#This Row],[eCommerce Hyperlink]],\"Book Weblink\")","v":"Book Weblink"},null,"Greenhaven Publishing","Paperback Book",1,"2016","January 2016","Paperback","6.000 X 9.000","Edited by","Sarah Armstrong",null,null,null,null,"Z",null,"Grade 10 - 12","Grade 9 - 12","Twelve detailed essays were assembled by editor Sarah Armstrong, to help students obtain a balanced understanding of corporate corruption. Students will read whether global efforts against corruption are working, whether corporate profiteering is a source of environmental violence, and whether corporate rights work against the individual's rights.","English",28.8,23.05,"364.16/​8","104 pp.","https://greenhavenpublishing.com/9780737773651",null,{"$f":"Table1[[#This Row],['# of Books]]*Table1[[#This Row],[QTY]]","v":0},{"$f":"Table1[[#This Row],[QTY]]*Table1[[#This Row],[School & Library Price]]","v":0}]
[null,10,11,null,null,"Current Issues","At Issue","COVID-19 and Other Pandemics","978-1-5345-0730-2",{"$f":"HYPERLINK(Table1[[#This Row],[eCommerce Hyperlink]],\"Book Weblink\")","v":"Book Weblink"},null,"Greenhaven Publishing","Library Bound Book",1,"2022","August 2021","Library","6.000 X 9.000","Compiled by","Barbara Krasner ",null,null,null,null,"Z",null,"Grade 10 - 12","Grade 9 - 12","From the Black Death of the fourteenth century to more recent Ebola and SARS and the ongoing HIV/AIDS crisis, pandemics and disease outbreaks have devastated societies, wiped out significant portions of populations, and necessitated political, social, and scientific changes to address these public health catastrophes. When the COVID-19 virus effectively brought the world to its knees in 2020, it became clear that whatever scientists and policymakers had learned from historical pandemics wasn’t enough. Journalists, politicians, medical professionals, and other experts from a range of fields weigh in on how pandemics happen and evaluate the potential means of controlling them.","English",40.4,32.32,"614.4--dc23","128 pp.","https://greenhavenpublishing.com/9781534507302",null,{"$f":"Table1[[#This Row],['# of Books]]*Table1[[#This Row],[QTY]]","v":0},{"$f":"Table1[[#This Row],[QTY]]*Table1[[#This Row],[School & Library Price]]","v":0}]
[null,10,11,null,null,"Current Issues","At Issue","COVID-19 and Other Pandemics","978-1-5345-0731-9",{"$f":"HYPERLINK(Table1[[#This Row],[eCommerce Hyperlink]],\"Book Weblink\")","v":"Book Weblink"},null,"Greenhaven Publishing","eBook",1,"2022","August 2021",null,null,"Compiled by","Barbara Krasner ",null,null,null,null,"Z",null,"Grade 10 - 12","Grade 9 - 12","From the Black Death of the fourteenth century to more recent Ebola and SARS and the ongoing HIV/AIDS crisis, pandemics and disease outbreaks have devastated societies, wiped out significant portions of populations, and necessitated political, social, and scientific changes to address these public health catastrophes. When the COVID-19 virus effectively brought the world to its knees in 2020, it became clear that whatever scientists and policymakers had learned from historical pandemics wasn’t enough. Journalists, politicians, medical professionals, and other experts from a range of fields weigh in on how pandemics happen and evaluate the potential means of controlling them.","English",40.4,32.32,"614.4--dc23","128 pp.","https://greenhavenpublishing.com/9781534507319",null,{"$f":"Table1[[#This Row],['# of Books]]*Table1[[#This Row],[QTY]]","v":0},{"$f":"Table1[[#This Row],[QTY]]*Table1[[#This Row],[School & Library Price]]","v":0}]
[null,10,11,null,null,"Current Issues","At Issue","COVID-19 and Other Pandemics","978-1-5345-0729-6",{"$f":"HYPERLINK(Table1[[#This Row],[eCommerce Hyperlink]],\"Book Weblink\")","v":"Book Weblink"},null,"Greenhaven Publishing","Paperback Book",1,"2022","August 2021","Paperback","6.000 X 9.000","Compiled by","Barbara Krasner ",null,null,null,null,"Z",null,"Grade 10 - 12","Grade 9 - 12","From the Black Death of the fourteenth century to more recent Ebola and SARS and the ongoing HIV/AIDS crisis, pandemics and disease outbreaks have devastated societies, wiped out significant portions of populations, and necessitated political, social, and scientific changes to address these public health catastrophes. When the COVID-19 virus effectively brought the world to its knees in 2020, it became clear that whatever scientists and policymakers had learned from historical pandemics wasn’t enough. Journalists, politicians, medical professionals, and other experts from a range of fields weigh in on how pandemics happen and evaluate the potential means of controlling them.","English",28.8,23.05,"614.4--dc23","128 pp.","https://greenhavenpublishing.com/9781534507296",null,{"$f":"Table1[[#This Row],['# of Books]]*Table1[[#This Row],[QTY]]","v":0},{"$f":"Table1[[#This Row],[QTY]]*Table1[[#This Row],[School & Library Price]]","v":0}]
[null,null,11,null,null,"Current Issues","At Issue","Cyberwarfare","978-1-5345-0204-8",{"$f":"HYPERLINK(Table1[[#This Row],[eCommerce Hyperlink]],\"Book Weblink\")","v":"Book Weblink"},null,"Greenhaven Publishing","Library Bound Book",1,"2018","January 2018","Library","6.000 X 9.000","Edited by","Megan Manzano",null,null,null,null,"Z","1370L","Grade 10 - 12","Grade 9 - 12","There is warfare, and there is cyberwarfare. In today's technologically-driven world, governments, and even terrorist groups and hacktivists, engage in cyberwarfare to attack or disrupt the operations of other nations and organizations. Recent revelations about cyberattacks that threatened individual and national security have caused ripples of concern and outrage, but tend to die down quickly. How safe are we, and do we take security for granted? This resource offers a diverse selection of viewpoints from the top voices in the field to enlighten readers about warfare in the Information Age.","English",40.4,32.32,"355.4/1--dc23","120 pp.","https://greenhavenpublishing.com/9781534502048",null,{"$f":"Table1[[#This Row],['# of Books]]*Table1[[#This Row],[QTY]]","v":0},{"$f":"Table1[[#This Row],[QTY]]*Table1[[#This Row],[School & Library Price]]","v":0}]
[null,null,11,null,null,"Current Issues","At Issue","Cyberwarfare","978-1-5345-0201-7",{"$f":"HYPERLINK(Table1[[#This Row],[eCommerce Hyperlink]],\"Book Weblink\")","v":"Book Weblink"},null,"Greenhaven Publishing","eBook",1,"2018","January 2018",null,null,"Edited by","Megan Manzano",null,null,null,null,"Z","1370L","Grade 10 - 12","Grade 9 - 12","There is warfare, and there is cyberwarfare. In today's technologically-driven world, governments, and even terrorist groups and hacktivists, engage in cyberwarfare to attack or disrupt the operations of other nations and organizations. Recent revelations about cyberattacks that threatened individual and national security have caused ripples of concern and outrage, but tend to die down quickly. How safe are we, and do we take security for granted? This resource offers a diverse selection of viewpoints from the top voices in the field to enlighten readers about warfare in the Information Age.","English",40.4,32.32,"355.4/1--dc23","120 pp.","https://greenhavenpublishing.com/9781534502017",null,{"$f":"Table1[[#This Row],['# of Books]]*Table1[[#This Row],[QTY]]","v":0},{"$f":"Table1[[#This Row],[QTY]]*Table1[[#This Row],[School & Library Price]]","v":0}]
[null,null,11,null,null,"Current Issues","At Issue","Cyberwarfare","978-1-5345-0210-9",{"$f":"HYPERLINK(Table1[[#This Row],[eCommerce Hyperlink]],\"Book Weblink\")","v":"Book Weblink"},null,"Greenhaven Publishing","Paperback Book",1,"2018","January 2018","Paperback","6.000 X 9.000","Edited by","Megan Manzano",null,null,null,null,"Z","1370L","Grade 10 - 12","Grade 9 - 12","There is warfare, and there is cyberwarfare. In today's technologically-driven world, governments, and even terrorist groups and hacktivists, engage in cyberwarfare to attack or disrupt the operations of other nations and organizations. Recent revelations about cyberattacks that threatened individual and national security have caused ripples of concern and outrage, but tend to die down quickly. How safe are we, and do we take security for granted? This resource offers a diverse selection of viewpoints from the top voices in the field to enlighten readers about warfare in the Information Age.","English",28.8,23.05,"355.4/1--dc23","120 pp.","https://greenhavenpublishing.com/9781534502109",null,{"$f":"Table1[[#This Row],['# of Books]]*Table1[[#This Row],[QTY]]","v":0},{"$f":"Table1[[#This Row],[QTY]]*Table1[[#This Row],[School & Library Price]]","v":0}]
[null,null,11,null,null,"Current Issues","At Issue","Does the Internet Increase Anxiety?","978-0-7377-7382-8",{"$f":"HYPERLINK(Table1[[#This Row],[eCommerce Hyperlink]],\"Book Weblink\")","v":"Book Weblink"},null,"Greenhaven Publishing","Library Bound Book",1,"2016","January 2016","Library","6.000 X 9.000","Edited by","Tamara Thompson",null,null,null,null,"Z",null,"Grade 10 - 12","Grade 9 - 12","This book explores the new phenomena of anxiety surrounding the Internet, which has developed with the explosion of social media use. Mobile-devise separation anxiety, digital overload, and activity tracking are a selection of topics discussed.","English",40.4,32.32,"303.48/33","104 pp.","https://greenhavenpublishing.com/9780737773828",null,{"$f":"Table1[[#This Row],['# of Books]]*Table1[[#This Row],[QTY]]","v":0},{"$f":"Table1[[#This Row],[QTY]]*Table1[[#This Row],[School & Library Price]]","v":0}]
[null,null,11,null,null,"Current Issues","At Issue","Does the Internet Increase Anxiety?","978-0-7377-7631-7",{"$f":"HYPERLINK(Table1[[#This Row],[eCommerce Hyperlink]],\"Book Weblink\")","v":"Book Weblink"},null,"Greenhaven Publishing","eBook",1,"2016","January 2016",null,null,"Edited by","Tamara Thompson",null,null,null,null,"Z",null,"Grade 10 - 12","Grade 9 - 12","This book explores the new phenomena of anxiety surrounding the Internet, which has developed with the explosion of social media use. Mobile-devise separation anxiety, digital overload, and activity tracking are a selection of topics discussed.","English",40.4,32.32,"303.48/33","104 pp.","https://greenhavenpublishing.com/9780737776317",null,{"$f":"Table1[[#This Row],['# of Books]]*Table1[[#This Row],[QTY]]","v":0},{"$f":"Table1[[#This Row],[QTY]]*Table1[[#This Row],[School & Library Price]]","v":0}]
[null,null,11,null,null,"Current Issues","At Issue","Does the Internet Increase Anxiety?","978-0-7377-7383-5",{"$f":"HYPERLINK(Table1[[#This Row],[eCommerce Hyperlink]],\"Book Weblink\")","v":"Book Weblink"},null,"Greenhaven Publishing","Paperback Book",1,"2016","January 2016","Paperback","6.000 X 9.000","Edited by","Tamara Thompson",null,null,null,null,"Z",null,"Grade 10 - 12","Grade 9 - 12","This book explores the new phenomena of anxiety surrounding the Internet, which has developed with the explosion of social media use. Mobile-devise separation anxiety, digital overload, and activity tracking are a selection of topics discussed.","English",28.8,23.05,"303.48/33","104 pp.","https://greenhavenpublishing.com/9780737773835",null,{"$f":"Table1[[#This Row],['# of Books]]*Table1[[#This Row],[QTY]]","v":0},{"$f":"Table1[[#This Row],[QTY]]*Table1[[#This Row],[School & Library Price]]","v":0}]
[null,null,11,null,null,"Current Issues","At Issue","Domestic Terrorism","978-1-5345-0015-0",{"$f":"HYPERLINK(Table1[[#This Row],[eCommerce Hyperlink]],\"Book Weblink\")","v":"Book Weblink"},null,"Greenhaven Publishing","Library Bound Book",1,"2017","January 2017","Library","6.000 X 9.000","Edited by","Elizabeth Schmermund",null,null,null,null,"Z",null,"Grade 10 - 12","Grade 9 - 12","What constitutes domestic terrorism? The answer is actually more complicated than most of us would think. Readers of this informative anthology will progress through a range of articles offering diverse viewpoints about the Patriot Act, the differences in perception of white Christian violent extremists and those of other races and religions, why some environmental and animal activists are considered terrorists, the growing problem of \"paper terrorism,\" and what can lead homegrown terrorists to lash out against a country that has given them so much opportunity.","English",40.4,32.32,"371.7'82--dc23","176 pp.","https://greenhavenpublishing.com/9781534500150",null,{"$f":"Table1[[#This Row],['# of Books]]*Table1[[#This Row],[QTY]]","v":0},{"$f":"Table1[[#This Row],[QTY]]*Table1[[#This Row],[School & Library Price]]","v":0}]
[null,null,11,null,null,"Current Issues","At Issue","Domestic Terrorism","978-1-5345-0011-2",{"$f":"HYPERLINK(Table1[[#This Row],[eCommerce Hyperlink]],\"Book Weblink\")","v":"Book Weblink"},null,"Greenhaven Publishing","eBook",1,"2017","January 2017",null,null,"Edited by","Elizabeth Schmermund",null,null,null,null,"Z",null,"Grade 10 - 12","Grade 9 - 12","What constitutes domestic terrorism? The answer is actually more complicated than most of us would think. Readers of this informative anthology will progress through a range of articles offering diverse viewpoints about the Patriot Act, the differences in perception of white Christian violent extremists and those of other races and religions, why some environmental and animal activists are considered terrorists, the growing problem of \"paper terrorism,\" and what can lead homegrown terrorists to lash out against a country that has given them so much opportunity.","English",40.4,32.32,"371.7'82--dc23","176 pp.","https://greenhavenpublishing.com/9781534500112",null,{"$f":"Table1[[#This Row],['# of Books]]*Table1[[#This Row],[QTY]]","v":0},{"$f":"Table1[[#This Row],[QTY]]*Table1[[#This Row],[School & Library Price]]","v":0}]
[null,null,11,null,null,"Current Issues","At Issue","Domestic Terrorism","978-1-5345-0039-6",{"$f":"HYPERLINK(Table1[[#This Row],[eCommerce Hyperlink]],\"Book Weblink\")","v":"Book Weblink"},null,"Greenhaven Publishing","Paperback Book",1,"2017","January 2017","Paperback","6.000 X 9.000","Edited by","Elizabeth Schmermund",null,null,null,null,"Z",null,"Grade 10 - 12","Grade 9 - 12","What constitutes domestic terrorism? The answer is actually more complicated than most of us would think. Readers of this informative anthology will progress through a range of articles offering diverse viewpoints about the Patriot Act, the differences in perception of white Christian violent extremists and those of other races and religions, why some environmental and animal activists are considered terrorists, the growing problem of \"paper terrorism,\" and what can lead homegrown terrorists to lash out against a country that has given them so much opportunity.","English",28.8,23.05,"371.7'82--dc23","176 pp.","https://greenhavenpublishing.com/9781534500396",null,{"$f":"Table1[[#This Row],['# of Books]]*Table1[[#This Row],[QTY]]","v":0},{"$f":"Table1[[#This Row],[QTY]]*Table1[[#This Row],[School & Library Price]]","v":0}]
[null,null,11,null,null,"Current Issues","At Issue","Environmental Racism and Classism","978-1-5345-0016-7",{"$f":"HYPERLINK(Table1[[#This Row],[eCommerce Hyperlink]],\"Book Weblink\")","v":"Book Weblink"},null,"Greenhaven Publishing","Library Bound Book",1,"2017","January 2017","Library","6.000 X 9.000","Edited by","Anne C. Cunningham",null,null,null,null,"Z","1370L","Grade 10 - 12","Grade 9 - 12","Flint’s water supply tainted with lead. Chicago’s toxic “donut.” Louisiana’s “cancer alley.” Corporate waste poisoning developing nations. These are all examples of environmental racism. Readers of this compelling anthology will be awakened to many examples of poor and minority communities that suffer physically, emotionally, and financially from living in a toxic environment. With no political clout and few available resources, these victims find themselves abandoned by the environmental movement and bullied by environmental policies. The burgeoning environmental justice movement argues that environmental protection is a basic right. After reading the informative viewpoints in this volume, students will come to their own conclusions.","English",40.4,32.32,"363.3250973--dc23","160 pp.","https://greenhavenpublishing.com/9781534500167",null,{"$f":"Table1[[#This Row],['# of Books]]*Table1[[#This Row],[QTY]]","v":0},{"$f":"Table1[[#This Row],[QTY]]*Table1[[#This Row],[School & Library Price]]","v":0}]
[null,null,11,null,null,"Current Issues","At Issue","Environmental Racism and Classism","978-1-5345-0012-9",{"$f":"HYPERLINK(Table1[[#This Row],[eCommerce Hyperlink]],\"Book Weblink\")","v":"Book Weblink"},null,"Greenhaven Publishing","eBook",1,"2017","January 2017",null,null,"Edited by","Anne C. Cunningham",null,null,null,null,"Z","1370L","Grade 10 - 12","Grade 9 - 12","Flint’s water supply tainted with lead. Chicago’s toxic “donut.” Louisiana’s “cancer alley.” Corporate waste poisoning developing nations. These are all examples of environmental racism. Readers of this compelling anthology will be awakened to many examples of poor and minority communities that suffer physically, emotionally, and financially from living in a toxic environment. With no political clout and few available resources, these victims find themselves abandoned by the environmental movement and bullied by environmental policies. The burgeoning environmental justice movement argues that environmental protection is a basic right. After reading the informative viewpoints in this volume, students will come to their own conclusions.","English",40.4,32.32,"363.3250973--dc23","160 pp.","https://greenhavenpublishing.com/9781534500129",null,{"$f":"Table1[[#This Row],['# of Books]]*Table1[[#This Row],[QTY]]","v":0},{"$f":"Table1[[#This Row],[QTY]]*Table1[[#This Row],[School & Library Price]]","v":0}]
[null,null,11,null,null,"Current Issues","At Issue","Environmental Racism and Classism","978-1-5345-0040-2",{"$f":"HYPERLINK(Table1[[#This Row],[eCommerce Hyperlink]],\"Book Weblink\")","v":"Book Weblink"},null,"Greenhaven Publishing","Paperback Book",1,"2017","January 2017","Paperback","6.000 X 9.000","Edited by","Anne C. Cunningham",null,null,null,null,"Z","1370L","Grade 10 - 12","Grade 9 - 12","Flint’s water supply tainted with lead. Chicago’s toxic “donut.” Louisiana’s “cancer alley.” Corporate waste poisoning developing nations. These are all examples of environmental racism. Readers of this compelling anthology will be awakened to many examples of poor and minority communities that suffer physically, emotionally, and financially from living in a toxic environment. With no political clout and few available resources, these victims find themselves abandoned by the environmental movement and bullied by environmental policies. The burgeoning environmental justice movement argues that environmental protection is a basic right. After reading the informative viewpoints in this volume, students will come to their own conclusions.","English",28.8,23.05,"363.3250973--dc23","160 pp.","https://greenhavenpublishing.com/9781534500402",null,{"$f":"Table1[[#This Row],['# of Books]]*Table1[[#This Row],[QTY]]","v":0},{"$f":"Table1[[#This Row],[QTY]]*Table1[[#This Row],[School & Library Price]]","v":0}]
[null,null,11,null,null,"Current Issues","At Issue","Ethical Pet Ownership: Puppy Mills, Rescue Pets, and Exotic Animal Trade","978-1-5345-0379-3",{"$f":"HYPERLINK(Table1[[#This Row],[eCommerce Hyperlink]],\"Book Weblink\")","v":"Book Weblink"},null,"Greenhaven Publishing","Library Bound Book",1,"2019","January 2019","Library","6.000 X 9.000","Edited by","Lisa Idzikowski",null,null,null,null,"Z","1320L","Grade 10 - 12","Grade 9 - 12","As of 2017, 55 percent of American households included at least one pet. Pets are ubiquitous and often considered part of the family, but are they content in a domestic setting? Is there a way for us to tell if we are giving pets a suitable standard of living? Many factors must be considered when looking at the ethics of pet ownership, including what rights animals should possess, where the animals come from, and what species of animals should be kept as pets. Readers will gain a better understanding of the many ethical considerations surrounding pet ownership.","English",40.4,32.32,"636.088/7--dc23","128 pp.","https://greenhavenpublishing.com/9781534503793",null,{"$f":"Table1[[#This Row],['# of Books]]*Table1[[#This Row],[QTY]]","v":0},{"$f":"Table1[[#This Row],[QTY]]*Table1[[#This Row],[School & Library Price]]","v":0}]
[null,null,11,null,null,"Current Issues","At Issue","Ethical Pet Ownership: Puppy Mills, Rescue Pets, and Exotic Animal Trade","978-1-5345-0394-6",{"$f":"HYPERLINK(Table1[[#This Row],[eCommerce Hyperlink]],\"Book Weblink\")","v":"Book Weblink"},null,"Greenhaven Publishing","eBook",1,"2019","January 2019",null,null,"Edited by","Lisa Idzikowski",null,null,null,null,"Z","1320L","Grade 10 - 12","Grade 9 - 12","As of 2017, 55 percent of American households included at least one pet. Pets are ubiquitous and often considered part of the family, but are they content in a domestic setting? Is there a way for us to tell if we are giving pets a suitable standard of living? Many factors must be considered when looking at the ethics of pet ownership, including what rights animals should possess, where the animals come from, and what species of animals should be kept as pets. Readers will gain a better understanding of the many ethical considerations surrounding pet ownership.","English",40.4,32.32,"636.088/7--dc23","128 pp.","https://greenhavenpublishing.com/9781534503946",null,{"$f":"Table1[[#This Row],['# of Books]]*Table1[[#This Row],[QTY]]","v":0},{"$f":"Table1[[#This Row],[QTY]]*Table1[[#This Row],[School & Library Price]]","v":0}]
[null,null,11,null,null,"Current Issues","At Issue","Ethical Pet Ownership: Puppy Mills, Rescue Pets, and Exotic Animal Trade","978-1-5345-0445-5",{"$f":"HYPERLINK(Table1[[#This Row],[eCommerce Hyperlink]],\"Book Weblink\")","v":"Book Weblink"},null,"Greenhaven Publishing","Paperback Book",1,"2019","January 2019","Paperback","6.000 X 9.000","Edited by","Lisa Idzikowski",null,null,null,null,"Z","1320L","Grade 10 - 12","Grade 9 - 12","As of 2017, 55 percent of American households included at least one pet. Pets are ubiquitous and often considered part of the family, but are they content in a domestic setting? Is there a way for us to tell if we are giving pets a suitable standard of living? Many factors must be considered when looking at the ethics of pet ownership, including what rights animals should possess, where the animals come from, and what species of animals should be kept as pets. Readers will gain a better understanding of the many ethical considerations surrounding pet ownership.","English",28.8,23.05,"636.088/7--dc23","128 pp.","https://greenhavenpublishing.com/9781534504455",null,{"$f":"Table1[[#This Row],['# of Books]]*Table1[[#This Row],[QTY]]","v":0},{"$f":"Table1[[#This Row],[QTY]]*Table1[[#This Row],[School & Library Price]]","v":0}]
[null,11,11,null,null,"Current Issues","At Issue","Food Security","978-1-5345-0736-4",{"$f":"HYPERLINK(Table1[[#This Row],[eCommerce Hyperlink]],\"Book Weblink\")","v":"Book Weblink"},null,"Greenhaven Publishing","Library Bound Book",1,"2021","January 2021","Library","6.000 X 9.000","Compiled by","Kathryn Roberts",null,null,null,null,"Z",null,"Grade 10 - 12","Grade 9 - 12","For a number of reasons, the global food supply is not as stable as it has been historically. The global population continues to grow, while catastrophic weather events like floods and droughts have an increasingly detrimental effect on crops around the world. Various political factors also impact food security, including violent conflicts within and between countries, trade wars and tariffs, and contentious decisions regarding which crops to subsidize. The viewpoints in this volume explore the causes of food insecurity around the world while also presenting potential solutions that could stabilize food supply at a local and global level.","English",40.4,32.32,"338.1/9--dc23","128 pp.","https://greenhavenpublishing.com/9781534507364",null,{"$f":"Table1[[#This Row],['# of Books]]*Table1[[#This Row],[QTY]]","v":0},{"$f":"Table1[[#This Row],[QTY]]*Table1[[#This Row],[School & Library Price]]","v":0}]
[null,11,11,null,null,"Current Issues","At Issue","Food Security","978-1-5345-0737-1",{"$f":"HYPERLINK(Table1[[#This Row],[eCommerce Hyperlink]],\"Book Weblink\")","v":"Book Weblink"},null,"Greenhaven Publishing","eBook",1,"2021","January 2021",null,null,"Compiled by","Kathryn Roberts",null,null,null,null,"Z",null,"Grade 10 - 12","Grade 9 - 12","For a number of reasons, the global food supply is not as stable as it has been historically. The global population continues to grow, while catastrophic weather events like floods and droughts have an increasingly detrimental effect on crops around the world. Various political factors also impact food security, including violent conflicts within and between countries, trade wars and tariffs, and contentious decisions regarding which crops to subsidize. The viewpoints in this volume explore the causes of food insecurity around the world while also presenting potential solutions that could stabilize food supply at a local and global level.","English",40.4,32.32,"338.1/9--dc23","128 pp.","https://greenhavenpublishing.com/9781534507371",null,{"$f":"Table1[[#This Row],['# of Books]]*Table1[[#This Row],[QTY]]","v":0},{"$f":"Table1[[#This Row],[QTY]]*Table1[[#This Row],[School & Library Price]]","v":0}]
[null,11,11,null,null,"Current Issues","At Issue","Food Security","978-1-5345-0735-7",{"$f":"HYPERLINK(Table1[[#This Row],[eCommerce Hyperlink]],\"Book Weblink\")","v":"Book Weblink"},null,"Greenhaven Publishing","Paperback Book",1,"2021","January 2021","Paperback","6.000 X 9.000","Compiled by","Kathryn Roberts",null,null,null,null,"Z",null,"Grade 10 - 12","Grade 9 - 12","For a number of reasons, the global food supply is not as stable as it has been historically. The global population continues to grow, while catastrophic weather events like floods and droughts have an increasingly detrimental effect on crops around the world. Various political factors also impact food security, including violent conflicts within and between countries, trade wars and tariffs, and contentious decisions regarding which crops to subsidize. The viewpoints in this volume explore the causes of food insecurity around the world while also presenting potential solutions that could stabilize food supply at a local and global level.","English",28.8,23.05,"338.1/9--dc23","128 pp.","https://greenhavenpublishing.com/9781534507357",null,{"$f":"Table1[[#This Row],['# of Books]]*Table1[[#This Row],[QTY]]","v":0},{"$f":"Table1[[#This Row],[QTY]]*Table1[[#This Row],[School & Library Price]]","v":0}]
[null,null,11,null,null,"Current Issues","At Issue","Foodborne Outbreaks","978-0-7377-7406-1",{"$f":"HYPERLINK(Table1[[#This Row],[eCommerce Hyperlink]],\"Book Weblink\")","v":"Book Weblink"},null,"Greenhaven Publishing","Library Bound Book",1,"2016","January 2016","Library","6.000 X 9.000","Edited by","Amy Francis",null,null,null,null,"Z",null,"Grade 10 - 12","Grade 9 - 12","This book explores issues related to foodborne outbreaks. It covers the progress made toward reducing foodborne outbreaks. It examines funding for the Federal Food Safety Modernization Act. Readers will examine foodborne outbreaks and the global food system, the risks of consuming imported food, and food suppliers and safety among other issues.","English",40.4,32.32,"615.9/​54","104 pp.","https://greenhavenpublishing.com/9780737774061",null,{"$f":"Table1[[#This Row],['# of Books]]*Table1[[#This Row],[QTY]]","v":0},{"$f":"Table1[[#This Row],[QTY]]*Table1[[#This Row],[School & Library Price]]","v":0}]
[null,null,11,null,null,"Current Issues","At Issue","Foodborne Outbreaks","978-0-7377-7634-8",{"$f":"HYPERLINK(Table1[[#This Row],[eCommerce Hyperlink]],\"Book Weblink\")","v":"Book Weblink"},null,"Greenhaven Publishing","eBook",1,"2016","January 2016",null,null,"Edited by","Amy Francis",null,null,null,null,"Z",null,"Grade 10 - 12","Grade 9 - 12","This book explores issues related to foodborne outbreaks. It covers the progress made toward reducing foodborne outbreaks. It examines funding for the Federal Food Safety Modernization Act. Readers will examine foodborne outbreaks and the global food system, the risks of consuming imported food, and food suppliers and safety among other issues.","English",40.4,32.32,"615.9/​54","104 pp.","https://greenhavenpublishing.com/9780737776348",null,{"$f":"Table1[[#This Row],['# of Books]]*Table1[[#This Row],[QTY]]","v":0},{"$f":"Table1[[#This Row],[QTY]]*Table1[[#This Row],[School & Library Price]]","v":0}]
[null,null,11,null,null,"Current Issues","At Issue","Foodborne Outbreaks","978-0-7377-7407-8",{"$f":"HYPERLINK(Table1[[#This Row],[eCommerce Hyperlink]],\"Book Weblink\")","v":"Book Weblink"},null,"Greenhaven Publishing","Paperback Book",1,"2016","January 2016","Paperback","6.000 X 9.000","Edited by","Amy Francis",null,null,null,null,"Z",null,"Grade 10 - 12","Grade 9 - 12","This book explores issues related to foodborne outbreaks. It covers the progress made toward reducing foodborne outbreaks. It examines funding for the Federal Food Safety Modernization Act. Readers will examine foodborne outbreaks and the global food system, the risks of consuming imported food, and food suppliers and safety among other issues.","English",28.8,23.05,"615.9/​54","104 pp.","https://greenhavenpublishing.com/9780737774078",null,{"$f":"Table1[[#This Row],['# of Books]]*Table1[[#This Row],[QTY]]","v":0},{"$f":"Table1[[#This Row],[QTY]]*Table1[[#This Row],[School & Library Price]]","v":0}]
[null,null,11,null,null,"Current Issues","At Issue","Foreign Oil Dependence","978-0-7377-7368-2",{"$f":"HYPERLINK(Table1[[#This Row],[eCommerce Hyperlink]],\"Book Weblink\")","v":"Book Weblink"},null,"Greenhaven Publishing","Library Bound Book",1,"2016","January 2016","Library","6.000 X 9.000","Edited by","Noah Berlatsky",null,null,null,null,"Z",null,"Grade 10 - 12","Grade 9 - 12","This anthology explores the issue of the United States' dependence on oil. Can the country attain energy independence? Does the dependence on foreign oil weaken the economy? Is dependence on foreign oil a security threat? Can the United States transition from oil if it must, or is the country too deeply invested? This book gives evidence to both sides of these questions. Features previously published content from sources such as Jordan Weissman, Anne Korin, Pew Charitable Trusts, and the National Corn Growers Association.","English",40.4,32.32,"338.2/​72820973","88 pp.","https://greenhavenpublishing.com/9780737773682",null,{"$f":"Table1[[#This Row],['# of Books]]*Table1[[#This Row],[QTY]]","v":0},{"$f":"Table1[[#This Row],[QTY]]*Table1[[#This Row],[School & Library Price]]","v":0}]
[null,null,11,null,null,"Current Issues","At Issue","Foreign Oil Dependence","978-0-7377-7635-5",{"$f":"HYPERLINK(Table1[[#This Row],[eCommerce Hyperlink]],\"Book Weblink\")","v":"Book Weblink"},null,"Greenhaven Publishing","eBook",1,"2016","January 2016",null,null,"Edited by","Noah Berlatsky",null,null,null,null,"Z",null,"Grade 10 - 12","Grade 9 - 12","This anthology explores the issue of the United States' dependence on oil. Can the country attain energy independence? Does the dependence on foreign oil weaken the economy? Is dependence on foreign oil a security threat? Can the United States transition from oil if it must, or is the country too deeply invested? This book gives evidence to both sides of these questions. Features previously published content from sources such as Jordan Weissman, Anne Korin, Pew Charitable Trusts, and the National Corn Growers Association.","English",40.4,32.32,"338.2/​72820973","88 pp.","https://greenhavenpublishing.com/9780737776355",null,{"$f":"Table1[[#This Row],['# of Books]]*Table1[[#This Row],[QTY]]","v":0},{"$f":"Table1[[#This Row],[QTY]]*Table1[[#This Row],[School & Library Price]]","v":0}]
[null,null,11,null,null,"Current Issues","At Issue","Foreign Oil Dependence","978-0-7377-7369-9",{"$f":"HYPERLINK(Table1[[#This Row],[eCommerce Hyperlink]],\"Book Weblink\")","v":"Book Weblink"},null,"Greenhaven Publishing","Paperback Book",1,"2016","January 2016","Paperback","6.000 X 9.000","Edited by","Noah Berlatsky",null,null,null,null,"Z",null,"Grade 10 - 12","Grade 9 - 12","This anthology explores the issue of the United States' dependence on oil. Can the country attain energy independence? Does the dependence on foreign oil weaken the economy? Is dependence on foreign oil a security threat? Can the United States transition from oil if it must, or is the country too deeply invested? This book gives evidence to both sides of these questions. Features previously published content from sources such as Jordan Weissman, Anne Korin, Pew Charitable Trusts, and the National Corn Growers Association.","English",28.8,23.05,"338.2/​72820973","88 pp.","https://greenhavenpublishing.com/9780737773699",null,{"$f":"Table1[[#This Row],['# of Books]]*Table1[[#This Row],[QTY]]","v":0},{"$f":"Table1[[#This Row],[QTY]]*Table1[[#This Row],[School & Library Price]]","v":0}]
[null,null,11,null,null,"Current Issues","At Issue","Gender Politics","978-1-5345-0014-3",{"$f":"HYPERLINK(Table1[[#This Row],[eCommerce Hyperlink]],\"Book Weblink\")","v":"Book Weblink"},null,"Greenhaven Publishing","Library Bound Book",1,"2017","January 2017","Library","6.000 X 9.000","Edited by","Susan Henneberg",null,null,null,null,"Z",null,"Grade 10 - 12","Grade 9 - 12","It is somewhat astounding that a gender gap continues to exist today in the United States and worldwide. Girls and women face educational roadblocks, economic disparity, threats to their health and safety, and biased laws. How can such treatment of the world’s mothers, sisters, wives, and daughters be permitted? This enlightening anthology presents a range of diverse viewpoints about the gender divide between men and women. Readers will learn the effects that culture and gender constructs have on this gap, and why it is an issue that concerns both women and men.","English",40.4,32.32,"305.3--dc23","120 pp.","https://greenhavenpublishing.com/9781534500143",null,{"$f":"Table1[[#This Row],['# of Books]]*Table1[[#This Row],[QTY]]","v":0},{"$f":"Table1[[#This Row],[QTY]]*Table1[[#This Row],[School & Library Price]]","v":0}]
[null,null,11,null,null,"Current Issues","At Issue","Gender Politics","978-1-5345-0013-6",{"$f":"HYPERLINK(Table1[[#This Row],[eCommerce Hyperlink]],\"Book Weblink\")","v":"Book Weblink"},null,"Greenhaven Publishing","eBook",1,"2017","January 2017",null,null,"Edited by","Susan Henneberg",null,null,null,null,"Z",null,"Grade 10 - 12","Grade 9 - 12","It is somewhat astounding that a gender gap continues to exist today in the United States and worldwide. Girls and women face educational roadblocks, economic disparity, threats to their health and safety, and biased laws. How can such treatment of the world’s mothers, sisters, wives, and daughters be permitted? This enlightening anthology presents a range of diverse viewpoints about the gender divide between men and women. Readers will learn the effects that culture and gender constructs have on this gap, and why it is an issue that concerns both women and men.","English",40.4,32.32,"305.3--dc23","120 pp.","https://greenhavenpublishing.com/9781534500136",null,{"$f":"Table1[[#This Row],['# of Books]]*Table1[[#This Row],[QTY]]","v":0},{"$f":"Table1[[#This Row],[QTY]]*Table1[[#This Row],[School & Library Price]]","v":0}]
[null,null,11,null,null,"Current Issues","At Issue","Gender Politics","978-1-5345-0041-9",{"$f":"HYPERLINK(Table1[[#This Row],[eCommerce Hyperlink]],\"Book Weblink\")","v":"Book Weblink"},null,"Greenhaven Publishing","Paperback Book",1,"2017","January 2017","Paperback","6.000 X 9.000","Edited by","Susan Henneberg",null,null,null,null,"Z",null,"Grade 10 - 12","Grade 9 - 12","It is somewhat astounding that a gender gap continues to exist today in the United States and worldwide. Girls and women face educational roadblocks, economic disparity, threats to their health and safety, and biased laws. How can such treatment of the world’s mothers, sisters, wives, and daughters be permitted? This enlightening anthology presents a range of diverse viewpoints about the gender divide between men and women. Readers will learn the effects that culture and gender constructs have on this gap, and why it is an issue that concerns both women and men.","English",28.8,23.05,"305.3--dc23","120 pp.","https://greenhavenpublishing.com/9781534500419",null,{"$f":"Table1[[#This Row],['# of Books]]*Table1[[#This Row],[QTY]]","v":0},{"$f":"Table1[[#This Row],[QTY]]*Table1[[#This Row],[School & Library Price]]","v":0}]
[null,11,11,null,null,"Current Issues","At Issue","Genocide","978-1-5345-0727-2",{"$f":"HYPERLINK(Table1[[#This Row],[eCommerce Hyperlink]],\"Book Weblink\")","v":"Book Weblink"},null,"Greenhaven Publishing","Library Bound Book",1,"2021","January 2021","Library","6.000 X 9.000","Compiled by","Barbara Krasner ",null,null,null,null,"Z",null,"Grade 10 - 12","Grade 9 - 12","In 1948, the United Nations established the Genocide Convention to legally define genocide as actions intended to destroy a particular group of people based on race, religion, ethnicity, and other defining characteristics. The goal was to prevent and punish future acts of genocide, but a number of mass killings have followed since its establishment, and in some situations whether these executions qualify as genocides is surprisingly unclear. The viewpoints in this volume explore what genocide is and isn't, and provide historical and contemporary examples of genocide. Readers will examine potential political and social solutions to prevent future genocides.","English",40.4,32.32,"364.15/1--dc23","128 pp.","https://greenhavenpublishing.com/9781534507272",null,{"$f":"Table1[[#This Row],['# of Books]]*Table1[[#This Row],[QTY]]","v":0},{"$f":"Table1[[#This Row],[QTY]]*Table1[[#This Row],[School & Library Price]]","v":0}]
[null,11,11,null,null,"Current Issues","At Issue","Genocide","978-1-5345-0728-9",{"$f":"HYPERLINK(Table1[[#This Row],[eCommerce Hyperlink]],\"Book Weblink\")","v":"Book Weblink"},null,"Greenhaven Publishing","eBook",1,"2021","January 2021",null,null,"Compiled by","Barbara Krasner ",null,null,null,null,"Z",null,"Grade 10 - 12","Grade 9 - 12","In 1948, the United Nations established the Genocide Convention to legally define genocide as actions intended to destroy a particular group of people based on race, religion, ethnicity, and other defining characteristics. The goal was to prevent and punish future acts of genocide, but a number of mass killings have followed since its establishment, and in some situations whether these executions qualify as genocides is surprisingly unclear. The viewpoints in this volume explore what genocide is and isn't, and provide historical and contemporary examples of genocide. Readers will examine potential political and social solutions to prevent future genocides.","English",40.4,32.32,"364.15/1--dc23","128 pp.","https://greenhavenpublishing.com/9781534507289",null,{"$f":"Table1[[#This Row],['# of Books]]*Table1[[#This Row],[QTY]]","v":0},{"$f":"Table1[[#This Row],[QTY]]*Table1[[#This Row],[School & Library Price]]","v":0}]
[null,11,11,null,null,"Current Issues","At Issue","Genocide","978-1-5345-0726-5",{"$f":"HYPERLINK(Table1[[#This Row],[eCommerce Hyperlink]],\"Book Weblink\")","v":"Book Weblink"},null,"Greenhaven Publishing","Paperback Book",1,"2021","January 2021","Paperback","6.000 X 9.000","Compiled by","Barbara Krasner ",null,null,null,null,"Z",null,"Grade 10 - 12","Grade 9 - 12","In 1948, the United Nations established the Genocide Convention to legally define genocide as actions intended to destroy a particular group of people based on race, religion, ethnicity, and other defining characteristics. The goal was to prevent and punish future acts of genocide, but a number of mass killings have followed since its establishment, and in some situations whether these executions qualify as genocides is surprisingly unclear. The viewpoints in this volume explore what genocide is and isn't, and provide historical and contemporary examples of genocide. Readers will examine potential political and social solutions to prevent future genocides.","English",28.8,23.05,"364.15/1--dc23","128 pp.","https://greenhavenpublishing.com/9781534507265",null,{"$f":"Table1[[#This Row],['# of Books]]*Table1[[#This Row],[QTY]]","v":0},{"$f":"Table1[[#This Row],[QTY]]*Table1[[#This Row],[School & Library Price]]","v":0}]
[null,null,11,null,null,"Current Issues","At Issue","Gerrymandering and Voting Districts","978-1-5345-0325-0",{"$f":"HYPERLINK(Table1[[#This Row],[eCommerce Hyperlink]],\"Book Weblink\")","v":"Book Weblink"},null,"Greenhaven Publishing","Library Bound Book",1,"2019","August 2018","Library","6.000 X 9.000","Edited by","Rita Santos",null,null,null,null,"Z",null,"Grade 10 - 12","Grade 9 - 12","Gerrymandering, the manipulation of boundaries in order to benefit one group or political party, is not new, but thanks to technology it is more widespread. Questions about the constitutionality of gerrymandering have gone all the way to the U.S. Supreme Court. This provocative volume explores the practice of partisan redistricting, how it affects elections and policy, whether it is unconstitutional, and above all what must be done to ensure that control of the government rests in the hands of the people.","English",40.4,32.32,"328.73/073455--dc23","136 pp.","https://greenhavenpublishing.com/9781534503250",null,{"$f":"Table1[[#This Row],['# of Books]]*Table1[[#This Row],[QTY]]","v":0},{"$f":"Table1[[#This Row],[QTY]]*Table1[[#This Row],[School & Library Price]]","v":0}]
[null,null,11,null,null,"Current Issues","At Issue","Gerrymandering and Voting Districts","978-1-5345-0327-4",{"$f":"HYPERLINK(Table1[[#This Row],[eCommerce Hyperlink]],\"Book Weblink\")","v":"Book Weblink"},null,"Greenhaven Publishing","eBook",1,"2019","August 2018",null,null,"Edited by","Rita Santos",null,null,null,null,"Z",null,"Grade 10 - 12","Grade 9 - 12","Gerrymandering, the manipulation of boundaries in order to benefit one group or political party, is not new, but thanks to technology it is more widespread. Questions about the constitutionality of gerrymandering have gone all the way to the U.S. Supreme Court. This provocative volume explores the practice of partisan redistricting, how it affects elections and policy, whether it is unconstitutional, and above all what must be done to ensure that control of the government rests in the hands of the people.","English",40.4,32.32,"328.73/073455--dc23","136 pp.","https://greenhavenpublishing.com/9781534503274",null,{"$f":"Table1[[#This Row],['# of Books]]*Table1[[#This Row],[QTY]]","v":0},{"$f":"Table1[[#This Row],[QTY]]*Table1[[#This Row],[School & Library Price]]","v":0}]
[null,null,11,null,null,"Current Issues","At Issue","Gerrymandering and Voting Districts","978-1-5345-0326-7",{"$f":"HYPERLINK(Table1[[#This Row],[eCommerce Hyperlink]],\"Book Weblink\")","v":"Book Weblink"},null,"Greenhaven Publishing","Paperback Book",1,"2019","August 2018","Paperback","6.000 X 9.000","Edited by","Rita Santos",null,null,null,null,"Z",null,"Grade 10 - 12","Grade 9 - 12","Gerrymandering, the manipulation of boundaries in order to benefit one group or political party, is not new, but thanks to technology it is more widespread. Questions about the constitutionality of gerrymandering have gone all the way to the U.S. Supreme Court. This provocative volume explores the practice of partisan redistricting, how it affects elections and policy, whether it is unconstitutional, and above all what must be done to ensure that control of the government rests in the hands of the people.","English",28.8,23.05,"328.73/073455--dc23","136 pp.","https://greenhavenpublishing.com/9781534503267",null,{"$f":"Table1[[#This Row],['# of Books]]*Table1[[#This Row],[QTY]]","v":0},{"$f":"Table1[[#This Row],[QTY]]*Table1[[#This Row],[School & Library Price]]","v":0}]
[null,null,11,null,null,"Current Issues","At Issue","Guns: Conceal and Carry","978-1-5345-0062-4",{"$f":"HYPERLINK(Table1[[#This Row],[eCommerce Hyperlink]],\"Book Weblink\")","v":"Book Weblink"},null,"Greenhaven Publishing","Library Bound Book",1,"2018","August 2017","Library","6.000 X 9.000","Edited by","Anne C. Cunningham",null,null,null,null,"Z",null,"Grade 10 - 12","Grade 9 - 12","Nowhere is the gun control debate more heated than in the United States. Gun control advocates argue for tighter restrictions on purchasing and licensing in the hopes of reducing incidents of shootings. Gun owners fear that their guns will be taken away, eliminating their ability to protect their families. Carrying a concealed handgun is legal in every state, and polls shows that the majority of Americans support conceal and carry. The viewpoints in this volume attempt to answer tough questions, such as “Do concealed handguns deter or increase crime?” and “Do the protections stipulated in the Second Amendment cover today’s gun owners?”","English",40.4,32.32,"344.7305'33--dc23","200 pp.","https://greenhavenpublishing.com/9781534500624",null,{"$f":"Table1[[#This Row],['# of Books]]*Table1[[#This Row],[QTY]]","v":0},{"$f":"Table1[[#This Row],[QTY]]*Table1[[#This Row],[School & Library Price]]","v":0}]
[null,null,11,null,null,"Current Issues","At Issue","Guns: Conceal and Carry","978-1-5345-0073-0",{"$f":"HYPERLINK(Table1[[#This Row],[eCommerce Hyperlink]],\"Book Weblink\")","v":"Book Weblink"},null,"Greenhaven Publishing","eBook",1,"2018","August 2017",null,null,"Edited by","Anne C. Cunningham",null,null,null,null,"Z",null,"Grade 10 - 12","Grade 9 - 12","Nowhere is the gun control debate more heated than in the United States. Gun control advocates argue for tighter restrictions on purchasing and licensing in the hopes of reducing incidents of shootings. Gun owners fear that their guns will be taken away, eliminating their ability to protect their families. Carrying a concealed handgun is legal in every state, and polls shows that the majority of Americans support conceal and carry. The viewpoints in this volume attempt to answer tough questions, such as “Do concealed handguns deter or increase crime?” and “Do the protections stipulated in the Second Amendment cover today’s gun owners?”","English",40.4,32.32,"344.7305'33--dc23","200 pp.","https://greenhavenpublishing.com/9781534500730",null,{"$f":"Table1[[#This Row],['# of Books]]*Table1[[#This Row],[QTY]]","v":0},{"$f":"Table1[[#This Row],[QTY]]*Table1[[#This Row],[School & Library Price]]","v":0}]
[null,null,11,null,null,"Current Issues","At Issue","Guns: Conceal and Carry","978-1-5345-0060-0",{"$f":"HYPERLINK(Table1[[#This Row],[eCommerce Hyperlink]],\"Book Weblink\")","v":"Book Weblink"},null,"Greenhaven Publishing","Paperback Book",1,"2018","August 2017","Paperback","6.000 X 9.000","Edited by","Anne C. Cunningham",null,null,null,null,"Z",null,"Grade 10 - 12","Grade 9 - 12","Nowhere is the gun control debate more heated than in the United States. Gun control advocates argue for tighter restrictions on purchasing and licensing in the hopes of reducing incidents of shootings. Gun owners fear that their guns will be taken away, eliminating their ability to protect their families. Carrying a concealed handgun is legal in every state, and polls shows that the majority of Americans support conceal and carry. The viewpoints in this volume attempt to answer tough questions, such as “Do concealed handguns deter or increase crime?” and “Do the protections stipulated in the Second Amendment cover today’s gun owners?”","English",28.8,23.05,"344.7305'33--dc23","200 pp.","https://greenhavenpublishing.com/9781534500600",null,{"$f":"Table1[[#This Row],['# of Books]]*Table1[[#This Row],[QTY]]","v":0},{"$f":"Table1[[#This Row],[QTY]]*Table1[[#This Row],[School & Library Price]]","v":0}]
[null,null,11,null,null,"Current Issues","At Issue","How Valuable is a College Degree?","978-0-7377-7384-2",{"$f":"HYPERLINK(Table1[[#This Row],[eCommerce Hyperlink]],\"Book Weblink\")","v":"Book Weblink"},null,"Greenhaven Publishing","Library Bound Book",1,"2016","January 2016","Library","6.000 X 9.000","Edited by","Noël Merino",null,null,null,null,"Z",null,"Grade 10 - 12","Grade 9 - 12","This book explores issues related to the value of a college degree. It covers topics such as a college degree as an investment. It examines college degrees and if having one prepares people for today's jobs. It looks at college degrees and the U.S. economy, college education as a right, and alternatives to a college degree.","English",40.4,32.32,"331.11/​4450973","104 pp.","https://greenhavenpublishing.com/9780737773842",null,{"$f":"Table1[[#This Row],['# of Books]]*Table1[[#This Row],[QTY]]","v":0},{"$f":"Table1[[#This Row],[QTY]]*Table1[[#This Row],[School & Library Price]]","v":0}]
[null,null,11,null,null,"Current Issues","At Issue","How Valuable is a College Degree?","978-0-7377-7638-6",{"$f":"HYPERLINK(Table1[[#This Row],[eCommerce Hyperlink]],\"Book Weblink\")","v":"Book Weblink"},null,"Greenhaven Publishing","eBook",1,"2016","January 2016",null,null,"Edited by","Noël Merino",null,null,null,null,"Z",null,"Grade 10 - 12","Grade 9 - 12","This book explores issues related to the value of a college degree. It covers topics such as a college degree as an investment. It examines college degrees and if having one prepares people for today's jobs. It looks at college degrees and the U.S. economy, college education as a right, and alternatives to a college degree.","English",40.4,32.32,"331.11/​4450973","104 pp.","https://greenhavenpublishing.com/9780737776386",null,{"$f":"Table1[[#This Row],['# of Books]]*Table1[[#This Row],[QTY]]","v":0},{"$f":"Table1[[#This Row],[QTY]]*Table1[[#This Row],[School & Library Price]]","v":0}]
[null,null,11,null,null,"Current Issues","At Issue","How Valuable is a College Degree?","978-0-7377-7385-9",{"$f":"HYPERLINK(Table1[[#This Row],[eCommerce Hyperlink]],\"Book Weblink\")","v":"Book Weblink"},null,"Greenhaven Publishing","Paperback Book",1,"2016","January 2016","Paperback","6.000 X 9.000","Edited by","Noël Merino",null,null,null,null,"Z",null,"Grade 10 - 12","Grade 9 - 12","This book explores issues related to the value of a college degree. It covers topics such as a college degree as an investment. It examines college degrees and if having one prepares people for today's jobs. It looks at college degrees and the U.S. economy, college education as a right, and alternatives to a college degree.","English",28.8,23.05,"331.11/​4450973","104 pp.","https://greenhavenpublishing.com/9780737773859",null,{"$f":"Table1[[#This Row],['# of Books]]*Table1[[#This Row],[QTY]]","v":0},{"$f":"Table1[[#This Row],[QTY]]*Table1[[#This Row],[School & Library Price]]","v":0}]
[null,null,11,null,null,"Current Issues","At Issue","Immigration Reform","978-0-7377-7402-3",{"$f":"HYPERLINK(Table1[[#This Row],[eCommerce Hyperlink]],\"Book Weblink\")","v":"Book Weblink"},null,"Greenhaven Publishing","Library Bound Book",1,"2016","January 2016","Library","6.000 X 9.000","Edited by","Noël Merino",null,null,null,null,"Z",null,"Grade 10 - 12","Grade 9 - 12","Despite the United States' history as a melting pot, debate has increased of late regarding people crossing the borders illegally into the country. This volume explores all sides of this issue, including whether or not amnesty and a path to citizenship are viable aspects of immigration reform, and who should decide these issues.","English",40.4,32.32,"325.73","120 pp.","https://greenhavenpublishing.com/9780737774023",null,{"$f":"Table1[[#This Row],['# of Books]]*Table1[[#This Row],[QTY]]","v":0},{"$f":"Table1[[#This Row],[QTY]]*Table1[[#This Row],[School & Library Price]]","v":0}]
[null,null,11,null,null,"Current Issues","At Issue","Immigration Reform","978-0-7377-7640-9",{"$f":"HYPERLINK(Table1[[#This Row],[eCommerce Hyperlink]],\"Book Weblink\")","v":"Book Weblink"},null,"Greenhaven Publishing","eBook",1,"2016","January 2016",null,null,"Edited by","Noël Merino",null,null,null,null,"Z",null,"Grade 10 - 12","Grade 9 - 12","Despite the United States' history as a melting pot, debate has increased of late regarding people crossing the borders illegally into the country. This volume explores all sides of this issue, including whether or not amnesty and a path to citizenship are viable aspects of immigration reform, and who should decide these issues.","English",40.4,32.32,"325.73","120 pp.","https://greenhavenpublishing.com/9780737776409",null,{"$f":"Table1[[#This Row],['# of Books]]*Table1[[#This Row],[QTY]]","v":0},{"$f":"Table1[[#This Row],[QTY]]*Table1[[#This Row],[School & Library Price]]","v":0}]
[null,null,11,null,null,"Current Issues","At Issue","Immigration Reform","978-0-7377-7403-0",{"$f":"HYPERLINK(Table1[[#This Row],[eCommerce Hyperlink]],\"Book Weblink\")","v":"Book Weblink"},null,"Greenhaven Publishing","Paperback Book",1,"2016","January 2016","Paperback","6.000 X 9.000","Edited by","Noël Merino",null,null,null,null,"Z",null,"Grade 10 - 12","Grade 9 - 12","Despite the United States' history as a melting pot, debate has increased of late regarding people crossing the borders illegally into the country. This volume explores all sides of this issue, including whether or not amnesty and a path to citizenship are viable aspects of immigration reform, and who should decide these issues.","English",28.8,23.05,"325.73","120 pp.","https://greenhavenpublishing.com/9780737774030",null,{"$f":"Table1[[#This Row],['# of Books]]*Table1[[#This Row],[QTY]]","v":0},{"$f":"Table1[[#This Row],[QTY]]*Table1[[#This Row],[School & Library Price]]","v":0}]
[null,null,11,null,null,"Current Issues","At Issue","Invasive Species","978-0-7377-7386-6",{"$f":"HYPERLINK(Table1[[#This Row],[eCommerce Hyperlink]],\"Book Weblink\")","v":"Book Weblink"},null,"Greenhaven Publishing","Library Bound Book",1,"2016","January 2016","Library","6.000 X 9.000","Edited by","Noah Berlatsky",null,null,null,null,"Z",null,"Grade 10 - 12","Grade 9 - 12","Zebra mussels, purple loosestrife, and killer bees; invasive species are infiltrating our water, land, and skies, disrupting our delicate ecosystems. This book examines ways these invaders harm, or help, the environment, and what to do about them.","English",40.4,32.32,"344.04/​6","96 pp.","https://greenhavenpublishing.com/9780737773866",null,{"$f":"Table1[[#This Row],['# of Books]]*Table1[[#This Row],[QTY]]","v":0},{"$f":"Table1[[#This Row],[QTY]]*Table1[[#This Row],[School & Library Price]]","v":0}]
[null,null,11,null,null,"Current Issues","At Issue","Invasive Species","978-0-7377-7641-6",{"$f":"HYPERLINK(Table1[[#This Row],[eCommerce Hyperlink]],\"Book Weblink\")","v":"Book Weblink"},null,"Greenhaven Publishing","eBook",1,"2016","January 2016",null,null,"Edited by","Noah Berlatsky",null,null,null,null,"Z",null,"Grade 10 - 12","Grade 9 - 12","Zebra mussels, purple loosestrife, and killer bees; invasive species are infiltrating our water, land, and skies, disrupting our delicate ecosystems. This book examines ways these invaders harm, or help, the environment, and what to do about them.","English",40.4,32.32,"344.04/​6","96 pp.","https://greenhavenpublishing.com/9780737776416",null,{"$f":"Table1[[#This Row],['# of Books]]*Table1[[#This Row],[QTY]]","v":0},{"$f":"Table1[[#This Row],[QTY]]*Table1[[#This Row],[School & Library Price]]","v":0}]
[null,null,11,null,null,"Current Issues","At Issue","Invasive Species","978-0-7377-7387-3",{"$f":"HYPERLINK(Table1[[#This Row],[eCommerce Hyperlink]],\"Book Weblink\")","v":"Book Weblink"},null,"Greenhaven Publishing","Paperback Book",1,"2016","January 2016","Paperback","6.000 X 9.000","Edited by","Noah Berlatsky",null,null,null,null,"Z",null,"Grade 10 - 12","Grade 9 - 12","Zebra mussels, purple loosestrife, and killer bees; invasive species are infiltrating our water, land, and skies, disrupting our delicate ecosystems. This book examines ways these invaders harm, or help, the environment, and what to do about them.","English",28.8,23.05,"344.04/​6","96 pp.","https://greenhavenpublishing.com/9780737773873",null,{"$f":"Table1[[#This Row],['# of Books]]*Table1[[#This Row],[QTY]]","v":0},{"$f":"Table1[[#This Row],[QTY]]*Table1[[#This Row],[School & Library Price]]","v":0}]
[null,10,11,null,null,"Current Issues","At Issue","Is America a Democracy or an Oligarchy?","978-1-5345-0815-6",{"$f":"HYPERLINK(Table1[[#This Row],[eCommerce Hyperlink]],\"Book Weblink\")","v":"Book Weblink"},null,"Greenhaven Publishing","Library Bound Book",1,"2022","August 2021","Library","6.000 X 9.000","Compiled by","Eamon Doyle",null,null,null,null,"Z",null,"Grade 10 - 12","Grade 9 - 12","Since the inception of the United States, certain democratic principles have been inherent to the nation's political identity. Theoretically, this means that all citizens should receive equal representation and opportunity. However, income inequality has grown in recent years and shows no signs of slowing. Some argue that the wealthy are given unequal power over the government and society as a whole, creating an oligarchy. The viewpoints in this volume examine the development of the country from political, social, and economic perspectives to determine whether the country can still be considered a democracy.","English",40.4,32.32,"330.973--dc23","128 pp.","https://greenhavenpublishing.com/9781534508156",null,{"$f":"Table1[[#This Row],['# of Books]]*Table1[[#This Row],[QTY]]","v":0},{"$f":"Table1[[#This Row],[QTY]]*Table1[[#This Row],[School & Library Price]]","v":0}]
[null,10,11,null,null,"Current Issues","At Issue","Is America a Democracy or an Oligarchy?","978-1-5345-0825-5",{"$f":"HYPERLINK(Table1[[#This Row],[eCommerce Hyperlink]],\"Book Weblink\")","v":"Book Weblink"},null,"Greenhaven Publishing","eBook",1,"2022","August 2021",null,null,"Compiled by","Eamon Doyle",null,null,null,null,"Z",null,"Grade 10 - 12","Grade 9 - 12","Since the inception of the United States, certain democratic principles have been inherent to the nation's political identity. Theoretically, this means that all citizens should receive equal representation and opportunity. However, income inequality has grown in recent years and shows no signs of slowing. Some argue that the wealthy are given unequal power over the government and society as a whole, creating an oligarchy. The viewpoints in this volume examine the development of the country from political, social, and economic perspectives to determine whether the country can still be considered a democracy.","English",40.4,32.32,"330.973--dc23","128 pp.","https://greenhavenpublishing.com/9781534508255",null,{"$f":"Table1[[#This Row],['# of Books]]*Table1[[#This Row],[QTY]]","v":0},{"$f":"Table1[[#This Row],[QTY]]*Table1[[#This Row],[School & Library Price]]","v":0}]
[null,10,11,null,null,"Current Issues","At Issue","Is America a Democracy or an Oligarchy?","978-1-5345-0814-9",{"$f":"HYPERLINK(Table1[[#This Row],[eCommerce Hyperlink]],\"Book Weblink\")","v":"Book Weblink"},null,"Greenhaven Publishing","Paperback Book",1,"2022","August 2021","Paperback","6.000 X 9.000","Compiled by","Eamon Doyle",null,null,null,null,"Z",null,"Grade 10 - 12","Grade 9 - 12","Since the inception of the United States, certain democratic principles have been inherent to the nation's political identity. Theoretically, this means that all citizens should receive equal representation and opportunity. However, income inequality has grown in recent years and shows no signs of slowing. Some argue that the wealthy are given unequal power over the government and society as a whole, creating an oligarchy. The viewpoints in this volume examine the development of the country from political, social, and economic perspectives to determine whether the country can still be considered a democracy.","English",28.8,23.05,"330.973--dc23","128 pp.","https://greenhavenpublishing.com/9781534508149",null,{"$f":"Table1[[#This Row],['# of Books]]*Table1[[#This Row],[QTY]]","v":0},{"$f":"Table1[[#This Row],[QTY]]*Table1[[#This Row],[School & Library Price]]","v":0}]
[null,null,11,null,null,"Current Issues","At Issue","Male Privilege","978-1-5345-0521-6",{"$f":"HYPERLINK(Table1[[#This Row],[eCommerce Hyperlink]],\"Book Weblink\")","v":"Book Weblink"},null,"Greenhaven Publishing","Library Bound Book",1,"2020","August 2019","Library","6.000 X 9.000","Edited by","Anna Wenzel",null,null,null,null,"Z",null,"Grade 10 - 12","Grade 9 - 12","Male privilege refers to the sociological concept that men are automatically granted certain privileges and advantages in politics, society, and the workplace based entirely on their gender. Feminists and others concerned with perceived gender inequality hope to challenge the preconceived values and notions that enable male privilege and the inherently patriarchal nature of society. The viewpoints in this volume address the definition and history of male privilege, offer differing perspectives on whether it exists and how it may influence society, and propose solutions to help reduce gender inequality.","English",40.4,32.32,"305.31--dc23","128 pp.","https://greenhavenpublishing.com/9781534505216",null,{"$f":"Table1[[#This Row],['# of Books]]*Table1[[#This Row],[QTY]]","v":0},{"$f":"Table1[[#This Row],[QTY]]*Table1[[#This Row],[School & Library Price]]","v":0}]
[null,null,11,null,null,"Current Issues","At Issue","Male Privilege","978-1-5345-0523-0",{"$f":"HYPERLINK(Table1[[#This Row],[eCommerce Hyperlink]],\"Book Weblink\")","v":"Book Weblink"},null,"Greenhaven Publishing","eBook",1,"2020","August 2019",null,null,"Edited by","Anna Wenzel",null,null,null,null,"Z",null,"Grade 10 - 12","Grade 9 - 12","Male privilege refers to the sociological concept that men are automatically granted certain privileges and advantages in politics, society, and the workplace based entirely on their gender. Feminists and others concerned with perceived gender inequality hope to challenge the preconceived values and notions that enable male privilege and the inherently patriarchal nature of society. The viewpoints in this volume address the definition and history of male privilege, offer differing perspectives on whether it exists and how it may influence society, and propose solutions to help reduce gender inequality.","English",40.4,32.32,"305.31--dc23","128 pp.","https://greenhavenpublishing.com/9781534505230",null,{"$f":"Table1[[#This Row],['# of Books]]*Table1[[#This Row],[QTY]]","v":0},{"$f":"Table1[[#This Row],[QTY]]*Table1[[#This Row],[School & Library Price]]","v":0}]
[null,null,11,null,null,"Current Issues","At Issue","Male Privilege","978-1-5345-0522-3",{"$f":"HYPERLINK(Table1[[#This Row],[eCommerce Hyperlink]],\"Book Weblink\")","v":"Book Weblink"},null,"Greenhaven Publishing","Paperback Book",1,"2020","August 2019","Paperback","6.000 X 9.000","Edited by","Anna Wenzel",null,null,null,null,"Z",null,"Grade 10 - 12","Grade 9 - 12","Male privilege refers to the sociological concept that men are automatically granted certain privileges and advantages in politics, society, and the workplace based entirely on their gender. Feminists and others concerned with perceived gender inequality hope to challenge the preconceived values and notions that enable male privilege and the inherently patriarchal nature of society. The viewpoints in this volume address the definition and history of male privilege, offer differing perspectives on whether it exists and how it may influence society, and propose solutions to help reduce gender inequality.","English",28.8,23.05,"305.31--dc23","128 pp.","https://greenhavenpublishing.com/9781534505223",null,{"$f":"Table1[[#This Row],['# of Books]]*Table1[[#This Row],[QTY]]","v":0},{"$f":"Table1[[#This Row],[QTY]]*Table1[[#This Row],[School & Library Price]]","v":0}]
[null,null,11,null,null,"Current Issues","At Issue","Media Bias and the Role of the Press","978-1-5345-0328-1",{"$f":"HYPERLINK(Table1[[#This Row],[eCommerce Hyperlink]],\"Book Weblink\")","v":"Book Weblink"},null,"Greenhaven Publishing","Library Bound Book",1,"2019","August 2018","Library","6.000 X 9.000","Edited by","Eamon Doyle",null,null,null,null,"Z",null,"Grade 10 - 12","Grade 9 - 12","In a democratic society, the role of the press is usually characterized by neutrality and the necessity of an informed electorate. The journalist's ethic is to present facts with minimal interpretation. Over the decades, however, this strict code has evolved and opened up, and thanks to the internet, an alternative media has risen. This has led to accusations of media bias and condemnation of certain media outlets by powerful elected leaders. The viewpoints in this volume explore the obligations of the media, the rise of satirical news outlets, and how to interpret news in a post-fact era.","English",40.4,32.32,"302.230973--dc23","128 pp.","https://greenhavenpublishing.com/9781534503281",null,{"$f":"Table1[[#This Row],['# of Books]]*Table1[[#This Row],[QTY]]","v":0},{"$f":"Table1[[#This Row],[QTY]]*Table1[[#This Row],[School & Library Price]]","v":0}]
[null,null,11,null,null,"Current Issues","At Issue","Media Bias and the Role of the Press","978-1-5345-0330-4",{"$f":"HYPERLINK(Table1[[#This Row],[eCommerce Hyperlink]],\"Book Weblink\")","v":"Book Weblink"},null,"Greenhaven Publishing","eBook",1,"2019","August 2018",null,null,"Edited by","Eamon Doyle",null,null,null,null,"Z",null,"Grade 10 - 12","Grade 9 - 12","In a democratic society, the role of the press is usually characterized by neutrality and the necessity of an informed electorate. The journalist's ethic is to present facts with minimal interpretation. Over the decades, however, this strict code has evolved and opened up, and thanks to the internet, an alternative media has risen. This has led to accusations of media bias and condemnation of certain media outlets by powerful elected leaders. The viewpoints in this volume explore the obligations of the media, the rise of satirical news outlets, and how to interpret news in a post-fact era.","English",40.4,32.32,"302.230973--dc23","128 pp.","https://greenhavenpublishing.com/9781534503304",null,{"$f":"Table1[[#This Row],['# of Books]]*Table1[[#This Row],[QTY]]","v":0},{"$f":"Table1[[#This Row],[QTY]]*Table1[[#This Row],[School & Library Price]]","v":0}]
[null,null,11,null,null,"Current Issues","At Issue","Media Bias and the Role of the Press","978-1-5345-0329-8",{"$f":"HYPERLINK(Table1[[#This Row],[eCommerce Hyperlink]],\"Book Weblink\")","v":"Book Weblink"},null,"Greenhaven Publishing","Paperback Book",1,"2019","August 2018","Paperback","6.000 X 9.000","Edited by","Eamon Doyle",null,null,null,null,"Z",null,"Grade 10 - 12","Grade 9 - 12","In a democratic society, the role of the press is usually characterized by neutrality and the necessity of an informed electorate. The journalist's ethic is to present facts with minimal interpretation. Over the decades, however, this strict code has evolved and opened up, and thanks to the internet, an alternative media has risen. This has led to accusations of media bias and condemnation of certain media outlets by powerful elected leaders. The viewpoints in this volume explore the obligations of the media, the rise of satirical news outlets, and how to interpret news in a post-fact era.","English",28.8,23.05,"302.230973--dc23","128 pp.","https://greenhavenpublishing.com/9781534503298",null,{"$f":"Table1[[#This Row],['# of Books]]*Table1[[#This Row],[QTY]]","v":0},{"$f":"Table1[[#This Row],[QTY]]*Table1[[#This Row],[School & Library Price]]","v":0}]
[null,11,11,null,null,"Current Issues","At Issue","Mob Rule or the Wisdom of the Crowd?","978-1-5345-0638-1",{"$f":"HYPERLINK(Table1[[#This Row],[eCommerce Hyperlink]],\"Book Weblink\")","v":"Book Weblink"},null,"Greenhaven Publishing","Library Bound Book",1,"2020","January 2020","Library","6.000 X 9.000","Edited by","Lita Sorensen",null,null,null,null,"Z",null,"Grade 10 - 12","Grade 9 - 12","One of the tenets of democracy is that everyone has a voice in decision making and that the decisions made are what the majority wants. Many argue that wisdom of the crowd prevails in democracies, but are political decisions actually reached by a clear consensus, or does angry factionalism prevent this? Does irrational mob rule cause people to gang together and lash out against the opposition? Are the majority of citizens satisfied with the political situation? This volume explores whether political organization is possible without the force of mob rule, as well as how contemporary political events fit into this debate.","English",40.4,32.32,"658.4/036--dc23","128 pp.","https://greenhavenpublishing.com/9781534506381",null,{"$f":"Table1[[#This Row],['# of Books]]*Table1[[#This Row],[QTY]]","v":0},{"$f":"Table1[[#This Row],[QTY]]*Table1[[#This Row],[School & Library Price]]","v":0}]
[null,11,11,null,null,"Current Issues","At Issue","Mob Rule or the Wisdom of the Crowd?","978-1-5345-0639-8",{"$f":"HYPERLINK(Table1[[#This Row],[eCommerce Hyperlink]],\"Book Weblink\")","v":"Book Weblink"},null,"Greenhaven Publishing","eBook",1,"2020","January 2020",null,null,"Edited by","Lita Sorensen",null,null,null,null,"Z",null,"Grade 10 - 12","Grade 9 - 12","One of the tenets of democracy is that everyone has a voice in decision making and that the decisions made are what the majority wants. Many argue that wisdom of the crowd prevails in democracies, but are political decisions actually reached by a clear consensus, or does angry factionalism prevent this? Does irrational mob rule cause people to gang together and lash out against the opposition? Are the majority of citizens satisfied with the political situation? This volume explores whether political organization is possible without the force of mob rule, as well as how contemporary political events fit into this debate.","English",40.4,32.32,"658.4/036--dc23","128 pp.","https://greenhavenpublishing.com/9781534506398",null,{"$f":"Table1[[#This Row],['# of Books]]*Table1[[#This Row],[QTY]]","v":0},{"$f":"Table1[[#This Row],[QTY]]*Table1[[#This Row],[School & Library Price]]","v":0}]
[null,11,11,null,null,"Current Issues","At Issue","Mob Rule or the Wisdom of the Crowd?","978-1-5345-0637-4",{"$f":"HYPERLINK(Table1[[#This Row],[eCommerce Hyperlink]],\"Book Weblink\")","v":"Book Weblink"},null,"Greenhaven Publishing","Paperback Book",1,"2020","January 2020","Paperback","6.000 X 9.000","Edited by","Lita Sorensen",null,null,null,null,"Z",null,"Grade 10 - 12","Grade 9 - 12","One of the tenets of democracy is that everyone has a voice in decision making and that the decisions made are what the majority wants. Many argue that wisdom of the crowd prevails in democracies, but are political decisions actually reached by a clear consensus, or does angry factionalism prevent this? Does irrational mob rule cause people to gang together and lash out against the opposition? Are the majority of citizens satisfied with the political situation? This volume explores whether political organization is possible without the force of mob rule, as well as how contemporary political events fit into this debate.","English",28.8,23.05,"658.4/036--dc23","128 pp.","https://greenhavenpublishing.com/9781534506374",null,{"$f":"Table1[[#This Row],['# of Books]]*Table1[[#This Row],[QTY]]","v":0},{"$f":"Table1[[#This Row],[QTY]]*Table1[[#This Row],[School & Library Price]]","v":0}]
[null,11,11,null,null,"Current Issues","At Issue","Money Laundering","978-1-5345-0733-3",{"$f":"HYPERLINK(Table1[[#This Row],[eCommerce Hyperlink]],\"Book Weblink\")","v":"Book Weblink"},null,"Greenhaven Publishing","Library Bound Book",1,"2021","January 2021","Library","6.000 X 9.000","Compiled by","Lisa Idzikowski",null,null,null,null,"Z",null,"Grade 10 - 12","Grade 9 - 12","When one thinks of money laundering, the first thing that might come to mind is its connection to organized crime, with gangs and drug cartels hiding away large amounts of illegally obtained cash. However, many other groups and individuals also partake in money laundering, including white-collar criminals, terrorists, and even politicians. The viewpoints in this book examine what money laundering is and how it occurs, what domestic and international efforts are in place to fight it, and how technology both aids and complicates these efforts.","English",40.4,32.32,"364.16/8--dc23","128 pp.","https://greenhavenpublishing.com/9781534507333",null,{"$f":"Table1[[#This Row],['# of Books]]*Table1[[#This Row],[QTY]]","v":0},{"$f":"Table1[[#This Row],[QTY]]*Table1[[#This Row],[School & Library Price]]","v":0}]
[null,11,11,null,null,"Current Issues","At Issue","Money Laundering","978-1-5345-0734-0",{"$f":"HYPERLINK(Table1[[#This Row],[eCommerce Hyperlink]],\"Book Weblink\")","v":"Book Weblink"},null,"Greenhaven Publishing","eBook",1,"2021","January 2021",null,null,"Compiled by","Lisa Idzikowski",null,null,null,null,"Z",null,"Grade 10 - 12","Grade 9 - 12","When one thinks of money laundering, the first thing that might come to mind is its connection to organized crime, with gangs and drug cartels hiding away large amounts of illegally obtained cash. However, many other groups and individuals also partake in money laundering, including white-collar criminals, terrorists, and even politicians. The viewpoints in this book examine what money laundering is and how it occurs, what domestic and international efforts are in place to fight it, and how technology both aids and complicates these efforts.","English",40.4,32.32,"364.16/8--dc23","128 pp.","https://greenhavenpublishing.com/9781534507340",null,{"$f":"Table1[[#This Row],['# of Books]]*Table1[[#This Row],[QTY]]","v":0},{"$f":"Table1[[#This Row],[QTY]]*Table1[[#This Row],[School & Library Price]]","v":0}]
[null,11,11,null,null,"Current Issues","At Issue","Money Laundering","978-1-5345-0732-6",{"$f":"HYPERLINK(Table1[[#This Row],[eCommerce Hyperlink]],\"Book Weblink\")","v":"Book Weblink"},null,"Greenhaven Publishing","Paperback Book",1,"2021","January 2021","Paperback","6.000 X 9.000","Compiled by","Lisa Idzikowski",null,null,null,null,"Z",null,"Grade 10 - 12","Grade 9 - 12","When one thinks of money laundering, the first thing that might come to mind is its connection to organized crime, with gangs and drug cartels hiding away large amounts of illegally obtained cash. However, many other groups and individuals also partake in money laundering, including white-collar criminals, terrorists, and even politicians. The viewpoints in this book examine what money laundering is and how it occurs, what domestic and international efforts are in place to fight it, and how technology both aids and complicates these efforts.","English",28.8,23.05,"364.16/8--dc23","128 pp.","https://greenhavenpublishing.com/9781534507326",null,{"$f":"Table1[[#This Row],['# of Books]]*Table1[[#This Row],[QTY]]","v":0},{"$f":"Table1[[#This Row],[QTY]]*Table1[[#This Row],[School & Library Price]]","v":0}]
[null,11,11,null,null,"Current Issues","At Issue","Nuclear Anxiety","978-1-5345-0742-5",{"$f":"HYPERLINK(Table1[[#This Row],[eCommerce Hyperlink]],\"Book Weblink\")","v":"Book Weblink"},null,"Greenhaven Publishing","Library Bound Book",1,"2021","January 2021","Library","6.000 X 9.000","Compiled by","Haq Kamar",null,null,null,null,"Z",null,"Grade 10 - 12","Grade 9 - 12","For many, nuclear anxiety is closely related to the Cold War between the U.S. and U.S.S.R. Following the atomic bombings of Hiroshima and Nagasaki in World War II, the devastating potential of these weapons was all too clear, which led to significant anxiety among civilians, politicians, and military personnel over their use. Though the Cold War ended in 1991, anxieties surrounding nuclear armament remain, and the players involved in these nuclear standoffs have changed over recent decades. Your readers will explore the history and present status of nuclear weaponry, along with its social, political, and health impacts.","English",40.4,32.32,"152.4/6--dc23","128 pp.","https://greenhavenpublishing.com/9781534507425",null,{"$f":"Table1[[#This Row],['# of Books]]*Table1[[#This Row],[QTY]]","v":0},{"$f":"Table1[[#This Row],[QTY]]*Table1[[#This Row],[School & Library Price]]","v":0}]
[null,11,11,null,null,"Current Issues","At Issue","Nuclear Anxiety","978-1-5345-0743-2",{"$f":"HYPERLINK(Table1[[#This Row],[eCommerce Hyperlink]],\"Book Weblink\")","v":"Book Weblink"},null,"Greenhaven Publishing","eBook",1,"2021","January 2021",null,null,"Compiled by","Haq Kamar",null,null,null,null,"Z",null,"Grade 10 - 12","Grade 9 - 12","For many, nuclear anxiety is closely related to the Cold War between the U.S. and U.S.S.R. Following the atomic bombings of Hiroshima and Nagasaki in World War II, the devastating potential of these weapons was all too clear, which led to significant anxiety among civilians, politicians, and military personnel over their use. Though the Cold War ended in 1991, anxieties surrounding nuclear armament remain, and the players involved in these nuclear standoffs have changed over recent decades. Your readers will explore the history and present status of nuclear weaponry, along with its social, political, and health impacts.","English",40.4,32.32,"152.4/6--dc23","128 pp.","https://greenhavenpublishing.com/9781534507432",null,{"$f":"Table1[[#This Row],['# of Books]]*Table1[[#This Row],[QTY]]","v":0},{"$f":"Table1[[#This Row],[QTY]]*Table1[[#This Row],[School & Library Price]]","v":0}]
[null,11,11,null,null,"Current Issues","At Issue","Nuclear Anxiety","978-1-5345-0741-8",{"$f":"HYPERLINK(Table1[[#This Row],[eCommerce Hyperlink]],\"Book Weblink\")","v":"Book Weblink"},null,"Greenhaven Publishing","Paperback Book",1,"2021","January 2021","Paperback","6.000 X 9.000","Compiled by","Haq Kamar",null,null,null,null,"Z",null,"Grade 10 - 12","Grade 9 - 12","For many, nuclear anxiety is closely related to the Cold War between the U.S. and U.S.S.R. Following the atomic bombings of Hiroshima and Nagasaki in World War II, the devastating potential of these weapons was all too clear, which led to significant anxiety among civilians, politicians, and military personnel over their use. Though the Cold War ended in 1991, anxieties surrounding nuclear armament remain, and the players involved in these nuclear standoffs have changed over recent decades. Your readers will explore the history and present status of nuclear weaponry, along with its social, political, and health impacts.","English",28.8,23.05,"152.4/6--dc23","128 pp.","https://greenhavenpublishing.com/9781534507418",null,{"$f":"Table1[[#This Row],['# of Books]]*Table1[[#This Row],[QTY]]","v":0},{"$f":"Table1[[#This Row],[QTY]]*Table1[[#This Row],[School & Library Price]]","v":0}]
[null,11,11,null,null,"Current Issues","At Issue","Open Borders","978-1-5345-0739-5",{"$f":"HYPERLINK(Table1[[#This Row],[eCommerce Hyperlink]],\"Book Weblink\")","v":"Book Weblink"},null,"Greenhaven Publishing","Library Bound Book",1,"2021","January 2021","Library","6.000 X 9.000","Compiled by","Andrew Karpan",null,null,null,null,"Z",null,"Grade 10 - 12","Grade 9 - 12","The term \"open borders\" refers to a policy of allowing free movement between countries without restrictions or border control. In an era characterized by the Brexit referendum and the Trump administration's policy of restricting immigration in the U.S., the prospect of borders being open may seem improbable. A number of politicians, policymakers, economists, and citizens assert that referendums and restrictions are the best way to address the economic and social issues that the international community faces today. This volume helps readers examine the issue of open borders from a variety of angles, examining its economic, social, political, moral, and legal aspects.","English",40.4,32.32,"304.8--dc23","128 pp.","https://greenhavenpublishing.com/9781534507395",null,{"$f":"Table1[[#This Row],['# of Books]]*Table1[[#This Row],[QTY]]","v":0},{"$f":"Table1[[#This Row],[QTY]]*Table1[[#This Row],[School & Library Price]]","v":0}]
[null,11,11,null,null,"Current Issues","At Issue","Open Borders","978-1-5345-0740-1",{"$f":"HYPERLINK(Table1[[#This Row],[eCommerce Hyperlink]],\"Book Weblink\")","v":"Book Weblink"},null,"Greenhaven Publishing","eBook",1,"2021","January 2021",null,null,"Compiled by","Andrew Karpan",null,null,null,null,"Z",null,"Grade 10 - 12","Grade 9 - 12","The term \"open borders\" refers to a policy of allowing free movement between countries without restrictions or border control. In an era characterized by the Brexit referendum and the Trump administration's policy of restricting immigration in the U.S., the prospect of borders being open may seem improbable. A number of politicians, policymakers, economists, and citizens assert that referendums and restrictions are the best way to address the economic and social issues that the international community faces today. This volume helps readers examine the issue of open borders from a variety of angles, examining its economic, social, political, moral, and legal aspects.","English",40.4,32.32,"304.8--dc23","128 pp.","https://greenhavenpublishing.com/9781534507401",null,{"$f":"Table1[[#This Row],['# of Books]]*Table1[[#This Row],[QTY]]","v":0},{"$f":"Table1[[#This Row],[QTY]]*Table1[[#This Row],[School & Library Price]]","v":0}]
[null,11,11,null,null,"Current Issues","At Issue","Open Borders","978-1-5345-0738-8",{"$f":"HYPERLINK(Table1[[#This Row],[eCommerce Hyperlink]],\"Book Weblink\")","v":"Book Weblink"},null,"Greenhaven Publishing","Paperback Book",1,"2021","January 2021","Paperback","6.000 X 9.000","Compiled by","Andrew Karpan",null,null,null,null,"Z",null,"Grade 10 - 12","Grade 9 - 12","The term \"open borders\" refers to a policy of allowing free movement between countries without restrictions or border control. In an era characterized by the Brexit referendum and the Trump administration's policy of restricting immigration in the U.S., the prospect of borders being open may seem improbable. A number of politicians, policymakers, economists, and citizens assert that referendums and restrictions are the best way to address the economic and social issues that the international community faces today. This volume helps readers examine the issue of open borders from a variety of angles, examining its economic, social, political, moral, and legal aspects.","English",28.8,23.05,"304.8--dc23","128 pp.","https://greenhavenpublishing.com/9781534507388",null,{"$f":"Table1[[#This Row],['# of Books]]*Table1[[#This Row],[QTY]]","v":0},{"$f":"Table1[[#This Row],[QTY]]*Table1[[#This Row],[School & Library Price]]","v":0}]
[null,10,11,null,null,"Current Issues","At Issue","Partisanship","978-1-5345-0817-0",{"$f":"HYPERLINK(Table1[[#This Row],[eCommerce Hyperlink]],\"Book Weblink\")","v":"Book Weblink"},null,"Greenhaven Publishing","Library Bound Book",1,"2022","August 2021","Library","6.000 X 9.000","Compiled by","Carla Mooney",null,null,null,null,"Z",null,"Grade 10 - 12","Grade 9 - 12","The two-party system has long characterized American politics, but partisanship as it is understood today is a relatively recent phenomenon. Today, partisanship is not simply based on one's voting record but a totalizing sense of identification with one party over the other. Consequently, the American political climate is more polarized than ever before. Though this fact is often reported with alarm, it may be too soon to determine whether partisanship actually damages democracy. This volume examines what partisanship means today, how this differs from historical partisanship, its contributing factors, and the effect it has on the country.","English",40.4,32.32,"306.20973--dc23","128 pp.","https://greenhavenpublishing.com/9781534508170",null,{"$f":"Table1[[#This Row],['# of Books]]*Table1[[#This Row],[QTY]]","v":0},{"$f":"Table1[[#This Row],[QTY]]*Table1[[#This Row],[School & Library Price]]","v":0}]
[null,10,11,null,null,"Current Issues","At Issue","Partisanship","978-1-5345-0818-7",{"$f":"HYPERLINK(Table1[[#This Row],[eCommerce Hyperlink]],\"Book Weblink\")","v":"Book Weblink"},null,"Greenhaven Publishing","eBook",1,"2022","August 2021",null,null,"Compiled by","Carla Mooney",null,null,null,null,"Z",null,"Grade 10 - 12","Grade 9 - 12","The two-party system has long characterized American politics, but partisanship as it is understood today is a relatively recent phenomenon. Today, partisanship is not simply based on one's voting record but a totalizing sense of identification with one party over the other. Consequently, the American political climate is more polarized than ever before. Though this fact is often reported with alarm, it may be too soon to determine whether partisanship actually damages democracy. This volume examines what partisanship means today, how this differs from historical partisanship, its contributing factors, and the effect it has on the country.","English",40.4,32.32,"306.20973--dc23","128 pp.","https://greenhavenpublishing.com/9781534508187",null,{"$f":"Table1[[#This Row],['# of Books]]*Table1[[#This Row],[QTY]]","v":0},{"$f":"Table1[[#This Row],[QTY]]*Table1[[#This Row],[School & Library Price]]","v":0}]
[null,10,11,null,null,"Current Issues","At Issue","Partisanship","978-1-5345-0816-3",{"$f":"HYPERLINK(Table1[[#This Row],[eCommerce Hyperlink]],\"Book Weblink\")","v":"Book Weblink"},null,"Greenhaven Publishing","Paperback Book",1,"2022","August 2021","Paperback","6.000 X 9.000","Compiled by","Carla Mooney",null,null,null,null,"Z",null,"Grade 10 - 12","Grade 9 - 12","The two-party system has long characterized American politics, but partisanship as it is understood today is a relatively recent phenomenon. Today, partisanship is not simply based on one's voting record but a totalizing sense of identification with one party over the other. Consequently, the American political climate is more polarized than ever before. Though this fact is often reported with alarm, it may be too soon to determine whether partisanship actually damages democracy. This volume examines what partisanship means today, how this differs from historical partisanship, its contributing factors, and the effect it has on the country.","English",28.8,23.05,"306.20973--dc23","128 pp.","https://greenhavenpublishing.com/9781534508163",null,{"$f":"Table1[[#This Row],['# of Books]]*Table1[[#This Row],[QTY]]","v":0},{"$f":"Table1[[#This Row],[QTY]]*Table1[[#This Row],[School & Library Price]]","v":0}]
[null,null,11,null,null,"Current Issues","At Issue","Pipelines and Politics","978-1-5345-0203-1",{"$f":"HYPERLINK(Table1[[#This Row],[eCommerce Hyperlink]],\"Book Weblink\")","v":"Book Weblink"},null,"Greenhaven Publishing","Library Bound Book",1,"2018","January 2018","Library","6.000 X 9.000","Edited by","Lisa Idzikowski",null,null,null,null,"Z",null,"Grade 10 - 12","Grade 9 - 12","Fossil fuels are a valuable commodity at the forefront of national and international politics. Pipelines can create jobs and economic growth, not to mention delivering a commodity to people who need it. What happens when there is conflict about the land through which a pipeline travels? Such conflicts can lead to protests, stoppages, and even war. Readers of this comprehensive volume, which explores the topic from a multitude of angles, will learn how a simple pipeline can have enormous geopolitical ramifications.","English",40.4,32.32,"388.50973--dc23","152 pp.","https://greenhavenpublishing.com/9781534502031",null,{"$f":"Table1[[#This Row],['# of Books]]*Table1[[#This Row],[QTY]]","v":0},{"$f":"Table1[[#This Row],[QTY]]*Table1[[#This Row],[School & Library Price]]","v":0}]
[null,null,11,null,null,"Current Issues","At Issue","Pipelines and Politics","978-1-5345-0198-0",{"$f":"HYPERLINK(Table1[[#This Row],[eCommerce Hyperlink]],\"Book Weblink\")","v":"Book Weblink"},null,"Greenhaven Publishing","eBook",1,"2018","January 2018",null,null,"Edited by","Lisa Idzikowski",null,null,null,null,"Z",null,"Grade 10 - 12","Grade 9 - 12","Fossil fuels are a valuable commodity at the forefront of national and international politics. Pipelines can create jobs and economic growth, not to mention delivering a commodity to people who need it. What happens when there is conflict about the land through which a pipeline travels? Such conflicts can lead to protests, stoppages, and even war. Readers of this comprehensive volume, which explores the topic from a multitude of angles, will learn how a simple pipeline can have enormous geopolitical ramifications.","English",40.4,32.32,"388.50973--dc23","152 pp.","https://greenhavenpublishing.com/9781534501980",null,{"$f":"Table1[[#This Row],['# of Books]]*Table1[[#This Row],[QTY]]","v":0},{"$f":"Table1[[#This Row],[QTY]]*Table1[[#This Row],[School & Library Price]]","v":0}]
[null,null,11,null,null,"Current Issues","At Issue","Pipelines and Politics","978-1-5345-0212-3",{"$f":"HYPERLINK(Table1[[#This Row],[eCommerce Hyperlink]],\"Book Weblink\")","v":"Book Weblink"},null,"Greenhaven Publishing","Paperback Book",1,"2018","January 2018","Paperback","6.000 X 9.000","Edited by","Lisa Idzikowski",null,null,null,null,"Z",null,"Grade 10 - 12","Grade 9 - 12","Fossil fuels are a valuable commodity at the forefront of national and international politics. Pipelines can create jobs and economic growth, not to mention delivering a commodity to people who need it. What happens when there is conflict about the land through which a pipeline travels? Such conflicts can lead to protests, stoppages, and even war. Readers of this comprehensive volume, which explores the topic from a multitude of angles, will learn how a simple pipeline can have enormous geopolitical ramifications.","English",28.8,23.05,"388.50973--dc23","152 pp.","https://greenhavenpublishing.com/9781534502123",null,{"$f":"Table1[[#This Row],['# of Books]]*Table1[[#This Row],[QTY]]","v":0},{"$f":"Table1[[#This Row],[QTY]]*Table1[[#This Row],[School & Library Price]]","v":0}]
[null,null,11,null,null,"Current Issues","At Issue","The Death Penalty","978-1-5345-0208-6",{"$f":"HYPERLINK(Table1[[#This Row],[eCommerce Hyperlink]],\"Book Weblink\")","v":"Book Weblink"},null,"Greenhaven Publishing","Library Bound Book",1,"2018","January 2018","Library","6.000 X 9.000","Edited by","Megan Manzano",null,null,null,null,"Z","1350L","Grade 10 - 12","Grade 9 - 12","Is capital punishment morally justified? Although the issue generates strong opinions, there are no easy answers when it comes to taking the life of a human being. Supporters of the death penalty believe it deters law-breaking and is the only punishment strong enough for horrific crimes such as child murder and genocide. Opponents argue that it violates human rights and point to its finality in the face of judicial system error and unfairness. This resource presents a fascinating progression of current viewpoints that reflect the many facets of the death penalty debate.","English",40.4,32.32,"364.660973--dc23","120 pp.","https://greenhavenpublishing.com/9781534502086",null,{"$f":"Table1[[#This Row],['# of Books]]*Table1[[#This Row],[QTY]]","v":0},{"$f":"Table1[[#This Row],[QTY]]*Table1[[#This Row],[School & Library Price]]","v":0}]
[null,null,11,null,null,"Current Issues","At Issue","The Death Penalty","978-1-5345-0199-7",{"$f":"HYPERLINK(Table1[[#This Row],[eCommerce Hyperlink]],\"Book Weblink\")","v":"Book Weblink"},null,"Greenhaven Publishing","eBook",1,"2018","January 2018",null,null,"Edited by","Megan Manzano",null,null,null,null,"Z","1350L","Grade 10 - 12","Grade 9 - 12","Is capital punishment morally justified? Although the issue generates strong opinions, there are no easy answers when it comes to taking the life of a human being. Supporters of the death penalty believe it deters law-breaking and is the only punishment strong enough for horrific crimes such as child murder and genocide. Opponents argue that it violates human rights and point to its finality in the face of judicial system error and unfairness. This resource presents a fascinating progression of current viewpoints that reflect the many facets of the death penalty debate.","English",40.4,32.32,"364.660973--dc23","120 pp.","https://greenhavenpublishing.com/9781534501997",null,{"$f":"Table1[[#This Row],['# of Books]]*Table1[[#This Row],[QTY]]","v":0},{"$f":"Table1[[#This Row],[QTY]]*Table1[[#This Row],[School & Library Price]]","v":0}]
[null,null,11,null,null,"Current Issues","At Issue","The Death Penalty","978-1-5345-0213-0",{"$f":"HYPERLINK(Table1[[#This Row],[eCommerce Hyperlink]],\"Book Weblink\")","v":"Book Weblink"},null,"Greenhaven Publishing","Paperback Book",1,"2018","January 2018","Paperback","6.000 X 9.000","Edited by","Megan Manzano",null,null,null,null,"Z","1350L","Grade 10 - 12","Grade 9 - 12","Is capital punishment morally justified? Although the issue generates strong opinions, there are no easy answers when it comes to taking the life of a human being. Supporters of the death penalty believe it deters law-breaking and is the only punishment strong enough for horrific crimes such as child murder and genocide. Opponents argue that it violates human rights and point to its finality in the face of judicial system error and unfairness. This resource presents a fascinating progression of current viewpoints that reflect the many facets of the death penalty debate.","English",28.8,23.05,"364.660973--dc23","120 pp.","https://greenhavenpublishing.com/9781534502130",null,{"$f":"Table1[[#This Row],['# of Books]]*Table1[[#This Row],[QTY]]","v":0},{"$f":"Table1[[#This Row],[QTY]]*Table1[[#This Row],[School & Library Price]]","v":0}]
[null,null,11,null,null,"Current Issues","At Issue","The Deep State","978-1-5345-0319-9",{"$f":"HYPERLINK(Table1[[#This Row],[eCommerce Hyperlink]],\"Book Weblink\")","v":"Book Weblink"},null,"Greenhaven Publishing","Library Bound Book",1,"2019","August 2018","Library","6.000 X 9.000","Edited by","Rita Santos",null,null,null,null,"Z",null,"Grade 10 - 12","Grade 9 - 12","It used to be that \"deep state\" was a shadowy term used to describe developing nations whose governments operated outside of democratically elected leaders. The term has evolved and has been applied to transparent countries such as the United States. What is the deep state and how does it apply to the United States and other democratic governments? This fascinating and informative volume presents a variety of perspectives that helps readers to decide whether a deep state is something to fear or simply a conspiracy theory.","English",40.4,32.32,"320.973--dc23","128 pp.","https://greenhavenpublishing.com/9781534503199",null,{"$f":"Table1[[#This Row],['# of Books]]*Table1[[#This Row],[QTY]]","v":0},{"$f":"Table1[[#This Row],[QTY]]*Table1[[#This Row],[School & Library Price]]","v":0}]
[null,null,11,null,null,"Current Issues","At Issue","The Deep State","978-1-5345-0321-2",{"$f":"HYPERLINK(Table1[[#This Row],[eCommerce Hyperlink]],\"Book Weblink\")","v":"Book Weblink"},null,"Greenhaven Publishing","eBook",1,"2019","August 2018",null,null,"Edited by","Rita Santos",null,null,null,null,"Z",null,"Grade 10 - 12","Grade 9 - 12","It used to be that \"deep state\" was a shadowy term used to describe developing nations whose governments operated outside of democratically elected leaders. The term has evolved and has been applied to transparent countries such as the United States. What is the deep state and how does it apply to the United States and other democratic governments? This fascinating and informative volume presents a variety of perspectives that helps readers to decide whether a deep state is something to fear or simply a conspiracy theory.","English",40.4,32.32,"320.973--dc23","128 pp.","https://greenhavenpublishing.com/9781534503212",null,{"$f":"Table1[[#This Row],['# of Books]]*Table1[[#This Row],[QTY]]","v":0},{"$f":"Table1[[#This Row],[QTY]]*Table1[[#This Row],[School & Library Price]]","v":0}]
[null,null,11,null,null,"Current Issues","At Issue","The Deep State","978-1-5345-0320-5",{"$f":"HYPERLINK(Table1[[#This Row],[eCommerce Hyperlink]],\"Book Weblink\")","v":"Book Weblink"},null,"Greenhaven Publishing","Paperback Book",1,"2019","August 2018","Paperback","6.000 X 9.000","Edited by","Rita Santos",null,null,null,null,"Z",null,"Grade 10 - 12","Grade 9 - 12","It used to be that \"deep state\" was a shadowy term used to describe developing nations whose governments operated outside of democratically elected leaders. The term has evolved and has been applied to transparent countries such as the United States. What is the deep state and how does it apply to the United States and other democratic governments? This fascinating and informative volume presents a variety of perspectives that helps readers to decide whether a deep state is something to fear or simply a conspiracy theory.","English",28.8,23.05,"320.973--dc23","128 pp.","https://greenhavenpublishing.com/9781534503205",null,{"$f":"Table1[[#This Row],['# of Books]]*Table1[[#This Row],[QTY]]","v":0},{"$f":"Table1[[#This Row],[QTY]]*Table1[[#This Row],[School & Library Price]]","v":0}]
[null,null,11,null,null,"Current Issues","At Issue","The Ethics of WikiLeaks","978-1-5345-0205-5",{"$f":"HYPERLINK(Table1[[#This Row],[eCommerce Hyperlink]],\"Book Weblink\")","v":"Book Weblink"},null,"Greenhaven Publishing","Library Bound Book",1,"2018","January 2018","Library","6.000 X 9.000","Edited by","Carrie Ann Taylor",null,null,null,null,"Z",null,"Grade 10 - 12","Grade 9 - 12","What is Wikileaks and how does it work? Wikileaks aims to expose secrets and make available important, and often classified, information to the public. The organization's commitment to encouraging and protecting whistleblowers and journalists is seen by many to be a heroic fight for free speech and government transparency. But at what point does the First Amendment matter more than security and diplomacy? Is the organization's agenda really as pure as it purports? Through reading a variety of authoritative viewpoints on the topic, readers will be encouraged to make sense of this ethical dilemma.","English",40.4,32.32,"172--dc23","104 pp.","https://greenhavenpublishing.com/9781534502055",null,{"$f":"Table1[[#This Row],['# of Books]]*Table1[[#This Row],[QTY]]","v":0},{"$f":"Table1[[#This Row],[QTY]]*Table1[[#This Row],[School & Library Price]]","v":0}]
[null,null,11,null,null,"Current Issues","At Issue","The Ethics of WikiLeaks","978-1-5345-0200-0",{"$f":"HYPERLINK(Table1[[#This Row],[eCommerce Hyperlink]],\"Book Weblink\")","v":"Book Weblink"},null,"Greenhaven Publishing","eBook",1,"2018","January 2018",null,null,"Edited by","Carrie Ann Taylor",null,null,null,null,"Z",null,"Grade 10 - 12","Grade 9 - 12","What is Wikileaks and how does it work? Wikileaks aims to expose secrets and make available important, and often classified, information to the public. The organization's commitment to encouraging and protecting whistleblowers and journalists is seen by many to be a heroic fight for free speech and government transparency. But at what point does the First Amendment matter more than security and diplomacy? Is the organization's agenda really as pure as it purports? Through reading a variety of authoritative viewpoints on the topic, readers will be encouraged to make sense of this ethical dilemma.","English",40.4,32.32,"172--dc23","104 pp.","https://greenhavenpublishing.com/9781534502000",null,{"$f":"Table1[[#This Row],['# of Books]]*Table1[[#This Row],[QTY]]","v":0},{"$f":"Table1[[#This Row],[QTY]]*Table1[[#This Row],[School & Library Price]]","v":0}]
[null,null,11,null,null,"Current Issues","At Issue","The Ethics of WikiLeaks","978-1-5345-0211-6",{"$f":"HYPERLINK(Table1[[#This Row],[eCommerce Hyperlink]],\"Book Weblink\")","v":"Book Weblink"},null,"Greenhaven Publishing","Paperback Book",1,"2018","January 2018","Paperback","6.000 X 9.000","Edited by","Carrie Ann Taylor",null,null,null,null,"Z",null,"Grade 10 - 12","Grade 9 - 12","What is Wikileaks and how does it work? Wikileaks aims to expose secrets and make available important, and often classified, information to the public. The organization's commitment to encouraging and protecting whistleblowers and journalists is seen by many to be a heroic fight for free speech and government transparency. But at what point does the First Amendment matter more than security and diplomacy? Is the organization's agenda really as pure as it purports? Through reading a variety of authoritative viewpoints on the topic, readers will be encouraged to make sense of this ethical dilemma.","English",28.8,23.05,"172--dc23","104 pp.","https://greenhavenpublishing.com/9781534502116",null,{"$f":"Table1[[#This Row],['# of Books]]*Table1[[#This Row],[QTY]]","v":0},{"$f":"Table1[[#This Row],[QTY]]*Table1[[#This Row],[School & Library Price]]","v":0}]
[null,null,11,null,null,"Current Issues","At Issue","The Federal Budget and Government Spending","978-1-5345-0322-9",{"$f":"HYPERLINK(Table1[[#This Row],[eCommerce Hyperlink]],\"Book Weblink\")","v":"Book Weblink"},null,"Greenhaven Publishing","Library Bound Book",1,"2019","August 2018","Library","6.000 X 9.000","Edited by","Lisa Idzikowski",null,null,null,null,"Z",null,"Grade 10 - 12","Grade 9 - 12","The federal budget affects all of us, whether we know it or not. Monies spent by the government go into our education, our security, our military, and our bridges and roads. But who is accountable for the budget, and what happens if we don't agree where the money is going? The expert viewpoints in this informative anthology examine where our tax dollars go, whether citizens have a say in spending, and what it means when the deficit just keeps growing.","English",40.4,32.32,"336.3/90973--dc23","136 pp.","https://greenhavenpublishing.com/9781534503229",null,{"$f":"Table1[[#This Row],['# of Books]]*Table1[[#This Row],[QTY]]","v":0},{"$f":"Table1[[#This Row],[QTY]]*Table1[[#This Row],[School & Library Price]]","v":0}]
[null,null,11,null,null,"Current Issues","At Issue","The Federal Budget and Government Spending","978-1-5345-0324-3",{"$f":"HYPERLINK(Table1[[#This Row],[eCommerce Hyperlink]],\"Book Weblink\")","v":"Book Weblink"},null,"Greenhaven Publishing","eBook",1,"2019","August 2018",null,null,"Edited by","Lisa Idzikowski",null,null,null,null,"Z",null,"Grade 10 - 12","Grade 9 - 12","The federal budget affects all of us, whether we know it or not. Monies spent by the government go into our education, our security, our military, and our bridges and roads. But who is accountable for the budget, and what happens if we don't agree where the money is going? The expert viewpoints in this informative anthology examine where our tax dollars go, whether citizens have a say in spending, and what it means when the deficit just keeps growing.","English",40.4,32.32,"336.3/90973--dc23","136 pp.","https://greenhavenpublishing.com/9781534503243",null,{"$f":"Table1[[#This Row],['# of Books]]*Table1[[#This Row],[QTY]]","v":0},{"$f":"Table1[[#This Row],[QTY]]*Table1[[#This Row],[School & Library Price]]","v":0}]
[null,null,11,null,null,"Current Issues","At Issue","The Federal Budget and Government Spending","978-1-5345-0323-6",{"$f":"HYPERLINK(Table1[[#This Row],[eCommerce Hyperlink]],\"Book Weblink\")","v":"Book Weblink"},null,"Greenhaven Publishing","Paperback Book",1,"2019","August 2018","Paperback","6.000 X 9.000","Edited by","Lisa Idzikowski",null,null,null,null,"Z",null,"Grade 10 - 12","Grade 9 - 12","The federal budget affects all of us, whether we know it or not. Monies spent by the government go into our education, our security, our military, and our bridges and roads. But who is accountable for the budget, and what happens if we don't agree where the money is going? The expert viewpoints in this informative anthology examine where our tax dollars go, whether citizens have a say in spending, and what it means when the deficit just keeps growing.","English",28.8,23.05,"336.3/90973--dc23","136 pp.","https://greenhavenpublishing.com/9781534503236",null,{"$f":"Table1[[#This Row],['# of Books]]*Table1[[#This Row],[QTY]]","v":0},{"$f":"Table1[[#This Row],[QTY]]*Table1[[#This Row],[School & Library Price]]","v":0}]
[null,10,11,null,null,"Current Issues","At Issue","The Media's Influence on Society","978-1-5345-0823-1",{"$f":"HYPERLINK(Table1[[#This Row],[eCommerce Hyperlink]],\"Book Weblink\")","v":"Book Weblink"},null,"Greenhaven Publishing","Library Bound Book",1,"2022","August 2021","Library","6.000 X 9.000","Compiled by","Andrew Karpan",null,null,null,null,"Z",null,"Grade 10 - 12","Grade 9 - 12","Sometimes known as the Fourth Estate, the media plays a powerful role in today's society. It is held responsible for keeping the public informed and supporting a healthy democracy. However, some worry that the media presents the news in a way that is too sensationalized or biased, with its primary motives being ratings and profits rather than the good of the public. This volume examines differing viewpoints on what can reasonably be expected of the media. Readers will evaluate the effects of the internet on the media, and the various impacts that the media has on society, including political, cultural, and economic.","English",40.4,32.32,"302.23/0973--dc23","128 pp.","https://greenhavenpublishing.com/9781534508231",null,{"$f":"Table1[[#This Row],['# of Books]]*Table1[[#This Row],[QTY]]","v":0},{"$f":"Table1[[#This Row],[QTY]]*Table1[[#This Row],[School & Library Price]]","v":0}]
[null,10,11,null,null,"Current Issues","At Issue","The Media's Influence on Society","978-1-5345-0824-8",{"$f":"HYPERLINK(Table1[[#This Row],[eCommerce Hyperlink]],\"Book Weblink\")","v":"Book Weblink"},null,"Greenhaven Publishing","eBook",1,"2022","August 2021",null,null,"Compiled by","Andrew Karpan",null,null,null,null,"Z",null,"Grade 10 - 12","Grade 9 - 12","Sometimes known as the Fourth Estate, the media plays a powerful role in today's society. It is held responsible for keeping the public informed and supporting a healthy democracy. However, some worry that the media presents the news in a way that is too sensationalized or biased, with its primary motives being ratings and profits rather than the good of the public. This volume examines differing viewpoints on what can reasonably be expected of the media. Readers will evaluate the effects of the internet on the media, and the various impacts that the media has on society, including political, cultural, and economic.","English",40.4,32.32,"302.23/0973--dc23","128 pp.","https://greenhavenpublishing.com/9781534508248",null,{"$f":"Table1[[#This Row],['# of Books]]*Table1[[#This Row],[QTY]]","v":0},{"$f":"Table1[[#This Row],[QTY]]*Table1[[#This Row],[School & Library Price]]","v":0}]
[null,10,11,null,null,"Current Issues","At Issue","The Media's Influence on Society","978-1-5345-0822-4",{"$f":"HYPERLINK(Table1[[#This Row],[eCommerce Hyperlink]],\"Book Weblink\")","v":"Book Weblink"},null,"Greenhaven Publishing","Paperback Book",1,"2022","August 2021","Paperback","6.000 X 9.000","Compiled by","Andrew Karpan",null,null,null,null,"Z",null,"Grade 10 - 12","Grade 9 - 12","Sometimes known as the Fourth Estate, the media plays a powerful role in today's society. It is held responsible for keeping the public informed and supporting a healthy democracy. However, some worry that the media presents the news in a way that is too sensationalized or biased, with its primary motives being ratings and profits rather than the good of the public. This volume examines differing viewpoints on what can reasonably be expected of the media. Readers will evaluate the effects of the internet on the media, and the various impacts that the media has on society, including political, cultural, and economic.","English",28.8,23.05,"302.23/0973--dc23","128 pp.","https://greenhavenpublishing.com/9781534508224",null,{"$f":"Table1[[#This Row],['# of Books]]*Table1[[#This Row],[QTY]]","v":0},{"$f":"Table1[[#This Row],[QTY]]*Table1[[#This Row],[School & Library Price]]","v":0}]
[null,null,11,null,null,"Current Issues","At Issue","The Olympics","978-0-7377-7398-9",{"$f":"HYPERLINK(Table1[[#This Row],[eCommerce Hyperlink]],\"Book Weblink\")","v":"Book Weblink"},null,"Greenhaven Publishing","Library Bound Book",1,"2016","January 2016","Library","6.000 X 9.000","Edited by","Noah Berlatsky",null,null,null,null,"Z","1240L","Grade 10 - 12","Grade 9 - 12","This edition explores issues related to the Olympics. It covers benefits and harms from hosting the Olympics. It examines the issues of drugs and doping in the Olympics. Readers will learn about often unseen sides to the massive event, including the environmental, political, and sex trafficking issues as they relate to the Olympics.","English",40.4,32.32,"796.48","88 pp.","https://greenhavenpublishing.com/9780737773989",null,{"$f":"Table1[[#This Row],['# of Books]]*Table1[[#This Row],[QTY]]","v":0},{"$f":"Table1[[#This Row],[QTY]]*Table1[[#This Row],[School & Library Price]]","v":0}]
[null,null,11,null,null,"Current Issues","At Issue","The Olympics","978-0-7377-7658-4",{"$f":"HYPERLINK(Table1[[#This Row],[eCommerce Hyperlink]],\"Book Weblink\")","v":"Book Weblink"},null,"Greenhaven Publishing","eBook",1,"2016","January 2016",null,null,"Edited by","Noah Berlatsky",null,null,null,null,"Z","1240L","Grade 10 - 12","Grade 9 - 12","This edition explores issues related to the Olympics. It covers benefits and harms from hosting the Olympics. It examines the issues of drugs and doping in the Olympics. Readers will learn about often unseen sides to the massive event, including the environmental, political, and sex trafficking issues as they relate to the Olympics.","English",40.4,32.32,"796.48","88 pp.","https://greenhavenpublishing.com/9780737776584",null,{"$f":"Table1[[#This Row],['# of Books]]*Table1[[#This Row],[QTY]]","v":0},{"$f":"Table1[[#This Row],[QTY]]*Table1[[#This Row],[School & Library Price]]","v":0}]
[null,null,11,null,null,"Current Issues","At Issue","The Olympics","978-0-7377-7399-6",{"$f":"HYPERLINK(Table1[[#This Row],[eCommerce Hyperlink]],\"Book Weblink\")","v":"Book Weblink"},null,"Greenhaven Publishing","Paperback Book",1,"2016","January 2016","Paperback","6.000 X 9.000","Edited by","Noah Berlatsky",null,null,null,null,"Z","1240L","Grade 10 - 12","Grade 9 - 12","This edition explores issues related to the Olympics. It covers benefits and harms from hosting the Olympics. It examines the issues of drugs and doping in the Olympics. Readers will learn about often unseen sides to the massive event, including the environmental, political, and sex trafficking issues as they relate to the Olympics.","English",28.8,23.05,"796.48","88 pp.","https://greenhavenpublishing.com/9780737773996",null,{"$f":"Table1[[#This Row],['# of Books]]*Table1[[#This Row],[QTY]]","v":0},{"$f":"Table1[[#This Row],[QTY]]*Table1[[#This Row],[School & Library Price]]","v":0}]
[null,null,11,null,null,"Current Issues","At Issue","The Opioid Crisis","978-1-5345-0524-7",{"$f":"HYPERLINK(Table1[[#This Row],[eCommerce Hyperlink]],\"Book Weblink\")","v":"Book Weblink"},null,"Greenhaven Publishing","Library Bound Book",1,"2020","August 2019","Library","6.000 X 9.000","Edited by","Sabine Cherenfant",null,null,null,null,"Z",null,"Grade 10 - 12","Grade 9 - 12","Opioids are pain relievers that include legal drugs like morphine, fentanyl, and oxycodone and illegal drugs like heroin. In 2017, the U.S. Department of Health and Human Services declared the opioid epidemic a public health crisis after 42,249 people in the United States died of opioid overdoses in 2016. Opioid prescription has been on the rise since the 1990s, when pharmaceutical companies asserted that the pain relievers were not addictive, though the tragic consequences have proven otherwise. This volume explores the history of the opioid crisis and solutions that have been proposed to fight this increasingly deadly epidemic.","English",40.4,32.32,"362.29/3--dc23","128 pp.","https://greenhavenpublishing.com/9781534505247",null,{"$f":"Table1[[#This Row],['# of Books]]*Table1[[#This Row],[QTY]]","v":0},{"$f":"Table1[[#This Row],[QTY]]*Table1[[#This Row],[School & Library Price]]","v":0}]
[null,null,11,null,null,"Current Issues","At Issue","The Opioid Crisis","978-1-5345-0526-1",{"$f":"HYPERLINK(Table1[[#This Row],[eCommerce Hyperlink]],\"Book Weblink\")","v":"Book Weblink"},null,"Greenhaven Publishing","eBook",1,"2020","August 2019",null,null,"Edited by","Sabine Cherenfant",null,null,null,null,"Z",null,"Grade 10 - 12","Grade 9 - 12","Opioids are pain relievers that include legal drugs like morphine, fentanyl, and oxycodone and illegal drugs like heroin. In 2017, the U.S. Department of Health and Human Services declared the opioid epidemic a public health crisis after 42,249 people in the United States died of opioid overdoses in 2016. Opioid prescription has been on the rise since the 1990s, when pharmaceutical companies asserted that the pain relievers were not addictive, though the tragic consequences have proven otherwise. This volume explores the history of the opioid crisis and solutions that have been proposed to fight this increasingly deadly epidemic.","English",40.4,32.32,"362.29/3--dc23","128 pp.","https://greenhavenpublishing.com/9781534505261",null,{"$f":"Table1[[#This Row],['# of Books]]*Table1[[#This Row],[QTY]]","v":0},{"$f":"Table1[[#This Row],[QTY]]*Table1[[#This Row],[School & Library Price]]","v":0}]
[null,null,11,null,null,"Current Issues","At Issue","The Opioid Crisis","978-1-5345-0525-4",{"$f":"HYPERLINK(Table1[[#This Row],[eCommerce Hyperlink]],\"Book Weblink\")","v":"Book Weblink"},null,"Greenhaven Publishing","Paperback Book",1,"2020","August 2019","Paperback","6.000 X 9.000","Edited by","Sabine Cherenfant",null,null,null,null,"Z",null,"Grade 10 - 12","Grade 9 - 12","Opioids are pain relievers that include legal drugs like morphine, fentanyl, and oxycodone and illegal drugs like heroin. In 2017, the U.S. Department of Health and Human Services declared the opioid epidemic a public health crisis after 42,249 people in the United States died of opioid overdoses in 2016. Opioid prescription has been on the rise since the 1990s, when pharmaceutical companies asserted that the pain relievers were not addictive, though the tragic consequences have proven otherwise. This volume explores the history of the opioid crisis and solutions that have been proposed to fight this increasingly deadly epidemic.","English",28.8,23.05,"362.29/3--dc23","128 pp.","https://greenhavenpublishing.com/9781534505254",null,{"$f":"Table1[[#This Row],['# of Books]]*Table1[[#This Row],[QTY]]","v":0},{"$f":"Table1[[#This Row],[QTY]]*Table1[[#This Row],[School & Library Price]]","v":0}]
[null,10,12,null,null,"Current Issues","At Issue","Policing in America","978-1-5345-0809-5",{"$f":"HYPERLINK(Table1[[#This Row],[eCommerce Hyperlink]],\"Book Weblink\")","v":"Book Weblink"},null,"Greenhaven Publishing","Library Bound Book",1,"2022","August 2021","Library","6.000 X 9.000","Compiled by","Kathryn Roberts",null,null,null,null,"Z",null,"Grade 10 - 12","Grade 9 - 12","Police officers are responsible for maintaining law and order to ensure everyone's safety and well-being. In doing so, they often put their lives on the line, making it a dangerous and challenging profession. In contemporary America, police forces are criticized for disproportionately targeting people of color, offering indemnity to the small percentage of police officers that act unlawfully or otherwise irresponsibly, and using unnecessarily brutal policing practices. The viewpoints in this volume will allow readers to become more familiar with all sides of policing in America through careful examination of relevant facts and opinions.","English",40.4,32.32,"363.20973--dc23","128 pp.","https://greenhavenpublishing.com/9781534508095",null,{"$f":"Table1[[#This Row],['# of Books]]*Table1[[#This Row],[QTY]]","v":0},{"$f":"Table1[[#This Row],[QTY]]*Table1[[#This Row],[School & Library Price]]","v":0}]
[null,10,12,null,null,"Current Issues","At Issue","Policing in America","978-1-5345-0810-1",{"$f":"HYPERLINK(Table1[[#This Row],[eCommerce Hyperlink]],\"Book Weblink\")","v":"Book Weblink"},null,"Greenhaven Publishing","eBook",1,"2022","August 2021",null,null,"Compiled by","Kathryn Roberts",null,null,null,null,"Z",null,"Grade 10 - 12","Grade 9 - 12","Police officers are responsible for maintaining law and order to ensure everyone's safety and well-being. In doing so, they often put their lives on the line, making it a dangerous and challenging profession. In contemporary America, police forces are criticized for disproportionately targeting people of color, offering indemnity to the small percentage of police officers that act unlawfully or otherwise irresponsibly, and using unnecessarily brutal policing practices. The viewpoints in this volume will allow readers to become more familiar with all sides of policing in America through careful examination of relevant facts and opinions.","English",40.4,32.32,"363.20973--dc23","128 pp.","https://greenhavenpublishing.com/9781534508101",null,{"$f":"Table1[[#This Row],['# of Books]]*Table1[[#This Row],[QTY]]","v":0},{"$f":"Table1[[#This Row],[QTY]]*Table1[[#This Row],[School & Library Price]]","v":0}]
[null,10,12,null,null,"Current Issues","At Issue","Policing in America","978-1-5345-0808-8",{"$f":"HYPERLINK(Table1[[#This Row],[eCommerce Hyperlink]],\"Book Weblink\")","v":"Book Weblink"},null,"Greenhaven Publishing","Paperback Book",1,"2022","August 2021","Paperback","6.000 X 9.000","Compiled by","Kathryn Roberts",null,null,null,null,"Z",null,"Grade 10 - 12","Grade 9 - 12","Police officers are responsible for maintaining law and order to ensure everyone's safety and well-being. In doing so, they often put their lives on the line, making it a dangerous and challenging profession. In contemporary America, police forces are criticized for disproportionately targeting people of color, offering indemnity to the small percentage of police officers that act unlawfully or otherwise irresponsibly, and using unnecessarily brutal policing practices. The viewpoints in this volume will allow readers to become more familiar with all sides of policing in America through careful examination of relevant facts and opinions.","English",28.8,23.05,"363.20973--dc23","128 pp.","https://greenhavenpublishing.com/9781534508088",null,{"$f":"Table1[[#This Row],['# of Books]]*Table1[[#This Row],[QTY]]","v":0},{"$f":"Table1[[#This Row],[QTY]]*Table1[[#This Row],[School & Library Price]]","v":0}]
[null,null,12,null,null,"Current Issues","At Issue","Political Corruption","978-1-5345-0380-9",{"$f":"HYPERLINK(Table1[[#This Row],[eCommerce Hyperlink]],\"Book Weblink\")","v":"Book Weblink"},null,"Greenhaven Publishing","Library Bound Book",1,"2019","January 2019","Library","6.000 X 9.000","Edited by","Eileen Lucas",null,null,null,null,"Z",null,"Grade 10 - 12","Grade 9 - 12","When politicians use their political power to privately benefit in an illegitimate manner, it is considered a fundamental threat to democracy. However, political corruption takes many forms, including bribery, extortion, influence peddling, and facilitating criminal enterprises. Additionally, there are certain cases that come across as ethically ambiguous: should campaign donations be considered a form of bribery? How can we prevent them from operating as a bribe? This volume looks at political corruption in the United States and beyond, exploring the factors that contribute to a culture of corruption and the possible means of combatting it.","English",40.4,32.32,"364.1/3230973--dc23","128 pp.","https://greenhavenpublishing.com/9781534503809",null,{"$f":"Table1[[#This Row],['# of Books]]*Table1[[#This Row],[QTY]]","v":0},{"$f":"Table1[[#This Row],[QTY]]*Table1[[#This Row],[School & Library Price]]","v":0}]
[null,null,12,null,null,"Current Issues","At Issue","Political Corruption","978-1-5345-0395-3",{"$f":"HYPERLINK(Table1[[#This Row],[eCommerce Hyperlink]],\"Book Weblink\")","v":"Book Weblink"},null,"Greenhaven Publishing","eBook",1,"2019","January 2019",null,null,"Edited by","Eileen Lucas",null,null,null,null,"Z",null,"Grade 10 - 12","Grade 9 - 12","When politicians use their political power to privately benefit in an illegitimate manner, it is considered a fundamental threat to democracy. However, political corruption takes many forms, including bribery, extortion, influence peddling, and facilitating criminal enterprises. Additionally, there are certain cases that come across as ethically ambiguous: should campaign donations be considered a form of bribery? How can we prevent them from operating as a bribe? This volume looks at political corruption in the United States and beyond, exploring the factors that contribute to a culture of corruption and the possible means of combatting it.","English",40.4,32.32,"364.1/3230973--dc23","128 pp.","https://greenhavenpublishing.com/9781534503953",null,{"$f":"Table1[[#This Row],['# of Books]]*Table1[[#This Row],[QTY]]","v":0},{"$f":"Table1[[#This Row],[QTY]]*Table1[[#This Row],[School & Library Price]]","v":0}]
[null,null,12,null,null,"Current Issues","At Issue","Political Corruption","978-1-5345-0447-9",{"$f":"HYPERLINK(Table1[[#This Row],[eCommerce Hyperlink]],\"Book Weblink\")","v":"Book Weblink"},null,"Greenhaven Publishing","Paperback Book",1,"2019","January 2019","Paperback","6.000 X 9.000","Edited by","Eileen Lucas",null,null,null,null,"Z",null,"Grade 10 - 12","Grade 9 - 12","When politicians use their political power to privately benefit in an illegitimate manner, it is considered a fundamental threat to democracy. However, political corruption takes many forms, including bribery, extortion, influence peddling, and facilitating criminal enterprises. Additionally, there are certain cases that come across as ethically ambiguous: should campaign donations be considered a form of bribery? How can we prevent them from operating as a bribe? This volume looks at political corruption in the United States and beyond, exploring the factors that contribute to a culture of corruption and the possible means of combatting it.","English",28.8,23.05,"364.1/3230973--dc23","128 pp.","https://greenhavenpublishing.com/9781534504479",null,{"$f":"Table1[[#This Row],['# of Books]]*Table1[[#This Row],[QTY]]","v":0},{"$f":"Table1[[#This Row],[QTY]]*Table1[[#This Row],[School & Library Price]]","v":0}]
[null,null,12,null,null,"Current Issues","At Issue","Politicians on Social Media","978-1-5345-0331-1",{"$f":"HYPERLINK(Table1[[#This Row],[eCommerce Hyperlink]],\"Book Weblink\")","v":"Book Weblink"},null,"Greenhaven Publishing","Library Bound Book",1,"2019","August 2018","Library","6.000 X 9.000","Edited by","Pete Schauer",null,null,null,null,"Z","1340L","Grade 10 - 12","Grade 9 - 12","The rise of social media has changed politics forever. No longer must citizens go through the trouble of writing letters to their representatives to be heard. In turn, politicians have been given a direct line to their constituents. Is this accessibility an asset or a liability? How has the use of social media changed the campaign and election process? What happens when the president blocks you on Twitter? The thought-provoking viewpoints in this volume explore the finer points of a newly emerging controversy.","English",40.4,32.32,"324.7/30973--dc23","128 pp.","https://greenhavenpublishing.com/9781534503311",null,{"$f":"Table1[[#This Row],['# of Books]]*Table1[[#This Row],[QTY]]","v":0},{"$f":"Table1[[#This Row],[QTY]]*Table1[[#This Row],[School & Library Price]]","v":0}]
[null,null,12,null,null,"Current Issues","At Issue","Politicians on Social Media","978-1-5345-0333-5",{"$f":"HYPERLINK(Table1[[#This Row],[eCommerce Hyperlink]],\"Book Weblink\")","v":"Book Weblink"},null,"Greenhaven Publishing","eBook",1,"2019","August 2018",null,null,"Edited by","Pete Schauer",null,null,null,null,"Z","1340L","Grade 10 - 12","Grade 9 - 12","The rise of social media has changed politics forever. No longer must citizens go through the trouble of writing letters to their representatives to be heard. In turn, politicians have been given a direct line to their constituents. Is this accessibility an asset or a liability? How has the use of social media changed the campaign and election process? What happens when the president blocks you on Twitter? The thought-provoking viewpoints in this volume explore the finer points of a newly emerging controversy.","English",40.4,32.32,"324.7/30973--dc23","128 pp.","https://greenhavenpublishing.com/9781534503335",null,{"$f":"Table1[[#This Row],['# of Books]]*Table1[[#This Row],[QTY]]","v":0},{"$f":"Table1[[#This Row],[QTY]]*Table1[[#This Row],[School & Library Price]]","v":0}]
[null,null,12,null,null,"Current Issues","At Issue","Politicians on Social Media","978-1-5345-0332-8",{"$f":"HYPERLINK(Table1[[#This Row],[eCommerce Hyperlink]],\"Book Weblink\")","v":"Book Weblink"},null,"Greenhaven Publishing","Paperback Book",1,"2019","August 2018","Paperback","6.000 X 9.000","Edited by","Pete Schauer",null,null,null,null,"Z","1340L","Grade 10 - 12","Grade 9 - 12","The rise of social media has changed politics forever. No longer must citizens go through the trouble of writing letters to their representatives to be heard. In turn, politicians have been given a direct line to their constituents. Is this accessibility an asset or a liability? How has the use of social media changed the campaign and election process? What happens when the president blocks you on Twitter? The thought-provoking viewpoints in this volume explore the finer points of a newly emerging controversy.","English",28.8,23.05,"324.7/30973--dc23","128 pp.","https://greenhavenpublishing.com/9781534503328",null,{"$f":"Table1[[#This Row],['# of Books]]*Table1[[#This Row],[QTY]]","v":0},{"$f":"Table1[[#This Row],[QTY]]*Table1[[#This Row],[School & Library Price]]","v":0}]
[null,null,12,null,null,"Current Issues","At Issue","Populism in the Digital Age","978-1-5345-0207-9",{"$f":"HYPERLINK(Table1[[#This Row],[eCommerce Hyperlink]],\"Book Weblink\")","v":"Book Weblink"},null,"Greenhaven Publishing","Library Bound Book",1,"2018","January 2018","Library","6.000 X 9.000","Edited by","Anne Cunningham",null,null,null,null,"Z","1350L","Grade 10 - 12","Grade 9 - 12","The development of social media platforms has allowed a new wave of populism to accelerate rapidly. Tweets, Facebook shares, and viral memes get information to ordinary citizens quickly and directly, without the influence of authorities, and often without the benefit of research and facts. Is this democracy in its purest form or mindless transmission of fake news and irresponsible reporting? What is the result of digital populism, and what can be done to use it for the good of the people? This resource contains viewpoints that will awaken readers to the value of critical thinking skills.","English",40.4,32.32,"320.01/4--dc23","120 pp.","https://greenhavenpublishing.com/9781534502079",null,{"$f":"Table1[[#This Row],['# of Books]]*Table1[[#This Row],[QTY]]","v":0},{"$f":"Table1[[#This Row],[QTY]]*Table1[[#This Row],[School & Library Price]]","v":0}]
[null,null,12,null,null,"Current Issues","At Issue","Populism in the Digital Age","978-1-5345-0202-4",{"$f":"HYPERLINK(Table1[[#This Row],[eCommerce Hyperlink]],\"Book Weblink\")","v":"Book Weblink"},null,"Greenhaven Publishing","eBook",1,"2018","January 2018",null,null,"Edited by","Anne Cunningham",null,null,null,null,"Z","1350L","Grade 10 - 12","Grade 9 - 12","The development of social media platforms has allowed a new wave of populism to accelerate rapidly. Tweets, Facebook shares, and viral memes get information to ordinary citizens quickly and directly, without the influence of authorities, and often without the benefit of research and facts. Is this democracy in its purest form or mindless transmission of fake news and irresponsible reporting? What is the result of digital populism, and what can be done to use it for the good of the people? This resource contains viewpoints that will awaken readers to the value of critical thinking skills.","English",40.4,32.32,"320.01/4--dc23","120 pp.","https://greenhavenpublishing.com/9781534502024",null,{"$f":"Table1[[#This Row],['# of Books]]*Table1[[#This Row],[QTY]]","v":0},{"$f":"Table1[[#This Row],[QTY]]*Table1[[#This Row],[School & Library Price]]","v":0}]
[null,null,12,null,null,"Current Issues","At Issue","Populism in the Digital Age","978-1-5345-0214-7",{"$f":"HYPERLINK(Table1[[#This Row],[eCommerce Hyperlink]],\"Book Weblink\")","v":"Book Weblink"},null,"Greenhaven Publishing","Paperback Book",1,"2018","January 2018","Paperback","6.000 X 9.000","Edited by","Anne Cunningham",null,null,null,null,"Z","1350L","Grade 10 - 12","Grade 9 - 12","The development of social media platforms has allowed a new wave of populism to accelerate rapidly. Tweets, Facebook shares, and viral memes get information to ordinary citizens quickly and directly, without the influence of authorities, and often without the benefit of research and facts. Is this democracy in its purest form or mindless transmission of fake news and irresponsible reporting? What is the result of digital populism, and what can be done to use it for the good of the people? This resource contains viewpoints that will awaken readers to the value of critical thinking skills.","English",28.8,23.05,"320.01/4--dc23","120 pp.","https://greenhavenpublishing.com/9781534502147",null,{"$f":"Table1[[#This Row],['# of Books]]*Table1[[#This Row],[QTY]]","v":0},{"$f":"Table1[[#This Row],[QTY]]*Table1[[#This Row],[School & Library Price]]","v":0}]
[null,null,12,null,null,"Current Issues","At Issue","Presentism: Reexamining Historical Figures Through Today's Lens","978-1-5345-0381-6",{"$f":"HYPERLINK(Table1[[#This Row],[eCommerce Hyperlink]],\"Book Weblink\")","v":"Book Weblink"},null,"Greenhaven Publishing","Library Bound Book",1,"2019","January 2019","Library","6.000 X 9.000","Edited by","Sabine Cherenfant",null,null,null,null,"Z","1310L","Grade 10 - 12","Grade 9 - 12","The recent wave of statues, building names, and other monuments memorializing figures like Christopher Columbus and Confederate generals being removed from public spaces and college campuses has brought the reassessment of historical figures to the fore. It has raised questions about whom we choose to venerate; how historical narratives form; and whether it is best to erase problematic figures from the historical record, present a new interpretation on them, or attempt to be as unbiased as possible by contemporary attitudes when regarding them. Readers will learn more about this timely and complicated issue through a wide range of perspectives.","English",40.4,32.32,"901--dc23","128 pp.","https://greenhavenpublishing.com/9781534503816",null,{"$f":"Table1[[#This Row],['# of Books]]*Table1[[#This Row],[QTY]]","v":0},{"$f":"Table1[[#This Row],[QTY]]*Table1[[#This Row],[School & Library Price]]","v":0}]
[null,null,12,null,null,"Current Issues","At Issue","Presentism: Reexamining Historical Figures Through Today's Lens","978-1-5345-0396-0",{"$f":"HYPERLINK(Table1[[#This Row],[eCommerce Hyperlink]],\"Book Weblink\")","v":"Book Weblink"},null,"Greenhaven Publishing","eBook",1,"2019","January 2019",null,null,"Edited by","Sabine Cherenfant",null,null,null,null,"Z","1310L","Grade 10 - 12","Grade 9 - 12","The recent wave of statues, building names, and other monuments memorializing figures like Christopher Columbus and Confederate generals being removed from public spaces and college campuses has brought the reassessment of historical figures to the fore. It has raised questions about whom we choose to venerate; how historical narratives form; and whether it is best to erase problematic figures from the historical record, present a new interpretation on them, or attempt to be as unbiased as possible by contemporary attitudes when regarding them. Readers will learn more about this timely and complicated issue through a wide range of perspectives.","English",40.4,32.32,"901--dc23","128 pp.","https://greenhavenpublishing.com/9781534503960",null,{"$f":"Table1[[#This Row],['# of Books]]*Table1[[#This Row],[QTY]]","v":0},{"$f":"Table1[[#This Row],[QTY]]*Table1[[#This Row],[School & Library Price]]","v":0}]
[null,null,12,null,null,"Current Issues","At Issue","Presentism: Reexamining Historical Figures Through Today's Lens","978-1-5345-0449-3",{"$f":"HYPERLINK(Table1[[#This Row],[eCommerce Hyperlink]],\"Book Weblink\")","v":"Book Weblink"},null,"Greenhaven Publishing","Paperback Book",1,"2019","January 2019","Paperback","6.000 X 9.000","Edited by","Sabine Cherenfant",null,null,null,null,"Z","1310L","Grade 10 - 12","Grade 9 - 12","The recent wave of statues, building names, and other monuments memorializing figures like Christopher Columbus and Confederate generals being removed from public spaces and college campuses has brought the reassessment of historical figures to the fore. It has raised questions about whom we choose to venerate; how historical narratives form; and whether it is best to erase problematic figures from the historical record, present a new interpretation on them, or attempt to be as unbiased as possible by contemporary attitudes when regarding them. Readers will learn more about this timely and complicated issue through a wide range of perspectives.","English",28.8,23.05,"901--dc23","128 pp.","https://greenhavenpublishing.com/9781534504493",null,{"$f":"Table1[[#This Row],['# of Books]]*Table1[[#This Row],[QTY]]","v":0},{"$f":"Table1[[#This Row],[QTY]]*Table1[[#This Row],[School & Library Price]]","v":0}]
[null,null,12,null,null,"Current Issues","At Issue","Public Outrage and Protest","978-1-5345-0527-8",{"$f":"HYPERLINK(Table1[[#This Row],[eCommerce Hyperlink]],\"Book Weblink\")","v":"Book Weblink"},null,"Greenhaven Publishing","Library Bound Book",1,"2020","August 2019","Library","6.000 X 9.000","Edited by","Eamon Doyle",null,null,null,null,"Z",null,"Grade 10 - 12","Grade 9 - 12","The United States has had an active history of public protest since colonial times, with the Boston Tea Party serving as an emblematic example to this day. Protest in the United States is often associated with its zenith in the 1960s, but demonstrations of public outrage continue to play a major role in contemporary America, with notable recent examples ranging from the Women's March to Black Lives Matter protests. Through this volume's dynamic viewpoints, readers will gain a better understanding of the history of public protest, its differing manifestations, and its efficacy in promoting political and social change.","English",40.4,32.32,"303.6--dc23","128 pp.","https://greenhavenpublishing.com/9781534505278",null,{"$f":"Table1[[#This Row],['# of Books]]*Table1[[#This Row],[QTY]]","v":0},{"$f":"Table1[[#This Row],[QTY]]*Table1[[#This Row],[School & Library Price]]","v":0}]
[null,null,12,null,null,"Current Issues","At Issue","Public Outrage and Protest","978-1-5345-0529-2",{"$f":"HYPERLINK(Table1[[#This Row],[eCommerce Hyperlink]],\"Book Weblink\")","v":"Book Weblink"},null,"Greenhaven Publishing","eBook",1,"2020","August 2019",null,null,"Edited by","Eamon Doyle",null,null,null,null,"Z",null,"Grade 10 - 12","Grade 9 - 12","The United States has had an active history of public protest since colonial times, with the Boston Tea Party serving as an emblematic example to this day. Protest in the United States is often associated with its zenith in the 1960s, but demonstrations of public outrage continue to play a major role in contemporary America, with notable recent examples ranging from the Women's March to Black Lives Matter protests. Through this volume's dynamic viewpoints, readers will gain a better understanding of the history of public protest, its differing manifestations, and its efficacy in promoting political and social change.","English",40.4,32.32,"303.6--dc23","128 pp.","https://greenhavenpublishing.com/9781534505292",null,{"$f":"Table1[[#This Row],['# of Books]]*Table1[[#This Row],[QTY]]","v":0},{"$f":"Table1[[#This Row],[QTY]]*Table1[[#This Row],[School & Library Price]]","v":0}]
[null,null,12,null,null,"Current Issues","At Issue","Public Outrage and Protest","978-1-5345-0528-5",{"$f":"HYPERLINK(Table1[[#This Row],[eCommerce Hyperlink]],\"Book Weblink\")","v":"Book Weblink"},null,"Greenhaven Publishing","Paperback Book",1,"2020","August 2019","Paperback","6.000 X 9.000","Edited by","Eamon Doyle",null,null,null,null,"Z",null,"Grade 10 - 12","Grade 9 - 12","The United States has had an active history of public protest since colonial times, with the Boston Tea Party serving as an emblematic example to this day. Protest in the United States is often associated with its zenith in the 1960s, but demonstrations of public outrage continue to play a major role in contemporary America, with notable recent examples ranging from the Women's March to Black Lives Matter protests. Through this volume's dynamic viewpoints, readers will gain a better understanding of the history of public protest, its differing manifestations, and its efficacy in promoting political and social change.","English",28.8,23.05,"303.6--dc23","128 pp.","https://greenhavenpublishing.com/9781534505285",null,{"$f":"Table1[[#This Row],['# of Books]]*Table1[[#This Row],[QTY]]","v":0},{"$f":"Table1[[#This Row],[QTY]]*Table1[[#This Row],[School & Library Price]]","v":0}]
[null,null,12,null,null,"Current Issues","At Issue","Reproductive Rights","978-1-5345-0206-2",{"$f":"HYPERLINK(Table1[[#This Row],[eCommerce Hyperlink]],\"Book Weblink\")","v":"Book Weblink"},null,"Greenhaven Publishing","Library Bound Book",1,"2018","January 2018","Library","6.000 X 9.000","Edited by","Anne Cunningham",null,null,null,null,"Z",null,"Grade 10 - 12","Grade 9 - 12","There has been a neat divide in the United States and elsewhere between the \"pro-choice\" and \"pro-life\" camps. Reproductive rights are more expansive than the abortion debate. Access to affordable health services is a fundamental right, yet women, who are subject to discrimination, poverty, and violence at a higher rate than men, are at risk for losing access to screenings, maternal care, and contraception. Does the government have the right to legislate women's health? This close examination provides perspectives from all sides to help readers understand what is at stake.","English",40.4,32.32,"613.9--dc23","104 pp.","https://greenhavenpublishing.com/9781534502062",null,{"$f":"Table1[[#This Row],['# of Books]]*Table1[[#This Row],[QTY]]","v":0},{"$f":"Table1[[#This Row],[QTY]]*Table1[[#This Row],[School & Library Price]]","v":0}]
[null,null,12,null,null,"Current Issues","At Issue","Reproductive Rights","978-1-5345-0197-3",{"$f":"HYPERLINK(Table1[[#This Row],[eCommerce Hyperlink]],\"Book Weblink\")","v":"Book Weblink"},null,"Greenhaven Publishing","eBook",1,"2018","January 2018",null,null,"Edited by","Anne Cunningham",null,null,null,null,"Z",null,"Grade 10 - 12","Grade 9 - 12","There has been a neat divide in the United States and elsewhere between the \"pro-choice\" and \"pro-life\" camps. Reproductive rights are more expansive than the abortion debate. Access to affordable health services is a fundamental right, yet women, who are subject to discrimination, poverty, and violence at a higher rate than men, are at risk for losing access to screenings, maternal care, and contraception. Does the government have the right to legislate women's health? This close examination provides perspectives from all sides to help readers understand what is at stake.","English",40.4,32.32,"613.9--dc23","104 pp.","https://greenhavenpublishing.com/9781534501973",null,{"$f":"Table1[[#This Row],['# of Books]]*Table1[[#This Row],[QTY]]","v":0},{"$f":"Table1[[#This Row],[QTY]]*Table1[[#This Row],[School & Library Price]]","v":0}]
[null,null,12,null,null,"Current Issues","At Issue","Reproductive Rights","978-1-5345-0209-3",{"$f":"HYPERLINK(Table1[[#This Row],[eCommerce Hyperlink]],\"Book Weblink\")","v":"Book Weblink"},null,"Greenhaven Publishing","Paperback Book",1,"2018","January 2018","Paperback","6.000 X 9.000","Edited by","Anne Cunningham",null,null,null,null,"Z",null,"Grade 10 - 12","Grade 9 - 12","There has been a neat divide in the United States and elsewhere between the \"pro-choice\" and \"pro-life\" camps. Reproductive rights are more expansive than the abortion debate. Access to affordable health services is a fundamental right, yet women, who are subject to discrimination, poverty, and violence at a higher rate than men, are at risk for losing access to screenings, maternal care, and contraception. Does the government have the right to legislate women's health? This close examination provides perspectives from all sides to help readers understand what is at stake.","English",28.8,23.05,"613.9--dc23","104 pp.","https://greenhavenpublishing.com/9781534502093",null,{"$f":"Table1[[#This Row],['# of Books]]*Table1[[#This Row],[QTY]]","v":0},{"$f":"Table1[[#This Row],[QTY]]*Table1[[#This Row],[School & Library Price]]","v":0}]
[null,11,12,null,null,"Current Issues","At Issue","Sexual Consent","978-1-5345-0632-9",{"$f":"HYPERLINK(Table1[[#This Row],[eCommerce Hyperlink]],\"Book Weblink\")","v":"Book Weblink"},null,"Greenhaven Publishing","Library Bound Book",1,"2020","January 2020","Library","6.000 X 9.000","Edited by","Martin Gitlin",null,null,null,null,"Z","1290L","Grade 10 - 12","Grade 9 - 12","For many years, \"no means no\" served as the standard for whether sexual consent is granted, but valid concerns have called for an expansion of this standard. Factors that could prevent someone from rejecting an unwanted advance include coercion and intoxication, making the concept of verbal consent muddy. The debate over whether this standard should be replaced and what should replace it has brought forth various possible solutions, with some arguing that only enthusiastic verbal consent will do, and others asserting that this expectation is unrealistic. Factors like age, positions of trust and authority, and mental and emotional conditions and disabilities also factor into the discussion. The well-balanced articles found here will provide your readers with an intelligent understanding of this topic.","English",40.4,32.32,"176/.4--dc23","128 pp.","https://greenhavenpublishing.com/9781534506329",null,{"$f":"Table1[[#This Row],['# of Books]]*Table1[[#This Row],[QTY]]","v":0},{"$f":"Table1[[#This Row],[QTY]]*Table1[[#This Row],[School & Library Price]]","v":0}]
[null,11,12,null,null,"Current Issues","At Issue","Sexual Consent","978-1-5345-0633-6",{"$f":"HYPERLINK(Table1[[#This Row],[eCommerce Hyperlink]],\"Book Weblink\")","v":"Book Weblink"},null,"Greenhaven Publishing","eBook",1,"2020","January 2020",null,null,"Edited by","Martin Gitlin",null,null,null,null,"Z","1290L","Grade 10 - 12","Grade 9 - 12","For many years, \"no means no\" served as the standard for whether sexual consent is granted, but valid concerns have called for an expansion of this standard. Factors that could prevent someone from rejecting an unwanted advance include coercion and intoxication, making the concept of verbal consent muddy. The debate over whether this standard should be replaced and what should replace it has brought forth various possible solutions, with some arguing that only enthusiastic verbal consent will do, and others asserting that this expectation is unrealistic. Factors like age, positions of trust and authority, and mental and emotional conditions and disabilities also factor into the discussion. The well-balanced articles found here will provide your readers with an intelligent understanding of this topic.","English",40.4,32.32,"176/.4--dc23","128 pp.","https://greenhavenpublishing.com/9781534506336",null,{"$f":"Table1[[#This Row],['# of Books]]*Table1[[#This Row],[QTY]]","v":0},{"$f":"Table1[[#This Row],[QTY]]*Table1[[#This Row],[School & Library Price]]","v":0}]
[null,11,12,null,null,"Current Issues","At Issue","Sexual Consent","978-1-5345-0631-2",{"$f":"HYPERLINK(Table1[[#This Row],[eCommerce Hyperlink]],\"Book Weblink\")","v":"Book Weblink"},null,"Greenhaven Publishing","Paperback Book",1,"2020","January 2020","Paperback","6.000 X 9.000","Edited by","Martin Gitlin",null,null,null,null,"Z","1290L","Grade 10 - 12","Grade 9 - 12","For many years, \"no means no\" served as the standard for whether sexual consent is granted, but valid concerns have called for an expansion of this standard. Factors that could prevent someone from rejecting an unwanted advance include coercion and intoxication, making the concept of verbal consent muddy. The debate over whether this standard should be replaced and what should replace it has brought forth various possible solutions, with some arguing that only enthusiastic verbal consent will do, and others asserting that this expectation is unrealistic. Factors like age, positions of trust and authority, and mental and emotional conditions and disabilities also factor into the discussion. The well-balanced articles found here will provide your readers with an intelligent understanding of this topic.","English",28.8,23.05,"176/.4--dc23","128 pp.","https://greenhavenpublishing.com/9781534506312",null,{"$f":"Table1[[#This Row],['# of Books]]*Table1[[#This Row],[QTY]]","v":0},{"$f":"Table1[[#This Row],[QTY]]*Table1[[#This Row],[School & Library Price]]","v":0}]
[null,11,12,null,null,"Current Issues","At Issue","Student Debt","978-1-5345-0623-7",{"$f":"HYPERLINK(Table1[[#This Row],[eCommerce Hyperlink]],\"Book Weblink\")","v":"Book Weblink"},null,"Greenhaven Publishing","Library Bound Book",1,"2020","January 2020","Library","6.000 X 9.000","Edited by","Avery Elizabeth Hurt",null,null,null,null,"Z",null,"Grade 10 - 12","Grade 9 - 12","As of 2019, Americans owed over 1.56 trillion dollars in student loan debt, and 69 percent of college students who graduated in 2018 had to take out student loans. Student debt has increased significantly over the past twenty years, but what factors have brought this about? Are students to blame for making irresponsible financial decisions, or is the price of education rising disproportionately to average income? How do variables like class and race impact student debt? What impact do these debts have on individuals and the economy? This volume examines the nature of America's student debt crisis and explores possible solutions.","English",40.4,32.32,"378.3/8--dc23","128 pp.","https://greenhavenpublishing.com/9781534506237",null,{"$f":"Table1[[#This Row],['# of Books]]*Table1[[#This Row],[QTY]]","v":0},{"$f":"Table1[[#This Row],[QTY]]*Table1[[#This Row],[School & Library Price]]","v":0}]
[null,11,12,null,null,"Current Issues","At Issue","Student Debt","978-1-5345-0624-4",{"$f":"HYPERLINK(Table1[[#This Row],[eCommerce Hyperlink]],\"Book Weblink\")","v":"Book Weblink"},null,"Greenhaven Publishing","eBook",1,"2020","January 2020",null,null,"Edited by","Avery Elizabeth Hurt",null,null,null,null,"Z",null,"Grade 10 - 12","Grade 9 - 12","As of 2019, Americans owed over 1.56 trillion dollars in student loan debt, and 69 percent of college students who graduated in 2018 had to take out student loans. Student debt has increased significantly over the past twenty years, but what factors have brought this about? Are students to blame for making irresponsible financial decisions, or is the price of education rising disproportionately to average income? How do variables like class and race impact student debt? What impact do these debts have on individuals and the economy? This volume examines the nature of America's student debt crisis and explores possible solutions.","English",40.4,32.32,"378.3/8--dc23","128 pp.","https://greenhavenpublishing.com/9781534506244",null,{"$f":"Table1[[#This Row],['# of Books]]*Table1[[#This Row],[QTY]]","v":0},{"$f":"Table1[[#This Row],[QTY]]*Table1[[#This Row],[School & Library Price]]","v":0}]
[null,11,12,null,null,"Current Issues","At Issue","Student Debt","978-1-5345-0622-0",{"$f":"HYPERLINK(Table1[[#This Row],[eCommerce Hyperlink]],\"Book Weblink\")","v":"Book Weblink"},null,"Greenhaven Publishing","Paperback Book",1,"2020","January 2020","Paperback","6.000 X 9.000","Edited by","Avery Elizabeth Hurt",null,null,null,null,"Z",null,"Grade 10 - 12","Grade 9 - 12","As of 2019, Americans owed over 1.56 trillion dollars in student loan debt, and 69 percent of college students who graduated in 2018 had to take out student loans. Student debt has increased significantly over the past twenty years, but what factors have brought this about? Are students to blame for making irresponsible financial decisions, or is the price of education rising disproportionately to average income? How do variables like class and race impact student debt? What impact do these debts have on individuals and the economy? This volume examines the nature of America's student debt crisis and explores possible solutions.","English",28.8,23.05,"378.3/8--dc23","128 pp.","https://greenhavenpublishing.com/9781534506220",null,{"$f":"Table1[[#This Row],['# of Books]]*Table1[[#This Row],[QTY]]","v":0},{"$f":"Table1[[#This Row],[QTY]]*Table1[[#This Row],[School & Library Price]]","v":0}]
[null,null,12,null,null,"Current Issues","At Issue","Student Loans","978-0-7377-7410-8",{"$f":"HYPERLINK(Table1[[#This Row],[eCommerce Hyperlink]],\"Book Weblink\")","v":"Book Weblink"},null,"Greenhaven Publishing","Library Bound Book",1,"2016","January 2016","Library","6.000 X 9.000","Edited by","Noël Merino",null,null,null,null,"Z",null,"Grade 10 - 12","Grade 9 - 12","It is very common for young people to have educational loans in order to obtain certification or degrees. This guidebook investigates student loans, how increasing loan debt has gotten out of hand, and what students should do about it. Government and private loans, repayment solutions, and the economic impact of the student loan bubble are discussed.","English",40.4,32.32,"378.3/62","88 pp.","https://greenhavenpublishing.com/9780737774108",null,{"$f":"Table1[[#This Row],['# of Books]]*Table1[[#This Row],[QTY]]","v":0},{"$f":"Table1[[#This Row],[QTY]]*Table1[[#This Row],[School & Library Price]]","v":0}]
[null,null,12,null,null,"Current Issues","At Issue","Student Loans","978-0-7377-7654-6",{"$f":"HYPERLINK(Table1[[#This Row],[eCommerce Hyperlink]],\"Book Weblink\")","v":"Book Weblink"},null,"Greenhaven Publishing","eBook",1,"2016","January 2016",null,null,"Edited by","Noël Merino",null,null,null,null,"Z",null,"Grade 10 - 12","Grade 9 - 12","It is very common for young people to have educational loans in order to obtain certification or degrees. This guidebook investigates student loans, how increasing loan debt has gotten out of hand, and what students should do about it. Government and private loans, repayment solutions, and the economic impact of the student loan bubble are discussed.","English",40.4,32.32,"378.3/62","88 pp.","https://greenhavenpublishing.com/9780737776546",null,{"$f":"Table1[[#This Row],['# of Books]]*Table1[[#This Row],[QTY]]","v":0},{"$f":"Table1[[#This Row],[QTY]]*Table1[[#This Row],[School & Library Price]]","v":0}]
[null,null,12,null,null,"Current Issues","At Issue","Student Loans","978-0-7377-7411-5",{"$f":"HYPERLINK(Table1[[#This Row],[eCommerce Hyperlink]],\"Book Weblink\")","v":"Book Weblink"},null,"Greenhaven Publishing","Paperback Book",1,"2016","January 2016","Paperback","6.000 X 9.000","Edited by","Noël Merino",null,null,null,null,"Z",null,"Grade 10 - 12","Grade 9 - 12","It is very common for young people to have educational loans in order to obtain certification or degrees. This guidebook investigates student loans, how increasing loan debt has gotten out of hand, and what students should do about it. Government and private loans, repayment solutions, and the economic impact of the student loan bubble are discussed.","English",28.8,23.05,"378.3/62","88 pp.","https://greenhavenpublishing.com/9780737774115",null,{"$f":"Table1[[#This Row],['# of Books]]*Table1[[#This Row],[QTY]]","v":0},{"$f":"Table1[[#This Row],[QTY]]*Table1[[#This Row],[School & Library Price]]","v":0}]
[null,null,12,null,null,"Current Issues","At Issue","Superbugs","978-0-7377-7388-0",{"$f":"HYPERLINK(Table1[[#This Row],[eCommerce Hyperlink]],\"Book Weblink\")","v":"Book Weblink"},null,"Greenhaven Publishing","Library Bound Book",1,"2016","January 2016","Library","6.000 X 9.000","Edited by","Tamara Thompson",null,null,null,null,"Z",null,"Grade 10 - 12","Grade 9 - 12","Where do Antibiotic-resistant superbugs come from and what can we do to combat them? This volume takes a look at the issue from all angles; the role of government, where lobbyists and drug companies fit in, and how the overuse of antibiotics and antibacterial products may contribute to the problem.","English",40.4,32.32,"616.9/​041","128 pp.","https://greenhavenpublishing.com/9780737773880",null,{"$f":"Table1[[#This Row],['# of Books]]*Table1[[#This Row],[QTY]]","v":0},{"$f":"Table1[[#This Row],[QTY]]*Table1[[#This Row],[School & Library Price]]","v":0}]
[null,null,12,null,null,"Current Issues","At Issue","Superbugs","978-0-7377-7656-0",{"$f":"HYPERLINK(Table1[[#This Row],[eCommerce Hyperlink]],\"Book Weblink\")","v":"Book Weblink"},null,"Greenhaven Publishing","eBook",1,"2016","January 2016",null,null,"Edited by","Tamara Thompson",null,null,null,null,"Z",null,"Grade 10 - 12","Grade 9 - 12","Where do Antibiotic-resistant superbugs come from and what can we do to combat them? This volume takes a look at the issue from all angles; the role of government, where lobbyists and drug companies fit in, and how the overuse of antibiotics and antibacterial products may contribute to the problem.","English",40.4,32.32,"616.9/​041","128 pp.","https://greenhavenpublishing.com/9780737776560",null,{"$f":"Table1[[#This Row],['# of Books]]*Table1[[#This Row],[QTY]]","v":0},{"$f":"Table1[[#This Row],[QTY]]*Table1[[#This Row],[School & Library Price]]","v":0}]
[null,null,12,null,null,"Current Issues","At Issue","Superbugs","978-0-7377-7389-7",{"$f":"HYPERLINK(Table1[[#This Row],[eCommerce Hyperlink]],\"Book Weblink\")","v":"Book Weblink"},null,"Greenhaven Publishing","Paperback Book",1,"2016","January 2016","Paperback","6.000 X 9.000","Edited by","Tamara Thompson",null,null,null,null,"Z",null,"Grade 10 - 12","Grade 9 - 12","Where do Antibiotic-resistant superbugs come from and what can we do to combat them? This volume takes a look at the issue from all angles; the role of government, where lobbyists and drug companies fit in, and how the overuse of antibiotics and antibacterial products may contribute to the problem.","English",28.8,23.05,"616.9/​041","128 pp.","https://greenhavenpublishing.com/9780737773897",null,{"$f":"Table1[[#This Row],['# of Books]]*Table1[[#This Row],[QTY]]","v":0},{"$f":"Table1[[#This Row],[QTY]]*Table1[[#This Row],[School & Library Price]]","v":0}]
[null,null,12,null,null,"Current Issues","At Issue","Superfoods","978-0-7377-7412-2",{"$f":"HYPERLINK(Table1[[#This Row],[eCommerce Hyperlink]],\"Book Weblink\")","v":"Book Weblink"},null,"Greenhaven Publishing","Library Bound Book",1,"2016","January 2016","Library","6.000 X 9.000","Edited by","Roman Espejo",null,null,null,null,"Z",null,"Grade 10 - 12","Grade 9 - 12","We are what we eat. What does eating superfoods do for us? Superfoods are nutrient-rich foods considered to be especially beneficial for health and well-being. They are rich in antioxidants, polyphenols, vitamins, and minerals. Eating them may reduce the risk of chronic disease and prolong life. Readers will be intrigued to learn that people who eat more superfoods are healthier and thinner than those who don't. This book examines various superfoods like kale and quinoa. It also discusses the impact that superfoods may have on the environment. It examines juicing and health, creating smart young readers who will make smart choices about their nutrition.","English",40.4,32.32,"613.2","104 pp.","https://greenhavenpublishing.com/9780737774122",null,{"$f":"Table1[[#This Row],['# of Books]]*Table1[[#This Row],[QTY]]","v":0},{"$f":"Table1[[#This Row],[QTY]]*Table1[[#This Row],[School & Library Price]]","v":0}]
[null,null,12,null,null,"Current Issues","At Issue","Superfoods","978-0-7377-7657-7",{"$f":"HYPERLINK(Table1[[#This Row],[eCommerce Hyperlink]],\"Book Weblink\")","v":"Book Weblink"},null,"Greenhaven Publishing","eBook",1,"2016","January 2016",null,null,"Edited by","Roman Espejo",null,null,null,null,"Z",null,"Grade 10 - 12","Grade 9 - 12","We are what we eat. What does eating superfoods do for us? Superfoods are nutrient-rich foods considered to be especially beneficial for health and well-being. They are rich in antioxidants, polyphenols, vitamins, and minerals. Eating them may reduce the risk of chronic disease and prolong life. Readers will be intrigued to learn that people who eat more superfoods are healthier and thinner than those who don't. This book examines various superfoods like kale and quinoa. It also discusses the impact that superfoods may have on the environment. It examines juicing and health, creating smart young readers who will make smart choices about their nutrition.","English",40.4,32.32,"613.2","104 pp.","https://greenhavenpublishing.com/9780737776577",null,{"$f":"Table1[[#This Row],['# of Books]]*Table1[[#This Row],[QTY]]","v":0},{"$f":"Table1[[#This Row],[QTY]]*Table1[[#This Row],[School & Library Price]]","v":0}]
[null,null,12,null,null,"Current Issues","At Issue","Superfoods","978-0-7377-7413-9",{"$f":"HYPERLINK(Table1[[#This Row],[eCommerce Hyperlink]],\"Book Weblink\")","v":"Book Weblink"},null,"Greenhaven Publishing","Paperback Book",1,"2016","January 2016","Paperback","6.000 X 9.000","Edited by","Roman Espejo",null,null,null,null,"Z",null,"Grade 10 - 12","Grade 9 - 12","We are what we eat. What does eating superfoods do for us? Superfoods are nutrient-rich foods considered to be especially beneficial for health and well-being. They are rich in antioxidants, polyphenols, vitamins, and minerals. Eating them may reduce the risk of chronic disease and prolong life. Readers will be intrigued to learn that people who eat more superfoods are healthier and thinner than those who don't. This book examines various superfoods like kale and quinoa. It also discusses the impact that superfoods may have on the environment. It examines juicing and health, creating smart young readers who will make smart choices about their nutrition.","English",28.8,23.05,"613.2","104 pp.","https://greenhavenpublishing.com/9780737774139",null,{"$f":"Table1[[#This Row],['# of Books]]*Table1[[#This Row],[QTY]]","v":0},{"$f":"Table1[[#This Row],[QTY]]*Table1[[#This Row],[School & Library Price]]","v":0}]
[null,10,12,null,null,"Current Issues","At Issue","The Politicization of the Supreme Court","978-1-5345-0820-0",{"$f":"HYPERLINK(Table1[[#This Row],[eCommerce Hyperlink]],\"Book Weblink\")","v":"Book Weblink"},null,"Greenhaven Publishing","Library Bound Book",1,"2022","August 2021","Library","6.000 X 9.000","Compiled by","Eamon Doyle",null,null,null,null,"Z",null,"Grade 10 - 12","Grade 9 - 12","As the most powerful judiciary body in the U.S., the Supreme Court is expected to uphold Constitutional values while remaining insulated from influence by political agendas. In recent years, however, some have perceived the Supreme Court as becoming increasingly politicized, with some labeling the 2018 appointment of Justice Kavanaugh a pro-conservative political maneuver. Despite these recent concerns, there are also numerous historical examples of judicial activism. This volume discusses the Supreme Court's politicization across history, examines whether it is realistic or useful to expect it to be insulated from politics, and evaluates possible means of depoliticizing the court.","English",40.4,32.32,"347.73/26--dc23","128 pp.","https://greenhavenpublishing.com/9781534508200",null,{"$f":"Table1[[#This Row],['# of Books]]*Table1[[#This Row],[QTY]]","v":0},{"$f":"Table1[[#This Row],[QTY]]*Table1[[#This Row],[School & Library Price]]","v":0}]
[null,10,12,null,null,"Current Issues","At Issue","The Politicization of the Supreme Court","978-1-5345-0821-7",{"$f":"HYPERLINK(Table1[[#This Row],[eCommerce Hyperlink]],\"Book Weblink\")","v":"Book Weblink"},null,"Greenhaven Publishing","eBook",1,"2022","August 2021",null,null,"Compiled by","Eamon Doyle",null,null,null,null,"Z",null,"Grade 10 - 12","Grade 9 - 12","As the most powerful judiciary body in the U.S., the Supreme Court is expected to uphold Constitutional values while remaining insulated from influence by political agendas. In recent years, however, some have perceived the Supreme Court as becoming increasingly politicized, with some labeling the 2018 appointment of Justice Kavanaugh a pro-conservative political maneuver. Despite these recent concerns, there are also numerous historical examples of judicial activism. This volume discusses the Supreme Court's politicization across history, examines whether it is realistic or useful to expect it to be insulated from politics, and evaluates possible means of depoliticizing the court.","English",40.4,32.32,"347.73/26--dc23","128 pp.","https://greenhavenpublishing.com/9781534508217",null,{"$f":"Table1[[#This Row],['# of Books]]*Table1[[#This Row],[QTY]]","v":0},{"$f":"Table1[[#This Row],[QTY]]*Table1[[#This Row],[School & Library Price]]","v":0}]
[null,10,12,null,null,"Current Issues","At Issue","The Politicization of the Supreme Court","978-1-5345-0819-4",{"$f":"HYPERLINK(Table1[[#This Row],[eCommerce Hyperlink]],\"Book Weblink\")","v":"Book Weblink"},null,"Greenhaven Publishing","Paperback Book",1,"2022","August 2021","Paperback","6.000 X 9.000","Compiled by","Eamon Doyle",null,null,null,null,"Z",null,"Grade 10 - 12","Grade 9 - 12","As the most powerful judiciary body in the U.S., the Supreme Court is expected to uphold Constitutional values while remaining insulated from influence by political agendas. In recent years, however, some have perceived the Supreme Court as becoming increasingly politicized, with some labeling the 2018 appointment of Justice Kavanaugh a pro-conservative political maneuver. Despite these recent concerns, there are also numerous historical examples of judicial activism. This volume discusses the Supreme Court's politicization across history, examines whether it is realistic or useful to expect it to be insulated from politics, and evaluates possible means of depoliticizing the court.","English",28.8,23.05,"347.73/26--dc23","128 pp.","https://greenhavenpublishing.com/9781534508194",null,{"$f":"Table1[[#This Row],['# of Books]]*Table1[[#This Row],[QTY]]","v":0},{"$f":"Table1[[#This Row],[QTY]]*Table1[[#This Row],[School & Library Price]]","v":0}]
[null,null,12,null,null,"Current Issues","At Issue","The Right to a Living Wage","978-1-5345-0082-2",{"$f":"HYPERLINK(Table1[[#This Row],[eCommerce Hyperlink]],\"Book Weblink\")","v":"Book Weblink"},null,"Greenhaven Publishing","Library Bound Book",1,"2018","August 2017","Library","6.000 X 9.000","Edited by","Matt Uhler",null,null,null,null,"Z","1390L","Grade 10 - 12","Grade 9 - 12","With the disappearance of well-paying jobs and the increasing cost of living, it’s becoming more and more difficult to stay afloat in the United States. Workers who earn the minimum wage often can’t afford the most basic needs. In response, more than 100 U.S. cities have issued living wage ordinances, requiring payments that allow workers to afford food, clothing, shelter, utilities, and healthcare. It may seem obvious that everyone wins with a living wage. But does paying out a living wage help or harm the economy? Should corporations be forced to pay them? What is society’s responsibility to its workers?","English",40.4,32.32,"331.2/3--dc23","200 pp.","https://greenhavenpublishing.com/9781534500822",null,{"$f":"Table1[[#This Row],['# of Books]]*Table1[[#This Row],[QTY]]","v":0},{"$f":"Table1[[#This Row],[QTY]]*Table1[[#This Row],[School & Library Price]]","v":0}]
[null,null,12,null,null,"Current Issues","At Issue","The Right to a Living Wage","978-1-5345-0083-9",{"$f":"HYPERLINK(Table1[[#This Row],[eCommerce Hyperlink]],\"Book Weblink\")","v":"Book Weblink"},null,"Greenhaven Publishing","eBook",1,"2018","August 2017",null,null,"Edited by","Matt Uhler",null,null,null,null,"Z","1390L","Grade 10 - 12","Grade 9 - 12","With the disappearance of well-paying jobs and the increasing cost of living, it’s becoming more and more difficult to stay afloat in the United States. Workers who earn the minimum wage often can’t afford the most basic needs. In response, more than 100 U.S. cities have issued living wage ordinances, requiring payments that allow workers to afford food, clothing, shelter, utilities, and healthcare. It may seem obvious that everyone wins with a living wage. But does paying out a living wage help or harm the economy? Should corporations be forced to pay them? What is society’s responsibility to its workers?","English",40.4,32.32,"331.2/3--dc23","200 pp.","https://greenhavenpublishing.com/9781534500839",null,{"$f":"Table1[[#This Row],['# of Books]]*Table1[[#This Row],[QTY]]","v":0},{"$f":"Table1[[#This Row],[QTY]]*Table1[[#This Row],[School & Library Price]]","v":0}]
[null,null,12,null,null,"Current Issues","At Issue","The Right to a Living Wage","978-1-5345-0080-8",{"$f":"HYPERLINK(Table1[[#This Row],[eCommerce Hyperlink]],\"Book Weblink\")","v":"Book Weblink"},null,"Greenhaven Publishing","Paperback Book",1,"2018","August 2017","Paperback","6.000 X 9.000","Edited by","Matt Uhler",null,null,null,null,"Z","1390L","Grade 10 - 12","Grade 9 - 12","With the disappearance of well-paying jobs and the increasing cost of living, it’s becoming more and more difficult to stay afloat in the United States. Workers who earn the minimum wage often can’t afford the most basic needs. In response, more than 100 U.S. cities have issued living wage ordinances, requiring payments that allow workers to afford food, clothing, shelter, utilities, and healthcare. It may seem obvious that everyone wins with a living wage. But does paying out a living wage help or harm the economy? Should corporations be forced to pay them? What is society’s responsibility to its workers?","English",28.8,23.05,"331.2/3--dc23","200 pp.","https://greenhavenpublishing.com/9781534500808",null,{"$f":"Table1[[#This Row],['# of Books]]*Table1[[#This Row],[QTY]]","v":0},{"$f":"Table1[[#This Row],[QTY]]*Table1[[#This Row],[School & Library Price]]","v":0}]
[null,null,12,null,null,"Current Issues","At Issue","The Role of Religion in Public Policy","978-1-5345-0382-3",{"$f":"HYPERLINK(Table1[[#This Row],[eCommerce Hyperlink]],\"Book Weblink\")","v":"Book Weblink"},null,"Greenhaven Publishing","Library Bound Book",1,"2019","January 2019","Library","6.000 X 9.000","Edited by","Eamon Doyle",null,null,null,null,"Z",null,"Grade 10 - 12","Grade 9 - 12","One of the fundamental rights granted in the United States is religious freedom, but does this mean that religion should be entirely removed from politics or that all religious voices should be considered equally? The separation of church and state was established in the Constitution, but the fact that as of 2015, 84 percent of Americans hold some sort of religious belief means that this is easier said than done. Religious morality frequently colors debates surrounding various policy issues, ranging from reproductive rights to education. This volume exposes readers to the ways in which religion inflects policymaking and the varying perspectives about religion's role in politics.","English",40.4,32.32,"322/.10973--dc23","128 pp.","https://greenhavenpublishing.com/9781534503823",null,{"$f":"Table1[[#This Row],['# of Books]]*Table1[[#This Row],[QTY]]","v":0},{"$f":"Table1[[#This Row],[QTY]]*Table1[[#This Row],[School & Library Price]]","v":0}]
[null,null,12,null,null,"Current Issues","At Issue","The Role of Religion in Public Policy","978-1-5345-0397-7",{"$f":"HYPERLINK(Table1[[#This Row],[eCommerce Hyperlink]],\"Book Weblink\")","v":"Book Weblink"},null,"Greenhaven Publishing","eBook",1,"2019","January 2019",null,null,"Edited by","Eamon Doyle",null,null,null,null,"Z",null,"Grade 10 - 12","Grade 9 - 12","One of the fundamental rights granted in the United States is religious freedom, but does this mean that religion should be entirely removed from politics or that all religious voices should be considered equally? The separation of church and state was established in the Constitution, but the fact that as of 2015, 84 percent of Americans hold some sort of religious belief means that this is easier said than done. Religious morality frequently colors debates surrounding various policy issues, ranging from reproductive rights to education. This volume exposes readers to the ways in which religion inflects policymaking and the varying perspectives about religion's role in politics.","English",40.4,32.32,"322/.10973--dc23","128 pp.","https://greenhavenpublishing.com/9781534503977",null,{"$f":"Table1[[#This Row],['# of Books]]*Table1[[#This Row],[QTY]]","v":0},{"$f":"Table1[[#This Row],[QTY]]*Table1[[#This Row],[School & Library Price]]","v":0}]
[null,null,12,null,null,"Current Issues","At Issue","The Role of Religion in Public Policy","978-1-5345-0451-6",{"$f":"HYPERLINK(Table1[[#This Row],[eCommerce Hyperlink]],\"Book Weblink\")","v":"Book Weblink"},null,"Greenhaven Publishing","Paperback Book",1,"2019","January 2019","Paperback","6.000 X 9.000","Edited by","Eamon Doyle",null,null,null,null,"Z",null,"Grade 10 - 12","Grade 9 - 12","One of the fundamental rights granted in the United States is religious freedom, but does this mean that religion should be entirely removed from politics or that all religious voices should be considered equally? The separation of church and state was established in the Constitution, but the fact that as of 2015, 84 percent of Americans hold some sort of religious belief means that this is easier said than done. Religious morality frequently colors debates surrounding various policy issues, ranging from reproductive rights to education. This volume exposes readers to the ways in which religion inflects policymaking and the varying perspectives about religion's role in politics.","English",28.8,23.05,"322/.10973--dc23","128 pp.","https://greenhavenpublishing.com/9781534504516",null,{"$f":"Table1[[#This Row],['# of Books]]*Table1[[#This Row],[QTY]]","v":0},{"$f":"Table1[[#This Row],[QTY]]*Table1[[#This Row],[School & Library Price]]","v":0}]
[null,null,12,null,null,"Current Issues","At Issue","The Role of Science in Public Policy","978-1-5345-0334-2",{"$f":"HYPERLINK(Table1[[#This Row],[eCommerce Hyperlink]],\"Book Weblink\")","v":"Book Weblink"},null,"Greenhaven Publishing","Library Bound Book",1,"2019","August 2018","Library","6.000 X 9.000","Edited by","Eamon Doyle",null,null,null,null,"Z",null,"Grade 10 - 12","Grade 9 - 12","Does science have a place when it comes to making public policy? The answer might not be as simple as many people think. Ideally, scientists discover facts, and those facts inform policy. But policy undermines the open-ended nature of scientific inquiry, and scientists end up representing an agenda rather than presenting objective truths to be used to make decisions that impact the public. Through a variety of perspectives, this volume explores who wins and who loses when science and politics mix.","English",40.4,32.32,"306.4/5/0973--dc23","128 pp.","https://greenhavenpublishing.com/9781534503342",null,{"$f":"Table1[[#This Row],['# of Books]]*Table1[[#This Row],[QTY]]","v":0},{"$f":"Table1[[#This Row],[QTY]]*Table1[[#This Row],[School & Library Price]]","v":0}]
[null,null,12,null,null,"Current Issues","At Issue","The Role of Science in Public Policy","978-1-5345-0336-6",{"$f":"HYPERLINK(Table1[[#This Row],[eCommerce Hyperlink]],\"Book Weblink\")","v":"Book Weblink"},null,"Greenhaven Publishing","eBook",1,"2019","August 2018",null,null,"Edited by","Eamon Doyle",null,null,null,null,"Z",null,"Grade 10 - 12","Grade 9 - 12","Does science have a place when it comes to making public policy? The answer might not be as simple as many people think. Ideally, scientists discover facts, and those facts inform policy. But policy undermines the open-ended nature of scientific inquiry, and scientists end up representing an agenda rather than presenting objective truths to be used to make decisions that impact the public. Through a variety of perspectives, this volume explores who wins and who loses when science and politics mix.","English",40.4,32.32,"306.4/5/0973--dc23","128 pp.","https://greenhavenpublishing.com/9781534503366",null,{"$f":"Table1[[#This Row],['# of Books]]*Table1[[#This Row],[QTY]]","v":0},{"$f":"Table1[[#This Row],[QTY]]*Table1[[#This Row],[School & Library Price]]","v":0}]
[null,null,12,null,null,"Current Issues","At Issue","The Role of Science in Public Policy","978-1-5345-0335-9",{"$f":"HYPERLINK(Table1[[#This Row],[eCommerce Hyperlink]],\"Book Weblink\")","v":"Book Weblink"},null,"Greenhaven Publishing","Paperback Book",1,"2019","August 2018","Paperback","6.000 X 9.000","Edited by","Eamon Doyle",null,null,null,null,"Z",null,"Grade 10 - 12","Grade 9 - 12","Does science have a place when it comes to making public policy? The answer might not be as simple as many people think. Ideally, scientists discover facts, and those facts inform policy. But policy undermines the open-ended nature of scientific inquiry, and scientists end up representing an agenda rather than presenting objective truths to be used to make decisions that impact the public. Through a variety of perspectives, this volume explores who wins and who loses when science and politics mix.","English",28.8,23.05,"306.4/5/0973--dc23","128 pp.","https://greenhavenpublishing.com/9781534503359",null,{"$f":"Table1[[#This Row],['# of Books]]*Table1[[#This Row],[QTY]]","v":0},{"$f":"Table1[[#This Row],[QTY]]*Table1[[#This Row],[School & Library Price]]","v":0}]
[null,null,12,null,null,"Current Issues","At Issue","Trial by Internet","978-1-5345-0069-3",{"$f":"HYPERLINK(Table1[[#This Row],[eCommerce Hyperlink]],\"Book Weblink\")","v":"Book Weblink"},null,"Greenhaven Publishing","Library Bound Book",1,"2018","August 2017","Library","6.000 X 9.000","Edited by","Avery Elizabeth Hurt",null,null,null,null,"Z","1290L","Grade 10 - 12","Grade 9 - 12","The relative anonymity the Internet provides allows us to assert our knowledge like a professor, show off our seemingly perfect lives, and judge like we're presiding over a court of law. The problem with this relatively new phenomenon is that we often make snap judgments about other people's actions or statements without knowing all of the facts, and without giving others the benefit of the doubt. This volume dives deep into the realities of the Internet age: Do we become different people when we’re on the Internet? What responsibility do we have in our treatment of others in this new society? Is it our place to be virtual judge and jury?","English",40.4,32.32,"364.2/54--dc23","136 pp.","https://greenhavenpublishing.com/9781534500693",null,{"$f":"Table1[[#This Row],['# of Books]]*Table1[[#This Row],[QTY]]","v":0},{"$f":"Table1[[#This Row],[QTY]]*Table1[[#This Row],[School & Library Price]]","v":0}]
[null,null,12,null,null,"Current Issues","At Issue","Trial by Internet","978-1-5345-0070-9",{"$f":"HYPERLINK(Table1[[#This Row],[eCommerce Hyperlink]],\"Book Weblink\")","v":"Book Weblink"},null,"Greenhaven Publishing","eBook",1,"2018","August 2017",null,null,"Edited by","Avery Elizabeth Hurt",null,null,null,null,"Z","1290L","Grade 10 - 12","Grade 9 - 12","The relative anonymity the Internet provides allows us to assert our knowledge like a professor, show off our seemingly perfect lives, and judge like we're presiding over a court of law. The problem with this relatively new phenomenon is that we often make snap judgments about other people's actions or statements without knowing all of the facts, and without giving others the benefit of the doubt. This volume dives deep into the realities of the Internet age: Do we become different people when we’re on the Internet? What responsibility do we have in our treatment of others in this new society? Is it our place to be virtual judge and jury?","English",40.4,32.32,"364.2/54--dc23","136 pp.","https://greenhavenpublishing.com/9781534500709",null,{"$f":"Table1[[#This Row],['# of Books]]*Table1[[#This Row],[QTY]]","v":0},{"$f":"Table1[[#This Row],[QTY]]*Table1[[#This Row],[School & Library Price]]","v":0}]
[null,null,12,null,null,"Current Issues","At Issue","Trial by Internet","978-1-5345-0067-9",{"$f":"HYPERLINK(Table1[[#This Row],[eCommerce Hyperlink]],\"Book Weblink\")","v":"Book Weblink"},null,"Greenhaven Publishing","Paperback Book",1,"2018","August 2017","Paperback","6.000 X 9.000","Edited by","Avery Elizabeth Hurt",null,null,null,null,"Z","1290L","Grade 10 - 12","Grade 9 - 12","The relative anonymity the Internet provides allows us to assert our knowledge like a professor, show off our seemingly perfect lives, and judge like we're presiding over a court of law. The problem with this relatively new phenomenon is that we often make snap judgments about other people's actions or statements without knowing all of the facts, and without giving others the benefit of the doubt. This volume dives deep into the realities of the Internet age: Do we become different people when we’re on the Internet? What responsibility do we have in our treatment of others in this new society? Is it our place to be virtual judge and jury?","English",28.8,23.05,"364.2/54--dc23","136 pp.","https://greenhavenpublishing.com/9781534500679",null,{"$f":"Table1[[#This Row],['# of Books]]*Table1[[#This Row],[QTY]]","v":0},{"$f":"Table1[[#This Row],[QTY]]*Table1[[#This Row],[School & Library Price]]","v":0}]
[null,null,12,null,null,"Current Issues","At Issue","Troll Factories: Russia’s Web Brigades","978-1-5345-0383-0",{"$f":"HYPERLINK(Table1[[#This Row],[eCommerce Hyperlink]],\"Book Weblink\")","v":"Book Weblink"},null,"Greenhaven Publishing","Library Bound Book",1,"2019","January 2019","Library","6.000 X 9.000","Edited by","Andrew Karpan",null,null,null,null,"Z",null,"Grade 10 - 12","Grade 9 - 12","Many Americans became aware of Russia's web brigades during the 2016 presidential election, during which allegations of Russian interference came to light. However, Russia's history of online meddling extends back to the early 2000s and far beyond just the United States. This volume explores the little known history of Russia's troll factories and the role they have played in various political movements and events, as well as the factors that enabled this interference and the possible means of combatting it.","English",40.4,32.32,"303.48/2--dc23","128 pp.","https://greenhavenpublishing.com/9781534503830",null,{"$f":"Table1[[#This Row],['# of Books]]*Table1[[#This Row],[QTY]]","v":0},{"$f":"Table1[[#This Row],[QTY]]*Table1[[#This Row],[School & Library Price]]","v":0}]
[null,null,12,null,null,"Current Issues","At Issue","Troll Factories: Russia’s Web Brigades","978-1-5345-0398-4",{"$f":"HYPERLINK(Table1[[#This Row],[eCommerce Hyperlink]],\"Book Weblink\")","v":"Book Weblink"},null,"Greenhaven Publishing","eBook",1,"2019","January 2019",null,null,"Edited by","Andrew Karpan",null,null,null,null,"Z",null,"Grade 10 - 12","Grade 9 - 12","Many Americans became aware of Russia's web brigades during the 2016 presidential election, during which allegations of Russian interference came to light. However, Russia's history of online meddling extends back to the early 2000s and far beyond just the United States. This volume explores the little known history of Russia's troll factories and the role they have played in various political movements and events, as well as the factors that enabled this interference and the possible means of combatting it.","English",40.4,32.32,"303.48/2--dc23","128 pp.","https://greenhavenpublishing.com/9781534503984",null,{"$f":"Table1[[#This Row],['# of Books]]*Table1[[#This Row],[QTY]]","v":0},{"$f":"Table1[[#This Row],[QTY]]*Table1[[#This Row],[School & Library Price]]","v":0}]
[null,null,12,null,null,"Current Issues","At Issue","Troll Factories: Russia’s Web Brigades","978-1-5345-0453-0",{"$f":"HYPERLINK(Table1[[#This Row],[eCommerce Hyperlink]],\"Book Weblink\")","v":"Book Weblink"},null,"Greenhaven Publishing","Paperback Book",1,"2019","January 2019","Paperback","6.000 X 9.000","Edited by","Andrew Karpan",null,null,null,null,"Z",null,"Grade 10 - 12","Grade 9 - 12","Many Americans became aware of Russia's web brigades during the 2016 presidential election, during which allegations of Russian interference came to light. However, Russia's history of online meddling extends back to the early 2000s and far beyond just the United States. This volume explores the little known history of Russia's troll factories and the role they have played in various political movements and events, as well as the factors that enabled this interference and the possible means of combatting it.","English",28.8,23.05,"303.48/2--dc23","128 pp.","https://greenhavenpublishing.com/9781534504530",null,{"$f":"Table1[[#This Row],['# of Books]]*Table1[[#This Row],[QTY]]","v":0},{"$f":"Table1[[#This Row],[QTY]]*Table1[[#This Row],[School & Library Price]]","v":0}]
[null,11,12,null,null,"Current Issues","At Issue","Universal Health Care","978-1-5345-0626-8",{"$f":"HYPERLINK(Table1[[#This Row],[eCommerce Hyperlink]],\"Book Weblink\")","v":"Book Weblink"},null,"Greenhaven Publishing","Library Bound Book",1,"2020","January 2020","Library","6.000 X 9.000","Edited by","Marcia Amidon Lusted",null,null,null,null,"Z",null,"Grade 10 - 12","Grade 9 - 12","Under universal health care, all residents of a country would be guaranteed care without incurring financial hardship, regardless of income. Out of the thirty-three countries that are considered developed, thirty-two have universal health care, with the United States being the exception. However, despite the widespread nature of universal health care, its implementation varies between countries. Additionally, despite its positive health impacts, the financial burden it places on governments is a major source of concern. This volume helps readers examine this issue through exploring economic, political, and health considerations, taking all sides of the debate into account.","English",40.4,32.32,"362.1/04250973--dc23","128 pp.","https://greenhavenpublishing.com/9781534506268",null,{"$f":"Table1[[#This Row],['# of Books]]*Table1[[#This Row],[QTY]]","v":0},{"$f":"Table1[[#This Row],[QTY]]*Table1[[#This Row],[School & Library Price]]","v":0}]
[null,11,12,null,null,"Current Issues","At Issue","Universal Health Care","978-1-5345-0627-5",{"$f":"HYPERLINK(Table1[[#This Row],[eCommerce Hyperlink]],\"Book Weblink\")","v":"Book Weblink"},null,"Greenhaven Publishing","eBook",1,"2020","January 2020",null,null,"Edited by","Marcia Amidon Lusted",null,null,null,null,"Z",null,"Grade 10 - 12","Grade 9 - 12","Under universal health care, all residents of a country would be guaranteed care without incurring financial hardship, regardless of income. Out of the thirty-three countries that are considered developed, thirty-two have universal health care, with the United States being the exception. However, despite the widespread nature of universal health care, its implementation varies between countries. Additionally, despite its positive health impacts, the financial burden it places on governments is a major source of concern. This volume helps readers examine this issue through exploring economic, political, and health considerations, taking all sides of the debate into account.","English",40.4,32.32,"362.1/04250973--dc23","128 pp.","https://greenhavenpublishing.com/9781534506275",null,{"$f":"Table1[[#This Row],['# of Books]]*Table1[[#This Row],[QTY]]","v":0},{"$f":"Table1[[#This Row],[QTY]]*Table1[[#This Row],[School & Library Price]]","v":0}]
[null,11,12,null,null,"Current Issues","At Issue","Universal Health Care","978-1-5345-0625-1",{"$f":"HYPERLINK(Table1[[#This Row],[eCommerce Hyperlink]],\"Book Weblink\")","v":"Book Weblink"},null,"Greenhaven Publishing","Paperback Book",1,"2020","January 2020","Paperback","6.000 X 9.000","Edited by","Marcia Amidon Lusted",null,null,null,null,"Z",null,"Grade 10 - 12","Grade 9 - 12","Under universal health care, all residents of a country would be guaranteed care without incurring financial hardship, regardless of income. Out of the thirty-three countries that are considered developed, thirty-two have universal health care, with the United States being the exception. However, despite the widespread nature of universal health care, its implementation varies between countries. Additionally, despite its positive health impacts, the financial burden it places on governments is a major source of concern. This volume helps readers examine this issue through exploring economic, political, and health considerations, taking all sides of the debate into account.","English",28.8,23.05,"362.1/04250973--dc23","128 pp.","https://greenhavenpublishing.com/9781534506251",null,{"$f":"Table1[[#This Row],['# of Books]]*Table1[[#This Row],[QTY]]","v":0},{"$f":"Table1[[#This Row],[QTY]]*Table1[[#This Row],[School & Library Price]]","v":0}]
[null,11,12,null,null,"Current Issues","At Issue","Vaccination","978-1-5345-0629-9",{"$f":"HYPERLINK(Table1[[#This Row],[eCommerce Hyperlink]],\"Book Weblink\")","v":"Book Weblink"},null,"Greenhaven Publishing","Library Bound Book",1,"2020","January 2020","Library","6.000 X 9.000","Edited by","Lisa Idzikowski",null,null,null,null,"Z",null,"Grade 10 - 12","Grade 9 - 12","Give your readers a comprehensive resource that will allow them to form intelligent opinions on a perennial, hot-button topic. Since the smallpox vaccine was invented in 1796, vaccination has played an essential role in eradicating a number of diseases, including polio, measles, tetanus, and smallpox. Despite its effectiveness at preventing disease outbreaks, vaccination has been met with resistance. It has on rare occasions caused patients to become injured or ill, encouraging some to deduce that they are not worth the risk. Questions about whether vaccines are linked to autism also abound. While universal vaccination would help to eliminate diseases, the question of whether it violates individual liberty merits consideration. The prospective future of vaccination is also discussed.","English",40.4,32.32,"615.3/72--dc23","128 pp.","https://greenhavenpublishing.com/9781534506299",null,{"$f":"Table1[[#This Row],['# of Books]]*Table1[[#This Row],[QTY]]","v":0},{"$f":"Table1[[#This Row],[QTY]]*Table1[[#This Row],[School & Library Price]]","v":0}]
[null,11,12,null,null,"Current Issues","At Issue","Vaccination","978-1-5345-0630-5",{"$f":"HYPERLINK(Table1[[#This Row],[eCommerce Hyperlink]],\"Book Weblink\")","v":"Book Weblink"},null,"Greenhaven Publishing","eBook",1,"2020","January 2020",null,null,"Edited by","Lisa Idzikowski",null,null,null,null,"Z",null,"Grade 10 - 12","Grade 9 - 12","Give your readers a comprehensive resource that will allow them to form intelligent opinions on a perennial, hot-button topic. Since the smallpox vaccine was invented in 1796, vaccination has played an essential role in eradicating a number of diseases, including polio, measles, tetanus, and smallpox. Despite its effectiveness at preventing disease outbreaks, vaccination has been met with resistance. It has on rare occasions caused patients to become injured or ill, encouraging some to deduce that they are not worth the risk. Questions about whether vaccines are linked to autism also abound. While universal vaccination would help to eliminate diseases, the question of whether it violates individual liberty merits consideration. The prospective future of vaccination is also discussed.","English",40.4,32.32,"615.3/72--dc23","128 pp.","https://greenhavenpublishing.com/9781534506305",null,{"$f":"Table1[[#This Row],['# of Books]]*Table1[[#This Row],[QTY]]","v":0},{"$f":"Table1[[#This Row],[QTY]]*Table1[[#This Row],[School & Library Price]]","v":0}]
[null,11,12,null,null,"Current Issues","At Issue","Vaccination","978-1-5345-0628-2",{"$f":"HYPERLINK(Table1[[#This Row],[eCommerce Hyperlink]],\"Book Weblink\")","v":"Book Weblink"},null,"Greenhaven Publishing","Paperback Book",1,"2020","January 2020","Paperback","6.000 X 9.000","Edited by","Lisa Idzikowski",null,null,null,null,"Z",null,"Grade 10 - 12","Grade 9 - 12","Give your readers a comprehensive resource that will allow them to form intelligent opinions on a perennial, hot-button topic. Since the smallpox vaccine was invented in 1796, vaccination has played an essential role in eradicating a number of diseases, including polio, measles, tetanus, and smallpox. Despite its effectiveness at preventing disease outbreaks, vaccination has been met with resistance. It has on rare occasions caused patients to become injured or ill, encouraging some to deduce that they are not worth the risk. Questions about whether vaccines are linked to autism also abound. While universal vaccination would help to eliminate diseases, the question of whether it violates individual liberty merits consideration. The prospective future of vaccination is also discussed.","English",28.8,23.05,"615.3/72--dc23","128 pp.","https://greenhavenpublishing.com/9781534506282",null,{"$f":"Table1[[#This Row],['# of Books]]*Table1[[#This Row],[QTY]]","v":0},{"$f":"Table1[[#This Row],[QTY]]*Table1[[#This Row],[School & Library Price]]","v":0}]
[null,null,12,null,null,"Current Issues","At Issue","Vaping","978-1-5345-0512-4",{"$f":"HYPERLINK(Table1[[#This Row],[eCommerce Hyperlink]],\"Book Weblink\")","v":"Book Weblink"},null,"Greenhaven Publishing","Library Bound Book",1,"2020","August 2019","Library","6.000 X 9.000","Edited by","Andrew Karpan",null,null,null,null,"Z",null,"Grade 10 - 12","Grade 9 - 12","Though first introduced in 2003, vaping's popularity has rapidly increased in recent years. Vaping involves the inhalation of aerosols and is generally considered safer than smoking tobacco, but little is currently known about its health impacts. Additionally, although evidence suggests that vaping can help curb tobacco smoking, there is also concern that it increases addiction among non-smokers, especially children and teenagers. This concern is exacerbated by marketing strategies for electronic cigarettes, which often seem targeted toward young people. The perspectives in this resource explore the facts that are currently available on vaping along with its relationship to addictive substances.","English",40.4,32.32,"362.29/6--dc23","128 pp.","https://greenhavenpublishing.com/9781534505124",null,{"$f":"Table1[[#This Row],['# of Books]]*Table1[[#This Row],[QTY]]","v":0},{"$f":"Table1[[#This Row],[QTY]]*Table1[[#This Row],[School & Library Price]]","v":0}]
[null,null,12,null,null,"Current Issues","At Issue","Vaping","978-1-5345-0514-8",{"$f":"HYPERLINK(Table1[[#This Row],[eCommerce Hyperlink]],\"Book Weblink\")","v":"Book Weblink"},null,"Greenhaven Publishing","eBook",1,"2020","August 2019",null,null,"Edited by","Andrew Karpan",null,null,null,null,"Z",null,"Grade 10 - 12","Grade 9 - 12","Though first introduced in 2003, vaping's popularity has rapidly increased in recent years. Vaping involves the inhalation of aerosols and is generally considered safer than smoking tobacco, but little is currently known about its health impacts. Additionally, although evidence suggests that vaping can help curb tobacco smoking, there is also concern that it increases addiction among non-smokers, especially children and teenagers. This concern is exacerbated by marketing strategies for electronic cigarettes, which often seem targeted toward young people. The perspectives in this resource explore the facts that are currently available on vaping along with its relationship to addictive substances.","English",40.4,32.32,"362.29/6--dc23","128 pp.","https://greenhavenpublishing.com/9781534505148",null,{"$f":"Table1[[#This Row],['# of Books]]*Table1[[#This Row],[QTY]]","v":0},{"$f":"Table1[[#This Row],[QTY]]*Table1[[#This Row],[School & Library Price]]","v":0}]
[null,null,12,null,null,"Current Issues","At Issue","Vaping","978-1-5345-0513-1",{"$f":"HYPERLINK(Table1[[#This Row],[eCommerce Hyperlink]],\"Book Weblink\")","v":"Book Weblink"},null,"Greenhaven Publishing","Paperback Book",1,"2020","August 2019","Paperback","6.000 X 9.000","Edited by","Andrew Karpan",null,null,null,null,"Z",null,"Grade 10 - 12","Grade 9 - 12","Though first introduced in 2003, vaping's popularity has rapidly increased in recent years. Vaping involves the inhalation of aerosols and is generally considered safer than smoking tobacco, but little is currently known about its health impacts. Additionally, although evidence suggests that vaping can help curb tobacco smoking, there is also concern that it increases addiction among non-smokers, especially children and teenagers. This concern is exacerbated by marketing strategies for electronic cigarettes, which often seem targeted toward young people. The perspectives in this resource explore the facts that are currently available on vaping along with its relationship to addictive substances.","English",28.8,23.05,"362.29/6--dc23","128 pp.","https://greenhavenpublishing.com/9781534505131",null,{"$f":"Table1[[#This Row],['# of Books]]*Table1[[#This Row],[QTY]]","v":0},{"$f":"Table1[[#This Row],[QTY]]*Table1[[#This Row],[School & Library Price]]","v":0}]
[null,null,12,null,null,"Current Issues","At Issue","Violent Video Games","978-0-7377-7195-4",{"$f":"HYPERLINK(Table1[[#This Row],[eCommerce Hyperlink]],\"Book Weblink\")","v":"Book Weblink"},null,"Greenhaven Publishing","Library Bound Book",1,"2015","August 2015","Library","6.000 X 9.000","Edited by","Roman Espejo",null,null,null,null,null,null,"Grade 10 - 12","Grade 9 - 12","While organizations such as the American Psychological Association release statements that research supports a link between violent video game use and an increase in aggressive behavior, independent studies (such as one by Whitney DeCamp), show little or no relationship between the two. Those who believe that there are no significant links, caution researchers to avoid compiling evidence 'in a vacuum.' This sets the stage for a very hot debate, especially amongst any of your readers who love violent video games. A variety of narratives are compiled through eyewitness accounts, governmental views, scientific analysis, and newspaper accounts, so readers can decide for themselves how they feel about this issue. Important facts are pulled out from the main text and highlighted so that readers can isolate details for their research or report writing.","English",40.4,32.32,"794.8083--dc23","104 pp.","https://greenhavenpublishing.com/9780737771954",null,{"$f":"Table1[[#This Row],['# of Books]]*Table1[[#This Row],[QTY]]","v":0},{"$f":"Table1[[#This Row],[QTY]]*Table1[[#This Row],[School & Library Price]]","v":0}]
[null,null,12,null,null,"Current Issues","At Issue","Violent Video Games","978-1-5345-0254-3",{"$f":"HYPERLINK(Table1[[#This Row],[eCommerce Hyperlink]],\"Book Weblink\")","v":"Book Weblink"},null,"Greenhaven Publishing","eBook",1,"2015","August 2015",null,null,"Edited by","Roman Espejo",null,null,null,null,null,null,"Grade 10 - 12","Grade 9 - 12","While organizations such as the American Psychological Association release statements that research supports a link between violent video game use and an increase in aggressive behavior, independent studies (such as one by Whitney DeCamp), show little or no relationship between the two. Those who believe that there are no significant links, caution researchers to avoid compiling evidence 'in a vacuum.' This sets the stage for a very hot debate, especially amongst any of your readers who love violent video games. A variety of narratives are compiled through eyewitness accounts, governmental views, scientific analysis, and newspaper accounts, so readers can decide for themselves how they feel about this issue. Important facts are pulled out from the main text and highlighted so that readers can isolate details for their research or report writing.","English",40.4,32.32,"794.8083--dc23","104 pp.","https://greenhavenpublishing.com/9781534502543",null,{"$f":"Table1[[#This Row],['# of Books]]*Table1[[#This Row],[QTY]]","v":0},{"$f":"Table1[[#This Row],[QTY]]*Table1[[#This Row],[School & Library Price]]","v":0}]
[null,null,12,null,null,"Current Issues","At Issue","Violent Video Games","978-0-7377-7196-1",{"$f":"HYPERLINK(Table1[[#This Row],[eCommerce Hyperlink]],\"Book Weblink\")","v":"Book Weblink"},null,"Greenhaven Publishing","Paperback Book",1,"2015","August 2015","Paperback","6.000 X 9.000","Edited by","Roman Espejo",null,null,null,null,null,null,"Grade 10 - 12","Grade 9 - 12","While organizations such as the American Psychological Association release statements that research supports a link between violent video game use and an increase in aggressive behavior, independent studies (such as one by Whitney DeCamp), show little or no relationship between the two. Those who believe that there are no significant links, caution researchers to avoid compiling evidence 'in a vacuum.' This sets the stage for a very hot debate, especially amongst any of your readers who love violent video games. A variety of narratives are compiled through eyewitness accounts, governmental views, scientific analysis, and newspaper accounts, so readers can decide for themselves how they feel about this issue. Important facts are pulled out from the main text and highlighted so that readers can isolate details for their research or report writing.","English",28.8,23.05,"794.8083--dc23","104 pp.","https://greenhavenpublishing.com/9780737771961",null,{"$f":"Table1[[#This Row],['# of Books]]*Table1[[#This Row],[QTY]]","v":0},{"$f":"Table1[[#This Row],[QTY]]*Table1[[#This Row],[School & Library Price]]","v":0}]
[null,null,12,null,null,"Current Issues","At Issue","Voter Fraud","978-0-7377-7370-5",{"$f":"HYPERLINK(Table1[[#This Row],[eCommerce Hyperlink]],\"Book Weblink\")","v":"Book Weblink"},null,"Greenhaven Publishing","Library Bound Book",1,"2016","January 2016","Library","6.000 X 9.000","Edited by","Sarah Armstrong",null,null,null,null,"Z",null,"Grade 10 - 12","Grade 9 - 12","During the 2016 Presidential election, there were repeated allegations made about voter fraud, by the winning candidate. Semi-annual studies by the Brennan Center for Justice of NYU conclusively demonstrate however, that most allegations of fraud turn out to be baseless. Issues relating to false numbers are more often the result of mistakes made by voters and election officials than intentional foul play. Nevertheless, voter fraud can occur. This edition examines issues related to election processes and the problem of fraud. It includes primary and secondary sources from a variety of perspectives; eyewitnesses, scientific journals, government officials, and many others.","English",40.4,32.32,"324.6/60973","120 pp.","https://greenhavenpublishing.com/9780737773705",null,{"$f":"Table1[[#This Row],['# of Books]]*Table1[[#This Row],[QTY]]","v":0},{"$f":"Table1[[#This Row],[QTY]]*Table1[[#This Row],[School & Library Price]]","v":0}]
[null,null,12,null,null,"Current Issues","At Issue","Voter Fraud","978-0-7377-7664-5",{"$f":"HYPERLINK(Table1[[#This Row],[eCommerce Hyperlink]],\"Book Weblink\")","v":"Book Weblink"},null,"Greenhaven Publishing","eBook",1,"2016","January 2016",null,null,"Edited by","Sarah Armstrong",null,null,null,null,"Z",null,"Grade 10 - 12","Grade 9 - 12","During the 2016 Presidential election, there were repeated allegations made about voter fraud, by the winning candidate. Semi-annual studies by the Brennan Center for Justice of NYU conclusively demonstrate however, that most allegations of fraud turn out to be baseless. Issues relating to false numbers are more often the result of mistakes made by voters and election officials than intentional foul play. Nevertheless, voter fraud can occur. This edition examines issues related to election processes and the problem of fraud. It includes primary and secondary sources from a variety of perspectives; eyewitnesses, scientific journals, government officials, and many others.","English",40.4,32.32,"324.6/60973","120 pp.","https://greenhavenpublishing.com/9780737776645",null,{"$f":"Table1[[#This Row],['# of Books]]*Table1[[#This Row],[QTY]]","v":0},{"$f":"Table1[[#This Row],[QTY]]*Table1[[#This Row],[School & Library Price]]","v":0}]
[null,null,12,null,null,"Current Issues","At Issue","Voter Fraud","978-0-7377-7371-2",{"$f":"HYPERLINK(Table1[[#This Row],[eCommerce Hyperlink]],\"Book Weblink\")","v":"Book Weblink"},null,"Greenhaven Publishing","Paperback Book",1,"2016","January 2016","Paperback","6.000 X 9.000","Edited by","Sarah Armstrong",null,null,null,null,"Z",null,"Grade 10 - 12","Grade 9 - 12","During the 2016 Presidential election, there were repeated allegations made about voter fraud, by the winning candidate. Semi-annual studies by the Brennan Center for Justice of NYU conclusively demonstrate however, that most allegations of fraud turn out to be baseless. Issues relating to false numbers are more often the result of mistakes made by voters and election officials than intentional foul play. Nevertheless, voter fraud can occur. This edition examines issues related to election processes and the problem of fraud. It includes primary and secondary sources from a variety of perspectives; eyewitnesses, scientific journals, government officials, and many others.","English",28.8,23.05,"324.6/60973","120 pp.","https://greenhavenpublishing.com/9780737773712",null,{"$f":"Table1[[#This Row],['# of Books]]*Table1[[#This Row],[QTY]]","v":0},{"$f":"Table1[[#This Row],[QTY]]*Table1[[#This Row],[School & Library Price]]","v":0}]
[null,10,12,null,null,"Current Issues","At Issue","Wellness Culture","978-1-5345-0812-5",{"$f":"HYPERLINK(Table1[[#This Row],[eCommerce Hyperlink]],\"Book Weblink\")","v":"Book Weblink"},null,"Greenhaven Publishing","Library Bound Book",1,"2022","August 2021","Library","6.000 X 9.000","Compiled by","Sabine Cherenfant",null,null,null,null,"Z",null,"Grade 10 - 12","Grade 9 - 12","Wellness culture promises a reprieve from the stress of long workdays, restrictive dieting, and punishing exercises through providing the alternative of a balanced lifestyle that simply focuses on feeling good. However, the reality of wellness culture is more complicated. While some assert that it successfully promotes well-being, others argue that it is simply a way of rebranding the dieting and exercise regimens that already existed, building an industry around the products and services that allegedly promote wellness. This volume clarifies the nebulous concept of \"wellness\" and explores how culture, business, and health intersect to create today's wellness culture.","English",40.4,32.32,"613--dc23","128 pp.","https://greenhavenpublishing.com/9781534508125",null,{"$f":"Table1[[#This Row],['# of Books]]*Table1[[#This Row],[QTY]]","v":0},{"$f":"Table1[[#This Row],[QTY]]*Table1[[#This Row],[School & Library Price]]","v":0}]
[null,10,12,null,null,"Current Issues","At Issue","Wellness Culture","978-1-5345-0813-2",{"$f":"HYPERLINK(Table1[[#This Row],[eCommerce Hyperlink]],\"Book Weblink\")","v":"Book Weblink"},null,"Greenhaven Publishing","eBook",1,"2022","August 2021",null,null,"Compiled by","Sabine Cherenfant",null,null,null,null,"Z",null,"Grade 10 - 12","Grade 9 - 12","Wellness culture promises a reprieve from the stress of long workdays, restrictive dieting, and punishing exercises through providing the alternative of a balanced lifestyle that simply focuses on feeling good. However, the reality of wellness culture is more complicated. While some assert that it successfully promotes well-being, others argue that it is simply a way of rebranding the dieting and exercise regimens that already existed, building an industry around the products and services that allegedly promote wellness. This volume clarifies the nebulous concept of \"wellness\" and explores how culture, business, and health intersect to create today's wellness culture.","English",40.4,32.32,"613--dc23","128 pp.","https://greenhavenpublishing.com/9781534508132",null,{"$f":"Table1[[#This Row],['# of Books]]*Table1[[#This Row],[QTY]]","v":0},{"$f":"Table1[[#This Row],[QTY]]*Table1[[#This Row],[School & Library Price]]","v":0}]
[null,10,12,null,null,"Current Issues","At Issue","Wellness Culture","978-1-5345-0811-8",{"$f":"HYPERLINK(Table1[[#This Row],[eCommerce Hyperlink]],\"Book Weblink\")","v":"Book Weblink"},null,"Greenhaven Publishing","Paperback Book",1,"2022","August 2021","Paperback","6.000 X 9.000","Compiled by","Sabine Cherenfant",null,null,null,null,"Z",null,"Grade 10 - 12","Grade 9 - 12","Wellness culture promises a reprieve from the stress of long workdays, restrictive dieting, and punishing exercises through providing the alternative of a balanced lifestyle that simply focuses on feeling good. However, the reality of wellness culture is more complicated. While some assert that it successfully promotes well-being, others argue that it is simply a way of rebranding the dieting and exercise regimens that already existed, building an industry around the products and services that allegedly promote wellness. This volume clarifies the nebulous concept of \"wellness\" and explores how culture, business, and health intersect to create today's wellness culture.","English",28.8,23.05,"613--dc23","128 pp.","https://greenhavenpublishing.com/9781534508118",null,{"$f":"Table1[[#This Row],['# of Books]]*Table1[[#This Row],[QTY]]","v":0},{"$f":"Table1[[#This Row],[QTY]]*Table1[[#This Row],[School & Library Price]]","v":0}]
[null,null,12,null,null,"Current Issues","At Issue","What Are the Jobs of the Future?","978-0-7377-7199-2",{"$f":"HYPERLINK(Table1[[#This Row],[eCommerce Hyperlink]],\"Book Weblink\")","v":"Book Weblink"},null,"Greenhaven Publishing","Library Bound Book",1,"2015","August 2015","Library","6.000 X 9.000","Edited by","Roman Espejo",null,null,null,null,null,null,"Grade 10 - 12","Grade 9 - 12","The rise of robot automation in the automobile manufacturing industry struck fear into many a laborer's heart, as it was equated with human job and career loss. A Ball State University 2015 study found 88 percent of U.S. job loss was due to robots or homegrown factors to reduce factories' need for human labor. The International Federation of Robotics, however reported that between 2010 and 2015, the U.S. automotive sector installed 135,000 robots, but hired 230,000 human employees. So while technology advances, will it replace us in our current jobs, or create new ones for us? Is Data Scientist the most promising job of the future, or is that all techno-hype? Are our office environments going to be replaced by the off-site work-at-home or freelance model? This book compiles essays and works from eyewitness accounts, governmental views, scientific analysis, and newspapers to give your readers the forecast of jobs to come. Salient facts are pulled out from the text and repeated, making it easy for students to compile details for research and report writing.","English",40.4,32.32,"331.702--dc23","120 pp.","https://greenhavenpublishing.com/9780737771992",null,{"$f":"Table1[[#This Row],['# of Books]]*Table1[[#This Row],[QTY]]","v":0},{"$f":"Table1[[#This Row],[QTY]]*Table1[[#This Row],[School & Library Price]]","v":0}]
[null,null,12,null,null,"Current Issues","At Issue","What Are the Jobs of the Future?","978-1-5345-0255-0",{"$f":"HYPERLINK(Table1[[#This Row],[eCommerce Hyperlink]],\"Book Weblink\")","v":"Book Weblink"},null,"Greenhaven Publishing","eBook",1,"2015","August 2015",null,null,"Edited by","Roman Espejo",null,null,null,null,null,null,"Grade 10 - 12","Grade 9 - 12","The rise of robot automation in the automobile manufacturing industry struck fear into many a laborer's heart, as it was equated with human job and career loss. A Ball State University 2015 study found 88 percent of U.S. job loss was due to robots or homegrown factors to reduce factories' need for human labor. The International Federation of Robotics, however reported that between 2010 and 2015, the U.S. automotive sector installed 135,000 robots, but hired 230,000 human employees. So while technology advances, will it replace us in our current jobs, or create new ones for us? Is Data Scientist the most promising job of the future, or is that all techno-hype? Are our office environments going to be replaced by the off-site work-at-home or freelance model? This book compiles essays and works from eyewitness accounts, governmental views, scientific analysis, and newspapers to give your readers the forecast of jobs to come. Salient facts are pulled out from the text and repeated, making it easy for students to compile details for research and report writing.","English",40.4,32.32,"331.702--dc23","120 pp.","https://greenhavenpublishing.com/9781534502550",null,{"$f":"Table1[[#This Row],['# of Books]]*Table1[[#This Row],[QTY]]","v":0},{"$f":"Table1[[#This Row],[QTY]]*Table1[[#This Row],[School & Library Price]]","v":0}]
[null,null,12,null,null,"Current Issues","At Issue","What Are the Jobs of the Future?","978-0-7377-7200-5",{"$f":"HYPERLINK(Table1[[#This Row],[eCommerce Hyperlink]],\"Book Weblink\")","v":"Book Weblink"},null,"Greenhaven Publishing","Paperback Book",1,"2015","August 2015","Paperback","6.000 X 9.000","Edited by","Roman Espejo",null,null,null,null,null,null,"Grade 10 - 12","Grade 9 - 12","The rise of robot automation in the automobile manufacturing industry struck fear into many a laborer's heart, as it was equated with human job and career loss. A Ball State University 2015 study found 88 percent of U.S. job loss was due to robots or homegrown factors to reduce factories' need for human labor. The International Federation of Robotics, however reported that between 2010 and 2015, the U.S. automotive sector installed 135,000 robots, but hired 230,000 human employees. So while technology advances, will it replace us in our current jobs, or create new ones for us? Is Data Scientist the most promising job of the future, or is that all techno-hype? Are our office environments going to be replaced by the off-site work-at-home or freelance model? This book compiles essays and works from eyewitness accounts, governmental views, scientific analysis, and newspapers to give your readers the forecast of jobs to come. Salient facts are pulled out from the text and repeated, making it easy for students to compile details for research and report writing.","English",28.8,23.05,"331.702--dc23","120 pp.","https://greenhavenpublishing.com/9780737772005",null,{"$f":"Table1[[#This Row],['# of Books]]*Table1[[#This Row],[QTY]]","v":0},{"$f":"Table1[[#This Row],[QTY]]*Table1[[#This Row],[School & Library Price]]","v":0}]
[null,null,12,null,null,"Current Issues","At Issue","What Is the Impact of Green Practices?","978-0-7377-7414-6",{"$f":"HYPERLINK(Table1[[#This Row],[eCommerce Hyperlink]],\"Book Weblink\")","v":"Book Weblink"},null,"Greenhaven Publishing","Library Bound Book",1,"2016","January 2016","Library","6.000 X 9.000","Edited by","Tamara Thompson",null,null,null,null,"Z",null,"Grade 10 - 12","Grade 9 - 12","Consumers have long been encouraged to reduce, reuse, and recycle, but environmental awareness has come a long way since the first Earth Day in 1970. Blue trash bins are everywhere the eye can see, and consumers know they have places to put certain materials to make a helpful impact on waste management. People are reminded in stores, restaurants, and other places that they can reuse items, or reduce waste by using items sparingly. This book examines what effect, if any, practicing the \"three R's\" has had on the planet, giving readers both sides of the topic.","English",40.4,32.32,"363.7","112 pp.","https://greenhavenpublishing.com/9780737774146",null,{"$f":"Table1[[#This Row],['# of Books]]*Table1[[#This Row],[QTY]]","v":0},{"$f":"Table1[[#This Row],[QTY]]*Table1[[#This Row],[School & Library Price]]","v":0}]
[null,null,12,null,null,"Current Issues","At Issue","What Is the Impact of Green Practices?","978-0-7377-7667-6",{"$f":"HYPERLINK(Table1[[#This Row],[eCommerce Hyperlink]],\"Book Weblink\")","v":"Book Weblink"},null,"Greenhaven Publishing","eBook",1,"2016","January 2016",null,null,"Edited by","Tamara Thompson",null,null,null,null,"Z",null,"Grade 10 - 12","Grade 9 - 12","Consumers have long been encouraged to reduce, reuse, and recycle, but environmental awareness has come a long way since the first Earth Day in 1970. Blue trash bins are everywhere the eye can see, and consumers know they have places to put certain materials to make a helpful impact on waste management. People are reminded in stores, restaurants, and other places that they can reuse items, or reduce waste by using items sparingly. This book examines what effect, if any, practicing the \"three R's\" has had on the planet, giving readers both sides of the topic.","English",40.4,32.32,"363.7","112 pp.","https://greenhavenpublishing.com/9780737776676",null,{"$f":"Table1[[#This Row],['# of Books]]*Table1[[#This Row],[QTY]]","v":0},{"$f":"Table1[[#This Row],[QTY]]*Table1[[#This Row],[School & Library Price]]","v":0}]
[null,null,12,null,null,"Current Issues","At Issue","What Is the Impact of Green Practices?","978-0-7377-7415-3",{"$f":"HYPERLINK(Table1[[#This Row],[eCommerce Hyperlink]],\"Book Weblink\")","v":"Book Weblink"},null,"Greenhaven Publishing","Paperback Book",1,"2016","January 2016","Paperback","6.000 X 9.000","Edited by","Tamara Thompson",null,null,null,null,"Z",null,"Grade 10 - 12","Grade 9 - 12","Consumers have long been encouraged to reduce, reuse, and recycle, but environmental awareness has come a long way since the first Earth Day in 1970. Blue trash bins are everywhere the eye can see, and consumers know they have places to put certain materials to make a helpful impact on waste management. People are reminded in stores, restaurants, and other places that they can reuse items, or reduce waste by using items sparingly. This book examines what effect, if any, practicing the \"three R's\" has had on the planet, giving readers both sides of the topic.","English",28.8,23.05,"363.7","112 pp.","https://greenhavenpublishing.com/9780737774153",null,{"$f":"Table1[[#This Row],['# of Books]]*Table1[[#This Row],[QTY]]","v":0},{"$f":"Table1[[#This Row],[QTY]]*Table1[[#This Row],[School & Library Price]]","v":0}]
[null,null,12,null,null,"Current Issues","At Issue","What Should We Eat?","978-0-7377-7390-3",{"$f":"HYPERLINK(Table1[[#This Row],[eCommerce Hyperlink]],\"Book Weblink\")","v":"Book Weblink"},null,"Greenhaven Publishing","Library Bound Book",1,"2016","January 2016","Library","6.000 X 9.000","Edited by","Roman Espejo",null,null,null,null,"Z",null,"Grade 10 - 12","Grade 9 - 12","Gluten, red meat, fish, insects, all things we do or don't eat, but could. Should we? This book explores how best to sustain ourselves, from organic food to fast food. Readers are treated to both sides of current dietary views on how humans should be eating for health and longevity.","English",40.4,32.32,"613.2","104 pp.","https://greenhavenpublishing.com/9780737773903",null,{"$f":"Table1[[#This Row],['# of Books]]*Table1[[#This Row],[QTY]]","v":0},{"$f":"Table1[[#This Row],[QTY]]*Table1[[#This Row],[School & Library Price]]","v":0}]
[null,null,12,null,null,"Current Issues","At Issue","What Should We Eat?","978-0-7377-7666-9",{"$f":"HYPERLINK(Table1[[#This Row],[eCommerce Hyperlink]],\"Book Weblink\")","v":"Book Weblink"},null,"Greenhaven Publishing","eBook",1,"2016","January 2016",null,null,"Edited by","Roman Espejo",null,null,null,null,"Z",null,"Grade 10 - 12","Grade 9 - 12","Gluten, red meat, fish, insects, all things we do or don't eat, but could. Should we? This book explores how best to sustain ourselves, from organic food to fast food. Readers are treated to both sides of current dietary views on how humans should be eating for health and longevity.","English",40.4,32.32,"613.2","104 pp.","https://greenhavenpublishing.com/9780737776669",null,{"$f":"Table1[[#This Row],['# of Books]]*Table1[[#This Row],[QTY]]","v":0},{"$f":"Table1[[#This Row],[QTY]]*Table1[[#This Row],[School & Library Price]]","v":0}]
[null,null,12,null,null,"Current Issues","At Issue","What Should We Eat?","978-0-7377-7391-0",{"$f":"HYPERLINK(Table1[[#This Row],[eCommerce Hyperlink]],\"Book Weblink\")","v":"Book Weblink"},null,"Greenhaven Publishing","Paperback Book",1,"2016","January 2016","Paperback","6.000 X 9.000","Edited by","Roman Espejo",null,null,null,null,"Z",null,"Grade 10 - 12","Grade 9 - 12","Gluten, red meat, fish, insects, all things we do or don't eat, but could. Should we? This book explores how best to sustain ourselves, from organic food to fast food. Readers are treated to both sides of current dietary views on how humans should be eating for health and longevity.","English",28.8,23.05,"613.2","104 pp.","https://greenhavenpublishing.com/9780737773910",null,{"$f":"Table1[[#This Row],['# of Books]]*Table1[[#This Row],[QTY]]","v":0},{"$f":"Table1[[#This Row],[QTY]]*Table1[[#This Row],[School & Library Price]]","v":0}]
[null,null,12,null,null,"Current Issues","At Issue","When Is Free Speech Hate Speech?","978-1-5345-0077-8",{"$f":"HYPERLINK(Table1[[#This Row],[eCommerce Hyperlink]],\"Book Weblink\")","v":"Book Weblink"},null,"Greenhaven Publishing","Library Bound Book",1,"2018","August 2017","Library","6.000 X 9.000","Edited by","Martin Gitlin",null,null,null,null,"Z","1340L","Grade 10 - 12","Grade 9 - 12","Free speech is guaranteed under the First Amendment. Although it may hurt and offend, hate speech is still free, under most circumstances. But what happens when institutions like universities adopt policies prohibiting offensive speech? Do such policies cause more harm than good? Should measures be taken to curb threatening or insulting comments? Or does that amount to little more than censorship? Is our quest to be polite and politically correct curtailing opportunities to express, learn, and grow? When does free speech become criminally threatening? These questions and more are thoughtfully examined in this important resource.","English",40.4,32.32,"323.44/30973--dc23","160 pp.","https://greenhavenpublishing.com/9781534500778",null,{"$f":"Table1[[#This Row],['# of Books]]*Table1[[#This Row],[QTY]]","v":0},{"$f":"Table1[[#This Row],[QTY]]*Table1[[#This Row],[School & Library Price]]","v":0}]
[null,null,12,null,null,"Current Issues","At Issue","When Is Free Speech Hate Speech?","978-1-5345-0079-2",{"$f":"HYPERLINK(Table1[[#This Row],[eCommerce Hyperlink]],\"Book Weblink\")","v":"Book Weblink"},null,"Greenhaven Publishing","eBook",1,"2018","August 2017",null,null,"Edited by","Martin Gitlin",null,null,null,null,"Z","1340L","Grade 10 - 12","Grade 9 - 12","Free speech is guaranteed under the First Amendment. Although it may hurt and offend, hate speech is still free, under most circumstances. But what happens when institutions like universities adopt policies prohibiting offensive speech? Do such policies cause more harm than good? Should measures be taken to curb threatening or insulting comments? Or does that amount to little more than censorship? Is our quest to be polite and politically correct curtailing opportunities to express, learn, and grow? When does free speech become criminally threatening? These questions and more are thoughtfully examined in this important resource.","English",40.4,32.32,"323.44/30973--dc23","160 pp.","https://greenhavenpublishing.com/9781534500792",null,{"$f":"Table1[[#This Row],['# of Books]]*Table1[[#This Row],[QTY]]","v":0},{"$f":"Table1[[#This Row],[QTY]]*Table1[[#This Row],[School & Library Price]]","v":0}]
[null,null,12,null,null,"Current Issues","At Issue","When Is Free Speech Hate Speech?","978-1-5345-0078-5",{"$f":"HYPERLINK(Table1[[#This Row],[eCommerce Hyperlink]],\"Book Weblink\")","v":"Book Weblink"},null,"Greenhaven Publishing","Paperback Book",1,"2018","August 2017","Paperback","6.000 X 9.000","Edited by","Martin Gitlin",null,null,null,null,"Z","1340L","Grade 10 - 12","Grade 9 - 12","Free speech is guaranteed under the First Amendment. Although it may hurt and offend, hate speech is still free, under most circumstances. But what happens when institutions like universities adopt policies prohibiting offensive speech? Do such policies cause more harm than good? Should measures be taken to curb threatening or insulting comments? Or does that amount to little more than censorship? Is our quest to be polite and politically correct curtailing opportunities to express, learn, and grow? When does free speech become criminally threatening? These questions and more are thoughtfully examined in this important resource.","English",28.8,23.05,"323.44/30973--dc23","160 pp.","https://greenhavenpublishing.com/9781534500785",null,{"$f":"Table1[[#This Row],['# of Books]]*Table1[[#This Row],[QTY]]","v":0},{"$f":"Table1[[#This Row],[QTY]]*Table1[[#This Row],[School & Library Price]]","v":0}]
[null,null,12,null,null,"Current Issues","At Issue","Wrongful Conviction and Exoneration","978-1-5345-0515-5",{"$f":"HYPERLINK(Table1[[#This Row],[eCommerce Hyperlink]],\"Book Weblink\")","v":"Book Weblink"},null,"Greenhaven Publishing","Library Bound Book",1,"2020","August 2019","Library","6.000 X 9.000","Edited by","Lisa Idzikowski",null,null,null,null,"Z",null,"Grade 10 - 12","Grade 9 - 12","Since 1989, there have been over 2,200 exonerations in the United States. These have resulted from a number of factors, including the discovery of new evidence, perjury, false identification, and bad forensic evidence. Even when an individual is exonerated, is it possible to compensate them for their loss of time and money? This volume looks at the issue from varying perspectives, exploring causes of wrongful convictions, ways to increase exonerations for those who were unjustly imprisoned, strategies to decrease the number of wrongful convictions going forward, and appropriate compensation for those who have lost years of their lives.","English",40.4,32.32,"345.73/0122--dc23","128 pp.","https://greenhavenpublishing.com/9781534505155",null,{"$f":"Table1[[#This Row],['# of Books]]*Table1[[#This Row],[QTY]]","v":0},{"$f":"Table1[[#This Row],[QTY]]*Table1[[#This Row],[School & Library Price]]","v":0}]
[null,null,12,null,null,"Current Issues","At Issue","Wrongful Conviction and Exoneration","978-1-5345-0517-9",{"$f":"HYPERLINK(Table1[[#This Row],[eCommerce Hyperlink]],\"Book Weblink\")","v":"Book Weblink"},null,"Greenhaven Publishing","eBook",1,"2020","August 2019",null,null,"Edited by","Lisa Idzikowski",null,null,null,null,"Z",null,"Grade 10 - 12","Grade 9 - 12","Since 1989, there have been over 2,200 exonerations in the United States. These have resulted from a number of factors, including the discovery of new evidence, perjury, false identification, and bad forensic evidence. Even when an individual is exonerated, is it possible to compensate them for their loss of time and money? This volume looks at the issue from varying perspectives, exploring causes of wrongful convictions, ways to increase exonerations for those who were unjustly imprisoned, strategies to decrease the number of wrongful convictions going forward, and appropriate compensation for those who have lost years of their lives.","English",40.4,32.32,"345.73/0122--dc23","128 pp.","https://greenhavenpublishing.com/9781534505179",null,{"$f":"Table1[[#This Row],['# of Books]]*Table1[[#This Row],[QTY]]","v":0},{"$f":"Table1[[#This Row],[QTY]]*Table1[[#This Row],[School & Library Price]]","v":0}]
[null,null,12,null,null,"Current Issues","At Issue","Wrongful Conviction and Exoneration","978-1-5345-0516-2",{"$f":"HYPERLINK(Table1[[#This Row],[eCommerce Hyperlink]],\"Book Weblink\")","v":"Book Weblink"},null,"Greenhaven Publishing","Paperback Book",1,"2020","August 2019","Paperback","6.000 X 9.000","Edited by","Lisa Idzikowski",null,null,null,null,"Z",null,"Grade 10 - 12","Grade 9 - 12","Since 1989, there have been over 2,200 exonerations in the United States. These have resulted from a number of factors, including the discovery of new evidence, perjury, false identification, and bad forensic evidence. Even when an individual is exonerated, is it possible to compensate them for their loss of time and money? This volume looks at the issue from varying perspectives, exploring causes of wrongful convictions, ways to increase exonerations for those who were unjustly imprisoned, strategies to decrease the number of wrongful convictions going forward, and appropriate compensation for those who have lost years of their lives.","English",28.8,23.05,"345.73/0122--dc23","128 pp.","https://greenhavenpublishing.com/9781534505162",null,{"$f":"Table1[[#This Row],['# of Books]]*Table1[[#This Row],[QTY]]","v":0},{"$f":"Table1[[#This Row],[QTY]]*Table1[[#This Row],[School & Library Price]]","v":0}]
[null,"5, 13",13,null,null,"Current Issues","Current Controversies","Current Controversies (Fall 2022)","978-1-5345-0900-9",null,null,"Greenhaven Publishing","Library Set",6,"2023","August 2022","Library","6.000 X 9.000",null,null,null,null,null,null,null,null,"Grade 10 - 12","Grade 9 - 12","Each anthology in this set presents a diverse array of views from a wide spectrum of sources. Views are organized in a question-and-response format to encourage readers to view complex issues from multiple angles. This approach provides students with a concise view of divergent opinions on each topic.","English",284.39999999999998,227.52,null,"176 pp.","https://greenhavenpublishing.com/9781534509009",null,{"$f":"Table1[[#This Row],['# of Books]]*Table1[[#This Row],[QTY]]","v":0},{"$f":"Table1[[#This Row],[QTY]]*Table1[[#This Row],[School & Library Price]]","v":0}]
[null,null,13,null,null,"Current Issues","Current Controversies","Current Controversies (Fall 2022)","978-1-5345-0903-0",null,null,"Greenhaven Publishing","Single Copy Set",6,"2023","August 2022","Paperback","6.000 X 9.000",null,null,null,null,null,null,null,null,"Grade 10 - 12","Grade 9 - 12","Each anthology in this set presents a diverse array of views from a wide spectrum of sources. Views are organized in a question-and-response format to encourage readers to view complex issues from multiple angles. This approach provides students with a concise view of divergent opinions on each topic.","English",198,158.4,null,"176 pp.","https://greenhavenpublishing.com/9781534509030",null,{"$f":"Table1[[#This Row],['# of Books]]*Table1[[#This Row],[QTY]]","v":0},{"$f":"Table1[[#This Row],[QTY]]*Table1[[#This Row],[School & Library Price]]","v":0}]
[null,"5, 13",13,null,null,"Current Issues","Current Controversies","America’s Role in a Changing World","978-1-5345-0889-7",null,null,"Greenhaven Publishing","Library Bound Book",1,"2023","August 2022","Library","6.000 X 9.000","Compiled by","Eamon Doyle",null,null,null,null,"Z",null,"Grade 10 - 12","Grade 9 - 12","Donald Trump pledged to Make America Great Again, and while this was hardly an admission that the United States had lost its power on the international stage, there is no denying that the country’s mission changed drastically during his administration. At the same time, the world is changing, with China rising in importance while much of Europe recedes. Is the United States still capable of playing a leadership role despite its diminished position on the global stage? Will China become the dominant global power in the twenty-first century? How does inner political and social turmoil affect international opinion?","English",47.4,37.92,"327.73009/05--dc23","176 pp.","https://greenhavenpublishing.com/9781534508897",null,{"$f":"Table1[[#This Row],['# of Books]]*Table1[[#This Row],[QTY]]","v":0},{"$f":"Table1[[#This Row],[QTY]]*Table1[[#This Row],[School & Library Price]]","v":0}]
[null,"5, 13",13,null,null,"Current Issues","Current Controversies","America’s Role in a Changing World","978-1-5345-0890-3",null,null,"Greenhaven Publishing","eBook",1,"2023","August 2022",null,null,"Compiled by","Eamon Doyle",null,null,null,null,"Z",null,"Grade 10 - 12","Grade 9 - 12","Donald Trump pledged to Make America Great Again, and while this was hardly an admission that the United States had lost its power on the international stage, there is no denying that the country’s mission changed drastically during his administration. At the same time, the world is changing, with China rising in importance while much of Europe recedes. Is the United States still capable of playing a leadership role despite its diminished position on the global stage? Will China become the dominant global power in the twenty-first century? How does inner political and social turmoil affect international opinion?","English",47.4,37.92,"327.73009/05--dc23","176 pp.","https://greenhavenpublishing.com/9781534508903","http://www.epointplus.com/embed/9781534508903/?login=cyberrep&password=cyberrep",{"$f":"Table1[[#This Row],['# of Books]]*Table1[[#This Row],[QTY]]","v":0},{"$f":"Table1[[#This Row],[QTY]]*Table1[[#This Row],[School & Library Price]]","v":0}]
[null,"5, 13",13,null,null,"Current Issues","Current Controversies","America’s Role in a Changing World","978-1-5345-0888-0",null,null,"Greenhaven Publishing","Paperback Book",1,"2023","August 2022","Paperback","6.000 X 9.000","Compiled by","Eamon Doyle",null,null,null,null,"Z",null,"Grade 10 - 12","Grade 9 - 12","Donald Trump pledged to Make America Great Again, and while this was hardly an admission that the United States had lost its power on the international stage, there is no denying that the country’s mission changed drastically during his administration. At the same time, the world is changing, with China rising in importance while much of Europe recedes. Is the United States still capable of playing a leadership role despite its diminished position on the global stage? Will China become the dominant global power in the twenty-first century? How does inner political and social turmoil affect international opinion?","English",33,26.4,"327.73009/05--dc23","176 pp.","https://greenhavenpublishing.com/9781534508880",null,{"$f":"Table1[[#This Row],['# of Books]]*Table1[[#This Row],[QTY]]","v":0},{"$f":"Table1[[#This Row],[QTY]]*Table1[[#This Row],[School & Library Price]]","v":0}]
[null,"5, 13",13,null,null,"Current Issues","Current Controversies","Artificial Intelligence and the Future of Humanity","978-1-5345-0886-6",null,null,"Greenhaven Publishing","Library Bound Book",1,"2023","August 2022","Library","6.000 X 9.000","Compiled by","Lisa Idzikowski",null,null,null,null,"Z",null,"Grade 10 - 12","Grade 9 - 12","Artificial Intelligence, or AI, is no longer the stuff of science fiction. Already used widely in many different applications, it is here to stay and it is advancing quickly. Several experts, such as the late Stephen Hawking, have spoken out against AI, but others champion its potential to help the human race rather than end it. Does AI pose a threat to humanity? Do its benefits outweigh potential harms? Who should be tasked with regulating the advancement of AI so it remains within the control of humans?","English",47.4,37.92,"006.3--dc23","176 pp.","https://greenhavenpublishing.com/9781534508866",null,{"$f":"Table1[[#This Row],['# of Books]]*Table1[[#This Row],[QTY]]","v":0},{"$f":"Table1[[#This Row],[QTY]]*Table1[[#This Row],[School & Library Price]]","v":0}]
[null,"5, 13",13,null,null,"Current Issues","Current Controversies","Artificial Intelligence and the Future of Humanity","978-1-5345-0887-3",null,null,"Greenhaven Publishing","eBook",1,"2023","August 2022",null,null,"Compiled by","Lisa Idzikowski",null,null,null,null,"Z",null,"Grade 10 - 12","Grade 9 - 12","Artificial Intelligence, or AI, is no longer the stuff of science fiction. Already used widely in many different applications, it is here to stay and it is advancing quickly. Several experts, such as the late Stephen Hawking, have spoken out against AI, but others champion its potential to help the human race rather than end it. Does AI pose a threat to humanity? Do its benefits outweigh potential harms? Who should be tasked with regulating the advancement of AI so it remains within the control of humans?","English",47.4,37.92,"006.3--dc23","176 pp.","https://greenhavenpublishing.com/9781534508873","http://www.epointplus.com/embed/9781534508873/?login=cyberrep&password=cyberrep",{"$f":"Table1[[#This Row],['# of Books]]*Table1[[#This Row],[QTY]]","v":0},{"$f":"Table1[[#This Row],[QTY]]*Table1[[#This Row],[School & Library Price]]","v":0}]
[null,"5, 13",13,null,null,"Current Issues","Current Controversies","Artificial Intelligence and the Future of Humanity","978-1-5345-0885-9",null,null,"Greenhaven Publishing","Paperback Book",1,"2023","August 2022","Paperback","6.000 X 9.000","Compiled by","Lisa Idzikowski",null,null,null,null,"Z",null,"Grade 10 - 12","Grade 9 - 12","Artificial Intelligence, or AI, is no longer the stuff of science fiction. Already used widely in many different applications, it is here to stay and it is advancing quickly. Several experts, such as the late Stephen Hawking, have spoken out against AI, but others champion its potential to help the human race rather than end it. Does AI pose a threat to humanity? Do its benefits outweigh potential harms? Who should be tasked with regulating the advancement of AI so it remains within the control of humans?","English",33,26.4,"006.3--dc23","176 pp.","https://greenhavenpublishing.com/9781534508859",null,{"$f":"Table1[[#This Row],['# of Books]]*Table1[[#This Row],[QTY]]","v":0},{"$f":"Table1[[#This Row],[QTY]]*Table1[[#This Row],[School & Library Price]]","v":0}]
[null,"5, 13",13,null,null,"Current Issues","Current Controversies","Climate Change and Biodiversity","978-1-5345-0895-8",null,null,"Greenhaven Publishing","Library Bound Book",1,"2023","August 2022","Library","6.000 X 9.000","Compiled by","Lisa Idzikowski",null,null,null,null,"Z",null,"Grade 10 - 12","Grade 9 - 12","With significantly hotter average temperatures, an increase in natural disasters, and rising oceans, the reality of climate change is hard to miss. Predictions about the future of Earth and its inhabitants vary, from hopeful to frantic to doomsday scenarios. Does climate change pose an immediate threat to Earth’s biodiversity? What other factors have resulted in biodiversity changes, and are they as severe as the impacts caused by climate change? Is there enough time to mitigate and even reverse the destruction we have caused?","English",47.4,37.92,"577.2/2--dc23","176 pp.","https://greenhavenpublishing.com/9781534508958",null,{"$f":"Table1[[#This Row],['# of Books]]*Table1[[#This Row],[QTY]]","v":0},{"$f":"Table1[[#This Row],[QTY]]*Table1[[#This Row],[School & Library Price]]","v":0}]
[null,"5, 13",13,null,null,"Current Issues","Current Controversies","Climate Change and Biodiversity","978-1-5345-0896-5",null,null,"Greenhaven Publishing","eBook",1,"2023","August 2022",null,null,"Compiled by","Lisa Idzikowski",null,null,null,null,"Z",null,"Grade 10 - 12","Grade 9 - 12","With significantly hotter average temperatures, an increase in natural disasters, and rising oceans, the reality of climate change is hard to miss. Predictions about the future of Earth and its inhabitants vary, from hopeful to frantic to doomsday scenarios. Does climate change pose an immediate threat to Earth’s biodiversity? What other factors have resulted in biodiversity changes, and are they as severe as the impacts caused by climate change? Is there enough time to mitigate and even reverse the destruction we have caused?","English",47.4,37.92,"577.2/2--dc23","176 pp.","https://greenhavenpublishing.com/9781534508965","http://www.epointplus.com/embed/9781534508965/?login=cyberrep&password=cyberrep",{"$f":"Table1[[#This Row],['# of Books]]*Table1[[#This Row],[QTY]]","v":0},{"$f":"Table1[[#This Row],[QTY]]*Table1[[#This Row],[School & Library Price]]","v":0}]
[null,"5, 13",13,null,null,"Current Issues","Current Controversies","Climate Change and Biodiversity","978-1-5345-0894-1",null,null,"Greenhaven Publishing","Paperback Book",1,"2023","August 2022","Paperback","6.000 X 9.000","Compiled by","Lisa Idzikowski",null,null,null,null,"Z",null,"Grade 10 - 12","Grade 9 - 12","With significantly hotter average temperatures, an increase in natural disasters, and rising oceans, the reality of climate change is hard to miss. Predictions about the future of Earth and its inhabitants vary, from hopeful to frantic to doomsday scenarios. Does climate change pose an immediate threat to Earth’s biodiversity? What other factors have resulted in biodiversity changes, and are they as severe as the impacts caused by climate change? Is there enough time to mitigate and even reverse the destruction we have caused?","English",33,26.4,"577.2/2--dc23","176 pp.","https://greenhavenpublishing.com/9781534508941",null,{"$f":"Table1[[#This Row],['# of Books]]*Table1[[#This Row],[QTY]]","v":0},{"$f":"Table1[[#This Row],[QTY]]*Table1[[#This Row],[School & Library Price]]","v":0}]
[null,"5, 13",13,null,null,"Current Issues","Current Controversies","Media Trustworthiness","978-1-5345-0898-9",null,null,"Greenhaven Publishing","Library Bound Book",1,"2023","August 2022","Library","6.000 X 9.000","Compiled by","Kathryn Roberts",null,null,null,null,"Z",null,"Grade 10 - 12","Grade 9 - 12","According to the Pew Research Center, Americans’ trust in the media is declining, particularly among those who identify as Republican. Millennials and younger Americans don’t receive their news from traditional media sources. What has caused this shift, and are media conglomerates or consumers to blame? The news landscape has become a place where speed is valued over accuracy, headline-grabbing clicks generate more revenue than in-depth reporting, and consumers willingly seek out news sources that feed their own biases. Can we ever return to the days when the media was trusted by the majority?","English",47.4,37.92,"174/.90713--dc23","176 pp.","https://greenhavenpublishing.com/9781534508989",null,{"$f":"Table1[[#This Row],['# of Books]]*Table1[[#This Row],[QTY]]","v":0},{"$f":"Table1[[#This Row],[QTY]]*Table1[[#This Row],[School & Library Price]]","v":0}]
[null,"5, 13",13,null,null,"Current Issues","Current Controversies","Media Trustworthiness","978-1-5345-0899-6",null,null,"Greenhaven Publishing","eBook",1,"2023","August 2022",null,null,"Compiled by","Kathryn Roberts",null,null,null,null,"Z",null,"Grade 10 - 12","Grade 9 - 12","According to the Pew Research Center, Americans’ trust in the media is declining, particularly among those who identify as Republican. Millennials and younger Americans don’t receive their news from traditional media sources. What has caused this shift, and are media conglomerates or consumers to blame? The news landscape has become a place where speed is valued over accuracy, headline-grabbing clicks generate more revenue than in-depth reporting, and consumers willingly seek out news sources that feed their own biases. Can we ever return to the days when the media was trusted by the majority?","English",47.4,37.92,"174/.90713--dc23","176 pp.","https://greenhavenpublishing.com/9781534508996","http://www.epointplus.com/embed/9781534508996/?login=cyberrep&password=cyberrep",{"$f":"Table1[[#This Row],['# of Books]]*Table1[[#This Row],[QTY]]","v":0},{"$f":"Table1[[#This Row],[QTY]]*Table1[[#This Row],[School & Library Price]]","v":0}]
[null,"5, 13",13,null,null,"Current Issues","Current Controversies","Media Trustworthiness","978-1-5345-0897-2",null,null,"Greenhaven Publishing","Paperback Book",1,"2023","August 2022","Paperback","6.000 X 9.000","Compiled by","Kathryn Roberts",null,null,null,null,"Z",null,"Grade 10 - 12","Grade 9 - 12","According to the Pew Research Center, Americans’ trust in the media is declining, particularly among those who identify as Republican. Millennials and younger Americans don’t receive their news from traditional media sources. What has caused this shift, and are media conglomerates or consumers to blame? The news landscape has become a place where speed is valued over accuracy, headline-grabbing clicks generate more revenue than in-depth reporting, and consumers willingly seek out news sources that feed their own biases. Can we ever return to the days when the media was trusted by the majority?","English",33,26.4,"174/.90713--dc23","176 pp.","https://greenhavenpublishing.com/9781534508972",null,{"$f":"Table1[[#This Row],['# of Books]]*Table1[[#This Row],[QTY]]","v":0},{"$f":"Table1[[#This Row],[QTY]]*Table1[[#This Row],[School & Library Price]]","v":0}]
[null,"5, 13",13,null,null,"Current Issues","Current Controversies","Space: Tourism, Competition, Militarization","978-1-5345-0883-5",null,null,"Greenhaven Publishing","Library Bound Book",1,"2023","August 2022","Library","6.000 X 9.000","Compiled by","Erica Grove",null,null,null,null,"Z",null,"Grade 10 - 12","Grade 9 - 12","Once the domain of federal governments, space travel has entered the realm of private enterprise. Elon Musk, Jeff Bezos, and Richard Branson all have directed portions of their vast fortunes toward space tourism. Is this just a billionaires’ hobby, or is it a legitimate peek into vacations of the future? The militarization of space is also being considered by world leaders, but concerns arise about the potential for dangerous activity within the international community. Is continued exploration into outer space even worth the time and money being spent on it?","English",47.4,37.92,"910.919--dc23","176 pp.","https://greenhavenpublishing.com/9781534508835",null,{"$f":"Table1[[#This Row],['# of Books]]*Table1[[#This Row],[QTY]]","v":0},{"$f":"Table1[[#This Row],[QTY]]*Table1[[#This Row],[School & Library Price]]","v":0}]
[null,"5, 13",13,null,null,"Current Issues","Current Controversies","Space: Tourism, Competition, Militarization","978-1-5345-0884-2",null,null,"Greenhaven Publishing","eBook",1,"2023","August 2022",null,null,"Compiled by","Erica Grove",null,null,null,null,"Z",null,"Grade 10 - 12","Grade 9 - 12","Once the domain of federal governments, space travel has entered the realm of private enterprise. Elon Musk, Jeff Bezos, and Richard Branson all have directed portions of their vast fortunes toward space tourism. Is this just a billionaires’ hobby, or is it a legitimate peek into vacations of the future? The militarization of space is also being considered by world leaders, but concerns arise about the potential for dangerous activity within the international community. Is continued exploration into outer space even worth the time and money being spent on it?","English",47.4,37.92,"910.919--dc23","176 pp.","https://greenhavenpublishing.com/9781534508842","http://www.epointplus.com/embed/9781534508842/?login=cyberrep&password=cyberrep",{"$f":"Table1[[#This Row],['# of Books]]*Table1[[#This Row],[QTY]]","v":0},{"$f":"Table1[[#This Row],[QTY]]*Table1[[#This Row],[School & Library Price]]","v":0}]
[null,"5, 13",13,null,null,"Current Issues","Current Controversies","Space: Tourism, Competition, Militarization","978-1-5345-0882-8",null,null,"Greenhaven Publishing","Paperback Book",1,"2023","August 2022","Paperback","6.000 X 9.000","Compiled by","Erica Grove",null,null,null,null,"Z",null,"Grade 10 - 12","Grade 9 - 12","Once the domain of federal governments, space travel has entered the realm of private enterprise. Elon Musk, Jeff Bezos, and Richard Branson all have directed portions of their vast fortunes toward space tourism. Is this just a billionaires’ hobby, or is it a legitimate peek into vacations of the future? The militarization of space is also being considered by world leaders, but concerns arise about the potential for dangerous activity within the international community. Is continued exploration into outer space even worth the time and money being spent on it?","English",33,26.4,"910.919--dc23","176 pp.","https://greenhavenpublishing.com/9781534508828",null,{"$f":"Table1[[#This Row],['# of Books]]*Table1[[#This Row],[QTY]]","v":0},{"$f":"Table1[[#This Row],[QTY]]*Table1[[#This Row],[School & Library Price]]","v":0}]
[null,"5, 13",13,null,null,"Current Issues","Current Controversies","The Business of College Sports: Who Earns What","978-1-5345-0892-7",null,null,"Greenhaven Publishing","Library Bound Book",1,"2023","August 2022","Library","6.000 X 9.000","Compiled by","Gary Wiener",null,null,null,null,"Z",null,"Grade 10 - 12","Grade 9 - 12","College athletics has long been a gray zone, with some universities making tremendous profits on the backs of unpaid student athletes. While college sports programs undoubtedly provide life-changing opportunities for their student athletes, concerns about their priorities have arisen. Are they for-profit ventures, or is higher education their primary responsibility? A 2021 Supreme Court case ruled against the NCAA and affirmed unlimited education-related athlete compensation, paving the way to decide similarly against other compensation limitations. How will college sports change as a result?","English",47.4,37.92,"796.04/30973--dc23","176 pp.","https://greenhavenpublishing.com/9781534508927",null,{"$f":"Table1[[#This Row],['# of Books]]*Table1[[#This Row],[QTY]]","v":0},{"$f":"Table1[[#This Row],[QTY]]*Table1[[#This Row],[School & Library Price]]","v":0}]
[null,"5, 13",13,null,null,"Current Issues","Current Controversies","The Business of College Sports: Who Earns What","978-1-5345-0893-4",null,null,"Greenhaven Publishing","eBook",1,"2023","August 2022",null,null,"Compiled by","Gary Wiener",null,null,null,null,"Z",null,"Grade 10 - 12","Grade 9 - 12","College athletics has long been a gray zone, with some universities making tremendous profits on the backs of unpaid student athletes. While college sports programs undoubtedly provide life-changing opportunities for their student athletes, concerns about their priorities have arisen. Are they for-profit ventures, or is higher education their primary responsibility? A 2021 Supreme Court case ruled against the NCAA and affirmed unlimited education-related athlete compensation, paving the way to decide similarly against other compensation limitations. How will college sports change as a result?","English",47.4,37.92,"796.04/30973--dc23","176 pp.","https://greenhavenpublishing.com/9781534508934","http://www.epointplus.com/embed/9781534508934/?login=cyberrep&password=cyberrep",{"$f":"Table1[[#This Row],['# of Books]]*Table1[[#This Row],[QTY]]","v":0},{"$f":"Table1[[#This Row],[QTY]]*Table1[[#This Row],[School & Library Price]]","v":0}]
[null,"5, 13",13,null,null,"Current Issues","Current Controversies","The Business of College Sports: Who Earns What","978-1-5345-0891-0",null,null,"Greenhaven Publishing","Paperback Book",1,"2023","August 2022","Paperback","6.000 X 9.000","Compiled by","Gary Wiener",null,null,null,null,"Z",null,"Grade 10 - 12","Grade 9 - 12","College athletics has long been a gray zone, with some universities making tremendous profits on the backs of unpaid student athletes. While college sports programs undoubtedly provide life-changing opportunities for their student athletes, concerns about their priorities have arisen. Are they for-profit ventures, or is higher education their primary responsibility? A 2021 Supreme Court case ruled against the NCAA and affirmed unlimited education-related athlete compensation, paving the way to decide similarly against other compensation limitations. How will college sports change as a result?","English",33,26.4,"796.04/30973--dc23","176 pp.","https://greenhavenpublishing.com/9781534508910",null,{"$f":"Table1[[#This Row],['# of Books]]*Table1[[#This Row],[QTY]]","v":0},{"$f":"Table1[[#This Row],[QTY]]*Table1[[#This Row],[School & Library Price]]","v":0}]
[null,13,14,null,null,"Current Issues","Current Controversies","Agriculture","978-1-5345-0697-8",{"$f":"HYPERLINK(Table1[[#This Row],[eCommerce Hyperlink]],\"Book Weblink\")","v":"Book Weblink"},null,"Greenhaven Publishing","Library Bound Book",1,"2021","August 2020","Library","6.000 X 9.000","Compiled by","Lisa Idzikowski",null,null,null,null,"Z",null,"Grade 10 - 12","Grade 9 - 12","Agriculture has existed for approximately 12,000 years and has played an important role in shaping human history. It enabled the development of the United States, and the family farm has become an indelible image of American resilience and self-sufficiency. However, with changes in technology, the global economy, and our understanding of nutritional needs, the field of agriculture has been forced to adjust to meet twenty-first-century demands. Is it necessary that factory farms displace family farms? Should the government play a larger role in regulating technological innovations like GMOs? This volume guides readers to examine these key issues and many others.","English",47.4,37.92,"630--dc23","176 pp.","https://greenhavenpublishing.com/9781534506978",null,{"$f":"Table1[[#This Row],['# of Books]]*Table1[[#This Row],[QTY]]","v":0},{"$f":"Table1[[#This Row],[QTY]]*Table1[[#This Row],[School & Library Price]]","v":0}]
[null,13,14,null,null,"Current Issues","Current Controversies","Agriculture","978-1-5345-0698-5",{"$f":"HYPERLINK(Table1[[#This Row],[eCommerce Hyperlink]],\"Book Weblink\")","v":"Book Weblink"},null,"Greenhaven Publishing","eBook",1,"2021","August 2020",null,null,"Compiled by","Lisa Idzikowski",null,null,null,null,"Z",null,"Grade 10 - 12","Grade 9 - 12","Agriculture has existed for approximately 12,000 years and has played an important role in shaping human history. It enabled the development of the United States, and the family farm has become an indelible image of American resilience and self-sufficiency. However, with changes in technology, the global economy, and our understanding of nutritional needs, the field of agriculture has been forced to adjust to meet twenty-first-century demands. Is it necessary that factory farms displace family farms? Should the government play a larger role in regulating technological innovations like GMOs? This volume guides readers to examine these key issues and many others.","English",47.4,37.92,"630--dc23","176 pp.","https://greenhavenpublishing.com/9781534506985",null,{"$f":"Table1[[#This Row],['# of Books]]*Table1[[#This Row],[QTY]]","v":0},{"$f":"Table1[[#This Row],[QTY]]*Table1[[#This Row],[School & Library Price]]","v":0}]
[null,13,14,null,null,"Current Issues","Current Controversies","Agriculture","978-1-5345-0696-1",{"$f":"HYPERLINK(Table1[[#This Row],[eCommerce Hyperlink]],\"Book Weblink\")","v":"Book Weblink"},null,"Greenhaven Publishing","Paperback Book",1,"2021","August 2020","Paperback","6.000 X 9.000","Compiled by","Lisa Idzikowski",null,null,null,null,"Z",null,"Grade 10 - 12","Grade 9 - 12","Agriculture has existed for approximately 12,000 years and has played an important role in shaping human history. It enabled the development of the United States, and the family farm has become an indelible image of American resilience and self-sufficiency. However, with changes in technology, the global economy, and our understanding of nutritional needs, the field of agriculture has been forced to adjust to meet twenty-first-century demands. Is it necessary that factory farms displace family farms? Should the government play a larger role in regulating technological innovations like GMOs? This volume guides readers to examine these key issues and many others.","English",33,26.4,"630--dc23","176 pp.","https://greenhavenpublishing.com/9781534506961",null,{"$f":"Table1[[#This Row],['# of Books]]*Table1[[#This Row],[QTY]]","v":0},{"$f":"Table1[[#This Row],[QTY]]*Table1[[#This Row],[School & Library Price]]","v":0}]
[null,13,14,null,null,"Current Issues","Current Controversies","America's Mental Health Crisis","978-1-5345-0614-5",{"$f":"HYPERLINK(Table1[[#This Row],[eCommerce Hyperlink]],\"Book Weblink\")","v":"Book Weblink"},null,"Greenhaven Publishing","Library Bound Book",1,"2020","January 2020","Library","6.000 X 9.000","Edited by","Nadra Nittle",null,null,null,null,"Z",null,"Grade 10 - 12","Grade 9 - 12","Approximately one in five adults in the United States experience mental illness on an annual basis, and emotional, behavioral, or mental disorders are just as prevalent among young people. Issues like homelessness and mass violence have brought mental illness into the spotlight, but have significant strides been made in addressing mental health issues in recent years or are these disorders still widely stigmatized? This volume explores the questions of whether mental health issues stem from uniquely American factors, how accessible treatment is to those who need it, and whether modern technology plays a role in America's mental health.","English",47.4,37.92,"362.20973--dc23","200 pp.","https://greenhavenpublishing.com/9781534506145",null,{"$f":"Table1[[#This Row],['# of Books]]*Table1[[#This Row],[QTY]]","v":0},{"$f":"Table1[[#This Row],[QTY]]*Table1[[#This Row],[School & Library Price]]","v":0}]
[null,13,14,null,null,"Current Issues","Current Controversies","America's Mental Health Crisis","978-1-5345-0615-2",{"$f":"HYPERLINK(Table1[[#This Row],[eCommerce Hyperlink]],\"Book Weblink\")","v":"Book Weblink"},null,"Greenhaven Publishing","eBook",1,"2020","January 2020",null,null,"Edited by","Nadra Nittle",null,null,null,null,"Z",null,"Grade 10 - 12","Grade 9 - 12","Approximately one in five adults in the United States experience mental illness on an annual basis, and emotional, behavioral, or mental disorders are just as prevalent among young people. Issues like homelessness and mass violence have brought mental illness into the spotlight, but have significant strides been made in addressing mental health issues in recent years or are these disorders still widely stigmatized? This volume explores the questions of whether mental health issues stem from uniquely American factors, how accessible treatment is to those who need it, and whether modern technology plays a role in America's mental health.","English",47.4,37.92,"362.20973--dc23","200 pp.","https://greenhavenpublishing.com/9781534506152",null,{"$f":"Table1[[#This Row],['# of Books]]*Table1[[#This Row],[QTY]]","v":0},{"$f":"Table1[[#This Row],[QTY]]*Table1[[#This Row],[School & Library Price]]","v":0}]
[null,13,14,null,null,"Current Issues","Current Controversies","America's Mental Health Crisis","978-1-5345-0613-8",{"$f":"HYPERLINK(Table1[[#This Row],[eCommerce Hyperlink]],\"Book Weblink\")","v":"Book Weblink"},null,"Greenhaven Publishing","Paperback Book",1,"2020","January 2020","Paperback","6.000 X 9.000","Edited by","Nadra Nittle",null,null,null,null,"Z",null,"Grade 10 - 12","Grade 9 - 12","Approximately one in five adults in the United States experience mental illness on an annual basis, and emotional, behavioral, or mental disorders are just as prevalent among young people. Issues like homelessness and mass violence have brought mental illness into the spotlight, but have significant strides been made in addressing mental health issues in recent years or are these disorders still widely stigmatized? This volume explores the questions of whether mental health issues stem from uniquely American factors, how accessible treatment is to those who need it, and whether modern technology plays a role in America's mental health.","English",33,26.4,"362.20973--dc23","200 pp.","https://greenhavenpublishing.com/9781534506138",null,{"$f":"Table1[[#This Row],['# of Books]]*Table1[[#This Row],[QTY]]","v":0},{"$f":"Table1[[#This Row],[QTY]]*Table1[[#This Row],[School & Library Price]]","v":0}]
[null,null,14,null,null,"Current Issues","Current Controversies","Antifa and the Radical Left","978-1-5345-0384-7",{"$f":"HYPERLINK(Table1[[#This Row],[eCommerce Hyperlink]],\"Book Weblink\")","v":"Book Weblink"},null,"Greenhaven Publishing","Library Bound Book",1,"2019","January 2019","Library","6.000 X 9.000","Edited by","Eamon Doyle",null,null,null,null,"Z",null,"Grade 10 - 12","Grade 9 - 12","Antifa has received public attention since the election of President Trump. To some, this was believed to represent the rise of white supremacy and authoritarianism in the United States, which Antifa made it a point to combat at any cost. What exactly is the Antifa movement? Are its militant, sometimes violent attempts to combat fascism justified, or are they just as morally reprehensible as what they are reacting against? This volume looks at Antifa's place in American and international history, as well as its organization, goals, and ethical implications, offering a clearer look at this enigmatic movement.","English",47.4,37.92,"320.53/30973--dc23","176 pp.","https://greenhavenpublishing.com/9781534503847",null,{"$f":"Table1[[#This Row],['# of Books]]*Table1[[#This Row],[QTY]]","v":0},{"$f":"Table1[[#This Row],[QTY]]*Table1[[#This Row],[School & Library Price]]","v":0}]
[null,null,14,null,null,"Current Issues","Current Controversies","Antifa and the Radical Left","978-1-5345-0399-1",{"$f":"HYPERLINK(Table1[[#This Row],[eCommerce Hyperlink]],\"Book Weblink\")","v":"Book Weblink"},null,"Greenhaven Publishing","eBook",1,"2019","January 2019",null,null,"Edited by","Eamon Doyle",null,null,null,null,"Z",null,"Grade 10 - 12","Grade 9 - 12","Antifa has received public attention since the election of President Trump. To some, this was believed to represent the rise of white supremacy and authoritarianism in the United States, which Antifa made it a point to combat at any cost. What exactly is the Antifa movement? Are its militant, sometimes violent attempts to combat fascism justified, or are they just as morally reprehensible as what they are reacting against? This volume looks at Antifa's place in American and international history, as well as its organization, goals, and ethical implications, offering a clearer look at this enigmatic movement.","English",47.4,37.92,"320.53/30973--dc23","176 pp.","https://greenhavenpublishing.com/9781534503991",null,{"$f":"Table1[[#This Row],['# of Books]]*Table1[[#This Row],[QTY]]","v":0},{"$f":"Table1[[#This Row],[QTY]]*Table1[[#This Row],[School & Library Price]]","v":0}]
[null,null,14,null,null,"Current Issues","Current Controversies","Antifa and the Radical Left","978-1-5345-0455-4",{"$f":"HYPERLINK(Table1[[#This Row],[eCommerce Hyperlink]],\"Book Weblink\")","v":"Book Weblink"},null,"Greenhaven Publishing","Paperback Book",1,"2019","January 2019","Paperback","6.000 X 9.000","Edited by","Eamon Doyle",null,null,null,null,"Z",null,"Grade 10 - 12","Grade 9 - 12","Antifa has received public attention since the election of President Trump. To some, this was believed to represent the rise of white supremacy and authoritarianism in the United States, which Antifa made it a point to combat at any cost. What exactly is the Antifa movement? Are its militant, sometimes violent attempts to combat fascism justified, or are they just as morally reprehensible as what they are reacting against? This volume looks at Antifa's place in American and international history, as well as its organization, goals, and ethical implications, offering a clearer look at this enigmatic movement.","English",33,26.4,"320.53/30973--dc23","176 pp.","https://greenhavenpublishing.com/9781534504554",null,{"$f":"Table1[[#This Row],['# of Books]]*Table1[[#This Row],[QTY]]","v":0},{"$f":"Table1[[#This Row],[QTY]]*Table1[[#This Row],[School & Library Price]]","v":0}]
[null,null,14,null,null,"Current Issues","Current Controversies","Are There Two Americas?","978-1-5345-0233-8",{"$f":"HYPERLINK(Table1[[#This Row],[eCommerce Hyperlink]],\"Book Weblink\")","v":"Book Weblink"},null,"Greenhaven Publishing","Library Bound Book",1,"2018","January 2018","Library","6.000 X 9.000","Edited by","Caleb Bissinger",null,null,null,null,"Z","1330L","Grade 10 - 12","Grade 9 - 12","The haves and the have-nots, \"coastal elites\" versus \"real America,\" big cities or fly-over country, people play fast and loose with the terms, but who falls into these groups and are they really so different? Media and politicians alike constantly push the narrative of \"us\" versus \" them,\" instead of one nation indivisible. But are they correct to do so or woefully misguided? This insightful anthology unpacks the concept of a divided nation and looks at the conflicts that come from economic disparity, geography, social status, and more.","English",47.4,37.92,"305.800973--dc23","184 pp.","https://greenhavenpublishing.com/9781534502338",null,{"$f":"Table1[[#This Row],['# of Books]]*Table1[[#This Row],[QTY]]","v":0},{"$f":"Table1[[#This Row],[QTY]]*Table1[[#This Row],[School & Library Price]]","v":0}]
[null,null,14,null,null,"Current Issues","Current Controversies","Are There Two Americas?","978-1-5345-0228-4",{"$f":"HYPERLINK(Table1[[#This Row],[eCommerce Hyperlink]],\"Book Weblink\")","v":"Book Weblink"},null,"Greenhaven Publishing","eBook",1,"2018","January 2018",null,null,"Edited by","Caleb Bissinger",null,null,null,null,"Z","1330L","Grade 10 - 12","Grade 9 - 12","The haves and the have-nots, \"coastal elites\" versus \"real America,\" big cities or fly-over country, people play fast and loose with the terms, but who falls into these groups and are they really so different? Media and politicians alike constantly push the narrative of \"us\" versus \" them,\" instead of one nation indivisible. But are they correct to do so or woefully misguided? This insightful anthology unpacks the concept of a divided nation and looks at the conflicts that come from economic disparity, geography, social status, and more.","English",47.4,37.92,"305.800973--dc23","184 pp.","https://greenhavenpublishing.com/9781534502284",null,{"$f":"Table1[[#This Row],['# of Books]]*Table1[[#This Row],[QTY]]","v":0},{"$f":"Table1[[#This Row],[QTY]]*Table1[[#This Row],[School & Library Price]]","v":0}]
[null,null,14,null,null,"Current Issues","Current Controversies","Are There Two Americas?","978-1-5345-0239-0",{"$f":"HYPERLINK(Table1[[#This Row],[eCommerce Hyperlink]],\"Book Weblink\")","v":"Book Weblink"},null,"Greenhaven Publishing","Paperback Book",1,"2018","January 2018","Paperback","6.000 X 9.000","Edited by","Caleb Bissinger",null,null,null,null,"Z","1330L","Grade 10 - 12","Grade 9 - 12","The haves and the have-nots, \"coastal elites\" versus \"real America,\" big cities or fly-over country, people play fast and loose with the terms, but who falls into these groups and are they really so different? Media and politicians alike constantly push the narrative of \"us\" versus \" them,\" instead of one nation indivisible. But are they correct to do so or woefully misguided? This insightful anthology unpacks the concept of a divided nation and looks at the conflicts that come from economic disparity, geography, social status, and more.","English",33,26.4,"305.800973--dc23","184 pp.","https://greenhavenpublishing.com/9781534502390",null,{"$f":"Table1[[#This Row],['# of Books]]*Table1[[#This Row],[QTY]]","v":0},{"$f":"Table1[[#This Row],[QTY]]*Table1[[#This Row],[School & Library Price]]","v":0}]
[null,13,14,null,null,"Current Issues","Current Controversies","Attacks on Science","978-1-5345-0794-4",{"$f":"HYPERLINK(Table1[[#This Row],[eCommerce Hyperlink]],\"Book Weblink\")","v":"Book Weblink"},null,"Greenhaven Publishing","Library Bound Book",1,"2022","August 2021","Library","6.000 X 9.000","Compiled by","Lisa Idzikowski",null,null,null,null,"Z",null,"Grade 10 - 12","Grade 9 - 12","Recent examples of attacks on science such as climate change denial demonstrate the danger of attacks on science. However, the negative impacts of these attacks must be weighed against other considerations, including the freedom of speech and religious expression, and the assertion that some criticism is healthy for the scientific field. The viewpoints in this volume consider the impacts of attacks on science, whether these attacks can be stopped, and how they can be prevented. Readers will evaluate the role of the internet in propagating and legitimizing these attacks.","English",47.4,37.92,"306.4/5--dc23","176 pp.","https://greenhavenpublishing.com/9781534507944",null,{"$f":"Table1[[#This Row],['# of Books]]*Table1[[#This Row],[QTY]]","v":0},{"$f":"Table1[[#This Row],[QTY]]*Table1[[#This Row],[School & Library Price]]","v":0}]
[null,13,14,null,null,"Current Issues","Current Controversies","Attacks on Science","978-1-5345-0795-1",{"$f":"HYPERLINK(Table1[[#This Row],[eCommerce Hyperlink]],\"Book Weblink\")","v":"Book Weblink"},null,"Greenhaven Publishing","eBook",1,"2022","August 2021",null,null,"Compiled by","Lisa Idzikowski",null,null,null,null,"Z",null,"Grade 10 - 12","Grade 9 - 12","Recent examples of attacks on science such as climate change denial demonstrate the danger of attacks on science. However, the negative impacts of these attacks must be weighed against other considerations, including the freedom of speech and religious expression, and the assertion that some criticism is healthy for the scientific field. The viewpoints in this volume consider the impacts of attacks on science, whether these attacks can be stopped, and how they can be prevented. Readers will evaluate the role of the internet in propagating and legitimizing these attacks.","English",47.4,37.92,"306.4/5--dc23","176 pp.","https://greenhavenpublishing.com/9781534507951",null,{"$f":"Table1[[#This Row],['# of Books]]*Table1[[#This Row],[QTY]]","v":0},{"$f":"Table1[[#This Row],[QTY]]*Table1[[#This Row],[School & Library Price]]","v":0}]
[null,13,14,null,null,"Current Issues","Current Controversies","Attacks on Science","978-1-5345-0792-0",{"$f":"HYPERLINK(Table1[[#This Row],[eCommerce Hyperlink]],\"Book Weblink\")","v":"Book Weblink"},null,"Greenhaven Publishing","Paperback Book",1,"2022","August 2021","Paperback","6.000 X 9.000","Compiled by","Lisa Idzikowski",null,null,null,null,"Z",null,"Grade 10 - 12","Grade 9 - 12","Recent examples of attacks on science such as climate change denial demonstrate the danger of attacks on science. However, the negative impacts of these attacks must be weighed against other considerations, including the freedom of speech and religious expression, and the assertion that some criticism is healthy for the scientific field. The viewpoints in this volume consider the impacts of attacks on science, whether these attacks can be stopped, and how they can be prevented. Readers will evaluate the role of the internet in propagating and legitimizing these attacks.","English",33,26.4,"306.4/5--dc23","176 pp.","https://greenhavenpublishing.com/9781534507920",null,{"$f":"Table1[[#This Row],['# of Books]]*Table1[[#This Row],[QTY]]","v":0},{"$f":"Table1[[#This Row],[QTY]]*Table1[[#This Row],[School & Library Price]]","v":0}]
[null,12,14,null,null,"Current Issues","Current Controversies","Big Tech and Democracy","978-1-5345-0856-9",{"$f":"HYPERLINK(Table1[[#This Row],[eCommerce Hyperlink]],\"Book Weblink\")","v":"Book Weblink"},null,"Greenhaven Publishing","Library Bound Book",1,"2022","January 2022","Library","6.000 X 9.000","Edited by","Lisa Idzikowski",null,null,null,null,"Z",null,"Grade 10 - 12","Grade 9 - 12","Like other large global corporations, the technology sector known as “Big Tech” possesses the money and power to disproportionately influence society. But so far, many of these companies have escaped scrutiny and regulation while enjoying the benefits of a relatively new—and not always understood—medium. Should social media companies be considered publishers, being held accountable for spreading misinformation? Does technology increase extremism and other harmful behaviors? Is it too late to change? The viewpoints in this volume explore the fascinating debate surrounding what responsibility Big Tech should take when it comes to upholding democratic principles.","English",47.4,37.92,"303.48/33--dc23","176 pp.","https://greenhavenpublishing.com/9781534508569",null,{"$f":"Table1[[#This Row],['# of Books]]*Table1[[#This Row],[QTY]]","v":0},{"$f":"Table1[[#This Row],[QTY]]*Table1[[#This Row],[School & Library Price]]","v":0}]
[null,12,14,null,null,"Current Issues","Current Controversies","Big Tech and Democracy","978-1-5345-0857-6",{"$f":"HYPERLINK(Table1[[#This Row],[eCommerce Hyperlink]],\"Book Weblink\")","v":"Book Weblink"},{"$f":"HYPERLINK(Table1[[#This Row],[EPP Hyperlink]],\"EPP Weblink\")","v":"EPP Weblink"},"Greenhaven Publishing","eBook",1,"2022","January 2022",null,null,"Edited by","Lisa Idzikowski",null,null,null,null,"Z",null,"Grade 10 - 12","Grade 9 - 12","Like other large global corporations, the technology sector known as “Big Tech” possesses the money and power to disproportionately influence society. But so far, many of these companies have escaped scrutiny and regulation while enjoying the benefits of a relatively new—and not always understood—medium. Should social media companies be considered publishers, being held accountable for spreading misinformation? Does technology increase extremism and other harmful behaviors? Is it too late to change? The viewpoints in this volume explore the fascinating debate surrounding what responsibility Big Tech should take when it comes to upholding democratic principles.","English",47.4,37.92,"303.48/33--dc23","176 pp.","https://greenhavenpublishing.com/9781534508576","http://www.epointplus.com/embed/9781534508576/?login=cyberrep&password=cyberrep",{"$f":"Table1[[#This Row],['# of Books]]*Table1[[#This Row],[QTY]]","v":0},{"$f":"Table1[[#This Row],[QTY]]*Table1[[#This Row],[School & Library Price]]","v":0}]
[null,12,14,null,null,"Current Issues","Current Controversies","Big Tech and Democracy","978-1-5345-0855-2",{"$f":"HYPERLINK(Table1[[#This Row],[eCommerce Hyperlink]],\"Book Weblink\")","v":"Book Weblink"},null,"Greenhaven Publishing","Paperback Book",1,"2022","January 2022","Paperback","6.000 X 9.000","Edited by","Lisa Idzikowski",null,null,null,null,"Z",null,"Grade 10 - 12","Grade 9 - 12","Like other large global corporations, the technology sector known as “Big Tech” possesses the money and power to disproportionately influence society. But so far, many of these companies have escaped scrutiny and regulation while enjoying the benefits of a relatively new—and not always understood—medium. Should social media companies be considered publishers, being held accountable for spreading misinformation? Does technology increase extremism and other harmful behaviors? Is it too late to change? The viewpoints in this volume explore the fascinating debate surrounding what responsibility Big Tech should take when it comes to upholding democratic principles.","English",33,26.4,"303.48/33--dc23","176 pp.","https://greenhavenpublishing.com/9781534508552",null,{"$f":"Table1[[#This Row],['# of Books]]*Table1[[#This Row],[QTY]]","v":0},{"$f":"Table1[[#This Row],[QTY]]*Table1[[#This Row],[School & Library Price]]","v":0}]
[null,13,14,null,null,"Current Issues","Current Controversies","Cryptocurrencies and Blockchain Technology","978-1-5345-0533-9",{"$f":"HYPERLINK(Table1[[#This Row],[eCommerce Hyperlink]],\"Book Weblink\")","v":"Book Weblink"},null,"Greenhaven Publishing","Library Bound Book",1,"2020","August 2019","Library","6.000 X 9.000","Edited by","Andrew Karpan",null,null,null,null,"Z",null,"Grade 10 - 12","Grade 9 - 12","With cryptocurrencies like Bitcoin on the rise, many wonder if these digital currencies could be the exchange medium of the future, but what are cryptocurrencies and the blockchain technology that facilitates them? Blockchain technology involves linking a series of digital records through cryptography without the use of a centralized server, which when applied to asset exchange creates cryptocurrencies. However, there are various concerns about the ability to regulate cryptocurrencies, their stability, and whether they can be applied on a global scale. This volume enables readers to better understand these new technologies and the controversies surrounding them.","English",47.4,37.92,"332.4--dc23","176 pp.","https://greenhavenpublishing.com/9781534505339",null,{"$f":"Table1[[#This Row],['# of Books]]*Table1[[#This Row],[QTY]]","v":0},{"$f":"Table1[[#This Row],[QTY]]*Table1[[#This Row],[School & Library Price]]","v":0}]
[null,13,14,null,null,"Current Issues","Current Controversies","Cryptocurrencies and Blockchain Technology","978-1-5345-0535-3",{"$f":"HYPERLINK(Table1[[#This Row],[eCommerce Hyperlink]],\"Book Weblink\")","v":"Book Weblink"},null,"Greenhaven Publishing","eBook",1,"2020","August 2019",null,null,"Edited by","Andrew Karpan",null,null,null,null,"Z",null,"Grade 10 - 12","Grade 9 - 12","With cryptocurrencies like Bitcoin on the rise, many wonder if these digital currencies could be the exchange medium of the future, but what are cryptocurrencies and the blockchain technology that facilitates them? Blockchain technology involves linking a series of digital records through cryptography without the use of a centralized server, which when applied to asset exchange creates cryptocurrencies. However, there are various concerns about the ability to regulate cryptocurrencies, their stability, and whether they can be applied on a global scale. This volume enables readers to better understand these new technologies and the controversies surrounding them.","English",47.4,37.92,"332.4--dc23","176 pp.","https://greenhavenpublishing.com/9781534505353",null,{"$f":"Table1[[#This Row],['# of Books]]*Table1[[#This Row],[QTY]]","v":0},{"$f":"Table1[[#This Row],[QTY]]*Table1[[#This Row],[School & Library Price]]","v":0}]
[null,13,14,null,null,"Current Issues","Current Controversies","Cryptocurrencies and Blockchain Technology","978-1-5345-0534-6",{"$f":"HYPERLINK(Table1[[#This Row],[eCommerce Hyperlink]],\"Book Weblink\")","v":"Book Weblink"},null,"Greenhaven Publishing","Paperback Book",1,"2020","August 2019","Paperback","6.000 X 9.000","Edited by","Andrew Karpan",null,null,null,null,"Z",null,"Grade 10 - 12","Grade 9 - 12","With cryptocurrencies like Bitcoin on the rise, many wonder if these digital currencies could be the exchange medium of the future, but what are cryptocurrencies and the blockchain technology that facilitates them? Blockchain technology involves linking a series of digital records through cryptography without the use of a centralized server, which when applied to asset exchange creates cryptocurrencies. However, there are various concerns about the ability to regulate cryptocurrencies, their stability, and whether they can be applied on a global scale. This volume enables readers to better understand these new technologies and the controversies surrounding them.","English",33,26.4,"332.4--dc23","176 pp.","https://greenhavenpublishing.com/9781534505346",null,{"$f":"Table1[[#This Row],['# of Books]]*Table1[[#This Row],[QTY]]","v":0},{"$f":"Table1[[#This Row],[QTY]]*Table1[[#This Row],[School & Library Price]]","v":0}]
[null,null,14,null,null,"Current Issues","Current Controversies","Cybercrime","978-0-7377-7420-7",{"$f":"HYPERLINK(Table1[[#This Row],[eCommerce Hyperlink]],\"Book Weblink\")","v":"Book Weblink"},null,"Greenhaven Publishing","Library Bound Book",1,"2016","January 2016","Library","6.000 X 9.000","Edited by","Noël Merino",null,null,null,null,"Z",null,"Grade 10 - 12","Grade 9 - 12","Cybercrime is a very real threat in our Internet-connected society. This anthology provides your readers with a solid base of knowledge on cybercrime and provides resources that help to develop critical thinking skills. The essays in this volume offer a broad array of viewpoints. Students are encouraged to see the validity of divergent opinions, so that they may understand issues inclusively. A question-and-response format prompts readers to examine complex issues from multiple viewpoints. Readers will debate whether cybercrime poses a serious problem for U.S. security, whether cybercrime against individuals is a serious problem, and what should be done to protect internet users from cybercrime.","English",47.4,37.92,"364.16/​8","176 pp.","https://greenhavenpublishing.com/9780737774207",null,{"$f":"Table1[[#This Row],['# of Books]]*Table1[[#This Row],[QTY]]","v":0},{"$f":"Table1[[#This Row],[QTY]]*Table1[[#This Row],[School & Library Price]]","v":0}]
[null,null,14,null,null,"Current Issues","Current Controversies","Cybercrime","978-0-7377-7673-7",{"$f":"HYPERLINK(Table1[[#This Row],[eCommerce Hyperlink]],\"Book Weblink\")","v":"Book Weblink"},null,"Greenhaven Publishing","eBook",1,"2016","January 2016",null,null,"Edited by","Noël Merino",null,null,null,null,"Z",null,"Grade 10 - 12","Grade 9 - 12","Cybercrime is a very real threat in our Internet-connected society. This anthology provides your readers with a solid base of knowledge on cybercrime and provides resources that help to develop critical thinking skills. The essays in this volume offer a broad array of viewpoints. Students are encouraged to see the validity of divergent opinions, so that they may understand issues inclusively. A question-and-response format prompts readers to examine complex issues from multiple viewpoints. Readers will debate whether cybercrime poses a serious problem for U.S. security, whether cybercrime against individuals is a serious problem, and what should be done to protect internet users from cybercrime.","English",47.4,37.92,"364.16/​8","176 pp.","https://greenhavenpublishing.com/9780737776737",null,{"$f":"Table1[[#This Row],['# of Books]]*Table1[[#This Row],[QTY]]","v":0},{"$f":"Table1[[#This Row],[QTY]]*Table1[[#This Row],[School & Library Price]]","v":0}]
[null,null,14,null,null,"Current Issues","Current Controversies","Cybercrime","978-0-7377-7421-4",{"$f":"HYPERLINK(Table1[[#This Row],[eCommerce Hyperlink]],\"Book Weblink\")","v":"Book Weblink"},null,"Greenhaven Publishing","Paperback Book",1,"2016","January 2016","Paperback","6.000 X 9.000","Edited by","Noël Merino",null,null,null,null,"Z",null,"Grade 10 - 12","Grade 9 - 12","Cybercrime is a very real threat in our Internet-connected society. This anthology provides your readers with a solid base of knowledge on cybercrime and provides resources that help to develop critical thinking skills. The essays in this volume offer a broad array of viewpoints. Students are encouraged to see the validity of divergent opinions, so that they may understand issues inclusively. A question-and-response format prompts readers to examine complex issues from multiple viewpoints. Readers will debate whether cybercrime poses a serious problem for U.S. security, whether cybercrime against individuals is a serious problem, and what should be done to protect internet users from cybercrime.","English",33,26.4,"364.16/​8","176 pp.","https://greenhavenpublishing.com/9780737774214",null,{"$f":"Table1[[#This Row],['# of Books]]*Table1[[#This Row],[QTY]]","v":0},{"$f":"Table1[[#This Row],[QTY]]*Table1[[#This Row],[School & Library Price]]","v":0}]
[null,12,14,null,null,"Current Issues","Current Controversies","Cyberterrorism","978-1-5345-0865-1",{"$f":"HYPERLINK(Table1[[#This Row],[eCommerce Hyperlink]],\"Book Weblink\")","v":"Book Weblink"},null,"Greenhaven Publishing","Library Bound Book",1,"2022","January 2022","Library","6.000 X 9.000","Edited by","Erica Grove",null,null,null,null,"Z",null,"Grade 10 - 12","Grade 9 - 12","While difficult to define conclusively, cyberterrorism involves using computer systems to create chaos and fear in order to harm individuals or larger groups such as organizations or nation states. Acts of cyberterrorism can be a major threat to infrastructure and security. But how realistic a threat are they? Some experts claim that despite their dramatic scope, cyberterrorist acts are mostly exaggerated by the media. Others counter that such threats should be taken very seriously. The viewpoints in this resource debate the potential damage created by cyberterrorism, how it can be prevented, and who is responsible for policing it.","English",47.4,37.92,"363.325--dc23","200 pp.","https://greenhavenpublishing.com/9781534508651",null,{"$f":"Table1[[#This Row],['# of Books]]*Table1[[#This Row],[QTY]]","v":0},{"$f":"Table1[[#This Row],[QTY]]*Table1[[#This Row],[School & Library Price]]","v":0}]
[null,12,14,null,null,"Current Issues","Current Controversies","Cyberterrorism","978-1-5345-0866-8",{"$f":"HYPERLINK(Table1[[#This Row],[eCommerce Hyperlink]],\"Book Weblink\")","v":"Book Weblink"},{"$f":"HYPERLINK(Table1[[#This Row],[EPP Hyperlink]],\"EPP Weblink\")","v":"EPP Weblink"},"Greenhaven Publishing","eBook",1,"2022","January 2022",null,null,"Edited by","Erica Grove",null,null,null,null,"Z",null,"Grade 10 - 12","Grade 9 - 12","While difficult to define conclusively, cyberterrorism involves using computer systems to create chaos and fear in order to harm individuals or larger groups such as organizations or nation states. Acts of cyberterrorism can be a major threat to infrastructure and security. But how realistic a threat are they? Some experts claim that despite their dramatic scope, cyberterrorist acts are mostly exaggerated by the media. Others counter that such threats should be taken very seriously. The viewpoints in this resource debate the potential damage created by cyberterrorism, how it can be prevented, and who is responsible for policing it.","English",47.4,37.92,"363.325--dc23","200 pp.","https://greenhavenpublishing.com/9781534508668","http://www.epointplus.com/embed/9781534508668/?login=cyberrep&password=cyberrep",{"$f":"Table1[[#This Row],['# of Books]]*Table1[[#This Row],[QTY]]","v":0},{"$f":"Table1[[#This Row],[QTY]]*Table1[[#This Row],[School & Library Price]]","v":0}]
[null,12,14,null,null,"Current Issues","Current Controversies","Cyberterrorism","978-1-5345-0864-4",{"$f":"HYPERLINK(Table1[[#This Row],[eCommerce Hyperlink]],\"Book Weblink\")","v":"Book Weblink"},null,"Greenhaven Publishing","Paperback Book",1,"2022","January 2022","Paperback","6.000 X 9.000","Edited by","Erica Grove",null,null,null,null,"Z",null,"Grade 10 - 12","Grade 9 - 12","While difficult to define conclusively, cyberterrorism involves using computer systems to create chaos and fear in order to harm individuals or larger groups such as organizations or nation states. Acts of cyberterrorism can be a major threat to infrastructure and security. But how realistic a threat are they? Some experts claim that despite their dramatic scope, cyberterrorist acts are mostly exaggerated by the media. Others counter that such threats should be taken very seriously. The viewpoints in this resource debate the potential damage created by cyberterrorism, how it can be prevented, and who is responsible for policing it.","English",33,26.4,"363.325--dc23","200 pp.","https://greenhavenpublishing.com/9781534508644",null,{"$f":"Table1[[#This Row],['# of Books]]*Table1[[#This Row],[QTY]]","v":0},{"$f":"Table1[[#This Row],[QTY]]*Table1[[#This Row],[School & Library Price]]","v":0}]
[null,null,14,null,null,"Current Issues","Current Controversies","Deadly Viruses","978-0-7377-7428-3",{"$f":"HYPERLINK(Table1[[#This Row],[eCommerce Hyperlink]],\"Book Weblink\")","v":"Book Weblink"},null,"Greenhaven Publishing","Library Bound Book",1,"2016","January 2016","Library","6.000 X 9.000","Edited by","Noah Berlatsky",null,null,null,null,"Z",null,"Grade 10 - 12","Grade 9 - 12","Issues surrounding deadly viruses are put under the microscope. A question-and-response format prompts readers to examine complex issues from multiple viewpoints such whether Ebola a serious threat, whether vaccines against deadly viruses be compulsory, and whether an HIV/AIDS crisis still exist.","English",47.4,37.92,"616.9","216 pp.","https://greenhavenpublishing.com/9780737774283",null,{"$f":"Table1[[#This Row],['# of Books]]*Table1[[#This Row],[QTY]]","v":0},{"$f":"Table1[[#This Row],[QTY]]*Table1[[#This Row],[School & Library Price]]","v":0}]
[null,null,14,null,null,"Current Issues","Current Controversies","Deadly Viruses","978-0-7377-7429-0",{"$f":"HYPERLINK(Table1[[#This Row],[eCommerce Hyperlink]],\"Book Weblink\")","v":"Book Weblink"},null,"Greenhaven Publishing","Paperback Book",1,"2016","January 2016","Paperback","6.000 X 9.000","Edited by","Noah Berlatsky",null,null,null,null,"Z",null,"Grade 10 - 12","Grade 9 - 12","Issues surrounding deadly viruses are put under the microscope. A question-and-response format prompts readers to examine complex issues from multiple viewpoints such whether Ebola a serious threat, whether vaccines against deadly viruses be compulsory, and whether an HIV/AIDS crisis still exist.","English",33,26.4,"616.9","216 pp.","https://greenhavenpublishing.com/9780737774290",null,{"$f":"Table1[[#This Row],['# of Books]]*Table1[[#This Row],[QTY]]","v":0},{"$f":"Table1[[#This Row],[QTY]]*Table1[[#This Row],[School & Library Price]]","v":0}]
[null,null,14,null,null,"Current Issues","Current Controversies","Deporting Immigrants","978-1-5345-0234-5",{"$f":"HYPERLINK(Table1[[#This Row],[eCommerce Hyperlink]],\"Book Weblink\")","v":"Book Weblink"},null,"Greenhaven Publishing","Library Bound Book",1,"2018","January 2018","Library","6.000 X 9.000","Edited by","Anne Cunningham",null,null,null,null,"Z","1350L","Grade 10 - 12","Grade 9 - 12","As immigration and naturalization processes continue to dominate U.S. news headlines and political rhetoric, the tangible fear of having one's family torn apart is only growing greater for those who flock to the United States for work, education, or refuge. This book looks at both legal and undocumented immigration and explores the challenges faced by local and federal government officials, by different types of workers, and by the children of green card or visa holders. This is a balanced overview of deportation, those it may involve, and how it works.","English",47.4,37.92,"325.73--dc23","200 pp.","https://greenhavenpublishing.com/9781534502345",null,{"$f":"Table1[[#This Row],['# of Books]]*Table1[[#This Row],[QTY]]","v":0},{"$f":"Table1[[#This Row],[QTY]]*Table1[[#This Row],[School & Library Price]]","v":0}]
[null,null,14,null,null,"Current Issues","Current Controversies","Deporting Immigrants","978-1-5345-0227-7",{"$f":"HYPERLINK(Table1[[#This Row],[eCommerce Hyperlink]],\"Book Weblink\")","v":"Book Weblink"},null,"Greenhaven Publishing","eBook",1,"2018","January 2018",null,null,"Edited by","Anne Cunningham",null,null,null,null,"Z","1350L","Grade 10 - 12","Grade 9 - 12","As immigration and naturalization processes continue to dominate U.S. news headlines and political rhetoric, the tangible fear of having one's family torn apart is only growing greater for those who flock to the United States for work, education, or refuge. This book looks at both legal and undocumented immigration and explores the challenges faced by local and federal government officials, by different types of workers, and by the children of green card or visa holders. This is a balanced overview of deportation, those it may involve, and how it works.","English",47.4,37.92,"325.73--dc23","200 pp.","https://greenhavenpublishing.com/9781534502277",null,{"$f":"Table1[[#This Row],['# of Books]]*Table1[[#This Row],[QTY]]","v":0},{"$f":"Table1[[#This Row],[QTY]]*Table1[[#This Row],[School & Library Price]]","v":0}]
[null,null,14,null,null,"Current Issues","Current Controversies","Deporting Immigrants","978-1-5345-0240-6",{"$f":"HYPERLINK(Table1[[#This Row],[eCommerce Hyperlink]],\"Book Weblink\")","v":"Book Weblink"},null,"Greenhaven Publishing","Paperback Book",1,"2018","January 2018","Paperback","6.000 X 9.000","Edited by","Anne Cunningham",null,null,null,null,"Z","1350L","Grade 10 - 12","Grade 9 - 12","As immigration and naturalization processes continue to dominate U.S. news headlines and political rhetoric, the tangible fear of having one's family torn apart is only growing greater for those who flock to the United States for work, education, or refuge. This book looks at both legal and undocumented immigration and explores the challenges faced by local and federal government officials, by different types of workers, and by the children of green card or visa holders. This is a balanced overview of deportation, those it may involve, and how it works.","English",33,26.4,"325.73--dc23","200 pp.","https://greenhavenpublishing.com/9781534502406",null,{"$f":"Table1[[#This Row],['# of Books]]*Table1[[#This Row],[QTY]]","v":0},{"$f":"Table1[[#This Row],[QTY]]*Table1[[#This Row],[School & Library Price]]","v":0}]
[null,12,14,null,null,"Current Issues","Current Controversies","Domestic Extremism","978-1-5345-0850-7",{"$f":"HYPERLINK(Table1[[#This Row],[eCommerce Hyperlink]],\"Book Weblink\")","v":"Book Weblink"},null,"Greenhaven Publishing","Library Bound Book",1,"2022","January 2022","Library","6.000 X 9.000","Edited by","Eamon Doyle",null,null,null,null,"Z",null,"Grade 10 - 12","Grade 9 - 12","The United States seems to be more ideologically divided than ever, with political polarization at an all-time high in recent history. Political differences can be positive, as when they drive an increase in political engagement or push both sides to come to better conclusions. But taken to an extreme, they can be dangerous. The viewpoints in this volume examine extremists on both the right and the left, how domestic extremism has evolved since the advent of the internet and social media, and how law enforcement at various levels should address it, particularly in the prevention of extremist attacks.","English",47.4,37.92,"303.48/40973--dc23","176 pp.","https://greenhavenpublishing.com/9781534508507",null,{"$f":"Table1[[#This Row],['# of Books]]*Table1[[#This Row],[QTY]]","v":0},{"$f":"Table1[[#This Row],[QTY]]*Table1[[#This Row],[School & Library Price]]","v":0}]
[null,12,14,null,null,"Current Issues","Current Controversies","Domestic Extremism","978-1-5345-0851-4",{"$f":"HYPERLINK(Table1[[#This Row],[eCommerce Hyperlink]],\"Book Weblink\")","v":"Book Weblink"},{"$f":"HYPERLINK(Table1[[#This Row],[EPP Hyperlink]],\"EPP Weblink\")","v":"EPP Weblink"},"Greenhaven Publishing","eBook",1,"2022","January 2022",null,null,"Edited by","Eamon Doyle",null,null,null,null,"Z",null,"Grade 10 - 12","Grade 9 - 12","The United States seems to be more ideologically divided than ever, with political polarization at an all-time high in recent history. Political differences can be positive, as when they drive an increase in political engagement or push both sides to come to better conclusions. But taken to an extreme, they can be dangerous. The viewpoints in this volume examine extremists on both the right and the left, how domestic extremism has evolved since the advent of the internet and social media, and how law enforcement at various levels should address it, particularly in the prevention of extremist attacks.","English",47.4,37.92,"303.48/40973--dc23","176 pp.","https://greenhavenpublishing.com/9781534508514","http://www.epointplus.com/embed/9781534508514/?login=cyberrep&password=cyberrep",{"$f":"Table1[[#This Row],['# of Books]]*Table1[[#This Row],[QTY]]","v":0},{"$f":"Table1[[#This Row],[QTY]]*Table1[[#This Row],[School & Library Price]]","v":0}]
[null,12,14,null,null,"Current Issues","Current Controversies","Domestic Extremism","978-1-5345-0849-1",{"$f":"HYPERLINK(Table1[[#This Row],[eCommerce Hyperlink]],\"Book Weblink\")","v":"Book Weblink"},null,"Greenhaven Publishing","Paperback Book",1,"2022","January 2022","Paperback","6.000 X 9.000","Edited by","Eamon Doyle",null,null,null,null,"Z",null,"Grade 10 - 12","Grade 9 - 12","The United States seems to be more ideologically divided than ever, with political polarization at an all-time high in recent history. Political differences can be positive, as when they drive an increase in political engagement or push both sides to come to better conclusions. But taken to an extreme, they can be dangerous. The viewpoints in this volume examine extremists on both the right and the left, how domestic extremism has evolved since the advent of the internet and social media, and how law enforcement at various levels should address it, particularly in the prevention of extremist attacks.","English",33,26.4,"303.48/40973--dc23","176 pp.","https://greenhavenpublishing.com/9781534508491",null,{"$f":"Table1[[#This Row],['# of Books]]*Table1[[#This Row],[QTY]]","v":0},{"$f":"Table1[[#This Row],[QTY]]*Table1[[#This Row],[School & Library Price]]","v":0}]
[null,null,14,null,null,"Current Issues","Current Controversies","Domestic Surveillance","978-0-7377-7434-4",{"$f":"HYPERLINK(Table1[[#This Row],[eCommerce Hyperlink]],\"Book Weblink\")","v":"Book Weblink"},null,"Greenhaven Publishing","Library Bound Book",1,"2016","January 2016","Library","6.000 X 9.000","Edited by","Noël Merino",null,null,null,null,"Z",null,"Grade 10 - 12","Grade 9 - 12","The Patriot Act dramatically expanded the government's ability to gather surveillance on American citizens. This anthology contains a diverse collection of essays that present opposing viewpoints on domestic surveillance. Disparate viewpoints are encapsulated with the use of a question-and-response format. Students are encouraged to weigh the merits of divergent opinions, so that they may understand the topic inclusively. Constitutional implications and national security are among the topics discussed.","English",47.4,37.92,"363.325/​163/​0973","176 pp.","https://greenhavenpublishing.com/9780737774344",null,{"$f":"Table1[[#This Row],['# of Books]]*Table1[[#This Row],[QTY]]","v":0},{"$f":"Table1[[#This Row],[QTY]]*Table1[[#This Row],[School & Library Price]]","v":0}]
[null,null,14,null,null,"Current Issues","Current Controversies","Domestic Surveillance","978-0-7377-7674-4",{"$f":"HYPERLINK(Table1[[#This Row],[eCommerce Hyperlink]],\"Book Weblink\")","v":"Book Weblink"},null,"Greenhaven Publishing","eBook",1,"2016","January 2016",null,null,"Edited by","Noël Merino",null,null,null,null,"Z",null,"Grade 10 - 12","Grade 9 - 12","The Patriot Act dramatically expanded the government's ability to gather surveillance on American citizens. This anthology contains a diverse collection of essays that present opposing viewpoints on domestic surveillance. Disparate viewpoints are encapsulated with the use of a question-and-response format. Students are encouraged to weigh the merits of divergent opinions, so that they may understand the topic inclusively. Constitutional implications and national security are among the topics discussed.","English",47.4,37.92,"363.325/​163/​0973","176 pp.","https://greenhavenpublishing.com/9780737776744",null,{"$f":"Table1[[#This Row],['# of Books]]*Table1[[#This Row],[QTY]]","v":0},{"$f":"Table1[[#This Row],[QTY]]*Table1[[#This Row],[School & Library Price]]","v":0}]
[null,null,14,null,null,"Current Issues","Current Controversies","Domestic Surveillance","978-0-7377-7435-1",{"$f":"HYPERLINK(Table1[[#This Row],[eCommerce Hyperlink]],\"Book Weblink\")","v":"Book Weblink"},null,"Greenhaven Publishing","Paperback Book",1,"2016","January 2016","Paperback","6.000 X 9.000","Edited by","Noël Merino",null,null,null,null,"Z",null,"Grade 10 - 12","Grade 9 - 12","The Patriot Act dramatically expanded the government's ability to gather surveillance on American citizens. This anthology contains a diverse collection of essays that present opposing viewpoints on domestic surveillance. Disparate viewpoints are encapsulated with the use of a question-and-response format. Students are encouraged to weigh the merits of divergent opinions, so that they may understand the topic inclusively. Constitutional implications and national security are among the topics discussed.","English",33,26.4,"363.325/​163/​0973","176 pp.","https://greenhavenpublishing.com/9780737774351",null,{"$f":"Table1[[#This Row],['# of Books]]*Table1[[#This Row],[QTY]]","v":0},{"$f":"Table1[[#This Row],[QTY]]*Table1[[#This Row],[School & Library Price]]","v":0}]
[null,13,14,null,null,"Current Issues","Current Controversies","Domestic vs. Offshore Manufacturing","978-1-5345-0712-8",{"$f":"HYPERLINK(Table1[[#This Row],[eCommerce Hyperlink]],\"Book Weblink\")","v":"Book Weblink"},null,"Greenhaven Publishing","Library Bound Book",1,"2022","August 2021","Library","6.000 X 9.000","Compiled by","Sabine Cherenfant",null,null,null,null,"Z",null,"Grade 10 - 12","Grade 9 - 12","In an increasingly globalized world, offshore manufacturing is often favored over domestic manufacturing for its ability to meet greater demands for goods that can be manufactured at lower costs, ultimately saving both companies and consumers money. However, a number of concerns also arise when examining offshoring's impact on a domestic and international scale. Some argue that offshoring results in the exploitation of workers from lower-income countries, while others express concern over the potential loss of domestic jobs that can result from it. This volume examines the benefits and drawbacks of domestic and offshore manufacturing through numerous points of contention.","English",47.4,37.92,"338.4/767042--dc23","176 pp.","https://greenhavenpublishing.com/9781534507128",null,{"$f":"Table1[[#This Row],['# of Books]]*Table1[[#This Row],[QTY]]","v":0},{"$f":"Table1[[#This Row],[QTY]]*Table1[[#This Row],[School & Library Price]]","v":0}]
[null,13,14,null,null,"Current Issues","Current Controversies","Domestic vs. Offshore Manufacturing","978-1-5345-0713-5",{"$f":"HYPERLINK(Table1[[#This Row],[eCommerce Hyperlink]],\"Book Weblink\")","v":"Book Weblink"},null,"Greenhaven Publishing","eBook",1,"2022","August 2021",null,null,"Compiled by","Sabine Cherenfant",null,null,null,null,"Z",null,"Grade 10 - 12","Grade 9 - 12","In an increasingly globalized world, offshore manufacturing is often favored over domestic manufacturing for its ability to meet greater demands for goods that can be manufactured at lower costs, ultimately saving both companies and consumers money. However, a number of concerns also arise when examining offshoring's impact on a domestic and international scale. Some argue that offshoring results in the exploitation of workers from lower-income countries, while others express concern over the potential loss of domestic jobs that can result from it. This volume examines the benefits and drawbacks of domestic and offshore manufacturing through numerous points of contention.","English",47.4,37.92,"338.4/767042--dc23","176 pp.","https://greenhavenpublishing.com/9781534507135",null,{"$f":"Table1[[#This Row],['# of Books]]*Table1[[#This Row],[QTY]]","v":0},{"$f":"Table1[[#This Row],[QTY]]*Table1[[#This Row],[School & Library Price]]","v":0}]
[null,13,14,null,null,"Current Issues","Current Controversies","Domestic vs. Offshore Manufacturing","978-1-5345-0711-1",{"$f":"HYPERLINK(Table1[[#This Row],[eCommerce Hyperlink]],\"Book Weblink\")","v":"Book Weblink"},null,"Greenhaven Publishing","Paperback Book",1,"2022","August 2021","Paperback","6.000 X 9.000","Compiled by","Sabine Cherenfant",null,null,null,null,"Z",null,"Grade 10 - 12","Grade 9 - 12","In an increasingly globalized world, offshore manufacturing is often favored over domestic manufacturing for its ability to meet greater demands for goods that can be manufactured at lower costs, ultimately saving both companies and consumers money. However, a number of concerns also arise when examining offshoring's impact on a domestic and international scale. Some argue that offshoring results in the exploitation of workers from lower-income countries, while others express concern over the potential loss of domestic jobs that can result from it. This volume examines the benefits and drawbacks of domestic and offshore manufacturing through numerous points of contention.","English",33,26.4,"338.4/767042--dc23","176 pp.","https://greenhavenpublishing.com/9781534507111",null,{"$f":"Table1[[#This Row],['# of Books]]*Table1[[#This Row],[QTY]]","v":0},{"$f":"Table1[[#This Row],[QTY]]*Table1[[#This Row],[School & Library Price]]","v":0}]
[null,null,14,null,null,"Current Issues","Current Controversies","Drones","978-0-7377-7422-1",{"$f":"HYPERLINK(Table1[[#This Row],[eCommerce Hyperlink]],\"Book Weblink\")","v":"Book Weblink"},null,"Greenhaven Publishing","Library Bound Book",1,"2016","January 2016","Library","6.000 X 9.000","Edited by","Tamara Thompson",null,null,null,null,"Z",null,"Grade 10 - 12","Grade 9 - 12","Readers will explore the issues surrounding drones, including why drones are controversial, how drone technology has outpaced regulation, whether or not domestic law enforcement agencies should be allowed to use drones, and if commercial drone use should be allowed.","English",47.4,37.92,"358.4/​183","208 pp.","https://greenhavenpublishing.com/9780737774221",null,{"$f":"Table1[[#This Row],['# of Books]]*Table1[[#This Row],[QTY]]","v":0},{"$f":"Table1[[#This Row],[QTY]]*Table1[[#This Row],[School & Library Price]]","v":0}]
[null,null,14,null,null,"Current Issues","Current Controversies","Drones","978-0-7377-7675-1",{"$f":"HYPERLINK(Table1[[#This Row],[eCommerce Hyperlink]],\"Book Weblink\")","v":"Book Weblink"},null,"Greenhaven Publishing","eBook",1,"2016","January 2016",null,null,"Edited by","Tamara Thompson",null,null,null,null,"Z",null,"Grade 10 - 12","Grade 9 - 12","Readers will explore the issues surrounding drones, including why drones are controversial, how drone technology has outpaced regulation, whether or not domestic law enforcement agencies should be allowed to use drones, and if commercial drone use should be allowed.","English",47.4,37.92,"358.4/​183","208 pp.","https://greenhavenpublishing.com/9780737776751",null,{"$f":"Table1[[#This Row],['# of Books]]*Table1[[#This Row],[QTY]]","v":0},{"$f":"Table1[[#This Row],[QTY]]*Table1[[#This Row],[School & Library Price]]","v":0}]
[null,null,14,null,null,"Current Issues","Current Controversies","Drones","978-0-7377-7423-8",{"$f":"HYPERLINK(Table1[[#This Row],[eCommerce Hyperlink]],\"Book Weblink\")","v":"Book Weblink"},null,"Greenhaven Publishing","Paperback Book",1,"2016","January 2016","Paperback","6.000 X 9.000","Edited by","Tamara Thompson",null,null,null,null,"Z",null,"Grade 10 - 12","Grade 9 - 12","Readers will explore the issues surrounding drones, including why drones are controversial, how drone technology has outpaced regulation, whether or not domestic law enforcement agencies should be allowed to use drones, and if commercial drone use should be allowed.","English",33,26.4,"358.4/​183","208 pp.","https://greenhavenpublishing.com/9780737774238",null,{"$f":"Table1[[#This Row],['# of Books]]*Table1[[#This Row],[QTY]]","v":0},{"$f":"Table1[[#This Row],[QTY]]*Table1[[#This Row],[School & Library Price]]","v":0}]
[null,null,14,null,null,"Current Issues","Current Controversies","Drones, Surveillance, and Targeted Killings","978-1-5345-0020-4",{"$f":"HYPERLINK(Table1[[#This Row],[eCommerce Hyperlink]],\"Book Weblink\")","v":"Book Weblink"},null,"Greenhaven Publishing","Library Bound Book",1,"2017","January 2017","Library","6.000 X 9.000","Edited by","Anne C. Cunningham",null,null,null,null,"Z","1400L","Grade 10 - 12","Grade 9 - 12","This timely anthology examines the use of drones by the military, law enforcement, border patrol, and civilians. Articles condoning the use of drones in military engagements abroad are balanced with reportage of civilian deaths and resulting creation of more terrorists. Pieces touting the effectiveness of drones in domestic surveillance are countered by assertions that they violate Americans’ civil liberties. Opinions about the pros and cons of drone use in securing our borders, as well as the potential benefits and dangers of their commercial use, will add to readers’ deep understanding of this complex issue.","English",47.4,37.92,"623.74'69--dc23","168 pp.","https://greenhavenpublishing.com/9781534500204",null,{"$f":"Table1[[#This Row],['# of Books]]*Table1[[#This Row],[QTY]]","v":0},{"$f":"Table1[[#This Row],[QTY]]*Table1[[#This Row],[School & Library Price]]","v":0}]
[null,null,14,null,null,"Current Issues","Current Controversies","Drones, Surveillance, and Targeted Killings","978-1-5345-0008-2",{"$f":"HYPERLINK(Table1[[#This Row],[eCommerce Hyperlink]],\"Book Weblink\")","v":"Book Weblink"},null,"Greenhaven Publishing","eBook",1,"2017","January 2017",null,null,"Edited by","Anne C. Cunningham",null,null,null,null,"Z","1400L","Grade 10 - 12","Grade 9 - 12","This timely anthology examines the use of drones by the military, law enforcement, border patrol, and civilians. Articles condoning the use of drones in military engagements abroad are balanced with reportage of civilian deaths and resulting creation of more terrorists. Pieces touting the effectiveness of drones in domestic surveillance are countered by assertions that they violate Americans’ civil liberties. Opinions about the pros and cons of drone use in securing our borders, as well as the potential benefits and dangers of their commercial use, will add to readers’ deep understanding of this complex issue.","English",47.4,37.92,"623.74'69--dc23","168 pp.","https://greenhavenpublishing.com/9781534500082",null,{"$f":"Table1[[#This Row],['# of Books]]*Table1[[#This Row],[QTY]]","v":0},{"$f":"Table1[[#This Row],[QTY]]*Table1[[#This Row],[School & Library Price]]","v":0}]
[null,null,14,null,null,"Current Issues","Current Controversies","Drones, Surveillance, and Targeted Killings","978-1-5345-0036-5",{"$f":"HYPERLINK(Table1[[#This Row],[eCommerce Hyperlink]],\"Book Weblink\")","v":"Book Weblink"},null,"Greenhaven Publishing","Paperback Book",1,"2017","January 2017","Paperback","6.000 X 9.000","Edited by","Anne C. Cunningham",null,null,null,null,"Z","1400L","Grade 10 - 12","Grade 9 - 12","This timely anthology examines the use of drones by the military, law enforcement, border patrol, and civilians. Articles condoning the use of drones in military engagements abroad are balanced with reportage of civilian deaths and resulting creation of more terrorists. Pieces touting the effectiveness of drones in domestic surveillance are countered by assertions that they violate Americans’ civil liberties. Opinions about the pros and cons of drone use in securing our borders, as well as the potential benefits and dangers of their commercial use, will add to readers’ deep understanding of this complex issue.","English",33,26.4,"623.74'69--dc23","168 pp.","https://greenhavenpublishing.com/9781534500365",null,{"$f":"Table1[[#This Row],['# of Books]]*Table1[[#This Row],[QTY]]","v":0},{"$f":"Table1[[#This Row],[QTY]]*Table1[[#This Row],[School & Library Price]]","v":0}]
[null,null,14,null,null,"Current Issues","Current Controversies","Enhanced Interrogation and Torture","978-1-5345-0235-2",{"$f":"HYPERLINK(Table1[[#This Row],[eCommerce Hyperlink]],\"Book Weblink\")","v":"Book Weblink"},null,"Greenhaven Publishing","Library Bound Book",1,"2018","January 2018","Library","6.000 X 9.000","Edited by","Gary Wiener",null,null,null,null,"Z",null,"Grade 10 - 12","Grade 9 - 12","You hear about \"waterboarding,\" but what exactly does it mean? This informative, and at times unflinching, collection of essays explores the radical tactics used by government-sanctioned agencies, and those used by terror groups, to ferret out key intelligence from detainees. Topics range from the Geneva Convention to the conditions at Iraq's Abu Ghraib prison to the impact of the viral execution videos released by ISIS. A frank look at a difficult subject, this book is recommended for older readers who may already be studying the effects of war or current events.","English",47.4,37.92,"327.1273--dc23","184 pp.","https://greenhavenpublishing.com/9781534502352",null,{"$f":"Table1[[#This Row],['# of Books]]*Table1[[#This Row],[QTY]]","v":0},{"$f":"Table1[[#This Row],[QTY]]*Table1[[#This Row],[School & Library Price]]","v":0}]
[null,null,14,null,null,"Current Issues","Current Controversies","Enhanced Interrogation and Torture","978-1-5345-0230-7",{"$f":"HYPERLINK(Table1[[#This Row],[eCommerce Hyperlink]],\"Book Weblink\")","v":"Book Weblink"},null,"Greenhaven Publishing","eBook",1,"2018","January 2018",null,null,"Edited by","Gary Wiener",null,null,null,null,"Z",null,"Grade 10 - 12","Grade 9 - 12","You hear about \"waterboarding,\" but what exactly does it mean? This informative, and at times unflinching, collection of essays explores the radical tactics used by government-sanctioned agencies, and those used by terror groups, to ferret out key intelligence from detainees. Topics range from the Geneva Convention to the conditions at Iraq's Abu Ghraib prison to the impact of the viral execution videos released by ISIS. A frank look at a difficult subject, this book is recommended for older readers who may already be studying the effects of war or current events.","English",47.4,37.92,"327.1273--dc23","184 pp.","https://greenhavenpublishing.com/9781534502307",null,{"$f":"Table1[[#This Row],['# of Books]]*Table1[[#This Row],[QTY]]","v":0},{"$f":"Table1[[#This Row],[QTY]]*Table1[[#This Row],[School & Library Price]]","v":0}]
[null,null,14,null,null,"Current Issues","Current Controversies","Enhanced Interrogation and Torture","978-1-5345-0241-3",{"$f":"HYPERLINK(Table1[[#This Row],[eCommerce Hyperlink]],\"Book Weblink\")","v":"Book Weblink"},null,"Greenhaven Publishing","Paperback Book",1,"2018","January 2018","Paperback","6.000 X 9.000","Edited by","Gary Wiener",null,null,null,null,"Z",null,"Grade 10 - 12","Grade 9 - 12","You hear about \"waterboarding,\" but what exactly does it mean? This informative, and at times unflinching, collection of essays explores the radical tactics used by government-sanctioned agencies, and those used by terror groups, to ferret out key intelligence from detainees. Topics range from the Geneva Convention to the conditions at Iraq's Abu Ghraib prison to the impact of the viral execution videos released by ISIS. A frank look at a difficult subject, this book is recommended for older readers who may already be studying the effects of war or current events.","English",33,26.4,"327.1273--dc23","184 pp.","https://greenhavenpublishing.com/9781534502413",null,{"$f":"Table1[[#This Row],['# of Books]]*Table1[[#This Row],[QTY]]","v":0},{"$f":"Table1[[#This Row],[QTY]]*Table1[[#This Row],[School & Library Price]]","v":0}]
[null,13,14,null,null,"Current Issues","Current Controversies","Environmental Catastrophe","978-1-5345-0617-6",{"$f":"HYPERLINK(Table1[[#This Row],[eCommerce Hyperlink]],\"Book Weblink\")","v":"Book Weblink"},null,"Greenhaven Publishing","Library Bound Book",1,"2020","January 2020","Library","6.000 X 9.000","Edited by","Bridey Heing",null,null,null,null,"Z",null,"Grade 10 - 12","Grade 9 - 12","Unlike natural disasters, which happen because of the earth's natural geological processes, environmental catastrophes are devastating events that occur due to humanity's impact on the environment. These can include nuclear bombings, oil spills, and more recently the extreme weather events brought about by climate change. Wildfires, heat waves, flooding, droughts, and numerous other catastrophic scenarios manifest as a result. Use this volume to inform and alert your readers about this essential topic. With the global impact of environmental catastrophes becoming increasingly pronounced, scientists and politicians alike question what the best course of action may be to slow or even reverse the devastation. With this book, readers will form intelligent opinions that can help shape future action about necessary solutions.","English",47.4,37.92,"363.738/74--dc23","176 pp.","https://greenhavenpublishing.com/9781534506176",null,{"$f":"Table1[[#This Row],['# of Books]]*Table1[[#This Row],[QTY]]","v":0},{"$f":"Table1[[#This Row],[QTY]]*Table1[[#This Row],[School & Library Price]]","v":0}]
[null,13,14,null,null,"Current Issues","Current Controversies","Environmental Catastrophe","978-1-5345-0618-3",{"$f":"HYPERLINK(Table1[[#This Row],[eCommerce Hyperlink]],\"Book Weblink\")","v":"Book Weblink"},null,"Greenhaven Publishing","eBook",1,"2020","January 2020",null,null,"Edited by","Bridey Heing",null,null,null,null,"Z",null,"Grade 10 - 12","Grade 9 - 12","Unlike natural disasters, which happen because of the earth's natural geological processes, environmental catastrophes are devastating events that occur due to humanity's impact on the environment. These can include nuclear bombings, oil spills, and more recently the extreme weather events brought about by climate change. Wildfires, heat waves, flooding, droughts, and numerous other catastrophic scenarios manifest as a result. Use this volume to inform and alert your readers about this essential topic. With the global impact of environmental catastrophes becoming increasingly pronounced, scientists and politicians alike question what the best course of action may be to slow or even reverse the devastation. With this book, readers will form intelligent opinions that can help shape future action about necessary solutions.","English",47.4,37.92,"363.738/74--dc23","176 pp.","https://greenhavenpublishing.com/9781534506183",null,{"$f":"Table1[[#This Row],['# of Books]]*Table1[[#This Row],[QTY]]","v":0},{"$f":"Table1[[#This Row],[QTY]]*Table1[[#This Row],[School & Library Price]]","v":0}]
[null,13,14,null,null,"Current Issues","Current Controversies","Environmental Catastrophe","978-1-5345-0616-9",{"$f":"HYPERLINK(Table1[[#This Row],[eCommerce Hyperlink]],\"Book Weblink\")","v":"Book Weblink"},null,"Greenhaven Publishing","Paperback Book",1,"2020","January 2020","Paperback","6.000 X 9.000","Edited by","Bridey Heing",null,null,null,null,"Z",null,"Grade 10 - 12","Grade 9 - 12","Unlike natural disasters, which happen because of the earth's natural geological processes, environmental catastrophes are devastating events that occur due to humanity's impact on the environment. These can include nuclear bombings, oil spills, and more recently the extreme weather events brought about by climate change. Wildfires, heat waves, flooding, droughts, and numerous other catastrophic scenarios manifest as a result. Use this volume to inform and alert your readers about this essential topic. With the global impact of environmental catastrophes becoming increasingly pronounced, scientists and politicians alike question what the best course of action may be to slow or even reverse the devastation. With this book, readers will form intelligent opinions that can help shape future action about necessary solutions.","English",33,26.4,"363.738/74--dc23","176 pp.","https://greenhavenpublishing.com/9781534506169",null,{"$f":"Table1[[#This Row],['# of Books]]*Table1[[#This Row],[QTY]]","v":0},{"$f":"Table1[[#This Row],[QTY]]*Table1[[#This Row],[School & Library Price]]","v":0}]
[null,null,14,null,null,"Current Issues","Current Controversies","Executive Orders","978-1-5345-0304-5",{"$f":"HYPERLINK(Table1[[#This Row],[eCommerce Hyperlink]],\"Book Weblink\")","v":"Book Weblink"},null,"Greenhaven Publishing","Library Bound Book",1,"2019","August 2018","Library","6.000 X 9.000","Edited by","Marcia Amidon Lusted",null,null,null,null,"Z",null,"Grade 10 - 12","Grade 9 - 12","How much power should the president of the United States possess? This is the key question defining the debate over executive orders. While executive orders have played an important role in key policy changes throughout the United States' history, they can also be perceived as an abuse of power that allows the president to make important decisions without Congress's consent. Through the viewpoints included in this volume, readers will come to better understand what an executive order is and explore the key arguments for and against its usage.","English",47.4,37.92,"352.23/50973--dc23","200 pp.","https://greenhavenpublishing.com/9781534503045",null,{"$f":"Table1[[#This Row],['# of Books]]*Table1[[#This Row],[QTY]]","v":0},{"$f":"Table1[[#This Row],[QTY]]*Table1[[#This Row],[School & Library Price]]","v":0}]
[null,null,14,null,null,"Current Issues","Current Controversies","Executive Orders","978-1-5345-0305-2",{"$f":"HYPERLINK(Table1[[#This Row],[eCommerce Hyperlink]],\"Book Weblink\")","v":"Book Weblink"},null,"Greenhaven Publishing","Paperback Book",1,"2019","August 2018","Paperback","6.000 X 9.000","Edited by","Marcia Amidon Lusted",null,null,null,null,"Z",null,"Grade 10 - 12","Grade 9 - 12","How much power should the president of the United States possess? This is the key question defining the debate over executive orders. While executive orders have played an important role in key policy changes throughout the United States' history, they can also be perceived as an abuse of power that allows the president to make important decisions without Congress's consent. Through the viewpoints included in this volume, readers will come to better understand what an executive order is and explore the key arguments for and against its usage.","English",33,26.4,"352.23/50973--dc23","200 pp.","https://greenhavenpublishing.com/9781534503052",null,{"$f":"Table1[[#This Row],['# of Books]]*Table1[[#This Row],[QTY]]","v":0},{"$f":"Table1[[#This Row],[QTY]]*Table1[[#This Row],[School & Library Price]]","v":0}]
[null,13,14,null,null,"Current Issues","Current Controversies","Fair Trade","978-1-5345-0609-1",{"$f":"HYPERLINK(Table1[[#This Row],[eCommerce Hyperlink]],\"Book Weblink\")","v":"Book Weblink"},null,"Greenhaven Publishing","Library Bound Book",1,"2020","January 2020","Library","6.000 X 9.000","Edited by","Ariana Agrios",null,null,null,null,"Z",null,"Grade 10 - 12","Grade 9 - 12","Fair trade is intended to help producers in developing countries achieve better working and trading conditions while maintaining certain environmental standards. This is achieved through arrangements with distributors around the world. With the influx of fair trade goods on grocery store shelves and restaurant menus, one would assume an overall positive trend in trade conditions is occurring. However, numerous concerns continue to surround fair trade, as readers will learn. They will consider whether it benefits all developing countries and markets equally, and analyze the extent to which it is effective at protecting the environment. They will develop intelligent opinions on which conditions will make trade as fair as possible.","English",47.4,37.92,"382/.3091724--dc23","176 pp.","https://greenhavenpublishing.com/9781534506091",null,{"$f":"Table1[[#This Row],['# of Books]]*Table1[[#This Row],[QTY]]","v":0},{"$f":"Table1[[#This Row],[QTY]]*Table1[[#This Row],[School & Library Price]]","v":0}]
[null,13,14,null,null,"Current Issues","Current Controversies","Fair Trade","978-1-5345-0621-3",{"$f":"HYPERLINK(Table1[[#This Row],[eCommerce Hyperlink]],\"Book Weblink\")","v":"Book Weblink"},null,"Greenhaven Publishing","eBook",1,"2020","January 2020",null,null,"Edited by","Ariana Agrios",null,null,null,null,"Z",null,"Grade 10 - 12","Grade 9 - 12","Fair trade is intended to help producers in developing countries achieve better working and trading conditions while maintaining certain environmental standards. This is achieved through arrangements with distributors around the world. With the influx of fair trade goods on grocery store shelves and restaurant menus, one would assume an overall positive trend in trade conditions is occurring. However, numerous concerns continue to surround fair trade, as readers will learn. They will consider whether it benefits all developing countries and markets equally, and analyze the extent to which it is effective at protecting the environment. They will develop intelligent opinions on which conditions will make trade as fair as possible.","English",47.4,37.92,"382/.3091724--dc23","176 pp.","https://greenhavenpublishing.com/9781534506213",null,{"$f":"Table1[[#This Row],['# of Books]]*Table1[[#This Row],[QTY]]","v":0},{"$f":"Table1[[#This Row],[QTY]]*Table1[[#This Row],[School & Library Price]]","v":0}]
[null,13,14,null,null,"Current Issues","Current Controversies","Fair Trade","978-1-5345-0608-4",{"$f":"HYPERLINK(Table1[[#This Row],[eCommerce Hyperlink]],\"Book Weblink\")","v":"Book Weblink"},null,"Greenhaven Publishing","Paperback Book",1,"2020","January 2020","Paperback","6.000 X 9.000","Edited by","Ariana Agrios",null,null,null,null,"Z",null,"Grade 10 - 12","Grade 9 - 12","Fair trade is intended to help producers in developing countries achieve better working and trading conditions while maintaining certain environmental standards. This is achieved through arrangements with distributors around the world. With the influx of fair trade goods on grocery store shelves and restaurant menus, one would assume an overall positive trend in trade conditions is occurring. However, numerous concerns continue to surround fair trade, as readers will learn. They will consider whether it benefits all developing countries and markets equally, and analyze the extent to which it is effective at protecting the environment. They will develop intelligent opinions on which conditions will make trade as fair as possible.","English",33,26.4,"382/.3091724--dc23","176 pp.","https://greenhavenpublishing.com/9781534506084",null,{"$f":"Table1[[#This Row],['# of Books]]*Table1[[#This Row],[QTY]]","v":0},{"$f":"Table1[[#This Row],[QTY]]*Table1[[#This Row],[School & Library Price]]","v":0}]
[null,13,14,null,null,"Current Issues","Current Controversies","Fossil Fuel Industries and the Green Economy","978-1-5345-0786-9",{"$f":"HYPERLINK(Table1[[#This Row],[eCommerce Hyperlink]],\"Book Weblink\")","v":"Book Weblink"},null,"Greenhaven Publishing","Library Bound Book",1,"2022","August 2021","Library","6.000 X 9.000","Compiled by","Ariana Agrios",null,null,null,null,"Z",null,"Grade 10 - 12","Grade 9 - 12","As of 2018, 85 percent of global energy consumption was made up by fossil fuels, including petroleum, coal, and natural gas. However, the burning of fossil fuels is a major contributor of greenhouse gas emissions, which has drawn negative attention as the effects of climate change wreak havoc. Consequently, governments, citizens, scientists, and companies are now in search of more environmentally friendly sources of energy. The shift to the green economy is intended to reduce negative environmental impacts, but how this would affect consumers, communities, and the economy and whether it is economically and political feasible are up for debate, and for your readers to decide.","English",47.4,37.92,"662.6--dc23","200 pp.","https://greenhavenpublishing.com/9781534507869",null,{"$f":"Table1[[#This Row],['# of Books]]*Table1[[#This Row],[QTY]]","v":0},{"$f":"Table1[[#This Row],[QTY]]*Table1[[#This Row],[School & Library Price]]","v":0}]
[null,13,14,null,null,"Current Issues","Current Controversies","Fossil Fuel Industries and the Green Economy","978-1-5345-0787-6",{"$f":"HYPERLINK(Table1[[#This Row],[eCommerce Hyperlink]],\"Book Weblink\")","v":"Book Weblink"},null,"Greenhaven Publishing","eBook",1,"2022","August 2021",null,null,"Compiled by","Ariana Agrios",null,null,null,null,"Z",null,"Grade 10 - 12","Grade 9 - 12","As of 2018, 85 percent of global energy consumption was made up by fossil fuels, including petroleum, coal, and natural gas. However, the burning of fossil fuels is a major contributor of greenhouse gas emissions, which has drawn negative attention as the effects of climate change wreak havoc. Consequently, governments, citizens, scientists, and companies are now in search of more environmentally friendly sources of energy. The shift to the green economy is intended to reduce negative environmental impacts, but how this would affect consumers, communities, and the economy and whether it is economically and political feasible are up for debate, and for your readers to decide.","English",47.4,37.92,"662.6--dc23","200 pp.","https://greenhavenpublishing.com/9781534507876",null,{"$f":"Table1[[#This Row],['# of Books]]*Table1[[#This Row],[QTY]]","v":0},{"$f":"Table1[[#This Row],[QTY]]*Table1[[#This Row],[School & Library Price]]","v":0}]
[null,13,14,null,null,"Current Issues","Current Controversies","Fossil Fuel Industries and the Green Economy","978-1-5345-0784-5",{"$f":"HYPERLINK(Table1[[#This Row],[eCommerce Hyperlink]],\"Book Weblink\")","v":"Book Weblink"},null,"Greenhaven Publishing","Paperback Book",1,"2022","August 2021","Paperback","6.000 X 9.000","Compiled by","Ariana Agrios",null,null,null,null,"Z",null,"Grade 10 - 12","Grade 9 - 12","As of 2018, 85 percent of global energy consumption was made up by fossil fuels, including petroleum, coal, and natural gas. However, the burning of fossil fuels is a major contributor of greenhouse gas emissions, which has drawn negative attention as the effects of climate change wreak havoc. Consequently, governments, citizens, scientists, and companies are now in search of more environmentally friendly sources of energy. The shift to the green economy is intended to reduce negative environmental impacts, but how this would affect consumers, communities, and the economy and whether it is economically and political feasible are up for debate, and for your readers to decide.","English",33,26.4,"662.6--dc23","200 pp.","https://greenhavenpublishing.com/9781534507845",null,{"$f":"Table1[[#This Row],['# of Books]]*Table1[[#This Row],[QTY]]","v":0},{"$f":"Table1[[#This Row],[QTY]]*Table1[[#This Row],[School & Library Price]]","v":0}]
[null,null,14,null,null,"Current Issues","Current Controversies","Fracking","978-1-5345-0103-4",{"$f":"HYPERLINK(Table1[[#This Row],[eCommerce Hyperlink]],\"Book Weblink\")","v":"Book Weblink"},null,"Greenhaven Publishing","Library Bound Book",1,"2018","August 2017","Library","6.000 X 9.000","Edited by","Anne C. Cunningham",null,null,null,null,"Z","1370L","Grade 10 - 12","Grade 9 - 12","On the surface, fracking, or hydraulic fracturing, seems like a perfect solution to the country’s energy crises. It is a relatively easy and independent way to supply natural gas. But controversies surround the practice. The process involved in fracking has been shown to be harmful to the environment and a threat to our public health. Do the benefits of fracking outweigh the costs? Can improvements be made to the process that would eliminate its dangers? Should the government get more involved in regulating fracking, or should it be up to the people?","English",47.4,37.92,"622/.3381--dc23","184 pp.","https://greenhavenpublishing.com/9781534501034",null,{"$f":"Table1[[#This Row],['# of Books]]*Table1[[#This Row],[QTY]]","v":0},{"$f":"Table1[[#This Row],[QTY]]*Table1[[#This Row],[School & Library Price]]","v":0}]
[null,null,14,null,null,"Current Issues","Current Controversies","Fracking","978-1-5345-0104-1",{"$f":"HYPERLINK(Table1[[#This Row],[eCommerce Hyperlink]],\"Book Weblink\")","v":"Book Weblink"},null,"Greenhaven Publishing","eBook",1,"2018","August 2017",null,null,"Edited by","Anne C. Cunningham",null,null,null,null,"Z","1370L","Grade 10 - 12","Grade 9 - 12","On the surface, fracking, or hydraulic fracturing, seems like a perfect solution to the country’s energy crises. It is a relatively easy and independent way to supply natural gas. But controversies surround the practice. The process involved in fracking has been shown to be harmful to the environment and a threat to our public health. Do the benefits of fracking outweigh the costs? Can improvements be made to the process that would eliminate its dangers? Should the government get more involved in regulating fracking, or should it be up to the people?","English",47.4,37.92,"622/.3381--dc23","184 pp.","https://greenhavenpublishing.com/9781534501041",null,{"$f":"Table1[[#This Row],['# of Books]]*Table1[[#This Row],[QTY]]","v":0},{"$f":"Table1[[#This Row],[QTY]]*Table1[[#This Row],[School & Library Price]]","v":0}]
[null,null,14,null,null,"Current Issues","Current Controversies","Fracking","978-1-5345-0101-0",{"$f":"HYPERLINK(Table1[[#This Row],[eCommerce Hyperlink]],\"Book Weblink\")","v":"Book Weblink"},null,"Greenhaven Publishing","Paperback Book",1,"2018","August 2017","Paperback","6.000 X 9.000","Edited by","Anne C. Cunningham",null,null,null,null,"Z","1370L","Grade 10 - 12","Grade 9 - 12","On the surface, fracking, or hydraulic fracturing, seems like a perfect solution to the country’s energy crises. It is a relatively easy and independent way to supply natural gas. But controversies surround the practice. The process involved in fracking has been shown to be harmful to the environment and a threat to our public health. Do the benefits of fracking outweigh the costs? Can improvements be made to the process that would eliminate its dangers? Should the government get more involved in regulating fracking, or should it be up to the people?","English",33,26.4,"622/.3381--dc23","184 pp.","https://greenhavenpublishing.com/9781534501010",null,{"$f":"Table1[[#This Row],['# of Books]]*Table1[[#This Row],[QTY]]","v":0},{"$f":"Table1[[#This Row],[QTY]]*Table1[[#This Row],[School & Library Price]]","v":0}]
[null,null,14,null,null,"Current Issues","Current Controversies","Freedom of Speech on Campus","978-1-5345-0307-6",{"$f":"HYPERLINK(Table1[[#This Row],[eCommerce Hyperlink]],\"Book Weblink\")","v":"Book Weblink"},null,"Greenhaven Publishing","Library Bound Book",1,"2019","August 2018","Library","6.000 X 9.000","Edited by","Eamon Doyle",null,null,null,null,"Z",null,"Grade 10 - 12","Grade 9 - 12","Freedom of speech is a fundamental aspect of American democracy, and university campuses have historically been central to the free speech debate through serving as protectors of this constitutional right. In recent years, campuses have returned to the center of this debate as our notion of what kinds of speech are acceptable and how speech should be controlled continues to develop. With the rise of trigger warnings, designated free-speech zones, and controversial speakers being disinvited from lecturing at universities, the question of whether campuses continue to represent the future of free speech or symbolize its repression has become progressively urgent.","English",47.4,37.92,"323.44/30973--dc23","176 pp.","https://greenhavenpublishing.com/9781534503076",null,{"$f":"Table1[[#This Row],['# of Books]]*Table1[[#This Row],[QTY]]","v":0},{"$f":"Table1[[#This Row],[QTY]]*Table1[[#This Row],[School & Library Price]]","v":0}]
[null,null,14,null,null,"Current Issues","Current Controversies","Freedom of Speech on Campus","978-1-5345-0308-3",{"$f":"HYPERLINK(Table1[[#This Row],[eCommerce Hyperlink]],\"Book Weblink\")","v":"Book Weblink"},null,"Greenhaven Publishing","Paperback Book",1,"2019","August 2018","Paperback","6.000 X 9.000","Edited by","Eamon Doyle",null,null,null,null,"Z",null,"Grade 10 - 12","Grade 9 - 12","Freedom of speech is a fundamental aspect of American democracy, and university campuses have historically been central to the free speech debate through serving as protectors of this constitutional right. In recent years, campuses have returned to the center of this debate as our notion of what kinds of speech are acceptable and how speech should be controlled continues to develop. With the rise of trigger warnings, designated free-speech zones, and controversial speakers being disinvited from lecturing at universities, the question of whether campuses continue to represent the future of free speech or symbolize its repression has become progressively urgent.","English",33,26.4,"323.44/30973--dc23","176 pp.","https://greenhavenpublishing.com/9781534503083",null,{"$f":"Table1[[#This Row],['# of Books]]*Table1[[#This Row],[QTY]]","v":0},{"$f":"Table1[[#This Row],[QTY]]*Table1[[#This Row],[School & Library Price]]","v":0}]
[null,13,14,null,null,"Current Issues","Current Controversies","Freedom of the Press","978-1-5345-0605-3",{"$f":"HYPERLINK(Table1[[#This Row],[eCommerce Hyperlink]],\"Book Weblink\")","v":"Book Weblink"},null,"Greenhaven Publishing","Library Bound Book",1,"2020","January 2020","Library","6.000 X 9.000","Edited by","Andrew Karpan",null,null,null,null,"Z",null,"Grade 10 - 12","Grade 9 - 12","The rights protecting journalists and the press in the United States are a defining aspect of the nation's democratic nature. What tends to be discussed less frequently is how today's media environment enables or hinders a free press. Has the internet made the press freer or restricted it in new ways? How do issues like funding, the role of media conglomerates, and legal actions against journalists and publications fit into a free media landscape? These questions will be explored from varying perspectives in this timely volume.","English",47.4,37.92,"323.44/50973--dc23","176 pp.","https://greenhavenpublishing.com/9781534506053",null,{"$f":"Table1[[#This Row],['# of Books]]*Table1[[#This Row],[QTY]]","v":0},{"$f":"Table1[[#This Row],[QTY]]*Table1[[#This Row],[School & Library Price]]","v":0}]
[null,13,14,null,null,"Current Issues","Current Controversies","Freedom of the Press","978-1-5345-0619-0",{"$f":"HYPERLINK(Table1[[#This Row],[eCommerce Hyperlink]],\"Book Weblink\")","v":"Book Weblink"},null,"Greenhaven Publishing","eBook",1,"2020","January 2020",null,null,"Edited by","Andrew Karpan",null,null,null,null,"Z",null,"Grade 10 - 12","Grade 9 - 12","The rights protecting journalists and the press in the United States are a defining aspect of the nation's democratic nature. What tends to be discussed less frequently is how today's media environment enables or hinders a free press. Has the internet made the press freer or restricted it in new ways? How do issues like funding, the role of media conglomerates, and legal actions against journalists and publications fit into a free media landscape? These questions will be explored from varying perspectives in this timely volume.","English",47.4,37.92,"323.44/50973--dc23","176 pp.","https://greenhavenpublishing.com/9781534506190",null,{"$f":"Table1[[#This Row],['# of Books]]*Table1[[#This Row],[QTY]]","v":0},{"$f":"Table1[[#This Row],[QTY]]*Table1[[#This Row],[School & Library Price]]","v":0}]
[null,13,14,null,null,"Current Issues","Current Controversies","Freedom of the Press","978-1-5345-0604-6",{"$f":"HYPERLINK(Table1[[#This Row],[eCommerce Hyperlink]],\"Book Weblink\")","v":"Book Weblink"},null,"Greenhaven Publishing","Paperback Book",1,"2020","January 2020","Paperback","6.000 X 9.000","Edited by","Andrew Karpan",null,null,null,null,"Z",null,"Grade 10 - 12","Grade 9 - 12","The rights protecting journalists and the press in the United States are a defining aspect of the nation's democratic nature. What tends to be discussed less frequently is how today's media environment enables or hinders a free press. Has the internet made the press freer or restricted it in new ways? How do issues like funding, the role of media conglomerates, and legal actions against journalists and publications fit into a free media landscape? These questions will be explored from varying perspectives in this timely volume.","English",33,26.4,"323.44/50973--dc23","176 pp.","https://greenhavenpublishing.com/9781534506046",null,{"$f":"Table1[[#This Row],['# of Books]]*Table1[[#This Row],[QTY]]","v":0},{"$f":"Table1[[#This Row],[QTY]]*Table1[[#This Row],[School & Library Price]]","v":0}]
[null,null,14,null,null,"Current Issues","Current Controversies","Genetic Engineering","978-1-5345-0017-4",{"$f":"HYPERLINK(Table1[[#This Row],[eCommerce Hyperlink]],\"Book Weblink\")","v":"Book Weblink"},null,"Greenhaven Publishing","Library Bound Book",1,"2017","January 2017","Library","6.000 X 9.000","Edited by","Susan Henneberg",null,null,null,null,"Z","1310L","Grade 10 - 12","Grade 9 - 12","As scientists continue to make genetic breakthroughs, society inches ever closer to confronting the stuff horror movies are made of. Cloning a mourned pet is simply strange, but the thought of human cloning is terrifying. Manipulating genes to reduce genetic disease is encouraging only until we consider the ethical implications of potentially creating a master race. Genetically engineering crops and animals can address many problems like disease, climate change, and world hunger, but altering the environment could have catastrophic results for Earth. Articles presenting these issues from persuasive points of view help readers understanding the controversies surrounding genetic engineering today.","English",47.4,37.92,"323.44'802854678--dc23","168 pp.","https://greenhavenpublishing.com/9781534500174",null,{"$f":"Table1[[#This Row],['# of Books]]*Table1[[#This Row],[QTY]]","v":0},{"$f":"Table1[[#This Row],[QTY]]*Table1[[#This Row],[School & Library Price]]","v":0}]
[null,null,14,null,null,"Current Issues","Current Controversies","Genetic Engineering","978-1-5345-0009-9",{"$f":"HYPERLINK(Table1[[#This Row],[eCommerce Hyperlink]],\"Book Weblink\")","v":"Book Weblink"},null,"Greenhaven Publishing","eBook",1,"2017","January 2017",null,null,"Edited by","Susan Henneberg",null,null,null,null,"Z","1310L","Grade 10 - 12","Grade 9 - 12","As scientists continue to make genetic breakthroughs, society inches ever closer to confronting the stuff horror movies are made of. Cloning a mourned pet is simply strange, but the thought of human cloning is terrifying. Manipulating genes to reduce genetic disease is encouraging only until we consider the ethical implications of potentially creating a master race. Genetically engineering crops and animals can address many problems like disease, climate change, and world hunger, but altering the environment could have catastrophic results for Earth. Articles presenting these issues from persuasive points of view help readers understanding the controversies surrounding genetic engineering today.","English",47.4,37.92,"323.44'802854678--dc23","168 pp.","https://greenhavenpublishing.com/9781534500099",null,{"$f":"Table1[[#This Row],['# of Books]]*Table1[[#This Row],[QTY]]","v":0},{"$f":"Table1[[#This Row],[QTY]]*Table1[[#This Row],[School & Library Price]]","v":0}]
[null,null,14,null,null,"Current Issues","Current Controversies","Genetic Engineering","978-1-5345-0038-9",{"$f":"HYPERLINK(Table1[[#This Row],[eCommerce Hyperlink]],\"Book Weblink\")","v":"Book Weblink"},null,"Greenhaven Publishing","Paperback Book",1,"2017","January 2017","Paperback","6.000 X 9.000","Edited by","Susan Henneberg",null,null,null,null,"Z","1310L","Grade 10 - 12","Grade 9 - 12","As scientists continue to make genetic breakthroughs, society inches ever closer to confronting the stuff horror movies are made of. Cloning a mourned pet is simply strange, but the thought of human cloning is terrifying. Manipulating genes to reduce genetic disease is encouraging only until we consider the ethical implications of potentially creating a master race. Genetically engineering crops and animals can address many problems like disease, climate change, and world hunger, but altering the environment could have catastrophic results for Earth. Articles presenting these issues from persuasive points of view help readers understanding the controversies surrounding genetic engineering today.","English",33,26.4,"323.44'802854678--dc23","168 pp.","https://greenhavenpublishing.com/9781534500389",null,{"$f":"Table1[[#This Row],['# of Books]]*Table1[[#This Row],[QTY]]","v":0},{"$f":"Table1[[#This Row],[QTY]]*Table1[[#This Row],[School & Library Price]]","v":0}]
[null,null,14,null,null,"Current Issues","Current Controversies","Globalization","978-1-5345-0386-1",{"$f":"HYPERLINK(Table1[[#This Row],[eCommerce Hyperlink]],\"Book Weblink\")","v":"Book Weblink"},null,"Greenhaven Publishing","Library Bound Book",1,"2019","January 2019","Library","6.000 X 9.000","Edited by","Yea Jee Bae",null,null,null,null,"Z",null,"Grade 10 - 12","Grade 9 - 12","The advancement of transportation and communication technology has facilitated greater interaction between people throughout the world, a process known as globalization. Because of its various economic, social, cultural, and environmental implications, attitudes toward globalization are ambivalent. There are concerns about the exploitation of people and resources from less economically stable countries and the destruction of cultural traditions, but at the same time it has allowed the world to open up for people on an international scale. It is important to weigh the many costs and benefits of this complicated issue to form a reasoned response, which this book adeptly supports.","English",47.4,37.92,"303.48/2--dc23","200 pp.","https://greenhavenpublishing.com/9781534503861",null,{"$f":"Table1[[#This Row],['# of Books]]*Table1[[#This Row],[QTY]]","v":0},{"$f":"Table1[[#This Row],[QTY]]*Table1[[#This Row],[School & Library Price]]","v":0}]
[null,null,14,null,null,"Current Issues","Current Controversies","Globalization","978-1-5345-0401-1",{"$f":"HYPERLINK(Table1[[#This Row],[eCommerce Hyperlink]],\"Book Weblink\")","v":"Book Weblink"},null,"Greenhaven Publishing","eBook",1,"2019","January 2019",null,null,"Edited by","Yea Jee Bae",null,null,null,null,"Z",null,"Grade 10 - 12","Grade 9 - 12","The advancement of transportation and communication technology has facilitated greater interaction between people throughout the world, a process known as globalization. Because of its various economic, social, cultural, and environmental implications, attitudes toward globalization are ambivalent. There are concerns about the exploitation of people and resources from less economically stable countries and the destruction of cultural traditions, but at the same time it has allowed the world to open up for people on an international scale. It is important to weigh the many costs and benefits of this complicated issue to form a reasoned response, which this book adeptly supports.","English",47.4,37.92,"303.48/2--dc23","200 pp.","https://greenhavenpublishing.com/9781534504011",null,{"$f":"Table1[[#This Row],['# of Books]]*Table1[[#This Row],[QTY]]","v":0},{"$f":"Table1[[#This Row],[QTY]]*Table1[[#This Row],[School & Library Price]]","v":0}]
[null,null,14,null,null,"Current Issues","Current Controversies","Globalization","978-1-5345-0459-2",{"$f":"HYPERLINK(Table1[[#This Row],[eCommerce Hyperlink]],\"Book Weblink\")","v":"Book Weblink"},null,"Greenhaven Publishing","Paperback Book",1,"2019","January 2019","Paperback","6.000 X 9.000","Edited by","Yea Jee Bae",null,null,null,null,"Z",null,"Grade 10 - 12","Grade 9 - 12","The advancement of transportation and communication technology has facilitated greater interaction between people throughout the world, a process known as globalization. Because of its various economic, social, cultural, and environmental implications, attitudes toward globalization are ambivalent. There are concerns about the exploitation of people and resources from less economically stable countries and the destruction of cultural traditions, but at the same time it has allowed the world to open up for people on an international scale. It is important to weigh the many costs and benefits of this complicated issue to form a reasoned response, which this book adeptly supports.","English",33,26.4,"303.48/2--dc23","200 pp.","https://greenhavenpublishing.com/9781534504592",null,{"$f":"Table1[[#This Row],['# of Books]]*Table1[[#This Row],[QTY]]","v":0},{"$f":"Table1[[#This Row],[QTY]]*Table1[[#This Row],[School & Library Price]]","v":0}]
[null,13,14,null,null,"Current Issues","Current Controversies","Hate Groups","978-1-5345-0778-4",{"$f":"HYPERLINK(Table1[[#This Row],[eCommerce Hyperlink]],\"Book Weblink\")","v":"Book Weblink"},null,"Greenhaven Publishing","Library Bound Book",1,"2022","August 2021","Library","6.000 X 9.000","Compiled by","Adam Furgang",null,null,null,null,"Z",null,"Grade 10 - 12","Grade 9 - 12","Hate groups undeniably have a negative connotation, but through examining the issues related to hate groups it becomes clear that the topic is much more complicated than it may initially appear. This volume examines how hate groups are defined, who gets to label certain groups as hate groups, the legal standing of these groups, and what can be done to stop them. Answers to these questions among various others are presented through a wide range of perspectives, helping readers better understand this commonly oversimplified and controversial issue.","English",47.4,37.92,"305.5/68--dc23","176 pp.","https://greenhavenpublishing.com/9781534507784",null,{"$f":"Table1[[#This Row],['# of Books]]*Table1[[#This Row],[QTY]]","v":0},{"$f":"Table1[[#This Row],[QTY]]*Table1[[#This Row],[School & Library Price]]","v":0}]
[null,13,14,null,null,"Current Issues","Current Controversies","Hate Groups","978-1-5345-0779-1",{"$f":"HYPERLINK(Table1[[#This Row],[eCommerce Hyperlink]],\"Book Weblink\")","v":"Book Weblink"},null,"Greenhaven Publishing","eBook",1,"2022","August 2021",null,null,"Compiled by","Adam Furgang",null,null,null,null,"Z",null,"Grade 10 - 12","Grade 9 - 12","Hate groups undeniably have a negative connotation, but through examining the issues related to hate groups it becomes clear that the topic is much more complicated than it may initially appear. This volume examines how hate groups are defined, who gets to label certain groups as hate groups, the legal standing of these groups, and what can be done to stop them. Answers to these questions among various others are presented through a wide range of perspectives, helping readers better understand this commonly oversimplified and controversial issue.","English",47.4,37.92,"305.5/68--dc23","176 pp.","https://greenhavenpublishing.com/9781534507791",null,{"$f":"Table1[[#This Row],['# of Books]]*Table1[[#This Row],[QTY]]","v":0},{"$f":"Table1[[#This Row],[QTY]]*Table1[[#This Row],[School & Library Price]]","v":0}]
[null,13,14,null,null,"Current Issues","Current Controversies","Hate Groups","978-1-5345-0776-0",{"$f":"HYPERLINK(Table1[[#This Row],[eCommerce Hyperlink]],\"Book Weblink\")","v":"Book Weblink"},null,"Greenhaven Publishing","Paperback Book",1,"2022","August 2021","Paperback","6.000 X 9.000","Compiled by","Adam Furgang",null,null,null,null,"Z",null,"Grade 10 - 12","Grade 9 - 12","Hate groups undeniably have a negative connotation, but through examining the issues related to hate groups it becomes clear that the topic is much more complicated than it may initially appear. This volume examines how hate groups are defined, who gets to label certain groups as hate groups, the legal standing of these groups, and what can be done to stop them. Answers to these questions among various others are presented through a wide range of perspectives, helping readers better understand this commonly oversimplified and controversial issue.","English",33,26.4,"305.5/68--dc23","176 pp.","https://greenhavenpublishing.com/9781534507760",null,{"$f":"Table1[[#This Row],['# of Books]]*Table1[[#This Row],[QTY]]","v":0},{"$f":"Table1[[#This Row],[QTY]]*Table1[[#This Row],[School & Library Price]]","v":0}]
[null,13,14,null,null,"Current Issues","Current Controversies","Historical Revisionism","978-1-5345-0536-0",{"$f":"HYPERLINK(Table1[[#This Row],[eCommerce Hyperlink]],\"Book Weblink\")","v":"Book Weblink"},null,"Greenhaven Publishing","Library Bound Book",1,"2020","August 2019","Library","6.000 X 9.000","Edited by","Barbara Krasner ",null,null,null,null,"Z",null,"Grade 10 - 12","Grade 9 - 12","Historical revisionism refers to any reinterpretation of recorded history, but whether this practice is beneficial, harmful, or somewhere in between is hotly contested. While allowing newly discovered evidence and facts to enter the historical record may seem benign, the reinterpretation of existing facts to reflect contemporary morality is a far more controversial aspect of the topic. Many also worry this could lead to historical facts being distorted, as has been the case with Holocaust denial. This volume discusses the different forms and causes of historical revisionism along with the ethical, social, and scholarly concerns related to the issue.","English",47.4,37.92,"907.2--dc23","176 pp.","https://greenhavenpublishing.com/9781534505360",null,{"$f":"Table1[[#This Row],['# of Books]]*Table1[[#This Row],[QTY]]","v":0},{"$f":"Table1[[#This Row],[QTY]]*Table1[[#This Row],[School & Library Price]]","v":0}]
[null,13,14,null,null,"Current Issues","Current Controversies","Historical Revisionism","978-1-5345-0538-4",{"$f":"HYPERLINK(Table1[[#This Row],[eCommerce Hyperlink]],\"Book Weblink\")","v":"Book Weblink"},null,"Greenhaven Publishing","eBook",1,"2020","August 2019",null,null,"Edited by","Barbara Krasner ",null,null,null,null,"Z",null,"Grade 10 - 12","Grade 9 - 12","Historical revisionism refers to any reinterpretation of recorded history, but whether this practice is beneficial, harmful, or somewhere in between is hotly contested. While allowing newly discovered evidence and facts to enter the historical record may seem benign, the reinterpretation of existing facts to reflect contemporary morality is a far more controversial aspect of the topic. Many also worry this could lead to historical facts being distorted, as has been the case with Holocaust denial. This volume discusses the different forms and causes of historical revisionism along with the ethical, social, and scholarly concerns related to the issue.","English",47.4,37.92,"907.2--dc23","176 pp.","https://greenhavenpublishing.com/9781534505384",null,{"$f":"Table1[[#This Row],['# of Books]]*Table1[[#This Row],[QTY]]","v":0},{"$f":"Table1[[#This Row],[QTY]]*Table1[[#This Row],[School & Library Price]]","v":0}]
[null,13,14,null,null,"Current Issues","Current Controversies","Historical Revisionism","978-1-5345-0537-7",{"$f":"HYPERLINK(Table1[[#This Row],[eCommerce Hyperlink]],\"Book Weblink\")","v":"Book Weblink"},null,"Greenhaven Publishing","Paperback Book",1,"2020","August 2019","Paperback","6.000 X 9.000","Edited by","Barbara Krasner ",null,null,null,null,"Z",null,"Grade 10 - 12","Grade 9 - 12","Historical revisionism refers to any reinterpretation of recorded history, but whether this practice is beneficial, harmful, or somewhere in between is hotly contested. While allowing newly discovered evidence and facts to enter the historical record may seem benign, the reinterpretation of existing facts to reflect contemporary morality is a far more controversial aspect of the topic. Many also worry this could lead to historical facts being distorted, as has been the case with Holocaust denial. This volume discusses the different forms and causes of historical revisionism along with the ethical, social, and scholarly concerns related to the issue.","English",33,26.4,"907.2--dc23","176 pp.","https://greenhavenpublishing.com/9781534505377",null,{"$f":"Table1[[#This Row],['# of Books]]*Table1[[#This Row],[QTY]]","v":0},{"$f":"Table1[[#This Row],[QTY]]*Table1[[#This Row],[School & Library Price]]","v":0}]
[null,13,14,null,null,"Current Issues","Current Controversies","Holocaust Deniers and Conspiracy Theorists","978-1-5345-0703-6",{"$f":"HYPERLINK(Table1[[#This Row],[eCommerce Hyperlink]],\"Book Weblink\")","v":"Book Weblink"},null,"Greenhaven Publishing","Library Bound Book",1,"2021","August 2020","Library","6.000 X 9.000","Compiled by","Bridey Heing",null,null,null,null,"Z",null,"Grade 10 - 12","Grade 9 - 12","Conspiracy theories have existed for centuries to rationalize major events and crises, but while they were once relegated to the fringes of discourse, in recent decades, they have increasingly become part of public debate. While many conspiracy theories are innocuous, others, like Holocaust denial, are considered dangerous because their intention to legitimize racist or otherwise hateful ideologies. This resource helps readers to examine key debates and topics related to conspiracy theories. Balancing free speech and public safety, the development of conspiracy theorizing over the past century, the role the internet has played, and whether some conspiracy theories can actually benefit society are all richly analyzed.","English",47.4,37.92,"001.9--dc23","176 pp.","https://greenhavenpublishing.com/9781534507036",null,{"$f":"Table1[[#This Row],['# of Books]]*Table1[[#This Row],[QTY]]","v":0},{"$f":"Table1[[#This Row],[QTY]]*Table1[[#This Row],[School & Library Price]]","v":0}]
[null,13,14,null,null,"Current Issues","Current Controversies","Holocaust Deniers and Conspiracy Theorists","978-1-5345-0704-3",{"$f":"HYPERLINK(Table1[[#This Row],[eCommerce Hyperlink]],\"Book Weblink\")","v":"Book Weblink"},null,"Greenhaven Publishing","eBook",1,"2021","August 2020",null,null,"Compiled by","Bridey Heing",null,null,null,null,"Z",null,"Grade 10 - 12","Grade 9 - 12","Conspiracy theories have existed for centuries to rationalize major events and crises, but while they were once relegated to the fringes of discourse, in recent decades, they have increasingly become part of public debate. While many conspiracy theories are innocuous, others, like Holocaust denial, are considered dangerous because their intention to legitimize racist or otherwise hateful ideologies. This resource helps readers to examine key debates and topics related to conspiracy theories. Balancing free speech and public safety, the development of conspiracy theorizing over the past century, the role the internet has played, and whether some conspiracy theories can actually benefit society are all richly analyzed.","English",47.4,37.92,"001.9--dc23","176 pp.","https://greenhavenpublishing.com/9781534507043",null,{"$f":"Table1[[#This Row],['# of Books]]*Table1[[#This Row],[QTY]]","v":0},{"$f":"Table1[[#This Row],[QTY]]*Table1[[#This Row],[School & Library Price]]","v":0}]
[null,13,14,null,null,"Current Issues","Current Controversies","Holocaust Deniers and Conspiracy Theorists","978-1-5345-0702-9",{"$f":"HYPERLINK(Table1[[#This Row],[eCommerce Hyperlink]],\"Book Weblink\")","v":"Book Weblink"},null,"Greenhaven Publishing","Paperback Book",1,"2021","August 2020","Paperback","6.000 X 9.000","Compiled by","Bridey Heing",null,null,null,null,"Z",null,"Grade 10 - 12","Grade 9 - 12","Conspiracy theories have existed for centuries to rationalize major events and crises, but while they were once relegated to the fringes of discourse, in recent decades, they have increasingly become part of public debate. While many conspiracy theories are innocuous, others, like Holocaust denial, are considered dangerous because their intention to legitimize racist or otherwise hateful ideologies. This resource helps readers to examine key debates and topics related to conspiracy theories. Balancing free speech and public safety, the development of conspiracy theorizing over the past century, the role the internet has played, and whether some conspiracy theories can actually benefit society are all richly analyzed.","English",33,26.4,"001.9--dc23","176 pp.","https://greenhavenpublishing.com/9781534507029",null,{"$f":"Table1[[#This Row],['# of Books]]*Table1[[#This Row],[QTY]]","v":0},{"$f":"Table1[[#This Row],[QTY]]*Table1[[#This Row],[School & Library Price]]","v":0}]
[null,null,14,null,null,"Current Issues","Current Controversies","The Border Wall with Mexico","978-1-5345-0085-3",{"$f":"HYPERLINK(Table1[[#This Row],[eCommerce Hyperlink]],\"Book Weblink\")","v":"Book Weblink"},null,"Greenhaven Publishing","Library Bound Book",1,"2018","August 2017","Library","6.000 X 9.000","Edited by","Martin Gitlin",null,null,null,null,"Z","1350L","Grade 10 - 12","Grade 9 - 12","To some, the idea of a border wall with Mexico represents a necessary and practical barrier to illegal immigration and the perceived host of ills that are associated with it. To others, it is both an unrealistic and inhumane effort that demonizes desperate individuals and families who are only seeking a better life. The debate is fierce and is bound up with competing notions of crime, ethnicity, opportunity, fairness, justice, and what America promises, offers, stands for, and represents. All sides of the debate are presented here, and each is given a fair and respectful hearing, allowing readers to sift through fact and opinion, evaluate the strength of arguments, and form an educated opinion on the issue.","English",47.4,37.92,"972'.1--dc23","144 pp.","https://greenhavenpublishing.com/9781534500853",null,{"$f":"Table1[[#This Row],['# of Books]]*Table1[[#This Row],[QTY]]","v":0},{"$f":"Table1[[#This Row],[QTY]]*Table1[[#This Row],[School & Library Price]]","v":0}]
[null,null,14,null,null,"Current Issues","Current Controversies","The Border Wall with Mexico","978-1-5345-0086-0",{"$f":"HYPERLINK(Table1[[#This Row],[eCommerce Hyperlink]],\"Book Weblink\")","v":"Book Weblink"},null,"Greenhaven Publishing","eBook",1,"2018","August 2017",null,null,"Edited by","Martin Gitlin",null,null,null,null,"Z","1350L","Grade 10 - 12","Grade 9 - 12","To some, the idea of a border wall with Mexico represents a necessary and practical barrier to illegal immigration and the perceived host of ills that are associated with it. To others, it is both an unrealistic and inhumane effort that demonizes desperate individuals and families who are only seeking a better life. The debate is fierce and is bound up with competing notions of crime, ethnicity, opportunity, fairness, justice, and what America promises, offers, stands for, and represents. All sides of the debate are presented here, and each is given a fair and respectful hearing, allowing readers to sift through fact and opinion, evaluate the strength of arguments, and form an educated opinion on the issue.","English",47.4,37.92,"972'.1--dc23","144 pp.","https://greenhavenpublishing.com/9781534500860",null,{"$f":"Table1[[#This Row],['# of Books]]*Table1[[#This Row],[QTY]]","v":0},{"$f":"Table1[[#This Row],[QTY]]*Table1[[#This Row],[School & Library Price]]","v":0}]
[null,null,14,null,null,"Current Issues","Current Controversies","The Border Wall with Mexico","978-1-5345-0090-7",{"$f":"HYPERLINK(Table1[[#This Row],[eCommerce Hyperlink]],\"Book Weblink\")","v":"Book Weblink"},null,"Greenhaven Publishing","Paperback Book",1,"2018","August 2017","Paperback","6.000 X 9.000","Edited by","Martin Gitlin",null,null,null,null,"Z","1350L","Grade 10 - 12","Grade 9 - 12","To some, the idea of a border wall with Mexico represents a necessary and practical barrier to illegal immigration and the perceived host of ills that are associated with it. To others, it is both an unrealistic and inhumane effort that demonizes desperate individuals and families who are only seeking a better life. The debate is fierce and is bound up with competing notions of crime, ethnicity, opportunity, fairness, justice, and what America promises, offers, stands for, and represents. All sides of the debate are presented here, and each is given a fair and respectful hearing, allowing readers to sift through fact and opinion, evaluate the strength of arguments, and form an educated opinion on the issue.","English",33,26.4,"972'.1--dc23","144 pp.","https://greenhavenpublishing.com/9781534500907",null,{"$f":"Table1[[#This Row],['# of Books]]*Table1[[#This Row],[QTY]]","v":0},{"$f":"Table1[[#This Row],[QTY]]*Table1[[#This Row],[School & Library Price]]","v":0}]
[null,12,14,null,null,"Current Issues","Current Controversies","The Capitol Riot: Fragile Democracy","978-1-5345-0859-0",{"$f":"HYPERLINK(Table1[[#This Row],[eCommerce Hyperlink]],\"Book Weblink\")","v":"Book Weblink"},null,"Greenhaven Publishing","Library Bound Book",1,"2022","January 2022","Library","6.000 X 9.000","Edited by","Gary Wiener",null,null,null,null,"Z",null,"Grade 10 - 12","Grade 9 - 12","The insurrection at the US Capitol on January 6, 2021 sent shockwaves around the world. Suddenly, the United States, for many the gold standard of democracy and stability, seemed at risk. The riot was a direct response by a mob of extremist Trump supporters contesting the results of the recent election, but in many ways it was a culmination of larger and more complicated forces. The viewpoints in this volume explore how and why this astonishing violation happened, who and what is ultimately responsible for the insurrection, and what it means for the future of democracy and the United States.","English",47.4,37.92,"973.933--dc23","200 pp.","https://greenhavenpublishing.com/9781534508590",null,{"$f":"Table1[[#This Row],['# of Books]]*Table1[[#This Row],[QTY]]","v":0},{"$f":"Table1[[#This Row],[QTY]]*Table1[[#This Row],[School & Library Price]]","v":0}]
[null,12,14,null,null,"Current Issues","Current Controversies","The Capitol Riot: Fragile Democracy","978-1-5345-0860-6",{"$f":"HYPERLINK(Table1[[#This Row],[eCommerce Hyperlink]],\"Book Weblink\")","v":"Book Weblink"},{"$f":"HYPERLINK(Table1[[#This Row],[EPP Hyperlink]],\"EPP Weblink\")","v":"EPP Weblink"},"Greenhaven Publishing","eBook",1,"2022","January 2022",null,null,"Edited by","Gary Wiener",null,null,null,null,"Z",null,"Grade 10 - 12","Grade 9 - 12","The insurrection at the US Capitol on January 6, 2021 sent shockwaves around the world. Suddenly, the United States, for many the gold standard of democracy and stability, seemed at risk. The riot was a direct response by a mob of extremist Trump supporters contesting the results of the recent election, but in many ways it was a culmination of larger and more complicated forces. The viewpoints in this volume explore how and why this astonishing violation happened, who and what is ultimately responsible for the insurrection, and what it means for the future of democracy and the United States.","English",47.4,37.92,"973.933--dc23","200 pp.","https://greenhavenpublishing.com/9781534508606","http://www.epointplus.com/embed/9781534508606/?login=cyberrep&password=cyberrep",{"$f":"Table1[[#This Row],['# of Books]]*Table1[[#This Row],[QTY]]","v":0},{"$f":"Table1[[#This Row],[QTY]]*Table1[[#This Row],[School & Library Price]]","v":0}]
[null,12,14,null,null,"Current Issues","Current Controversies","The Capitol Riot: Fragile Democracy","978-1-5345-0858-3",{"$f":"HYPERLINK(Table1[[#This Row],[eCommerce Hyperlink]],\"Book Weblink\")","v":"Book Weblink"},null,"Greenhaven Publishing","Paperback Book",1,"2022","January 2022","Paperback","6.000 X 9.000","Edited by","Gary Wiener",null,null,null,null,"Z",null,"Grade 10 - 12","Grade 9 - 12","The insurrection at the US Capitol on January 6, 2021 sent shockwaves around the world. Suddenly, the United States, for many the gold standard of democracy and stability, seemed at risk. The riot was a direct response by a mob of extremist Trump supporters contesting the results of the recent election, but in many ways it was a culmination of larger and more complicated forces. The viewpoints in this volume explore how and why this astonishing violation happened, who and what is ultimately responsible for the insurrection, and what it means for the future of democracy and the United States.","English",33,26.4,"973.933--dc23","200 pp.","https://greenhavenpublishing.com/9781534508583",null,{"$f":"Table1[[#This Row],['# of Books]]*Table1[[#This Row],[QTY]]","v":0},{"$f":"Table1[[#This Row],[QTY]]*Table1[[#This Row],[School & Library Price]]","v":0}]
[null,null,14,null,null,"Current Issues","Current Controversies","The Confederate Flag","978-1-5345-0238-3",{"$f":"HYPERLINK(Table1[[#This Row],[eCommerce Hyperlink]],\"Book Weblink\")","v":"Book Weblink"},null,"Greenhaven Publishing","Library Bound Book",1,"2018","January 2018","Library","6.000 X 9.000","Edited by","Anne Cunningham",null,null,null,null,"Z","1300L","Grade 10 - 12","Grade 9 - 12","Is it a symbol of pride in one's heritage or an ugly reminder of slavery and the fruits of racism? The issue of whether the Confederate flag belongs in front of government buildings, or even on Southern pride paraphernalia, has been a hot button for more than a century, long after the Civil War was fought and won. This book takes a close look at the flag's origins, its controversial history, what meaning it has for Americans living today, and the ongoing debate on its use and display.","English",47.4,37.92,"929.9/20973--dc23","200 pp.","https://greenhavenpublishing.com/9781534502383",null,{"$f":"Table1[[#This Row],['# of Books]]*Table1[[#This Row],[QTY]]","v":0},{"$f":"Table1[[#This Row],[QTY]]*Table1[[#This Row],[School & Library Price]]","v":0}]
[null,null,14,null,null,"Current Issues","Current Controversies","The Confederate Flag","978-1-5345-0232-1",{"$f":"HYPERLINK(Table1[[#This Row],[eCommerce Hyperlink]],\"Book Weblink\")","v":"Book Weblink"},null,"Greenhaven Publishing","eBook",1,"2018","January 2018",null,null,"Edited by","Anne Cunningham",null,null,null,null,"Z","1300L","Grade 10 - 12","Grade 9 - 12","Is it a symbol of pride in one's heritage or an ugly reminder of slavery and the fruits of racism? The issue of whether the Confederate flag belongs in front of government buildings, or even on Southern pride paraphernalia, has been a hot button for more than a century, long after the Civil War was fought and won. This book takes a close look at the flag's origins, its controversial history, what meaning it has for Americans living today, and the ongoing debate on its use and display.","English",47.4,37.92,"929.9/20973--dc23","200 pp.","https://greenhavenpublishing.com/9781534502321",null,{"$f":"Table1[[#This Row],['# of Books]]*Table1[[#This Row],[QTY]]","v":0},{"$f":"Table1[[#This Row],[QTY]]*Table1[[#This Row],[School & Library Price]]","v":0}]
[null,null,14,null,null,"Current Issues","Current Controversies","The Confederate Flag","978-1-5345-0244-4",{"$f":"HYPERLINK(Table1[[#This Row],[eCommerce Hyperlink]],\"Book Weblink\")","v":"Book Weblink"},null,"Greenhaven Publishing","Paperback Book",1,"2018","January 2018","Paperback","6.000 X 9.000","Edited by","Anne Cunningham",null,null,null,null,"Z","1300L","Grade 10 - 12","Grade 9 - 12","Is it a symbol of pride in one's heritage or an ugly reminder of slavery and the fruits of racism? The issue of whether the Confederate flag belongs in front of government buildings, or even on Southern pride paraphernalia, has been a hot button for more than a century, long after the Civil War was fought and won. This book takes a close look at the flag's origins, its controversial history, what meaning it has for Americans living today, and the ongoing debate on its use and display.","English",33,26.4,"929.9/20973--dc23","200 pp.","https://greenhavenpublishing.com/9781534502444",null,{"$f":"Table1[[#This Row],['# of Books]]*Table1[[#This Row],[QTY]]","v":0},{"$f":"Table1[[#This Row],[QTY]]*Table1[[#This Row],[School & Library Price]]","v":0}]
[null,13,14,null,null,"Current Issues","Current Controversies","The Dark Web","978-1-5345-0607-7",{"$f":"HYPERLINK(Table1[[#This Row],[eCommerce Hyperlink]],\"Book Weblink\")","v":"Book Weblink"},null,"Greenhaven Publishing","Library Bound Book",1,"2020","January 2020","Library","6.000 X 9.000","Edited by","Eamon Doyle",null,null,null,null,"Z",null,"Grade 10 - 12","Grade 9 - 12","Discussions of the dark web often have sinister connotations, as its capacity to enable various crimes is the aspect that most people fixate upon. However, there is nothing fundamentally criminal about the dark web. It is simply an encrypted part of the internet that allows users to remain anonymous. Nonetheless, a considerable amount of illegal activity does occur on it, making the questions of how it can be monitored and the extent to which it should be pressing issues. This volume explores the various issues related to the dark web, giving readers a better understanding of this enigmatic topic.","English",47.4,37.92,"364.16'8--dc23","200 pp.","https://greenhavenpublishing.com/9781534506077",null,{"$f":"Table1[[#This Row],['# of Books]]*Table1[[#This Row],[QTY]]","v":0},{"$f":"Table1[[#This Row],[QTY]]*Table1[[#This Row],[School & Library Price]]","v":0}]
[null,13,14,null,null,"Current Issues","Current Controversies","The Dark Web","978-1-5345-0620-6",{"$f":"HYPERLINK(Table1[[#This Row],[eCommerce Hyperlink]],\"Book Weblink\")","v":"Book Weblink"},null,"Greenhaven Publishing","eBook",1,"2020","January 2020",null,null,"Edited by","Eamon Doyle",null,null,null,null,"Z",null,"Grade 10 - 12","Grade 9 - 12","Discussions of the dark web often have sinister connotations, as its capacity to enable various crimes is the aspect that most people fixate upon. However, there is nothing fundamentally criminal about the dark web. It is simply an encrypted part of the internet that allows users to remain anonymous. Nonetheless, a considerable amount of illegal activity does occur on it, making the questions of how it can be monitored and the extent to which it should be pressing issues. This volume explores the various issues related to the dark web, giving readers a better understanding of this enigmatic topic.","English",47.4,37.92,"364.16'8--dc23","200 pp.","https://greenhavenpublishing.com/9781534506206",null,{"$f":"Table1[[#This Row],['# of Books]]*Table1[[#This Row],[QTY]]","v":0},{"$f":"Table1[[#This Row],[QTY]]*Table1[[#This Row],[School & Library Price]]","v":0}]
[null,13,14,null,null,"Current Issues","Current Controversies","The Dark Web","978-1-5345-0606-0",{"$f":"HYPERLINK(Table1[[#This Row],[eCommerce Hyperlink]],\"Book Weblink\")","v":"Book Weblink"},null,"Greenhaven Publishing","Paperback Book",1,"2020","January 2020","Paperback","6.000 X 9.000","Edited by","Eamon Doyle",null,null,null,null,"Z",null,"Grade 10 - 12","Grade 9 - 12","Discussions of the dark web often have sinister connotations, as its capacity to enable various crimes is the aspect that most people fixate upon. However, there is nothing fundamentally criminal about the dark web. It is simply an encrypted part of the internet that allows users to remain anonymous. Nonetheless, a considerable amount of illegal activity does occur on it, making the questions of how it can be monitored and the extent to which it should be pressing issues. This volume explores the various issues related to the dark web, giving readers a better understanding of this enigmatic topic.","English",33,26.4,"364.16'8--dc23","200 pp.","https://greenhavenpublishing.com/9781534506060",null,{"$f":"Table1[[#This Row],['# of Books]]*Table1[[#This Row],[QTY]]","v":0},{"$f":"Table1[[#This Row],[QTY]]*Table1[[#This Row],[School & Library Price]]","v":0}]
[null,null,14,null,null,"Current Issues","Current Controversies","The Economics of Clean Energy","978-1-5345-0385-4",{"$f":"HYPERLINK(Table1[[#This Row],[eCommerce Hyperlink]],\"Book Weblink\")","v":"Book Weblink"},null,"Greenhaven Publishing","Library Bound Book",1,"2019","January 2019","Library","6.000 X 9.000","Edited by","Kathryn Roberts",null,null,null,null,"Z",null,"Grade 10 - 12","Grade 9 - 12","As of 2017, 69 percent of Americans were in favor of restricting carbon emissions from coal power plants out of concern for climate change and the state of the environment, but can we afford to make the change to cleaner energy sources? This volume looks at the various alternative energy sources and their economic viability, exploring the debate about which path forward makes the most sense. Readers will gain a better understanding of the crossroads facing policymakers and the energy sector and be empowered to form their own opinions about how this urgent issue should be addressed.","English",47.4,37.92,"333.79--dc23","200 pp.","https://greenhavenpublishing.com/9781534503854",null,{"$f":"Table1[[#This Row],['# of Books]]*Table1[[#This Row],[QTY]]","v":0},{"$f":"Table1[[#This Row],[QTY]]*Table1[[#This Row],[School & Library Price]]","v":0}]
[null,null,14,null,null,"Current Issues","Current Controversies","The Economics of Clean Energy","978-1-5345-0400-4",{"$f":"HYPERLINK(Table1[[#This Row],[eCommerce Hyperlink]],\"Book Weblink\")","v":"Book Weblink"},null,"Greenhaven Publishing","eBook",1,"2019","January 2019",null,null,"Edited by","Kathryn Roberts",null,null,null,null,"Z",null,"Grade 10 - 12","Grade 9 - 12","As of 2017, 69 percent of Americans were in favor of restricting carbon emissions from coal power plants out of concern for climate change and the state of the environment, but can we afford to make the change to cleaner energy sources? This volume looks at the various alternative energy sources and their economic viability, exploring the debate about which path forward makes the most sense. Readers will gain a better understanding of the crossroads facing policymakers and the energy sector and be empowered to form their own opinions about how this urgent issue should be addressed.","English",47.4,37.92,"333.79--dc23","200 pp.","https://greenhavenpublishing.com/9781534504004",null,{"$f":"Table1[[#This Row],['# of Books]]*Table1[[#This Row],[QTY]]","v":0},{"$f":"Table1[[#This Row],[QTY]]*Table1[[#This Row],[School & Library Price]]","v":0}]
[null,null,14,null,null,"Current Issues","Current Controversies","The Economics of Clean Energy","978-1-5345-0457-8",{"$f":"HYPERLINK(Table1[[#This Row],[eCommerce Hyperlink]],\"Book Weblink\")","v":"Book Weblink"},null,"Greenhaven Publishing","Paperback Book",1,"2019","January 2019","Paperback","6.000 X 9.000","Edited by","Kathryn Roberts",null,null,null,null,"Z",null,"Grade 10 - 12","Grade 9 - 12","As of 2017, 69 percent of Americans were in favor of restricting carbon emissions from coal power plants out of concern for climate change and the state of the environment, but can we afford to make the change to cleaner energy sources? This volume looks at the various alternative energy sources and their economic viability, exploring the debate about which path forward makes the most sense. Readers will gain a better understanding of the crossroads facing policymakers and the energy sector and be empowered to form their own opinions about how this urgent issue should be addressed.","English",33,26.4,"333.79--dc23","200 pp.","https://greenhavenpublishing.com/9781534504578",null,{"$f":"Table1[[#This Row],['# of Books]]*Table1[[#This Row],[QTY]]","v":0},{"$f":"Table1[[#This Row],[QTY]]*Table1[[#This Row],[School & Library Price]]","v":0}]
[null,null,14,null,null,"Current Issues","Current Controversies","The Energy Industry","978-1-5345-0301-4",{"$f":"HYPERLINK(Table1[[#This Row],[eCommerce Hyperlink]],\"Book Weblink\")","v":"Book Weblink"},null,"Greenhaven Publishing","Library Bound Book",1,"2019","August 2018","Library","6.000 X 9.000","Edited by","Kristina Lyn Heitkamp",null,null,null,null,"Z",null,"Grade 10 - 12","Grade 9 - 12","The debate over how the energy industry should develop in the United States and beyond has reached a critical point. The search for cleaner and more sustainable fuel sources continues, but with the United States' proposed withdrawal from the Paris climate accord and the expansion of the Keystone XL pipeline approved by the Trump administration, the issue of how America's energy policy should develop in the coming years is more complicated than ever. Readers will gain a better understanding of the factual information on the energy industry and learn the key arguments in the debate surrounding it.","English",47.4,37.92,"333.79--dc23","200 pp.","https://greenhavenpublishing.com/9781534503014",null,{"$f":"Table1[[#This Row],['# of Books]]*Table1[[#This Row],[QTY]]","v":0},{"$f":"Table1[[#This Row],[QTY]]*Table1[[#This Row],[School & Library Price]]","v":0}]
[null,null,14,null,null,"Current Issues","Current Controversies","The Energy Industry","978-1-5345-0302-1",{"$f":"HYPERLINK(Table1[[#This Row],[eCommerce Hyperlink]],\"Book Weblink\")","v":"Book Weblink"},null,"Greenhaven Publishing","Paperback Book",1,"2019","August 2018","Paperback","6.000 X 9.000","Edited by","Kristina Lyn Heitkamp",null,null,null,null,"Z",null,"Grade 10 - 12","Grade 9 - 12","The debate over how the energy industry should develop in the United States and beyond has reached a critical point. The search for cleaner and more sustainable fuel sources continues, but with the United States' proposed withdrawal from the Paris climate accord and the expansion of the Keystone XL pipeline approved by the Trump administration, the issue of how America's energy policy should develop in the coming years is more complicated than ever. Readers will gain a better understanding of the factual information on the energy industry and learn the key arguments in the debate surrounding it.","English",33,26.4,"333.79--dc23","200 pp.","https://greenhavenpublishing.com/9781534503021",null,{"$f":"Table1[[#This Row],['# of Books]]*Table1[[#This Row],[QTY]]","v":0},{"$f":"Table1[[#This Row],[QTY]]*Table1[[#This Row],[School & Library Price]]","v":0}]
[null,13,14,null,null,"Current Issues","Current Controversies","The Gig Economy","978-1-5345-0706-7",{"$f":"HYPERLINK(Table1[[#This Row],[eCommerce Hyperlink]],\"Book Weblink\")","v":"Book Weblink"},null,"Greenhaven Publishing","Library Bound Book",1,"2021","August 2020","Library","6.000 X 9.000","Compiled by","Bridey Heing",null,null,null,null,"Z","1300L","Grade 10 - 12","Grade 9 - 12","For many, the gig economy is part of everyday life. It affects how our food and groceries are delivered, our transportation options, and where we stay when we travel. But while apps like Uber tend to receive the most attention, this shift in the labor market manifests in many different ways. Essentially, it applies to anyone who forgoes traditional full-time employment for temporary or contract-based work. Your readers will experience a wide range of viewpoints that consider how the gig economy has developed, its advantages and disadvantages for both workers and consumers, and whether regulation could help ensure its growth is beneficial to all involved.","English",47.4,37.92,"331.25/7290973--dc23","176 pp.","https://greenhavenpublishing.com/9781534507067",null,{"$f":"Table1[[#This Row],['# of Books]]*Table1[[#This Row],[QTY]]","v":0},{"$f":"Table1[[#This Row],[QTY]]*Table1[[#This Row],[School & Library Price]]","v":0}]
[null,13,14,null,null,"Current Issues","Current Controversies","The Gig Economy","978-1-5345-0707-4",{"$f":"HYPERLINK(Table1[[#This Row],[eCommerce Hyperlink]],\"Book Weblink\")","v":"Book Weblink"},null,"Greenhaven Publishing","eBook",1,"2021","August 2020",null,null,"Compiled by","Bridey Heing",null,null,null,null,"Z","1300L","Grade 10 - 12","Grade 9 - 12","For many, the gig economy is part of everyday life. It affects how our food and groceries are delivered, our transportation options, and where we stay when we travel. But while apps like Uber tend to receive the most attention, this shift in the labor market manifests in many different ways. Essentially, it applies to anyone who forgoes traditional full-time employment for temporary or contract-based work. Your readers will experience a wide range of viewpoints that consider how the gig economy has developed, its advantages and disadvantages for both workers and consumers, and whether regulation could help ensure its growth is beneficial to all involved.","English",47.4,37.92,"331.25/7290973--dc23","176 pp.","https://greenhavenpublishing.com/9781534507074",null,{"$f":"Table1[[#This Row],['# of Books]]*Table1[[#This Row],[QTY]]","v":0},{"$f":"Table1[[#This Row],[QTY]]*Table1[[#This Row],[School & Library Price]]","v":0}]
[null,13,14,null,null,"Current Issues","Current Controversies","The Gig Economy","978-1-5345-0705-0",{"$f":"HYPERLINK(Table1[[#This Row],[eCommerce Hyperlink]],\"Book Weblink\")","v":"Book Weblink"},null,"Greenhaven Publishing","Paperback Book",1,"2021","August 2020","Paperback","6.000 X 9.000","Compiled by","Bridey Heing",null,null,null,null,"Z","1300L","Grade 10 - 12","Grade 9 - 12","For many, the gig economy is part of everyday life. It affects how our food and groceries are delivered, our transportation options, and where we stay when we travel. But while apps like Uber tend to receive the most attention, this shift in the labor market manifests in many different ways. Essentially, it applies to anyone who forgoes traditional full-time employment for temporary or contract-based work. Your readers will experience a wide range of viewpoints that consider how the gig economy has developed, its advantages and disadvantages for both workers and consumers, and whether regulation could help ensure its growth is beneficial to all involved.","English",33,26.4,"331.25/7290973--dc23","176 pp.","https://greenhavenpublishing.com/9781534507050",null,{"$f":"Table1[[#This Row],['# of Books]]*Table1[[#This Row],[QTY]]","v":0},{"$f":"Table1[[#This Row],[QTY]]*Table1[[#This Row],[School & Library Price]]","v":0}]
[null,null,15,null,null,"Current Issues","Current Controversies","Homelessness and Street Crime","978-1-5345-0095-2",{"$f":"HYPERLINK(Table1[[#This Row],[eCommerce Hyperlink]],\"Book Weblink\")","v":"Book Weblink"},null,"Greenhaven Publishing","Library Bound Book",1,"2018","August 2017","Library","6.000 X 9.000","Edited by","Pete Schauer",null,null,null,null,"Z","1340L","Grade 10 - 12","Grade 9 - 12","Hundreds of thousands of Americans are without a home, sleeping on streets or in temporary shelters. Nearly one-fifth of homeless Americans suffer from an untreated mental illness. Due in part to reductions in state and city budgets, many who need assistance are left to live on the street. One natural byproduct of a life on the street is criminal behavior, as adaptation to illegal acts becomes a matter of survival. Could ending homelessness reduce crime? What are ways in which that could be achieved, and whose responsibility is it? Are the homeless being unfairly blamed for street crime? This volume offers a close examination of the issue from a variety of viewpoints.","English",47.4,37.92,"362.5'920973--dc23","240 pp.","https://greenhavenpublishing.com/9781534500952",null,{"$f":"Table1[[#This Row],['# of Books]]*Table1[[#This Row],[QTY]]","v":0},{"$f":"Table1[[#This Row],[QTY]]*Table1[[#This Row],[School & Library Price]]","v":0}]
[null,null,15,null,null,"Current Issues","Current Controversies","Homelessness and Street Crime","978-1-5345-0096-9",{"$f":"HYPERLINK(Table1[[#This Row],[eCommerce Hyperlink]],\"Book Weblink\")","v":"Book Weblink"},null,"Greenhaven Publishing","eBook",1,"2018","August 2017",null,null,"Edited by","Pete Schauer",null,null,null,null,"Z","1340L","Grade 10 - 12","Grade 9 - 12","Hundreds of thousands of Americans are without a home, sleeping on streets or in temporary shelters. Nearly one-fifth of homeless Americans suffer from an untreated mental illness. Due in part to reductions in state and city budgets, many who need assistance are left to live on the street. One natural byproduct of a life on the street is criminal behavior, as adaptation to illegal acts becomes a matter of survival. Could ending homelessness reduce crime? What are ways in which that could be achieved, and whose responsibility is it? Are the homeless being unfairly blamed for street crime? This volume offers a close examination of the issue from a variety of viewpoints.","English",47.4,37.92,"362.5'920973--dc23","240 pp.","https://greenhavenpublishing.com/9781534500969",null,{"$f":"Table1[[#This Row],['# of Books]]*Table1[[#This Row],[QTY]]","v":0},{"$f":"Table1[[#This Row],[QTY]]*Table1[[#This Row],[School & Library Price]]","v":0}]
[null,null,15,null,null,"Current Issues","Current Controversies","Homelessness and Street Crime","978-1-5345-0093-8",{"$f":"HYPERLINK(Table1[[#This Row],[eCommerce Hyperlink]],\"Book Weblink\")","v":"Book Weblink"},null,"Greenhaven Publishing","Paperback Book",1,"2018","August 2017","Paperback","6.000 X 9.000","Edited by","Pete Schauer",null,null,null,null,"Z","1340L","Grade 10 - 12","Grade 9 - 12","Hundreds of thousands of Americans are without a home, sleeping on streets or in temporary shelters. Nearly one-fifth of homeless Americans suffer from an untreated mental illness. Due in part to reductions in state and city budgets, many who need assistance are left to live on the street. One natural byproduct of a life on the street is criminal behavior, as adaptation to illegal acts becomes a matter of survival. Could ending homelessness reduce crime? What are ways in which that could be achieved, and whose responsibility is it? Are the homeless being unfairly blamed for street crime? This volume offers a close examination of the issue from a variety of viewpoints.","English",33,26.4,"362.5'920973--dc23","240 pp.","https://greenhavenpublishing.com/9781534500938",null,{"$f":"Table1[[#This Row],['# of Books]]*Table1[[#This Row],[QTY]]","v":0},{"$f":"Table1[[#This Row],[QTY]]*Table1[[#This Row],[School & Library Price]]","v":0}]
[null,13,15,null,null,"Current Issues","Current Controversies","Immigration, Asylum, and Sanctuary Cities","978-1-5345-0709-8",{"$f":"HYPERLINK(Table1[[#This Row],[eCommerce Hyperlink]],\"Book Weblink\")","v":"Book Weblink"},null,"Greenhaven Publishing","Library Bound Book",1,"2021","August 2020","Library","6.000 X 9.000","Compiled by","Ariana Agrios",null,null,null,null,"Z",null,"Grade 10 - 12","Grade 9 - 12","Though sanctuary cities have recently become a significant aspect of the immigration debate as a result of the Trump administration's stricter immigration policies, sanctuary cities have existed in America since the 1980s and for centuries in countries around the world. However, the precise definition and legal standing of sanctuary cities in today's context is often foggy. The viewpoints in this volume discuss the timely issue of sanctuary cities from a variety of angles while also exploring the economic, cultural, political, and moral aspects of asylum and immigration.","English",47.4,37.92,"325.73--dc23","176 pp.","https://greenhavenpublishing.com/9781534507098",null,{"$f":"Table1[[#This Row],['# of Books]]*Table1[[#This Row],[QTY]]","v":0},{"$f":"Table1[[#This Row],[QTY]]*Table1[[#This Row],[School & Library Price]]","v":0}]
[null,13,15,null,null,"Current Issues","Current Controversies","Immigration, Asylum, and Sanctuary Cities","978-1-5345-0710-4",{"$f":"HYPERLINK(Table1[[#This Row],[eCommerce Hyperlink]],\"Book Weblink\")","v":"Book Weblink"},null,"Greenhaven Publishing","eBook",1,"2021","August 2020",null,null,"Compiled by","Ariana Agrios",null,null,null,null,"Z",null,"Grade 10 - 12","Grade 9 - 12","Though sanctuary cities have recently become a significant aspect of the immigration debate as a result of the Trump administration's stricter immigration policies, sanctuary cities have existed in America since the 1980s and for centuries in countries around the world. However, the precise definition and legal standing of sanctuary cities in today's context is often foggy. The viewpoints in this volume discuss the timely issue of sanctuary cities from a variety of angles while also exploring the economic, cultural, political, and moral aspects of asylum and immigration.","English",47.4,37.92,"325.73--dc23","176 pp.","https://greenhavenpublishing.com/9781534507104",null,{"$f":"Table1[[#This Row],['# of Books]]*Table1[[#This Row],[QTY]]","v":0},{"$f":"Table1[[#This Row],[QTY]]*Table1[[#This Row],[School & Library Price]]","v":0}]
[null,13,15,null,null,"Current Issues","Current Controversies","Immigration, Asylum, and Sanctuary Cities","978-1-5345-0708-1",{"$f":"HYPERLINK(Table1[[#This Row],[eCommerce Hyperlink]],\"Book Weblink\")","v":"Book Weblink"},null,"Greenhaven Publishing","Paperback Book",1,"2021","August 2020","Paperback","6.000 X 9.000","Compiled by","Ariana Agrios",null,null,null,null,"Z",null,"Grade 10 - 12","Grade 9 - 12","Though sanctuary cities have recently become a significant aspect of the immigration debate as a result of the Trump administration's stricter immigration policies, sanctuary cities have existed in America since the 1980s and for centuries in countries around the world. However, the precise definition and legal standing of sanctuary cities in today's context is often foggy. The viewpoints in this volume discuss the timely issue of sanctuary cities from a variety of angles while also exploring the economic, cultural, political, and moral aspects of asylum and immigration.","English",33,26.4,"325.73--dc23","176 pp.","https://greenhavenpublishing.com/9781534507081",null,{"$f":"Table1[[#This Row],['# of Books]]*Table1[[#This Row],[QTY]]","v":0},{"$f":"Table1[[#This Row],[QTY]]*Table1[[#This Row],[School & Library Price]]","v":0}]
[null,null,15,null,null,"Current Issues","Current Controversies","Interference in Elections","978-1-5345-0387-8",{"$f":"HYPERLINK(Table1[[#This Row],[eCommerce Hyperlink]],\"Book Weblink\")","v":"Book Weblink"},null,"Greenhaven Publishing","Library Bound Book",1,"2019","January 2019","Library","6.000 X 9.000","Edited by","Kristina Lyn Heitkamp",null,null,null,null,"Z",null,"Grade 10 - 12","Grade 9 - 12","Allegations of Russian meddling in the 2016 presidential election have brought the issue of election interference to the fore, but is it actually a significant issue in the United States? This volume explores the history of election interference in the United States and beyond, as well as the various methods of interference. It also discusses whether interference can be effectively combatted and what attempts are being made to do so. Election interference has been declared a threat to the electoral process and democracy as a whole, and it is more important than ever to understand the various factors at play.","English",47.4,37.92,"324.973/0932--dc23","176 pp.","https://greenhavenpublishing.com/9781534503878",null,{"$f":"Table1[[#This Row],['# of Books]]*Table1[[#This Row],[QTY]]","v":0},{"$f":"Table1[[#This Row],[QTY]]*Table1[[#This Row],[School & Library Price]]","v":0}]
[null,null,15,null,null,"Current Issues","Current Controversies","Interference in Elections","978-1-5345-0402-8",{"$f":"HYPERLINK(Table1[[#This Row],[eCommerce Hyperlink]],\"Book Weblink\")","v":"Book Weblink"},null,"Greenhaven Publishing","eBook",1,"2019","January 2019",null,null,"Edited by","Kristina Lyn Heitkamp",null,null,null,null,"Z",null,"Grade 10 - 12","Grade 9 - 12","Allegations of Russian meddling in the 2016 presidential election have brought the issue of election interference to the fore, but is it actually a significant issue in the United States? This volume explores the history of election interference in the United States and beyond, as well as the various methods of interference. It also discusses whether interference can be effectively combatted and what attempts are being made to do so. Election interference has been declared a threat to the electoral process and democracy as a whole, and it is more important than ever to understand the various factors at play.","English",47.4,37.92,"324.973/0932--dc23","176 pp.","https://greenhavenpublishing.com/9781534504028",null,{"$f":"Table1[[#This Row],['# of Books]]*Table1[[#This Row],[QTY]]","v":0},{"$f":"Table1[[#This Row],[QTY]]*Table1[[#This Row],[School & Library Price]]","v":0}]
[null,null,15,null,null,"Current Issues","Current Controversies","Interference in Elections","978-1-5345-0461-5",{"$f":"HYPERLINK(Table1[[#This Row],[eCommerce Hyperlink]],\"Book Weblink\")","v":"Book Weblink"},null,"Greenhaven Publishing","Paperback Book",1,"2019","January 2019","Paperback","6.000 X 9.000","Edited by","Kristina Lyn Heitkamp",null,null,null,null,"Z",null,"Grade 10 - 12","Grade 9 - 12","Allegations of Russian meddling in the 2016 presidential election have brought the issue of election interference to the fore, but is it actually a significant issue in the United States? This volume explores the history of election interference in the United States and beyond, as well as the various methods of interference. It also discusses whether interference can be effectively combatted and what attempts are being made to do so. Election interference has been declared a threat to the electoral process and democracy as a whole, and it is more important than ever to understand the various factors at play.","English",33,26.4,"324.973/0932--dc23","176 pp.","https://greenhavenpublishing.com/9781534504615",null,{"$f":"Table1[[#This Row],['# of Books]]*Table1[[#This Row],[QTY]]","v":0},{"$f":"Table1[[#This Row],[QTY]]*Table1[[#This Row],[School & Library Price]]","v":0}]
[null,null,15,null,null,"Current Issues","Current Controversies","Learned Helplessness, Welfare, and the Poverty Cycle","978-1-5345-0388-5",{"$f":"HYPERLINK(Table1[[#This Row],[eCommerce Hyperlink]],\"Book Weblink\")","v":"Book Weblink"},null,"Greenhaven Publishing","Library Bound Book",1,"2019","January 2019","Library","6.000 X 9.000","Edited by","Kristina Lyn Heitkamp",null,null,null,null,"Z",null,"Grade 10 - 12","Grade 9 - 12","Between 1996 and 2017, the number of families on welfare declined to less than a quarter of its former rate of coverage, yet nearly twice as many households live in extreme poverty and nearly 25 percent of American children live in poverty. What can be done to help these children and families escape poverty? Are government programs like welfare the best solution, or are there other ways to pull families out of poverty? This volume looks at the issue of poverty, the various theories about why it proliferates, and a number of proposed strategies to fight it.","English",47.4,37.92,"362.50973--dc23","176 pp.","https://greenhavenpublishing.com/9781534503885",null,{"$f":"Table1[[#This Row],['# of Books]]*Table1[[#This Row],[QTY]]","v":0},{"$f":"Table1[[#This Row],[QTY]]*Table1[[#This Row],[School & Library Price]]","v":0}]
[null,null,15,null,null,"Current Issues","Current Controversies","Learned Helplessness, Welfare, and the Poverty Cycle","978-1-5345-0403-5",{"$f":"HYPERLINK(Table1[[#This Row],[eCommerce Hyperlink]],\"Book Weblink\")","v":"Book Weblink"},null,"Greenhaven Publishing","eBook",1,"2019","January 2019",null,null,"Edited by","Kristina Lyn Heitkamp",null,null,null,null,"Z",null,"Grade 10 - 12","Grade 9 - 12","Between 1996 and 2017, the number of families on welfare declined to less than a quarter of its former rate of coverage, yet nearly twice as many households live in extreme poverty and nearly 25 percent of American children live in poverty. What can be done to help these children and families escape poverty? Are government programs like welfare the best solution, or are there other ways to pull families out of poverty? This volume looks at the issue of poverty, the various theories about why it proliferates, and a number of proposed strategies to fight it.","English",47.4,37.92,"362.50973--dc23","176 pp.","https://greenhavenpublishing.com/9781534504035",null,{"$f":"Table1[[#This Row],['# of Books]]*Table1[[#This Row],[QTY]]","v":0},{"$f":"Table1[[#This Row],[QTY]]*Table1[[#This Row],[School & Library Price]]","v":0}]
[null,null,15,null,null,"Current Issues","Current Controversies","Learned Helplessness, Welfare, and the Poverty Cycle","978-1-5345-0463-9",{"$f":"HYPERLINK(Table1[[#This Row],[eCommerce Hyperlink]],\"Book Weblink\")","v":"Book Weblink"},null,"Greenhaven Publishing","Paperback Book",1,"2019","January 2019","Paperback","6.000 X 9.000","Edited by","Kristina Lyn Heitkamp",null,null,null,null,"Z",null,"Grade 10 - 12","Grade 9 - 12","Between 1996 and 2017, the number of families on welfare declined to less than a quarter of its former rate of coverage, yet nearly twice as many households live in extreme poverty and nearly 25 percent of American children live in poverty. What can be done to help these children and families escape poverty? Are government programs like welfare the best solution, or are there other ways to pull families out of poverty? This volume looks at the issue of poverty, the various theories about why it proliferates, and a number of proposed strategies to fight it.","English",33,26.4,"362.50973--dc23","176 pp.","https://greenhavenpublishing.com/9781534504639",null,{"$f":"Table1[[#This Row],['# of Books]]*Table1[[#This Row],[QTY]]","v":0},{"$f":"Table1[[#This Row],[QTY]]*Table1[[#This Row],[School & Library Price]]","v":0}]
[null,null,15,null,null,"Current Issues","Current Controversies","LGBTQ Rights","978-1-5345-0019-8",{"$f":"HYPERLINK(Table1[[#This Row],[eCommerce Hyperlink]],\"Book Weblink\")","v":"Book Weblink"},null,"Greenhaven Publishing","Library Bound Book",1,"2017","January 2017","Library","6.000 X 9.000","Edited by","Susan Henneberg",null,null,null,null,"Z",null,"Grade 10 - 12","Grade 9 - 12","Great strides have been made in securing rights for the LGBT community in recent years. Although statistics prove that acceptance of LGBT individuals has grown substantially in the past decade, there are still many people who ignore the laws in favor of their own beliefs. This anthology brings together writings from diverse sources to construct a well-balanced examination of LGBT rights in the United States and around the world. Readers will be exposed to both sides of the same-sex marriage debate, the controversy over restroom access for transgender individuals, and the reasons why the LGBT community continues to fight for its rights.","English",47.4,37.92,"576.5--dc23","136 pp.","https://greenhavenpublishing.com/9781534500198",null,{"$f":"Table1[[#This Row],['# of Books]]*Table1[[#This Row],[QTY]]","v":0},{"$f":"Table1[[#This Row],[QTY]]*Table1[[#This Row],[School & Library Price]]","v":0}]
[null,null,15,null,null,"Current Issues","Current Controversies","LGBTQ Rights","978-1-5345-0007-5",{"$f":"HYPERLINK(Table1[[#This Row],[eCommerce Hyperlink]],\"Book Weblink\")","v":"Book Weblink"},null,"Greenhaven Publishing","eBook",1,"2017","January 2017",null,null,"Edited by","Susan Henneberg",null,null,null,null,"Z",null,"Grade 10 - 12","Grade 9 - 12","Great strides have been made in securing rights for the LGBT community in recent years. Although statistics prove that acceptance of LGBT individuals has grown substantially in the past decade, there are still many people who ignore the laws in favor of their own beliefs. This anthology brings together writings from diverse sources to construct a well-balanced examination of LGBT rights in the United States and around the world. Readers will be exposed to both sides of the same-sex marriage debate, the controversy over restroom access for transgender individuals, and the reasons why the LGBT community continues to fight for its rights.","English",47.4,37.92,"576.5--dc23","136 pp.","https://greenhavenpublishing.com/9781534500075",null,{"$f":"Table1[[#This Row],['# of Books]]*Table1[[#This Row],[QTY]]","v":0},{"$f":"Table1[[#This Row],[QTY]]*Table1[[#This Row],[School & Library Price]]","v":0}]
[null,null,15,null,null,"Current Issues","Current Controversies","LGBTQ Rights","978-1-5345-0035-8",{"$f":"HYPERLINK(Table1[[#This Row],[eCommerce Hyperlink]],\"Book Weblink\")","v":"Book Weblink"},null,"Greenhaven Publishing","Paperback Book",1,"2017","January 2017","Paperback","6.000 X 9.000","Edited by","Susan Henneberg",null,null,null,null,"Z",null,"Grade 10 - 12","Grade 9 - 12","Great strides have been made in securing rights for the LGBT community in recent years. Although statistics prove that acceptance of LGBT individuals has grown substantially in the past decade, there are still many people who ignore the laws in favor of their own beliefs. This anthology brings together writings from diverse sources to construct a well-balanced examination of LGBT rights in the United States and around the world. Readers will be exposed to both sides of the same-sex marriage debate, the controversy over restroom access for transgender individuals, and the reasons why the LGBT community continues to fight for its rights.","English",33,26.4,"576.5--dc23","136 pp.","https://greenhavenpublishing.com/9781534500358",null,{"$f":"Table1[[#This Row],['# of Books]]*Table1[[#This Row],[QTY]]","v":0},{"$f":"Table1[[#This Row],[QTY]]*Table1[[#This Row],[School & Library Price]]","v":0}]
[null,13,15,null,null,"Current Issues","Current Controversies","Libertarians, Socialists, and Other Third Parties","978-1-5345-0790-6",{"$f":"HYPERLINK(Table1[[#This Row],[eCommerce Hyperlink]],\"Book Weblink\")","v":"Book Weblink"},null,"Greenhaven Publishing","Library Bound Book",1,"2022","August 2021","Library","6.000 X 9.000","Compiled by","Bridey Heing",null,null,null,null,"Z",null,"Grade 10 - 12","Grade 9 - 12","Since its inception, the United States has been characterized by a two-party political system. It is in many ways indoctrinated in laws and customs, but it does not prevent third parties from participating in the political process. Although no third-party candidate has ever won a presidential election, these candidates have occasionally been elected to local and state positions. Additionally, with issues like environmentalism, immigration, and income inequality receiving more attention, politicians from these parties have also gained greater recognition. This volume examines the role of third parties in American politics and the extent to which they can exercise influence.","English",47.4,37.92,"324.273--dc23","176 pp.","https://greenhavenpublishing.com/9781534507906",null,{"$f":"Table1[[#This Row],['# of Books]]*Table1[[#This Row],[QTY]]","v":0},{"$f":"Table1[[#This Row],[QTY]]*Table1[[#This Row],[School & Library Price]]","v":0}]
[null,13,15,null,null,"Current Issues","Current Controversies","Libertarians, Socialists, and Other Third Parties","978-1-5345-0791-3",{"$f":"HYPERLINK(Table1[[#This Row],[eCommerce Hyperlink]],\"Book Weblink\")","v":"Book Weblink"},null,"Greenhaven Publishing","eBook",1,"2022","August 2021",null,null,"Compiled by","Bridey Heing",null,null,null,null,"Z",null,"Grade 10 - 12","Grade 9 - 12","Since its inception, the United States has been characterized by a two-party political system. It is in many ways indoctrinated in laws and customs, but it does not prevent third parties from participating in the political process. Although no third-party candidate has ever won a presidential election, these candidates have occasionally been elected to local and state positions. Additionally, with issues like environmentalism, immigration, and income inequality receiving more attention, politicians from these parties have also gained greater recognition. This volume examines the role of third parties in American politics and the extent to which they can exercise influence.","English",47.4,37.92,"324.273--dc23","176 pp.","https://greenhavenpublishing.com/9781534507913",null,{"$f":"Table1[[#This Row],['# of Books]]*Table1[[#This Row],[QTY]]","v":0},{"$f":"Table1[[#This Row],[QTY]]*Table1[[#This Row],[School & Library Price]]","v":0}]
[null,13,15,null,null,"Current Issues","Current Controversies","Libertarians, Socialists, and Other Third Parties","978-1-5345-0788-3",{"$f":"HYPERLINK(Table1[[#This Row],[eCommerce Hyperlink]],\"Book Weblink\")","v":"Book Weblink"},null,"Greenhaven Publishing","Paperback Book",1,"2022","August 2021","Paperback","6.000 X 9.000","Compiled by","Bridey Heing",null,null,null,null,"Z",null,"Grade 10 - 12","Grade 9 - 12","Since its inception, the United States has been characterized by a two-party political system. It is in many ways indoctrinated in laws and customs, but it does not prevent third parties from participating in the political process. Although no third-party candidate has ever won a presidential election, these candidates have occasionally been elected to local and state positions. Additionally, with issues like environmentalism, immigration, and income inequality receiving more attention, politicians from these parties have also gained greater recognition. This volume examines the role of third parties in American politics and the extent to which they can exercise influence.","English",33,26.4,"324.273--dc23","176 pp.","https://greenhavenpublishing.com/9781534507883",null,{"$f":"Table1[[#This Row],['# of Books]]*Table1[[#This Row],[QTY]]","v":0},{"$f":"Table1[[#This Row],[QTY]]*Table1[[#This Row],[School & Library Price]]","v":0}]
[null,13,15,null,null,"Current Issues","Current Controversies","Medical Use of Illicit Drugs","978-1-5345-0611-4",{"$f":"HYPERLINK(Table1[[#This Row],[eCommerce Hyperlink]],\"Book Weblink\")","v":"Book Weblink"},null,"Greenhaven Publishing","Library Bound Book",1,"2020","January 2020","Library","6.000 X 9.000","Edited by","Kathleen Cronin",null,null,null,null,"Z",null,"Grade 10 - 12","Grade 9 - 12","With the legalization of medical marijuana becoming increasingly common in many states, the medicinal potential of formerly illicit drugs has caught the public's attention. However, marijuana is not the only drug being researched and used medicinally: MDMA, psilocybin, and ketamine have been found to have therapeutic qualities, which leads some to question whether the medical use of these substances may also be legal in the future. This volume helps readers explore issues like regulation, the ethics of using illicit drugs in medical and scientific research, and its place in the greater history of drug regulation in the United States.","English",47.4,37.92,"615.7/883--dc23","200 pp.","https://greenhavenpublishing.com/9781534506114",null,{"$f":"Table1[[#This Row],['# of Books]]*Table1[[#This Row],[QTY]]","v":0},{"$f":"Table1[[#This Row],[QTY]]*Table1[[#This Row],[School & Library Price]]","v":0}]
[null,13,15,null,null,"Current Issues","Current Controversies","Medical Use of Illicit Drugs","978-1-5345-0612-1",{"$f":"HYPERLINK(Table1[[#This Row],[eCommerce Hyperlink]],\"Book Weblink\")","v":"Book Weblink"},null,"Greenhaven Publishing","eBook",1,"2020","January 2020",null,null,"Edited by","Kathleen Cronin",null,null,null,null,"Z",null,"Grade 10 - 12","Grade 9 - 12","With the legalization of medical marijuana becoming increasingly common in many states, the medicinal potential of formerly illicit drugs has caught the public's attention. However, marijuana is not the only drug being researched and used medicinally: MDMA, psilocybin, and ketamine have been found to have therapeutic qualities, which leads some to question whether the medical use of these substances may also be legal in the future. This volume helps readers explore issues like regulation, the ethics of using illicit drugs in medical and scientific research, and its place in the greater history of drug regulation in the United States.","English",47.4,37.92,"615.7/883--dc23","200 pp.","https://greenhavenpublishing.com/9781534506121",null,{"$f":"Table1[[#This Row],['# of Books]]*Table1[[#This Row],[QTY]]","v":0},{"$f":"Table1[[#This Row],[QTY]]*Table1[[#This Row],[School & Library Price]]","v":0}]
[null,13,15,null,null,"Current Issues","Current Controversies","Medical Use of Illicit Drugs","978-1-5345-0610-7",{"$f":"HYPERLINK(Table1[[#This Row],[eCommerce Hyperlink]],\"Book Weblink\")","v":"Book Weblink"},null,"Greenhaven Publishing","Paperback Book",1,"2020","January 2020","Paperback","6.000 X 9.000","Edited by","Kathleen Cronin",null,null,null,null,"Z",null,"Grade 10 - 12","Grade 9 - 12","With the legalization of medical marijuana becoming increasingly common in many states, the medicinal potential of formerly illicit drugs has caught the public's attention. However, marijuana is not the only drug being researched and used medicinally: MDMA, psilocybin, and ketamine have been found to have therapeutic qualities, which leads some to question whether the medical use of these substances may also be legal in the future. This volume helps readers explore issues like regulation, the ethics of using illicit drugs in medical and scientific research, and its place in the greater history of drug regulation in the United States.","English",33,26.4,"615.7/883--dc23","200 pp.","https://greenhavenpublishing.com/9781534506107",null,{"$f":"Table1[[#This Row],['# of Books]]*Table1[[#This Row],[QTY]]","v":0},{"$f":"Table1[[#This Row],[QTY]]*Table1[[#This Row],[School & Library Price]]","v":0}]
[null,null,15,null,null,"Current Issues","Current Controversies","Microaggressions, Safe Spaces, and Trigger Warnings","978-1-5345-0236-9",{"$f":"HYPERLINK(Table1[[#This Row],[eCommerce Hyperlink]],\"Book Weblink\")","v":"Book Weblink"},null,"Greenhaven Publishing","Library Bound Book",1,"2018","January 2018","Library","6.000 X 9.000","Edited by","Gary Wiener",null,null,null,null,"Z","1380L","Grade 10 - 12","Grade 9 - 12","Despite the name, trigger warnings have nothing to do with gun control, and safe spaces don't necessarily mean state-of-the-art panic rooms. Instead, these terms and the phrase \"microaggressions\" relate to preserving and protecting one's emotional safety. In this volume, readers will learn about the increased demand for sensitivity in social settings, in literature and media, and on the Internet. They will also encounter the opposing view, that we, as a society, are becoming too fragile and don't need figurative bulletproof vests for every occasion.","English",47.4,37.92,"305.800973--dc23","168 pp.","https://greenhavenpublishing.com/9781534502369",null,{"$f":"Table1[[#This Row],['# of Books]]*Table1[[#This Row],[QTY]]","v":0},{"$f":"Table1[[#This Row],[QTY]]*Table1[[#This Row],[School & Library Price]]","v":0}]
[null,null,15,null,null,"Current Issues","Current Controversies","Microaggressions, Safe Spaces, and Trigger Warnings","978-1-5345-0231-4",{"$f":"HYPERLINK(Table1[[#This Row],[eCommerce Hyperlink]],\"Book Weblink\")","v":"Book Weblink"},null,"Greenhaven Publishing","eBook",1,"2018","January 2018",null,null,"Edited by","Gary Wiener",null,null,null,null,"Z","1380L","Grade 10 - 12","Grade 9 - 12","Despite the name, trigger warnings have nothing to do with gun control, and safe spaces don't necessarily mean state-of-the-art panic rooms. Instead, these terms and the phrase \"microaggressions\" relate to preserving and protecting one's emotional safety. In this volume, readers will learn about the increased demand for sensitivity in social settings, in literature and media, and on the Internet. They will also encounter the opposing view, that we, as a society, are becoming too fragile and don't need figurative bulletproof vests for every occasion.","English",47.4,37.92,"305.800973--dc23","168 pp.","https://greenhavenpublishing.com/9781534502314",null,{"$f":"Table1[[#This Row],['# of Books]]*Table1[[#This Row],[QTY]]","v":0},{"$f":"Table1[[#This Row],[QTY]]*Table1[[#This Row],[School & Library Price]]","v":0}]
[null,null,15,null,null,"Current Issues","Current Controversies","Microaggressions, Safe Spaces, and Trigger Warnings","978-1-5345-0242-0",{"$f":"HYPERLINK(Table1[[#This Row],[eCommerce Hyperlink]],\"Book Weblink\")","v":"Book Weblink"},null,"Greenhaven Publishing","Paperback Book",1,"2018","January 2018","Paperback","6.000 X 9.000","Edited by","Gary Wiener",null,null,null,null,"Z","1380L","Grade 10 - 12","Grade 9 - 12","Despite the name, trigger warnings have nothing to do with gun control, and safe spaces don't necessarily mean state-of-the-art panic rooms. Instead, these terms and the phrase \"microaggressions\" relate to preserving and protecting one's emotional safety. In this volume, readers will learn about the increased demand for sensitivity in social settings, in literature and media, and on the Internet. They will also encounter the opposing view, that we, as a society, are becoming too fragile and don't need figurative bulletproof vests for every occasion.","English",33,26.4,"305.800973--dc23","168 pp.","https://greenhavenpublishing.com/9781534502420",null,{"$f":"Table1[[#This Row],['# of Books]]*Table1[[#This Row],[QTY]]","v":0},{"$f":"Table1[[#This Row],[QTY]]*Table1[[#This Row],[School & Library Price]]","v":0}]
[null,13,15,null,null,"Current Issues","Current Controversies","Nativism, Nationalism, and Patriotism","978-1-5345-0700-5",{"$f":"HYPERLINK(Table1[[#This Row],[eCommerce Hyperlink]],\"Book Weblink\")","v":"Book Weblink"},null,"Greenhaven Publishing","Library Bound Book",1,"2021","August 2020","Library","6.000 X 9.000","Compiled by","Eamon Doyle",null,null,null,null,"Z",null,"Grade 10 - 12","Grade 9 - 12","Since the rise of globalism in the post-Cold War era, neoliberalism and free trade have generally characterized politics in democratic nations. However, in recent years, nationalism has been on the rise in countries around the world, including the United States. Events like the Brexit referendum and the 2016 U.S. presidential election have brought the related issues of nationalism, nativism, and patriotism to the forefront, but much confusion exists when discussing these concepts. The viewpoints presented in this volume clarify the distinctions and interconnections between these concepts while presenting a variety of viewpoints on their role in domestic and global politics.","English",47.4,37.92,"320.540973--dc23","176 pp.","https://greenhavenpublishing.com/9781534507005",null,{"$f":"Table1[[#This Row],['# of Books]]*Table1[[#This Row],[QTY]]","v":0},{"$f":"Table1[[#This Row],[QTY]]*Table1[[#This Row],[School & Library Price]]","v":0}]
[null,13,15,null,null,"Current Issues","Current Controversies","Nativism, Nationalism, and Patriotism","978-1-5345-0701-2",{"$f":"HYPERLINK(Table1[[#This Row],[eCommerce Hyperlink]],\"Book Weblink\")","v":"Book Weblink"},null,"Greenhaven Publishing","eBook",1,"2021","August 2020",null,null,"Compiled by","Eamon Doyle",null,null,null,null,"Z",null,"Grade 10 - 12","Grade 9 - 12","Since the rise of globalism in the post-Cold War era, neoliberalism and free trade have generally characterized politics in democratic nations. However, in recent years, nationalism has been on the rise in countries around the world, including the United States. Events like the Brexit referendum and the 2016 U.S. presidential election have brought the related issues of nationalism, nativism, and patriotism to the forefront, but much confusion exists when discussing these concepts. The viewpoints presented in this volume clarify the distinctions and interconnections between these concepts while presenting a variety of viewpoints on their role in domestic and global politics.","English",47.4,37.92,"320.540973--dc23","176 pp.","https://greenhavenpublishing.com/9781534507012",null,{"$f":"Table1[[#This Row],['# of Books]]*Table1[[#This Row],[QTY]]","v":0},{"$f":"Table1[[#This Row],[QTY]]*Table1[[#This Row],[School & Library Price]]","v":0}]
[null,13,15,null,null,"Current Issues","Current Controversies","Nativism, Nationalism, and Patriotism","978-1-5345-0699-2",{"$f":"HYPERLINK(Table1[[#This Row],[eCommerce Hyperlink]],\"Book Weblink\")","v":"Book Weblink"},null,"Greenhaven Publishing","Paperback Book",1,"2021","August 2020","Paperback","6.000 X 9.000","Compiled by","Eamon Doyle",null,null,null,null,"Z",null,"Grade 10 - 12","Grade 9 - 12","Since the rise of globalism in the post-Cold War era, neoliberalism and free trade have generally characterized politics in democratic nations. However, in recent years, nationalism has been on the rise in countries around the world, including the United States. Events like the Brexit referendum and the 2016 U.S. presidential election have brought the related issues of nationalism, nativism, and patriotism to the forefront, but much confusion exists when discussing these concepts. The viewpoints presented in this volume clarify the distinctions and interconnections between these concepts while presenting a variety of viewpoints on their role in domestic and global politics.","English",33,26.4,"320.540973--dc23","176 pp.","https://greenhavenpublishing.com/9781534506992",null,{"$f":"Table1[[#This Row],['# of Books]]*Table1[[#This Row],[QTY]]","v":0},{"$f":"Table1[[#This Row],[QTY]]*Table1[[#This Row],[School & Library Price]]","v":0}]
[null,null,15,null,null,"Current Issues","Current Controversies","Police Training and Excessive Force","978-1-5345-0237-6",{"$f":"HYPERLINK(Table1[[#This Row],[eCommerce Hyperlink]],\"Book Weblink\")","v":"Book Weblink"},null,"Greenhaven Publishing","Library Bound Book",1,"2018","January 2018","Library","6.000 X 9.000","Edited by","Pete Schauer",null,null,null,null,"Z","1330L","Grade 10 - 12","Grade 9 - 12","How rough is too rough? Rodney King is an unfamiliar name for those growing up today, but the ongoing conversation concerning police brutality is one they know all-too well. This collection deep-dives into police training procedure, what constitutes excessive force, and what happens when the community disagrees with the police and the justice system. Relevant topics covered in this balanced anthology include the 1992 L.A. riots and the 2014 outcry in Ferguson, MO, as well as the choking death of Eric Garner in Staten Island, NY.","English",47.4,37.92,"363.2/32--dc23","176 pp.","https://greenhavenpublishing.com/9781534502376",null,{"$f":"Table1[[#This Row],['# of Books]]*Table1[[#This Row],[QTY]]","v":0},{"$f":"Table1[[#This Row],[QTY]]*Table1[[#This Row],[School & Library Price]]","v":0}]
[null,null,15,null,null,"Current Issues","Current Controversies","Police Training and Excessive Force","978-1-5345-0229-1",{"$f":"HYPERLINK(Table1[[#This Row],[eCommerce Hyperlink]],\"Book Weblink\")","v":"Book Weblink"},null,"Greenhaven Publishing","eBook",1,"2018","January 2018",null,null,"Edited by","Pete Schauer",null,null,null,null,"Z","1330L","Grade 10 - 12","Grade 9 - 12","How rough is too rough? Rodney King is an unfamiliar name for those growing up today, but the ongoing conversation concerning police brutality is one they know all-too well. This collection deep-dives into police training procedure, what constitutes excessive force, and what happens when the community disagrees with the police and the justice system. Relevant topics covered in this balanced anthology include the 1992 L.A. riots and the 2014 outcry in Ferguson, MO, as well as the choking death of Eric Garner in Staten Island, NY.","English",47.4,37.92,"363.2/32--dc23","176 pp.","https://greenhavenpublishing.com/9781534502291",null,{"$f":"Table1[[#This Row],['# of Books]]*Table1[[#This Row],[QTY]]","v":0},{"$f":"Table1[[#This Row],[QTY]]*Table1[[#This Row],[School & Library Price]]","v":0}]
[null,null,15,null,null,"Current Issues","Current Controversies","Police Training and Excessive Force","978-1-5345-0243-7",{"$f":"HYPERLINK(Table1[[#This Row],[eCommerce Hyperlink]],\"Book Weblink\")","v":"Book Weblink"},null,"Greenhaven Publishing","Paperback Book",1,"2018","January 2018","Paperback","6.000 X 9.000","Edited by","Pete Schauer",null,null,null,null,"Z","1330L","Grade 10 - 12","Grade 9 - 12","How rough is too rough? Rodney King is an unfamiliar name for those growing up today, but the ongoing conversation concerning police brutality is one they know all-too well. This collection deep-dives into police training procedure, what constitutes excessive force, and what happens when the community disagrees with the police and the justice system. Relevant topics covered in this balanced anthology include the 1992 L.A. riots and the 2014 outcry in Ferguson, MO, as well as the choking death of Eric Garner in Staten Island, NY.","English",33,26.4,"363.2/32--dc23","176 pp.","https://greenhavenpublishing.com/9781534502437",null,{"$f":"Table1[[#This Row],['# of Books]]*Table1[[#This Row],[QTY]]","v":0},{"$f":"Table1[[#This Row],[QTY]]*Table1[[#This Row],[School & Library Price]]","v":0}]
[null,null,15,null,null,"Current Issues","Current Controversies","Political Correctness","978-1-5345-0099-0",{"$f":"HYPERLINK(Table1[[#This Row],[eCommerce Hyperlink]],\"Book Weblink\")","v":"Book Weblink"},null,"Greenhaven Publishing","Library Bound Book",1,"2018","August 2017","Library","6.000 X 9.000","Edited by","Rachel Bozek",null,null,null,null,"Z","1350L","Grade 10 - 12","Grade 9 - 12","Political correctness, better known as “PC,” flourished in institutions of higher learning in the 1990s. With the rise of social media, a second wave of PC culture has emerged that is more aggressive than the first. It seems to many that nearly everyone is a target, at risk of being labeled a racist or misogynist based on one short tweet. The movement, though intended to be inclusive and pluralistic, has its detractors. Is political correctness protective or is it an attack on freedom? Do knee-jerk reactions cancel out the opportunity for thoughtful discourse? And what does this culture mean for our future?","English",47.4,37.92,"306--dc23","160 pp.","https://greenhavenpublishing.com/9781534500990",null,{"$f":"Table1[[#This Row],['# of Books]]*Table1[[#This Row],[QTY]]","v":0},{"$f":"Table1[[#This Row],[QTY]]*Table1[[#This Row],[School & Library Price]]","v":0}]
[null,null,15,null,null,"Current Issues","Current Controversies","Political Correctness","978-1-5345-0100-3",{"$f":"HYPERLINK(Table1[[#This Row],[eCommerce Hyperlink]],\"Book Weblink\")","v":"Book Weblink"},null,"Greenhaven Publishing","eBook",1,"2018","August 2017",null,null,"Edited by","Rachel Bozek",null,null,null,null,"Z","1350L","Grade 10 - 12","Grade 9 - 12","Political correctness, better known as “PC,” flourished in institutions of higher learning in the 1990s. With the rise of social media, a second wave of PC culture has emerged that is more aggressive than the first. It seems to many that nearly everyone is a target, at risk of being labeled a racist or misogynist based on one short tweet. The movement, though intended to be inclusive and pluralistic, has its detractors. Is political correctness protective or is it an attack on freedom? Do knee-jerk reactions cancel out the opportunity for thoughtful discourse? And what does this culture mean for our future?","English",47.4,37.92,"306--dc23","160 pp.","https://greenhavenpublishing.com/9781534501003",null,{"$f":"Table1[[#This Row],['# of Books]]*Table1[[#This Row],[QTY]]","v":0},{"$f":"Table1[[#This Row],[QTY]]*Table1[[#This Row],[School & Library Price]]","v":0}]
[null,null,15,null,null,"Current Issues","Current Controversies","Political Correctness","978-1-5345-0097-6",{"$f":"HYPERLINK(Table1[[#This Row],[eCommerce Hyperlink]],\"Book Weblink\")","v":"Book Weblink"},null,"Greenhaven Publishing","Paperback Book",1,"2018","August 2017","Paperback","6.000 X 9.000","Edited by","Rachel Bozek",null,null,null,null,"Z","1350L","Grade 10 - 12","Grade 9 - 12","Political correctness, better known as “PC,” flourished in institutions of higher learning in the 1990s. With the rise of social media, a second wave of PC culture has emerged that is more aggressive than the first. It seems to many that nearly everyone is a target, at risk of being labeled a racist or misogynist based on one short tweet. The movement, though intended to be inclusive and pluralistic, has its detractors. Is political correctness protective or is it an attack on freedom? Do knee-jerk reactions cancel out the opportunity for thoughtful discourse? And what does this culture mean for our future?","English",33,26.4,"306--dc23","160 pp.","https://greenhavenpublishing.com/9781534500976",null,{"$f":"Table1[[#This Row],['# of Books]]*Table1[[#This Row],[QTY]]","v":0},{"$f":"Table1[[#This Row],[QTY]]*Table1[[#This Row],[School & Library Price]]","v":0}]
[null,null,15,null,null,"Current Issues","Current Controversies","Political Extremism in the United States","978-1-5345-0310-6",{"$f":"HYPERLINK(Table1[[#This Row],[eCommerce Hyperlink]],\"Book Weblink\")","v":"Book Weblink"},null,"Greenhaven Publishing","Library Bound Book",1,"2019","August 2018","Library","6.000 X 9.000","Edited by","Eamon Doyle",null,null,null,null,"Z",null,"Grade 10 - 12","Grade 9 - 12","The 2016 presidential election brought to light the increasingly polarized nature of American politics. What brought about this political extremism, and can anything be done to curb it? This volume helps to define political extremism, explores the ways in which extremism manifests itself, including hate speech and domestic terrorism, and explains theories about how it can be counteracted. With partisanship in the United States showing no sign of decline without significant intervention, it is more essential than ever to try to understand what brought about this political division.","English",47.4,37.92,"303.48/4--dc23","200 pp.","https://greenhavenpublishing.com/9781534503106",null,{"$f":"Table1[[#This Row],['# of Books]]*Table1[[#This Row],[QTY]]","v":0},{"$f":"Table1[[#This Row],[QTY]]*Table1[[#This Row],[School & Library Price]]","v":0}]
[null,null,15,null,null,"Current Issues","Current Controversies","Political Extremism in the United States","978-1-5345-0311-3",{"$f":"HYPERLINK(Table1[[#This Row],[eCommerce Hyperlink]],\"Book Weblink\")","v":"Book Weblink"},null,"Greenhaven Publishing","Paperback Book",1,"2019","August 2018","Paperback","6.000 X 9.000","Edited by","Eamon Doyle",null,null,null,null,"Z",null,"Grade 10 - 12","Grade 9 - 12","The 2016 presidential election brought to light the increasingly polarized nature of American politics. What brought about this political extremism, and can anything be done to curb it? This volume helps to define political extremism, explores the ways in which extremism manifests itself, including hate speech and domestic terrorism, and explains theories about how it can be counteracted. With partisanship in the United States showing no sign of decline without significant intervention, it is more essential than ever to try to understand what brought about this political division.","English",33,26.4,"303.48/4--dc23","200 pp.","https://greenhavenpublishing.com/9781534503113",null,{"$f":"Table1[[#This Row],['# of Books]]*Table1[[#This Row],[QTY]]","v":0},{"$f":"Table1[[#This Row],[QTY]]*Table1[[#This Row],[School & Library Price]]","v":0}]
[null,null,15,null,null,"Current Issues","Current Controversies","Privacy and Security in the Digital Age","978-1-5345-0021-1",{"$f":"HYPERLINK(Table1[[#This Row],[eCommerce Hyperlink]],\"Book Weblink\")","v":"Book Weblink"},null,"Greenhaven Publishing","Library Bound Book",1,"2017","January 2017","Library","6.000 X 9.000","Edited by","Anne C. Cunningham",null,null,null,null,"Z","1290L","Grade 10 - 12","Grade 9 - 12","The digital age has enhanced our lives in such profound ways that it’s difficult to imagine how we ever coped without computers, the internet, and smartphone cameras. But along with the obvious improvements that technology offers come threats to our personal freedoms. Readers of this enlightening anthology will be faced with complicated dilemmas from a variety of informed viewpoints: Does the government have the right to monitor its citizens? Should consumers have expectations of privacy? Does video surveillance make us safer in our communities? Is security more important than liberty?","English",47.4,37.92,"323.3’264--dc23","176 pp.","https://greenhavenpublishing.com/9781534500211",null,{"$f":"Table1[[#This Row],['# of Books]]*Table1[[#This Row],[QTY]]","v":0},{"$f":"Table1[[#This Row],[QTY]]*Table1[[#This Row],[School & Library Price]]","v":0}]
[null,null,15,null,null,"Current Issues","Current Controversies","Privacy and Security in the Digital Age","978-1-5345-0006-8",{"$f":"HYPERLINK(Table1[[#This Row],[eCommerce Hyperlink]],\"Book Weblink\")","v":"Book Weblink"},null,"Greenhaven Publishing","eBook",1,"2017","January 2017",null,null,"Edited by","Anne C. Cunningham",null,null,null,null,"Z","1290L","Grade 10 - 12","Grade 9 - 12","The digital age has enhanced our lives in such profound ways that it’s difficult to imagine how we ever coped without computers, the internet, and smartphone cameras. But along with the obvious improvements that technology offers come threats to our personal freedoms. Readers of this enlightening anthology will be faced with complicated dilemmas from a variety of informed viewpoints: Does the government have the right to monitor its citizens? Should consumers have expectations of privacy? Does video surveillance make us safer in our communities? Is security more important than liberty?","English",47.4,37.92,"323.3’264--dc23","176 pp.","https://greenhavenpublishing.com/9781534500068",null,{"$f":"Table1[[#This Row],['# of Books]]*Table1[[#This Row],[QTY]]","v":0},{"$f":"Table1[[#This Row],[QTY]]*Table1[[#This Row],[School & Library Price]]","v":0}]
[null,null,15,null,null,"Current Issues","Current Controversies","Privacy and Security in the Digital Age","978-1-5345-0032-7",{"$f":"HYPERLINK(Table1[[#This Row],[eCommerce Hyperlink]],\"Book Weblink\")","v":"Book Weblink"},null,"Greenhaven Publishing","Paperback Book",1,"2017","January 2017","Paperback","6.000 X 9.000","Edited by","Anne C. Cunningham",null,null,null,null,"Z","1290L","Grade 10 - 12","Grade 9 - 12","The digital age has enhanced our lives in such profound ways that it’s difficult to imagine how we ever coped without computers, the internet, and smartphone cameras. But along with the obvious improvements that technology offers come threats to our personal freedoms. Readers of this enlightening anthology will be faced with complicated dilemmas from a variety of informed viewpoints: Does the government have the right to monitor its citizens? Should consumers have expectations of privacy? Does video surveillance make us safer in our communities? Is security more important than liberty?","English",33,26.4,"323.3’264--dc23","176 pp.","https://greenhavenpublishing.com/9781534500327",null,{"$f":"Table1[[#This Row],['# of Books]]*Table1[[#This Row],[QTY]]","v":0},{"$f":"Table1[[#This Row],[QTY]]*Table1[[#This Row],[School & Library Price]]","v":0}]
[null,null,15,null,null,"Current Issues","Current Controversies","Professional Football","978-0-7377-7424-5",{"$f":"HYPERLINK(Table1[[#This Row],[eCommerce Hyperlink]],\"Book Weblink\")","v":"Book Weblink"},null,"Greenhaven Publishing","Library Bound Book",1,"2016","January 2016","Library","6.000 X 9.000","Edited by","Tamara Thompson",null,null,null,null,"Z",null,"Grade 10 - 12","Grade 9 - 12","In 2013, the NFL has reached a tentative 765 million dollar settlement over concussion-related brain injuries among its 18,000 retired players. The NFL agreed to compensate victims, pay for medical exams, and underwrite research. Editor Tamara Thompson has selected a diverse array of primary source writings to provide your readers with a comprehensive look at the controversies associated with professional football. Written by respected experts in the field, these essays present important opinions on issues such as concussions, domestic abuse, and prescription drug abuse.","English",47.4,37.92,"796.332/​64/​0973","192 pp.","https://greenhavenpublishing.com/9780737774245",null,{"$f":"Table1[[#This Row],['# of Books]]*Table1[[#This Row],[QTY]]","v":0},{"$f":"Table1[[#This Row],[QTY]]*Table1[[#This Row],[School & Library Price]]","v":0}]
[null,null,15,null,null,"Current Issues","Current Controversies","Professional Football","978-0-7377-7425-2",{"$f":"HYPERLINK(Table1[[#This Row],[eCommerce Hyperlink]],\"Book Weblink\")","v":"Book Weblink"},null,"Greenhaven Publishing","Paperback Book",1,"2016","January 2016","Paperback","6.000 X 9.000","Edited by","Tamara Thompson",null,null,null,null,"Z",null,"Grade 10 - 12","Grade 9 - 12","In 2013, the NFL has reached a tentative 765 million dollar settlement over concussion-related brain injuries among its 18,000 retired players. The NFL agreed to compensate victims, pay for medical exams, and underwrite research. Editor Tamara Thompson has selected a diverse array of primary source writings to provide your readers with a comprehensive look at the controversies associated with professional football. Written by respected experts in the field, these essays present important opinions on issues such as concussions, domestic abuse, and prescription drug abuse.","English",33,26.4,"796.332/​64/​0973","192 pp.","https://greenhavenpublishing.com/9780737774252",null,{"$f":"Table1[[#This Row],['# of Books]]*Table1[[#This Row],[QTY]]","v":0},{"$f":"Table1[[#This Row],[QTY]]*Table1[[#This Row],[School & Library Price]]","v":0}]
[null,12,15,null,null,"Current Issues","Current Controversies","Reparations for Black Americans","978-1-5345-0853-8",{"$f":"HYPERLINK(Table1[[#This Row],[eCommerce Hyperlink]],\"Book Weblink\")","v":"Book Weblink"},null,"Greenhaven Publishing","Library Bound Book",1,"2022","January 2022","Library","6.000 X 9.000","Edited by","Andrew Karpan",null,null,null,null,"Z",null,"Grade 10 - 12","Grade 9 - 12","In recent years, discussions about reparations for Black Americans have gone from the abstract to the possible. While critics claim that reparations are unnecessary because those who deserve compensation are long dead, others argue that in the years since the end of the Civil War the United States enacted many harmful laws and policies that prevented its Black citizens from leading enriched lives. The viewpoints in this volume examine whether reparations are the best way to right a wrong, how other countries have handled similar matters, and how reparations could be executed on a practical level.","English",47.4,37.92,"305.896/073--dc23","176 pp.","https://greenhavenpublishing.com/9781534508538",null,{"$f":"Table1[[#This Row],['# of Books]]*Table1[[#This Row],[QTY]]","v":0},{"$f":"Table1[[#This Row],[QTY]]*Table1[[#This Row],[School & Library Price]]","v":0}]
[null,12,15,null,null,"Current Issues","Current Controversies","Reparations for Black Americans","978-1-5345-0854-5",{"$f":"HYPERLINK(Table1[[#This Row],[eCommerce Hyperlink]],\"Book Weblink\")","v":"Book Weblink"},{"$f":"HYPERLINK(Table1[[#This Row],[EPP Hyperlink]],\"EPP Weblink\")","v":"EPP Weblink"},"Greenhaven Publishing","eBook",1,"2022","January 2022",null,null,"Edited by","Andrew Karpan",null,null,null,null,"Z",null,"Grade 10 - 12","Grade 9 - 12","In recent years, discussions about reparations for Black Americans have gone from the abstract to the possible. While critics claim that reparations are unnecessary because those who deserve compensation are long dead, others argue that in the years since the end of the Civil War the United States enacted many harmful laws and policies that prevented its Black citizens from leading enriched lives. The viewpoints in this volume examine whether reparations are the best way to right a wrong, how other countries have handled similar matters, and how reparations could be executed on a practical level.","English",47.4,37.92,"305.896/073--dc23","176 pp.","https://greenhavenpublishing.com/9781534508545","http://www.epointplus.com/embed/9781534508545/?login=cyberrep&password=cyberrep",{"$f":"Table1[[#This Row],['# of Books]]*Table1[[#This Row],[QTY]]","v":0},{"$f":"Table1[[#This Row],[QTY]]*Table1[[#This Row],[School & Library Price]]","v":0}]
[null,12,15,null,null,"Current Issues","Current Controversies","Reparations for Black Americans","978-1-5345-0852-1",{"$f":"HYPERLINK(Table1[[#This Row],[eCommerce Hyperlink]],\"Book Weblink\")","v":"Book Weblink"},null,"Greenhaven Publishing","Paperback Book",1,"2022","January 2022","Paperback","6.000 X 9.000","Edited by","Andrew Karpan",null,null,null,null,"Z",null,"Grade 10 - 12","Grade 9 - 12","In recent years, discussions about reparations for Black Americans have gone from the abstract to the possible. While critics claim that reparations are unnecessary because those who deserve compensation are long dead, others argue that in the years since the end of the Civil War the United States enacted many harmful laws and policies that prevented its Black citizens from leading enriched lives. The viewpoints in this volume examine whether reparations are the best way to right a wrong, how other countries have handled similar matters, and how reparations could be executed on a practical level.","English",33,26.4,"305.896/073--dc23","176 pp.","https://greenhavenpublishing.com/9781534508521",null,{"$f":"Table1[[#This Row],['# of Books]]*Table1[[#This Row],[QTY]]","v":0},{"$f":"Table1[[#This Row],[QTY]]*Table1[[#This Row],[School & Library Price]]","v":0}]
[null,null,15,null,null,"Current Issues","Current Controversies","Returning Soldiers and PTSD","978-1-5345-0091-4",{"$f":"HYPERLINK(Table1[[#This Row],[eCommerce Hyperlink]],\"Book Weblink\")","v":"Book Weblink"},null,"Greenhaven Publishing","Library Bound Book",1,"2018","August 2017","Library","6.000 X 9.000","Edited by","Barbara Krasner ",null,null,null,null,"Z",null,"Grade 10 - 12","Grade 9 - 12","One of the most painful and tragic legacies of the wars in Iraq and Afghanistan has been the trauma suffered by those who served and the far-reaching consequences and after-effects of their scarring combat experiences. This very important volume looks at the issue of returning soldiers PTSD from multiple angles, examining skyrocketing suicide rates; the debates surrounding the quality and accessibility of health care; the nature of and stigmas associated with a PTSD diagnosis; the responsibility that government and society have to care for returning soldiers; how welcoming, protective, and supportive the environment is to which soldiers return; and the steep cost of war to the individual, families, and society at large.","English",47.4,37.92,"616.85/21--dc23","296 pp.","https://greenhavenpublishing.com/9781534500914",null,{"$f":"Table1[[#This Row],['# of Books]]*Table1[[#This Row],[QTY]]","v":0},{"$f":"Table1[[#This Row],[QTY]]*Table1[[#This Row],[School & Library Price]]","v":0}]
[null,null,15,null,null,"Current Issues","Current Controversies","Returning Soldiers and PTSD","978-1-5345-0092-1",{"$f":"HYPERLINK(Table1[[#This Row],[eCommerce Hyperlink]],\"Book Weblink\")","v":"Book Weblink"},null,"Greenhaven Publishing","eBook",1,"2018","August 2017",null,null,"Edited by","Barbara Krasner ",null,null,null,null,"Z",null,"Grade 10 - 12","Grade 9 - 12","One of the most painful and tragic legacies of the wars in Iraq and Afghanistan has been the trauma suffered by those who served and the far-reaching consequences and after-effects of their scarring combat experiences. This very important volume looks at the issue of returning soldiers PTSD from multiple angles, examining skyrocketing suicide rates; the debates surrounding the quality and accessibility of health care; the nature of and stigmas associated with a PTSD diagnosis; the responsibility that government and society have to care for returning soldiers; how welcoming, protective, and supportive the environment is to which soldiers return; and the steep cost of war to the individual, families, and society at large.","English",47.4,37.92,"616.85/21--dc23","296 pp.","https://greenhavenpublishing.com/9781534500921",null,{"$f":"Table1[[#This Row],['# of Books]]*Table1[[#This Row],[QTY]]","v":0},{"$f":"Table1[[#This Row],[QTY]]*Table1[[#This Row],[School & Library Price]]","v":0}]
[null,null,15,null,null,"Current Issues","Current Controversies","Returning Soldiers and PTSD","978-1-5345-0087-7",{"$f":"HYPERLINK(Table1[[#This Row],[eCommerce Hyperlink]],\"Book Weblink\")","v":"Book Weblink"},null,"Greenhaven Publishing","Paperback Book",1,"2018","August 2017","Paperback","6.000 X 9.000","Edited by","Barbara Krasner ",null,null,null,null,"Z",null,"Grade 10 - 12","Grade 9 - 12","One of the most painful and tragic legacies of the wars in Iraq and Afghanistan has been the trauma suffered by those who served and the far-reaching consequences and after-effects of their scarring combat experiences. This very important volume looks at the issue of returning soldiers PTSD from multiple angles, examining skyrocketing suicide rates; the debates surrounding the quality and accessibility of health care; the nature of and stigmas associated with a PTSD diagnosis; the responsibility that government and society have to care for returning soldiers; how welcoming, protective, and supportive the environment is to which soldiers return; and the steep cost of war to the individual, families, and society at large.","English",33,26.4,"616.85/21--dc23","296 pp.","https://greenhavenpublishing.com/9781534500877",null,{"$f":"Table1[[#This Row],['# of Books]]*Table1[[#This Row],[QTY]]","v":0},{"$f":"Table1[[#This Row],[QTY]]*Table1[[#This Row],[School & Library Price]]","v":0}]
[null,13,15,null,null,"Current Issues","Current Controversies","Soft Power and Diplomacy","978-1-5345-0542-1",{"$f":"HYPERLINK(Table1[[#This Row],[eCommerce Hyperlink]],\"Book Weblink\")","v":"Book Weblink"},null,"Greenhaven Publishing","Library Bound Book",1,"2020","August 2019","Library","6.000 X 9.000","Edited by","Bridey Heing",null,null,null,null,"Z",null,"Grade 10 - 12","Grade 9 - 12","When considering the damage caused by the hard power of military intervention, soft power comes across as an appealing alternative. Soft power depends on diplomatically appealing to others to gain favor and influence rather than using coercive force, offering a more peaceful means of engaging in international relations. However, whether soft power is as effective as hard power and how it can be achieved is a source of debate. Through the diverse perspectives in this volume, readers will gain an understanding of the differing perspectives on soft power's efficacy as a political strategy and the ways it can be implemented.","English",47.4,37.92,"327.2--dc23","176 pp.","https://greenhavenpublishing.com/9781534505421",null,{"$f":"Table1[[#This Row],['# of Books]]*Table1[[#This Row],[QTY]]","v":0},{"$f":"Table1[[#This Row],[QTY]]*Table1[[#This Row],[School & Library Price]]","v":0}]
[null,13,15,null,null,"Current Issues","Current Controversies","Soft Power and Diplomacy","978-1-5345-0544-5",{"$f":"HYPERLINK(Table1[[#This Row],[eCommerce Hyperlink]],\"Book Weblink\")","v":"Book Weblink"},null,"Greenhaven Publishing","eBook",1,"2020","August 2019",null,null,"Edited by","Bridey Heing",null,null,null,null,"Z",null,"Grade 10 - 12","Grade 9 - 12","When considering the damage caused by the hard power of military intervention, soft power comes across as an appealing alternative. Soft power depends on diplomatically appealing to others to gain favor and influence rather than using coercive force, offering a more peaceful means of engaging in international relations. However, whether soft power is as effective as hard power and how it can be achieved is a source of debate. Through the diverse perspectives in this volume, readers will gain an understanding of the differing perspectives on soft power's efficacy as a political strategy and the ways it can be implemented.","English",47.4,37.92,"327.2--dc23","176 pp.","https://greenhavenpublishing.com/9781534505445",null,{"$f":"Table1[[#This Row],['# of Books]]*Table1[[#This Row],[QTY]]","v":0},{"$f":"Table1[[#This Row],[QTY]]*Table1[[#This Row],[School & Library Price]]","v":0}]
[null,13,15,null,null,"Current Issues","Current Controversies","Soft Power and Diplomacy","978-1-5345-0543-8",{"$f":"HYPERLINK(Table1[[#This Row],[eCommerce Hyperlink]],\"Book Weblink\")","v":"Book Weblink"},null,"Greenhaven Publishing","Paperback Book",1,"2020","August 2019","Paperback","6.000 X 9.000","Edited by","Bridey Heing",null,null,null,null,"Z",null,"Grade 10 - 12","Grade 9 - 12","When considering the damage caused by the hard power of military intervention, soft power comes across as an appealing alternative. Soft power depends on diplomatically appealing to others to gain favor and influence rather than using coercive force, offering a more peaceful means of engaging in international relations. However, whether soft power is as effective as hard power and how it can be achieved is a source of debate. Through the diverse perspectives in this volume, readers will gain an understanding of the differing perspectives on soft power's efficacy as a political strategy and the ways it can be implemented.","English",33,26.4,"327.2--dc23","176 pp.","https://greenhavenpublishing.com/9781534505438",null,{"$f":"Table1[[#This Row],['# of Books]]*Table1[[#This Row],[QTY]]","v":0},{"$f":"Table1[[#This Row],[QTY]]*Table1[[#This Row],[School & Library Price]]","v":0}]
[null,null,15,null,null,"Current Issues","Current Controversies","States' Rights and the Role of the Federal Government","978-1-5345-0313-7",{"$f":"HYPERLINK(Table1[[#This Row],[eCommerce Hyperlink]],\"Book Weblink\")","v":"Book Weblink"},null,"Greenhaven Publishing","Library Bound Book",1,"2019","August 2018","Library","6.000 X 9.000","Edited by","Marcia Amidon Lusted",null,null,null,null,"Z","1360L","Grade 10 - 12","Grade 9 - 12","The balance of power between states and the federal government has long been a point of contention. In an era when one political party controls the three branches of the federal government, the possibility to employ states' rights to resist objectionable federal policy has made it a highly contemporary issue. With states' rights at the center of issues like sanctuary cities, abortion, gun control, and LGBTQ rights, understanding the distribution of power between state and federal government is key to grasping the current political climate and the future of American politics.","English",47.4,37.92,"320.473/049--dc23","200 pp.","https://greenhavenpublishing.com/9781534503137",null,{"$f":"Table1[[#This Row],['# of Books]]*Table1[[#This Row],[QTY]]","v":0},{"$f":"Table1[[#This Row],[QTY]]*Table1[[#This Row],[School & Library Price]]","v":0}]
[null,null,15,null,null,"Current Issues","Current Controversies","States' Rights and the Role of the Federal Government","978-1-5345-0314-4",{"$f":"HYPERLINK(Table1[[#This Row],[eCommerce Hyperlink]],\"Book Weblink\")","v":"Book Weblink"},null,"Greenhaven Publishing","Paperback Book",1,"2019","August 2018","Paperback","6.000 X 9.000","Edited by","Marcia Amidon Lusted",null,null,null,null,"Z","1360L","Grade 10 - 12","Grade 9 - 12","The balance of power between states and the federal government has long been a point of contention. In an era when one political party controls the three branches of the federal government, the possibility to employ states' rights to resist objectionable federal policy has made it a highly contemporary issue. With states' rights at the center of issues like sanctuary cities, abortion, gun control, and LGBTQ rights, understanding the distribution of power between state and federal government is key to grasping the current political climate and the future of American politics.","English",33,26.4,"320.473/049--dc23","200 pp.","https://greenhavenpublishing.com/9781534503144",null,{"$f":"Table1[[#This Row],['# of Books]]*Table1[[#This Row],[QTY]]","v":0},{"$f":"Table1[[#This Row],[QTY]]*Table1[[#This Row],[School & Library Price]]","v":0}]
[null,13,15,null,null,"Current Issues","Current Controversies","Sustainable Consumption","978-1-5345-0782-1",{"$f":"HYPERLINK(Table1[[#This Row],[eCommerce Hyperlink]],\"Book Weblink\")","v":"Book Weblink"},null,"Greenhaven Publishing","Library Bound Book",1,"2022","August 2021","Library","6.000 X 9.000","Compiled by","Bridey Heing",null,null,null,null,"Z",null,"Grade 10 - 12","Grade 9 - 12","With the threat of climate change looming over the present, many consumers and companies have prioritized minimizing their environmental impact through making more sustainable choices. This volume examines the role that individual consumption plays in climate change, and how companies have attempted to become more sustainable and the effectiveness of these practices. Readers will evaluate whether countries and local municipalities should regulate consumption, and if it is even possible to change consumption practices enough to meaningfully impact climate change. Through reading opposing perspectives on these questions, readers will become better equipped to form their own intelligent opinions on these important issues.","English",47.4,37.92,"338.9/27--dc23","200 pp.","https://greenhavenpublishing.com/9781534507821",null,{"$f":"Table1[[#This Row],['# of Books]]*Table1[[#This Row],[QTY]]","v":0},{"$f":"Table1[[#This Row],[QTY]]*Table1[[#This Row],[School & Library Price]]","v":0}]
[null,13,15,null,null,"Current Issues","Current Controversies","Sustainable Consumption","978-1-5345-0783-8",{"$f":"HYPERLINK(Table1[[#This Row],[eCommerce Hyperlink]],\"Book Weblink\")","v":"Book Weblink"},null,"Greenhaven Publishing","eBook",1,"2022","August 2021",null,null,"Compiled by","Bridey Heing",null,null,null,null,"Z",null,"Grade 10 - 12","Grade 9 - 12","With the threat of climate change looming over the present, many consumers and companies have prioritized minimizing their environmental impact through making more sustainable choices. This volume examines the role that individual consumption plays in climate change, and how companies have attempted to become more sustainable and the effectiveness of these practices. Readers will evaluate whether countries and local municipalities should regulate consumption, and if it is even possible to change consumption practices enough to meaningfully impact climate change. Through reading opposing perspectives on these questions, readers will become better equipped to form their own intelligent opinions on these important issues.","English",47.4,37.92,"338.9/27--dc23","200 pp.","https://greenhavenpublishing.com/9781534507838",null,{"$f":"Table1[[#This Row],['# of Books]]*Table1[[#This Row],[QTY]]","v":0},{"$f":"Table1[[#This Row],[QTY]]*Table1[[#This Row],[School & Library Price]]","v":0}]
[null,13,15,null,null,"Current Issues","Current Controversies","Sustainable Consumption","978-1-5345-0780-7",{"$f":"HYPERLINK(Table1[[#This Row],[eCommerce Hyperlink]],\"Book Weblink\")","v":"Book Weblink"},null,"Greenhaven Publishing","Paperback Book",1,"2022","August 2021","Paperback","6.000 X 9.000","Compiled by","Bridey Heing",null,null,null,null,"Z",null,"Grade 10 - 12","Grade 9 - 12","With the threat of climate change looming over the present, many consumers and companies have prioritized minimizing their environmental impact through making more sustainable choices. This volume examines the role that individual consumption plays in climate change, and how companies have attempted to become more sustainable and the effectiveness of these practices. Readers will evaluate whether countries and local municipalities should regulate consumption, and if it is even possible to change consumption practices enough to meaningfully impact climate change. Through reading opposing perspectives on these questions, readers will become better equipped to form their own intelligent opinions on these important issues.","English",33,26.4,"338.9/27--dc23","200 pp.","https://greenhavenpublishing.com/9781534507807",null,{"$f":"Table1[[#This Row],['# of Books]]*Table1[[#This Row],[QTY]]","v":0},{"$f":"Table1[[#This Row],[QTY]]*Table1[[#This Row],[School & Library Price]]","v":0}]
[null,13,15,null,null,"Current Issues","Current Controversies","Tariffs and the Future of Trade","978-1-5345-0545-2",{"$f":"HYPERLINK(Table1[[#This Row],[eCommerce Hyperlink]],\"Book Weblink\")","v":"Book Weblink"},null,"Greenhaven Publishing","Library Bound Book",1,"2020","August 2019","Library","6.000 X 9.000","Edited by","Eamon Doyle",null,null,null,null,"Z",null,"Grade 10 - 12","Grade 9 - 12","With the introduction of significant tariffs on Chinese goods in 2018 and the resultant talk of a trade war between the United States and China, critical analysis has renewed itself on the usefulness of tariffs. Your readers will analyze whether tariffs are an effective means of political influence. They'll survey what effect tariffs will have on the domestic and global economy, and how tariffs will ultimately impact the future of trade. This volume offers opposing perspectives on tariffs and trade wars, further providing context on historical tariffs and global trade.","English",47.4,37.92,"382/.7--dc23","200 pp.","https://greenhavenpublishing.com/9781534505452",null,{"$f":"Table1[[#This Row],['# of Books]]*Table1[[#This Row],[QTY]]","v":0},{"$f":"Table1[[#This Row],[QTY]]*Table1[[#This Row],[School & Library Price]]","v":0}]
[null,13,15,null,null,"Current Issues","Current Controversies","Tariffs and the Future of Trade","978-1-5345-0547-6",{"$f":"HYPERLINK(Table1[[#This Row],[eCommerce Hyperlink]],\"Book Weblink\")","v":"Book Weblink"},null,"Greenhaven Publishing","eBook",1,"2020","August 2019",null,null,"Edited by","Eamon Doyle",null,null,null,null,"Z",null,"Grade 10 - 12","Grade 9 - 12","With the introduction of significant tariffs on Chinese goods in 2018 and the resultant talk of a trade war between the United States and China, critical analysis has renewed itself on the usefulness of tariffs. Your readers will analyze whether tariffs are an effective means of political influence. They'll survey what effect tariffs will have on the domestic and global economy, and how tariffs will ultimately impact the future of trade. This volume offers opposing perspectives on tariffs and trade wars, further providing context on historical tariffs and global trade.","English",47.4,37.92,"382/.7--dc23","200 pp.","https://greenhavenpublishing.com/9781534505476",null,{"$f":"Table1[[#This Row],['# of Books]]*Table1[[#This Row],[QTY]]","v":0},{"$f":"Table1[[#This Row],[QTY]]*Table1[[#This Row],[School & Library Price]]","v":0}]
[null,13,15,null,null,"Current Issues","Current Controversies","Tariffs and the Future of Trade","978-1-5345-0546-9",{"$f":"HYPERLINK(Table1[[#This Row],[eCommerce Hyperlink]],\"Book Weblink\")","v":"Book Weblink"},null,"Greenhaven Publishing","Paperback Book",1,"2020","August 2019","Paperback","6.000 X 9.000","Edited by","Eamon Doyle",null,null,null,null,"Z",null,"Grade 10 - 12","Grade 9 - 12","With the introduction of significant tariffs on Chinese goods in 2018 and the resultant talk of a trade war between the United States and China, critical analysis has renewed itself on the usefulness of tariffs. Your readers will analyze whether tariffs are an effective means of political influence. They'll survey what effect tariffs will have on the domestic and global economy, and how tariffs will ultimately impact the future of trade. This volume offers opposing perspectives on tariffs and trade wars, further providing context on historical tariffs and global trade.","English",33,26.4,"382/.7--dc23","200 pp.","https://greenhavenpublishing.com/9781534505469",null,{"$f":"Table1[[#This Row],['# of Books]]*Table1[[#This Row],[QTY]]","v":0},{"$f":"Table1[[#This Row],[QTY]]*Table1[[#This Row],[School & Library Price]]","v":0}]
[null,13,15,null,null,"Current Issues","Current Controversies","The Industrial Food Complex","978-1-5345-0539-1",{"$f":"HYPERLINK(Table1[[#This Row],[eCommerce Hyperlink]],\"Book Weblink\")","v":"Book Weblink"},null,"Greenhaven Publishing","Library Bound Book",1,"2020","August 2019","Library","6.000 X 9.000","Edited by","Joellen McCarty",null,null,null,null,"Z",null,"Grade 10 - 12","Grade 9 - 12","As of 2015, one in three people worked in agriculture globally. With agriculture contributing only 3 percent of the global GDP, it is challenging for those workers to earn a living wage. Concerns are levied against companies in the food industry, with questions raised about their ethics and their treatment of workers, livestock, and the environment. The massive scale of the industry makes regulation difficult, but under-regulation can result in public health crises. The diverse viewpoints in this volume explore the controversies, challenges, and solutions involved in providing food in our world today.","English",47.4,37.92,"338.4/7664--dc23","200 pp.","https://greenhavenpublishing.com/9781534505391",null,{"$f":"Table1[[#This Row],['# of Books]]*Table1[[#This Row],[QTY]]","v":0},{"$f":"Table1[[#This Row],[QTY]]*Table1[[#This Row],[School & Library Price]]","v":0}]
[null,13,15,null,null,"Current Issues","Current Controversies","The Industrial Food Complex","978-1-5345-0541-4",{"$f":"HYPERLINK(Table1[[#This Row],[eCommerce Hyperlink]],\"Book Weblink\")","v":"Book Weblink"},null,"Greenhaven Publishing","eBook",1,"2020","August 2019",null,null,"Edited by","Joellen McCarty",null,null,null,null,"Z",null,"Grade 10 - 12","Grade 9 - 12","As of 2015, one in three people worked in agriculture globally. With agriculture contributing only 3 percent of the global GDP, it is challenging for those workers to earn a living wage. Concerns are levied against companies in the food industry, with questions raised about their ethics and their treatment of workers, livestock, and the environment. The massive scale of the industry makes regulation difficult, but under-regulation can result in public health crises. The diverse viewpoints in this volume explore the controversies, challenges, and solutions involved in providing food in our world today.","English",47.4,37.92,"338.4/7664--dc23","200 pp.","https://greenhavenpublishing.com/9781534505414",null,{"$f":"Table1[[#This Row],['# of Books]]*Table1[[#This Row],[QTY]]","v":0},{"$f":"Table1[[#This Row],[QTY]]*Table1[[#This Row],[School & Library Price]]","v":0}]
[null,13,15,null,null,"Current Issues","Current Controversies","The Industrial Food Complex","978-1-5345-0540-7",{"$f":"HYPERLINK(Table1[[#This Row],[eCommerce Hyperlink]],\"Book Weblink\")","v":"Book Weblink"},null,"Greenhaven Publishing","Paperback Book",1,"2020","August 2019","Paperback","6.000 X 9.000","Edited by","Joellen McCarty",null,null,null,null,"Z",null,"Grade 10 - 12","Grade 9 - 12","As of 2015, one in three people worked in agriculture globally. With agriculture contributing only 3 percent of the global GDP, it is challenging for those workers to earn a living wage. Concerns are levied against companies in the food industry, with questions raised about their ethics and their treatment of workers, livestock, and the environment. The massive scale of the industry makes regulation difficult, but under-regulation can result in public health crises. The diverse viewpoints in this volume explore the controversies, challenges, and solutions involved in providing food in our world today.","English",33,26.4,"338.4/7664--dc23","200 pp.","https://greenhavenpublishing.com/9781534505407",null,{"$f":"Table1[[#This Row],['# of Books]]*Table1[[#This Row],[QTY]]","v":0},{"$f":"Table1[[#This Row],[QTY]]*Table1[[#This Row],[School & Library Price]]","v":0}]
[null,13,15,null,null,"Current Issues","Current Controversies","The Internet of Things","978-1-5345-0774-6",{"$f":"HYPERLINK(Table1[[#This Row],[eCommerce Hyperlink]],\"Book Weblink\")","v":"Book Weblink"},null,"Greenhaven Publishing","Library Bound Book",1,"2022","August 2021","Library","6.000 X 9.000","Compiled by","Andrew Karpan",null,null,null,null,"Z",null,"Grade 10 - 12","Grade 9 - 12","As the number of digital devices used in daily life grows, it comes as no surprise that the next step in technological evolution is to conveniently interconnect these devices. This is where the Internet of Things fits in. The Internet of Things refers to all devices that are connected to the internet and share data on it, but there are numerous applications for this technology, ranging from smartphones to driverless cars. Despite the convenience smart devices offer, they also raise significant concerns about data privacy and security. Readers will encounter contrasting viewpoints on this timely and evolving issue.","English",47.4,37.92,"004.67/8--dc23","176 pp.","https://greenhavenpublishing.com/9781534507746",null,{"$f":"Table1[[#This Row],['# of Books]]*Table1[[#This Row],[QTY]]","v":0},{"$f":"Table1[[#This Row],[QTY]]*Table1[[#This Row],[School & Library Price]]","v":0}]
[null,13,15,null,null,"Current Issues","Current Controversies","The Internet of Things","978-1-5345-0775-3",{"$f":"HYPERLINK(Table1[[#This Row],[eCommerce Hyperlink]],\"Book Weblink\")","v":"Book Weblink"},null,"Greenhaven Publishing","eBook",1,"2022","August 2021",null,null,"Compiled by","Andrew Karpan",null,null,null,null,"Z",null,"Grade 10 - 12","Grade 9 - 12","As the number of digital devices used in daily life grows, it comes as no surprise that the next step in technological evolution is to conveniently interconnect these devices. This is where the Internet of Things fits in. The Internet of Things refers to all devices that are connected to the internet and share data on it, but there are numerous applications for this technology, ranging from smartphones to driverless cars. Despite the convenience smart devices offer, they also raise significant concerns about data privacy and security. Readers will encounter contrasting viewpoints on this timely and evolving issue.","English",47.4,37.92,"004.67/8--dc23","176 pp.","https://greenhavenpublishing.com/9781534507753",null,{"$f":"Table1[[#This Row],['# of Books]]*Table1[[#This Row],[QTY]]","v":0},{"$f":"Table1[[#This Row],[QTY]]*Table1[[#This Row],[School & Library Price]]","v":0}]
[null,13,15,null,null,"Current Issues","Current Controversies","The Internet of Things","978-1-5345-0772-2",{"$f":"HYPERLINK(Table1[[#This Row],[eCommerce Hyperlink]],\"Book Weblink\")","v":"Book Weblink"},null,"Greenhaven Publishing","Paperback Book",1,"2022","August 2021","Paperback","6.000 X 9.000","Compiled by","Andrew Karpan",null,null,null,null,"Z",null,"Grade 10 - 12","Grade 9 - 12","As the number of digital devices used in daily life grows, it comes as no surprise that the next step in technological evolution is to conveniently interconnect these devices. This is where the Internet of Things fits in. The Internet of Things refers to all devices that are connected to the internet and share data on it, but there are numerous applications for this technology, ranging from smartphones to driverless cars. Despite the convenience smart devices offer, they also raise significant concerns about data privacy and security. Readers will encounter contrasting viewpoints on this timely and evolving issue.","English",33,26.4,"004.67/8--dc23","176 pp.","https://greenhavenpublishing.com/9781534507722",null,{"$f":"Table1[[#This Row],['# of Books]]*Table1[[#This Row],[QTY]]","v":0},{"$f":"Table1[[#This Row],[QTY]]*Table1[[#This Row],[School & Library Price]]","v":0}]
[null,null,15,null,null,"Current Issues","Current Controversies","The Political Elite and Special Interests","978-1-5345-0106-5",{"$f":"HYPERLINK(Table1[[#This Row],[eCommerce Hyperlink]],\"Book Weblink\")","v":"Book Weblink"},null,"Greenhaven Publishing","Library Bound Book",1,"2018","August 2017","Library","6.000 X 9.000","Edited by","Rachel Bozek",null,null,null,null,"Z","1300L","Grade 10 - 12","Grade 9 - 12","There is a growing sense that government is no longer of the people, by the people, and for the people. Many believe that society is manipulated by a handful of political elites and special interests. But why does each party feel that it is the elites and special interests of the other party who are in control of things? Does “one person one vote” still hold sway? Is this still a citizen democracy, or has it evolved into an oligarchy? Whose voice and vote really count? These and other questions and debates concerning power, influence, and who wields it are at the center of this fascinating collection of articles drawn from across the political spectrum.","English",47.4,37.92,"322.4--dc23","136 pp.","https://greenhavenpublishing.com/9781534501065",null,{"$f":"Table1[[#This Row],['# of Books]]*Table1[[#This Row],[QTY]]","v":0},{"$f":"Table1[[#This Row],[QTY]]*Table1[[#This Row],[School & Library Price]]","v":0}]
[null,null,15,null,null,"Current Issues","Current Controversies","The Political Elite and Special Interests","978-1-5345-0107-2",{"$f":"HYPERLINK(Table1[[#This Row],[eCommerce Hyperlink]],\"Book Weblink\")","v":"Book Weblink"},null,"Greenhaven Publishing","eBook",1,"2018","August 2017",null,null,"Edited by","Rachel Bozek",null,null,null,null,"Z","1300L","Grade 10 - 12","Grade 9 - 12","There is a growing sense that government is no longer of the people, by the people, and for the people. Many believe that society is manipulated by a handful of political elites and special interests. But why does each party feel that it is the elites and special interests of the other party who are in control of things? Does “one person one vote” still hold sway? Is this still a citizen democracy, or has it evolved into an oligarchy? Whose voice and vote really count? These and other questions and debates concerning power, influence, and who wields it are at the center of this fascinating collection of articles drawn from across the political spectrum.","English",47.4,37.92,"322.4--dc23","136 pp.","https://greenhavenpublishing.com/9781534501072",null,{"$f":"Table1[[#This Row],['# of Books]]*Table1[[#This Row],[QTY]]","v":0},{"$f":"Table1[[#This Row],[QTY]]*Table1[[#This Row],[School & Library Price]]","v":0}]
[null,null,15,null,null,"Current Issues","Current Controversies","The Political Elite and Special Interests","978-1-5345-0105-8",{"$f":"HYPERLINK(Table1[[#This Row],[eCommerce Hyperlink]],\"Book Weblink\")","v":"Book Weblink"},null,"Greenhaven Publishing","Paperback Book",1,"2018","August 2017","Paperback","6.000 X 9.000","Edited by","Rachel Bozek",null,null,null,null,"Z","1300L","Grade 10 - 12","Grade 9 - 12","There is a growing sense that government is no longer of the people, by the people, and for the people. Many believe that society is manipulated by a handful of political elites and special interests. But why does each party feel that it is the elites and special interests of the other party who are in control of things? Does “one person one vote” still hold sway? Is this still a citizen democracy, or has it evolved into an oligarchy? Whose voice and vote really count? These and other questions and debates concerning power, influence, and who wields it are at the center of this fascinating collection of articles drawn from across the political spectrum.","English",33,26.4,"322.4--dc23","136 pp.","https://greenhavenpublishing.com/9781534501058",null,{"$f":"Table1[[#This Row],['# of Books]]*Table1[[#This Row],[QTY]]","v":0},{"$f":"Table1[[#This Row],[QTY]]*Table1[[#This Row],[School & Library Price]]","v":0}]
[null,12,15,null,null,"Current Issues","Current Controversies","The Politics and Science of COVID-19","978-1-5345-0862-0",{"$f":"HYPERLINK(Table1[[#This Row],[eCommerce Hyperlink]],\"Book Weblink\")","v":"Book Weblink"},null,"Greenhaven Publishing","Library Bound Book",1,"2022","January 2022","Library","6.000 X 9.000","Edited by","Lisa Idzikowski",null,null,null,null,"Z",null,"Grade 10 - 12","Grade 9 - 12","Despite recent outbreaks and warnings of a future global pandemic, the world seemed largely unprepared when COVID-19 quickly spread from China to Europe to the United States and beyond. In the US the response was slow and heavily politicized. What went wrong and what can be done to ensure the country is prepared for the next pandemic? Carefully selected viewpoints from experts in the field explore the virus and how it spread; the scientific community’s scramble to understand, treat, and vaccinate; and how science and politics can work together in the future.","English",47.4,37.92,"362.1962/414--dc23","176 pp.","https://greenhavenpublishing.com/9781534508620",null,{"$f":"Table1[[#This Row],['# of Books]]*Table1[[#This Row],[QTY]]","v":0},{"$f":"Table1[[#This Row],[QTY]]*Table1[[#This Row],[School & Library Price]]","v":0}]
[null,12,15,null,null,"Current Issues","Current Controversies","The Politics and Science of COVID-19","978-1-5345-0863-7",{"$f":"HYPERLINK(Table1[[#This Row],[eCommerce Hyperlink]],\"Book Weblink\")","v":"Book Weblink"},{"$f":"HYPERLINK(Table1[[#This Row],[EPP Hyperlink]],\"EPP Weblink\")","v":"EPP Weblink"},"Greenhaven Publishing","eBook",1,"2022","January 2022",null,null,"Edited by","Lisa Idzikowski",null,null,null,null,"Z",null,"Grade 10 - 12","Grade 9 - 12","Despite recent outbreaks and warnings of a future global pandemic, the world seemed largely unprepared when COVID-19 quickly spread from China to Europe to the United States and beyond. In the US the response was slow and heavily politicized. What went wrong and what can be done to ensure the country is prepared for the next pandemic? Carefully selected viewpoints from experts in the field explore the virus and how it spread; the scientific community’s scramble to understand, treat, and vaccinate; and how science and politics can work together in the future.","English",47.4,37.92,"362.1962/414--dc23","176 pp.","https://greenhavenpublishing.com/9781534508637","http://www.epointplus.com/embed/9781534508637/?login=cyberrep&password=cyberrep",{"$f":"Table1[[#This Row],['# of Books]]*Table1[[#This Row],[QTY]]","v":0},{"$f":"Table1[[#This Row],[QTY]]*Table1[[#This Row],[School & Library Price]]","v":0}]
[null,12,15,null,null,"Current Issues","Current Controversies","The Politics and Science of COVID-19","978-1-5345-0861-3",{"$f":"HYPERLINK(Table1[[#This Row],[eCommerce Hyperlink]],\"Book Weblink\")","v":"Book Weblink"},null,"Greenhaven Publishing","Paperback Book",1,"2022","January 2022","Paperback","6.000 X 9.000","Edited by","Lisa Idzikowski",null,null,null,null,"Z",null,"Grade 10 - 12","Grade 9 - 12","Despite recent outbreaks and warnings of a future global pandemic, the world seemed largely unprepared when COVID-19 quickly spread from China to Europe to the United States and beyond. In the US the response was slow and heavily politicized. What went wrong and what can be done to ensure the country is prepared for the next pandemic? Carefully selected viewpoints from experts in the field explore the virus and how it spread; the scientific community’s scramble to understand, treat, and vaccinate; and how science and politics can work together in the future.","English",33,26.4,"362.1962/414--dc23","176 pp.","https://greenhavenpublishing.com/9781534508613",null,{"$f":"Table1[[#This Row],['# of Books]]*Table1[[#This Row],[QTY]]","v":0},{"$f":"Table1[[#This Row],[QTY]]*Table1[[#This Row],[School & Library Price]]","v":0}]
[null,null,15,null,null,"Current Issues","Current Controversies","The Two-Party System in the United States","978-1-5345-0389-2",{"$f":"HYPERLINK(Table1[[#This Row],[eCommerce Hyperlink]],\"Book Weblink\")","v":"Book Weblink"},null,"Greenhaven Publishing","Library Bound Book",1,"2019","January 2019","Library","6.000 X 9.000","Edited by","Barbara Krasner ",null,null,null,null,"Z","1300L","Grade 10 - 12","Grade 9 - 12","To many, bipartisanship is a fundamental aspect of American democracy: it is designed to allow voters of differing political beliefs to find a political party that most closely conforms to their values. However, in a 2015 poll, 43 percent of Americans identified with neither party, preferring to be politically independent. Is the two-party system essential to American politics? What part does it play in our electoral and political systems? Growing concerns about political polarization and bipartisanship's role in it have also come to light. This volume explores the various perspectives about the future of American democracy.","English",47.4,37.92,"324.273--dc23","200 pp.","https://greenhavenpublishing.com/9781534503892",null,{"$f":"Table1[[#This Row],['# of Books]]*Table1[[#This Row],[QTY]]","v":0},{"$f":"Table1[[#This Row],[QTY]]*Table1[[#This Row],[School & Library Price]]","v":0}]
[null,null,15,null,null,"Current Issues","Current Controversies","The Two-Party System in the United States","978-1-5345-0404-2",{"$f":"HYPERLINK(Table1[[#This Row],[eCommerce Hyperlink]],\"Book Weblink\")","v":"Book Weblink"},null,"Greenhaven Publishing","eBook",1,"2019","January 2019",null,null,"Edited by","Barbara Krasner ",null,null,null,null,"Z","1300L","Grade 10 - 12","Grade 9 - 12","To many, bipartisanship is a fundamental aspect of American democracy: it is designed to allow voters of differing political beliefs to find a political party that most closely conforms to their values. However, in a 2015 poll, 43 percent of Americans identified with neither party, preferring to be politically independent. Is the two-party system essential to American politics? What part does it play in our electoral and political systems? Growing concerns about political polarization and bipartisanship's role in it have also come to light. This volume explores the various perspectives about the future of American democracy.","English",47.4,37.92,"324.273--dc23","200 pp.","https://greenhavenpublishing.com/9781534504042",null,{"$f":"Table1[[#This Row],['# of Books]]*Table1[[#This Row],[QTY]]","v":0},{"$f":"Table1[[#This Row],[QTY]]*Table1[[#This Row],[School & Library Price]]","v":0}]
[null,null,15,null,null,"Current Issues","Current Controversies","The Two-Party System in the United States","978-1-5345-0465-3",{"$f":"HYPERLINK(Table1[[#This Row],[eCommerce Hyperlink]],\"Book Weblink\")","v":"Book Weblink"},null,"Greenhaven Publishing","Paperback Book",1,"2019","January 2019","Paperback","6.000 X 9.000","Edited by","Barbara Krasner ",null,null,null,null,"Z","1300L","Grade 10 - 12","Grade 9 - 12","To many, bipartisanship is a fundamental aspect of American democracy: it is designed to allow voters of differing political beliefs to find a political party that most closely conforms to their values. However, in a 2015 poll, 43 percent of Americans identified with neither party, preferring to be politically independent. Is the two-party system essential to American politics? What part does it play in our electoral and political systems? Growing concerns about political polarization and bipartisanship's role in it have also come to light. This volume explores the various perspectives about the future of American democracy.","English",33,26.4,"324.273--dc23","200 pp.","https://greenhavenpublishing.com/9781534504653",null,{"$f":"Table1[[#This Row],['# of Books]]*Table1[[#This Row],[QTY]]","v":0},{"$f":"Table1[[#This Row],[QTY]]*Table1[[#This Row],[School & Library Price]]","v":0}]
[null,null,15,null,null,"Current Issues","Current Controversies","Universal Health Care","978-1-5345-0316-8",{"$f":"HYPERLINK(Table1[[#This Row],[eCommerce Hyperlink]],\"Book Weblink\")","v":"Book Weblink"},null,"Greenhaven Publishing","Library Bound Book",1,"2019","August 2018","Library","6.000 X 9.000","Edited by","Kristina Lyn Heitkamp",null,null,null,null,"Z",null,"Grade 10 - 12","Grade 9 - 12","With the Affordable Care Act signed into law in 2010, the United States seemed closer than ever to achieving universal health care. However, repealing the act has been a key goal for the Trump administration and the Republican-controlled Congress, with the main arguments against it including the higher premiums for middle-class Americans and the abuse of government power through its control of the insurance industry. This volume helps define universal health care, explains the arguments for and against it, and discusses attempts to implement it on an international scale.","English",47.4,37.92,"362.10973--dc23","176 pp.","https://greenhavenpublishing.com/9781534503168",null,{"$f":"Table1[[#This Row],['# of Books]]*Table1[[#This Row],[QTY]]","v":0},{"$f":"Table1[[#This Row],[QTY]]*Table1[[#This Row],[School & Library Price]]","v":0}]
[null,null,15,null,null,"Current Issues","Current Controversies","Universal Health Care","978-1-5345-0317-5",{"$f":"HYPERLINK(Table1[[#This Row],[eCommerce Hyperlink]],\"Book Weblink\")","v":"Book Weblink"},null,"Greenhaven Publishing","Paperback Book",1,"2019","August 2018","Paperback","6.000 X 9.000","Edited by","Kristina Lyn Heitkamp",null,null,null,null,"Z",null,"Grade 10 - 12","Grade 9 - 12","With the Affordable Care Act signed into law in 2010, the United States seemed closer than ever to achieving universal health care. However, repealing the act has been a key goal for the Trump administration and the Republican-controlled Congress, with the main arguments against it including the higher premiums for middle-class Americans and the abuse of government power through its control of the insurance industry. This volume helps define universal health care, explains the arguments for and against it, and discusses attempts to implement it on an international scale.","English",33,26.4,"362.10973--dc23","176 pp.","https://greenhavenpublishing.com/9781534503175",null,{"$f":"Table1[[#This Row],['# of Books]]*Table1[[#This Row],[QTY]]","v":0},{"$f":"Table1[[#This Row],[QTY]]*Table1[[#This Row],[School & Library Price]]","v":0}]
[null,null,15,null,null,"Current Issues","Current Controversies","Violence Against Women","978-0-7377-7426-9",{"$f":"HYPERLINK(Table1[[#This Row],[eCommerce Hyperlink]],\"Book Weblink\")","v":"Book Weblink"},null,"Greenhaven Publishing","Library Bound Book",1,"2016","January 2016","Library","6.000 X 9.000","Edited by","Noël Merino",null,null,null,null,"Z",null,"Grade 10 - 12","Grade 9 - 12","Editor N. Merino has selected a diverse array of primary source writings to provide your readers with a comprehensive look at violence against women. Written by respected experts in the field, these essays present important opinions on issues such as sexism, domestic abuse, and femicide. Different viewpoints are organized into a question-and-response format in each chapter, allowing readers to easily summarize them. Contains extensive book and periodical bibliographies.","English",47.4,37.92,"362.88/​082/​0973","192 pp.","https://greenhavenpublishing.com/9780737774269",null,{"$f":"Table1[[#This Row],['# of Books]]*Table1[[#This Row],[QTY]]","v":0},{"$f":"Table1[[#This Row],[QTY]]*Table1[[#This Row],[School & Library Price]]","v":0}]
[null,null,15,null,null,"Current Issues","Current Controversies","Violence Against Women","978-0-7377-7427-6",{"$f":"HYPERLINK(Table1[[#This Row],[eCommerce Hyperlink]],\"Book Weblink\")","v":"Book Weblink"},null,"Greenhaven Publishing","Paperback Book",1,"2016","January 2016","Paperback","6.000 X 9.000","Edited by","Noël Merino",null,null,null,null,"Z",null,"Grade 10 - 12","Grade 9 - 12","Editor N. Merino has selected a diverse array of primary source writings to provide your readers with a comprehensive look at violence against women. Written by respected experts in the field, these essays present important opinions on issues such as sexism, domestic abuse, and femicide. Different viewpoints are organized into a question-and-response format in each chapter, allowing readers to easily summarize them. Contains extensive book and periodical bibliographies.","English",33,26.4,"362.88/​082/​0973","192 pp.","https://greenhavenpublishing.com/9780737774276",null,{"$f":"Table1[[#This Row],['# of Books]]*Table1[[#This Row],[QTY]]","v":0},{"$f":"Table1[[#This Row],[QTY]]*Table1[[#This Row],[School & Library Price]]","v":0}]
[null,13,15,null,null,"Current Issues","Current Controversies","Whistleblowers","978-1-5345-0530-8",{"$f":"HYPERLINK(Table1[[#This Row],[eCommerce Hyperlink]],\"Book Weblink\")","v":"Book Weblink"},null,"Greenhaven Publishing","Library Bound Book",1,"2020","August 2019","Library","6.000 X 9.000","Edited by","Anna E. Lindner",null,null,null,null,"Z",null,"Grade 10 - 12","Grade 9 - 12","Highly publicized cases involving whistleblowers including Chelsea Manning, Edward Snowden, and WikiLeaks have brought whistleblowing to the public's attention in recent years. It has gained further attention in the \"Me Too\" era, as whistleblowers have exposed numerous cases of misconduct among powerful men in the entertainment industry and beyond. Whether whistleblowing is an inherently positive practice and how whistleblowers should be protected and compensated for their deeds are widely debated. Through diverse perspectives from authoritative voices, readers will gain an understanding of the practice of whistleblowing, the laws related to it, and its place in democratic society.","English",47.4,37.92,"342/.068--dc23","200 pp.","https://greenhavenpublishing.com/9781534505308",null,{"$f":"Table1[[#This Row],['# of Books]]*Table1[[#This Row],[QTY]]","v":0},{"$f":"Table1[[#This Row],[QTY]]*Table1[[#This Row],[School & Library Price]]","v":0}]
[null,13,15,null,null,"Current Issues","Current Controversies","Whistleblowers","978-1-5345-0532-2",{"$f":"HYPERLINK(Table1[[#This Row],[eCommerce Hyperlink]],\"Book Weblink\")","v":"Book Weblink"},null,"Greenhaven Publishing","eBook",1,"2020","August 2019",null,null,"Edited by","Anna E. Lindner",null,null,null,null,"Z",null,"Grade 10 - 12","Grade 9 - 12","Highly publicized cases involving whistleblowers including Chelsea Manning, Edward Snowden, and WikiLeaks have brought whistleblowing to the public's attention in recent years. It has gained further attention in the \"Me Too\" era, as whistleblowers have exposed numerous cases of misconduct among powerful men in the entertainment industry and beyond. Whether whistleblowing is an inherently positive practice and how whistleblowers should be protected and compensated for their deeds are widely debated. Through diverse perspectives from authoritative voices, readers will gain an understanding of the practice of whistleblowing, the laws related to it, and its place in democratic society.","English",47.4,37.92,"342/.068--dc23","200 pp.","https://greenhavenpublishing.com/9781534505322",null,{"$f":"Table1[[#This Row],['# of Books]]*Table1[[#This Row],[QTY]]","v":0},{"$f":"Table1[[#This Row],[QTY]]*Table1[[#This Row],[School & Library Price]]","v":0}]
[null,13,15,null,null,"Current Issues","Current Controversies","Whistleblowers","978-1-5345-0531-5",{"$f":"HYPERLINK(Table1[[#This Row],[eCommerce Hyperlink]],\"Book Weblink\")","v":"Book Weblink"},null,"Greenhaven Publishing","Paperback Book",1,"2020","August 2019","Paperback","6.000 X 9.000","Edited by","Anna E. Lindner",null,null,null,null,"Z",null,"Grade 10 - 12","Grade 9 - 12","Highly publicized cases involving whistleblowers including Chelsea Manning, Edward Snowden, and WikiLeaks have brought whistleblowing to the public's attention in recent years. It has gained further attention in the \"Me Too\" era, as whistleblowers have exposed numerous cases of misconduct among powerful men in the entertainment industry and beyond. Whether whistleblowing is an inherently positive practice and how whistleblowers should be protected and compensated for their deeds are widely debated. Through diverse perspectives from authoritative voices, readers will gain an understanding of the practice of whistleblowing, the laws related to it, and its place in democratic society.","English",33,26.4,"342/.068--dc23","200 pp.","https://greenhavenpublishing.com/9781534505315",null,{"$f":"Table1[[#This Row],['# of Books]]*Table1[[#This Row],[QTY]]","v":0},{"$f":"Table1[[#This Row],[QTY]]*Table1[[#This Row],[School & Library Price]]","v":0}]
[null,null,16,null,null,"Current Issues","Global Viewpoints","Global Viewpoints (Spring 2020)","978-1-5345-0672-5",{"$f":"HYPERLINK(Table1[[#This Row],[eCommerce Hyperlink]],\"Book Weblink\")","v":"Book Weblink"},null,"Greenhaven Publishing","Library Set",6,"2020","January 2020","Library","6.000 X 9.000",null,null,null,null,null,null,null,null,"Grade 10 - 12","Grade 9 - 12","As technology makes the world more accessible, students need exposure to social, political, environmental, and health issues of global significance. Each anthology delivers contemporary views on the featured issue with much of the material reflecting stances of countries other than the United States. Primary sources, including speeches and government documents, join essays from international magazines and news sources for a truly panoramic view. Features include: Viewpoints selected from publications and sources around the world offer students a global perspective on pressing issues. Critical-thinking questions guide students in continued consideration and analysis of the topics. Thematic chapters simplify and summarize key aspects of topics into comprehensible information.","English",283.2,226.56,null,"176–200 pp.","https://greenhavenpublishing.com/9781534506725",null,{"$f":"Table1[[#This Row],['# of Books]]*Table1[[#This Row],[QTY]]","v":0},{"$f":"Table1[[#This Row],[QTY]]*Table1[[#This Row],[School & Library Price]]","v":0}]
[null,null,16,null,null,"Current Issues","Global Viewpoints","Global Viewpoints (Spring 2020)","978-1-5345-0677-0",{"$f":"HYPERLINK(Table1[[#This Row],[eCommerce Hyperlink]],\"Book Weblink\")","v":"Book Weblink"},null,"Greenhaven Publishing","Single Copy Set",6,"2020","January 2020","Paperback","6.000 X 9.000",null,null,null,null,null,null,null,null,"Grade 10 - 12","Grade 9 - 12","As technology makes the world more accessible, students need exposure to social, political, environmental, and health issues of global significance. Each anthology delivers contemporary views on the featured issue with much of the material reflecting stances of countries other than the United States. Primary sources, including speeches and government documents, join essays from international magazines and news sources for a truly panoramic view. Features include: Viewpoints selected from publications and sources around the world offer students a global perspective on pressing issues. Critical-thinking questions guide students in continued consideration and analysis of the topics. Thematic chapters simplify and summarize key aspects of topics into comprehensible information.","English",196.2,157.19999999999999,null,"176–200 pp.","https://greenhavenpublishing.com/9781534506770",null,{"$f":"Table1[[#This Row],['# of Books]]*Table1[[#This Row],[QTY]]","v":0},{"$f":"Table1[[#This Row],[QTY]]*Table1[[#This Row],[School & Library Price]]","v":0}]
[null,null,16,null,null,"Current Issues","Global Viewpoints","Biodiversity and Conservation","978-1-5345-0641-1",{"$f":"HYPERLINK(Table1[[#This Row],[eCommerce Hyperlink]],\"Book Weblink\")","v":"Book Weblink"},null,"Greenhaven Publishing","Library Bound Book",1,"2020","January 2020","Library","6.000 X 9.000","Author","Lisa Idzikowski",null,null,null,null,"Z",null,"Grade 10 - 12","Grade 9 - 12","Biodiversity, the variety of life on Earth, is vital to the health of the planet. But overdevelopment and deforestation have threatened biodiversity, as have pollution, overfishing, and hunting and poaching. Conservation efforts must be intensified in order to avoid collapse of our valuable ecosystems. The viewpoints in this volume address the importance of biodiversity and what has contributed to its loss, examples of crises in different parts of the world, and what can be done to ensure the biodiversity of the planet is preserved.","English",47.2,37.76,"333.95/16--dc23","176 pp.","https://greenhavenpublishing.com/9781534506411",null,{"$f":"Table1[[#This Row],['# of Books]]*Table1[[#This Row],[QTY]]","v":0},{"$f":"Table1[[#This Row],[QTY]]*Table1[[#This Row],[School & Library Price]]","v":0}]
[null,null,16,null,null,"Current Issues","Global Viewpoints","Biodiversity and Conservation","978-1-5345-0642-8",{"$f":"HYPERLINK(Table1[[#This Row],[eCommerce Hyperlink]],\"Book Weblink\")","v":"Book Weblink"},null,"Greenhaven Publishing","eBook",1,"2020","January 2020",null,null,"Author","Lisa Idzikowski",null,null,null,null,"Z",null,"Grade 10 - 12","Grade 9 - 12","Biodiversity, the variety of life on Earth, is vital to the health of the planet. But overdevelopment and deforestation have threatened biodiversity, as have pollution, overfishing, and hunting and poaching. Conservation efforts must be intensified in order to avoid collapse of our valuable ecosystems. The viewpoints in this volume address the importance of biodiversity and what has contributed to its loss, examples of crises in different parts of the world, and what can be done to ensure the biodiversity of the planet is preserved.","English",47.2,37.76,"333.95/16--dc23","176 pp.","https://greenhavenpublishing.com/9781534506428",null,{"$f":"Table1[[#This Row],['# of Books]]*Table1[[#This Row],[QTY]]","v":0},{"$f":"Table1[[#This Row],[QTY]]*Table1[[#This Row],[School & Library Price]]","v":0}]
[null,null,16,null,null,"Current Issues","Global Viewpoints","Biodiversity and Conservation","978-1-5345-0640-4",{"$f":"HYPERLINK(Table1[[#This Row],[eCommerce Hyperlink]],\"Book Weblink\")","v":"Book Weblink"},null,"Greenhaven Publishing","Paperback Book",1,"2020","January 2020","Paperback","6.000 X 9.000","Author","Lisa Idzikowski",null,null,null,null,"Z",null,"Grade 10 - 12","Grade 9 - 12","Biodiversity, the variety of life on Earth, is vital to the health of the planet. But overdevelopment and deforestation have threatened biodiversity, as have pollution, overfishing, and hunting and poaching. Conservation efforts must be intensified in order to avoid collapse of our valuable ecosystems. The viewpoints in this volume address the importance of biodiversity and what has contributed to its loss, examples of crises in different parts of the world, and what can be done to ensure the biodiversity of the planet is preserved.","English",32.700000000000003,26.2,"333.95/16--dc23","176 pp.","https://greenhavenpublishing.com/9781534506404",null,{"$f":"Table1[[#This Row],['# of Books]]*Table1[[#This Row],[QTY]]","v":0},{"$f":"Table1[[#This Row],[QTY]]*Table1[[#This Row],[School & Library Price]]","v":0}]
[null,null,16,null,null,"Current Issues","Global Viewpoints","Global Health","978-1-5345-0647-3",{"$f":"HYPERLINK(Table1[[#This Row],[eCommerce Hyperlink]],\"Book Weblink\")","v":"Book Weblink"},null,"Greenhaven Publishing","Library Bound Book",1,"2020","January 2020","Library","6.000 X 9.000","Edited by","Kathryn Roberts",null,null,null,null,"Z",null,"Grade 10 - 12","Grade 9 - 12","The impact of globalization on world health has been extremely positive. However, the increased connectivity enabled by globalization also makes the health and well being of citizens around the world more important than ever. Global pandemics, natural disasters, air pollution, medical care access, healthy food chains, immunization education and availability, and economic disparity all factor into creating a healthy population. Why is global health so important, and what stands in the way of achieving it? Through viewpoints written by experts in the field, this volume highlights important issues in global health around the world.","English",47.2,37.76,"362.1--dc23","200 pp.","https://greenhavenpublishing.com/9781534506473",null,{"$f":"Table1[[#This Row],['# of Books]]*Table1[[#This Row],[QTY]]","v":0},{"$f":"Table1[[#This Row],[QTY]]*Table1[[#This Row],[School & Library Price]]","v":0}]
[null,null,16,null,null,"Current Issues","Global Viewpoints","Global Health","978-1-5345-0648-0",{"$f":"HYPERLINK(Table1[[#This Row],[eCommerce Hyperlink]],\"Book Weblink\")","v":"Book Weblink"},null,"Greenhaven Publishing","eBook",1,"2020","January 2020",null,null,"Edited by","Kathryn Roberts",null,null,null,null,"Z",null,"Grade 10 - 12","Grade 9 - 12","The impact of globalization on world health has been extremely positive. However, the increased connectivity enabled by globalization also makes the health and well being of citizens around the world more important than ever. Global pandemics, natural disasters, air pollution, medical care access, healthy food chains, immunization education and availability, and economic disparity all factor into creating a healthy population. Why is global health so important, and what stands in the way of achieving it? Through viewpoints written by experts in the field, this volume highlights important issues in global health around the world.","English",47.2,37.76,"362.1--dc23","200 pp.","https://greenhavenpublishing.com/9781534506480",null,{"$f":"Table1[[#This Row],['# of Books]]*Table1[[#This Row],[QTY]]","v":0},{"$f":"Table1[[#This Row],[QTY]]*Table1[[#This Row],[School & Library Price]]","v":0}]
[null,null,16,null,null,"Current Issues","Global Viewpoints","Global Health","978-1-5345-0646-6",{"$f":"HYPERLINK(Table1[[#This Row],[eCommerce Hyperlink]],\"Book Weblink\")","v":"Book Weblink"},null,"Greenhaven Publishing","Paperback Book",1,"2020","January 2020","Paperback","6.000 X 9.000","Edited by","Kathryn Roberts",null,null,null,null,"Z",null,"Grade 10 - 12","Grade 9 - 12","The impact of globalization on world health has been extremely positive. However, the increased connectivity enabled by globalization also makes the health and well being of citizens around the world more important than ever. Global pandemics, natural disasters, air pollution, medical care access, healthy food chains, immunization education and availability, and economic disparity all factor into creating a healthy population. Why is global health so important, and what stands in the way of achieving it? Through viewpoints written by experts in the field, this volume highlights important issues in global health around the world.","English",32.700000000000003,26.2,"362.1--dc23","200 pp.","https://greenhavenpublishing.com/9781534506466",null,{"$f":"Table1[[#This Row],['# of Books]]*Table1[[#This Row],[QTY]]","v":0},{"$f":"Table1[[#This Row],[QTY]]*Table1[[#This Row],[School & Library Price]]","v":0}]
[null,null,16,null,null,"Current Issues","Global Viewpoints","Human Trafficking","978-1-5345-0650-3",{"$f":"HYPERLINK(Table1[[#This Row],[eCommerce Hyperlink]],\"Book Weblink\")","v":"Book Weblink"},null,"Greenhaven Publishing","Library Bound Book",1,"2020","January 2020","Library","6.000 X 9.000","Author","Lita Sorensen",null,null,null,null,"Z",null,"Grade 10 - 12","Grade 9 - 12","According to UNICEF, human trafficking generates a staggering 32 billion dollars in profits each year. Human trafficking takes place all around the world, affecting nearly every country, rich and poor. Women, girls, and migrants are extremely vulnerable to traffickers, who coerce them into sexual exploitation and forced labor. How can the international community allow such terrible criminal networks to flourish? This informative volume offers a diverse array of case studies, first-person accounts, and analyses from experts in the field to provide a full picture of what has been called a pandemic of the twenty-first century.","English",47.2,37.76,"364.15/51--dc23﻿","176 pp.","https://greenhavenpublishing.com/9781534506503",null,{"$f":"Table1[[#This Row],['# of Books]]*Table1[[#This Row],[QTY]]","v":0},{"$f":"Table1[[#This Row],[QTY]]*Table1[[#This Row],[School & Library Price]]","v":0}]
[null,null,16,null,null,"Current Issues","Global Viewpoints","Human Trafficking","978-1-5345-0651-0",{"$f":"HYPERLINK(Table1[[#This Row],[eCommerce Hyperlink]],\"Book Weblink\")","v":"Book Weblink"},null,"Greenhaven Publishing","eBook",1,"2020","January 2020",null,null,"Author","Lita Sorensen",null,null,null,null,"Z",null,"Grade 10 - 12","Grade 9 - 12","According to UNICEF, human trafficking generates a staggering 32 billion dollars in profits each year. Human trafficking takes place all around the world, affecting nearly every country, rich and poor. Women, girls, and migrants are extremely vulnerable to traffickers, who coerce them into sexual exploitation and forced labor. How can the international community allow such terrible criminal networks to flourish? This informative volume offers a diverse array of case studies, first-person accounts, and analyses from experts in the field to provide a full picture of what has been called a pandemic of the twenty-first century.","English",47.2,37.76,"364.15/51--dc23﻿","176 pp.","https://greenhavenpublishing.com/9781534506510",null,{"$f":"Table1[[#This Row],['# of Books]]*Table1[[#This Row],[QTY]]","v":0},{"$f":"Table1[[#This Row],[QTY]]*Table1[[#This Row],[School & Library Price]]","v":0}]
[null,null,16,null,null,"Current Issues","Global Viewpoints","Human Trafficking","978-1-5345-0649-7",{"$f":"HYPERLINK(Table1[[#This Row],[eCommerce Hyperlink]],\"Book Weblink\")","v":"Book Weblink"},null,"Greenhaven Publishing","Paperback Book",1,"2020","January 2020","Paperback","6.000 X 9.000","Author","Lita Sorensen",null,null,null,null,"Z",null,"Grade 10 - 12","Grade 9 - 12","According to UNICEF, human trafficking generates a staggering 32 billion dollars in profits each year. Human trafficking takes place all around the world, affecting nearly every country, rich and poor. Women, girls, and migrants are extremely vulnerable to traffickers, who coerce them into sexual exploitation and forced labor. How can the international community allow such terrible criminal networks to flourish? This informative volume offers a diverse array of case studies, first-person accounts, and analyses from experts in the field to provide a full picture of what has been called a pandemic of the twenty-first century.","English",32.700000000000003,26.2,"364.15/51--dc23﻿","176 pp.","https://greenhavenpublishing.com/9781534506497",null,{"$f":"Table1[[#This Row],['# of Books]]*Table1[[#This Row],[QTY]]","v":0},{"$f":"Table1[[#This Row],[QTY]]*Table1[[#This Row],[School & Library Price]]","v":0}]
[null,null,16,null,null,"Current Issues","Global Viewpoints","Modern Conflict and Diplomacy","978-1-5345-0653-4",{"$f":"HYPERLINK(Table1[[#This Row],[eCommerce Hyperlink]],\"Book Weblink\")","v":"Book Weblink"},null,"Greenhaven Publishing","Library Bound Book",1,"2020","January 2020","Library","6.000 X 9.000","Edited by","Martin Gitlin",null,null,null,null,"Z",null,"Grade 10 - 12","Grade 9 - 12","It goes without saying that world peace is the ultimate goal, but what makes it so hard to achieve? Certain regions of the world have been engaged in conflicts that appear unending, despite the efforts of many to help them find solutions. Conflict will always be present, but what is the best way to deal with it? Is diplomacy always effective, or are there times when military action is the only answer? The viewpoints in this volume highlight various conflicts around the world and analyze the methods taken to resolve them.","English",47.2,37.76,"327.73009/05--dc23","176 pp.","https://greenhavenpublishing.com/9781534506534",null,{"$f":"Table1[[#This Row],['# of Books]]*Table1[[#This Row],[QTY]]","v":0},{"$f":"Table1[[#This Row],[QTY]]*Table1[[#This Row],[School & Library Price]]","v":0}]
[null,null,16,null,null,"Current Issues","Global Viewpoints","Modern Conflict and Diplomacy","978-1-5345-0654-1",{"$f":"HYPERLINK(Table1[[#This Row],[eCommerce Hyperlink]],\"Book Weblink\")","v":"Book Weblink"},null,"Greenhaven Publishing","eBook",1,"2020","January 2020",null,null,"Edited by","Martin Gitlin",null,null,null,null,"Z",null,"Grade 10 - 12","Grade 9 - 12","It goes without saying that world peace is the ultimate goal, but what makes it so hard to achieve? Certain regions of the world have been engaged in conflicts that appear unending, despite the efforts of many to help them find solutions. Conflict will always be present, but what is the best way to deal with it? Is diplomacy always effective, or are there times when military action is the only answer? The viewpoints in this volume highlight various conflicts around the world and analyze the methods taken to resolve them.","English",47.2,37.76,"327.73009/05--dc23","176 pp.","https://greenhavenpublishing.com/9781534506541",null,{"$f":"Table1[[#This Row],['# of Books]]*Table1[[#This Row],[QTY]]","v":0},{"$f":"Table1[[#This Row],[QTY]]*Table1[[#This Row],[School & Library Price]]","v":0}]
[null,null,16,null,null,"Current Issues","Global Viewpoints","Modern Conflict and Diplomacy","978-1-5345-0652-7",{"$f":"HYPERLINK(Table1[[#This Row],[eCommerce Hyperlink]],\"Book Weblink\")","v":"Book Weblink"},null,"Greenhaven Publishing","Paperback Book",1,"2020","January 2020","Paperback","6.000 X 9.000","Edited by","Martin Gitlin",null,null,null,null,"Z",null,"Grade 10 - 12","Grade 9 - 12","It goes without saying that world peace is the ultimate goal, but what makes it so hard to achieve? Certain regions of the world have been engaged in conflicts that appear unending, despite the efforts of many to help them find solutions. Conflict will always be present, but what is the best way to deal with it? Is diplomacy always effective, or are there times when military action is the only answer? The viewpoints in this volume highlight various conflicts around the world and analyze the methods taken to resolve them.","English",32.700000000000003,26.2,"327.73009/05--dc23","176 pp.","https://greenhavenpublishing.com/9781534506527",null,{"$f":"Table1[[#This Row],['# of Books]]*Table1[[#This Row],[QTY]]","v":0},{"$f":"Table1[[#This Row],[QTY]]*Table1[[#This Row],[School & Library Price]]","v":0}]
[null,null,16,null,null,"Current Issues","Global Viewpoints","National Identity","978-1-5345-0656-5",{"$f":"HYPERLINK(Table1[[#This Row],[eCommerce Hyperlink]],\"Book Weblink\")","v":"Book Weblink"},null,"Greenhaven Publishing","Library Bound Book",1,"2020","January 2020","Library","6.000 X 9.000","Edited by","Martin Gitlin",null,null,null,null,"Z",null,"Grade 10 - 12","Grade 9 - 12","How can we maintain a strong national identity without going too far? Having pride in one's country, its history and values, is important, but what happens when that is threatened by new immigrant groups? When a country becomes more diverse, whether it's race, ethnicity, or religious faith, does the nation's identity expand to accommodate those changes or does it become more rigid, setting the stage for an \"us\" and \"them\" conflict? Through diverse perspectives from countries around the world, this volume explores facets of national identity. Readers will analyze its purpose, benefits, dangers, and its future in a changing world.","English",47.2,37.76,"320.54--dc23","176 pp.","https://greenhavenpublishing.com/9781534506565",null,{"$f":"Table1[[#This Row],['# of Books]]*Table1[[#This Row],[QTY]]","v":0},{"$f":"Table1[[#This Row],[QTY]]*Table1[[#This Row],[School & Library Price]]","v":0}]
[null,null,16,null,null,"Current Issues","Global Viewpoints","National Identity","978-1-5345-0657-2",{"$f":"HYPERLINK(Table1[[#This Row],[eCommerce Hyperlink]],\"Book Weblink\")","v":"Book Weblink"},null,"Greenhaven Publishing","eBook",1,"2020","January 2020",null,null,"Edited by","Martin Gitlin",null,null,null,null,"Z",null,"Grade 10 - 12","Grade 9 - 12","How can we maintain a strong national identity without going too far? Having pride in one's country, its history and values, is important, but what happens when that is threatened by new immigrant groups? When a country becomes more diverse, whether it's race, ethnicity, or religious faith, does the nation's identity expand to accommodate those changes or does it become more rigid, setting the stage for an \"us\" and \"them\" conflict? Through diverse perspectives from countries around the world, this volume explores facets of national identity. Readers will analyze its purpose, benefits, dangers, and its future in a changing world.","English",47.2,37.76,"320.54--dc23","176 pp.","https://greenhavenpublishing.com/9781534506572",null,{"$f":"Table1[[#This Row],['# of Books]]*Table1[[#This Row],[QTY]]","v":0},{"$f":"Table1[[#This Row],[QTY]]*Table1[[#This Row],[School & Library Price]]","v":0}]
[null,null,16,null,null,"Current Issues","Global Viewpoints","National Identity","978-1-5345-0655-8",{"$f":"HYPERLINK(Table1[[#This Row],[eCommerce Hyperlink]],\"Book Weblink\")","v":"Book Weblink"},null,"Greenhaven Publishing","Paperback Book",1,"2020","January 2020","Paperback","6.000 X 9.000","Edited by","Martin Gitlin",null,null,null,null,"Z",null,"Grade 10 - 12","Grade 9 - 12","How can we maintain a strong national identity without going too far? Having pride in one's country, its history and values, is important, but what happens when that is threatened by new immigrant groups? When a country becomes more diverse, whether it's race, ethnicity, or religious faith, does the nation's identity expand to accommodate those changes or does it become more rigid, setting the stage for an \"us\" and \"them\" conflict? Through diverse perspectives from countries around the world, this volume explores facets of national identity. Readers will analyze its purpose, benefits, dangers, and its future in a changing world.","English",32.700000000000003,26.2,"320.54--dc23","176 pp.","https://greenhavenpublishing.com/9781534506558",null,{"$f":"Table1[[#This Row],['# of Books]]*Table1[[#This Row],[QTY]]","v":0},{"$f":"Table1[[#This Row],[QTY]]*Table1[[#This Row],[School & Library Price]]","v":0}]
[null,null,16,null,null,"Current Issues","Global Viewpoints","The Dominance of Global Corporations","978-1-5345-0644-2",{"$f":"HYPERLINK(Table1[[#This Row],[eCommerce Hyperlink]],\"Book Weblink\")","v":"Book Weblink"},null,"Greenhaven Publishing","Library Bound Book",1,"2020","January 2020","Library","6.000 X 9.000","Edited by","Avery Elizabeth Hurt",null,null,null,null,"Z",null,"Grade 10 - 12","Grade 9 - 12","Corporations are increasingly dominating the economic and political landscape of our globe. People in even the remotest regions drink Coca Cola, and a McDonald's is located near many of the world's most famous tourist sites. How did this happen in such a relatively short time, and is there any turning back now that deregulation and legislation favor such organizations? Does this dominance threaten democracy? And, given the power of tech companies like Apple, Facebook, and Twitter, what is in store for the future? The perspectives in this volume tackle the powerful rise of corporations and their influence around the world.","English",47.2,37.76,"306.3/4--dc23","176 pp.","https://greenhavenpublishing.com/9781534506442",null,{"$f":"Table1[[#This Row],['# of Books]]*Table1[[#This Row],[QTY]]","v":0},{"$f":"Table1[[#This Row],[QTY]]*Table1[[#This Row],[School & Library Price]]","v":0}]
[null,null,16,null,null,"Current Issues","Global Viewpoints","The Dominance of Global Corporations","978-1-5345-0645-9",{"$f":"HYPERLINK(Table1[[#This Row],[eCommerce Hyperlink]],\"Book Weblink\")","v":"Book Weblink"},null,"Greenhaven Publishing","eBook",1,"2020","January 2020",null,null,"Edited by","Avery Elizabeth Hurt",null,null,null,null,"Z",null,"Grade 10 - 12","Grade 9 - 12","Corporations are increasingly dominating the economic and political landscape of our globe. People in even the remotest regions drink Coca Cola, and a McDonald's is located near many of the world's most famous tourist sites. How did this happen in such a relatively short time, and is there any turning back now that deregulation and legislation favor such organizations? Does this dominance threaten democracy? And, given the power of tech companies like Apple, Facebook, and Twitter, what is in store for the future? The perspectives in this volume tackle the powerful rise of corporations and their influence around the world.","English",47.2,37.76,"306.3/4--dc23","176 pp.","https://greenhavenpublishing.com/9781534506459",null,{"$f":"Table1[[#This Row],['# of Books]]*Table1[[#This Row],[QTY]]","v":0},{"$f":"Table1[[#This Row],[QTY]]*Table1[[#This Row],[School & Library Price]]","v":0}]
[null,null,16,null,null,"Current Issues","Global Viewpoints","The Dominance of Global Corporations","978-1-5345-0643-5",{"$f":"HYPERLINK(Table1[[#This Row],[eCommerce Hyperlink]],\"Book Weblink\")","v":"Book Weblink"},null,"Greenhaven Publishing","Paperback Book",1,"2020","January 2020","Paperback","6.000 X 9.000","Edited by","Avery Elizabeth Hurt",null,null,null,null,"Z",null,"Grade 10 - 12","Grade 9 - 12","Corporations are increasingly dominating the economic and political landscape of our globe. People in even the remotest regions drink Coca Cola, and a McDonald's is located near many of the world's most famous tourist sites. How did this happen in such a relatively short time, and is there any turning back now that deregulation and legislation favor such organizations? Does this dominance threaten democracy? And, given the power of tech companies like Apple, Facebook, and Twitter, what is in store for the future? The perspectives in this volume tackle the powerful rise of corporations and their influence around the world.","English",32.700000000000003,26.2,"306.3/4--dc23","176 pp.","https://greenhavenpublishing.com/9781534506435",null,{"$f":"Table1[[#This Row],['# of Books]]*Table1[[#This Row],[QTY]]","v":0},{"$f":"Table1[[#This Row],[QTY]]*Table1[[#This Row],[School & Library Price]]","v":0}]
[null,null,16,null,null,"Current Issues","Issues that Concern You","Issues that Concern You","978-1-5345-0246-8",{"$f":"HYPERLINK(Table1[[#This Row],[eCommerce Hyperlink]],\"Book Weblink\")","v":"Book Weblink"},null,"Greenhaven Publishing","Library Set",6,"2018","January 2018","Library","7.000 X 9.000",null,null,null,null,null,null,null,null,"Grade 7 - 10","Grade 7 - 12","This series discusses an issue that either is a part of students' lives or is likely affecting someone they know. Presenting multiple sides to current issues, each book distinguishes itself through its dedicated focus on concerns that today's middle and high school students deal with regularly, such as underage drinking and body image.","English",258,206.4,null,"112 pp.","https://greenhavenpublishing.com/9781534502468",null,{"$f":"Table1[[#This Row],['# of Books]]*Table1[[#This Row],[QTY]]","v":0},{"$f":"Table1[[#This Row],[QTY]]*Table1[[#This Row],[School & Library Price]]","v":0}]
[null,null,16,null,null,"Current Issues","Issues that Concern You","Issues that Concern You","978-1-5345-0287-1",{"$f":"HYPERLINK(Table1[[#This Row],[eCommerce Hyperlink]],\"Book Weblink\")","v":"Book Weblink"},null,"Greenhaven Publishing","Single Copy Set",6,"2018","January 2018","Paperback","7.000 X 9.000",null,null,null,null,null,null,null,null,"Grade 7 - 10","Grade 7 - 12","This series discusses an issue that either is part of students' lives or is likely affecting someone they know. Presenting multiple sides to current issues, each book distinguishes itself through its dedicated focus on concerns that today's middle and high school students deal with regularly, such as underage drinking and body image.\n\"These are valuable to the middle school and high school libraries where students need brief yet scholarly information on issues of concern to them.\" AMERICAN REFERENCE BOOKS ANNUAL","English",175.8,140.69999999999999,null,"112 pp.","https://greenhavenpublishing.com/9781534502871",null,{"$f":"Table1[[#This Row],['# of Books]]*Table1[[#This Row],[QTY]]","v":0},{"$f":"Table1[[#This Row],[QTY]]*Table1[[#This Row],[School & Library Price]]","v":0}]
[null,null,16,null,null,"Current Issues","Issues that Concern You","Our Climate Future","978-1-5345-0224-6",{"$f":"HYPERLINK(Table1[[#This Row],[eCommerce Hyperlink]],\"Book Weblink\")","v":"Book Weblink"},null,"Greenhaven Publishing","Library Bound Book",1,"2018","January 2018","Library","7.000 X 9.000","Edited by","Martin Gitlin",null,null,null,null,"Z",null,"Grade 7 - 10","Grade 7 - 12","Climate change is real...depending on who you ask. Scientists and environmentalists have been going head-to-head and toe-to-toe with CEOs and politicians over our global resources, insisting that a large-scale climate crisis is upon us. This collection of diverse perspectives looks at all sides of this fraught debate, discusses the pros and cons of global action to curtail climate change, and offers ideas and solutions for what readers can do about climate change on the home front while the experts keep duking it in political arenas.","English",43,34.4,"304.2/50112--dc23","112 pp.","https://greenhavenpublishing.com/9781534502246",null,{"$f":"Table1[[#This Row],['# of Books]]*Table1[[#This Row],[QTY]]","v":0},{"$f":"Table1[[#This Row],[QTY]]*Table1[[#This Row],[School & Library Price]]","v":0}]
[null,null,16,null,null,"Current Issues","Issues that Concern You","Our Climate Future","978-1-5345-0219-2",{"$f":"HYPERLINK(Table1[[#This Row],[eCommerce Hyperlink]],\"Book Weblink\")","v":"Book Weblink"},null,"Greenhaven Publishing","eBook",1,"2018","January 2018",null,null,"Edited by","Martin Gitlin",null,null,null,null,"Z",null,"Grade 7 - 10","Grade 7 - 12","Climate change is real...depending on who you ask. Scientists and environmentalists have been going head-to-head and toe-to-toe with CEOs and politicians over our global resources, insisting that a large-scale climate crisis is upon us. This collection of diverse perspectives looks at all sides of this fraught debate, discusses the pros and cons of global action to curtail climate change, and offers ideas and solutions for what readers can do about climate change on the home front while the experts keep duking it in political arenas.","English",43,34.4,"304.2/50112--dc23","112 pp.","https://greenhavenpublishing.com/9781534502192",null,{"$f":"Table1[[#This Row],['# of Books]]*Table1[[#This Row],[QTY]]","v":0},{"$f":"Table1[[#This Row],[QTY]]*Table1[[#This Row],[School & Library Price]]","v":0}]
[null,null,16,null,null,"Current Issues","Issues that Concern You","Our Climate Future","978-1-5345-0284-0",{"$f":"HYPERLINK(Table1[[#This Row],[eCommerce Hyperlink]],\"Book Weblink\")","v":"Book Weblink"},null,"Greenhaven Publishing","Paperback Book",1,"2018","January 2018","Paperback","7.000 X 9.000","Edited by","Martin Gitlin",null,null,null,null,"Z",null,"Grade 7 - 10","Grade 7 - 12","Climate change is real...depending on who you ask. Scientists and environmentalists have been going head-to-head and toe-to-toe with CEOs and politicians over our global resources, insisting that a large-scale climate crisis is upon us. This collection of diverse perspectives looks at all sides of this fraught debate, discusses the pros and cons of global action to curtail climate change, and offers ideas and solutions for what readers can do about climate change on the home front while the experts keep duking it in political arenas.","English",29.3,23.45,"304.2/50112--dc23","112 pp.","https://greenhavenpublishing.com/9781534502840",null,{"$f":"Table1[[#This Row],['# of Books]]*Table1[[#This Row],[QTY]]","v":0},{"$f":"Table1[[#This Row],[QTY]]*Table1[[#This Row],[School & Library Price]]","v":0}]
[null,null,16,null,null,"Current Issues","Issues that Concern You","Student Loans and the Cost of College","978-1-5345-0221-5",{"$f":"HYPERLINK(Table1[[#This Row],[eCommerce Hyperlink]],\"Book Weblink\")","v":"Book Weblink"},null,"Greenhaven Publishing","Library Bound Book",1,"2018","January 2018","Library","7.000 X 9.000","Edited by","Paula Johanson",null,null,null,null,"Z",null,"Grade 7 - 10","Grade 7 - 12","Getting into college is one giant hurdle to clear, and paying for it is quite another. This book breaks down the expenses associated with higher education, the various payment options available for students, including student loans, need-based scholarships, and merit-based scholarships, and what other avenues may exist for families to ensure that costs associated with tuition, room, and board stay reasonable. Concerns about \"paying off\" student loans, interest rates, and timelines are also addressed in this informative collection.","English",43,34.4,"371.2/240973--dc23","112 pp.","https://greenhavenpublishing.com/9781534502215",null,{"$f":"Table1[[#This Row],['# of Books]]*Table1[[#This Row],[QTY]]","v":0},{"$f":"Table1[[#This Row],[QTY]]*Table1[[#This Row],[School & Library Price]]","v":0}]
[null,null,16,null,null,"Current Issues","Issues that Concern You","Student Loans and the Cost of College","978-1-5345-0218-5",{"$f":"HYPERLINK(Table1[[#This Row],[eCommerce Hyperlink]],\"Book Weblink\")","v":"Book Weblink"},null,"Greenhaven Publishing","eBook",1,"2018","January 2018",null,null,"Edited by","Paula Johanson",null,null,null,null,"Z",null,"Grade 7 - 10","Grade 7 - 12","Getting into college is one giant hurdle to clear, and paying for it is quite another. This book breaks down the expenses associated with higher education, the various payment options available for students, including student loans, need-based scholarships, and merit-based scholarships, and what other avenues may exist for families to ensure that costs associated with tuition, room, and board stay reasonable. Concerns about \"paying off\" student loans, interest rates, and timelines are also addressed in this informative collection.","English",43,34.4,"371.2/240973--dc23","112 pp.","https://greenhavenpublishing.com/9781534502185",null,{"$f":"Table1[[#This Row],['# of Books]]*Table1[[#This Row],[QTY]]","v":0},{"$f":"Table1[[#This Row],[QTY]]*Table1[[#This Row],[School & Library Price]]","v":0}]
[null,null,16,null,null,"Current Issues","Issues that Concern You","Student Loans and the Cost of College","978-1-5345-0282-6",{"$f":"HYPERLINK(Table1[[#This Row],[eCommerce Hyperlink]],\"Book Weblink\")","v":"Book Weblink"},null,"Greenhaven Publishing","Paperback Book",1,"2018","January 2018","Paperback","7.000 X 9.000","Edited by","Paula Johanson",null,null,null,null,"Z",null,"Grade 7 - 10","Grade 7 - 12","Getting into college is one giant hurdle to clear, and paying for it is quite another. This book breaks down the expenses associated with higher education, the various payment options available for students, including student loans, need-based scholarships, and merit-based scholarships, and what other avenues may exist for families to ensure that costs associated with tuition, room, and board stay reasonable. Concerns about \"paying off\" student loans, interest rates, and timelines are also addressed in this informative collection.","English",29.3,23.45,"371.2/240973--dc23","112 pp.","https://greenhavenpublishing.com/9781534502826",null,{"$f":"Table1[[#This Row],['# of Books]]*Table1[[#This Row],[QTY]]","v":0},{"$f":"Table1[[#This Row],[QTY]]*Table1[[#This Row],[School & Library Price]]","v":0}]
[null,null,16,null,null,"Current Issues","Issues that Concern You","Student Rights","978-1-5345-0225-3",{"$f":"HYPERLINK(Table1[[#This Row],[eCommerce Hyperlink]],\"Book Weblink\")","v":"Book Weblink"},null,"Greenhaven Publishing","Library Bound Book",1,"2018","January 2018","Library","7.000 X 9.000","Edited by","Avery Elizabeth Hurt",null,null,null,null,"Z",null,"Grade 7 - 10","Grade 7 - 12","Does freedom of assembly apply to a high-school junior organizing a protest against the school administration? Does disrespecting a teacher fall under freedom of speech? The diverse perspectives in this collection explore the concept of student rights and tackle what civil and constitutional rights are covered when you're in an educational environment. Readers can expect discussions of relevant court cases and instances of student-led activism, as well as a focus on protected sources for student reporters.","English",43,34.4,"344.73/0793--dc23","112 pp.","https://greenhavenpublishing.com/9781534502253",null,{"$f":"Table1[[#This Row],['# of Books]]*Table1[[#This Row],[QTY]]","v":0},{"$f":"Table1[[#This Row],[QTY]]*Table1[[#This Row],[School & Library Price]]","v":0}]
[null,null,16,null,null,"Current Issues","Issues that Concern You","Student Rights","978-1-5345-0220-8",{"$f":"HYPERLINK(Table1[[#This Row],[eCommerce Hyperlink]],\"Book Weblink\")","v":"Book Weblink"},null,"Greenhaven Publishing","eBook",1,"2018","January 2018",null,null,"Edited by","Avery Elizabeth Hurt",null,null,null,null,"Z",null,"Grade 7 - 10","Grade 7 - 12","Does freedom of assembly apply to a high-school junior organizing a protest against the school administration? Does disrespecting a teacher fall under freedom of speech? The diverse perspectives in this collection explore the concept of student rights and tackle what civil and constitutional rights are covered when you're in an educational environment. Readers can expect discussions of relevant court cases and instances of student-led activism, as well as a focus on protected sources for student reporters.","English",43,34.4,"344.73/0793--dc23","112 pp.","https://greenhavenpublishing.com/9781534502208",null,{"$f":"Table1[[#This Row],['# of Books]]*Table1[[#This Row],[QTY]]","v":0},{"$f":"Table1[[#This Row],[QTY]]*Table1[[#This Row],[School & Library Price]]","v":0}]
[null,null,16,null,null,"Current Issues","Issues that Concern You","Student Rights","978-1-5345-0280-2",{"$f":"HYPERLINK(Table1[[#This Row],[eCommerce Hyperlink]],\"Book Weblink\")","v":"Book Weblink"},null,"Greenhaven Publishing","Paperback Book",1,"2018","January 2018","Paperback","7.000 X 9.000","Edited by","Avery Elizabeth Hurt",null,null,null,null,"Z",null,"Grade 7 - 10","Grade 7 - 12","Does freedom of assembly apply to a high-school junior organizing a protest against the school administration? Does disrespecting a teacher fall under freedom of speech? The diverse perspectives in this collection explore the concept of student rights and tackle what civil and constitutional rights are covered when you're in an educational environment. Readers can expect discussions of relevant court cases and instances of student-led activism, as well as a focus on protected sources for student reporters.","English",29.3,23.45,"344.73/0793--dc23","112 pp.","https://greenhavenpublishing.com/9781534502802",null,{"$f":"Table1[[#This Row],['# of Books]]*Table1[[#This Row],[QTY]]","v":0},{"$f":"Table1[[#This Row],[QTY]]*Table1[[#This Row],[School & Library Price]]","v":0}]
[null,null,16,null,null,"Current Issues","Issues that Concern You","Teen Homelessness","978-1-5345-0226-0",{"$f":"HYPERLINK(Table1[[#This Row],[eCommerce Hyperlink]],\"Book Weblink\")","v":"Book Weblink"},null,"Greenhaven Publishing","Library Bound Book",1,"2018","January 2018","Library","7.000 X 9.000","Edited by","H. Craig Erskine, III",null,null,null,null,"Z",null,"Grade 7 - 10","Grade 7 - 12","More than two million kids in the U.S. face homelessness each year, with 57 percent going without food for at least one day a month. Teens represent a shocking 7 percent of the country's total homeless population. Whether they're crashing on someone's couch, living in cars, staying in shelters, or literally sleeping on the street, studies show that the plight of homeless youths is only growing worse. The viewpoints in this book tackle the economic and societal factors that contribute to teen homelessness, the stark situations faced by young transients today, and what can be done to curb this alarming trend.","English",43,34.4,"362.7/75692083--dc23","112 pp.","https://greenhavenpublishing.com/9781534502260",null,{"$f":"Table1[[#This Row],['# of Books]]*Table1[[#This Row],[QTY]]","v":0},{"$f":"Table1[[#This Row],[QTY]]*Table1[[#This Row],[School & Library Price]]","v":0}]
[null,null,16,null,null,"Current Issues","Issues that Concern You","Teen Homelessness","978-1-5345-0216-1",{"$f":"HYPERLINK(Table1[[#This Row],[eCommerce Hyperlink]],\"Book Weblink\")","v":"Book Weblink"},null,"Greenhaven Publishing","eBook",1,"2018","January 2018",null,null,"Edited by","H. Craig Erskine, III",null,null,null,null,"Z",null,"Grade 7 - 10","Grade 7 - 12","More than two million kids in the U.S. face homelessness each year, with 57 percent going without food for at least one day a month. Teens represent a shocking 7 percent of the country's total homeless population. Whether they're crashing on someone's couch, living in cars, staying in shelters, or literally sleeping on the street, studies show that the plight of homeless youths is only growing worse. The viewpoints in this book tackle the economic and societal factors that contribute to teen homelessness, the stark situations faced by young transients today, and what can be done to curb this alarming trend.","English",43,34.4,"362.7/75692083--dc23","112 pp.","https://greenhavenpublishing.com/9781534502161",null,{"$f":"Table1[[#This Row],['# of Books]]*Table1[[#This Row],[QTY]]","v":0},{"$f":"Table1[[#This Row],[QTY]]*Table1[[#This Row],[School & Library Price]]","v":0}]
[null,null,16,null,null,"Current Issues","Issues that Concern You","Teen Homelessness","978-1-5345-0279-6",{"$f":"HYPERLINK(Table1[[#This Row],[eCommerce Hyperlink]],\"Book Weblink\")","v":"Book Weblink"},null,"Greenhaven Publishing","Paperback Book",1,"2018","January 2018","Paperback","7.000 X 9.000","Edited by","H. Craig Erskine, III",null,null,null,null,"Z",null,"Grade 7 - 10","Grade 7 - 12","More than two million kids in the U.S. face homelessness each year, with 57 percent going without food for at least one day a month. Teens represent a shocking 7 percent of the country's total homeless population. Whether they're crashing on someone's couch, living in cars, staying in shelters, or literally sleeping on the street, studies show that the plight of homeless youths is only growing worse. The viewpoints in this book tackle the economic and societal factors that contribute to teen homelessness, the stark situations faced by young transients today, and what can be done to curb this alarming trend.","English",29.3,23.45,"362.7/75692083--dc23","112 pp.","https://greenhavenpublishing.com/9781534502796",null,{"$f":"Table1[[#This Row],['# of Books]]*Table1[[#This Row],[QTY]]","v":0},{"$f":"Table1[[#This Row],[QTY]]*Table1[[#This Row],[School & Library Price]]","v":0}]
[null,null,16,null,null,"Current Issues","Issues that Concern You","The College Admissions Process","978-1-5345-0223-9",{"$f":"HYPERLINK(Table1[[#This Row],[eCommerce Hyperlink]],\"Book Weblink\")","v":"Book Weblink"},null,"Greenhaven Publishing","Library Bound Book",1,"2018","January 2018","Library","7.000 X 9.000","Edited by","Marcia Amidon Lusted",null,null,null,null,"Z",null,"Grade 7 - 10","Grade 7 - 12","Applications, personal essays, campus visits, and those dreaded SATs and ACTs, the process of applying to, and getting into, college is almost as complicated as higher education itself. In this anthology, readers will get an in-depth look at the admission process, including viewpoints about the fairness and relevance of standardized test scores, the importance of volunteer and extracurricular activities, and how to market oneself as an ideal candidate for admission. Choosing a college is one of life's most important decisions, and readers of this resource will be presented with valuable information.","English",43,34.4,"378.1/61--dc23","112 pp.","https://greenhavenpublishing.com/9781534502239",null,{"$f":"Table1[[#This Row],['# of Books]]*Table1[[#This Row],[QTY]]","v":0},{"$f":"Table1[[#This Row],[QTY]]*Table1[[#This Row],[School & Library Price]]","v":0}]
[null,null,16,null,null,"Current Issues","Issues that Concern You","The College Admissions Process","978-1-5345-0215-4",{"$f":"HYPERLINK(Table1[[#This Row],[eCommerce Hyperlink]],\"Book Weblink\")","v":"Book Weblink"},null,"Greenhaven Publishing","eBook",1,"2018","January 2018",null,null,"Edited by","Marcia Amidon Lusted",null,null,null,null,"Z",null,"Grade 7 - 10","Grade 7 - 12","Applications, personal essays, campus visits, and those dreaded SATs and ACTs, the process of applying to, and getting into, college is almost as complicated as higher education itself. In this anthology, readers will get an in-depth look at the admission process, including viewpoints about the fairness and relevance of standardized test scores, the importance of volunteer and extracurricular activities, and how to market oneself as an ideal candidate for admission. Choosing a college is one of life's most important decisions, and readers of this resource will be presented with valuable information.","English",43,34.4,"378.1/61--dc23","112 pp.","https://greenhavenpublishing.com/9781534502154",null,{"$f":"Table1[[#This Row],['# of Books]]*Table1[[#This Row],[QTY]]","v":0},{"$f":"Table1[[#This Row],[QTY]]*Table1[[#This Row],[School & Library Price]]","v":0}]
[null,null,16,null,null,"Current Issues","Issues that Concern You","The College Admissions Process","978-1-5345-0281-9",{"$f":"HYPERLINK(Table1[[#This Row],[eCommerce Hyperlink]],\"Book Weblink\")","v":"Book Weblink"},null,"Greenhaven Publishing","Paperback Book",1,"2018","January 2018","Paperback","7.000 X 9.000","Edited by","Marcia Amidon Lusted",null,null,null,null,"Z",null,"Grade 7 - 10","Grade 7 - 12","Applications, personal essays, campus visits, and those dreaded SATs and ACTs, the process of applying to, and getting into, college is almost as complicated as higher education itself. In this anthology, readers will get an in-depth look at the admission process, including viewpoints about the fairness and relevance of standardized test scores, the importance of volunteer and extracurricular activities, and how to market oneself as an ideal candidate for admission. Choosing a college is one of life's most important decisions, and readers of this resource will be presented with valuable information.","English",29.3,23.45,"378.1/61--dc23","112 pp.","https://greenhavenpublishing.com/9781534502819",null,{"$f":"Table1[[#This Row],['# of Books]]*Table1[[#This Row],[QTY]]","v":0},{"$f":"Table1[[#This Row],[QTY]]*Table1[[#This Row],[School & Library Price]]","v":0}]
[null,null,16,null,null,"Current Issues","Issues that Concern You","Transgender Rights","978-1-5345-0222-2",{"$f":"HYPERLINK(Table1[[#This Row],[eCommerce Hyperlink]],\"Book Weblink\")","v":"Book Weblink"},null,"Greenhaven Publishing","Library Bound Book",1,"2018","January 2018","Library","7.000 X 9.000","Edited by","Martin Gitlin",null,null,null,null,"Z",null,"Grade 7 - 10","Grade 7 - 12","Transgender rights are not just limited to bathroom bills, though the controversial issue has dominated news headlines for the past few years. What basic human rights are afforded to transgender and nonbinary U.S. citizens is a mystery to many. The viewpoints in this resource lay out the issues in a concise and informative way, offering measured arguments as to why trans Americans are a protected class, as well as arguments for why they don't need special treatment. Workplace discrimination, marriage equality, and adoption, as they relate to transgender identities, are also touched upon.","English",43,34.4,"323.3/270973--dc23","112 pp.","https://greenhavenpublishing.com/9781534502222",null,{"$f":"Table1[[#This Row],['# of Books]]*Table1[[#This Row],[QTY]]","v":0},{"$f":"Table1[[#This Row],[QTY]]*Table1[[#This Row],[School & Library Price]]","v":0}]
[null,null,16,null,null,"Current Issues","Issues that Concern You","Transgender Rights","978-1-5345-0217-8",{"$f":"HYPERLINK(Table1[[#This Row],[eCommerce Hyperlink]],\"Book Weblink\")","v":"Book Weblink"},null,"Greenhaven Publishing","eBook",1,"2018","January 2018",null,null,"Edited by","Martin Gitlin",null,null,null,null,"Z",null,"Grade 7 - 10","Grade 7 - 12","Transgender rights are not just limited to bathroom bills, though the controversial issue has dominated news headlines for the past few years. What basic human rights are afforded to transgender and nonbinary U.S. citizens is a mystery to many. The viewpoints in this resource lay out the issues in a concise and informative way, offering measured arguments as to why trans Americans are a protected class, as well as arguments for why they don't need special treatment. Workplace discrimination, marriage equality, and adoption, as they relate to transgender identities, are also touched upon.","English",43,34.4,"323.3/270973--dc23","112 pp.","https://greenhavenpublishing.com/9781534502178",null,{"$f":"Table1[[#This Row],['# of Books]]*Table1[[#This Row],[QTY]]","v":0},{"$f":"Table1[[#This Row],[QTY]]*Table1[[#This Row],[School & Library Price]]","v":0}]
[null,null,16,null,null,"Current Issues","Issues that Concern You","Transgender Rights","978-1-5345-0283-3",{"$f":"HYPERLINK(Table1[[#This Row],[eCommerce Hyperlink]],\"Book Weblink\")","v":"Book Weblink"},null,"Greenhaven Publishing","Paperback Book",1,"2018","January 2018","Paperback","7.000 X 9.000","Edited by","Martin Gitlin",null,null,null,null,"Z",null,"Grade 7 - 10","Grade 7 - 12","Transgender rights are not just limited to bathroom bills, though the controversial issue has dominated news headlines for the past few years. What basic human rights are afforded to transgender and nonbinary U.S. citizens is a mystery to many. The viewpoints in this resource lay out the issues in a concise and informative way, offering measured arguments as to why trans Americans are a protected class, as well as arguments for why they don't need special treatment. Workplace discrimination, marriage equality, and adoption, as they relate to transgender identities, are also touched upon.","English",29.3,23.45,"323.3/270973--dc23","112 pp.","https://greenhavenpublishing.com/9781534502833",null,{"$f":"Table1[[#This Row],['# of Books]]*Table1[[#This Row],[QTY]]","v":0},{"$f":"Table1[[#This Row],[QTY]]*Table1[[#This Row],[School & Library Price]]","v":0}]
[null,null,16,null,null,"Current Issues","Viewpoints on Modern World History","Viewpoints on Modern World History","978-1-5345-0170-6",{"$f":"HYPERLINK(Table1[[#This Row],[eCommerce Hyperlink]],\"Book Weblink\")","v":"Book Weblink"},null,"Greenhaven Publishing","Library Set",6,"2018","January 2018","Library","6.000 X 9.000",null,null,null,null,null,null,null,null,"Grade 10 - 12","Grade 9 - 12","Viewpoints on Modern World History offers a fresh look from multiple perspectives at momentous historical periods and events. Essays are compiled from a variety of international sources and are edited to provide context for readers unfamiliar with the history under examination. Each volume promotes critical thinking skills, supports debate assignments, increases global awareness, and enhances the understanding of international perspectives.","English",292.8,234.24,null,"160–216 pp.","https://greenhavenpublishing.com/9781534501706",null,{"$f":"Table1[[#This Row],['# of Books]]*Table1[[#This Row],[QTY]]","v":0},{"$f":"Table1[[#This Row],[QTY]]*Table1[[#This Row],[School & Library Price]]","v":0}]
[null,null,16,null,null,"Current Issues","Viewpoints on Modern World History","AIDS and Other Killer Viruses and Pandemics","978-1-5345-0139-3",{"$f":"HYPERLINK(Table1[[#This Row],[eCommerce Hyperlink]],\"Book Weblink\")","v":"Book Weblink"},null,"Greenhaven Publishing","Library Bound Book",1,"2018","January 2018","Library","6.000 X 9.000","Edited by","Pete Schauer",null,null,null,null,"Z",null,"Grade 10 - 12","Grade 9 - 12","The 1918 influenza pandemic. The Polio scourge. The AIDS epidemic. The Ebola and Zika outbreaks. Modern history has seen numerous deadly viruses and pandemics that have harmed or killed hundreds of millions of people. And the history is ongoing. The world is facing antibiotic-resistant “superbugs” and infectious diseases tied to climate change, and our previously reliable medicines and treatments no longer always work. What causes these outbreaks, how they spread, and how best to contain and combat them are often open to debate. The most informed opinions from the most respected doctors, researchers, and public health officials are found here, presenting various perspectives on our current and future health and offering both cause for hope and reason to fear.","English",48.8,39.04,"614.5/99392--dc23","176 pp.","https://greenhavenpublishing.com/9781534501393",null,{"$f":"Table1[[#This Row],['# of Books]]*Table1[[#This Row],[QTY]]","v":0},{"$f":"Table1[[#This Row],[QTY]]*Table1[[#This Row],[School & Library Price]]","v":0}]
[null,null,16,null,null,"Current Issues","Viewpoints on Modern World History","AIDS and Other Killer Viruses and Pandemics","978-1-5345-0140-9",{"$f":"HYPERLINK(Table1[[#This Row],[eCommerce Hyperlink]],\"Book Weblink\")","v":"Book Weblink"},null,"Greenhaven Publishing","eBook",1,"2018","January 2018",null,null,"Edited by","Pete Schauer",null,null,null,null,"Z",null,"Grade 10 - 12","Grade 9 - 12","The 1918 influenza pandemic. The Polio scourge. The AIDS epidemic. The Ebola and Zika outbreaks. Modern history has seen numerous deadly viruses and pandemics that have harmed or killed hundreds of millions of people. And the history is ongoing. The world is facing antibiotic-resistant “superbugs” and infectious diseases tied to climate change, and our previously reliable medicines and treatments no longer always work. What causes these outbreaks, how they spread, and how best to contain and combat them are often open to debate. The most informed opinions from the most respected doctors, researchers, and public health officials are found here, presenting various perspectives on our current and future health and offering both cause for hope and reason to fear.","English",48.8,39.04,"614.5/99392--dc23","176 pp.","https://greenhavenpublishing.com/9781534501409",null,{"$f":"Table1[[#This Row],['# of Books]]*Table1[[#This Row],[QTY]]","v":0},{"$f":"Table1[[#This Row],[QTY]]*Table1[[#This Row],[School & Library Price]]","v":0}]
[null,null,16,null,null,"Current Issues","Viewpoints on Modern World History","Brexit","978-1-5345-0141-6",{"$f":"HYPERLINK(Table1[[#This Row],[eCommerce Hyperlink]],\"Book Weblink\")","v":"Book Weblink"},null,"Greenhaven Publishing","Library Bound Book",1,"2018","January 2018","Library","6.000 X 9.000","Edited by","Caleb Bissinger",null,null,null,null,"Z","1330L","Grade 10 - 12","Grade 9 - 12","In June 2016, Great Britain shocked the world, and itself, by voting in favor of pulling out of the European Union. Far from settling a long simmering and increasingly contentious debate within the UK and Europe, the aftermath of the \"Brexit\" vote sowed only more confusion, uncertainty, and angry debate about the economic, political, and even moral consequences of turning away from Europe and adopting a more protectionist, nationalist stance. That there was no clear plan for moving ahead with an EU exit in the wake of the vote only stoked greater anger and outrage. The debate and arguments rage on and are fully represented in this comprehensive volume, as the future of the UK and Europe hang in the balance.","English",48.8,39.04,"341.242/230941--dc23","208 pp.","https://greenhavenpublishing.com/9781534501416",null,{"$f":"Table1[[#This Row],['# of Books]]*Table1[[#This Row],[QTY]]","v":0},{"$f":"Table1[[#This Row],[QTY]]*Table1[[#This Row],[School & Library Price]]","v":0}]
[null,null,16,null,null,"Current Issues","Viewpoints on Modern World History","Brexit","978-1-5345-0142-3",{"$f":"HYPERLINK(Table1[[#This Row],[eCommerce Hyperlink]],\"Book Weblink\")","v":"Book Weblink"},null,"Greenhaven Publishing","eBook",1,"2018","January 2018",null,null,"Edited by","Caleb Bissinger",null,null,null,null,"Z","1330L","Grade 10 - 12","Grade 9 - 12","In June 2016, Great Britain shocked the world, and itself, by voting in favor of pulling out of the European Union. Far from settling a long simmering and increasingly contentious debate within the UK and Europe, the aftermath of the \"Brexit\" vote sowed only more confusion, uncertainty, and angry debate about the economic, political, and even moral consequences of turning away from Europe and adopting a more protectionist, nationalist stance. That there was no clear plan for moving ahead with an EU exit in the wake of the vote only stoked greater anger and outrage. The debate and arguments rage on and are fully represented in this comprehensive volume, as the future of the UK and Europe hang in the balance.","English",48.8,39.04,"341.242/230941--dc23","208 pp.","https://greenhavenpublishing.com/9781534501423",null,{"$f":"Table1[[#This Row],['# of Books]]*Table1[[#This Row],[QTY]]","v":0},{"$f":"Table1[[#This Row],[QTY]]*Table1[[#This Row],[School & Library Price]]","v":0}]
[null,null,16,null,null,"Current Issues","Viewpoints on Modern World History","Peace in the Middle East","978-1-5345-0143-0",{"$f":"HYPERLINK(Table1[[#This Row],[eCommerce Hyperlink]],\"Book Weblink\")","v":"Book Weblink"},null,"Greenhaven Publishing","Library Bound Book",1,"2018","January 2018","Library","6.000 X 9.000","Edited by","Martin Gitlin",null,null,null,null,"Z","1330L","Grade 10 - 12","Grade 9 - 12","Peace in the Middle East is the ever-elusive holy grail of diplomacy, a goal that much of the wider world fervently wishes to achieve. Modern efforts to achieve a formal, broad-based set of peace treaties between Israel and its various Arab neighbors, as well as a solution to the Palestinian homeland question, have ultimately foundered after some early promise and hard-won negotiating breakthroughs. Entrenched political interests, lack of good faith and mutual trust, domestic security concerns, and popular opposition have generated headwinds too powerful to overcome. The full range of proposals, opinions, and analysis across the long history of the peace effort is contained here, allowing readers to survey the process and evaluate its competing agendas and debates.","English",48.8,39.04,"956.04--dc23","184 pp.","https://greenhavenpublishing.com/9781534501430",null,{"$f":"Table1[[#This Row],['# of Books]]*Table1[[#This Row],[QTY]]","v":0},{"$f":"Table1[[#This Row],[QTY]]*Table1[[#This Row],[School & Library Price]]","v":0}]
[null,null,16,null,null,"Current Issues","Viewpoints on Modern World History","Peace in the Middle East","978-1-5345-0144-7",{"$f":"HYPERLINK(Table1[[#This Row],[eCommerce Hyperlink]],\"Book Weblink\")","v":"Book Weblink"},null,"Greenhaven Publishing","eBook",1,"2018","January 2018",null,null,"Edited by","Martin Gitlin",null,null,null,null,"Z","1330L","Grade 10 - 12","Grade 9 - 12","Peace in the Middle East is the ever-elusive holy grail of diplomacy, a goal that much of the wider world fervently wishes to achieve. Modern efforts to achieve a formal, broad-based set of peace treaties between Israel and its various Arab neighbors, as well as a solution to the Palestinian homeland question, have ultimately foundered after some early promise and hard-won negotiating breakthroughs. Entrenched political interests, lack of good faith and mutual trust, domestic security concerns, and popular opposition have generated headwinds too powerful to overcome. The full range of proposals, opinions, and analysis across the long history of the peace effort is contained here, allowing readers to survey the process and evaluate its competing agendas and debates.","English",48.8,39.04,"956.04--dc23","184 pp.","https://greenhavenpublishing.com/9781534501447",null,{"$f":"Table1[[#This Row],['# of Books]]*Table1[[#This Row],[QTY]]","v":0},{"$f":"Table1[[#This Row],[QTY]]*Table1[[#This Row],[School & Library Price]]","v":0}]
[null,null,16,null,null,"Current Issues","Viewpoints on Modern World History","The Armenian Genocide","978-1-5345-0120-1",{"$f":"HYPERLINK(Table1[[#This Row],[eCommerce Hyperlink]],\"Book Weblink\")","v":"Book Weblink"},null,"Greenhaven Publishing","Library Bound Book",1,"2018","January 2018","Library","6.000 X 9.000","Edited by","Paula Johanson",null,null,null,null,"Z",null,"Grade 10 - 12","Grade 9 - 12","The systematic extermination of about 1.5 million Armenians by the Ottoman government during and after World War I inspired the formulation of a new term that would come to haunt the modern \"civilized\" world, which was genocide. It was a harbinger of other genocides that would deeply scar and stain the twentieth century. To this day, Turkey denies the genocide, instead claiming that the victims died of starvation or the violence of isolated gangs or the unintended effects of legitimate deportation. These ongoing denials and evasions have generated enormous debate, criticism, and controversy, all of which is laid out here for readers to sift through and analyze, and within which they can pursue and locate the facts.","English",48.8,39.04,"956.6/20154--dc23","216 pp.","https://greenhavenpublishing.com/9781534501201",null,{"$f":"Table1[[#This Row],['# of Books]]*Table1[[#This Row],[QTY]]","v":0},{"$f":"Table1[[#This Row],[QTY]]*Table1[[#This Row],[School & Library Price]]","v":0}]
[null,null,16,null,null,"Current Issues","Viewpoints on Modern World History","The Armenian Genocide","978-1-5345-0121-8",{"$f":"HYPERLINK(Table1[[#This Row],[eCommerce Hyperlink]],\"Book Weblink\")","v":"Book Weblink"},null,"Greenhaven Publishing","eBook",1,"2018","January 2018",null,null,"Edited by","Paula Johanson",null,null,null,null,"Z",null,"Grade 10 - 12","Grade 9 - 12","The systematic extermination of about 1.5 million Armenians by the Ottoman government during and after World War I inspired the formulation of a new term that would come to haunt the modern \"civilized\" world, which was genocide. It was a harbinger of other genocides that would deeply scar and stain the twentieth century. To this day, Turkey denies the genocide, instead claiming that the victims died of starvation or the violence of isolated gangs or the unintended effects of legitimate deportation. These ongoing denials and evasions have generated enormous debate, criticism, and controversy, all of which is laid out here for readers to sift through and analyze, and within which they can pursue and locate the facts.","English",48.8,39.04,"956.6/20154--dc23","216 pp.","https://greenhavenpublishing.com/9781534501218",null,{"$f":"Table1[[#This Row],['# of Books]]*Table1[[#This Row],[QTY]]","v":0},{"$f":"Table1[[#This Row],[QTY]]*Table1[[#This Row],[School & Library Price]]","v":0}]
[null,null,16,null,null,"Current Issues","Viewpoints on Modern World History","The Arms Race and Nuclear Proliferation","978-1-5345-0137-9",{"$f":"HYPERLINK(Table1[[#This Row],[eCommerce Hyperlink]],\"Book Weblink\")","v":"Book Weblink"},null,"Greenhaven Publishing","Library Bound Book",1,"2018","January 2018","Library","6.000 X 9.000","Edited by","Martin Gitlin",null,null,null,null,"Z",null,"Grade 10 - 12","Grade 9 - 12","Following the bombings of Nagasaki and Hiroshima, the twentieth century was haunted by the specter of nuclear annihilation. Locked in a hostile embrace, the U.S. and the USSR engaged in a ruinous arms race preparing for the kind of war no one wanted and no one could win. Though the Cold War ended, the dangers of nuclear proliferation remain, with poorly secured nuclear weapons and materials vulnerable to theft, sale, accident, or misuse. The many debates over the years surrounding the arms race, proliferation, deterrence, and security are collected here to provide readers with a fine-grained sense of the international tensions, political urgency, diplomatic strategies, and global fears that have long underlined the effort to build and maintain nuclear arsenals.","English",48.8,39.04,"355.02/17--dc23","176 pp.","https://greenhavenpublishing.com/9781534501379",null,{"$f":"Table1[[#This Row],['# of Books]]*Table1[[#This Row],[QTY]]","v":0},{"$f":"Table1[[#This Row],[QTY]]*Table1[[#This Row],[School & Library Price]]","v":0}]
[null,null,16,null,null,"Current Issues","Viewpoints on Modern World History","The Arms Race and Nuclear Proliferation","978-1-5345-0138-6",{"$f":"HYPERLINK(Table1[[#This Row],[eCommerce Hyperlink]],\"Book Weblink\")","v":"Book Weblink"},null,"Greenhaven Publishing","eBook",1,"2018","January 2018",null,null,"Edited by","Martin Gitlin",null,null,null,null,"Z",null,"Grade 10 - 12","Grade 9 - 12","Following the bombings of Nagasaki and Hiroshima, the twentieth century was haunted by the specter of nuclear annihilation. Locked in a hostile embrace, the U.S. and the USSR engaged in a ruinous arms race preparing for the kind of war no one wanted and no one could win. Though the Cold War ended, the dangers of nuclear proliferation remain, with poorly secured nuclear weapons and materials vulnerable to theft, sale, accident, or misuse. The many debates over the years surrounding the arms race, proliferation, deterrence, and security are collected here to provide readers with a fine-grained sense of the international tensions, political urgency, diplomatic strategies, and global fears that have long underlined the effort to build and maintain nuclear arsenals.","English",48.8,39.04,"355.02/17--dc23","176 pp.","https://greenhavenpublishing.com/9781534501386",null,{"$f":"Table1[[#This Row],['# of Books]]*Table1[[#This Row],[QTY]]","v":0},{"$f":"Table1[[#This Row],[QTY]]*Table1[[#This Row],[School & Library Price]]","v":0}]
[null,null,16,null,null,"Current Issues","Viewpoints on Modern World History","U.S.-Iran Relations","978-1-5345-0135-5",{"$f":"HYPERLINK(Table1[[#This Row],[eCommerce Hyperlink]],\"Book Weblink\")","v":"Book Weblink"},null,"Greenhaven Publishing","Library Bound Book",1,"2018","January 2018","Library","6.000 X 9.000","Edited by","Avery Elizabeth Hurt",null,null,null,null,"Z","1430L","Grade 10 - 12","Grade 9 - 12","The modern history of U.S.-Iran relations is a collection of iconic images: the Shah in regal glory on his throne; the Shah fleeing his country; the rapturous welcome of Ayatollah Khomeini; the parading of blindfolded American hostages; the burning wreckage of American rescue helicopters; Oliver North testifying on the Iran-Contra scandal; the volatile defiance of Mahmoud Ahmadinejad; the hope of the Green Movement; and the persistent gloom of Ali Khameini. Yet behind these images are decades worth of diplomatic efforts, policy statements, official speeches, and passionate opinion pieces written by politicians, policymakers, human rights activists, and engaged citizens. Readers who examine these disparate viewpoints will gain a deep understanding of the vital, urgent, strategic importance of this long fraught relationship.","English",48.8,39.04,"327.73055--dc23","160 pp.","https://greenhavenpublishing.com/9781534501355",null,{"$f":"Table1[[#This Row],['# of Books]]*Table1[[#This Row],[QTY]]","v":0},{"$f":"Table1[[#This Row],[QTY]]*Table1[[#This Row],[School & Library Price]]","v":0}]
[null,null,16,null,null,"Current Issues","Viewpoints on Modern World History","U.S.-Iran Relations","978-1-5345-0136-2",{"$f":"HYPERLINK(Table1[[#This Row],[eCommerce Hyperlink]],\"Book Weblink\")","v":"Book Weblink"},null,"Greenhaven Publishing","eBook",1,"2018","January 2018",null,null,"Edited by","Avery Elizabeth Hurt",null,null,null,null,"Z","1430L","Grade 10 - 12","Grade 9 - 12","The modern history of U.S.-Iran relations is a collection of iconic images: the Shah in regal glory on his throne; the Shah fleeing his country; the rapturous welcome of Ayatollah Khomeini; the parading of blindfolded American hostages; the burning wreckage of American rescue helicopters; Oliver North testifying on the Iran-Contra scandal; the volatile defiance of Mahmoud Ahmadinejad; the hope of the Green Movement; and the persistent gloom of Ali Khameini. Yet behind these images are decades worth of diplomatic efforts, policy statements, official speeches, and passionate opinion pieces written by politicians, policymakers, human rights activists, and engaged citizens. Readers who examine these disparate viewpoints will gain a deep understanding of the vital, urgent, strategic importance of this long fraught relationship.","English",48.8,39.04,"327.73055--dc23","160 pp.","https://greenhavenpublishing.com/9781534501362",null,{"$f":"Table1[[#This Row],['# of Books]]*Table1[[#This Row],[QTY]]","v":0},{"$f":"Table1[[#This Row],[QTY]]*Table1[[#This Row],[School & Library Price]]","v":0}]
[null,null,17,null,null,"Arts & Humanities","Eye on Art","Eye on Art: Sets 1 – 2","978-1-5345-6614-9",{"$f":"HYPERLINK(Table1[[#This Row],[eCommerce Hyperlink]],\"Book Weblink\")","v":"Book Weblink"},null,"Lucent Press","Library Set",12,"2019","January 2019","Library","7.000 X 9.000",null,null,null,null,null,null,null,null,"Grade 7","Grade 7 - 10","Art is a topic that encompasses work of masters such as Leonardo da Vinci and Claude Monet as well as the work of graffiti artists and graphic designers. Readers explore these and other varied examples through this fresh and fascinating look at historical and contemporary art. Each detailed main text and informative sidebars provide essential information on each topic and include annotated quotes from artists, historians, and other experts. Young artists and those who appreciate art in its many forms will be captivated by vivid, colorful photographs that present Renaissance sculptures, architectural marvels, fashion shows, and other works of art in eye-catching detail. Features include: Important historical facts give readers a clear sense of how different art forms evolved over time, as well as how those art forms reflected and influenced different times and places. Text encourages readers to think deeply and critically about art and to appreciate art wherever they see it, from museums to animated movies. Information about artistic career paths helps budding artists plan their future.","English",484.8,387.84,null,"104 pp.","https://greenhavenpublishing.com/9781534566149",null,{"$f":"Table1[[#This Row],['# of Books]]*Table1[[#This Row],[QTY]]","v":0},{"$f":"Table1[[#This Row],[QTY]]*Table1[[#This Row],[School & Library Price]]","v":0}]
[null,null,17,null,null,"Arts & Humanities","Eye on Art","Eye on Art (Spring 2019)","978-1-5345-6619-4",{"$f":"HYPERLINK(Table1[[#This Row],[eCommerce Hyperlink]],\"Book Weblink\")","v":"Book Weblink"},null,"Lucent Press","Single Copy Set",6,"2019","January 2019","Paperback","7.000 X 9.000",null,null,null,null,null,null,null,null,"Grade 7","Grade 7 - 10","The lives and works of some of the world's most celebrated artists are presented to readers as they explore this fresh look at art history. With a focus on the creative minds behind the masterpieces, each volume allows readers to develop a more personal sense of major artistic periods, from the Renaissance to postmodernism, and their lasting impact on the world. Vibrant, full-color photographs, including examples of famous works of art by masters from Leonardo da Vinci to Mary Cassatt, fill the pages, creating a reading experience that is sure to inspire budding artists and art historians. Features include: Informative text includes essential biographical and historical information, helping readers connect the worlds of art history and world history in an engaging way. Carefully-chosen topics present readers with a broad range of artistic styles from a variety of time periods, giving them a comprehensive overview of art history. Annotated quotations from artists, historians, and other important figures are included throughout the main text and in detailed sidebars.","English",125.94,107.1,null,"104 pp.","https://greenhavenpublishing.com/9781534566194",null,{"$f":"Table1[[#This Row],['# of Books]]*Table1[[#This Row],[QTY]]","v":0},{"$f":"Table1[[#This Row],[QTY]]*Table1[[#This Row],[School & Library Price]]","v":0}]
[null,null,17,null,null,"Arts & Humanities","Eye on Art","Anime: Japanese Animation Comes to America","978-1-5345-6102-1",{"$f":"HYPERLINK(Table1[[#This Row],[eCommerce Hyperlink]],\"Book Weblink\")","v":"Book Weblink"},null,"Lucent Press","Library Bound Book",1,"2018","August 2017","Library","7.000 X 9.000","Author","Kenneth L. Bartolotta",null,null,null,null,"Z","1250L","Grade 7","Grade 7 - 10","Anime, which is a Japanese style of animation, has become extremely popular in Western culture. Although in the West its audience previously consisted mainly of young children, it has increasingly become accepted as an art form that can be appreciated by all ages. Readers discover the controversy that has historically surrounded anime's status in the West and its fans struggle to promote it as a serious art form. Anime's leap from Eastern to Western culture is highlighted with full-color photographs and fact-filled sidebars.","English",40.4,32.32,"791.43'340952--dc23","104 pp.","https://greenhavenpublishing.com/9781534561021",null,{"$f":"Table1[[#This Row],['# of Books]]*Table1[[#This Row],[QTY]]","v":0},{"$f":"Table1[[#This Row],[QTY]]*Table1[[#This Row],[School & Library Price]]","v":0}]
[null,null,17,null,null,"Arts & Humanities","Eye on Art","Anime: Japanese Animation Comes to America","978-1-5345-6103-8",{"$f":"HYPERLINK(Table1[[#This Row],[eCommerce Hyperlink]],\"Book Weblink\")","v":"Book Weblink"},null,"Lucent Press","eBook",1,"2018","August 2017",null,null,"Author","Kenneth L. Bartolotta",null,null,null,null,"Z","1250L","Grade 7","Grade 7 - 10","Anime, which is a Japanese style of animation, has become extremely popular in Western culture. Although in the West its audience previously consisted mainly of young children, it has increasingly become accepted as an art form that can be appreciated by all ages. Readers discover the controversy that has historically surrounded anime's status in the West and its fans struggle to promote it as a serious art form. Anime's leap from Eastern to Western culture is highlighted with full-color photographs and fact-filled sidebars.","English",40.4,32.32,"791.43'340952--dc23","104 pp.","https://greenhavenpublishing.com/9781534561038",null,{"$f":"Table1[[#This Row],['# of Books]]*Table1[[#This Row],[QTY]]","v":0},{"$f":"Table1[[#This Row],[QTY]]*Table1[[#This Row],[School & Library Price]]","v":0}]
[null,null,17,null,null,"Arts & Humanities","Eye on Art","Claude Monet: Founder of French Impressionism","978-1-5345-6529-6",{"$f":"HYPERLINK(Table1[[#This Row],[eCommerce Hyperlink]],\"Book Weblink\")","v":"Book Weblink"},null,"Lucent Press","Library Bound Book",1,"2019","January 2019","Library","7.000 X 9.000","Author","Danielle Haynes",null,null,null,null,"Z","1250L","Grade 7","Grade 7 - 10","Claude Monet is one of the most famous painters in history, and he is considered a pioneer of the Impressionist movement. What is Impressionism, and how does Monet's work reflect its purest principles? Readers discover the answers to these and other questions about Monet's life and work as they examine the stories behind some of his most beloved paintings. Colorful examples of his work and photographs from his life fill the pages, alongside annotated quotes from art historians, other artists, and Monet himself. Detailed sidebars appeal to young artists and provide more fascinating details about Monet's life.","English",40.4,32.32,"759.4--dc23","104 pp.","https://greenhavenpublishing.com/9781534565296",null,{"$f":"Table1[[#This Row],['# of Books]]*Table1[[#This Row],[QTY]]","v":0},{"$f":"Table1[[#This Row],[QTY]]*Table1[[#This Row],[School & Library Price]]","v":0}]
[null,null,17,null,null,"Arts & Humanities","Eye on Art","Claude Monet: Founder of French Impressionism","978-1-5345-6530-2",{"$f":"HYPERLINK(Table1[[#This Row],[eCommerce Hyperlink]],\"Book Weblink\")","v":"Book Weblink"},null,"Lucent Press","eBook",1,"2019","January 2019",null,null,"Author","Danielle Haynes",null,null,null,null,"Z","1250L","Grade 7","Grade 7 - 10","Claude Monet is one of the most famous painters in history, and he is considered a pioneer of the Impressionist movement. What is Impressionism, and how does Monet's work reflect its purest principles? Readers discover the answers to these and other questions about Monet's life and work as they examine the stories behind some of his most beloved paintings. Colorful examples of his work and photographs from his life fill the pages, alongside annotated quotes from art historians, other artists, and Monet himself. Detailed sidebars appeal to young artists and provide more fascinating details about Monet's life.","English",40.4,32.32,"759.4--dc23","104 pp.","https://greenhavenpublishing.com/9781534565302",null,{"$f":"Table1[[#This Row],['# of Books]]*Table1[[#This Row],[QTY]]","v":0},{"$f":"Table1[[#This Row],[QTY]]*Table1[[#This Row],[School & Library Price]]","v":0}]
[null,null,17,null,null,"Arts & Humanities","Eye on Art","Claude Monet: Founder of French Impressionism","978-1-5345-6528-9",{"$f":"HYPERLINK(Table1[[#This Row],[eCommerce Hyperlink]],\"Book Weblink\")","v":"Book Weblink"},null,"Lucent Press","Paperback Book",1,"2019","January 2019","Paperback","7.000 X 9.000","Author","Danielle Haynes",null,null,null,null,"Z","1250L","Grade 7","Grade 7 - 10","Claude Monet is one of the most famous painters in history, and he is considered a pioneer of the Impressionist movement. What is Impressionism, and how does Monet's work reflect its purest principles? Readers discover the answers to these and other questions about Monet's life and work as they examine the stories behind some of his most beloved paintings. Colorful examples of his work and photographs from his life fill the pages, alongside annotated quotes from art historians, other artists, and Monet himself. Detailed sidebars appeal to young artists and provide more fascinating details about Monet's life.","English",20.99,17.850000000000001,"759.4--dc23","104 pp.","https://greenhavenpublishing.com/9781534565289",null,{"$f":"Table1[[#This Row],['# of Books]]*Table1[[#This Row],[QTY]]","v":0},{"$f":"Table1[[#This Row],[QTY]]*Table1[[#This Row],[School & Library Price]]","v":0}]
[null,null,17,null,null,"Arts & Humanities","Eye on Art","Computer Animation: Telling Stories with Digital Art","978-1-5345-6097-0",{"$f":"HYPERLINK(Table1[[#This Row],[eCommerce Hyperlink]],\"Book Weblink\")","v":"Book Weblink"},null,"Lucent Press","Library Bound Book",1,"2018","August 2017","Library","7.000 X 9.000","Author","Tanya Dellaccio",null,null,null,null,"Z","1250L","Grade 7","Grade 7 - 10","As technology has become more advanced, artists have increasingly been able to use computers to create beautifully lifelike works. Animated movies and video games today are often so detailed that individual strands of hair can be distinguished on characters' heads. Readers explore the methods animators use to bring images to life and learn about the history of computer animation. Informative sidebars and detailed photographs provide an in-depth look at the effort and care that go into creating a visually stunning storytelling experience.","English",40.4,32.32,"006.6'96'023--dc23","104 pp.","https://greenhavenpublishing.com/9781534560970",null,{"$f":"Table1[[#This Row],['# of Books]]*Table1[[#This Row],[QTY]]","v":0},{"$f":"Table1[[#This Row],[QTY]]*Table1[[#This Row],[School & Library Price]]","v":0}]
[null,null,17,null,null,"Arts & Humanities","Eye on Art","Computer Animation: Telling Stories with Digital Art","978-1-5345-6098-7",{"$f":"HYPERLINK(Table1[[#This Row],[eCommerce Hyperlink]],\"Book Weblink\")","v":"Book Weblink"},null,"Lucent Press","eBook",1,"2018","August 2017",null,null,"Author","Tanya Dellaccio",null,null,null,null,"Z","1250L","Grade 7","Grade 7 - 10","As technology has become more advanced, artists have increasingly been able to use computers to create beautifully lifelike works. Animated movies and video games today are often so detailed that individual strands of hair can be distinguished on characters' heads. Readers explore the methods animators use to bring images to life and learn about the history of computer animation. Informative sidebars and detailed photographs provide an in-depth look at the effort and care that go into creating a visually stunning storytelling experience.","English",40.4,32.32,"006.6'96'023--dc23","104 pp.","https://greenhavenpublishing.com/9781534560987",null,{"$f":"Table1[[#This Row],['# of Books]]*Table1[[#This Row],[QTY]]","v":0},{"$f":"Table1[[#This Row],[QTY]]*Table1[[#This Row],[School & Library Price]]","v":0}]
[null,null,17,null,null,"Arts & Humanities","Eye on Art","Fashion Design: Clothing as Art","978-1-5345-6104-5",{"$f":"HYPERLINK(Table1[[#This Row],[eCommerce Hyperlink]],\"Book Weblink\")","v":"Book Weblink"},null,"Lucent Press","Library Bound Book",1,"2018","August 2017","Library","7.000 X 9.000","Author","Ruth Huoh",null,null,null,null,"Z","1230L","Grade 7","Grade 7 - 10","Can something people use every day be considered art? This is the core of the discussion surrounding the artistic merits of fashion design. To some, fashion is an art form; to others, it is too functional to be considered art. Both points of view are presented through detailed text, supported by quotes from fashion experts and famous designers. Engaging sidebars and detailed photographs bring the world of fashion into focus. Readers will enjoy this fresh take on an artistic industry that impacts our everyday lives.","English",40.4,32.32,"746.9'2--dc23","104 pp.","https://greenhavenpublishing.com/9781534561045",null,{"$f":"Table1[[#This Row],['# of Books]]*Table1[[#This Row],[QTY]]","v":0},{"$f":"Table1[[#This Row],[QTY]]*Table1[[#This Row],[School & Library Price]]","v":0}]
[null,null,17,null,null,"Arts & Humanities","Eye on Art","Fashion Design: Clothing as Art","978-1-5345-6105-2",{"$f":"HYPERLINK(Table1[[#This Row],[eCommerce Hyperlink]],\"Book Weblink\")","v":"Book Weblink"},null,"Lucent Press","eBook",1,"2018","August 2017",null,null,"Author","Ruth Huoh",null,null,null,null,"Z","1230L","Grade 7","Grade 7 - 10","Can something people use every day be considered art? This is the core of the discussion surrounding the artistic merits of fashion design. To some, fashion is an art form; to others, it is too functional to be considered art. Both points of view are presented through detailed text, supported by quotes from fashion experts and famous designers. Engaging sidebars and detailed photographs bring the world of fashion into focus. Readers will enjoy this fresh take on an artistic industry that impacts our everyday lives.","English",40.4,32.32,"746.9'2--dc23","104 pp.","https://greenhavenpublishing.com/9781534561052",null,{"$f":"Table1[[#This Row],['# of Books]]*Table1[[#This Row],[QTY]]","v":0},{"$f":"Table1[[#This Row],[QTY]]*Table1[[#This Row],[School & Library Price]]","v":0}]
[null,null,17,null,null,"Arts & Humanities","Eye on Art","Graffiti: Vandalism or Art?","978-1-5345-6112-0",{"$f":"HYPERLINK(Table1[[#This Row],[eCommerce Hyperlink]],\"Book Weblink\")","v":"Book Weblink"},null,"Lucent Press","Library Bound Book",1,"2018","August 2017","Library","7.000 X 9.000","Author","Anna Collins",null,null,null,null,"Z","1250L","Grade 7","Grade 7 - 10","Debate has long raged over whether graffiti can be considered an art form. Its illegal nature has caused many people to denounce it, while others contend that a work does not have to be legal to be art. The heart of the question is, what defines art? Informative text discusses competing views on the issue, presenting all sides of the debate to help readers form their own opinions. Engaging sidebars spotlight graffiti artists such as the famous Banksy, while eye-catching photographs provide examples of some of the most original graffiti designs.","English",40.4,32.32,"751.7/3--dc23","112 pp.","https://greenhavenpublishing.com/9781534561120",null,{"$f":"Table1[[#This Row],['# of Books]]*Table1[[#This Row],[QTY]]","v":0},{"$f":"Table1[[#This Row],[QTY]]*Table1[[#This Row],[School & Library Price]]","v":0}]
[null,null,17,null,null,"Arts & Humanities","Eye on Art","Graffiti: Vandalism or Art?","978-1-5345-6101-4",{"$f":"HYPERLINK(Table1[[#This Row],[eCommerce Hyperlink]],\"Book Weblink\")","v":"Book Weblink"},null,"Lucent Press","eBook",1,"2018","August 2017",null,null,"Author","Anna Collins",null,null,null,null,"Z","1250L","Grade 7","Grade 7 - 10","Debate has long raged over whether graffiti can be considered an art form. Its illegal nature has caused many people to denounce it, while others contend that a work does not have to be legal to be art. The heart of the question is, what defines art? Informative text discusses competing views on the issue, presenting all sides of the debate to help readers form their own opinions. Engaging sidebars spotlight graffiti artists such as the famous Banksy, while eye-catching photographs provide examples of some of the most original graffiti designs.","English",40.4,32.32,"751.7/3--dc23","112 pp.","https://greenhavenpublishing.com/9781534561014",null,{"$f":"Table1[[#This Row],['# of Books]]*Table1[[#This Row],[QTY]]","v":0},{"$f":"Table1[[#This Row],[QTY]]*Table1[[#This Row],[School & Library Price]]","v":0}]
[null,null,17,null,null,"Arts & Humanities","Eye on Art","Graphic Design: Putting Art and Words Together","978-1-5345-6099-4",{"$f":"HYPERLINK(Table1[[#This Row],[eCommerce Hyperlink]],\"Book Weblink\")","v":"Book Weblink"},null,"Lucent Press","Library Bound Book",1,"2018","August 2017","Library","7.000 X 9.000","Author","Donna Reynolds",null,null,null,null,"Z","1240L","Grade 7","Grade 7 - 10","Although graphic design is all around us, we rarely take time to notice and appreciate it. Advertisements, logos, websites, and many other things rely on graphic design to create eye-catching content. This volume explores the skills artists need to produce aesthetically pleasing designs and the development of this field into the major industry it is today. Skill-building information is included for readers who are interested in pursuing graphic design as a career. Striking photographs display some of the most innovative examples of this prominent medium.","English",40.4,32.32,"740--dc23","112 pp.","https://greenhavenpublishing.com/9781534560994",null,{"$f":"Table1[[#This Row],['# of Books]]*Table1[[#This Row],[QTY]]","v":0},{"$f":"Table1[[#This Row],[QTY]]*Table1[[#This Row],[School & Library Price]]","v":0}]
[null,null,17,null,null,"Arts & Humanities","Eye on Art","Graphic Design: Putting Art and Words Together","978-1-5345-6100-7",{"$f":"HYPERLINK(Table1[[#This Row],[eCommerce Hyperlink]],\"Book Weblink\")","v":"Book Weblink"},null,"Lucent Press","eBook",1,"2018","August 2017",null,null,"Author","Donna Reynolds",null,null,null,null,"Z","1240L","Grade 7","Grade 7 - 10","Although graphic design is all around us, we rarely take time to notice and appreciate it. Advertisements, logos, websites, and many other things rely on graphic design to create eye-catching content. This volume explores the skills artists need to produce aesthetically pleasing designs and the development of this field into the major industry it is today. Skill-building information is included for readers who are interested in pursuing graphic design as a career. Striking photographs display some of the most innovative examples of this prominent medium.","English",40.4,32.32,"740--dc23","112 pp.","https://greenhavenpublishing.com/9781534561007",null,{"$f":"Table1[[#This Row],['# of Books]]*Table1[[#This Row],[QTY]]","v":0},{"$f":"Table1[[#This Row],[QTY]]*Table1[[#This Row],[School & Library Price]]","v":0}]
[null,null,17,null,null,"Arts & Humanities","Eye on Art","Leonardo da Vinci: Renaissance Genius","978-1-5345-6532-6",{"$f":"HYPERLINK(Table1[[#This Row],[eCommerce Hyperlink]],\"Book Weblink\")","v":"Book Weblink"},null,"Lucent Press","Library Bound Book",1,"2019","January 2019","Library","7.000 X 9.000","Author","Tamra B. Orr",null,null,null,null,"Z","1250L","Grade 7","Grade 7 - 10","The term \"Renaissance man\" is used to describe a number of talented individuals today, but it got its real start with Leonardo da Vinci. As an artist, inventor, and scholar, he produced everything from the Mona Lisa to drawings of the world's first airplanes. Through informative main text and sidebars, annotated quotes from scholars, and detailed examples of da Vinci's work, readers are introduced to a genius who never went to formal school but invented machines that would not be made for centuries. Leonardo da Vinci is a fascinating historical figure, and his story is sure to inspire young artists.","English",40.4,32.32,"709.2--dc23","104 pp.","https://greenhavenpublishing.com/9781534565326",null,{"$f":"Table1[[#This Row],['# of Books]]*Table1[[#This Row],[QTY]]","v":0},{"$f":"Table1[[#This Row],[QTY]]*Table1[[#This Row],[School & Library Price]]","v":0}]
[null,null,17,null,null,"Arts & Humanities","Eye on Art","Leonardo da Vinci: Renaissance Genius","978-1-5345-6533-3",{"$f":"HYPERLINK(Table1[[#This Row],[eCommerce Hyperlink]],\"Book Weblink\")","v":"Book Weblink"},null,"Lucent Press","eBook",1,"2019","January 2019",null,null,"Author","Tamra B. Orr",null,null,null,null,"Z","1250L","Grade 7","Grade 7 - 10","The term \"Renaissance man\" is used to describe a number of talented individuals today, but it got its real start with Leonardo da Vinci. As an artist, inventor, and scholar, he produced everything from the Mona Lisa to drawings of the world's first airplanes. Through informative main text and sidebars, annotated quotes from scholars, and detailed examples of da Vinci's work, readers are introduced to a genius who never went to formal school but invented machines that would not be made for centuries. Leonardo da Vinci is a fascinating historical figure, and his story is sure to inspire young artists.","English",40.4,32.32,"709.2--dc23","104 pp.","https://greenhavenpublishing.com/9781534565333",null,{"$f":"Table1[[#This Row],['# of Books]]*Table1[[#This Row],[QTY]]","v":0},{"$f":"Table1[[#This Row],[QTY]]*Table1[[#This Row],[School & Library Price]]","v":0}]
[null,null,17,null,null,"Arts & Humanities","Eye on Art","Leonardo da Vinci: Renaissance Genius","978-1-5345-6531-9",{"$f":"HYPERLINK(Table1[[#This Row],[eCommerce Hyperlink]],\"Book Weblink\")","v":"Book Weblink"},null,"Lucent Press","Paperback Book",1,"2019","January 2019","Paperback","7.000 X 9.000","Author","Tamra B. Orr",null,null,null,null,"Z","1250L","Grade 7","Grade 7 - 10","The term \"Renaissance man\" is used to describe a number of talented individuals today, but it got its real start with Leonardo da Vinci. As an artist, inventor, and scholar, he produced everything from the Mona Lisa to drawings of the world's first airplanes. Through informative main text and sidebars, annotated quotes from scholars, and detailed examples of da Vinci's work, readers are introduced to a genius who never went to formal school but invented machines that would not be made for centuries. Leonardo da Vinci is a fascinating historical figure, and his story is sure to inspire young artists.","English",20.99,17.850000000000001,"709.2--dc23","104 pp.","https://greenhavenpublishing.com/9781534565319",null,{"$f":"Table1[[#This Row],['# of Books]]*Table1[[#This Row],[QTY]]","v":0},{"$f":"Table1[[#This Row],[QTY]]*Table1[[#This Row],[School & Library Price]]","v":0}]
[null,null,17,null,null,"Arts & Humanities","Eye on Art","Mary Cassatt: Famous Female Impressionist","978-1-5345-6610-1",{"$f":"HYPERLINK(Table1[[#This Row],[eCommerce Hyperlink]],\"Book Weblink\")","v":"Book Weblink"},null,"Lucent Press","Library Bound Book",1,"2019","January 2019","Library","7.000 X 9.000","Author","Rachael Morlock",null,null,null,null,"Z","1120L","Grade 7","Grade 7 - 10","As an American woman in 19th century Paris, Mary Cassatt was an unlikely force in the French Impressionist movement. Today, Cassatt is known for her intimate studies of women and children. Readers discover how Cassatt independently forged her artistic path, despite the restrictions female artists faced at that time. Full-color photographs trace the evolution of Cassatt's work as it elevated everyday women's lives to the realm of fine art. Readers explore the artistic and historic contexts for Cassatt's work through detailed text and sidebars, while annotated excerpts from personal letters and other primary sources illuminate Cassatt's life and legacy.","English",40.4,32.32,"759.13--dc23","104 pp.","https://greenhavenpublishing.com/9781534566101",null,{"$f":"Table1[[#This Row],['# of Books]]*Table1[[#This Row],[QTY]]","v":0},{"$f":"Table1[[#This Row],[QTY]]*Table1[[#This Row],[School & Library Price]]","v":0}]
[null,null,17,null,null,"Arts & Humanities","Eye on Art","Mary Cassatt: Famous Female Impressionist","978-1-5345-6611-8",{"$f":"HYPERLINK(Table1[[#This Row],[eCommerce Hyperlink]],\"Book Weblink\")","v":"Book Weblink"},null,"Lucent Press","eBook",1,"2019","January 2019",null,null,"Author","Rachael Morlock",null,null,null,null,"Z","1120L","Grade 7","Grade 7 - 10","As an American woman in 19th century Paris, Mary Cassatt was an unlikely force in the French Impressionist movement. Today, Cassatt is known for her intimate studies of women and children. Readers discover how Cassatt independently forged her artistic path, despite the restrictions female artists faced at that time. Full-color photographs trace the evolution of Cassatt's work as it elevated everyday women's lives to the realm of fine art. Readers explore the artistic and historic contexts for Cassatt's work through detailed text and sidebars, while annotated excerpts from personal letters and other primary sources illuminate Cassatt's life and legacy.","English",40.4,32.32,"759.13--dc23","104 pp.","https://greenhavenpublishing.com/9781534566118",null,{"$f":"Table1[[#This Row],['# of Books]]*Table1[[#This Row],[QTY]]","v":0},{"$f":"Table1[[#This Row],[QTY]]*Table1[[#This Row],[School & Library Price]]","v":0}]
[null,null,17,null,null,"Arts & Humanities","Eye on Art","Mary Cassatt: Famous Female Impressionist","978-1-5345-6609-5",{"$f":"HYPERLINK(Table1[[#This Row],[eCommerce Hyperlink]],\"Book Weblink\")","v":"Book Weblink"},null,"Lucent Press","Paperback Book",1,"2019","January 2019","Paperback","7.000 X 9.000","Author","Rachael Morlock",null,null,null,null,"Z","1120L","Grade 7","Grade 7 - 10","As an American woman in 19th century Paris, Mary Cassatt was an unlikely force in the French Impressionist movement. Today, Cassatt is known for her intimate studies of women and children. Readers discover how Cassatt independently forged her artistic path, despite the restrictions female artists faced at that time. Full-color photographs trace the evolution of Cassatt's work as it elevated everyday women's lives to the realm of fine art. Readers explore the artistic and historic contexts for Cassatt's work through detailed text and sidebars, while annotated excerpts from personal letters and other primary sources illuminate Cassatt's life and legacy.","English",20.99,17.850000000000001,"759.13--dc23","104 pp.","https://greenhavenpublishing.com/9781534566095",null,{"$f":"Table1[[#This Row],['# of Books]]*Table1[[#This Row],[QTY]]","v":0},{"$f":"Table1[[#This Row],[QTY]]*Table1[[#This Row],[School & Library Price]]","v":0}]
[null,null,17,null,null,"Arts & Humanities","Eye on Art","Michelangelo: Master of the Renaissance","978-1-5345-6534-0",{"$f":"HYPERLINK(Table1[[#This Row],[eCommerce Hyperlink]],\"Book Weblink\")","v":"Book Weblink"},null,"Lucent Press","Library Bound Book",1,"2019","January 2019","Library","7.000 X 9.000","Author","Tamra B. Orr",null,null,null,null,"Z","1220L","Grade 7","Grade 7 - 10","It was Michelangelo's talent and imagination that created the Pieta, the famous statue of David, and the Sistine Chapel's ceilings. What was his life like before he became famous? Readers discover the story of Michelangelo Buonarroti, a man who sculpted with materials others abandoned, whose first official piece of art was really a fraud, and who hid his own likeness in many of his paintings. This artistic genius was as fascinating as he was skilled, and his life is presented to readers through engaging main text and sidebars, annotated quotes from art historians, and examples of his most famous works.","English",40.4,32.32,"709.2--dc23","104 pp.","https://greenhavenpublishing.com/9781534565340",null,{"$f":"Table1[[#This Row],['# of Books]]*Table1[[#This Row],[QTY]]","v":0},{"$f":"Table1[[#This Row],[QTY]]*Table1[[#This Row],[School & Library Price]]","v":0}]
[null,null,17,null,null,"Arts & Humanities","Eye on Art","Michelangelo: Master of the Renaissance","978-1-5345-6535-7",{"$f":"HYPERLINK(Table1[[#This Row],[eCommerce Hyperlink]],\"Book Weblink\")","v":"Book Weblink"},null,"Lucent Press","eBook",1,"2019","January 2019",null,null,"Author","Tamra B. Orr",null,null,null,null,"Z","1220L","Grade 7","Grade 7 - 10","It was Michelangelo's talent and imagination that created the Pieta, the famous statue of David, and the Sistine Chapel's ceilings. What was his life like before he became famous? Readers discover the story of Michelangelo Buonarroti, a man who sculpted with materials others abandoned, whose first official piece of art was really a fraud, and who hid his own likeness in many of his paintings. This artistic genius was as fascinating as he was skilled, and his life is presented to readers through engaging main text and sidebars, annotated quotes from art historians, and examples of his most famous works.","English",40.4,32.32,"709.2--dc23","104 pp.","https://greenhavenpublishing.com/9781534565357",null,{"$f":"Table1[[#This Row],['# of Books]]*Table1[[#This Row],[QTY]]","v":0},{"$f":"Table1[[#This Row],[QTY]]*Table1[[#This Row],[School & Library Price]]","v":0}]
[null,null,17,null,null,"Arts & Humanities","Eye on Art","Michelangelo: Master of the Renaissance","978-1-5345-6537-1",{"$f":"HYPERLINK(Table1[[#This Row],[eCommerce Hyperlink]],\"Book Weblink\")","v":"Book Weblink"},null,"Lucent Press","Paperback Book",1,"2019","January 2019","Paperback","7.000 X 9.000","Author","Tamra B. Orr",null,null,null,null,"Z","1220L","Grade 7","Grade 7 - 10","It was Michelangelo's talent and imagination that created the Pieta, the famous statue of David, and the Sistine Chapel's ceilings. What was his life like before he became famous? Readers discover the story of Michelangelo Buonarroti, a man who sculpted with materials others abandoned, whose first official piece of art was really a fraud, and who hid his own likeness in many of his paintings. This artistic genius was as fascinating as he was skilled, and his life is presented to readers through engaging main text and sidebars, annotated quotes from art historians, and examples of his most famous works.","English",20.99,17.850000000000001,"709.2--dc23","104 pp.","https://greenhavenpublishing.com/9781534565371",null,{"$f":"Table1[[#This Row],['# of Books]]*Table1[[#This Row],[QTY]]","v":0},{"$f":"Table1[[#This Row],[QTY]]*Table1[[#This Row],[School & Library Price]]","v":0}]
[null,null,17,null,null,"Arts & Humanities","Eye on Art","Postmodern Artists: Creators of a Cultural Movement","978-1-5345-6612-5",{"$f":"HYPERLINK(Table1[[#This Row],[eCommerce Hyperlink]],\"Book Weblink\")","v":"Book Weblink"},null,"Lucent Press","Library Bound Book",1,"2019","January 2019","Library","7.000 X 9.000","Author","Amanda Vink",null,null,null,null,"Z",null,"Grade 7","Grade 7 - 10","Postmodern art emerged in the late 1960s following a time period when art had been defined by superstars like Pablo Picasso and Salvador Dalí. Rejecting the idea of art being exclusive to professionals, artists who emerged during the postmodern era believed anyone could be an artist and anything could be art. Through exciting main text featuring annotated quotes from experts, detailed sidebars, and examples of postmodern art, readers explore how the foundations of art were challenged by postmodern artists such as Andy Warhol and Barbara Kruger and also how their work still impacts today's art world.","English",40.4,32.32,"700/.4113--dc23","104 pp.","https://greenhavenpublishing.com/9781534566125",null,{"$f":"Table1[[#This Row],['# of Books]]*Table1[[#This Row],[QTY]]","v":0},{"$f":"Table1[[#This Row],[QTY]]*Table1[[#This Row],[School & Library Price]]","v":0}]
[null,null,17,null,null,"Arts & Humanities","Eye on Art","Postmodern Artists: Creators of a Cultural Movement","978-1-5345-6608-8",{"$f":"HYPERLINK(Table1[[#This Row],[eCommerce Hyperlink]],\"Book Weblink\")","v":"Book Weblink"},null,"Lucent Press","eBook",1,"2019","January 2019",null,null,"Author","Amanda Vink",null,null,null,null,"Z",null,"Grade 7","Grade 7 - 10","Postmodern art emerged in the late 1960s following a time period when art had been defined by superstars like Pablo Picasso and Salvador Dalí. Rejecting the idea of art being exclusive to professionals, artists who emerged during the postmodern era believed anyone could be an artist and anything could be art. Through exciting main text featuring annotated quotes from experts, detailed sidebars, and examples of postmodern art, readers explore how the foundations of art were challenged by postmodern artists such as Andy Warhol and Barbara Kruger and also how their work still impacts today's art world.","English",40.4,32.32,"700/.4113--dc23","104 pp.","https://greenhavenpublishing.com/9781534566088",null,{"$f":"Table1[[#This Row],['# of Books]]*Table1[[#This Row],[QTY]]","v":0},{"$f":"Table1[[#This Row],[QTY]]*Table1[[#This Row],[School & Library Price]]","v":0}]
[null,null,17,null,null,"Arts & Humanities","Eye on Art","Postmodern Artists: Creators of a Cultural Movement","978-1-5345-6607-1",{"$f":"HYPERLINK(Table1[[#This Row],[eCommerce Hyperlink]],\"Book Weblink\")","v":"Book Weblink"},null,"Lucent Press","Paperback Book",1,"2019","January 2019","Paperback","7.000 X 9.000","Author","Amanda Vink",null,null,null,null,"Z",null,"Grade 7","Grade 7 - 10","Postmodern art emerged in the late 1960s following a time period when art had been defined by superstars like Pablo Picasso and Salvador Dalí. Rejecting the idea of art being exclusive to professionals, artists who emerged during the postmodern era believed anyone could be an artist and anything could be art. Through exciting main text featuring annotated quotes from experts, detailed sidebars, and examples of postmodern art, readers explore how the foundations of art were challenged by postmodern artists such as Andy Warhol and Barbara Kruger and also how their work still impacts today's art world.","English",20.99,17.850000000000001,"700/.4113--dc23","104 pp.","https://greenhavenpublishing.com/9781534566071",null,{"$f":"Table1[[#This Row],['# of Books]]*Table1[[#This Row],[QTY]]","v":0},{"$f":"Table1[[#This Row],[QTY]]*Table1[[#This Row],[School & Library Price]]","v":0}]
[null,null,17,null,null,"Arts & Humanities","Eye on Art","The Art of Architecture","978-1-5345-6095-6",{"$f":"HYPERLINK(Table1[[#This Row],[eCommerce Hyperlink]],\"Book Weblink\")","v":"Book Weblink"},null,"Lucent Press","Library Bound Book",1,"2018","August 2017","Library","7.000 X 9.000","Author","Tanya Dellaccio",null,null,null,null,"Z","1230L","Grade 7","Grade 7 - 10","Buildings are not often thought of as works of art, but the process of designing them can become an art form. Architects such as Frank Lloyd Wright and Zaha Hadid have been internationally recognized for their innovative designs. Through engaging text and full-color photographs, readers learn about the artistic challenges these and other architects face as they attempt to blend form and function in new and exciting ways. Readers are sure to love this detailed look at a kind of art they see around them every day and a career path they can pursue if they are interested in architecture.","English",40.4,32.32,"720.9--dc23","112 pp.","https://greenhavenpublishing.com/9781534560956",null,{"$f":"Table1[[#This Row],['# of Books]]*Table1[[#This Row],[QTY]]","v":0},{"$f":"Table1[[#This Row],[QTY]]*Table1[[#This Row],[School & Library Price]]","v":0}]
[null,null,17,null,null,"Arts & Humanities","Eye on Art","The Art of Architecture","978-1-5345-6096-3",{"$f":"HYPERLINK(Table1[[#This Row],[eCommerce Hyperlink]],\"Book Weblink\")","v":"Book Weblink"},null,"Lucent Press","eBook",1,"2018","August 2017",null,null,"Author","Tanya Dellaccio",null,null,null,null,"Z","1230L","Grade 7","Grade 7 - 10","Buildings are not often thought of as works of art, but the process of designing them can become an art form. Architects such as Frank Lloyd Wright and Zaha Hadid have been internationally recognized for their innovative designs. Through engaging text and full-color photographs, readers learn about the artistic challenges these and other architects face as they attempt to blend form and function in new and exciting ways. Readers are sure to love this detailed look at a kind of art they see around them every day and a career path they can pursue if they are interested in architecture.","English",40.4,32.32,"720.9--dc23","112 pp.","https://greenhavenpublishing.com/9781534560963",null,{"$f":"Table1[[#This Row],['# of Books]]*Table1[[#This Row],[QTY]]","v":0},{"$f":"Table1[[#This Row],[QTY]]*Table1[[#This Row],[School & Library Price]]","v":0}]
[null,null,17,null,null,"Arts & Humanities","Eye on Art","The Great Surrealists: Dreamers and Artists","978-1-5345-6605-7",{"$f":"HYPERLINK(Table1[[#This Row],[eCommerce Hyperlink]],\"Book Weblink\")","v":"Book Weblink"},null,"Lucent Press","Library Bound Book",1,"2019","January 2019","Library","7.000 X 9.000","Author","Vanessa Oswald",null,null,null,null,"Z",null,"Grade 7","Grade 7 - 10","Surrealism was a cultural movement started in France in the 1920s, which is best known for producing stunning visual artwork and inspirational writings, among other artistic achievements. Through well-researched main text, readers will learn about the lives of influential Surrealists such as Salvador Dali, Rene Magritte, Max Ernst, Joan Miro, and others who contributed to this essential period of art history. In addition, informative sidebars; annotated quotes from artists, historians, and other experts; and bold examples of renowned Surrealist artwork provide extra insight into this captivating topic, which will stimulate the minds of young artists and art lovers.","English",40.4,32.32,"700/.41163--dc23","104 pp.","https://greenhavenpublishing.com/9781534566057",null,{"$f":"Table1[[#This Row],['# of Books]]*Table1[[#This Row],[QTY]]","v":0},{"$f":"Table1[[#This Row],[QTY]]*Table1[[#This Row],[School & Library Price]]","v":0}]
[null,null,17,null,null,"Arts & Humanities","Eye on Art","The Great Surrealists: Dreamers and Artists","978-1-5345-6606-4",{"$f":"HYPERLINK(Table1[[#This Row],[eCommerce Hyperlink]],\"Book Weblink\")","v":"Book Weblink"},null,"Lucent Press","eBook",1,"2019","January 2019",null,null,"Author","Vanessa Oswald",null,null,null,null,"Z",null,"Grade 7","Grade 7 - 10","Surrealism was a cultural movement started in France in the 1920s, which is best known for producing stunning visual artwork and inspirational writings, among other artistic achievements. Through well-researched main text, readers will learn about the lives of influential Surrealists such as Salvador Dali, Rene Magritte, Max Ernst, Joan Miro, and others who contributed to this essential period of art history. In addition, informative sidebars; annotated quotes from artists, historians, and other experts; and bold examples of renowned Surrealist artwork provide extra insight into this captivating topic, which will stimulate the minds of young artists and art lovers.","English",40.4,32.32,"700/.41163--dc23","104 pp.","https://greenhavenpublishing.com/9781534566064",null,{"$f":"Table1[[#This Row],['# of Books]]*Table1[[#This Row],[QTY]]","v":0},{"$f":"Table1[[#This Row],[QTY]]*Table1[[#This Row],[School & Library Price]]","v":0}]
[null,null,17,null,null,"Arts & Humanities","Eye on Art","The Great Surrealists: Dreamers and Artists","978-1-5345-6604-0",{"$f":"HYPERLINK(Table1[[#This Row],[eCommerce Hyperlink]],\"Book Weblink\")","v":"Book Weblink"},null,"Lucent Press","Paperback Book",1,"2019","January 2019","Paperback","7.000 X 9.000","Author","Vanessa Oswald",null,null,null,null,"Z",null,"Grade 7","Grade 7 - 10","Surrealism was a cultural movement started in France in the 1920s, which is best known for producing stunning visual artwork and inspirational writings, among other artistic achievements. Through well-researched main text, readers will learn about the lives of influential Surrealists such as Salvador Dali, Rene Magritte, Max Ernst, Joan Miro, and others who contributed to this essential period of art history. In addition, informative sidebars; annotated quotes from artists, historians, and other experts; and bold examples of renowned Surrealist artwork provide extra insight into this captivating topic, which will stimulate the minds of young artists and art lovers.","English",20.99,17.850000000000001,"700/.41163--dc23","104 pp.","https://greenhavenpublishing.com/9781534566040",null,{"$f":"Table1[[#This Row],['# of Books]]*Table1[[#This Row],[QTY]]","v":0},{"$f":"Table1[[#This Row],[QTY]]*Table1[[#This Row],[School & Library Price]]","v":0}]
[null,null,17,null,null,"Arts & Humanities","The Music Library","The Music Library","978-1-5345-6603-3",{"$f":"HYPERLINK(Table1[[#This Row],[eCommerce Hyperlink]],\"Book Weblink\")","v":"Book Weblink"},null,"Lucent Press","Library Set",6,"2019","January 2019","Library","7.000 X 9.000",null,null,null,null,null,null,null,null,"Grade 7","Grade 7 - 10","Exploring the evolution of different musical styles is a creative way to learn about history, and readers are able to do this as they discover the fascinating stories behind a variety of popular genres of music, including pop, hip-hop, country, and indie rock. Through detailed main text, informative sidebars, and captivating photographs, they're introduced to the stories behind artists as varied as the Beatles, JAY-Z, and Gloria Estefan. These stories are told with the help of annotated quotes from artists as well as leading music critics, historians, and other experts, giving readers a behind-the-scenes look they won't soon forget. Features include: Recommended listening lists give readers a sense of the most influential albums in each genre. Historical and cultural background information gives readers a clear sense of the world events and social movements that inspire musicians, encouraging readers to think critically about the music they listen to. The comprehensive collection of topics introduces readers to musical genres they may be unfamiliar with, enriching their cultural education.","English",242.4,193.92,null,"104 pp.","https://greenhavenpublishing.com/9781534566033",null,{"$f":"Table1[[#This Row],['# of Books]]*Table1[[#This Row],[QTY]]","v":0},{"$f":"Table1[[#This Row],[QTY]]*Table1[[#This Row],[School & Library Price]]","v":0}]
[null,null,17,null,null,"Arts & Humanities","The Music Library","The Music Library","978-1-5345-6622-4",{"$f":"HYPERLINK(Table1[[#This Row],[eCommerce Hyperlink]],\"Book Weblink\")","v":"Book Weblink"},null,"Lucent Press","Single Copy Set",6,"2019","January 2019","Paperback","7.000 X 9.000",null,null,null,null,null,null,null,null,"Grade 7","Grade 7 - 10","Exploring the evolution of different musical styles is a creative way to learn about history, and readers are able to do this as they discover the fascinating stories behind a variety of popular genres of music, including pop, hip-hop, country, and indie rock. Through detailed main text, informative sidebars, and captivating photographs, they're introduced to the stories behind artists as varied as the Beatles, JAY-Z, and Gloria Estefan. These stories are told with the help of annotated quotes from artists as well as leading music critics, historians, and other experts, giving readers a behind-the-scenes look they won't soon forget. Features include: Recommended listening lists give readers a sense of the most influential albums in each genre. Historical and cultural background information gives readers a clear sense of the world events and social movements that inspire musicians, encouraging readers to think critically about the music they listen to. The comprehensive collection of topics introduces readers to musical genres they may be unfamiliar with, enriching their cultural education.","English",125.94,107.1,null,"104 pp.","https://greenhavenpublishing.com/9781534566224",null,{"$f":"Table1[[#This Row],['# of Books]]*Table1[[#This Row],[QTY]]","v":0},{"$f":"Table1[[#This Row],[QTY]]*Table1[[#This Row],[School & Library Price]]","v":0}]
[null,null,17,null,null,"Arts & Humanities","The Music Library","Country Music: A Uniquely American Sound","978-1-5345-6518-0",{"$f":"HYPERLINK(Table1[[#This Row],[eCommerce Hyperlink]],\"Book Weblink\")","v":"Book Weblink"},null,"Lucent Press","Library Bound Book",1,"2019","January 2019","Library","7.000 X 9.000","Author","Tamra B. Orr",null,null,null,null,"Z","1250L","Grade 7","Grade 7 - 10","For a long time, country music has been popular as a way to sing about emotions, events, and people in ordinary life. Over the years, country music has changed, bringing in more instruments, complex lyrics, and musical styles. From honky-tonks to Nashville, country rock to pop country, this style of music continues to evolve, grow, and keep people singing along. Readers discover history behind these toe-tapping tunes through main text and sidebars featuring annotated quotes from country artists and music critics, a detailed discography of essential country albums, and photographs of superstars of country music.","English",40.4,32.32,"781.642--dc23","104 pp.","https://greenhavenpublishing.com/9781534565180",null,{"$f":"Table1[[#This Row],['# of Books]]*Table1[[#This Row],[QTY]]","v":0},{"$f":"Table1[[#This Row],[QTY]]*Table1[[#This Row],[School & Library Price]]","v":0}]
[null,null,17,null,null,"Arts & Humanities","The Music Library","Country Music: A Uniquely American Sound","978-1-5345-6519-7",{"$f":"HYPERLINK(Table1[[#This Row],[eCommerce Hyperlink]],\"Book Weblink\")","v":"Book Weblink"},null,"Lucent Press","eBook",1,"2019","January 2019",null,null,"Author","Tamra B. Orr",null,null,null,null,"Z","1250L","Grade 7","Grade 7 - 10","For a long time, country music has been popular as a way to sing about emotions, events, and people in ordinary life. Over the years, country music has changed, bringing in more instruments, complex lyrics, and musical styles. From honky-tonks to Nashville, country rock to pop country, this style of music continues to evolve, grow, and keep people singing along. Readers discover history behind these toe-tapping tunes through main text and sidebars featuring annotated quotes from country artists and music critics, a detailed discography of essential country albums, and photographs of superstars of country music.","English",40.4,32.32,"781.642--dc23","104 pp.","https://greenhavenpublishing.com/9781534565197",null,{"$f":"Table1[[#This Row],['# of Books]]*Table1[[#This Row],[QTY]]","v":0},{"$f":"Table1[[#This Row],[QTY]]*Table1[[#This Row],[School & Library Price]]","v":0}]
[null,null,17,null,null,"Arts & Humanities","The Music Library","Country Music: A Uniquely American Sound","978-1-5345-6517-3",{"$f":"HYPERLINK(Table1[[#This Row],[eCommerce Hyperlink]],\"Book Weblink\")","v":"Book Weblink"},null,"Lucent Press","Paperback Book",1,"2019","January 2019","Paperback","7.000 X 9.000","Author","Tamra B. Orr",null,null,null,null,"Z","1250L","Grade 7","Grade 7 - 10","For a long time, country music has been popular as a way to sing about emotions, events, and people in ordinary life. Over the years, country music has changed, bringing in more instruments, complex lyrics, and musical styles. From honky-tonks to Nashville, country rock to pop country, this style of music continues to evolve, grow, and keep people singing along. Readers discover history behind these toe-tapping tunes through main text and sidebars featuring annotated quotes from country artists and music critics, a detailed discography of essential country albums, and photographs of superstars of country music.","English",20.99,17.850000000000001,"781.642--dc23","104 pp.","https://greenhavenpublishing.com/9781534565173",null,{"$f":"Table1[[#This Row],['# of Books]]*Table1[[#This Row],[QTY]]","v":0},{"$f":"Table1[[#This Row],[QTY]]*Table1[[#This Row],[School & Library Price]]","v":0}]
[null,null,17,null,null,"Arts & Humanities","The Music Library","Hip-Hop: A Cultural and Musical Revolution","978-1-5345-6515-9",{"$f":"HYPERLINK(Table1[[#This Row],[eCommerce Hyperlink]],\"Book Weblink\")","v":"Book Weblink"},null,"Lucent Press","Library Bound Book",1,"2019","January 2019","Library","7.000 X 9.000","Author","Vanessa Oswald",null,null,null,null,"Z","1330L","Grade 7","Grade 7 - 10","Hip-hop culture has shaped many facets of popular culture, including the worlds of music, politics, and business. The hip-hop movement began with New York City residents with few resources and has now turned into a billion-dollar worldwide industry. Readers will learn about the four elements of hip-hop: rapping (MCing), disc jockeying (DJing), graffiti art, and B-boying (break dancing). They'll learn how these foundational components evolved to construct what hip-hop is recognized as today. A list of essential hip-hop albums and annotated quotes from music critics and famous hip-hop artists are also included in this all-encompassing look at the history of hip-hop.","English",40.4,32.32,"782.421649--dc23","104 pp.","https://greenhavenpublishing.com/9781534565159",null,{"$f":"Table1[[#This Row],['# of Books]]*Table1[[#This Row],[QTY]]","v":0},{"$f":"Table1[[#This Row],[QTY]]*Table1[[#This Row],[School & Library Price]]","v":0}]
[null,null,17,null,null,"Arts & Humanities","The Music Library","Hip-Hop: A Cultural and Musical Revolution","978-1-5345-6516-6",{"$f":"HYPERLINK(Table1[[#This Row],[eCommerce Hyperlink]],\"Book Weblink\")","v":"Book Weblink"},null,"Lucent Press","eBook",1,"2019","January 2019",null,null,"Author","Vanessa Oswald",null,null,null,null,"Z","1330L","Grade 7","Grade 7 - 10","Hip-hop culture has shaped many facets of popular culture, including the worlds of music, politics, and business. The hip-hop movement began with New York City residents with few resources and has now turned into a billion-dollar worldwide industry. Readers will learn about the four elements of hip-hop: rapping (MCing), disc jockeying (DJing), graffiti art, and B-boying (break dancing). They'll learn how these foundational components evolved to construct what hip-hop is recognized as today. A list of essential hip-hop albums and annotated quotes from music critics and famous hip-hop artists are also included in this all-encompassing look at the history of hip-hop.","English",40.4,32.32,"782.421649--dc23","104 pp.","https://greenhavenpublishing.com/9781534565166",null,{"$f":"Table1[[#This Row],['# of Books]]*Table1[[#This Row],[QTY]]","v":0},{"$f":"Table1[[#This Row],[QTY]]*Table1[[#This Row],[School & Library Price]]","v":0}]
[null,null,17,null,null,"Arts & Humanities","The Music Library","Hip-Hop: A Cultural and Musical Revolution","978-1-5345-6514-2",{"$f":"HYPERLINK(Table1[[#This Row],[eCommerce Hyperlink]],\"Book Weblink\")","v":"Book Weblink"},null,"Lucent Press","Paperback Book",1,"2019","January 2019","Paperback","7.000 X 9.000","Author","Vanessa Oswald",null,null,null,null,"Z","1330L","Grade 7","Grade 7 - 10","Hip-hop culture has shaped many facets of popular culture, including the worlds of music, politics, and business. The hip-hop movement began with New York City residents with few resources and has now turned into a billion-dollar worldwide industry. Readers will learn about the four elements of hip-hop: rapping (MCing), disc jockeying (DJing), graffiti art, and B-boying (break dancing). They'll learn how these foundational components evolved to construct what hip-hop is recognized as today. A list of essential hip-hop albums and annotated quotes from music critics and famous hip-hop artists are also included in this all-encompassing look at the history of hip-hop.","English",20.99,17.850000000000001,"782.421649--dc23","104 pp.","https://greenhavenpublishing.com/9781534565142",null,{"$f":"Table1[[#This Row],['# of Books]]*Table1[[#This Row],[QTY]]","v":0},{"$f":"Table1[[#This Row],[QTY]]*Table1[[#This Row],[School & Library Price]]","v":0}]
[null,null,17,null,null,"Arts & Humanities","The Music Library","Indie Rock: Finding an Independent Voice","978-1-5345-6521-0",{"$f":"HYPERLINK(Table1[[#This Row],[eCommerce Hyperlink]],\"Book Weblink\")","v":"Book Weblink"},null,"Lucent Press","Library Bound Book",1,"2019","January 2019","Library","7.000 X 9.000","Author","Vanessa Oswald",null,null,null,null,"Z","1230L","Grade 7","Grade 7 - 10","The emergence of indie rock as a genre has helped categorize artists who belong to independent record labels. These musicians, due to their refusal to appeal to the mainstream, have boycotted the corporate rock scene to maintain more creative control. Readers learn about the debate behind whether indie bands later picked up by major labels should still be considered \"indie\" and why some see them as \"sell outs.\" Detailed sidebars, an essential albums list, and annotated quotes from artists and critics are also included to expose readers to the musicians responsible for the inception and continuance of indie rock.","English",40.4,32.32,"781.66--dc23","104 pp.","https://greenhavenpublishing.com/9781534565210",null,{"$f":"Table1[[#This Row],['# of Books]]*Table1[[#This Row],[QTY]]","v":0},{"$f":"Table1[[#This Row],[QTY]]*Table1[[#This Row],[School & Library Price]]","v":0}]
[null,null,17,null,null,"Arts & Humanities","The Music Library","Indie Rock: Finding an Independent Voice","978-1-5345-6522-7",{"$f":"HYPERLINK(Table1[[#This Row],[eCommerce Hyperlink]],\"Book Weblink\")","v":"Book Weblink"},null,"Lucent Press","eBook",1,"2019","January 2019",null,null,"Author","Vanessa Oswald",null,null,null,null,"Z","1230L","Grade 7","Grade 7 - 10","The emergence of indie rock as a genre has helped categorize artists who belong to independent record labels. These musicians, due to their refusal to appeal to the mainstream, have boycotted the corporate rock scene to maintain more creative control. Readers learn about the debate behind whether indie bands later picked up by major labels should still be considered \"indie\" and why some see them as \"sell outs.\" Detailed sidebars, an essential albums list, and annotated quotes from artists and critics are also included to expose readers to the musicians responsible for the inception and continuance of indie rock.","English",40.4,32.32,"781.66--dc23","104 pp.","https://greenhavenpublishing.com/9781534565227",null,{"$f":"Table1[[#This Row],['# of Books]]*Table1[[#This Row],[QTY]]","v":0},{"$f":"Table1[[#This Row],[QTY]]*Table1[[#This Row],[School & Library Price]]","v":0}]
[null,null,17,null,null,"Arts & Humanities","The Music Library","Indie Rock: Finding an Independent Voice","978-1-5345-6520-3",{"$f":"HYPERLINK(Table1[[#This Row],[eCommerce Hyperlink]],\"Book Weblink\")","v":"Book Weblink"},null,"Lucent Press","Paperback Book",1,"2019","January 2019","Paperback","7.000 X 9.000","Author","Vanessa Oswald",null,null,null,null,"Z","1230L","Grade 7","Grade 7 - 10","The emergence of indie rock as a genre has helped categorize artists who belong to independent record labels. These musicians, due to their refusal to appeal to the mainstream, have boycotted the corporate rock scene to maintain more creative control. Readers learn about the debate behind whether indie bands later picked up by major labels should still be considered \"indie\" and why some see them as \"sell outs.\" Detailed sidebars, an essential albums list, and annotated quotes from artists and critics are also included to expose readers to the musicians responsible for the inception and continuance of indie rock.","English",20.99,17.850000000000001,"781.66--dc23","104 pp.","https://greenhavenpublishing.com/9781534565203",null,{"$f":"Table1[[#This Row],['# of Books]]*Table1[[#This Row],[QTY]]","v":0},{"$f":"Table1[[#This Row],[QTY]]*Table1[[#This Row],[School & Library Price]]","v":0}]
[null,null,17,null,null,"Arts & Humanities","The Music Library","Latin Music: The Evolution of an International Sound","978-1-5345-6538-8",{"$f":"HYPERLINK(Table1[[#This Row],[eCommerce Hyperlink]],\"Book Weblink\")","v":"Book Weblink"},null,"Lucent Press","Library Bound Book",1,"2019","January 2019","Library","7.000 X 9.000","Author","Caroline Kennon",null,null,null,null,"Z","1300L","Grade 7","Grade 7 - 10","Just as people are shaped by the time and place they come from, so is music. Readers are invited to explore music that was born from Latin America and to trace its rise to a position of global popularity. They learn about the different instruments used in music styles such as Cuban and Caribbean and how this music influences the music of other cultures. Also featured is an extensive list of recommended Latin music albums, vibrant photographs of Latin music stars such as Gloria Estefan and Daddy Yankee, and annotated quotes from writers and musicians.","English",40.4,32.32,"780.98--dc23","104 pp.","https://greenhavenpublishing.com/9781534565388",null,{"$f":"Table1[[#This Row],['# of Books]]*Table1[[#This Row],[QTY]]","v":0},{"$f":"Table1[[#This Row],[QTY]]*Table1[[#This Row],[School & Library Price]]","v":0}]
[null,null,17,null,null,"Arts & Humanities","The Music Library","Latin Music: The Evolution of an International Sound","978-1-5345-6524-1",{"$f":"HYPERLINK(Table1[[#This Row],[eCommerce Hyperlink]],\"Book Weblink\")","v":"Book Weblink"},null,"Lucent Press","eBook",1,"2019","January 2019",null,null,"Author","Caroline Kennon",null,null,null,null,"Z","1300L","Grade 7","Grade 7 - 10","Just as people are shaped by the time and place they come from, so is music. Readers are invited to explore music that was born from Latin America and to trace its rise to a position of global popularity. They learn about the different instruments used in music styles such as Cuban and Caribbean and how this music influences the music of other cultures. Also featured is an extensive list of recommended Latin music albums, vibrant photographs of Latin music stars such as Gloria Estefan and Daddy Yankee, and annotated quotes from writers and musicians.","English",40.4,32.32,"780.98--dc23","104 pp.","https://greenhavenpublishing.com/9781534565241",null,{"$f":"Table1[[#This Row],['# of Books]]*Table1[[#This Row],[QTY]]","v":0},{"$f":"Table1[[#This Row],[QTY]]*Table1[[#This Row],[School & Library Price]]","v":0}]
[null,null,17,null,null,"Arts & Humanities","The Music Library","Latin Music: The Evolution of an International Sound","978-1-5345-6523-4",{"$f":"HYPERLINK(Table1[[#This Row],[eCommerce Hyperlink]],\"Book Weblink\")","v":"Book Weblink"},null,"Lucent Press","Paperback Book",1,"2019","January 2019","Paperback","7.000 X 9.000","Author","Caroline Kennon",null,null,null,null,"Z","1300L","Grade 7","Grade 7 - 10","Just as people are shaped by the time and place they come from, so is music. Readers are invited to explore music that was born from Latin America and to trace its rise to a position of global popularity. They learn about the different instruments used in music styles such as Cuban and Caribbean and how this music influences the music of other cultures. Also featured is an extensive list of recommended Latin music albums, vibrant photographs of Latin music stars such as Gloria Estefan and Daddy Yankee, and annotated quotes from writers and musicians.","English",20.99,17.850000000000001,"780.98--dc23","104 pp.","https://greenhavenpublishing.com/9781534565234",null,{"$f":"Table1[[#This Row],['# of Books]]*Table1[[#This Row],[QTY]]","v":0},{"$f":"Table1[[#This Row],[QTY]]*Table1[[#This Row],[School & Library Price]]","v":0}]
[null,null,17,null,null,"Arts & Humanities","The Music Library","Metal Music: A History for Headbangers","978-1-5345-6526-5",{"$f":"HYPERLINK(Table1[[#This Row],[eCommerce Hyperlink]],\"Book Weblink\")","v":"Book Weblink"},null,"Lucent Press","Library Bound Book",1,"2019","January 2019","Library","7.000 X 9.000","Author","Nicole Horning",null,null,null,null,"Z","1220L","Grade 7","Grade 7 - 10","How did the popularity of the Beatles lead to the birth of metal music? What do metal artists have in common with classical composers such as Bach and Vivaldi? Readers will explore the answers to these questions and more as they journey through the history of metal music, from Black Sabbath to Slipknot. Readers will gain a deeper appreciation for this complex genre as they explore the evolution of metal and its sub-genres through annotated quotes from musicians and critics, full-color photographs, and a discography of some of the most influential albums in headbanging history.","English",40.4,32.32,"781.66--dc23","104 pp.","https://greenhavenpublishing.com/9781534565265",null,{"$f":"Table1[[#This Row],['# of Books]]*Table1[[#This Row],[QTY]]","v":0},{"$f":"Table1[[#This Row],[QTY]]*Table1[[#This Row],[School & Library Price]]","v":0}]
[null,null,17,null,null,"Arts & Humanities","The Music Library","Metal Music: A History for Headbangers","978-1-5345-6527-2",{"$f":"HYPERLINK(Table1[[#This Row],[eCommerce Hyperlink]],\"Book Weblink\")","v":"Book Weblink"},null,"Lucent Press","eBook",1,"2019","January 2019",null,null,"Author","Nicole Horning",null,null,null,null,"Z","1220L","Grade 7","Grade 7 - 10","How did the popularity of the Beatles lead to the birth of metal music? What do metal artists have in common with classical composers such as Bach and Vivaldi? Readers will explore the answers to these questions and more as they journey through the history of metal music, from Black Sabbath to Slipknot. Readers will gain a deeper appreciation for this complex genre as they explore the evolution of metal and its sub-genres through annotated quotes from musicians and critics, full-color photographs, and a discography of some of the most influential albums in headbanging history.","English",40.4,32.32,"781.66--dc23","104 pp.","https://greenhavenpublishing.com/9781534565272",null,{"$f":"Table1[[#This Row],['# of Books]]*Table1[[#This Row],[QTY]]","v":0},{"$f":"Table1[[#This Row],[QTY]]*Table1[[#This Row],[School & Library Price]]","v":0}]
[null,null,17,null,null,"Arts & Humanities","The Music Library","Metal Music: A History for Headbangers","978-1-5345-6525-8",{"$f":"HYPERLINK(Table1[[#This Row],[eCommerce Hyperlink]],\"Book Weblink\")","v":"Book Weblink"},null,"Lucent Press","Paperback Book",1,"2019","January 2019","Paperback","7.000 X 9.000","Author","Nicole Horning",null,null,null,null,"Z","1220L","Grade 7","Grade 7 - 10","How did the popularity of the Beatles lead to the birth of metal music? What do metal artists have in common with classical composers such as Bach and Vivaldi? Readers will explore the answers to these questions and more as they journey through the history of metal music, from Black Sabbath to Slipknot. Readers will gain a deeper appreciation for this complex genre as they explore the evolution of metal and its sub-genres through annotated quotes from musicians and critics, full-color photographs, and a discography of some of the most influential albums in headbanging history.","English",20.99,17.850000000000001,"781.66--dc23","104 pp.","https://greenhavenpublishing.com/9781534565258",null,{"$f":"Table1[[#This Row],['# of Books]]*Table1[[#This Row],[QTY]]","v":0},{"$f":"Table1[[#This Row],[QTY]]*Table1[[#This Row],[School & Library Price]]","v":0}]
[null,null,17,null,null,"Arts & Humanities","The Music Library","Pop Music: Chart-Toppers Throughout History","978-1-5345-6540-1",{"$f":"HYPERLINK(Table1[[#This Row],[eCommerce Hyperlink]],\"Book Weblink\")","v":"Book Weblink"},null,"Lucent Press","Library Bound Book",1,"2019","January 2019","Library","7.000 X 9.000","Author","Nicole Horning",null,null,null,null,"Z","1250L","Grade 7","Grade 7 - 10","What do boy bands from the 1990s have in common with the Beatles? Why are some pop artists, such as Justin Timberlake, considered controversial? Readers will discover these answers and the stories behind beloved artists from the Beach Boys to Lady Gaga through fun and fact-filled text about the roots of pop music and how it has spread around the world. Readers will gain a deeper appreciation for their favorite artists and the pop stars who came before them as they explore a discography of important albums, full-color photographs, annotated quotes from artists and journalists, and fascinating sidebars.","English",40.4,32.32,"781.6409--dc23","104 pp.","https://greenhavenpublishing.com/9781534565401",null,{"$f":"Table1[[#This Row],['# of Books]]*Table1[[#This Row],[QTY]]","v":0},{"$f":"Table1[[#This Row],[QTY]]*Table1[[#This Row],[School & Library Price]]","v":0}]
[null,null,17,null,null,"Arts & Humanities","The Music Library","Pop Music: Chart-Toppers Throughout History","978-1-5345-6541-8",{"$f":"HYPERLINK(Table1[[#This Row],[eCommerce Hyperlink]],\"Book Weblink\")","v":"Book Weblink"},null,"Lucent Press","eBook",1,"2019","January 2019",null,null,"Author","Nicole Horning",null,null,null,null,"Z","1250L","Grade 7","Grade 7 - 10","What do boy bands from the 1990s have in common with the Beatles? Why are some pop artists, such as Justin Timberlake, considered controversial? Readers will discover these answers and the stories behind beloved artists from the Beach Boys to Lady Gaga through fun and fact-filled text about the roots of pop music and how it has spread around the world. Readers will gain a deeper appreciation for their favorite artists and the pop stars who came before them as they explore a discography of important albums, full-color photographs, annotated quotes from artists and journalists, and fascinating sidebars.","English",40.4,32.32,"781.6409--dc23","104 pp.","https://greenhavenpublishing.com/9781534565418",null,{"$f":"Table1[[#This Row],['# of Books]]*Table1[[#This Row],[QTY]]","v":0},{"$f":"Table1[[#This Row],[QTY]]*Table1[[#This Row],[School & Library Price]]","v":0}]
[null,null,17,null,null,"Arts & Humanities","The Music Library","Pop Music: Chart-Toppers Throughout History","978-1-5345-6539-5",{"$f":"HYPERLINK(Table1[[#This Row],[eCommerce Hyperlink]],\"Book Weblink\")","v":"Book Weblink"},null,"Lucent Press","Paperback Book",1,"2019","January 2019","Paperback","7.000 X 9.000","Author","Nicole Horning",null,null,null,null,"Z","1250L","Grade 7","Grade 7 - 10","What do boy bands from the 1990s have in common with the Beatles? Why are some pop artists, such as Justin Timberlake, considered controversial? Readers will discover these answers and the stories behind beloved artists from the Beach Boys to Lady Gaga through fun and fact-filled text about the roots of pop music and how it has spread around the world. Readers will gain a deeper appreciation for their favorite artists and the pop stars who came before them as they explore a discography of important albums, full-color photographs, annotated quotes from artists and journalists, and fascinating sidebars.","English",20.99,17.850000000000001,"781.6409--dc23","104 pp.","https://greenhavenpublishing.com/9781534565395",null,{"$f":"Table1[[#This Row],['# of Books]]*Table1[[#This Row],[QTY]]","v":0},{"$f":"Table1[[#This Row],[QTY]]*Table1[[#This Row],[School & Library Price]]","v":0}]
[null,null,18,null,null,"Biographies","People in the News","People in the News: Set 1","978-1-5345-6067-3",{"$f":"HYPERLINK(Table1[[#This Row],[eCommerce Hyperlink]],\"Book Weblink\")","v":"Book Weblink"},null,"Lucent Press","Library Set",6,"2017","January 2017","Library","6.000 X 9.000",null,null,null,null,null,null,null,null,"Grade 7","Grade 7 - 10","Supporting social studies, history, and biography assignments, as well as providing casual reading, People in the News profiles the lives and careers of some of today's most prominent newsmakers. Whether covering contributions and achievements or notorious deeds, books in this series examine why these well-known individuals garnered public attention.","English",242.4,193.92,null,"104 pp.","https://greenhavenpublishing.com/9781534560673",null,{"$f":"Table1[[#This Row],['# of Books]]*Table1[[#This Row],[QTY]]","v":0},{"$f":"Table1[[#This Row],[QTY]]*Table1[[#This Row],[School & Library Price]]","v":0}]
[null,null,18,null,null,"Biographies","People in the News","Elon Musk: Space Entrepreneur","978-1-5345-6035-2",{"$f":"HYPERLINK(Table1[[#This Row],[eCommerce Hyperlink]],\"Book Weblink\")","v":"Book Weblink"},null,"Lucent Press","Library Bound Book",1,"2017","January 2017","Library","6.000 X 9.000","Author","Ryan Nagelhout",null,null,null,null,"Z","1140L","Grade 7","Grade 7 - 10","Elon Musk has created plans for many futuristic enterprises, including a high-speed transportation system in California, solar power for private residences, and a human colony on Mars! He aims to change the way we live on Earth as well as make it possible to sustain life on other planets. Readers will learn about this influential figure in today’s economy including his early life and the projects he has had a hand in through accessible text and a biographical timeline. Full-color photographs and inspirational quotes from Musk create an engaging reading experience for fans of technology and business.","English",40.4,32.32,"332.1’78--dc23","104 pp.","https://greenhavenpublishing.com/9781534560352",null,{"$f":"Table1[[#This Row],['# of Books]]*Table1[[#This Row],[QTY]]","v":0},{"$f":"Table1[[#This Row],[QTY]]*Table1[[#This Row],[School & Library Price]]","v":0}]
[null,null,18,null,null,"Biographies","People in the News","Elon Musk: Space Entrepreneur","978-1-5345-6036-9",{"$f":"HYPERLINK(Table1[[#This Row],[eCommerce Hyperlink]],\"Book Weblink\")","v":"Book Weblink"},null,"Lucent Press","eBook",1,"2017","January 2017",null,null,"Author","Ryan Nagelhout",null,null,null,null,"Z","1140L","Grade 7","Grade 7 - 10","Elon Musk has created plans for many futuristic enterprises, including a high-speed transportation system in California, solar power for private residences, and a human colony on Mars! He aims to change the way we live on Earth as well as make it possible to sustain life on other planets. Readers will learn about this influential figure in today’s economy including his early life and the projects he has had a hand in through accessible text and a biographical timeline. Full-color photographs and inspirational quotes from Musk create an engaging reading experience for fans of technology and business.","English",40.4,32.32,"332.1’78--dc23","104 pp.","https://greenhavenpublishing.com/9781534560369",null,{"$f":"Table1[[#This Row],['# of Books]]*Table1[[#This Row],[QTY]]","v":0},{"$f":"Table1[[#This Row],[QTY]]*Table1[[#This Row],[School & Library Price]]","v":0}]
[null,null,18,null,null,"Biographies","People in the News","LeBron James: Basketball's King","978-1-5345-6029-1",{"$f":"HYPERLINK(Table1[[#This Row],[eCommerce Hyperlink]],\"Book Weblink\")","v":"Book Weblink"},null,"Lucent Press","Library Bound Book",1,"2017","January 2017","Library","6.000 X 9.000","Author, Author","Ryan Nagelhout, Anne Wallace Sharp",null,null,null,null,"Z","1130L","Grade 7","Grade 7 - 10","LeBron James overcame adversity to become a superstar athlete while he was still in high school. After joining the NBA, he won multiple championships and awards, and he is widely considered one of the best basketball players in history. Sports fans will be interested to learn about his early life and the challenges he overcame throughout his career. Full-color photographs and a timeline of important dates highlight his rise to success.","English",40.4,32.32,"796.323092--dc23","104 pp.","https://greenhavenpublishing.com/9781534560291",null,{"$f":"Table1[[#This Row],['# of Books]]*Table1[[#This Row],[QTY]]","v":0},{"$f":"Table1[[#This Row],[QTY]]*Table1[[#This Row],[School & Library Price]]","v":0}]
[null,null,18,null,null,"Biographies","People in the News","LeBron James: Basketball's King","978-1-5345-6030-7",{"$f":"HYPERLINK(Table1[[#This Row],[eCommerce Hyperlink]],\"Book Weblink\")","v":"Book Weblink"},null,"Lucent Press","eBook",1,"2017","January 2017",null,null,"Author, Author","Ryan Nagelhout, Anne Wallace Sharp",null,null,null,null,"Z","1130L","Grade 7","Grade 7 - 10","LeBron James overcame adversity to become a superstar athlete while he was still in high school. After joining the NBA, he won multiple championships and awards, and he is widely considered one of the best basketball players in history. Sports fans will be interested to learn about his early life and the challenges he overcame throughout his career. Full-color photographs and a timeline of important dates highlight his rise to success.","English",40.4,32.32,"796.323092--dc23","104 pp.","https://greenhavenpublishing.com/9781534560307",null,{"$f":"Table1[[#This Row],['# of Books]]*Table1[[#This Row],[QTY]]","v":0},{"$f":"Table1[[#This Row],[QTY]]*Table1[[#This Row],[School & Library Price]]","v":0}]
[null,null,18,null,null,"Biographies","People in the News","Serena Williams: Tennis Ace","978-1-5345-6027-7",{"$f":"HYPERLINK(Table1[[#This Row],[eCommerce Hyperlink]],\"Book Weblink\")","v":"Book Weblink"},null,"Lucent Press","Library Bound Book",1,"2017","January 2017","Library","6.000 X 9.000","Author, Author","Andrew Pina, Michael V. Uschan",null,null,null,null,"Z","1150L","Grade 7","Grade 7 - 10","Many people know that Serena Williams has triumphed on the tennis court, challenging racist and sexist attitudes as she rose to the top of her sport. However, it may surprise readers to discover that she is also a humanitarian, an actress, and a fashion icon. With motivational quotes from Williams and a timeline of her milestones thus far, readers will enjoy learning more about this inspiring woman who is more than just a sports star.","English",40.4,32.32,"796.342092","104 pp.","https://greenhavenpublishing.com/9781534560277",null,{"$f":"Table1[[#This Row],['# of Books]]*Table1[[#This Row],[QTY]]","v":0},{"$f":"Table1[[#This Row],[QTY]]*Table1[[#This Row],[School & Library Price]]","v":0}]
[null,null,18,null,null,"Biographies","People in the News","Serena Williams: Tennis Ace","978-1-5345-6028-4",{"$f":"HYPERLINK(Table1[[#This Row],[eCommerce Hyperlink]],\"Book Weblink\")","v":"Book Weblink"},null,"Lucent Press","eBook",1,"2017","January 2017",null,null,"Author, Author","Andrew Pina, Michael V. Uschan",null,null,null,null,"Z","1150L","Grade 7","Grade 7 - 10","Many people know that Serena Williams has triumphed on the tennis court, challenging racist and sexist attitudes as she rose to the top of her sport. However, it may surprise readers to discover that she is also a humanitarian, an actress, and a fashion icon. With motivational quotes from Williams and a timeline of her milestones thus far, readers will enjoy learning more about this inspiring woman who is more than just a sports star.","English",40.4,32.32,"796.342092","104 pp.","https://greenhavenpublishing.com/9781534560284",null,{"$f":"Table1[[#This Row],['# of Books]]*Table1[[#This Row],[QTY]]","v":0},{"$f":"Table1[[#This Row],[QTY]]*Table1[[#This Row],[School & Library Price]]","v":0}]
[null,null,18,null,null,"Biographies","People in the News","Steve Jobs: Computer Visionary","978-1-5345-6031-4",{"$f":"HYPERLINK(Table1[[#This Row],[eCommerce Hyperlink]],\"Book Weblink\")","v":"Book Weblink"},null,"Lucent Press","Library Bound Book",1,"2017","January 2017","Library","6.000 X 9.000","Author, Author","Sophie Washburne, Barbara Sheen",null,null,null,null,"Z","1000L","Grade 7","Grade 7 - 10","Steve Jobs is a controversial figure who is regarded with awe by some and disgust by others, but he inarguably changed the faces of technology and entertainment with his involvement in Apple and Pixar. This volume presents both sides of the debate, citing Jobs's proponents and detractors, allowing readers to come to their own conclusions about his actions. Detailed sidebars, a fact-filled timeline, and full-color photographs augment the engaging discussion.","English",40.4,32.32,"338.7'6100416092--dc23","104 pp.","https://greenhavenpublishing.com/9781534560314",null,{"$f":"Table1[[#This Row],['# of Books]]*Table1[[#This Row],[QTY]]","v":0},{"$f":"Table1[[#This Row],[QTY]]*Table1[[#This Row],[School & Library Price]]","v":0}]
[null,null,18,null,null,"Biographies","People in the News","Steve Jobs: Computer Visionary","978-1-5345-6032-1",{"$f":"HYPERLINK(Table1[[#This Row],[eCommerce Hyperlink]],\"Book Weblink\")","v":"Book Weblink"},null,"Lucent Press","eBook",1,"2017","January 2017",null,null,"Author, Author","Sophie Washburne, Barbara Sheen",null,null,null,null,"Z","1000L","Grade 7","Grade 7 - 10","Steve Jobs is a controversial figure who is regarded with awe by some and disgust by others, but he inarguably changed the faces of technology and entertainment with his involvement in Apple and Pixar. This volume presents both sides of the debate, citing Jobs's proponents and detractors, allowing readers to come to their own conclusions about his actions. Detailed sidebars, a fact-filled timeline, and full-color photographs augment the engaging discussion.","English",40.4,32.32,"338.7'6100416092--dc23","104 pp.","https://greenhavenpublishing.com/9781534560321",null,{"$f":"Table1[[#This Row],['# of Books]]*Table1[[#This Row],[QTY]]","v":0},{"$f":"Table1[[#This Row],[QTY]]*Table1[[#This Row],[School & Library Price]]","v":0}]
[null,null,18,null,null,"Biographies","People in the News","Taylor Swift: Superstar Singer","978-1-5345-6025-3",{"$f":"HYPERLINK(Table1[[#This Row],[eCommerce Hyperlink]],\"Book Weblink\")","v":"Book Weblink"},null,"Lucent Press","Library Bound Book",1,"2017","January 2017","Library","6.000 X 9.000","Author, Author","Katie Kawa, Cherese Cartlidge",null,null,null,null,"Z","1170L","Grade 7","Grade 7 - 10","Taylor Swift has changed her image since she got her start in music, turning from country music sweetheart to pop princess. Best known for her empowering songs about coming of age, Swift has captured the hearts of teens around the world and presents a positive role model for young girls. Full-color photographs, a biographical timeline, and anecdotal sidebars help readers get to know the real Swift.","English",40.4,32.32,"782.421642092","104 pp.","https://greenhavenpublishing.com/9781534560253",null,{"$f":"Table1[[#This Row],['# of Books]]*Table1[[#This Row],[QTY]]","v":0},{"$f":"Table1[[#This Row],[QTY]]*Table1[[#This Row],[School & Library Price]]","v":0}]
[null,null,18,null,null,"Biographies","People in the News","Taylor Swift: Superstar Singer","978-1-5345-6026-0",{"$f":"HYPERLINK(Table1[[#This Row],[eCommerce Hyperlink]],\"Book Weblink\")","v":"Book Weblink"},null,"Lucent Press","eBook",1,"2017","January 2017",null,null,"Author, Author","Katie Kawa, Cherese Cartlidge",null,null,null,null,"Z","1170L","Grade 7","Grade 7 - 10","Taylor Swift has changed her image since she got her start in music, turning from country music sweetheart to pop princess. Best known for her empowering songs about coming of age, Swift has captured the hearts of teens around the world and presents a positive role model for young girls. Full-color photographs, a biographical timeline, and anecdotal sidebars help readers get to know the real Swift.","English",40.4,32.32,"782.421642092","104 pp.","https://greenhavenpublishing.com/9781534560260",null,{"$f":"Table1[[#This Row],['# of Books]]*Table1[[#This Row],[QTY]]","v":0},{"$f":"Table1[[#This Row],[QTY]]*Table1[[#This Row],[School & Library Price]]","v":0}]
[null,null,18,null,null,"Biographies","People in the News","Tina Fey: Queen of Comedy","978-1-5345-6033-8",{"$f":"HYPERLINK(Table1[[#This Row],[eCommerce Hyperlink]],\"Book Weblink\")","v":"Book Weblink"},null,"Lucent Press","Library Bound Book",1,"2017","January 2017","Library","6.000 X 9.000","Author, Author","Melissa Raé Shofner, Lauri S. Friedman",null,null,null,null,"Z","1170L","Grade 7","Grade 7 - 10","Tina Fey, one of the most prominent women in comedy, is well known for her work on shows such as Saturday Night Live and 30 Rock. As a writer and actress, she has changed the way people see female comedians and altered the “boys club” mentality that characterized the working environment of Saturday Night Live. Readers are presented with fascinating details about Fey’s life, from the childhood experiences that inspired Mean Girls to her rise to stardom. This engaging text is enhanced with full-color photographs, detailed sidebars, and a comprehensive timeline.","English",40.4,32.32,"791.4502’8092","104 pp.","https://greenhavenpublishing.com/9781534560338",null,{"$f":"Table1[[#This Row],['# of Books]]*Table1[[#This Row],[QTY]]","v":0},{"$f":"Table1[[#This Row],[QTY]]*Table1[[#This Row],[School & Library Price]]","v":0}]
[null,null,18,null,null,"Biographies","People in the News","Tina Fey: Queen of Comedy","978-1-5345-6034-5",{"$f":"HYPERLINK(Table1[[#This Row],[eCommerce Hyperlink]],\"Book Weblink\")","v":"Book Weblink"},null,"Lucent Press","eBook",1,"2017","January 2017",null,null,"Author, Author","Melissa Raé Shofner, Lauri S. Friedman",null,null,null,null,"Z","1170L","Grade 7","Grade 7 - 10","Tina Fey, one of the most prominent women in comedy, is well known for her work on shows such as Saturday Night Live and 30 Rock. As a writer and actress, she has changed the way people see female comedians and altered the “boys club” mentality that characterized the working environment of Saturday Night Live. Readers are presented with fascinating details about Fey’s life, from the childhood experiences that inspired Mean Girls to her rise to stardom. This engaging text is enhanced with full-color photographs, detailed sidebars, and a comprehensive timeline.","English",40.4,32.32,"791.4502’8092","104 pp.","https://greenhavenpublishing.com/9781534560345",null,{"$f":"Table1[[#This Row],['# of Books]]*Table1[[#This Row],[QTY]]","v":0},{"$f":"Table1[[#This Row],[QTY]]*Table1[[#This Row],[School & Library Price]]","v":0}]
[null,null,18,null,null,"Biographies","People in the News","People in the News: Set 2","978-1-5345-6457-2",{"$f":"HYPERLINK(Table1[[#This Row],[eCommerce Hyperlink]],\"Book Weblink\")","v":"Book Weblink"},null,"Lucent Press","Library Set",6,"2019","August 2018","Library","6.000 X 9.000",null,null,null,null,null,null,null,null,"Grade 7","Grade 7 - 10","People are fascinated by celebrities, but rarely do they know much about actors, comedians, or singers beyond their public personas. For this reason, it is sometimes easy to forget that celebrities are real people who have had their own triumphs, setbacks, hopes, and fears. Readers learn about the lives and accomplishments of some of today's most influential celebrities, including facts that are not commonly known. Full-color photographs and engaging sidebars enhance the informative text, and a detailed timeline presents these stars' milestones at a glance. Features include: The series examines a diverse range of influential and inspirational celebrities, including Ellen DeGeneres, Dwayne Johnson, and Lin-Manuel Miranda, giving readers positive role models to look up to. Annotated quotes by each celebrity allow readers to learn more about each person in his or her own words. This high-interest topic appeals to even reluctant readers and encourages them to think critically about the world of entertainment media.","English",242.4,193.92,null,"104 pp.","https://greenhavenpublishing.com/9781534564572",null,{"$f":"Table1[[#This Row],['# of Books]]*Table1[[#This Row],[QTY]]","v":0},{"$f":"Table1[[#This Row],[QTY]]*Table1[[#This Row],[School & Library Price]]","v":0}]
[null,null,18,null,null,"Biographies","People in the News","People in the News (Fall 2018)","978-1-5345-6471-8",{"$f":"HYPERLINK(Table1[[#This Row],[eCommerce Hyperlink]],\"Book Weblink\")","v":"Book Weblink"},null,"Lucent Press","Single Copy Set",6,"2019","August 2018","Paperback","6.000 X 9.000",null,null,null,null,null,null,null,null,"Grade 7","Grade 7 - 10","People are fascinated by celebrities, but rarely do they know much about actors, comedians, or singers beyond their public personas. For this reason, it is sometimes easy to forget that celebrities are real people who have had their own triumphs, setbacks, hopes, and fears. Readers learn about the lives and accomplishments of some of today's most influential celebrities, including facts that are not commonly known. Full-color photographs and engaging sidebars enhance the informative text, and a detailed timeline presents these stars' milestones at a glance. Features include: The series examines a diverse range of influential and inspirational celebrities, including Ellen DeGeneres, Dwayne Johnson, and Lin-Manuel Miranda, giving readers positive role models to look up to. Annotated quotes by each celebrity allow readers to learn more about each person in his or her own words. This high-interest topic appeals to even reluctant readers and encourages them to think critically about the world of entertainment media.","English",125.94,107.1,null,"104 pp.","https://greenhavenpublishing.com/9781534564718",null,{"$f":"Table1[[#This Row],['# of Books]]*Table1[[#This Row],[QTY]]","v":0},{"$f":"Table1[[#This Row],[QTY]]*Table1[[#This Row],[School & Library Price]]","v":0}]
[null,null,18,null,null,"Biographies","People in the News","Dwayne Johnson: The Rock’s Rise to Fame","978-1-5345-6329-2",{"$f":"HYPERLINK(Table1[[#This Row],[eCommerce Hyperlink]],\"Book Weblink\")","v":"Book Weblink"},null,"Lucent Press","Library Bound Book",1,"2019","August 2018","Library","6.000 X 9.000","Author","Ryan Nagelhout",null,null,null,null,"Z","1100L","Grade 7","Grade 7 - 10","Dwayne Johnson was a successful college football player and a superstar wrestler known as The Rock before becoming one of Hollywood's biggest movie stars. The story behind his rise to fame is sure to captivate readers and inspire them as they explore detailed main text and sidebars that are supplemented with annotated quotes from Johnson and those who know him best. A detailed timeline of his personal life and professional career is also included, along with vibrant photographs from the football field, the wrestling ring, and the red carpet.","English",40.4,32.32,"791.4302/8092--dc23","104 pp.","https://greenhavenpublishing.com/9781534563292",null,{"$f":"Table1[[#This Row],['# of Books]]*Table1[[#This Row],[QTY]]","v":0},{"$f":"Table1[[#This Row],[QTY]]*Table1[[#This Row],[School & Library Price]]","v":0}]
[null,null,18,null,null,"Biographies","People in the News","Dwayne Johnson: The Rock’s Rise to Fame","978-1-5345-6330-8",{"$f":"HYPERLINK(Table1[[#This Row],[eCommerce Hyperlink]],\"Book Weblink\")","v":"Book Weblink"},null,"Lucent Press","eBook",1,"2019","August 2018",null,null,"Author","Ryan Nagelhout",null,null,null,null,"Z","1100L","Grade 7","Grade 7 - 10","Dwayne Johnson was a successful college football player and a superstar wrestler known as The Rock before becoming one of Hollywood's biggest movie stars. The story behind his rise to fame is sure to captivate readers and inspire them as they explore detailed main text and sidebars that are supplemented with annotated quotes from Johnson and those who know him best. A detailed timeline of his personal life and professional career is also included, along with vibrant photographs from the football field, the wrestling ring, and the red carpet.","English",40.4,32.32,"791.4302/8092--dc23","104 pp.","https://greenhavenpublishing.com/9781534563308",null,{"$f":"Table1[[#This Row],['# of Books]]*Table1[[#This Row],[QTY]]","v":0},{"$f":"Table1[[#This Row],[QTY]]*Table1[[#This Row],[School & Library Price]]","v":0}]
[null,null,18,null,null,"Biographies","People in the News","Dwayne Johnson: The Rock’s Rise to Fame","978-1-5345-6331-5",{"$f":"HYPERLINK(Table1[[#This Row],[eCommerce Hyperlink]],\"Book Weblink\")","v":"Book Weblink"},null,"Lucent Press","Paperback Book",1,"2019","August 2018","Paperback","6.000 X 9.000","Author","Ryan Nagelhout",null,null,null,null,"Z","1100L","Grade 7","Grade 7 - 10","Dwayne Johnson was a successful college football player and a superstar wrestler known as The Rock before becoming one of Hollywood's biggest movie stars. The story behind his rise to fame is sure to captivate readers and inspire them as they explore detailed main text and sidebars that are supplemented with annotated quotes from Johnson and those who know him best. A detailed timeline of his personal life and professional career is also included, along with vibrant photographs from the football field, the wrestling ring, and the red carpet.","English",20.99,17.850000000000001,"791.4302/8092--dc23","104 pp.","https://greenhavenpublishing.com/9781534563315",null,{"$f":"Table1[[#This Row],['# of Books]]*Table1[[#This Row],[QTY]]","v":0},{"$f":"Table1[[#This Row],[QTY]]*Table1[[#This Row],[School & Library Price]]","v":0}]
[null,null,18,null,null,"Biographies","People in the News","Ellen DeGeneres: Groundbreaking Television Star","978-1-5345-6332-2",{"$f":"HYPERLINK(Table1[[#This Row],[eCommerce Hyperlink]],\"Book Weblink\")","v":"Book Weblink"},null,"Lucent Press","Library Bound Book",1,"2019","August 2018","Library","6.000 X 9.000","Author","Sophie Washburne",null,null,null,null,"Z",null,"Grade 7","Grade 7 - 10","Beloved comedian and daytime talk show host Ellen DeGeneres has received much recognition for her work, including numerous Emmy and People's Choice awards. Her groundbreaking choice to be open about her sexuality at a time when being gay was widely condemned and her LGBT+ advocacy work since then also earned her the Presidential Medal of Freedom in 2016. Through detailed main text enhanced by engaging sidebars, full-color photographs, and a thorough timeline, readers will be inspired by Ellen's impact, both on Hollywood and society as a whole.","English",40.4,32.32,"792.702'8092--dc23","104 pp.","https://greenhavenpublishing.com/9781534563322",null,{"$f":"Table1[[#This Row],['# of Books]]*Table1[[#This Row],[QTY]]","v":0},{"$f":"Table1[[#This Row],[QTY]]*Table1[[#This Row],[School & Library Price]]","v":0}]
[null,null,18,null,null,"Biographies","People in the News","Ellen DeGeneres: Groundbreaking Television Star","978-1-5345-6333-9",{"$f":"HYPERLINK(Table1[[#This Row],[eCommerce Hyperlink]],\"Book Weblink\")","v":"Book Weblink"},null,"Lucent Press","eBook",1,"2019","August 2018",null,null,"Author","Sophie Washburne",null,null,null,null,"Z",null,"Grade 7","Grade 7 - 10","Beloved comedian and daytime talk show host Ellen DeGeneres has received much recognition for her work, including numerous Emmy and People's Choice awards. Her groundbreaking choice to be open about her sexuality at a time when being gay was widely condemned and her LGBT+ advocacy work since then also earned her the Presidential Medal of Freedom in 2016. Through detailed main text enhanced by engaging sidebars, full-color photographs, and a thorough timeline, readers will be inspired by Ellen's impact, both on Hollywood and society as a whole.","English",40.4,32.32,"792.702'8092--dc23","104 pp.","https://greenhavenpublishing.com/9781534563339",null,{"$f":"Table1[[#This Row],['# of Books]]*Table1[[#This Row],[QTY]]","v":0},{"$f":"Table1[[#This Row],[QTY]]*Table1[[#This Row],[School & Library Price]]","v":0}]
[null,null,18,null,null,"Biographies","People in the News","Ellen DeGeneres: Groundbreaking Television Star","978-1-5345-6334-6",{"$f":"HYPERLINK(Table1[[#This Row],[eCommerce Hyperlink]],\"Book Weblink\")","v":"Book Weblink"},null,"Lucent Press","Paperback Book",1,"2019","August 2018","Paperback","6.000 X 9.000","Author","Sophie Washburne",null,null,null,null,"Z",null,"Grade 7","Grade 7 - 10","Beloved comedian and daytime talk show host Ellen DeGeneres has received much recognition for her work, including numerous Emmy and People's Choice awards. Her groundbreaking choice to be open about her sexuality at a time when being gay was widely condemned and her LGBT+ advocacy work since then also earned her the Presidential Medal of Freedom in 2016. Through detailed main text enhanced by engaging sidebars, full-color photographs, and a thorough timeline, readers will be inspired by Ellen's impact, both on Hollywood and society as a whole.","English",20.99,17.850000000000001,"792.702'8092--dc23","104 pp.","https://greenhavenpublishing.com/9781534563346",null,{"$f":"Table1[[#This Row],['# of Books]]*Table1[[#This Row],[QTY]]","v":0},{"$f":"Table1[[#This Row],[QTY]]*Table1[[#This Row],[School & Library Price]]","v":0}]
[null,null,18,null,null,"Biographies","People in the News","JAY-Z: Building a Hip-Hop Empire","978-1-5345-6335-3",{"$f":"HYPERLINK(Table1[[#This Row],[eCommerce Hyperlink]],\"Book Weblink\")","v":"Book Weblink"},null,"Lucent Press","Library Bound Book",1,"2019","August 2018","Library","6.000 X 9.000","Author","Vanessa Oswald",null,null,null,null,"Z","1160L","Grade 7","Grade 7 - 10","Shawn Corey Carter, known to most of the world as JAY-Z, has made a name for himself as one of the most successful artists in hip-hop. Not only has he achieved this success with rapping, but also as an entrepreneur. Having grown up in a housing project in Brooklyn, his story is a tale of struggles and successes. Engaging main text, full-color photographs, and a detailed timeline give readers an inside look into this rap star's exciting life. Annotated quotes from JAY-Z and others provide first-person perspectives on his rise to the top of the worlds of hip-hop and business.","English",40.4,32.32,"782.421649092--dc23","104 pp.","https://greenhavenpublishing.com/9781534563353",null,{"$f":"Table1[[#This Row],['# of Books]]*Table1[[#This Row],[QTY]]","v":0},{"$f":"Table1[[#This Row],[QTY]]*Table1[[#This Row],[School & Library Price]]","v":0}]
[null,null,18,null,null,"Biographies","People in the News","JAY-Z: Building a Hip-Hop Empire","978-1-5345-6336-0",{"$f":"HYPERLINK(Table1[[#This Row],[eCommerce Hyperlink]],\"Book Weblink\")","v":"Book Weblink"},null,"Lucent Press","eBook",1,"2019","August 2018",null,null,"Author","Vanessa Oswald",null,null,null,null,"Z","1160L","Grade 7","Grade 7 - 10","Shawn Corey Carter, known to most of the world as JAY-Z, has made a name for himself as one of the most successful artists in hip-hop. Not only has he achieved this success with rapping, but also as an entrepreneur. Having grown up in a housing project in Brooklyn, his story is a tale of struggles and successes. Engaging main text, full-color photographs, and a detailed timeline give readers an inside look into this rap star's exciting life. Annotated quotes from JAY-Z and others provide first-person perspectives on his rise to the top of the worlds of hip-hop and business.","English",40.4,32.32,"782.421649092--dc23","104 pp.","https://greenhavenpublishing.com/9781534563360",null,{"$f":"Table1[[#This Row],['# of Books]]*Table1[[#This Row],[QTY]]","v":0},{"$f":"Table1[[#This Row],[QTY]]*Table1[[#This Row],[School & Library Price]]","v":0}]
[null,null,18,null,null,"Biographies","People in the News","JAY-Z: Building a Hip-Hop Empire","978-1-5345-6337-7",{"$f":"HYPERLINK(Table1[[#This Row],[eCommerce Hyperlink]],\"Book Weblink\")","v":"Book Weblink"},null,"Lucent Press","Paperback Book",1,"2019","August 2018","Paperback","6.000 X 9.000","Author","Vanessa Oswald",null,null,null,null,"Z","1160L","Grade 7","Grade 7 - 10","Shawn Corey Carter, known to most of the world as JAY-Z, has made a name for himself as one of the most successful artists in hip-hop. Not only has he achieved this success with rapping, but also as an entrepreneur. Having grown up in a housing project in Brooklyn, his story is a tale of struggles and successes. Engaging main text, full-color photographs, and a detailed timeline give readers an inside look into this rap star's exciting life. Annotated quotes from JAY-Z and others provide first-person perspectives on his rise to the top of the worlds of hip-hop and business.","English",20.99,17.850000000000001,"782.421649092--dc23","104 pp.","https://greenhavenpublishing.com/9781534563377",null,{"$f":"Table1[[#This Row],['# of Books]]*Table1[[#This Row],[QTY]]","v":0},{"$f":"Table1[[#This Row],[QTY]]*Table1[[#This Row],[School & Library Price]]","v":0}]
[null,null,18,null,null,"Biographies","People in the News","Katy Perry: Purposeful Pop Icon","978-1-5345-6324-7",{"$f":"HYPERLINK(Table1[[#This Row],[eCommerce Hyperlink]],\"Book Weblink\")","v":"Book Weblink"},null,"Lucent Press","Library Bound Book",1,"2019","August 2018","Library","6.000 X 9.000","Author","Vanessa Oswald",null,null,null,null,"Z","1120L","Grade 7","Grade 7 - 10","For the past decade, Katy Perry has been a visible part of the pop music scene. However, fans may be surprised to learn that despite the themes of some of Perry's early songs, she grew up in a conservative family. This and other fun facts about Perry's life are presented to readers alongside annotated quotes from the famous singer and those who know her best. With the release of her album Witness, Perry has shifted her focus to songs that explore deeper emotions and issues. Full-color photographs and a detailed timeline give readers a glimpse at the real Katy Perry.","English",40.4,32.32,"782.42164092--dc23","104 pp.","https://greenhavenpublishing.com/9781534563247",null,{"$f":"Table1[[#This Row],['# of Books]]*Table1[[#This Row],[QTY]]","v":0},{"$f":"Table1[[#This Row],[QTY]]*Table1[[#This Row],[School & Library Price]]","v":0}]
[null,null,18,null,null,"Biographies","People in the News","Katy Perry: Purposeful Pop Icon","978-1-5345-6325-4",{"$f":"HYPERLINK(Table1[[#This Row],[eCommerce Hyperlink]],\"Book Weblink\")","v":"Book Weblink"},null,"Lucent Press","eBook",1,"2019","August 2018",null,null,"Author","Vanessa Oswald",null,null,null,null,"Z","1120L","Grade 7","Grade 7 - 10","For the past decade, Katy Perry has been a visible part of the pop music scene. However, fans may be surprised to learn that despite the themes of some of Perry's early songs, she grew up in a conservative family. This and other fun facts about Perry's life are presented to readers alongside annotated quotes from the famous singer and those who know her best. With the release of her album Witness, Perry has shifted her focus to songs that explore deeper emotions and issues. Full-color photographs and a detailed timeline give readers a glimpse at the real Katy Perry.","English",40.4,32.32,"782.42164092--dc23","104 pp.","https://greenhavenpublishing.com/9781534563254",null,{"$f":"Table1[[#This Row],['# of Books]]*Table1[[#This Row],[QTY]]","v":0},{"$f":"Table1[[#This Row],[QTY]]*Table1[[#This Row],[School & Library Price]]","v":0}]
[null,null,18,null,null,"Biographies","People in the News","Katy Perry: Purposeful Pop Icon","978-1-5345-6323-0",{"$f":"HYPERLINK(Table1[[#This Row],[eCommerce Hyperlink]],\"Book Weblink\")","v":"Book Weblink"},null,"Lucent Press","Paperback Book",1,"2019","August 2018","Paperback","6.000 X 9.000","Author","Vanessa Oswald",null,null,null,null,"Z","1120L","Grade 7","Grade 7 - 10","For the past decade, Katy Perry has been a visible part of the pop music scene. However, fans may be surprised to learn that despite the themes of some of Perry's early songs, she grew up in a conservative family. This and other fun facts about Perry's life are presented to readers alongside annotated quotes from the famous singer and those who know her best. With the release of her album Witness, Perry has shifted her focus to songs that explore deeper emotions and issues. Full-color photographs and a detailed timeline give readers a glimpse at the real Katy Perry.","English",20.99,17.850000000000001,"782.42164092--dc23","104 pp.","https://greenhavenpublishing.com/9781534563230",null,{"$f":"Table1[[#This Row],['# of Books]]*Table1[[#This Row],[QTY]]","v":0},{"$f":"Table1[[#This Row],[QTY]]*Table1[[#This Row],[School & Library Price]]","v":0}]
[null,null,18,null,null,"Biographies","People in the News","Lin-Manuel Miranda: From Broadway to the Big Screen","978-1-5345-6338-4",{"$f":"HYPERLINK(Table1[[#This Row],[eCommerce Hyperlink]],\"Book Weblink\")","v":"Book Weblink"},null,"Lucent Press","Library Bound Book",1,"2019","August 2018","Library","6.000 X 9.000","Author","Kristen Rajczak Nelson",null,null,null,null,"Z","1120L","Grade 7","Grade 7 - 10","Lin-Manuel Miranda is one of the most accomplished entertainers working today. From his Broadway hit Hamilton to Oscar-nominated songs from Moana, Miranda is fast becoming a household name. This volume, featuring annotated quotes, vibrant photographs, sidebars, and a detailed timeline, follows Miranda from his early life in New York to the stage and screen work that has earned him such great acclaim. Including stories from his childhood, the writing process of In the Heights and Hamilton, and his time working on Mary Poppins Returns, this book will spark any reader to take a shot at their dreams.","English",40.4,32.32,"792.02'8092--dc23","104 pp.","https://greenhavenpublishing.com/9781534563384",null,{"$f":"Table1[[#This Row],['# of Books]]*Table1[[#This Row],[QTY]]","v":0},{"$f":"Table1[[#This Row],[QTY]]*Table1[[#This Row],[School & Library Price]]","v":0}]
[null,null,18,null,null,"Biographies","People in the News","Lin-Manuel Miranda: From Broadway to the Big Screen","978-1-5345-6339-1",{"$f":"HYPERLINK(Table1[[#This Row],[eCommerce Hyperlink]],\"Book Weblink\")","v":"Book Weblink"},null,"Lucent Press","eBook",1,"2019","August 2018",null,null,"Author","Kristen Rajczak Nelson",null,null,null,null,"Z","1120L","Grade 7","Grade 7 - 10","Lin-Manuel Miranda is one of the most accomplished entertainers working today. From his Broadway hit Hamilton to Oscar-nominated songs from Moana, Miranda is fast becoming a household name. This volume, featuring annotated quotes, vibrant photographs, sidebars, and a detailed timeline, follows Miranda from his early life in New York to the stage and screen work that has earned him such great acclaim. Including stories from his childhood, the writing process of In the Heights and Hamilton, and his time working on Mary Poppins Returns, this book will spark any reader to take a shot at their dreams.","English",40.4,32.32,"792.02'8092--dc23","104 pp.","https://greenhavenpublishing.com/9781534563391",null,{"$f":"Table1[[#This Row],['# of Books]]*Table1[[#This Row],[QTY]]","v":0},{"$f":"Table1[[#This Row],[QTY]]*Table1[[#This Row],[School & Library Price]]","v":0}]
[null,null,18,null,null,"Biographies","People in the News","Lin-Manuel Miranda: From Broadway to the Big Screen","978-1-5345-6340-7",{"$f":"HYPERLINK(Table1[[#This Row],[eCommerce Hyperlink]],\"Book Weblink\")","v":"Book Weblink"},null,"Lucent Press","Paperback Book",1,"2019","August 2018","Paperback","6.000 X 9.000","Author","Kristen Rajczak Nelson",null,null,null,null,"Z","1120L","Grade 7","Grade 7 - 10","Lin-Manuel Miranda is one of the most accomplished entertainers working today. From his Broadway hit Hamilton to Oscar-nominated songs from Moana, Miranda is fast becoming a household name. This volume, featuring annotated quotes, vibrant photographs, sidebars, and a detailed timeline, follows Miranda from his early life in New York to the stage and screen work that has earned him such great acclaim. Including stories from his childhood, the writing process of In the Heights and Hamilton, and his time working on Mary Poppins Returns, this book will spark any reader to take a shot at their dreams.","English",20.99,17.850000000000001,"792.02'8092--dc23","104 pp.","https://greenhavenpublishing.com/9781534563407",null,{"$f":"Table1[[#This Row],['# of Books]]*Table1[[#This Row],[QTY]]","v":0},{"$f":"Table1[[#This Row],[QTY]]*Table1[[#This Row],[School & Library Price]]","v":0}]
[null,null,18,null,null,"Biographies","People in the News","Stephen Colbert: Late-Night Comedy Leader","978-1-5345-6326-1",{"$f":"HYPERLINK(Table1[[#This Row],[eCommerce Hyperlink]],\"Book Weblink\")","v":"Book Weblink"},null,"Lucent Press","Library Bound Book",1,"2019","August 2018","Library","6.000 X 9.000","Author","Allison Krumsiek",null,null,null,null,"Z","1200L","Grade 7","Grade 7 - 10","Stephen Colbert became famous through his television show, The Colbert Report, before becoming the host of The Late Show and using his political humor to rise to the top of the late-night ratings. Readers not only learn about Colbert's early life and rise to fame, but also the ways he has made his shows successful. In-depth sidebars augment the informative text to show all the facets of Colbert's personal and professional life. Full-color photographs, a comprehensive timeline, and annotated quotes also enhance this look at one of the leaders of late-night comedy.","English",40.4,32.32,"792.702/8092--dc23","104 pp.","https://greenhavenpublishing.com/9781534563261",null,{"$f":"Table1[[#This Row],['# of Books]]*Table1[[#This Row],[QTY]]","v":0},{"$f":"Table1[[#This Row],[QTY]]*Table1[[#This Row],[School & Library Price]]","v":0}]
[null,null,18,null,null,"Biographies","People in the News","Stephen Colbert: Late-Night Comedy Leader","978-1-5345-6327-8",{"$f":"HYPERLINK(Table1[[#This Row],[eCommerce Hyperlink]],\"Book Weblink\")","v":"Book Weblink"},null,"Lucent Press","eBook",1,"2019","August 2018",null,null,"Author","Allison Krumsiek",null,null,null,null,"Z","1200L","Grade 7","Grade 7 - 10","Stephen Colbert became famous through his television show, The Colbert Report, before becoming the host of The Late Show and using his political humor to rise to the top of the late-night ratings. Readers not only learn about Colbert's early life and rise to fame, but also the ways he has made his shows successful. In-depth sidebars augment the informative text to show all the facets of Colbert's personal and professional life. Full-color photographs, a comprehensive timeline, and annotated quotes also enhance this look at one of the leaders of late-night comedy.","English",40.4,32.32,"792.702/8092--dc23","104 pp.","https://greenhavenpublishing.com/9781534563278",null,{"$f":"Table1[[#This Row],['# of Books]]*Table1[[#This Row],[QTY]]","v":0},{"$f":"Table1[[#This Row],[QTY]]*Table1[[#This Row],[School & Library Price]]","v":0}]
[null,null,18,null,null,"Biographies","People in the News","Stephen Colbert: Late-Night Comedy Leader","978-1-5345-6328-5",{"$f":"HYPERLINK(Table1[[#This Row],[eCommerce Hyperlink]],\"Book Weblink\")","v":"Book Weblink"},null,"Lucent Press","Paperback Book",1,"2019","August 2018","Paperback","6.000 X 9.000","Author","Allison Krumsiek",null,null,null,null,"Z","1200L","Grade 7","Grade 7 - 10","Stephen Colbert became famous through his television show, The Colbert Report, before becoming the host of The Late Show and using his political humor to rise to the top of the late-night ratings. Readers not only learn about Colbert's early life and rise to fame, but also the ways he has made his shows successful. In-depth sidebars augment the informative text to show all the facets of Colbert's personal and professional life. Full-color photographs, a comprehensive timeline, and annotated quotes also enhance this look at one of the leaders of late-night comedy.","English",20.99,17.850000000000001,"792.702/8092--dc23","104 pp.","https://greenhavenpublishing.com/9781534563285",null,{"$f":"Table1[[#This Row],['# of Books]]*Table1[[#This Row],[QTY]]","v":0},{"$f":"Table1[[#This Row],[QTY]]*Table1[[#This Row],[School & Library Price]]","v":0}]
[null,null,18,null,null,"Biographies","People in the News","People in the News: Set 3","978-1-5345-6710-8",{"$f":"HYPERLINK(Table1[[#This Row],[eCommerce Hyperlink]],\"Book Weblink\")","v":"Book Weblink"},null,"Lucent Press","Library Set",6,"2020","August 2019","Library","6.000 X 9.000",null,null,null,null,null,null,null,null,"Grade 7","Grade 7 - 10","The fascinating lives of some of the biggest names in entertainment, technology, and politics unfold for readers as they explore this inside look at today's newsmakers. Each comprehensive biography focuses on presenting the true stories behind news reports, magazine covers, and social media profiles. This is done through detailed main texts and informative sidebars that expand on important and interesting topics. Full-color photographs of each subject including Michelle Obama and Gal Gadot fill the pages. Helpful timelines summarize these inspiring lives in an accessible way. Features include: Annotated quotations that provide first-person perspectives and encourage further research. Balanced text and objective tone foster the development of critical thinking skills. High-interest subjects attract reluctant readers.","English",242.4,193.92,null,"104 pp.","https://greenhavenpublishing.com/9781534567108",null,{"$f":"Table1[[#This Row],['# of Books]]*Table1[[#This Row],[QTY]]","v":0},{"$f":"Table1[[#This Row],[QTY]]*Table1[[#This Row],[School & Library Price]]","v":0}]
[null,null,18,null,null,"Biographies","People in the News","People in the News (Fall 2019)","978-1-5345-6806-8",{"$f":"HYPERLINK(Table1[[#This Row],[eCommerce Hyperlink]],\"Book Weblink\")","v":"Book Weblink"},null,"Lucent Press","Single Copy Set",6,"2020","August 2019","Paperback","6.000 X 9.000",null,null,null,null,null,null,null,null,"Grade 7","Grade 7 - 10","The fascinating lives of some of the biggest names in entertainment, technology, and politics unfold for readers as they explore this inside look at today's newsmakers. Each comprehensive biography focuses on presenting the true stories behind news reports, magazine covers, and social media profiles. This is done through detailed main texts and informative sidebars that expand on important and interesting topics. Full-color photographs of each subject including Michelle Obama and Gal Gadot fill the pages. Helpful timelines summarize these inspiring lives in an accessible way. Features include: Annotated quotations that provide first-person perspectives and encourage further research. Balanced text and objective tone foster the development of critical thinking skills. High-interest subjects attract reluctant readers.","English",125.94,107.1,null,"104 pp.","https://greenhavenpublishing.com/9781534568068",null,{"$f":"Table1[[#This Row],['# of Books]]*Table1[[#This Row],[QTY]]","v":0},{"$f":"Table1[[#This Row],[QTY]]*Table1[[#This Row],[School & Library Price]]","v":0}]
[null,null,18,null,null,"Biographies","People in the News","Beyoncé: The Reign of Queen Bey","978-1-5345-6706-1",{"$f":"HYPERLINK(Table1[[#This Row],[eCommerce Hyperlink]],\"Book Weblink\")","v":"Book Weblink"},null,"Lucent Press","Library Bound Book",1,"2020","August 2019","Library","6.000 X 9.000","Author","Vanessa Oswald",null,null,null,null,"Z",null,"Grade 7","Grade 7 - 10","She is one of the most iconic performers of her generation. From her early days in Destiny's Child to her career as a highly successful solo artist, she has created numerous hit albums, starred in many films, and performed for legions of passionate fans who often refer to her as Queen Bey. This book examines Beyonce's relationship with her family, her career as a performer and businesswoman, and how she has channeled her fame into activism. Fact-filled sidebars, annotated quotations, and full-color photographs add extra insight to this fascinating biography.","English",40.4,32.32,"782.42164092--dc23","104 pp.","https://greenhavenpublishing.com/9781534567061",null,{"$f":"Table1[[#This Row],['# of Books]]*Table1[[#This Row],[QTY]]","v":0},{"$f":"Table1[[#This Row],[QTY]]*Table1[[#This Row],[School & Library Price]]","v":0}]
[null,null,18,null,null,"Biographies","People in the News","Beyoncé: The Reign of Queen Bey","978-1-5345-6772-6",{"$f":"HYPERLINK(Table1[[#This Row],[eCommerce Hyperlink]],\"Book Weblink\")","v":"Book Weblink"},null,"Lucent Press","eBook",1,"2020","August 2019",null,null,"Author","Vanessa Oswald",null,null,null,null,"Z",null,"Grade 7","Grade 7 - 10","She is one of the most iconic performers of her generation. From her early days in Destiny's Child to her career as a highly successful solo artist, she has created numerous hit albums, starred in many films, and performed for legions of passionate fans who often refer to her as Queen Bey. This book examines Beyonce's relationship with her family, her career as a performer and businesswoman, and how she has channeled her fame into activism. Fact-filled sidebars, annotated quotations, and full-color photographs add extra insight to this fascinating biography.","English",40.4,32.32,"782.42164092--dc23","104 pp.","https://greenhavenpublishing.com/9781534567726",null,{"$f":"Table1[[#This Row],['# of Books]]*Table1[[#This Row],[QTY]]","v":0},{"$f":"Table1[[#This Row],[QTY]]*Table1[[#This Row],[School & Library Price]]","v":0}]
[null,null,18,null,null,"Biographies","People in the News","Beyoncé: The Reign of Queen Bey","978-1-5345-6771-9",{"$f":"HYPERLINK(Table1[[#This Row],[eCommerce Hyperlink]],\"Book Weblink\")","v":"Book Weblink"},null,"Lucent Press","Paperback Book",1,"2020","August 2019","Paperback","6.000 X 9.000","Author","Vanessa Oswald",null,null,null,null,"Z",null,"Grade 7","Grade 7 - 10","She is one of the most iconic performers of her generation. From her early days in Destiny's Child to her career as a highly successful solo artist, she has created numerous hit albums, starred in many films, and performed for legions of passionate fans who often refer to her as Queen Bey. This book examines Beyonce's relationship with her family, her career as a performer and businesswoman, and how she has channeled her fame into activism. Fact-filled sidebars, annotated quotations, and full-color photographs add extra insight to this fascinating biography.","English",20.99,17.850000000000001,"782.42164092--dc23","104 pp.","https://greenhavenpublishing.com/9781534567719",null,{"$f":"Table1[[#This Row],['# of Books]]*Table1[[#This Row],[QTY]]","v":0},{"$f":"Table1[[#This Row],[QTY]]*Table1[[#This Row],[School & Library Price]]","v":0}]
[null,null,18,null,null,"Biographies","People in the News","Gal Gadot: A New Kind of Action Hero","978-1-5345-6709-2",{"$f":"HYPERLINK(Table1[[#This Row],[eCommerce Hyperlink]],\"Book Weblink\")","v":"Book Weblink"},null,"Lucent Press","Library Bound Book",1,"2020","August 2019","Library","6.000 X 9.000","Author","Vanessa Oswald",null,null,null,null,"Z",null,"Grade 7","Grade 7 - 10","Gal Gadot has become a major star and role model after being cast as the superhero Wonder Woman in a film franchise that has inspired women around the world. The Israeli actress has earned her spot as one of Hollywood's biggest action stars. Readers explore her many fascinating life experiences, from being crowned Miss Israel to her time serving in the Israel Defense Forces. Readers will learn about her early modeling and acting career. Additional fun facts about Gadot are presented through detailed sidebars, while annotated quotations provide a unique perspective on her rise to fame, and full-color photographs create a vibrant learning experience.","English",40.4,32.32,"791.4302/8092--dc23","104 pp.","https://greenhavenpublishing.com/9781534567092",null,{"$f":"Table1[[#This Row],['# of Books]]*Table1[[#This Row],[QTY]]","v":0},{"$f":"Table1[[#This Row],[QTY]]*Table1[[#This Row],[School & Library Price]]","v":0}]
[null,null,18,null,null,"Biographies","People in the News","Gal Gadot: A New Kind of Action Hero","978-1-5345-6778-8",{"$f":"HYPERLINK(Table1[[#This Row],[eCommerce Hyperlink]],\"Book Weblink\")","v":"Book Weblink"},null,"Lucent Press","eBook",1,"2020","August 2019",null,null,"Author","Vanessa Oswald",null,null,null,null,"Z",null,"Grade 7","Grade 7 - 10","Gal Gadot has become a major star and role model after being cast as the superhero Wonder Woman in a film franchise that has inspired women around the world. The Israeli actress has earned her spot as one of Hollywood's biggest action stars. Readers explore her many fascinating life experiences, from being crowned Miss Israel to her time serving in the Israel Defense Forces. Readers will learn about her early modeling and acting career. Additional fun facts about Gadot are presented through detailed sidebars, while annotated quotations provide a unique perspective on her rise to fame, and full-color photographs create a vibrant learning experience.","English",40.4,32.32,"791.4302/8092--dc23","104 pp.","https://greenhavenpublishing.com/9781534567788",null,{"$f":"Table1[[#This Row],['# of Books]]*Table1[[#This Row],[QTY]]","v":0},{"$f":"Table1[[#This Row],[QTY]]*Table1[[#This Row],[School & Library Price]]","v":0}]
[null,null,18,null,null,"Biographies","People in the News","Gal Gadot: A New Kind of Action Hero","978-1-5345-6777-1",{"$f":"HYPERLINK(Table1[[#This Row],[eCommerce Hyperlink]],\"Book Weblink\")","v":"Book Weblink"},null,"Lucent Press","Paperback Book",1,"2020","August 2019","Paperback","6.000 X 9.000","Author","Vanessa Oswald",null,null,null,null,"Z",null,"Grade 7","Grade 7 - 10","Gal Gadot has become a major star and role model after being cast as the superhero Wonder Woman in a film franchise that has inspired women around the world. The Israeli actress has earned her spot as one of Hollywood's biggest action stars. Readers explore her many fascinating life experiences, from being crowned Miss Israel to her time serving in the Israel Defense Forces. Readers will learn about her early modeling and acting career. Additional fun facts about Gadot are presented through detailed sidebars, while annotated quotations provide a unique perspective on her rise to fame, and full-color photographs create a vibrant learning experience.","English",20.99,17.850000000000001,"791.4302/8092--dc23","104 pp.","https://greenhavenpublishing.com/9781534567771",null,{"$f":"Table1[[#This Row],['# of Books]]*Table1[[#This Row],[QTY]]","v":0},{"$f":"Table1[[#This Row],[QTY]]*Table1[[#This Row],[School & Library Price]]","v":0}]
[null,null,18,null,null,"Biographies","People in the News","Mark Zuckerberg: Shaping Social Media","978-1-5345-6707-8",{"$f":"HYPERLINK(Table1[[#This Row],[eCommerce Hyperlink]],\"Book Weblink\")","v":"Book Weblink"},null,"Lucent Press","Library Bound Book",1,"2020","August 2019","Library","6.000 X 9.000","Author","Therese Harasymiw",null,null,null,null,"Z",null,"Grade 7","Grade 7 - 10","Mark Zuckerberg is perhaps best known as the creator of Facebook, but this tech mogul was working with computers long before the rise of social media. Today, the young CEO lives a relatively quiet life and has pledged to give much of his money to charity. In this captivating exploration of Zuckerberg's career and personal life, readers will find the real story of his inspiring, though and at times controversial rise to fortune and fame. Informational sidebars, full-color photographs, and annotated quotes give readers a behind-the-scenes look into what continuously drives Zuckerberg to achieve success.","English",40.4,32.32,"302.30285--dc23","104 pp.","https://greenhavenpublishing.com/9781534567078",null,{"$f":"Table1[[#This Row],['# of Books]]*Table1[[#This Row],[QTY]]","v":0},{"$f":"Table1[[#This Row],[QTY]]*Table1[[#This Row],[School & Library Price]]","v":0}]
[null,null,18,null,null,"Biographies","People in the News","Mark Zuckerberg: Shaping Social Media","978-1-5345-6774-0",{"$f":"HYPERLINK(Table1[[#This Row],[eCommerce Hyperlink]],\"Book Weblink\")","v":"Book Weblink"},null,"Lucent Press","eBook",1,"2020","August 2019",null,null,"Author","Therese Harasymiw",null,null,null,null,"Z",null,"Grade 7","Grade 7 - 10","Mark Zuckerberg is perhaps best known as the creator of Facebook, but this tech mogul was working with computers long before the rise of social media. Today, the young CEO lives a relatively quiet life and has pledged to give much of his money to charity. In this captivating exploration of Zuckerberg's career and personal life, readers will find the real story of his inspiring, though and at times controversial rise to fortune and fame. Informational sidebars, full-color photographs, and annotated quotes give readers a behind-the-scenes look into what continuously drives Zuckerberg to achieve success.","English",40.4,32.32,"302.30285--dc23","104 pp.","https://greenhavenpublishing.com/9781534567740",null,{"$f":"Table1[[#This Row],['# of Books]]*Table1[[#This Row],[QTY]]","v":0},{"$f":"Table1[[#This Row],[QTY]]*Table1[[#This Row],[School & Library Price]]","v":0}]
[null,null,18,null,null,"Biographies","People in the News","Mark Zuckerberg: Shaping Social Media","978-1-5345-6773-3",{"$f":"HYPERLINK(Table1[[#This Row],[eCommerce Hyperlink]],\"Book Weblink\")","v":"Book Weblink"},null,"Lucent Press","Paperback Book",1,"2020","August 2019","Paperback","6.000 X 9.000","Author","Therese Harasymiw",null,null,null,null,"Z",null,"Grade 7","Grade 7 - 10","Mark Zuckerberg is perhaps best known as the creator of Facebook, but this tech mogul was working with computers long before the rise of social media. Today, the young CEO lives a relatively quiet life and has pledged to give much of his money to charity. In this captivating exploration of Zuckerberg's career and personal life, readers will find the real story of his inspiring, though and at times controversial rise to fortune and fame. Informational sidebars, full-color photographs, and annotated quotes give readers a behind-the-scenes look into what continuously drives Zuckerberg to achieve success.","English",20.99,17.850000000000001,"302.30285--dc23","104 pp.","https://greenhavenpublishing.com/9781534567733",null,{"$f":"Table1[[#This Row],['# of Books]]*Table1[[#This Row],[QTY]]","v":0},{"$f":"Table1[[#This Row],[QTY]]*Table1[[#This Row],[School & Library Price]]","v":0}]
[null,null,18,null,null,"Biographies","People in the News","Michelle Obama: First Lady, Author, and Activist","978-1-5345-6708-5",{"$f":"HYPERLINK(Table1[[#This Row],[eCommerce Hyperlink]],\"Book Weblink\")","v":"Book Weblink"},null,"Lucent Press","Library Bound Book",1,"2020","August 2019","Library","6.000 X 9.000","Author","Kristen Rajczak Nelson",null,null,null,null,"Z",null,"Grade 7","Grade 7 - 10","In 2011, Michelle Obama said, \"There are still many causes worth sacrificing for, so much history yet to be made.\" Since leaving the White House, she has continued to live by those words. Readers explore the most current examples of her activism, but they also take a look into her past to see how her impressive educational and professional background made her a unique and historic First Lady. Detailed sidebars, vibrant photographs, and annotated quotes allow readers to trace her journey from her childhood in Chicago to her time in the White House and the release of her highly-anticipated memoir.","English",40.4,32.32,"973.932092--dc23","104 pp.","https://greenhavenpublishing.com/9781534567085",null,{"$f":"Table1[[#This Row],['# of Books]]*Table1[[#This Row],[QTY]]","v":0},{"$f":"Table1[[#This Row],[QTY]]*Table1[[#This Row],[School & Library Price]]","v":0}]
[null,null,18,null,null,"Biographies","People in the News","Michelle Obama: First Lady, Author, and Activist","978-1-5345-6776-4",{"$f":"HYPERLINK(Table1[[#This Row],[eCommerce Hyperlink]],\"Book Weblink\")","v":"Book Weblink"},null,"Lucent Press","eBook",1,"2020","August 2019",null,null,"Author","Kristen Rajczak Nelson",null,null,null,null,"Z",null,"Grade 7","Grade 7 - 10","In 2011, Michelle Obama said, \"There are still many causes worth sacrificing for, so much history yet to be made.\" Since leaving the White House, she has continued to live by those words. Readers explore the most current examples of her activism, but they also take a look into her past to see how her impressive educational and professional background made her a unique and historic First Lady. Detailed sidebars, vibrant photographs, and annotated quotes allow readers to trace her journey from her childhood in Chicago to her time in the White House and the release of her highly-anticipated memoir.","English",40.4,32.32,"973.932092--dc23","104 pp.","https://greenhavenpublishing.com/9781534567764",null,{"$f":"Table1[[#This Row],['# of Books]]*Table1[[#This Row],[QTY]]","v":0},{"$f":"Table1[[#This Row],[QTY]]*Table1[[#This Row],[School & Library Price]]","v":0}]
[null,null,18,null,null,"Biographies","People in the News","Michelle Obama: First Lady, Author, and Activist","978-1-5345-6775-7",{"$f":"HYPERLINK(Table1[[#This Row],[eCommerce Hyperlink]],\"Book Weblink\")","v":"Book Weblink"},null,"Lucent Press","Paperback Book",1,"2020","August 2019","Paperback","6.000 X 9.000","Author","Kristen Rajczak Nelson",null,null,null,null,"Z",null,"Grade 7","Grade 7 - 10","In 2011, Michelle Obama said, \"There are still many causes worth sacrificing for, so much history yet to be made.\" Since leaving the White House, she has continued to live by those words. Readers explore the most current examples of her activism, but they also take a look into her past to see how her impressive educational and professional background made her a unique and historic First Lady. Detailed sidebars, vibrant photographs, and annotated quotes allow readers to trace her journey from her childhood in Chicago to her time in the White House and the release of her highly-anticipated memoir.","English",20.99,17.850000000000001,"973.932092--dc23","104 pp.","https://greenhavenpublishing.com/9781534567757",null,{"$f":"Table1[[#This Row],['# of Books]]*Table1[[#This Row],[QTY]]","v":0},{"$f":"Table1[[#This Row],[QTY]]*Table1[[#This Row],[School & Library Price]]","v":0}]
[null,null,18,null,null,"Biographies","People in the News","Prince Harry: Royal Rule-Breaker","978-1-5345-6704-7",{"$f":"HYPERLINK(Table1[[#This Row],[eCommerce Hyperlink]],\"Book Weblink\")","v":"Book Weblink"},null,"Lucent Press","Library Bound Book",1,"2020","August 2019","Library","6.000 X 9.000","Author","Elizabeth Krajnik",null,null,null,null,"Z",null,"Grade 7","Grade 7 - 10","Prince Harry's life has taken him far from the traditional path many members of the British royal family followed before him. From the death of his mother at a young age and his tumultuous early adult years to his military service and charity work, his journey from precocious prince to activist has inspired many people around the world. Readers explore his life story, including his marriage to American actress Meghan Markle. Detailed main text, fact-filled sidebars, annotated quotes, and vibrant photographs offer a compelling biographical treatment. How did Prince Harry become known as a royal rule-breaker? Readers will enjoy finding the answer.","English",40.4,32.32,"941.086092--dc23","104 pp.","https://greenhavenpublishing.com/9781534567047",null,{"$f":"Table1[[#This Row],['# of Books]]*Table1[[#This Row],[QTY]]","v":0},{"$f":"Table1[[#This Row],[QTY]]*Table1[[#This Row],[School & Library Price]]","v":0}]
[null,null,18,null,null,"Biographies","People in the News","Prince Harry: Royal Rule-Breaker","978-1-5345-6768-9",{"$f":"HYPERLINK(Table1[[#This Row],[eCommerce Hyperlink]],\"Book Weblink\")","v":"Book Weblink"},null,"Lucent Press","eBook",1,"2020","August 2019",null,null,"Author","Elizabeth Krajnik",null,null,null,null,"Z",null,"Grade 7","Grade 7 - 10","Prince Harry's life has taken him far from the traditional path many members of the British royal family followed before him. From the death of his mother at a young age and his tumultuous early adult years to his military service and charity work, his journey from precocious prince to activist has inspired many people around the world. Readers explore his life story, including his marriage to American actress Meghan Markle. Detailed main text, fact-filled sidebars, annotated quotes, and vibrant photographs offer a compelling biographical treatment. How did Prince Harry become known as a royal rule-breaker? Readers will enjoy finding the answer.","English",40.4,32.32,"941.086092--dc23","104 pp.","https://greenhavenpublishing.com/9781534567689",null,{"$f":"Table1[[#This Row],['# of Books]]*Table1[[#This Row],[QTY]]","v":0},{"$f":"Table1[[#This Row],[QTY]]*Table1[[#This Row],[School & Library Price]]","v":0}]
[null,null,18,null,null,"Biographies","People in the News","Prince Harry: Royal Rule-Breaker","978-1-5345-6767-2",{"$f":"HYPERLINK(Table1[[#This Row],[eCommerce Hyperlink]],\"Book Weblink\")","v":"Book Weblink"},null,"Lucent Press","Paperback Book",1,"2020","August 2019","Paperback","6.000 X 9.000","Author","Elizabeth Krajnik",null,null,null,null,"Z",null,"Grade 7","Grade 7 - 10","Prince Harry's life has taken him far from the traditional path many members of the British royal family followed before him. From the death of his mother at a young age and his tumultuous early adult years to his military service and charity work, his journey from precocious prince to activist has inspired many people around the world. Readers explore his life story, including his marriage to American actress Meghan Markle. Detailed main text, fact-filled sidebars, annotated quotes, and vibrant photographs offer a compelling biographical treatment. How did Prince Harry become known as a royal rule-breaker? Readers will enjoy finding the answer.","English",20.99,17.850000000000001,"941.086092--dc23","104 pp.","https://greenhavenpublishing.com/9781534567672",null,{"$f":"Table1[[#This Row],['# of Books]]*Table1[[#This Row],[QTY]]","v":0},{"$f":"Table1[[#This Row],[QTY]]*Table1[[#This Row],[School & Library Price]]","v":0}]
[null,null,18,null,null,"Biographies","People in the News","Robert Downey Jr.: Superhero Superstar","978-1-5345-6705-4",{"$f":"HYPERLINK(Table1[[#This Row],[eCommerce Hyperlink]],\"Book Weblink\")","v":"Book Weblink"},null,"Lucent Press","Library Bound Book",1,"2020","August 2019","Library","6.000 X 9.000","Author","Nicole Horning",null,null,null,null,"Z",null,"Grade 7","Grade 7 - 10","Robert Downey Jr. is one of the most famous and influential actors in Hollywood. Since 2008, he has been at the center of the Marvel Cinematic Universe, but the road to his role as Iron Man was difficult. Readers discover how he has become an inspiration to those who are struggling with personal demons, especially substance abuse, and how he overcame those struggles to return to the spotlight. Through sidebars, annotated quotations, and full-color photographs, this book allows readers to gain a deeper appreciation for Robert Downey Jr.'s acting skills and personal resilience.","English",40.4,32.32,"791.4302'8092--dc23","104 pp.","https://greenhavenpublishing.com/9781534567054",null,{"$f":"Table1[[#This Row],['# of Books]]*Table1[[#This Row],[QTY]]","v":0},{"$f":"Table1[[#This Row],[QTY]]*Table1[[#This Row],[School & Library Price]]","v":0}]
[null,null,18,null,null,"Biographies","People in the News","Robert Downey Jr.: Superhero Superstar","978-1-5345-6770-2",{"$f":"HYPERLINK(Table1[[#This Row],[eCommerce Hyperlink]],\"Book Weblink\")","v":"Book Weblink"},null,"Lucent Press","eBook",1,"2020","August 2019",null,null,"Author","Nicole Horning",null,null,null,null,"Z",null,"Grade 7","Grade 7 - 10","Robert Downey Jr. is one of the most famous and influential actors in Hollywood. Since 2008, he has been at the center of the Marvel Cinematic Universe, but the road to his role as Iron Man was difficult. Readers discover how he has become an inspiration to those who are struggling with personal demons, especially substance abuse, and how he overcame those struggles to return to the spotlight. Through sidebars, annotated quotations, and full-color photographs, this book allows readers to gain a deeper appreciation for Robert Downey Jr.'s acting skills and personal resilience.","English",40.4,32.32,"791.4302'8092--dc23","104 pp.","https://greenhavenpublishing.com/9781534567702",null,{"$f":"Table1[[#This Row],['# of Books]]*Table1[[#This Row],[QTY]]","v":0},{"$f":"Table1[[#This Row],[QTY]]*Table1[[#This Row],[School & Library Price]]","v":0}]
[null,null,18,null,null,"Biographies","People in the News","Robert Downey Jr.: Superhero Superstar","978-1-5345-6769-6",{"$f":"HYPERLINK(Table1[[#This Row],[eCommerce Hyperlink]],\"Book Weblink\")","v":"Book Weblink"},null,"Lucent Press","Paperback Book",1,"2020","August 2019","Paperback","6.000 X 9.000","Author","Nicole Horning",null,null,null,null,"Z",null,"Grade 7","Grade 7 - 10","Robert Downey Jr. is one of the most famous and influential actors in Hollywood. Since 2008, he has been at the center of the Marvel Cinematic Universe, but the road to his role as Iron Man was difficult. Readers discover how he has become an inspiration to those who are struggling with personal demons, especially substance abuse, and how he overcame those struggles to return to the spotlight. Through sidebars, annotated quotations, and full-color photographs, this book allows readers to gain a deeper appreciation for Robert Downey Jr.'s acting skills and personal resilience.","English",20.99,17.850000000000001,"791.4302'8092--dc23","104 pp.","https://greenhavenpublishing.com/9781534567696",null,{"$f":"Table1[[#This Row],['# of Books]]*Table1[[#This Row],[QTY]]","v":0},{"$f":"Table1[[#This Row],[QTY]]*Table1[[#This Row],[School & Library Price]]","v":0}]
[null,null,18,null,null,"Biographies","People in the News","People in the News: Set 4","978-1-5345-6855-6",{"$f":"HYPERLINK(Table1[[#This Row],[eCommerce Hyperlink]],\"Book Weblink\")","v":"Book Weblink"},null,"Lucent Press","Library Set",5,"2020","January 2020","Library","6.000 X 9.000",null,null,null,null,null,null,null,null,"Grade 7","Grade 7 - 10","Readers take a deep dive behind the headlines in this exciting look into the lives of some of today's most popular newsmakers. Covering a variety of interests from politics and pop music to acting and activism, these biographies appeal to a wide range of readers and feature fascinating facts that encourage young adults to look for the truth when examining a person's public image. These facts are presented through engaging main text, informative sidebars, and helpful timelines. Full-color photographs of some of the world's most famous faces including Barack Obama, Lady Gaga, and Justin Timberlake enhance this reading experience. Features include: Annotated quotes from these famous figures and those who know them best provide a first-person perspective and encourage further research. Comprehensive text fosters the development of critical thinking skills by giving readers a nuanced portrait of the person behind the persona. Detailed references to recent projects and hints at future endeavors provide readers with the most recent information available about each subject.","English",202,161.6,null,"104 pp.","https://greenhavenpublishing.com/9781534568556",null,{"$f":"Table1[[#This Row],['# of Books]]*Table1[[#This Row],[QTY]]","v":0},{"$f":"Table1[[#This Row],[QTY]]*Table1[[#This Row],[School & Library Price]]","v":0}]
[null,null,18,null,null,"Biographies","People in the News","People in the News (Spring 2020)","978-1-5345-6897-6",{"$f":"HYPERLINK(Table1[[#This Row],[eCommerce Hyperlink]],\"Book Weblink\")","v":"Book Weblink"},null,"Lucent Press","Single Copy Set",5,"2020","January 2020","Paperback","6.000 X 9.000",null,null,null,null,null,null,null,null,"Grade 7","Grade 7 - 10","Readers take a deep dive behind the headlines in this exciting look into the lives of some of today's most popular newsmakers. Covering a variety of interests from politics and pop music to acting and activism, these biographies appeal to a wide range of readers and feature fascinating facts that encourage young adults to look for the truth when examining a person's public image. These facts are presented through engaging main text, informative sidebars, and helpful timelines. Full-color photographs of some of the world's most famous faces including Barack Obama, Lady Gaga, and Justin Timberlake enhance this reading experience. Features include: Annotated quotes from these famous figures and those who know them best provide a first-person perspective and encourage further research. Comprehensive text fosters the development of critical thinking skills by giving readers a nuanced portrait of the person behind the persona. Detailed references to recent projects and hints at future endeavors provide readers with the most recent information available about each subject.","English",104.95,89.25,null,"104 pp.","https://greenhavenpublishing.com/9781534568976",null,{"$f":"Table1[[#This Row],['# of Books]]*Table1[[#This Row],[QTY]]","v":0},{"$f":"Table1[[#This Row],[QTY]]*Table1[[#This Row],[School & Library Price]]","v":0}]
[null,null,18,null,null,"Biographies","People in the News","Barack Obama: A Life of Leadership","978-1-5345-6841-9",{"$f":"HYPERLINK(Table1[[#This Row],[eCommerce Hyperlink]],\"Book Weblink\")","v":"Book Weblink"},null,"Lucent Press","Library Bound Book",1,"2020","January 2020","Library","6.000 X 9.000","Author","Rachael Morlock",null,null,null,null,"Z",null,"Grade 7","Grade 7 - 10","Before Barack Obama became the 44th president of the United States, he was a community organizer, civil rights lawyer, and senator. Readers trace his groundbreaking path to the White House and his unique position as the first African American president as they explore main text enhanced with annotated quotes from Obama and those closest to him. Full-color photographs, sidebars, and a comprehensive timeline chronicle the legacy of this American newsmaker. Much is known about who Obama was before and during his presidency, but what has his life been like since leaving the White House? Curious readers learn the answer.","English",40.4,32.32,"973.932092--dc23","104 pp.","https://greenhavenpublishing.com/9781534568419",null,{"$f":"Table1[[#This Row],['# of Books]]*Table1[[#This Row],[QTY]]","v":0},{"$f":"Table1[[#This Row],[QTY]]*Table1[[#This Row],[School & Library Price]]","v":0}]
[null,null,18,null,null,"Biographies","People in the News","Barack Obama: A Life of Leadership","978-1-5345-6842-6",{"$f":"HYPERLINK(Table1[[#This Row],[eCommerce Hyperlink]],\"Book Weblink\")","v":"Book Weblink"},null,"Lucent Press","eBook",1,"2020","January 2020",null,null,"Author","Rachael Morlock",null,null,null,null,"Z",null,"Grade 7","Grade 7 - 10","Before Barack Obama became the 44th president of the United States, he was a community organizer, civil rights lawyer, and senator. Readers trace his groundbreaking path to the White House and his unique position as the first African American president as they explore main text enhanced with annotated quotes from Obama and those closest to him. Full-color photographs, sidebars, and a comprehensive timeline chronicle the legacy of this American newsmaker. Much is known about who Obama was before and during his presidency, but what has his life been like since leaving the White House? Curious readers learn the answer.","English",40.4,32.32,"973.932092--dc23","104 pp.","https://greenhavenpublishing.com/9781534568426",null,{"$f":"Table1[[#This Row],['# of Books]]*Table1[[#This Row],[QTY]]","v":0},{"$f":"Table1[[#This Row],[QTY]]*Table1[[#This Row],[School & Library Price]]","v":0}]
[null,null,18,null,null,"Biographies","People in the News","Barack Obama: A Life of Leadership","978-1-5345-6840-2",{"$f":"HYPERLINK(Table1[[#This Row],[eCommerce Hyperlink]],\"Book Weblink\")","v":"Book Weblink"},null,"Lucent Press","Paperback Book",1,"2020","January 2020","Paperback","6.000 X 9.000","Author","Rachael Morlock",null,null,null,null,"Z",null,"Grade 7","Grade 7 - 10","Before Barack Obama became the 44th president of the United States, he was a community organizer, civil rights lawyer, and senator. Readers trace his groundbreaking path to the White House and his unique position as the first African American president as they explore main text enhanced with annotated quotes from Obama and those closest to him. Full-color photographs, sidebars, and a comprehensive timeline chronicle the legacy of this American newsmaker. Much is known about who Obama was before and during his presidency, but what has his life been like since leaving the White House? Curious readers learn the answer.","English",20.99,17.850000000000001,"973.932092--dc23","104 pp.","https://greenhavenpublishing.com/9781534568402",null,{"$f":"Table1[[#This Row],['# of Books]]*Table1[[#This Row],[QTY]]","v":0},{"$f":"Table1[[#This Row],[QTY]]*Table1[[#This Row],[School & Library Price]]","v":0}]
[null,null,18,null,null,"Biographies","People in the News","Jennifer Hudson: Singer, Actress, and Voice for Change","978-1-5345-6832-7",{"$f":"HYPERLINK(Table1[[#This Row],[eCommerce Hyperlink]],\"Book Weblink\")","v":"Book Weblink"},null,"Lucent Press","Library Bound Book",1,"2020","January 2020","Library","6.000 X 9.000","Author","Edna McPhee",null,null,null,null,"Z",null,"Grade 7","Grade 7 - 10","Few celebrities have had a journey like Jennifer Hudson. Although Hudson rose to fame after her seventh-place finish on American Idol, it was her turn as Effie White in the blockbuster film Dreamgirls that put her on the map as a vocal powerhouse. In the years since, Hudson has suffered unimaginable tragedy and achieved dizzying success, both personally and professionally, and become a powerful voice for change. Readers follow the incredible peaks and valleys of Hudson's life with the help of fact-filled sidebars, a detailed timeline, full-color photographs, and annotated quotes from Hudson and those who know her best.","English",40.4,32.32,"782.42164092--dc23","104 pp.","https://greenhavenpublishing.com/9781534568327",null,{"$f":"Table1[[#This Row],['# of Books]]*Table1[[#This Row],[QTY]]","v":0},{"$f":"Table1[[#This Row],[QTY]]*Table1[[#This Row],[School & Library Price]]","v":0}]
[null,null,18,null,null,"Biographies","People in the News","Jennifer Hudson: Singer, Actress, and Voice for Change","978-1-5345-6833-4",{"$f":"HYPERLINK(Table1[[#This Row],[eCommerce Hyperlink]],\"Book Weblink\")","v":"Book Weblink"},null,"Lucent Press","eBook",1,"2020","January 2020",null,null,"Author","Edna McPhee",null,null,null,null,"Z",null,"Grade 7","Grade 7 - 10","Few celebrities have had a journey like Jennifer Hudson. Although Hudson rose to fame after her seventh-place finish on American Idol, it was her turn as Effie White in the blockbuster film Dreamgirls that put her on the map as a vocal powerhouse. In the years since, Hudson has suffered unimaginable tragedy and achieved dizzying success, both personally and professionally, and become a powerful voice for change. Readers follow the incredible peaks and valleys of Hudson's life with the help of fact-filled sidebars, a detailed timeline, full-color photographs, and annotated quotes from Hudson and those who know her best.","English",40.4,32.32,"782.42164092--dc23","104 pp.","https://greenhavenpublishing.com/9781534568334",null,{"$f":"Table1[[#This Row],['# of Books]]*Table1[[#This Row],[QTY]]","v":0},{"$f":"Table1[[#This Row],[QTY]]*Table1[[#This Row],[School & Library Price]]","v":0}]
[null,null,18,null,null,"Biographies","People in the News","Jennifer Hudson: Singer, Actress, and Voice for Change","978-1-5345-6831-0",{"$f":"HYPERLINK(Table1[[#This Row],[eCommerce Hyperlink]],\"Book Weblink\")","v":"Book Weblink"},null,"Lucent Press","Paperback Book",1,"2020","January 2020","Paperback","6.000 X 9.000","Author","Edna McPhee",null,null,null,null,"Z",null,"Grade 7","Grade 7 - 10","Few celebrities have had a journey like Jennifer Hudson. Although Hudson rose to fame after her seventh-place finish on American Idol, it was her turn as Effie White in the blockbuster film Dreamgirls that put her on the map as a vocal powerhouse. In the years since, Hudson has suffered unimaginable tragedy and achieved dizzying success, both personally and professionally, and become a powerful voice for change. Readers follow the incredible peaks and valleys of Hudson's life with the help of fact-filled sidebars, a detailed timeline, full-color photographs, and annotated quotes from Hudson and those who know her best.","English",20.99,17.850000000000001,"782.42164092--dc23","104 pp.","https://greenhavenpublishing.com/9781534568310",null,{"$f":"Table1[[#This Row],['# of Books]]*Table1[[#This Row],[QTY]]","v":0},{"$f":"Table1[[#This Row],[QTY]]*Table1[[#This Row],[School & Library Price]]","v":0}]
[null,null,18,null,null,"Biographies","People in the News","Justin Timberlake: Musical Megastar","978-1-5345-6838-9",{"$f":"HYPERLINK(Table1[[#This Row],[eCommerce Hyperlink]],\"Book Weblink\")","v":"Book Weblink"},null,"Lucent Press","Library Bound Book",1,"2020","January 2020","Library","6.000 X 9.000","Author","Nicole Horning",null,null,null,null,"Z",null,"Grade 7","Grade 7 - 10","Justin Timberlake is one of the most famous names in pop music. Readers will gain a deeper appreciation for his music by exploring his beginning in The Mickey Mouse Club to his time as a member of the popular boy band *NSYNC and his decision to create music without the rest of *NSYNC. They will also discover the highlights of his successful film career and business ventures. Through detailed main text, annotated quotations, sidebars, and a timeline, Timberlake's professional and personal life is presented to readers in a way that takes them behind the scenes and the beyond the headlines.","English",40.4,32.32,"782.42164092--dc23","104 pp.","https://greenhavenpublishing.com/9781534568389",null,{"$f":"Table1[[#This Row],['# of Books]]*Table1[[#This Row],[QTY]]","v":0},{"$f":"Table1[[#This Row],[QTY]]*Table1[[#This Row],[School & Library Price]]","v":0}]
[null,null,18,null,null,"Biographies","People in the News","Justin Timberlake: Musical Megastar","978-1-5345-6839-6",{"$f":"HYPERLINK(Table1[[#This Row],[eCommerce Hyperlink]],\"Book Weblink\")","v":"Book Weblink"},null,"Lucent Press","eBook",1,"2020","January 2020",null,null,"Author","Nicole Horning",null,null,null,null,"Z",null,"Grade 7","Grade 7 - 10","Justin Timberlake is one of the most famous names in pop music. Readers will gain a deeper appreciation for his music by exploring his beginning in The Mickey Mouse Club to his time as a member of the popular boy band *NSYNC and his decision to create music without the rest of *NSYNC. They will also discover the highlights of his successful film career and business ventures. Through detailed main text, annotated quotations, sidebars, and a timeline, Timberlake's professional and personal life is presented to readers in a way that takes them behind the scenes and the beyond the headlines.","English",40.4,32.32,"782.42164092--dc23","104 pp.","https://greenhavenpublishing.com/9781534568396",null,{"$f":"Table1[[#This Row],['# of Books]]*Table1[[#This Row],[QTY]]","v":0},{"$f":"Table1[[#This Row],[QTY]]*Table1[[#This Row],[School & Library Price]]","v":0}]
[null,null,18,null,null,"Biographies","People in the News","Justin Timberlake: Musical Megastar","978-1-5345-6837-2",{"$f":"HYPERLINK(Table1[[#This Row],[eCommerce Hyperlink]],\"Book Weblink\")","v":"Book Weblink"},null,"Lucent Press","Paperback Book",1,"2020","January 2020","Paperback","6.000 X 9.000","Author","Nicole Horning",null,null,null,null,"Z",null,"Grade 7","Grade 7 - 10","Justin Timberlake is one of the most famous names in pop music. Readers will gain a deeper appreciation for his music by exploring his beginning in The Mickey Mouse Club to his time as a member of the popular boy band *NSYNC and his decision to create music without the rest of *NSYNC. They will also discover the highlights of his successful film career and business ventures. Through detailed main text, annotated quotations, sidebars, and a timeline, Timberlake's professional and personal life is presented to readers in a way that takes them behind the scenes and the beyond the headlines.","English",20.99,17.850000000000001,"782.42164092--dc23","104 pp.","https://greenhavenpublishing.com/9781534568372",null,{"$f":"Table1[[#This Row],['# of Books]]*Table1[[#This Row],[QTY]]","v":0},{"$f":"Table1[[#This Row],[QTY]]*Table1[[#This Row],[School & Library Price]]","v":0}]
[null,null,18,null,null,"Biographies","People in the News","Kelly Clarkson: Music and Television Trailblazer","978-1-5345-6835-8",{"$f":"HYPERLINK(Table1[[#This Row],[eCommerce Hyperlink]],\"Book Weblink\")","v":"Book Weblink"},null,"Lucent Press","Library Bound Book",1,"2020","January 2020","Library","6.000 X 9.000","Author","Edna McPhee",null,null,null,null,"Z",null,"Grade 7","Grade 7 - 10","Kelly Clarkson may have risen to prominence as a star on a talent show, but she has proven herself to be more than just a reality star. Clarkson was the winner of the first season of American Idol, and she has been living up to that honor ever since. Readers learn about Clarkson's rise to fame, her fight for creative control, and her quest to use her voice as a force for good. Her journey from small-town, Texan girl to superstar is presented with the help of informative sidebars, a comprehensive timeline, annotated quotes, and full-color photographs.","English",40.4,32.32,"782.42164092--dc23","104 pp.","https://greenhavenpublishing.com/9781534568358",null,{"$f":"Table1[[#This Row],['# of Books]]*Table1[[#This Row],[QTY]]","v":0},{"$f":"Table1[[#This Row],[QTY]]*Table1[[#This Row],[School & Library Price]]","v":0}]
[null,null,18,null,null,"Biographies","People in the News","Kelly Clarkson: Music and Television Trailblazer","978-1-5345-6836-5",{"$f":"HYPERLINK(Table1[[#This Row],[eCommerce Hyperlink]],\"Book Weblink\")","v":"Book Weblink"},null,"Lucent Press","eBook",1,"2020","January 2020",null,null,"Author","Edna McPhee",null,null,null,null,"Z",null,"Grade 7","Grade 7 - 10","Kelly Clarkson may have risen to prominence as a star on a talent show, but she has proven herself to be more than just a reality star. Clarkson was the winner of the first season of American Idol, and she has been living up to that honor ever since. Readers learn about Clarkson's rise to fame, her fight for creative control, and her quest to use her voice as a force for good. Her journey from small-town, Texan girl to superstar is presented with the help of informative sidebars, a comprehensive timeline, annotated quotes, and full-color photographs.","English",40.4,32.32,"782.42164092--dc23","104 pp.","https://greenhavenpublishing.com/9781534568365",null,{"$f":"Table1[[#This Row],['# of Books]]*Table1[[#This Row],[QTY]]","v":0},{"$f":"Table1[[#This Row],[QTY]]*Table1[[#This Row],[School & Library Price]]","v":0}]
[null,null,18,null,null,"Biographies","People in the News","Kelly Clarkson: Music and Television Trailblazer","978-1-5345-6834-1",{"$f":"HYPERLINK(Table1[[#This Row],[eCommerce Hyperlink]],\"Book Weblink\")","v":"Book Weblink"},null,"Lucent Press","Paperback Book",1,"2020","January 2020","Paperback","6.000 X 9.000","Author","Edna McPhee",null,null,null,null,"Z",null,"Grade 7","Grade 7 - 10","Kelly Clarkson may have risen to prominence as a star on a talent show, but she has proven herself to be more than just a reality star. Clarkson was the winner of the first season of American Idol, and she has been living up to that honor ever since. Readers learn about Clarkson's rise to fame, her fight for creative control, and her quest to use her voice as a force for good. Her journey from small-town, Texan girl to superstar is presented with the help of informative sidebars, a comprehensive timeline, annotated quotes, and full-color photographs.","English",20.99,17.850000000000001,"782.42164092--dc23","104 pp.","https://greenhavenpublishing.com/9781534568341",null,{"$f":"Table1[[#This Row],['# of Books]]*Table1[[#This Row],[QTY]]","v":0},{"$f":"Table1[[#This Row],[QTY]]*Table1[[#This Row],[School & Library Price]]","v":0}]
[null,null,18,null,null,"Biographies","People in the News","Lady Gaga: Born to Be a Star","978-1-5345-6829-7",{"$f":"HYPERLINK(Table1[[#This Row],[eCommerce Hyperlink]],\"Book Weblink\")","v":"Book Weblink"},null,"Lucent Press","Library Bound Book",1,"2020","January 2020","Library","6.000 X 9.000","Author","Nicole Horning",null,null,null,null,"Z",null,"Grade 7","Grade 7 - 10","Lady Gaga is an icon to her fans, and many of them look to her for inspiration in their daily lives. How did she become such an important figure in pop culture? Readers will discover the answer to this question as they explore her life from her rise to the top of the pop charts to her leading role in the critically acclaimed film A Star Is Born. Lady Gaga's life, career, and advocacy for mental health awareness are presented to readers with the help of informative sidebars, annotated quotations, and full-color photographs of her most iconic looks.","English",40.4,32.32,"782.42164092--dc23","104 pp.","https://greenhavenpublishing.com/9781534568297",null,{"$f":"Table1[[#This Row],['# of Books]]*Table1[[#This Row],[QTY]]","v":0},{"$f":"Table1[[#This Row],[QTY]]*Table1[[#This Row],[School & Library Price]]","v":0}]
[null,null,18,null,null,"Biographies","People in the News","Lady Gaga: Born to Be a Star","978-1-5345-6830-3",{"$f":"HYPERLINK(Table1[[#This Row],[eCommerce Hyperlink]],\"Book Weblink\")","v":"Book Weblink"},null,"Lucent Press","eBook",1,"2020","January 2020",null,null,"Author","Nicole Horning",null,null,null,null,"Z",null,"Grade 7","Grade 7 - 10","Lady Gaga is an icon to her fans, and many of them look to her for inspiration in their daily lives. How did she become such an important figure in pop culture? Readers will discover the answer to this question as they explore her life from her rise to the top of the pop charts to her leading role in the critically acclaimed film A Star Is Born. Lady Gaga's life, career, and advocacy for mental health awareness are presented to readers with the help of informative sidebars, annotated quotations, and full-color photographs of her most iconic looks.","English",40.4,32.32,"782.42164092--dc23","104 pp.","https://greenhavenpublishing.com/9781534568303",null,{"$f":"Table1[[#This Row],['# of Books]]*Table1[[#This Row],[QTY]]","v":0},{"$f":"Table1[[#This Row],[QTY]]*Table1[[#This Row],[School & Library Price]]","v":0}]
[null,null,18,null,null,"Biographies","People in the News","Lady Gaga: Born to Be a Star","978-1-5345-6828-0",{"$f":"HYPERLINK(Table1[[#This Row],[eCommerce Hyperlink]],\"Book Weblink\")","v":"Book Weblink"},null,"Lucent Press","Paperback Book",1,"2020","January 2020","Paperback","6.000 X 9.000","Author","Nicole Horning",null,null,null,null,"Z",null,"Grade 7","Grade 7 - 10","Lady Gaga is an icon to her fans, and many of them look to her for inspiration in their daily lives. How did she become such an important figure in pop culture? Readers will discover the answer to this question as they explore her life from her rise to the top of the pop charts to her leading role in the critically acclaimed film A Star Is Born. Lady Gaga's life, career, and advocacy for mental health awareness are presented to readers with the help of informative sidebars, annotated quotations, and full-color photographs of her most iconic looks.","English",20.99,17.850000000000001,"782.42164092--dc23","104 pp.","https://greenhavenpublishing.com/9781534568280",null,{"$f":"Table1[[#This Row],['# of Books]]*Table1[[#This Row],[QTY]]","v":0},{"$f":"Table1[[#This Row],[QTY]]*Table1[[#This Row],[School & Library Price]]","v":0}]
[null,null,18,null,null,"Biographies","Women Who Won't Be Silenced: The Stories of Strong Women","Women Who Won't Be Silenced: The Stories of Strong Women","978-1-5345-6679-8",{"$f":"HYPERLINK(Table1[[#This Row],[eCommerce Hyperlink]],\"Book Weblink\")","v":"Book Weblink"},null,"Lucent Press","Library Set",6,"2019","January 2019","Library","7.250 X 9.250",null,null,null,null,null,null,null,null,"Grade 6 - 7","Grade 6 - 8","Throughout the past and present, many have tried to silence women's voices. However, courageous women have refused to be silenced, and they have become role models whose stories have inspired people around the world. With the rise of the #MeToo and Time's Up movements, the words of these women have become rallying cries for change. Readers are introduced to the stories of some of these brave, bold women, from Oprah Winfrey and Reese Witherspoon to Malala Yousafzai and Ruth Bader Ginsburg. Inspiring main texts, informative sidebars, and full-color photographs come together to create empowering learning experiences for all readers. Features include: Accessible language and age-appropriate tone introduce young adults to essential current events issues, such as sexual harassment, feminism, and the fight for equal pay, through the lives of some of the women at the center of these discussions. Quote boxes feature inspiring messages from these women in their own words. Carefully chosen subjects include women of different ages, races, and fields of work to connect with a wide range of readers and to show them that there are many different paths to activism.","English",215.7,172.5,null,"64 pp.","https://greenhavenpublishing.com/9781534566798",null,{"$f":"Table1[[#This Row],['# of Books]]*Table1[[#This Row],[QTY]]","v":0},{"$f":"Table1[[#This Row],[QTY]]*Table1[[#This Row],[School & Library Price]]","v":0}]
[null,null,18,null,null,"Biographies","Women Who Won't Be Silenced: The Stories of Strong Women","Women Who Won't Be Silenced: The Stories of Strong Women","978-1-5345-6687-3",{"$f":"HYPERLINK(Table1[[#This Row],[eCommerce Hyperlink]],\"Book Weblink\")","v":"Book Weblink"},null,"Lucent Press","Single Copy Set",6,"2019","January 2019","Paperback","7.250 X 9.250",null,null,null,null,null,null,null,null,"Grade 6 - 7","Grade 6 - 8","Throughout the past and present, many have tried to silence women's voices. However, courageous women have refused to be silenced, and they have become role models whose stories have inspired people around the world. With the rise of the #MeToo and Time's Up movements, the words of these women have become rallying cries for change. Readers are introduced to the stories of some of these brave, bold women, from Oprah Winfrey and Reese Witherspoon to Malala Yousafzai and Ruth Bader Ginsburg. Inspiring main texts, informative sidebars, and full-color photographs come together to create empowering learning experiences for all readers. Features include: Accessible language and age-appropriate tone introduce young adults to essential current events issues, such as sexual harassment, feminism, and the fight for equal pay, through the lives of some of the women at the center of these discussions. Quote boxes feature inspiring messages from these women in their own words. Carefully chosen subjects include women of different ages, races, and fields of work to connect with a wide range of readers and to show them that there are many different paths to activism.","English",97.68,83.1,null,"64 pp.","https://greenhavenpublishing.com/9781534566873",null,{"$f":"Table1[[#This Row],['# of Books]]*Table1[[#This Row],[QTY]]","v":0},{"$f":"Table1[[#This Row],[QTY]]*Table1[[#This Row],[School & Library Price]]","v":0}]
[null,null,18,null,null,"Biographies","Women Who Won't Be Silenced: The Stories of Strong Women","Emma Watson","978-1-5345-6645-3",{"$f":"HYPERLINK(Table1[[#This Row],[eCommerce Hyperlink]],\"Book Weblink\")","v":"Book Weblink"},null,"Lucent Press","Library Bound Book",1,"2019","January 2019","Library","7.250 X 9.250","Author","Vic Kovacs",null,null,null,null,"X","1020L","Grade 6 - 7","Grade 6 - 8","Emma Watson has played strong female characters on the big screen since she was a little girl, and the same courage seen in her performances as Hermione Granger and Belle can be found in her life away from acting as well. Watson's work to further women's rights around the world has inspired many young women and young men to learn more about feminism and the fight for equality. Readers discover this and other essential parts of Watson's life as they explore detailed biographical text featuring sidebars, vibrant photographs, and quotes from this popular role model.","English",35.950000000000003,28.75,"791.4302'8092--dc23","64 pp.","https://greenhavenpublishing.com/9781534566453",null,{"$f":"Table1[[#This Row],['# of Books]]*Table1[[#This Row],[QTY]]","v":0},{"$f":"Table1[[#This Row],[QTY]]*Table1[[#This Row],[School & Library Price]]","v":0}]
[null,null,18,null,null,"Biographies","Women Who Won't Be Silenced: The Stories of Strong Women","Emma Watson","978-1-5345-6646-0",{"$f":"HYPERLINK(Table1[[#This Row],[eCommerce Hyperlink]],\"Book Weblink\")","v":"Book Weblink"},null,"Lucent Press","eBook",1,"2019","January 2019",null,null,"Author","Vic Kovacs",null,null,null,null,"X","1020L","Grade 6 - 7","Grade 6 - 8","Emma Watson has played strong female characters on the big screen since she was a little girl, and the same courage seen in her performances as Hermione Granger and Belle can be found in her life away from acting as well. Watson's work to further women's rights around the world has inspired many young women and young men to learn more about feminism and the fight for equality. Readers discover this and other essential parts of Watson's life as they explore detailed biographical text featuring sidebars, vibrant photographs, and quotes from this popular role model.","English",35.950000000000003,28.75,"791.4302'8092--dc23","64 pp.","https://greenhavenpublishing.com/9781534566460",null,{"$f":"Table1[[#This Row],['# of Books]]*Table1[[#This Row],[QTY]]","v":0},{"$f":"Table1[[#This Row],[QTY]]*Table1[[#This Row],[School & Library Price]]","v":0}]
[null,null,18,null,null,"Biographies","Women Who Won't Be Silenced: The Stories of Strong Women","Emma Watson","978-1-5345-6644-6",{"$f":"HYPERLINK(Table1[[#This Row],[eCommerce Hyperlink]],\"Book Weblink\")","v":"Book Weblink"},null,"Lucent Press","Paperback Book",1,"2019","January 2019","Paperback","7.250 X 9.250","Author","Vic Kovacs",null,null,null,null,"X","1020L","Grade 6 - 7","Grade 6 - 8","Emma Watson has played strong female characters on the big screen since she was a little girl, and the same courage seen in her performances as Hermione Granger and Belle can be found in her life away from acting as well. Watson's work to further women's rights around the world has inspired many young women and young men to learn more about feminism and the fight for equality. Readers discover this and other essential parts of Watson's life as they explore detailed biographical text featuring sidebars, vibrant photographs, and quotes from this popular role model.","English",16.28,13.85,"791.4302'8092--dc23","64 pp.","https://greenhavenpublishing.com/9781534566446",null,{"$f":"Table1[[#This Row],['# of Books]]*Table1[[#This Row],[QTY]]","v":0},{"$f":"Table1[[#This Row],[QTY]]*Table1[[#This Row],[School & Library Price]]","v":0}]
[null,null,18,null,null,"Biographies","Women Who Won't Be Silenced: The Stories of Strong Women","Kamala Harris","978-1-5345-6651-4",{"$f":"HYPERLINK(Table1[[#This Row],[eCommerce Hyperlink]],\"Book Weblink\")","v":"Book Weblink"},null,"Lucent Press","Library Bound Book",1,"2019","January 2019","Library","7.250 X 9.250","Author, Author","Janis Campbell, Catherine Collison",null,null,null,null,"X","1200L","Grade 6 - 7","Grade 6 - 8","Kamala Harris is a rising star in the political world, but who was she before she became a popular U.S. Senator and one of the most outspoken women in Washington D.C.? Readers discover the answer as they learn the details of her journey from a childhood in California and Canada to her election as the second black woman and first person of Indian descent to serve as a U.S. Senator. The informative main text is supplemented by fact-filled sidebars and full-color photographs. Quotes from Harris are highlighted to motivate the next generation of political leaders to follow in her footsteps.","English",35.950000000000003,28.75,"324.092'396073--dc23","64 pp.","https://greenhavenpublishing.com/9781534566514",null,{"$f":"Table1[[#This Row],['# of Books]]*Table1[[#This Row],[QTY]]","v":0},{"$f":"Table1[[#This Row],[QTY]]*Table1[[#This Row],[School & Library Price]]","v":0}]
[null,null,18,null,null,"Biographies","Women Who Won't Be Silenced: The Stories of Strong Women","Kamala Harris","978-1-5345-6652-1",{"$f":"HYPERLINK(Table1[[#This Row],[eCommerce Hyperlink]],\"Book Weblink\")","v":"Book Weblink"},null,"Lucent Press","eBook",1,"2019","January 2019",null,null,"Author, Author","Janis Campbell, Catherine Collison",null,null,null,null,"X","1200L","Grade 6 - 7","Grade 6 - 8","Kamala Harris is a rising star in the political world, but who was she before she became a popular U.S. Senator and one of the most outspoken women in Washington D.C.? Readers discover the answer as they learn the details of her journey from a childhood in California and Canada to her election as the second black woman and first person of Indian descent to serve as a U.S. Senator. The informative main text is supplemented by fact-filled sidebars and full-color photographs. Quotes from Harris are highlighted to motivate the next generation of political leaders to follow in her footsteps.","English",35.950000000000003,28.75,"324.092'396073--dc23","64 pp.","https://greenhavenpublishing.com/9781534566521",null,{"$f":"Table1[[#This Row],['# of Books]]*Table1[[#This Row],[QTY]]","v":0},{"$f":"Table1[[#This Row],[QTY]]*Table1[[#This Row],[School & Library Price]]","v":0}]
[null,null,18,null,null,"Biographies","Women Who Won't Be Silenced: The Stories of Strong Women","Kamala Harris","978-1-5345-6650-7",{"$f":"HYPERLINK(Table1[[#This Row],[eCommerce Hyperlink]],\"Book Weblink\")","v":"Book Weblink"},null,"Lucent Press","Paperback Book",1,"2019","January 2019","Paperback","7.250 X 9.250","Author, Author","Janis Campbell, Catherine Collison",null,null,null,null,"X","1200L","Grade 6 - 7","Grade 6 - 8","Kamala Harris is a rising star in the political world, but who was she before she became a popular U.S. Senator and one of the most outspoken women in Washington D.C.? Readers discover the answer as they learn the details of her journey from a childhood in California and Canada to her election as the second black woman and first person of Indian descent to serve as a U.S. Senator. The informative main text is supplemented by fact-filled sidebars and full-color photographs. Quotes from Harris are highlighted to motivate the next generation of political leaders to follow in her footsteps.","English",16.28,13.85,"324.092'396073--dc23","64 pp.","https://greenhavenpublishing.com/9781534566507",null,{"$f":"Table1[[#This Row],['# of Books]]*Table1[[#This Row],[QTY]]","v":0},{"$f":"Table1[[#This Row],[QTY]]*Table1[[#This Row],[School & Library Price]]","v":0}]
[null,null,18,null,null,"Biographies","Women Who Won't Be Silenced: The Stories of Strong Women","Malala Yousafzai","978-1-5345-6648-4",{"$f":"HYPERLINK(Table1[[#This Row],[eCommerce Hyperlink]],\"Book Weblink\")","v":"Book Weblink"},null,"Lucent Press","Library Bound Book",1,"2019","January 2019","Library","7.250 X 9.250","Author","Ellen Creager",null,null,null,null,"X","930L","Grade 6 - 7","Grade 6 - 8","When Malala Yousafzai was only 15 years old, she was shot in the head for speaking out about the importance of educating girls and women. However, she didn't let that attack silence her. Instead, she has become a global advocate for women's rights and education. Her captivating story is presented through fact-filled text, informative sidebars, full-color photographs, and quotes from the young activist. Malala Yousafzai is a living example of the idea that you're never too young to fight for what matters to you, and that is a lesson readers can use to inspire their own activism.","English",35.950000000000003,28.75,"371.822095491--dc23","64 pp.","https://greenhavenpublishing.com/9781534566484",null,{"$f":"Table1[[#This Row],['# of Books]]*Table1[[#This Row],[QTY]]","v":0},{"$f":"Table1[[#This Row],[QTY]]*Table1[[#This Row],[School & Library Price]]","v":0}]
[null,null,18,null,null,"Biographies","Women Who Won't Be Silenced: The Stories of Strong Women","Malala Yousafzai","978-1-5345-6649-1",{"$f":"HYPERLINK(Table1[[#This Row],[eCommerce Hyperlink]],\"Book Weblink\")","v":"Book Weblink"},null,"Lucent Press","eBook",1,"2019","January 2019",null,null,"Author","Ellen Creager",null,null,null,null,"X","930L","Grade 6 - 7","Grade 6 - 8","When Malala Yousafzai was only 15 years old, she was shot in the head for speaking out about the importance of educating girls and women. However, she didn't let that attack silence her. Instead, she has become a global advocate for women's rights and education. Her captivating story is presented through fact-filled text, informative sidebars, full-color photographs, and quotes from the young activist. Malala Yousafzai is a living example of the idea that you're never too young to fight for what matters to you, and that is a lesson readers can use to inspire their own activism.","English",35.950000000000003,28.75,"371.822095491--dc23","64 pp.","https://greenhavenpublishing.com/9781534566491",null,{"$f":"Table1[[#This Row],['# of Books]]*Table1[[#This Row],[QTY]]","v":0},{"$f":"Table1[[#This Row],[QTY]]*Table1[[#This Row],[School & Library Price]]","v":0}]
[null,null,18,null,null,"Biographies","Women Who Won't Be Silenced: The Stories of Strong Women","Malala Yousafzai","978-1-5345-6647-7",{"$f":"HYPERLINK(Table1[[#This Row],[eCommerce Hyperlink]],\"Book Weblink\")","v":"Book Weblink"},null,"Lucent Press","Paperback Book",1,"2019","January 2019","Paperback","7.250 X 9.250","Author","Ellen Creager",null,null,null,null,"X","930L","Grade 6 - 7","Grade 6 - 8","When Malala Yousafzai was only 15 years old, she was shot in the head for speaking out about the importance of educating girls and women. However, she didn't let that attack silence her. Instead, she has become a global advocate for women's rights and education. Her captivating story is presented through fact-filled text, informative sidebars, full-color photographs, and quotes from the young activist. Malala Yousafzai is a living example of the idea that you're never too young to fight for what matters to you, and that is a lesson readers can use to inspire their own activism.","English",16.28,13.85,"371.822095491--dc23","64 pp.","https://greenhavenpublishing.com/9781534566477",null,{"$f":"Table1[[#This Row],['# of Books]]*Table1[[#This Row],[QTY]]","v":0},{"$f":"Table1[[#This Row],[QTY]]*Table1[[#This Row],[School & Library Price]]","v":0}]
[null,null,18,null,null,"Biographies","Women Who Won't Be Silenced: The Stories of Strong Women","Oprah Winfrey","978-1-5345-6642-2",{"$f":"HYPERLINK(Table1[[#This Row],[eCommerce Hyperlink]],\"Book Weblink\")","v":"Book Weblink"},null,"Lucent Press","Library Bound Book",1,"2019","January 2019","Library","7.250 X 9.250","Author","Ellen Creager",null,null,null,null,"X","1040L","Grade 6 - 7","Grade 6 - 8","In a speech at the 2018 Golden Globe Awards, Oprah Winfrey famously promised young women that \"a new day is on the horizon.\" That sense of determination has helped Winfrey rise to the top of the worlds of entertainment and business, and it's also helped her overcome a painful past to serve as a voice of hope and a force for change. Through detailed text featuring sidebars and eye-catching quote boxes filled with Winfrey's own words, readers discover her inspiring story, which is told alongside full-color photographs of Winfrey from the past and present.","English",35.950000000000003,28.75,"791.4502'8092--dc23","64 pp.","https://greenhavenpublishing.com/9781534566422",null,{"$f":"Table1[[#This Row],['# of Books]]*Table1[[#This Row],[QTY]]","v":0},{"$f":"Table1[[#This Row],[QTY]]*Table1[[#This Row],[School & Library Price]]","v":0}]
[null,null,18,null,null,"Biographies","Women Who Won't Be Silenced: The Stories of Strong Women","Oprah Winfrey","978-1-5345-6643-9",{"$f":"HYPERLINK(Table1[[#This Row],[eCommerce Hyperlink]],\"Book Weblink\")","v":"Book Weblink"},null,"Lucent Press","eBook",1,"2019","January 2019",null,null,"Author","Ellen Creager",null,null,null,null,"X","1040L","Grade 6 - 7","Grade 6 - 8","In a speech at the 2018 Golden Globe Awards, Oprah Winfrey famously promised young women that \"a new day is on the horizon.\" That sense of determination has helped Winfrey rise to the top of the worlds of entertainment and business, and it's also helped her overcome a painful past to serve as a voice of hope and a force for change. Through detailed text featuring sidebars and eye-catching quote boxes filled with Winfrey's own words, readers discover her inspiring story, which is told alongside full-color photographs of Winfrey from the past and present.","English",35.950000000000003,28.75,"791.4502'8092--dc23","64 pp.","https://greenhavenpublishing.com/9781534566439",null,{"$f":"Table1[[#This Row],['# of Books]]*Table1[[#This Row],[QTY]]","v":0},{"$f":"Table1[[#This Row],[QTY]]*Table1[[#This Row],[School & Library Price]]","v":0}]
[null,null,18,null,null,"Biographies","Women Who Won't Be Silenced: The Stories of Strong Women","Oprah Winfrey","978-1-5345-6641-5",{"$f":"HYPERLINK(Table1[[#This Row],[eCommerce Hyperlink]],\"Book Weblink\")","v":"Book Weblink"},null,"Lucent Press","Paperback Book",1,"2019","January 2019","Paperback","7.250 X 9.250","Author","Ellen Creager",null,null,null,null,"X","1040L","Grade 6 - 7","Grade 6 - 8","In a speech at the 2018 Golden Globe Awards, Oprah Winfrey famously promised young women that \"a new day is on the horizon.\" That sense of determination has helped Winfrey rise to the top of the worlds of entertainment and business, and it's also helped her overcome a painful past to serve as a voice of hope and a force for change. Through detailed text featuring sidebars and eye-catching quote boxes filled with Winfrey's own words, readers discover her inspiring story, which is told alongside full-color photographs of Winfrey from the past and present.","English",16.28,13.85,"791.4502'8092--dc23","64 pp.","https://greenhavenpublishing.com/9781534566415",null,{"$f":"Table1[[#This Row],['# of Books]]*Table1[[#This Row],[QTY]]","v":0},{"$f":"Table1[[#This Row],[QTY]]*Table1[[#This Row],[School & Library Price]]","v":0}]
[null,null,18,null,null,"Biographies","Women Who Won't Be Silenced: The Stories of Strong Women","Reese Witherspoon","978-1-5345-6654-5",{"$f":"HYPERLINK(Table1[[#This Row],[eCommerce Hyperlink]],\"Book Weblink\")","v":"Book Weblink"},null,"Lucent Press","Library Bound Book",1,"2019","January 2019","Library","7.250 X 9.250","Author, Author","Janis Campbell, Catherine Collison",null,null,null,null,"X",null,"Grade 6 - 7","Grade 6 - 8","Reese Witherspoon is an Oscar-winning and Emmy-nominated actress and a successful producer, but she has become known for much more than just her work in movies and on television. She has become a leader of the Time's Up movement, fighting for equality for women in all careers and from all walks of life. As readers learn about Witherspoon's career accomplishments and activism, they discover a role model who channeled her own pain after being assaulted as young woman into a movement that is changing the world. Detailed sidebars, full-color photographs, and quotes from Witherspoon add to this empowering reading experience.","English",35.950000000000003,28.75,"791.4302'8092--dc23","64 pp.","https://greenhavenpublishing.com/9781534566545",null,{"$f":"Table1[[#This Row],['# of Books]]*Table1[[#This Row],[QTY]]","v":0},{"$f":"Table1[[#This Row],[QTY]]*Table1[[#This Row],[School & Library Price]]","v":0}]
[null,null,18,null,null,"Biographies","Women Who Won't Be Silenced: The Stories of Strong Women","Reese Witherspoon","978-1-5345-6655-2",{"$f":"HYPERLINK(Table1[[#This Row],[eCommerce Hyperlink]],\"Book Weblink\")","v":"Book Weblink"},null,"Lucent Press","eBook",1,"2019","January 2019",null,null,"Author, Author","Janis Campbell, Catherine Collison",null,null,null,null,"X",null,"Grade 6 - 7","Grade 6 - 8","Reese Witherspoon is an Oscar-winning and Emmy-nominated actress and a successful producer, but she has become known for much more than just her work in movies and on television. She has become a leader of the Time's Up movement, fighting for equality for women in all careers and from all walks of life. As readers learn about Witherspoon's career accomplishments and activism, they discover a role model who channeled her own pain after being assaulted as young woman into a movement that is changing the world. Detailed sidebars, full-color photographs, and quotes from Witherspoon add to this empowering reading experience.","English",35.950000000000003,28.75,"791.4302'8092--dc23","64 pp.","https://greenhavenpublishing.com/9781534566552",null,{"$f":"Table1[[#This Row],['# of Books]]*Table1[[#This Row],[QTY]]","v":0},{"$f":"Table1[[#This Row],[QTY]]*Table1[[#This Row],[School & Library Price]]","v":0}]
[null,null,18,null,null,"Biographies","Women Who Won't Be Silenced: The Stories of Strong Women","Reese Witherspoon","978-1-5345-6653-8",{"$f":"HYPERLINK(Table1[[#This Row],[eCommerce Hyperlink]],\"Book Weblink\")","v":"Book Weblink"},null,"Lucent Press","Paperback Book",1,"2019","January 2019","Paperback","7.250 X 9.250","Author, Author","Janis Campbell, Catherine Collison",null,null,null,null,"X",null,"Grade 6 - 7","Grade 6 - 8","Reese Witherspoon is an Oscar-winning and Emmy-nominated actress and a successful producer, but she has become known for much more than just her work in movies and on television. She has become a leader of the Time's Up movement, fighting for equality for women in all careers and from all walks of life. As readers learn about Witherspoon's career accomplishments and activism, they discover a role model who channeled her own pain after being assaulted as young woman into a movement that is changing the world. Detailed sidebars, full-color photographs, and quotes from Witherspoon add to this empowering reading experience.","English",16.28,13.85,"791.4302'8092--dc23","64 pp.","https://greenhavenpublishing.com/9781534566538",null,{"$f":"Table1[[#This Row],['# of Books]]*Table1[[#This Row],[QTY]]","v":0},{"$f":"Table1[[#This Row],[QTY]]*Table1[[#This Row],[School & Library Price]]","v":0}]
[null,null,18,null,null,"Biographies","Women Who Won't Be Silenced: The Stories of Strong Women","Ruth Bader Ginsburg","978-1-5345-6657-6",{"$f":"HYPERLINK(Table1[[#This Row],[eCommerce Hyperlink]],\"Book Weblink\")","v":"Book Weblink"},null,"Lucent Press","Library Bound Book",1,"2019","January 2019","Library","7.250 X 9.250","Author","Ellen Creager",null,null,null,null,"X",null,"Grade 6 - 7","Grade 6 - 8","Ruth Bader Ginsburg has become a hero to many from her place on the U.S Supreme Court. Her outspoken nature, work ethic, and unique style have earned her the nickname \"Notorious RBG.\" Her life story is filled with many motivational moments, which are presented through engaging main text, full-color photographs, and informative sidebars. Readers are also introduced to some of her most famous words of wisdom in eye-catching quote boxes. The life of a member of the Supreme Court is far from boring, which readers discover as they learn about this opera-loving, gym-going, groundbreaking justice.","English",35.950000000000003,28.75,"347.73'2634--dc23","64 pp.","https://greenhavenpublishing.com/9781534566576",null,{"$f":"Table1[[#This Row],['# of Books]]*Table1[[#This Row],[QTY]]","v":0},{"$f":"Table1[[#This Row],[QTY]]*Table1[[#This Row],[School & Library Price]]","v":0}]
[null,null,18,null,null,"Biographies","Women Who Won't Be Silenced: The Stories of Strong Women","Ruth Bader Ginsburg","978-1-5345-6658-3",{"$f":"HYPERLINK(Table1[[#This Row],[eCommerce Hyperlink]],\"Book Weblink\")","v":"Book Weblink"},null,"Lucent Press","eBook",1,"2019","January 2019",null,null,"Author","Ellen Creager",null,null,null,null,"X",null,"Grade 6 - 7","Grade 6 - 8","Ruth Bader Ginsburg has become a hero to many from her place on the U.S Supreme Court. Her outspoken nature, work ethic, and unique style have earned her the nickname \"Notorious RBG.\" Her life story is filled with many motivational moments, which are presented through engaging main text, full-color photographs, and informative sidebars. Readers are also introduced to some of her most famous words of wisdom in eye-catching quote boxes. The life of a member of the Supreme Court is far from boring, which readers discover as they learn about this opera-loving, gym-going, groundbreaking justice.","English",35.950000000000003,28.75,"347.73'2634--dc23","64 pp.","https://greenhavenpublishing.com/9781534566583",null,{"$f":"Table1[[#This Row],['# of Books]]*Table1[[#This Row],[QTY]]","v":0},{"$f":"Table1[[#This Row],[QTY]]*Table1[[#This Row],[School & Library Price]]","v":0}]
[null,null,18,null,null,"Biographies","Women Who Won't Be Silenced: The Stories of Strong Women","Ruth Bader Ginsburg","978-1-5345-6656-9",{"$f":"HYPERLINK(Table1[[#This Row],[eCommerce Hyperlink]],\"Book Weblink\")","v":"Book Weblink"},null,"Lucent Press","Paperback Book",1,"2019","January 2019","Paperback","7.250 X 9.250","Author","Ellen Creager",null,null,null,null,"X",null,"Grade 6 - 7","Grade 6 - 8","Ruth Bader Ginsburg has become a hero to many from her place on the U.S Supreme Court. Her outspoken nature, work ethic, and unique style have earned her the nickname \"Notorious RBG.\" Her life story is filled with many motivational moments, which are presented through engaging main text, full-color photographs, and informative sidebars. Readers are also introduced to some of her most famous words of wisdom in eye-catching quote boxes. The life of a member of the Supreme Court is far from boring, which readers discover as they learn about this opera-loving, gym-going, groundbreaking justice.","English",16.28,13.85,"347.73'2634--dc23","64 pp.","https://greenhavenpublishing.com/9781534566569",null,{"$f":"Table1[[#This Row],['# of Books]]*Table1[[#This Row],[QTY]]","v":0},{"$f":"Table1[[#This Row],[QTY]]*Table1[[#This Row],[School & Library Price]]","v":0}]
[null,null,18,null,null,"Biographies","Writers Who Changed the World","Writers Who Changed the World","978-1-5345-6600-2",{"$f":"HYPERLINK(Table1[[#This Row],[eCommerce Hyperlink]],\"Book Weblink\")","v":"Book Weblink"},null,"Lucent Press","Library Set",6,"2020","August 2019","Library","7.250 X 9.250",null,null,null,null,null,null,null,null,"Grade 6 - 7","Grade 6 - 8","Great writers don't just write about the world around them; they change it. The power of the pen is clearly presented through this in-depth exploration of the lives and masterpieces of some of history's most influential writers, from Charles Dickens to Anne Frank. This exciting look at literary history includes timelines, graphic organizers, and a vibrant design that features both historical and contemporary images. It can serve as an engaging supplement to the study of great works of literature such as Pride and Prejudice and Of Mice and Men. This set is also a fun independent reading experience for literature lovers. Features include: Guided analysis of each writer's most famous works to help readers develop the ability to closely read and analyze informational texts. Historical context that encourages readers to understand the link between history and literature. This content supports common social studies curriculum topics, such as the Industrial Revolution and the civil rights movement. Biographical information inspires readers to think critically about how writers shape their message to influence their audience.","English",215.7,172.5,null,"64 pp.","https://greenhavenpublishing.com/9781534566002",null,{"$f":"Table1[[#This Row],['# of Books]]*Table1[[#This Row],[QTY]]","v":0},{"$f":"Table1[[#This Row],[QTY]]*Table1[[#This Row],[School & Library Price]]","v":0}]
[null,null,18,null,null,"Biographies","Writers Who Changed the World","Writers Who Changed the World","978-1-5345-6802-0",{"$f":"HYPERLINK(Table1[[#This Row],[eCommerce Hyperlink]],\"Book Weblink\")","v":"Book Weblink"},null,"Lucent Press","Single Copy Set",6,"2020","August 2019","Paperback","7.250 X 9.250",null,null,null,null,null,null,null,null,"Grade 6 - 7","Grade 6 - 8","Great writers don't just write about the world around them; they change it. The power of the pen is clearly presented through this in-depth exploration of the lives and masterpieces of some of history's most influential writers, from Charles Dickens to Anne Frank. This exciting look at literary history includes timelines, graphic organizers, and a vibrant design that features both historical and contemporary images. It can serve as an engaging supplement to the study of great works of literature such as Pride and Prejudice and Of Mice and Men. This set is also a fun independent reading experience for literature lovers. Features include: Guided analysis of each writer's most famous works to help readers develop the ability to closely read and analyze informational texts. Historical context that encourages readers to understand the link between history and literature. This content supports common social studies curriculum topics, such as the Industrial Revolution and the civil rights movement. Biographical information inspires readers to think critically about how writers shape their message to influence their audience.","English",97.68,83.1,null,"64 pp.","https://greenhavenpublishing.com/9781534568020",null,{"$f":"Table1[[#This Row],['# of Books]]*Table1[[#This Row],[QTY]]","v":0},{"$f":"Table1[[#This Row],[QTY]]*Table1[[#This Row],[School & Library Price]]","v":0}]
[null,null,18,null,null,"Biographies","Writers Who Changed the World","Alice Walker","978-1-5345-6582-1",{"$f":"HYPERLINK(Table1[[#This Row],[eCommerce Hyperlink]],\"Book Weblink\")","v":"Book Weblink"},null,"Lucent Press","Library Bound Book",1,"2020","August 2019","Library","7.250 X 9.250","Author","Anita Croy",null,null,null,null,"X",null,"Grade 6 - 7","Grade 6 - 8","Alice Walker's The Color Purple was awarded the Pulitzer Prize and is considered one of the most influential works of modern African American fiction. Readers discover the lasting impact of this novel and Walker's other works as they explore this captivating guide to the life of a literary giant. Historical and biographical context is presented through informative main text, engaging sidebars, and design elements that include timelines and primary source images. Readers are then able to use this context to analyze Walker's work, which is introduced to them in an accessible way that strengthens essential language arts skills.","English",35.950000000000003,28.75,"813'.54--dc23","64 pp.","https://greenhavenpublishing.com/9781534565821",null,{"$f":"Table1[[#This Row],['# of Books]]*Table1[[#This Row],[QTY]]","v":0},{"$f":"Table1[[#This Row],[QTY]]*Table1[[#This Row],[School & Library Price]]","v":0}]
[null,null,18,null,null,"Biographies","Writers Who Changed the World","Alice Walker","978-1-5345-6583-8",{"$f":"HYPERLINK(Table1[[#This Row],[eCommerce Hyperlink]],\"Book Weblink\")","v":"Book Weblink"},null,"Lucent Press","eBook",1,"2020","August 2019",null,null,"Author","Anita Croy",null,null,null,null,"X",null,"Grade 6 - 7","Grade 6 - 8","Alice Walker's The Color Purple was awarded the Pulitzer Prize and is considered one of the most influential works of modern African American fiction. Readers discover the lasting impact of this novel and Walker's other works as they explore this captivating guide to the life of a literary giant. Historical and biographical context is presented through informative main text, engaging sidebars, and design elements that include timelines and primary source images. Readers are then able to use this context to analyze Walker's work, which is introduced to them in an accessible way that strengthens essential language arts skills.","English",35.950000000000003,28.75,"813'.54--dc23","64 pp.","https://greenhavenpublishing.com/9781534565838",null,{"$f":"Table1[[#This Row],['# of Books]]*Table1[[#This Row],[QTY]]","v":0},{"$f":"Table1[[#This Row],[QTY]]*Table1[[#This Row],[School & Library Price]]","v":0}]
[null,null,18,null,null,"Biographies","Writers Who Changed the World","Alice Walker","978-1-5345-6581-4",{"$f":"HYPERLINK(Table1[[#This Row],[eCommerce Hyperlink]],\"Book Weblink\")","v":"Book Weblink"},null,"Lucent Press","Paperback Book",1,"2020","August 2019","Paperback","7.250 X 9.250","Author","Anita Croy",null,null,null,null,"X",null,"Grade 6 - 7","Grade 6 - 8","Alice Walker's The Color Purple was awarded the Pulitzer Prize and is considered one of the most influential works of modern African American fiction. Readers discover the lasting impact of this novel and Walker's other works as they explore this captivating guide to the life of a literary giant. Historical and biographical context is presented through informative main text, engaging sidebars, and design elements that include timelines and primary source images. Readers are then able to use this context to analyze Walker's work, which is introduced to them in an accessible way that strengthens essential language arts skills.","English",16.28,13.85,"813'.54--dc23","64 pp.","https://greenhavenpublishing.com/9781534565814",null,{"$f":"Table1[[#This Row],['# of Books]]*Table1[[#This Row],[QTY]]","v":0},{"$f":"Table1[[#This Row],[QTY]]*Table1[[#This Row],[School & Library Price]]","v":0}]
[null,null,18,null,null,"Biographies","Writers Who Changed the World","Anne Frank","978-1-5345-6579-1",{"$f":"HYPERLINK(Table1[[#This Row],[eCommerce Hyperlink]],\"Book Weblink\")","v":"Book Weblink"},null,"Lucent Press","Library Bound Book",1,"2020","August 2019","Library","7.250 X 9.250","Author","Anita Croy",null,null,null,null,"X",null,"Grade 6 - 7","Grade 6 - 8","For more than 70 years, the words of Anne Frank have inspired young people to believe that their voices have power. This essential guide to the life and writing of Anne Frank combines biographical details, primary source images, and accessible literary analysis to create an unforgettable reading experience. The engaging design features timelines and graphic organizers, which encourage readers to look at literature in a fresh way. As readers discover the historical context behind The Diary of a Young Girl and its impact on future generations, they deepen their understanding of the ways history, current events, and literature are connected.","English",35.950000000000003,28.75,"940.53'18092--dc23","64 pp.","https://greenhavenpublishing.com/9781534565791",null,{"$f":"Table1[[#This Row],['# of Books]]*Table1[[#This Row],[QTY]]","v":0},{"$f":"Table1[[#This Row],[QTY]]*Table1[[#This Row],[School & Library Price]]","v":0}]
[null,null,18,null,null,"Biographies","Writers Who Changed the World","Anne Frank","978-1-5345-6580-7",{"$f":"HYPERLINK(Table1[[#This Row],[eCommerce Hyperlink]],\"Book Weblink\")","v":"Book Weblink"},null,"Lucent Press","eBook",1,"2020","August 2019",null,null,"Author","Anita Croy",null,null,null,null,"X",null,"Grade 6 - 7","Grade 6 - 8","For more than 70 years, the words of Anne Frank have inspired young people to believe that their voices have power. This essential guide to the life and writing of Anne Frank combines biographical details, primary source images, and accessible literary analysis to create an unforgettable reading experience. The engaging design features timelines and graphic organizers, which encourage readers to look at literature in a fresh way. As readers discover the historical context behind The Diary of a Young Girl and its impact on future generations, they deepen their understanding of the ways history, current events, and literature are connected.","English",35.950000000000003,28.75,"940.53'18092--dc23","64 pp.","https://greenhavenpublishing.com/9781534565807",null,{"$f":"Table1[[#This Row],['# of Books]]*Table1[[#This Row],[QTY]]","v":0},{"$f":"Table1[[#This Row],[QTY]]*Table1[[#This Row],[School & Library Price]]","v":0}]
[null,null,18,null,null,"Biographies","Writers Who Changed the World","Anne Frank","978-1-5345-6578-4",{"$f":"HYPERLINK(Table1[[#This Row],[eCommerce Hyperlink]],\"Book Weblink\")","v":"Book Weblink"},null,"Lucent Press","Paperback Book",1,"2020","August 2019","Paperback","7.250 X 9.250","Author","Anita Croy",null,null,null,null,"X",null,"Grade 6 - 7","Grade 6 - 8","For more than 70 years, the words of Anne Frank have inspired young people to believe that their voices have power. This essential guide to the life and writing of Anne Frank combines biographical details, primary source images, and accessible literary analysis to create an unforgettable reading experience. The engaging design features timelines and graphic organizers, which encourage readers to look at literature in a fresh way. As readers discover the historical context behind The Diary of a Young Girl and its impact on future generations, they deepen their understanding of the ways history, current events, and literature are connected.","English",16.28,13.85,"940.53'18092--dc23","64 pp.","https://greenhavenpublishing.com/9781534565784",null,{"$f":"Table1[[#This Row],['# of Books]]*Table1[[#This Row],[QTY]]","v":0},{"$f":"Table1[[#This Row],[QTY]]*Table1[[#This Row],[School & Library Price]]","v":0}]
[null,null,18,null,null,"Biographies","Writers Who Changed the World","Charles Dickens","978-1-5345-6588-3",{"$f":"HYPERLINK(Table1[[#This Row],[eCommerce Hyperlink]],\"Book Weblink\")","v":"Book Weblink"},null,"Lucent Press","Library Bound Book",1,"2020","August 2019","Library","7.250 X 9.250","Author","Anita Croy",null,null,null,null,"X",null,"Grade 6 - 7","Grade 6 - 8","Charles Dickens often wrote about the social problems of 19th-century England, such as child labor, poverty, and crime. By shedding a light on these issues through popular works of literature, he helped create change. Readers explore this connection between history, social issues, and literature as they examine the details of Dickens's life and literary career through engaging main text, fact-filled sidebars, graphic organizers, and historical images. Readers are also given a close look at one of Dickens's most famous works, Oliver Twist. They are encouraged to think critically about how his words may have changed the world.","English",35.950000000000003,28.75,"823.8--dc23","64 pp.","https://greenhavenpublishing.com/9781534565883",null,{"$f":"Table1[[#This Row],['# of Books]]*Table1[[#This Row],[QTY]]","v":0},{"$f":"Table1[[#This Row],[QTY]]*Table1[[#This Row],[School & Library Price]]","v":0}]
[null,null,18,null,null,"Biographies","Writers Who Changed the World","Charles Dickens","978-1-5345-6589-0",{"$f":"HYPERLINK(Table1[[#This Row],[eCommerce Hyperlink]],\"Book Weblink\")","v":"Book Weblink"},null,"Lucent Press","eBook",1,"2020","August 2019",null,null,"Author","Anita Croy",null,null,null,null,"X",null,"Grade 6 - 7","Grade 6 - 8","Charles Dickens often wrote about the social problems of 19th-century England, such as child labor, poverty, and crime. By shedding a light on these issues through popular works of literature, he helped create change. Readers explore this connection between history, social issues, and literature as they examine the details of Dickens's life and literary career through engaging main text, fact-filled sidebars, graphic organizers, and historical images. Readers are also given a close look at one of Dickens's most famous works, Oliver Twist. They are encouraged to think critically about how his words may have changed the world.","English",35.950000000000003,28.75,"823.8--dc23","64 pp.","https://greenhavenpublishing.com/9781534565890",null,{"$f":"Table1[[#This Row],['# of Books]]*Table1[[#This Row],[QTY]]","v":0},{"$f":"Table1[[#This Row],[QTY]]*Table1[[#This Row],[School & Library Price]]","v":0}]
[null,null,18,null,null,"Biographies","Writers Who Changed the World","Charles Dickens","978-1-5345-6587-6",{"$f":"HYPERLINK(Table1[[#This Row],[eCommerce Hyperlink]],\"Book Weblink\")","v":"Book Weblink"},null,"Lucent Press","Paperback Book",1,"2020","August 2019","Paperback","7.250 X 9.250","Author","Anita Croy",null,null,null,null,"X",null,"Grade 6 - 7","Grade 6 - 8","Charles Dickens often wrote about the social problems of 19th-century England, such as child labor, poverty, and crime. By shedding a light on these issues through popular works of literature, he helped create change. Readers explore this connection between history, social issues, and literature as they examine the details of Dickens's life and literary career through engaging main text, fact-filled sidebars, graphic organizers, and historical images. Readers are also given a close look at one of Dickens's most famous works, Oliver Twist. They are encouraged to think critically about how his words may have changed the world.","English",16.28,13.85,"823.8--dc23","64 pp.","https://greenhavenpublishing.com/9781534565876",null,{"$f":"Table1[[#This Row],['# of Books]]*Table1[[#This Row],[QTY]]","v":0},{"$f":"Table1[[#This Row],[QTY]]*Table1[[#This Row],[School & Library Price]]","v":0}]
[null,null,18,null,null,"Biographies","Writers Who Changed the World","George Orwell","978-1-5345-6591-3",{"$f":"HYPERLINK(Table1[[#This Row],[eCommerce Hyperlink]],\"Book Weblink\")","v":"Book Weblink"},null,"Lucent Press","Library Bound Book",1,"2020","August 2019","Library","7.250 X 9.250","Author","Anita Croy",null,null,null,null,"X",null,"Grade 6 - 7","Grade 6 - 8","George Orwell's 1984 had a major impact on the world when it was first released, and its themes of government surveillance, the threat of totalitarianism, and the suppression of information continue to resonate today. As readers are introduced to this novel and Orwell's other groundbreaking works of literature, including Animal Farm, they explore the many ways literature reflects the past and can help shape the future. Biographical details are presented through engaging main text, primary source images, and graphic organizers. Sidebars help readers closely analyze Orwell's work and think critically about how his themes are still relevant today.","English",35.950000000000003,28.75,"828'.91209--dc23","64 pp.","https://greenhavenpublishing.com/9781534565913",null,{"$f":"Table1[[#This Row],['# of Books]]*Table1[[#This Row],[QTY]]","v":0},{"$f":"Table1[[#This Row],[QTY]]*Table1[[#This Row],[School & Library Price]]","v":0}]
[null,null,18,null,null,"Biographies","Writers Who Changed the World","George Orwell","978-1-5345-6592-0",{"$f":"HYPERLINK(Table1[[#This Row],[eCommerce Hyperlink]],\"Book Weblink\")","v":"Book Weblink"},null,"Lucent Press","eBook",1,"2020","August 2019",null,null,"Author","Anita Croy",null,null,null,null,"X",null,"Grade 6 - 7","Grade 6 - 8","George Orwell's 1984 had a major impact on the world when it was first released, and its themes of government surveillance, the threat of totalitarianism, and the suppression of information continue to resonate today. As readers are introduced to this novel and Orwell's other groundbreaking works of literature, including Animal Farm, they explore the many ways literature reflects the past and can help shape the future. Biographical details are presented through engaging main text, primary source images, and graphic organizers. Sidebars help readers closely analyze Orwell's work and think critically about how his themes are still relevant today.","English",35.950000000000003,28.75,"828'.91209--dc23","64 pp.","https://greenhavenpublishing.com/9781534565920",null,{"$f":"Table1[[#This Row],['# of Books]]*Table1[[#This Row],[QTY]]","v":0},{"$f":"Table1[[#This Row],[QTY]]*Table1[[#This Row],[School & Library Price]]","v":0}]
[null,null,18,null,null,"Biographies","Writers Who Changed the World","George Orwell","978-1-5345-6590-6",{"$f":"HYPERLINK(Table1[[#This Row],[eCommerce Hyperlink]],\"Book Weblink\")","v":"Book Weblink"},null,"Lucent Press","Paperback Book",1,"2020","August 2019","Paperback","7.250 X 9.250","Author","Anita Croy",null,null,null,null,"X",null,"Grade 6 - 7","Grade 6 - 8","George Orwell's 1984 had a major impact on the world when it was first released, and its themes of government surveillance, the threat of totalitarianism, and the suppression of information continue to resonate today. As readers are introduced to this novel and Orwell's other groundbreaking works of literature, including Animal Farm, they explore the many ways literature reflects the past and can help shape the future. Biographical details are presented through engaging main text, primary source images, and graphic organizers. Sidebars help readers closely analyze Orwell's work and think critically about how his themes are still relevant today.","English",16.28,13.85,"828'.91209--dc23","64 pp.","https://greenhavenpublishing.com/9781534565906",null,{"$f":"Table1[[#This Row],['# of Books]]*Table1[[#This Row],[QTY]]","v":0},{"$f":"Table1[[#This Row],[QTY]]*Table1[[#This Row],[School & Library Price]]","v":0}]
[null,null,18,null,null,"Biographies","Writers Who Changed the World","Jane Austen","978-1-5345-6585-2",{"$f":"HYPERLINK(Table1[[#This Row],[eCommerce Hyperlink]],\"Book Weblink\")","v":"Book Weblink"},null,"Lucent Press","Library Bound Book",1,"2020","August 2019","Library","7.250 X 9.250","Author","Anita Croy",null,null,null,null,"X",null,"Grade 6 - 7","Grade 6 - 8","Jane Austen's novels have inspired readers for centuries, and modern adaptations continue to captivate audiences today. While all of Austen's works have legions of fans, she's best known as the author of one of literature's great love stories: Pride and Prejudice. However, this novel is far more than a romance, and readers discover this as they're introduced to the sharp social commentary Austen presented in her writing. Complete with primary sources, graphic organizers, and detailed sidebars, this inside look at Austen's life is sure to inspire the next generation of fans.","English",35.950000000000003,28.75,"823'.7--dc23","64 pp.","https://greenhavenpublishing.com/9781534565852",null,{"$f":"Table1[[#This Row],['# of Books]]*Table1[[#This Row],[QTY]]","v":0},{"$f":"Table1[[#This Row],[QTY]]*Table1[[#This Row],[School & Library Price]]","v":0}]
[null,null,18,null,null,"Biographies","Writers Who Changed the World","Jane Austen","978-1-5345-6586-9",{"$f":"HYPERLINK(Table1[[#This Row],[eCommerce Hyperlink]],\"Book Weblink\")","v":"Book Weblink"},null,"Lucent Press","eBook",1,"2020","August 2019",null,null,"Author","Anita Croy",null,null,null,null,"X",null,"Grade 6 - 7","Grade 6 - 8","Jane Austen's novels have inspired readers for centuries, and modern adaptations continue to captivate audiences today. While all of Austen's works have legions of fans, she's best known as the author of one of literature's great love stories: Pride and Prejudice. However, this novel is far more than a romance, and readers discover this as they're introduced to the sharp social commentary Austen presented in her writing. Complete with primary sources, graphic organizers, and detailed sidebars, this inside look at Austen's life is sure to inspire the next generation of fans.","English",35.950000000000003,28.75,"823'.7--dc23","64 pp.","https://greenhavenpublishing.com/9781534565869",null,{"$f":"Table1[[#This Row],['# of Books]]*Table1[[#This Row],[QTY]]","v":0},{"$f":"Table1[[#This Row],[QTY]]*Table1[[#This Row],[School & Library Price]]","v":0}]
[null,null,18,null,null,"Biographies","Writers Who Changed the World","Jane Austen","978-1-5345-6584-5",{"$f":"HYPERLINK(Table1[[#This Row],[eCommerce Hyperlink]],\"Book Weblink\")","v":"Book Weblink"},null,"Lucent Press","Paperback Book",1,"2020","August 2019","Paperback","7.250 X 9.250","Author","Anita Croy",null,null,null,null,"X",null,"Grade 6 - 7","Grade 6 - 8","Jane Austen's novels have inspired readers for centuries, and modern adaptations continue to captivate audiences today. While all of Austen's works have legions of fans, she's best known as the author of one of literature's great love stories: Pride and Prejudice. However, this novel is far more than a romance, and readers discover this as they're introduced to the sharp social commentary Austen presented in her writing. Complete with primary sources, graphic organizers, and detailed sidebars, this inside look at Austen's life is sure to inspire the next generation of fans.","English",16.28,13.85,"823'.7--dc23","64 pp.","https://greenhavenpublishing.com/9781534565845",null,{"$f":"Table1[[#This Row],['# of Books]]*Table1[[#This Row],[QTY]]","v":0},{"$f":"Table1[[#This Row],[QTY]]*Table1[[#This Row],[School & Library Price]]","v":0}]
[null,null,18,null,null,"Biographies","Writers Who Changed the World","John Steinbeck","978-1-5345-6594-4",{"$f":"HYPERLINK(Table1[[#This Row],[eCommerce Hyperlink]],\"Book Weblink\")","v":"Book Weblink"},null,"Lucent Press","Library Bound Book",1,"2020","August 2019","Library","7.250 X 9.250","Author","Anita Croy",null,null,null,null,"X",null,"Grade 6 - 7","Grade 6 - 8","John Steinbeck's novels, including The Grapes of Wrath and East of Eden, have been read by students around the world, and they often provide a strong starting point for learning about the devastating effects of the Great Depression. This connection between history and literature is waiting for readers to discover as they take in the fascinating details of Steinbeck's life and closely examine one of his most famous works, Of Mice and Men. Featuring enlightening sidebars, primary source images, and graphic organizers such as detailed timelines, this reading experience is sure to captivate young literature lovers.","English",35.950000000000003,28.75,"813'.52--dc23","64 pp.","https://greenhavenpublishing.com/9781534565944",null,{"$f":"Table1[[#This Row],['# of Books]]*Table1[[#This Row],[QTY]]","v":0},{"$f":"Table1[[#This Row],[QTY]]*Table1[[#This Row],[School & Library Price]]","v":0}]
[null,null,18,null,null,"Biographies","Writers Who Changed the World","John Steinbeck","978-1-5345-6595-1",{"$f":"HYPERLINK(Table1[[#This Row],[eCommerce Hyperlink]],\"Book Weblink\")","v":"Book Weblink"},null,"Lucent Press","eBook",1,"2020","August 2019",null,null,"Author","Anita Croy",null,null,null,null,"X",null,"Grade 6 - 7","Grade 6 - 8","John Steinbeck's novels, including The Grapes of Wrath and East of Eden, have been read by students around the world, and they often provide a strong starting point for learning about the devastating effects of the Great Depression. This connection between history and literature is waiting for readers to discover as they take in the fascinating details of Steinbeck's life and closely examine one of his most famous works, Of Mice and Men. Featuring enlightening sidebars, primary source images, and graphic organizers such as detailed timelines, this reading experience is sure to captivate young literature lovers.","English",35.950000000000003,28.75,"813'.52--dc23","64 pp.","https://greenhavenpublishing.com/9781534565951",null,{"$f":"Table1[[#This Row],['# of Books]]*Table1[[#This Row],[QTY]]","v":0},{"$f":"Table1[[#This Row],[QTY]]*Table1[[#This Row],[School & Library Price]]","v":0}]
[null,null,18,null,null,"Biographies","Writers Who Changed the World","John Steinbeck","978-1-5345-6593-7",{"$f":"HYPERLINK(Table1[[#This Row],[eCommerce Hyperlink]],\"Book Weblink\")","v":"Book Weblink"},null,"Lucent Press","Paperback Book",1,"2020","August 2019","Paperback","7.250 X 9.250","Author","Anita Croy",null,null,null,null,"X",null,"Grade 6 - 7","Grade 6 - 8","John Steinbeck's novels, including The Grapes of Wrath and East of Eden, have been read by students around the world, and they often provide a strong starting point for learning about the devastating effects of the Great Depression. This connection between history and literature is waiting for readers to discover as they take in the fascinating details of Steinbeck's life and closely examine one of his most famous works, Of Mice and Men. Featuring enlightening sidebars, primary source images, and graphic organizers such as detailed timelines, this reading experience is sure to captivate young literature lovers.","English",16.28,13.85,"813'.52--dc23","64 pp.","https://greenhavenpublishing.com/9781534565937",null,{"$f":"Table1[[#This Row],['# of Books]]*Table1[[#This Row],[QTY]]","v":0},{"$f":"Table1[[#This Row],[QTY]]*Table1[[#This Row],[School & Library Price]]","v":0}]
[null,null,19,null,null,"Careers","Covert Careers: Jobs You Can't Talk About","Covert Careers: Jobs You Can't Talk About","978-1-5345-6677-4",{"$f":"HYPERLINK(Table1[[#This Row],[eCommerce Hyperlink]],\"Book Weblink\")","v":"Book Weblink"},null,"Lucent Press","Library Set",6,"2019","January 2019","Library","7.250 X 9.250",null,null,null,null,null,null,null,null,"Grade 6","Grade 5 - 8","What does a CIA agent really do? How secretive do you have to be when you work for the Secret Service? What does it take to join the U.S. Special Forces? These are just some of the questions readers will be able to answer after learning essential details about classified careers with agencies such as the FBI and DEA. The exciting main texts are presented alongside informative sidebars and fun fact boxes. Vibrant, full-color photographs are part of the immersive design that draws readers in to these fascinating subjects. Features include: Career-focused text gives readers all the information they need to begin preparing for a job in these thrilling fields. Objective texts encourages readers to think critically about the secretive nature of these careers. Offers a fresh take on social studies and current events topics, which gives readers an inside look at some of the people and agencies that make headlines every day.","English",207.6,166.08,null,"48 pp.","https://greenhavenpublishing.com/9781534566774",null,{"$f":"Table1[[#This Row],['# of Books]]*Table1[[#This Row],[QTY]]","v":0},{"$f":"Table1[[#This Row],[QTY]]*Table1[[#This Row],[School & Library Price]]","v":0}]
[null,null,19,null,null,"Careers","Covert Careers: Jobs You Can't Talk About","Covert Careers: Jobs You Can't Talk About","978-1-5345-6685-9",{"$f":"HYPERLINK(Table1[[#This Row],[eCommerce Hyperlink]],\"Book Weblink\")","v":"Book Weblink"},null,"Lucent Press","Single Copy Set",6,"2019","January 2019","Paperback","7.250 X 9.250",null,null,null,null,null,null,null,null,"Grade 6","Grade 5 - 8","What does a CIA agent really do? How secretive do you have to be when you work for the Secret Service? What does it take to join the U.S. Special Forces? These are just some of the questions readers will be able to answer after learning essential details about classified careers with agencies such as the FBI and DEA. The exciting main texts are presented alongside informative sidebars and fun fact boxes. Vibrant, full-color photographs are part of the immersive design that draws readers in to these fascinating subjects. Features include: Career-focused text gives readers all the information they need to begin preparing for a job in these thrilling fields. Objective texts encourages readers to think critically about the secretive nature of these careers. Offers a fresh take on social studies and current events topics, which gives readers an inside look at some of the people and agencies that make headlines every day.","English",90.3,76.8,null,"48 pp.","https://greenhavenpublishing.com/9781534566859",null,{"$f":"Table1[[#This Row],['# of Books]]*Table1[[#This Row],[QTY]]","v":0},{"$f":"Table1[[#This Row],[QTY]]*Table1[[#This Row],[School & Library Price]]","v":0}]
[null,null,19,null,null,"Careers","Covert Careers: Jobs You Can't Talk About","Inside Interpol","978-1-5345-6633-0",{"$f":"HYPERLINK(Table1[[#This Row],[eCommerce Hyperlink]],\"Book Weblink\")","v":"Book Weblink"},null,"Lucent Press","Library Bound Book",1,"2019","January 2019","Library","7.250 X 9.250","Author","Louise Spilsbury",null,null,null,null,"V","1260L","Grade 6","Grade 5 - 8","The International Criminal Police Organization, better known as Interpol, has 192 member countries, making it the largest international police organization in the world. What does Interpol do, and how can someone start working for this organization? The answers to these questions and more are found in this educational and exciting look at a leading global law enforcement agency. Fascinating facts are presented to readers in creative ways, including sidebars, fact boxes, and graphic organizers. Captivating full-color photographs are also included to give readers a closer look at exactly how Interpol is working to create a safer world.","English",34.6,27.68,"363.206'01--dc23","48 pp.","https://greenhavenpublishing.com/9781534566330",null,{"$f":"Table1[[#This Row],['# of Books]]*Table1[[#This Row],[QTY]]","v":0},{"$f":"Table1[[#This Row],[QTY]]*Table1[[#This Row],[School & Library Price]]","v":0}]
[null,null,19,null,null,"Careers","Covert Careers: Jobs You Can't Talk About","Inside Interpol","978-1-5345-6634-7",{"$f":"HYPERLINK(Table1[[#This Row],[eCommerce Hyperlink]],\"Book Weblink\")","v":"Book Weblink"},null,"Lucent Press","eBook",1,"2019","January 2019",null,null,"Author","Louise Spilsbury",null,null,null,null,"V","1260L","Grade 6","Grade 5 - 8","The International Criminal Police Organization, better known as Interpol, has 192 member countries, making it the largest international police organization in the world. What does Interpol do, and how can someone start working for this organization? The answers to these questions and more are found in this educational and exciting look at a leading global law enforcement agency. Fascinating facts are presented to readers in creative ways, including sidebars, fact boxes, and graphic organizers. Captivating full-color photographs are also included to give readers a closer look at exactly how Interpol is working to create a safer world.","English",34.6,27.68,"363.206'01--dc23","48 pp.","https://greenhavenpublishing.com/9781534566347",null,{"$f":"Table1[[#This Row],['# of Books]]*Table1[[#This Row],[QTY]]","v":0},{"$f":"Table1[[#This Row],[QTY]]*Table1[[#This Row],[School & Library Price]]","v":0}]
[null,null,19,null,null,"Careers","Covert Careers: Jobs You Can't Talk About","Inside Interpol","978-1-5345-6632-3",{"$f":"HYPERLINK(Table1[[#This Row],[eCommerce Hyperlink]],\"Book Weblink\")","v":"Book Weblink"},null,"Lucent Press","Paperback Book",1,"2019","January 2019","Paperback","7.250 X 9.250","Author","Louise Spilsbury",null,null,null,null,"V","1260L","Grade 6","Grade 5 - 8","The International Criminal Police Organization, better known as Interpol, has 192 member countries, making it the largest international police organization in the world. What does Interpol do, and how can someone start working for this organization? The answers to these questions and more are found in this educational and exciting look at a leading global law enforcement agency. Fascinating facts are presented to readers in creative ways, including sidebars, fact boxes, and graphic organizers. Captivating full-color photographs are also included to give readers a closer look at exactly how Interpol is working to create a safer world.","English",15.05,12.8,"363.206'01--dc23","48 pp.","https://greenhavenpublishing.com/9781534566323",null,{"$f":"Table1[[#This Row],['# of Books]]*Table1[[#This Row],[QTY]]","v":0},{"$f":"Table1[[#This Row],[QTY]]*Table1[[#This Row],[School & Library Price]]","v":0}]
[null,null,19,null,null,"Careers","Covert Careers: Jobs You Can't Talk About","Inside the CIA","978-1-5345-6627-9",{"$f":"HYPERLINK(Table1[[#This Row],[eCommerce Hyperlink]],\"Book Weblink\")","v":"Book Weblink"},null,"Lucent Press","Library Bound Book",1,"2019","January 2019","Library","7.250 X 9.250","Author","Louise Spilsbury",null,null,null,null,"V","1180L","Grade 6","Grade 5 - 8","Is the life of a CIA agent really as exciting and dangerous as it appears? Readers discover the truth behind the secret life of CIA agents as they learn what it takes to work for the Central Intelligence Agency. As vivid full-color photographs draw them in to this secretive world, they explore essential facts about the skills, education, and training needed to follow this high-interest career path. Eye-catching fact boxes, graphic organizers, and sidebars are found alongside the detailed main text, giving readers an inside look at this covert career.","English",34.6,27.68,"327.1273--dc23","48 pp.","https://greenhavenpublishing.com/9781534566279",null,{"$f":"Table1[[#This Row],['# of Books]]*Table1[[#This Row],[QTY]]","v":0},{"$f":"Table1[[#This Row],[QTY]]*Table1[[#This Row],[School & Library Price]]","v":0}]
[null,null,19,null,null,"Careers","Covert Careers: Jobs You Can't Talk About","Inside the CIA","978-1-5345-6628-6",{"$f":"HYPERLINK(Table1[[#This Row],[eCommerce Hyperlink]],\"Book Weblink\")","v":"Book Weblink"},null,"Lucent Press","eBook",1,"2019","January 2019",null,null,"Author","Louise Spilsbury",null,null,null,null,"V","1180L","Grade 6","Grade 5 - 8","Is the life of a CIA agent really as exciting and dangerous as it appears? Readers discover the truth behind the secret life of CIA agents as they learn what it takes to work for the Central Intelligence Agency. As vivid full-color photographs draw them in to this secretive world, they explore essential facts about the skills, education, and training needed to follow this high-interest career path. Eye-catching fact boxes, graphic organizers, and sidebars are found alongside the detailed main text, giving readers an inside look at this covert career.","English",34.6,27.68,"327.1273--dc23","48 pp.","https://greenhavenpublishing.com/9781534566286",null,{"$f":"Table1[[#This Row],['# of Books]]*Table1[[#This Row],[QTY]]","v":0},{"$f":"Table1[[#This Row],[QTY]]*Table1[[#This Row],[School & Library Price]]","v":0}]
[null,null,19,null,null,"Careers","Covert Careers: Jobs You Can't Talk About","Inside the CIA","978-1-5345-6626-2",{"$f":"HYPERLINK(Table1[[#This Row],[eCommerce Hyperlink]],\"Book Weblink\")","v":"Book Weblink"},null,"Lucent Press","Paperback Book",1,"2019","January 2019","Paperback","7.250 X 9.250","Author","Louise Spilsbury",null,null,null,null,"V","1180L","Grade 6","Grade 5 - 8","Is the life of a CIA agent really as exciting and dangerous as it appears? Readers discover the truth behind the secret life of CIA agents as they learn what it takes to work for the Central Intelligence Agency. As vivid full-color photographs draw them in to this secretive world, they explore essential facts about the skills, education, and training needed to follow this high-interest career path. Eye-catching fact boxes, graphic organizers, and sidebars are found alongside the detailed main text, giving readers an inside look at this covert career.","English",15.05,12.8,"327.1273--dc23","48 pp.","https://greenhavenpublishing.com/9781534566262",null,{"$f":"Table1[[#This Row],['# of Books]]*Table1[[#This Row],[QTY]]","v":0},{"$f":"Table1[[#This Row],[QTY]]*Table1[[#This Row],[School & Library Price]]","v":0}]
[null,null,19,null,null,"Careers","Covert Careers: Jobs You Can't Talk About","Inside the DEA","978-1-5345-6630-9",{"$f":"HYPERLINK(Table1[[#This Row],[eCommerce Hyperlink]],\"Book Weblink\")","v":"Book Weblink"},null,"Lucent Press","Library Bound Book",1,"2019","January 2019","Library","7.250 X 9.250","Author","Louise Spilsbury",null,null,null,null,"V",null,"Grade 6","Grade 5 - 8","The Drug Enforcement Administration is on the front lines of the war on drugs in the United States. Readers explore the many ways DEA agents are working to fight this war, including the use of covert and undercover operations. This exciting career path is presented to readers through informative text, including helpful fact boxes and sidebars, as well as through detailed graphic organizers and full-color photographs of DEA agents in action. Readers interested in a career in law enforcement are sure to be inspired by this inside look at one of America's most important law enforcement agencies.","English",34.6,27.68,"363.450973--dc23","48 pp.","https://greenhavenpublishing.com/9781534566309",null,{"$f":"Table1[[#This Row],['# of Books]]*Table1[[#This Row],[QTY]]","v":0},{"$f":"Table1[[#This Row],[QTY]]*Table1[[#This Row],[School & Library Price]]","v":0}]
[null,null,19,null,null,"Careers","Covert Careers: Jobs You Can't Talk About","Inside the DEA","978-1-5345-6631-6",{"$f":"HYPERLINK(Table1[[#This Row],[eCommerce Hyperlink]],\"Book Weblink\")","v":"Book Weblink"},null,"Lucent Press","eBook",1,"2019","January 2019",null,null,"Author","Louise Spilsbury",null,null,null,null,"V",null,"Grade 6","Grade 5 - 8","The Drug Enforcement Administration is on the front lines of the war on drugs in the United States. Readers explore the many ways DEA agents are working to fight this war, including the use of covert and undercover operations. This exciting career path is presented to readers through informative text, including helpful fact boxes and sidebars, as well as through detailed graphic organizers and full-color photographs of DEA agents in action. Readers interested in a career in law enforcement are sure to be inspired by this inside look at one of America's most important law enforcement agencies.","English",34.6,27.68,"363.450973--dc23","48 pp.","https://greenhavenpublishing.com/9781534566316",null,{"$f":"Table1[[#This Row],['# of Books]]*Table1[[#This Row],[QTY]]","v":0},{"$f":"Table1[[#This Row],[QTY]]*Table1[[#This Row],[School & Library Price]]","v":0}]
[null,null,19,null,null,"Careers","Covert Careers: Jobs You Can't Talk About","Inside the DEA","978-1-5345-6629-3",{"$f":"HYPERLINK(Table1[[#This Row],[eCommerce Hyperlink]],\"Book Weblink\")","v":"Book Weblink"},null,"Lucent Press","Paperback Book",1,"2019","January 2019","Paperback","7.250 X 9.250","Author","Louise Spilsbury",null,null,null,null,"V",null,"Grade 6","Grade 5 - 8","The Drug Enforcement Administration is on the front lines of the war on drugs in the United States. Readers explore the many ways DEA agents are working to fight this war, including the use of covert and undercover operations. This exciting career path is presented to readers through informative text, including helpful fact boxes and sidebars, as well as through detailed graphic organizers and full-color photographs of DEA agents in action. Readers interested in a career in law enforcement are sure to be inspired by this inside look at one of America's most important law enforcement agencies.","English",15.05,12.8,"363.450973--dc23","48 pp.","https://greenhavenpublishing.com/9781534566293",null,{"$f":"Table1[[#This Row],['# of Books]]*Table1[[#This Row],[QTY]]","v":0},{"$f":"Table1[[#This Row],[QTY]]*Table1[[#This Row],[School & Library Price]]","v":0}]
[null,null,19,null,null,"Careers","Covert Careers: Jobs You Can't Talk About","Inside the FBI","978-1-5345-6624-8",{"$f":"HYPERLINK(Table1[[#This Row],[eCommerce Hyperlink]],\"Book Weblink\")","v":"Book Weblink"},null,"Lucent Press","Library Bound Book",1,"2019","January 2019","Library","7.250 X 9.250","Author","Louise Spilsbury",null,null,null,null,"V","1150L","Grade 6","Grade 5 - 8","FBI agents are often featured in popular movies and television shows, making a career with the Federal Bureau of Investigation the dream of many young people. However, it's not an easy career path to follow, as readers discover by taking an inside look at what it takes to work for the FBI. An immersive design featuring striking full-color photographs puts readers in the middle of the action. Essential information about the training, education, and skills needed to become an FBI agent is presented through exciting main text, helpful graphic organizers, detailed fact boxes, and sidebars.","English",34.6,27.68,"363.250973--dc23","48 pp.","https://greenhavenpublishing.com/9781534566248",null,{"$f":"Table1[[#This Row],['# of Books]]*Table1[[#This Row],[QTY]]","v":0},{"$f":"Table1[[#This Row],[QTY]]*Table1[[#This Row],[School & Library Price]]","v":0}]
[null,null,19,null,null,"Careers","Covert Careers: Jobs You Can't Talk About","Inside the FBI","978-1-5345-6625-5",{"$f":"HYPERLINK(Table1[[#This Row],[eCommerce Hyperlink]],\"Book Weblink\")","v":"Book Weblink"},null,"Lucent Press","eBook",1,"2019","January 2019",null,null,"Author","Louise Spilsbury",null,null,null,null,"V","1150L","Grade 6","Grade 5 - 8","FBI agents are often featured in popular movies and television shows, making a career with the Federal Bureau of Investigation the dream of many young people. However, it's not an easy career path to follow, as readers discover by taking an inside look at what it takes to work for the FBI. An immersive design featuring striking full-color photographs puts readers in the middle of the action. Essential information about the training, education, and skills needed to become an FBI agent is presented through exciting main text, helpful graphic organizers, detailed fact boxes, and sidebars.","English",34.6,27.68,"363.250973--dc23","48 pp.","https://greenhavenpublishing.com/9781534566255",null,{"$f":"Table1[[#This Row],['# of Books]]*Table1[[#This Row],[QTY]]","v":0},{"$f":"Table1[[#This Row],[QTY]]*Table1[[#This Row],[School & Library Price]]","v":0}]
[null,null,19,null,null,"Careers","Covert Careers: Jobs You Can't Talk About","Inside the FBI","978-1-5345-6623-1",{"$f":"HYPERLINK(Table1[[#This Row],[eCommerce Hyperlink]],\"Book Weblink\")","v":"Book Weblink"},null,"Lucent Press","Paperback Book",1,"2019","January 2019","Paperback","7.250 X 9.250","Author","Louise Spilsbury",null,null,null,null,"V","1150L","Grade 6","Grade 5 - 8","FBI agents are often featured in popular movies and television shows, making a career with the Federal Bureau of Investigation the dream of many young people. However, it's not an easy career path to follow, as readers discover by taking an inside look at what it takes to work for the FBI. An immersive design featuring striking full-color photographs puts readers in the middle of the action. Essential information about the training, education, and skills needed to become an FBI agent is presented through exciting main text, helpful graphic organizers, detailed fact boxes, and sidebars.","English",15.05,12.8,"363.250973--dc23","48 pp.","https://greenhavenpublishing.com/9781534566231",null,{"$f":"Table1[[#This Row],['# of Books]]*Table1[[#This Row],[QTY]]","v":0},{"$f":"Table1[[#This Row],[QTY]]*Table1[[#This Row],[School & Library Price]]","v":0}]
[null,null,19,null,null,"Careers","Covert Careers: Jobs You Can't Talk About","Inside the Secret Service","978-1-5345-6636-1",{"$f":"HYPERLINK(Table1[[#This Row],[eCommerce Hyperlink]],\"Book Weblink\")","v":"Book Weblink"},null,"Lucent Press","Library Bound Book",1,"2019","January 2019","Library","7.250 X 9.250","Author","Louise Spilsbury",null,null,null,null,"V","1190L","Grade 6","Grade 5 - 8","How secretive do Secret Service agents have to be? Do they protect other people besides the president? What kind of training do you need to become a Secret Service agent? These are important questions to ask if someone is interested in a career with the Secret Service, and the answers are waiting to be discovered in this fun and fact-filled reading experience. As readers explore exiting main text, sidebars, fact boxes, and graphic organizers, they learn about how a person becomes a Secret Service agent and what their day-to-day life is like in this dangerous line of work.","English",34.6,27.68,"363.28'30973--dc23","48 pp.","https://greenhavenpublishing.com/9781534566361",null,{"$f":"Table1[[#This Row],['# of Books]]*Table1[[#This Row],[QTY]]","v":0},{"$f":"Table1[[#This Row],[QTY]]*Table1[[#This Row],[School & Library Price]]","v":0}]
[null,null,19,null,null,"Careers","Covert Careers: Jobs You Can't Talk About","Inside the Secret Service","978-1-5345-6637-8",{"$f":"HYPERLINK(Table1[[#This Row],[eCommerce Hyperlink]],\"Book Weblink\")","v":"Book Weblink"},null,"Lucent Press","eBook",1,"2019","January 2019",null,null,"Author","Louise Spilsbury",null,null,null,null,"V","1190L","Grade 6","Grade 5 - 8","How secretive do Secret Service agents have to be? Do they protect other people besides the president? What kind of training do you need to become a Secret Service agent? These are important questions to ask if someone is interested in a career with the Secret Service, and the answers are waiting to be discovered in this fun and fact-filled reading experience. As readers explore exiting main text, sidebars, fact boxes, and graphic organizers, they learn about how a person becomes a Secret Service agent and what their day-to-day life is like in this dangerous line of work.","English",34.6,27.68,"363.28'30973--dc23","48 pp.","https://greenhavenpublishing.com/9781534566378",null,{"$f":"Table1[[#This Row],['# of Books]]*Table1[[#This Row],[QTY]]","v":0},{"$f":"Table1[[#This Row],[QTY]]*Table1[[#This Row],[School & Library Price]]","v":0}]
[null,null,19,null,null,"Careers","Covert Careers: Jobs You Can't Talk About","Inside the Secret Service","978-1-5345-6635-4",{"$f":"HYPERLINK(Table1[[#This Row],[eCommerce Hyperlink]],\"Book Weblink\")","v":"Book Weblink"},null,"Lucent Press","Paperback Book",1,"2019","January 2019","Paperback","7.250 X 9.250","Author","Louise Spilsbury",null,null,null,null,"V","1190L","Grade 6","Grade 5 - 8","How secretive do Secret Service agents have to be? Do they protect other people besides the president? What kind of training do you need to become a Secret Service agent? These are important questions to ask if someone is interested in a career with the Secret Service, and the answers are waiting to be discovered in this fun and fact-filled reading experience. As readers explore exiting main text, sidebars, fact boxes, and graphic organizers, they learn about how a person becomes a Secret Service agent and what their day-to-day life is like in this dangerous line of work.","English",15.05,12.8,"363.28'30973--dc23","48 pp.","https://greenhavenpublishing.com/9781534566354",null,{"$f":"Table1[[#This Row],['# of Books]]*Table1[[#This Row],[QTY]]","v":0},{"$f":"Table1[[#This Row],[QTY]]*Table1[[#This Row],[School & Library Price]]","v":0}]
[null,null,19,null,null,"Careers","Covert Careers: Jobs You Can't Talk About","Inside the Special Forces","978-1-5345-6639-2",{"$f":"HYPERLINK(Table1[[#This Row],[eCommerce Hyperlink]],\"Book Weblink\")","v":"Book Weblink"},null,"Lucent Press","Library Bound Book",1,"2019","January 2019","Library","7.250 X 9.250","Author","Louise Spilsbury",null,null,null,null,"V","1190L","Grade 6","Grade 5 - 8","The U.S. Army Special Forces is an elite group of soldiers whose work is often classified. Although their missions are often secretive, their heroism is widely known, and readers are sure to be captivated by this inside look at what the Special Forces do and how someone can join their ranks. Detailed sidebars, eye-catching fact boxes, and helpful graphic organizers support the informative main text to present a comprehensive picture of Special Forces soldiers. Featuring full-color photographs of these heroes in action, this thrilling reading experience is designed to inspire young people who are interested in a military career.","English",34.6,27.68,"356'.160973--dc23","48 pp.","https://greenhavenpublishing.com/9781534566392",null,{"$f":"Table1[[#This Row],['# of Books]]*Table1[[#This Row],[QTY]]","v":0},{"$f":"Table1[[#This Row],[QTY]]*Table1[[#This Row],[School & Library Price]]","v":0}]
[null,null,19,null,null,"Careers","Covert Careers: Jobs You Can't Talk About","Inside the Special Forces","978-1-5345-6640-8",{"$f":"HYPERLINK(Table1[[#This Row],[eCommerce Hyperlink]],\"Book Weblink\")","v":"Book Weblink"},null,"Lucent Press","eBook",1,"2019","January 2019",null,null,"Author","Louise Spilsbury",null,null,null,null,"V","1190L","Grade 6","Grade 5 - 8","The U.S. Army Special Forces is an elite group of soldiers whose work is often classified. Although their missions are often secretive, their heroism is widely known, and readers are sure to be captivated by this inside look at what the Special Forces do and how someone can join their ranks. Detailed sidebars, eye-catching fact boxes, and helpful graphic organizers support the informative main text to present a comprehensive picture of Special Forces soldiers. Featuring full-color photographs of these heroes in action, this thrilling reading experience is designed to inspire young people who are interested in a military career.","English",34.6,27.68,"356'.160973--dc23","48 pp.","https://greenhavenpublishing.com/9781534566408",null,{"$f":"Table1[[#This Row],['# of Books]]*Table1[[#This Row],[QTY]]","v":0},{"$f":"Table1[[#This Row],[QTY]]*Table1[[#This Row],[School & Library Price]]","v":0}]
[null,null,19,null,null,"Careers","Covert Careers: Jobs You Can't Talk About","Inside the Special Forces","978-1-5345-6638-5",{"$f":"HYPERLINK(Table1[[#This Row],[eCommerce Hyperlink]],\"Book Weblink\")","v":"Book Weblink"},null,"Lucent Press","Paperback Book",1,"2019","January 2019","Paperback","7.250 X 9.250","Author","Louise Spilsbury",null,null,null,null,"V","1190L","Grade 6","Grade 5 - 8","The U.S. Army Special Forces is an elite group of soldiers whose work is often classified. Although their missions are often secretive, their heroism is widely known, and readers are sure to be captivated by this inside look at what the Special Forces do and how someone can join their ranks. Detailed sidebars, eye-catching fact boxes, and helpful graphic organizers support the informative main text to present a comprehensive picture of Special Forces soldiers. Featuring full-color photographs of these heroes in action, this thrilling reading experience is designed to inspire young people who are interested in a military career.","English",15.05,12.8,"356'.160973--dc23","48 pp.","https://greenhavenpublishing.com/9781534566385",null,{"$f":"Table1[[#This Row],['# of Books]]*Table1[[#This Row],[QTY]]","v":0},{"$f":"Table1[[#This Row],[QTY]]*Table1[[#This Row],[School & Library Price]]","v":0}]
[null,null,20,null,null,"Current Issues","Classified: Secrets You're Not Supposed to Know","Classified: Secrets You're Not Supposed to Know","978-1-5345-6454-1",{"$f":"HYPERLINK(Table1[[#This Row],[eCommerce Hyperlink]],\"Book Weblink\")","v":"Book Weblink"},null,"Lucent Press","Library Set",6,"2019","August 2018","Library","7.250 X 9.250",null,null,null,null,null,null,null,null,"Grade 6","Grade 5 - 8","Readers will be captivated by this inside look at the world of secrecy surrounding their daily lives. The exciting main text exposes the secrets concealed by trusted organizations and companies we interact with regularly, while also revealing what criminal activity may only be a mouse click away. These books take an in-depth look at controversial subjects, such as intelligence agencies, conspiracies, surveillance, big business and big data, and the dark web. The engaging text encourages young people to question the world around them. Informative fact boxes, vivid color photographs, and detailed sidebars provide additional insight into this fascinating topic. Features include: Readers enhance their critical thinking skills as they explore sidebars that ask them what they would do in challenging situations related to each topic. Readers are invited to join the debate surrounding controversial topics by examining the pros and cons before developing an informed opinion. Eye-catching design elements draw readers into these secret worlds.","English",207.6,166.08,null,"48 pp.","https://greenhavenpublishing.com/9781534564541",null,{"$f":"Table1[[#This Row],['# of Books]]*Table1[[#This Row],[QTY]]","v":0},{"$f":"Table1[[#This Row],[QTY]]*Table1[[#This Row],[School & Library Price]]","v":0}]
[null,null,20,null,null,"Current Issues","Classified: Secrets You're Not Supposed to Know","Classified: Secrets You're Not Supposed to Know","978-1-5345-6465-7",{"$f":"HYPERLINK(Table1[[#This Row],[eCommerce Hyperlink]],\"Book Weblink\")","v":"Book Weblink"},null,"Lucent Press","Single Copy Set",6,"2019","August 2018","Paperback","7.250 X 9.250",null,null,null,null,null,null,null,null,"Grade 6","Grade 5 - 8","Readers will be captivated by this inside look at the world of secrecy surrounding their daily lives. The exciting main text exposes the secrets concealed by trusted organizations and companies we interact with regularly, while also revealing what criminal activity may only be a mouse click away. These books take an in-depth look at controversial subjects, such as intelligence agencies, conspiracies, surveillance, big business and big data, and the dark web. The engaging text encourages young people to question the world around them. Informative fact boxes, vivid color photographs, and detailed sidebars provide additional insight into this fascinating topic. Features include: Readers enhance their critical thinking skills as they explore sidebars that ask them what they would do in challenging situations related to each topic. Readers are invited to join the debate surrounding controversial topics by examining the pros and cons before developing an informed opinion. Eye-catching design elements draw readers into these secret worlds.","English",90.3,76.8,null,"48 pp.","https://greenhavenpublishing.com/9781534564657",null,{"$f":"Table1[[#This Row],['# of Books]]*Table1[[#This Row],[QTY]]","v":0},{"$f":"Table1[[#This Row],[QTY]]*Table1[[#This Row],[School & Library Price]]","v":0}]
[null,null,20,null,null,"Current Issues","Classified: Secrets You're Not Supposed to Know","Business and Big Data: Influencing Consumers","978-1-5345-6430-5",{"$f":"HYPERLINK(Table1[[#This Row],[eCommerce Hyperlink]],\"Book Weblink\")","v":"Book Weblink"},null,"Lucent Press","Library Bound Book",1,"2019","August 2018","Library","7.250 X 9.250","Author","Ellis Roxburgh",null,null,null,null,"V",null,"Grade 6","Grade 5 - 8","The fast-paced and profitable world of business involves important information, such as big data. This kind of information can be helpful for businesses, but it can also be used in ways that are not ethical. The informative and age-appropriate main text discusses shady business practices, fraudulent banking, multinationals, industrial espionage, and big data’s influence in retail and advertising. Eye-catching, full-color photographs, informational sidebars, and fun fact boxes are included to provide readers with a more complete understanding of how business practices impact their lives.","English",34.6,27.68,"005.7--dc23","48 pp.","https://greenhavenpublishing.com/9781534564305",null,{"$f":"Table1[[#This Row],['# of Books]]*Table1[[#This Row],[QTY]]","v":0},{"$f":"Table1[[#This Row],[QTY]]*Table1[[#This Row],[School & Library Price]]","v":0}]
[null,null,20,null,null,"Current Issues","Classified: Secrets You're Not Supposed to Know","Business and Big Data: Influencing Consumers","978-1-5345-6431-2",{"$f":"HYPERLINK(Table1[[#This Row],[eCommerce Hyperlink]],\"Book Weblink\")","v":"Book Weblink"},null,"Lucent Press","eBook",1,"2019","August 2018",null,null,"Author","Ellis Roxburgh",null,null,null,null,"V",null,"Grade 6","Grade 5 - 8","The fast-paced and profitable world of business involves important information, such as big data. This kind of information can be helpful for businesses, but it can also be used in ways that are not ethical. The informative and age-appropriate main text discusses shady business practices, fraudulent banking, multinationals, industrial espionage, and big data’s influence in retail and advertising. Eye-catching, full-color photographs, informational sidebars, and fun fact boxes are included to provide readers with a more complete understanding of how business practices impact their lives.","English",34.6,27.68,"005.7--dc23","48 pp.","https://greenhavenpublishing.com/9781534564312",null,{"$f":"Table1[[#This Row],['# of Books]]*Table1[[#This Row],[QTY]]","v":0},{"$f":"Table1[[#This Row],[QTY]]*Table1[[#This Row],[School & Library Price]]","v":0}]
[null,null,20,null,null,"Current Issues","Classified: Secrets You're Not Supposed to Know","Business and Big Data: Influencing Consumers","978-1-5345-6432-9",{"$f":"HYPERLINK(Table1[[#This Row],[eCommerce Hyperlink]],\"Book Weblink\")","v":"Book Weblink"},null,"Lucent Press","Paperback Book",1,"2019","August 2018","Paperback","7.250 X 9.250","Author","Ellis Roxburgh",null,null,null,null,"V",null,"Grade 6","Grade 5 - 8","The fast-paced and profitable world of business involves important information, such as big data. This kind of information can be helpful for businesses, but it can also be used in ways that are not ethical. The informative and age-appropriate main text discusses shady business practices, fraudulent banking, multinationals, industrial espionage, and big data’s influence in retail and advertising. Eye-catching, full-color photographs, informational sidebars, and fun fact boxes are included to provide readers with a more complete understanding of how business practices impact their lives.","English",15.05,12.8,"005.7--dc23","48 pp.","https://greenhavenpublishing.com/9781534564329",null,{"$f":"Table1[[#This Row],['# of Books]]*Table1[[#This Row],[QTY]]","v":0},{"$f":"Table1[[#This Row],[QTY]]*Table1[[#This Row],[School & Library Price]]","v":0}]
[null,null,20,null,null,"Current Issues","Classified: Secrets You're Not Supposed to Know","Conspiracies: Who’s Hiding What?","978-1-5345-6433-6",{"$f":"HYPERLINK(Table1[[#This Row],[eCommerce Hyperlink]],\"Book Weblink\")","v":"Book Weblink"},null,"Lucent Press","Library Bound Book",1,"2019","August 2018","Library","7.250 X 9.250","Author","Ellis Roxburgh",null,null,null,null,"V",null,"Grade 6","Grade 5 - 8","What is a conspiracy theory? Why do people like conspiracy theories? What are some of the most infamous conspiracies in history? These questions and more are answered in this captivating text. While gaining insight into this exciting and controversial topic, readers will learn to think more critically about the world around them. Colorful photographs, detailed fact boxes, and informational sidebars accompany this fun and fact-filled text. Readers are exposed to a whole new way of looking at facts that are labeled as true and learning how to use reputable sources to prove or disprove what they have been told.","English",34.6,27.68,"001.9--dc23","48 pp.","https://greenhavenpublishing.com/9781534564336",null,{"$f":"Table1[[#This Row],['# of Books]]*Table1[[#This Row],[QTY]]","v":0},{"$f":"Table1[[#This Row],[QTY]]*Table1[[#This Row],[School & Library Price]]","v":0}]
[null,null,20,null,null,"Current Issues","Classified: Secrets You're Not Supposed to Know","Conspiracies: Who’s Hiding What?","978-1-5345-6434-3",{"$f":"HYPERLINK(Table1[[#This Row],[eCommerce Hyperlink]],\"Book Weblink\")","v":"Book Weblink"},null,"Lucent Press","eBook",1,"2019","August 2018",null,null,"Author","Ellis Roxburgh",null,null,null,null,"V",null,"Grade 6","Grade 5 - 8","What is a conspiracy theory? Why do people like conspiracy theories? What are some of the most infamous conspiracies in history? These questions and more are answered in this captivating text. While gaining insight into this exciting and controversial topic, readers will learn to think more critically about the world around them. Colorful photographs, detailed fact boxes, and informational sidebars accompany this fun and fact-filled text. Readers are exposed to a whole new way of looking at facts that are labeled as true and learning how to use reputable sources to prove or disprove what they have been told.","English",34.6,27.68,"001.9--dc23","48 pp.","https://greenhavenpublishing.com/9781534564343",null,{"$f":"Table1[[#This Row],['# of Books]]*Table1[[#This Row],[QTY]]","v":0},{"$f":"Table1[[#This Row],[QTY]]*Table1[[#This Row],[School & Library Price]]","v":0}]
[null,null,20,null,null,"Current Issues","Classified: Secrets You're Not Supposed to Know","Conspiracies: Who’s Hiding What?","978-1-5345-6435-0",{"$f":"HYPERLINK(Table1[[#This Row],[eCommerce Hyperlink]],\"Book Weblink\")","v":"Book Weblink"},null,"Lucent Press","Paperback Book",1,"2019","August 2018","Paperback","7.250 X 9.250","Author","Ellis Roxburgh",null,null,null,null,"V",null,"Grade 6","Grade 5 - 8","What is a conspiracy theory? Why do people like conspiracy theories? What are some of the most infamous conspiracies in history? These questions and more are answered in this captivating text. While gaining insight into this exciting and controversial topic, readers will learn to think more critically about the world around them. Colorful photographs, detailed fact boxes, and informational sidebars accompany this fun and fact-filled text. Readers are exposed to a whole new way of looking at facts that are labeled as true and learning how to use reputable sources to prove or disprove what they have been told.","English",15.05,12.8,"001.9--dc23","48 pp.","https://greenhavenpublishing.com/9781534564350",null,{"$f":"Table1[[#This Row],['# of Books]]*Table1[[#This Row],[QTY]]","v":0},{"$f":"Table1[[#This Row],[QTY]]*Table1[[#This Row],[School & Library Price]]","v":0}]
[null,null,20,null,null,"Current Issues","Classified: Secrets You're Not Supposed to Know","Intelligence Agencies: Life in the Shadows","978-1-5345-6436-7",{"$f":"HYPERLINK(Table1[[#This Row],[eCommerce Hyperlink]],\"Book Weblink\")","v":"Book Weblink"},null,"Lucent Press","Library Bound Book",1,"2019","August 2018","Library","7.250 X 9.250","Author","Ellis Roxburgh",null,null,null,null,"V",null,"Grade 6","Grade 5 - 8","Whose job is it to keep international secrets hidden and gather information in secretive ways? Readers are exposed to the exciting, and sometimes controversial, world of intelligence agencies in this detailed text. Intelligence agencies, such as the Federal Bureau of Investigation and Central Intelligence Agency, are covered in this engaging main text, which is supplemented with eye-catching, full-color photographs, helpful fact boxes, and fact-filled sidebars. Readers also learn about how these agencies manage spies, propaganda, and incoming threats.","English",34.6,27.68,"327.12--dc23","48 pp.","https://greenhavenpublishing.com/9781534564367",null,{"$f":"Table1[[#This Row],['# of Books]]*Table1[[#This Row],[QTY]]","v":0},{"$f":"Table1[[#This Row],[QTY]]*Table1[[#This Row],[School & Library Price]]","v":0}]
[null,null,20,null,null,"Current Issues","Classified: Secrets You're Not Supposed to Know","Intelligence Agencies: Life in the Shadows","978-1-5345-6437-4",{"$f":"HYPERLINK(Table1[[#This Row],[eCommerce Hyperlink]],\"Book Weblink\")","v":"Book Weblink"},null,"Lucent Press","eBook",1,"2019","August 2018",null,null,"Author","Ellis Roxburgh",null,null,null,null,"V",null,"Grade 6","Grade 5 - 8","Whose job is it to keep international secrets hidden and gather information in secretive ways? Readers are exposed to the exciting, and sometimes controversial, world of intelligence agencies in this detailed text. Intelligence agencies, such as the Federal Bureau of Investigation and Central Intelligence Agency, are covered in this engaging main text, which is supplemented with eye-catching, full-color photographs, helpful fact boxes, and fact-filled sidebars. Readers also learn about how these agencies manage spies, propaganda, and incoming threats.","English",34.6,27.68,"327.12--dc23","48 pp.","https://greenhavenpublishing.com/9781534564374",null,{"$f":"Table1[[#This Row],['# of Books]]*Table1[[#This Row],[QTY]]","v":0},{"$f":"Table1[[#This Row],[QTY]]*Table1[[#This Row],[School & Library Price]]","v":0}]
[null,null,20,null,null,"Current Issues","Classified: Secrets You're Not Supposed to Know","Intelligence Agencies: Life in the Shadows","978-1-5345-6438-1",{"$f":"HYPERLINK(Table1[[#This Row],[eCommerce Hyperlink]],\"Book Weblink\")","v":"Book Weblink"},null,"Lucent Press","Paperback Book",1,"2019","August 2018","Paperback","7.250 X 9.250","Author","Ellis Roxburgh",null,null,null,null,"V",null,"Grade 6","Grade 5 - 8","Whose job is it to keep international secrets hidden and gather information in secretive ways? Readers are exposed to the exciting, and sometimes controversial, world of intelligence agencies in this detailed text. Intelligence agencies, such as the Federal Bureau of Investigation and Central Intelligence Agency, are covered in this engaging main text, which is supplemented with eye-catching, full-color photographs, helpful fact boxes, and fact-filled sidebars. Readers also learn about how these agencies manage spies, propaganda, and incoming threats.","English",15.05,12.8,"327.12--dc23","48 pp.","https://greenhavenpublishing.com/9781534564381",null,{"$f":"Table1[[#This Row],['# of Books]]*Table1[[#This Row],[QTY]]","v":0},{"$f":"Table1[[#This Row],[QTY]]*Table1[[#This Row],[School & Library Price]]","v":0}]
[null,null,20,null,null,"Current Issues","Classified: Secrets You're Not Supposed to Know","Privacy in the Digital World: Who’s Watching Us?","978-1-5345-6439-8",{"$f":"HYPERLINK(Table1[[#This Row],[eCommerce Hyperlink]],\"Book Weblink\")","v":"Book Weblink"},null,"Lucent Press","Library Bound Book",1,"2019","August 2018","Library","7.250 X 9.250","Author","Ellis Roxburgh",null,null,null,null,"V",null,"Grade 6","Grade 5 - 8","When using technology, many of us think the content we look at or type is confidential, however, we have learned people other than those we choose may have access to this information. This engaging text about privacy in the Internet age uncovers the realities of using technology and helps young readers understand that what they do online is seen by outside eyes. This eye-opening main text is supplemented with vibrant, full-color photographs, detailed fact boxes, and informative sidebars to broaden readers’ understanding of this essential topic for people growing up in the digital world.","English",34.6,27.68,"004.67'80835--dc23","48 pp.","https://greenhavenpublishing.com/9781534564398",null,{"$f":"Table1[[#This Row],['# of Books]]*Table1[[#This Row],[QTY]]","v":0},{"$f":"Table1[[#This Row],[QTY]]*Table1[[#This Row],[School & Library Price]]","v":0}]
[null,null,20,null,null,"Current Issues","Classified: Secrets You're Not Supposed to Know","Privacy in the Digital World: Who’s Watching Us?","978-1-5345-6440-4",{"$f":"HYPERLINK(Table1[[#This Row],[eCommerce Hyperlink]],\"Book Weblink\")","v":"Book Weblink"},null,"Lucent Press","eBook",1,"2019","August 2018",null,null,"Author","Ellis Roxburgh",null,null,null,null,"V",null,"Grade 6","Grade 5 - 8","When using technology, many of us think the content we look at or type is confidential, however, we have learned people other than those we choose may have access to this information. This engaging text about privacy in the Internet age uncovers the realities of using technology and helps young readers understand that what they do online is seen by outside eyes. This eye-opening main text is supplemented with vibrant, full-color photographs, detailed fact boxes, and informative sidebars to broaden readers’ understanding of this essential topic for people growing up in the digital world.","English",34.6,27.68,"004.67'80835--dc23","48 pp.","https://greenhavenpublishing.com/9781534564404",null,{"$f":"Table1[[#This Row],['# of Books]]*Table1[[#This Row],[QTY]]","v":0},{"$f":"Table1[[#This Row],[QTY]]*Table1[[#This Row],[School & Library Price]]","v":0}]
[null,null,20,null,null,"Current Issues","Classified: Secrets You're Not Supposed to Know","Privacy in the Digital World: Who’s Watching Us?","978-1-5345-6441-1",{"$f":"HYPERLINK(Table1[[#This Row],[eCommerce Hyperlink]],\"Book Weblink\")","v":"Book Weblink"},null,"Lucent Press","Paperback Book",1,"2019","August 2018","Paperback","7.250 X 9.250","Author","Ellis Roxburgh",null,null,null,null,"V",null,"Grade 6","Grade 5 - 8","When using technology, many of us think the content we look at or type is confidential, however, we have learned people other than those we choose may have access to this information. This engaging text about privacy in the Internet age uncovers the realities of using technology and helps young readers understand that what they do online is seen by outside eyes. This eye-opening main text is supplemented with vibrant, full-color photographs, detailed fact boxes, and informative sidebars to broaden readers’ understanding of this essential topic for people growing up in the digital world.","English",15.05,12.8,"004.67'80835--dc23","48 pp.","https://greenhavenpublishing.com/9781534564411",null,{"$f":"Table1[[#This Row],['# of Books]]*Table1[[#This Row],[QTY]]","v":0},{"$f":"Table1[[#This Row],[QTY]]*Table1[[#This Row],[School & Library Price]]","v":0}]
[null,null,20,null,null,"Current Issues","Classified: Secrets You're Not Supposed to Know","The Dark Web: The Covert World of Cybercrime","978-1-5345-6442-8",{"$f":"HYPERLINK(Table1[[#This Row],[eCommerce Hyperlink]],\"Book Weblink\")","v":"Book Weblink"},null,"Lucent Press","Library Bound Book",1,"2019","August 2018","Library","7.250 X 9.250","Author","Anita Croy",null,null,null,null,"V",null,"Grade 6","Grade 5 - 8","What types of crimes are constructed on the dark web? This question and many more are answered in this engaging exploration of cybercrime. Many criminals use the dark web for hiding their secret information and may also use it for committing crimes to potentially harm the public. These crimes, which include identity theft, terrorism, and cyber warfare, are all covered in the thorough yet accessible main text. Vibrant full-color photographs and informational fact boxes enhance readers’ knowledge of this mysterious topic, and sidebars provide even more important facts to help readers think critically about how the Internet is used.","English",34.6,27.68,"364.16'8--dc23","48 pp.","https://greenhavenpublishing.com/9781534564428",null,{"$f":"Table1[[#This Row],['# of Books]]*Table1[[#This Row],[QTY]]","v":0},{"$f":"Table1[[#This Row],[QTY]]*Table1[[#This Row],[School & Library Price]]","v":0}]
[null,null,20,null,null,"Current Issues","Classified: Secrets You're Not Supposed to Know","The Dark Web: The Covert World of Cybercrime","978-1-5345-6443-5",{"$f":"HYPERLINK(Table1[[#This Row],[eCommerce Hyperlink]],\"Book Weblink\")","v":"Book Weblink"},null,"Lucent Press","eBook",1,"2019","August 2018",null,null,"Author","Anita Croy",null,null,null,null,"V",null,"Grade 6","Grade 5 - 8","What types of crimes are constructed on the dark web? This question and many more are answered in this engaging exploration of cybercrime. Many criminals use the dark web for hiding their secret information and may also use it for committing crimes to potentially harm the public. These crimes, which include identity theft, terrorism, and cyber warfare, are all covered in the thorough yet accessible main text. Vibrant full-color photographs and informational fact boxes enhance readers’ knowledge of this mysterious topic, and sidebars provide even more important facts to help readers think critically about how the Internet is used.","English",34.6,27.68,"364.16'8--dc23","48 pp.","https://greenhavenpublishing.com/9781534564435",null,{"$f":"Table1[[#This Row],['# of Books]]*Table1[[#This Row],[QTY]]","v":0},{"$f":"Table1[[#This Row],[QTY]]*Table1[[#This Row],[School & Library Price]]","v":0}]
[null,null,20,null,null,"Current Issues","Classified: Secrets You're Not Supposed to Know","The Dark Web: The Covert World of Cybercrime","978-1-5345-6444-2",{"$f":"HYPERLINK(Table1[[#This Row],[eCommerce Hyperlink]],\"Book Weblink\")","v":"Book Weblink"},null,"Lucent Press","Paperback Book",1,"2019","August 2018","Paperback","7.250 X 9.250","Author","Anita Croy",null,null,null,null,"V",null,"Grade 6","Grade 5 - 8","What types of crimes are constructed on the dark web? This question and many more are answered in this engaging exploration of cybercrime. Many criminals use the dark web for hiding their secret information and may also use it for committing crimes to potentially harm the public. These crimes, which include identity theft, terrorism, and cyber warfare, are all covered in the thorough yet accessible main text. Vibrant full-color photographs and informational fact boxes enhance readers’ knowledge of this mysterious topic, and sidebars provide even more important facts to help readers think critically about how the Internet is used.","English",15.05,12.8,"364.16'8--dc23","48 pp.","https://greenhavenpublishing.com/9781534564442",null,{"$f":"Table1[[#This Row],['# of Books]]*Table1[[#This Row],[QTY]]","v":0},{"$f":"Table1[[#This Row],[QTY]]*Table1[[#This Row],[School & Library Price]]","v":0}]
[null,null,20,null,null,"Current Issues","Classified: Secrets You're Not Supposed to Know","The Underworld: Criminals in Action","978-1-5345-6445-9",{"$f":"HYPERLINK(Table1[[#This Row],[eCommerce Hyperlink]],\"Book Weblink\")","v":"Book Weblink"},null,"Lucent Press","Library Bound Book",1,"2019","August 2018","Library","7.250 X 9.250","Author","Anita Croy",null,null,null,null,"V",null,"Grade 6","Grade 5 - 8","There are numerous underground organizations of crime hidden from the public. These criminals work diligently to keep their crimes secret in order to successfully execute their deceitful and dangerous missions. Through this accessible and age-appropriate text, readers are given an in-depth look at secretive subjects such as organized crime, corruption in politics, fraud schemes, phishing and spam, and the drug trade. Vibrant full-color photographs, detailed fact boxes, and engaging sidebars provide readers with additional insight into this fascinating and timely topic.","English",34.6,27.68,"364.106--dc23","48 pp.","https://greenhavenpublishing.com/9781534564459",null,{"$f":"Table1[[#This Row],['# of Books]]*Table1[[#This Row],[QTY]]","v":0},{"$f":"Table1[[#This Row],[QTY]]*Table1[[#This Row],[School & Library Price]]","v":0}]
[null,null,20,null,null,"Current Issues","Classified: Secrets You're Not Supposed to Know","The Underworld: Criminals in Action","978-1-5345-6446-6",{"$f":"HYPERLINK(Table1[[#This Row],[eCommerce Hyperlink]],\"Book Weblink\")","v":"Book Weblink"},null,"Lucent Press","eBook",1,"2019","August 2018",null,null,"Author","Anita Croy",null,null,null,null,"V",null,"Grade 6","Grade 5 - 8","There are numerous underground organizations of crime hidden from the public. These criminals work diligently to keep their crimes secret in order to successfully execute their deceitful and dangerous missions. Through this accessible and age-appropriate text, readers are given an in-depth look at secretive subjects such as organized crime, corruption in politics, fraud schemes, phishing and spam, and the drug trade. Vibrant full-color photographs, detailed fact boxes, and engaging sidebars provide readers with additional insight into this fascinating and timely topic.","English",34.6,27.68,"364.106--dc23","48 pp.","https://greenhavenpublishing.com/9781534564466",null,{"$f":"Table1[[#This Row],['# of Books]]*Table1[[#This Row],[QTY]]","v":0},{"$f":"Table1[[#This Row],[QTY]]*Table1[[#This Row],[School & Library Price]]","v":0}]
[null,null,20,null,null,"Current Issues","Classified: Secrets You're Not Supposed to Know","The Underworld: Criminals in Action","978-1-5345-6447-3",{"$f":"HYPERLINK(Table1[[#This Row],[eCommerce Hyperlink]],\"Book Weblink\")","v":"Book Weblink"},null,"Lucent Press","Paperback Book",1,"2019","August 2018","Paperback","7.250 X 9.250","Author","Anita Croy",null,null,null,null,"V",null,"Grade 6","Grade 5 - 8","There are numerous underground organizations of crime hidden from the public. These criminals work diligently to keep their crimes secret in order to successfully execute their deceitful and dangerous missions. Through this accessible and age-appropriate text, readers are given an in-depth look at secretive subjects such as organized crime, corruption in politics, fraud schemes, phishing and spam, and the drug trade. Vibrant full-color photographs, detailed fact boxes, and engaging sidebars provide readers with additional insight into this fascinating and timely topic.","English",15.05,12.8,"364.106--dc23","48 pp.","https://greenhavenpublishing.com/9781534564473",null,{"$f":"Table1[[#This Row],['# of Books]]*Table1[[#This Row],[QTY]]","v":0},{"$f":"Table1[[#This Row],[QTY]]*Table1[[#This Row],[School & Library Price]]","v":0}]
[null,null,20,null,null,"Current Issues","Hot Topics","Hot Topics: Set 1","978-1-5345-6065-9",{"$f":"HYPERLINK(Table1[[#This Row],[eCommerce Hyperlink]],\"Book Weblink\")","v":"Book Weblink"},null,"Lucent Press","Library Set",6,"2017","January 2017","Library","7.000 X 9.000",null,null,null,null,null,null,null,null,"Grade 7","Grade 7 - 10","The relevance of hot topics such as racism, poverty, and immigration makes this series an appealing source that is accessible for student research. Each book provides a thorough, balanced presentation of the many issues surrounding the topic to foster critical thinking skills. Meaning is fleshed out through a clear presentation of context, and the narrative offers compelling examples and pertinent quotes from age-appropriate sources.","English",242.4,193.92,null,"104–120 pp.","https://greenhavenpublishing.com/9781534560659",null,{"$f":"Table1[[#This Row],['# of Books]]*Table1[[#This Row],[QTY]]","v":0},{"$f":"Table1[[#This Row],[QTY]]*Table1[[#This Row],[School & Library Price]]","v":0}]
[null,null,20,null,null,"Current Issues","Hot Topics","Body Image and Body Shaming","978-1-5345-6016-1",{"$f":"HYPERLINK(Table1[[#This Row],[eCommerce Hyperlink]],\"Book Weblink\")","v":"Book Weblink"},null,"Lucent Press","Library Bound Book",1,"2017","January 2017","Library","7.000 X 9.000","Author, Author","Meghan Green, Ronald D. Lankford, Jr.",null,null,null,null,"Z",null,"Grade 7","Grade 7 - 10","Puberty is a critical time for young adults in forming a positive self-image. They are constantly bombarded with images and comments regarding ideal body types from the media, friends, and family. Through charts and full-color photographs, readers gain information about the subjectivity of beauty standards and the importance of being healthy regardless of body type. The material engages readers and allows them to think critically about the stereotypes they are subjected to. A list of websites is included to offer them assistance in dealing with the pressure of conforming to expectations.","English",40.4,32.32,"306.4/​613--dc23","112 pp.","https://greenhavenpublishing.com/9781534560161",null,{"$f":"Table1[[#This Row],['# of Books]]*Table1[[#This Row],[QTY]]","v":0},{"$f":"Table1[[#This Row],[QTY]]*Table1[[#This Row],[School & Library Price]]","v":0}]
[null,null,20,null,null,"Current Issues","Hot Topics","Body Image and Body Shaming","978-1-5345-6013-0",{"$f":"HYPERLINK(Table1[[#This Row],[eCommerce Hyperlink]],\"Book Weblink\")","v":"Book Weblink"},null,"Lucent Press","eBook",1,"2017","January 2017",null,null,"Author, Author","Meghan Green, Ronald D. Lankford, Jr.",null,null,null,null,"Z",null,"Grade 7","Grade 7 - 10","Puberty is a critical time for young adults in forming a positive self-image. They are constantly bombarded with images and comments regarding ideal body types from the media, friends, and family. Through charts and full-color photographs, readers gain information about the subjectivity of beauty standards and the importance of being healthy regardless of body type. The material engages readers and allows them to think critically about the stereotypes they are subjected to. A list of websites is included to offer them assistance in dealing with the pressure of conforming to expectations.","English",40.4,32.32,"306.4/​613--dc23","112 pp.","https://greenhavenpublishing.com/9781534560130",null,{"$f":"Table1[[#This Row],['# of Books]]*Table1[[#This Row],[QTY]]","v":0},{"$f":"Table1[[#This Row],[QTY]]*Table1[[#This Row],[School & Library Price]]","v":0}]
[null,null,20,null,null,"Current Issues","Hot Topics","Dealing with Teen Pregnancy","978-1-5345-6019-2",{"$f":"HYPERLINK(Table1[[#This Row],[eCommerce Hyperlink]],\"Book Weblink\")","v":"Book Weblink"},null,"Lucent Press","Library Bound Book",1,"2017","January 2017","Library","7.000 X 9.000","Author, Author","Emily Mahoney, Jennifer MacKay",null,null,null,null,"Z",null,"Grade 7","Grade 7 - 10","How big of a concern is teen pregnancy in today’s society? What options do teens have once they get pregnant? This controversial issue is examined in depth, presenting young adults with information from all sides of the debate. Graphs and full-color photographs highlight the discussion of the underlying social factors that are the root causes of teen pregnancy to make readers better informed about these issues. A list of websites gives pregnant teens resources to turn to for support and advice.","English",40.4,32.32,"306.874/3","112 pp.","https://greenhavenpublishing.com/9781534560192",null,{"$f":"Table1[[#This Row],['# of Books]]*Table1[[#This Row],[QTY]]","v":0},{"$f":"Table1[[#This Row],[QTY]]*Table1[[#This Row],[School & Library Price]]","v":0}]
[null,null,20,null,null,"Current Issues","Hot Topics","Dealing with Teen Pregnancy","978-1-5345-6020-8",{"$f":"HYPERLINK(Table1[[#This Row],[eCommerce Hyperlink]],\"Book Weblink\")","v":"Book Weblink"},null,"Lucent Press","eBook",1,"2017","January 2017",null,null,"Author, Author","Emily Mahoney, Jennifer MacKay",null,null,null,null,"Z",null,"Grade 7","Grade 7 - 10","How big of a concern is teen pregnancy in today’s society? What options do teens have once they get pregnant? This controversial issue is examined in depth, presenting young adults with information from all sides of the debate. Graphs and full-color photographs highlight the discussion of the underlying social factors that are the root causes of teen pregnancy to make readers better informed about these issues. A list of websites gives pregnant teens resources to turn to for support and advice.","English",40.4,32.32,"306.874/3","112 pp.","https://greenhavenpublishing.com/9781534560208",null,{"$f":"Table1[[#This Row],['# of Books]]*Table1[[#This Row],[QTY]]","v":0},{"$f":"Table1[[#This Row],[QTY]]*Table1[[#This Row],[School & Library Price]]","v":0}]
[null,null,20,null,null,"Current Issues","Hot Topics","Eating Disorders: When Food Is an Obsession","978-1-5345-6014-7",{"$f":"HYPERLINK(Table1[[#This Row],[eCommerce Hyperlink]],\"Book Weblink\")","v":"Book Weblink"},null,"Lucent Press","Library Bound Book",1,"2017","January 2017","Library","7.000 X 9.000","Author, Author","Kristen Rajczak Nelson, Toney Allman",null,null,null,null,"Z",null,"Grade 7","Grade 7 - 10","Eating disorders are mental illnesses that have dangerous physical consequences. Young adults are most at risk for developing these disorders. This volume aims to educate readers about the causes and effects of disorders such as anorexia, bulimia, and compulsive eating. Fact boxes highlight the stories of celebrities who struggle with these issues, and full-color photographs show the unglamorous reality of living with an eating disorder. Websites are provided to promote healthy lifestyles as well as give help to readers who are already battling these serious conditions.","English",40.4,32.32,"616.85’26","112 pp.","https://greenhavenpublishing.com/9781534560147",null,{"$f":"Table1[[#This Row],['# of Books]]*Table1[[#This Row],[QTY]]","v":0},{"$f":"Table1[[#This Row],[QTY]]*Table1[[#This Row],[School & Library Price]]","v":0}]
[null,null,20,null,null,"Current Issues","Hot Topics","Eating Disorders: When Food Is an Obsession","978-1-5345-6015-4",{"$f":"HYPERLINK(Table1[[#This Row],[eCommerce Hyperlink]],\"Book Weblink\")","v":"Book Weblink"},null,"Lucent Press","eBook",1,"2017","January 2017",null,null,"Author, Author","Kristen Rajczak Nelson, Toney Allman",null,null,null,null,"Z",null,"Grade 7","Grade 7 - 10","Eating disorders are mental illnesses that have dangerous physical consequences. Young adults are most at risk for developing these disorders. This volume aims to educate readers about the causes and effects of disorders such as anorexia, bulimia, and compulsive eating. Fact boxes highlight the stories of celebrities who struggle with these issues, and full-color photographs show the unglamorous reality of living with an eating disorder. Websites are provided to promote healthy lifestyles as well as give help to readers who are already battling these serious conditions.","English",40.4,32.32,"616.85’26","112 pp.","https://greenhavenpublishing.com/9781534560154",null,{"$f":"Table1[[#This Row],['# of Books]]*Table1[[#This Row],[QTY]]","v":0},{"$f":"Table1[[#This Row],[QTY]]*Table1[[#This Row],[School & Library Price]]","v":0}]
[null,null,20,null,null,"Current Issues","Hot Topics","Gender Identity: The Search for Self","978-1-5345-6023-9",{"$f":"HYPERLINK(Table1[[#This Row],[eCommerce Hyperlink]],\"Book Weblink\")","v":"Book Weblink"},null,"Lucent Press","Library Bound Book",1,"2017","January 2017","Library","7.000 X 9.000","Author","Kate Light",null,null,null,null,"Z",null,"Grade 7","Grade 7 - 10","As acceptance for the LGBT community grows, our society is coming to understand that many gender identities are not binary. Young adulthood is a critical time for exploring and coming to terms with gender identity. Readers learn about non-binary identities and the issues the community still faces despite the progress that has been made in the 21st century. Fact boxes highlight transgender and non-binary role models in the media, and contact information for LGBT organizations is provided. This volume is an important resource for young adults of all genders and their allied friends and family.","English",40.4,32.32,"305.3--dc23","104 pp.","https://greenhavenpublishing.com/9781534560239",null,{"$f":"Table1[[#This Row],['# of Books]]*Table1[[#This Row],[QTY]]","v":0},{"$f":"Table1[[#This Row],[QTY]]*Table1[[#This Row],[School & Library Price]]","v":0}]
[null,null,20,null,null,"Current Issues","Hot Topics","Gender Identity: The Search for Self","978-1-5345-6024-6",{"$f":"HYPERLINK(Table1[[#This Row],[eCommerce Hyperlink]],\"Book Weblink\")","v":"Book Weblink"},null,"Lucent Press","eBook",1,"2017","January 2017",null,null,"Author","Kate Light",null,null,null,null,"Z",null,"Grade 7","Grade 7 - 10","As acceptance for the LGBT community grows, our society is coming to understand that many gender identities are not binary. Young adulthood is a critical time for exploring and coming to terms with gender identity. Readers learn about non-binary identities and the issues the community still faces despite the progress that has been made in the 21st century. Fact boxes highlight transgender and non-binary role models in the media, and contact information for LGBT organizations is provided. This volume is an important resource for young adults of all genders and their allied friends and family.","English",40.4,32.32,"305.3--dc23","104 pp.","https://greenhavenpublishing.com/9781534560246",null,{"$f":"Table1[[#This Row],['# of Books]]*Table1[[#This Row],[QTY]]","v":0},{"$f":"Table1[[#This Row],[QTY]]*Table1[[#This Row],[School & Library Price]]","v":0}]
[null,null,20,null,null,"Current Issues","Hot Topics","Self-Harm","978-1-5345-6017-8",{"$f":"HYPERLINK(Table1[[#This Row],[eCommerce Hyperlink]],\"Book Weblink\")","v":"Book Weblink"},null,"Lucent Press","Library Bound Book",1,"2017","January 2017","Library","7.000 X 9.000","Author","Toney Allman",null,null,null,null,"Z",null,"Grade 7","Grade 7 - 10","Self-harm is a problem many young adults struggle with silently. Decreasing the stigma surrounding this phenomenon is key to ending its prevalence. Using charts and full-color photographs, the underlying causes of this dangerous trend are examined, helping readers understand the reasons why they harm themselves and recognize the signs in others. Contact information is provided for organizations that young adults can turn to for emotional support and healthier ways to cope with stress.","English",40.4,32.32,"616.85’82","112 pp.","https://greenhavenpublishing.com/9781534560178",null,{"$f":"Table1[[#This Row],['# of Books]]*Table1[[#This Row],[QTY]]","v":0},{"$f":"Table1[[#This Row],[QTY]]*Table1[[#This Row],[School & Library Price]]","v":0}]
[null,null,20,null,null,"Current Issues","Hot Topics","Self-Harm","978-1-5345-6018-5",{"$f":"HYPERLINK(Table1[[#This Row],[eCommerce Hyperlink]],\"Book Weblink\")","v":"Book Weblink"},null,"Lucent Press","eBook",1,"2017","January 2017",null,null,"Author","Toney Allman",null,null,null,null,"Z",null,"Grade 7","Grade 7 - 10","Self-harm is a problem many young adults struggle with silently. Decreasing the stigma surrounding this phenomenon is key to ending its prevalence. Using charts and full-color photographs, the underlying causes of this dangerous trend are examined, helping readers understand the reasons why they harm themselves and recognize the signs in others. Contact information is provided for organizations that young adults can turn to for emotional support and healthier ways to cope with stress.","English",40.4,32.32,"616.85’82","112 pp.","https://greenhavenpublishing.com/9781534560185",null,{"$f":"Table1[[#This Row],['# of Books]]*Table1[[#This Row],[QTY]]","v":0},{"$f":"Table1[[#This Row],[QTY]]*Table1[[#This Row],[School & Library Price]]","v":0}]
[null,null,20,null,null,"Current Issues","Hot Topics","Social Networking: Staying Safe in the Online World","978-1-5345-6021-5",{"$f":"HYPERLINK(Table1[[#This Row],[eCommerce Hyperlink]],\"Book Weblink\")","v":"Book Weblink"},null,"Lucent Press","Library Bound Book",1,"2017","January 2017","Library","7.000 X 9.000","Author, Author","Jennifer Lombardo, Carla Mooney",null,null,null,null,"Z","1140L","Grade 7","Grade 7 - 10","Social networking has become an integral part of our lives in this modern society. Nearly every young adult has one or more types of social accounts, making it imperative to inform them about the best ways to protect themselves and their private information. Discussions about online predators and the rights students have on the Internet are highlighted by fact boxes, and a list of dialogue questions encourages conversations among young adults about how to be proactive in protecting themselves online.","English",40.4,32.32,"302.3","120 pp.","https://greenhavenpublishing.com/9781534560215",null,{"$f":"Table1[[#This Row],['# of Books]]*Table1[[#This Row],[QTY]]","v":0},{"$f":"Table1[[#This Row],[QTY]]*Table1[[#This Row],[School & Library Price]]","v":0}]
[null,null,20,null,null,"Current Issues","Hot Topics","Social Networking: Staying Safe in the Online World","978-1-5345-6022-2",{"$f":"HYPERLINK(Table1[[#This Row],[eCommerce Hyperlink]],\"Book Weblink\")","v":"Book Weblink"},null,"Lucent Press","eBook",1,"2017","January 2017",null,null,"Author, Author","Jennifer Lombardo, Carla Mooney",null,null,null,null,"Z","1140L","Grade 7","Grade 7 - 10","Social networking has become an integral part of our lives in this modern society. Nearly every young adult has one or more types of social accounts, making it imperative to inform them about the best ways to protect themselves and their private information. Discussions about online predators and the rights students have on the Internet are highlighted by fact boxes, and a list of dialogue questions encourages conversations among young adults about how to be proactive in protecting themselves online.","English",40.4,32.32,"302.3","120 pp.","https://greenhavenpublishing.com/9781534560222",null,{"$f":"Table1[[#This Row],['# of Books]]*Table1[[#This Row],[QTY]]","v":0},{"$f":"Table1[[#This Row],[QTY]]*Table1[[#This Row],[School & Library Price]]","v":0}]
[null,null,20,null,null,"Current Issues","Hot Topics","Hot Topics: Set 2","978-1-5345-6164-9",{"$f":"HYPERLINK(Table1[[#This Row],[eCommerce Hyperlink]],\"Book Weblink\")","v":"Book Weblink"},null,"Lucent Press","Library Set",6,"2018","August 2017","Library","7.000 X 9.000",null,null,null,null,null,null,null,null,"Grade 7","Grade 7 - 10","Issues such as racism, immigration, and the protection of civil liberties affect young people just as much as they affect their parents. In some cases, they affect young people even more. Readers find the facts they need to become informed about some of the most controversial topics in contemporary culture. These facts are presented in an accessible tone without condescension, making each volume a strong resource for young people navigating these challenges. The vivid photographs and annotated quotes used throughout make a strong impression on readers, enhancing this valuable reading experience.","English",242.4,193.92,null,"104–120 pp.","https://greenhavenpublishing.com/9781534561649",null,{"$f":"Table1[[#This Row],['# of Books]]*Table1[[#This Row],[QTY]]","v":0},{"$f":"Table1[[#This Row],[QTY]]*Table1[[#This Row],[School & Library Price]]","v":0}]
[null,null,20,null,null,"Current Issues","Hot Topics","Civil Liberties: The Fight for Personal Freedom","978-1-5345-6145-8",{"$f":"HYPERLINK(Table1[[#This Row],[eCommerce Hyperlink]],\"Book Weblink\")","v":"Book Weblink"},null,"Lucent Press","Library Bound Book",1,"2018","August 2017","Library","7.000 X 9.000","Author","Allison Krumsiek",null,null,null,null,"Z",null,"Grade 7","Grade 7 - 10","Although the civil liberties of American citizens are protected under the Constitution, these rights are often violated by both individuals and the government, and obtaining justice can be a difficult process. Students, in particular, struggle for their legal rights; many people incorrectly assume that these rights can be dictated by school authorities. Through enlightening infographics, sidebars, discussion questions, and quote boxes featuring comments by experts, this volume explores the rights all Americans are entitled to and the fight to protect those rights.","English",40.4,32.32,"342.7308'5--dc23","112 pp.","https://greenhavenpublishing.com/9781534561458",null,{"$f":"Table1[[#This Row],['# of Books]]*Table1[[#This Row],[QTY]]","v":0},{"$f":"Table1[[#This Row],[QTY]]*Table1[[#This Row],[School & Library Price]]","v":0}]
[null,null,20,null,null,"Current Issues","Hot Topics","Civil Liberties: The Fight for Personal Freedom","978-1-5345-6146-5",{"$f":"HYPERLINK(Table1[[#This Row],[eCommerce Hyperlink]],\"Book Weblink\")","v":"Book Weblink"},null,"Lucent Press","eBook",1,"2018","August 2017",null,null,"Author","Allison Krumsiek",null,null,null,null,"Z",null,"Grade 7","Grade 7 - 10","Although the civil liberties of American citizens are protected under the Constitution, these rights are often violated by both individuals and the government, and obtaining justice can be a difficult process. Students, in particular, struggle for their legal rights; many people incorrectly assume that these rights can be dictated by school authorities. Through enlightening infographics, sidebars, discussion questions, and quote boxes featuring comments by experts, this volume explores the rights all Americans are entitled to and the fight to protect those rights.","English",40.4,32.32,"342.7308'5--dc23","112 pp.","https://greenhavenpublishing.com/9781534561465",null,{"$f":"Table1[[#This Row],['# of Books]]*Table1[[#This Row],[QTY]]","v":0},{"$f":"Table1[[#This Row],[QTY]]*Table1[[#This Row],[School & Library Price]]","v":0}]
[null,null,20,null,null,"Current Issues","Hot Topics","Cyber Mobs: Destructive Online Communities","978-1-5345-6153-3",{"$f":"HYPERLINK(Table1[[#This Row],[eCommerce Hyperlink]],\"Book Weblink\")","v":"Book Weblink"},null,"Lucent Press","Library Bound Book",1,"2018","August 2017","Library","7.000 X 9.000","Author","Allison Krumsiek",null,null,null,null,"Z",null,"Grade 7","Grade 7 - 10","The Internet has made it easier than ever for people to connect, but their interactions are not always friendly. Any perceived fault can cause someone to be attacked by a cyber mob, which is a group of people intent on humiliating someone online. Relatable text addresses this relatively new phenomenon, giving readers information about the rise of cyber mobs, the social and psychological effects on their victims, and ways to combat them. Engaging sidebars provide examples of cyber mob attacks, and a list of resources is provided for anyone who may be experiencing online bullying.","English",40.4,32.32,"302.34'302854678--dc23","104 pp.","https://greenhavenpublishing.com/9781534561533",null,{"$f":"Table1[[#This Row],['# of Books]]*Table1[[#This Row],[QTY]]","v":0},{"$f":"Table1[[#This Row],[QTY]]*Table1[[#This Row],[School & Library Price]]","v":0}]
[null,null,20,null,null,"Current Issues","Hot Topics","Cyber Mobs: Destructive Online Communities","978-1-5345-6154-0",{"$f":"HYPERLINK(Table1[[#This Row],[eCommerce Hyperlink]],\"Book Weblink\")","v":"Book Weblink"},null,"Lucent Press","eBook",1,"2018","August 2017",null,null,"Author","Allison Krumsiek",null,null,null,null,"Z",null,"Grade 7","Grade 7 - 10","The Internet has made it easier than ever for people to connect, but their interactions are not always friendly. Any perceived fault can cause someone to be attacked by a cyber mob, which is a group of people intent on humiliating someone online. Relatable text addresses this relatively new phenomenon, giving readers information about the rise of cyber mobs, the social and psychological effects on their victims, and ways to combat them. Engaging sidebars provide examples of cyber mob attacks, and a list of resources is provided for anyone who may be experiencing online bullying.","English",40.4,32.32,"302.34'302854678--dc23","104 pp.","https://greenhavenpublishing.com/9781534561540",null,{"$f":"Table1[[#This Row],['# of Books]]*Table1[[#This Row],[QTY]]","v":0},{"$f":"Table1[[#This Row],[QTY]]*Table1[[#This Row],[School & Library Price]]","v":0}]
[null,null,20,null,null,"Current Issues","Hot Topics","Hate Crimes: When Intolerance Turns Violent","978-1-5345-6149-6",{"$f":"HYPERLINK(Table1[[#This Row],[eCommerce Hyperlink]],\"Book Weblink\")","v":"Book Weblink"},null,"Lucent Press","Library Bound Book",1,"2018","August 2017","Library","7.000 X 9.000","Author","Meghan Sharif",null,null,null,null,"Z",null,"Grade 7","Grade 7 - 10","Hate crimes can take many forms. Assaulting someone, vandalizing their property, or simply making them feel threatened are all considered hate crimes when they are motivated by animosity for a particular group. Readers learn that these offenses often take place because the perpetrator has a fundamental misunderstanding or fear of the people in that targeted group. Informative charts and discussion questions for each chapter encourage readers to think critically about the way people’s biases can dictate their behavior in ways that harm others.","English",40.4,32.32,"364.15--dc23","112 pp.","https://greenhavenpublishing.com/9781534561496",null,{"$f":"Table1[[#This Row],['# of Books]]*Table1[[#This Row],[QTY]]","v":0},{"$f":"Table1[[#This Row],[QTY]]*Table1[[#This Row],[School & Library Price]]","v":0}]
[null,null,20,null,null,"Current Issues","Hot Topics","Hate Crimes: When Intolerance Turns Violent","978-1-5345-6150-2",{"$f":"HYPERLINK(Table1[[#This Row],[eCommerce Hyperlink]],\"Book Weblink\")","v":"Book Weblink"},null,"Lucent Press","eBook",1,"2018","August 2017",null,null,"Author","Meghan Sharif",null,null,null,null,"Z",null,"Grade 7","Grade 7 - 10","Hate crimes can take many forms. Assaulting someone, vandalizing their property, or simply making them feel threatened are all considered hate crimes when they are motivated by animosity for a particular group. Readers learn that these offenses often take place because the perpetrator has a fundamental misunderstanding or fear of the people in that targeted group. Informative charts and discussion questions for each chapter encourage readers to think critically about the way people’s biases can dictate their behavior in ways that harm others.","English",40.4,32.32,"364.15--dc23","112 pp.","https://greenhavenpublishing.com/9781534561502",null,{"$f":"Table1[[#This Row],['# of Books]]*Table1[[#This Row],[QTY]]","v":0},{"$f":"Table1[[#This Row],[QTY]]*Table1[[#This Row],[School & Library Price]]","v":0}]
[null,null,20,null,null,"Current Issues","Hot Topics","Immigration Issues in America","978-1-5345-6151-9",{"$f":"HYPERLINK(Table1[[#This Row],[eCommerce Hyperlink]],\"Book Weblink\")","v":"Book Weblink"},null,"Lucent Press","Library Bound Book",1,"2018","August 2017","Library","7.000 X 9.000","Author","Michelle Denton",null,null,null,null,"Z",null,"Grade 7","Grade 7 - 10","Every wave of immigrants entering the United States has faced prejudice. As each group gradually assimilates into the dominant culture, it becomes easy to forget the anger that was previously directed at them. People always believe that the next group of immigrants poses a more severe threat than the ones that came before them, but readers discover that these fears often prove to be unfounded. Detailed infographics and full-color photographs supplement the informative text’s analysis of the history of immigration, its economic implications, and what immigration policies should be implemented in the future.","English",40.4,32.32,"343.7308'2--dc23","112 pp.","https://greenhavenpublishing.com/9781534561519",null,{"$f":"Table1[[#This Row],['# of Books]]*Table1[[#This Row],[QTY]]","v":0},{"$f":"Table1[[#This Row],[QTY]]*Table1[[#This Row],[School & Library Price]]","v":0}]
[null,null,20,null,null,"Current Issues","Hot Topics","Immigration Issues in America","978-1-5345-6152-6",{"$f":"HYPERLINK(Table1[[#This Row],[eCommerce Hyperlink]],\"Book Weblink\")","v":"Book Weblink"},null,"Lucent Press","eBook",1,"2018","August 2017",null,null,"Author","Michelle Denton",null,null,null,null,"Z",null,"Grade 7","Grade 7 - 10","Every wave of immigrants entering the United States has faced prejudice. As each group gradually assimilates into the dominant culture, it becomes easy to forget the anger that was previously directed at them. People always believe that the next group of immigrants poses a more severe threat than the ones that came before them, but readers discover that these fears often prove to be unfounded. Detailed infographics and full-color photographs supplement the informative text’s analysis of the history of immigration, its economic implications, and what immigration policies should be implemented in the future.","English",40.4,32.32,"343.7308'2--dc23","112 pp.","https://greenhavenpublishing.com/9781534561526",null,{"$f":"Table1[[#This Row],['# of Books]]*Table1[[#This Row],[QTY]]","v":0},{"$f":"Table1[[#This Row],[QTY]]*Table1[[#This Row],[School & Library Price]]","v":0}]
[null,null,20,null,null,"Current Issues","Hot Topics","Obesity: An American Epidemic","978-1-5345-6147-2",{"$f":"HYPERLINK(Table1[[#This Row],[eCommerce Hyperlink]],\"Book Weblink\")","v":"Book Weblink"},null,"Lucent Press","Library Bound Book",1,"2018","August 2017","Library","7.000 X 9.000","Author","Emily Mahoney",null,null,null,null,"Z","1310L","Grade 7","Grade 7 - 10","Due to economic factors, larger portion sizes in restaurants, and sedentary lifestyles caused by an increase in our use of technology, obesity rates have risen steadily in the last decade. This, in turn, has created a multimillion-dollar diet industry that often preys on people’s desire to lose weight quickly and easily. Through full-color photographs and engaging sidebars, readers will learn about the complex causes of obesity, as well as ways to live a healthier lifestyle. What can be done to reverse this trend? Discussion questions such as this one are waiting for readers to debate.","English",40.4,32.32,"616.3'98--dc23","104 pp.","https://greenhavenpublishing.com/9781534561472",null,{"$f":"Table1[[#This Row],['# of Books]]*Table1[[#This Row],[QTY]]","v":0},{"$f":"Table1[[#This Row],[QTY]]*Table1[[#This Row],[School & Library Price]]","v":0}]
[null,null,20,null,null,"Current Issues","Hot Topics","Obesity: An American Epidemic","978-1-5345-6148-9",{"$f":"HYPERLINK(Table1[[#This Row],[eCommerce Hyperlink]],\"Book Weblink\")","v":"Book Weblink"},null,"Lucent Press","eBook",1,"2018","August 2017",null,null,"Author","Emily Mahoney",null,null,null,null,"Z","1310L","Grade 7","Grade 7 - 10","Due to economic factors, larger portion sizes in restaurants, and sedentary lifestyles caused by an increase in our use of technology, obesity rates have risen steadily in the last decade. This, in turn, has created a multimillion-dollar diet industry that often preys on people’s desire to lose weight quickly and easily. Through full-color photographs and engaging sidebars, readers will learn about the complex causes of obesity, as well as ways to live a healthier lifestyle. What can be done to reverse this trend? Discussion questions such as this one are waiting for readers to debate.","English",40.4,32.32,"616.3'98--dc23","104 pp.","https://greenhavenpublishing.com/9781534561489",null,{"$f":"Table1[[#This Row],['# of Books]]*Table1[[#This Row],[QTY]]","v":0},{"$f":"Table1[[#This Row],[QTY]]*Table1[[#This Row],[School & Library Price]]","v":0}]
[null,null,20,null,null,"Current Issues","Hot Topics","Racism in America: A Long History of Hate","978-1-5345-6143-4",{"$f":"HYPERLINK(Table1[[#This Row],[eCommerce Hyperlink]],\"Book Weblink\")","v":"Book Weblink"},null,"Lucent Press","Library Bound Book",1,"2018","August 2017","Library","7.000 X 9.000","Author","Meghan Green",null,null,null,null,"Z",null,"Grade 7","Grade 7 - 10","Although racism still exists in the United States, it has generally become more subtle, leading some to deny that it is still a problem. Now that institutional segregation is no longer considered acceptable, some people argue that racism as a whole has been eradicated. Readers discover that this mindset ignores covert, or hidden, racism, which often deals with assumptions: for example, that a black mother does not have a husband or that all Hispanic people are Mexican. In-depth sidebars, discussion questions, and detailed photographs augment the engaging narrative as it discusses the history of American racism and its lasting effects.","English",40.4,32.32,"305.800973--dc23","112 pp.","https://greenhavenpublishing.com/9781534561434",null,{"$f":"Table1[[#This Row],['# of Books]]*Table1[[#This Row],[QTY]]","v":0},{"$f":"Table1[[#This Row],[QTY]]*Table1[[#This Row],[School & Library Price]]","v":0}]
[null,null,20,null,null,"Current Issues","Hot Topics","Racism in America: A Long History of Hate","978-1-5345-6144-1",{"$f":"HYPERLINK(Table1[[#This Row],[eCommerce Hyperlink]],\"Book Weblink\")","v":"Book Weblink"},null,"Lucent Press","eBook",1,"2018","August 2017",null,null,"Author","Meghan Green",null,null,null,null,"Z",null,"Grade 7","Grade 7 - 10","Although racism still exists in the United States, it has generally become more subtle, leading some to deny that it is still a problem. Now that institutional segregation is no longer considered acceptable, some people argue that racism as a whole has been eradicated. Readers discover that this mindset ignores covert, or hidden, racism, which often deals with assumptions: for example, that a black mother does not have a husband or that all Hispanic people are Mexican. In-depth sidebars, discussion questions, and detailed photographs augment the engaging narrative as it discusses the history of American racism and its lasting effects.","English",40.4,32.32,"305.800973--dc23","112 pp.","https://greenhavenpublishing.com/9781534561441",null,{"$f":"Table1[[#This Row],['# of Books]]*Table1[[#This Row],[QTY]]","v":0},{"$f":"Table1[[#This Row],[QTY]]*Table1[[#This Row],[School & Library Price]]","v":0}]
[null,null,20,null,null,"Current Issues","Hot Topics","Hot Topics: Set 3","978-1-5345-6255-4",{"$f":"HYPERLINK(Table1[[#This Row],[eCommerce Hyperlink]],\"Book Weblink\")","v":"Book Weblink"},null,"Lucent Press","Library Set",6,"2018","January 2018","Library","7.000 X 9.000",null,null,null,null,null,null,null,null,"Grade 7","Grade 7 - 10","Complex topics such as abortion, media bias, and the death penalty are often debated and discussed in short segments on the news or angry comment threads on the Internet. This method of presenting important issues that impact society as a whole does not allow people to understand different perspectives and gather all the facts. What is needed is a comprehensive approach to controversial issues, which is what readers find when they explore these carefully chosen topics, which are presented through fact-filled text, diligently researched sidebars, annotated quotes, helpful charts and graphs, and full-color photographs. Features include: Balanced, informative text encourages readers to think critically and independently about important issues in the world around them. Discussion questions are included to foster open communication and deeper thinking about each issue. Detailed text provides essential information on topics readers might hear or read about without being given a clear picture of what they mean and why they are important, including fake news and rape culture.","English",242.4,193.92,null,"104 pp.","https://greenhavenpublishing.com/9781534562554",null,{"$f":"Table1[[#This Row],['# of Books]]*Table1[[#This Row],[QTY]]","v":0},{"$f":"Table1[[#This Row],[QTY]]*Table1[[#This Row],[School & Library Price]]","v":0}]
[null,null,20,null,null,"Current Issues","Hot Topics","Hot Topics (Spring 2018)","978-1-5345-6319-3",{"$f":"HYPERLINK(Table1[[#This Row],[eCommerce Hyperlink]],\"Book Weblink\")","v":"Book Weblink"},null,"Lucent Press","Single Copy Set",6,"2018","January 2018","Paperback","7.000 X 9.000",null,null,null,null,null,null,null,null,"Grade 7","Grade 7 - 10","Complex topics such as abortion, media bias, and the death penalty are often debated and discussed in short segments on the news or angry comment threads on the Internet. This method of presenting important issues that impact society as a whole does not allow people to understand different perspectives and gather all the facts. What is needed is a comprehensive approach to controversial issues, which is what readers find when they explore these carefully chosen topics, which are presented through fact-filled text, diligently researched sidebars, annotated quotes, helpful charts and graphs, and full-color photographs. Features include: Balanced, informative text encourages readers to think critically and independently about important issues in the world around them. Discussion questions are included to foster open communication and deeper thinking about each issue. Detailed text provides essential information on topics readers might hear or read about without being given a clear picture of what they mean and why they are important, including fake news and rape culture.","English",125.94,107.1,null,"104 pp.","https://greenhavenpublishing.com/9781534563193",null,{"$f":"Table1[[#This Row],['# of Books]]*Table1[[#This Row],[QTY]]","v":0},{"$f":"Table1[[#This Row],[QTY]]*Table1[[#This Row],[School & Library Price]]","v":0}]
[null,null,20,null,null,"Current Issues","Hot Topics","Abortion: A Continuing Debate","978-1-5345-6197-7",{"$f":"HYPERLINK(Table1[[#This Row],[eCommerce Hyperlink]],\"Book Weblink\")","v":"Book Weblink"},null,"Lucent Press","Library Bound Book",1,"2018","January 2018","Library","7.000 X 9.000","Author","Meghan Green",null,null,null,null,"Z",null,"Grade 7","Grade 7 - 10","Should abortion be legal? How late in a pregnancy should a woman be allowed to have an abortion? What impact would outlawing abortion have on women, especially those who live in poverty? Readers learn about these and other abortion concerns. All sides of the debate are discussed to help them form their own opinions. Informative charts and in-depth sidebars highlight important facts about this controversial topic, and a list of discussion questions is included to give them a starting point for further debate and guided thinking about this complex issue.","English",40.4,32.32,"179.7/6--dc23","104 pp.","https://greenhavenpublishing.com/9781534561977",null,{"$f":"Table1[[#This Row],['# of Books]]*Table1[[#This Row],[QTY]]","v":0},{"$f":"Table1[[#This Row],[QTY]]*Table1[[#This Row],[School & Library Price]]","v":0}]
[null,null,20,null,null,"Current Issues","Hot Topics","Abortion: A Continuing Debate","978-1-5345-6198-4",{"$f":"HYPERLINK(Table1[[#This Row],[eCommerce Hyperlink]],\"Book Weblink\")","v":"Book Weblink"},null,"Lucent Press","eBook",1,"2018","January 2018",null,null,"Author","Meghan Green",null,null,null,null,"Z",null,"Grade 7","Grade 7 - 10","Should abortion be legal? How late in a pregnancy should a woman be allowed to have an abortion? What impact would outlawing abortion have on women, especially those who live in poverty? Readers learn about these and other abortion concerns. All sides of the debate are discussed to help them form their own opinions. Informative charts and in-depth sidebars highlight important facts about this controversial topic, and a list of discussion questions is included to give them a starting point for further debate and guided thinking about this complex issue.","English",40.4,32.32,"179.7/6--dc23","104 pp.","https://greenhavenpublishing.com/9781534561984",null,{"$f":"Table1[[#This Row],['# of Books]]*Table1[[#This Row],[QTY]]","v":0},{"$f":"Table1[[#This Row],[QTY]]*Table1[[#This Row],[School & Library Price]]","v":0}]
[null,null,20,null,null,"Current Issues","Hot Topics","Abortion: A Continuing Debate","978-1-5345-6288-2",{"$f":"HYPERLINK(Table1[[#This Row],[eCommerce Hyperlink]],\"Book Weblink\")","v":"Book Weblink"},null,"Lucent Press","Paperback Book",1,"2018","January 2018","Paperback","7.000 X 9.000","Author","Meghan Green",null,null,null,null,"Z",null,"Grade 7","Grade 7 - 10","Should abortion be legal? How late in a pregnancy should a woman be allowed to have an abortion? What impact would outlawing abortion have on women, especially those who live in poverty? Readers learn about these and other abortion concerns. All sides of the debate are discussed to help them form their own opinions. Informative charts and in-depth sidebars highlight important facts about this controversial topic, and a list of discussion questions is included to give them a starting point for further debate and guided thinking about this complex issue.","English",20.99,17.850000000000001,"179.7/6--dc23","104 pp.","https://greenhavenpublishing.com/9781534562882",null,{"$f":"Table1[[#This Row],['# of Books]]*Table1[[#This Row],[QTY]]","v":0},{"$f":"Table1[[#This Row],[QTY]]*Table1[[#This Row],[School & Library Price]]","v":0}]
[null,null,20,null,null,"Current Issues","Hot Topics","Biological Weapons: Using Nature to Kill","978-1-5345-6201-1",{"$f":"HYPERLINK(Table1[[#This Row],[eCommerce Hyperlink]],\"Book Weblink\")","v":"Book Weblink"},null,"Lucent Press","Library Bound Book",1,"2018","January 2018","Library","7.000 X 9.000","Author","Anna Collins",null,null,null,null,"Z","1300L","Grade 7","Grade 7 - 10","Throughout history, armies have used various kinds of germs to cripple their enemies. International treaties currently outlaw the use of biological weapons, but this does not necessarily mean that none are being developed. Through informative text, augmented by detailed infographics and sidebars, readers learn about the history of biological warfare and ways it can be avoided in the future. Annotated quotes from experts on this topic and discussion questions are also included to give readers a deeper understanding of the many facets of this complex topic.","English",40.4,32.32,"358'.384--dc23","104 pp.","https://greenhavenpublishing.com/9781534562011",null,{"$f":"Table1[[#This Row],['# of Books]]*Table1[[#This Row],[QTY]]","v":0},{"$f":"Table1[[#This Row],[QTY]]*Table1[[#This Row],[School & Library Price]]","v":0}]
[null,null,20,null,null,"Current Issues","Hot Topics","Biological Weapons: Using Nature to Kill","978-1-5345-6202-8",{"$f":"HYPERLINK(Table1[[#This Row],[eCommerce Hyperlink]],\"Book Weblink\")","v":"Book Weblink"},null,"Lucent Press","eBook",1,"2018","January 2018",null,null,"Author","Anna Collins",null,null,null,null,"Z","1300L","Grade 7","Grade 7 - 10","Throughout history, armies have used various kinds of germs to cripple their enemies. International treaties currently outlaw the use of biological weapons, but this does not necessarily mean that none are being developed. Through informative text, augmented by detailed infographics and sidebars, readers learn about the history of biological warfare and ways it can be avoided in the future. Annotated quotes from experts on this topic and discussion questions are also included to give readers a deeper understanding of the many facets of this complex topic.","English",40.4,32.32,"358'.384--dc23","104 pp.","https://greenhavenpublishing.com/9781534562028",null,{"$f":"Table1[[#This Row],['# of Books]]*Table1[[#This Row],[QTY]]","v":0},{"$f":"Table1[[#This Row],[QTY]]*Table1[[#This Row],[School & Library Price]]","v":0}]
[null,null,20,null,null,"Current Issues","Hot Topics","Biological Weapons: Using Nature to Kill","978-1-5345-6289-9",{"$f":"HYPERLINK(Table1[[#This Row],[eCommerce Hyperlink]],\"Book Weblink\")","v":"Book Weblink"},null,"Lucent Press","Paperback Book",1,"2018","January 2018","Paperback","7.000 X 9.000","Author","Anna Collins",null,null,null,null,"Z","1300L","Grade 7","Grade 7 - 10","Throughout history, armies have used various kinds of germs to cripple their enemies. International treaties currently outlaw the use of biological weapons, but this does not necessarily mean that none are being developed. Through informative text, augmented by detailed infographics and sidebars, readers learn about the history of biological warfare and ways it can be avoided in the future. Annotated quotes from experts on this topic and discussion questions are also included to give readers a deeper understanding of the many facets of this complex topic.","English",20.99,17.850000000000001,"358'.384--dc23","104 pp.","https://greenhavenpublishing.com/9781534562899",null,{"$f":"Table1[[#This Row],['# of Books]]*Table1[[#This Row],[QTY]]","v":0},{"$f":"Table1[[#This Row],[QTY]]*Table1[[#This Row],[School & Library Price]]","v":0}]
[null,null,20,null,null,"Current Issues","Hot Topics","Child Abuse: Tragedy and Trauma","978-1-5345-6203-5",{"$f":"HYPERLINK(Table1[[#This Row],[eCommerce Hyperlink]],\"Book Weblink\")","v":"Book Weblink"},null,"Lucent Press","Library Bound Book",1,"2018","January 2018","Library","7.000 X 9.000","Author","Allison Krumsiek",null,null,null,null,"Z",null,"Grade 7","Grade 7 - 10","Child abuse does not always leave visible marks; sometimes the abuse is emotional or sexual. Often, a child is abused in more than one way. Although abuse is never the victim’s fault, they may feel too guilty or ashamed to tell anyone about it. Therefore, it is important for others to recognize the signs. Through informative text, full-color photographs, discussion questions, and detailed infographics, this volume teaches young adults what abuse looks like and how to get help for themselves or for others if they recognize signs of an abusive situation.","English",40.4,32.32,"362.760973--dc23","104 pp.","https://greenhavenpublishing.com/9781534562035",null,{"$f":"Table1[[#This Row],['# of Books]]*Table1[[#This Row],[QTY]]","v":0},{"$f":"Table1[[#This Row],[QTY]]*Table1[[#This Row],[School & Library Price]]","v":0}]
[null,null,20,null,null,"Current Issues","Hot Topics","Child Abuse: Tragedy and Trauma","978-1-5345-6204-2",{"$f":"HYPERLINK(Table1[[#This Row],[eCommerce Hyperlink]],\"Book Weblink\")","v":"Book Weblink"},null,"Lucent Press","eBook",1,"2018","January 2018",null,null,"Author","Allison Krumsiek",null,null,null,null,"Z",null,"Grade 7","Grade 7 - 10","Child abuse does not always leave visible marks; sometimes the abuse is emotional or sexual. Often, a child is abused in more than one way. Although abuse is never the victim’s fault, they may feel too guilty or ashamed to tell anyone about it. Therefore, it is important for others to recognize the signs. Through informative text, full-color photographs, discussion questions, and detailed infographics, this volume teaches young adults what abuse looks like and how to get help for themselves or for others if they recognize signs of an abusive situation.","English",40.4,32.32,"362.760973--dc23","104 pp.","https://greenhavenpublishing.com/9781534562042",null,{"$f":"Table1[[#This Row],['# of Books]]*Table1[[#This Row],[QTY]]","v":0},{"$f":"Table1[[#This Row],[QTY]]*Table1[[#This Row],[School & Library Price]]","v":0}]
[null,null,20,null,null,"Current Issues","Hot Topics","Child Abuse: Tragedy and Trauma","978-1-5345-6290-5",{"$f":"HYPERLINK(Table1[[#This Row],[eCommerce Hyperlink]],\"Book Weblink\")","v":"Book Weblink"},null,"Lucent Press","Paperback Book",1,"2018","January 2018","Paperback","7.000 X 9.000","Author","Allison Krumsiek",null,null,null,null,"Z",null,"Grade 7","Grade 7 - 10","Child abuse does not always leave visible marks; sometimes the abuse is emotional or sexual. Often, a child is abused in more than one way. Although abuse is never the victim’s fault, they may feel too guilty or ashamed to tell anyone about it. Therefore, it is important for others to recognize the signs. Through informative text, full-color photographs, discussion questions, and detailed infographics, this volume teaches young adults what abuse looks like and how to get help for themselves or for others if they recognize signs of an abusive situation.","English",20.99,17.850000000000001,"362.760973--dc23","104 pp.","https://greenhavenpublishing.com/9781534562905",null,{"$f":"Table1[[#This Row],['# of Books]]*Table1[[#This Row],[QTY]]","v":0},{"$f":"Table1[[#This Row],[QTY]]*Table1[[#This Row],[School & Library Price]]","v":0}]
[null,null,20,null,null,"Current Issues","Hot Topics","Fake News and Media Bias","978-1-5345-6199-1",{"$f":"HYPERLINK(Table1[[#This Row],[eCommerce Hyperlink]],\"Book Weblink\")","v":"Book Weblink"},null,"Lucent Press","Library Bound Book",1,"2018","January 2018","Library","7.000 X 9.000","Author","Lucian Vance",null,null,null,null,"Z",null,"Grade 7","Grade 7 - 10","Although news outlets are meant to be impartial, they have never been perfectly unbiased. Another layer was added to the ongoing debate over the role of news media after the 2016 U.S. presidential election, when allegations of fake news surfaced. How can people know which news sources to trust? This volume explores the fake news phenomenon and offers readers tips on how to be critical of what they see reported. Full-color photographs, engaging sidebars, and discussion questions enhance the compelling text as it explores this crucial aspect of a democratic society.","English",40.4,32.32,"302.230973--dc23","104 pp.","https://greenhavenpublishing.com/9781534561991",null,{"$f":"Table1[[#This Row],['# of Books]]*Table1[[#This Row],[QTY]]","v":0},{"$f":"Table1[[#This Row],[QTY]]*Table1[[#This Row],[School & Library Price]]","v":0}]
[null,null,20,null,null,"Current Issues","Hot Topics","Fake News and Media Bias","978-1-5345-6200-4",{"$f":"HYPERLINK(Table1[[#This Row],[eCommerce Hyperlink]],\"Book Weblink\")","v":"Book Weblink"},null,"Lucent Press","eBook",1,"2018","January 2018",null,null,"Author","Lucian Vance",null,null,null,null,"Z",null,"Grade 7","Grade 7 - 10","Although news outlets are meant to be impartial, they have never been perfectly unbiased. Another layer was added to the ongoing debate over the role of news media after the 2016 U.S. presidential election, when allegations of fake news surfaced. How can people know which news sources to trust? This volume explores the fake news phenomenon and offers readers tips on how to be critical of what they see reported. Full-color photographs, engaging sidebars, and discussion questions enhance the compelling text as it explores this crucial aspect of a democratic society.","English",40.4,32.32,"302.230973--dc23","104 pp.","https://greenhavenpublishing.com/9781534562004",null,{"$f":"Table1[[#This Row],['# of Books]]*Table1[[#This Row],[QTY]]","v":0},{"$f":"Table1[[#This Row],[QTY]]*Table1[[#This Row],[School & Library Price]]","v":0}]
[null,null,20,null,null,"Current Issues","Hot Topics","Fake News and Media Bias","978-1-5345-6291-2",{"$f":"HYPERLINK(Table1[[#This Row],[eCommerce Hyperlink]],\"Book Weblink\")","v":"Book Weblink"},null,"Lucent Press","Paperback Book",1,"2018","January 2018","Paperback","7.000 X 9.000","Author","Lucian Vance",null,null,null,null,"Z",null,"Grade 7","Grade 7 - 10","Although news outlets are meant to be impartial, they have never been perfectly unbiased. Another layer was added to the ongoing debate over the role of news media after the 2016 U.S. presidential election, when allegations of fake news surfaced. How can people know which news sources to trust? This volume explores the fake news phenomenon and offers readers tips on how to be critical of what they see reported. Full-color photographs, engaging sidebars, and discussion questions enhance the compelling text as it explores this crucial aspect of a democratic society.","English",20.99,17.850000000000001,"302.230973--dc23","104 pp.","https://greenhavenpublishing.com/9781534562912",null,{"$f":"Table1[[#This Row],['# of Books]]*Table1[[#This Row],[QTY]]","v":0},{"$f":"Table1[[#This Row],[QTY]]*Table1[[#This Row],[School & Library Price]]","v":0}]
[null,null,20,null,null,"Current Issues","Hot Topics","Rape Culture: How Can We End It?","978-1-5345-6207-3",{"$f":"HYPERLINK(Table1[[#This Row],[eCommerce Hyperlink]],\"Book Weblink\")","v":"Book Weblink"},null,"Lucent Press","Library Bound Book",1,"2018","January 2018","Library","7.000 X 9.000","Author","Michelle Denton",null,null,null,null,"Z",null,"Grade 7","Grade 7 - 10","Rape culture is the normalization of sexual assault and degradation of victims. Things such as catcalls and explicit song lyrics may seem harmless, but they contribute to an atmosphere where people, particularly women, are regarded as objects. This makes it easier for rapists to justify their actions to themselves. Readers are introduced to these and other crucial points about this important social issue and the rising level of awareness surrounding it. Relatable text, discussion questions, and informative fact boxes teach young adults what rape culture is and how they can fight it to make society safer for everyone.","English",40.4,32.32,"364.15/320973--dc23","104 pp.","https://greenhavenpublishing.com/9781534562073",null,{"$f":"Table1[[#This Row],['# of Books]]*Table1[[#This Row],[QTY]]","v":0},{"$f":"Table1[[#This Row],[QTY]]*Table1[[#This Row],[School & Library Price]]","v":0}]
[null,null,20,null,null,"Current Issues","Hot Topics","Rape Culture: How Can We End It?","978-1-5345-6208-0",{"$f":"HYPERLINK(Table1[[#This Row],[eCommerce Hyperlink]],\"Book Weblink\")","v":"Book Weblink"},null,"Lucent Press","eBook",1,"2018","January 2018",null,null,"Author","Michelle Denton",null,null,null,null,"Z",null,"Grade 7","Grade 7 - 10","Rape culture is the normalization of sexual assault and degradation of victims. Things such as catcalls and explicit song lyrics may seem harmless, but they contribute to an atmosphere where people, particularly women, are regarded as objects. This makes it easier for rapists to justify their actions to themselves. Readers are introduced to these and other crucial points about this important social issue and the rising level of awareness surrounding it. Relatable text, discussion questions, and informative fact boxes teach young adults what rape culture is and how they can fight it to make society safer for everyone.","English",40.4,32.32,"364.15/320973--dc23","104 pp.","https://greenhavenpublishing.com/9781534562080",null,{"$f":"Table1[[#This Row],['# of Books]]*Table1[[#This Row],[QTY]]","v":0},{"$f":"Table1[[#This Row],[QTY]]*Table1[[#This Row],[School & Library Price]]","v":0}]
[null,null,20,null,null,"Current Issues","Hot Topics","Rape Culture: How Can We End It?","978-1-5345-6292-9",{"$f":"HYPERLINK(Table1[[#This Row],[eCommerce Hyperlink]],\"Book Weblink\")","v":"Book Weblink"},null,"Lucent Press","Paperback Book",1,"2018","January 2018","Paperback","7.000 X 9.000","Author","Michelle Denton",null,null,null,null,"Z",null,"Grade 7","Grade 7 - 10","Rape culture is the normalization of sexual assault and degradation of victims. Things such as catcalls and explicit song lyrics may seem harmless, but they contribute to an atmosphere where people, particularly women, are regarded as objects. This makes it easier for rapists to justify their actions to themselves. Readers are introduced to these and other crucial points about this important social issue and the rising level of awareness surrounding it. Relatable text, discussion questions, and informative fact boxes teach young adults what rape culture is and how they can fight it to make society safer for everyone.","English",20.99,17.850000000000001,"364.15/320973--dc23","104 pp.","https://greenhavenpublishing.com/9781534562929",null,{"$f":"Table1[[#This Row],['# of Books]]*Table1[[#This Row],[QTY]]","v":0},{"$f":"Table1[[#This Row],[QTY]]*Table1[[#This Row],[School & Library Price]]","v":0}]
[null,null,20,null,null,"Current Issues","Hot Topics","The Death Penalty: Just Punishment or Cruel Practice?","978-1-5345-6205-9",{"$f":"HYPERLINK(Table1[[#This Row],[eCommerce Hyperlink]],\"Book Weblink\")","v":"Book Weblink"},null,"Lucent Press","Library Bound Book",1,"2018","January 2018","Library","7.000 X 9.000","Author","Allison Krumsiek",null,null,null,null,"Z",null,"Grade 7","Grade 7 - 10","When a violent crime is committed, some people believe the only fair punishment is for the perpetrator to be put to death. Others feel that this practice is inhumane and that no one should be deliberately killed, regardless of what he or she may have done. This volume examines the history of the death penalty, the ways it is administered, and the arguments for and against it. Chapter questions encourage discussion among readers, and detailed charts and compelling sidebars enhance readers’ understanding of this hotly debated topic.","English",40.4,32.32,"364.66--dc23","104 pp.","https://greenhavenpublishing.com/9781534562059",null,{"$f":"Table1[[#This Row],['# of Books]]*Table1[[#This Row],[QTY]]","v":0},{"$f":"Table1[[#This Row],[QTY]]*Table1[[#This Row],[School & Library Price]]","v":0}]
[null,null,20,null,null,"Current Issues","Hot Topics","The Death Penalty: Just Punishment or Cruel Practice?","978-1-5345-6206-6",{"$f":"HYPERLINK(Table1[[#This Row],[eCommerce Hyperlink]],\"Book Weblink\")","v":"Book Weblink"},null,"Lucent Press","eBook",1,"2018","January 2018",null,null,"Author","Allison Krumsiek",null,null,null,null,"Z",null,"Grade 7","Grade 7 - 10","When a violent crime is committed, some people believe the only fair punishment is for the perpetrator to be put to death. Others feel that this practice is inhumane and that no one should be deliberately killed, regardless of what he or she may have done. This volume examines the history of the death penalty, the ways it is administered, and the arguments for and against it. Chapter questions encourage discussion among readers, and detailed charts and compelling sidebars enhance readers’ understanding of this hotly debated topic.","English",40.4,32.32,"364.66--dc23","104 pp.","https://greenhavenpublishing.com/9781534562066",null,{"$f":"Table1[[#This Row],['# of Books]]*Table1[[#This Row],[QTY]]","v":0},{"$f":"Table1[[#This Row],[QTY]]*Table1[[#This Row],[School & Library Price]]","v":0}]
[null,null,20,null,null,"Current Issues","Hot Topics","The Death Penalty: Just Punishment or Cruel Practice?","978-1-5345-6293-6",{"$f":"HYPERLINK(Table1[[#This Row],[eCommerce Hyperlink]],\"Book Weblink\")","v":"Book Weblink"},null,"Lucent Press","Paperback Book",1,"2018","January 2018","Paperback","7.000 X 9.000","Author","Allison Krumsiek",null,null,null,null,"Z",null,"Grade 7","Grade 7 - 10","When a violent crime is committed, some people believe the only fair punishment is for the perpetrator to be put to death. Others feel that this practice is inhumane and that no one should be deliberately killed, regardless of what he or she may have done. This volume examines the history of the death penalty, the ways it is administered, and the arguments for and against it. Chapter questions encourage discussion among readers, and detailed charts and compelling sidebars enhance readers’ understanding of this hotly debated topic.","English",20.99,17.850000000000001,"364.66--dc23","104 pp.","https://greenhavenpublishing.com/9781534562936",null,{"$f":"Table1[[#This Row],['# of Books]]*Table1[[#This Row],[QTY]]","v":0},{"$f":"Table1[[#This Row],[QTY]]*Table1[[#This Row],[School & Library Price]]","v":0}]
[null,null,20,null,null,"Current Issues","Hot Topics","Hot Topics: Set 4","978-1-5345-6456-5",{"$f":"HYPERLINK(Table1[[#This Row],[eCommerce Hyperlink]],\"Book Weblink\")","v":"Book Weblink"},null,"Lucent Press","Library Set",6,"2019","August 2018","Library","7.000 X 9.000",null,null,null,null,null,null,null,null,"Grade 7","Grade 7 - 10","There are many complex and often confusing issues that affect people's lives in the 21st century. Understanding these issues is the first step toward becoming an informed participant in society and being able to take a stand on issues that affect everyone. Accessible text simplifies complicated topics to make them easier to understand and discusses multiple points of view to allow readers to form their own opinion. Informative charts give readers the most up-to-date data on a topic, and full-color photographs show the reality of each issue in today's world. Features include: Timely, relevant topics, ranging from political corruption to economic inequality, give young adults a better understanding of the world around them, how it affects them, and how they can affect it. Annotated quotes by experts give accurate, accessible information. Engaging sidebars take a more in-depth look at various aspects of complex topics, helping readers develop their own informed opinions about things they might only get biased perspectives on from adults, friends, and social media.","English",242.4,193.92,null,"104 pp.","https://greenhavenpublishing.com/9781534564565",null,{"$f":"Table1[[#This Row],['# of Books]]*Table1[[#This Row],[QTY]]","v":0},{"$f":"Table1[[#This Row],[QTY]]*Table1[[#This Row],[School & Library Price]]","v":0}]
[null,null,20,null,null,"Current Issues","Hot Topics","Hot Topics (Fall 2018)","978-1-5345-6469-5",{"$f":"HYPERLINK(Table1[[#This Row],[eCommerce Hyperlink]],\"Book Weblink\")","v":"Book Weblink"},null,"Lucent Press","Single Copy Set",6,"2019","August 2018","Paperback","7.000 X 9.000",null,null,null,null,null,null,null,null,"Grade 7","Grade 7 - 10","There are many complex and often confusing issues that affect people's lives in the 21st century. Understanding these issues is the first step toward becoming an informed participant in society and being able to take a stand on issues that affect everyone. Accessible text simplifies complicated topics to make them easier to understand and discusses multiple points of view to allow readers to form their own opinion. Informative charts give readers the most up-to-date data on a topic, and full-color photographs show the reality of each issue in today's world. Features include: Timely, relevant topics, ranging from political corruption to economic inequality, give young adults a better understanding of the world around them, how it affects them, and how they can affect it. Annotated quotes by experts give accurate, accessible information. Engaging sidebars take a more in-depth look at various aspects of complex topics, helping readers develop their own informed opinions about things they might only get biased perspectives on from adults, friends, and social media.","English",125.94,107.1,null,"104 pp.","https://greenhavenpublishing.com/9781534564695",null,{"$f":"Table1[[#This Row],['# of Books]]*Table1[[#This Row],[QTY]]","v":0},{"$f":"Table1[[#This Row],[QTY]]*Table1[[#This Row],[School & Library Price]]","v":0}]
[null,null,20,null,null,"Current Issues","Hot Topics","Drug Abuse: Inside an American Epidemic","978-1-5345-6350-6",{"$f":"HYPERLINK(Table1[[#This Row],[eCommerce Hyperlink]],\"Book Weblink\")","v":"Book Weblink"},null,"Lucent Press","Library Bound Book",1,"2019","August 2018","Library","7.000 X 9.000","Author","Nicole Horning",null,null,null,null,"Z",null,"Grade 7","Grade 7 - 10","Drug abuse is not a new phenomenon, but it seems as though the problem has become worse in recent years, especially as prescription opioid and heroin abuse has skyrocketed. Is this an accurate view, or has the media inflated the problem? Which drugs are at the forefront of this current national crisis? Readers discover the answers to these questions and many more as they explore well-researched, unbiased text. Through full-color photographs, detailed sidebars, and annotated quotes from leading experts, this volume discusses the most pressing issues in today's drug abuse epidemic.","English",40.4,32.32,"362.290973--dc23","104 pp.","https://greenhavenpublishing.com/9781534563506",null,{"$f":"Table1[[#This Row],['# of Books]]*Table1[[#This Row],[QTY]]","v":0},{"$f":"Table1[[#This Row],[QTY]]*Table1[[#This Row],[School & Library Price]]","v":0}]
[null,null,20,null,null,"Current Issues","Hot Topics","Drug Abuse: Inside an American Epidemic","978-1-5345-6351-3",{"$f":"HYPERLINK(Table1[[#This Row],[eCommerce Hyperlink]],\"Book Weblink\")","v":"Book Weblink"},null,"Lucent Press","eBook",1,"2019","August 2018",null,null,"Author","Nicole Horning",null,null,null,null,"Z",null,"Grade 7","Grade 7 - 10","Drug abuse is not a new phenomenon, but it seems as though the problem has become worse in recent years, especially as prescription opioid and heroin abuse has skyrocketed. Is this an accurate view, or has the media inflated the problem? Which drugs are at the forefront of this current national crisis? Readers discover the answers to these questions and many more as they explore well-researched, unbiased text. Through full-color photographs, detailed sidebars, and annotated quotes from leading experts, this volume discusses the most pressing issues in today's drug abuse epidemic.","English",40.4,32.32,"362.290973--dc23","104 pp.","https://greenhavenpublishing.com/9781534563513",null,{"$f":"Table1[[#This Row],['# of Books]]*Table1[[#This Row],[QTY]]","v":0},{"$f":"Table1[[#This Row],[QTY]]*Table1[[#This Row],[School & Library Price]]","v":0}]
[null,null,20,null,null,"Current Issues","Hot Topics","Drug Abuse: Inside an American Epidemic","978-1-5345-6352-0",{"$f":"HYPERLINK(Table1[[#This Row],[eCommerce Hyperlink]],\"Book Weblink\")","v":"Book Weblink"},null,"Lucent Press","Paperback Book",1,"2019","August 2018","Paperback","7.000 X 9.000","Author","Nicole Horning",null,null,null,null,"Z",null,"Grade 7","Grade 7 - 10","Drug abuse is not a new phenomenon, but it seems as though the problem has become worse in recent years, especially as prescription opioid and heroin abuse has skyrocketed. Is this an accurate view, or has the media inflated the problem? Which drugs are at the forefront of this current national crisis? Readers discover the answers to these questions and many more as they explore well-researched, unbiased text. Through full-color photographs, detailed sidebars, and annotated quotes from leading experts, this volume discusses the most pressing issues in today's drug abuse epidemic.","English",20.99,17.850000000000001,"362.290973--dc23","104 pp.","https://greenhavenpublishing.com/9781534563520",null,{"$f":"Table1[[#This Row],['# of Books]]*Table1[[#This Row],[QTY]]","v":0},{"$f":"Table1[[#This Row],[QTY]]*Table1[[#This Row],[School & Library Price]]","v":0}]
[null,null,20,null,null,"Current Issues","Hot Topics","Health Care: Limits, Laws, and Lives at Stake","978-1-5345-6347-6",{"$f":"HYPERLINK(Table1[[#This Row],[eCommerce Hyperlink]],\"Book Weblink\")","v":"Book Weblink"},null,"Lucent Press","Library Bound Book",1,"2019","August 2018","Library","7.000 X 9.000","Author","Tyler Stevenson",null,null,null,null,"Z",null,"Grade 7","Grade 7 - 10","Health care reform has been at the center of political debate during the past decade. Everyone agrees the current system needs changes, but it seems few people can agree on how many changes and what kind. Some believe it simply needs a few small adjustments, while others believe it should be completely scrapped and rebuilt from the ground up. Detailed graphs, full-color photographs, annotated quotes from experts, and enlightening sidebars augment the informative text to present readers with all sides of the issue, helping them form their own opinions and strengthen their critical-thinking skills.","English",40.4,32.32,"362.1/0425--dc23","104 pp.","https://greenhavenpublishing.com/9781534563476",null,{"$f":"Table1[[#This Row],['# of Books]]*Table1[[#This Row],[QTY]]","v":0},{"$f":"Table1[[#This Row],[QTY]]*Table1[[#This Row],[School & Library Price]]","v":0}]
[null,null,20,null,null,"Current Issues","Hot Topics","Health Care: Limits, Laws, and Lives at Stake","978-1-5345-6348-3",{"$f":"HYPERLINK(Table1[[#This Row],[eCommerce Hyperlink]],\"Book Weblink\")","v":"Book Weblink"},null,"Lucent Press","eBook",1,"2019","August 2018",null,null,"Author","Tyler Stevenson",null,null,null,null,"Z",null,"Grade 7","Grade 7 - 10","Health care reform has been at the center of political debate during the past decade. Everyone agrees the current system needs changes, but it seems few people can agree on how many changes and what kind. Some believe it simply needs a few small adjustments, while others believe it should be completely scrapped and rebuilt from the ground up. Detailed graphs, full-color photographs, annotated quotes from experts, and enlightening sidebars augment the informative text to present readers with all sides of the issue, helping them form their own opinions and strengthen their critical-thinking skills.","English",40.4,32.32,"362.1/0425--dc23","104 pp.","https://greenhavenpublishing.com/9781534563483",null,{"$f":"Table1[[#This Row],['# of Books]]*Table1[[#This Row],[QTY]]","v":0},{"$f":"Table1[[#This Row],[QTY]]*Table1[[#This Row],[School & Library Price]]","v":0}]
[null,null,20,null,null,"Current Issues","Hot Topics","Health Care: Limits, Laws, and Lives at Stake","978-1-5345-6349-0",{"$f":"HYPERLINK(Table1[[#This Row],[eCommerce Hyperlink]],\"Book Weblink\")","v":"Book Weblink"},null,"Lucent Press","Paperback Book",1,"2019","August 2018","Paperback","7.000 X 9.000","Author","Tyler Stevenson",null,null,null,null,"Z",null,"Grade 7","Grade 7 - 10","Health care reform has been at the center of political debate during the past decade. Everyone agrees the current system needs changes, but it seems few people can agree on how many changes and what kind. Some believe it simply needs a few small adjustments, while others believe it should be completely scrapped and rebuilt from the ground up. Detailed graphs, full-color photographs, annotated quotes from experts, and enlightening sidebars augment the informative text to present readers with all sides of the issue, helping them form their own opinions and strengthen their critical-thinking skills.","English",20.99,17.850000000000001,"362.1/0425--dc23","104 pp.","https://greenhavenpublishing.com/9781534563490",null,{"$f":"Table1[[#This Row],['# of Books]]*Table1[[#This Row],[QTY]]","v":0},{"$f":"Table1[[#This Row],[QTY]]*Table1[[#This Row],[School & Library Price]]","v":0}]
[null,null,20,null,null,"Current Issues","Hot Topics","Online Activism: Social Change Through Social Media","978-1-5345-6356-8",{"$f":"HYPERLINK(Table1[[#This Row],[eCommerce Hyperlink]],\"Book Weblink\")","v":"Book Weblink"},null,"Lucent Press","Library Bound Book",1,"2019","August 2018","Library","7.000 X 9.000","Author","Amanda Vink",null,null,null,null,"Z",null,"Grade 7","Grade 7 - 10","The growth of the Internet has changed almost every aspect of society, and social activism is no exception. Circulating petitions and organizing rallies is easier than ever, but so is the illusion of creating change without putting in effort. Readers learn the ways activism has changed in the Internet era. The informative text is supplemented with detailed charts and annotated quotes presenting multiple points of view. By learning more about online activism, young adults can become more informed about how to take a stand on issues they are passionate about.","English",40.4,32.32,"302.23/1--dc23","104 pp.","https://greenhavenpublishing.com/9781534563568",null,{"$f":"Table1[[#This Row],['# of Books]]*Table1[[#This Row],[QTY]]","v":0},{"$f":"Table1[[#This Row],[QTY]]*Table1[[#This Row],[School & Library Price]]","v":0}]
[null,null,20,null,null,"Current Issues","Hot Topics","Online Activism: Social Change Through Social Media","978-1-5345-6357-5",{"$f":"HYPERLINK(Table1[[#This Row],[eCommerce Hyperlink]],\"Book Weblink\")","v":"Book Weblink"},null,"Lucent Press","eBook",1,"2019","August 2018",null,null,"Author","Amanda Vink",null,null,null,null,"Z",null,"Grade 7","Grade 7 - 10","The growth of the Internet has changed almost every aspect of society, and social activism is no exception. Circulating petitions and organizing rallies is easier than ever, but so is the illusion of creating change without putting in effort. Readers learn the ways activism has changed in the Internet era. The informative text is supplemented with detailed charts and annotated quotes presenting multiple points of view. By learning more about online activism, young adults can become more informed about how to take a stand on issues they are passionate about.","English",40.4,32.32,"302.23/1--dc23","104 pp.","https://greenhavenpublishing.com/9781534563575",null,{"$f":"Table1[[#This Row],['# of Books]]*Table1[[#This Row],[QTY]]","v":0},{"$f":"Table1[[#This Row],[QTY]]*Table1[[#This Row],[School & Library Price]]","v":0}]
[null,null,20,null,null,"Current Issues","Hot Topics","Online Activism: Social Change Through Social Media","978-1-5345-6358-2",{"$f":"HYPERLINK(Table1[[#This Row],[eCommerce Hyperlink]],\"Book Weblink\")","v":"Book Weblink"},null,"Lucent Press","Paperback Book",1,"2019","August 2018","Paperback","7.000 X 9.000","Author","Amanda Vink",null,null,null,null,"Z",null,"Grade 7","Grade 7 - 10","The growth of the Internet has changed almost every aspect of society, and social activism is no exception. Circulating petitions and organizing rallies is easier than ever, but so is the illusion of creating change without putting in effort. Readers learn the ways activism has changed in the Internet era. The informative text is supplemented with detailed charts and annotated quotes presenting multiple points of view. By learning more about online activism, young adults can become more informed about how to take a stand on issues they are passionate about.","English",20.99,17.850000000000001,"302.23/1--dc23","104 pp.","https://greenhavenpublishing.com/9781534563582",null,{"$f":"Table1[[#This Row],['# of Books]]*Table1[[#This Row],[QTY]]","v":0},{"$f":"Table1[[#This Row],[QTY]]*Table1[[#This Row],[School & Library Price]]","v":0}]
[null,null,20,null,null,"Current Issues","Hot Topics","Political Corruption and the Abuse of Power","978-1-5345-6341-4",{"$f":"HYPERLINK(Table1[[#This Row],[eCommerce Hyperlink]],\"Book Weblink\")","v":"Book Weblink"},null,"Lucent Press","Library Bound Book",1,"2019","August 2018","Library","7.000 X 9.000","Author","Sarah Machajewski",null,null,null,null,"Z",null,"Grade 7","Grade 7 - 10","Throughout history, gaining political power has frequently led to unethical behavior. It is difficult for people to resist the temptation to abuse their power. In the worst cases, this has led to political unrest, economic instability, and genocide. Readers learn what political corruption is, how it affects citizens' lives, and what can be done about it. Historical and modern examples are provided to give readers a comprehensive view of this important and timely topic. Informative charts and full-color photographs enhance the engaging text to show young adults the importance of civic engagement and political scrutiny to combat corruption.","English",40.4,32.32,"364.1'323--dc23","104 pp.","https://greenhavenpublishing.com/9781534563414",null,{"$f":"Table1[[#This Row],['# of Books]]*Table1[[#This Row],[QTY]]","v":0},{"$f":"Table1[[#This Row],[QTY]]*Table1[[#This Row],[School & Library Price]]","v":0}]
[null,null,20,null,null,"Current Issues","Hot Topics","Political Corruption and the Abuse of Power","978-1-5345-6342-1",{"$f":"HYPERLINK(Table1[[#This Row],[eCommerce Hyperlink]],\"Book Weblink\")","v":"Book Weblink"},null,"Lucent Press","eBook",1,"2019","August 2018",null,null,"Author","Sarah Machajewski",null,null,null,null,"Z",null,"Grade 7","Grade 7 - 10","Throughout history, gaining political power has frequently led to unethical behavior. It is difficult for people to resist the temptation to abuse their power. In the worst cases, this has led to political unrest, economic instability, and genocide. Readers learn what political corruption is, how it affects citizens' lives, and what can be done about it. Historical and modern examples are provided to give readers a comprehensive view of this important and timely topic. Informative charts and full-color photographs enhance the engaging text to show young adults the importance of civic engagement and political scrutiny to combat corruption.","English",40.4,32.32,"364.1'323--dc23","104 pp.","https://greenhavenpublishing.com/9781534563421",null,{"$f":"Table1[[#This Row],['# of Books]]*Table1[[#This Row],[QTY]]","v":0},{"$f":"Table1[[#This Row],[QTY]]*Table1[[#This Row],[School & Library Price]]","v":0}]
[null,null,20,null,null,"Current Issues","Hot Topics","Political Corruption and the Abuse of Power","978-1-5345-6343-8",{"$f":"HYPERLINK(Table1[[#This Row],[eCommerce Hyperlink]],\"Book Weblink\")","v":"Book Weblink"},null,"Lucent Press","Paperback Book",1,"2019","August 2018","Paperback","7.000 X 9.000","Author","Sarah Machajewski",null,null,null,null,"Z",null,"Grade 7","Grade 7 - 10","Throughout history, gaining political power has frequently led to unethical behavior. It is difficult for people to resist the temptation to abuse their power. In the worst cases, this has led to political unrest, economic instability, and genocide. Readers learn what political corruption is, how it affects citizens' lives, and what can be done about it. Historical and modern examples are provided to give readers a comprehensive view of this important and timely topic. Informative charts and full-color photographs enhance the engaging text to show young adults the importance of civic engagement and political scrutiny to combat corruption.","English",20.99,17.850000000000001,"364.1'323--dc23","104 pp.","https://greenhavenpublishing.com/9781534563438",null,{"$f":"Table1[[#This Row],['# of Books]]*Table1[[#This Row],[QTY]]","v":0},{"$f":"Table1[[#This Row],[QTY]]*Table1[[#This Row],[School & Library Price]]","v":0}]
[null,null,20,null,null,"Current Issues","Hot Topics","Poverty and Economic Inequality","978-1-5345-6353-7",{"$f":"HYPERLINK(Table1[[#This Row],[eCommerce Hyperlink]],\"Book Weblink\")","v":"Book Weblink"},null,"Lucent Press","Library Bound Book",1,"2019","August 2018","Library","7.000 X 9.000","Author","Meghan Sharif",null,null,null,null,"Z",null,"Grade 7","Grade 7 - 10","Although millions of Americans live below the poverty line, economic inequality is still a frequently misunderstood issue. Myths about poverty that have been thoroughly debunked are still commonly circulated, and this type of misunderstanding leads to poor communication and tension between people of different economic classes. The goal of this volume is to reduce that misunderstanding and present readers with the facts and realities of economic inequality. In-depth sidebars, full-color photographs, and educational graphs present essential information about this complex issue. Annotated quotes are also included to provide first-person perspectives to deepen readers' critical thinking skills.","English",40.4,32.32,"339.4/6--dc23","104 pp.","https://greenhavenpublishing.com/9781534563537",null,{"$f":"Table1[[#This Row],['# of Books]]*Table1[[#This Row],[QTY]]","v":0},{"$f":"Table1[[#This Row],[QTY]]*Table1[[#This Row],[School & Library Price]]","v":0}]
[null,null,20,null,null,"Current Issues","Hot Topics","Poverty and Economic Inequality","978-1-5345-6354-4",{"$f":"HYPERLINK(Table1[[#This Row],[eCommerce Hyperlink]],\"Book Weblink\")","v":"Book Weblink"},null,"Lucent Press","eBook",1,"2019","August 2018",null,null,"Author","Meghan Sharif",null,null,null,null,"Z",null,"Grade 7","Grade 7 - 10","Although millions of Americans live below the poverty line, economic inequality is still a frequently misunderstood issue. Myths about poverty that have been thoroughly debunked are still commonly circulated, and this type of misunderstanding leads to poor communication and tension between people of different economic classes. The goal of this volume is to reduce that misunderstanding and present readers with the facts and realities of economic inequality. In-depth sidebars, full-color photographs, and educational graphs present essential information about this complex issue. Annotated quotes are also included to provide first-person perspectives to deepen readers' critical thinking skills.","English",40.4,32.32,"339.4/6--dc23","104 pp.","https://greenhavenpublishing.com/9781534563544",null,{"$f":"Table1[[#This Row],['# of Books]]*Table1[[#This Row],[QTY]]","v":0},{"$f":"Table1[[#This Row],[QTY]]*Table1[[#This Row],[School & Library Price]]","v":0}]
[null,null,20,null,null,"Current Issues","Hot Topics","Poverty and Economic Inequality","978-1-5345-6355-1",{"$f":"HYPERLINK(Table1[[#This Row],[eCommerce Hyperlink]],\"Book Weblink\")","v":"Book Weblink"},null,"Lucent Press","Paperback Book",1,"2019","August 2018","Paperback","7.000 X 9.000","Author","Meghan Sharif",null,null,null,null,"Z",null,"Grade 7","Grade 7 - 10","Although millions of Americans live below the poverty line, economic inequality is still a frequently misunderstood issue. Myths about poverty that have been thoroughly debunked are still commonly circulated, and this type of misunderstanding leads to poor communication and tension between people of different economic classes. The goal of this volume is to reduce that misunderstanding and present readers with the facts and realities of economic inequality. In-depth sidebars, full-color photographs, and educational graphs present essential information about this complex issue. Annotated quotes are also included to provide first-person perspectives to deepen readers' critical thinking skills.","English",20.99,17.850000000000001,"339.4/6--dc23","104 pp.","https://greenhavenpublishing.com/9781534563551",null,{"$f":"Table1[[#This Row],['# of Books]]*Table1[[#This Row],[QTY]]","v":0},{"$f":"Table1[[#This Row],[QTY]]*Table1[[#This Row],[School & Library Price]]","v":0}]
[null,null,20,null,null,"Current Issues","Hot Topics","The Climate Change Crisis","978-1-5345-6344-5",{"$f":"HYPERLINK(Table1[[#This Row],[eCommerce Hyperlink]],\"Book Weblink\")","v":"Book Weblink"},null,"Lucent Press","Library Bound Book",1,"2019","August 2018","Library","7.000 X 9.000","Author","Anna Collins",null,null,null,null,"Z",null,"Grade 7","Grade 7 - 10","Scientists have long warned people of the dangers of climate change, so why do some people insist it is not a problem? What can be done to reverse the effects of this dangerous trend? This volume answers these questions and more, highlighting important points with engaging sidebars, full-color photographs, detailed graphs, and annotated quotes by experts. Readers learn how our world is being affected and how they can play a role in minimizing the damage. Climate change is a topic that is often in the news, and readers will be better equipped to understand it thanks to this informative book.","English",40.4,32.32,"304.2/8--dc23","104 pp.","https://greenhavenpublishing.com/9781534563445",null,{"$f":"Table1[[#This Row],['# of Books]]*Table1[[#This Row],[QTY]]","v":0},{"$f":"Table1[[#This Row],[QTY]]*Table1[[#This Row],[School & Library Price]]","v":0}]
[null,null,20,null,null,"Current Issues","Hot Topics","The Climate Change Crisis","978-1-5345-6345-2",{"$f":"HYPERLINK(Table1[[#This Row],[eCommerce Hyperlink]],\"Book Weblink\")","v":"Book Weblink"},null,"Lucent Press","eBook",1,"2019","August 2018",null,null,"Author","Anna Collins",null,null,null,null,"Z",null,"Grade 7","Grade 7 - 10","Scientists have long warned people of the dangers of climate change, so why do some people insist it is not a problem? What can be done to reverse the effects of this dangerous trend? This volume answers these questions and more, highlighting important points with engaging sidebars, full-color photographs, detailed graphs, and annotated quotes by experts. Readers learn how our world is being affected and how they can play a role in minimizing the damage. Climate change is a topic that is often in the news, and readers will be better equipped to understand it thanks to this informative book.","English",40.4,32.32,"304.2/8--dc23","104 pp.","https://greenhavenpublishing.com/9781534563452",null,{"$f":"Table1[[#This Row],['# of Books]]*Table1[[#This Row],[QTY]]","v":0},{"$f":"Table1[[#This Row],[QTY]]*Table1[[#This Row],[School & Library Price]]","v":0}]
[null,null,20,null,null,"Current Issues","Hot Topics","The Climate Change Crisis","978-1-5345-6346-9",{"$f":"HYPERLINK(Table1[[#This Row],[eCommerce Hyperlink]],\"Book Weblink\")","v":"Book Weblink"},null,"Lucent Press","Paperback Book",1,"2019","August 2018","Paperback","7.000 X 9.000","Author","Anna Collins",null,null,null,null,"Z",null,"Grade 7","Grade 7 - 10","Scientists have long warned people of the dangers of climate change, so why do some people insist it is not a problem? What can be done to reverse the effects of this dangerous trend? This volume answers these questions and more, highlighting important points with engaging sidebars, full-color photographs, detailed graphs, and annotated quotes by experts. Readers learn how our world is being affected and how they can play a role in minimizing the damage. Climate change is a topic that is often in the news, and readers will be better equipped to understand it thanks to this informative book.","English",20.99,17.850000000000001,"304.2/8--dc23","104 pp.","https://greenhavenpublishing.com/9781534563469",null,{"$f":"Table1[[#This Row],['# of Books]]*Table1[[#This Row],[QTY]]","v":0},{"$f":"Table1[[#This Row],[QTY]]*Table1[[#This Row],[School & Library Price]]","v":0}]
[null,null,20,null,null,"Current Issues","Hot Topics","Hot Topics: Set 5","978-1-5345-6601-9",{"$f":"HYPERLINK(Table1[[#This Row],[eCommerce Hyperlink]],\"Book Weblink\")","v":"Book Weblink"},null,"Lucent Press","Library Set",6,"2019","January 2019","Library","7.000 X 9.000",null,null,null,null,null,null,null,null,"Grade 7","Grade 7 - 10","Adolescence is a time when people begin to take notice of the world around them, making it a crucial time to introduce young adults to debates such as those surrounding genetic engineering and freedom of speech on the internet. As readers learn about these global issues, they are also introduced to topics that have a direct impact on their lives, for instance, what to do when they are offered alcohol and how to identify and avoid abusive relationships. These topics are presented though fact-filled text, including informative sidebars. Full-color photographs and charts help make these complex issues easier to understand. Features include: Annotated quotes and relevant statistics give readers the tools to develop informed opinions on a variety of topics. Unbiased text presents all sides of controversial debates, helping readers learn to understand and respect different points of view. Discussion questions and lists of organizations to contact for further information encourage readers to apply what they have learned to the world around them.","English",242.4,193.92,null,"104 pp.","https://greenhavenpublishing.com/9781534566019",null,{"$f":"Table1[[#This Row],['# of Books]]*Table1[[#This Row],[QTY]]","v":0},{"$f":"Table1[[#This Row],[QTY]]*Table1[[#This Row],[School & Library Price]]","v":0}]
[null,null,20,null,null,"Current Issues","Hot Topics","Hot Topics (Spring 2019)","978-1-5345-6620-0",{"$f":"HYPERLINK(Table1[[#This Row],[eCommerce Hyperlink]],\"Book Weblink\")","v":"Book Weblink"},null,"Lucent Press","Single Copy Set",6,"2019","January 2019","Paperback","7.000 X 9.000",null,null,null,null,null,null,null,null,"Grade 7","Grade 7 - 10","Adolescence is a time when people begin to take notice of the world around them, making it a crucial time to introduce young adults to debates such as those surrounding genetic engineering and freedom of speech on the internet. As readers learn about these global issues, they are also introduced to topics that have a direct impact on their lives, for instance, what to do when they are offered alcohol and how to identify and avoid abusive relationships. These topics are presented though fact-filled text, including informative sidebars. Full-color photographs and charts help make these complex issues easier to understand. Features include: Annotated quotes and relevant statistics give readers the tools to develop informed opinions on a variety of topics. Unbiased text presents all sides of controversial debates, helping readers learn to understand and respect different points of view. Discussion questions and lists of organizations to contact for further information encourage readers to apply what they have learned to the world around them.","English",125.94,107.1,null,"104 pp.","https://greenhavenpublishing.com/9781534566200",null,{"$f":"Table1[[#This Row],['# of Books]]*Table1[[#This Row],[QTY]]","v":0},{"$f":"Table1[[#This Row],[QTY]]*Table1[[#This Row],[School & Library Price]]","v":0}]
[null,null,20,null,null,"Current Issues","Hot Topics","Abusive Relationships and Domestic Violence","978-1-5345-6512-8",{"$f":"HYPERLINK(Table1[[#This Row],[eCommerce Hyperlink]],\"Book Weblink\")","v":"Book Weblink"},null,"Lucent Press","Library Bound Book",1,"2019","January 2019","Library","7.000 X 9.000","Author","Jennifer Lombardo",null,null,null,null,"Z",null,"Grade 7","Grade 7 - 10","Domestic violence often seems clear-cut, but some forms of abuse are not as easy to identify as physical abuse. Emotional abuse leaves no visible marks, although its effect on a person's psyche can be just as devastating. Understanding abuse is the first step toward ending an abusive relationship. Enlightening charts, annotated quotes from experts, and real-world examples help young adults identify abuse in relationships with romantic partners, close friends, or family members. This knowledge gives them the tools they need to break free of an unhealthy relationship or help a loved one do the same.","English",40.4,32.32,"362.82/92--dc23","104 pp.","https://greenhavenpublishing.com/9781534565128",null,{"$f":"Table1[[#This Row],['# of Books]]*Table1[[#This Row],[QTY]]","v":0},{"$f":"Table1[[#This Row],[QTY]]*Table1[[#This Row],[School & Library Price]]","v":0}]
[null,null,20,null,null,"Current Issues","Hot Topics","Abusive Relationships and Domestic Violence","978-1-5345-6513-5",{"$f":"HYPERLINK(Table1[[#This Row],[eCommerce Hyperlink]],\"Book Weblink\")","v":"Book Weblink"},null,"Lucent Press","eBook",1,"2019","January 2019",null,null,"Author","Jennifer Lombardo",null,null,null,null,"Z",null,"Grade 7","Grade 7 - 10","Domestic violence often seems clear-cut, but some forms of abuse are not as easy to identify as physical abuse. Emotional abuse leaves no visible marks, although its effect on a person's psyche can be just as devastating. Understanding abuse is the first step toward ending an abusive relationship. Enlightening charts, annotated quotes from experts, and real-world examples help young adults identify abuse in relationships with romantic partners, close friends, or family members. This knowledge gives them the tools they need to break free of an unhealthy relationship or help a loved one do the same.","English",40.4,32.32,"362.82/92--dc23","104 pp.","https://greenhavenpublishing.com/9781534565135",null,{"$f":"Table1[[#This Row],['# of Books]]*Table1[[#This Row],[QTY]]","v":0},{"$f":"Table1[[#This Row],[QTY]]*Table1[[#This Row],[School & Library Price]]","v":0}]
[null,null,20,null,null,"Current Issues","Hot Topics","Abusive Relationships and Domestic Violence","978-1-5345-6511-1",{"$f":"HYPERLINK(Table1[[#This Row],[eCommerce Hyperlink]],\"Book Weblink\")","v":"Book Weblink"},null,"Lucent Press","Paperback Book",1,"2019","January 2019","Paperback","7.000 X 9.000","Author","Jennifer Lombardo",null,null,null,null,"Z",null,"Grade 7","Grade 7 - 10","Domestic violence often seems clear-cut, but some forms of abuse are not as easy to identify as physical abuse. Emotional abuse leaves no visible marks, although its effect on a person's psyche can be just as devastating. Understanding abuse is the first step toward ending an abusive relationship. Enlightening charts, annotated quotes from experts, and real-world examples help young adults identify abuse in relationships with romantic partners, close friends, or family members. This knowledge gives them the tools they need to break free of an unhealthy relationship or help a loved one do the same.","English",20.99,17.850000000000001,"362.82/92--dc23","104 pp.","https://greenhavenpublishing.com/9781534565111",null,{"$f":"Table1[[#This Row],['# of Books]]*Table1[[#This Row],[QTY]]","v":0},{"$f":"Table1[[#This Row],[QTY]]*Table1[[#This Row],[School & Library Price]]","v":0}]
[null,null,20,null,null,"Current Issues","Hot Topics","Alternative Energy Sources: The End of Fossil Fuels?","978-1-5345-6509-8",{"$f":"HYPERLINK(Table1[[#This Row],[eCommerce Hyperlink]],\"Book Weblink\")","v":"Book Weblink"},null,"Lucent Press","Library Bound Book",1,"2019","January 2019","Library","7.000 X 9.000","Author","Sophie Washburne",null,null,null,null,"Z",null,"Grade 7","Grade 7 - 10","Climate change and sustainability are important topics in the 21st century. Scientists have long warned that using fossil fuels to heat homes, power vehicles, and keep appliances running has negative effects on the environment, but there are many economic and social issues to consider when switching to alternative energy sources. Readers discover the debates surrounding various forms of alternative energy, the barriers that must be overcome in order to adopt them, and the benefits they can provide. Up-to-date statistics, annotated quotes from experts, full-color photographs, and informative sidebars help young adults form their own opinions about alternative energy sources.","English",40.4,32.32,"333.79/4--dc23","104 pp.","https://greenhavenpublishing.com/9781534565098",null,{"$f":"Table1[[#This Row],['# of Books]]*Table1[[#This Row],[QTY]]","v":0},{"$f":"Table1[[#This Row],[QTY]]*Table1[[#This Row],[School & Library Price]]","v":0}]
[null,null,20,null,null,"Current Issues","Hot Topics","Alternative Energy Sources: The End of Fossil Fuels?","978-1-5345-6510-4",{"$f":"HYPERLINK(Table1[[#This Row],[eCommerce Hyperlink]],\"Book Weblink\")","v":"Book Weblink"},null,"Lucent Press","eBook",1,"2019","January 2019",null,null,"Author","Sophie Washburne",null,null,null,null,"Z",null,"Grade 7","Grade 7 - 10","Climate change and sustainability are important topics in the 21st century. Scientists have long warned that using fossil fuels to heat homes, power vehicles, and keep appliances running has negative effects on the environment, but there are many economic and social issues to consider when switching to alternative energy sources. Readers discover the debates surrounding various forms of alternative energy, the barriers that must be overcome in order to adopt them, and the benefits they can provide. Up-to-date statistics, annotated quotes from experts, full-color photographs, and informative sidebars help young adults form their own opinions about alternative energy sources.","English",40.4,32.32,"333.79/4--dc23","104 pp.","https://greenhavenpublishing.com/9781534565104",null,{"$f":"Table1[[#This Row],['# of Books]]*Table1[[#This Row],[QTY]]","v":0},{"$f":"Table1[[#This Row],[QTY]]*Table1[[#This Row],[School & Library Price]]","v":0}]
[null,null,20,null,null,"Current Issues","Hot Topics","Alternative Energy Sources: The End of Fossil Fuels?","978-1-5345-6508-1",{"$f":"HYPERLINK(Table1[[#This Row],[eCommerce Hyperlink]],\"Book Weblink\")","v":"Book Weblink"},null,"Lucent Press","Paperback Book",1,"2019","January 2019","Paperback","7.000 X 9.000","Author","Sophie Washburne",null,null,null,null,"Z",null,"Grade 7","Grade 7 - 10","Climate change and sustainability are important topics in the 21st century. Scientists have long warned that using fossil fuels to heat homes, power vehicles, and keep appliances running has negative effects on the environment, but there are many economic and social issues to consider when switching to alternative energy sources. Readers discover the debates surrounding various forms of alternative energy, the barriers that must be overcome in order to adopt them, and the benefits they can provide. Up-to-date statistics, annotated quotes from experts, full-color photographs, and informative sidebars help young adults form their own opinions about alternative energy sources.","English",20.99,17.850000000000001,"333.79/4--dc23","104 pp.","https://greenhavenpublishing.com/9781534565081",null,{"$f":"Table1[[#This Row],['# of Books]]*Table1[[#This Row],[QTY]]","v":0},{"$f":"Table1[[#This Row],[QTY]]*Table1[[#This Row],[School & Library Price]]","v":0}]
[null,null,20,null,null,"Current Issues","Hot Topics","Animal Rights: A Complex Debate","978-1-5345-6536-4",{"$f":"HYPERLINK(Table1[[#This Row],[eCommerce Hyperlink]],\"Book Weblink\")","v":"Book Weblink"},null,"Lucent Press","Library Bound Book",1,"2019","January 2019","Library","7.000 X 9.000","Author","Tyler Stevenson",null,null,null,null,"Z",null,"Grade 7","Grade 7 - 10","Animals have alternately been considered pests, food, workers, test subjects, and, as is becoming increasingly common, companions. This begs the question: What rights should animals have? Through engaging text featuring annotated quotes from experts, readers learn about the changing role of animals and the ensuing changing attitudes of people toward how animals should be treated. Detailed charts, engaging sidebars, and relevant statistics provide an in-depth education regarding the history and ramifications, both legal and societal, of animal rights. Readers are also encouraged to think critically to form an opinion on the actions and tactics of different animal rights organizations.","English",40.4,32.32,"179/.3--dc23","104 pp.","https://greenhavenpublishing.com/9781534565364",null,{"$f":"Table1[[#This Row],['# of Books]]*Table1[[#This Row],[QTY]]","v":0},{"$f":"Table1[[#This Row],[QTY]]*Table1[[#This Row],[School & Library Price]]","v":0}]
[null,null,20,null,null,"Current Issues","Hot Topics","Animal Rights: A Complex Debate","978-1-5345-6501-2",{"$f":"HYPERLINK(Table1[[#This Row],[eCommerce Hyperlink]],\"Book Weblink\")","v":"Book Weblink"},null,"Lucent Press","eBook",1,"2019","January 2019",null,null,"Author","Tyler Stevenson",null,null,null,null,"Z",null,"Grade 7","Grade 7 - 10","Animals have alternately been considered pests, food, workers, test subjects, and, as is becoming increasingly common, companions. This begs the question: What rights should animals have? Through engaging text featuring annotated quotes from experts, readers learn about the changing role of animals and the ensuing changing attitudes of people toward how animals should be treated. Detailed charts, engaging sidebars, and relevant statistics provide an in-depth education regarding the history and ramifications, both legal and societal, of animal rights. Readers are also encouraged to think critically to form an opinion on the actions and tactics of different animal rights organizations.","English",40.4,32.32,"179/.3--dc23","104 pp.","https://greenhavenpublishing.com/9781534565012",null,{"$f":"Table1[[#This Row],['# of Books]]*Table1[[#This Row],[QTY]]","v":0},{"$f":"Table1[[#This Row],[QTY]]*Table1[[#This Row],[School & Library Price]]","v":0}]
[null,null,20,null,null,"Current Issues","Hot Topics","Animal Rights: A Complex Debate","978-1-5345-6500-5",{"$f":"HYPERLINK(Table1[[#This Row],[eCommerce Hyperlink]],\"Book Weblink\")","v":"Book Weblink"},null,"Lucent Press","Paperback Book",1,"2019","January 2019","Paperback","7.000 X 9.000","Author","Tyler Stevenson",null,null,null,null,"Z",null,"Grade 7","Grade 7 - 10","Animals have alternately been considered pests, food, workers, test subjects, and, as is becoming increasingly common, companions. This begs the question: What rights should animals have? Through engaging text featuring annotated quotes from experts, readers learn about the changing role of animals and the ensuing changing attitudes of people toward how animals should be treated. Detailed charts, engaging sidebars, and relevant statistics provide an in-depth education regarding the history and ramifications, both legal and societal, of animal rights. Readers are also encouraged to think critically to form an opinion on the actions and tactics of different animal rights organizations.","English",20.99,17.850000000000001,"179/.3--dc23","104 pp.","https://greenhavenpublishing.com/9781534565005",null,{"$f":"Table1[[#This Row],['# of Books]]*Table1[[#This Row],[QTY]]","v":0},{"$f":"Table1[[#This Row],[QTY]]*Table1[[#This Row],[School & Library Price]]","v":0}]
[null,null,20,null,null,"Current Issues","Hot Topics","Free Speech in the Digital Age","978-1-5345-6506-7",{"$f":"HYPERLINK(Table1[[#This Row],[eCommerce Hyperlink]],\"Book Weblink\")","v":"Book Weblink"},null,"Lucent Press","Library Bound Book",1,"2019","January 2019","Library","7.000 X 9.000","Author","Michelle Denton",null,null,null,null,"Z",null,"Grade 7","Grade 7 - 10","The internet makes sharing ideas and communicating easy, and it connects individuals and communities like never before. However, with so much power available to the masses, should people be allowed to say whatever they want? Should there be consequences for spreading hate and harassing others online? This volume explores these and other important questions, with full-color photographs, annotated quotes from experts, and detailed sidebars providing a comprehensive review of the many points of view on these issues. Readers learn about free speech in an increasingly globalized and technologically advanced society, as well as their role in creating online culture.","English",40.4,32.32,"342.08/53--dc23","104 pp.","https://greenhavenpublishing.com/9781534565067",null,{"$f":"Table1[[#This Row],['# of Books]]*Table1[[#This Row],[QTY]]","v":0},{"$f":"Table1[[#This Row],[QTY]]*Table1[[#This Row],[School & Library Price]]","v":0}]
[null,null,20,null,null,"Current Issues","Hot Topics","Free Speech in the Digital Age","978-1-5345-6507-4",{"$f":"HYPERLINK(Table1[[#This Row],[eCommerce Hyperlink]],\"Book Weblink\")","v":"Book Weblink"},null,"Lucent Press","eBook",1,"2019","January 2019",null,null,"Author","Michelle Denton",null,null,null,null,"Z",null,"Grade 7","Grade 7 - 10","The internet makes sharing ideas and communicating easy, and it connects individuals and communities like never before. However, with so much power available to the masses, should people be allowed to say whatever they want? Should there be consequences for spreading hate and harassing others online? This volume explores these and other important questions, with full-color photographs, annotated quotes from experts, and detailed sidebars providing a comprehensive review of the many points of view on these issues. Readers learn about free speech in an increasingly globalized and technologically advanced society, as well as their role in creating online culture.","English",40.4,32.32,"342.08/53--dc23","104 pp.","https://greenhavenpublishing.com/9781534565074",null,{"$f":"Table1[[#This Row],['# of Books]]*Table1[[#This Row],[QTY]]","v":0},{"$f":"Table1[[#This Row],[QTY]]*Table1[[#This Row],[School & Library Price]]","v":0}]
[null,null,20,null,null,"Current Issues","Hot Topics","Free Speech in the Digital Age","978-1-5345-6505-0",{"$f":"HYPERLINK(Table1[[#This Row],[eCommerce Hyperlink]],\"Book Weblink\")","v":"Book Weblink"},null,"Lucent Press","Paperback Book",1,"2019","January 2019","Paperback","7.000 X 9.000","Author","Michelle Denton",null,null,null,null,"Z",null,"Grade 7","Grade 7 - 10","The internet makes sharing ideas and communicating easy, and it connects individuals and communities like never before. However, with so much power available to the masses, should people be allowed to say whatever they want? Should there be consequences for spreading hate and harassing others online? This volume explores these and other important questions, with full-color photographs, annotated quotes from experts, and detailed sidebars providing a comprehensive review of the many points of view on these issues. Readers learn about free speech in an increasingly globalized and technologically advanced society, as well as their role in creating online culture.","English",20.99,17.850000000000001,"342.08/53--dc23","104 pp.","https://greenhavenpublishing.com/9781534565050",null,{"$f":"Table1[[#This Row],['# of Books]]*Table1[[#This Row],[QTY]]","v":0},{"$f":"Table1[[#This Row],[QTY]]*Table1[[#This Row],[School & Library Price]]","v":0}]
[null,null,20,null,null,"Current Issues","Hot Topics","Genetic Engineering and Genetically Modified Organisms","978-1-5345-6503-6",{"$f":"HYPERLINK(Table1[[#This Row],[eCommerce Hyperlink]],\"Book Weblink\")","v":"Book Weblink"},null,"Lucent Press","Library Bound Book",1,"2019","January 2019","Library","7.000 X 9.000","Author","Michelle Denton",null,null,null,null,"Z","1280L","Grade 7","Grade 7 - 10","For years, scientists have been genetically modifying plants and animals to increase their potential as food, and the ethics of this have long been debated. Discussions about genetically modified organisms, GMOs, take place often on social media and in the news. Readers are prepared to take part in these discussions as they learn what genetic engineering is, how it is done, and what the future of GMOs looks like. They are also encouraged to think critically about the pros and cons of modifying genetics. Graphs, full-color photographs, sidebars, and annotated quotes from experts broaden readers' understanding of this controversial topic.","English",40.4,32.32,"576.5--dc23","104 pp.","https://greenhavenpublishing.com/9781534565036",null,{"$f":"Table1[[#This Row],['# of Books]]*Table1[[#This Row],[QTY]]","v":0},{"$f":"Table1[[#This Row],[QTY]]*Table1[[#This Row],[School & Library Price]]","v":0}]
[null,null,20,null,null,"Current Issues","Hot Topics","Genetic Engineering and Genetically Modified Organisms","978-1-5345-6504-3",{"$f":"HYPERLINK(Table1[[#This Row],[eCommerce Hyperlink]],\"Book Weblink\")","v":"Book Weblink"},null,"Lucent Press","eBook",1,"2019","January 2019",null,null,"Author","Michelle Denton",null,null,null,null,"Z","1280L","Grade 7","Grade 7 - 10","For years, scientists have been genetically modifying plants and animals to increase their potential as food, and the ethics of this have long been debated. Discussions about genetically modified organisms, GMOs, take place often on social media and in the news. Readers are prepared to take part in these discussions as they learn what genetic engineering is, how it is done, and what the future of GMOs looks like. They are also encouraged to think critically about the pros and cons of modifying genetics. Graphs, full-color photographs, sidebars, and annotated quotes from experts broaden readers' understanding of this controversial topic.","English",40.4,32.32,"576.5--dc23","104 pp.","https://greenhavenpublishing.com/9781534565043",null,{"$f":"Table1[[#This Row],['# of Books]]*Table1[[#This Row],[QTY]]","v":0},{"$f":"Table1[[#This Row],[QTY]]*Table1[[#This Row],[School & Library Price]]","v":0}]
[null,null,20,null,null,"Current Issues","Hot Topics","Genetic Engineering and Genetically Modified Organisms","978-1-5345-6502-9",{"$f":"HYPERLINK(Table1[[#This Row],[eCommerce Hyperlink]],\"Book Weblink\")","v":"Book Weblink"},null,"Lucent Press","Paperback Book",1,"2019","January 2019","Paperback","7.000 X 9.000","Author","Michelle Denton",null,null,null,null,"Z","1280L","Grade 7","Grade 7 - 10","For years, scientists have been genetically modifying plants and animals to increase their potential as food, and the ethics of this have long been debated. Discussions about genetically modified organisms, GMOs, take place often on social media and in the news. Readers are prepared to take part in these discussions as they learn what genetic engineering is, how it is done, and what the future of GMOs looks like. They are also encouraged to think critically about the pros and cons of modifying genetics. Graphs, full-color photographs, sidebars, and annotated quotes from experts broaden readers' understanding of this controversial topic.","English",20.99,17.850000000000001,"576.5--dc23","104 pp.","https://greenhavenpublishing.com/9781534565029",null,{"$f":"Table1[[#This Row],['# of Books]]*Table1[[#This Row],[QTY]]","v":0},{"$f":"Table1[[#This Row],[QTY]]*Table1[[#This Row],[School & Library Price]]","v":0}]
[null,null,20,null,null,"Current Issues","Hot Topics","Teens and Alcohol: A Dangerous Combination","978-1-5345-6498-5",{"$f":"HYPERLINK(Table1[[#This Row],[eCommerce Hyperlink]],\"Book Weblink\")","v":"Book Weblink"},null,"Lucent Press","Library Bound Book",1,"2019","January 2019","Library","7.000 X 9.000","Author","Allison Krumsiek",null,null,null,null,"Z",null,"Grade 7","Grade 7 - 10","Although alcohol is a popular substance in the United States, its use can have dangerous consequences, especially for young adults. Underage drinking has been declining in recent years, but it remains a serious problem that needs to be addressed. Readers explore the main issues that surround American youth and alcohol, from the legal fights over the drinking age to the binge drinking epidemic. Detailed main text and sidebars, annotated quotes from experts, and informative graphics help readers understand the consequences of alcohol abuse and the many points of view people have about young adults and alcohol.","English",40.4,32.32,"362.2920835--dc23","104 pp.","https://greenhavenpublishing.com/9781534564985",null,{"$f":"Table1[[#This Row],['# of Books]]*Table1[[#This Row],[QTY]]","v":0},{"$f":"Table1[[#This Row],[QTY]]*Table1[[#This Row],[School & Library Price]]","v":0}]
[null,null,20,null,null,"Current Issues","Hot Topics","Teens and Alcohol: A Dangerous Combination","978-1-5345-6499-2",{"$f":"HYPERLINK(Table1[[#This Row],[eCommerce Hyperlink]],\"Book Weblink\")","v":"Book Weblink"},null,"Lucent Press","eBook",1,"2019","January 2019",null,null,"Author","Allison Krumsiek",null,null,null,null,"Z",null,"Grade 7","Grade 7 - 10","Although alcohol is a popular substance in the United States, its use can have dangerous consequences, especially for young adults. Underage drinking has been declining in recent years, but it remains a serious problem that needs to be addressed. Readers explore the main issues that surround American youth and alcohol, from the legal fights over the drinking age to the binge drinking epidemic. Detailed main text and sidebars, annotated quotes from experts, and informative graphics help readers understand the consequences of alcohol abuse and the many points of view people have about young adults and alcohol.","English",40.4,32.32,"362.2920835--dc23","104 pp.","https://greenhavenpublishing.com/9781534564992",null,{"$f":"Table1[[#This Row],['# of Books]]*Table1[[#This Row],[QTY]]","v":0},{"$f":"Table1[[#This Row],[QTY]]*Table1[[#This Row],[School & Library Price]]","v":0}]
[null,null,20,null,null,"Current Issues","Hot Topics","Teens and Alcohol: A Dangerous Combination","978-1-5345-6497-8",{"$f":"HYPERLINK(Table1[[#This Row],[eCommerce Hyperlink]],\"Book Weblink\")","v":"Book Weblink"},null,"Lucent Press","Paperback Book",1,"2019","January 2019","Paperback","7.000 X 9.000","Author","Allison Krumsiek",null,null,null,null,"Z",null,"Grade 7","Grade 7 - 10","Although alcohol is a popular substance in the United States, its use can have dangerous consequences, especially for young adults. Underage drinking has been declining in recent years, but it remains a serious problem that needs to be addressed. Readers explore the main issues that surround American youth and alcohol, from the legal fights over the drinking age to the binge drinking epidemic. Detailed main text and sidebars, annotated quotes from experts, and informative graphics help readers understand the consequences of alcohol abuse and the many points of view people have about young adults and alcohol.","English",20.99,17.850000000000001,"362.2920835--dc23","104 pp.","https://greenhavenpublishing.com/9781534564978",null,{"$f":"Table1[[#This Row],['# of Books]]*Table1[[#This Row],[QTY]]","v":0},{"$f":"Table1[[#This Row],[QTY]]*Table1[[#This Row],[School & Library Price]]","v":0}]
[null,null,20,null,null,"Current Issues","Hot Topics","Hot Topics: Set 6","978-1-5345-6702-3",{"$f":"HYPERLINK(Table1[[#This Row],[eCommerce Hyperlink]],\"Book Weblink\")","v":"Book Weblink"},null,"Lucent Press","Library Set",6,"2020","August 2019","Library","7.000 X 9.000",null,null,null,null,null,null,null,null,"Grade 7","Grade 7 - 10","In the 21st century, it seems as if there is much to fear. Topics such as gang violence, terrorism, and the spread of deadly diseases are frequently on people's minds. News sources and social media tend to sensationalize these topics, obscuring facts and causing greater anxiety. As readers discover the truth about these issues and learn what measures can be taken to solve them, they discover that knowledge is powerful in the face of frightening or controversial topics. Engaging sidebars and detailed charts and graphs are presented alongside the well-researched main text to provide accurate information about current events. Features include: Discussion questions that encourage readers to form their own opinions. Annotated quotes from experts and eye-catching quote boxes that provide a first-person perspective and highlight avenues for further research. Lists of organizations to contact for more information provide essential resources for readers looking to become more involved in activism.","English",242.4,193.92,null,"104 pp.","https://greenhavenpublishing.com/9781534567023",null,{"$f":"Table1[[#This Row],['# of Books]]*Table1[[#This Row],[QTY]]","v":0},{"$f":"Table1[[#This Row],[QTY]]*Table1[[#This Row],[School & Library Price]]","v":0}]
[null,null,20,null,null,"Current Issues","Hot Topics","Hot Topics (Fall 2019)","978-1-5345-6805-1",{"$f":"HYPERLINK(Table1[[#This Row],[eCommerce Hyperlink]],\"Book Weblink\")","v":"Book Weblink"},null,"Lucent Press","Single Copy Set",6,"2020","August 2019","Paperback","7.000 X 9.000",null,null,null,null,null,null,null,null,"Grade 7","Grade 7 - 10","In the 21st century, it seems as if there is much to fear. Topics such as gang violence, terrorism, and the spread of deadly diseases are frequently on people's minds. News sources and social media tend to sensationalize these topics, obscuring facts and causing greater anxiety. As readers discover the truth about these issues and learn what measures can be taken to solve them, they discover that knowledge is powerful in the face of frightening or controversial topics. Engaging sidebars and detailed charts and graphs are presented alongside the well-researched main text to provide accurate information about current events. Features include: Discussion questions that encourage readers to form their own opinions. Annotated quotes from experts and eye-catching quote boxes that provide a first-person perspective and highlight avenues for further research. Lists of organizations to contact for more information provide essential resources for readers looking to become more involved in activism.","English",125.94,107.1,null,"104 pp.","https://greenhavenpublishing.com/9781534568051",null,{"$f":"Table1[[#This Row],['# of Books]]*Table1[[#This Row],[QTY]]","v":0},{"$f":"Table1[[#This Row],[QTY]]*Table1[[#This Row],[School & Library Price]]","v":0}]
[null,null,20,null,null,"Current Issues","Hot Topics","Gangs: From the Streets to Social Media","978-1-5345-6697-2",{"$f":"HYPERLINK(Table1[[#This Row],[eCommerce Hyperlink]],\"Book Weblink\")","v":"Book Weblink"},null,"Lucent Press","Library Bound Book",1,"2020","August 2019","Library","7.000 X 9.000","Author","Anna Collins",null,null,null,null,"Z",null,"Grade 7","Grade 7 - 10","Gangs have both worried and fascinated Americans for many years, but gangs are not a uniquely American problem; they can be found all over the world, from Sweden to Japan. Most of what people learn about gangs through movies and television does not reflect the reality researchers have discovered through firsthand studies of gang life. The detailed main text, informative charts, annotated quotes from experts, and full-color photographs explore this reality and various social factors that allow gangs to arise. With this knowledge, young adults can identify areas where they can make a difference in their own communities.","English",40.4,32.32,"364.106'60973--dc23","104 pp.","https://greenhavenpublishing.com/9781534566972",null,{"$f":"Table1[[#This Row],['# of Books]]*Table1[[#This Row],[QTY]]","v":0},{"$f":"Table1[[#This Row],[QTY]]*Table1[[#This Row],[School & Library Price]]","v":0}]
[null,null,20,null,null,"Current Issues","Hot Topics","Gangs: From the Streets to Social Media","978-1-5345-6756-6",{"$f":"HYPERLINK(Table1[[#This Row],[eCommerce Hyperlink]],\"Book Weblink\")","v":"Book Weblink"},null,"Lucent Press","eBook",1,"2020","August 2019",null,null,"Author","Anna Collins",null,null,null,null,"Z",null,"Grade 7","Grade 7 - 10","Gangs have both worried and fascinated Americans for many years, but gangs are not a uniquely American problem; they can be found all over the world, from Sweden to Japan. Most of what people learn about gangs through movies and television does not reflect the reality researchers have discovered through firsthand studies of gang life. The detailed main text, informative charts, annotated quotes from experts, and full-color photographs explore this reality and various social factors that allow gangs to arise. With this knowledge, young adults can identify areas where they can make a difference in their own communities.","English",40.4,32.32,"364.106'60973--dc23","104 pp.","https://greenhavenpublishing.com/9781534567566",null,{"$f":"Table1[[#This Row],['# of Books]]*Table1[[#This Row],[QTY]]","v":0},{"$f":"Table1[[#This Row],[QTY]]*Table1[[#This Row],[School & Library Price]]","v":0}]
[null,null,20,null,null,"Current Issues","Hot Topics","Gangs: From the Streets to Social Media","978-1-5345-6755-9",{"$f":"HYPERLINK(Table1[[#This Row],[eCommerce Hyperlink]],\"Book Weblink\")","v":"Book Weblink"},null,"Lucent Press","Paperback Book",1,"2020","August 2019","Paperback","7.000 X 9.000","Author","Anna Collins",null,null,null,null,"Z",null,"Grade 7","Grade 7 - 10","Gangs have both worried and fascinated Americans for many years, but gangs are not a uniquely American problem; they can be found all over the world, from Sweden to Japan. Most of what people learn about gangs through movies and television does not reflect the reality researchers have discovered through firsthand studies of gang life. The detailed main text, informative charts, annotated quotes from experts, and full-color photographs explore this reality and various social factors that allow gangs to arise. With this knowledge, young adults can identify areas where they can make a difference in their own communities.","English",20.99,17.850000000000001,"364.106'60973--dc23","104 pp.","https://greenhavenpublishing.com/9781534567559",null,{"$f":"Table1[[#This Row],['# of Books]]*Table1[[#This Row],[QTY]]","v":0},{"$f":"Table1[[#This Row],[QTY]]*Table1[[#This Row],[School & Library Price]]","v":0}]
[null,null,20,null,null,"Current Issues","Hot Topics","Pandemics: Deadly Disease Outbreaks","978-1-5345-6698-9",{"$f":"HYPERLINK(Table1[[#This Row],[eCommerce Hyperlink]],\"Book Weblink\")","v":"Book Weblink"},null,"Lucent Press","Library Bound Book",1,"2020","August 2019","Library","7.000 X 9.000","Author","Michelle Denton",null,null,null,null,"Z",null,"Grade 7","Grade 7 - 10","As the world becomes more connected, the threat of pandemics becomes more serious, and being informed about fast-spreading illnesses is more important now than ever before. Readers explore global diseases of the past and present, how modern outbreaks are controlled and treated, and how doctors and scientists are working to prevent pandemics in the future. In-depth sidebars, full-color photographs, annotated quotes from medical experts, and discussion questions highlight important topics and encourage readers to expand their critical thinking skills as they learn about public health policy and the social impacts of infectious diseases.","English",40.4,32.32,"614.4--dc23","104 pp.","https://greenhavenpublishing.com/9781534566989",null,{"$f":"Table1[[#This Row],['# of Books]]*Table1[[#This Row],[QTY]]","v":0},{"$f":"Table1[[#This Row],[QTY]]*Table1[[#This Row],[School & Library Price]]","v":0}]
[null,null,20,null,null,"Current Issues","Hot Topics","Pandemics: Deadly Disease Outbreaks","978-1-5345-6760-3",{"$f":"HYPERLINK(Table1[[#This Row],[eCommerce Hyperlink]],\"Book Weblink\")","v":"Book Weblink"},null,"Lucent Press","eBook",1,"2020","August 2019",null,null,"Author","Michelle Denton",null,null,null,null,"Z",null,"Grade 7","Grade 7 - 10","As the world becomes more connected, the threat of pandemics becomes more serious, and being informed about fast-spreading illnesses is more important now than ever before. Readers explore global diseases of the past and present, how modern outbreaks are controlled and treated, and how doctors and scientists are working to prevent pandemics in the future. In-depth sidebars, full-color photographs, annotated quotes from medical experts, and discussion questions highlight important topics and encourage readers to expand their critical thinking skills as they learn about public health policy and the social impacts of infectious diseases.","English",40.4,32.32,"614.4--dc23","104 pp.","https://greenhavenpublishing.com/9781534567603",null,{"$f":"Table1[[#This Row],['# of Books]]*Table1[[#This Row],[QTY]]","v":0},{"$f":"Table1[[#This Row],[QTY]]*Table1[[#This Row],[School & Library Price]]","v":0}]
[null,null,20,null,null,"Current Issues","Hot Topics","Pandemics: Deadly Disease Outbreaks","978-1-5345-6759-7",{"$f":"HYPERLINK(Table1[[#This Row],[eCommerce Hyperlink]],\"Book Weblink\")","v":"Book Weblink"},null,"Lucent Press","Paperback Book",1,"2020","August 2019","Paperback","7.000 X 9.000","Author","Michelle Denton",null,null,null,null,"Z",null,"Grade 7","Grade 7 - 10","As the world becomes more connected, the threat of pandemics becomes more serious, and being informed about fast-spreading illnesses is more important now than ever before. Readers explore global diseases of the past and present, how modern outbreaks are controlled and treated, and how doctors and scientists are working to prevent pandemics in the future. In-depth sidebars, full-color photographs, annotated quotes from medical experts, and discussion questions highlight important topics and encourage readers to expand their critical thinking skills as they learn about public health policy and the social impacts of infectious diseases.","English",20.99,17.850000000000001,"614.4--dc23","104 pp.","https://greenhavenpublishing.com/9781534567597",null,{"$f":"Table1[[#This Row],['# of Books]]*Table1[[#This Row],[QTY]]","v":0},{"$f":"Table1[[#This Row],[QTY]]*Table1[[#This Row],[School & Library Price]]","v":0}]
[null,null,20,null,null,"Current Issues","Hot Topics","Reality Television: Guilty Pleasure or Positive Influence?","978-1-5345-6700-9",{"$f":"HYPERLINK(Table1[[#This Row],[eCommerce Hyperlink]],\"Book Weblink\")","v":"Book Weblink"},null,"Lucent Press","Library Bound Book",1,"2020","August 2019","Library","7.000 X 9.000","Author","Tyler Stevenson",null,null,null,null,"Z",null,"Grade 7","Grade 7 - 10","Reality television grew to massive popularity in the early 2000s, as the medium exploded into what it is today. It seems as if every channel now has multiple reality programs, broadcasting for hours each day. Readers discover the roots of this genre and the controversies surrounding it. Presented alongside the main text are detailed charts and in-depth sidebars to educate readers about one of the most popular genres in television. The question of whether reality television can ever be more than just a guilty pleasure is also addressed, and readers are prompted through discussion questions to form intelligent opinions about it.","English",40.4,32.32,"791.456--dc23","104 pp.","https://greenhavenpublishing.com/9781534567009",null,{"$f":"Table1[[#This Row],['# of Books]]*Table1[[#This Row],[QTY]]","v":0},{"$f":"Table1[[#This Row],[QTY]]*Table1[[#This Row],[School & Library Price]]","v":0}]
[null,null,20,null,null,"Current Issues","Hot Topics","Reality Television: Guilty Pleasure or Positive Influence?","978-1-5345-6764-1",{"$f":"HYPERLINK(Table1[[#This Row],[eCommerce Hyperlink]],\"Book Weblink\")","v":"Book Weblink"},null,"Lucent Press","eBook",1,"2020","August 2019",null,null,"Author","Tyler Stevenson",null,null,null,null,"Z",null,"Grade 7","Grade 7 - 10","Reality television grew to massive popularity in the early 2000s, as the medium exploded into what it is today. It seems as if every channel now has multiple reality programs, broadcasting for hours each day. Readers discover the roots of this genre and the controversies surrounding it. Presented alongside the main text are detailed charts and in-depth sidebars to educate readers about one of the most popular genres in television. The question of whether reality television can ever be more than just a guilty pleasure is also addressed, and readers are prompted through discussion questions to form intelligent opinions about it.","English",40.4,32.32,"791.456--dc23","104 pp.","https://greenhavenpublishing.com/9781534567641",null,{"$f":"Table1[[#This Row],['# of Books]]*Table1[[#This Row],[QTY]]","v":0},{"$f":"Table1[[#This Row],[QTY]]*Table1[[#This Row],[School & Library Price]]","v":0}]
[null,null,20,null,null,"Current Issues","Hot Topics","Reality Television: Guilty Pleasure or Positive Influence?","978-1-5345-6763-4",{"$f":"HYPERLINK(Table1[[#This Row],[eCommerce Hyperlink]],\"Book Weblink\")","v":"Book Weblink"},null,"Lucent Press","Paperback Book",1,"2020","August 2019","Paperback","7.000 X 9.000","Author","Tyler Stevenson",null,null,null,null,"Z",null,"Grade 7","Grade 7 - 10","Reality television grew to massive popularity in the early 2000s, as the medium exploded into what it is today. It seems as if every channel now has multiple reality programs, broadcasting for hours each day. Readers discover the roots of this genre and the controversies surrounding it. Presented alongside the main text are detailed charts and in-depth sidebars to educate readers about one of the most popular genres in television. The question of whether reality television can ever be more than just a guilty pleasure is also addressed, and readers are prompted through discussion questions to form intelligent opinions about it.","English",20.99,17.850000000000001,"791.456--dc23","104 pp.","https://greenhavenpublishing.com/9781534567634",null,{"$f":"Table1[[#This Row],['# of Books]]*Table1[[#This Row],[QTY]]","v":0},{"$f":"Table1[[#This Row],[QTY]]*Table1[[#This Row],[School & Library Price]]","v":0}]
[null,null,20,null,null,"Current Issues","Hot Topics","The Dangers of Digital Addiction","978-1-5345-6701-6",{"$f":"HYPERLINK(Table1[[#This Row],[eCommerce Hyperlink]],\"Book Weblink\")","v":"Book Weblink"},null,"Lucent Press","Library Bound Book",1,"2020","August 2019","Library","7.000 X 9.000","Author","Amanda Vink",null,null,null,null,"Z",null,"Grade 7","Grade 7 - 10","Technology has done a lot of good, connecting individuals and ideas. However, technological devices and social media platforms also have the potential to be harmful when they are not used in moderation. When the use of personal digital devices starts interfering with a person's daily life, it becomes a problem. Readers explore the ways in which some people can develop addictive digital habits and whether or not technology hinders their ability to live a healthy lifestyle. Additional information is presented through charts, sidebars, and annotated quotes, and discussion questions prompt readers to consider their own digital behaviors.","English",40.4,32.32,"616.85/84--dc23","104 pp.","https://greenhavenpublishing.com/9781534567016",null,{"$f":"Table1[[#This Row],['# of Books]]*Table1[[#This Row],[QTY]]","v":0},{"$f":"Table1[[#This Row],[QTY]]*Table1[[#This Row],[School & Library Price]]","v":0}]
[null,null,20,null,null,"Current Issues","Hot Topics","The Dangers of Digital Addiction","978-1-5345-6766-5",{"$f":"HYPERLINK(Table1[[#This Row],[eCommerce Hyperlink]],\"Book Weblink\")","v":"Book Weblink"},null,"Lucent Press","eBook",1,"2020","August 2019",null,null,"Author","Amanda Vink",null,null,null,null,"Z",null,"Grade 7","Grade 7 - 10","Technology has done a lot of good, connecting individuals and ideas. However, technological devices and social media platforms also have the potential to be harmful when they are not used in moderation. When the use of personal digital devices starts interfering with a person's daily life, it becomes a problem. Readers explore the ways in which some people can develop addictive digital habits and whether or not technology hinders their ability to live a healthy lifestyle. Additional information is presented through charts, sidebars, and annotated quotes, and discussion questions prompt readers to consider their own digital behaviors.","English",40.4,32.32,"616.85/84--dc23","104 pp.","https://greenhavenpublishing.com/9781534567665",null,{"$f":"Table1[[#This Row],['# of Books]]*Table1[[#This Row],[QTY]]","v":0},{"$f":"Table1[[#This Row],[QTY]]*Table1[[#This Row],[School & Library Price]]","v":0}]
[null,null,20,null,null,"Current Issues","Hot Topics","The Dangers of Digital Addiction","978-1-5345-6765-8",{"$f":"HYPERLINK(Table1[[#This Row],[eCommerce Hyperlink]],\"Book Weblink\")","v":"Book Weblink"},null,"Lucent Press","Paperback Book",1,"2020","August 2019","Paperback","7.000 X 9.000","Author","Amanda Vink",null,null,null,null,"Z",null,"Grade 7","Grade 7 - 10","Technology has done a lot of good, connecting individuals and ideas. However, technological devices and social media platforms also have the potential to be harmful when they are not used in moderation. When the use of personal digital devices starts interfering with a person's daily life, it becomes a problem. Readers explore the ways in which some people can develop addictive digital habits and whether or not technology hinders their ability to live a healthy lifestyle. Additional information is presented through charts, sidebars, and annotated quotes, and discussion questions prompt readers to consider their own digital behaviors.","English",20.99,17.850000000000001,"616.85/84--dc23","104 pp.","https://greenhavenpublishing.com/9781534567658",null,{"$f":"Table1[[#This Row],['# of Books]]*Table1[[#This Row],[QTY]]","v":0},{"$f":"Table1[[#This Row],[QTY]]*Table1[[#This Row],[School & Library Price]]","v":0}]
[null,null,20,null,null,"Current Issues","Hot Topics","The Global Threat of Terrorism","978-1-5345-6696-5",{"$f":"HYPERLINK(Table1[[#This Row],[eCommerce Hyperlink]],\"Book Weblink\")","v":"Book Weblink"},null,"Lucent Press","Library Bound Book",1,"2020","August 2019","Library","7.000 X 9.000","Author","Jason Brainard",null,null,null,null,"Z",null,"Grade 7","Grade 7 - 10","The international war on terror has been the focus of news reports for decades, but the information presented by the media can be confusing to people with little background on the subject. Readers explore the history of modern terrorism, various definitions of what constitutes terrorism, and key acts of political violence by both foreign and domestic terrorists. Detailed charts, quotes from experts in the study of terrorism, and in-depth sidebars help readers understand this complex issue and form their own opinions of how it can best be addressed, which they can share by answering thought-provoking discussion questions on this topic.","English",40.4,32.32,"363.325--dc23","104 pp.","https://greenhavenpublishing.com/9781534566965",null,{"$f":"Table1[[#This Row],['# of Books]]*Table1[[#This Row],[QTY]]","v":0},{"$f":"Table1[[#This Row],[QTY]]*Table1[[#This Row],[School & Library Price]]","v":0}]
[null,null,20,null,null,"Current Issues","Hot Topics","The Global Threat of Terrorism","978-1-5345-6758-0",{"$f":"HYPERLINK(Table1[[#This Row],[eCommerce Hyperlink]],\"Book Weblink\")","v":"Book Weblink"},null,"Lucent Press","eBook",1,"2020","August 2019",null,null,"Author","Jason Brainard",null,null,null,null,"Z",null,"Grade 7","Grade 7 - 10","The international war on terror has been the focus of news reports for decades, but the information presented by the media can be confusing to people with little background on the subject. Readers explore the history of modern terrorism, various definitions of what constitutes terrorism, and key acts of political violence by both foreign and domestic terrorists. Detailed charts, quotes from experts in the study of terrorism, and in-depth sidebars help readers understand this complex issue and form their own opinions of how it can best be addressed, which they can share by answering thought-provoking discussion questions on this topic.","English",40.4,32.32,"363.325--dc23","104 pp.","https://greenhavenpublishing.com/9781534567580",null,{"$f":"Table1[[#This Row],['# of Books]]*Table1[[#This Row],[QTY]]","v":0},{"$f":"Table1[[#This Row],[QTY]]*Table1[[#This Row],[School & Library Price]]","v":0}]
[null,null,20,null,null,"Current Issues","Hot Topics","The Global Threat of Terrorism","978-1-5345-6757-3",{"$f":"HYPERLINK(Table1[[#This Row],[eCommerce Hyperlink]],\"Book Weblink\")","v":"Book Weblink"},null,"Lucent Press","Paperback Book",1,"2020","August 2019","Paperback","7.000 X 9.000","Author","Jason Brainard",null,null,null,null,"Z",null,"Grade 7","Grade 7 - 10","The international war on terror has been the focus of news reports for decades, but the information presented by the media can be confusing to people with little background on the subject. Readers explore the history of modern terrorism, various definitions of what constitutes terrorism, and key acts of political violence by both foreign and domestic terrorists. Detailed charts, quotes from experts in the study of terrorism, and in-depth sidebars help readers understand this complex issue and form their own opinions of how it can best be addressed, which they can share by answering thought-provoking discussion questions on this topic.","English",20.99,17.850000000000001,"363.325--dc23","104 pp.","https://greenhavenpublishing.com/9781534567573",null,{"$f":"Table1[[#This Row],['# of Books]]*Table1[[#This Row],[QTY]]","v":0},{"$f":"Table1[[#This Row],[QTY]]*Table1[[#This Row],[School & Library Price]]","v":0}]
[null,null,20,null,null,"Current Issues","Hot Topics","The Gun Control Debate: From Classrooms to Congress","978-1-5345-6699-6",{"$f":"HYPERLINK(Table1[[#This Row],[eCommerce Hyperlink]],\"Book Weblink\")","v":"Book Weblink"},null,"Lucent Press","Library Bound Book",1,"2020","August 2019","Library","7.000 X 9.000","Author","Lianna Tatman",null,null,null,null,"Z",null,"Grade 7","Grade 7 - 10","The recent sharp rise in school shootings in the United States has kept the gun control debate going. However, for many people, it is an emotional topic, making much of the information that people hear in the media or from friends and family members biased in one way or another. Understanding the history of gun laws in America and the realities of both sides of the issue is pivotal. Up-to-date statistics, annotated quotes from experts, and real-world examples contextualize the arguments surrounding this complex issue. This knowledge allows young adults to become informed participants in the gun control debate.","English",40.4,32.32,"363.330973--dc23","104 pp.","https://greenhavenpublishing.com/9781534566996",null,{"$f":"Table1[[#This Row],['# of Books]]*Table1[[#This Row],[QTY]]","v":0},{"$f":"Table1[[#This Row],[QTY]]*Table1[[#This Row],[School & Library Price]]","v":0}]
[null,null,20,null,null,"Current Issues","Hot Topics","The Gun Control Debate: From Classrooms to Congress","978-1-5345-6762-7",{"$f":"HYPERLINK(Table1[[#This Row],[eCommerce Hyperlink]],\"Book Weblink\")","v":"Book Weblink"},null,"Lucent Press","eBook",1,"2020","August 2019",null,null,"Author","Lianna Tatman",null,null,null,null,"Z",null,"Grade 7","Grade 7 - 10","The recent sharp rise in school shootings in the United States has kept the gun control debate going. However, for many people, it is an emotional topic, making much of the information that people hear in the media or from friends and family members biased in one way or another. Understanding the history of gun laws in America and the realities of both sides of the issue is pivotal. Up-to-date statistics, annotated quotes from experts, and real-world examples contextualize the arguments surrounding this complex issue. This knowledge allows young adults to become informed participants in the gun control debate.","English",40.4,32.32,"363.330973--dc23","104 pp.","https://greenhavenpublishing.com/9781534567627",null,{"$f":"Table1[[#This Row],['# of Books]]*Table1[[#This Row],[QTY]]","v":0},{"$f":"Table1[[#This Row],[QTY]]*Table1[[#This Row],[School & Library Price]]","v":0}]
[null,null,20,null,null,"Current Issues","Hot Topics","The Gun Control Debate: From Classrooms to Congress","978-1-5345-6761-0",{"$f":"HYPERLINK(Table1[[#This Row],[eCommerce Hyperlink]],\"Book Weblink\")","v":"Book Weblink"},null,"Lucent Press","Paperback Book",1,"2020","August 2019","Paperback","7.000 X 9.000","Author","Lianna Tatman",null,null,null,null,"Z",null,"Grade 7","Grade 7 - 10","The recent sharp rise in school shootings in the United States has kept the gun control debate going. However, for many people, it is an emotional topic, making much of the information that people hear in the media or from friends and family members biased in one way or another. Understanding the history of gun laws in America and the realities of both sides of the issue is pivotal. Up-to-date statistics, annotated quotes from experts, and real-world examples contextualize the arguments surrounding this complex issue. This knowledge allows young adults to become informed participants in the gun control debate.","English",20.99,17.850000000000001,"363.330973--dc23","104 pp.","https://greenhavenpublishing.com/9781534567610",null,{"$f":"Table1[[#This Row],['# of Books]]*Table1[[#This Row],[QTY]]","v":0},{"$f":"Table1[[#This Row],[QTY]]*Table1[[#This Row],[School & Library Price]]","v":0}]
[null,null,20,null,null,"Current Issues","Hot Topics","Hot Topics: Set 7","978-1-5345-6857-0",{"$f":"HYPERLINK(Table1[[#This Row],[eCommerce Hyperlink]],\"Book Weblink\")","v":"Book Weblink"},null,"Lucent Press","Library Set",4,"2020","January 2020","Library","7.000 X 9.000",null,null,null,null,null,null,null,null,"Grade 7","Grade 7 - 10","In recent years, young adults have become increasingly active in politics and the fight for social justice, which makes it all the more critical to give them factual information about today's important issues. Having a thorough understanding of topics such as sustainable living, student rights, and violence in sports is the first step toward becoming an informed and active citizen. This engaging overview of current events helps readers develop that understanding through informative narratives that feature annotated quotes from experts. Graphs and charts give readers the most up-to-date data, and full-color photographs show the reality of each issue. Features include: Discussion questions facilitate respectful debates and allow readers to develop their own informed point of view. Carefully chosen sidebars present a more in-depth look at various aspects of each topic. Unbiased narratives present all sides of controversial debates, helping readers learn to understand and respect different points of view.","English",161.6,129.28,null,"104 pp.","https://greenhavenpublishing.com/9781534568570",null,{"$f":"Table1[[#This Row],['# of Books]]*Table1[[#This Row],[QTY]]","v":0},{"$f":"Table1[[#This Row],[QTY]]*Table1[[#This Row],[School & Library Price]]","v":0}]
[null,null,20,null,null,"Current Issues","Hot Topics","Hot Topics (Spring 2020)","978-1-5345-6890-7",{"$f":"HYPERLINK(Table1[[#This Row],[eCommerce Hyperlink]],\"Book Weblink\")","v":"Book Weblink"},null,"Lucent Press","Single Copy Set",4,"2020","January 2020","Paperback","7.000 X 9.000",null,null,null,null,null,null,null,null,"Grade 7","Grade 7 - 10","In recent years, young adults have become increasingly active in politics and the fight for social justice, which makes it all the more critical to give them factual information about today's important issues. Having a thorough understanding of topics such as sustainable living, student rights, and violence in sports is the first step toward becoming an informed and active citizen. This engaging overview of current events helps readers develop that understanding through informative narratives that feature annotated quotes from experts. Graphs and charts give readers the most up-to-date data, and full-color photographs show the reality of each issue. Features include: Discussion questions facilitate respectful debates and allow readers to develop their own informed point of view. Carefully chosen sidebars present a more in-depth look at various aspects of each topic. Unbiased narratives present all sides of controversial debates, helping readers learn to understand and respect different points of view.","English",83.96,71.400000000000006,null,"104 pp.","https://greenhavenpublishing.com/9781534568907",null,{"$f":"Table1[[#This Row],['# of Books]]*Table1[[#This Row],[QTY]]","v":0},{"$f":"Table1[[#This Row],[QTY]]*Table1[[#This Row],[School & Library Price]]","v":0}]
[null,null,20,null,null,"Current Issues","Hot Topics","Student Rights in a New Age of Activism","978-1-5345-6817-4",{"$f":"HYPERLINK(Table1[[#This Row],[eCommerce Hyperlink]],\"Book Weblink\")","v":"Book Weblink"},null,"Lucent Press","Library Bound Book",1,"2020","January 2020","Library","7.000 X 9.000","Author","Anna Collins",null,null,null,null,"Z",null,"Grade 7","Grade 7 - 10","In the United States, the rights of people under the age of 18 are a hotly debated and frequently misunderstood topic. Certain rights are protected for students by the U.S. Constitution, but many people are unsure of what those rights are. Some people even believe student rights do not exist. Up-to-date statistics, engaging sidebars, and informative charts supplement this illuminating text, explaining exactly what rights students have and what recourse they have if those rights are violated. Annotated quotes from legal experts and activists provide additional information about the connection between student rights and student activism.","English",40.4,32.32,"344.73'0793--dc23","104 pp.","https://greenhavenpublishing.com/9781534568174",null,{"$f":"Table1[[#This Row],['# of Books]]*Table1[[#This Row],[QTY]]","v":0},{"$f":"Table1[[#This Row],[QTY]]*Table1[[#This Row],[School & Library Price]]","v":0}]
[null,null,20,null,null,"Current Issues","Hot Topics","Student Rights in a New Age of Activism","978-1-5345-6818-1",{"$f":"HYPERLINK(Table1[[#This Row],[eCommerce Hyperlink]],\"Book Weblink\")","v":"Book Weblink"},null,"Lucent Press","eBook",1,"2020","January 2020",null,null,"Author","Anna Collins",null,null,null,null,"Z",null,"Grade 7","Grade 7 - 10","In the United States, the rights of people under the age of 18 are a hotly debated and frequently misunderstood topic. Certain rights are protected for students by the U.S. Constitution, but many people are unsure of what those rights are. Some people even believe student rights do not exist. Up-to-date statistics, engaging sidebars, and informative charts supplement this illuminating text, explaining exactly what rights students have and what recourse they have if those rights are violated. Annotated quotes from legal experts and activists provide additional information about the connection between student rights and student activism.","English",40.4,32.32,"344.73'0793--dc23","104 pp.","https://greenhavenpublishing.com/9781534568181",null,{"$f":"Table1[[#This Row],['# of Books]]*Table1[[#This Row],[QTY]]","v":0},{"$f":"Table1[[#This Row],[QTY]]*Table1[[#This Row],[School & Library Price]]","v":0}]
[null,null,20,null,null,"Current Issues","Hot Topics","Student Rights in a New Age of Activism","978-1-5345-6816-7",{"$f":"HYPERLINK(Table1[[#This Row],[eCommerce Hyperlink]],\"Book Weblink\")","v":"Book Weblink"},null,"Lucent Press","Paperback Book",1,"2020","January 2020","Paperback","7.000 X 9.000","Author","Anna Collins",null,null,null,null,"Z",null,"Grade 7","Grade 7 - 10","In the United States, the rights of people under the age of 18 are a hotly debated and frequently misunderstood topic. Certain rights are protected for students by the U.S. Constitution, but many people are unsure of what those rights are. Some people even believe student rights do not exist. Up-to-date statistics, engaging sidebars, and informative charts supplement this illuminating text, explaining exactly what rights students have and what recourse they have if those rights are violated. Annotated quotes from legal experts and activists provide additional information about the connection between student rights and student activism.","English",20.99,17.850000000000001,"344.73'0793--dc23","104 pp.","https://greenhavenpublishing.com/9781534568167",null,{"$f":"Table1[[#This Row],['# of Books]]*Table1[[#This Row],[QTY]]","v":0},{"$f":"Table1[[#This Row],[QTY]]*Table1[[#This Row],[School & Library Price]]","v":0}]
[null,null,20,null,null,"Current Issues","Hot Topics","Sustainable Living: Going Green to Protect the Planet","978-1-5345-6811-2",{"$f":"HYPERLINK(Table1[[#This Row],[eCommerce Hyperlink]],\"Book Weblink\")","v":"Book Weblink"},null,"Lucent Press","Library Bound Book",1,"2020","January 2020","Library","7.000 X 9.000","Author","Juliana Burkhart",null,null,null,null,"Z",null,"Grade 7","Grade 7 - 10","As concerns over the environment increase, more people are looking for alternative sources of energy and other ways to \"go green.\" However, the prospect of overhauling their entire lifestyle can be daunting enough to discourage people from making a start, especially when they do not see how their small changes can impact the environment. Enlightening main content, charts, and annotated quotes by experts shed light on the concept of sustainable living, while full-color photographs and informative sidebars show readers realistic changes they can make in their lives to protect the planet.","English",40.4,32.32,"333.79--dc23","104 pp.","https://greenhavenpublishing.com/9781534568112",null,{"$f":"Table1[[#This Row],['# of Books]]*Table1[[#This Row],[QTY]]","v":0},{"$f":"Table1[[#This Row],[QTY]]*Table1[[#This Row],[School & Library Price]]","v":0}]
[null,null,20,null,null,"Current Issues","Hot Topics","Sustainable Living: Going Green to Protect the Planet","978-1-5345-6812-9",{"$f":"HYPERLINK(Table1[[#This Row],[eCommerce Hyperlink]],\"Book Weblink\")","v":"Book Weblink"},null,"Lucent Press","eBook",1,"2020","January 2020",null,null,"Author","Juliana Burkhart",null,null,null,null,"Z",null,"Grade 7","Grade 7 - 10","As concerns over the environment increase, more people are looking for alternative sources of energy and other ways to \"go green.\" However, the prospect of overhauling their entire lifestyle can be daunting enough to discourage people from making a start, especially when they do not see how their small changes can impact the environment. Enlightening main content, charts, and annotated quotes by experts shed light on the concept of sustainable living, while full-color photographs and informative sidebars show readers realistic changes they can make in their lives to protect the planet.","English",40.4,32.32,"333.79--dc23","104 pp.","https://greenhavenpublishing.com/9781534568129",null,{"$f":"Table1[[#This Row],['# of Books]]*Table1[[#This Row],[QTY]]","v":0},{"$f":"Table1[[#This Row],[QTY]]*Table1[[#This Row],[School & Library Price]]","v":0}]
[null,null,20,null,null,"Current Issues","Hot Topics","Sustainable Living: Going Green to Protect the Planet","978-1-5345-6810-5",{"$f":"HYPERLINK(Table1[[#This Row],[eCommerce Hyperlink]],\"Book Weblink\")","v":"Book Weblink"},null,"Lucent Press","Paperback Book",1,"2020","January 2020","Paperback","7.000 X 9.000","Author","Juliana Burkhart",null,null,null,null,"Z",null,"Grade 7","Grade 7 - 10","As concerns over the environment increase, more people are looking for alternative sources of energy and other ways to \"go green.\" However, the prospect of overhauling their entire lifestyle can be daunting enough to discourage people from making a start, especially when they do not see how their small changes can impact the environment. Enlightening main content, charts, and annotated quotes by experts shed light on the concept of sustainable living, while full-color photographs and informative sidebars show readers realistic changes they can make in their lives to protect the planet.","English",20.99,17.850000000000001,"333.79--dc23","104 pp.","https://greenhavenpublishing.com/9781534568105",null,{"$f":"Table1[[#This Row],['# of Books]]*Table1[[#This Row],[QTY]]","v":0},{"$f":"Table1[[#This Row],[QTY]]*Table1[[#This Row],[School & Library Price]]","v":0}]
[null,null,20,null,null,"Current Issues","Hot Topics","Video Games and Esports: The Growing World of Gamers","978-1-5345-6820-4",{"$f":"HYPERLINK(Table1[[#This Row],[eCommerce Hyperlink]],\"Book Weblink\")","v":"Book Weblink"},null,"Lucent Press","Library Bound Book",1,"2020","January 2020","Library","7.000 X 9.000","Author","Michael Maley",null,null,null,null,"Z",null,"Grade 7","Grade 7 - 10","Just as athletes from the NFL and NBA have gained fame and fortune, professional gamers who compete in esports are attracting loyal fans. Esports encompass any competitive, organized gaming endeavor. This competitive activity is becoming a billion-dollar industry. However, some people still argue that playing video games has many negative effects. The ever-evolving world of video games is explained through engaging text that delves into the details so readers gain a full understanding. Full-color photographs, annotated quotes, sidebars, and informative charts highlight the many debates surrounding the popularity of video games.","English",40.4,32.32,"794.8--dc23","104 pp.","https://greenhavenpublishing.com/9781534568204",null,{"$f":"Table1[[#This Row],['# of Books]]*Table1[[#This Row],[QTY]]","v":0},{"$f":"Table1[[#This Row],[QTY]]*Table1[[#This Row],[School & Library Price]]","v":0}]
[null,null,20,null,null,"Current Issues","Hot Topics","Video Games and Esports: The Growing World of Gamers","978-1-5345-6821-1",{"$f":"HYPERLINK(Table1[[#This Row],[eCommerce Hyperlink]],\"Book Weblink\")","v":"Book Weblink"},null,"Lucent Press","eBook",1,"2020","January 2020",null,null,"Author","Michael Maley",null,null,null,null,"Z",null,"Grade 7","Grade 7 - 10","Just as athletes from the NFL and NBA have gained fame and fortune, professional gamers who compete in esports are attracting loyal fans. Esports encompass any competitive, organized gaming endeavor. This competitive activity is becoming a billion-dollar industry. However, some people still argue that playing video games has many negative effects. The ever-evolving world of video games is explained through engaging text that delves into the details so readers gain a full understanding. Full-color photographs, annotated quotes, sidebars, and informative charts highlight the many debates surrounding the popularity of video games.","English",40.4,32.32,"794.8--dc23","104 pp.","https://greenhavenpublishing.com/9781534568211",null,{"$f":"Table1[[#This Row],['# of Books]]*Table1[[#This Row],[QTY]]","v":0},{"$f":"Table1[[#This Row],[QTY]]*Table1[[#This Row],[School & Library Price]]","v":0}]
[null,null,20,null,null,"Current Issues","Hot Topics","Video Games and Esports: The Growing World of Gamers","978-1-5345-6819-8",{"$f":"HYPERLINK(Table1[[#This Row],[eCommerce Hyperlink]],\"Book Weblink\")","v":"Book Weblink"},null,"Lucent Press","Paperback Book",1,"2020","January 2020","Paperback","7.000 X 9.000","Author","Michael Maley",null,null,null,null,"Z",null,"Grade 7","Grade 7 - 10","Just as athletes from the NFL and NBA have gained fame and fortune, professional gamers who compete in esports are attracting loyal fans. Esports encompass any competitive, organized gaming endeavor. This competitive activity is becoming a billion-dollar industry. However, some people still argue that playing video games has many negative effects. The ever-evolving world of video games is explained through engaging text that delves into the details so readers gain a full understanding. Full-color photographs, annotated quotes, sidebars, and informative charts highlight the many debates surrounding the popularity of video games.","English",20.99,17.850000000000001,"794.8--dc23","104 pp.","https://greenhavenpublishing.com/9781534568198",null,{"$f":"Table1[[#This Row],['# of Books]]*Table1[[#This Row],[QTY]]","v":0},{"$f":"Table1[[#This Row],[QTY]]*Table1[[#This Row],[School & Library Price]]","v":0}]
[null,null,20,null,null,"Current Issues","Hot Topics","Violence and Sports: Dangerous Games","978-1-5345-6814-3",{"$f":"HYPERLINK(Table1[[#This Row],[eCommerce Hyperlink]],\"Book Weblink\")","v":"Book Weblink"},null,"Lucent Press","Library Bound Book",1,"2020","January 2020","Library","7.000 X 9.000","Author","Tyler Stevenson",null,null,null,null,"Z",null,"Grade 7","Grade 7 - 10","Violence is considered an acceptable and sometimes desirable part of many organized sports. Hard hits are praised in football and hockey, and boxers are idolized for being able to knock out their opponents. What kinds of implications can the normalization of violence have off of the field? Readers are presented with examples of sports-related violence and various theories for why violence among athletes is so prevalent. Presented alongside the unbiased narrative are quotes from athletes and other experts, detailed charts, and engaging sidebars that encourage young adults to think critically about this serious issue.","English",40.4,32.32,"796--dc23","104 pp.","https://greenhavenpublishing.com/9781534568143",null,{"$f":"Table1[[#This Row],['# of Books]]*Table1[[#This Row],[QTY]]","v":0},{"$f":"Table1[[#This Row],[QTY]]*Table1[[#This Row],[School & Library Price]]","v":0}]
[null,null,20,null,null,"Current Issues","Hot Topics","Violence and Sports: Dangerous Games","978-1-5345-6815-0",{"$f":"HYPERLINK(Table1[[#This Row],[eCommerce Hyperlink]],\"Book Weblink\")","v":"Book Weblink"},null,"Lucent Press","eBook",1,"2020","January 2020",null,null,"Author","Tyler Stevenson",null,null,null,null,"Z",null,"Grade 7","Grade 7 - 10","Violence is considered an acceptable and sometimes desirable part of many organized sports. Hard hits are praised in football and hockey, and boxers are idolized for being able to knock out their opponents. What kinds of implications can the normalization of violence have off of the field? Readers are presented with examples of sports-related violence and various theories for why violence among athletes is so prevalent. Presented alongside the unbiased narrative are quotes from athletes and other experts, detailed charts, and engaging sidebars that encourage young adults to think critically about this serious issue.","English",40.4,32.32,"796--dc23","104 pp.","https://greenhavenpublishing.com/9781534568150",null,{"$f":"Table1[[#This Row],['# of Books]]*Table1[[#This Row],[QTY]]","v":0},{"$f":"Table1[[#This Row],[QTY]]*Table1[[#This Row],[School & Library Price]]","v":0}]
[null,null,20,null,null,"Current Issues","Hot Topics","Violence and Sports: Dangerous Games","978-1-5345-6813-6",{"$f":"HYPERLINK(Table1[[#This Row],[eCommerce Hyperlink]],\"Book Weblink\")","v":"Book Weblink"},null,"Lucent Press","Paperback Book",1,"2020","January 2020","Paperback","7.000 X 9.000","Author","Tyler Stevenson",null,null,null,null,"Z",null,"Grade 7","Grade 7 - 10","Violence is considered an acceptable and sometimes desirable part of many organized sports. Hard hits are praised in football and hockey, and boxers are idolized for being able to knock out their opponents. What kinds of implications can the normalization of violence have off of the field? Readers are presented with examples of sports-related violence and various theories for why violence among athletes is so prevalent. Presented alongside the unbiased narrative are quotes from athletes and other experts, detailed charts, and engaging sidebars that encourage young adults to think critically about this serious issue.","English",20.99,17.850000000000001,"796--dc23","104 pp.","https://greenhavenpublishing.com/9781534568136",null,{"$f":"Table1[[#This Row],['# of Books]]*Table1[[#This Row],[QTY]]","v":0},{"$f":"Table1[[#This Row],[QTY]]*Table1[[#This Row],[School & Library Price]]","v":0}]
[null,null,20,null,null,"Current Issues","What's Your Viewpoint?","What's Your Viewpoint?","978-1-5345-6599-9",{"$f":"HYPERLINK(Table1[[#This Row],[eCommerce Hyperlink]],\"Book Weblink\")","v":"Book Weblink"},null,"Lucent Press","Library Set",6,"2020","August 2019","Library","7.250 X 9.250",null,null,null,null,null,null,null,null,"Grade 6","Grade 5 - 8","At a time where news sources can be tailored to a person's specific point of view, it can be hard to get the full story behind the debates surrounding topics such as border security and presidential power. However, in order to develop an informed opinion on these topics, it's essential to understand the arguments on all sides. This is what readers are able to do after exploring some of the most controversial issues in the United States today. As the main texts and detailed sidebars outline various viewpoints, graphic organizers and full-color photographs keep readers engaged as they learn. Features include: Opinions from experts with varying viewpoints are highlighted to help readers compare and contrast. Questions are included to challenge readers to think critically about important issues. Focus on the future of these issues encourages readers to think about their place in these debates now and as they grow, inspiring them to become more informed and active citizens.","English",207.6,166.08,null,"48 pp.","https://greenhavenpublishing.com/9781534565999",null,{"$f":"Table1[[#This Row],['# of Books]]*Table1[[#This Row],[QTY]]","v":0},{"$f":"Table1[[#This Row],[QTY]]*Table1[[#This Row],[School & Library Price]]","v":0}]
[null,null,20,null,null,"Current Issues","What's Your Viewpoint?","What's Your Viewpoint?","978-1-5345-6801-3",{"$f":"HYPERLINK(Table1[[#This Row],[eCommerce Hyperlink]],\"Book Weblink\")","v":"Book Weblink"},null,"Lucent Press","Single Copy Set",6,"2020","August 2019","Paperback","7.250 X 9.250",null,null,null,null,null,null,null,null,"Grade 6","Grade 5 - 8","At a time where news sources can be tailored to a person's specific point of view, it can be hard to get the full story behind the debates surrounding topics such as border security and presidential power. However, in order to develop an informed opinion on these topics, it's essential to understand the arguments on all sides. This is what readers are able to do after exploring some of the most controversial issues in the United States today. As the main texts and detailed sidebars outline various viewpoints, graphic organizers and full-color photographs keep readers engaged as they learn. Features include: Opinions from experts with varying viewpoints are highlighted to help readers compare and contrast. Questions are included to challenge readers to think critically about important issues. Focus on the future of these issues encourages readers to think about their place in these debates now and as they grow, inspiring them to become more informed and active citizens.","English",90.3,76.8,null,"48 pp.","https://greenhavenpublishing.com/9781534568013",null,{"$f":"Table1[[#This Row],['# of Books]]*Table1[[#This Row],[QTY]]","v":0},{"$f":"Table1[[#This Row],[QTY]]*Table1[[#This Row],[School & Library Price]]","v":0}]
[null,null,20,null,null,"Current Issues","What's Your Viewpoint?","Border Security: Are Immigrants Still Welcome in the United States?","978-1-5345-6561-6",{"$f":"HYPERLINK(Table1[[#This Row],[eCommerce Hyperlink]],\"Book Weblink\")","v":"Book Weblink"},null,"Lucent Press","Library Bound Book",1,"2020","August 2019","Library","7.250 X 9.250","Author","Anita Croy",null,null,null,null,"V",null,"Grade 6","Grade 5 - 8","Border security issues have received increased coverage in recent years. Readers are given the tools to take part in the debates surrounding this hot topic. They'll explore the basic facts about border security and varying viewpoints that people have about border security policies, from the construction of a wall between the United States and Mexico to the treatment of undocumented immigrants. The informative main text is paired with full-color photographs and graphic organizers. Sidebars highlight opposing views of border security, and discussion questions to help readers develop their own informed opinions about this controversial issue.","English",34.6,27.68,"363.28'502373--dc23","48 pp.","https://greenhavenpublishing.com/9781534565616",null,{"$f":"Table1[[#This Row],['# of Books]]*Table1[[#This Row],[QTY]]","v":0},{"$f":"Table1[[#This Row],[QTY]]*Table1[[#This Row],[School & Library Price]]","v":0}]
[null,null,20,null,null,"Current Issues","What's Your Viewpoint?","Border Security: Are Immigrants Still Welcome in the United States?","978-1-5345-6562-3",{"$f":"HYPERLINK(Table1[[#This Row],[eCommerce Hyperlink]],\"Book Weblink\")","v":"Book Weblink"},null,"Lucent Press","eBook",1,"2020","August 2019",null,null,"Author","Anita Croy",null,null,null,null,"V",null,"Grade 6","Grade 5 - 8","Border security issues have received increased coverage in recent years. Readers are given the tools to take part in the debates surrounding this hot topic. They'll explore the basic facts about border security and varying viewpoints that people have about border security policies, from the construction of a wall between the United States and Mexico to the treatment of undocumented immigrants. The informative main text is paired with full-color photographs and graphic organizers. Sidebars highlight opposing views of border security, and discussion questions to help readers develop their own informed opinions about this controversial issue.","English",34.6,27.68,"363.28'502373--dc23","48 pp.","https://greenhavenpublishing.com/9781534565623",null,{"$f":"Table1[[#This Row],['# of Books]]*Table1[[#This Row],[QTY]]","v":0},{"$f":"Table1[[#This Row],[QTY]]*Table1[[#This Row],[School & Library Price]]","v":0}]
[null,null,20,null,null,"Current Issues","What's Your Viewpoint?","Border Security: Are Immigrants Still Welcome in the United States?","978-1-5345-6560-9",{"$f":"HYPERLINK(Table1[[#This Row],[eCommerce Hyperlink]],\"Book Weblink\")","v":"Book Weblink"},null,"Lucent Press","Paperback Book",1,"2020","August 2019","Paperback","7.250 X 9.250","Author","Anita Croy",null,null,null,null,"V",null,"Grade 6","Grade 5 - 8","Border security issues have received increased coverage in recent years. Readers are given the tools to take part in the debates surrounding this hot topic. They'll explore the basic facts about border security and varying viewpoints that people have about border security policies, from the construction of a wall between the United States and Mexico to the treatment of undocumented immigrants. The informative main text is paired with full-color photographs and graphic organizers. Sidebars highlight opposing views of border security, and discussion questions to help readers develop their own informed opinions about this controversial issue.","English",15.05,12.8,"363.28'502373--dc23","48 pp.","https://greenhavenpublishing.com/9781534565609",null,{"$f":"Table1[[#This Row],['# of Books]]*Table1[[#This Row],[QTY]]","v":0},{"$f":"Table1[[#This Row],[QTY]]*Table1[[#This Row],[School & Library Price]]","v":0}]
[null,null,20,null,null,"Current Issues","What's Your Viewpoint?","Health Care: Should It Be Universal?","978-1-5345-6567-8",{"$f":"HYPERLINK(Table1[[#This Row],[eCommerce Hyperlink]],\"Book Weblink\")","v":"Book Weblink"},null,"Lucent Press","Library Bound Book",1,"2020","August 2019","Library","7.250 X 9.250","Author","Anita Croy",null,null,null,null,"V",null,"Grade 6","Grade 5 - 8","Is universal health care a good idea? Has the Affordable Care Act been a success or a failure? These questions can be answered many different ways. Readers are introduced to the variety of views on health care as they take a deep dive into this crucial current events topic. The narrative encourages readers to become more informed citizens, and sidebars that present expert viewpoints help them gain a deeper understanding of the health care debate. Readers are also inspired to take part in this debate through discussion questions that deepen their critical thinking skills.","English",34.6,27.68,"344.7304'1--dc23","48 pp.","https://greenhavenpublishing.com/9781534565678",null,{"$f":"Table1[[#This Row],['# of Books]]*Table1[[#This Row],[QTY]]","v":0},{"$f":"Table1[[#This Row],[QTY]]*Table1[[#This Row],[School & Library Price]]","v":0}]
[null,null,20,null,null,"Current Issues","What's Your Viewpoint?","Health Care: Should It Be Universal?","978-1-5345-6568-5",{"$f":"HYPERLINK(Table1[[#This Row],[eCommerce Hyperlink]],\"Book Weblink\")","v":"Book Weblink"},null,"Lucent Press","eBook",1,"2020","August 2019",null,null,"Author","Anita Croy",null,null,null,null,"V",null,"Grade 6","Grade 5 - 8","Is universal health care a good idea? Has the Affordable Care Act been a success or a failure? These questions can be answered many different ways. Readers are introduced to the variety of views on health care as they take a deep dive into this crucial current events topic. The narrative encourages readers to become more informed citizens, and sidebars that present expert viewpoints help them gain a deeper understanding of the health care debate. Readers are also inspired to take part in this debate through discussion questions that deepen their critical thinking skills.","English",34.6,27.68,"344.7304'1--dc23","48 pp.","https://greenhavenpublishing.com/9781534565685",null,{"$f":"Table1[[#This Row],['# of Books]]*Table1[[#This Row],[QTY]]","v":0},{"$f":"Table1[[#This Row],[QTY]]*Table1[[#This Row],[School & Library Price]]","v":0}]
[null,null,20,null,null,"Current Issues","What's Your Viewpoint?","Health Care: Should It Be Universal?","978-1-5345-6566-1",{"$f":"HYPERLINK(Table1[[#This Row],[eCommerce Hyperlink]],\"Book Weblink\")","v":"Book Weblink"},null,"Lucent Press","Paperback Book",1,"2020","August 2019","Paperback","7.250 X 9.250","Author","Anita Croy",null,null,null,null,"V",null,"Grade 6","Grade 5 - 8","Is universal health care a good idea? Has the Affordable Care Act been a success or a failure? These questions can be answered many different ways. Readers are introduced to the variety of views on health care as they take a deep dive into this crucial current events topic. The narrative encourages readers to become more informed citizens, and sidebars that present expert viewpoints help them gain a deeper understanding of the health care debate. Readers are also inspired to take part in this debate through discussion questions that deepen their critical thinking skills.","English",15.05,12.8,"344.7304'1--dc23","48 pp.","https://greenhavenpublishing.com/9781534565661",null,{"$f":"Table1[[#This Row],['# of Books]]*Table1[[#This Row],[QTY]]","v":0},{"$f":"Table1[[#This Row],[QTY]]*Table1[[#This Row],[School & Library Price]]","v":0}]
[null,null,20,null,null,"Current Issues","What's Your Viewpoint?","Presidential Power: How Far Does Executive Power Go?","978-1-5345-6570-8",{"$f":"HYPERLINK(Table1[[#This Row],[eCommerce Hyperlink]],\"Book Weblink\")","v":"Book Weblink"},null,"Lucent Press","Library Bound Book",1,"2020","August 2019","Library","7.250 X 9.250","Author","Anita Croy",null,null,null,null,"V",null,"Grade 6","Grade 5 - 8","The ability to have free and open debates about the government is an essential part of a healthy democracy. Readers are encouraged to find their own voice in these debates as they're introduced to the varying viewpoints surrounding the issue of presidential power. The main text helps readers back up their point of view with facts, and sidebars highlight the views of experts on this controversial issue. Discussion questions help readers strengthen their point of view, and exciting visual elements, including full-color photographs and graphic organizers enhance this essential critical thinking exercise.","English",34.6,27.68,"352.23'50973--dc23","48 pp.","https://greenhavenpublishing.com/9781534565708",null,{"$f":"Table1[[#This Row],['# of Books]]*Table1[[#This Row],[QTY]]","v":0},{"$f":"Table1[[#This Row],[QTY]]*Table1[[#This Row],[School & Library Price]]","v":0}]
[null,null,20,null,null,"Current Issues","What's Your Viewpoint?","Presidential Power: How Far Does Executive Power Go?","978-1-5345-6571-5",{"$f":"HYPERLINK(Table1[[#This Row],[eCommerce Hyperlink]],\"Book Weblink\")","v":"Book Weblink"},null,"Lucent Press","eBook",1,"2020","August 2019",null,null,"Author","Anita Croy",null,null,null,null,"V",null,"Grade 6","Grade 5 - 8","The ability to have free and open debates about the government is an essential part of a healthy democracy. Readers are encouraged to find their own voice in these debates as they're introduced to the varying viewpoints surrounding the issue of presidential power. The main text helps readers back up their point of view with facts, and sidebars highlight the views of experts on this controversial issue. Discussion questions help readers strengthen their point of view, and exciting visual elements, including full-color photographs and graphic organizers enhance this essential critical thinking exercise.","English",34.6,27.68,"352.23'50973--dc23","48 pp.","https://greenhavenpublishing.com/9781534565715",null,{"$f":"Table1[[#This Row],['# of Books]]*Table1[[#This Row],[QTY]]","v":0},{"$f":"Table1[[#This Row],[QTY]]*Table1[[#This Row],[School & Library Price]]","v":0}]
[null,null,20,null,null,"Current Issues","What's Your Viewpoint?","Presidential Power: How Far Does Executive Power Go?","978-1-5345-6569-2",{"$f":"HYPERLINK(Table1[[#This Row],[eCommerce Hyperlink]],\"Book Weblink\")","v":"Book Weblink"},null,"Lucent Press","Paperback Book",1,"2020","August 2019","Paperback","7.250 X 9.250","Author","Anita Croy",null,null,null,null,"V",null,"Grade 6","Grade 5 - 8","The ability to have free and open debates about the government is an essential part of a healthy democracy. Readers are encouraged to find their own voice in these debates as they're introduced to the varying viewpoints surrounding the issue of presidential power. The main text helps readers back up their point of view with facts, and sidebars highlight the views of experts on this controversial issue. Discussion questions help readers strengthen their point of view, and exciting visual elements, including full-color photographs and graphic organizers enhance this essential critical thinking exercise.","English",15.05,12.8,"352.23'50973--dc23","48 pp.","https://greenhavenpublishing.com/9781534565692",null,{"$f":"Table1[[#This Row],['# of Books]]*Table1[[#This Row],[QTY]]","v":0},{"$f":"Table1[[#This Row],[QTY]]*Table1[[#This Row],[School & Library Price]]","v":0}]
[null,null,20,null,null,"Current Issues","What's Your Viewpoint?","Terrorism: Are We All at Risk?","978-1-5345-6576-0",{"$f":"HYPERLINK(Table1[[#This Row],[eCommerce Hyperlink]],\"Book Weblink\")","v":"Book Weblink"},null,"Lucent Press","Library Bound Book",1,"2020","August 2019","Library","7.250 X 9.250","Author","Anita Croy",null,null,null,null,"V",null,"Grade 6","Grade 5 - 8","Debates about foreign and domestic terrorism are often presented as exclusively for adults. However, these issues affect young people as well, so it's important for them to find a voice in these debates. Readers will develop their own voice and viewpoints as they explore basic facts and opinions concerning terrorism. Sidebars feature a variety of viewpoints from experts. This essential information is presented alongside full-color photographs and graphic organizers. Discussion questions allow readers to analyze and enhance their opinions.","English",34.6,27.68,"363.325--dc23","48 pp.","https://greenhavenpublishing.com/9781534565760",null,{"$f":"Table1[[#This Row],['# of Books]]*Table1[[#This Row],[QTY]]","v":0},{"$f":"Table1[[#This Row],[QTY]]*Table1[[#This Row],[School & Library Price]]","v":0}]
[null,null,20,null,null,"Current Issues","What's Your Viewpoint?","Terrorism: Are We All at Risk?","978-1-5345-6577-7",{"$f":"HYPERLINK(Table1[[#This Row],[eCommerce Hyperlink]],\"Book Weblink\")","v":"Book Weblink"},null,"Lucent Press","eBook",1,"2020","August 2019",null,null,"Author","Anita Croy",null,null,null,null,"V",null,"Grade 6","Grade 5 - 8","Debates about foreign and domestic terrorism are often presented as exclusively for adults. However, these issues affect young people as well, so it's important for them to find a voice in these debates. Readers will develop their own voice and viewpoints as they explore basic facts and opinions concerning terrorism. Sidebars feature a variety of viewpoints from experts. This essential information is presented alongside full-color photographs and graphic organizers. Discussion questions allow readers to analyze and enhance their opinions.","English",34.6,27.68,"363.325--dc23","48 pp.","https://greenhavenpublishing.com/9781534565777",null,{"$f":"Table1[[#This Row],['# of Books]]*Table1[[#This Row],[QTY]]","v":0},{"$f":"Table1[[#This Row],[QTY]]*Table1[[#This Row],[School & Library Price]]","v":0}]
[null,null,20,null,null,"Current Issues","What's Your Viewpoint?","Terrorism: Are We All at Risk?","978-1-5345-6575-3",{"$f":"HYPERLINK(Table1[[#This Row],[eCommerce Hyperlink]],\"Book Weblink\")","v":"Book Weblink"},null,"Lucent Press","Paperback Book",1,"2020","August 2019","Paperback","7.250 X 9.250","Author","Anita Croy",null,null,null,null,"V",null,"Grade 6","Grade 5 - 8","Debates about foreign and domestic terrorism are often presented as exclusively for adults. However, these issues affect young people as well, so it's important for them to find a voice in these debates. Readers will develop their own voice and viewpoints as they explore basic facts and opinions concerning terrorism. Sidebars feature a variety of viewpoints from experts. This essential information is presented alongside full-color photographs and graphic organizers. Discussion questions allow readers to analyze and enhance their opinions.","English",15.05,12.8,"363.325--dc23","48 pp.","https://greenhavenpublishing.com/9781534565753",null,{"$f":"Table1[[#This Row],['# of Books]]*Table1[[#This Row],[QTY]]","v":0},{"$f":"Table1[[#This Row],[QTY]]*Table1[[#This Row],[School & Library Price]]","v":0}]
[null,null,20,null,null,"Current Issues","What's Your Viewpoint?","The Arms Race: Will Anyone Win the Weapons Race?","978-1-5345-6573-9",{"$f":"HYPERLINK(Table1[[#This Row],[eCommerce Hyperlink]],\"Book Weblink\")","v":"Book Weblink"},null,"Lucent Press","Library Bound Book",1,"2020","August 2019","Library","7.250 X 9.250","Author","Anita Croy",null,null,null,null,"V",null,"Grade 6","Grade 5 - 8","Arms races are often associated with the Cold War, but they're still a reality around the world today. Issues such as military aggression and nuclear weapons are complex, but they're presented to readers in an accessible way. A fact-filled main text, engaging full-color photographs, and helpful graphic organizers richly present details about the arms race. Readers are challenged to think for themselves about international arms races as they explore discussion questions and are asked to compare and contrast the viewpoints of experts. Although news stories about weapons and wars might seem frightening to young people, this volume stresses the importance of facts over fearmongering.","English",34.6,27.68,"355.02'17--dc23","48 pp.","https://greenhavenpublishing.com/9781534565739",null,{"$f":"Table1[[#This Row],['# of Books]]*Table1[[#This Row],[QTY]]","v":0},{"$f":"Table1[[#This Row],[QTY]]*Table1[[#This Row],[School & Library Price]]","v":0}]
[null,null,20,null,null,"Current Issues","What's Your Viewpoint?","The Arms Race: Will Anyone Win the Weapons Race?","978-1-5345-6574-6",{"$f":"HYPERLINK(Table1[[#This Row],[eCommerce Hyperlink]],\"Book Weblink\")","v":"Book Weblink"},null,"Lucent Press","eBook",1,"2020","August 2019",null,null,"Author","Anita Croy",null,null,null,null,"V",null,"Grade 6","Grade 5 - 8","Arms races are often associated with the Cold War, but they're still a reality around the world today. Issues such as military aggression and nuclear weapons are complex, but they're presented to readers in an accessible way. A fact-filled main text, engaging full-color photographs, and helpful graphic organizers richly present details about the arms race. Readers are challenged to think for themselves about international arms races as they explore discussion questions and are asked to compare and contrast the viewpoints of experts. Although news stories about weapons and wars might seem frightening to young people, this volume stresses the importance of facts over fearmongering.","English",34.6,27.68,"355.02'17--dc23","48 pp.","https://greenhavenpublishing.com/9781534565746",null,{"$f":"Table1[[#This Row],['# of Books]]*Table1[[#This Row],[QTY]]","v":0},{"$f":"Table1[[#This Row],[QTY]]*Table1[[#This Row],[School & Library Price]]","v":0}]
[null,null,20,null,null,"Current Issues","What's Your Viewpoint?","The Arms Race: Will Anyone Win the Weapons Race?","978-1-5345-6572-2",{"$f":"HYPERLINK(Table1[[#This Row],[eCommerce Hyperlink]],\"Book Weblink\")","v":"Book Weblink"},null,"Lucent Press","Paperback Book",1,"2020","August 2019","Paperback","7.250 X 9.250","Author","Anita Croy",null,null,null,null,"V",null,"Grade 6","Grade 5 - 8","Arms races are often associated with the Cold War, but they're still a reality around the world today. Issues such as military aggression and nuclear weapons are complex, but they're presented to readers in an accessible way. A fact-filled main text, engaging full-color photographs, and helpful graphic organizers richly present details about the arms race. Readers are challenged to think for themselves about international arms races as they explore discussion questions and are asked to compare and contrast the viewpoints of experts. Although news stories about weapons and wars might seem frightening to young people, this volume stresses the importance of facts over fearmongering.","English",15.05,12.8,"355.02'17--dc23","48 pp.","https://greenhavenpublishing.com/9781534565722",null,{"$f":"Table1[[#This Row],['# of Books]]*Table1[[#This Row],[QTY]]","v":0},{"$f":"Table1[[#This Row],[QTY]]*Table1[[#This Row],[School & Library Price]]","v":0}]
[null,null,20,null,null,"Current Issues","What's Your Viewpoint?","Trade Wars: Can Anyone Win the Fight for Trade?","978-1-5345-6564-7",{"$f":"HYPERLINK(Table1[[#This Row],[eCommerce Hyperlink]],\"Book Weblink\")","v":"Book Weblink"},null,"Lucent Press","Library Bound Book",1,"2020","August 2019","Library","7.250 X 9.250","Author","Anita Croy",null,null,null,null,"V",null,"Grade 6","Grade 5 - 8","President Donald Trump has said that trade wars can be good and are easy to win, but not everyone shares his viewpoint. Readers explore the facts and opinions surrounding the topic of trade wars, including what they are, who they affect, and how they can benefit or harm economies. The accessible main text introduces this complicated issue in a way that's easy for readers to understand, and full-color photographs and graphic organizers keep them engaged as they learn. Sidebars present expert views on trade wars, and discussion questions challenge readers to think critically about this issue.","English",34.6,27.68,"382'.3--dc23","48 pp.","https://greenhavenpublishing.com/9781534565647",null,{"$f":"Table1[[#This Row],['# of Books]]*Table1[[#This Row],[QTY]]","v":0},{"$f":"Table1[[#This Row],[QTY]]*Table1[[#This Row],[School & Library Price]]","v":0}]
[null,null,20,null,null,"Current Issues","What's Your Viewpoint?","Trade Wars: Can Anyone Win the Fight for Trade?","978-1-5345-6565-4",{"$f":"HYPERLINK(Table1[[#This Row],[eCommerce Hyperlink]],\"Book Weblink\")","v":"Book Weblink"},null,"Lucent Press","eBook",1,"2020","August 2019",null,null,"Author","Anita Croy",null,null,null,null,"V",null,"Grade 6","Grade 5 - 8","President Donald Trump has said that trade wars can be good and are easy to win, but not everyone shares his viewpoint. Readers explore the facts and opinions surrounding the topic of trade wars, including what they are, who they affect, and how they can benefit or harm economies. The accessible main text introduces this complicated issue in a way that's easy for readers to understand, and full-color photographs and graphic organizers keep them engaged as they learn. Sidebars present expert views on trade wars, and discussion questions challenge readers to think critically about this issue.","English",34.6,27.68,"382'.3--dc23","48 pp.","https://greenhavenpublishing.com/9781534565654",null,{"$f":"Table1[[#This Row],['# of Books]]*Table1[[#This Row],[QTY]]","v":0},{"$f":"Table1[[#This Row],[QTY]]*Table1[[#This Row],[School & Library Price]]","v":0}]
[null,null,20,null,null,"Current Issues","What's Your Viewpoint?","Trade Wars: Can Anyone Win the Fight for Trade?","978-1-5345-6563-0",{"$f":"HYPERLINK(Table1[[#This Row],[eCommerce Hyperlink]],\"Book Weblink\")","v":"Book Weblink"},null,"Lucent Press","Paperback Book",1,"2020","August 2019","Paperback","7.250 X 9.250","Author","Anita Croy",null,null,null,null,"V",null,"Grade 6","Grade 5 - 8","President Donald Trump has said that trade wars can be good and are easy to win, but not everyone shares his viewpoint. Readers explore the facts and opinions surrounding the topic of trade wars, including what they are, who they affect, and how they can benefit or harm economies. The accessible main text introduces this complicated issue in a way that's easy for readers to understand, and full-color photographs and graphic organizers keep them engaged as they learn. Sidebars present expert views on trade wars, and discussion questions challenge readers to think critically about this issue.","English",15.05,12.8,"382'.3--dc23","48 pp.","https://greenhavenpublishing.com/9781534565630",null,{"$f":"Table1[[#This Row],['# of Books]]*Table1[[#This Row],[QTY]]","v":0},{"$f":"Table1[[#This Row],[QTY]]*Table1[[#This Row],[School & Library Price]]","v":0}]
[null,null,21,null,null,"Health & Medicine","Diseases and Disorders","Diseases and Disorders: Set 1","978-1-5345-6160-1",{"$f":"HYPERLINK(Table1[[#This Row],[eCommerce Hyperlink]],\"Book Weblink\")","v":"Book Weblink"},null,"Lucent Press","Library Set",6,"2018","August 2017","Library","6.000 X 9.000",null,null,null,null,null,null,null,null,"Grade 7","Grade 7 - 10","Why are concussions dangerous? How does the Zika virus spread? What can be done to help someone struggling with an anxiety disorder? Readers discover the answers to these questions and more as they explore the fascinating world of modern medicine. Accessible text helps readers gain a deeper understanding of the science behind the causes and treatments of a variety of well-known diseases and disorders. Diagrams, charts, and full-color photographs enhance readers’ knowledge of these important topics. Annotated quotations from experts and first-person accounts of living with each disease or disorder present valuable additional information.","English",245.4,196.32,null,"104–112 pp.","https://greenhavenpublishing.com/9781534561601",null,{"$f":"Table1[[#This Row],['# of Books]]*Table1[[#This Row],[QTY]]","v":0},{"$f":"Table1[[#This Row],[QTY]]*Table1[[#This Row],[School & Library Price]]","v":0}]
[null,null,21,null,null,"Health & Medicine","Diseases and Disorders","Anxiety and Panic Disorders","978-1-5345-6119-9",{"$f":"HYPERLINK(Table1[[#This Row],[eCommerce Hyperlink]],\"Book Weblink\")","v":"Book Weblink"},null,"Lucent Press","Library Bound Book",1,"2018","August 2017","Library","6.000 X 9.000","Author","Jennifer Lombardo",null,null,null,null,"Z",null,"Grade 7","Grade 7 - 10","Everyone experiences anxious feelings in stressful situations, such as before a big test or when giving a speech. However, anxiety disorders are characterized by fear or worry that is disproportionate to the situation and difficult to control. It is sometimes accompanied by panic disorder, which causes panic attacks that often have no apparent trigger. Readers will learn about the different types of these very common disorders, with a focus on how to recognize and treat them, as well as the science behind them. Helpful infographics and informative sidebars clarify these often misunderstood disorders.","English",40.9,32.72,"616.85/22--dc23","112 pp.","https://greenhavenpublishing.com/9781534561199",null,{"$f":"Table1[[#This Row],['# of Books]]*Table1[[#This Row],[QTY]]","v":0},{"$f":"Table1[[#This Row],[QTY]]*Table1[[#This Row],[School & Library Price]]","v":0}]
[null,null,21,null,null,"Health & Medicine","Diseases and Disorders","Anxiety and Panic Disorders","978-1-5345-6120-5",{"$f":"HYPERLINK(Table1[[#This Row],[eCommerce Hyperlink]],\"Book Weblink\")","v":"Book Weblink"},null,"Lucent Press","eBook",1,"2018","August 2017",null,null,"Author","Jennifer Lombardo",null,null,null,null,"Z",null,"Grade 7","Grade 7 - 10","Everyone experiences anxious feelings in stressful situations, such as before a big test or when giving a speech. However, anxiety disorders are characterized by fear or worry that is disproportionate to the situation and difficult to control. It is sometimes accompanied by panic disorder, which causes panic attacks that often have no apparent trigger. Readers will learn about the different types of these very common disorders, with a focus on how to recognize and treat them, as well as the science behind them. Helpful infographics and informative sidebars clarify these often misunderstood disorders.","English",40.9,32.72,"616.85/22--dc23","112 pp.","https://greenhavenpublishing.com/9781534561205",null,{"$f":"Table1[[#This Row],['# of Books]]*Table1[[#This Row],[QTY]]","v":0},{"$f":"Table1[[#This Row],[QTY]]*Table1[[#This Row],[School & Library Price]]","v":0}]
[null,null,21,null,null,"Health & Medicine","Diseases and Disorders","Autism Spectrum Disorder","978-1-5345-6121-2",{"$f":"HYPERLINK(Table1[[#This Row],[eCommerce Hyperlink]],\"Book Weblink\")","v":"Book Weblink"},null,"Lucent Press","Library Bound Book",1,"2018","August 2017","Library","6.000 X 9.000","Author","Sarah Goldy-Brown",null,null,null,null,"Z","1170L","Grade 7","Grade 7 - 10","Not all autistic people are alike. One person living with autism spectrum disorder may not speak, while another may enjoy talking to friends and family. Educating readers about the facts concerning autism is important, as much misinformation is spread through the media. Readers discover the science behind this disorder and the ways it is diagnosed and treated today. Detailed infographics offer statistics at a glance, and a list of organizations to contact provides resources for people living with autism spectrum disorder, as well as their family and friends.","English",40.9,32.72,"616.85'882--dc23","104 pp.","https://greenhavenpublishing.com/9781534561212",null,{"$f":"Table1[[#This Row],['# of Books]]*Table1[[#This Row],[QTY]]","v":0},{"$f":"Table1[[#This Row],[QTY]]*Table1[[#This Row],[School & Library Price]]","v":0}]
[null,null,21,null,null,"Health & Medicine","Diseases and Disorders","Autism Spectrum Disorder","978-1-5345-6122-9",{"$f":"HYPERLINK(Table1[[#This Row],[eCommerce Hyperlink]],\"Book Weblink\")","v":"Book Weblink"},null,"Lucent Press","eBook",1,"2018","August 2017",null,null,"Author","Sarah Goldy-Brown",null,null,null,null,"Z","1170L","Grade 7","Grade 7 - 10","Not all autistic people are alike. One person living with autism spectrum disorder may not speak, while another may enjoy talking to friends and family. Educating readers about the facts concerning autism is important, as much misinformation is spread through the media. Readers discover the science behind this disorder and the ways it is diagnosed and treated today. Detailed infographics offer statistics at a glance, and a list of organizations to contact provides resources for people living with autism spectrum disorder, as well as their family and friends.","English",40.9,32.72,"616.85'882--dc23","104 pp.","https://greenhavenpublishing.com/9781534561229",null,{"$f":"Table1[[#This Row],['# of Books]]*Table1[[#This Row],[QTY]]","v":0},{"$f":"Table1[[#This Row],[QTY]]*Table1[[#This Row],[School & Library Price]]","v":0}]
[null,null,21,null,null,"Health & Medicine","Diseases and Disorders","Concussions and Other Brain Trauma","978-1-5345-6127-4",{"$f":"HYPERLINK(Table1[[#This Row],[eCommerce Hyperlink]],\"Book Weblink\")","v":"Book Weblink"},null,"Lucent Press","Library Bound Book",1,"2018","August 2017","Library","6.000 X 9.000","Author","Ryan Nagelhout",null,null,null,null,"Z","1270L","Grade 7","Grade 7 - 10","Traumatic brain injuries are dangerous, especially if they are not recognized and treated promptly. Readers discover that repeated brain injuries may result in effects such as changed personality, depression, and memory loss. In contact sports such as football and hockey, the chance of sustaining a concussion or other form of brain trauma increases dramatically, so this information is especially valuable for young athletes. Through detailed photographs and informative infographics, readers are presented with additional information about the effects of brain trauma as well as precautions they can take to avoid it.","English",40.9,32.72,"617.4'81044--dc23","104 pp.","https://greenhavenpublishing.com/9781534561274",null,{"$f":"Table1[[#This Row],['# of Books]]*Table1[[#This Row],[QTY]]","v":0},{"$f":"Table1[[#This Row],[QTY]]*Table1[[#This Row],[School & Library Price]]","v":0}]
[null,null,21,null,null,"Health & Medicine","Diseases and Disorders","Concussions and Other Brain Trauma","978-1-5345-6128-1",{"$f":"HYPERLINK(Table1[[#This Row],[eCommerce Hyperlink]],\"Book Weblink\")","v":"Book Weblink"},null,"Lucent Press","eBook",1,"2018","August 2017",null,null,"Author","Ryan Nagelhout",null,null,null,null,"Z","1270L","Grade 7","Grade 7 - 10","Traumatic brain injuries are dangerous, especially if they are not recognized and treated promptly. Readers discover that repeated brain injuries may result in effects such as changed personality, depression, and memory loss. In contact sports such as football and hockey, the chance of sustaining a concussion or other form of brain trauma increases dramatically, so this information is especially valuable for young athletes. Through detailed photographs and informative infographics, readers are presented with additional information about the effects of brain trauma as well as precautions they can take to avoid it.","English",40.9,32.72,"617.4'81044--dc23","104 pp.","https://greenhavenpublishing.com/9781534561281",null,{"$f":"Table1[[#This Row],['# of Books]]*Table1[[#This Row],[QTY]]","v":0},{"$f":"Table1[[#This Row],[QTY]]*Table1[[#This Row],[School & Library Price]]","v":0}]
[null,null,21,null,null,"Health & Medicine","Diseases and Disorders","Major Depressive Disorder","978-1-5345-6123-6",{"$f":"HYPERLINK(Table1[[#This Row],[eCommerce Hyperlink]],\"Book Weblink\")","v":"Book Weblink"},null,"Lucent Press","Library Bound Book",1,"2018","August 2017","Library","6.000 X 9.000","Author","Simon Pierce",null,null,null,null,"Z","1210L","Grade 7","Grade 7 - 10","Often known simply as depression, major depressive disorder can affect anyone. This extremely common disorder causes intense feelings of sadness, guilt, and worthlessness, often without any identifiable cause. It is much more than merely feeling sad. Through engaging text and enlightening sidebars, this volume discusses some of the scientific causes of depression and the ways it is treated. Information is provided to help those who are struggling with major depressive disorder.","English",40.9,32.72,"618.92'8527--dc23","104 pp.","https://greenhavenpublishing.com/9781534561236",null,{"$f":"Table1[[#This Row],['# of Books]]*Table1[[#This Row],[QTY]]","v":0},{"$f":"Table1[[#This Row],[QTY]]*Table1[[#This Row],[School & Library Price]]","v":0}]
[null,null,21,null,null,"Health & Medicine","Diseases and Disorders","Major Depressive Disorder","978-1-5345-6124-3",{"$f":"HYPERLINK(Table1[[#This Row],[eCommerce Hyperlink]],\"Book Weblink\")","v":"Book Weblink"},null,"Lucent Press","eBook",1,"2018","August 2017",null,null,"Author","Simon Pierce",null,null,null,null,"Z","1210L","Grade 7","Grade 7 - 10","Often known simply as depression, major depressive disorder can affect anyone. This extremely common disorder causes intense feelings of sadness, guilt, and worthlessness, often without any identifiable cause. It is much more than merely feeling sad. Through engaging text and enlightening sidebars, this volume discusses some of the scientific causes of depression and the ways it is treated. Information is provided to help those who are struggling with major depressive disorder.","English",40.9,32.72,"618.92'8527--dc23","104 pp.","https://greenhavenpublishing.com/9781534561243",null,{"$f":"Table1[[#This Row],['# of Books]]*Table1[[#This Row],[QTY]]","v":0},{"$f":"Table1[[#This Row],[QTY]]*Table1[[#This Row],[School & Library Price]]","v":0}]
[null,null,21,null,null,"Health & Medicine","Diseases and Disorders","The Dangers of Sexually Transmitted Diseases","978-1-5345-6125-0",{"$f":"HYPERLINK(Table1[[#This Row],[eCommerce Hyperlink]],\"Book Weblink\")","v":"Book Weblink"},null,"Lucent Press","Library Bound Book",1,"2018","August 2017","Library","6.000 X 9.000","Author","Christine Honders",null,null,null,null,"Z",null,"Grade 7","Grade 7 - 10","Sexually transmitted diseases are an unfortunate danger for people who are sexually active. The Center for Disease Control and Prevention reports that half of all sexually transmitted infections affect people ages 15 to 24, so it is crucial to educate young adults about the consequences of unprotected sex before they become sexually active. Full-color photographs and detailed infographics supplement the informative text’s discussion of the most common sexually transmitted diseases and the ways in which their spread can be prevented.","English",40.9,32.72,"616.95'1--dc23","104 pp.","https://greenhavenpublishing.com/9781534561250",null,{"$f":"Table1[[#This Row],['# of Books]]*Table1[[#This Row],[QTY]]","v":0},{"$f":"Table1[[#This Row],[QTY]]*Table1[[#This Row],[School & Library Price]]","v":0}]
[null,null,21,null,null,"Health & Medicine","Diseases and Disorders","The Dangers of Sexually Transmitted Diseases","978-1-5345-6126-7",{"$f":"HYPERLINK(Table1[[#This Row],[eCommerce Hyperlink]],\"Book Weblink\")","v":"Book Weblink"},null,"Lucent Press","eBook",1,"2018","August 2017",null,null,"Author","Christine Honders",null,null,null,null,"Z",null,"Grade 7","Grade 7 - 10","Sexually transmitted diseases are an unfortunate danger for people who are sexually active. The Center for Disease Control and Prevention reports that half of all sexually transmitted infections affect people ages 15 to 24, so it is crucial to educate young adults about the consequences of unprotected sex before they become sexually active. Full-color photographs and detailed infographics supplement the informative text’s discussion of the most common sexually transmitted diseases and the ways in which their spread can be prevented.","English",40.9,32.72,"616.95'1--dc23","104 pp.","https://greenhavenpublishing.com/9781534561267",null,{"$f":"Table1[[#This Row],['# of Books]]*Table1[[#This Row],[QTY]]","v":0},{"$f":"Table1[[#This Row],[QTY]]*Table1[[#This Row],[School & Library Price]]","v":0}]
[null,null,21,null,null,"Health & Medicine","Diseases and Disorders","The Zika Virus","978-1-5345-6129-8",{"$f":"HYPERLINK(Table1[[#This Row],[eCommerce Hyperlink]],\"Book Weblink\")","v":"Book Weblink"},null,"Lucent Press","Library Bound Book",1,"2018","August 2017","Library","6.000 X 9.000","Author","Michelle Denton",null,null,null,null,"Z","1370L","Grade 7","Grade 7 - 10","Although the Zika virus was identified in the late 1940s, a mass outbreak did not occur until recently. Because most of the world is not immune to this virus, it spreads very quickly. Readers discover the history of the Zika virus, facts about its recent spread, the symptoms of the disease, and ways people can protect themselves against it. Full-color photographs and engaging sidebars augment this detailed discussion of a disease that is still mysterious to much of the general public.","English",40.9,32.72,"614.5'885--dc23","104 pp.","https://greenhavenpublishing.com/9781534561298",null,{"$f":"Table1[[#This Row],['# of Books]]*Table1[[#This Row],[QTY]]","v":0},{"$f":"Table1[[#This Row],[QTY]]*Table1[[#This Row],[School & Library Price]]","v":0}]
[null,null,21,null,null,"Health & Medicine","Diseases and Disorders","The Zika Virus","978-1-5345-6130-4",{"$f":"HYPERLINK(Table1[[#This Row],[eCommerce Hyperlink]],\"Book Weblink\")","v":"Book Weblink"},null,"Lucent Press","eBook",1,"2018","August 2017",null,null,"Author","Michelle Denton",null,null,null,null,"Z","1370L","Grade 7","Grade 7 - 10","Although the Zika virus was identified in the late 1940s, a mass outbreak did not occur until recently. Because most of the world is not immune to this virus, it spreads very quickly. Readers discover the history of the Zika virus, facts about its recent spread, the symptoms of the disease, and ways people can protect themselves against it. Full-color photographs and engaging sidebars augment this detailed discussion of a disease that is still mysterious to much of the general public.","English",40.9,32.72,"614.5'885--dc23","104 pp.","https://greenhavenpublishing.com/9781534561304",null,{"$f":"Table1[[#This Row],['# of Books]]*Table1[[#This Row],[QTY]]","v":0},{"$f":"Table1[[#This Row],[QTY]]*Table1[[#This Row],[School & Library Price]]","v":0}]
[null,null,21,null,null,"Health & Medicine","Diseases and Disorders","Diseases and Disorders: Set 2","978-1-5345-6260-8",{"$f":"HYPERLINK(Table1[[#This Row],[eCommerce Hyperlink]],\"Book Weblink\")","v":"Book Weblink"},null,"Lucent Press","Library Set",6,"2018","January 2018","Library","6.000 X 9.000",null,null,null,null,null,null,null,null,"Grade 7","Grade 7 - 10","Although our understanding of diseases and disorders has evolved over time, there are still many incorrect assumptions made about people who suffer from certain ailments. People with obsessive-compulsive disorder are not people who simply like to arrange things by color. People with chronic pain have a debilitating illness, even though they do not appear to be sick. These and other assumptions are debunked as readers discover the truth about diseases and disorders ranging from breast cancer to epilepsy. Essential facts are presented through accessible main text and sidebars, as well as detailed charts and graphs. Features include: Annotated quotes from medical professionals and people living with these conditions are included to provide readers with a comprehensive understanding of each topic. Readers are presented with the latest technological and scientific advancements used to diagnose and treat these conditions. Each volume serves as a helpful resource for those looking to enhance their general knowledge of biology and modern medicine, as well as an objective, informative tool for young people dealing with a certain disease or disorder in their own life.","English",245.4,196.32,null,"104 pp.","https://greenhavenpublishing.com/9781534562608",null,{"$f":"Table1[[#This Row],['# of Books]]*Table1[[#This Row],[QTY]]","v":0},{"$f":"Table1[[#This Row],[QTY]]*Table1[[#This Row],[School & Library Price]]","v":0}]
[null,null,21,null,null,"Health & Medicine","Diseases and Disorders","Diseases and Disorders (Spring 2018)","978-1-5345-6317-9",{"$f":"HYPERLINK(Table1[[#This Row],[eCommerce Hyperlink]],\"Book Weblink\")","v":"Book Weblink"},null,"Lucent Press","Single Copy Set",6,"2018","January 2018","Paperback","6.000 X 9.000",null,null,null,null,null,null,null,null,"Grade 7","Grade 7 - 10","Although our understanding of diseases and disorders has evolved over time, there are still many incorrect assumptions made about people who suffer from certain ailments. People with obsessive-compulsive disorder are not people who simply like to arrange things by color. People with chronic pain have a debilitating illness, even though they do not appear to be sick. These and other assumptions are debunked as readers discover the truth about diseases and disorders ranging from breast cancer to epilepsy. Essential facts are presented through accessible main text and sidebars, as well as detailed charts and graphs. Features include: Annotated quotes from medical professionals and people living with these conditions are included to provide readers with a comprehensive understanding of each topic. Readers are presented with the latest technological and scientific advancements used to diagnose and treat these conditions. Each volume serves as a helpful resource for those looking to enhance their general knowledge of biology and modern medicine, as well as an objective, informative tool for young people dealing with a certain disease or disorder in their own life.","English",125.94,107.1,null,"104 pp.","https://greenhavenpublishing.com/9781534563179",null,{"$f":"Table1[[#This Row],['# of Books]]*Table1[[#This Row],[QTY]]","v":0},{"$f":"Table1[[#This Row],[QTY]]*Table1[[#This Row],[School & Library Price]]","v":0}]
[null,null,21,null,null,"Health & Medicine","Diseases and Disorders","Alzheimer's Disease: A Difficult Diagnosis","978-1-5345-6189-2",{"$f":"HYPERLINK(Table1[[#This Row],[eCommerce Hyperlink]],\"Book Weblink\")","v":"Book Weblink"},null,"Lucent Press","Library Bound Book",1,"2018","January 2018","Library","6.000 X 9.000","Author","Jennifer Lombardo",null,null,null,null,"Z","1210L","Grade 7","Grade 7 - 10","As some people age, their brain begins to deteriorate, causing loss of memory and other problems. Researchers are still unsure of the exact causes of Alzheimer's disease, but they believe lifestyle and genetics play a role. Through informative sidebars and enlightening infographics, which supplement the relatable text, readers learn about what Alzheimer's is and how to support a loved one who has been diagnosed. They also learn what is being done to work toward a cure for this disease.","English",40.9,32.72,"616.8/311--dc23","104 pp.","https://greenhavenpublishing.com/9781534561892",null,{"$f":"Table1[[#This Row],['# of Books]]*Table1[[#This Row],[QTY]]","v":0},{"$f":"Table1[[#This Row],[QTY]]*Table1[[#This Row],[School & Library Price]]","v":0}]
[null,null,21,null,null,"Health & Medicine","Diseases and Disorders","Alzheimer's Disease: A Difficult Diagnosis","978-1-5345-6188-5",{"$f":"HYPERLINK(Table1[[#This Row],[eCommerce Hyperlink]],\"Book Weblink\")","v":"Book Weblink"},null,"Lucent Press","eBook",1,"2018","January 2018",null,null,"Author","Jennifer Lombardo",null,null,null,null,"Z","1210L","Grade 7","Grade 7 - 10","As some people age, their brain begins to deteriorate, causing loss of memory and other problems. Researchers are still unsure of the exact causes of Alzheimer's disease, but they believe lifestyle and genetics play a role. Through informative sidebars and enlightening infographics, which supplement the relatable text, readers learn about what Alzheimer's is and how to support a loved one who has been diagnosed. They also learn what is being done to work toward a cure for this disease.","English",40.9,32.72,"616.8/311--dc23","104 pp.","https://greenhavenpublishing.com/9781534561885",null,{"$f":"Table1[[#This Row],['# of Books]]*Table1[[#This Row],[QTY]]","v":0},{"$f":"Table1[[#This Row],[QTY]]*Table1[[#This Row],[School & Library Price]]","v":0}]
[null,null,21,null,null,"Health & Medicine","Diseases and Disorders","Alzheimer's Disease: A Difficult Diagnosis","978-1-5345-6282-0",{"$f":"HYPERLINK(Table1[[#This Row],[eCommerce Hyperlink]],\"Book Weblink\")","v":"Book Weblink"},null,"Lucent Press","Paperback Book",1,"2018","January 2018","Paperback","6.000 X 9.000","Author","Jennifer Lombardo",null,null,null,null,"Z","1210L","Grade 7","Grade 7 - 10","As some people age, their brain begins to deteriorate, causing loss of memory and other problems. Researchers are still unsure of the exact causes of Alzheimer's disease, but they believe lifestyle and genetics play a role. Through informative sidebars and enlightening infographics, which supplement the relatable text, readers learn about what Alzheimer's is and how to support a loved one who has been diagnosed. They also learn what is being done to work toward a cure for this disease.","English",20.99,17.850000000000001,"616.8/311--dc23","104 pp.","https://greenhavenpublishing.com/9781534562820",null,{"$f":"Table1[[#This Row],['# of Books]]*Table1[[#This Row],[QTY]]","v":0},{"$f":"Table1[[#This Row],[QTY]]*Table1[[#This Row],[School & Library Price]]","v":0}]
[null,null,21,null,null,"Health & Medicine","Diseases and Disorders","Breast Cancer: Risks, Detection, and Treatment","978-1-5345-6191-5",{"$f":"HYPERLINK(Table1[[#This Row],[eCommerce Hyperlink]],\"Book Weblink\")","v":"Book Weblink"},null,"Lucent Press","Library Bound Book",1,"2018","January 2018","Library","6.000 X 9.000","Author","Michelle Denton",null,null,null,null,"Z",null,"Grade 7","Grade 7 - 10","Cancer is a frightening word, but within the last decade, more research has led to better detection and treatment of breast cancer. Since both men and women are at risk for developing breast cancer, it is important for all young adults to learn about practices such as self-exams that may lead to early detection. This information is presented along with full-color photographs and informative charts to help readers better understand this disease that affects so many people.","English",40.9,32.72,"616.99/449--dc23","104 pp.","https://greenhavenpublishing.com/9781534561915",null,{"$f":"Table1[[#This Row],['# of Books]]*Table1[[#This Row],[QTY]]","v":0},{"$f":"Table1[[#This Row],[QTY]]*Table1[[#This Row],[School & Library Price]]","v":0}]
[null,null,21,null,null,"Health & Medicine","Diseases and Disorders","Breast Cancer: Risks, Detection, and Treatment","978-1-5345-6190-8",{"$f":"HYPERLINK(Table1[[#This Row],[eCommerce Hyperlink]],\"Book Weblink\")","v":"Book Weblink"},null,"Lucent Press","eBook",1,"2018","January 2018",null,null,"Author","Michelle Denton",null,null,null,null,"Z",null,"Grade 7","Grade 7 - 10","Cancer is a frightening word, but within the last decade, more research has led to better detection and treatment of breast cancer. Since both men and women are at risk for developing breast cancer, it is important for all young adults to learn about practices such as self-exams that may lead to early detection. This information is presented along with full-color photographs and informative charts to help readers better understand this disease that affects so many people.","English",40.9,32.72,"616.99/449--dc23","104 pp.","https://greenhavenpublishing.com/9781534561908",null,{"$f":"Table1[[#This Row],['# of Books]]*Table1[[#This Row],[QTY]]","v":0},{"$f":"Table1[[#This Row],[QTY]]*Table1[[#This Row],[School & Library Price]]","v":0}]
[null,null,21,null,null,"Health & Medicine","Diseases and Disorders","Breast Cancer: Risks, Detection, and Treatment","978-1-5345-6283-7",{"$f":"HYPERLINK(Table1[[#This Row],[eCommerce Hyperlink]],\"Book Weblink\")","v":"Book Weblink"},null,"Lucent Press","Paperback Book",1,"2018","January 2018","Paperback","6.000 X 9.000","Author","Michelle Denton",null,null,null,null,"Z",null,"Grade 7","Grade 7 - 10","Cancer is a frightening word, but within the last decade, more research has led to better detection and treatment of breast cancer. Since both men and women are at risk for developing breast cancer, it is important for all young adults to learn about practices such as self-exams that may lead to early detection. This information is presented along with full-color photographs and informative charts to help readers better understand this disease that affects so many people.","English",20.99,17.850000000000001,"616.99/449--dc23","104 pp.","https://greenhavenpublishing.com/9781534562837",null,{"$f":"Table1[[#This Row],['# of Books]]*Table1[[#This Row],[QTY]]","v":0},{"$f":"Table1[[#This Row],[QTY]]*Table1[[#This Row],[School & Library Price]]","v":0}]
[null,null,21,null,null,"Health & Medicine","Diseases and Disorders","Chronic Pain: An Invisible Illness","978-1-5345-6196-0",{"$f":"HYPERLINK(Table1[[#This Row],[eCommerce Hyperlink]],\"Book Weblink\")","v":"Book Weblink"},null,"Lucent Press","Library Bound Book",1,"2018","January 2018","Library","6.000 X 9.000","Author","Kelly Gurnett",null,null,null,null,"Z","1220L","Grade 7","Grade 7 - 10","Everyone has experienced pain at one point or another, but disorders such as fibromyalgia and multiple sclerosis cause severe, long-term pain that can greatly limit a person's everyday activities. Because the cause of this pain is not visible, many people do not fully understand these disorders. This volume dispels the myths surrounding chronic pain to give readers a better understanding of the daily struggles people who suffer from it face. Informative sidebars and detailed infographics help young adults learn how to support a loved one who is dealing with an invisible illness or cope with their own chronic pain diagnosis.","English",40.9,32.72,"618.92'044--dc23","104 pp.","https://greenhavenpublishing.com/9781534561960",null,{"$f":"Table1[[#This Row],['# of Books]]*Table1[[#This Row],[QTY]]","v":0},{"$f":"Table1[[#This Row],[QTY]]*Table1[[#This Row],[School & Library Price]]","v":0}]
[null,null,21,null,null,"Health & Medicine","Diseases and Disorders","Chronic Pain: An Invisible Illness","978-1-5345-6195-3",{"$f":"HYPERLINK(Table1[[#This Row],[eCommerce Hyperlink]],\"Book Weblink\")","v":"Book Weblink"},null,"Lucent Press","eBook",1,"2018","January 2018",null,null,"Author","Kelly Gurnett",null,null,null,null,"Z","1220L","Grade 7","Grade 7 - 10","Everyone has experienced pain at one point or another, but disorders such as fibromyalgia and multiple sclerosis cause severe, long-term pain that can greatly limit a person's everyday activities. Because the cause of this pain is not visible, many people do not fully understand these disorders. This volume dispels the myths surrounding chronic pain to give readers a better understanding of the daily struggles people who suffer from it face. Informative sidebars and detailed infographics help young adults learn how to support a loved one who is dealing with an invisible illness or cope with their own chronic pain diagnosis.","English",40.9,32.72,"618.92'044--dc23","104 pp.","https://greenhavenpublishing.com/9781534561953",null,{"$f":"Table1[[#This Row],['# of Books]]*Table1[[#This Row],[QTY]]","v":0},{"$f":"Table1[[#This Row],[QTY]]*Table1[[#This Row],[School & Library Price]]","v":0}]
[null,null,21,null,null,"Health & Medicine","Diseases and Disorders","Chronic Pain: An Invisible Illness","978-1-5345-6284-4",{"$f":"HYPERLINK(Table1[[#This Row],[eCommerce Hyperlink]],\"Book Weblink\")","v":"Book Weblink"},null,"Lucent Press","Paperback Book",1,"2018","January 2018","Paperback","6.000 X 9.000","Author","Kelly Gurnett",null,null,null,null,"Z","1220L","Grade 7","Grade 7 - 10","Everyone has experienced pain at one point or another, but disorders such as fibromyalgia and multiple sclerosis cause severe, long-term pain that can greatly limit a person's everyday activities. Because the cause of this pain is not visible, many people do not fully understand these disorders. This volume dispels the myths surrounding chronic pain to give readers a better understanding of the daily struggles people who suffer from it face. Informative sidebars and detailed infographics help young adults learn how to support a loved one who is dealing with an invisible illness or cope with their own chronic pain diagnosis.","English",20.99,17.850000000000001,"618.92'044--dc23","104 pp.","https://greenhavenpublishing.com/9781534562844",null,{"$f":"Table1[[#This Row],['# of Books]]*Table1[[#This Row],[QTY]]","v":0},{"$f":"Table1[[#This Row],[QTY]]*Table1[[#This Row],[School & Library Price]]","v":0}]
[null,null,21,null,null,"Health & Medicine","Diseases and Disorders","Diabetes: Diagnosis and Management","978-1-5345-6232-5",{"$f":"HYPERLINK(Table1[[#This Row],[eCommerce Hyperlink]],\"Book Weblink\")","v":"Book Weblink"},null,"Lucent Press","Library Bound Book",1,"2018","January 2018","Library","6.000 X 9.000","Author","Emily Mahoney",null,null,null,null,"Z","1190L","Grade 7","Grade 7 - 10","Both type 1 and type 2 diabetes are dangerous if left unchecked, but with early diagnosis and careful management, people can live long, healthy lives without complications from the disease. Learning about the symptoms is key to detecting diabetes before it becomes a problem, and readers discover those symptoms as they explore this important topic. Enlightening sidebars and full-color photographs enhance the engaging text, and quotes from medical experts give readers factual, up-to-date information about this treatable disease.","English",40.9,32.72,"616.4/62--dc23","104 pp.","https://greenhavenpublishing.com/9781534562325",null,{"$f":"Table1[[#This Row],['# of Books]]*Table1[[#This Row],[QTY]]","v":0},{"$f":"Table1[[#This Row],[QTY]]*Table1[[#This Row],[School & Library Price]]","v":0}]
[null,null,21,null,null,"Health & Medicine","Diseases and Disorders","Diabetes: Diagnosis and Management","978-1-5345-6192-2",{"$f":"HYPERLINK(Table1[[#This Row],[eCommerce Hyperlink]],\"Book Weblink\")","v":"Book Weblink"},null,"Lucent Press","eBook",1,"2018","January 2018",null,null,"Author","Emily Mahoney",null,null,null,null,"Z","1190L","Grade 7","Grade 7 - 10","Both type 1 and type 2 diabetes are dangerous if left unchecked, but with early diagnosis and careful management, people can live long, healthy lives without complications from the disease. Learning about the symptoms is key to detecting diabetes before it becomes a problem, and readers discover those symptoms as they explore this important topic. Enlightening sidebars and full-color photographs enhance the engaging text, and quotes from medical experts give readers factual, up-to-date information about this treatable disease.","English",40.9,32.72,"616.4/62--dc23","104 pp.","https://greenhavenpublishing.com/9781534561922",null,{"$f":"Table1[[#This Row],['# of Books]]*Table1[[#This Row],[QTY]]","v":0},{"$f":"Table1[[#This Row],[QTY]]*Table1[[#This Row],[School & Library Price]]","v":0}]
[null,null,21,null,null,"Health & Medicine","Diseases and Disorders","Diabetes: Diagnosis and Management","978-1-5345-6285-1",{"$f":"HYPERLINK(Table1[[#This Row],[eCommerce Hyperlink]],\"Book Weblink\")","v":"Book Weblink"},null,"Lucent Press","Paperback Book",1,"2018","January 2018","Paperback","6.000 X 9.000","Author","Emily Mahoney",null,null,null,null,"Z","1190L","Grade 7","Grade 7 - 10","Both type 1 and type 2 diabetes are dangerous if left unchecked, but with early diagnosis and careful management, people can live long, healthy lives without complications from the disease. Learning about the symptoms is key to detecting diabetes before it becomes a problem, and readers discover those symptoms as they explore this important topic. Enlightening sidebars and full-color photographs enhance the engaging text, and quotes from medical experts give readers factual, up-to-date information about this treatable disease.","English",20.99,17.850000000000001,"616.4/62--dc23","104 pp.","https://greenhavenpublishing.com/9781534562851",null,{"$f":"Table1[[#This Row],['# of Books]]*Table1[[#This Row],[QTY]]","v":0},{"$f":"Table1[[#This Row],[QTY]]*Table1[[#This Row],[School & Library Price]]","v":0}]
[null,null,21,null,null,"Health & Medicine","Diseases and Disorders","Epilepsy: Coming to Terms with Chronic Seizures","978-1-5345-6258-5",{"$f":"HYPERLINK(Table1[[#This Row],[eCommerce Hyperlink]],\"Book Weblink\")","v":"Book Weblink"},null,"Lucent Press","Library Bound Book",1,"2018","January 2018","Library","6.000 X 9.000","Author","Simon Pierce",null,null,null,null,"Z","1180L","Grade 7","Grade 7 - 10","Epilepsy can be frightening to both the sufferer and their loved ones. However, knowing more about the symptoms and treatment can give people a sense of empowerment. This volume discusses what epilepsy is, how it can be treated, and what can be done for someone who is having a seizure. The narrative is supplemented with in-depth sidebars, full-color photographs, and detailed charts. It dispels the myths surrounding epilepsy and gives readers a clear picture of this challenging disorder.","English",40.9,32.72,"616.85/3--dc23","104 pp.","https://greenhavenpublishing.com/9781534562585",null,{"$f":"Table1[[#This Row],['# of Books]]*Table1[[#This Row],[QTY]]","v":0},{"$f":"Table1[[#This Row],[QTY]]*Table1[[#This Row],[School & Library Price]]","v":0}]
[null,null,21,null,null,"Health & Medicine","Diseases and Disorders","Epilepsy: Coming to Terms with Chronic Seizures","978-1-5345-6259-2",{"$f":"HYPERLINK(Table1[[#This Row],[eCommerce Hyperlink]],\"Book Weblink\")","v":"Book Weblink"},null,"Lucent Press","eBook",1,"2018","January 2018",null,null,"Author","Simon Pierce",null,null,null,null,"Z","1180L","Grade 7","Grade 7 - 10","Epilepsy can be frightening to both the sufferer and their loved ones. However, knowing more about the symptoms and treatment can give people a sense of empowerment. This volume discusses what epilepsy is, how it can be treated, and what can be done for someone who is having a seizure. The narrative is supplemented with in-depth sidebars, full-color photographs, and detailed charts. It dispels the myths surrounding epilepsy and gives readers a clear picture of this challenging disorder.","English",40.9,32.72,"616.85/3--dc23","104 pp.","https://greenhavenpublishing.com/9781534562592",null,{"$f":"Table1[[#This Row],['# of Books]]*Table1[[#This Row],[QTY]]","v":0},{"$f":"Table1[[#This Row],[QTY]]*Table1[[#This Row],[School & Library Price]]","v":0}]
[null,null,21,null,null,"Health & Medicine","Diseases and Disorders","Epilepsy: Coming to Terms with Chronic Seizures","978-1-5345-6286-8",{"$f":"HYPERLINK(Table1[[#This Row],[eCommerce Hyperlink]],\"Book Weblink\")","v":"Book Weblink"},null,"Lucent Press","Paperback Book",1,"2018","January 2018","Paperback","6.000 X 9.000","Author","Simon Pierce",null,null,null,null,"Z","1180L","Grade 7","Grade 7 - 10","Epilepsy can be frightening to both the sufferer and their loved ones. However, knowing more about the symptoms and treatment can give people a sense of empowerment. This volume discusses what epilepsy is, how it can be treated, and what can be done for someone who is having a seizure. The narrative is supplemented with in-depth sidebars, full-color photographs, and detailed charts. It dispels the myths surrounding epilepsy and gives readers a clear picture of this challenging disorder.","English",20.99,17.850000000000001,"616.85/3--dc23","104 pp.","https://greenhavenpublishing.com/9781534562868",null,{"$f":"Table1[[#This Row],['# of Books]]*Table1[[#This Row],[QTY]]","v":0},{"$f":"Table1[[#This Row],[QTY]]*Table1[[#This Row],[School & Library Price]]","v":0}]
[null,null,21,null,null,"Health & Medicine","Diseases and Disorders","OCD: The Struggle with Obsessions and Compulsions","978-1-5345-6194-6",{"$f":"HYPERLINK(Table1[[#This Row],[eCommerce Hyperlink]],\"Book Weblink\")","v":"Book Weblink"},null,"Lucent Press","Library Bound Book",1,"2018","January 2018","Library","6.000 X 9.000","Author","Christine Honders",null,null,null,null,"Z","1240L","Grade 7","Grade 7 - 10","Because of the way obsessive-compulsive disorder is portrayed in the media, many people believe it is simply a personality quirk. In reality, this disorder can cause severe distress for people who have it, as well as for their loved ones. Through relatable text, augmented by informative sidebars and full-color photographs, this volume helps readers understand how people with OCD use rituals to cope with distressing intrusive thoughts. A list of organizations to contact gives people who are struggling with this disorder resources to connect with others who understand what they are going through.","English",40.9,32.72,"616.85/227--dc23","104 pp.","https://greenhavenpublishing.com/9781534561946",null,{"$f":"Table1[[#This Row],['# of Books]]*Table1[[#This Row],[QTY]]","v":0},{"$f":"Table1[[#This Row],[QTY]]*Table1[[#This Row],[School & Library Price]]","v":0}]
[null,null,21,null,null,"Health & Medicine","Diseases and Disorders","OCD: The Struggle with Obsessions and Compulsions","978-1-5345-6193-9",{"$f":"HYPERLINK(Table1[[#This Row],[eCommerce Hyperlink]],\"Book Weblink\")","v":"Book Weblink"},null,"Lucent Press","eBook",1,"2018","January 2018",null,null,"Author","Christine Honders",null,null,null,null,"Z","1240L","Grade 7","Grade 7 - 10","Because of the way obsessive-compulsive disorder is portrayed in the media, many people believe it is simply a personality quirk. In reality, this disorder can cause severe distress for people who have it, as well as for their loved ones. Through relatable text, augmented by informative sidebars and full-color photographs, this volume helps readers understand how people with OCD use rituals to cope with distressing intrusive thoughts. A list of organizations to contact gives people who are struggling with this disorder resources to connect with others who understand what they are going through.","English",40.9,32.72,"616.85/227--dc23","104 pp.","https://greenhavenpublishing.com/9781534561939",null,{"$f":"Table1[[#This Row],['# of Books]]*Table1[[#This Row],[QTY]]","v":0},{"$f":"Table1[[#This Row],[QTY]]*Table1[[#This Row],[School & Library Price]]","v":0}]
[null,null,21,null,null,"Health & Medicine","Diseases and Disorders","OCD: The Struggle with Obsessions and Compulsions","978-1-5345-6287-5",{"$f":"HYPERLINK(Table1[[#This Row],[eCommerce Hyperlink]],\"Book Weblink\")","v":"Book Weblink"},null,"Lucent Press","Paperback Book",1,"2018","January 2018","Paperback","6.000 X 9.000","Author","Christine Honders",null,null,null,null,"Z","1240L","Grade 7","Grade 7 - 10","Because of the way obsessive-compulsive disorder is portrayed in the media, many people believe it is simply a personality quirk. In reality, this disorder can cause severe distress for people who have it, as well as for their loved ones. Through relatable text, augmented by informative sidebars and full-color photographs, this volume helps readers understand how people with OCD use rituals to cope with distressing intrusive thoughts. A list of organizations to contact gives people who are struggling with this disorder resources to connect with others who understand what they are going through.","English",20.99,17.850000000000001,"616.85/227--dc23","104 pp.","https://greenhavenpublishing.com/9781534562875",null,{"$f":"Table1[[#This Row],['# of Books]]*Table1[[#This Row],[QTY]]","v":0},{"$f":"Table1[[#This Row],[QTY]]*Table1[[#This Row],[School & Library Price]]","v":0}]
[null,null,21,null,null,"Health & Medicine","Diseases and Disorders","Diseases and Disorders: Set 3","978-1-5345-6455-8",{"$f":"HYPERLINK(Table1[[#This Row],[eCommerce Hyperlink]],\"Book Weblink\")","v":"Book Weblink"},null,"Lucent Press","Library Set",6,"2019","August 2018","Library","6.000 X 9.000",null,null,null,null,null,null,null,null,"Grade 7","Grade 7 - 10","Illness is often a personal thing; when a person does not have a particular disorder, it can be difficult for them to imagine what someone else is going through. Additionally, there is often much misinformation surrounding both mental and physical illnesses. Through accessible text and informative charts and graphs, readers learn the facts about diseases and disorders that affect millions of people. Quotes by medical experts and people who are affected by each illness, as well as full-color photographs, give readers a clearer picture of what it is like to be unwell in a society that prizes health. Features include: Readers learn about common but frequently misunderstood illnesses, including migraines, post-traumatic stress disorder, celiac disease, and ADHD. In-depth sidebars examine important social and scientific issues related to each illness. Up-to-date data shows the impact of each illness on both a personal and societal level.","English",245.4,196.32,null,"104 pp.","https://greenhavenpublishing.com/9781534564558",null,{"$f":"Table1[[#This Row],['# of Books]]*Table1[[#This Row],[QTY]]","v":0},{"$f":"Table1[[#This Row],[QTY]]*Table1[[#This Row],[School & Library Price]]","v":0}]
[null,null,21,null,null,"Health & Medicine","Diseases and Disorders","Diseases and Disorders (Fall 2018)","978-1-5345-6467-1",{"$f":"HYPERLINK(Table1[[#This Row],[eCommerce Hyperlink]],\"Book Weblink\")","v":"Book Weblink"},null,"Lucent Press","Single Copy Set",6,"2019","August 2018","Paperback","6.000 X 9.000",null,null,null,null,null,null,null,null,"Grade 7","Grade 7 - 10","Illness is often a personal thing; when a person does not have a particular disorder, it can be difficult for them to imagine what someone else is going through. Additionally, there is often much misinformation surrounding illnesses, both mental and physical. Through accessible text and informative charts and graphs, readers learn the facts about diseases and disorders that affect millions of people. Quotes by medical experts and people who are affected by each illness, as well as full-color photographs, give readers a clearer picture of what it is like to be unwell in a society that prizes health. Features include: Readers learn about common but frequently misunderstood illnesses, including migraines, post-traumatic stress disorder, celiac disease, and ADHD. In-depth sidebars examine important social and scientific issues related to each illness. Up-to-date data shows the impact of each illness on both a personal and societal level.","English",125.94,107.1,null,"104 pp.","https://greenhavenpublishing.com/9781534564671",null,{"$f":"Table1[[#This Row],['# of Books]]*Table1[[#This Row],[QTY]]","v":0},{"$f":"Table1[[#This Row],[QTY]]*Table1[[#This Row],[School & Library Price]]","v":0}]
[null,null,21,null,null,"Health & Medicine","Diseases and Disorders","Celiac Disease and Gluten Sensitivity","978-1-5345-6373-5",{"$f":"HYPERLINK(Table1[[#This Row],[eCommerce Hyperlink]],\"Book Weblink\")","v":"Book Weblink"},null,"Lucent Press","Library Bound Book",1,"2019","August 2018","Library","6.000 X 9.000","Author","Michelle Denton",null,null,null,null,"Z","1390L","Grade 7","Grade 7 - 10","In recent years, avoiding gluten has become a dieting fad, which has led to the spread of misinformation about celiac disease and gluten sensitivity. Many people are under the impression that these are not real issues, which leads to a lack of compassion and sometimes an unwillingness to make the necessary dietary accommodations for someone who has the disease. Enlightening charts, annotated quotes, full-color photographs, and in-depth sidebars give readers a thorough understanding of the effects of celiac disease and gluten sensitivity as well as how to support a loved one who is dealing with some degree of gluten sensitivity.","English",40.9,32.72,"616.3'99--dc23","104 pp.","https://greenhavenpublishing.com/9781534563735",null,{"$f":"Table1[[#This Row],['# of Books]]*Table1[[#This Row],[QTY]]","v":0},{"$f":"Table1[[#This Row],[QTY]]*Table1[[#This Row],[School & Library Price]]","v":0}]
[null,null,21,null,null,"Health & Medicine","Diseases and Disorders","Celiac Disease and Gluten Sensitivity","978-1-5345-6374-2",{"$f":"HYPERLINK(Table1[[#This Row],[eCommerce Hyperlink]],\"Book Weblink\")","v":"Book Weblink"},null,"Lucent Press","eBook",1,"2019","August 2018",null,null,"Author","Michelle Denton",null,null,null,null,"Z","1390L","Grade 7","Grade 7 - 10","In recent years, avoiding gluten has become a dieting fad, which has led to the spread of misinformation about celiac disease and gluten sensitivity. Many people are under the impression that these are not real issues, which leads to a lack of compassion and sometimes an unwillingness to make the necessary dietary accommodations for someone who has the disease. Enlightening charts, annotated quotes, full-color photographs, and in-depth sidebars give readers a thorough understanding of the effects of celiac disease and gluten sensitivity as well as how to support a loved one who is dealing with some degree of gluten sensitivity.","English",40.9,32.72,"616.3'99--dc23","104 pp.","https://greenhavenpublishing.com/9781534563742",null,{"$f":"Table1[[#This Row],['# of Books]]*Table1[[#This Row],[QTY]]","v":0},{"$f":"Table1[[#This Row],[QTY]]*Table1[[#This Row],[School & Library Price]]","v":0}]
[null,null,21,null,null,"Health & Medicine","Diseases and Disorders","Celiac Disease and Gluten Sensitivity","978-1-5345-6375-9",{"$f":"HYPERLINK(Table1[[#This Row],[eCommerce Hyperlink]],\"Book Weblink\")","v":"Book Weblink"},null,"Lucent Press","Paperback Book",1,"2019","August 2018","Paperback","6.000 X 9.000","Author","Michelle Denton",null,null,null,null,"Z","1390L","Grade 7","Grade 7 - 10","In recent years, avoiding gluten has become a dieting fad, which has led to the spread of misinformation about celiac disease and gluten sensitivity. Many people are under the impression that these are not real issues, which leads to a lack of compassion and sometimes an unwillingness to make the necessary dietary accommodations for someone who has the disease. Enlightening charts, annotated quotes, full-color photographs, and in-depth sidebars give readers a thorough understanding of the effects of celiac disease and gluten sensitivity as well as how to support a loved one who is dealing with some degree of gluten sensitivity.","English",20.99,17.850000000000001,"616.3'99--dc23","104 pp.","https://greenhavenpublishing.com/9781534563759",null,{"$f":"Table1[[#This Row],['# of Books]]*Table1[[#This Row],[QTY]]","v":0},{"$f":"Table1[[#This Row],[QTY]]*Table1[[#This Row],[School & Library Price]]","v":0}]
[null,null,21,null,null,"Health & Medicine","Diseases and Disorders","HPV: Prevention and Treatment","978-1-5345-6370-4",{"$f":"HYPERLINK(Table1[[#This Row],[eCommerce Hyperlink]],\"Book Weblink\")","v":"Book Weblink"},null,"Lucent Press","Library Bound Book",1,"2019","August 2018","Library","6.000 X 9.000","Author","Michelle Harris",null,null,null,null,"Z",null,"Grade 7","Grade 7 - 10","Although human papillomavirus, or HPV, is the most common sexually transmitted disease, many people are unaware of the effects it can have. Its symptoms are generally mild compared to other diseases, and many times, no symptoms are present, leading to the mistaken belief that HPV is not serious. However, it can cause several types of cancer in both men and women, so knowledge of how to prevent and treat it is crucial. Through informative sidebars, annotated quotes from medical experts, and detailed graphs, readers learn the true risks of this disease and what precautions they can take to protect themselves.","English",40.9,32.72,"614.5/81--dc23","104 pp.","https://greenhavenpublishing.com/9781534563704",null,{"$f":"Table1[[#This Row],['# of Books]]*Table1[[#This Row],[QTY]]","v":0},{"$f":"Table1[[#This Row],[QTY]]*Table1[[#This Row],[School & Library Price]]","v":0}]
[null,null,21,null,null,"Health & Medicine","Diseases and Disorders","HPV: Prevention and Treatment","978-1-5345-6371-1",{"$f":"HYPERLINK(Table1[[#This Row],[eCommerce Hyperlink]],\"Book Weblink\")","v":"Book Weblink"},null,"Lucent Press","eBook",1,"2019","August 2018",null,null,"Author","Michelle Harris",null,null,null,null,"Z",null,"Grade 7","Grade 7 - 10","Although human papillomavirus, or HPV, is the most common sexually transmitted disease, many people are unaware of the effects it can have. Its symptoms are generally mild compared to other diseases, and many times, no symptoms are present, leading to the mistaken belief that HPV is not serious. However, it can cause several types of cancer in both men and women, so knowledge of how to prevent and treat it is crucial. Through informative sidebars, annotated quotes from medical experts, and detailed graphs, readers learn the true risks of this disease and what precautions they can take to protect themselves.","English",40.9,32.72,"614.5/81--dc23","104 pp.","https://greenhavenpublishing.com/9781534563711",null,{"$f":"Table1[[#This Row],['# of Books]]*Table1[[#This Row],[QTY]]","v":0},{"$f":"Table1[[#This Row],[QTY]]*Table1[[#This Row],[School & Library Price]]","v":0}]
[null,null,21,null,null,"Health & Medicine","Diseases and Disorders","HPV: Prevention and Treatment","978-1-5345-6372-8",{"$f":"HYPERLINK(Table1[[#This Row],[eCommerce Hyperlink]],\"Book Weblink\")","v":"Book Weblink"},null,"Lucent Press","Paperback Book",1,"2019","August 2018","Paperback","6.000 X 9.000","Author","Michelle Harris",null,null,null,null,"Z",null,"Grade 7","Grade 7 - 10","Although human papillomavirus, or HPV, is the most common sexually transmitted disease, many people are unaware of the effects it can have. Its symptoms are generally mild compared to other diseases, and many times, no symptoms are present, leading to the mistaken belief that HPV is not serious. However, it can cause several types of cancer in both men and women, so knowledge of how to prevent and treat it is crucial. Through informative sidebars, annotated quotes from medical experts, and detailed graphs, readers learn the true risks of this disease and what precautions they can take to protect themselves.","English",20.99,17.850000000000001,"614.5/81--dc23","104 pp.","https://greenhavenpublishing.com/9781534563728",null,{"$f":"Table1[[#This Row],['# of Books]]*Table1[[#This Row],[QTY]]","v":0},{"$f":"Table1[[#This Row],[QTY]]*Table1[[#This Row],[School & Library Price]]","v":0}]
[null,null,21,null,null,"Health & Medicine","Diseases and Disorders","Living with ADHD","978-1-5345-6459-6",{"$f":"HYPERLINK(Table1[[#This Row],[eCommerce Hyperlink]],\"Book Weblink\")","v":"Book Weblink"},null,"Lucent Press","Library Bound Book",1,"2019","August 2018","Library","6.000 X 9.000","Author","Nicole Horning",null,null,null,null,"Z","1210L","Grade 7","Grade 7 - 10","Attention deficit hyperactivity disorder, or ADHD, is the source of much controversy. Some people feel it is over-diagnosed today, while others believe it was under-diagnosed in the past. Similarly, disagreements about treatment methods, especially whether or not a child should be given medication for it, have been ongoing for years. Sometimes these arguments are fueled by misinformation, and those who are affected by ADHD may have difficulty making their voices heard. Through full-color photographs, engaging sidebars, and quotes from experts in the field, this volume explores all sides of the issue, helping readers form their own opinions.","English",40.9,32.72,"618.92'8589--dc23","104 pp.","https://greenhavenpublishing.com/9781534564596",null,{"$f":"Table1[[#This Row],['# of Books]]*Table1[[#This Row],[QTY]]","v":0},{"$f":"Table1[[#This Row],[QTY]]*Table1[[#This Row],[School & Library Price]]","v":0}]
[null,null,21,null,null,"Health & Medicine","Diseases and Disorders","Living with ADHD","978-1-5345-6368-1",{"$f":"HYPERLINK(Table1[[#This Row],[eCommerce Hyperlink]],\"Book Weblink\")","v":"Book Weblink"},null,"Lucent Press","eBook",1,"2019","August 2018",null,null,"Author","Nicole Horning",null,null,null,null,"Z","1210L","Grade 7","Grade 7 - 10","Attention deficit hyperactivity disorder, or ADHD, is the source of much controversy. Some people feel it is over-diagnosed today, while others believe it was under-diagnosed in the past. Similarly, disagreements about treatment methods, especially whether or not a child should be given medication for it, have been ongoing for years. Sometimes these arguments are fueled by misinformation, and those who are affected by ADHD may have difficulty making their voices heard. Through full-color photographs, engaging sidebars, and quotes from experts in the field, this volume explores all sides of the issue, helping readers form their own opinions.","English",40.9,32.72,"618.92'8589--dc23","104 pp.","https://greenhavenpublishing.com/9781534563681",null,{"$f":"Table1[[#This Row],['# of Books]]*Table1[[#This Row],[QTY]]","v":0},{"$f":"Table1[[#This Row],[QTY]]*Table1[[#This Row],[School & Library Price]]","v":0}]
[null,null,21,null,null,"Health & Medicine","Diseases and Disorders","Living with ADHD","978-1-5345-6369-8",{"$f":"HYPERLINK(Table1[[#This Row],[eCommerce Hyperlink]],\"Book Weblink\")","v":"Book Weblink"},null,"Lucent Press","Paperback Book",1,"2019","August 2018","Paperback","6.000 X 9.000","Author","Nicole Horning",null,null,null,null,"Z","1210L","Grade 7","Grade 7 - 10","Attention deficit hyperactivity disorder, or ADHD, is the source of much controversy. Some people feel it is over-diagnosed today, while others believe it was under-diagnosed in the past. Similarly, disagreements about treatment methods, especially whether or not a child should be given medication for it, have been ongoing for years. Sometimes these arguments are fueled by misinformation, and those who are affected by ADHD may have difficulty making their voices heard. Through full-color photographs, engaging sidebars, and quotes from experts in the field, this volume explores all sides of the issue, helping readers form their own opinions.","English",20.99,17.850000000000001,"618.92'8589--dc23","104 pp.","https://greenhavenpublishing.com/9781534563698",null,{"$f":"Table1[[#This Row],['# of Books]]*Table1[[#This Row],[QTY]]","v":0},{"$f":"Table1[[#This Row],[QTY]]*Table1[[#This Row],[School & Library Price]]","v":0}]
[null,null,21,null,null,"Health & Medicine","Diseases and Disorders","Lyme Disease: When Ticks Make You Sick","978-1-5345-6362-9",{"$f":"HYPERLINK(Table1[[#This Row],[eCommerce Hyperlink]],\"Book Weblink\")","v":"Book Weblink"},null,"Lucent Press","Library Bound Book",1,"2019","August 2018","Library","6.000 X 9.000","Author","Raymond J. Lampke",null,null,null,null,"Z","1300L","Grade 7","Grade 7 - 10","Lyme disease is not often discussed, which means the general public knows little about it. Many people are aware that it can be passed from ticks to humans, but questions remain. What are the symptoms? Is it contagious? Can it be treated? What are the best prevention methods? These questions and more are answered in this engaging book, with text that is enhanced with full-color photographs, annotated quotes, and informative sidebars. By fully informing themselves about this disease, readers will know the steps to take if they encounter it as well as how to support a loved one who contracts Lyme disease.","English",40.9,32.72,"616.9'246--dc23","104 pp.","https://greenhavenpublishing.com/9781534563629",null,{"$f":"Table1[[#This Row],['# of Books]]*Table1[[#This Row],[QTY]]","v":0},{"$f":"Table1[[#This Row],[QTY]]*Table1[[#This Row],[School & Library Price]]","v":0}]
[null,null,21,null,null,"Health & Medicine","Diseases and Disorders","Lyme Disease: When Ticks Make You Sick","978-1-5345-6363-6",{"$f":"HYPERLINK(Table1[[#This Row],[eCommerce Hyperlink]],\"Book Weblink\")","v":"Book Weblink"},null,"Lucent Press","eBook",1,"2019","August 2018",null,null,"Author","Raymond J. Lampke",null,null,null,null,"Z","1300L","Grade 7","Grade 7 - 10","Lyme disease is not often discussed, which means the general public knows little about it. Many people are aware that it can be passed from ticks to humans, but questions remain. What are the symptoms? Is it contagious? Can it be treated? What are the best prevention methods? These questions and more are answered in this engaging book, with text that is enhanced with full-color photographs, annotated quotes, and informative sidebars. By fully informing themselves about this disease, readers will know the steps to take if they encounter it as well as how to support a loved one who contracts Lyme disease.","English",40.9,32.72,"616.9'246--dc23","104 pp.","https://greenhavenpublishing.com/9781534563636",null,{"$f":"Table1[[#This Row],['# of Books]]*Table1[[#This Row],[QTY]]","v":0},{"$f":"Table1[[#This Row],[QTY]]*Table1[[#This Row],[School & Library Price]]","v":0}]
[null,null,21,null,null,"Health & Medicine","Diseases and Disorders","Lyme Disease: When Ticks Make You Sick","978-1-5345-6364-3",{"$f":"HYPERLINK(Table1[[#This Row],[eCommerce Hyperlink]],\"Book Weblink\")","v":"Book Weblink"},null,"Lucent Press","Paperback Book",1,"2019","August 2018","Paperback","6.000 X 9.000","Author","Raymond J. Lampke",null,null,null,null,"Z","1300L","Grade 7","Grade 7 - 10","Lyme disease is not often discussed, which means the general public knows little about it. Many people are aware that it can be passed from ticks to humans, but questions remain. What are the symptoms? Is it contagious? Can it be treated? What are the best prevention methods? These questions and more are answered in this engaging book, with text that is enhanced with full-color photographs, annotated quotes, and informative sidebars. By fully informing themselves about this disease, readers will know the steps to take if they encounter it as well as how to support a loved one who contracts Lyme disease.","English",20.99,17.850000000000001,"616.9'246--dc23","104 pp.","https://greenhavenpublishing.com/9781534563643",null,{"$f":"Table1[[#This Row],['# of Books]]*Table1[[#This Row],[QTY]]","v":0},{"$f":"Table1[[#This Row],[QTY]]*Table1[[#This Row],[School & Library Price]]","v":0}]
[null,null,21,null,null,"Health & Medicine","Diseases and Disorders","Migraines: Managing Severe Headaches","978-1-5345-6359-9",{"$f":"HYPERLINK(Table1[[#This Row],[eCommerce Hyperlink]],\"Book Weblink\")","v":"Book Weblink"},null,"Lucent Press","Library Bound Book",1,"2019","August 2018","Library","6.000 X 9.000","Author","Jennifer Lombardo",null,null,null,null,"Z","1170L","Grade 7","Grade 7 - 10","Everyone will experience headaches in their life, but for some people, headaches are more frequent and severe than for others. These headaches, called migraines, cause severe pain and can have negative effects on a person's life. Readers learn the symptoms of and treatments for migraines as well as what doctors currently know about their cause. Detailed charts, annotated quotes from experts, and in-depth sidebars give young adults the most up-to-date information about these debilitating headaches to help them manage their own migraines and better understand those who suffer from them.","English",40.9,32.72,"616.8/4912--dc23","104 pp.","https://greenhavenpublishing.com/9781534563599",null,{"$f":"Table1[[#This Row],['# of Books]]*Table1[[#This Row],[QTY]]","v":0},{"$f":"Table1[[#This Row],[QTY]]*Table1[[#This Row],[School & Library Price]]","v":0}]
[null,null,21,null,null,"Health & Medicine","Diseases and Disorders","Migraines: Managing Severe Headaches","978-1-5345-6360-5",{"$f":"HYPERLINK(Table1[[#This Row],[eCommerce Hyperlink]],\"Book Weblink\")","v":"Book Weblink"},null,"Lucent Press","eBook",1,"2019","August 2018",null,null,"Author","Jennifer Lombardo",null,null,null,null,"Z","1170L","Grade 7","Grade 7 - 10","Everyone will experience headaches in their life, but for some people, headaches are more frequent and severe than for others. These headaches, called migraines, cause severe pain and can have negative effects on a person's life. Readers learn the symptoms of and treatments for migraines as well as what doctors currently know about their cause. Detailed charts, annotated quotes from experts, and in-depth sidebars give young adults the most up-to-date information about these debilitating headaches to help them manage their own migraines and better understand those who suffer from them.","English",40.9,32.72,"616.8/4912--dc23","104 pp.","https://greenhavenpublishing.com/9781534563605",null,{"$f":"Table1[[#This Row],['# of Books]]*Table1[[#This Row],[QTY]]","v":0},{"$f":"Table1[[#This Row],[QTY]]*Table1[[#This Row],[School & Library Price]]","v":0}]
[null,null,21,null,null,"Health & Medicine","Diseases and Disorders","Migraines: Managing Severe Headaches","978-1-5345-6361-2",{"$f":"HYPERLINK(Table1[[#This Row],[eCommerce Hyperlink]],\"Book Weblink\")","v":"Book Weblink"},null,"Lucent Press","Paperback Book",1,"2019","August 2018","Paperback","6.000 X 9.000","Author","Jennifer Lombardo",null,null,null,null,"Z","1170L","Grade 7","Grade 7 - 10","Everyone will experience headaches in their life, but for some people, headaches are more frequent and severe than for others. These headaches, called migraines, cause severe pain and can have negative effects on a person's life. Readers learn the symptoms of and treatments for migraines as well as what doctors currently know about their cause. Detailed charts, annotated quotes from experts, and in-depth sidebars give young adults the most up-to-date information about these debilitating headaches to help them manage their own migraines and better understand those who suffer from them.","English",20.99,17.850000000000001,"616.8/4912--dc23","104 pp.","https://greenhavenpublishing.com/9781534563612",null,{"$f":"Table1[[#This Row],['# of Books]]*Table1[[#This Row],[QTY]]","v":0},{"$f":"Table1[[#This Row],[QTY]]*Table1[[#This Row],[School & Library Price]]","v":0}]
[null,null,21,null,null,"Health & Medicine","Diseases and Disorders","PTSD: Causes and Care","978-1-5345-6365-0",{"$f":"HYPERLINK(Table1[[#This Row],[eCommerce Hyperlink]],\"Book Weblink\")","v":"Book Weblink"},null,"Lucent Press","Library Bound Book",1,"2019","August 2018","Library","6.000 X 9.000","Author","Simon Pierce",null,null,null,null,"Z","1270L","Grade 7","Grade 7 - 10","Post-traumatic stress disorder, or PTSD, has long been misunderstood, even by medical and psychological professionals. Formerly called shell-shock, it was considered a disorder that exclusively affected soldiers. Today, this myth persists, and many people are still unaware that any traumatic event can be the catalyst for PTSD. Understanding the facts about this disorder helps young adults learn the best way to interact with a loved one who has it or learn whether their own symptoms warrant seeking further help. Annotated quotes from medical experts, detailed graphs, and full-color photographs show readers this disorder from all sides.","English",40.9,32.72,"616.85/21--dc23","104 pp.","https://greenhavenpublishing.com/9781534563650",null,{"$f":"Table1[[#This Row],['# of Books]]*Table1[[#This Row],[QTY]]","v":0},{"$f":"Table1[[#This Row],[QTY]]*Table1[[#This Row],[School & Library Price]]","v":0}]
[null,null,21,null,null,"Health & Medicine","Diseases and Disorders","PTSD: Causes and Care","978-1-5345-6366-7",{"$f":"HYPERLINK(Table1[[#This Row],[eCommerce Hyperlink]],\"Book Weblink\")","v":"Book Weblink"},null,"Lucent Press","eBook",1,"2019","August 2018",null,null,"Author","Simon Pierce",null,null,null,null,"Z","1270L","Grade 7","Grade 7 - 10","Post-traumatic stress disorder, or PTSD, has long been misunderstood, even by medical and psychological professionals. Formerly called shell-shock, it was considered a disorder that exclusively affected soldiers. Today, this myth persists, and many people are still unaware that any traumatic event can be the catalyst for PTSD. Understanding the facts about this disorder helps young adults learn the best way to interact with a loved one who has it or learn whether their own symptoms warrant seeking further help. Annotated quotes from medical experts, detailed graphs, and full-color photographs show readers this disorder from all sides.","English",40.9,32.72,"616.85/21--dc23","104 pp.","https://greenhavenpublishing.com/9781534563667",null,{"$f":"Table1[[#This Row],['# of Books]]*Table1[[#This Row],[QTY]]","v":0},{"$f":"Table1[[#This Row],[QTY]]*Table1[[#This Row],[School & Library Price]]","v":0}]
[null,null,21,null,null,"Health & Medicine","Diseases and Disorders","PTSD: Causes and Care","978-1-5345-6367-4",{"$f":"HYPERLINK(Table1[[#This Row],[eCommerce Hyperlink]],\"Book Weblink\")","v":"Book Weblink"},null,"Lucent Press","Paperback Book",1,"2019","August 2018","Paperback","6.000 X 9.000","Author","Simon Pierce",null,null,null,null,"Z","1270L","Grade 7","Grade 7 - 10","Post-traumatic stress disorder, or PTSD, has long been misunderstood, even by medical and psychological professionals. Formerly called shell-shock, it was considered a disorder that exclusively affected soldiers. Today, this myth persists, and many people are still unaware that any traumatic event can be the catalyst for PTSD. Understanding the facts about this disorder helps young adults learn the best way to interact with a loved one who has it or learn whether their own symptoms warrant seeking further help. Annotated quotes from medical experts, detailed graphs, and full-color photographs show readers this disorder from all sides.","English",20.99,17.850000000000001,"616.85/21--dc23","104 pp.","https://greenhavenpublishing.com/9781534563674",null,{"$f":"Table1[[#This Row],['# of Books]]*Table1[[#This Row],[QTY]]","v":0},{"$f":"Table1[[#This Row],[QTY]]*Table1[[#This Row],[School & Library Price]]","v":0}]
[null,null,21,null,null,"Health & Medicine","Diseases and Disorders","Diseases and Disorders: Set 4","978-1-5345-6596-8",{"$f":"HYPERLINK(Table1[[#This Row],[eCommerce Hyperlink]],\"Book Weblink\")","v":"Book Weblink"},null,"Lucent Press","Library Set",6,"2019","January 2019","Library","6.000 X 9.000",null,null,null,null,null,null,null,null,"Grade 7","Grade 7 - 10","Many diseases and disorders are not well understood, despite being part of life. People who do not experience a particular illness may find it difficult to understand how it can affect sufferers. This can lead to the persistent circulation of myths about physical and mental illnesses such as skin conditions, bipolar disorder, and schizophrenia. With accurate statistics, detailed graphs, and engaging sidebars, these volumes address the facts of various illnesses, dispelling the anxiety that comes from the unknown. Features include: A glossary of important words makes complex medical terms easy for readers to understand. Strategies are presented for readers dealing with these medical conditions in their own lives as well as readers who want to help a friend or family member struggling with illness, giving them the tools to provide informed, compassionate support. Informative, unbiased text gives young adults the necessary facts without causing unnecessary anxiety and includes annotated quotes from experts and people who have personal experience in dealing with these illnesses.","English",245.4,196.32,null,"104 pp.","https://greenhavenpublishing.com/9781534565968",null,{"$f":"Table1[[#This Row],['# of Books]]*Table1[[#This Row],[QTY]]","v":0},{"$f":"Table1[[#This Row],[QTY]]*Table1[[#This Row],[School & Library Price]]","v":0}]
[null,null,21,null,null,"Health & Medicine","Diseases and Disorders","Diseases and Disorders (Spring 2019)","978-1-5345-6680-4",{"$f":"HYPERLINK(Table1[[#This Row],[eCommerce Hyperlink]],\"Book Weblink\")","v":"Book Weblink"},null,"Lucent Press","Single Copy Set",6,"2019","January 2019","Paperback","6.000 X 9.000",null,null,null,null,null,null,null,null,"Grade 7","Grade 7 - 10","Many diseases and disorders are not well understood, despite being part of life. People who do not experience a particular illness may find it difficult to understand how it can affect sufferers. This can lead to the persistent circulation of myths about physical and mental illnesses such as skin conditions, bipolar disorder, and schizophrenia. With accurate statistics, detailed graphs, and engaging sidebars, these volumes address the facts of various illnesses, dispelling the anxiety that comes from the unknown. Features include: A glossary of important words makes complex medical terms easy for readers to understand. Strategies are presented for readers dealing with these medical conditions in their own lives as well as readers who want to help a friend or family member struggling with illness, giving them the tools to provide informed, compassionate support. Informative, unbiased text gives young adults the necessary facts without causing unnecessary anxiety and includes annotated quotes from experts and people who have personal experience in dealing with these illnesses.","English",125.94,107.1,null,"104 pp.","https://greenhavenpublishing.com/9781534566804",null,{"$f":"Table1[[#This Row],['# of Books]]*Table1[[#This Row],[QTY]]","v":0},{"$f":"Table1[[#This Row],[QTY]]*Table1[[#This Row],[School & Library Price]]","v":0}]
[null,null,21,null,null,"Health & Medicine","Diseases and Disorders","Asthma: The Struggle to Breathe","978-1-5345-6492-3",{"$f":"HYPERLINK(Table1[[#This Row],[eCommerce Hyperlink]],\"Book Weblink\")","v":"Book Weblink"},null,"Lucent Press","Library Bound Book",1,"2019","January 2019","Library","6.000 X 9.000","Author","Peter Kogler",null,null,null,null,"Z",null,"Grade 7","Grade 7 - 10","Asthma is a long-lasting, incurable disease that affects over 300 million people, and that number continues to grow. As readers explore the science and current research behind asthma, they learn about the dangers of this disease and how everyday things in our world can greatly affect asthmatics. Readers also discover the tremendous economic costs of this disease, as well as identify the symptoms of asthma attacks. Sidebars throughout the book provide additional insight, and full-color graphs, charts, and photographs provide readers with a better understanding of the important information being presented to them.","English",40.9,32.72,"616.2/38--dc23","104 pp.","https://greenhavenpublishing.com/9781534564923",null,{"$f":"Table1[[#This Row],['# of Books]]*Table1[[#This Row],[QTY]]","v":0},{"$f":"Table1[[#This Row],[QTY]]*Table1[[#This Row],[School & Library Price]]","v":0}]
[null,null,21,null,null,"Health & Medicine","Diseases and Disorders","Asthma: The Struggle to Breathe","978-1-5345-6493-0",{"$f":"HYPERLINK(Table1[[#This Row],[eCommerce Hyperlink]],\"Book Weblink\")","v":"Book Weblink"},null,"Lucent Press","eBook",1,"2019","January 2019",null,null,"Author","Peter Kogler",null,null,null,null,"Z",null,"Grade 7","Grade 7 - 10","Asthma is a long-lasting, incurable disease that affects over 300 million people, and that number continues to grow. As readers explore the science and current research behind asthma, they learn about the dangers of this disease and how everyday things in our world can greatly affect asthmatics. Readers also discover the tremendous economic costs of this disease, as well as identify the symptoms of asthma attacks. Sidebars throughout the book provide additional insight, and full-color graphs, charts, and photographs provide readers with a better understanding of the important information being presented to them.","English",40.9,32.72,"616.2/38--dc23","104 pp.","https://greenhavenpublishing.com/9781534564930",null,{"$f":"Table1[[#This Row],['# of Books]]*Table1[[#This Row],[QTY]]","v":0},{"$f":"Table1[[#This Row],[QTY]]*Table1[[#This Row],[School & Library Price]]","v":0}]
[null,null,21,null,null,"Health & Medicine","Diseases and Disorders","Asthma: The Struggle to Breathe","978-1-5345-6491-6",{"$f":"HYPERLINK(Table1[[#This Row],[eCommerce Hyperlink]],\"Book Weblink\")","v":"Book Weblink"},null,"Lucent Press","Paperback Book",1,"2019","January 2019","Paperback","6.000 X 9.000","Author","Peter Kogler",null,null,null,null,"Z",null,"Grade 7","Grade 7 - 10","Asthma is a long-lasting, incurable disease that affects over 300 million people, and that number continues to grow. As readers explore the science and current research behind asthma, they learn about the dangers of this disease and how everyday things in our world can greatly affect asthmatics. Readers also discover the tremendous economic costs of this disease, as well as identify the symptoms of asthma attacks. Sidebars throughout the book provide additional insight, and full-color graphs, charts, and photographs provide readers with a better understanding of the important information being presented to them.","English",20.99,17.850000000000001,"616.2/38--dc23","104 pp.","https://greenhavenpublishing.com/9781534564916",null,{"$f":"Table1[[#This Row],['# of Books]]*Table1[[#This Row],[QTY]]","v":0},{"$f":"Table1[[#This Row],[QTY]]*Table1[[#This Row],[School & Library Price]]","v":0}]
[null,null,21,null,null,"Health & Medicine","Diseases and Disorders","Bipolar Disorder: Dealing with Mania and Depression","978-1-5345-6486-2",{"$f":"HYPERLINK(Table1[[#This Row],[eCommerce Hyperlink]],\"Book Weblink\")","v":"Book Weblink"},null,"Lucent Press","Library Bound Book",1,"2019","January 2019","Library","6.000 X 9.000","Author","Rachael Rothman-Kerr",null,null,null,null,"Z","1340L","Grade 7","Grade 7 - 10","Bipolar disorder causes extreme behavioral and mood swings. These changes from the highs known as mania to the lows of depression are the reasons why it was often called manic depression in the past. Readers discover this and other essential information about this disorder as they explore its symptoms, causes, and treatments. Through detailed sidebars, quotes from experts, and full-color photographs, readers gain a deeper understanding of bipolar disorder as well as how to support loved ones who face its unique challenges. Readers are given the tools to confront the stigma around bipolar disorder with knowledge and empathy.","English",40.9,32.72,"616.89/5--dc23","104 pp.","https://greenhavenpublishing.com/9781534564862",null,{"$f":"Table1[[#This Row],['# of Books]]*Table1[[#This Row],[QTY]]","v":0},{"$f":"Table1[[#This Row],[QTY]]*Table1[[#This Row],[School & Library Price]]","v":0}]
[null,null,21,null,null,"Health & Medicine","Diseases and Disorders","Bipolar Disorder: Dealing with Mania and Depression","978-1-5345-6487-9",{"$f":"HYPERLINK(Table1[[#This Row],[eCommerce Hyperlink]],\"Book Weblink\")","v":"Book Weblink"},null,"Lucent Press","eBook",1,"2019","January 2019",null,null,"Author","Rachael Rothman-Kerr",null,null,null,null,"Z","1340L","Grade 7","Grade 7 - 10","Bipolar disorder causes extreme behavioral and mood swings. These changes from the highs known as mania to the lows of depression are the reasons why it was often called manic depression in the past. Readers discover this and other essential information about this disorder as they explore its symptoms, causes, and treatments. Through detailed sidebars, quotes from experts, and full-color photographs, readers gain a deeper understanding of bipolar disorder as well as how to support loved ones who face its unique challenges. Readers are given the tools to confront the stigma around bipolar disorder with knowledge and empathy.","English",40.9,32.72,"616.89/5--dc23","104 pp.","https://greenhavenpublishing.com/9781534564879",null,{"$f":"Table1[[#This Row],['# of Books]]*Table1[[#This Row],[QTY]]","v":0},{"$f":"Table1[[#This Row],[QTY]]*Table1[[#This Row],[School & Library Price]]","v":0}]
[null,null,21,null,null,"Health & Medicine","Diseases and Disorders","Bipolar Disorder: Dealing with Mania and Depression","978-1-5345-6485-5",{"$f":"HYPERLINK(Table1[[#This Row],[eCommerce Hyperlink]],\"Book Weblink\")","v":"Book Weblink"},null,"Lucent Press","Paperback Book",1,"2019","January 2019","Paperback","6.000 X 9.000","Author","Rachael Rothman-Kerr",null,null,null,null,"Z","1340L","Grade 7","Grade 7 - 10","Bipolar disorder causes extreme behavioral and mood swings. These changes from the highs known as mania to the lows of depression are the reasons why it was often called manic depression in the past. Readers discover this and other essential information about this disorder as they explore its symptoms, causes, and treatments. Through detailed sidebars, quotes from experts, and full-color photographs, readers gain a deeper understanding of bipolar disorder as well as how to support loved ones who face its unique challenges. Readers are given the tools to confront the stigma around bipolar disorder with knowledge and empathy.","English",20.99,17.850000000000001,"616.89/5--dc23","104 pp.","https://greenhavenpublishing.com/9781534564855",null,{"$f":"Table1[[#This Row],['# of Books]]*Table1[[#This Row],[QTY]]","v":0},{"$f":"Table1[[#This Row],[QTY]]*Table1[[#This Row],[School & Library Price]]","v":0}]
[null,null,21,null,null,"Health & Medicine","Diseases and Disorders","Living with Allergies","978-1-5345-6483-1",{"$f":"HYPERLINK(Table1[[#This Row],[eCommerce Hyperlink]],\"Book Weblink\")","v":"Book Weblink"},null,"Lucent Press","Library Bound Book",1,"2019","January 2019","Library","6.000 X 9.000","Author","Juliana Burkhart",null,null,null,null,"Z","1210L","Grade 7","Grade 7 - 10","It is widely thought that allergies are a seasonal nuisance causing watery eyes and sneezes. In reality, allergies can be a life-threatening problem, and they affect millions of people. It is important for readers to learn the facts about common and rare allergies to take control of their own health and better understand this topic, which is often discussed in the media. Informative charts, engaging sidebars, and annotated quotes by medical experts make readers aware of different types of allergies, how they are treated, and how people can become more helpful and compassionate toward those who suffer from them.","English",40.9,32.72,"616.97/3--dc23","104 pp.","https://greenhavenpublishing.com/9781534564831",null,{"$f":"Table1[[#This Row],['# of Books]]*Table1[[#This Row],[QTY]]","v":0},{"$f":"Table1[[#This Row],[QTY]]*Table1[[#This Row],[School & Library Price]]","v":0}]
[null,null,21,null,null,"Health & Medicine","Diseases and Disorders","Living with Allergies","978-1-5345-6484-8",{"$f":"HYPERLINK(Table1[[#This Row],[eCommerce Hyperlink]],\"Book Weblink\")","v":"Book Weblink"},null,"Lucent Press","eBook",1,"2019","January 2019",null,null,"Author","Juliana Burkhart",null,null,null,null,"Z","1210L","Grade 7","Grade 7 - 10","It is widely thought that allergies are a seasonal nuisance causing watery eyes and sneezes. In reality, allergies can be a life-threatening problem, and they affect millions of people. It is important for readers to learn the facts about common and rare allergies to take control of their own health and better understand this topic, which is often discussed in the media. Informative charts, engaging sidebars, and annotated quotes by medical experts make readers aware of different types of allergies, how they are treated, and how people can become more helpful and compassionate toward those who suffer from them.","English",40.9,32.72,"616.97/3--dc23","104 pp.","https://greenhavenpublishing.com/9781534564848",null,{"$f":"Table1[[#This Row],['# of Books]]*Table1[[#This Row],[QTY]]","v":0},{"$f":"Table1[[#This Row],[QTY]]*Table1[[#This Row],[School & Library Price]]","v":0}]
[null,null,21,null,null,"Health & Medicine","Diseases and Disorders","Living with Allergies","978-1-5345-6482-4",{"$f":"HYPERLINK(Table1[[#This Row],[eCommerce Hyperlink]],\"Book Weblink\")","v":"Book Weblink"},null,"Lucent Press","Paperback Book",1,"2019","January 2019","Paperback","6.000 X 9.000","Author","Juliana Burkhart",null,null,null,null,"Z","1210L","Grade 7","Grade 7 - 10","It is widely thought that allergies are a seasonal nuisance causing watery eyes and sneezes. In reality, allergies can be a life-threatening problem, and they affect millions of people. It is important for readers to learn the facts about common and rare allergies to take control of their own health and better understand this topic, which is often discussed in the media. Informative charts, engaging sidebars, and annotated quotes by medical experts make readers aware of different types of allergies, how they are treated, and how people can become more helpful and compassionate toward those who suffer from them.","English",20.99,17.850000000000001,"616.97/3--dc23","104 pp.","https://greenhavenpublishing.com/9781534564824",null,{"$f":"Table1[[#This Row],['# of Books]]*Table1[[#This Row],[QTY]]","v":0},{"$f":"Table1[[#This Row],[QTY]]*Table1[[#This Row],[School & Library Price]]","v":0}]
[null,null,21,null,null,"Health & Medicine","Diseases and Disorders","Schizophrenia: When Reality Becomes Distorted","978-1-5345-6495-4",{"$f":"HYPERLINK(Table1[[#This Row],[eCommerce Hyperlink]],\"Book Weblink\")","v":"Book Weblink"},null,"Lucent Press","Library Bound Book",1,"2019","January 2019","Library","6.000 X 9.000","Author","Michelle Harris",null,null,null,null,"Z","1350L","Grade 7","Grade 7 - 10","Schizophrenia affects a person's ability to think clearly and distinguish between reality and imagination. Historically, those suffering with the condition were treated poorly. However, scientific discoveries regarding the chemistry and structure of the brain, as well as recent advancements in medication and therapeutic treatments for the disease, have allowed many who suffer from schizophrenia to lead rewarding and meaningful lives. The informative text, augmented by in-depth sidebars, quotes from medical experts, detailed graphs, and full-color photographs, offers readers a clearer understanding of this often misunderstood condition and provides helpful resources to aid people with schizophrenia and their loved ones.","English",40.9,32.72,"616.89/8--dc23","104 pp.","https://greenhavenpublishing.com/9781534564954",null,{"$f":"Table1[[#This Row],['# of Books]]*Table1[[#This Row],[QTY]]","v":0},{"$f":"Table1[[#This Row],[QTY]]*Table1[[#This Row],[School & Library Price]]","v":0}]
[null,null,21,null,null,"Health & Medicine","Diseases and Disorders","Schizophrenia: When Reality Becomes Distorted","978-1-5345-6496-1",{"$f":"HYPERLINK(Table1[[#This Row],[eCommerce Hyperlink]],\"Book Weblink\")","v":"Book Weblink"},null,"Lucent Press","eBook",1,"2019","January 2019",null,null,"Author","Michelle Harris",null,null,null,null,"Z","1350L","Grade 7","Grade 7 - 10","Schizophrenia affects a person's ability to think clearly and distinguish between reality and imagination. Historically, those suffering with the condition were treated poorly. However, scientific discoveries regarding the chemistry and structure of the brain, as well as recent advancements in medication and therapeutic treatments for the disease, have allowed many who suffer from schizophrenia to lead rewarding and meaningful lives. The informative text, augmented by in-depth sidebars, quotes from medical experts, detailed graphs, and full-color photographs, offers readers a clearer understanding of this often misunderstood condition and provides helpful resources to aid people with schizophrenia and their loved ones.","English",40.9,32.72,"616.89/8--dc23","104 pp.","https://greenhavenpublishing.com/9781534564961",null,{"$f":"Table1[[#This Row],['# of Books]]*Table1[[#This Row],[QTY]]","v":0},{"$f":"Table1[[#This Row],[QTY]]*Table1[[#This Row],[School & Library Price]]","v":0}]
[null,null,21,null,null,"Health & Medicine","Diseases and Disorders","Schizophrenia: When Reality Becomes Distorted","978-1-5345-6494-7",{"$f":"HYPERLINK(Table1[[#This Row],[eCommerce Hyperlink]],\"Book Weblink\")","v":"Book Weblink"},null,"Lucent Press","Paperback Book",1,"2019","January 2019","Paperback","6.000 X 9.000","Author","Michelle Harris",null,null,null,null,"Z","1350L","Grade 7","Grade 7 - 10","Schizophrenia affects a person's ability to think clearly and distinguish between reality and imagination. Historically, those suffering with the condition were treated poorly. However, scientific discoveries regarding the chemistry and structure of the brain, as well as recent advancements in medication and therapeutic treatments for the disease, have allowed many who suffer from schizophrenia to lead rewarding and meaningful lives. The informative text, augmented by in-depth sidebars, quotes from medical experts, detailed graphs, and full-color photographs, offers readers a clearer understanding of this often misunderstood condition and provides helpful resources to aid people with schizophrenia and their loved ones.","English",20.99,17.850000000000001,"616.89/8--dc23","104 pp.","https://greenhavenpublishing.com/9781534564947",null,{"$f":"Table1[[#This Row],['# of Books]]*Table1[[#This Row],[QTY]]","v":0},{"$f":"Table1[[#This Row],[QTY]]*Table1[[#This Row],[School & Library Price]]","v":0}]
[null,null,21,null,null,"Health & Medicine","Diseases and Disorders","Skin Cancer: America's Most Common Cancer","978-1-5345-6489-3",{"$f":"HYPERLINK(Table1[[#This Row],[eCommerce Hyperlink]],\"Book Weblink\")","v":"Book Weblink"},null,"Lucent Press","Library Bound Book",1,"2019","January 2019","Library","6.000 X 9.000","Author","Peter Kurch",null,null,null,null,"Z","1200L","Grade 7","Grade 7 - 10","Skin cancer affects more than 200,000 people every year in the United States alone and can strike people of any age or race. Prevention and early detection are incredibly important in reducing cases of America's most common cancer. Through engaging text, augmented with full-color photographs, quotes from experts, and detailed charts, readers learn about the newest data and research pertaining to skin cancer as well as the steps they can take to reduce their risk of developing it. They also see how far treatment for skin has come, and where it is going in the near future.","English",40.9,32.72,"616.99/477--dc23","104 pp.","https://greenhavenpublishing.com/9781534564893",null,{"$f":"Table1[[#This Row],['# of Books]]*Table1[[#This Row],[QTY]]","v":0},{"$f":"Table1[[#This Row],[QTY]]*Table1[[#This Row],[School & Library Price]]","v":0}]
[null,null,21,null,null,"Health & Medicine","Diseases and Disorders","Skin Cancer: America's Most Common Cancer","978-1-5345-6490-9",{"$f":"HYPERLINK(Table1[[#This Row],[eCommerce Hyperlink]],\"Book Weblink\")","v":"Book Weblink"},null,"Lucent Press","eBook",1,"2019","January 2019",null,null,"Author","Peter Kurch",null,null,null,null,"Z","1200L","Grade 7","Grade 7 - 10","Skin cancer affects more than 200,000 people every year in the United States alone and can strike people of any age or race. Prevention and early detection are incredibly important in reducing cases of America's most common cancer. Through engaging text, augmented with full-color photographs, quotes from experts, and detailed charts, readers learn about the newest data and research pertaining to skin cancer as well as the steps they can take to reduce their risk of developing it. They also see how far treatment for skin has come, and where it is going in the near future.","English",40.9,32.72,"616.99/477--dc23","104 pp.","https://greenhavenpublishing.com/9781534564909",null,{"$f":"Table1[[#This Row],['# of Books]]*Table1[[#This Row],[QTY]]","v":0},{"$f":"Table1[[#This Row],[QTY]]*Table1[[#This Row],[School & Library Price]]","v":0}]
[null,null,21,null,null,"Health & Medicine","Diseases and Disorders","Skin Cancer: America's Most Common Cancer","978-1-5345-6488-6",{"$f":"HYPERLINK(Table1[[#This Row],[eCommerce Hyperlink]],\"Book Weblink\")","v":"Book Weblink"},null,"Lucent Press","Paperback Book",1,"2019","January 2019","Paperback","6.000 X 9.000","Author","Peter Kurch",null,null,null,null,"Z","1200L","Grade 7","Grade 7 - 10","Skin cancer affects more than 200,000 people every year in the United States alone and can strike people of any age or race. Prevention and early detection are incredibly important in reducing cases of America's most common cancer. Through engaging text, augmented with full-color photographs, quotes from experts, and detailed charts, readers learn about the newest data and research pertaining to skin cancer as well as the steps they can take to reduce their risk of developing it. They also see how far treatment for skin has come, and where it is going in the near future.","English",20.99,17.850000000000001,"616.99/477--dc23","104 pp.","https://greenhavenpublishing.com/9781534564886",null,{"$f":"Table1[[#This Row],['# of Books]]*Table1[[#This Row],[QTY]]","v":0},{"$f":"Table1[[#This Row],[QTY]]*Table1[[#This Row],[School & Library Price]]","v":0}]
[null,null,21,null,null,"Health & Medicine","Diseases and Disorders","Skin Conditions: From Acne to Eczema","978-1-5345-6480-0",{"$f":"HYPERLINK(Table1[[#This Row],[eCommerce Hyperlink]],\"Book Weblink\")","v":"Book Weblink"},null,"Lucent Press","Library Bound Book",1,"2019","January 2019","Library","6.000 X 9.000","Author","Donna Reynolds",null,null,null,null,"Z","1180L","Grade 7","Grade 7 - 10","Skin conditions such as acne, warts, eczema, and rosacea can be embarrassing and frustrating for people to deal with. Treatments are available for many of these conditions, but while waiting for a condition to be diagnosed or treated, it can be difficult for someone to maintain self-confidence. The informative text, supplemented with engaging sidebars and annotated quotes by medical experts, gives readers essential facts about the causes and treatments of common skin conditions. Readers can use this knowledge to take control of their own health, better understand their changing body, and offer support to others dealing with these problems.","English",40.9,32.72,"617.4'77--dc23","104 pp.","https://greenhavenpublishing.com/9781534564800",null,{"$f":"Table1[[#This Row],['# of Books]]*Table1[[#This Row],[QTY]]","v":0},{"$f":"Table1[[#This Row],[QTY]]*Table1[[#This Row],[School & Library Price]]","v":0}]
[null,null,21,null,null,"Health & Medicine","Diseases and Disorders","Skin Conditions: From Acne to Eczema","978-1-5345-6481-7",{"$f":"HYPERLINK(Table1[[#This Row],[eCommerce Hyperlink]],\"Book Weblink\")","v":"Book Weblink"},null,"Lucent Press","eBook",1,"2019","January 2019",null,null,"Author","Donna Reynolds",null,null,null,null,"Z","1180L","Grade 7","Grade 7 - 10","Skin conditions such as acne, warts, eczema, and rosacea can be embarrassing and frustrating for people to deal with. Treatments are available for many of these conditions, but while waiting for a condition to be diagnosed or treated, it can be difficult for someone to maintain self-confidence. The informative text, supplemented with engaging sidebars and annotated quotes by medical experts, gives readers essential facts about the causes and treatments of common skin conditions. Readers can use this knowledge to take control of their own health, better understand their changing body, and offer support to others dealing with these problems.","English",40.9,32.72,"617.4'77--dc23","104 pp.","https://greenhavenpublishing.com/9781534564817",null,{"$f":"Table1[[#This Row],['# of Books]]*Table1[[#This Row],[QTY]]","v":0},{"$f":"Table1[[#This Row],[QTY]]*Table1[[#This Row],[School & Library Price]]","v":0}]
[null,null,21,null,null,"Health & Medicine","Diseases and Disorders","Skin Conditions: From Acne to Eczema","978-1-5345-6479-4",{"$f":"HYPERLINK(Table1[[#This Row],[eCommerce Hyperlink]],\"Book Weblink\")","v":"Book Weblink"},null,"Lucent Press","Paperback Book",1,"2019","January 2019","Paperback","6.000 X 9.000","Author","Donna Reynolds",null,null,null,null,"Z","1180L","Grade 7","Grade 7 - 10","Skin conditions such as acne, warts, eczema, and rosacea can be embarrassing and frustrating for people to deal with. Treatments are available for many of these conditions, but while waiting for a condition to be diagnosed or treated, it can be difficult for someone to maintain self-confidence. The informative text, supplemented with engaging sidebars and annotated quotes by medical experts, gives readers essential facts about the causes and treatments of common skin conditions. Readers can use this knowledge to take control of their own health, better understand their changing body, and offer support to others dealing with these problems.","English",20.99,17.850000000000001,"617.4'77--dc23","104 pp.","https://greenhavenpublishing.com/9781534564794",null,{"$f":"Table1[[#This Row],['# of Books]]*Table1[[#This Row],[QTY]]","v":0},{"$f":"Table1[[#This Row],[QTY]]*Table1[[#This Row],[School & Library Price]]","v":0}]
[null,null,21,null,null,"Health & Medicine","Diseases and Disorders","Diseases and Disorders: Set 5","978-1-5345-6688-0",{"$f":"HYPERLINK(Table1[[#This Row],[eCommerce Hyperlink]],\"Book Weblink\")","v":"Book Weblink"},null,"Lucent Press","Library Set",6,"2020","August 2019","Library","6.000 X 9.000",null,null,null,null,null,null,null,null,"Grade 7","Grade 7 - 10","Even with the vast amount of medical research available in the 21st century, some diseases are not well understood. New research frequently renders old information obsolete, making it difficult for the general public to remain informed about health issues such as drug addiction, phobias, learning disabilities, eating disorders, and sleep disorders. This new research about common mental and physical disorders is presented to readers through accessible narratives accompanied by informative sidebars, charts, graphs, and full-color photographs to increase young adults' understanding of these important topics. This increase in understanding is the first step toward helping those who experience these illnesses firsthand. Features include: Simplifies medical concepts and scientific data in a way that makes them easy for young readers to understand. Reputable organizations to contact for more information help readers who have or know someone who has specific health concerns. Fully cited quotes from doctors, medical writers, and relatable patients.","English",245.4,196.32,null,"104 pp.","https://greenhavenpublishing.com/9781534566880",null,{"$f":"Table1[[#This Row],['# of Books]]*Table1[[#This Row],[QTY]]","v":0},{"$f":"Table1[[#This Row],[QTY]]*Table1[[#This Row],[School & Library Price]]","v":0}]
[null,null,21,null,null,"Health & Medicine","Diseases and Disorders","Diseases and Disorders (Fall 2019)","978-1-5345-6798-6",{"$f":"HYPERLINK(Table1[[#This Row],[eCommerce Hyperlink]],\"Book Weblink\")","v":"Book Weblink"},null,"Lucent Press","Single Copy Set",6,"2020","August 2019","Paperback","6.000 X 9.000",null,null,null,null,null,null,null,null,"Grade 7","Grade 7 - 10","Even with the vast amount of medical research available in the 21st century, some diseases are not well understood. New research frequently renders old information obsolete, making it difficult for the general public to remain informed about health issues such as drug addiction, phobias, learning disabilities, eating disorders, and sleep disorders. This new research about common mental and physical disorders is presented to readers through accessible narratives accompanied by informative sidebars, charts, graphs, and full-color photographs to increase young adults' understanding of these important topics. This increase in understanding is the first step toward helping those who experience these illnesses firsthand. Features include: Simplifies medical concepts and scientific data in a way that makes them easy for young readers to understand. Reputable organizations to contact for more information help readers who have or know someone who has specific health concerns. Fully cited quotes from doctors, medical writers, and relatable patients.","English",125.94,107.1,null,"104 pp.","https://greenhavenpublishing.com/9781534567986",null,{"$f":"Table1[[#This Row],['# of Books]]*Table1[[#This Row],[QTY]]","v":0},{"$f":"Table1[[#This Row],[QTY]]*Table1[[#This Row],[School & Library Price]]","v":0}]
[null,null,21,null,null,"Health & Medicine","Diseases and Disorders","Anorexia and Bulimia: Dangerous Eating Disorders","978-1-5345-6693-4",{"$f":"HYPERLINK(Table1[[#This Row],[eCommerce Hyperlink]],\"Book Weblink\")","v":"Book Weblink"},null,"Lucent Press","Library Bound Book",1,"2020","August 2019","Library","6.000 X 9.000","Author","Kristen Rajczak Nelson",null,null,null,null,"Z",null,"Grade 7","Grade 7 - 10","It's confusing and scary when someone seems to be choosing not to eat, but what's at work inside them is more than a decision. Eating disorders are serious mental health conditions, and those with anorexia and bulimia need help and compassion, not tough love. Annotated quotes, engaging graphic elements, and sidebars help readers learn about the many causes and symptoms of these eating disorders, as well as the medical issues they can cause. Treatment outcomes are also covered, along with anecdotes of hope from those who have survived. Help your readers understand these two most deadly eating disorders, and provide those struggling with these disorders positive guidance for a better life.","English",40.9,32.72,"616.85/262--dc23","104 pp.","https://greenhavenpublishing.com/9781534566934",null,{"$f":"Table1[[#This Row],['# of Books]]*Table1[[#This Row],[QTY]]","v":0},{"$f":"Table1[[#This Row],[QTY]]*Table1[[#This Row],[School & Library Price]]","v":0}]
[null,null,21,null,null,"Health & Medicine","Diseases and Disorders","Anorexia and Bulimia: Dangerous Eating Disorders","978-1-5345-6750-4",{"$f":"HYPERLINK(Table1[[#This Row],[eCommerce Hyperlink]],\"Book Weblink\")","v":"Book Weblink"},null,"Lucent Press","eBook",1,"2020","August 2019",null,null,"Author","Kristen Rajczak Nelson",null,null,null,null,"Z",null,"Grade 7","Grade 7 - 10","It's confusing and scary when someone seems to be choosing not to eat, but what's at work inside them is more than a decision. Eating disorders are serious mental health conditions, and those with anorexia and bulimia need help and compassion, not tough love. Annotated quotes, engaging graphic elements, and sidebars help readers learn about the many causes and symptoms of these eating disorders, as well as the medical issues they can cause. Treatment outcomes are also covered, along with anecdotes of hope from those who have survived. Help your readers understand these two most deadly eating disorders, and provide those struggling with these disorders positive guidance for a better life.","English",40.9,32.72,"616.85/262--dc23","104 pp.","https://greenhavenpublishing.com/9781534567504",null,{"$f":"Table1[[#This Row],['# of Books]]*Table1[[#This Row],[QTY]]","v":0},{"$f":"Table1[[#This Row],[QTY]]*Table1[[#This Row],[School & Library Price]]","v":0}]
[null,null,21,null,null,"Health & Medicine","Diseases and Disorders","Anorexia and Bulimia: Dangerous Eating Disorders","978-1-5345-6749-8",{"$f":"HYPERLINK(Table1[[#This Row],[eCommerce Hyperlink]],\"Book Weblink\")","v":"Book Weblink"},null,"Lucent Press","Paperback Book",1,"2020","August 2019","Paperback","6.000 X 9.000","Author","Kristen Rajczak Nelson",null,null,null,null,"Z",null,"Grade 7","Grade 7 - 10","It's confusing and scary when someone seems to be choosing not to eat, but what's at work inside them is more than a decision. Eating disorders are serious mental health conditions, and those with anorexia and bulimia need help and compassion, not tough love. Annotated quotes, engaging graphic elements, and sidebars help readers learn about the many causes and symptoms of these eating disorders, as well as the medical issues they can cause. Treatment outcomes are also covered, along with anecdotes of hope from those who have survived. Help your readers understand these two most deadly eating disorders, and provide those struggling with these disorders positive guidance for a better life.","English",20.99,17.850000000000001,"616.85/262--dc23","104 pp.","https://greenhavenpublishing.com/9781534567498",null,{"$f":"Table1[[#This Row],['# of Books]]*Table1[[#This Row],[QTY]]","v":0},{"$f":"Table1[[#This Row],[QTY]]*Table1[[#This Row],[School & Library Price]]","v":0}]
[null,null,21,null,null,"Health & Medicine","Diseases and Disorders","Drug Addiction and Substance Use Disorders","978-1-5345-6691-0",{"$f":"HYPERLINK(Table1[[#This Row],[eCommerce Hyperlink]],\"Book Weblink\")","v":"Book Weblink"},null,"Lucent Press","Library Bound Book",1,"2020","August 2019","Library","6.000 X 9.000","Author","Nicole Horning",null,null,null,null,"Z",null,"Grade 7","Grade 7 - 10","Drug addiction and substance use disorders affect millions worldwide. This essential guide to a growing problem helps readers gain a deeper understanding of how people can become addicted to drugs and the dangerous effects of drug and alcohol abuse. Through annotated quotations by experts in the field, treatments for these disorders are explained. Information is provided on current research and how various countries handle drug and alcohol abuse. Sidebars and graphs are included to help readers fully understand how the problem affects society, thereby reducing the stigma surrounding drug and alcohol addiction.","English",40.9,32.72,"616.86--dc23","104 pp.","https://greenhavenpublishing.com/9781534566910",null,{"$f":"Table1[[#This Row],['# of Books]]*Table1[[#This Row],[QTY]]","v":0},{"$f":"Table1[[#This Row],[QTY]]*Table1[[#This Row],[School & Library Price]]","v":0}]
[null,null,21,null,null,"Health & Medicine","Diseases and Disorders","Drug Addiction and Substance Use Disorders","978-1-5345-6754-2",{"$f":"HYPERLINK(Table1[[#This Row],[eCommerce Hyperlink]],\"Book Weblink\")","v":"Book Weblink"},null,"Lucent Press","eBook",1,"2020","August 2019",null,null,"Author","Nicole Horning",null,null,null,null,"Z",null,"Grade 7","Grade 7 - 10","Drug addiction and substance use disorders affect millions worldwide. This essential guide to a growing problem helps readers gain a deeper understanding of how people can become addicted to drugs and the dangerous effects of drug and alcohol abuse. Through annotated quotations by experts in the field, treatments for these disorders are explained. Information is provided on current research and how various countries handle drug and alcohol abuse. Sidebars and graphs are included to help readers fully understand how the problem affects society, thereby reducing the stigma surrounding drug and alcohol addiction.","English",40.9,32.72,"616.86--dc23","104 pp.","https://greenhavenpublishing.com/9781534567542",null,{"$f":"Table1[[#This Row],['# of Books]]*Table1[[#This Row],[QTY]]","v":0},{"$f":"Table1[[#This Row],[QTY]]*Table1[[#This Row],[School & Library Price]]","v":0}]
[null,null,21,null,null,"Health & Medicine","Diseases and Disorders","Drug Addiction and Substance Use Disorders","978-1-5345-6753-5",{"$f":"HYPERLINK(Table1[[#This Row],[eCommerce Hyperlink]],\"Book Weblink\")","v":"Book Weblink"},null,"Lucent Press","Paperback Book",1,"2020","August 2019","Paperback","6.000 X 9.000","Author","Nicole Horning",null,null,null,null,"Z",null,"Grade 7","Grade 7 - 10","Drug addiction and substance use disorders affect millions worldwide. This essential guide to a growing problem helps readers gain a deeper understanding of how people can become addicted to drugs and the dangerous effects of drug and alcohol abuse. Through annotated quotations by experts in the field, treatments for these disorders are explained. Information is provided on current research and how various countries handle drug and alcohol abuse. Sidebars and graphs are included to help readers fully understand how the problem affects society, thereby reducing the stigma surrounding drug and alcohol addiction.","English",20.99,17.850000000000001,"616.86--dc23","104 pp.","https://greenhavenpublishing.com/9781534567535",null,{"$f":"Table1[[#This Row],['# of Books]]*Table1[[#This Row],[QTY]]","v":0},{"$f":"Table1[[#This Row],[QTY]]*Table1[[#This Row],[School & Library Price]]","v":0}]
[null,null,21,null,null,"Health & Medicine","Diseases and Disorders","Living with Learning Disabilities and Disorders","978-1-5345-6689-7",{"$f":"HYPERLINK(Table1[[#This Row],[eCommerce Hyperlink]],\"Book Weblink\")","v":"Book Weblink"},null,"Lucent Press","Library Bound Book",1,"2020","August 2019","Library","6.000 X 9.000","Author","Peter Kogler",null,null,null,null,"Z",null,"Grade 7","Grade 7 - 10","Although learning disabilities are believed to affect a significant number of children, not all of those children receive an actual diagnosis. While school officials, teachers, and parents continue to improve education for these children, the general public still has misconceptions about learning disabilities and how to help those affected by them. This detailed look at learning disabilities aims to educate readers through relatable text and engaging sidebars. Annotated quotes from experts, up-to-date statistics, and new technologies are explored, as well as the causes of and common misconceptions about life with dyslexia, dyscalculia, dyspraxia, and more.","English",40.9,32.72,"371.9--dc23","104 pp.","https://greenhavenpublishing.com/9781534566897",null,{"$f":"Table1[[#This Row],['# of Books]]*Table1[[#This Row],[QTY]]","v":0},{"$f":"Table1[[#This Row],[QTY]]*Table1[[#This Row],[School & Library Price]]","v":0}]
[null,null,21,null,null,"Health & Medicine","Diseases and Disorders","Living with Learning Disabilities and Disorders","978-1-5345-6748-1",{"$f":"HYPERLINK(Table1[[#This Row],[eCommerce Hyperlink]],\"Book Weblink\")","v":"Book Weblink"},null,"Lucent Press","eBook",1,"2020","August 2019",null,null,"Author","Peter Kogler",null,null,null,null,"Z",null,"Grade 7","Grade 7 - 10","Although learning disabilities are believed to affect a significant number of children, not all of those children receive an actual diagnosis. While school officials, teachers, and parents continue to improve education for these children, the general public still has misconceptions about learning disabilities and how to help those affected by them. This detailed look at learning disabilities aims to educate readers through relatable text and engaging sidebars. Annotated quotes from experts, up-to-date statistics, and new technologies are explored, as well as the causes of and common misconceptions about life with dyslexia, dyscalculia, dyspraxia, and more.","English",40.9,32.72,"371.9--dc23","104 pp.","https://greenhavenpublishing.com/9781534567481",null,{"$f":"Table1[[#This Row],['# of Books]]*Table1[[#This Row],[QTY]]","v":0},{"$f":"Table1[[#This Row],[QTY]]*Table1[[#This Row],[School & Library Price]]","v":0}]
[null,null,21,null,null,"Health & Medicine","Diseases and Disorders","Living with Learning Disabilities and Disorders","978-1-5345-6747-4",{"$f":"HYPERLINK(Table1[[#This Row],[eCommerce Hyperlink]],\"Book Weblink\")","v":"Book Weblink"},null,"Lucent Press","Paperback Book",1,"2020","August 2019","Paperback","6.000 X 9.000","Author","Peter Kogler",null,null,null,null,"Z",null,"Grade 7","Grade 7 - 10","Although learning disabilities are believed to affect a significant number of children, not all of those children receive an actual diagnosis. While school officials, teachers, and parents continue to improve education for these children, the general public still has misconceptions about learning disabilities and how to help those affected by them. This detailed look at learning disabilities aims to educate readers through relatable text and engaging sidebars. Annotated quotes from experts, up-to-date statistics, and new technologies are explored, as well as the causes of and common misconceptions about life with dyslexia, dyscalculia, dyspraxia, and more.","English",20.99,17.850000000000001,"371.9--dc23","104 pp.","https://greenhavenpublishing.com/9781534567474",null,{"$f":"Table1[[#This Row],['# of Books]]*Table1[[#This Row],[QTY]]","v":0},{"$f":"Table1[[#This Row],[QTY]]*Table1[[#This Row],[School & Library Price]]","v":0}]
[null,null,21,null,null,"Health & Medicine","Diseases and Disorders","Phobias: When Fear Becomes Irrational","978-1-5345-6694-1",{"$f":"HYPERLINK(Table1[[#This Row],[eCommerce Hyperlink]],\"Book Weblink\")","v":"Book Weblink"},null,"Lucent Press","Library Bound Book",1,"2020","August 2019","Library","6.000 X 9.000","Author","Maeve Losito",null,null,null,null,"Z",null,"Grade 7","Grade 7 - 10","Fear is a natural human response that developed to help people survive, but it can be more of a hindrance than a help. A phobia is a fear of something that is not inherently harmful that interferes with a person's daily life. These fears are explained through up-to-date charts and annotated quotes from medical experts that augment the informative main text, which aims to help readers separate myth from fact regarding phobias. A list of organizations to contact gives young adults somewhere to turn in developing healthy coping mechanisms for their own phobias or those of their loved ones.","English",40.9,32.72,"616.85/225--dc23","104 pp.","https://greenhavenpublishing.com/9781534566941",null,{"$f":"Table1[[#This Row],['# of Books]]*Table1[[#This Row],[QTY]]","v":0},{"$f":"Table1[[#This Row],[QTY]]*Table1[[#This Row],[School & Library Price]]","v":0}]
[null,null,21,null,null,"Health & Medicine","Diseases and Disorders","Phobias: When Fear Becomes Irrational","978-1-5345-6746-7",{"$f":"HYPERLINK(Table1[[#This Row],[eCommerce Hyperlink]],\"Book Weblink\")","v":"Book Weblink"},null,"Lucent Press","eBook",1,"2020","August 2019",null,null,"Author","Maeve Losito",null,null,null,null,"Z",null,"Grade 7","Grade 7 - 10","Fear is a natural human response that developed to help people survive, but it can be more of a hindrance than a help. A phobia is a fear of something that is not inherently harmful that interferes with a person's daily life. These fears are explained through up-to-date charts and annotated quotes from medical experts that augment the informative main text, which aims to help readers separate myth from fact regarding phobias. A list of organizations to contact gives young adults somewhere to turn in developing healthy coping mechanisms for their own phobias or those of their loved ones.","English",40.9,32.72,"616.85/225--dc23","104 pp.","https://greenhavenpublishing.com/9781534567467",null,{"$f":"Table1[[#This Row],['# of Books]]*Table1[[#This Row],[QTY]]","v":0},{"$f":"Table1[[#This Row],[QTY]]*Table1[[#This Row],[School & Library Price]]","v":0}]
[null,null,21,null,null,"Health & Medicine","Diseases and Disorders","Phobias: When Fear Becomes Irrational","978-1-5345-6745-0",{"$f":"HYPERLINK(Table1[[#This Row],[eCommerce Hyperlink]],\"Book Weblink\")","v":"Book Weblink"},null,"Lucent Press","Paperback Book",1,"2020","August 2019","Paperback","6.000 X 9.000","Author","Maeve Losito",null,null,null,null,"Z",null,"Grade 7","Grade 7 - 10","Fear is a natural human response that developed to help people survive, but it can be more of a hindrance than a help. A phobia is a fear of something that is not inherently harmful that interferes with a person's daily life. These fears are explained through up-to-date charts and annotated quotes from medical experts that augment the informative main text, which aims to help readers separate myth from fact regarding phobias. A list of organizations to contact gives young adults somewhere to turn in developing healthy coping mechanisms for their own phobias or those of their loved ones.","English",20.99,17.850000000000001,"616.85/225--dc23","104 pp.","https://greenhavenpublishing.com/9781534567450",null,{"$f":"Table1[[#This Row],['# of Books]]*Table1[[#This Row],[QTY]]","v":0},{"$f":"Table1[[#This Row],[QTY]]*Table1[[#This Row],[School & Library Price]]","v":0}]
[null,null,21,null,null,"Health & Medicine","Diseases and Disorders","Sleep Disorders: What Keeps People Up at Night?","978-1-5345-6692-7",{"$f":"HYPERLINK(Table1[[#This Row],[eCommerce Hyperlink]],\"Book Weblink\")","v":"Book Weblink"},null,"Lucent Press","Library Bound Book",1,"2020","August 2019","Library","6.000 X 9.000","Author","Simon Pierce",null,null,null,null,"Z",null,"Grade 7","Grade 7 - 10","Although medical experts know people need sleep to remain healthy, many of the mechanics of sleep remain a mystery, which can make it difficult to diagnose and treat sleep disorders. Through informative main text, annotated quotes, detailed charts, and engaging sidebars, readers learn about these difficulties as well as the realities of living with sleep disorders such as insomnia and narcolepsy. A list of organizations to contact for further resources and support is also available for readers who want to go more in-depth into a particular disorder that they or a loved one may be suffering from.","English",40.9,32.72,"616.8/498--dc23","104 pp.","https://greenhavenpublishing.com/9781534566927",null,{"$f":"Table1[[#This Row],['# of Books]]*Table1[[#This Row],[QTY]]","v":0},{"$f":"Table1[[#This Row],[QTY]]*Table1[[#This Row],[School & Library Price]]","v":0}]
[null,null,21,null,null,"Health & Medicine","Diseases and Disorders","Sleep Disorders: What Keeps People Up at Night?","978-1-5345-6752-8",{"$f":"HYPERLINK(Table1[[#This Row],[eCommerce Hyperlink]],\"Book Weblink\")","v":"Book Weblink"},null,"Lucent Press","eBook",1,"2020","August 2019",null,null,"Author","Simon Pierce",null,null,null,null,"Z",null,"Grade 7","Grade 7 - 10","Although medical experts know people need sleep to remain healthy, many of the mechanics of sleep remain a mystery, which can make it difficult to diagnose and treat sleep disorders. Through informative main text, annotated quotes, detailed charts, and engaging sidebars, readers learn about these difficulties as well as the realities of living with sleep disorders such as insomnia and narcolepsy. A list of organizations to contact for further resources and support is also available for readers who want to go more in-depth into a particular disorder that they or a loved one may be suffering from.","English",40.9,32.72,"616.8/498--dc23","104 pp.","https://greenhavenpublishing.com/9781534567528",null,{"$f":"Table1[[#This Row],['# of Books]]*Table1[[#This Row],[QTY]]","v":0},{"$f":"Table1[[#This Row],[QTY]]*Table1[[#This Row],[School & Library Price]]","v":0}]
[null,null,21,null,null,"Health & Medicine","Diseases and Disorders","Sleep Disorders: What Keeps People Up at Night?","978-1-5345-6751-1",{"$f":"HYPERLINK(Table1[[#This Row],[eCommerce Hyperlink]],\"Book Weblink\")","v":"Book Weblink"},null,"Lucent Press","Paperback Book",1,"2020","August 2019","Paperback","6.000 X 9.000","Author","Simon Pierce",null,null,null,null,"Z",null,"Grade 7","Grade 7 - 10","Although medical experts know people need sleep to remain healthy, many of the mechanics of sleep remain a mystery, which can make it difficult to diagnose and treat sleep disorders. Through informative main text, annotated quotes, detailed charts, and engaging sidebars, readers learn about these difficulties as well as the realities of living with sleep disorders such as insomnia and narcolepsy. A list of organizations to contact for further resources and support is also available for readers who want to go more in-depth into a particular disorder that they or a loved one may be suffering from.","English",20.99,17.850000000000001,"616.8/498--dc23","104 pp.","https://greenhavenpublishing.com/9781534567511",null,{"$f":"Table1[[#This Row],['# of Books]]*Table1[[#This Row],[QTY]]","v":0},{"$f":"Table1[[#This Row],[QTY]]*Table1[[#This Row],[School & Library Price]]","v":0}]
[null,null,21,null,null,"Health & Medicine","Diseases and Disorders","Understanding Personality Disorders","978-1-5345-6690-3",{"$f":"HYPERLINK(Table1[[#This Row],[eCommerce Hyperlink]],\"Book Weblink\")","v":"Book Weblink"},null,"Lucent Press","Library Bound Book",1,"2020","August 2019","Library","6.000 X 9.000","Author","Christine Krolewicz",null,null,null,null,"Z",null,"Grade 7","Grade 7 - 10","Personality disorders are so widely misunderstood that most people who live with them never receive help. This book explores the age-old question of \"What is 'normal'?\" to help young adults understand where the line is drawn between healthy and disordered personalities. Mental health experts' current understanding of personality disorders, including causes and treatments, is explained in this engaging text, supplemented with informative sidebars and full-color photographs. Readers will develop an understanding of what it is like to live with a personality disorder or be close to someone who does, gaining a sense of hope as they read.","English",40.9,32.72,"616.85/81--dc23","104 pp.","https://greenhavenpublishing.com/9781534566903",null,{"$f":"Table1[[#This Row],['# of Books]]*Table1[[#This Row],[QTY]]","v":0},{"$f":"Table1[[#This Row],[QTY]]*Table1[[#This Row],[School & Library Price]]","v":0}]
[null,null,21,null,null,"Health & Medicine","Diseases and Disorders","Understanding Personality Disorders","978-1-5345-6744-3",{"$f":"HYPERLINK(Table1[[#This Row],[eCommerce Hyperlink]],\"Book Weblink\")","v":"Book Weblink"},null,"Lucent Press","eBook",1,"2020","August 2019",null,null,"Author","Christine Krolewicz",null,null,null,null,"Z",null,"Grade 7","Grade 7 - 10","Personality disorders are so widely misunderstood that most people who live with them never receive help. This book explores the age-old question of \"What is 'normal'?\" to help young adults understand where the line is drawn between healthy and disordered personalities. Mental health experts' current understanding of personality disorders, including causes and treatments, is explained in this engaging text, supplemented with informative sidebars and full-color photographs. Readers will develop an understanding of what it is like to live with a personality disorder or be close to someone who does, gaining a sense of hope as they read.","English",40.9,32.72,"616.85/81--dc23","104 pp.","https://greenhavenpublishing.com/9781534567443",null,{"$f":"Table1[[#This Row],['# of Books]]*Table1[[#This Row],[QTY]]","v":0},{"$f":"Table1[[#This Row],[QTY]]*Table1[[#This Row],[School & Library Price]]","v":0}]
[null,null,21,null,null,"Health & Medicine","Diseases and Disorders","Understanding Personality Disorders","978-1-5345-6743-6",{"$f":"HYPERLINK(Table1[[#This Row],[eCommerce Hyperlink]],\"Book Weblink\")","v":"Book Weblink"},null,"Lucent Press","Paperback Book",1,"2020","August 2019","Paperback","6.000 X 9.000","Author","Christine Krolewicz",null,null,null,null,"Z",null,"Grade 7","Grade 7 - 10","Personality disorders are so widely misunderstood that most people who live with them never receive help. This book explores the age-old question of \"What is 'normal'?\" to help young adults understand where the line is drawn between healthy and disordered personalities. Mental health experts' current understanding of personality disorders, including causes and treatments, is explained in this engaging text, supplemented with informative sidebars and full-color photographs. Readers will develop an understanding of what it is like to live with a personality disorder or be close to someone who does, gaining a sense of hope as they read.","English",20.99,17.850000000000001,"616.85/81--dc23","104 pp.","https://greenhavenpublishing.com/9781534567436",null,{"$f":"Table1[[#This Row],['# of Books]]*Table1[[#This Row],[QTY]]","v":0},{"$f":"Table1[[#This Row],[QTY]]*Table1[[#This Row],[School & Library Price]]","v":0}]
[null,null,21,null,null,"Health & Medicine","Drug Education Library","Drug Education Library","978-1-5345-6063-5",{"$f":"HYPERLINK(Table1[[#This Row],[eCommerce Hyperlink]],\"Book Weblink\")","v":"Book Weblink"},null,"Lucent Press","Library Set",6,"2017","January 2017","Library","6.000 X 9.000",null,null,null,null,null,null,null,null,"Grade 7","Grade 7 - 10","The prevalence of drug abuse in today’s society makes it imperative to educate young adults about the dangers of using such substances. Through engaging text and full-color photographs, young adults are encouraged to think critically about drug-related issues. Each volume reflects the most newsworthy and interesting angles about each topic to pique readers’ interests. Readers will become better informed about the choices they may be facing regarding drug usage, helping them make the right ones.","English",230.7,184.56,null,"104 pp.","https://greenhavenpublishing.com/9781534560635",null,{"$f":"Table1[[#This Row],['# of Books]]*Table1[[#This Row],[QTY]]","v":0},{"$f":"Table1[[#This Row],[QTY]]*Table1[[#This Row],[School & Library Price]]","v":0}]
[null,null,21,null,null,"Health & Medicine","Drug Education Library","Designer Drugs: Deadly Chemistry","978-1-5345-6007-9",{"$f":"HYPERLINK(Table1[[#This Row],[eCommerce Hyperlink]],\"Book Weblink\")","v":"Book Weblink"},null,"Lucent Press","Library Bound Book",1,"2017","January 2017","Library","6.000 X 9.000","Author","Edna McPhee",null,null,null,null,"Z",null,"Grade 7","Grade 7 - 10","The use of designer drugs such as LSD, Ecstasy, and methamphetamines is unfortunately widespread among young adults, particularly in club or party settings. These drugs are especially risky because they are made in batches in individual home labs, so there is no way to tell how much of any dangerous substance was used in their creation. Readers learn the risks associated with using many of these designer drugs. The accessible text, complemented by full-color photographs and in-depth sidebars, gives them the facts they need to make safe choices.","English",38.450000000000003,30.76,"615.1/9","112 pp.","https://greenhavenpublishing.com/9781534560079",null,{"$f":"Table1[[#This Row],['# of Books]]*Table1[[#This Row],[QTY]]","v":0},{"$f":"Table1[[#This Row],[QTY]]*Table1[[#This Row],[School & Library Price]]","v":0}]
[null,null,21,null,null,"Health & Medicine","Drug Education Library","Designer Drugs: Deadly Chemistry","978-1-5345-6008-6",{"$f":"HYPERLINK(Table1[[#This Row],[eCommerce Hyperlink]],\"Book Weblink\")","v":"Book Weblink"},null,"Lucent Press","eBook",1,"2017","January 2017",null,null,"Author","Edna McPhee",null,null,null,null,"Z",null,"Grade 7","Grade 7 - 10","The use of designer drugs such as LSD, Ecstasy, and methamphetamines is unfortunately widespread among young adults, particularly in club or party settings. These drugs are especially risky because they are made in batches in individual home labs, so there is no way to tell how much of any dangerous substance was used in their creation. Readers learn the risks associated with using many of these designer drugs. The accessible text, complemented by full-color photographs and in-depth sidebars, gives them the facts they need to make safe choices.","English",38.450000000000003,30.76,"615.1/9","112 pp.","https://greenhavenpublishing.com/9781534560086",null,{"$f":"Table1[[#This Row],['# of Books]]*Table1[[#This Row],[QTY]]","v":0},{"$f":"Table1[[#This Row],[QTY]]*Table1[[#This Row],[School & Library Price]]","v":0}]
[null,null,21,null,null,"Health & Medicine","Drug Education Library","Heroin: Killer Drug Epidemic","978-1-5345-6009-3",{"$f":"HYPERLINK(Table1[[#This Row],[eCommerce Hyperlink]],\"Book Weblink\")","v":"Book Weblink"},null,"Lucent Press","Library Bound Book",1,"2017","January 2017","Library","6.000 X 9.000","Author","Nicole Horning",null,null,null,null,"Z",null,"Grade 7","Grade 7 - 10","Young adults who abuse prescription opioids may turn to heroin later on, as it gives the same type of high but can be cheaper and easier to obtain than prescriptions. Knowing the health risks associated with heroin abuse can help young adults avoid falling into the traps of both kinds of drugs. Incorporating full-color photographs and detailed charts, this volume illustrates the severe health threat heroin poses. A list of antidrug organizations is provided for readers to learn more about this dangerous drug epidemic.","English",38.450000000000003,30.76,"616.86’32","104 pp.","https://greenhavenpublishing.com/9781534560093",null,{"$f":"Table1[[#This Row],['# of Books]]*Table1[[#This Row],[QTY]]","v":0},{"$f":"Table1[[#This Row],[QTY]]*Table1[[#This Row],[School & Library Price]]","v":0}]
[null,null,21,null,null,"Health & Medicine","Drug Education Library","Heroin: Killer Drug Epidemic","978-1-5345-6010-9",{"$f":"HYPERLINK(Table1[[#This Row],[eCommerce Hyperlink]],\"Book Weblink\")","v":"Book Weblink"},null,"Lucent Press","eBook",1,"2017","January 2017",null,null,"Author","Nicole Horning",null,null,null,null,"Z",null,"Grade 7","Grade 7 - 10","Young adults who abuse prescription opioids may turn to heroin later on, as it gives the same type of high but can be cheaper and easier to obtain than prescriptions. Knowing the health risks associated with heroin abuse can help young adults avoid falling into the traps of both kinds of drugs. Incorporating full-color photographs and detailed charts, this volume illustrates the severe health threat heroin poses. A list of antidrug organizations is provided for readers to learn more about this dangerous drug epidemic.","English",38.450000000000003,30.76,"616.86’32","104 pp.","https://greenhavenpublishing.com/9781534560109",null,{"$f":"Table1[[#This Row],['# of Books]]*Table1[[#This Row],[QTY]]","v":0},{"$f":"Table1[[#This Row],[QTY]]*Table1[[#This Row],[School & Library Price]]","v":0}]
[null,null,21,null,null,"Health & Medicine","Drug Education Library","Marijuana: Abuse and Legalization","978-1-5345-6001-7",{"$f":"HYPERLINK(Table1[[#This Row],[eCommerce Hyperlink]],\"Book Weblink\")","v":"Book Weblink"},null,"Lucent Press","Library Bound Book",1,"2017","January 2017","Library","6.000 X 9.000","Author, Author","Anna Collins, Hal Marcovitz",null,null,null,null,"Z",null,"Grade 7","Grade 7 - 10","Marijuana use is extremely prevalent in today’s society, and factions have long debated whether it is helpful, harmful, or both. With the legalization of marijuana in some states, this debate is more heated than ever, making it crucial to give young adults as much information as possible. This volume presents readers with both sides of the issue, encouraging them to think critically about whether or not marijuana should be legalized nationally. Detailed sidebars and full-color photographs explore the history and effects of marijuana use, and a list of websites is provided for further research.","English",38.450000000000003,30.76,"362.29’5","104 pp.","https://greenhavenpublishing.com/9781534560017",null,{"$f":"Table1[[#This Row],['# of Books]]*Table1[[#This Row],[QTY]]","v":0},{"$f":"Table1[[#This Row],[QTY]]*Table1[[#This Row],[School & Library Price]]","v":0}]
[null,null,21,null,null,"Health & Medicine","Drug Education Library","Marijuana: Abuse and Legalization","978-1-5345-6002-4",{"$f":"HYPERLINK(Table1[[#This Row],[eCommerce Hyperlink]],\"Book Weblink\")","v":"Book Weblink"},null,"Lucent Press","eBook",1,"2017","January 2017",null,null,"Author, Author","Anna Collins, Hal Marcovitz",null,null,null,null,"Z",null,"Grade 7","Grade 7 - 10","Marijuana use is extremely prevalent in today’s society, and factions have long debated whether it is helpful, harmful, or both. With the legalization of marijuana in some states, this debate is more heated than ever, making it crucial to give young adults as much information as possible. This volume presents readers with both sides of the issue, encouraging them to think critically about whether or not marijuana should be legalized nationally. Detailed sidebars and full-color photographs explore the history and effects of marijuana use, and a list of websites is provided for further research.","English",38.450000000000003,30.76,"362.29’5","104 pp.","https://greenhavenpublishing.com/9781534560024",null,{"$f":"Table1[[#This Row],['# of Books]]*Table1[[#This Row],[QTY]]","v":0},{"$f":"Table1[[#This Row],[QTY]]*Table1[[#This Row],[School & Library Price]]","v":0}]
[null,null,21,null,null,"Health & Medicine","Drug Education Library","Prescription Drugs: Opioids That Kill","978-1-5345-6011-6",{"$f":"HYPERLINK(Table1[[#This Row],[eCommerce Hyperlink]],\"Book Weblink\")","v":"Book Weblink"},null,"Lucent Press","Library Bound Book",1,"2017","January 2017","Library","6.000 X 9.000","Author","Simon Pierce",null,null,null,null,"Z",null,"Grade 7","Grade 7 - 10","Since prescription drugs can be obtained legally and found in medicine cabinets in young adults’ own homes, there is a perception that they are not as dangerous as other types of drugs. However, abuse of prescriptions can have hazardous consequences, which readers discover in great detail. Enlightening charts and sidebars augment the discussion of prescription drug abuse, and a list of websites provides resources for those who may already be struggling with this addiction.","English",38.450000000000003,30.76,"362.29--dc23","104 pp.","https://greenhavenpublishing.com/9781534560116",null,{"$f":"Table1[[#This Row],['# of Books]]*Table1[[#This Row],[QTY]]","v":0},{"$f":"Table1[[#This Row],[QTY]]*Table1[[#This Row],[School & Library Price]]","v":0}]
[null,null,21,null,null,"Health & Medicine","Drug Education Library","Prescription Drugs: Opioids That Kill","978-1-5345-6012-3",{"$f":"HYPERLINK(Table1[[#This Row],[eCommerce Hyperlink]],\"Book Weblink\")","v":"Book Weblink"},null,"Lucent Press","eBook",1,"2017","January 2017",null,null,"Author","Simon Pierce",null,null,null,null,"Z",null,"Grade 7","Grade 7 - 10","Since prescription drugs can be obtained legally and found in medicine cabinets in young adults’ own homes, there is a perception that they are not as dangerous as other types of drugs. However, abuse of prescriptions can have hazardous consequences, which readers discover in great detail. Enlightening charts and sidebars augment the discussion of prescription drug abuse, and a list of websites provides resources for those who may already be struggling with this addiction.","English",38.450000000000003,30.76,"362.29--dc23","104 pp.","https://greenhavenpublishing.com/9781534560123",null,{"$f":"Table1[[#This Row],['# of Books]]*Table1[[#This Row],[QTY]]","v":0},{"$f":"Table1[[#This Row],[QTY]]*Table1[[#This Row],[School & Library Price]]","v":0}]
[null,null,21,null,null,"Health & Medicine","Drug Education Library","Steroids and Other Performance-Enhancing Drugs","978-1-5345-6003-1",{"$f":"HYPERLINK(Table1[[#This Row],[eCommerce Hyperlink]],\"Book Weblink\")","v":"Book Weblink"},null,"Lucent Press","Library Bound Book",1,"2017","January 2017","Library","6.000 X 9.000","Author, Author","Christine Honders, Tamara L. Roleff",null,null,null,null,"Z",null,"Grade 7","Grade 7 - 10","While steroids are medically useful in small, prescribed doses, they are too often abused in sports alongside other performance-enhancing drugs. Young athletes may feel their natural performance is not good enough, so they may turn to these drugs to get ahead. Young athletes are informed about the risky effects of abusing these drugs to combat the allure of being perceived as a better player. Sidebars and full-color photographs help portray the dangerous consequences of this type of drug abuse.","English",38.450000000000003,30.76,"362.29’9","112 pp.","https://greenhavenpublishing.com/9781534560031",null,{"$f":"Table1[[#This Row],['# of Books]]*Table1[[#This Row],[QTY]]","v":0},{"$f":"Table1[[#This Row],[QTY]]*Table1[[#This Row],[School & Library Price]]","v":0}]
[null,null,21,null,null,"Health & Medicine","Drug Education Library","Steroids and Other Performance-Enhancing Drugs","978-1-5345-6004-8",{"$f":"HYPERLINK(Table1[[#This Row],[eCommerce Hyperlink]],\"Book Weblink\")","v":"Book Weblink"},null,"Lucent Press","eBook",1,"2017","January 2017",null,null,"Author, Author","Christine Honders, Tamara L. Roleff",null,null,null,null,"Z",null,"Grade 7","Grade 7 - 10","While steroids are medically useful in small, prescribed doses, they are too often abused in sports alongside other performance-enhancing drugs. Young athletes may feel their natural performance is not good enough, so they may turn to these drugs to get ahead. Young athletes are informed about the risky effects of abusing these drugs to combat the allure of being perceived as a better player. Sidebars and full-color photographs help portray the dangerous consequences of this type of drug abuse.","English",38.450000000000003,30.76,"362.29’9","112 pp.","https://greenhavenpublishing.com/9781534560048",null,{"$f":"Table1[[#This Row],['# of Books]]*Table1[[#This Row],[QTY]]","v":0},{"$f":"Table1[[#This Row],[QTY]]*Table1[[#This Row],[School & Library Price]]","v":0}]
[null,null,21,null,null,"Health & Medicine","Drug Education Library","The Dangers of Diet Drugs","978-1-5345-6005-5",{"$f":"HYPERLINK(Table1[[#This Row],[eCommerce Hyperlink]],\"Book Weblink\")","v":"Book Weblink"},null,"Lucent Press","Library Bound Book",1,"2017","January 2017","Library","6.000 X 9.000","Author, Author","Christina McMahon, Hal Marcovitz",null,null,null,null,"Z",null,"Grade 7","Grade 7 - 10","Young adults are faced with pressure from friends, family, and the media not to become overweight. Many struggle with self-esteem issues as a result, and someone who has trouble keeping his or her weight down may turn to dangerous diet drugs for a quick fix. Readers learn about the consequences of taking these pills through accessible text and informative graphs. A list of organizations is included where young adults can find more information about healthy alternatives to diet drugs.","English",38.450000000000003,30.76,"613.2’5","104 pp.","https://greenhavenpublishing.com/9781534560055",null,{"$f":"Table1[[#This Row],['# of Books]]*Table1[[#This Row],[QTY]]","v":0},{"$f":"Table1[[#This Row],[QTY]]*Table1[[#This Row],[School & Library Price]]","v":0}]
[null,null,21,null,null,"Health & Medicine","Drug Education Library","The Dangers of Diet Drugs","978-1-5345-6006-2",{"$f":"HYPERLINK(Table1[[#This Row],[eCommerce Hyperlink]],\"Book Weblink\")","v":"Book Weblink"},null,"Lucent Press","eBook",1,"2017","January 2017",null,null,"Author, Author","Christina McMahon, Hal Marcovitz",null,null,null,null,"Z",null,"Grade 7","Grade 7 - 10","Young adults are faced with pressure from friends, family, and the media not to become overweight. Many struggle with self-esteem issues as a result, and someone who has trouble keeping his or her weight down may turn to dangerous diet drugs for a quick fix. Readers learn about the consequences of taking these pills through accessible text and informative graphs. A list of organizations is included where young adults can find more information about healthy alternatives to diet drugs.","English",38.450000000000003,30.76,"613.2’5","104 pp.","https://greenhavenpublishing.com/9781534560062",null,{"$f":"Table1[[#This Row],['# of Books]]*Table1[[#This Row],[QTY]]","v":0},{"$f":"Table1[[#This Row],[QTY]]*Table1[[#This Row],[School & Library Price]]","v":0}]
[null,null,21,null,null,"Health & Medicine","Nutrition and Health","Nutrition and Health","978-1-5345-6888-4",{"$f":"HYPERLINK(Table1[[#This Row],[eCommerce Hyperlink]],\"Book Weblink\")","v":"Book Weblink"},null,"Lucent Press","Library Set",5,"2020","January 2020","Library","7.000 X 9.000",null,null,null,null,null,null,null,null,"Grade 7","Grade 7 - 10","As researchers learn more about the human body, they also learn more about what keeps it healthy. Unfortunately, the realities of daily life can often get in the way of putting this research into practice. For example, increased stress at work or school and the wide availability of junk food can cause people to eat poorly. Misinformation about the safety of vaccines can put lives at risk. Readers learn to take control of their health as they discover the most up-to-date information, supplemented by charts, graphs, sidebars, and annotated quotes from medical experts. Features include: Informative, unbiased texts give young adults the facts they need in order to make smart decisions about their health without causing unnecessary anxiety. Timely, relevant topics, ranging from food safety to eating a balanced vegetarian diet, encourage readers to think critically about health and nutrition issues that are often in the news. Eye-catching fact boxes highlight important details and teach readers to use facts to support their opinions.","English",202,161.6,null,"104 pp.","https://greenhavenpublishing.com/9781534568884",null,{"$f":"Table1[[#This Row],['# of Books]]*Table1[[#This Row],[QTY]]","v":0},{"$f":"Table1[[#This Row],[QTY]]*Table1[[#This Row],[School & Library Price]]","v":0}]
[null,null,21,null,null,"Health & Medicine","Nutrition and Health","Nutrition and Health","978-1-5345-6895-2",{"$f":"HYPERLINK(Table1[[#This Row],[eCommerce Hyperlink]],\"Book Weblink\")","v":"Book Weblink"},null,"Lucent Press","Single Copy Set",5,"2020","January 2020","Paperback","7.000 X 9.000",null,null,null,null,null,null,null,null,"Grade 7","Grade 7 - 10","As researchers learn more about the human body, they also learn more about what keeps it healthy. Unfortunately, the realities of daily life can often get in the way of putting this research into practice. For example, increased stress at work or school and the wide availability of junk food can cause people to eat poorly. Misinformation about the safety of vaccines can put lives at risk. Readers learn to take control of their health as they discover the most up-to-date information, supplemented by charts, graphs, sidebars, and annotated quotes from medical experts. Features include: Informative, unbiased texts give young adults the facts they need in order to make smart decisions about their health without causing unnecessary anxiety. Timely, relevant topics, ranging from food safety to eating a balanced vegetarian diet, encourage readers to think critically about health and nutrition issues that are often in the news. Eye-catching fact boxes highlight important details and teach readers to use facts to support their opinions.","English",104.95,89.25,null,"104 pp.","https://greenhavenpublishing.com/9781534568952",null,{"$f":"Table1[[#This Row],['# of Books]]*Table1[[#This Row],[QTY]]","v":0},{"$f":"Table1[[#This Row],[QTY]]*Table1[[#This Row],[School & Library Price]]","v":0}]
[null,null,21,null,null,"Health & Medicine","Nutrition and Health","Food Allergies: A Growing Problem","978-1-5345-6870-9",{"$f":"HYPERLINK(Table1[[#This Row],[eCommerce Hyperlink]],\"Book Weblink\")","v":"Book Weblink"},null,"Lucent Press","Library Bound Book",1,"2020","January 2020","Library","7.000 X 9.000","Author","Jason Brainard",null,null,null,null,"Z",null,"Grade 7","Grade 7 - 10","Although food allergies can be dangerous, they do not have to stop someone from living a healthy, active life. Through informative text featuring annotated quotes and full-color photographs, readers learn the definition of a food allergy and the process for diagnosing food allergies. Growing rates of food allergies and the evolution of industrial agriculture are also examined. Engaging fact boxes and in-depth sidebars highlight important concepts and milestones in food allergy research. By discussing the science behind food allergies, this volume works to dispel harmful myths about food allergies and the individuals who live with them.","English",40.4,32.32,"616.97/5--dc23","104 pp.","https://greenhavenpublishing.com/9781534568709",null,{"$f":"Table1[[#This Row],['# of Books]]*Table1[[#This Row],[QTY]]","v":0},{"$f":"Table1[[#This Row],[QTY]]*Table1[[#This Row],[School & Library Price]]","v":0}]
[null,null,21,null,null,"Health & Medicine","Nutrition and Health","Food Allergies: A Growing Problem","978-1-5345-6877-8",{"$f":"HYPERLINK(Table1[[#This Row],[eCommerce Hyperlink]],\"Book Weblink\")","v":"Book Weblink"},null,"Lucent Press","eBook",1,"2020","January 2020",null,null,"Author","Jason Brainard",null,null,null,null,"Z",null,"Grade 7","Grade 7 - 10","Although food allergies can be dangerous, they do not have to stop someone from living a healthy, active life. Through informative text featuring annotated quotes and full-color photographs, readers learn the definition of a food allergy and the process for diagnosing food allergies. Growing rates of food allergies and the evolution of industrial agriculture are also examined. Engaging fact boxes and in-depth sidebars highlight important concepts and milestones in food allergy research. By discussing the science behind food allergies, this volume works to dispel harmful myths about food allergies and the individuals who live with them.","English",40.4,32.32,"616.97/5--dc23","104 pp.","https://greenhavenpublishing.com/9781534568778",null,{"$f":"Table1[[#This Row],['# of Books]]*Table1[[#This Row],[QTY]]","v":0},{"$f":"Table1[[#This Row],[QTY]]*Table1[[#This Row],[School & Library Price]]","v":0}]
[null,null,21,null,null,"Health & Medicine","Nutrition and Health","Food Allergies: A Growing Problem","978-1-5345-6876-1",{"$f":"HYPERLINK(Table1[[#This Row],[eCommerce Hyperlink]],\"Book Weblink\")","v":"Book Weblink"},null,"Lucent Press","Paperback Book",1,"2020","January 2020","Paperback","7.000 X 9.000","Author","Jason Brainard",null,null,null,null,"Z",null,"Grade 7","Grade 7 - 10","Although food allergies can be dangerous, they do not have to stop someone from living a healthy, active life. Through informative text featuring annotated quotes and full-color photographs, readers learn the definition of a food allergy and the process for diagnosing food allergies. Growing rates of food allergies and the evolution of industrial agriculture are also examined. Engaging fact boxes and in-depth sidebars highlight important concepts and milestones in food allergy research. By discussing the science behind food allergies, this volume works to dispel harmful myths about food allergies and the individuals who live with them.","English",20.99,17.850000000000001,"616.97/5--dc23","104 pp.","https://greenhavenpublishing.com/9781534568761",null,{"$f":"Table1[[#This Row],['# of Books]]*Table1[[#This Row],[QTY]]","v":0},{"$f":"Table1[[#This Row],[QTY]]*Table1[[#This Row],[School & Library Price]]","v":0}]
[null,null,21,null,null,"Health & Medicine","Nutrition and Health","Food Safety: Saving Lives","978-1-5345-6871-6",{"$f":"HYPERLINK(Table1[[#This Row],[eCommerce Hyperlink]],\"Book Weblink\")","v":"Book Weblink"},null,"Lucent Press","Library Bound Book",1,"2020","January 2020","Library","7.000 X 9.000","Author","Juliana Burkhart",null,null,null,null,"Z",null,"Grade 7","Grade 7 - 10","The average consumer often ignores the conditions their food is grown or raised in. Generally, it is only when a deadly outbreak of foodborne illness occurs that people scrutinize the food industry and food safety regulations. Illuminating text, augmented with informative charts and detailed fact boxes, provides a comprehensive guide to the history of food safety laws in the United States. Readers learn about major foodborne diseases and what causes them, as well as what is being done to stop those diseases from spreading. Annotated quotes from experts and full-color photographs enhance this essential reading experience.","English",40.4,32.32,"615.9/540289--dc23","104 pp.","https://greenhavenpublishing.com/9781534568716",null,{"$f":"Table1[[#This Row],['# of Books]]*Table1[[#This Row],[QTY]]","v":0},{"$f":"Table1[[#This Row],[QTY]]*Table1[[#This Row],[School & Library Price]]","v":0}]
[null,null,21,null,null,"Health & Medicine","Nutrition and Health","Food Safety: Saving Lives","978-1-5345-6882-2",{"$f":"HYPERLINK(Table1[[#This Row],[eCommerce Hyperlink]],\"Book Weblink\")","v":"Book Weblink"},null,"Lucent Press","eBook",1,"2020","January 2020",null,null,"Author","Juliana Burkhart",null,null,null,null,"Z",null,"Grade 7","Grade 7 - 10","The average consumer often ignores the conditions their food is grown or raised in. Generally, it is only when a deadly outbreak of foodborne illness occurs that people scrutinize the food industry and food safety regulations. Illuminating text, augmented with informative charts and detailed fact boxes, provides a comprehensive guide to the history of food safety laws in the United States. Readers learn about major foodborne diseases and what causes them, as well as what is being done to stop those diseases from spreading. Annotated quotes from experts and full-color photographs enhance this essential reading experience.","English",40.4,32.32,"615.9/540289--dc23","104 pp.","https://greenhavenpublishing.com/9781534568822",null,{"$f":"Table1[[#This Row],['# of Books]]*Table1[[#This Row],[QTY]]","v":0},{"$f":"Table1[[#This Row],[QTY]]*Table1[[#This Row],[School & Library Price]]","v":0}]
[null,null,21,null,null,"Health & Medicine","Nutrition and Health","Food Safety: Saving Lives","978-1-5345-6886-0",{"$f":"HYPERLINK(Table1[[#This Row],[eCommerce Hyperlink]],\"Book Weblink\")","v":"Book Weblink"},null,"Lucent Press","Paperback Book",1,"2020","January 2020","Paperback","7.000 X 9.000","Author","Juliana Burkhart",null,null,null,null,"Z",null,"Grade 7","Grade 7 - 10","The average consumer often ignores the conditions their food is grown or raised in. Generally, it is only when a deadly outbreak of foodborne illness occurs that people scrutinize the food industry and food safety regulations. Illuminating text, augmented with informative charts and detailed fact boxes, provides a comprehensive guide to the history of food safety laws in the United States. Readers learn about major foodborne diseases and what causes them, as well as what is being done to stop those diseases from spreading. Annotated quotes from experts and full-color photographs enhance this essential reading experience.","English",20.99,17.850000000000001,"615.9/540289--dc23","104 pp.","https://greenhavenpublishing.com/9781534568860",null,{"$f":"Table1[[#This Row],['# of Books]]*Table1[[#This Row],[QTY]]","v":0},{"$f":"Table1[[#This Row],[QTY]]*Table1[[#This Row],[School & Library Price]]","v":0}]
[null,null,21,null,null,"Health & Medicine","Nutrition and Health","Life as a Vegetarian: Eating Without Meat","978-1-5345-6872-3",{"$f":"HYPERLINK(Table1[[#This Row],[eCommerce Hyperlink]],\"Book Weblink\")","v":"Book Weblink"},null,"Lucent Press","Library Bound Book",1,"2020","January 2020","Library","7.000 X 9.000","Author","Jason Brainard",null,null,null,null,"Z",null,"Grade 7","Grade 7 - 10","In recent years, the purported health and environmental benefits of vegetarianism have convinced many people to eat a plant-based diet. However, experts caution that not all vegetarian foods are inherently healthy. Readers discover this as they explore the history of vegetarianism and nutritional guidelines for living as a healthy vegetarian. Full-color photographs, charts, graphs, and fact boxes are utilized to highlight important concepts, debunked misconceptions, and current scientific studies on nutrition and human health. Along with annotated quotes by experts, these features help young adults learn to think critically about vegetarianism.","English",40.4,32.32,"641.5'636--dc23","104 pp.","https://greenhavenpublishing.com/9781534568723",null,{"$f":"Table1[[#This Row],['# of Books]]*Table1[[#This Row],[QTY]]","v":0},{"$f":"Table1[[#This Row],[QTY]]*Table1[[#This Row],[School & Library Price]]","v":0}]
[null,null,21,null,null,"Health & Medicine","Nutrition and Health","Life as a Vegetarian: Eating Without Meat","978-1-5345-6880-8",{"$f":"HYPERLINK(Table1[[#This Row],[eCommerce Hyperlink]],\"Book Weblink\")","v":"Book Weblink"},null,"Lucent Press","eBook",1,"2020","January 2020",null,null,"Author","Jason Brainard",null,null,null,null,"Z",null,"Grade 7","Grade 7 - 10","In recent years, the purported health and environmental benefits of vegetarianism have convinced many people to eat a plant-based diet. However, experts caution that not all vegetarian foods are inherently healthy. Readers discover this as they explore the history of vegetarianism and nutritional guidelines for living as a healthy vegetarian. Full-color photographs, charts, graphs, and fact boxes are utilized to highlight important concepts, debunked misconceptions, and current scientific studies on nutrition and human health. Along with annotated quotes by experts, these features help young adults learn to think critically about vegetarianism.","English",40.4,32.32,"641.5'636--dc23","104 pp.","https://greenhavenpublishing.com/9781534568808",null,{"$f":"Table1[[#This Row],['# of Books]]*Table1[[#This Row],[QTY]]","v":0},{"$f":"Table1[[#This Row],[QTY]]*Table1[[#This Row],[School & Library Price]]","v":0}]
[null,null,21,null,null,"Health & Medicine","Nutrition and Health","Life as a Vegetarian: Eating Without Meat","978-1-5345-6885-3",{"$f":"HYPERLINK(Table1[[#This Row],[eCommerce Hyperlink]],\"Book Weblink\")","v":"Book Weblink"},null,"Lucent Press","Paperback Book",1,"2020","January 2020","Paperback","7.000 X 9.000","Author","Jason Brainard",null,null,null,null,"Z",null,"Grade 7","Grade 7 - 10","In recent years, the purported health and environmental benefits of vegetarianism have convinced many people to eat a plant-based diet. However, experts caution that not all vegetarian foods are inherently healthy. Readers discover this as they explore the history of vegetarianism and nutritional guidelines for living as a healthy vegetarian. Full-color photographs, charts, graphs, and fact boxes are utilized to highlight important concepts, debunked misconceptions, and current scientific studies on nutrition and human health. Along with annotated quotes by experts, these features help young adults learn to think critically about vegetarianism.","English",20.99,17.850000000000001,"641.5'636--dc23","104 pp.","https://greenhavenpublishing.com/9781534568853",null,{"$f":"Table1[[#This Row],['# of Books]]*Table1[[#This Row],[QTY]]","v":0},{"$f":"Table1[[#This Row],[QTY]]*Table1[[#This Row],[School & Library Price]]","v":0}]
[null,null,21,null,null,"Health & Medicine","Nutrition and Health","Vaccines: The Truth Behind the Debates","978-1-5345-6874-7",{"$f":"HYPERLINK(Table1[[#This Row],[eCommerce Hyperlink]],\"Book Weblink\")","v":"Book Weblink"},null,"Lucent Press","Library Bound Book",1,"2020","January 2020","Library","7.000 X 9.000","Author","Michelle Harris",null,null,null,null,"Z",null,"Grade 7","Grade 7 - 10","Vaccination has been cited as the most effective method of preventing the spread of infectious disease, and it has been credited with the eradication of such horrendous and potentially lethal illnesses as smallpox and polio. However, in recent years, growing numbers of parents have come to question the wisdom of vaccination, expressing fears over potential side effects on children. This informative text, augmented by in-depth sidebars, annotated quotes from medical experts, detailed graphs, and full-color photographs, explores the history of vaccines and provides a clearer understanding of the debate over the safety and efficacy of immunization programs.","English",40.4,32.32,"615.3'72--dc23","104 pp.","https://greenhavenpublishing.com/9781534568747",null,{"$f":"Table1[[#This Row],['# of Books]]*Table1[[#This Row],[QTY]]","v":0},{"$f":"Table1[[#This Row],[QTY]]*Table1[[#This Row],[School & Library Price]]","v":0}]
[null,null,21,null,null,"Health & Medicine","Nutrition and Health","Vaccines: The Truth Behind the Debates","978-1-5345-6878-5",{"$f":"HYPERLINK(Table1[[#This Row],[eCommerce Hyperlink]],\"Book Weblink\")","v":"Book Weblink"},null,"Lucent Press","eBook",1,"2020","January 2020",null,null,"Author","Michelle Harris",null,null,null,null,"Z",null,"Grade 7","Grade 7 - 10","Vaccination has been cited as the most effective method of preventing the spread of infectious disease, and it has been credited with the eradication of such horrendous and potentially lethal illnesses as smallpox and polio. However, in recent years, growing numbers of parents have come to question the wisdom of vaccination, expressing fears over potential side effects on children. This informative text, augmented by in-depth sidebars, annotated quotes from medical experts, detailed graphs, and full-color photographs, explores the history of vaccines and provides a clearer understanding of the debate over the safety and efficacy of immunization programs.","English",40.4,32.32,"615.3'72--dc23","104 pp.","https://greenhavenpublishing.com/9781534568785",null,{"$f":"Table1[[#This Row],['# of Books]]*Table1[[#This Row],[QTY]]","v":0},{"$f":"Table1[[#This Row],[QTY]]*Table1[[#This Row],[School & Library Price]]","v":0}]
[null,null,21,null,null,"Health & Medicine","Nutrition and Health","Vaccines: The Truth Behind the Debates","978-1-5345-6883-9",{"$f":"HYPERLINK(Table1[[#This Row],[eCommerce Hyperlink]],\"Book Weblink\")","v":"Book Weblink"},null,"Lucent Press","Paperback Book",1,"2020","January 2020","Paperback","7.000 X 9.000","Author","Michelle Harris",null,null,null,null,"Z",null,"Grade 7","Grade 7 - 10","Vaccination has been cited as the most effective method of preventing the spread of infectious disease, and it has been credited with the eradication of such horrendous and potentially lethal illnesses as smallpox and polio. However, in recent years, growing numbers of parents have come to question the wisdom of vaccination, expressing fears over potential side effects on children. This informative text, augmented by in-depth sidebars, annotated quotes from medical experts, detailed graphs, and full-color photographs, explores the history of vaccines and provides a clearer understanding of the debate over the safety and efficacy of immunization programs.","English",20.99,17.850000000000001,"615.3'72--dc23","104 pp.","https://greenhavenpublishing.com/9781534568839",null,{"$f":"Table1[[#This Row],['# of Books]]*Table1[[#This Row],[QTY]]","v":0},{"$f":"Table1[[#This Row],[QTY]]*Table1[[#This Row],[School & Library Price]]","v":0}]
[null,null,21,null,null,"Health & Medicine","Nutrition and Health","We Are What We Eat: Understanding Diet and Disease","978-1-5345-6875-4",{"$f":"HYPERLINK(Table1[[#This Row],[eCommerce Hyperlink]],\"Book Weblink\")","v":"Book Weblink"},null,"Lucent Press","Library Bound Book",1,"2020","January 2020","Library","7.000 X 9.000","Author","Holly Brown",null,null,null,null,"Z",null,"Grade 7","Grade 7 - 10","A large part of a person's day often involves deciding what and where to eat, so it is important to understand what food can do to the body. As readers learn the benefits of nutrients they get from certain foods, they are able to better understand the ways in which a balanced meal can provide protection from disease. They also learn the connection between an unhealthy diet and dangerous diseases. The engaging narrative, supplemented with detailed charts, fact boxes, annotated quotes, and in-depth sidebars, encourages readers to live a healthy life.","English",40.4,32.32,"613.2--dc23","104 pp.","https://greenhavenpublishing.com/9781534568754",null,{"$f":"Table1[[#This Row],['# of Books]]*Table1[[#This Row],[QTY]]","v":0},{"$f":"Table1[[#This Row],[QTY]]*Table1[[#This Row],[School & Library Price]]","v":0}]
[null,null,21,null,null,"Health & Medicine","Nutrition and Health","We Are What We Eat: Understanding Diet and Disease","978-1-5345-6879-2",{"$f":"HYPERLINK(Table1[[#This Row],[eCommerce Hyperlink]],\"Book Weblink\")","v":"Book Weblink"},null,"Lucent Press","eBook",1,"2020","January 2020",null,null,"Author","Holly Brown",null,null,null,null,"Z",null,"Grade 7","Grade 7 - 10","A large part of a person's day often involves deciding what and where to eat, so it is important to understand what food can do to the body. As readers learn the benefits of nutrients they get from certain foods, they are able to better understand the ways in which a balanced meal can provide protection from disease. They also learn the connection between an unhealthy diet and dangerous diseases. The engaging narrative, supplemented with detailed charts, fact boxes, annotated quotes, and in-depth sidebars, encourages readers to live a healthy life.","English",40.4,32.32,"613.2--dc23","104 pp.","https://greenhavenpublishing.com/9781534568792",null,{"$f":"Table1[[#This Row],['# of Books]]*Table1[[#This Row],[QTY]]","v":0},{"$f":"Table1[[#This Row],[QTY]]*Table1[[#This Row],[School & Library Price]]","v":0}]
[null,null,21,null,null,"Health & Medicine","Nutrition and Health","We Are What We Eat: Understanding Diet and Disease","978-1-5345-6884-6",{"$f":"HYPERLINK(Table1[[#This Row],[eCommerce Hyperlink]],\"Book Weblink\")","v":"Book Weblink"},null,"Lucent Press","Paperback Book",1,"2020","January 2020","Paperback","7.000 X 9.000","Author","Holly Brown",null,null,null,null,"Z",null,"Grade 7","Grade 7 - 10","A large part of a person's day often involves deciding what and where to eat, so it is important to understand what food can do to the body. As readers learn the benefits of nutrients they get from certain foods, they are able to better understand the ways in which a balanced meal can provide protection from disease. They also learn the connection between an unhealthy diet and dangerous diseases. The engaging narrative, supplemented with detailed charts, fact boxes, annotated quotes, and in-depth sidebars, encourages readers to live a healthy life.","English",20.99,17.850000000000001,"613.2--dc23","104 pp.","https://greenhavenpublishing.com/9781534568846",null,{"$f":"Table1[[#This Row],['# of Books]]*Table1[[#This Row],[QTY]]","v":0},{"$f":"Table1[[#This Row],[QTY]]*Table1[[#This Row],[School & Library Price]]","v":0}]
[null,null,22,null,null,"Science and Technology","Crime Scene Investigations","Crime Scene Investigations: Set 1","978-1-5345-6158-8",{"$f":"HYPERLINK(Table1[[#This Row],[eCommerce Hyperlink]],\"Book Weblink\")","v":"Book Weblink"},null,"Lucent Press","Library Set",6,"2018","August 2017","Library","7.000 X 9.000",null,null,null,null,null,null,null,null,"Grade 7","Grade 7 - 10","On television shows, crimes are often solved in less than an hour, but in reality, the process of solving crimes is much more complex. Readers discover the hard work that goes into investigating crimes, including evidence collection, forensic analysis, and even dangerous undercover work. As readers explore this high-interest topic, they are presented with additional information in the form of fact boxes, sidebars, and annotated quotes from respected sources. Full-color photographs and an eye-catching design bring readers behind the crime scene tape for a learning experience they won’t soon forget.","English",248.4,198.72,null,"104–112 pp.","https://greenhavenpublishing.com/9781534561588",null,{"$f":"Table1[[#This Row],['# of Books]]*Table1[[#This Row],[QTY]]","v":0},{"$f":"Table1[[#This Row],[QTY]]*Table1[[#This Row],[School & Library Price]]","v":0}]
[null,null,22,null,null,"Science and Technology","Crime Scene Investigations","Cybercrime: Using Computers as Weapons","978-1-5345-6091-8",{"$f":"HYPERLINK(Table1[[#This Row],[eCommerce Hyperlink]],\"Book Weblink\")","v":"Book Weblink"},null,"Lucent Press","Library Bound Book",1,"2018","August 2017","Library","7.000 X 9.000","Author","Mike Sciandra",null,null,null,null,"Z",null,"Grade 7","Grade 7 - 10","Computers can be powerful tools for creating positive change, but in the wrong hands, they can also be destructive weapons. Cybercrime is a growing field of criminal activity, and it is important for readers to know as much as possible about it to avoid becoming a victim. Readers learn valuable information through detailed main text, fact boxes, and helpful sidebars. They also discover what they can do now to prepare for an exciting career investigating cybercriminals. Full-color photographs are included to show readers the technological advances used to combat the many forms of cybercrime, including sextortion and cyberterrorism.","English",41.4,33.119999999999997,"364.16'8--dc23","104 pp.","https://greenhavenpublishing.com/9781534560918",null,{"$f":"Table1[[#This Row],['# of Books]]*Table1[[#This Row],[QTY]]","v":0},{"$f":"Table1[[#This Row],[QTY]]*Table1[[#This Row],[School & Library Price]]","v":0}]
[null,null,22,null,null,"Science and Technology","Crime Scene Investigations","Cybercrime: Using Computers as Weapons","978-1-5345-6092-5",{"$f":"HYPERLINK(Table1[[#This Row],[eCommerce Hyperlink]],\"Book Weblink\")","v":"Book Weblink"},null,"Lucent Press","eBook",1,"2018","August 2017",null,null,"Author","Mike Sciandra",null,null,null,null,"Z",null,"Grade 7","Grade 7 - 10","Computers can be powerful tools for creating positive change, but in the wrong hands, they can also be destructive weapons. Cybercrime is a growing field of criminal activity, and it is important for readers to know as much as possible about it to avoid becoming a victim. Readers learn valuable information through detailed main text, fact boxes, and helpful sidebars. They also discover what they can do now to prepare for an exciting career investigating cybercriminals. Full-color photographs are included to show readers the technological advances used to combat the many forms of cybercrime, including sextortion and cyberterrorism.","English",41.4,33.119999999999997,"364.16'8--dc23","104 pp.","https://greenhavenpublishing.com/9781534560925",null,{"$f":"Table1[[#This Row],['# of Books]]*Table1[[#This Row],[QTY]]","v":0},{"$f":"Table1[[#This Row],[QTY]]*Table1[[#This Row],[School & Library Price]]","v":0}]
[null,null,22,null,null,"Science and Technology","Crime Scene Investigations","Identity Theft in the 21st Century","978-1-5345-6083-3",{"$f":"HYPERLINK(Table1[[#This Row],[eCommerce Hyperlink]],\"Book Weblink\")","v":"Book Weblink"},null,"Lucent Press","Library Bound Book",1,"2018","August 2017","Library","7.000 X 9.000","Author","Sarah Machajewski",null,null,null,null,"Z","1150L","Grade 7","Grade 7 - 10","Identity theft is sometimes considered a victimless crime, but readers will discover the truth about this damaging kind of crime as they learn about its history and the ways identity thieves work today. Essential facts about the methods identity thieves use including stealing mail and hacking computers are presented through comprehensive main text, comprehensive sidebars, and informative fact boxes. Readers also discover the ways the latest technology is used to find and stop identity thieves and how people can pursue a career in investigating identity theft. Detailed photographs are included to enhance this engaging reading experience.","English",41.4,33.119999999999997,"364.16'330973--dc23","104 pp.","https://greenhavenpublishing.com/9781534560833",null,{"$f":"Table1[[#This Row],['# of Books]]*Table1[[#This Row],[QTY]]","v":0},{"$f":"Table1[[#This Row],[QTY]]*Table1[[#This Row],[School & Library Price]]","v":0}]
[null,null,22,null,null,"Science and Technology","Crime Scene Investigations","Identity Theft in the 21st Century","978-1-5345-6084-0",{"$f":"HYPERLINK(Table1[[#This Row],[eCommerce Hyperlink]],\"Book Weblink\")","v":"Book Weblink"},null,"Lucent Press","eBook",1,"2018","August 2017",null,null,"Author","Sarah Machajewski",null,null,null,null,"Z","1150L","Grade 7","Grade 7 - 10","Identity theft is sometimes considered a victimless crime, but readers will discover the truth about this damaging kind of crime as they learn about its history and the ways identity thieves work today. Essential facts about the methods identity thieves use including stealing mail and hacking computers are presented through comprehensive main text, comprehensive sidebars, and informative fact boxes. Readers also discover the ways the latest technology is used to find and stop identity thieves and how people can pursue a career in investigating identity theft. Detailed photographs are included to enhance this engaging reading experience.","English",41.4,33.119999999999997,"364.16'330973--dc23","104 pp.","https://greenhavenpublishing.com/9781534560840",null,{"$f":"Table1[[#This Row],['# of Books]]*Table1[[#This Row],[QTY]]","v":0},{"$f":"Table1[[#This Row],[QTY]]*Table1[[#This Row],[School & Library Price]]","v":0}]
[null,null,22,null,null,"Science and Technology","Crime Scene Investigations","The John F. Kennedy Assassination: The Shooting That Shook America","978-1-5345-6087-1",{"$f":"HYPERLINK(Table1[[#This Row],[eCommerce Hyperlink]],\"Book Weblink\")","v":"Book Weblink"},null,"Lucent Press","Library Bound Book",1,"2018","August 2017","Library","7.000 X 9.000","Author","Joseph Stanley",null,null,null,null,"Z","1220L","Grade 7","Grade 7 - 10","The assassination of President John F. Kennedy was a horrific event that stunned the world and left Americans deeply shaken. There are many conspiracy theories surrounding this crime and its aftermath, but readers will discover the facts as they take a closer look at the shooting and the events that followed with the help of fact boxes, detailed sidebars, and primary source photographs. Essential historical information is presented in an engaging way, as common facts taught in history classes share space with gripping details of the investigation of one of the most infamous crimes of the 20th century.","English",41.4,33.119999999999997,"973.922092--dc23","112 pp.","https://greenhavenpublishing.com/9781534560871",null,{"$f":"Table1[[#This Row],['# of Books]]*Table1[[#This Row],[QTY]]","v":0},{"$f":"Table1[[#This Row],[QTY]]*Table1[[#This Row],[School & Library Price]]","v":0}]
[null,null,22,null,null,"Science and Technology","Crime Scene Investigations","The John F. Kennedy Assassination: The Shooting That Shook America","978-1-5345-6088-8",{"$f":"HYPERLINK(Table1[[#This Row],[eCommerce Hyperlink]],\"Book Weblink\")","v":"Book Weblink"},null,"Lucent Press","eBook",1,"2018","August 2017",null,null,"Author","Joseph Stanley",null,null,null,null,"Z","1220L","Grade 7","Grade 7 - 10","The assassination of President John F. Kennedy was a horrific event that stunned the world and left Americans deeply shaken. There are many conspiracy theories surrounding this crime and its aftermath, but readers will discover the facts as they take a closer look at the shooting and the events that followed with the help of fact boxes, detailed sidebars, and primary source photographs. Essential historical information is presented in an engaging way, as common facts taught in history classes share space with gripping details of the investigation of one of the most infamous crimes of the 20th century.","English",41.4,33.119999999999997,"973.922092--dc23","112 pp.","https://greenhavenpublishing.com/9781534560888",null,{"$f":"Table1[[#This Row],['# of Books]]*Table1[[#This Row],[QTY]]","v":0},{"$f":"Table1[[#This Row],[QTY]]*Table1[[#This Row],[School & Library Price]]","v":0}]
[null,null,22,null,null,"Science and Technology","Crime Scene Investigations","The Zodiac Killer: Terror in California","978-1-5345-6085-7",{"$f":"HYPERLINK(Table1[[#This Row],[eCommerce Hyperlink]],\"Book Weblink\")","v":"Book Weblink"},null,"Lucent Press","Library Bound Book",1,"2018","August 2017","Library","7.000 X 9.000","Author","Kate Rogers",null,null,null,null,"Z",null,"Grade 7","Grade 7 - 10","Who was the Zodiac Killer who terrorized residents of California during the 1960s and 1970s? The answer is still unknown. Readers take an in-depth look at the investigation that continues to fascinate Americans, discovering the details of the crimes and the search for the person who committed them. Additional information is presented through engaging sidebars and eye-catching fact boxes. Historical and contemporary photographs, including primary source images, help readers place themselves in the middle of one of the most famous unsolved mysteries in American history.","English",41.4,33.119999999999997,"364.152’30973--dc23","112 pp.","https://greenhavenpublishing.com/9781534560857",null,{"$f":"Table1[[#This Row],['# of Books]]*Table1[[#This Row],[QTY]]","v":0},{"$f":"Table1[[#This Row],[QTY]]*Table1[[#This Row],[School & Library Price]]","v":0}]
[null,null,22,null,null,"Science and Technology","Crime Scene Investigations","The Zodiac Killer: Terror in California","978-1-5345-6086-4",{"$f":"HYPERLINK(Table1[[#This Row],[eCommerce Hyperlink]],\"Book Weblink\")","v":"Book Weblink"},null,"Lucent Press","eBook",1,"2018","August 2017",null,null,"Author","Kate Rogers",null,null,null,null,"Z",null,"Grade 7","Grade 7 - 10","Who was the Zodiac Killer who terrorized residents of California during the 1960s and 1970s? The answer is still unknown. Readers take an in-depth look at the investigation that continues to fascinate Americans, discovering the details of the crimes and the search for the person who committed them. Additional information is presented through engaging sidebars and eye-catching fact boxes. Historical and contemporary photographs, including primary source images, help readers place themselves in the middle of one of the most famous unsolved mysteries in American history.","English",41.4,33.119999999999997,"364.152’30973--dc23","112 pp.","https://greenhavenpublishing.com/9781534560864",null,{"$f":"Table1[[#This Row],['# of Books]]*Table1[[#This Row],[QTY]]","v":0},{"$f":"Table1[[#This Row],[QTY]]*Table1[[#This Row],[School & Library Price]]","v":0}]
[null,null,22,null,null,"Science and Technology","Crime Scene Investigations","Tracking Serial Killers: How to Catch a Murderer","978-1-5345-6089-5",{"$f":"HYPERLINK(Table1[[#This Row],[eCommerce Hyperlink]],\"Book Weblink\")","v":"Book Weblink"},null,"Lucent Press","Library Bound Book",1,"2018","August 2017","Library","7.000 X 9.000","Author","Christine Honders",null,null,null,null,"Z",null,"Grade 7","Grade 7 - 10","Tracking serial killers is a difficult job, but the men and women who do it help put brutal murderers in jail. As readers explore gripping main text, detailed photographs, and informative fact boxes and sidebars, they discover how the methods used to track serial killers have changed throughout history. They also discover the importance of science and technology in this line of work. Readers interested in pursuing a career in this kind of crime scene investigation are presented with valuable information to help them begin preparing now for such a challenging career path.","English",41.4,33.119999999999997,"363.25'9523--dc23","104 pp.","https://greenhavenpublishing.com/9781534560895",null,{"$f":"Table1[[#This Row],['# of Books]]*Table1[[#This Row],[QTY]]","v":0},{"$f":"Table1[[#This Row],[QTY]]*Table1[[#This Row],[School & Library Price]]","v":0}]
[null,null,22,null,null,"Science and Technology","Crime Scene Investigations","Tracking Serial Killers: How to Catch a Murderer","978-1-5345-6090-1",{"$f":"HYPERLINK(Table1[[#This Row],[eCommerce Hyperlink]],\"Book Weblink\")","v":"Book Weblink"},null,"Lucent Press","eBook",1,"2018","August 2017",null,null,"Author","Christine Honders",null,null,null,null,"Z",null,"Grade 7","Grade 7 - 10","Tracking serial killers is a difficult job, but the men and women who do it help put brutal murderers in jail. As readers explore gripping main text, detailed photographs, and informative fact boxes and sidebars, they discover how the methods used to track serial killers have changed throughout history. They also discover the importance of science and technology in this line of work. Readers interested in pursuing a career in this kind of crime scene investigation are presented with valuable information to help them begin preparing now for such a challenging career path.","English",41.4,33.119999999999997,"363.25'9523--dc23","104 pp.","https://greenhavenpublishing.com/9781534560901",null,{"$f":"Table1[[#This Row],['# of Books]]*Table1[[#This Row],[QTY]]","v":0},{"$f":"Table1[[#This Row],[QTY]]*Table1[[#This Row],[School & Library Price]]","v":0}]
[null,null,22,null,null,"Science and Technology","Crime Scene Investigations","Undercover Operations: Investigating Crimes from the Inside","978-1-5345-6093-2",{"$f":"HYPERLINK(Table1[[#This Row],[eCommerce Hyperlink]],\"Book Weblink\")","v":"Book Weblink"},null,"Lucent Press","Library Bound Book",1,"2018","August 2017","Library","7.000 X 9.000","Author","Edna McPhee",null,null,null,null,"Z",null,"Grade 7","Grade 7 - 10","Undercover operations are valuable ways for law enforcement agencies to gain information and investigate crimes from inside the worlds criminals inhabit. These operations can be dangerous, and readers learn about the risks inherent in this line of work as they explore the fascinating history of undercover operations. Enlightening sidebars, informative fact boxes, and detailed photographs provide readers with additional information, including tips for preparing for a career that could involve undercover work. Readers are also introduced to fascinating facts about the technology used in undercover operations and how that technology has changed over time.","English",41.4,33.119999999999997,"327.12--dc23","104 pp.","https://greenhavenpublishing.com/9781534560932",null,{"$f":"Table1[[#This Row],['# of Books]]*Table1[[#This Row],[QTY]]","v":0},{"$f":"Table1[[#This Row],[QTY]]*Table1[[#This Row],[School & Library Price]]","v":0}]
[null,null,22,null,null,"Science and Technology","Crime Scene Investigations","Undercover Operations: Investigating Crimes from the Inside","978-1-5345-6094-9",{"$f":"HYPERLINK(Table1[[#This Row],[eCommerce Hyperlink]],\"Book Weblink\")","v":"Book Weblink"},null,"Lucent Press","eBook",1,"2018","August 2017",null,null,"Author","Edna McPhee",null,null,null,null,"Z",null,"Grade 7","Grade 7 - 10","Undercover operations are valuable ways for law enforcement agencies to gain information and investigate crimes from inside the worlds criminals inhabit. These operations can be dangerous, and readers learn about the risks inherent in this line of work as they explore the fascinating history of undercover operations. Enlightening sidebars, informative fact boxes, and detailed photographs provide readers with additional information, including tips for preparing for a career that could involve undercover work. Readers are also introduced to fascinating facts about the technology used in undercover operations and how that technology has changed over time.","English",41.4,33.119999999999997,"327.12--dc23","104 pp.","https://greenhavenpublishing.com/9781534560949",null,{"$f":"Table1[[#This Row],['# of Books]]*Table1[[#This Row],[QTY]]","v":0},{"$f":"Table1[[#This Row],[QTY]]*Table1[[#This Row],[School & Library Price]]","v":0}]
[null,null,22,null,null,"Science and Technology","Crime Scene Investigations","Crime Scene Investigations: Set 2","978-1-5345-6252-3",{"$f":"HYPERLINK(Table1[[#This Row],[eCommerce Hyperlink]],\"Book Weblink\")","v":"Book Weblink"},null,"Lucent Press","Library Set",6,"2018","January 2018","Library","7.000 X 9.000",null,null,null,null,null,null,null,null,"Grade 7","Grade 7 - 10","Solving crimes is often not as easy as it appears on television shows or in movies. It involves hard work, patience, and science. Readers learn the fascinating details behind crime scene investigations, including the purpose of body farms and the steps involved in processing DNA evidence. The informative main text is paired with eye-catching fact boxes, enlightening sidebars, and full-color photographs. Annotated quotes from experts in their fields are also included to give readers first-person accounts of what it is like to be on the front lines of crime scenes that range from missing persons cases to drug trafficking investigations. Features include: Accessible text connects math and science concepts to each high-interest topic. Readers are presented with information about how to pursue a career in various areas of crime scene investigation, such as forensics and law enforcement. Technological, scientific, and procedural advancements are an important component of each volume, giving readers a closer look at the future of crime scene investigations.","English",248.4,198.72,null,"104 pp.","https://greenhavenpublishing.com/9781534562523",null,{"$f":"Table1[[#This Row],['# of Books]]*Table1[[#This Row],[QTY]]","v":0},{"$f":"Table1[[#This Row],[QTY]]*Table1[[#This Row],[School & Library Price]]","v":0}]
[null,null,22,null,null,"Science and Technology","Crime Scene Investigations","Crime Scene Investigations: Spring 2018","978-1-5345-6316-2",{"$f":"HYPERLINK(Table1[[#This Row],[eCommerce Hyperlink]],\"Book Weblink\")","v":"Book Weblink"},null,"Lucent Press","Single Copy Set",6,"2018","January 2018","Paperback","7.000 X 9.000",null,null,null,null,null,null,null,null,"Grade 7","Grade 7 - 10","Solving crimes is often not as easy as it appears on television shows or in movies. It involves hard work, patience, and science. Readers learn the fascinating details behind crime scene investigations, including the purpose of body farms and the steps involved in processing DNA evidence. The informative main text is paired with eye-catching fact boxes, enlightening sidebars, and full-color photographs. Annotated quotes from experts in their fields are also included to give readers first-person accounts of what it is like to be on the front lines of crime scenes that range from missing persons cases to drug trafficking investigations. Features include: Accessible text connects math and science concepts to each high-interest topic. Readers are presented with information about how to pursue a career in various areas of crime scene investigation, such as forensics and law enforcement. Technological, scientific, and procedural advancements are an important component of each volume, giving readers a closer look at the future of crime scene investigations.","English",125.94,107.1,null,"104 pp.","https://greenhavenpublishing.com/9781534563162",null,{"$f":"Table1[[#This Row],['# of Books]]*Table1[[#This Row],[QTY]]","v":0},{"$f":"Table1[[#This Row],[QTY]]*Table1[[#This Row],[School & Library Price]]","v":0}]
[null,null,22,null,null,"Science and Technology","Crime Scene Investigations","Ballistics: The Science of Weapons at Work","978-1-5345-6171-7",{"$f":"HYPERLINK(Table1[[#This Row],[eCommerce Hyperlink]],\"Book Weblink\")","v":"Book Weblink"},null,"Lucent Press","Library Bound Book",1,"2018","January 2018","Library","7.000 X 9.000","Author","Siyavush Saidian",null,null,null,null,"Z","1270L","Grade 7","Grade 7 - 10","When a crime is committed with a firearm or an explosive, the first people the police turn to are often ballistic analysts. By examining angles, bullets, and explosive residue, these scientists analyze the behavior of projectiles, such as bullets. Readers learn both how ballistics research is performed and how law enforcement officials use these findings to solve crimes. The detailed main text is supplemented with engaging fact boxes, unique sidebars, and photographs that give readers an up-close look into the scientific world of ballistic studies.","English",41.4,33.119999999999997,"363.25/62--dc23","104 pp.","https://greenhavenpublishing.com/9781534561717",null,{"$f":"Table1[[#This Row],['# of Books]]*Table1[[#This Row],[QTY]]","v":0},{"$f":"Table1[[#This Row],[QTY]]*Table1[[#This Row],[School & Library Price]]","v":0}]
[null,null,22,null,null,"Science and Technology","Crime Scene Investigations","Ballistics: The Science of Weapons at Work","978-1-5345-6170-0",{"$f":"HYPERLINK(Table1[[#This Row],[eCommerce Hyperlink]],\"Book Weblink\")","v":"Book Weblink"},null,"Lucent Press","eBook",1,"2018","January 2018",null,null,"Author","Siyavush Saidian",null,null,null,null,"Z","1270L","Grade 7","Grade 7 - 10","When a crime is committed with a firearm or an explosive, the first people the police turn to are often ballistic analysts. By examining angles, bullets, and explosive residue, these scientists analyze the behavior of projectiles, such as bullets. Readers learn both how ballistics research is performed and how law enforcement officials use these findings to solve crimes. The detailed main text is supplemented with engaging fact boxes, unique sidebars, and photographs that give readers an up-close look into the scientific world of ballistic studies.","English",41.4,33.119999999999997,"363.25/62--dc23","104 pp.","https://greenhavenpublishing.com/9781534561700",null,{"$f":"Table1[[#This Row],['# of Books]]*Table1[[#This Row],[QTY]]","v":0},{"$f":"Table1[[#This Row],[QTY]]*Table1[[#This Row],[School & Library Price]]","v":0}]
[null,null,22,null,null,"Science and Technology","Crime Scene Investigations","Ballistics: The Science of Weapons at Work","978-1-5345-6270-7",{"$f":"HYPERLINK(Table1[[#This Row],[eCommerce Hyperlink]],\"Book Weblink\")","v":"Book Weblink"},null,"Lucent Press","Paperback Book",1,"2018","January 2018","Paperback","7.000 X 9.000","Author","Siyavush Saidian",null,null,null,null,"Z","1270L","Grade 7","Grade 7 - 10","When a crime is committed with a firearm or an explosive, the first people the police turn to are often ballistic analysts. By examining angles, bullets, and explosive residue, these scientists analyze the behavior of projectiles, such as bullets. Readers learn both how ballistics research is performed and how law enforcement officials use these findings to solve crimes. The detailed main text is supplemented with engaging fact boxes, unique sidebars, and photographs that give readers an up-close look into the scientific world of ballistic studies.","English",20.99,17.850000000000001,"363.25/62--dc23","104 pp.","https://greenhavenpublishing.com/9781534562707",null,{"$f":"Table1[[#This Row],['# of Books]]*Table1[[#This Row],[QTY]]","v":0},{"$f":"Table1[[#This Row],[QTY]]*Table1[[#This Row],[School & Library Price]]","v":0}]
[null,null,22,null,null,"Science and Technology","Crime Scene Investigations","Clues in Corpses: A Closer Look at Body Farms","978-1-5345-6172-4",{"$f":"HYPERLINK(Table1[[#This Row],[eCommerce Hyperlink]],\"Book Weblink\")","v":"Book Weblink"},null,"Lucent Press","Library Bound Book",1,"2018","January 2018","Library","7.000 X 9.000","Author","Sophie Washburne",null,null,null,null,"Z",null,"Grade 7","Grade 7 - 10","When human remains are found at a crime scene, forensic anthropologists examine them to determine the time and cause of death, as well as the identity of the victim. How do they know the answers to these questions? Body farms are facilities where specialists can study the ways bodies decompose under different conditions, which helps forensic anthropologists solve crimes more effectively. Informative fact boxes, full-color photographs, and engaging sidebars offer a closer look at these little-known research facilities. Readers are sure to be captivated by stories of farms unlike any they have ever heard of before.","English",41.4,33.119999999999997,"599.9--dc23","104 pp.","https://greenhavenpublishing.com/9781534561724",null,{"$f":"Table1[[#This Row],['# of Books]]*Table1[[#This Row],[QTY]]","v":0},{"$f":"Table1[[#This Row],[QTY]]*Table1[[#This Row],[School & Library Price]]","v":0}]
[null,null,22,null,null,"Science and Technology","Crime Scene Investigations","Clues in Corpses: A Closer Look at Body Farms","978-1-5345-6231-8",{"$f":"HYPERLINK(Table1[[#This Row],[eCommerce Hyperlink]],\"Book Weblink\")","v":"Book Weblink"},null,"Lucent Press","eBook",1,"2018","January 2018",null,null,"Author","Sophie Washburne",null,null,null,null,"Z",null,"Grade 7","Grade 7 - 10","When human remains are found at a crime scene, forensic anthropologists examine them to determine the time and cause of death, as well as the identity of the victim. How do they know the answers to these questions? Body farms are facilities where specialists can study the ways bodies decompose under different conditions, which helps forensic anthropologists solve crimes more effectively. Informative fact boxes, full-color photographs, and engaging sidebars offer a closer look at these little-known research facilities. Readers are sure to be captivated by stories of farms unlike any they have ever heard of before.","English",41.4,33.119999999999997,"599.9--dc23","104 pp.","https://greenhavenpublishing.com/9781534562318",null,{"$f":"Table1[[#This Row],['# of Books]]*Table1[[#This Row],[QTY]]","v":0},{"$f":"Table1[[#This Row],[QTY]]*Table1[[#This Row],[School & Library Price]]","v":0}]
[null,null,22,null,null,"Science and Technology","Crime Scene Investigations","Clues in Corpses: A Closer Look at Body Farms","978-1-5345-6271-4",{"$f":"HYPERLINK(Table1[[#This Row],[eCommerce Hyperlink]],\"Book Weblink\")","v":"Book Weblink"},null,"Lucent Press","Paperback Book",1,"2018","January 2018","Paperback","7.000 X 9.000","Author","Sophie Washburne",null,null,null,null,"Z",null,"Grade 7","Grade 7 - 10","When human remains are found at a crime scene, forensic anthropologists examine them to determine the time and cause of death, as well as the identity of the victim. How do they know the answers to these questions? Body farms are facilities where specialists can study the ways bodies decompose under different conditions, which helps forensic anthropologists solve crimes more effectively. Informative fact boxes, full-color photographs, and engaging sidebars offer a closer look at these little-known research facilities. Readers are sure to be captivated by stories of farms unlike any they have ever heard of before.","English",20.99,17.850000000000001,"599.9--dc23","104 pp.","https://greenhavenpublishing.com/9781534562714",null,{"$f":"Table1[[#This Row],['# of Books]]*Table1[[#This Row],[QTY]]","v":0},{"$f":"Table1[[#This Row],[QTY]]*Table1[[#This Row],[School & Library Price]]","v":0}]
[null,null,22,null,null,"Science and Technology","Crime Scene Investigations","Criminal Profiling: Searching for Suspects","978-1-5345-6174-8",{"$f":"HYPERLINK(Table1[[#This Row],[eCommerce Hyperlink]],\"Book Weblink\")","v":"Book Weblink"},null,"Lucent Press","Library Bound Book",1,"2018","January 2018","Library","7.000 X 9.000","Author","Christine Honders",null,null,null,null,"Z","1230L","Grade 7","Grade 7 - 10","Before police can solve a crime, they need to find their suspects. In especially difficult cases, law enforcement officials use criminal profiling to help catch their perpetrators. The science of criminal profiling combines forensics and psychology to understand the type of person who commits crimes. Through thoroughly-researched text, including informative quotes from experts in the field and statistical fact boxes, readers learn how profilers are able to use evidence to accurately determine an offender's age, motives, and state of mind. They also learn what to do to pursue a career in this field in the future.","English",41.4,33.119999999999997,"363.25/8--dc23","104 pp.","https://greenhavenpublishing.com/9781534561748",null,{"$f":"Table1[[#This Row],['# of Books]]*Table1[[#This Row],[QTY]]","v":0},{"$f":"Table1[[#This Row],[QTY]]*Table1[[#This Row],[School & Library Price]]","v":0}]
[null,null,22,null,null,"Science and Technology","Crime Scene Investigations","Criminal Profiling: Searching for Suspects","978-1-5345-6173-1",{"$f":"HYPERLINK(Table1[[#This Row],[eCommerce Hyperlink]],\"Book Weblink\")","v":"Book Weblink"},null,"Lucent Press","eBook",1,"2018","January 2018",null,null,"Author","Christine Honders",null,null,null,null,"Z","1230L","Grade 7","Grade 7 - 10","Before police can solve a crime, they need to find their suspects. In especially difficult cases, law enforcement officials use criminal profiling to help catch their perpetrators. The science of criminal profiling combines forensics and psychology to understand the type of person who commits crimes. Through thoroughly-researched text, including informative quotes from experts in the field and statistical fact boxes, readers learn how profilers are able to use evidence to accurately determine an offender's age, motives, and state of mind. They also learn what to do to pursue a career in this field in the future.","English",41.4,33.119999999999997,"363.25/8--dc23","104 pp.","https://greenhavenpublishing.com/9781534561731",null,{"$f":"Table1[[#This Row],['# of Books]]*Table1[[#This Row],[QTY]]","v":0},{"$f":"Table1[[#This Row],[QTY]]*Table1[[#This Row],[School & Library Price]]","v":0}]
[null,null,22,null,null,"Science and Technology","Crime Scene Investigations","Criminal Profiling: Searching for Suspects","978-1-5345-6272-1",{"$f":"HYPERLINK(Table1[[#This Row],[eCommerce Hyperlink]],\"Book Weblink\")","v":"Book Weblink"},null,"Lucent Press","Paperback Book",1,"2018","January 2018","Paperback","7.000 X 9.000","Author","Christine Honders",null,null,null,null,"Z","1230L","Grade 7","Grade 7 - 10","Before police can solve a crime, they need to find their suspects. In especially difficult cases, law enforcement officials use criminal profiling to help catch their perpetrators. The science of criminal profiling combines forensics and psychology to understand the type of person who commits crimes. Through thoroughly-researched text, including informative quotes from experts in the field and statistical fact boxes, readers learn how profilers are able to use evidence to accurately determine an offender's age, motives, and state of mind. They also learn what to do to pursue a career in this field in the future.","English",20.99,17.850000000000001,"363.25/8--dc23","104 pp.","https://greenhavenpublishing.com/9781534562721",null,{"$f":"Table1[[#This Row],['# of Books]]*Table1[[#This Row],[QTY]]","v":0},{"$f":"Table1[[#This Row],[QTY]]*Table1[[#This Row],[School & Library Price]]","v":0}]
[null,null,22,null,null,"Science and Technology","Crime Scene Investigations","DNA Evidence: The Proof Is in the Genes","978-1-5345-6176-2",{"$f":"HYPERLINK(Table1[[#This Row],[eCommerce Hyperlink]],\"Book Weblink\")","v":"Book Weblink"},null,"Lucent Press","Library Bound Book",1,"2018","January 2018","Library","7.000 X 9.000","Author","Cecilia Jennings",null,null,null,null,"Z","1210L","Grade 7","Grade 7 - 10","One of the greatest scientific breakthroughs ever for law enforcement agencies was the discovery of DNA analysis. This relatively new science allows police to catch a criminal from evidence as small as a human hair. Informative text gives readers a basic understanding of DNA and how forensic analysts can examine criminal evidence and create a genetic chain that leads to the perpetrator. This complex topic is made easy to understand through engaging fact boxes and informative sidebars, and the science is brought into sharp focus through eye-catching photographs.","English",41.4,33.119999999999997,"614/.1--dc23","104 pp.","https://greenhavenpublishing.com/9781534561762",null,{"$f":"Table1[[#This Row],['# of Books]]*Table1[[#This Row],[QTY]]","v":0},{"$f":"Table1[[#This Row],[QTY]]*Table1[[#This Row],[School & Library Price]]","v":0}]
[null,null,22,null,null,"Science and Technology","Crime Scene Investigations","DNA Evidence: The Proof Is in the Genes","978-1-5345-6175-5",{"$f":"HYPERLINK(Table1[[#This Row],[eCommerce Hyperlink]],\"Book Weblink\")","v":"Book Weblink"},null,"Lucent Press","eBook",1,"2018","January 2018",null,null,"Author","Cecilia Jennings",null,null,null,null,"Z","1210L","Grade 7","Grade 7 - 10","One of the greatest scientific breakthroughs ever for law enforcement agencies was the discovery of DNA analysis. This relatively new science allows police to catch a criminal from evidence as small as a human hair. Informative text gives readers a basic understanding of DNA and how forensic analysts can examine criminal evidence and create a genetic chain that leads to the perpetrator. This complex topic is made easy to understand through engaging fact boxes and informative sidebars, and the science is brought into sharp focus through eye-catching photographs.","English",41.4,33.119999999999997,"614/.1--dc23","104 pp.","https://greenhavenpublishing.com/9781534561755",null,{"$f":"Table1[[#This Row],['# of Books]]*Table1[[#This Row],[QTY]]","v":0},{"$f":"Table1[[#This Row],[QTY]]*Table1[[#This Row],[School & Library Price]]","v":0}]
[null,null,22,null,null,"Science and Technology","Crime Scene Investigations","DNA Evidence: The Proof Is in the Genes","978-1-5345-6273-8",{"$f":"HYPERLINK(Table1[[#This Row],[eCommerce Hyperlink]],\"Book Weblink\")","v":"Book Weblink"},null,"Lucent Press","Paperback Book",1,"2018","January 2018","Paperback","7.000 X 9.000","Author","Cecilia Jennings",null,null,null,null,"Z","1210L","Grade 7","Grade 7 - 10","One of the greatest scientific breakthroughs ever for law enforcement agencies was the discovery of DNA analysis. This relatively new science allows police to catch a criminal from evidence as small as a human hair. Informative text gives readers a basic understanding of DNA and how forensic analysts can examine criminal evidence and create a genetic chain that leads to the perpetrator. This complex topic is made easy to understand through engaging fact boxes and informative sidebars, and the science is brought into sharp focus through eye-catching photographs.","English",20.99,17.850000000000001,"614/.1--dc23","104 pp.","https://greenhavenpublishing.com/9781534562738",null,{"$f":"Table1[[#This Row],['# of Books]]*Table1[[#This Row],[QTY]]","v":0},{"$f":"Table1[[#This Row],[QTY]]*Table1[[#This Row],[School & Library Price]]","v":0}]
[null,null,22,null,null,"Science and Technology","Crime Scene Investigations","Drug Trafficking: A Global Criminal Trade","978-1-5345-6180-9",{"$f":"HYPERLINK(Table1[[#This Row],[eCommerce Hyperlink]],\"Book Weblink\")","v":"Book Weblink"},null,"Lucent Press","Library Bound Book",1,"2018","January 2018","Library","7.000 X 9.000","Author","Nicole Horning",null,null,null,null,"Z",null,"Grade 7","Grade 7 - 10","The drug trade is a lucrative business, and drug traffickers find inventive ways to protect their investments. Smugglers have a variety of means available to them to move large amounts of drugs between countries, including underground tunnels, secret pockets, and even the postal service. This means law enforcement officials must be clever and creative in their pursuit of these criminals. Readers learn how police target drug traffickers and what they can do to pursue a similar career. Informative sidebars, fact boxes, and full-color photographs give a full picture of the work that law enforcement officials do to apprehend drug traffickers.","English",41.4,33.119999999999997,"364.1/3365--dc23","104 pp.","https://greenhavenpublishing.com/9781534561809",null,{"$f":"Table1[[#This Row],['# of Books]]*Table1[[#This Row],[QTY]]","v":0},{"$f":"Table1[[#This Row],[QTY]]*Table1[[#This Row],[School & Library Price]]","v":0}]
[null,null,22,null,null,"Science and Technology","Crime Scene Investigations","Drug Trafficking: A Global Criminal Trade","978-1-5345-6179-3",{"$f":"HYPERLINK(Table1[[#This Row],[eCommerce Hyperlink]],\"Book Weblink\")","v":"Book Weblink"},null,"Lucent Press","eBook",1,"2018","January 2018",null,null,"Author","Nicole Horning",null,null,null,null,"Z",null,"Grade 7","Grade 7 - 10","The drug trade is a lucrative business, and drug traffickers find inventive ways to protect their investments. Smugglers have a variety of means available to them to move large amounts of drugs between countries, including underground tunnels, secret pockets, and even the postal service. This means law enforcement officials must be clever and creative in their pursuit of these criminals. Readers learn how police target drug traffickers and what they can do to pursue a similar career. Informative sidebars, fact boxes, and full-color photographs give a full picture of the work that law enforcement officials do to apprehend drug traffickers.","English",41.4,33.119999999999997,"364.1/3365--dc23","104 pp.","https://greenhavenpublishing.com/9781534561793",null,{"$f":"Table1[[#This Row],['# of Books]]*Table1[[#This Row],[QTY]]","v":0},{"$f":"Table1[[#This Row],[QTY]]*Table1[[#This Row],[School & Library Price]]","v":0}]
[null,null,22,null,null,"Science and Technology","Crime Scene Investigations","Drug Trafficking: A Global Criminal Trade","978-1-5345-6274-5",{"$f":"HYPERLINK(Table1[[#This Row],[eCommerce Hyperlink]],\"Book Weblink\")","v":"Book Weblink"},null,"Lucent Press","Paperback Book",1,"2018","January 2018","Paperback","7.000 X 9.000","Author","Nicole Horning",null,null,null,null,"Z",null,"Grade 7","Grade 7 - 10","The drug trade is a lucrative business, and drug traffickers find inventive ways to protect their investments. Smugglers have a variety of means available to them to move large amounts of drugs between countries, including underground tunnels, secret pockets, and even the postal service. This means law enforcement officials must be clever and creative in their pursuit of these criminals. Readers learn how police target drug traffickers and what they can do to pursue a similar career. Informative sidebars, fact boxes, and full-color photographs give a full picture of the work that law enforcement officials do to apprehend drug traffickers.","English",20.99,17.850000000000001,"364.1/3365--dc23","104 pp.","https://greenhavenpublishing.com/9781534562745",null,{"$f":"Table1[[#This Row],['# of Books]]*Table1[[#This Row],[QTY]]","v":0},{"$f":"Table1[[#This Row],[QTY]]*Table1[[#This Row],[School & Library Price]]","v":0}]
[null,null,22,null,null,"Science and Technology","Crime Scene Investigations","Missing Persons: What Happens When Someone Disappears?","978-1-5345-6178-6",{"$f":"HYPERLINK(Table1[[#This Row],[eCommerce Hyperlink]],\"Book Weblink\")","v":"Book Weblink"},null,"Lucent Press","Library Bound Book",1,"2018","January 2018","Library","7.000 X 9.000","Author","Amanda Vink",null,null,null,null,"Z",null,"Grade 7","Grade 7 - 10","Many crime shows and movies deal with the topic of a mysterious disappearance, but fictional stories often sensationalize the topic in order to catch the viewer's interest. In reality, finding a missing person can be hard work for detectives, as there are sometimes few clues left behind. Readers discover how police use math and science to solve this puzzle. Full-color photographs, informative sidebars, and by-the-numbers fact boxes augment the compelling text, giving readers a more accurate understanding of the process of searching for missing persons than they will find on television or at the movies.","English",41.4,33.119999999999997,"362.8--dc23","104 pp.","https://greenhavenpublishing.com/9781534561786",null,{"$f":"Table1[[#This Row],['# of Books]]*Table1[[#This Row],[QTY]]","v":0},{"$f":"Table1[[#This Row],[QTY]]*Table1[[#This Row],[School & Library Price]]","v":0}]
[null,null,22,null,null,"Science and Technology","Crime Scene Investigations","Missing Persons: What Happens When Someone Disappears?","978-1-5345-6177-9",{"$f":"HYPERLINK(Table1[[#This Row],[eCommerce Hyperlink]],\"Book Weblink\")","v":"Book Weblink"},null,"Lucent Press","eBook",1,"2018","January 2018",null,null,"Author","Amanda Vink",null,null,null,null,"Z",null,"Grade 7","Grade 7 - 10","Many crime shows and movies deal with the topic of a mysterious disappearance, but fictional stories often sensationalize the topic in order to catch the viewer's interest. In reality, finding a missing person can be hard work for detectives, as there are sometimes few clues left behind. Readers discover how police use math and science to solve this puzzle. Full-color photographs, informative sidebars, and by-the-numbers fact boxes augment the compelling text, giving readers a more accurate understanding of the process of searching for missing persons than they will find on television or at the movies.","English",41.4,33.119999999999997,"362.8--dc23","104 pp.","https://greenhavenpublishing.com/9781534561779",null,{"$f":"Table1[[#This Row],['# of Books]]*Table1[[#This Row],[QTY]]","v":0},{"$f":"Table1[[#This Row],[QTY]]*Table1[[#This Row],[School & Library Price]]","v":0}]
[null,null,22,null,null,"Science and Technology","Crime Scene Investigations","Missing Persons: What Happens When Someone Disappears?","978-1-5345-6275-2",{"$f":"HYPERLINK(Table1[[#This Row],[eCommerce Hyperlink]],\"Book Weblink\")","v":"Book Weblink"},null,"Lucent Press","Paperback Book",1,"2018","January 2018","Paperback","7.000 X 9.000","Author","Amanda Vink",null,null,null,null,"Z",null,"Grade 7","Grade 7 - 10","Many crime shows and movies deal with the topic of a mysterious disappearance, but fictional stories often sensationalize the topic in order to catch the viewer's interest. In reality, finding a missing person can be hard work for detectives, as there are sometimes few clues left behind. Readers discover how police use math and science to solve this puzzle. Full-color photographs, informative sidebars, and by-the-numbers fact boxes augment the compelling text, giving readers a more accurate understanding of the process of searching for missing persons than they will find on television or at the movies.","English",20.99,17.850000000000001,"362.8--dc23","104 pp.","https://greenhavenpublishing.com/9781534562752",null,{"$f":"Table1[[#This Row],['# of Books]]*Table1[[#This Row],[QTY]]","v":0},{"$f":"Table1[[#This Row],[QTY]]*Table1[[#This Row],[School & Library Price]]","v":0}]
[null,null,22,null,null,"Science and Technology","Earth's Innovators","Earth's Innovators","978-1-5345-6598-2",{"$f":"HYPERLINK(Table1[[#This Row],[eCommerce Hyperlink]],\"Book Weblink\")","v":"Book Weblink"},null,"Lucent Press","Library Set",6,"2020","August 2019","Library","7.250 X 9.250",null,null,null,null,null,null,null,null,"Grade 6","Grade 5 - 8","Climate change, hunger, natural disasters, and other problems people are facing today call for new ideas. Luckily, innovators around the world are working hard to improve all areas of life, from transportation to medicine. As readers explore this exciting look at the people and inventions poised to shape our future, they're sure to become inspired to find their own creative solutions to problems both big and small. Real-world examples of new technology and fresh ways of thinking are presented through fact-filled main text, eye-catching sidebars, and vivid full-color photographs of people hard at work building a better world. Features include: Supports STEM curricula and encourages an interest in science, technology, engineering, and math. Detailed case studies introduce readers to STEM role models. Engaging tone empowers readers to become problem solvers.","English",207.6,166.08,null,"48 pp.","https://greenhavenpublishing.com/9781534565982",null,{"$f":"Table1[[#This Row],['# of Books]]*Table1[[#This Row],[QTY]]","v":0},{"$f":"Table1[[#This Row],[QTY]]*Table1[[#This Row],[School & Library Price]]","v":0}]
[null,null,22,null,null,"Science and Technology","Earth's Innovators","Earth's Innovators","978-1-5345-6800-6",{"$f":"HYPERLINK(Table1[[#This Row],[eCommerce Hyperlink]],\"Book Weblink\")","v":"Book Weblink"},null,"Lucent Press","Single Copy Set",6,"2020","August 2019","Paperback","7.250 X 9.250",null,null,null,null,null,null,null,null,"Grade 6","Grade 5 - 8","Climate change, hunger, natural disasters, and other problems people are facing today call for new ideas. Luckily, innovators around the world are working hard to improve all areas of life, from transportation to medicine. As readers explore this exciting look at the people and inventions poised to shape our future, they're sure to become inspired to find their own creative solutions to problems both big and small. Real-world examples of new technology and fresh ways of thinking are presented through fact-filled main text, eye-catching sidebars, and vivid full-color photographs of people hard at work building a better world. Features include: Supports STEM curricula and encourages an interest in science, technology, engineering, and math. Detailed case studies introduce readers to STEM role models. Engaging tone empowers readers to become problem solvers.","English",90.3,76.8,null,"48 pp.","https://greenhavenpublishing.com/9781534568006",null,{"$f":"Table1[[#This Row],['# of Books]]*Table1[[#This Row],[QTY]]","v":0},{"$f":"Table1[[#This Row],[QTY]]*Table1[[#This Row],[School & Library Price]]","v":0}]
[null,null,22,null,null,"Science and Technology","Earth's Innovators","Innovators Advancing Medicine","978-1-5345-6543-2",{"$f":"HYPERLINK(Table1[[#This Row],[eCommerce Hyperlink]],\"Book Weblink\")","v":"Book Weblink"},null,"Lucent Press","Library Bound Book",1,"2020","August 2019","Library","7.250 X 9.250","Author","Robyn Hardyman",null,null,null,null,"W",null,"Grade 6","Grade 5 - 8","Needle-free vaccines, smartphones used for eye tests, and robotic rehabilitation suits might seem like details from a science-fiction story, but they're actually the very real future of medicine. As readers discover the stories behind these and other medical innovations, they learn the lifesaving value of science, technology, engineering, and math skills. This exciting look at STEM topics is presented through fact-filled main text and sidebars, as well as detailed photographs of these innovations and the people who made them possible. Readers will enjoy this creative look at life science and the people pushing it into the future.","English",34.6,27.68,"610.28--dc23","48 pp.","https://greenhavenpublishing.com/9781534565432",null,{"$f":"Table1[[#This Row],['# of Books]]*Table1[[#This Row],[QTY]]","v":0},{"$f":"Table1[[#This Row],[QTY]]*Table1[[#This Row],[School & Library Price]]","v":0}]
[null,null,22,null,null,"Science and Technology","Earth's Innovators","Innovators Advancing Medicine","978-1-5345-6544-9",{"$f":"HYPERLINK(Table1[[#This Row],[eCommerce Hyperlink]],\"Book Weblink\")","v":"Book Weblink"},null,"Lucent Press","eBook",1,"2020","August 2019",null,null,"Author","Robyn Hardyman",null,null,null,null,"W",null,"Grade 6","Grade 5 - 8","Needle-free vaccines, smartphones used for eye tests, and robotic rehabilitation suits might seem like details from a science-fiction story, but they're actually the very real future of medicine. As readers discover the stories behind these and other medical innovations, they learn the lifesaving value of science, technology, engineering, and math skills. This exciting look at STEM topics is presented through fact-filled main text and sidebars, as well as detailed photographs of these innovations and the people who made them possible. Readers will enjoy this creative look at life science and the people pushing it into the future.","English",34.6,27.68,"610.28--dc23","48 pp.","https://greenhavenpublishing.com/9781534565449",null,{"$f":"Table1[[#This Row],['# of Books]]*Table1[[#This Row],[QTY]]","v":0},{"$f":"Table1[[#This Row],[QTY]]*Table1[[#This Row],[School & Library Price]]","v":0}]
[null,null,22,null,null,"Science and Technology","Earth's Innovators","Innovators Advancing Medicine","978-1-5345-6542-5",{"$f":"HYPERLINK(Table1[[#This Row],[eCommerce Hyperlink]],\"Book Weblink\")","v":"Book Weblink"},null,"Lucent Press","Paperback Book",1,"2020","August 2019","Paperback","7.250 X 9.250","Author","Robyn Hardyman",null,null,null,null,"W",null,"Grade 6","Grade 5 - 8","Needle-free vaccines, smartphones used for eye tests, and robotic rehabilitation suits might seem like details from a science-fiction story, but they're actually the very real future of medicine. As readers discover the stories behind these and other medical innovations, they learn the lifesaving value of science, technology, engineering, and math skills. This exciting look at STEM topics is presented through fact-filled main text and sidebars, as well as detailed photographs of these innovations and the people who made them possible. Readers will enjoy this creative look at life science and the people pushing it into the future.","English",15.05,12.8,"610.28--dc23","48 pp.","https://greenhavenpublishing.com/9781534565425",null,{"$f":"Table1[[#This Row],['# of Books]]*Table1[[#This Row],[QTY]]","v":0},{"$f":"Table1[[#This Row],[QTY]]*Table1[[#This Row],[School & Library Price]]","v":0}]
[null,null,22,null,null,"Science and Technology","Earth's Innovators","Innovators Challenging Climate Change","978-1-5345-6558-6",{"$f":"HYPERLINK(Table1[[#This Row],[eCommerce Hyperlink]],\"Book Weblink\")","v":"Book Weblink"},null,"Lucent Press","Library Bound Book",1,"2020","August 2019","Library","7.250 X 9.250","Author","Robyn Hardyman",null,null,null,null,"W",null,"Grade 6","Grade 5 - 8","Climate change is one of the biggest problems facing the world today, but scientists, engineers, and other innovators are using their STEM skills to challenge this global crisis. From the technological advances being used to reduce greenhouse gas emissions to the scientific knowledge being applied to build energy-efficient homes, each exciting innovation is explained to readers. The narrative offers accessible language and facts that complement science curriculum topics. Engaging sidebars and full-color photographs add to this essential reading experience, which will inspire young innovators to develop their own ideas for protecting the planet.","English",34.6,27.68,"551.6--dc23","48 pp.","https://greenhavenpublishing.com/9781534565586",null,{"$f":"Table1[[#This Row],['# of Books]]*Table1[[#This Row],[QTY]]","v":0},{"$f":"Table1[[#This Row],[QTY]]*Table1[[#This Row],[School & Library Price]]","v":0}]
[null,null,22,null,null,"Science and Technology","Earth's Innovators","Innovators Challenging Climate Change","978-1-5345-6559-3",{"$f":"HYPERLINK(Table1[[#This Row],[eCommerce Hyperlink]],\"Book Weblink\")","v":"Book Weblink"},null,"Lucent Press","eBook",1,"2020","August 2019",null,null,"Author","Robyn Hardyman",null,null,null,null,"W",null,"Grade 6","Grade 5 - 8","Climate change is one of the biggest problems facing the world today, but scientists, engineers, and other innovators are using their STEM skills to challenge this global crisis. From the technological advances being used to reduce greenhouse gas emissions to the scientific knowledge being applied to build energy-efficient homes, each exciting innovation is explained to readers. The narrative offers accessible language and facts that complement science curriculum topics. Engaging sidebars and full-color photographs add to this essential reading experience, which will inspire young innovators to develop their own ideas for protecting the planet.","English",34.6,27.68,"551.6--dc23","48 pp.","https://greenhavenpublishing.com/9781534565593",null,{"$f":"Table1[[#This Row],['# of Books]]*Table1[[#This Row],[QTY]]","v":0},{"$f":"Table1[[#This Row],[QTY]]*Table1[[#This Row],[School & Library Price]]","v":0}]
[null,null,22,null,null,"Science and Technology","Earth's Innovators","Innovators Challenging Climate Change","978-1-5345-6557-9",{"$f":"HYPERLINK(Table1[[#This Row],[eCommerce Hyperlink]],\"Book Weblink\")","v":"Book Weblink"},null,"Lucent Press","Paperback Book",1,"2020","August 2019","Paperback","7.250 X 9.250","Author","Robyn Hardyman",null,null,null,null,"W",null,"Grade 6","Grade 5 - 8","Climate change is one of the biggest problems facing the world today, but scientists, engineers, and other innovators are using their STEM skills to challenge this global crisis. From the technological advances being used to reduce greenhouse gas emissions to the scientific knowledge being applied to build energy-efficient homes, each exciting innovation is explained to readers. The narrative offers accessible language and facts that complement science curriculum topics. Engaging sidebars and full-color photographs add to this essential reading experience, which will inspire young innovators to develop their own ideas for protecting the planet.","English",15.05,12.8,"551.6--dc23","48 pp.","https://greenhavenpublishing.com/9781534565579",null,{"$f":"Table1[[#This Row],['# of Books]]*Table1[[#This Row],[QTY]]","v":0},{"$f":"Table1[[#This Row],[QTY]]*Table1[[#This Row],[School & Library Price]]","v":0}]
[null,null,22,null,null,"Science and Technology","Earth's Innovators","Innovators Dealing with Natural Disasters","978-1-5345-6549-4",{"$f":"HYPERLINK(Table1[[#This Row],[eCommerce Hyperlink]],\"Book Weblink\")","v":"Book Weblink"},null,"Lucent Press","Library Bound Book",1,"2020","August 2019","Library","7.250 X 9.250","Author","Robyn Hardyman",null,null,null,null,"W",null,"Grade 6","Grade 5 - 8","Hurricanes, wildfires, and other natural disasters can seem unstoppable, destroying anything in their way. However, people around the world are working hard to come up with new ways to prepare for and recover from natural disasters. Readers discover the amazing stories behind these innovators and the ways they're using science, technology, engineering, and math skills to save lives. The main text, which supports essential STEM curriculum topics, is accompanied by detailed sidebars and vivid full-color photographs. The inspiring tone encourages the next generation of innovators to come up with their own creative solutions to the problem of natural disasters.","English",34.6,27.68,"363.34--dc23","48 pp.","https://greenhavenpublishing.com/9781534565494",null,{"$f":"Table1[[#This Row],['# of Books]]*Table1[[#This Row],[QTY]]","v":0},{"$f":"Table1[[#This Row],[QTY]]*Table1[[#This Row],[School & Library Price]]","v":0}]
[null,null,22,null,null,"Science and Technology","Earth's Innovators","Innovators Dealing with Natural Disasters","978-1-5345-6550-0",{"$f":"HYPERLINK(Table1[[#This Row],[eCommerce Hyperlink]],\"Book Weblink\")","v":"Book Weblink"},null,"Lucent Press","eBook",1,"2020","August 2019",null,null,"Author","Robyn Hardyman",null,null,null,null,"W",null,"Grade 6","Grade 5 - 8","Hurricanes, wildfires, and other natural disasters can seem unstoppable, destroying anything in their way. However, people around the world are working hard to come up with new ways to prepare for and recover from natural disasters. Readers discover the amazing stories behind these innovators and the ways they're using science, technology, engineering, and math skills to save lives. The main text, which supports essential STEM curriculum topics, is accompanied by detailed sidebars and vivid full-color photographs. The inspiring tone encourages the next generation of innovators to come up with their own creative solutions to the problem of natural disasters.","English",34.6,27.68,"363.34--dc23","48 pp.","https://greenhavenpublishing.com/9781534565500",null,{"$f":"Table1[[#This Row],['# of Books]]*Table1[[#This Row],[QTY]]","v":0},{"$f":"Table1[[#This Row],[QTY]]*Table1[[#This Row],[School & Library Price]]","v":0}]
[null,null,22,null,null,"Science and Technology","Earth's Innovators","Innovators Dealing with Natural Disasters","978-1-5345-6548-7",{"$f":"HYPERLINK(Table1[[#This Row],[eCommerce Hyperlink]],\"Book Weblink\")","v":"Book Weblink"},null,"Lucent Press","Paperback Book",1,"2020","August 2019","Paperback","7.250 X 9.250","Author","Robyn Hardyman",null,null,null,null,"W",null,"Grade 6","Grade 5 - 8","Hurricanes, wildfires, and other natural disasters can seem unstoppable, destroying anything in their way. However, people around the world are working hard to come up with new ways to prepare for and recover from natural disasters. Readers discover the amazing stories behind these innovators and the ways they're using science, technology, engineering, and math skills to save lives. The main text, which supports essential STEM curriculum topics, is accompanied by detailed sidebars and vivid full-color photographs. The inspiring tone encourages the next generation of innovators to come up with their own creative solutions to the problem of natural disasters.","English",15.05,12.8,"363.34--dc23","48 pp.","https://greenhavenpublishing.com/9781534565487",null,{"$f":"Table1[[#This Row],['# of Books]]*Table1[[#This Row],[QTY]]","v":0},{"$f":"Table1[[#This Row],[QTY]]*Table1[[#This Row],[School & Library Price]]","v":0}]
[null,null,22,null,null,"Science and Technology","Earth's Innovators","Innovators Feeding the Planet","978-1-5345-6555-5",{"$f":"HYPERLINK(Table1[[#This Row],[eCommerce Hyperlink]],\"Book Weblink\")","v":"Book Weblink"},null,"Lucent Press","Library Bound Book",1,"2020","August 2019","Library","7.250 X 9.250","Author","Robyn Hardyman",null,null,null,null,"W",null,"Grade 6","Grade 5 - 8","Food is a very important part of life, but many people around the world are hungry and malnourished. How can this problem be solved? Innovators around the world have come up with creative ways to feed the planet, and readers will be captivated by the tales of their discoveries and inventions. Sidebars and full-color photographs aid in learning that science, technology, engineering, and math skills can be used for more than just passing tests. These skills can help save the world.","English",34.6,27.68,"363.8'5--dc23","48 pp.","https://greenhavenpublishing.com/9781534565555",null,{"$f":"Table1[[#This Row],['# of Books]]*Table1[[#This Row],[QTY]]","v":0},{"$f":"Table1[[#This Row],[QTY]]*Table1[[#This Row],[School & Library Price]]","v":0}]
[null,null,22,null,null,"Science and Technology","Earth's Innovators","Innovators Feeding the Planet","978-1-5345-6556-2",{"$f":"HYPERLINK(Table1[[#This Row],[eCommerce Hyperlink]],\"Book Weblink\")","v":"Book Weblink"},null,"Lucent Press","eBook",1,"2020","August 2019",null,null,"Author","Robyn Hardyman",null,null,null,null,"W",null,"Grade 6","Grade 5 - 8","Food is a very important part of life, but many people around the world are hungry and malnourished. How can this problem be solved? Innovators around the world have come up with creative ways to feed the planet, and readers will be captivated by the tales of their discoveries and inventions. Sidebars and full-color photographs aid in learning that science, technology, engineering, and math skills can be used for more than just passing tests. These skills can help save the world.","English",34.6,27.68,"363.8'5--dc23","48 pp.","https://greenhavenpublishing.com/9781534565562",null,{"$f":"Table1[[#This Row],['# of Books]]*Table1[[#This Row],[QTY]]","v":0},{"$f":"Table1[[#This Row],[QTY]]*Table1[[#This Row],[School & Library Price]]","v":0}]
[null,null,22,null,null,"Science and Technology","Earth's Innovators","Innovators Feeding the Planet","978-1-5345-6554-8",{"$f":"HYPERLINK(Table1[[#This Row],[eCommerce Hyperlink]],\"Book Weblink\")","v":"Book Weblink"},null,"Lucent Press","Paperback Book",1,"2020","August 2019","Paperback","7.250 X 9.250","Author","Robyn Hardyman",null,null,null,null,"W",null,"Grade 6","Grade 5 - 8","Food is a very important part of life, but many people around the world are hungry and malnourished. How can this problem be solved? Innovators around the world have come up with creative ways to feed the planet, and readers will be captivated by the tales of their discoveries and inventions. Sidebars and full-color photographs aid in learning that science, technology, engineering, and math skills can be used for more than just passing tests. These skills can help save the world.","English",15.05,12.8,"363.8'5--dc23","48 pp.","https://greenhavenpublishing.com/9781534565548",null,{"$f":"Table1[[#This Row],['# of Books]]*Table1[[#This Row],[QTY]]","v":0},{"$f":"Table1[[#This Row],[QTY]]*Table1[[#This Row],[School & Library Price]]","v":0}]
[null,null,22,null,null,"Science and Technology","Earth's Innovators","Innovators Improving Transportation","978-1-5345-6552-4",{"$f":"HYPERLINK(Table1[[#This Row],[eCommerce Hyperlink]],\"Book Weblink\")","v":"Book Weblink"},null,"Lucent Press","Library Bound Book",1,"2020","August 2019","Library","7.250 X 9.250","Author","Robyn Hardyman",null,null,null,null,"W",null,"Grade 6","Grade 5 - 8","People often complain about transportation; congested highways, inefficient mass transit systems, and environmental damage. Some innovators have taken those complaints and turned them into inspiration. These men and women are using science, technology, engineering, and math to improve transportation for both people and the environment. As readers discover the creative ways innovators are changing how we get from place to place, they also learn about the application of STEM in the world beyond the classroom. Featuring engaging main text, detailed sidebars, and vibrant photographs, this reading experience enhances the development of problem-solving skills in a creative and exciting way.","English",34.6,27.68,"629.04--dc23","48 pp.","https://greenhavenpublishing.com/9781534565524",null,{"$f":"Table1[[#This Row],['# of Books]]*Table1[[#This Row],[QTY]]","v":0},{"$f":"Table1[[#This Row],[QTY]]*Table1[[#This Row],[School & Library Price]]","v":0}]
[null,null,22,null,null,"Science and Technology","Earth's Innovators","Innovators Improving Transportation","978-1-5345-6553-1",{"$f":"HYPERLINK(Table1[[#This Row],[eCommerce Hyperlink]],\"Book Weblink\")","v":"Book Weblink"},null,"Lucent Press","eBook",1,"2020","August 2019",null,null,"Author","Robyn Hardyman",null,null,null,null,"W",null,"Grade 6","Grade 5 - 8","People often complain about transportation; congested highways, inefficient mass transit systems, and environmental damage. Some innovators have taken those complaints and turned them into inspiration. These men and women are using science, technology, engineering, and math to improve transportation for both people and the environment. As readers discover the creative ways innovators are changing how we get from place to place, they also learn about the application of STEM in the world beyond the classroom. Featuring engaging main text, detailed sidebars, and vibrant photographs, this reading experience enhances the development of problem-solving skills in a creative and exciting way.","English",34.6,27.68,"629.04--dc23","48 pp.","https://greenhavenpublishing.com/9781534565531",null,{"$f":"Table1[[#This Row],['# of Books]]*Table1[[#This Row],[QTY]]","v":0},{"$f":"Table1[[#This Row],[QTY]]*Table1[[#This Row],[School & Library Price]]","v":0}]
[null,null,22,null,null,"Science and Technology","Earth's Innovators","Innovators Improving Transportation","978-1-5345-6551-7",{"$f":"HYPERLINK(Table1[[#This Row],[eCommerce Hyperlink]],\"Book Weblink\")","v":"Book Weblink"},null,"Lucent Press","Paperback Book",1,"2020","August 2019","Paperback","7.250 X 9.250","Author","Robyn Hardyman",null,null,null,null,"W",null,"Grade 6","Grade 5 - 8","People often complain about transportation; congested highways, inefficient mass transit systems, and environmental damage. Some innovators have taken those complaints and turned them into inspiration. These men and women are using science, technology, engineering, and math to improve transportation for both people and the environment. As readers discover the creative ways innovators are changing how we get from place to place, they also learn about the application of STEM in the world beyond the classroom. Featuring engaging main text, detailed sidebars, and vibrant photographs, this reading experience enhances the development of problem-solving skills in a creative and exciting way.","English",15.05,12.8,"629.04--dc23","48 pp.","https://greenhavenpublishing.com/9781534565517",null,{"$f":"Table1[[#This Row],['# of Books]]*Table1[[#This Row],[QTY]]","v":0},{"$f":"Table1[[#This Row],[QTY]]*Table1[[#This Row],[School & Library Price]]","v":0}]
[null,null,22,null,null,"Science and Technology","Earth's Innovators","Innovators Tackling the Energy Crisis","978-1-5345-6546-3",{"$f":"HYPERLINK(Table1[[#This Row],[eCommerce Hyperlink]],\"Book Weblink\")","v":"Book Weblink"},null,"Lucent Press","Library Bound Book",1,"2020","August 2019","Library","7.250 X 9.250","Author","Robyn Hardyman",null,null,null,null,"W",null,"Grade 6","Grade 5 - 8","Did you know that an engineering professor invented a scanner that can find ways to improve a building's energy efficiency? Readers discover this and other fun facts as they explore the many ways people around the world are using their STEM knowledge to tackle the global energy crisis. The engaging main text, fact-filled sidebars, and full-color photographs supplement science curriculum topics and help readers connect those curriculum topics to current events issues such as climate change. Readers will also be inspired to find their own ways to deal with the growing demand for energy around the world.","English",34.6,27.68,"628--dc23","48 pp.","https://greenhavenpublishing.com/9781534565463",null,{"$f":"Table1[[#This Row],['# of Books]]*Table1[[#This Row],[QTY]]","v":0},{"$f":"Table1[[#This Row],[QTY]]*Table1[[#This Row],[School & Library Price]]","v":0}]
[null,null,22,null,null,"Science and Technology","Earth's Innovators","Innovators Tackling the Energy Crisis","978-1-5345-6547-0",{"$f":"HYPERLINK(Table1[[#This Row],[eCommerce Hyperlink]],\"Book Weblink\")","v":"Book Weblink"},null,"Lucent Press","eBook",1,"2020","August 2019",null,null,"Author","Robyn Hardyman",null,null,null,null,"W",null,"Grade 6","Grade 5 - 8","Did you know that an engineering professor invented a scanner that can find ways to improve a building's energy efficiency? Readers discover this and other fun facts as they explore the many ways people around the world are using their STEM knowledge to tackle the global energy crisis. The engaging main text, fact-filled sidebars, and full-color photographs supplement science curriculum topics and help readers connect those curriculum topics to current events issues such as climate change. Readers will also be inspired to find their own ways to deal with the growing demand for energy around the world.","English",34.6,27.68,"628--dc23","48 pp.","https://greenhavenpublishing.com/9781534565470",null,{"$f":"Table1[[#This Row],['# of Books]]*Table1[[#This Row],[QTY]]","v":0},{"$f":"Table1[[#This Row],[QTY]]*Table1[[#This Row],[School & Library Price]]","v":0}]
[null,null,22,null,null,"Science and Technology","Earth's Innovators","Innovators Tackling the Energy Crisis","978-1-5345-6545-6",{"$f":"HYPERLINK(Table1[[#This Row],[eCommerce Hyperlink]],\"Book Weblink\")","v":"Book Weblink"},null,"Lucent Press","Paperback Book",1,"2020","August 2019","Paperback","7.250 X 9.250","Author","Robyn Hardyman",null,null,null,null,"W",null,"Grade 6","Grade 5 - 8","Did you know that an engineering professor invented a scanner that can find ways to improve a building's energy efficiency? Readers discover this and other fun facts as they explore the many ways people around the world are using their STEM knowledge to tackle the global energy crisis. The engaging main text, fact-filled sidebars, and full-color photographs supplement science curriculum topics and help readers connect those curriculum topics to current events issues such as climate change. Readers will also be inspired to find their own ways to deal with the growing demand for energy around the world.","English",15.05,12.8,"628--dc23","48 pp.","https://greenhavenpublishing.com/9781534565456",null,{"$f":"Table1[[#This Row],['# of Books]]*Table1[[#This Row],[QTY]]","v":0},{"$f":"Table1[[#This Row],[QTY]]*Table1[[#This Row],[School & Library Price]]","v":0}]
[null,null,22,null,null,"Science and Technology","Robot Pioneers","Robot Pioneers","978-1-5345-6257-8",{"$f":"HYPERLINK(Table1[[#This Row],[eCommerce Hyperlink]],\"Book Weblink\")","v":"Book Weblink"},null,"Lucent Press","Library Set",6,"2018","January 2018","Library","7.250 X 9.250",null,null,null,null,null,null,null,null,"Grade 5 - 6","Grade 5 - 8","Robots are used in many fields, from medicine to law enforcement. Readers explore the history of robotics in these fields through detailed main text and informative fact boxes. Vibrant, full-color photographs depict these technological marvels, and the creative, immersive design of each volume captivates readers. In today's world, robots can be found in places as different as factories, war zones, and even space. What do these robots do, and what technological advances are being made to allow them to do even more in the future? The answers to these questions and more are waiting for readers to discover. Features include: Discussion questions are posed to readers to encourage them to think critically about the benefits and dangers of technology such as artificial intelligence. High-interest topic presents STEM (science, technology, engineering, and math) concepts to readers in an exciting way. Accessible text explains challenging robotics concepts using language that is easy for readers to understand.","English",206.7,165.36,null,"64 pp.","https://greenhavenpublishing.com/9781534562578",null,{"$f":"Table1[[#This Row],['# of Books]]*Table1[[#This Row],[QTY]]","v":0},{"$f":"Table1[[#This Row],[QTY]]*Table1[[#This Row],[School & Library Price]]","v":0}]
[null,null,22,null,null,"Science and Technology","Robot Pioneers","Robot Pioneers: Spring 2018","978-1-5345-6321-6",{"$f":"HYPERLINK(Table1[[#This Row],[eCommerce Hyperlink]],\"Book Weblink\")","v":"Book Weblink"},null,"Lucent Press","Single Copy Set",6,"2018","January 2018","Paperback","7.250 X 9.250",null,null,null,null,null,null,null,null,"Grade 5 - 6","Grade 5 - 8","Robots are used in many fields, from medicine to law enforcement. Readers explore the history of robotics in these fields through detailed main text and informative fact boxes. Vibrant, full-color photographs depict these technological marvels, and the creative, immersive design of each volume captivates readers. In today's world, robots can be found in places as different as factories, war zones, and even space. What do these robots do, and what technological advances are being made to allow them to do even more in the future? The answers to these questions and more are waiting for readers to discover. Features include: Discussion questions are posed to readers to encourage them to think critically about the benefits and dangers of technology such as artificial intelligence. High-interest topic presents STEM (science, technology, engineering, and math) concepts to readers in an exciting way. Accessible text explains challenging robotics concepts using language that is easy for readers to understand.","English",97.68,83.1,null,"64 pp.","https://greenhavenpublishing.com/9781534563216",null,{"$f":"Table1[[#This Row],['# of Books]]*Table1[[#This Row],[QTY]]","v":0},{"$f":"Table1[[#This Row],[QTY]]*Table1[[#This Row],[School & Library Price]]","v":0}]
[null,null,22,null,null,"Science and Technology","Robot Pioneers","Robotics in Industry","978-1-5345-6219-6",{"$f":"HYPERLINK(Table1[[#This Row],[eCommerce Hyperlink]],\"Book Weblink\")","v":"Book Weblink"},null,"Lucent Press","Library Bound Book",1,"2018","January 2018","Library","7.250 X 9.250","Author","Claudia Martin",null,null,null,null,"W",null,"Grade 5 - 6","Grade 5 - 8","The history of robots in the industrial world is filled with technological advances and pioneering engineers. These captivating stories are presented to readers through detailed main text and additional fact boxes, creating a comprehensive picture of how robots have influenced industries for long periods of time. Colorful photographs fill each page, captivating readers and providing detailed examples of industrial robots. Readers interested in science, technology, engineering, and math, collectively known as STEM, will enjoy this inside look at robotics in the world around us.","English",34.450000000000003,27.56,"670.42'72--dc23","64 pp.","https://greenhavenpublishing.com/9781534562196",null,{"$f":"Table1[[#This Row],['# of Books]]*Table1[[#This Row],[QTY]]","v":0},{"$f":"Table1[[#This Row],[QTY]]*Table1[[#This Row],[School & Library Price]]","v":0}]
[null,null,22,null,null,"Science and Technology","Robot Pioneers","Robotics in Industry","978-1-5345-6220-2",{"$f":"HYPERLINK(Table1[[#This Row],[eCommerce Hyperlink]],\"Book Weblink\")","v":"Book Weblink"},null,"Lucent Press","eBook",1,"2018","January 2018",null,null,"Author","Claudia Martin",null,null,null,null,"W",null,"Grade 5 - 6","Grade 5 - 8","The history of robots in the industrial world is filled with technological advances and pioneering engineers. These captivating stories are presented to readers through detailed main text and additional fact boxes, creating a comprehensive picture of how robots have influenced industries for long periods of time. Colorful photographs fill each page, captivating readers and providing detailed examples of industrial robots. Readers interested in science, technology, engineering, and math, collectively known as STEM, will enjoy this inside look at robotics in the world around us.","English",34.450000000000003,27.56,"670.42'72--dc23","64 pp.","https://greenhavenpublishing.com/9781534562202",null,{"$f":"Table1[[#This Row],['# of Books]]*Table1[[#This Row],[QTY]]","v":0},{"$f":"Table1[[#This Row],[QTY]]*Table1[[#This Row],[School & Library Price]]","v":0}]
[null,null,22,null,null,"Science and Technology","Robot Pioneers","Robotics in Industry","978-1-5345-6300-1",{"$f":"HYPERLINK(Table1[[#This Row],[eCommerce Hyperlink]],\"Book Weblink\")","v":"Book Weblink"},null,"Lucent Press","Paperback Book",1,"2018","January 2018","Paperback","7.250 X 9.250","Author","Claudia Martin",null,null,null,null,"W",null,"Grade 5 - 6","Grade 5 - 8","The history of robots in the industrial world is filled with technological advances and pioneering engineers. These captivating stories are presented to readers through detailed main text and additional fact boxes, creating a comprehensive picture of how robots have influenced industries for long periods of time. Colorful photographs fill each page, captivating readers and providing detailed examples of industrial robots. Readers interested in science, technology, engineering, and math, collectively known as STEM, will enjoy this inside look at robotics in the world around us.","English",16.28,13.85,"670.42'72--dc23","64 pp.","https://greenhavenpublishing.com/9781534563001",null,{"$f":"Table1[[#This Row],['# of Books]]*Table1[[#This Row],[QTY]]","v":0},{"$f":"Table1[[#This Row],[QTY]]*Table1[[#This Row],[School & Library Price]]","v":0}]
[null,null,22,null,null,"Science and Technology","Robot Pioneers","Robotics in Law Enforcement","978-1-5345-6215-8",{"$f":"HYPERLINK(Table1[[#This Row],[eCommerce Hyperlink]],\"Book Weblink\")","v":"Book Weblink"},null,"Lucent Press","Library Bound Book",1,"2018","January 2018","Library","7.250 X 9.250","Author","Claudia Martin",null,null,null,null,"W",null,"Grade 5 - 6","Grade 5 - 8","Law enforcement officers keep people safe, and robots are sometimes used to keep these officers safe. As readers learn about the many ways robots are used to help in the field of law enforcement, they are introduced to exciting ways science, technology, engineering, and math, also known as STEM, are being used in the world around them. Through informative text and eye-catching fact boxes, they explore the evolution of robots in this important field, with detailed photographs helping them visualize the technology they are reading about.","English",34.450000000000003,27.56,"629.8'92--dc23","64 pp.","https://greenhavenpublishing.com/9781534562158",null,{"$f":"Table1[[#This Row],['# of Books]]*Table1[[#This Row],[QTY]]","v":0},{"$f":"Table1[[#This Row],[QTY]]*Table1[[#This Row],[School & Library Price]]","v":0}]
[null,null,22,null,null,"Science and Technology","Robot Pioneers","Robotics in Law Enforcement","978-1-5345-6216-5",{"$f":"HYPERLINK(Table1[[#This Row],[eCommerce Hyperlink]],\"Book Weblink\")","v":"Book Weblink"},null,"Lucent Press","eBook",1,"2018","January 2018",null,null,"Author","Claudia Martin",null,null,null,null,"W",null,"Grade 5 - 6","Grade 5 - 8","Law enforcement officers keep people safe, and robots are sometimes used to keep these officers safe. As readers learn about the many ways robots are used to help in the field of law enforcement, they are introduced to exciting ways science, technology, engineering, and math, also known as STEM, are being used in the world around them. Through informative text and eye-catching fact boxes, they explore the evolution of robots in this important field, with detailed photographs helping them visualize the technology they are reading about.","English",34.450000000000003,27.56,"629.8'92--dc23","64 pp.","https://greenhavenpublishing.com/9781534562165",null,{"$f":"Table1[[#This Row],['# of Books]]*Table1[[#This Row],[QTY]]","v":0},{"$f":"Table1[[#This Row],[QTY]]*Table1[[#This Row],[School & Library Price]]","v":0}]
[null,null,22,null,null,"Science and Technology","Robot Pioneers","Robotics in Law Enforcement","978-1-5345-6301-8",{"$f":"HYPERLINK(Table1[[#This Row],[eCommerce Hyperlink]],\"Book Weblink\")","v":"Book Weblink"},null,"Lucent Press","Paperback Book",1,"2018","January 2018","Paperback","7.250 X 9.250","Author","Claudia Martin",null,null,null,null,"W",null,"Grade 5 - 6","Grade 5 - 8","Law enforcement officers keep people safe, and robots are sometimes used to keep these officers safe. As readers learn about the many ways robots are used to help in the field of law enforcement, they are introduced to exciting ways science, technology, engineering, and math, also known as STEM, are being used in the world around them. Through informative text and eye-catching fact boxes, they explore the evolution of robots in this important field, with detailed photographs helping them visualize the technology they are reading about.","English",16.28,13.85,"629.8'92--dc23","64 pp.","https://greenhavenpublishing.com/9781534563018",null,{"$f":"Table1[[#This Row],['# of Books]]*Table1[[#This Row],[QTY]]","v":0},{"$f":"Table1[[#This Row],[QTY]]*Table1[[#This Row],[School & Library Price]]","v":0}]
[null,null,22,null,null,"Science and Technology","Robot Pioneers","Robotics in Medicine","978-1-5345-6209-7",{"$f":"HYPERLINK(Table1[[#This Row],[eCommerce Hyperlink]],\"Book Weblink\")","v":"Book Weblink"},null,"Lucent Press","Library Bound Book",1,"2018","January 2018","Library","7.250 X 9.250","Author","Robyn Hardyman",null,null,null,null,"W",null,"Grade 5 - 6","Grade 5 - 8","Robot doctors may seem to be something out of a science fiction film, but it's not that unlikely a concept anymore. In fact, robots are being used in hospitals around the world for important tasks, especially surgeries. Readers discover the rich history of robots in medicine through detailed main text and enlightening fact boxes. Vibrant, full-color photographs accompany the informative text, creating an immersive reading experience sure to captivate readers with a passion for STEM, science, technology, engineering, and math.","English",34.450000000000003,27.56,"610.285'63--dc23","64 pp.","https://greenhavenpublishing.com/9781534562097",null,{"$f":"Table1[[#This Row],['# of Books]]*Table1[[#This Row],[QTY]]","v":0},{"$f":"Table1[[#This Row],[QTY]]*Table1[[#This Row],[School & Library Price]]","v":0}]
[null,null,22,null,null,"Science and Technology","Robot Pioneers","Robotics in Medicine","978-1-5345-6210-3",{"$f":"HYPERLINK(Table1[[#This Row],[eCommerce Hyperlink]],\"Book Weblink\")","v":"Book Weblink"},null,"Lucent Press","eBook",1,"2018","January 2018",null,null,"Author","Robyn Hardyman",null,null,null,null,"W",null,"Grade 5 - 6","Grade 5 - 8","Robot doctors may seem to be something out of a science fiction film, but it's not that unlikely a concept anymore. In fact, robots are being used in hospitals around the world for important tasks, especially surgeries. Readers discover the rich history of robots in medicine through detailed main text and enlightening fact boxes. Vibrant, full-color photographs accompany the informative text, creating an immersive reading experience sure to captivate readers with a passion for STEM, science, technology, engineering, and math.","English",34.450000000000003,27.56,"610.285'63--dc23","64 pp.","https://greenhavenpublishing.com/9781534562103",null,{"$f":"Table1[[#This Row],['# of Books]]*Table1[[#This Row],[QTY]]","v":0},{"$f":"Table1[[#This Row],[QTY]]*Table1[[#This Row],[School & Library Price]]","v":0}]
[null,null,22,null,null,"Science and Technology","Robot Pioneers","Robotics in Medicine","978-1-5345-6302-5",{"$f":"HYPERLINK(Table1[[#This Row],[eCommerce Hyperlink]],\"Book Weblink\")","v":"Book Weblink"},null,"Lucent Press","Paperback Book",1,"2018","January 2018","Paperback","7.250 X 9.250","Author","Robyn Hardyman",null,null,null,null,"W",null,"Grade 5 - 6","Grade 5 - 8","Robot doctors may seem to be something out of a science fiction film, but it's not that unlikely a concept anymore. In fact, robots are being used in hospitals around the world for important tasks, especially surgeries. Readers discover the rich history of robots in medicine through detailed main text and enlightening fact boxes. Vibrant, full-color photographs accompany the informative text, creating an immersive reading experience sure to captivate readers with a passion for STEM, science, technology, engineering, and math.","English",16.28,13.85,"610.285'63--dc23","64 pp.","https://greenhavenpublishing.com/9781534563025",null,{"$f":"Table1[[#This Row],['# of Books]]*Table1[[#This Row],[QTY]]","v":0},{"$f":"Table1[[#This Row],[QTY]]*Table1[[#This Row],[School & Library Price]]","v":0}]
[null,null,22,null,null,"Science and Technology","Robot Pioneers","Robotics in Nature","978-1-5345-6217-2",{"$f":"HYPERLINK(Table1[[#This Row],[eCommerce Hyperlink]],\"Book Weblink\")","v":"Book Weblink"},null,"Lucent Press","Library Bound Book",1,"2018","January 2018","Library","7.250 X 9.250","Author","Claudia Martin",null,null,null,null,"W",null,"Grade 5 - 6","Grade 5 - 8","How are robots used in nature? Readers discover the answer to this question as they examine the complex relationship between technology and the natural world. This and other aspects of STEM, science, technology, engineering, and math, are presented to readers through clear, informative text that aims to make challenging concepts easier to understand. Fact boxes provide readers with additional information, and vivid photographs keep and hold readers' interest with each turn of the page.","English",34.450000000000003,27.56,"629.8'92--dc23","64 pp.","https://greenhavenpublishing.com/9781534562172",null,{"$f":"Table1[[#This Row],['# of Books]]*Table1[[#This Row],[QTY]]","v":0},{"$f":"Table1[[#This Row],[QTY]]*Table1[[#This Row],[School & Library Price]]","v":0}]
[null,null,22,null,null,"Science and Technology","Robot Pioneers","Robotics in Nature","978-1-5345-6218-9",{"$f":"HYPERLINK(Table1[[#This Row],[eCommerce Hyperlink]],\"Book Weblink\")","v":"Book Weblink"},null,"Lucent Press","eBook",1,"2018","January 2018",null,null,"Author","Claudia Martin",null,null,null,null,"W",null,"Grade 5 - 6","Grade 5 - 8","How are robots used in nature? Readers discover the answer to this question as they examine the complex relationship between technology and the natural world. This and other aspects of STEM, science, technology, engineering, and math, are presented to readers through clear, informative text that aims to make challenging concepts easier to understand. Fact boxes provide readers with additional information, and vivid photographs keep and hold readers' interest with each turn of the page.","English",34.450000000000003,27.56,"629.8'92--dc23","64 pp.","https://greenhavenpublishing.com/9781534562189",null,{"$f":"Table1[[#This Row],['# of Books]]*Table1[[#This Row],[QTY]]","v":0},{"$f":"Table1[[#This Row],[QTY]]*Table1[[#This Row],[School & Library Price]]","v":0}]
[null,null,22,null,null,"Science and Technology","Robot Pioneers","Robotics in Nature","978-1-5345-6303-2",{"$f":"HYPERLINK(Table1[[#This Row],[eCommerce Hyperlink]],\"Book Weblink\")","v":"Book Weblink"},null,"Lucent Press","Paperback Book",1,"2018","January 2018","Paperback","7.250 X 9.250","Author","Claudia Martin",null,null,null,null,"W",null,"Grade 5 - 6","Grade 5 - 8","How are robots used in nature? Readers discover the answer to this question as they examine the complex relationship between technology and the natural world. This and other aspects of STEM, science, technology, engineering, and math, are presented to readers through clear, informative text that aims to make challenging concepts easier to understand. Fact boxes provide readers with additional information, and vivid photographs keep and hold readers' interest with each turn of the page.","English",16.28,13.85,"629.8'92--dc23","64 pp.","https://greenhavenpublishing.com/9781534563032",null,{"$f":"Table1[[#This Row],['# of Books]]*Table1[[#This Row],[QTY]]","v":0},{"$f":"Table1[[#This Row],[QTY]]*Table1[[#This Row],[School & Library Price]]","v":0}]
[null,null,22,null,null,"Science and Technology","Robot Pioneers","Robotics in Space","978-1-5345-6213-4",{"$f":"HYPERLINK(Table1[[#This Row],[eCommerce Hyperlink]],\"Book Weblink\")","v":"Book Weblink"},null,"Lucent Press","Library Bound Book",1,"2018","January 2018","Library","7.250 X 9.250","Author","Robert Snedden",null,null,null,null,"W",null,"Grade 5 - 6","Grade 5 - 8","Space exploration and robotics are both exciting scientific frontiers, and readers discover the many ways they intersect as they explore the history of robots in space. The accessible text presents STEM, science, technology, engineering, and math, concepts in a clear way. Fact boxes are also included to provide additional insight into the role robots have played in the evolution of space exploration. As readers take in the compelling text and vibrant photographs, they will be transported on a journey into space that they won't soon forget.","English",34.450000000000003,27.56,"629.43--dc23","64 pp.","https://greenhavenpublishing.com/9781534562134",null,{"$f":"Table1[[#This Row],['# of Books]]*Table1[[#This Row],[QTY]]","v":0},{"$f":"Table1[[#This Row],[QTY]]*Table1[[#This Row],[School & Library Price]]","v":0}]
[null,null,22,null,null,"Science and Technology","Robot Pioneers","Robotics in Space","978-1-5345-6214-1",{"$f":"HYPERLINK(Table1[[#This Row],[eCommerce Hyperlink]],\"Book Weblink\")","v":"Book Weblink"},null,"Lucent Press","eBook",1,"2018","January 2018",null,null,"Author","Robert Snedden",null,null,null,null,"W",null,"Grade 5 - 6","Grade 5 - 8","Space exploration and robotics are both exciting scientific frontiers, and readers discover the many ways they intersect as they explore the history of robots in space. The accessible text presents STEM, science, technology, engineering, and math, concepts in a clear way. Fact boxes are also included to provide additional insight into the role robots have played in the evolution of space exploration. As readers take in the compelling text and vibrant photographs, they will be transported on a journey into space that they won't soon forget.","English",34.450000000000003,27.56,"629.43--dc23","64 pp.","https://greenhavenpublishing.com/9781534562141",null,{"$f":"Table1[[#This Row],['# of Books]]*Table1[[#This Row],[QTY]]","v":0},{"$f":"Table1[[#This Row],[QTY]]*Table1[[#This Row],[School & Library Price]]","v":0}]
[null,null,22,null,null,"Science and Technology","Robot Pioneers","Robotics in Space","978-1-5345-6304-9",{"$f":"HYPERLINK(Table1[[#This Row],[eCommerce Hyperlink]],\"Book Weblink\")","v":"Book Weblink"},null,"Lucent Press","Paperback Book",1,"2018","January 2018","Paperback","7.250 X 9.250","Author","Robert Snedden",null,null,null,null,"W",null,"Grade 5 - 6","Grade 5 - 8","Space exploration and robotics are both exciting scientific frontiers, and readers discover the many ways they intersect as they explore the history of robots in space. The accessible text presents STEM, science, technology, engineering, and math, concepts in a clear way. Fact boxes are also included to provide additional insight into the role robots have played in the evolution of space exploration. As readers take in the compelling text and vibrant photographs, they will be transported on a journey into space that they won't soon forget.","English",16.28,13.85,"629.43--dc23","64 pp.","https://greenhavenpublishing.com/9781534563049",null,{"$f":"Table1[[#This Row],['# of Books]]*Table1[[#This Row],[QTY]]","v":0},{"$f":"Table1[[#This Row],[QTY]]*Table1[[#This Row],[School & Library Price]]","v":0}]
[null,null,22,null,null,"Science and Technology","Robot Pioneers","Robotics in the Military","978-1-5345-6211-0",{"$f":"HYPERLINK(Table1[[#This Row],[eCommerce Hyperlink]],\"Book Weblink\")","v":"Book Weblink"},null,"Lucent Press","Library Bound Book",1,"2018","January 2018","Library","7.250 X 9.250","Author","Robert Snedden",null,null,null,null,"W",null,"Grade 5 - 6","Grade 5 - 8","An entire robot army does not exist, but robots are being used more frequently by militaries around the world to keep soldiers out of harm's way. Readers learn this and other fascinating facts about robots in the military thanks to engaging text that is enhanced by informative fact boxes. Visual examples of the kinds of robots employed by the military are included in the form of captivating, full-color photographs. The eye-catching design and exciting text show readers that learning about STEM, science, technology, engineering, and math, can be fun.","English",34.450000000000003,27.56,"623--dc23","64 pp.","https://greenhavenpublishing.com/9781534562110",null,{"$f":"Table1[[#This Row],['# of Books]]*Table1[[#This Row],[QTY]]","v":0},{"$f":"Table1[[#This Row],[QTY]]*Table1[[#This Row],[School & Library Price]]","v":0}]
[null,null,22,null,null,"Science and Technology","Robot Pioneers","Robotics in the Military","978-1-5345-6212-7",{"$f":"HYPERLINK(Table1[[#This Row],[eCommerce Hyperlink]],\"Book Weblink\")","v":"Book Weblink"},null,"Lucent Press","eBook",1,"2018","January 2018",null,null,"Author","Robert Snedden",null,null,null,null,"W",null,"Grade 5 - 6","Grade 5 - 8","An entire robot army does not exist, but robots are being used more frequently by militaries around the world to keep soldiers out of harm's way. Readers learn this and other fascinating facts about robots in the military thanks to engaging text that is enhanced by informative fact boxes. Visual examples of the kinds of robots employed by the military are included in the form of captivating, full-color photographs. The eye-catching design and exciting text show readers that learning about STEM, science, technology, engineering, and math, can be fun.","English",34.450000000000003,27.56,"623--dc23","64 pp.","https://greenhavenpublishing.com/9781534562127",null,{"$f":"Table1[[#This Row],['# of Books]]*Table1[[#This Row],[QTY]]","v":0},{"$f":"Table1[[#This Row],[QTY]]*Table1[[#This Row],[School & Library Price]]","v":0}]
[null,null,22,null,null,"Science and Technology","Robot Pioneers","Robotics in the Military","978-1-5345-6305-6",{"$f":"HYPERLINK(Table1[[#This Row],[eCommerce Hyperlink]],\"Book Weblink\")","v":"Book Weblink"},null,"Lucent Press","Paperback Book",1,"2018","January 2018","Paperback","7.250 X 9.250","Author","Robert Snedden",null,null,null,null,"W",null,"Grade 5 - 6","Grade 5 - 8","An entire robot army does not exist, but robots are being used more frequently by militaries around the world to keep soldiers out of harm's way. Readers learn this and other fascinating facts about robots in the military thanks to engaging text that is enhanced by informative fact boxes. Visual examples of the kinds of robots employed by the military are included in the form of captivating, full-color photographs. The eye-catching design and exciting text show readers that learning about STEM, science, technology, engineering, and math, can be fun.","English",16.28,13.85,"623--dc23","64 pp.","https://greenhavenpublishing.com/9781534563056",null,{"$f":"Table1[[#This Row],['# of Books]]*Table1[[#This Row],[QTY]]","v":0},{"$f":"Table1[[#This Row],[QTY]]*Table1[[#This Row],[School & Library Price]]","v":0}]
[null,null,22,null,null,"Science and Technology","Science Behind Sports","Science Behind Sports","978-1-5345-6168-7",{"$f":"HYPERLINK(Table1[[#This Row],[eCommerce Hyperlink]],\"Book Weblink\")","v":"Book Weblink"},null,"Lucent Press","Library Set",6,"2018","August 2017","Library","7.000 X 9.000",null,null,null,null,null,null,null,null,"Grade 7","Grade 7 - 10","It takes strength and skill to be successful at sports. It also takes science! As readers explore the basic facts about the origins and rules of some of the world’s most popular sports—including basketball, soccer, and baseball—they also discover the essential science concepts that explain some of the sporting world’s most incredible feats—from a bending soccer ball to a tumbling pass in gymnastics. Fact boxes, diagrams, and annotated quotes from experts enhance the accessible main text, and dynamic photographs of sports superstars in action keep readers entertained.","English",242.4,193.92,null,"104 pp.","https://greenhavenpublishing.com/9781534561687",null,{"$f":"Table1[[#This Row],['# of Books]]*Table1[[#This Row],[QTY]]","v":0},{"$f":"Table1[[#This Row],[QTY]]*Table1[[#This Row],[School & Library Price]]","v":0}]
[null,null,22,null,null,"Science and Technology","Science Behind Sports","Baseball: Science at the Ballpark","978-1-5345-6106-9",{"$f":"HYPERLINK(Table1[[#This Row],[eCommerce Hyperlink]],\"Book Weblink\")","v":"Book Weblink"},null,"Lucent Press","Library Bound Book",1,"2018","August 2017","Library","7.000 X 9.000","Author","Ryan Nagelhout",null,null,null,null,"Z","1200L","Grade 7","Grade 7 - 10","Why does a curveball curve? Why is it sometimes better to slide into a base than to run to it? How can baseball players avoid common injuries? As readers discover the science behind baseball, they find the answers to these and many more questions about the sport that's often called America's pastime. Fun fact boxes, informative sidebars, and action-packed photographs give readers an exciting look at the way common areas of science are applied in baseball games. This fresh approach to STEM is sure to captivate readers.","English",40.4,32.32,"796.357--dc23","104 pp.","https://greenhavenpublishing.com/9781534561069",null,{"$f":"Table1[[#This Row],['# of Books]]*Table1[[#This Row],[QTY]]","v":0},{"$f":"Table1[[#This Row],[QTY]]*Table1[[#This Row],[School & Library Price]]","v":0}]
[null,null,22,null,null,"Science and Technology","Science Behind Sports","Baseball: Science at the Ballpark","978-1-5345-6107-6",{"$f":"HYPERLINK(Table1[[#This Row],[eCommerce Hyperlink]],\"Book Weblink\")","v":"Book Weblink"},null,"Lucent Press","eBook",1,"2018","August 2017",null,null,"Author","Ryan Nagelhout",null,null,null,null,"Z","1200L","Grade 7","Grade 7 - 10","Why does a curveball curve? Why is it sometimes better to slide into a base than to run to it? How can baseball players avoid common injuries? As readers discover the science behind baseball, they find the answers to these and many more questions about the sport that's often called America's pastime. Fun fact boxes, informative sidebars, and action-packed photographs give readers an exciting look at the way common areas of science are applied in baseball games. This fresh approach to STEM is sure to captivate readers.","English",40.4,32.32,"796.357--dc23","104 pp.","https://greenhavenpublishing.com/9781534561076",null,{"$f":"Table1[[#This Row],['# of Books]]*Table1[[#This Row],[QTY]]","v":0},{"$f":"Table1[[#This Row],[QTY]]*Table1[[#This Row],[School & Library Price]]","v":0}]
[null,null,22,null,null,"Science and Technology","Science Behind Sports","Basketball: Science on the Court","978-1-5345-6108-3",{"$f":"HYPERLINK(Table1[[#This Row],[eCommerce Hyperlink]],\"Book Weblink\")","v":"Book Weblink"},null,"Lucent Press","Library Bound Book",1,"2018","August 2017","Library","7.000 X 9.000","Author","Emily Mahoney",null,null,null,null,"Z","1210L","Grade 7","Grade 7 - 10","Slam dunks, quick passes, and jump shots are all actions of scientific principles, and readers discover why as they explore the ways physics, biology, and other areas of science are applied in the game of basketball. As readers take in details from fact boxes, sidebars, and diagrams, they learn the combination of science, technology, engineering, and math on the basketball court. They'll also find fun photographs of some of the sport's biggest stars using science to score.","English",40.4,32.32,"796.323--dc23","112 pp.","https://greenhavenpublishing.com/9781534561083",null,{"$f":"Table1[[#This Row],['# of Books]]*Table1[[#This Row],[QTY]]","v":0},{"$f":"Table1[[#This Row],[QTY]]*Table1[[#This Row],[School & Library Price]]","v":0}]
[null,null,22,null,null,"Science and Technology","Science Behind Sports","Basketball: Science on the Court","978-1-5345-6109-0",{"$f":"HYPERLINK(Table1[[#This Row],[eCommerce Hyperlink]],\"Book Weblink\")","v":"Book Weblink"},null,"Lucent Press","eBook",1,"2018","August 2017",null,null,"Author","Emily Mahoney",null,null,null,null,"Z","1210L","Grade 7","Grade 7 - 10","Slam dunks, quick passes, and jump shots are all actions of scientific principles, and readers discover why as they explore the ways physics, biology, and other areas of science are applied in the game of basketball. As readers take in details from fact boxes, sidebars, and diagrams, they learn the combination of science, technology, engineering, and math on the basketball court. They'll also find fun photographs of some of the sport's biggest stars using science to score.","English",40.4,32.32,"796.323--dc23","112 pp.","https://greenhavenpublishing.com/9781534561090",null,{"$f":"Table1[[#This Row],['# of Books]]*Table1[[#This Row],[QTY]]","v":0},{"$f":"Table1[[#This Row],[QTY]]*Table1[[#This Row],[School & Library Price]]","v":0}]
[null,null,22,null,null,"Science and Technology","Science Behind Sports","Gymnastics: Science on the Mat and in the Air","978-1-5345-6110-6",{"$f":"HYPERLINK(Table1[[#This Row],[eCommerce Hyperlink]],\"Book Weblink\")","v":"Book Weblink"},null,"Lucent Press","Library Bound Book",1,"2018","August 2017","Library","7.000 X 9.000","Author","Elizabeth Morgan",null,null,null,null,"Z","1180L","Grade 7","Grade 7 - 10","In order to execute amazing tumbling passes and stick the perfect landing, gymnasts need proper training and a lot of practice. They also need to understand the science behind what they're doing on the mat and in the air. Readers are introduced to the areas of STEM that help gymnasts perform at their best, including the ways engineers have created safer equipment and the ways technology is being used to reduce injury. Eye-catching fact boxes, detailed sidebars, and full-color photographs provide readers with an inside look at the science and technology behind this popular sport.","English",40.4,32.32,"796.4--dc23","104 pp.","https://greenhavenpublishing.com/9781534561106",null,{"$f":"Table1[[#This Row],['# of Books]]*Table1[[#This Row],[QTY]]","v":0},{"$f":"Table1[[#This Row],[QTY]]*Table1[[#This Row],[School & Library Price]]","v":0}]
[null,null,22,null,null,"Science and Technology","Science Behind Sports","Gymnastics: Science on the Mat and in the Air","978-1-5345-6111-3",{"$f":"HYPERLINK(Table1[[#This Row],[eCommerce Hyperlink]],\"Book Weblink\")","v":"Book Weblink"},null,"Lucent Press","eBook",1,"2018","August 2017",null,null,"Author","Elizabeth Morgan",null,null,null,null,"Z","1180L","Grade 7","Grade 7 - 10","In order to execute amazing tumbling passes and stick the perfect landing, gymnasts need proper training and a lot of practice. They also need to understand the science behind what they're doing on the mat and in the air. Readers are introduced to the areas of STEM that help gymnasts perform at their best, including the ways engineers have created safer equipment and the ways technology is being used to reduce injury. Eye-catching fact boxes, detailed sidebars, and full-color photographs provide readers with an inside look at the science and technology behind this popular sport.","English",40.4,32.32,"796.4--dc23","104 pp.","https://greenhavenpublishing.com/9781534561113",null,{"$f":"Table1[[#This Row],['# of Books]]*Table1[[#This Row],[QTY]]","v":0},{"$f":"Table1[[#This Row],[QTY]]*Table1[[#This Row],[School & Library Price]]","v":0}]
[null,null,22,null,null,"Science and Technology","Science Behind Sports","Ice Hockey: Science on Ice","978-1-5345-6113-7",{"$f":"HYPERLINK(Table1[[#This Row],[eCommerce Hyperlink]],\"Book Weblink\")","v":"Book Weblink"},null,"Lucent Press","Library Bound Book",1,"2018","August 2017","Library","7.000 X 9.000","Author","Barbara M. Linde",null,null,null,null,"Z","1170L","Grade 7","Grade 7 - 10","Physics explains how an ice hockey player scores a goal. Biology explains why certain exercises help hockey players become better and stronger. Math is used to calculate the exact measurement of different kinds of hockey rinks. Engineers use technology to create the safest equipment for hockey players. Readers see how these areas of STEM come together in a hockey game, and they’re sure to enjoy this unique look at common science curriculum topics. The detailed main text is supported by fun fact boxes, enlightening sidebars, helpful diagrams, and vibrant photographs of ice hockey players in action.","English",40.4,32.32,"796.962--dc23","112 pp.","https://greenhavenpublishing.com/9781534561137",null,{"$f":"Table1[[#This Row],['# of Books]]*Table1[[#This Row],[QTY]]","v":0},{"$f":"Table1[[#This Row],[QTY]]*Table1[[#This Row],[School & Library Price]]","v":0}]
[null,null,22,null,null,"Science and Technology","Science Behind Sports","Ice Hockey: Science on Ice","978-1-5345-6114-4",{"$f":"HYPERLINK(Table1[[#This Row],[eCommerce Hyperlink]],\"Book Weblink\")","v":"Book Weblink"},null,"Lucent Press","eBook",1,"2018","August 2017",null,null,"Author","Barbara M. Linde",null,null,null,null,"Z","1170L","Grade 7","Grade 7 - 10","Physics explains how an ice hockey player scores a goal. Biology explains why certain exercises help hockey players become better and stronger. Math is used to calculate the exact measurement of different kinds of hockey rinks. Engineers use technology to create the safest equipment for hockey players. Readers see how these areas of STEM come together in a hockey game, and they’re sure to enjoy this unique look at common science curriculum topics. The detailed main text is supported by fun fact boxes, enlightening sidebars, helpful diagrams, and vibrant photographs of ice hockey players in action.","English",40.4,32.32,"796.962--dc23","112 pp.","https://greenhavenpublishing.com/9781534561144",null,{"$f":"Table1[[#This Row],['# of Books]]*Table1[[#This Row],[QTY]]","v":0},{"$f":"Table1[[#This Row],[QTY]]*Table1[[#This Row],[School & Library Price]]","v":0}]
[null,null,22,null,null,"Science and Technology","Science Behind Sports","Lacrosse: Science on the Field","978-1-5345-6117-5",{"$f":"HYPERLINK(Table1[[#This Row],[eCommerce Hyperlink]],\"Book Weblink\")","v":"Book Weblink"},null,"Lucent Press","Library Bound Book",1,"2018","August 2017","Library","7.000 X 9.000","Author","Gary Wiener",null,null,null,null,"Z","1200L","Grade 7","Grade 7 - 10","Lacrosse is quickly becoming one of the most popular sports played by young men and women in North America. In order to fully understand this exciting sport and play it safely and successfully, it helps to have a strong understanding of the science behind it. Readers discover the ways science, technology, engineering, and math are used together on the lacrosse field. This engaging take on familiar STEM topics is sure to delight readers who are sports fans. The fact-filled main text is enhanced by the use of accessible diagrams, fun fact boxes, informative sidebars, and exciting photographs of lacrosse games.","English",40.4,32.32,"796.36'2--dc23","104 pp.","https://greenhavenpublishing.com/9781534561175",null,{"$f":"Table1[[#This Row],['# of Books]]*Table1[[#This Row],[QTY]]","v":0},{"$f":"Table1[[#This Row],[QTY]]*Table1[[#This Row],[School & Library Price]]","v":0}]
[null,null,22,null,null,"Science and Technology","Science Behind Sports","Lacrosse: Science on the Field","978-1-5345-6118-2",{"$f":"HYPERLINK(Table1[[#This Row],[eCommerce Hyperlink]],\"Book Weblink\")","v":"Book Weblink"},null,"Lucent Press","eBook",1,"2018","August 2017",null,null,"Author","Gary Wiener",null,null,null,null,"Z","1200L","Grade 7","Grade 7 - 10","Lacrosse is quickly becoming one of the most popular sports played by young men and women in North America. In order to fully understand this exciting sport and play it safely and successfully, it helps to have a strong understanding of the science behind it. Readers discover the ways science, technology, engineering, and math are used together on the lacrosse field. This engaging take on familiar STEM topics is sure to delight readers who are sports fans. The fact-filled main text is enhanced by the use of accessible diagrams, fun fact boxes, informative sidebars, and exciting photographs of lacrosse games.","English",40.4,32.32,"796.36'2--dc23","104 pp.","https://greenhavenpublishing.com/9781534561182",null,{"$f":"Table1[[#This Row],['# of Books]]*Table1[[#This Row],[QTY]]","v":0},{"$f":"Table1[[#This Row],[QTY]]*Table1[[#This Row],[School & Library Price]]","v":0}]
[null,null,22,null,null,"Science and Technology","Science Behind Sports","Soccer: Science on the Pitch","978-1-5345-6115-1",{"$f":"HYPERLINK(Table1[[#This Row],[eCommerce Hyperlink]],\"Book Weblink\")","v":"Book Weblink"},null,"Lucent Press","Library Bound Book",1,"2018","August 2017","Library","7.000 X 9.000","Author","Amy B. Rogers",null,null,null,null,"Z","1250L","Grade 7","Grade 7 - 10","If readers have ever wondered how soccer players \"bend it like Beckham,\" they'll enjoy this unique look at the science behind the world's most popular sport. Detailed text, fact boxes, sidebars, and diagrams help readers understand the many ways scientific concepts are applied on the soccer field. Readers also learn how scientific knowledge is put to use along with the other areas of STEM to help soccer players train, avoid injury, and heal more quickly if they do get hurt. Full-color photographs place readers in the middle of the action on the pitch.","English",40.4,32.32,"796.334--dc23","104 pp.","https://greenhavenpublishing.com/9781534561151",null,{"$f":"Table1[[#This Row],['# of Books]]*Table1[[#This Row],[QTY]]","v":0},{"$f":"Table1[[#This Row],[QTY]]*Table1[[#This Row],[School & Library Price]]","v":0}]
[null,null,22,null,null,"Science and Technology","Science Behind Sports","Soccer: Science on the Pitch","978-1-5345-6116-8",{"$f":"HYPERLINK(Table1[[#This Row],[eCommerce Hyperlink]],\"Book Weblink\")","v":"Book Weblink"},null,"Lucent Press","eBook",1,"2018","August 2017",null,null,"Author","Amy B. Rogers",null,null,null,null,"Z","1250L","Grade 7","Grade 7 - 10","If readers have ever wondered how soccer players \"bend it like Beckham,\" they'll enjoy this unique look at the science behind the world's most popular sport. Detailed text, fact boxes, sidebars, and diagrams help readers understand the many ways scientific concepts are applied on the soccer field. Readers also learn how scientific knowledge is put to use along with the other areas of STEM to help soccer players train, avoid injury, and heal more quickly if they do get hurt. Full-color photographs place readers in the middle of the action on the pitch.","English",40.4,32.32,"796.334--dc23","104 pp.","https://greenhavenpublishing.com/9781534561168",null,{"$f":"Table1[[#This Row],['# of Books]]*Table1[[#This Row],[QTY]]","v":0},{"$f":"Table1[[#This Row],[QTY]]*Table1[[#This Row],[School & Library Price]]","v":0}]
[null,null,23,null,null,"U.S. History","American Democracy in Action","American Democracy in Action","978-1-5345-6452-7",{"$f":"HYPERLINK(Table1[[#This Row],[eCommerce Hyperlink]],\"Book Weblink\")","v":"Book Weblink"},null,"Lucent Press","Library Set",6,"2019","August 2018","Library","7.250 X 9.250",null,null,null,null,null,null,null,null,"Grade 6","Grade 5 - 8","What duties does the president of the United States have? How do you vote in an election? These questions and many others are answered in this engaging series. Readers will expand their knowledge of relevant social studies and civics curriculum topics, such as Congress, the U.S. Constitution, the democratic process, the judicial system, and citizenship. This series helps to explain the history of the U.S. government, how it has changed over the years, its current role in our society, and each citizen's role within that government. Vibrant full-color photographs, a detailed glossary, and informative graphic organizers provide extra insight into these important subjects. Features include: Readers will improve their critical thinking skills as they are asked specific questions in each chapter about different facets of the U.S. government. Informational sidebars offer up additional facts to strengthen readers' knowledge of democracy and encourage them to be active, informed citizens. Striking visual elements draw readers in and create an engaging learning experience about a timely topic.","English",207.6,166.08,null,"48 pp.","https://greenhavenpublishing.com/9781534564527",null,{"$f":"Table1[[#This Row],['# of Books]]*Table1[[#This Row],[QTY]]","v":0},{"$f":"Table1[[#This Row],[QTY]]*Table1[[#This Row],[School & Library Price]]","v":0}]
[null,null,23,null,null,"U.S. History","American Democracy in Action","American Democracy in Action","978-1-5345-6460-2",{"$f":"HYPERLINK(Table1[[#This Row],[eCommerce Hyperlink]],\"Book Weblink\")","v":"Book Weblink"},null,"Lucent Press","Single Copy Set",6,"2019","August 2018","Paperback","7.250 X 9.250",null,null,null,null,null,null,null,null,"Grade 6","Grade 5 - 8","What duties does the president of the United States have? How do you vote in an election? These questions and many others are answered in this engaging series. Readers will expand their knowledge of relevant social studies and civics curriculum topics, such as Congress, the U.S. Constitution, the democratic process, the judicial system, and citizenship. This series helps to explain the history of the U.S. government, how it has changed over the years, its current role in our society, and each citizen's role within that government. Vibrant full-color photographs, a detailed glossary, and informative graphic organizers provide extra insight into these important subjects. Features include: Readers will improve their critical thinking skills as they are asked specific questions in each chapter about different facets of the U.S. government. Informational sidebars offer up additional facts to strengthen readers' knowledge of democracy and encourage them to be active, informed citizens. Striking visual elements draw readers in and create an engaging learning experience about a timely topic.","English",90.3,76.8,null,"48 pp.","https://greenhavenpublishing.com/9781534564602",null,{"$f":"Table1[[#This Row],['# of Books]]*Table1[[#This Row],[QTY]]","v":0},{"$f":"Table1[[#This Row],[QTY]]*Table1[[#This Row],[School & Library Price]]","v":0}]
[null,null,23,null,null,"U.S. History","American Democracy in Action","Active Citizenship","978-1-5345-6394-0",{"$f":"HYPERLINK(Table1[[#This Row],[eCommerce Hyperlink]],\"Book Weblink\")","v":"Book Weblink"},null,"Lucent Press","Library Bound Book",1,"2019","August 2018","Library","7.250 X 9.250","Author","Cathleen Small",null,null,null,null,"W",null,"Grade 6","Grade 5 - 8","It's never too early to become an informed, active citizen. Citizens of the United States have certain rights and duties. Readers learn about these freedoms and responsibilities as they are presented with useful facts about U.S. citizenship. This accessible main text delves into what it means to be an active citizen, the importance of learning about the government and political leaders, why voting is crucial, how to get involved in causes that are important, and volunteering. Eye-catching full-color photographs, insightful sidebars, and information graphic organizers provide further understanding of this vital social studies and civics curriculum topic.","English",34.6,27.68,"323.6'5--dc23","48 pp.","https://greenhavenpublishing.com/9781534563940",null,{"$f":"Table1[[#This Row],['# of Books]]*Table1[[#This Row],[QTY]]","v":0},{"$f":"Table1[[#This Row],[QTY]]*Table1[[#This Row],[School & Library Price]]","v":0}]
[null,null,23,null,null,"U.S. History","American Democracy in Action","Active Citizenship","978-1-5345-6395-7",{"$f":"HYPERLINK(Table1[[#This Row],[eCommerce Hyperlink]],\"Book Weblink\")","v":"Book Weblink"},null,"Lucent Press","eBook",1,"2019","August 2018",null,null,"Author","Cathleen Small",null,null,null,null,"W",null,"Grade 6","Grade 5 - 8","It's never too early to become an informed, active citizen. Citizens of the United States have certain rights and duties. Readers learn about these freedoms and responsibilities as they are presented with useful facts about U.S. citizenship. This accessible main text delves into what it means to be an active citizen, the importance of learning about the government and political leaders, why voting is crucial, how to get involved in causes that are important, and volunteering. Eye-catching full-color photographs, insightful sidebars, and information graphic organizers provide further understanding of this vital social studies and civics curriculum topic.","English",34.6,27.68,"323.6'5--dc23","48 pp.","https://greenhavenpublishing.com/9781534563957",null,{"$f":"Table1[[#This Row],['# of Books]]*Table1[[#This Row],[QTY]]","v":0},{"$f":"Table1[[#This Row],[QTY]]*Table1[[#This Row],[School & Library Price]]","v":0}]
[null,null,23,null,null,"U.S. History","American Democracy in Action","Active Citizenship","978-1-5345-6396-4",{"$f":"HYPERLINK(Table1[[#This Row],[eCommerce Hyperlink]],\"Book Weblink\")","v":"Book Weblink"},null,"Lucent Press","Paperback Book",1,"2019","August 2018","Paperback","7.250 X 9.250","Author","Cathleen Small",null,null,null,null,"W",null,"Grade 6","Grade 5 - 8","It's never too early to become an informed, active citizen. Citizens of the United States have certain rights and duties. Readers learn about these freedoms and responsibilities as they are presented with useful facts about U.S. citizenship. This accessible main text delves into what it means to be an active citizen, the importance of learning about the government and political leaders, why voting is crucial, how to get involved in causes that are important, and volunteering. Eye-catching full-color photographs, insightful sidebars, and information graphic organizers provide further understanding of this vital social studies and civics curriculum topic.","English",15.05,12.8,"323.6'5--dc23","48 pp.","https://greenhavenpublishing.com/9781534563964",null,{"$f":"Table1[[#This Row],['# of Books]]*Table1[[#This Row],[QTY]]","v":0},{"$f":"Table1[[#This Row],[QTY]]*Table1[[#This Row],[School & Library Price]]","v":0}]
[null,null,23,null,null,"U.S. History","American Democracy in Action","Elections and Voting","978-1-5345-6397-1",{"$f":"HYPERLINK(Table1[[#This Row],[eCommerce Hyperlink]],\"Book Weblink\")","v":"Book Weblink"},null,"Lucent Press","Library Bound Book",1,"2019","August 2018","Library","7.250 X 9.250","Author","Cathleen Small",null,null,null,null,"W",null,"Grade 6","Grade 5 - 8","The election system in the United States has evolved throughout history. Readers are presented with facts about the origins of the election system, how elections have changed over the years, and how elections currently function. The accessible text touches on different types of elections, how elections are described in the Constitution, the Electoral College system, the popular vote versus the electoral vote, and a person's eligibility to vote. Eye-catching full-color photographs, comprehensive graphic organizers, and informational sidebars broaden readers' understanding of this common social studies curriculum subject and important civics concept.","English",34.6,27.68,"324.973--dc23","48 pp.","https://greenhavenpublishing.com/9781534563971",null,{"$f":"Table1[[#This Row],['# of Books]]*Table1[[#This Row],[QTY]]","v":0},{"$f":"Table1[[#This Row],[QTY]]*Table1[[#This Row],[School & Library Price]]","v":0}]
[null,null,23,null,null,"U.S. History","American Democracy in Action","Elections and Voting","978-1-5345-6398-8",{"$f":"HYPERLINK(Table1[[#This Row],[eCommerce Hyperlink]],\"Book Weblink\")","v":"Book Weblink"},null,"Lucent Press","eBook",1,"2019","August 2018",null,null,"Author","Cathleen Small",null,null,null,null,"W",null,"Grade 6","Grade 5 - 8","The election system in the United States has evolved throughout history. Readers are presented with facts about the origins of the election system, how elections have changed over the years, and how elections currently function. The accessible text touches on different types of elections, how elections are described in the Constitution, the Electoral College system, the popular vote versus the electoral vote, and a person's eligibility to vote. Eye-catching full-color photographs, comprehensive graphic organizers, and informational sidebars broaden readers' understanding of this common social studies curriculum subject and important civics concept.","English",34.6,27.68,"324.973--dc23","48 pp.","https://greenhavenpublishing.com/9781534563988",null,{"$f":"Table1[[#This Row],['# of Books]]*Table1[[#This Row],[QTY]]","v":0},{"$f":"Table1[[#This Row],[QTY]]*Table1[[#This Row],[School & Library Price]]","v":0}]
[null,null,23,null,null,"U.S. History","American Democracy in Action","Elections and Voting","978-1-5345-6399-5",{"$f":"HYPERLINK(Table1[[#This Row],[eCommerce Hyperlink]],\"Book Weblink\")","v":"Book Weblink"},null,"Lucent Press","Paperback Book",1,"2019","August 2018","Paperback","7.250 X 9.250","Author","Cathleen Small",null,null,null,null,"W",null,"Grade 6","Grade 5 - 8","The election system in the United States has evolved throughout history. Readers are presented with facts about the origins of the election system, how elections have changed over the years, and how elections currently function. The accessible text touches on different types of elections, how elections are described in the Constitution, the Electoral College system, the popular vote versus the electoral vote, and a person's eligibility to vote. Eye-catching full-color photographs, comprehensive graphic organizers, and informational sidebars broaden readers' understanding of this common social studies curriculum subject and important civics concept.","English",15.05,12.8,"324.973--dc23","48 pp.","https://greenhavenpublishing.com/9781534563995",null,{"$f":"Table1[[#This Row],['# of Books]]*Table1[[#This Row],[QTY]]","v":0},{"$f":"Table1[[#This Row],[QTY]]*Table1[[#This Row],[School & Library Price]]","v":0}]
[null,null,23,null,null,"U.S. History","American Democracy in Action","How Does Congress Work?","978-1-5345-6400-8",{"$f":"HYPERLINK(Table1[[#This Row],[eCommerce Hyperlink]],\"Book Weblink\")","v":"Book Weblink"},null,"Lucent Press","Library Bound Book",1,"2019","August 2018","Library","7.250 X 9.250","Author","Cathleen Small",null,null,null,null,"W",null,"Grade 6","Grade 5 - 8","How many parts of Congress are there? What does Congress have the power to do? These questions and more are addressed in this educational and engaging text on the U.S. Congress. Young readers are introduced to the specifics of the Senate and the House of Representatives, the structure and powers of Congress, and the various jobs carried out by Congress. Additional information about this common social studies curriculum topic is presented through detailed full-color photographs, informational sidebars, and easily understandable graphic organizers. Readers are challenged to think critically about this branch of government, which encourages active citizenship.","English",34.6,27.68,"328.73--dc23","48 pp.","https://greenhavenpublishing.com/9781534564008",null,{"$f":"Table1[[#This Row],['# of Books]]*Table1[[#This Row],[QTY]]","v":0},{"$f":"Table1[[#This Row],[QTY]]*Table1[[#This Row],[School & Library Price]]","v":0}]
[null,null,23,null,null,"U.S. History","American Democracy in Action","How Does Congress Work?","978-1-5345-6401-5",{"$f":"HYPERLINK(Table1[[#This Row],[eCommerce Hyperlink]],\"Book Weblink\")","v":"Book Weblink"},null,"Lucent Press","eBook",1,"2019","August 2018",null,null,"Author","Cathleen Small",null,null,null,null,"W",null,"Grade 6","Grade 5 - 8","How many parts of Congress are there? What does Congress have the power to do? These questions and more are addressed in this educational and engaging text on the U.S. Congress. Young readers are introduced to the specifics of the Senate and the House of Representatives, the structure and powers of Congress, and the various jobs carried out by Congress. Additional information about this common social studies curriculum topic is presented through detailed full-color photographs, informational sidebars, and easily understandable graphic organizers. Readers are challenged to think critically about this branch of government, which encourages active citizenship.","English",34.6,27.68,"328.73--dc23","48 pp.","https://greenhavenpublishing.com/9781534564015",null,{"$f":"Table1[[#This Row],['# of Books]]*Table1[[#This Row],[QTY]]","v":0},{"$f":"Table1[[#This Row],[QTY]]*Table1[[#This Row],[School & Library Price]]","v":0}]
[null,null,23,null,null,"U.S. History","American Democracy in Action","How Does Congress Work?","978-1-5345-6402-2",{"$f":"HYPERLINK(Table1[[#This Row],[eCommerce Hyperlink]],\"Book Weblink\")","v":"Book Weblink"},null,"Lucent Press","Paperback Book",1,"2019","August 2018","Paperback","7.250 X 9.250","Author","Cathleen Small",null,null,null,null,"W",null,"Grade 6","Grade 5 - 8","How many parts of Congress are there? What does Congress have the power to do? These questions and more are addressed in this educational and engaging text on the U.S. Congress. Young readers are introduced to the specifics of the Senate and the House of Representatives, the structure and powers of Congress, and the various jobs carried out by Congress. Additional information about this common social studies curriculum topic is presented through detailed full-color photographs, informational sidebars, and easily understandable graphic organizers. Readers are challenged to think critically about this branch of government, which encourages active citizenship.","English",15.05,12.8,"328.73--dc23","48 pp.","https://greenhavenpublishing.com/9781534564022",null,{"$f":"Table1[[#This Row],['# of Books]]*Table1[[#This Row],[QTY]]","v":0},{"$f":"Table1[[#This Row],[QTY]]*Table1[[#This Row],[School & Library Price]]","v":0}]
[null,null,23,null,null,"U.S. History","American Democracy in Action","Laws and the Judicial System","978-1-5345-6403-9",{"$f":"HYPERLINK(Table1[[#This Row],[eCommerce Hyperlink]],\"Book Weblink\")","v":"Book Weblink"},null,"Lucent Press","Library Bound Book",1,"2019","August 2018","Library","7.250 X 9.250","Author","Cathleen Small",null,null,null,null,"W",null,"Grade 6","Grade 5 - 8","How are laws made? How many different types of courts are there? What kinds of punishments are issued for certain crimes? These questions and more are answered in this enlightening text, in which readers are introduced to the many facets of the United States judicial system. They will gain insight on the various laws made within the federal, state, and local branches of the judicial system, as well as learn the difference between felonies and misdemeanors. Full-color photographs, informational graphic organizers, and detailed sidebars also enhance the reading experience to help young people think critically about these relevant social studies curriculum topics.","English",34.6,27.68,"347.73'2--dc23","48 pp.","https://greenhavenpublishing.com/9781534564039",null,{"$f":"Table1[[#This Row],['# of Books]]*Table1[[#This Row],[QTY]]","v":0},{"$f":"Table1[[#This Row],[QTY]]*Table1[[#This Row],[School & Library Price]]","v":0}]
[null,null,23,null,null,"U.S. History","American Democracy in Action","Laws and the Judicial System","978-1-5345-6404-6",{"$f":"HYPERLINK(Table1[[#This Row],[eCommerce Hyperlink]],\"Book Weblink\")","v":"Book Weblink"},null,"Lucent Press","eBook",1,"2019","August 2018",null,null,"Author","Cathleen Small",null,null,null,null,"W",null,"Grade 6","Grade 5 - 8","How are laws made? How many different types of courts are there? What kinds of punishments are issued for certain crimes? These questions and more are answered in this enlightening text, in which readers are introduced to the many facets of the United States judicial system. They will gain insight on the various laws made within the federal, state, and local branches of the judicial system, as well as learn the difference between felonies and misdemeanors. Full-color photographs, informational graphic organizers, and detailed sidebars also enhance the reading experience to help young people think critically about these relevant social studies curriculum topics.","English",34.6,27.68,"347.73'2--dc23","48 pp.","https://greenhavenpublishing.com/9781534564046",null,{"$f":"Table1[[#This Row],['# of Books]]*Table1[[#This Row],[QTY]]","v":0},{"$f":"Table1[[#This Row],[QTY]]*Table1[[#This Row],[School & Library Price]]","v":0}]
[null,null,23,null,null,"U.S. History","American Democracy in Action","Laws and the Judicial System","978-1-5345-6405-3",{"$f":"HYPERLINK(Table1[[#This Row],[eCommerce Hyperlink]],\"Book Weblink\")","v":"Book Weblink"},null,"Lucent Press","Paperback Book",1,"2019","August 2018","Paperback","7.250 X 9.250","Author","Cathleen Small",null,null,null,null,"W",null,"Grade 6","Grade 5 - 8","How are laws made? How many different types of courts are there? What kinds of punishments are issued for certain crimes? These questions and more are answered in this enlightening text, in which readers are introduced to the many facets of the United States judicial system. They will gain insight on the various laws made within the federal, state, and local branches of the judicial system, as well as learn the difference between felonies and misdemeanors. Full-color photographs, informational graphic organizers, and detailed sidebars also enhance the reading experience to help young people think critically about these relevant social studies curriculum topics.","English",15.05,12.8,"347.73'2--dc23","48 pp.","https://greenhavenpublishing.com/9781534564053",null,{"$f":"Table1[[#This Row],['# of Books]]*Table1[[#This Row],[QTY]]","v":0},{"$f":"Table1[[#This Row],[QTY]]*Table1[[#This Row],[School & Library Price]]","v":0}]
[null,null,23,null,null,"U.S. History","American Democracy in Action","The Constitution: The Responsibilities and Powers of the U.S. Government","978-1-5345-6406-0",{"$f":"HYPERLINK(Table1[[#This Row],[eCommerce Hyperlink]],\"Book Weblink\")","v":"Book Weblink"},null,"Lucent Press","Library Bound Book",1,"2019","August 2018","Library","7.250 X 9.250","Author","Cathleen Small",null,null,null,null,"W",null,"Grade 6","Grade 5 - 8","How did the Constitution establish the U.S. government? This question is at the heart of this engaging text about the history of the Constitution. Readers are given a detailed overview of how the Constitution was born and how it has been amended throughout history. Some of the subjects covered include the amendment process, the different interpretations of the Constitution, and how the Supreme Court uses the Constitution to determine outcomes of cases. Vibrant full-color photographs, informational graphic organizers, and fact-filled sidebars present this important social studies curriculum topic in an accessible way.","English",34.6,27.68,"342.7302'9--dc23","48 pp.","https://greenhavenpublishing.com/9781534564060",null,{"$f":"Table1[[#This Row],['# of Books]]*Table1[[#This Row],[QTY]]","v":0},{"$f":"Table1[[#This Row],[QTY]]*Table1[[#This Row],[School & Library Price]]","v":0}]
[null,null,23,null,null,"U.S. History","American Democracy in Action","The Constitution: The Responsibilities and Powers of the U.S. Government","978-1-5345-6407-7",{"$f":"HYPERLINK(Table1[[#This Row],[eCommerce Hyperlink]],\"Book Weblink\")","v":"Book Weblink"},null,"Lucent Press","eBook",1,"2019","August 2018",null,null,"Author","Cathleen Small",null,null,null,null,"W",null,"Grade 6","Grade 5 - 8","How did the Constitution establish the U.S. government? This question is at the heart of this engaging text about the history of the Constitution. Readers are given a detailed overview of how the Constitution was born and how it has been amended throughout history. Some of the subjects covered include the amendment process, the different interpretations of the Constitution, and how the Supreme Court uses the Constitution to determine outcomes of cases. Vibrant full-color photographs, informational graphic organizers, and fact-filled sidebars present this important social studies curriculum topic in an accessible way.","English",34.6,27.68,"342.7302'9--dc23","48 pp.","https://greenhavenpublishing.com/9781534564077",null,{"$f":"Table1[[#This Row],['# of Books]]*Table1[[#This Row],[QTY]]","v":0},{"$f":"Table1[[#This Row],[QTY]]*Table1[[#This Row],[School & Library Price]]","v":0}]
[null,null,23,null,null,"U.S. History","American Democracy in Action","The Constitution: The Responsibilities and Powers of the U.S. Government","978-1-5345-6408-4",{"$f":"HYPERLINK(Table1[[#This Row],[eCommerce Hyperlink]],\"Book Weblink\")","v":"Book Weblink"},null,"Lucent Press","Paperback Book",1,"2019","August 2018","Paperback","7.250 X 9.250","Author","Cathleen Small",null,null,null,null,"W",null,"Grade 6","Grade 5 - 8","How did the Constitution establish the U.S. government? This question is at the heart of this engaging text about the history of the Constitution. Readers are given a detailed overview of how the Constitution was born and how it has been amended throughout history. Some of the subjects covered include the amendment process, the different interpretations of the Constitution, and how the Supreme Court uses the Constitution to determine outcomes of cases. Vibrant full-color photographs, informational graphic organizers, and fact-filled sidebars present this important social studies curriculum topic in an accessible way.","English",15.05,12.8,"342.7302'9--dc23","48 pp.","https://greenhavenpublishing.com/9781534564084",null,{"$f":"Table1[[#This Row],['# of Books]]*Table1[[#This Row],[QTY]]","v":0},{"$f":"Table1[[#This Row],[QTY]]*Table1[[#This Row],[School & Library Price]]","v":0}]
[null,null,23,null,null,"U.S. History","American Democracy in Action","The Role of President","978-1-5345-6409-1",{"$f":"HYPERLINK(Table1[[#This Row],[eCommerce Hyperlink]],\"Book Weblink\")","v":"Book Weblink"},null,"Lucent Press","Library Bound Book",1,"2019","August 2018","Library","7.250 X 9.250","Author","Cathleen Small",null,null,null,null,"W",null,"Grade 6","Grade 5 - 8","The president of the United States' job is complex and has evolved throughout history. This informative text provides a clear understanding of how a person becomes president and their many responsibilities after their inauguration. Readers learn about how the president gets elected, their various roles, the power they have and how that is balanced with other branches of government, and controversies and hardships a president may face during their time in office. Full-color photographs, fact-filled sidebars, and informational graphic organizers enhance knowledge of this social studies curriculum topic and challenge readers to think critically about this important political position.","English",34.6,27.68,"352.230973--dc23","48 pp.","https://greenhavenpublishing.com/9781534564091",null,{"$f":"Table1[[#This Row],['# of Books]]*Table1[[#This Row],[QTY]]","v":0},{"$f":"Table1[[#This Row],[QTY]]*Table1[[#This Row],[School & Library Price]]","v":0}]
[null,null,23,null,null,"U.S. History","American Democracy in Action","The Role of President","978-1-5345-6410-7",{"$f":"HYPERLINK(Table1[[#This Row],[eCommerce Hyperlink]],\"Book Weblink\")","v":"Book Weblink"},null,"Lucent Press","eBook",1,"2019","August 2018",null,null,"Author","Cathleen Small",null,null,null,null,"W",null,"Grade 6","Grade 5 - 8","The president of the United States' job is complex and has evolved throughout history. This informative text provides a clear understanding of how a person becomes president and their many responsibilities after their inauguration. Readers learn about how the president gets elected, their various roles, the power they have and how that is balanced with other branches of government, and controversies and hardships a president may face during their time in office. Full-color photographs, fact-filled sidebars, and informational graphic organizers enhance knowledge of this social studies curriculum topic and challenge readers to think critically about this important political position.","English",34.6,27.68,"352.230973--dc23","48 pp.","https://greenhavenpublishing.com/9781534564107",null,{"$f":"Table1[[#This Row],['# of Books]]*Table1[[#This Row],[QTY]]","v":0},{"$f":"Table1[[#This Row],[QTY]]*Table1[[#This Row],[School & Library Price]]","v":0}]
[null,null,23,null,null,"U.S. History","American Democracy in Action","The Role of President","978-1-5345-6411-4",{"$f":"HYPERLINK(Table1[[#This Row],[eCommerce Hyperlink]],\"Book Weblink\")","v":"Book Weblink"},null,"Lucent Press","Paperback Book",1,"2019","August 2018","Paperback","7.250 X 9.250","Author","Cathleen Small",null,null,null,null,"W",null,"Grade 6","Grade 5 - 8","The president of the United States' job is complex and has evolved throughout history. This informative text provides a clear understanding of how a person becomes president and their many responsibilities after their inauguration. Readers learn about how the president gets elected, their various roles, the power they have and how that is balanced with other branches of government, and controversies and hardships a president may face during their time in office. Full-color photographs, fact-filled sidebars, and informational graphic organizers enhance knowledge of this social studies curriculum topic and challenge readers to think critically about this important political position.","English",15.05,12.8,"352.230973--dc23","48 pp.","https://greenhavenpublishing.com/9781534564114",null,{"$f":"Table1[[#This Row],['# of Books]]*Table1[[#This Row],[QTY]]","v":0},{"$f":"Table1[[#This Row],[QTY]]*Table1[[#This Row],[School & Library Price]]","v":0}]
[null,null,23,null,null,"U.S. History","American History","American History: Set 1","978-1-5345-6061-1",{"$f":"HYPERLINK(Table1[[#This Row],[eCommerce Hyperlink]],\"Book Weblink\")","v":"Book Weblink"},null,"Lucent Press","Library Set",6,"2017","January 2017","Library","7.000 X 9.000",null,null,null,null,null,null,null,null,"Grade 7","Grade 7 - 10","This inspiring set examines the eras, events, and movements that have shaped American history. Compelling narratives offer a wealth of factual information and provide readers with insight into the significance of the past and its many legacies. Fully cited quotations from historical figures, eyewitnesses, letters, speeches, and writings bring vibrancy and authority to the narratives. Features include: Each volume is loaded with images to support visual learners and make history fresh. Primary sources relay the energy and culture of the times. Extensive back matter sections support further research.","English",242.4,193.92,null,"104 pp.","https://greenhavenpublishing.com/9781534560611",null,{"$f":"Table1[[#This Row],['# of Books]]*Table1[[#This Row],[QTY]]","v":0},{"$f":"Table1[[#This Row],[QTY]]*Table1[[#This Row],[School & Library Price]]","v":0}]
[null,null,23,null,null,"U.S. History","American History","Native Americans in Early North America","978-1-5345-6037-6",{"$f":"HYPERLINK(Table1[[#This Row],[eCommerce Hyperlink]],\"Book Weblink\")","v":"Book Weblink"},null,"Lucent Press","Library Bound Book",1,"2017","January 2017","Library","7.000 X 9.000","Author, Author","Barbara M. Linde, Don Nardo",null,null,null,null,"Z","1220L","Grade 7","Grade 7 - 10","Native peoples of the United States and Canada have rich histories and traditions that help them maintain varied cultural identities in modern society. In the past, white Americans attempted to hide or eradicate these cultures. Today we know that they should instead be celebrated. The artifacts and customs of these early civilizations are presented to readers through full-color photographs and primary sources, and a detailed timeline places historical events in chronological order. Readers will enjoy learning about the vibrant past of cultures that are still active today.","English",40.4,32.32,"970.004’97","104 pp.","https://greenhavenpublishing.com/9781534560376",null,{"$f":"Table1[[#This Row],['# of Books]]*Table1[[#This Row],[QTY]]","v":0},{"$f":"Table1[[#This Row],[QTY]]*Table1[[#This Row],[School & Library Price]]","v":0}]
[null,null,23,null,null,"U.S. History","American History","Native Americans in Early North America","978-1-5345-6038-3",{"$f":"HYPERLINK(Table1[[#This Row],[eCommerce Hyperlink]],\"Book Weblink\")","v":"Book Weblink"},null,"Lucent Press","eBook",1,"2017","January 2017",null,null,"Author, Author","Barbara M. Linde, Don Nardo",null,null,null,null,"Z","1220L","Grade 7","Grade 7 - 10","Native peoples of the United States and Canada have rich histories and traditions that help them maintain varied cultural identities in modern society. In the past, white Americans attempted to hide or eradicate these cultures. Today we know that they should instead be celebrated. The artifacts and customs of these early civilizations are presented to readers through full-color photographs and primary sources, and a detailed timeline places historical events in chronological order. Readers will enjoy learning about the vibrant past of cultures that are still active today.","English",40.4,32.32,"970.004’97","104 pp.","https://greenhavenpublishing.com/9781534560383",null,{"$f":"Table1[[#This Row],['# of Books]]*Table1[[#This Row],[QTY]]","v":0},{"$f":"Table1[[#This Row],[QTY]]*Table1[[#This Row],[School & Library Price]]","v":0}]
[null,null,23,null,null,"U.S. History","American History","Slavery in North America","978-1-5345-6060-4",{"$f":"HYPERLINK(Table1[[#This Row],[eCommerce Hyperlink]],\"Book Weblink\")","v":"Book Weblink"},null,"Lucent Press","Library Bound Book",1,"2017","January 2017","Library","7.000 X 9.000","Author","Barbara M. Linde",null,null,null,null,"Z","1150L","Grade 7","Grade 7 - 10","Before the Civil War, a large part of the U.S. economy was built on slave labor. Readers learn that goods could be produced and sold cheaply because the slaves were unpaid for their labor. Millions of black men, women, and children were treated as property. Although slavery has been abolished, the racism that sprang from this period still haunts America today. Accessible text, primary sources, and informative sidebars provide readers with an unvarnished look at a tragic period in America’s past.","English",40.4,32.32,"306.3’620973","104 pp.","https://greenhavenpublishing.com/9781534560604",null,{"$f":"Table1[[#This Row],['# of Books]]*Table1[[#This Row],[QTY]]","v":0},{"$f":"Table1[[#This Row],[QTY]]*Table1[[#This Row],[School & Library Price]]","v":0}]
[null,null,23,null,null,"U.S. History","American History","Slavery in North America","978-1-5345-6059-8",{"$f":"HYPERLINK(Table1[[#This Row],[eCommerce Hyperlink]],\"Book Weblink\")","v":"Book Weblink"},null,"Lucent Press","eBook",1,"2017","January 2017",null,null,"Author","Barbara M. Linde",null,null,null,null,"Z","1150L","Grade 7","Grade 7 - 10","Before the Civil War, a large part of the U.S. economy was built on slave labor. Readers learn that goods could be produced and sold cheaply because the slaves were unpaid for their labor. Millions of black men, women, and children were treated as property. Although slavery has been abolished, the racism that sprang from this period still haunts America today. Accessible text, primary sources, and informative sidebars provide readers with an unvarnished look at a tragic period in America’s past.","English",40.4,32.32,"306.3’620973","104 pp.","https://greenhavenpublishing.com/9781534560598",null,{"$f":"Table1[[#This Row],['# of Books]]*Table1[[#This Row],[QTY]]","v":0},{"$f":"Table1[[#This Row],[QTY]]*Table1[[#This Row],[School & Library Price]]","v":0}]
[null,null,23,null,null,"U.S. History","American History","The American Revolution: Fighting for Independence","978-1-5345-6041-3",{"$f":"HYPERLINK(Table1[[#This Row],[eCommerce Hyperlink]],\"Book Weblink\")","v":"Book Weblink"},null,"Lucent Press","Library Bound Book",1,"2017","January 2017","Library","7.000 X 9.000","Author, Author","Amy B. Rogers, John Davenport",null,null,null,null,"Z","1110L","Grade 7","Grade 7 - 10","The United States was formed by a large group of people fighting back against perceived injustices. Americans wanted the ability to create and enforce their own laws, as they did not feel the British government was acting in America’s best interests. Both sides of the story are presented to readers, along with colorful maps and engaging primary sources. This fresh approach encourages them to think critically about the events that ultimately led to the war for American independence.","English",40.4,32.32,"973.3--dc23","104 pp.","https://greenhavenpublishing.com/9781534560413",null,{"$f":"Table1[[#This Row],['# of Books]]*Table1[[#This Row],[QTY]]","v":0},{"$f":"Table1[[#This Row],[QTY]]*Table1[[#This Row],[School & Library Price]]","v":0}]
[null,null,23,null,null,"U.S. History","American History","The American Revolution: Fighting for Independence","978-1-5345-6042-0",{"$f":"HYPERLINK(Table1[[#This Row],[eCommerce Hyperlink]],\"Book Weblink\")","v":"Book Weblink"},null,"Lucent Press","eBook",1,"2017","January 2017",null,null,"Author, Author","Amy B. Rogers, John Davenport",null,null,null,null,"Z","1110L","Grade 7","Grade 7 - 10","The United States was formed by a large group of people fighting back against perceived injustices. Americans wanted the ability to create and enforce their own laws, as they did not feel the British government was acting in America’s best interests. Both sides of the story are presented to readers, along with colorful maps and engaging primary sources. This fresh approach encourages them to think critically about the events that ultimately led to the war for American independence.","English",40.4,32.32,"973.3--dc23","104 pp.","https://greenhavenpublishing.com/9781534560420",null,{"$f":"Table1[[#This Row],['# of Books]]*Table1[[#This Row],[QTY]]","v":0},{"$f":"Table1[[#This Row],[QTY]]*Table1[[#This Row],[School & Library Price]]","v":0}]
[null,null,23,null,null,"U.S. History","American History","The Civil War: A Nation Divided","978-1-5345-6045-1",{"$f":"HYPERLINK(Table1[[#This Row],[eCommerce Hyperlink]],\"Book Weblink\")","v":"Book Weblink"},null,"Lucent Press","Library Bound Book",1,"2017","January 2017","Library","7.000 X 9.000","Author, Author","Therese M. Shea, Don Nardo",null,null,null,null,"Z","1170L","Grade 7","Grade 7 - 10","The Civil War still holds a prominent place in the American imagination. Reenactments and battlefield visits are popular tourist attractions for both Northerners and Southerners. The underlying issues of racism and states’ rights that caused the war are also still visible in American society. Through informative main text, detailed maps, historic photographs, and a timeline of important dates, readers will be engaged by this key event in the country’s history and gain a better understanding of some of its present struggles.","English",40.4,32.32,"973.7--dc23","104 pp.","https://greenhavenpublishing.com/9781534560451",null,{"$f":"Table1[[#This Row],['# of Books]]*Table1[[#This Row],[QTY]]","v":0},{"$f":"Table1[[#This Row],[QTY]]*Table1[[#This Row],[School & Library Price]]","v":0}]
[null,null,23,null,null,"U.S. History","American History","The Civil War: A Nation Divided","978-1-5345-6046-8",{"$f":"HYPERLINK(Table1[[#This Row],[eCommerce Hyperlink]],\"Book Weblink\")","v":"Book Weblink"},null,"Lucent Press","eBook",1,"2017","January 2017",null,null,"Author, Author","Therese M. Shea, Don Nardo",null,null,null,null,"Z","1170L","Grade 7","Grade 7 - 10","The Civil War still holds a prominent place in the American imagination. Reenactments and battlefield visits are popular tourist attractions for both Northerners and Southerners. The underlying issues of racism and states’ rights that caused the war are also still visible in American society. Through informative main text, detailed maps, historic photographs, and a timeline of important dates, readers will be engaged by this key event in the country’s history and gain a better understanding of some of its present struggles.","English",40.4,32.32,"973.7--dc23","104 pp.","https://greenhavenpublishing.com/9781534560468",null,{"$f":"Table1[[#This Row],['# of Books]]*Table1[[#This Row],[QTY]]","v":0},{"$f":"Table1[[#This Row],[QTY]]*Table1[[#This Row],[School & Library Price]]","v":0}]
[null,null,23,null,null,"U.S. History","American History","The Salem Witch Trials: A Crisis in Puritan New England","978-1-5345-6039-0",{"$f":"HYPERLINK(Table1[[#This Row],[eCommerce Hyperlink]],\"Book Weblink\")","v":"Book Weblink"},null,"Lucent Press","Library Bound Book",1,"2017","January 2017","Library","7.000 X 9.000","Author, Author","Don Nardo, Tanya Dellaccio",null,null,null,null,"Z","1220L","Grade 7","Grade 7 - 10","Mass hysteria in the late 17th century led to trials of people suspected to be witches in Salem, Massachusetts. Anyone could be accused of causing mysterious maladies or unfortunate occurrences, such as the death of cattle. Readers discover important facts and captivating details about this fascinating time in American history. The dangers of leveling accusations without proof and succumbing to panic are discussed in this engaging text, which is supplemented with a fact-filled timeline, full-color photographs, and primary sources.","English",40.4,32.32,"345.744’50288","104 pp.","https://greenhavenpublishing.com/9781534560390",null,{"$f":"Table1[[#This Row],['# of Books]]*Table1[[#This Row],[QTY]]","v":0},{"$f":"Table1[[#This Row],[QTY]]*Table1[[#This Row],[School & Library Price]]","v":0}]
[null,null,23,null,null,"U.S. History","American History","The Salem Witch Trials: A Crisis in Puritan New England","978-1-5345-6040-6",{"$f":"HYPERLINK(Table1[[#This Row],[eCommerce Hyperlink]],\"Book Weblink\")","v":"Book Weblink"},null,"Lucent Press","eBook",1,"2017","January 2017",null,null,"Author, Author","Don Nardo, Tanya Dellaccio",null,null,null,null,"Z","1220L","Grade 7","Grade 7 - 10","Mass hysteria in the late 17th century led to trials of people suspected to be witches in Salem, Massachusetts. Anyone could be accused of causing mysterious maladies or unfortunate occurrences, such as the death of cattle. Readers discover important facts and captivating details about this fascinating time in American history. The dangers of leveling accusations without proof and succumbing to panic are discussed in this engaging text, which is supplemented with a fact-filled timeline, full-color photographs, and primary sources.","English",40.4,32.32,"345.744’50288","104 pp.","https://greenhavenpublishing.com/9781534560406",null,{"$f":"Table1[[#This Row],['# of Books]]*Table1[[#This Row],[QTY]]","v":0},{"$f":"Table1[[#This Row],[QTY]]*Table1[[#This Row],[School & Library Price]]","v":0}]
[null,null,23,null,null,"U.S. History","American History","The Story of the Constitution: Creating the U.S. Government","978-1-5345-6044-4",{"$f":"HYPERLINK(Table1[[#This Row],[eCommerce Hyperlink]],\"Book Weblink\")","v":"Book Weblink"},null,"Lucent Press","Library Bound Book",1,"2017","January 2017","Library","7.000 X 9.000","Author, Author","Leslie Beckett, John M. Dunn",null,null,null,null,"Z","1210L","Grade 7","Grade 7 - 10","Many misconceptions about the U.S. Constitution are spread through the contemporary media, leading to confusion about the way our government functions. Learning about this important document gives readers the tools they need to verify the truthfulness of news items and decide what stance they hold on proposed changes to our nation’s laws. In-depth sidebars and quotes from primary sources provide further insight into the creation of the Constitution and its modern-day consequences.","English",40.4,32.32,"342.7302’9","104 pp.","https://greenhavenpublishing.com/9781534560444",null,{"$f":"Table1[[#This Row],['# of Books]]*Table1[[#This Row],[QTY]]","v":0},{"$f":"Table1[[#This Row],[QTY]]*Table1[[#This Row],[School & Library Price]]","v":0}]
[null,null,23,null,null,"U.S. History","American History","The Story of the Constitution: Creating the U.S. Government","978-1-5345-6043-7",{"$f":"HYPERLINK(Table1[[#This Row],[eCommerce Hyperlink]],\"Book Weblink\")","v":"Book Weblink"},null,"Lucent Press","eBook",1,"2017","January 2017",null,null,"Author, Author","Leslie Beckett, John M. Dunn",null,null,null,null,"Z","1210L","Grade 7","Grade 7 - 10","Many misconceptions about the U.S. Constitution are spread through the contemporary media, leading to confusion about the way our government functions. Learning about this important document gives readers the tools they need to verify the truthfulness of news items and decide what stance they hold on proposed changes to our nation’s laws. In-depth sidebars and quotes from primary sources provide further insight into the creation of the Constitution and its modern-day consequences.","English",40.4,32.32,"342.7302’9","104 pp.","https://greenhavenpublishing.com/9781534560437",null,{"$f":"Table1[[#This Row],['# of Books]]*Table1[[#This Row],[QTY]]","v":0},{"$f":"Table1[[#This Row],[QTY]]*Table1[[#This Row],[School & Library Price]]","v":0}]
[null,null,23,null,null,"U.S. History","American History","American History: Set 2","978-1-5345-6155-7",{"$f":"HYPERLINK(Table1[[#This Row],[eCommerce Hyperlink]],\"Book Weblink\")","v":"Book Weblink"},null,"Lucent Press","Library Set",6,"2018","August 2017","Library","7.000 X 9.000",null,null,null,null,null,null,null,null,"Grade 7","Grade 7 - 10","American history is filled with incredible stories that can sometimes get lost amid the memorization of names and dates. Readers dig deeper into the stories behind the common topics they're taught in their history classes, with the help of engaging narratives, detailed sidebars, and annotated quotes from historical figures and contemporary historians. Full-color photographs and historical images help readers place themselves in the middle of major moments in American history, from the creation of the Transcontinental Railroad to the Great Depression. As they read, they gain a deeper appreciation for the way the past still affects our lives today. Features include: Each volume is loaded with images to support visual learners and make history pop. Primary sources relay the energy and culture of the time. Extensive back matter sections to support further research.","English",242.4,193.92,null,"104 pp.","https://greenhavenpublishing.com/9781534561557",null,{"$f":"Table1[[#This Row],['# of Books]]*Table1[[#This Row],[QTY]]","v":0},{"$f":"Table1[[#This Row],[QTY]]*Table1[[#This Row],[School & Library Price]]","v":0}]
[null,null,23,null,null,"U.S. History","American History","Battling Terrorism in the United States","978-1-5345-6141-0",{"$f":"HYPERLINK(Table1[[#This Row],[eCommerce Hyperlink]],\"Book Weblink\")","v":"Book Weblink"},null,"Lucent Press","Library Bound Book",1,"2018","August 2017","Library","7.000 X 9.000","Author","Caroline Kennon",null,null,null,null,"Z",null,"Grade 7","Grade 7 - 10","Although September 11, 2001, marks the day when average Americans first began to grapple with the concept of terrorism in the United States, it wasn’t the first terrorist attack on American soil. The history of terrorism and the fight against it in the United States is long and filled with more action and intrigue than a novel or movie. Readers discover the details of this part of American history through comprehensive main text, enlightening sidebars, and historical and contemporary images. They also take a look at what’s being done today to protect Americans and fight terrorism at home and abroad.","English",40.4,32.32,"303.6--dc23","104 pp.","https://greenhavenpublishing.com/9781534561410",null,{"$f":"Table1[[#This Row],['# of Books]]*Table1[[#This Row],[QTY]]","v":0},{"$f":"Table1[[#This Row],[QTY]]*Table1[[#This Row],[School & Library Price]]","v":0}]
[null,null,23,null,null,"U.S. History","American History","Battling Terrorism in the United States","978-1-5345-6142-7",{"$f":"HYPERLINK(Table1[[#This Row],[eCommerce Hyperlink]],\"Book Weblink\")","v":"Book Weblink"},null,"Lucent Press","eBook",1,"2018","August 2017",null,null,"Author","Caroline Kennon",null,null,null,null,"Z",null,"Grade 7","Grade 7 - 10","Although September 11, 2001, marks the day when average Americans first began to grapple with the concept of terrorism in the United States, it wasn’t the first terrorist attack on American soil. The history of terrorism and the fight against it in the United States is long and filled with more action and intrigue than a novel or movie. Readers discover the details of this part of American history through comprehensive main text, enlightening sidebars, and historical and contemporary images. They also take a look at what’s being done today to protect Americans and fight terrorism at home and abroad.","English",40.4,32.32,"303.6--dc23","104 pp.","https://greenhavenpublishing.com/9781534561427",null,{"$f":"Table1[[#This Row],['# of Books]]*Table1[[#This Row],[QTY]]","v":0},{"$f":"Table1[[#This Row],[QTY]]*Table1[[#This Row],[School & Library Price]]","v":0}]
[null,null,23,null,null,"U.S. History","American History","The Great Depression: Worldwide Economic Crisis","978-1-5345-6131-1",{"$f":"HYPERLINK(Table1[[#This Row],[eCommerce Hyperlink]],\"Book Weblink\")","v":"Book Weblink"},null,"Lucent Press","Library Bound Book",1,"2018","August 2017","Library","7.000 X 9.000","Author","Siyavush Saidian",null,null,null,null,"Z",null,"Grade 7","Grade 7 - 10","The Great Depression was a difficult time in American history, and it eventually became an economic crisis that affected the entire world. Readers uncover important facts and enlightening details about the Great Depression, including what caused it, how average Americans dealt with financial hardships during this time, and what programs were created to get Americans back to work. As readers explore the detailed main text, engaging sidebars, and historical images, they gain a deeper understanding of the idea that one event in one country can have a ripple effect over the entire world.","English",40.4,32.32,"973.91--dc23","104 pp.","https://greenhavenpublishing.com/9781534561311",null,{"$f":"Table1[[#This Row],['# of Books]]*Table1[[#This Row],[QTY]]","v":0},{"$f":"Table1[[#This Row],[QTY]]*Table1[[#This Row],[School & Library Price]]","v":0}]
[null,null,23,null,null,"U.S. History","American History","The Great Depression: Worldwide Economic Crisis","978-1-5345-6132-8",{"$f":"HYPERLINK(Table1[[#This Row],[eCommerce Hyperlink]],\"Book Weblink\")","v":"Book Weblink"},null,"Lucent Press","eBook",1,"2018","August 2017",null,null,"Author","Siyavush Saidian",null,null,null,null,"Z",null,"Grade 7","Grade 7 - 10","The Great Depression was a difficult time in American history, and it eventually became an economic crisis that affected the entire world. Readers uncover important facts and enlightening details about the Great Depression, including what caused it, how average Americans dealt with financial hardships during this time, and what programs were created to get Americans back to work. As readers explore the detailed main text, engaging sidebars, and historical images, they gain a deeper understanding of the idea that one event in one country can have a ripple effect over the entire world.","English",40.4,32.32,"973.91--dc23","104 pp.","https://greenhavenpublishing.com/9781534561328",null,{"$f":"Table1[[#This Row],['# of Books]]*Table1[[#This Row],[QTY]]","v":0},{"$f":"Table1[[#This Row],[QTY]]*Table1[[#This Row],[School & Library Price]]","v":0}]
[null,null,23,null,null,"U.S. History","American History","The Industrial Revolution: The Birth of Modern America","978-1-5345-6133-5",{"$f":"HYPERLINK(Table1[[#This Row],[eCommerce Hyperlink]],\"Book Weblink\")","v":"Book Weblink"},null,"Lucent Press","Library Bound Book",1,"2018","August 2017","Library","7.000 X 9.000","Author","Emily Mahoney",null,null,null,null,"Z",null,"Grade 7","Grade 7 - 10","During the Industrial Revolution, millions of Americans moved from farms to cities in search of work in new factories. This shift from an agricultural society to an industrial society was monumental, shaping the United States into the nation it is today. Readers explore the driving forces behind the Industrial Revolution and lasting effects of this dramatic change through carefully chosen primary sources, sidebars that feature first-person accounts of this time period, and riveting main text filled with essential historical facts. With each turn of the page, readers will find themselves fully immersed in this seminal time period in American history.","English",40.4,32.32,"330.973'08--dc23","104 pp.","https://greenhavenpublishing.com/9781534561335",null,{"$f":"Table1[[#This Row],['# of Books]]*Table1[[#This Row],[QTY]]","v":0},{"$f":"Table1[[#This Row],[QTY]]*Table1[[#This Row],[School & Library Price]]","v":0}]
[null,null,23,null,null,"U.S. History","American History","The Industrial Revolution: The Birth of Modern America","978-1-5345-6134-2",{"$f":"HYPERLINK(Table1[[#This Row],[eCommerce Hyperlink]],\"Book Weblink\")","v":"Book Weblink"},null,"Lucent Press","eBook",1,"2018","August 2017",null,null,"Author","Emily Mahoney",null,null,null,null,"Z",null,"Grade 7","Grade 7 - 10","During the Industrial Revolution, millions of Americans moved from farms to cities in search of work in new factories. This shift from an agricultural society to an industrial society was monumental, shaping the United States into the nation it is today. Readers explore the driving forces behind the Industrial Revolution and lasting effects of this dramatic change through carefully chosen primary sources, sidebars that feature first-person accounts of this time period, and riveting main text filled with essential historical facts. With each turn of the page, readers will find themselves fully immersed in this seminal time period in American history.","English",40.4,32.32,"330.973'08--dc23","104 pp.","https://greenhavenpublishing.com/9781534561342",null,{"$f":"Table1[[#This Row],['# of Books]]*Table1[[#This Row],[QTY]]","v":0},{"$f":"Table1[[#This Row],[QTY]]*Table1[[#This Row],[School & Library Price]]","v":0}]
[null,null,23,null,null,"U.S. History","American History","The Progressive Era: Activists Change America","978-1-5345-6139-7",{"$f":"HYPERLINK(Table1[[#This Row],[eCommerce Hyperlink]],\"Book Weblink\")","v":"Book Weblink"},null,"Lucent Press","Library Bound Book",1,"2018","August 2017","Library","7.000 X 9.000","Author","David Anthony",null,null,null,null,"Z",null,"Grade 7","Grade 7 - 10","Activists are always working hard to change America for the better and to help Americans who need someone to advocate for them. Activists have been a part of this nation's social and political landscape since its earliest days, but the Progressive Era is known as the period when social activism and political reformation movements truly took off and led to real change for many Americans. Readers get a comprehensive look at this period of sweeping change through fact-filled main text, fascinating sidebars, and relevant primary sources.","English",40.4,32.32,"361.3'7--dc23","104 pp.","https://greenhavenpublishing.com/9781534561397",null,{"$f":"Table1[[#This Row],['# of Books]]*Table1[[#This Row],[QTY]]","v":0},{"$f":"Table1[[#This Row],[QTY]]*Table1[[#This Row],[School & Library Price]]","v":0}]
[null,null,23,null,null,"U.S. History","American History","The Progressive Era: Activists Change America","978-1-5345-6140-3",{"$f":"HYPERLINK(Table1[[#This Row],[eCommerce Hyperlink]],\"Book Weblink\")","v":"Book Weblink"},null,"Lucent Press","eBook",1,"2018","August 2017",null,null,"Author","David Anthony",null,null,null,null,"Z",null,"Grade 7","Grade 7 - 10","Activists are always working hard to change America for the better and to help Americans who need someone to advocate for them. Activists have been a part of this nation's social and political landscape since its earliest days, but the Progressive Era is known as the period when social activism and political reformation movements truly took off and led to real change for many Americans. Readers get a comprehensive look at this period of sweeping change through fact-filled main text, fascinating sidebars, and relevant primary sources.","English",40.4,32.32,"361.3'7--dc23","104 pp.","https://greenhavenpublishing.com/9781534561403",null,{"$f":"Table1[[#This Row],['# of Books]]*Table1[[#This Row],[QTY]]","v":0},{"$f":"Table1[[#This Row],[QTY]]*Table1[[#This Row],[School & Library Price]]","v":0}]
[null,null,23,null,null,"U.S. History","American History","The Trail of Tears: A Journey of Loss","978-1-5345-6135-9",{"$f":"HYPERLINK(Table1[[#This Row],[eCommerce Hyperlink]],\"Book Weblink\")","v":"Book Weblink"},null,"Lucent Press","Library Bound Book",1,"2018","August 2017","Library","7.000 X 9.000","Author","Kristen Rajczak Nelson",null,null,null,null,"Z",null,"Grade 7","Grade 7 - 10","The Trail of Tears is the name used to describe the forced migration of the Cherokee people in the 1830s from their homelands in the southeastern United States to land in what’s now Oklahoma. This devastating journey took the lives of thousands of Native Americans, and it’s one of the most shameful chapters in American history. Detailed main text, supported by enlightening sidebars and primary sources, gives readers a clear picture of the reasons the Cherokee people were forced from their homes and what happened to them on the difficult journey west.","English",40.4,32.32,"975.004'97557--dc23","104 pp.","https://greenhavenpublishing.com/9781534561359",null,{"$f":"Table1[[#This Row],['# of Books]]*Table1[[#This Row],[QTY]]","v":0},{"$f":"Table1[[#This Row],[QTY]]*Table1[[#This Row],[School & Library Price]]","v":0}]
[null,null,23,null,null,"U.S. History","American History","The Trail of Tears: A Journey of Loss","978-1-5345-6136-6",{"$f":"HYPERLINK(Table1[[#This Row],[eCommerce Hyperlink]],\"Book Weblink\")","v":"Book Weblink"},null,"Lucent Press","eBook",1,"2018","August 2017",null,null,"Author","Kristen Rajczak Nelson",null,null,null,null,"Z",null,"Grade 7","Grade 7 - 10","The Trail of Tears is the name used to describe the forced migration of the Cherokee people in the 1830s from their homelands in the southeastern United States to land in what’s now Oklahoma. This devastating journey took the lives of thousands of Native Americans, and it’s one of the most shameful chapters in American history. Detailed main text, supported by enlightening sidebars and primary sources, gives readers a clear picture of the reasons the Cherokee people were forced from their homes and what happened to them on the difficult journey west.","English",40.4,32.32,"975.004'97557--dc23","104 pp.","https://greenhavenpublishing.com/9781534561366",null,{"$f":"Table1[[#This Row],['# of Books]]*Table1[[#This Row],[QTY]]","v":0},{"$f":"Table1[[#This Row],[QTY]]*Table1[[#This Row],[School & Library Price]]","v":0}]
[null,null,23,null,null,"U.S. History","American History","The Transcontinental Railroad: Connecting the Nation","978-1-5345-6137-3",{"$f":"HYPERLINK(Table1[[#This Row],[eCommerce Hyperlink]],\"Book Weblink\")","v":"Book Weblink"},null,"Lucent Press","Library Bound Book",1,"2018","August 2017","Library","7.000 X 9.000","Author","Therese Harasymiw",null,null,null,null,"Z",null,"Grade 7","Grade 7 - 10","Readers may know the basic facts about the creation of the first transcontinental railroad, but the full story behind the push to connect the United States by rail is much more than the names and dates taught in history classes. Readers discover the exciting, important details including the contributions of immigrants as they encounter engaging main text, comprehensive sidebars, and historical images that include carefully chosen primary sources. These text features come together to give readers an in-depth look at the first successful attempt to connect the United States through transportation.","English",40.4,32.32,"385.0978'09034--dc23","104 pp.","https://greenhavenpublishing.com/9781534561373",null,{"$f":"Table1[[#This Row],['# of Books]]*Table1[[#This Row],[QTY]]","v":0},{"$f":"Table1[[#This Row],[QTY]]*Table1[[#This Row],[School & Library Price]]","v":0}]
[null,null,23,null,null,"U.S. History","American History","The Transcontinental Railroad: Connecting the Nation","978-1-5345-6138-0",{"$f":"HYPERLINK(Table1[[#This Row],[eCommerce Hyperlink]],\"Book Weblink\")","v":"Book Weblink"},null,"Lucent Press","eBook",1,"2018","August 2017",null,null,"Author","Therese Harasymiw",null,null,null,null,"Z",null,"Grade 7","Grade 7 - 10","Readers may know the basic facts about the creation of the first transcontinental railroad, but the full story behind the push to connect the United States by rail is much more than the names and dates taught in history classes. Readers discover the exciting, important details including the contributions of immigrants as they encounter engaging main text, comprehensive sidebars, and historical images that include carefully chosen primary sources. These text features come together to give readers an in-depth look at the first successful attempt to connect the United States through transportation.","English",40.4,32.32,"385.0978'09034--dc23","104 pp.","https://greenhavenpublishing.com/9781534561380",null,{"$f":"Table1[[#This Row],['# of Books]]*Table1[[#This Row],[QTY]]","v":0},{"$f":"Table1[[#This Row],[QTY]]*Table1[[#This Row],[School & Library Price]]","v":0}]
[null,null,23,null,null,"U.S. History","American History","American History: Set 3","978-1-5345-6453-4",{"$f":"HYPERLINK(Table1[[#This Row],[eCommerce Hyperlink]],\"Book Weblink\")","v":"Book Weblink"},null,"Lucent Press","Library Set",6,"2019","August 2018","Library","7.000 X 9.000",null,null,null,null,null,null,null,null,"Grade 7","Grade 7 - 10","It is important to learn from the struggles of the past. Readers discover that the hot-button issues of today, such as civil rights, protests, and political corruption, are echoes of older American movements. Insightful annotated quotes challenge students to think critically about the many facets of history, while contemporary and historical images drive home the fact that history is more than just dates and events, it is also made up of people. Many of the struggles they faced will be faced again, and knowledge will be a key to overcoming those struggles in the present. Politically current topics including the development of political parties and the Watergate scandal will encourage readers to draw parallels between the past and the present. Features include: The thoroughly researched main narratives align with some of the most important historical topics taught in social studies classes. Engaging sidebars offer deep detail on important figures, places, and events that had a major impact on historical eras. Primary sources relay the energy and culture of the time.","English",242.4,193.92,null,"104 pp.","https://greenhavenpublishing.com/9781534564534",null,{"$f":"Table1[[#This Row],['# of Books]]*Table1[[#This Row],[QTY]]","v":0},{"$f":"Table1[[#This Row],[QTY]]*Table1[[#This Row],[School & Library Price]]","v":0}]
[null,null,23,null,null,"U.S. History","American History","American History: Fall 2018","978-1-5345-6461-9",{"$f":"HYPERLINK(Table1[[#This Row],[eCommerce Hyperlink]],\"Book Weblink\")","v":"Book Weblink"},null,"Lucent Press","Single Copy Set",6,"2019","August 2018","Paperback","7.000 X 9.000",null,null,null,null,null,null,null,null,"Grade 7","Grade 7 - 10","It is important to learn from the struggles of the past. Readers discover that the hot-button issues of today, such as civil rights, protests, and political corruption, are echoes of older American movements. Insightful annotated quotes challenge students to think critically about the many facets of history, while contemporary and historical images drive home the fact that history is more than just dates and events, it is also made up of people. Many of the struggles they faced will be faced again, and knowledge will be a key to overcoming those struggles in the present. Features include: Politically current topics, including the development of political parties and the Watergate scandal, encourage readers to draw parallels between the past and the present. The thoroughly researched main text aligns with some of the most important historical topics taught in social studies classes, from Prohibition to the civil rights movement. Engaging sidebars throughout offer deep detail on important figures, places, and events that had a major impact on historical eras.","English",125.94,107.1,null,"104 pp.","https://greenhavenpublishing.com/9781534564619",null,{"$f":"Table1[[#This Row],['# of Books]]*Table1[[#This Row],[QTY]]","v":0},{"$f":"Table1[[#This Row],[QTY]]*Table1[[#This Row],[School & Library Price]]","v":0}]
[null,null,23,null,null,"U.S. History","American History","Prohibition: Social Movement and Controversial Amendment","978-1-5345-6412-1",{"$f":"HYPERLINK(Table1[[#This Row],[eCommerce Hyperlink]],\"Book Weblink\")","v":"Book Weblink"},null,"Lucent Press","Library Bound Book",1,"2019","August 2018","Library","7.000 X 9.000","Author","Joan Stoltman",null,null,null,null,"Z",null,"Grade 7","Grade 7 - 10","The story of Prohibition in the United States is one of extremes, with temperance crusaders on one side working to ban alcohol across America and bootleggers and organized crime rings on the other side illegally transporting alcohol into speakeasies and homes. Readers explore both sides of this controversial period in American history as they learn the fascinating facts behind the passage and repeal of the 18th Amendment. The captivating main text is supplemented by a helpful timeline, relevant primary sources, informative sidebars, and annotated quotations from historical figures and scholars.","English",40.4,32.32,"363.4'10973--dc23","104 pp.","https://greenhavenpublishing.com/9781534564121",null,{"$f":"Table1[[#This Row],['# of Books]]*Table1[[#This Row],[QTY]]","v":0},{"$f":"Table1[[#This Row],[QTY]]*Table1[[#This Row],[School & Library Price]]","v":0}]
[null,null,23,null,null,"U.S. History","American History","Prohibition: Social Movement and Controversial Amendment","978-1-5345-6413-8",{"$f":"HYPERLINK(Table1[[#This Row],[eCommerce Hyperlink]],\"Book Weblink\")","v":"Book Weblink"},null,"Lucent Press","eBook",1,"2019","August 2018",null,null,"Author","Joan Stoltman",null,null,null,null,"Z",null,"Grade 7","Grade 7 - 10","The story of Prohibition in the United States is one of extremes, with temperance crusaders on one side working to ban alcohol across America and bootleggers and organized crime rings on the other side illegally transporting alcohol into speakeasies and homes. Readers explore both sides of this controversial period in American history as they learn the fascinating facts behind the passage and repeal of the 18th Amendment. The captivating main text is supplemented by a helpful timeline, relevant primary sources, informative sidebars, and annotated quotations from historical figures and scholars.","English",40.4,32.32,"363.4'10973--dc23","104 pp.","https://greenhavenpublishing.com/9781534564138",null,{"$f":"Table1[[#This Row],['# of Books]]*Table1[[#This Row],[QTY]]","v":0},{"$f":"Table1[[#This Row],[QTY]]*Table1[[#This Row],[School & Library Price]]","v":0}]
[null,null,23,null,null,"U.S. History","American History","Prohibition: Social Movement and Controversial Amendment","978-1-5345-6414-5",{"$f":"HYPERLINK(Table1[[#This Row],[eCommerce Hyperlink]],\"Book Weblink\")","v":"Book Weblink"},null,"Lucent Press","Paperback Book",1,"2019","August 2018","Paperback","7.000 X 9.000","Author","Joan Stoltman",null,null,null,null,"Z",null,"Grade 7","Grade 7 - 10","The story of Prohibition in the United States is one of extremes, with temperance crusaders on one side working to ban alcohol across America and bootleggers and organized crime rings on the other side illegally transporting alcohol into speakeasies and homes. Readers explore both sides of this controversial period in American history as they learn the fascinating facts behind the passage and repeal of the 18th Amendment. The captivating main text is supplemented by a helpful timeline, relevant primary sources, informative sidebars, and annotated quotations from historical figures and scholars.","English",20.99,17.850000000000001,"363.4'10973--dc23","104 pp.","https://greenhavenpublishing.com/9781534564145",null,{"$f":"Table1[[#This Row],['# of Books]]*Table1[[#This Row],[QTY]]","v":0},{"$f":"Table1[[#This Row],[QTY]]*Table1[[#This Row],[School & Library Price]]","v":0}]
[null,null,23,null,null,"U.S. History","American History","Protests and Riots That Changed America","978-1-5345-6415-2",{"$f":"HYPERLINK(Table1[[#This Row],[eCommerce Hyperlink]],\"Book Weblink\")","v":"Book Weblink"},null,"Lucent Press","Library Bound Book",1,"2019","August 2018","Library","7.000 X 9.000","Author","Joan Stoltman",null,null,null,null,"Z",null,"Grade 7","Grade 7 - 10","The right to peaceably assemble is one of the freedoms granted to Americans under the First Amendment. However, those peaceful protests sometimes erupt into violent riots. Both protests and riots have changed the course of American history, highlighting sources of unrest, inequality, and tension in the nation from its earliest days. Readers explore the fascinating history of these protests and riots, from the Whiskey Rebellion to the Women's March, through engaging main text featuring annotated historical and contemporary quotes. Details of these marches and demonstrations are made further memorable for readers through fact-filled sidebars, primary source images, maps, and a detailed timeline.","English",40.4,32.32,"303.48/40973--dc23","104 pp.","https://greenhavenpublishing.com/9781534564152",null,{"$f":"Table1[[#This Row],['# of Books]]*Table1[[#This Row],[QTY]]","v":0},{"$f":"Table1[[#This Row],[QTY]]*Table1[[#This Row],[School & Library Price]]","v":0}]
[null,null,23,null,null,"U.S. History","American History","Protests and Riots That Changed America","978-1-5345-6416-9",{"$f":"HYPERLINK(Table1[[#This Row],[eCommerce Hyperlink]],\"Book Weblink\")","v":"Book Weblink"},null,"Lucent Press","eBook",1,"2019","August 2018",null,null,"Author","Joan Stoltman",null,null,null,null,"Z",null,"Grade 7","Grade 7 - 10","The right to peaceably assemble is one of the freedoms granted to Americans under the First Amendment. However, those peaceful protests sometimes erupt into violent riots. Both protests and riots have changed the course of American history, highlighting sources of unrest, inequality, and tension in the nation from its earliest days. Readers explore the fascinating history of these protests and riots, from the Whiskey Rebellion to the Women's March, through engaging main text featuring annotated historical and contemporary quotes. Details of these marches and demonstrations are made further memorable for readers through fact-filled sidebars, primary source images, maps, and a detailed timeline.","English",40.4,32.32,"303.48/40973--dc23","104 pp.","https://greenhavenpublishing.com/9781534564169",null,{"$f":"Table1[[#This Row],['# of Books]]*Table1[[#This Row],[QTY]]","v":0},{"$f":"Table1[[#This Row],[QTY]]*Table1[[#This Row],[School & Library Price]]","v":0}]
[null,null,23,null,null,"U.S. History","American History","Protests and Riots That Changed America","978-1-5345-6417-6",{"$f":"HYPERLINK(Table1[[#This Row],[eCommerce Hyperlink]],\"Book Weblink\")","v":"Book Weblink"},null,"Lucent Press","Paperback Book",1,"2019","August 2018","Paperback","7.000 X 9.000","Author","Joan Stoltman",null,null,null,null,"Z",null,"Grade 7","Grade 7 - 10","The right to peaceably assemble is one of the freedoms granted to Americans under the First Amendment. However, those peaceful protests sometimes erupt into violent riots. Both protests and riots have changed the course of American history, highlighting sources of unrest, inequality, and tension in the nation from its earliest days. Readers explore the fascinating history of these protests and riots, from the Whiskey Rebellion to the Women's March, through engaging main text featuring annotated historical and contemporary quotes. Details of these marches and demonstrations are made further memorable for readers through fact-filled sidebars, primary source images, maps, and a detailed timeline.","English",20.99,17.850000000000001,"303.48/40973--dc23","104 pp.","https://greenhavenpublishing.com/9781534564176",null,{"$f":"Table1[[#This Row],['# of Books]]*Table1[[#This Row],[QTY]]","v":0},{"$f":"Table1[[#This Row],[QTY]]*Table1[[#This Row],[School & Library Price]]","v":0}]
[null,null,23,null,null,"U.S. History","American History","The Civil Rights Movement: Advocating for Equality","978-1-5345-6418-3",{"$f":"HYPERLINK(Table1[[#This Row],[eCommerce Hyperlink]],\"Book Weblink\")","v":"Book Weblink"},null,"Lucent Press","Library Bound Book",1,"2019","August 2018","Library","7.000 X 9.000","Author","Tamra B. Orr",null,null,null,null,"Z",null,"Grade 7","Grade 7 - 10","The civil rights movement was one of the most important social justice movements in American history, and readers are sure to be captivated by this in-depth look at the leaders and moments that defined this period. Enlightening main text and detailed sidebars feature quotes from the men and women who lived through this time of trial and triumph, and the facts readers discover on each page complement current social studies curriculum topics. Additional insight is provided through primary sources, a comprehensive timeline, and historical and contemporary images.","English",40.4,32.32,"323.1196/073--dc23","104 pp.","https://greenhavenpublishing.com/9781534564183",null,{"$f":"Table1[[#This Row],['# of Books]]*Table1[[#This Row],[QTY]]","v":0},{"$f":"Table1[[#This Row],[QTY]]*Table1[[#This Row],[School & Library Price]]","v":0}]
[null,null,23,null,null,"U.S. History","American History","The Civil Rights Movement: Advocating for Equality","978-1-5345-6419-0",{"$f":"HYPERLINK(Table1[[#This Row],[eCommerce Hyperlink]],\"Book Weblink\")","v":"Book Weblink"},null,"Lucent Press","eBook",1,"2019","August 2018",null,null,"Author","Tamra B. Orr",null,null,null,null,"Z",null,"Grade 7","Grade 7 - 10","The civil rights movement was one of the most important social justice movements in American history, and readers are sure to be captivated by this in-depth look at the leaders and moments that defined this period. Enlightening main text and detailed sidebars feature quotes from the men and women who lived through this time of trial and triumph, and the facts readers discover on each page complement current social studies curriculum topics. Additional insight is provided through primary sources, a comprehensive timeline, and historical and contemporary images.","English",40.4,32.32,"323.1196/073--dc23","104 pp.","https://greenhavenpublishing.com/9781534564190",null,{"$f":"Table1[[#This Row],['# of Books]]*Table1[[#This Row],[QTY]]","v":0},{"$f":"Table1[[#This Row],[QTY]]*Table1[[#This Row],[School & Library Price]]","v":0}]
[null,null,23,null,null,"U.S. History","American History","The Civil Rights Movement: Advocating for Equality","978-1-5345-6420-6",{"$f":"HYPERLINK(Table1[[#This Row],[eCommerce Hyperlink]],\"Book Weblink\")","v":"Book Weblink"},null,"Lucent Press","Paperback Book",1,"2019","August 2018","Paperback","7.000 X 9.000","Author","Tamra B. Orr",null,null,null,null,"Z",null,"Grade 7","Grade 7 - 10","The civil rights movement was one of the most important social justice movements in American history, and readers are sure to be captivated by this in-depth look at the leaders and moments that defined this period. Enlightening main text and detailed sidebars feature quotes from the men and women who lived through this time of trial and triumph, and the facts readers discover on each page complement current social studies curriculum topics. Additional insight is provided through primary sources, a comprehensive timeline, and historical and contemporary images.","English",20.99,17.850000000000001,"323.1196/073--dc23","104 pp.","https://greenhavenpublishing.com/9781534564206",null,{"$f":"Table1[[#This Row],['# of Books]]*Table1[[#This Row],[QTY]]","v":0},{"$f":"Table1[[#This Row],[QTY]]*Table1[[#This Row],[School & Library Price]]","v":0}]
[null,null,23,null,null,"U.S. History","American History","The Harlem Renaissance: An African American Cultural Movement","978-1-5345-6421-3",{"$f":"HYPERLINK(Table1[[#This Row],[eCommerce Hyperlink]],\"Book Weblink\")","v":"Book Weblink"},null,"Lucent Press","Library Bound Book",1,"2019","August 2018","Library","7.000 X 9.000","Author","Tamra B. Orr",null,null,null,null,"Z",null,"Grade 7","Grade 7 - 10","The Harlem Renaissance was an exciting period in American history, and readers are placed in the middle of this vibrant African American cultural movement through engaging main text, annotated quotations from historical figures and scholars, and carefully selected primary sources. Eye-catching sidebars and a comprehensive timeline highlight important artists, writers, and works from the Harlem Renaissance to give readers a strong sense of this essential social studies curriculum topic. The influence of the Harlem Renaissance can still be seen in the cultural contributions of African Americans today, making this a topic that is sure to resonate with readers.","English",40.4,32.32,"305.896'0730747--dc23","104 pp.","https://greenhavenpublishing.com/9781534564213",null,{"$f":"Table1[[#This Row],['# of Books]]*Table1[[#This Row],[QTY]]","v":0},{"$f":"Table1[[#This Row],[QTY]]*Table1[[#This Row],[School & Library Price]]","v":0}]
[null,null,23,null,null,"U.S. History","American History","The Harlem Renaissance: An African American Cultural Movement","978-1-5345-6422-0",{"$f":"HYPERLINK(Table1[[#This Row],[eCommerce Hyperlink]],\"Book Weblink\")","v":"Book Weblink"},null,"Lucent Press","eBook",1,"2019","August 2018",null,null,"Author","Tamra B. Orr",null,null,null,null,"Z",null,"Grade 7","Grade 7 - 10","The Harlem Renaissance was an exciting period in American history, and readers are placed in the middle of this vibrant African American cultural movement through engaging main text, annotated quotations from historical figures and scholars, and carefully selected primary sources. Eye-catching sidebars and a comprehensive timeline highlight important artists, writers, and works from the Harlem Renaissance to give readers a strong sense of this essential social studies curriculum topic. The influence of the Harlem Renaissance can still be seen in the cultural contributions of African Americans today, making this a topic that is sure to resonate with readers.","English",40.4,32.32,"305.896'0730747--dc23","104 pp.","https://greenhavenpublishing.com/9781534564220",null,{"$f":"Table1[[#This Row],['# of Books]]*Table1[[#This Row],[QTY]]","v":0},{"$f":"Table1[[#This Row],[QTY]]*Table1[[#This Row],[School & Library Price]]","v":0}]
[null,null,23,null,null,"U.S. History","American History","The Harlem Renaissance: An African American Cultural Movement","978-1-5345-6423-7",{"$f":"HYPERLINK(Table1[[#This Row],[eCommerce Hyperlink]],\"Book Weblink\")","v":"Book Weblink"},null,"Lucent Press","Paperback Book",1,"2019","August 2018","Paperback","7.000 X 9.000","Author","Tamra B. Orr",null,null,null,null,"Z",null,"Grade 7","Grade 7 - 10","The Harlem Renaissance was an exciting period in American history, and readers are placed in the middle of this vibrant African American cultural movement through engaging main text, annotated quotations from historical figures and scholars, and carefully selected primary sources. Eye-catching sidebars and a comprehensive timeline highlight important artists, writers, and works from the Harlem Renaissance to give readers a strong sense of this essential social studies curriculum topic. The influence of the Harlem Renaissance can still be seen in the cultural contributions of African Americans today, making this a topic that is sure to resonate with readers.","English",20.99,17.850000000000001,"305.896'0730747--dc23","104 pp.","https://greenhavenpublishing.com/9781534564237",null,{"$f":"Table1[[#This Row],['# of Books]]*Table1[[#This Row],[QTY]]","v":0},{"$f":"Table1[[#This Row],[QTY]]*Table1[[#This Row],[School & Library Price]]","v":0}]
[null,null,23,null,null,"U.S. History","American History","U.S. Political Parties: Development and Division","978-1-5345-6424-4",{"$f":"HYPERLINK(Table1[[#This Row],[eCommerce Hyperlink]],\"Book Weblink\")","v":"Book Weblink"},null,"Lucent Press","Library Bound Book",1,"2019","August 2018","Library","7.000 X 9.000","Author","Philip Wolny",null,null,null,null,"Z",null,"Grade 7","Grade 7 - 10","Partisan politics and division between Americans of different political parties are constantly in the news. However, political division is not a new thing in the United States, and readers are introduced to the history of political parties as they explore how the early divisions between the Founding Fathers are still reflected in many ways today. The insightful main text and sidebars include annotated quotations to provide first-person perspectives on the various political parties that have had an impact on American democracy. Primary sources and a detailed timeline provide additional information about this timely topic.","English",40.4,32.32,"324.273--dc23","104 pp.","https://greenhavenpublishing.com/9781534564244",null,{"$f":"Table1[[#This Row],['# of Books]]*Table1[[#This Row],[QTY]]","v":0},{"$f":"Table1[[#This Row],[QTY]]*Table1[[#This Row],[School & Library Price]]","v":0}]
[null,null,23,null,null,"U.S. History","American History","U.S. Political Parties: Development and Division","978-1-5345-6425-1",{"$f":"HYPERLINK(Table1[[#This Row],[eCommerce Hyperlink]],\"Book Weblink\")","v":"Book Weblink"},null,"Lucent Press","eBook",1,"2019","August 2018",null,null,"Author","Philip Wolny",null,null,null,null,"Z",null,"Grade 7","Grade 7 - 10","Partisan politics and division between Americans of different political parties are constantly in the news. However, political division is not a new thing in the United States, and readers are introduced to the history of political parties as they explore how the early divisions between the Founding Fathers are still reflected in many ways today. The insightful main text and sidebars include annotated quotations to provide first-person perspectives on the various political parties that have had an impact on American democracy. Primary sources and a detailed timeline provide additional information about this timely topic.","English",40.4,32.32,"324.273--dc23","104 pp.","https://greenhavenpublishing.com/9781534564251",null,{"$f":"Table1[[#This Row],['# of Books]]*Table1[[#This Row],[QTY]]","v":0},{"$f":"Table1[[#This Row],[QTY]]*Table1[[#This Row],[School & Library Price]]","v":0}]
[null,null,23,null,null,"U.S. History","American History","U.S. Political Parties: Development and Division","978-1-5345-6426-8",{"$f":"HYPERLINK(Table1[[#This Row],[eCommerce Hyperlink]],\"Book Weblink\")","v":"Book Weblink"},null,"Lucent Press","Paperback Book",1,"2019","August 2018","Paperback","7.000 X 9.000","Author","Philip Wolny",null,null,null,null,"Z",null,"Grade 7","Grade 7 - 10","Partisan politics and division between Americans of different political parties are constantly in the news. However, political division is not a new thing in the United States, and readers are introduced to the history of political parties as they explore how the early divisions between the Founding Fathers are still reflected in many ways today. The insightful main text and sidebars include annotated quotations to provide first-person perspectives on the various political parties that have had an impact on American democracy. Primary sources and a detailed timeline provide additional information about this timely topic.","English",20.99,17.850000000000001,"324.273--dc23","104 pp.","https://greenhavenpublishing.com/9781534564268",null,{"$f":"Table1[[#This Row],['# of Books]]*Table1[[#This Row],[QTY]]","v":0},{"$f":"Table1[[#This Row],[QTY]]*Table1[[#This Row],[School & Library Price]]","v":0}]
[null,null,23,null,null,"U.S. History","American History","Watergate and the Resignation of President Nixon","978-1-5345-6427-5",{"$f":"HYPERLINK(Table1[[#This Row],[eCommerce Hyperlink]],\"Book Weblink\")","v":"Book Weblink"},null,"Lucent Press","Library Bound Book",1,"2019","August 2018","Library","7.000 X 9.000","Author","Christine Honders",null,null,null,null,"Z",null,"Grade 7","Grade 7 - 10","Why did Richard Nixon become the first president to resign? Readers discover the answer to this question as they explore the political scandal known as Watergate. This complex topic is explained through accessible main text featuring annotated quotations from historians as well as historical figures and documents. Primary sources, enlightening sidebars, and a detailed timeline provide additional information and context for readers looking for insight into this challenging time in American history. Watergate continues to influence how Americans view politics and politicians, and a deeper understanding of why is crucial for the next generation of informed American citizens.","English",40.4,32.32,"973.924092--dc23","104 pp.","https://greenhavenpublishing.com/9781534564275",null,{"$f":"Table1[[#This Row],['# of Books]]*Table1[[#This Row],[QTY]]","v":0},{"$f":"Table1[[#This Row],[QTY]]*Table1[[#This Row],[School & Library Price]]","v":0}]
[null,null,23,null,null,"U.S. History","American History","Watergate and the Resignation of President Nixon","978-1-5345-6428-2",{"$f":"HYPERLINK(Table1[[#This Row],[eCommerce Hyperlink]],\"Book Weblink\")","v":"Book Weblink"},null,"Lucent Press","eBook",1,"2019","August 2018",null,null,"Author","Christine Honders",null,null,null,null,"Z",null,"Grade 7","Grade 7 - 10","Why did Richard Nixon become the first president to resign? Readers discover the answer to this question as they explore the political scandal known as Watergate. This complex topic is explained through accessible main text featuring annotated quotations from historians as well as historical figures and documents. Primary sources, enlightening sidebars, and a detailed timeline provide additional information and context for readers looking for insight into this challenging time in American history. Watergate continues to influence how Americans view politics and politicians, and a deeper understanding of why is crucial for the next generation of informed American citizens.","English",40.4,32.32,"973.924092--dc23","104 pp.","https://greenhavenpublishing.com/9781534564282",null,{"$f":"Table1[[#This Row],['# of Books]]*Table1[[#This Row],[QTY]]","v":0},{"$f":"Table1[[#This Row],[QTY]]*Table1[[#This Row],[School & Library Price]]","v":0}]
[null,null,23,null,null,"U.S. History","American History","Watergate and the Resignation of President Nixon","978-1-5345-6429-9",{"$f":"HYPERLINK(Table1[[#This Row],[eCommerce Hyperlink]],\"Book Weblink\")","v":"Book Weblink"},null,"Lucent Press","Paperback Book",1,"2019","August 2018","Paperback","7.000 X 9.000","Author","Christine Honders",null,null,null,null,"Z",null,"Grade 7","Grade 7 - 10","Why did Richard Nixon become the first president to resign? Readers discover the answer to this question as they explore the political scandal known as Watergate. This complex topic is explained through accessible main text featuring annotated quotations from historians as well as historical figures and documents. Primary sources, enlightening sidebars, and a detailed timeline provide additional information and context for readers looking for insight into this challenging time in American history. Watergate continues to influence how Americans view politics and politicians, and a deeper understanding of why is crucial for the next generation of informed American citizens.","English",20.99,17.850000000000001,"973.924092--dc23","104 pp.","https://greenhavenpublishing.com/9781534564299",null,{"$f":"Table1[[#This Row],['# of Books]]*Table1[[#This Row],[QTY]]","v":0},{"$f":"Table1[[#This Row],[QTY]]*Table1[[#This Row],[School & Library Price]]","v":0}]
[null,null,23,null,null,"U.S. History","Crossing the Border","Crossing the Border","978-1-5345-6254-7",{"$f":"HYPERLINK(Table1[[#This Row],[eCommerce Hyperlink]],\"Book Weblink\")","v":"Book Weblink"},null,"Lucent Press","Library Set",6,"2018","January 2018","Library","7.250 X 9.250",null,null,null,null,null,null,null,null,"Grade 6 - 7","Grade 6 - 8","Immigration issues are an important topic in the United States. Terms such as \"border security,\" \"illegal immigrants,\" and \"deportation,\" are often said on news programs and written about in newspapers and online, but what do those terms really mean? How does the U.S. immigration policy and citizenship process affect real people? Readers explore the answers to these questions and many more as they are introduced to essential immigration topics. Important facts about past and present immigration policies are presented through engaging main text and sidebars. The colorful and creative design of each volume includes detailed photographs. Features include: Topic enriches common social studies curricula and allows readers to educate themselves about issues that are often in the news. Fact-filled text encourages readers to learn as much as they can about hot-button issues before making an informed opinion on current events. True stories of immigrants are included to provide real-world examples of the topics discussed in each volume.","English",206.7,165.36,null,"64 pp.","https://greenhavenpublishing.com/9781534562547",null,{"$f":"Table1[[#This Row],['# of Books]]*Table1[[#This Row],[QTY]]","v":0},{"$f":"Table1[[#This Row],[QTY]]*Table1[[#This Row],[School & Library Price]]","v":0}]
[null,null,23,null,null,"U.S. History","Crossing the Border","Crossing the Border: Spring 2018","978-1-5345-6318-6",{"$f":"HYPERLINK(Table1[[#This Row],[eCommerce Hyperlink]],\"Book Weblink\")","v":"Book Weblink"},null,"Lucent Press","Single Copy Set",6,"2018","January 2018","Paperback","7.250 X 9.250",null,null,null,null,null,null,null,null,"Grade 6 - 7","Grade 6 - 8","Immigration issues are an important topic in the United States. Terms such as \"border security,\" \"illegal immigrants,\" and \"deportation,\" are often said on news programs and written about in newspapers and online, but what do those terms really mean? How does the U.S. immigration policy and citizenship process affect real people? Readers explore the answers to these questions and many more as they are introduced to essential immigration topics. Important facts about past and present immigration policies are presented through engaging main text and sidebars. The colorful and creative design of each volume includes detailed photographs. Features include: Topic enriches common social studies curricula and allows readers to educate themselves about issues that are often in the news. Fact-filled text encourages readers to learn as much as they can about hot-button issues before making an informed opinion on current events. True stories of immigrants are included to provide real-world examples of the topics discussed in each volume.","English",97.68,83.1,null,"64 pp.","https://greenhavenpublishing.com/9781534563186",null,{"$f":"Table1[[#This Row],['# of Books]]*Table1[[#This Row],[QTY]]","v":0},{"$f":"Table1[[#This Row],[QTY]]*Table1[[#This Row],[School & Library Price]]","v":0}]
[null,null,23,null,null,"U.S. History","Crossing the Border","Becoming a U.S. Citizen","978-1-5345-6227-1",{"$f":"HYPERLINK(Table1[[#This Row],[eCommerce Hyperlink]],\"Book Weblink\")","v":"Book Weblink"},null,"Lucent Press","Library Bound Book",1,"2018","January 2018","Library","7.250 X 9.250","Author","Cathleen Small",null,null,null,null,"X","1170L","Grade 6 - 7","Grade 6 - 8","Becoming a U.S. citizen is not easy, but it is very rewarding for those who choose to go through the process. What exactly does that process entail? Readers learn the answer as they explore what immigrants must go through in order to become full citizens. The fact-filled text enhances social studies curriculum topics, and sidebars provide additional information about the citizenship process. Colorful photographs of people working toward becoming U.S. citizens are included to create a relatable and engaging learning experience.","English",34.450000000000003,27.56,"342.7308'3--dc23","64 pp.","https://greenhavenpublishing.com/9781534562271",null,{"$f":"Table1[[#This Row],['# of Books]]*Table1[[#This Row],[QTY]]","v":0},{"$f":"Table1[[#This Row],[QTY]]*Table1[[#This Row],[School & Library Price]]","v":0}]
[null,null,23,null,null,"U.S. History","Crossing the Border","Becoming a U.S. Citizen","978-1-5345-6228-8",{"$f":"HYPERLINK(Table1[[#This Row],[eCommerce Hyperlink]],\"Book Weblink\")","v":"Book Weblink"},null,"Lucent Press","eBook",1,"2018","January 2018",null,null,"Author","Cathleen Small",null,null,null,null,"X","1170L","Grade 6 - 7","Grade 6 - 8","Becoming a U.S. citizen is not easy, but it is very rewarding for those who choose to go through the process. What exactly does that process entail? Readers learn the answer as they explore what immigrants must go through in order to become full citizens. The fact-filled text enhances social studies curriculum topics, and sidebars provide additional information about the citizenship process. Colorful photographs of people working toward becoming U.S. citizens are included to create a relatable and engaging learning experience.","English",34.450000000000003,27.56,"342.7308'3--dc23","64 pp.","https://greenhavenpublishing.com/9781534562288",null,{"$f":"Table1[[#This Row],['# of Books]]*Table1[[#This Row],[QTY]]","v":0},{"$f":"Table1[[#This Row],[QTY]]*Table1[[#This Row],[School & Library Price]]","v":0}]
[null,null,23,null,null,"U.S. History","Crossing the Border","Becoming a U.S. Citizen","978-1-5345-6276-9",{"$f":"HYPERLINK(Table1[[#This Row],[eCommerce Hyperlink]],\"Book Weblink\")","v":"Book Weblink"},null,"Lucent Press","Paperback Book",1,"2018","January 2018","Paperback","7.250 X 9.250","Author","Cathleen Small",null,null,null,null,"X","1170L","Grade 6 - 7","Grade 6 - 8","Becoming a U.S. citizen is not easy, but it is very rewarding for those who choose to go through the process. What exactly does that process entail? Readers learn the answer as they explore what immigrants must go through in order to become full citizens. The fact-filled text enhances social studies curriculum topics, and sidebars provide additional information about the citizenship process. Colorful photographs of people working toward becoming U.S. citizens are included to create a relatable and engaging learning experience.","English",16.28,13.85,"342.7308'3--dc23","64 pp.","https://greenhavenpublishing.com/9781534562769",null,{"$f":"Table1[[#This Row],['# of Books]]*Table1[[#This Row],[QTY]]","v":0},{"$f":"Table1[[#This Row],[QTY]]*Table1[[#This Row],[School & Library Price]]","v":0}]
[null,null,23,null,null,"U.S. History","Crossing the Border","Deportation","978-1-5345-6225-7",{"$f":"HYPERLINK(Table1[[#This Row],[eCommerce Hyperlink]],\"Book Weblink\")","v":"Book Weblink"},null,"Lucent Press","Library Bound Book",1,"2018","January 2018","Library","7.250 X 9.250","Author","Cathleen Small",null,null,null,null,"X","1170L","Grade 6 - 7","Grade 6 - 8","Deportation can be a frightening concept, especially for immigrants or people whose friends or relatives are from another country. Why do people get deported, and what happens to them after the deportation decision is made? The answers to these questions and more are found in this thorough examination of a topic that is often in the news. Comprehensive text and fact-filled sidebars, and vivid photographs enhance the reading experience.","English",34.450000000000003,27.56,"364.1'37--dc23","64 pp.","https://greenhavenpublishing.com/9781534562257",null,{"$f":"Table1[[#This Row],['# of Books]]*Table1[[#This Row],[QTY]]","v":0},{"$f":"Table1[[#This Row],[QTY]]*Table1[[#This Row],[School & Library Price]]","v":0}]
[null,null,23,null,null,"U.S. History","Crossing the Border","Deportation","978-1-5345-6226-4",{"$f":"HYPERLINK(Table1[[#This Row],[eCommerce Hyperlink]],\"Book Weblink\")","v":"Book Weblink"},null,"Lucent Press","eBook",1,"2018","January 2018",null,null,"Author","Cathleen Small",null,null,null,null,"X","1170L","Grade 6 - 7","Grade 6 - 8","Deportation can be a frightening concept, especially for immigrants or people whose friends or relatives are from another country. Why do people get deported, and what happens to them after the deportation decision is made? The answers to these questions and more are found in this thorough examination of a topic that is often in the news. Comprehensive text and fact-filled sidebars, and vivid photographs enhance the reading experience.","English",34.450000000000003,27.56,"364.1'37--dc23","64 pp.","https://greenhavenpublishing.com/9781534562264",null,{"$f":"Table1[[#This Row],['# of Books]]*Table1[[#This Row],[QTY]]","v":0},{"$f":"Table1[[#This Row],[QTY]]*Table1[[#This Row],[School & Library Price]]","v":0}]
[null,null,23,null,null,"U.S. History","Crossing the Border","Deportation","978-1-5345-6277-6",{"$f":"HYPERLINK(Table1[[#This Row],[eCommerce Hyperlink]],\"Book Weblink\")","v":"Book Weblink"},null,"Lucent Press","Paperback Book",1,"2018","January 2018","Paperback","7.250 X 9.250","Author","Cathleen Small",null,null,null,null,"X","1170L","Grade 6 - 7","Grade 6 - 8","Deportation can be a frightening concept, especially for immigrants or people whose friends or relatives are from another country. Why do people get deported, and what happens to them after the deportation decision is made? The answers to these questions and more are found in this thorough examination of a topic that is often in the news. Comprehensive text and fact-filled sidebars, and vivid photographs enhance the reading experience.","English",16.28,13.85,"364.1'37--dc23","64 pp.","https://greenhavenpublishing.com/9781534562776",null,{"$f":"Table1[[#This Row],['# of Books]]*Table1[[#This Row],[QTY]]","v":0},{"$f":"Table1[[#This Row],[QTY]]*Table1[[#This Row],[School & Library Price]]","v":0}]
[null,null,23,null,null,"U.S. History","Crossing the Border","Immigrants of Extraordinary Ability","978-1-5345-6229-5",{"$f":"HYPERLINK(Table1[[#This Row],[eCommerce Hyperlink]],\"Book Weblink\")","v":"Book Weblink"},null,"Lucent Press","Library Bound Book",1,"2018","January 2018","Library","7.250 X 9.250","Author","Cathleen Small",null,null,null,null,"X","1230L","Grade 6 - 7","Grade 6 - 8","What do Yoko Ono, Psy, and Pelé have in common? They are all considered immigrants of extraordinary ability. What does this distinction mean, and how can someone earn it? Readers discover the answers to these and many more questions as they explore the lives of some of the most famous immigrants of extraordinary ability. The engaging, informative text provides readers with a closer look at this little-known aspect of U.S. immigration policy. Full-color photographs of these men and women and sidebars that enhance the main text are also included.","English",34.450000000000003,27.56,"305.9'06912092273--dc23","64 pp.","https://greenhavenpublishing.com/9781534562295",null,{"$f":"Table1[[#This Row],['# of Books]]*Table1[[#This Row],[QTY]]","v":0},{"$f":"Table1[[#This Row],[QTY]]*Table1[[#This Row],[School & Library Price]]","v":0}]
[null,null,23,null,null,"U.S. History","Crossing the Border","Immigrants of Extraordinary Ability","978-1-5345-6230-1",{"$f":"HYPERLINK(Table1[[#This Row],[eCommerce Hyperlink]],\"Book Weblink\")","v":"Book Weblink"},null,"Lucent Press","eBook",1,"2018","January 2018",null,null,"Author","Cathleen Small",null,null,null,null,"X","1230L","Grade 6 - 7","Grade 6 - 8","What do Yoko Ono, Psy, and Pelé have in common? They are all considered immigrants of extraordinary ability. What does this distinction mean, and how can someone earn it? Readers discover the answers to these and many more questions as they explore the lives of some of the most famous immigrants of extraordinary ability. The engaging, informative text provides readers with a closer look at this little-known aspect of U.S. immigration policy. Full-color photographs of these men and women and sidebars that enhance the main text are also included.","English",34.450000000000003,27.56,"305.9'06912092273--dc23","64 pp.","https://greenhavenpublishing.com/9781534562301",null,{"$f":"Table1[[#This Row],['# of Books]]*Table1[[#This Row],[QTY]]","v":0},{"$f":"Table1[[#This Row],[QTY]]*Table1[[#This Row],[School & Library Price]]","v":0}]
[null,null,23,null,null,"U.S. History","Crossing the Border","Immigrants of Extraordinary Ability","978-1-5345-6279-0",{"$f":"HYPERLINK(Table1[[#This Row],[eCommerce Hyperlink]],\"Book Weblink\")","v":"Book Weblink"},null,"Lucent Press","Paperback Book",1,"2018","January 2018","Paperback","7.250 X 9.250","Author","Cathleen Small",null,null,null,null,"X","1230L","Grade 6 - 7","Grade 6 - 8","What do Yoko Ono, Psy, and Pelé have in common? They are all considered immigrants of extraordinary ability. What does this distinction mean, and how can someone earn it? Readers discover the answers to these and many more questions as they explore the lives of some of the most famous immigrants of extraordinary ability. The engaging, informative text provides readers with a closer look at this little-known aspect of U.S. immigration policy. Full-color photographs of these men and women and sidebars that enhance the main text are also included.","English",16.28,13.85,"305.9'06912092273--dc23","64 pp.","https://greenhavenpublishing.com/9781534562790",null,{"$f":"Table1[[#This Row],['# of Books]]*Table1[[#This Row],[QTY]]","v":0},{"$f":"Table1[[#This Row],[QTY]]*Table1[[#This Row],[School & Library Price]]","v":0}]
[null,null,23,null,null,"U.S. History","Crossing the Border","The History of Immigration","978-1-5345-6221-9",{"$f":"HYPERLINK(Table1[[#This Row],[eCommerce Hyperlink]],\"Book Weblink\")","v":"Book Weblink"},null,"Lucent Press","Library Bound Book",1,"2018","January 2018","Library","7.250 X 9.250","Author","Cathleen Small",null,null,null,null,"X","1160L","Grade 6 - 7","Grade 6 - 8","The United States is often called a nation of immigrants, so a deeper understanding of the history of immigration is critical for a deeper understanding of American history as a whole. Readers are encouraged to develop this deeper understanding through detailed text that provides a comprehensive overview of the history of immigration. Engaging sidebars and full-color photographs accompany the main text, enhancing this essential part of social studies curricula and giving readers a clearer picture of the immigrant experience in America.","English",34.450000000000003,27.56,"304.80973--dc23","64 pp.","https://greenhavenpublishing.com/9781534562219",null,{"$f":"Table1[[#This Row],['# of Books]]*Table1[[#This Row],[QTY]]","v":0},{"$f":"Table1[[#This Row],[QTY]]*Table1[[#This Row],[School & Library Price]]","v":0}]
[null,null,23,null,null,"U.S. History","Crossing the Border","The History of Immigration","978-1-5345-6222-6",{"$f":"HYPERLINK(Table1[[#This Row],[eCommerce Hyperlink]],\"Book Weblink\")","v":"Book Weblink"},null,"Lucent Press","eBook",1,"2018","January 2018",null,null,"Author","Cathleen Small",null,null,null,null,"X","1160L","Grade 6 - 7","Grade 6 - 8","The United States is often called a nation of immigrants, so a deeper understanding of the history of immigration is critical for a deeper understanding of American history as a whole. Readers are encouraged to develop this deeper understanding through detailed text that provides a comprehensive overview of the history of immigration. Engaging sidebars and full-color photographs accompany the main text, enhancing this essential part of social studies curricula and giving readers a clearer picture of the immigrant experience in America.","English",34.450000000000003,27.56,"304.80973--dc23","64 pp.","https://greenhavenpublishing.com/9781534562226",null,{"$f":"Table1[[#This Row],['# of Books]]*Table1[[#This Row],[QTY]]","v":0},{"$f":"Table1[[#This Row],[QTY]]*Table1[[#This Row],[School & Library Price]]","v":0}]
[null,null,23,null,null,"U.S. History","Crossing the Border","The History of Immigration","978-1-5345-6280-6",{"$f":"HYPERLINK(Table1[[#This Row],[eCommerce Hyperlink]],\"Book Weblink\")","v":"Book Weblink"},null,"Lucent Press","Paperback Book",1,"2018","January 2018","Paperback","7.250 X 9.250","Author","Cathleen Small",null,null,null,null,"X","1160L","Grade 6 - 7","Grade 6 - 8","The United States is often called a nation of immigrants, so a deeper understanding of the history of immigration is critical for a deeper understanding of American history as a whole. Readers are encouraged to develop this deeper understanding through detailed text that provides a comprehensive overview of the history of immigration. Engaging sidebars and full-color photographs accompany the main text, enhancing this essential part of social studies curricula and giving readers a clearer picture of the immigrant experience in America.","English",16.28,13.85,"304.80973--dc23","64 pp.","https://greenhavenpublishing.com/9781534562806",null,{"$f":"Table1[[#This Row],['# of Books]]*Table1[[#This Row],[QTY]]","v":0},{"$f":"Table1[[#This Row],[QTY]]*Table1[[#This Row],[School & Library Price]]","v":0}]
[null,null,23,null,null,"U.S. History","Crossing the Border","U.S. Borders","978-1-5345-6250-9",{"$f":"HYPERLINK(Table1[[#This Row],[eCommerce Hyperlink]],\"Book Weblink\")","v":"Book Weblink"},null,"Lucent Press","Library Bound Book",1,"2018","January 2018","Library","7.250 X 9.250","Author","Cathleen Small",null,null,null,null,"X","1180L","Grade 6 - 7","Grade 6 - 8","The borders between the United States and foreign countries are important locations. Goods and people cross them constantly as they move from one nation to another. Readers discover what happens at these borders and how they are protected through enlightening main text and sidebars that provide additional information. Full-color photographs are also included, helping readers visualize the borders between the United States and its neighbors. Border protection is often in the news, and readers will develop a stronger sense of why this issue is so important as they explore this timely topic.","English",34.450000000000003,27.56,"363.28'50973--dc23","64 pp.","https://greenhavenpublishing.com/9781534562509",null,{"$f":"Table1[[#This Row],['# of Books]]*Table1[[#This Row],[QTY]]","v":0},{"$f":"Table1[[#This Row],[QTY]]*Table1[[#This Row],[School & Library Price]]","v":0}]
[null,null,23,null,null,"U.S. History","Crossing the Border","U.S. Borders","978-1-5345-6251-6",{"$f":"HYPERLINK(Table1[[#This Row],[eCommerce Hyperlink]],\"Book Weblink\")","v":"Book Weblink"},null,"Lucent Press","eBook",1,"2018","January 2018",null,null,"Author","Cathleen Small",null,null,null,null,"X","1180L","Grade 6 - 7","Grade 6 - 8","The borders between the United States and foreign countries are important locations. Goods and people cross them constantly as they move from one nation to another. Readers discover what happens at these borders and how they are protected through enlightening main text and sidebars that provide additional information. Full-color photographs are also included, helping readers visualize the borders between the United States and its neighbors. Border protection is often in the news, and readers will develop a stronger sense of why this issue is so important as they explore this timely topic.","English",34.450000000000003,27.56,"363.28'50973--dc23","64 pp.","https://greenhavenpublishing.com/9781534562516",null,{"$f":"Table1[[#This Row],['# of Books]]*Table1[[#This Row],[QTY]]","v":0},{"$f":"Table1[[#This Row],[QTY]]*Table1[[#This Row],[School & Library Price]]","v":0}]
[null,null,23,null,null,"U.S. History","Crossing the Border","U.S. Borders","978-1-5345-6281-3",{"$f":"HYPERLINK(Table1[[#This Row],[eCommerce Hyperlink]],\"Book Weblink\")","v":"Book Weblink"},null,"Lucent Press","Paperback Book",1,"2018","January 2018","Paperback","7.250 X 9.250","Author","Cathleen Small",null,null,null,null,"X","1180L","Grade 6 - 7","Grade 6 - 8","The borders between the United States and foreign countries are important locations. Goods and people cross them constantly as they move from one nation to another. Readers discover what happens at these borders and how they are protected through enlightening main text and sidebars that provide additional information. Full-color photographs are also included, helping readers visualize the borders between the United States and its neighbors. Border protection is often in the news, and readers will develop a stronger sense of why this issue is so important as they explore this timely topic.","English",16.28,13.85,"363.28'50973--dc23","64 pp.","https://greenhavenpublishing.com/9781534562813",null,{"$f":"Table1[[#This Row],['# of Books]]*Table1[[#This Row],[QTY]]","v":0},{"$f":"Table1[[#This Row],[QTY]]*Table1[[#This Row],[School & Library Price]]","v":0}]
[null,null,23,null,null,"U.S. History","Crossing the Border","Undocumented Immigrants","978-1-5345-6223-3",{"$f":"HYPERLINK(Table1[[#This Row],[eCommerce Hyperlink]],\"Book Weblink\")","v":"Book Weblink"},null,"Lucent Press","Library Bound Book",1,"2018","January 2018","Library","7.250 X 9.250","Author","Cathleen Small",null,null,null,null,"X","1180L","Grade 6 - 7","Grade 6 - 8","Who are undocumented immigrants? What happens to undocumented immigrants after they are discovered in the United States? These questions and more are answered by this comprehensive look at a hot topic that is often debated on news programs and online. The accessible, objective text and full-color photographs give readers a balanced look at this complicated issue, and detailed sidebars provide additional information. Readers will benefit from having their critical-thinking skills strengthened as they examine this challenging issue.","English",34.450000000000003,27.56,"364.1'37--dc23","64 pp.","https://greenhavenpublishing.com/9781534562233",null,{"$f":"Table1[[#This Row],['# of Books]]*Table1[[#This Row],[QTY]]","v":0},{"$f":"Table1[[#This Row],[QTY]]*Table1[[#This Row],[School & Library Price]]","v":0}]
[null,null,23,null,null,"U.S. History","Crossing the Border","Undocumented Immigrants","978-1-5345-6224-0",{"$f":"HYPERLINK(Table1[[#This Row],[eCommerce Hyperlink]],\"Book Weblink\")","v":"Book Weblink"},null,"Lucent Press","eBook",1,"2018","January 2018",null,null,"Author","Cathleen Small",null,null,null,null,"X","1180L","Grade 6 - 7","Grade 6 - 8","Who are undocumented immigrants? What happens to undocumented immigrants after they are discovered in the United States? These questions and more are answered by this comprehensive look at a hot topic that is often debated on news programs and online. The accessible, objective text and full-color photographs give readers a balanced look at this complicated issue, and detailed sidebars provide additional information. Readers will benefit from having their critical-thinking skills strengthened as they examine this challenging issue.","English",34.450000000000003,27.56,"364.1'37--dc23","64 pp.","https://greenhavenpublishing.com/9781534562240",null,{"$f":"Table1[[#This Row],['# of Books]]*Table1[[#This Row],[QTY]]","v":0},{"$f":"Table1[[#This Row],[QTY]]*Table1[[#This Row],[School & Library Price]]","v":0}]
[null,null,23,null,null,"U.S. History","Crossing the Border","Undocumented Immigrants","978-1-5345-6278-3",{"$f":"HYPERLINK(Table1[[#This Row],[eCommerce Hyperlink]],\"Book Weblink\")","v":"Book Weblink"},null,"Lucent Press","Paperback Book",1,"2018","January 2018","Paperback","7.250 X 9.250","Author","Cathleen Small",null,null,null,null,"X","1180L","Grade 6 - 7","Grade 6 - 8","Who are undocumented immigrants? What happens to undocumented immigrants after they are discovered in the United States? These questions and more are answered by this comprehensive look at a hot topic that is often debated on news programs and online. The accessible, objective text and full-color photographs give readers a balanced look at this complicated issue, and detailed sidebars provide additional information. Readers will benefit from having their critical-thinking skills strengthened as they examine this challenging issue.","English",16.28,13.85,"364.1'37--dc23","64 pp.","https://greenhavenpublishing.com/9781534562783",null,{"$f":"Table1[[#This Row],['# of Books]]*Table1[[#This Row],[QTY]]","v":0},{"$f":"Table1[[#This Row],[QTY]]*Table1[[#This Row],[School & Library Price]]","v":0}]
[null,null,23,null,null,"U.S. History","Inside American Politics","Inside American Politics","978-1-5345-6678-1",{"$f":"HYPERLINK(Table1[[#This Row],[eCommerce Hyperlink]],\"Book Weblink\")","v":"Book Weblink"},null,"Lucent Press","Library Set",6,"2019","January 2019","Library","7.250 X 9.250",null,null,null,null,null,null,null,null,"Grade 6","Grade 5 - 8","The American political system can be difficult to understand. Executive orders, filibusters, and the influence of political action committees and lobbyists aren't often discussed in detail in social studies classes, but they play a large role in how the U.S. government functions. Readers discover the facts behind these and other influential parts of American politics through age-appropriate text, informative fact boxes, and detailed sidebars. Full-color photographs give readers an inside look at how things really get done in Washington, D.C. This collection of timely topics is designed to help readers become informed and active citizens. Features include: Essential social studies curriculum topics, such as Supreme Court decisions, the three branches of U.S. government, and political compromises and deals are explained in a fresh and engaging way. Up-to-date examples give each volume the feeling of being ripped from the headlines, allowing readers to better understand current events. Discussion questions enhance critical-thinking skills and open readers' eyes to different political points of view.","English",207.6,166.08,null,"48 pp.","https://greenhavenpublishing.com/9781534566781",null,{"$f":"Table1[[#This Row],['# of Books]]*Table1[[#This Row],[QTY]]","v":0},{"$f":"Table1[[#This Row],[QTY]]*Table1[[#This Row],[School & Library Price]]","v":0}]
[null,null,23,null,null,"U.S. History","Inside American Politics","Inside American Politics","978-1-5345-6686-6",{"$f":"HYPERLINK(Table1[[#This Row],[eCommerce Hyperlink]],\"Book Weblink\")","v":"Book Weblink"},null,"Lucent Press","Single Copy Set",6,"2019","January 2019","Paperback","7.250 X 9.250",null,null,null,null,null,null,null,null,"Grade 6","Grade 5 - 8","The American political system can be difficult to understand. Executive orders, filibusters, and the influence of political action committees and lobbyists aren't often discussed in detail in social studies classes, but they play a large role in how the U.S. government functions. Readers discover the facts behind these and other influential parts of American politics through age-appropriate text, informative fact boxes, and detailed sidebars. Full-color photographs give readers an inside look at how things really get done in Washington D.C. This collection of timely topics is designed to help readers become informed and active citizens. Features include: Essential social studies curriculum topics, such as Supreme Court decisions, the three branches of U.S. government, and political compromises and deals are explained in a fresh and engaging way. Up-to-date examples give each volume the feeling of being ripped from the headlines, allowing readers to better understand current events. Discussion questions enhance critical-thinking skills and open readers' eyes to different political points of view.","English",90.3,76.8,null,"48 pp.","https://greenhavenpublishing.com/9781534566866",null,{"$f":"Table1[[#This Row],['# of Books]]*Table1[[#This Row],[QTY]]","v":0},{"$f":"Table1[[#This Row],[QTY]]*Table1[[#This Row],[School & Library Price]]","v":0}]
[null,null,23,null,null,"U.S. History","Inside American Politics","Compromises and Deals","978-1-5345-6672-9",{"$f":"HYPERLINK(Table1[[#This Row],[eCommerce Hyperlink]],\"Book Weblink\")","v":"Book Weblink"},null,"Lucent Press","Library Bound Book",1,"2019","January 2019","Library","7.250 X 9.250","Author","Charlie Samuels",null,null,null,null,"W",null,"Grade 6","Grade 5 - 8","Many pieces of important legislation are passed because of compromises and deals struck between lawmakers. The U.S. Constitution was created through a complex system of compromises, and this process continues in American government today. Readers get an inside look at this part of the political system as they discover historical and modern examples of influential compromises and deals. Sidebars and discussion questions invite readers to form their own point of view on this controversial part of the political process, and full-color photographs of famous politicians fill each page.","English",34.6,27.68,"172--dc23","48 pp.","https://greenhavenpublishing.com/9781534566729",null,{"$f":"Table1[[#This Row],['# of Books]]*Table1[[#This Row],[QTY]]","v":0},{"$f":"Table1[[#This Row],[QTY]]*Table1[[#This Row],[School & Library Price]]","v":0}]
[null,null,23,null,null,"U.S. History","Inside American Politics","Compromises and Deals","978-1-5345-6673-6",{"$f":"HYPERLINK(Table1[[#This Row],[eCommerce Hyperlink]],\"Book Weblink\")","v":"Book Weblink"},null,"Lucent Press","eBook",1,"2019","January 2019",null,null,"Author","Charlie Samuels",null,null,null,null,"W",null,"Grade 6","Grade 5 - 8","Many pieces of important legislation are passed because of compromises and deals struck between lawmakers. The U.S. Constitution was created through a complex system of compromises, and this process continues in American government today. Readers get an inside look at this part of the political system as they discover historical and modern examples of influential compromises and deals. Sidebars and discussion questions invite readers to form their own point of view on this controversial part of the political process, and full-color photographs of famous politicians fill each page.","English",34.6,27.68,"172--dc23","48 pp.","https://greenhavenpublishing.com/9781534566736",null,{"$f":"Table1[[#This Row],['# of Books]]*Table1[[#This Row],[QTY]]","v":0},{"$f":"Table1[[#This Row],[QTY]]*Table1[[#This Row],[School & Library Price]]","v":0}]
[null,null,23,null,null,"U.S. History","Inside American Politics","Compromises and Deals","978-1-5345-6671-2",{"$f":"HYPERLINK(Table1[[#This Row],[eCommerce Hyperlink]],\"Book Weblink\")","v":"Book Weblink"},null,"Lucent Press","Paperback Book",1,"2019","January 2019","Paperback","7.250 X 9.250","Author","Charlie Samuels",null,null,null,null,"W",null,"Grade 6","Grade 5 - 8","Many pieces of important legislation are passed because of compromises and deals struck between lawmakers. The U.S. Constitution was created through a complex system of compromises, and this process continues in American government today. Readers get an inside look at this part of the political system as they discover historical and modern examples of influential compromises and deals. Sidebars and discussion questions invite readers to form their own point of view on this controversial part of the political process, and full-color photographs of famous politicians fill each page.","English",15.05,12.8,"172--dc23","48 pp.","https://greenhavenpublishing.com/9781534566712",null,{"$f":"Table1[[#This Row],['# of Books]]*Table1[[#This Row],[QTY]]","v":0},{"$f":"Table1[[#This Row],[QTY]]*Table1[[#This Row],[School & Library Price]]","v":0}]
[null,null,23,null,null,"U.S. History","Inside American Politics","Executive Orders","978-1-5345-6660-6",{"$f":"HYPERLINK(Table1[[#This Row],[eCommerce Hyperlink]],\"Book Weblink\")","v":"Book Weblink"},null,"Lucent Press","Library Bound Book",1,"2019","January 2019","Library","7.250 X 9.250","Author","Charlie Samuels",null,null,null,null,"W",null,"Grade 6","Grade 5 - 8","Although the U.S. Constitution set up a system of checks and balances, the president can sometimes act without the approval of Congress. When the president issues an executive order, they act on their own to manage the federal government, and this can affect many parts of life in the United States-from immigration policies to the military. How much power does the president actually have? Readers explore the answer to this question as they learn about the history of executive orders. Sidebars and discussion questions are included to encourage readers to think critically about this essential current events topic.","English",34.6,27.68,"352.23'50973--dc23","48 pp.","https://greenhavenpublishing.com/9781534566606",null,{"$f":"Table1[[#This Row],['# of Books]]*Table1[[#This Row],[QTY]]","v":0},{"$f":"Table1[[#This Row],[QTY]]*Table1[[#This Row],[School & Library Price]]","v":0}]
[null,null,23,null,null,"U.S. History","Inside American Politics","Executive Orders","978-1-5345-6661-3",{"$f":"HYPERLINK(Table1[[#This Row],[eCommerce Hyperlink]],\"Book Weblink\")","v":"Book Weblink"},null,"Lucent Press","eBook",1,"2019","January 2019",null,null,"Author","Charlie Samuels",null,null,null,null,"W",null,"Grade 6","Grade 5 - 8","Although the U.S. Constitution set up a system of checks and balances, the president can sometimes act without the approval of Congress. When the president issues an executive order, they act on their own to manage the federal government, and this can affect many parts of life in the United States-from immigration policies to the military. How much power does the president actually have? Readers explore the answer to this question as they learn about the history of executive orders. Sidebars and discussion questions are included to encourage readers to think critically about this essential current events topic.","English",34.6,27.68,"352.23'50973--dc23","48 pp.","https://greenhavenpublishing.com/9781534566613",null,{"$f":"Table1[[#This Row],['# of Books]]*Table1[[#This Row],[QTY]]","v":0},{"$f":"Table1[[#This Row],[QTY]]*Table1[[#This Row],[School & Library Price]]","v":0}]
[null,null,23,null,null,"U.S. History","Inside American Politics","Executive Orders","978-1-5345-6659-0",{"$f":"HYPERLINK(Table1[[#This Row],[eCommerce Hyperlink]],\"Book Weblink\")","v":"Book Weblink"},null,"Lucent Press","Paperback Book",1,"2019","January 2019","Paperback","7.250 X 9.250","Author","Charlie Samuels",null,null,null,null,"W",null,"Grade 6","Grade 5 - 8","Although the U.S. Constitution set up a system of checks and balances, the president can sometimes act without the approval of Congress. When the president issues an executive order, they act on their own to manage the federal government, and this can affect many parts of life in the United States-from immigration policies to the military. How much power does the president actually have? Readers explore the answer to this question as they learn about the history of executive orders. Sidebars and discussion questions are included to encourage readers to think critically about this essential current events topic.","English",15.05,12.8,"352.23'50973--dc23","48 pp.","https://greenhavenpublishing.com/9781534566590",null,{"$f":"Table1[[#This Row],['# of Books]]*Table1[[#This Row],[QTY]]","v":0},{"$f":"Table1[[#This Row],[QTY]]*Table1[[#This Row],[School & Library Price]]","v":0}]
[null,null,23,null,null,"U.S. History","Inside American Politics","Filibusters","978-1-5345-6669-9",{"$f":"HYPERLINK(Table1[[#This Row],[eCommerce Hyperlink]],\"Book Weblink\")","v":"Book Weblink"},null,"Lucent Press","Library Bound Book",1,"2019","January 2019","Library","7.250 X 9.250","Author","Anita Croy",null,null,null,null,"W",null,"Grade 6","Grade 5 - 8","Filibusters are often covered by the news media, but what is their purpose? How long can they last, and what are the rules that must be followed during a filibuster? Readers discover the answers to these and other common questions about this unique part of American politics as they explore some of the most famous filibusters in U.S. history, including recent filibusters by Wendy Davis and Nancy Pelosi. Sidebars encourage readers to become more active citizens, and discussion questions allow young people to examine their own opinions about the American political process.","English",34.6,27.68,"320.473'04--dc23","48 pp.","https://greenhavenpublishing.com/9781534566699",null,{"$f":"Table1[[#This Row],['# of Books]]*Table1[[#This Row],[QTY]]","v":0},{"$f":"Table1[[#This Row],[QTY]]*Table1[[#This Row],[School & Library Price]]","v":0}]
[null,null,23,null,null,"U.S. History","Inside American Politics","Filibusters","978-1-5345-6670-5",{"$f":"HYPERLINK(Table1[[#This Row],[eCommerce Hyperlink]],\"Book Weblink\")","v":"Book Weblink"},null,"Lucent Press","eBook",1,"2019","January 2019",null,null,"Author","Anita Croy",null,null,null,null,"W",null,"Grade 6","Grade 5 - 8","Filibusters are often covered by the news media, but what is their purpose? How long can they last, and what are the rules that must be followed during a filibuster? Readers discover the answers to these and other common questions about this unique part of American politics as they explore some of the most famous filibusters in U.S. history, including recent filibusters by Wendy Davis and Nancy Pelosi. Sidebars encourage readers to become more active citizens, and discussion questions allow young people to examine their own opinions about the American political process.","English",34.6,27.68,"320.473'04--dc23","48 pp.","https://greenhavenpublishing.com/9781534566705",null,{"$f":"Table1[[#This Row],['# of Books]]*Table1[[#This Row],[QTY]]","v":0},{"$f":"Table1[[#This Row],[QTY]]*Table1[[#This Row],[School & Library Price]]","v":0}]
[null,null,23,null,null,"U.S. History","Inside American Politics","Filibusters","978-1-5345-6668-2",{"$f":"HYPERLINK(Table1[[#This Row],[eCommerce Hyperlink]],\"Book Weblink\")","v":"Book Weblink"},null,"Lucent Press","Paperback Book",1,"2019","January 2019","Paperback","7.250 X 9.250","Author","Anita Croy",null,null,null,null,"W",null,"Grade 6","Grade 5 - 8","Filibusters are often covered by the news media, but what is their purpose? How long can they last, and what are the rules that must be followed during a filibuster? Readers discover the answers to these and other common questions about this unique part of American politics as they explore some of the most famous filibusters in U.S. history, including recent filibusters by Wendy Davis and Nancy Pelosi. Sidebars encourage readers to become more active citizens, and discussion questions allow young people to examine their own opinions about the American political process.","English",15.05,12.8,"320.473'04--dc23","48 pp.","https://greenhavenpublishing.com/9781534566682",null,{"$f":"Table1[[#This Row],['# of Books]]*Table1[[#This Row],[QTY]]","v":0},{"$f":"Table1[[#This Row],[QTY]]*Table1[[#This Row],[School & Library Price]]","v":0}]
[null,null,23,null,null,"U.S. History","Inside American Politics","Lobbyists","978-1-5345-6663-7",{"$f":"HYPERLINK(Table1[[#This Row],[eCommerce Hyperlink]],\"Book Weblink\")","v":"Book Weblink"},null,"Lucent Press","Library Bound Book",1,"2019","January 2019","Library","7.250 X 9.250","Author","Anita Croy",null,null,null,null,"W",null,"Grade 6","Grade 5 - 8","Lobbyists have a lot of political power, and they're often in the news. However, the role of lobbyists is not a focus of many social studies or civics classes, so students don't often get a full picture of who these people are and how they influence policies that affect Americans' daily lives. Readers are invited to learn more about lobbyists as they explore informative text on this important political topic. Full-color photographs and sidebars enhance the reading experience, and discussion questions help readers sharpen their critical-thinking skills as they closely examine different points of view about lobbyists.","English",34.6,27.68,"328.73'078--dc23","48 pp.","https://greenhavenpublishing.com/9781534566637",null,{"$f":"Table1[[#This Row],['# of Books]]*Table1[[#This Row],[QTY]]","v":0},{"$f":"Table1[[#This Row],[QTY]]*Table1[[#This Row],[School & Library Price]]","v":0}]
[null,null,23,null,null,"U.S. History","Inside American Politics","Lobbyists","978-1-5345-6664-4",{"$f":"HYPERLINK(Table1[[#This Row],[eCommerce Hyperlink]],\"Book Weblink\")","v":"Book Weblink"},null,"Lucent Press","eBook",1,"2019","January 2019",null,null,"Author","Anita Croy",null,null,null,null,"W",null,"Grade 6","Grade 5 - 8","Lobbyists have a lot of political power, and they're often in the news. However, the role of lobbyists is not a focus of many social studies or civics classes, so students don't often get a full picture of who these people are and how they influence policies that affect Americans' daily lives. Readers are invited to learn more about lobbyists as they explore informative text on this important political topic. Full-color photographs and sidebars enhance the reading experience, and discussion questions help readers sharpen their critical-thinking skills as they closely examine different points of view about lobbyists.","English",34.6,27.68,"328.73'078--dc23","48 pp.","https://greenhavenpublishing.com/9781534566644",null,{"$f":"Table1[[#This Row],['# of Books]]*Table1[[#This Row],[QTY]]","v":0},{"$f":"Table1[[#This Row],[QTY]]*Table1[[#This Row],[School & Library Price]]","v":0}]
[null,null,23,null,null,"U.S. History","Inside American Politics","Lobbyists","978-1-5345-6662-0",{"$f":"HYPERLINK(Table1[[#This Row],[eCommerce Hyperlink]],\"Book Weblink\")","v":"Book Weblink"},null,"Lucent Press","Paperback Book",1,"2019","January 2019","Paperback","7.250 X 9.250","Author","Anita Croy",null,null,null,null,"W",null,"Grade 6","Grade 5 - 8","Lobbyists have a lot of political power, and they're often in the news. However, the role of lobbyists is not a focus of many social studies or civics classes, so students don't often get a full picture of who these people are and how they influence policies that affect Americans' daily lives. Readers are invited to learn more about lobbyists as they explore informative text on this important political topic. Full-color photographs and sidebars enhance the reading experience, and discussion questions help readers sharpen their critical-thinking skills as they closely examine different points of view about lobbyists.","English",15.05,12.8,"328.73'078--dc23","48 pp.","https://greenhavenpublishing.com/9781534566620",null,{"$f":"Table1[[#This Row],['# of Books]]*Table1[[#This Row],[QTY]]","v":0},{"$f":"Table1[[#This Row],[QTY]]*Table1[[#This Row],[School & Library Price]]","v":0}]
[null,null,23,null,null,"U.S. History","Inside American Politics","Political Action Committees","978-1-5345-6666-8",{"$f":"HYPERLINK(Table1[[#This Row],[eCommerce Hyperlink]],\"Book Weblink\")","v":"Book Weblink"},null,"Lucent Press","Library Bound Book",1,"2019","January 2019","Library","7.250 X 9.250","Author","Charlie Samuels",null,null,null,null,"W",null,"Grade 6","Grade 5 - 8","Political action committees, campaign finance reform, and Super PACs are often discussed on the news, but the reasons why they are important are often difficult to understand. Through accessible language and relevant examples and photographs, readers discover the history of political action committees and how they continue to influence American politics. Discussion questions are included to strengthen critical-thinking skills, and sidebars encourage readers to see how individual citizens can continue to play a part in the political process even though they don't have the financial influence of political action committees.","English",34.6,27.68,"324'.40973--dc23","48 pp.","https://greenhavenpublishing.com/9781534566668",null,{"$f":"Table1[[#This Row],['# of Books]]*Table1[[#This Row],[QTY]]","v":0},{"$f":"Table1[[#This Row],[QTY]]*Table1[[#This Row],[School & Library Price]]","v":0}]
[null,null,23,null,null,"U.S. History","Inside American Politics","Political Action Committees","978-1-5345-6667-5",{"$f":"HYPERLINK(Table1[[#This Row],[eCommerce Hyperlink]],\"Book Weblink\")","v":"Book Weblink"},null,"Lucent Press","eBook",1,"2019","January 2019",null,null,"Author","Charlie Samuels",null,null,null,null,"W",null,"Grade 6","Grade 5 - 8","Political action committees, campaign finance reform, and Super PACs are often discussed on the news, but the reasons why they are important are often difficult to understand. Through accessible language and relevant examples and photographs, readers discover the history of political action committees and how they continue to influence American politics. Discussion questions are included to strengthen critical-thinking skills, and sidebars encourage readers to see how individual citizens can continue to play a part in the political process even though they don't have the financial influence of political action committees.","English",34.6,27.68,"324'.40973--dc23","48 pp.","https://greenhavenpublishing.com/9781534566675",null,{"$f":"Table1[[#This Row],['# of Books]]*Table1[[#This Row],[QTY]]","v":0},{"$f":"Table1[[#This Row],[QTY]]*Table1[[#This Row],[School & Library Price]]","v":0}]
[null,null,23,null,null,"U.S. History","Inside American Politics","Political Action Committees","978-1-5345-6665-1",{"$f":"HYPERLINK(Table1[[#This Row],[eCommerce Hyperlink]],\"Book Weblink\")","v":"Book Weblink"},null,"Lucent Press","Paperback Book",1,"2019","January 2019","Paperback","7.250 X 9.250","Author","Charlie Samuels",null,null,null,null,"W",null,"Grade 6","Grade 5 - 8","Political action committees, campaign finance reform, and Super PACs are often discussed on the news, but the reasons why they are important are often difficult to understand. Through accessible language and relevant examples and photographs, readers discover the history of political action committees and how they continue to influence American politics. Discussion questions are included to strengthen critical-thinking skills, and sidebars encourage readers to see how individual citizens can continue to play a part in the political process even though they don't have the financial influence of political action committees.","English",15.05,12.8,"324'.40973--dc23","48 pp.","https://greenhavenpublishing.com/9781534566651",null,{"$f":"Table1[[#This Row],['# of Books]]*Table1[[#This Row],[QTY]]","v":0},{"$f":"Table1[[#This Row],[QTY]]*Table1[[#This Row],[School & Library Price]]","v":0}]
[null,null,23,null,null,"U.S. History","Inside American Politics","Supreme Court Decisions","978-1-5345-6675-0",{"$f":"HYPERLINK(Table1[[#This Row],[eCommerce Hyperlink]],\"Book Weblink\")","v":"Book Weblink"},null,"Lucent Press","Library Bound Book",1,"2019","January 2019","Library","7.250 X 9.250","Author","Anita Croy",null,null,null,null,"W",null,"Grade 6","Grade 5 - 8","The Supreme Court is tasked with interpreting the Constitution. How do they do this, and how do the decisions they make impact the lives of ordinary American citizens? The answers to these and other important questions about the role of the Supreme Court are found through accessible text supplemented by detailed sidebars, full-color photographs, and discussion questions designed to strengthen critical-thinking skills. Supreme Court decisions have impacted marriage laws, civil rights, and many other parts of American life throughout the country's history, and understanding these decisions helps readers become more informed citizens.","English",34.6,27.68,"347.73'26--dc23","48 pp.","https://greenhavenpublishing.com/9781534566750",null,{"$f":"Table1[[#This Row],['# of Books]]*Table1[[#This Row],[QTY]]","v":0},{"$f":"Table1[[#This Row],[QTY]]*Table1[[#This Row],[School & Library Price]]","v":0}]
[null,null,23,null,null,"U.S. History","Inside American Politics","Supreme Court Decisions","978-1-5345-6676-7",{"$f":"HYPERLINK(Table1[[#This Row],[eCommerce Hyperlink]],\"Book Weblink\")","v":"Book Weblink"},null,"Lucent Press","eBook",1,"2019","January 2019",null,null,"Author","Anita Croy",null,null,null,null,"W",null,"Grade 6","Grade 5 - 8","The Supreme Court is tasked with interpreting the Constitution. How do they do this, and how do the decisions they make impact the lives of ordinary American citizens? The answers to these and other important questions about the role of the Supreme Court are found through accessible text supplemented by detailed sidebars, full-color photographs, and discussion questions designed to strengthen critical-thinking skills. Supreme Court decisions have impacted marriage laws, civil rights, and many other parts of American life throughout the country's history, and understanding these decisions helps readers become more informed citizens.","English",34.6,27.68,"347.73'26--dc23","48 pp.","https://greenhavenpublishing.com/9781534566767",null,{"$f":"Table1[[#This Row],['# of Books]]*Table1[[#This Row],[QTY]]","v":0},{"$f":"Table1[[#This Row],[QTY]]*Table1[[#This Row],[School & Library Price]]","v":0}]
[null,null,23,null,null,"U.S. History","Inside American Politics","Supreme Court Decisions","978-1-5345-6674-3",{"$f":"HYPERLINK(Table1[[#This Row],[eCommerce Hyperlink]],\"Book Weblink\")","v":"Book Weblink"},null,"Lucent Press","Paperback Book",1,"2019","January 2019","Paperback","7.250 X 9.250","Author","Anita Croy",null,null,null,null,"W",null,"Grade 6","Grade 5 - 8","The Supreme Court is tasked with interpreting the Constitution. How do they do this, and how do the decisions they make impact the lives of ordinary American citizens? The answers to these and other important questions about the role of the Supreme Court are found through accessible text supplemented by detailed sidebars, full-color photographs, and discussion questions designed to strengthen critical-thinking skills. Supreme Court decisions have impacted marriage laws, civil rights, and many other parts of American life throughout the country's history, and understanding these decisions helps readers become more informed citizens.","English",15.05,12.8,"347.73'26--dc23","48 pp.","https://greenhavenpublishing.com/9781534566743",null,{"$f":"Table1[[#This Row],['# of Books]]*Table1[[#This Row],[QTY]]","v":0},{"$f":"Table1[[#This Row],[QTY]]*Table1[[#This Row],[School & Library Price]]","v":0}]
[null,null,23,null,null,"U.S. History","Lucent Library of Black History","Lucent Library of Black History: Set 1","978-1-5345-6166-3",{"$f":"HYPERLINK(Table1[[#This Row],[eCommerce Hyperlink]],\"Book Weblink\")","v":"Book Weblink"},null,"Lucent Press","Library Set",6,"2018","August 2017","Library","7.000 X 9.000",null,null,null,null,null,null,null,null,"Grade 7","Grade 7 - 10","Black history is an essential aspect of American history, but the contributions of and struggles faced by African Americans often do not get sufficient attention in discussions of the history of the United States as a whole. As readers explore each topic, a clearer picture begins to emerge of the African American experience. Engaging text, including informative sidebars and annotated quotes, examines the rich history of black inventors, musicians, politicians, writers, entrepreneurs, filmmakers, and actors. Their stories are enhanced by historical images and current photographs, as well as a detailed timeline of relevant events.","English",242.4,193.92,null,"104 pp.","https://greenhavenpublishing.com/9781534561663",null,{"$f":"Table1[[#This Row],['# of Books]]*Table1[[#This Row],[QTY]]","v":0},{"$f":"Table1[[#This Row],[QTY]]*Table1[[#This Row],[School & Library Price]]","v":0}]
[null,null,23,null,null,"U.S. History","Lucent Library of Black History","African American Entrepreneurs: Stories of Success","978-1-5345-6079-6",{"$f":"HYPERLINK(Table1[[#This Row],[eCommerce Hyperlink]],\"Book Weblink\")","v":"Book Weblink"},null,"Lucent Press","Library Bound Book",1,"2018","August 2017","Library","7.000 X 9.000","Author","Philip Wolny",null,null,null,null,"Z","1190L","Grade 7","Grade 7 - 10","Starting a business is inherently risky, but it has historically been much harder for African Americans due to the systemic racism they face in many different areas. However, many black entrepreneurs have overcome those barriers to create successful businesses, working harder than their white counterparts to achieve similar results. Readers will learn about the history of discrimination against African Americans in the business world and how it has been and still can be combated. Historical and contemporary photographs and a comprehensive timeline shine a spotlight on many African American entrepreneurs who have changed the world.","English",40.4,32.32,"338'.0089'96073--dc23","104 pp.","https://greenhavenpublishing.com/9781534560796",null,{"$f":"Table1[[#This Row],['# of Books]]*Table1[[#This Row],[QTY]]","v":0},{"$f":"Table1[[#This Row],[QTY]]*Table1[[#This Row],[School & Library Price]]","v":0}]
[null,null,23,null,null,"U.S. History","Lucent Library of Black History","African American Entrepreneurs: Stories of Success","978-1-5345-6080-2",{"$f":"HYPERLINK(Table1[[#This Row],[eCommerce Hyperlink]],\"Book Weblink\")","v":"Book Weblink"},null,"Lucent Press","eBook",1,"2018","August 2017",null,null,"Author","Philip Wolny",null,null,null,null,"Z","1190L","Grade 7","Grade 7 - 10","Starting a business is inherently risky, but it has historically been much harder for African Americans due to the systemic racism they face in many different areas. However, many black entrepreneurs have overcome those barriers to create successful businesses, working harder than their white counterparts to achieve similar results. Readers will learn about the history of discrimination against African Americans in the business world and how it has been and still can be combated. Historical and contemporary photographs and a comprehensive timeline shine a spotlight on many African American entrepreneurs who have changed the world.","English",40.4,32.32,"338'.0089'96073--dc23","104 pp.","https://greenhavenpublishing.com/9781534560802",null,{"$f":"Table1[[#This Row],['# of Books]]*Table1[[#This Row],[QTY]]","v":0},{"$f":"Table1[[#This Row],[QTY]]*Table1[[#This Row],[School & Library Price]]","v":0}]
[null,null,23,null,null,"U.S. History","Lucent Library of Black History","African American Inventors: Overcoming Challenges to Change America","978-1-5345-6071-0",{"$f":"HYPERLINK(Table1[[#This Row],[eCommerce Hyperlink]],\"Book Weblink\")","v":"Book Weblink"},null,"Lucent Press","Library Bound Book",1,"2018","August 2017","Library","7.000 X 9.000","Author","Sophie Washburne",null,null,null,null,"Z","1130L","Grade 7","Grade 7 - 10","Many of the products we use every day were invented by African Americans, although these inventors unfortunately have not often been given credit for their contributions. Readers will take a fascinating look at the black men and women who have helped shape the world as we know it today with their inventions. Engaging text presents a discussion of the lives of prominent black inventors, including the struggles they dealt with in the past and continue to face today. A timeline of important dates, historical and contemporary images, and informative sidebars enhance this frequently overlooked area of history.","English",40.4,32.32,"609.2/396073--dc23","104 pp.","https://greenhavenpublishing.com/9781534560710",null,{"$f":"Table1[[#This Row],['# of Books]]*Table1[[#This Row],[QTY]]","v":0},{"$f":"Table1[[#This Row],[QTY]]*Table1[[#This Row],[School & Library Price]]","v":0}]
[null,null,23,null,null,"U.S. History","Lucent Library of Black History","African American Inventors: Overcoming Challenges to Change America","978-1-5345-6072-7",{"$f":"HYPERLINK(Table1[[#This Row],[eCommerce Hyperlink]],\"Book Weblink\")","v":"Book Weblink"},null,"Lucent Press","eBook",1,"2018","August 2017",null,null,"Author","Sophie Washburne",null,null,null,null,"Z","1130L","Grade 7","Grade 7 - 10","Many of the products we use every day were invented by African Americans, although these inventors unfortunately have not often been given credit for their contributions. Readers will take a fascinating look at the black men and women who have helped shape the world as we know it today with their inventions. Engaging text presents a discussion of the lives of prominent black inventors, including the struggles they dealt with in the past and continue to face today. A timeline of important dates, historical and contemporary images, and informative sidebars enhance this frequently overlooked area of history.","English",40.4,32.32,"609.2/396073--dc23","104 pp.","https://greenhavenpublishing.com/9781534560727",null,{"$f":"Table1[[#This Row],['# of Books]]*Table1[[#This Row],[QTY]]","v":0},{"$f":"Table1[[#This Row],[QTY]]*Table1[[#This Row],[School & Library Price]]","v":0}]
[null,null,23,null,null,"U.S. History","Lucent Library of Black History","African American Literature: Sharing Powerful Stories","978-1-5345-6077-2",{"$f":"HYPERLINK(Table1[[#This Row],[eCommerce Hyperlink]],\"Book Weblink\")","v":"Book Weblink"},null,"Lucent Press","Library Bound Book",1,"2018","August 2017","Library","7.000 X 9.000","Author","Meghan Sharif",null,null,null,null,"Z","1170L","Grade 7","Grade 7 - 10","Since the 18th century, African Americans have been contributing important works to American literature. However, their writing has been treated differently than those produced by white authors. Readers discover the challenges black authors have faced in having their work published and being taken seriously by critics and readers alike. Engaging sidebars and detailed photographs augment this comprehensive overview of the racism that still persists in the publishing industry.","English",40.4,32.32,"810.9'9287--dc23","104 pp.","https://greenhavenpublishing.com/9781534560772",null,{"$f":"Table1[[#This Row],['# of Books]]*Table1[[#This Row],[QTY]]","v":0},{"$f":"Table1[[#This Row],[QTY]]*Table1[[#This Row],[School & Library Price]]","v":0}]
[null,null,23,null,null,"U.S. History","Lucent Library of Black History","African American Literature: Sharing Powerful Stories","978-1-5345-6078-9",{"$f":"HYPERLINK(Table1[[#This Row],[eCommerce Hyperlink]],\"Book Weblink\")","v":"Book Weblink"},null,"Lucent Press","eBook",1,"2018","August 2017",null,null,"Author","Meghan Sharif",null,null,null,null,"Z","1170L","Grade 7","Grade 7 - 10","Since the 18th century, African Americans have been contributing important works to American literature. However, their writing has been treated differently than those produced by white authors. Readers discover the challenges black authors have faced in having their work published and being taken seriously by critics and readers alike. Engaging sidebars and detailed photographs augment this comprehensive overview of the racism that still persists in the publishing industry.","English",40.4,32.32,"810.9'9287--dc23","104 pp.","https://greenhavenpublishing.com/9781534560789",null,{"$f":"Table1[[#This Row],['# of Books]]*Table1[[#This Row],[QTY]]","v":0},{"$f":"Table1[[#This Row],[QTY]]*Table1[[#This Row],[School & Library Price]]","v":0}]
[null,null,23,null,null,"U.S. History","Lucent Library of Black History","African Americans in Film: Issues of Race in Hollywood","978-1-5345-6081-9",{"$f":"HYPERLINK(Table1[[#This Row],[eCommerce Hyperlink]],\"Book Weblink\")","v":"Book Weblink"},null,"Lucent Press","Library Bound Book",1,"2018","August 2017","Library","7.000 X 9.000","Author","Camille R. Michaels",null,null,null,null,"Z","1240L","Grade 7","Grade 7 - 10","The whitewashing of roles in films and the lack of representation at awards shows such as the Oscars are only two of the career obstacles African American actors and filmmakers have historically faced. Although blackface is now taboo, racism is still prevalent in Hollywood. Readers explore the causes of the systemic oppression that has made it difficult for African Americans to break into the movie business. Through full-color photographs and primary sources, readers will learn how to become more thoughtful viewers of movies and television.","English",40.4,32.32,"791.43’652996073--dc23","104 pp.","https://greenhavenpublishing.com/9781534560819",null,{"$f":"Table1[[#This Row],['# of Books]]*Table1[[#This Row],[QTY]]","v":0},{"$f":"Table1[[#This Row],[QTY]]*Table1[[#This Row],[School & Library Price]]","v":0}]
[null,null,23,null,null,"U.S. History","Lucent Library of Black History","African Americans in Film: Issues of Race in Hollywood","978-1-5345-6082-6",{"$f":"HYPERLINK(Table1[[#This Row],[eCommerce Hyperlink]],\"Book Weblink\")","v":"Book Weblink"},null,"Lucent Press","eBook",1,"2018","August 2017",null,null,"Author","Camille R. Michaels",null,null,null,null,"Z","1240L","Grade 7","Grade 7 - 10","The whitewashing of roles in films and the lack of representation at awards shows such as the Oscars are only two of the career obstacles African American actors and filmmakers have historically faced. Although blackface is now taboo, racism is still prevalent in Hollywood. Readers explore the causes of the systemic oppression that has made it difficult for African Americans to break into the movie business. Through full-color photographs and primary sources, readers will learn how to become more thoughtful viewers of movies and television.","English",40.4,32.32,"791.43’652996073--dc23","104 pp.","https://greenhavenpublishing.com/9781534560826",null,{"$f":"Table1[[#This Row],['# of Books]]*Table1[[#This Row],[QTY]]","v":0},{"$f":"Table1[[#This Row],[QTY]]*Table1[[#This Row],[School & Library Price]]","v":0}]
[null,null,23,null,null,"U.S. History","Lucent Library of Black History","African Americans in Political Office: From the Civil War to the White House","978-1-5345-6075-8",{"$f":"HYPERLINK(Table1[[#This Row],[eCommerce Hyperlink]],\"Book Weblink\")","v":"Book Weblink"},null,"Lucent Press","Library Bound Book",1,"2018","August 2017","Library","7.000 X 9.000","Author","Barbara M. Linde",null,null,null,null,"Z","1190L","Grade 7","Grade 7 - 10","Barack Obama made history when he became president in 2008, but his election was made possible partially by the hard work of the many African American politicians who came before him. Even before the abolition of slavery, African Americans held political office, although they have not had an easy time of it. This historical overview of black politicians in the United States enhances classroom learning by bringing to light little-known facts, supported by primary sources and a timeline of important events.","English",40.4,32.32,"973'.0496073--dc23","104 pp.","https://greenhavenpublishing.com/9781534560758",null,{"$f":"Table1[[#This Row],['# of Books]]*Table1[[#This Row],[QTY]]","v":0},{"$f":"Table1[[#This Row],[QTY]]*Table1[[#This Row],[School & Library Price]]","v":0}]
[null,null,23,null,null,"U.S. History","Lucent Library of Black History","African Americans in Political Office: From the Civil War to the White House","978-1-5345-6076-5",{"$f":"HYPERLINK(Table1[[#This Row],[eCommerce Hyperlink]],\"Book Weblink\")","v":"Book Weblink"},null,"Lucent Press","eBook",1,"2018","August 2017",null,null,"Author","Barbara M. Linde",null,null,null,null,"Z","1190L","Grade 7","Grade 7 - 10","Barack Obama made history when he became president in 2008, but his election was made possible partially by the hard work of the many African American politicians who came before him. Even before the abolition of slavery, African Americans held political office, although they have not had an easy time of it. This historical overview of black politicians in the United States enhances classroom learning by bringing to light little-known facts, supported by primary sources and a timeline of important events.","English",40.4,32.32,"973'.0496073--dc23","104 pp.","https://greenhavenpublishing.com/9781534560765",null,{"$f":"Table1[[#This Row],['# of Books]]*Table1[[#This Row],[QTY]]","v":0},{"$f":"Table1[[#This Row],[QTY]]*Table1[[#This Row],[School & Library Price]]","v":0}]
[null,null,23,null,null,"U.S. History","Lucent Library of Black History","The Story of African American Music","978-1-5345-6073-4",{"$f":"HYPERLINK(Table1[[#This Row],[eCommerce Hyperlink]],\"Book Weblink\")","v":"Book Weblink"},null,"Lucent Press","Library Bound Book",1,"2018","August 2017","Library","7.000 X 9.000","Author","Andrew Pina",null,null,null,null,"Z","1170L","Grade 7","Grade 7 - 10","The influence of African Americans on music in the United States cannot be overstated. A large variety of musical genres owe their beginnings to black musicians. Jazz, rap, funk, rhythm and blues, and even techno have roots in African American culture. This volume chronicles the history of African American music, with spotlights on influential black musicians of the past and present. Historical and contemporary photographs, including primary sources, contribute to an in-depth look at this essential part of American musical history.","English",40.4,32.32,"780.89/96073--dc23","104 pp.","https://greenhavenpublishing.com/9781534560734",null,{"$f":"Table1[[#This Row],['# of Books]]*Table1[[#This Row],[QTY]]","v":0},{"$f":"Table1[[#This Row],[QTY]]*Table1[[#This Row],[School & Library Price]]","v":0}]
[null,null,23,null,null,"U.S. History","Lucent Library of Black History","The Story of African American Music","978-1-5345-6074-1",{"$f":"HYPERLINK(Table1[[#This Row],[eCommerce Hyperlink]],\"Book Weblink\")","v":"Book Weblink"},null,"Lucent Press","eBook",1,"2018","August 2017",null,null,"Author","Andrew Pina",null,null,null,null,"Z","1170L","Grade 7","Grade 7 - 10","The influence of African Americans on music in the United States cannot be overstated. A large variety of musical genres owe their beginnings to black musicians. Jazz, rap, funk, rhythm and blues, and even techno have roots in African American culture. This volume chronicles the history of African American music, with spotlights on influential black musicians of the past and present. Historical and contemporary photographs, including primary sources, contribute to an in-depth look at this essential part of American musical history.","English",40.4,32.32,"780.89/96073--dc23","104 pp.","https://greenhavenpublishing.com/9781534560741",null,{"$f":"Table1[[#This Row],['# of Books]]*Table1[[#This Row],[QTY]]","v":0},{"$f":"Table1[[#This Row],[QTY]]*Table1[[#This Row],[School & Library Price]]","v":0}]
[null,null,23,null,null,"U.S. History","Lucent Library of Black History","Lucent Library of Black History: Set 2","978-1-5345-6256-1",{"$f":"HYPERLINK(Table1[[#This Row],[eCommerce Hyperlink]],\"Book Weblink\")","v":"Book Weblink"},null,"Lucent Press","Library Set",6,"2018","January 2018","Library","7.000 X 9.000",null,null,null,null,null,null,null,null,"Grade 7","Grade 7 - 10","The experiences of and contributions made by African Americans are essential parts of the history of the United States. However, their compelling stories often do not get the attention they deserve as vital pieces of the American narrative. As readers explore crucial moments and figures in black history, they begin to see a clearer picture of the African American experience. This picture is painted in vibrant detail thanks to engaging texts, annotated quotes, informative sidebars, and both historical and contemporary images. Primary sources and timelines are included to enhance the reading experience. Features include: Topics present a comprehensive overview of black history from slavery to the civil rights movement to the work being done in the present by black scientists and engineers. The texts support and enrich what is taught in social studies classes. Readers are inspired to seek out more stories that have been hidden from public knowledge, developing a more passionate and personal interest in history. Topics highlight the many ways African Americans have fought for and continue to fight for equality. Encourages readers to fight against injustice and intolerance in the world around them using their unique strengths.","English",242.4,193.92,null,"104 pp.","https://greenhavenpublishing.com/9781534562561",null,{"$f":"Table1[[#This Row],['# of Books]]*Table1[[#This Row],[QTY]]","v":0},{"$f":"Table1[[#This Row],[QTY]]*Table1[[#This Row],[School & Library Price]]","v":0}]
[null,null,23,null,null,"U.S. History","Lucent Library of Black History","Lucent Library of Black History (Spring 2018)","978-1-5345-6320-9",{"$f":"HYPERLINK(Table1[[#This Row],[eCommerce Hyperlink]],\"Book Weblink\")","v":"Book Weblink"},null,"Lucent Press","Single Copy Set",6,"2018","January 2018","Paperback","7.000 X 9.000",null,null,null,null,null,null,null,null,"Grade 7","Grade 7 - 10","The experiences of and contributions made by African Americans are essential parts of the history of the United States. However, their compelling stories often do not get the attention they deserve as vital pieces of the American narrative. As readers explore crucial moments and figures in black history, they begin to see a clearer picture of the African American experience. This picture is painted in vibrant detail thanks to engaging texts, annotated quotes, informative sidebars, and both historical and contemporary images. Primary sources and timelines are included to enhance the reading experience. Features include: Topics present a comprehensive overview of black history from slavery to the civil rights movement to the work being done in the present by black scientists and engineers. The texts support and enrich what is taught in social studies classes. Readers are inspired to seek out more stories that have been hidden from public knowledge, developing a more passionate and personal interest in history. Topics highlight the many ways African Americans have fought for and continue to fight for equality. Encourages readers to fight against injustice and intolerance in the world around them using their unique strengths.","English",125.94,107.1,null,"104 pp.","https://greenhavenpublishing.com/9781534563209",null,{"$f":"Table1[[#This Row],['# of Books]]*Table1[[#This Row],[QTY]]","v":0},{"$f":"Table1[[#This Row],[QTY]]*Table1[[#This Row],[School & Library Price]]","v":0}]
[null,null,23,null,null,"U.S. History","Lucent Library of Black History","Freedom By Force: The History of Slave Rebellions","978-1-5345-6235-6",{"$f":"HYPERLINK(Table1[[#This Row],[eCommerce Hyperlink]],\"Book Weblink\")","v":"Book Weblink"},null,"Lucent Press","Library Bound Book",1,"2018","January 2018","Library","7.000 X 9.000","Author","Therese Harasymiw",null,null,null,null,"Z","1090L","Grade 7","Grade 7 - 10","When people are routinely and systematically oppressed for years, it is only logical that they eventually rise up against their oppressors. For African slaves in North America, these rebellions were largely unsuccessful. Nevertheless, the anger and uprisings that came from people who wanted their freedom and were willing to fight for it are important parts of the story of the fight to end slavery. Readers get a deeper understanding of crucial slave rebellions throughout history through thoroughly researched text, primary sources, and topical photographs.","English",40.4,32.32,"306.3'620973--dc23","104 pp.","https://greenhavenpublishing.com/9781534562356",null,{"$f":"Table1[[#This Row],['# of Books]]*Table1[[#This Row],[QTY]]","v":0},{"$f":"Table1[[#This Row],[QTY]]*Table1[[#This Row],[School & Library Price]]","v":0}]
[null,null,23,null,null,"U.S. History","Lucent Library of Black History","Freedom By Force: The History of Slave Rebellions","978-1-5345-6236-3",{"$f":"HYPERLINK(Table1[[#This Row],[eCommerce Hyperlink]],\"Book Weblink\")","v":"Book Weblink"},null,"Lucent Press","eBook",1,"2018","January 2018",null,null,"Author","Therese Harasymiw",null,null,null,null,"Z","1090L","Grade 7","Grade 7 - 10","When people are routinely and systematically oppressed for years, it is only logical that they eventually rise up against their oppressors. For African slaves in North America, these rebellions were largely unsuccessful. Nevertheless, the anger and uprisings that came from people who wanted their freedom and were willing to fight for it are important parts of the story of the fight to end slavery. Readers get a deeper understanding of crucial slave rebellions throughout history through thoroughly researched text, primary sources, and topical photographs.","English",40.4,32.32,"306.3'620973--dc23","104 pp.","https://greenhavenpublishing.com/9781534562363",null,{"$f":"Table1[[#This Row],['# of Books]]*Table1[[#This Row],[QTY]]","v":0},{"$f":"Table1[[#This Row],[QTY]]*Table1[[#This Row],[School & Library Price]]","v":0}]
[null,null,23,null,null,"U.S. History","Lucent Library of Black History","Freedom By Force: The History of Slave Rebellions","978-1-5345-6294-3",{"$f":"HYPERLINK(Table1[[#This Row],[eCommerce Hyperlink]],\"Book Weblink\")","v":"Book Weblink"},null,"Lucent Press","Paperback Book",1,"2018","January 2018","Paperback","7.000 X 9.000","Author","Therese Harasymiw",null,null,null,null,"Z","1090L","Grade 7","Grade 7 - 10","When people are routinely and systematically oppressed for years, it is only logical that they eventually rise up against their oppressors. For African slaves in North America, these rebellions were largely unsuccessful. Nevertheless, the anger and uprisings that came from people who wanted their freedom and were willing to fight for it are important parts of the story of the fight to end slavery. Readers get a deeper understanding of crucial slave rebellions throughout history through thoroughly researched text, primary sources, and topical photographs.","English",20.99,17.850000000000001,"306.3'620973--dc23","104 pp.","https://greenhavenpublishing.com/9781534562943",null,{"$f":"Table1[[#This Row],['# of Books]]*Table1[[#This Row],[QTY]]","v":0},{"$f":"Table1[[#This Row],[QTY]]*Table1[[#This Row],[School & Library Price]]","v":0}]
[null,null,23,null,null,"U.S. History","Lucent Library of Black History","Hidden No More: African American Women in STEM Careers","978-1-5345-6243-1",{"$f":"HYPERLINK(Table1[[#This Row],[eCommerce Hyperlink]],\"Book Weblink\")","v":"Book Weblink"},null,"Lucent Press","Library Bound Book",1,"2018","January 2018","Library","7.000 X 9.000","Author","Caroline Kennon",null,null,null,null,"Z","1170L","Grade 7","Grade 7 - 10","In recent years, the stories of black women in scientific and mathematical fields have finally emerged from the shadows of history to inspire new generations of Americans. Through engaging main text filled with quotes from prominent figures, readers understand how black women who pursued careers in science and math helped shape the history of the world and continue to shape its future. Eye-catching photographs make this complex and influential topic easily relatable, while informative sidebars provide a thorough investigation of powerful women in powerful careers.","English",40.4,32.32,"509.2/52--dc23","104 pp.","https://greenhavenpublishing.com/9781534562431",null,{"$f":"Table1[[#This Row],['# of Books]]*Table1[[#This Row],[QTY]]","v":0},{"$f":"Table1[[#This Row],[QTY]]*Table1[[#This Row],[School & Library Price]]","v":0}]
[null,null,23,null,null,"U.S. History","Lucent Library of Black History","Hidden No More: African American Women in STEM Careers","978-1-5345-6244-8",{"$f":"HYPERLINK(Table1[[#This Row],[eCommerce Hyperlink]],\"Book Weblink\")","v":"Book Weblink"},null,"Lucent Press","eBook",1,"2018","January 2018",null,null,"Author","Caroline Kennon",null,null,null,null,"Z","1170L","Grade 7","Grade 7 - 10","In recent years, the stories of black women in scientific and mathematical fields have finally emerged from the shadows of history to inspire new generations of Americans. Through engaging main text filled with quotes from prominent figures, readers understand how black women who pursued careers in science and math helped shape the history of the world and continue to shape its future. Eye-catching photographs make this complex and influential topic easily relatable, while informative sidebars provide a thorough investigation of powerful women in powerful careers.","English",40.4,32.32,"509.2/52--dc23","104 pp.","https://greenhavenpublishing.com/9781534562448",null,{"$f":"Table1[[#This Row],['# of Books]]*Table1[[#This Row],[QTY]]","v":0},{"$f":"Table1[[#This Row],[QTY]]*Table1[[#This Row],[School & Library Price]]","v":0}]
[null,null,23,null,null,"U.S. History","Lucent Library of Black History","Hidden No More: African American Women in STEM Careers","978-1-5345-6295-0",{"$f":"HYPERLINK(Table1[[#This Row],[eCommerce Hyperlink]],\"Book Weblink\")","v":"Book Weblink"},null,"Lucent Press","Paperback Book",1,"2018","January 2018","Paperback","7.000 X 9.000","Author","Caroline Kennon",null,null,null,null,"Z","1170L","Grade 7","Grade 7 - 10","In recent years, the stories of black women in scientific and mathematical fields have finally emerged from the shadows of history to inspire new generations of Americans. Through engaging main text filled with quotes from prominent figures, readers understand how black women who pursued careers in science and math helped shape the history of the world and continue to shape its future. Eye-catching photographs make this complex and influential topic easily relatable, while informative sidebars provide a thorough investigation of powerful women in powerful careers.","English",20.99,17.850000000000001,"509.2/52--dc23","104 pp.","https://greenhavenpublishing.com/9781534562950",null,{"$f":"Table1[[#This Row],['# of Books]]*Table1[[#This Row],[QTY]]","v":0},{"$f":"Table1[[#This Row],[QTY]]*Table1[[#This Row],[School & Library Price]]","v":0}]
[null,null,23,null,null,"U.S. History","Lucent Library of Black History","Marching for Equality: The Journey from Selma to Montgomery","978-1-5345-6241-7",{"$f":"HYPERLINK(Table1[[#This Row],[eCommerce Hyperlink]],\"Book Weblink\")","v":"Book Weblink"},null,"Lucent Press","Library Bound Book",1,"2018","January 2018","Library","7.000 X 9.000","Author","Vanessa Oswald",null,null,null,null,"Z","1240L","Grade 7","Grade 7 - 10","One of the greatest leaders in American history, Martin Luther King Jr., organized a march from Selma, Alabama, to that state’s capital, Montgomery, in 1965. He and other activists wanted to call attention to the civil rights violations that plagued Alabama, as well as the struggle many African Americans were going through to exercise their right to vote. Readers learn about this important moment in American history through comprehensive text, quotes from civil rights leaders, and powerful photographs from the historic march to Montgomery.","English",40.4,32.32,"323.1196'073--dc23","104 pp.","https://greenhavenpublishing.com/9781534562417",null,{"$f":"Table1[[#This Row],['# of Books]]*Table1[[#This Row],[QTY]]","v":0},{"$f":"Table1[[#This Row],[QTY]]*Table1[[#This Row],[School & Library Price]]","v":0}]
[null,null,23,null,null,"U.S. History","Lucent Library of Black History","Marching for Equality: The Journey from Selma to Montgomery","978-1-5345-6242-4",{"$f":"HYPERLINK(Table1[[#This Row],[eCommerce Hyperlink]],\"Book Weblink\")","v":"Book Weblink"},null,"Lucent Press","eBook",1,"2018","January 2018",null,null,"Author","Vanessa Oswald",null,null,null,null,"Z","1240L","Grade 7","Grade 7 - 10","One of the greatest leaders in American history, Martin Luther King Jr., organized a march from Selma, Alabama, to that state’s capital, Montgomery, in 1965. He and other activists wanted to call attention to the civil rights violations that plagued Alabama, as well as the struggle many African Americans were going through to exercise their right to vote. Readers learn about this important moment in American history through comprehensive text, quotes from civil rights leaders, and powerful photographs from the historic march to Montgomery.","English",40.4,32.32,"323.1196'073--dc23","104 pp.","https://greenhavenpublishing.com/9781534562424",null,{"$f":"Table1[[#This Row],['# of Books]]*Table1[[#This Row],[QTY]]","v":0},{"$f":"Table1[[#This Row],[QTY]]*Table1[[#This Row],[School & Library Price]]","v":0}]
[null,null,23,null,null,"U.S. History","Lucent Library of Black History","Marching for Equality: The Journey from Selma to Montgomery","978-1-5345-6296-7",{"$f":"HYPERLINK(Table1[[#This Row],[eCommerce Hyperlink]],\"Book Weblink\")","v":"Book Weblink"},null,"Lucent Press","Paperback Book",1,"2018","January 2018","Paperback","7.000 X 9.000","Author","Vanessa Oswald",null,null,null,null,"Z","1240L","Grade 7","Grade 7 - 10","One of the greatest leaders in American history, Martin Luther King Jr., organized a march from Selma, Alabama, to that state’s capital, Montgomery, in 1965. He and other activists wanted to call attention to the civil rights violations that plagued Alabama, as well as the struggle many African Americans were going through to exercise their right to vote. Readers learn about this important moment in American history through comprehensive text, quotes from civil rights leaders, and powerful photographs from the historic march to Montgomery.","English",20.99,17.850000000000001,"323.1196'073--dc23","104 pp.","https://greenhavenpublishing.com/9781534562967",null,{"$f":"Table1[[#This Row],['# of Books]]*Table1[[#This Row],[QTY]]","v":0},{"$f":"Table1[[#This Row],[QTY]]*Table1[[#This Row],[School & Library Price]]","v":0}]
[null,null,23,null,null,"U.S. History","Lucent Library of Black History","Reparations for Slavery: The Fight for Compensation","978-1-5345-6233-2",{"$f":"HYPERLINK(Table1[[#This Row],[eCommerce Hyperlink]],\"Book Weblink\")","v":"Book Weblink"},null,"Lucent Press","Library Bound Book",1,"2018","January 2018","Library","7.000 X 9.000","Author","Sarah Goldy-Brown",null,null,null,null,"Z","1290L","Grade 7","Grade 7 - 10","The enslavement of Africans in America is one of the most shameful aspects of U.S. history. In modern times, some activist groups have called for compensation, also known as reparations, to be made to descendants of slaves. Detailing all the angles of this ongoing debate, this subject is explored through rich main text, engaging sidebars, primary sources, and annotated quotes from influential figures. Readers get a nuanced understanding of the arguments both for and against reparations for slavery, enhancing what they learn in their social studies classes.","English",40.4,32.32,"306.3/620973--dc23","104 pp.","https://greenhavenpublishing.com/9781534562332",null,{"$f":"Table1[[#This Row],['# of Books]]*Table1[[#This Row],[QTY]]","v":0},{"$f":"Table1[[#This Row],[QTY]]*Table1[[#This Row],[School & Library Price]]","v":0}]
[null,null,23,null,null,"U.S. History","Lucent Library of Black History","Reparations for Slavery: The Fight for Compensation","978-1-5345-6234-9",{"$f":"HYPERLINK(Table1[[#This Row],[eCommerce Hyperlink]],\"Book Weblink\")","v":"Book Weblink"},null,"Lucent Press","eBook",1,"2018","January 2018",null,null,"Author","Sarah Goldy-Brown",null,null,null,null,"Z","1290L","Grade 7","Grade 7 - 10","The enslavement of Africans in America is one of the most shameful aspects of U.S. history. In modern times, some activist groups have called for compensation, also known as reparations, to be made to descendants of slaves. Detailing all the angles of this ongoing debate, this subject is explored through rich main text, engaging sidebars, primary sources, and annotated quotes from influential figures. Readers get a nuanced understanding of the arguments both for and against reparations for slavery, enhancing what they learn in their social studies classes.","English",40.4,32.32,"306.3/620973--dc23","104 pp.","https://greenhavenpublishing.com/9781534562349",null,{"$f":"Table1[[#This Row],['# of Books]]*Table1[[#This Row],[QTY]]","v":0},{"$f":"Table1[[#This Row],[QTY]]*Table1[[#This Row],[School & Library Price]]","v":0}]
[null,null,23,null,null,"U.S. History","Lucent Library of Black History","Reparations for Slavery: The Fight for Compensation","978-1-5345-6297-4",{"$f":"HYPERLINK(Table1[[#This Row],[eCommerce Hyperlink]],\"Book Weblink\")","v":"Book Weblink"},null,"Lucent Press","Paperback Book",1,"2018","January 2018","Paperback","7.000 X 9.000","Author","Sarah Goldy-Brown",null,null,null,null,"Z","1290L","Grade 7","Grade 7 - 10","The enslavement of Africans in America is one of the most shameful aspects of U.S. history. In modern times, some activist groups have called for compensation, also known as reparations, to be made to descendants of slaves. Detailing all the angles of this ongoing debate, this subject is explored through rich main text, engaging sidebars, primary sources, and annotated quotes from influential figures. Readers get a nuanced understanding of the arguments both for and against reparations for slavery, enhancing what they learn in their social studies classes.","English",20.99,17.850000000000001,"306.3/620973--dc23","104 pp.","https://greenhavenpublishing.com/9781534562974",null,{"$f":"Table1[[#This Row],['# of Books]]*Table1[[#This Row],[QTY]]","v":0},{"$f":"Table1[[#This Row],[QTY]]*Table1[[#This Row],[School & Library Price]]","v":0}]
[null,null,23,null,null,"U.S. History","Lucent Library of Black History","The Freedom Rides: The Rise of the Civil Rights Movement","978-1-5345-6239-4",{"$f":"HYPERLINK(Table1[[#This Row],[eCommerce Hyperlink]],\"Book Weblink\")","v":"Book Weblink"},null,"Lucent Press","Library Bound Book",1,"2018","January 2018","Library","7.000 X 9.000","Author","Sarah Machajewski",null,null,null,null,"Z","1120L","Grade 7","Grade 7 - 10","By the middle of the 1900s, African Americans were tired of the discriminatory treatment they had been receiving even after the abolition of slavery nearly 100 years prior. As the American civil rights movement began to grow, a group of courageous activists, called the Freedom Riders, began challenging the segregated status quo. Assisted by engaging fact boxes and a comprehensive text, readers are placed in the middle of the fight for equality. Striking photographs show readers the human aspect of the push, and fight, for greater social equality.","English",40.4,32.32,"323.1196/073--dc23","104 pp.","https://greenhavenpublishing.com/9781534562394",null,{"$f":"Table1[[#This Row],['# of Books]]*Table1[[#This Row],[QTY]]","v":0},{"$f":"Table1[[#This Row],[QTY]]*Table1[[#This Row],[School & Library Price]]","v":0}]
[null,null,23,null,null,"U.S. History","Lucent Library of Black History","The Freedom Rides: The Rise of the Civil Rights Movement","978-1-5345-6240-0",{"$f":"HYPERLINK(Table1[[#This Row],[eCommerce Hyperlink]],\"Book Weblink\")","v":"Book Weblink"},null,"Lucent Press","eBook",1,"2018","January 2018",null,null,"Author","Sarah Machajewski",null,null,null,null,"Z","1120L","Grade 7","Grade 7 - 10","By the middle of the 1900s, African Americans were tired of the discriminatory treatment they had been receiving even after the abolition of slavery nearly 100 years prior. As the American civil rights movement began to grow, a group of courageous activists, called the Freedom Riders, began challenging the segregated status quo. Assisted by engaging fact boxes and a comprehensive text, readers are placed in the middle of the fight for equality. Striking photographs show readers the human aspect of the push, and fight, for greater social equality.","English",40.4,32.32,"323.1196/073--dc23","104 pp.","https://greenhavenpublishing.com/9781534562400",null,{"$f":"Table1[[#This Row],['# of Books]]*Table1[[#This Row],[QTY]]","v":0},{"$f":"Table1[[#This Row],[QTY]]*Table1[[#This Row],[School & Library Price]]","v":0}]
[null,null,23,null,null,"U.S. History","Lucent Library of Black History","The Freedom Rides: The Rise of the Civil Rights Movement","978-1-5345-6298-1",{"$f":"HYPERLINK(Table1[[#This Row],[eCommerce Hyperlink]],\"Book Weblink\")","v":"Book Weblink"},null,"Lucent Press","Paperback Book",1,"2018","January 2018","Paperback","7.000 X 9.000","Author","Sarah Machajewski",null,null,null,null,"Z","1120L","Grade 7","Grade 7 - 10","By the middle of the 1900s, African Americans were tired of the discriminatory treatment they had been receiving even after the abolition of slavery nearly 100 years prior. As the American civil rights movement began to grow, a group of courageous activists, called the Freedom Riders, began challenging the segregated status quo. Assisted by engaging fact boxes and a comprehensive text, readers are placed in the middle of the fight for equality. Striking photographs show readers the human aspect of the push, and fight, for greater social equality.","English",20.99,17.850000000000001,"323.1196/073--dc23","104 pp.","https://greenhavenpublishing.com/9781534562981",null,{"$f":"Table1[[#This Row],['# of Books]]*Table1[[#This Row],[QTY]]","v":0},{"$f":"Table1[[#This Row],[QTY]]*Table1[[#This Row],[School & Library Price]]","v":0}]
[null,null,23,null,null,"U.S. History","Lucent Library of Black History","The Transatlantic Slave Trade: Slavery Comes to the New World","978-1-5345-6237-0",{"$f":"HYPERLINK(Table1[[#This Row],[eCommerce Hyperlink]],\"Book Weblink\")","v":"Book Weblink"},null,"Lucent Press","Library Bound Book",1,"2018","January 2018","Library","7.000 X 9.000","Author","Siyavush Saidian",null,null,null,null,"Z","1250L","Grade 7","Grade 7 - 10","When European settlers first started their migration to the Western Hemisphere, they found land that was ready for farming. To build this agricultural society, they bought and sold slaves from Africa. Through the detailed text, contemporary and historical images, and informative sidebars, readers get a sense of how complex and dangerous the transatlantic slave trade was in the early years of New World exploration. Powerful quotes from primary sources and scholars bring this painful period in America’s past to life, asking readers to think more critically about history.","English",40.4,32.32,"306.3/62--dc23","104 pp.","https://greenhavenpublishing.com/9781534562370",null,{"$f":"Table1[[#This Row],['# of Books]]*Table1[[#This Row],[QTY]]","v":0},{"$f":"Table1[[#This Row],[QTY]]*Table1[[#This Row],[School & Library Price]]","v":0}]
[null,null,23,null,null,"U.S. History","Lucent Library of Black History","The Transatlantic Slave Trade: Slavery Comes to the New World","978-1-5345-6238-7",{"$f":"HYPERLINK(Table1[[#This Row],[eCommerce Hyperlink]],\"Book Weblink\")","v":"Book Weblink"},null,"Lucent Press","eBook",1,"2018","January 2018",null,null,"Author","Siyavush Saidian",null,null,null,null,"Z","1250L","Grade 7","Grade 7 - 10","When European settlers first started their migration to the Western Hemisphere, they found land that was ready for farming. To build this agricultural society, they bought and sold slaves from Africa. Through the detailed text, contemporary and historical images, and informative sidebars, readers get a sense of how complex and dangerous the transatlantic slave trade was in the early years of New World exploration. Powerful quotes from primary sources and scholars bring this painful period in America’s past to life, asking readers to think more critically about history.","English",40.4,32.32,"306.3/62--dc23","104 pp.","https://greenhavenpublishing.com/9781534562387",null,{"$f":"Table1[[#This Row],['# of Books]]*Table1[[#This Row],[QTY]]","v":0},{"$f":"Table1[[#This Row],[QTY]]*Table1[[#This Row],[School & Library Price]]","v":0}]
[null,null,23,null,null,"U.S. History","Lucent Library of Black History","The Transatlantic Slave Trade: Slavery Comes to the New World","978-1-5345-6299-8",{"$f":"HYPERLINK(Table1[[#This Row],[eCommerce Hyperlink]],\"Book Weblink\")","v":"Book Weblink"},null,"Lucent Press","Paperback Book",1,"2018","January 2018","Paperback","7.000 X 9.000","Author","Siyavush Saidian",null,null,null,null,"Z","1250L","Grade 7","Grade 7 - 10","When European settlers first started their migration to the Western Hemisphere, they found land that was ready for farming. To build this agricultural society, they bought and sold slaves from Africa. Through the detailed text, contemporary and historical images, and informative sidebars, readers get a sense of how complex and dangerous the transatlantic slave trade was in the early years of New World exploration. Powerful quotes from primary sources and scholars bring this painful period in America’s past to life, asking readers to think more critically about history.","English",20.99,17.850000000000001,"306.3/62--dc23","104 pp.","https://greenhavenpublishing.com/9781534562998",null,{"$f":"Table1[[#This Row],['# of Books]]*Table1[[#This Row],[QTY]]","v":0},{"$f":"Table1[[#This Row],[QTY]]*Table1[[#This Row],[School & Library Price]]","v":0}]
[null,null,23,null,null,"U.S. History","Lucent Library of Black History","Lucent Library of Black History: Set 3","978-1-5345-6859-4",{"$f":"HYPERLINK(Table1[[#This Row],[eCommerce Hyperlink]],\"Book Weblink\")","v":"Book Weblink"},null,"Lucent Press","Library Set",5,"2020","January 2020","Library","7.000 X 9.000",null,null,null,null,null,null,null,null,"Grade 7","Grade 7 - 10","Black history is an essential part of American history, and the stories of groundbreaking African American men and women deserve their time in the spotlight. As readers explore the detailed descriptions of the athletes, soldiers, artists, and activists who broke new ground for African Americans, they also see how these stories are more relevant than ever. Meticulously researched text is supplemented with detailed sidebars, helpful timelines, and historical and contemporary images that include primary sources. This essential learning experience expands on social studies curriculum topics to create a vivid picture of the fight for equality in the United States. Features include: Annotated quotes from famous figures, historians, and historical documents add a unique perspective and encourage additional research into each topic. Parallels are drawn between historical events and current social and political issues to show how the past influences the present. Multiple viewpoints are presented on each topic to encourage critical thinking.","English",202,161.6,null,"104 pp.","https://greenhavenpublishing.com/9781534568594",null,{"$f":"Table1[[#This Row],['# of Books]]*Table1[[#This Row],[QTY]]","v":0},{"$f":"Table1[[#This Row],[QTY]]*Table1[[#This Row],[School & Library Price]]","v":0}]
[null,null,23,null,null,"U.S. History","Lucent Library of Black History","Lucent Library of Black History (Spring 2020)","978-1-5345-6892-1",{"$f":"HYPERLINK(Table1[[#This Row],[eCommerce Hyperlink]],\"Book Weblink\")","v":"Book Weblink"},null,"Lucent Press","Single Copy Set",5,"2020","January 2020","Paperback","7.000 X 9.000",null,null,null,null,null,null,null,null,"Grade 7","Grade 7 - 10","Black history is an essential part of American history, and the stories of groundbreaking African American men and women deserve their time in the spotlight. As readers explore the detailed descriptions of the athletes, soldiers, artists, and activists who broke new ground for African Americans, they also see how these stories are more relevant than ever. Meticulously researched text is supplemented with detailed sidebars, helpful timelines, and historical and contemporary images that include primary sources. This essential learning experience expands on social studies curriculum topics to create a vivid picture of the fight for equality in the United States. Features include: Annotated quotes from famous figures, historians, and historical documents add a unique perspective and encourage additional research into each topic. Parallels are drawn between historical events and current social and political issues to show how the past influences the present. Multiple viewpoints are presented on each topic to encourage critical thinking.","English",104.95,89.25,null,"104 pp.","https://greenhavenpublishing.com/9781534568921",null,{"$f":"Table1[[#This Row],['# of Books]]*Table1[[#This Row],[QTY]]","v":0},{"$f":"Table1[[#This Row],[QTY]]*Table1[[#This Row],[School & Library Price]]","v":0}]
[null,null,23,null,null,"U.S. History","Lucent Library of Black History","African Americans in Sports: Groundbreakers and Game Changers","978-1-5345-6847-1",{"$f":"HYPERLINK(Table1[[#This Row],[eCommerce Hyperlink]],\"Book Weblink\")","v":"Book Weblink"},null,"Lucent Press","Library Bound Book",1,"2020","January 2020","Library","7.000 X 9.000","Author","Tamra B. Orr",null,null,null,null,"Z",null,"Grade 7","Grade 7 - 10","From Jackie Robinson to Venus and Serena Williams, African Americans have used sports to fight for social change. Many of them had to fight against discrimination, and their strength in the face of adversity on the field and off has inspired many people. Their stories are presented to readers through engaging main text that includes annotated quotes from historians, journalists, and the athletes themselves. Compelling photographs, sidebars, and a timeline help readers trace the struggles and successes of African Americans in sports, from the distant past to today's current debates over kneeling during the national anthem.","English",40.4,32.32,"796.092'396073--dc23","104 pp.","https://greenhavenpublishing.com/9781534568471",null,{"$f":"Table1[[#This Row],['# of Books]]*Table1[[#This Row],[QTY]]","v":0},{"$f":"Table1[[#This Row],[QTY]]*Table1[[#This Row],[School & Library Price]]","v":0}]
[null,null,23,null,null,"U.S. History","Lucent Library of Black History","African Americans in Sports: Groundbreakers and Game Changers","978-1-5345-6848-8",{"$f":"HYPERLINK(Table1[[#This Row],[eCommerce Hyperlink]],\"Book Weblink\")","v":"Book Weblink"},null,"Lucent Press","eBook",1,"2020","January 2020",null,null,"Author","Tamra B. Orr",null,null,null,null,"Z",null,"Grade 7","Grade 7 - 10","From Jackie Robinson to Venus and Serena Williams, African Americans have used sports to fight for social change. Many of them had to fight against discrimination, and their strength in the face of adversity on the field and off has inspired many people. Their stories are presented to readers through engaging main text that includes annotated quotes from historians, journalists, and the athletes themselves. Compelling photographs, sidebars, and a timeline help readers trace the struggles and successes of African Americans in sports, from the distant past to today's current debates over kneeling during the national anthem.","English",40.4,32.32,"796.092'396073--dc23","104 pp.","https://greenhavenpublishing.com/9781534568488",null,{"$f":"Table1[[#This Row],['# of Books]]*Table1[[#This Row],[QTY]]","v":0},{"$f":"Table1[[#This Row],[QTY]]*Table1[[#This Row],[School & Library Price]]","v":0}]
[null,null,23,null,null,"U.S. History","Lucent Library of Black History","African Americans in Sports: Groundbreakers and Game Changers","978-1-5345-6846-4",{"$f":"HYPERLINK(Table1[[#This Row],[eCommerce Hyperlink]],\"Book Weblink\")","v":"Book Weblink"},null,"Lucent Press","Paperback Book",1,"2020","January 2020","Paperback","7.000 X 9.000","Author","Tamra B. Orr",null,null,null,null,"Z",null,"Grade 7","Grade 7 - 10","From Jackie Robinson to Venus and Serena Williams, African Americans have used sports to fight for social change. Many of them had to fight against discrimination, and their strength in the face of adversity on the field and off has inspired many people. Their stories are presented to readers through engaging main text that includes annotated quotes from historians, journalists, and the athletes themselves. Compelling photographs, sidebars, and a timeline help readers trace the struggles and successes of African Americans in sports, from the distant past to today's current debates over kneeling during the national anthem.","English",20.99,17.850000000000001,"796.092'396073--dc23","104 pp.","https://greenhavenpublishing.com/9781534568464",null,{"$f":"Table1[[#This Row],['# of Books]]*Table1[[#This Row],[QTY]]","v":0},{"$f":"Table1[[#This Row],[QTY]]*Table1[[#This Row],[School & Library Price]]","v":0}]
[null,null,23,null,null,"U.S. History","Lucent Library of Black History","African Americans in the Armed Forces","978-1-5345-6850-1",{"$f":"HYPERLINK(Table1[[#This Row],[eCommerce Hyperlink]],\"Book Weblink\")","v":"Book Weblink"},null,"Lucent Press","Library Bound Book",1,"2020","January 2020","Library","7.000 X 9.000","Author","Tamra B. Orr",null,null,null,null,"Z",null,"Grade 7","Grade 7 - 10","African Americans have fought in every major U.S. war, but even as they fought to defend their country, they also had to battle against prejudice simply because of the color of their skin. From the Buffalo Soldiers and Tuskegee Airmen of the past to today's soldiers and officers, African Americans have helped protect a country that has often failed to protect their civil rights. The bravery of these men and women is presented through detailed main text and sidebars that feature annotated quotes. Historical and contemporary images accompany the narrative and a comprehensive timeline of African American military milestones.","English",40.4,32.32,"355.0089/96073--dc23","104 pp.","https://greenhavenpublishing.com/9781534568501",null,{"$f":"Table1[[#This Row],['# of Books]]*Table1[[#This Row],[QTY]]","v":0},{"$f":"Table1[[#This Row],[QTY]]*Table1[[#This Row],[School & Library Price]]","v":0}]
[null,null,23,null,null,"U.S. History","Lucent Library of Black History","African Americans in the Armed Forces","978-1-5345-6851-8",{"$f":"HYPERLINK(Table1[[#This Row],[eCommerce Hyperlink]],\"Book Weblink\")","v":"Book Weblink"},null,"Lucent Press","eBook",1,"2020","January 2020",null,null,"Author","Tamra B. Orr",null,null,null,null,"Z",null,"Grade 7","Grade 7 - 10","African Americans have fought in every major U.S. war, but even as they fought to defend their country, they also had to battle against prejudice simply because of the color of their skin. From the Buffalo Soldiers and Tuskegee Airmen of the past to today's soldiers and officers, African Americans have helped protect a country that has often failed to protect their civil rights. The bravery of these men and women is presented through detailed main text and sidebars that feature annotated quotes. Historical and contemporary images accompany the narrative and a comprehensive timeline of African American military milestones.","English",40.4,32.32,"355.0089/96073--dc23","104 pp.","https://greenhavenpublishing.com/9781534568518",null,{"$f":"Table1[[#This Row],['# of Books]]*Table1[[#This Row],[QTY]]","v":0},{"$f":"Table1[[#This Row],[QTY]]*Table1[[#This Row],[School & Library Price]]","v":0}]
[null,null,23,null,null,"U.S. History","Lucent Library of Black History","African Americans in the Armed Forces","978-1-5345-6849-5",{"$f":"HYPERLINK(Table1[[#This Row],[eCommerce Hyperlink]],\"Book Weblink\")","v":"Book Weblink"},null,"Lucent Press","Paperback Book",1,"2020","January 2020","Paperback","7.000 X 9.000","Author","Tamra B. Orr",null,null,null,null,"Z",null,"Grade 7","Grade 7 - 10","African Americans have fought in every major U.S. war, but even as they fought to defend their country, they also had to battle against prejudice simply because of the color of their skin. From the Buffalo Soldiers and Tuskegee Airmen of the past to today's soldiers and officers, African Americans have helped protect a country that has often failed to protect their civil rights. The bravery of these men and women is presented through detailed main text and sidebars that feature annotated quotes. Historical and contemporary images accompany the narrative and a comprehensive timeline of African American military milestones.","English",20.99,17.850000000000001,"355.0089/96073--dc23","104 pp.","https://greenhavenpublishing.com/9781534568495",null,{"$f":"Table1[[#This Row],['# of Books]]*Table1[[#This Row],[QTY]]","v":0},{"$f":"Table1[[#This Row],[QTY]]*Table1[[#This Row],[School & Library Price]]","v":0}]
[null,null,23,null,null,"U.S. History","Lucent Library of Black History","Justice for All: Landmark Civil Rights Court Cases","978-1-5345-6864-8",{"$f":"HYPERLINK(Table1[[#This Row],[eCommerce Hyperlink]],\"Book Weblink\")","v":"Book Weblink"},null,"Lucent Press","Library Bound Book",1,"2020","January 2020","Library","7.000 X 9.000","Author","Therese Harasymiw",null,null,null,null,"Z",null,"Grade 7","Grade 7 - 10","Black Americans and their allies have sought to use the U.S. court system as a tool in their fight for civil rights, sometimes successfully and sometimes not. However, certain court decisions, especially those handed down by the U.S. Supreme Court, have led to real change. This comprehensive look at landmark civil rights cases gives readers an understanding of the evolution of the civil rights movement through the lens of legal battles. The detailed sidebars, historical and contemporary images, and annotated quotes also give them the tools to understand the complex issues that are still in the headlines today.","English",40.4,32.32,"342.7308/73--dc23","104 pp.","https://greenhavenpublishing.com/9781534568648",null,{"$f":"Table1[[#This Row],['# of Books]]*Table1[[#This Row],[QTY]]","v":0},{"$f":"Table1[[#This Row],[QTY]]*Table1[[#This Row],[School & Library Price]]","v":0}]
[null,null,23,null,null,"U.S. History","Lucent Library of Black History","Justice for All: Landmark Civil Rights Court Cases","978-1-5345-6861-7",{"$f":"HYPERLINK(Table1[[#This Row],[eCommerce Hyperlink]],\"Book Weblink\")","v":"Book Weblink"},null,"Lucent Press","eBook",1,"2020","January 2020",null,null,"Author","Therese Harasymiw",null,null,null,null,"Z",null,"Grade 7","Grade 7 - 10","Black Americans and their allies have sought to use the U.S. court system as a tool in their fight for civil rights, sometimes successfully and sometimes not. However, certain court decisions, especially those handed down by the U.S. Supreme Court, have led to real change. This comprehensive look at landmark civil rights cases gives readers an understanding of the evolution of the civil rights movement through the lens of legal battles. The detailed sidebars, historical and contemporary images, and annotated quotes also give them the tools to understand the complex issues that are still in the headlines today.","English",40.4,32.32,"342.7308/73--dc23","104 pp.","https://greenhavenpublishing.com/9781534568617",null,{"$f":"Table1[[#This Row],['# of Books]]*Table1[[#This Row],[QTY]]","v":0},{"$f":"Table1[[#This Row],[QTY]]*Table1[[#This Row],[School & Library Price]]","v":0}]
[null,null,23,null,null,"U.S. History","Lucent Library of Black History","Justice for All: Landmark Civil Rights Court Cases","978-1-5345-6867-9",{"$f":"HYPERLINK(Table1[[#This Row],[eCommerce Hyperlink]],\"Book Weblink\")","v":"Book Weblink"},null,"Lucent Press","Paperback Book",1,"2020","January 2020","Paperback","7.000 X 9.000","Author","Therese Harasymiw",null,null,null,null,"Z",null,"Grade 7","Grade 7 - 10","Black Americans and their allies have sought to use the U.S. court system as a tool in their fight for civil rights, sometimes successfully and sometimes not. However, certain court decisions, especially those handed down by the U.S. Supreme Court, have led to real change. This comprehensive look at landmark civil rights cases gives readers an understanding of the evolution of the civil rights movement through the lens of legal battles. The detailed sidebars, historical and contemporary images, and annotated quotes also give them the tools to understand the complex issues that are still in the headlines today.","English",20.99,17.850000000000001,"342.7308/73--dc23","104 pp.","https://greenhavenpublishing.com/9781534568679",null,{"$f":"Table1[[#This Row],['# of Books]]*Table1[[#This Row],[QTY]]","v":0},{"$f":"Table1[[#This Row],[QTY]]*Table1[[#This Row],[School & Library Price]]","v":0}]
[null,null,23,null,null,"U.S. History","Lucent Library of Black History","The Black Arts Movement: Creating a Cultural Identity","978-1-5345-6853-2",{"$f":"HYPERLINK(Table1[[#This Row],[eCommerce Hyperlink]],\"Book Weblink\")","v":"Book Weblink"},null,"Lucent Press","Library Bound Book",1,"2020","January 2020","Library","7.000 X 9.000","Author","Vanessa Oswald",null,null,null,null,"Z",null,"Grade 7","Grade 7 - 10","The black arts movement was led by African Americans between the 1960s and 1970s, and included artists of all kinds, such as poets, writers, actors, musicians, painters, and dancers. The main goal was to encourage black artists to make art that would tell the meaningful stories of black people and their experiences and struggles throughout history. Readers dive deep into this movement as they explore the main text that features annotated quotes from artists and historians. Sidebars and a timeline provide additional information. Historical images including primary sources give readers an up-close look at this pivotal cultural period.","English",40.4,32.32,"700.89/96073--dc23","104 pp.","https://greenhavenpublishing.com/9781534568532",null,{"$f":"Table1[[#This Row],['# of Books]]*Table1[[#This Row],[QTY]]","v":0},{"$f":"Table1[[#This Row],[QTY]]*Table1[[#This Row],[School & Library Price]]","v":0}]
[null,null,23,null,null,"U.S. History","Lucent Library of Black History","The Black Arts Movement: Creating a Cultural Identity","978-1-5345-6854-9",{"$f":"HYPERLINK(Table1[[#This Row],[eCommerce Hyperlink]],\"Book Weblink\")","v":"Book Weblink"},null,"Lucent Press","eBook",1,"2020","January 2020",null,null,"Author","Vanessa Oswald",null,null,null,null,"Z",null,"Grade 7","Grade 7 - 10","The black arts movement was led by African Americans between the 1960s and 1970s, and included artists of all kinds, such as poets, writers, actors, musicians, painters, and dancers. The main goal was to encourage black artists to make art that would tell the meaningful stories of black people and their experiences and struggles throughout history. Readers dive deep into this movement as they explore the main text that features annotated quotes from artists and historians. Sidebars and a timeline provide additional information. Historical images including primary sources give readers an up-close look at this pivotal cultural period.","English",40.4,32.32,"700.89/96073--dc23","104 pp.","https://greenhavenpublishing.com/9781534568549",null,{"$f":"Table1[[#This Row],['# of Books]]*Table1[[#This Row],[QTY]]","v":0},{"$f":"Table1[[#This Row],[QTY]]*Table1[[#This Row],[School & Library Price]]","v":0}]
[null,null,23,null,null,"U.S. History","Lucent Library of Black History","The Black Arts Movement: Creating a Cultural Identity","978-1-5345-6852-5",{"$f":"HYPERLINK(Table1[[#This Row],[eCommerce Hyperlink]],\"Book Weblink\")","v":"Book Weblink"},null,"Lucent Press","Paperback Book",1,"2020","January 2020","Paperback","7.000 X 9.000","Author","Vanessa Oswald",null,null,null,null,"Z",null,"Grade 7","Grade 7 - 10","The black arts movement was led by African Americans between the 1960s and 1970s, and included artists of all kinds, such as poets, writers, actors, musicians, painters, and dancers. The main goal was to encourage black artists to make art that would tell the meaningful stories of black people and their experiences and struggles throughout history. Readers dive deep into this movement as they explore the main text that features annotated quotes from artists and historians. Sidebars and a timeline provide additional information. Historical images including primary sources give readers an up-close look at this pivotal cultural period.","English",20.99,17.850000000000001,"700.89/96073--dc23","104 pp.","https://greenhavenpublishing.com/9781534568525",null,{"$f":"Table1[[#This Row],['# of Books]]*Table1[[#This Row],[QTY]]","v":0},{"$f":"Table1[[#This Row],[QTY]]*Table1[[#This Row],[School & Library Price]]","v":0}]
[null,null,23,null,null,"U.S. History","Lucent Library of Black History","Unsung Heroes: Women of the Civil Rights Movement","978-1-5345-6865-5",{"$f":"HYPERLINK(Table1[[#This Row],[eCommerce Hyperlink]],\"Book Weblink\")","v":"Book Weblink"},null,"Lucent Press","Library Bound Book",1,"2020","January 2020","Library","7.000 X 9.000","Author","Jennifer Lombardo",null,null,null,null,"Z",null,"Grade 7","Grade 7 - 10","Many of the most famous faces of the civil rights movement were men, but women played a very large part in the fight for equal rights. Largely ignored by historians as well as by their male contemporaries, it is only relatively recently that the women who helped make the civil rights movement possible have come into the spotlight. Through annotated quotes, historical photographs, and in-depth sidebars, this volume shares the stories of the courageous women who defied the gender stereotypes of their era and fought alongside men to achieve social change on a never-before-seen scale.","English",40.4,32.32,"323.092'2--dc23","104 pp.","https://greenhavenpublishing.com/9781534568655",null,{"$f":"Table1[[#This Row],['# of Books]]*Table1[[#This Row],[QTY]]","v":0},{"$f":"Table1[[#This Row],[QTY]]*Table1[[#This Row],[School & Library Price]]","v":0}]
[null,null,23,null,null,"U.S. History","Lucent Library of Black History","Unsung Heroes: Women of the Civil Rights Movement","978-1-5345-6862-4",{"$f":"HYPERLINK(Table1[[#This Row],[eCommerce Hyperlink]],\"Book Weblink\")","v":"Book Weblink"},null,"Lucent Press","eBook",1,"2020","January 2020",null,null,"Author","Jennifer Lombardo",null,null,null,null,"Z",null,"Grade 7","Grade 7 - 10","Many of the most famous faces of the civil rights movement were men, but women played a very large part in the fight for equal rights. Largely ignored by historians as well as by their male contemporaries, it is only relatively recently that the women who helped make the civil rights movement possible have come into the spotlight. Through annotated quotes, historical photographs, and in-depth sidebars, this volume shares the stories of the courageous women who defied the gender stereotypes of their era and fought alongside men to achieve social change on a never-before-seen scale.","English",40.4,32.32,"323.092'2--dc23","104 pp.","https://greenhavenpublishing.com/9781534568624",null,{"$f":"Table1[[#This Row],['# of Books]]*Table1[[#This Row],[QTY]]","v":0},{"$f":"Table1[[#This Row],[QTY]]*Table1[[#This Row],[School & Library Price]]","v":0}]
[null,null,23,null,null,"U.S. History","Lucent Library of Black History","Unsung Heroes: Women of the Civil Rights Movement","978-1-5345-6868-6",{"$f":"HYPERLINK(Table1[[#This Row],[eCommerce Hyperlink]],\"Book Weblink\")","v":"Book Weblink"},null,"Lucent Press","Paperback Book",1,"2020","January 2020","Paperback","7.000 X 9.000","Author","Jennifer Lombardo",null,null,null,null,"Z",null,"Grade 7","Grade 7 - 10","Many of the most famous faces of the civil rights movement were men, but women played a very large part in the fight for equal rights. Largely ignored by historians as well as by their male contemporaries, it is only relatively recently that the women who helped make the civil rights movement possible have come into the spotlight. Through annotated quotes, historical photographs, and in-depth sidebars, this volume shares the stories of the courageous women who defied the gender stereotypes of their era and fought alongside men to achieve social change on a never-before-seen scale.","English",20.99,17.850000000000001,"323.092'2--dc23","104 pp.","https://greenhavenpublishing.com/9781534568686",null,{"$f":"Table1[[#This Row],['# of Books]]*Table1[[#This Row],[QTY]]","v":0},{"$f":"Table1[[#This Row],[QTY]]*Table1[[#This Row],[School & Library Price]]","v":0}]
[null,null,23,null,null,"World History","World History","World History: Set 1","978-1-5345-6069-7",{"$f":"HYPERLINK(Table1[[#This Row],[eCommerce Hyperlink]],\"Book Weblink\")","v":"Book Weblink"},null,"Lucent Press","Library Set",6,"2017","January 2017","Library","7.000 X 9.000",null,null,null,null,null,null,null,null,"Grade 7","Grade 7 - 10","Each book in the comprehensive World History series offers a clearly written and visually enhanced overview of an important historical event or period. The series is designed to acquaint readers with the basics of history and make them aware that their lives and their own historical era are an intimate part of the ongoing human saga.","English",245.4,196.32,null,"104 pp.","https://greenhavenpublishing.com/9781534560697",null,{"$f":"Table1[[#This Row],['# of Books]]*Table1[[#This Row],[QTY]]","v":0},{"$f":"Table1[[#This Row],[QTY]]*Table1[[#This Row],[School & Library Price]]","v":0}]
[null,null,23,null,null,"World History","World History","The Black Death: Bubonic Plague Attacks Europe","978-1-5345-6047-5",{"$f":"HYPERLINK(Table1[[#This Row],[eCommerce Hyperlink]],\"Book Weblink\")","v":"Book Weblink"},null,"Lucent Press","Library Bound Book",1,"2017","January 2017","Library","7.000 X 9.000","Author, Author","Emily Mahoney, Don Nardo",null,null,null,null,"Z","1180L","Grade 7","Grade 7 - 10","The Bubonic Plague terrorized Europe and North Africa in the 14th century, killing millions of people. Readers learn many fascinating facts about what became known as the “Black Death.” They discover that the cause of the disease was unknown for most of the epidemic, and many unlikely things were blamed, including bad smells and occult rituals. Detailed sidebars and a comprehensive timeline augment the compelling text as it examines how the disastrous events of the plague were exacerbated by people’s ignorance of scientific facts.","English",40.9,32.72,"614.5’732","104 pp.","https://greenhavenpublishing.com/9781534560475",null,{"$f":"Table1[[#This Row],['# of Books]]*Table1[[#This Row],[QTY]]","v":0},{"$f":"Table1[[#This Row],[QTY]]*Table1[[#This Row],[School & Library Price]]","v":0}]
[null,null,23,null,null,"World History","World History","The Black Death: Bubonic Plague Attacks Europe","978-1-5345-6048-2",{"$f":"HYPERLINK(Table1[[#This Row],[eCommerce Hyperlink]],\"Book Weblink\")","v":"Book Weblink"},null,"Lucent Press","eBook",1,"2017","January 2017",null,null,"Author, Author","Emily Mahoney, Don Nardo",null,null,null,null,"Z","1180L","Grade 7","Grade 7 - 10","The Bubonic Plague terrorized Europe and North Africa in the 14th century, killing millions of people. Readers learn many fascinating facts about what became known as the “Black Death.” They discover that the cause of the disease was unknown for most of the epidemic, and many unlikely things were blamed, including bad smells and occult rituals. Detailed sidebars and a comprehensive timeline augment the compelling text as it examines how the disastrous events of the plague were exacerbated by people’s ignorance of scientific facts.","English",40.9,32.72,"614.5’732","104 pp.","https://greenhavenpublishing.com/9781534560482",null,{"$f":"Table1[[#This Row],['# of Books]]*Table1[[#This Row],[QTY]]","v":0},{"$f":"Table1[[#This Row],[QTY]]*Table1[[#This Row],[School & Library Price]]","v":0}]
[null,null,23,null,null,"World History","World History","The French Revolution: The Power of the People","978-1-5345-6051-2",{"$f":"HYPERLINK(Table1[[#This Row],[eCommerce Hyperlink]],\"Book Weblink\")","v":"Book Weblink"},null,"Lucent Press","Library Bound Book",1,"2017","January 2017","Library","7.000 X 9.000","Author","Karen Diane Haywood ",null,null,null,null,"Z","1190L","Grade 7","Grade 7 - 10","Economic inequality and abuse of power by the reigning government were two major factors in the outbreak of the French Revolution. The French peasants’ anger about these issues was so great that they turned to extreme violence, killing anyone who voiced dissent with the revolutionary cause. Informative sidebars and primary sources are presented alongside the engaging main text to help illustrate the danger of allowing social and economic disparity to remain unaddressed by governing bodies. A fact-filled timeline highlights key events before, during, and after the revolution.","English",40.9,32.72,"944.04","104 pp.","https://greenhavenpublishing.com/9781534560512",null,{"$f":"Table1[[#This Row],['# of Books]]*Table1[[#This Row],[QTY]]","v":0},{"$f":"Table1[[#This Row],[QTY]]*Table1[[#This Row],[School & Library Price]]","v":0}]
[null,null,23,null,null,"World History","World History","The French Revolution: The Power of the People","978-1-5345-6052-9",{"$f":"HYPERLINK(Table1[[#This Row],[eCommerce Hyperlink]],\"Book Weblink\")","v":"Book Weblink"},null,"Lucent Press","eBook",1,"2017","January 2017",null,null,"Author","Karen Diane Haywood ",null,null,null,null,"Z","1190L","Grade 7","Grade 7 - 10","Economic inequality and abuse of power by the reigning government were two major factors in the outbreak of the French Revolution. The French peasants’ anger about these issues was so great that they turned to extreme violence, killing anyone who voiced dissent with the revolutionary cause. Informative sidebars and primary sources are presented alongside the engaging main text to help illustrate the danger of allowing social and economic disparity to remain unaddressed by governing bodies. A fact-filled timeline highlights key events before, during, and after the revolution.","English",40.9,32.72,"944.04","104 pp.","https://greenhavenpublishing.com/9781534560529",null,{"$f":"Table1[[#This Row],['# of Books]]*Table1[[#This Row],[QTY]]","v":0},{"$f":"Table1[[#This Row],[QTY]]*Table1[[#This Row],[School & Library Price]]","v":0}]
[null,null,23,null,null,"World History","World History","The Horrors of Auschwitz","978-1-5345-6054-3",{"$f":"HYPERLINK(Table1[[#This Row],[eCommerce Hyperlink]],\"Book Weblink\")","v":"Book Weblink"},null,"Lucent Press","Library Bound Book",1,"2017","January 2017","Library","7.000 X 9.000","Author, Author","Jennifer Lombardo, David Robson",null,null,null,null,"Z","1150L","Grade 7","Grade 7 - 10","The Nazi campaign against Jewish people living in their territories began slowly, with the gradual erosion of their rights to own property, hold a job, or marry non-Jews. These indignities intensified over time, eventually culminating in the establishment of work camps, also known as concentration or death camps such as Auschwitz. Full-color photographs, a detailed timeline, and excerpts from primary sources offer an in-depth look at the Nazis’ rise to power, allowing readers to think critically about the warning signs of a society on the brink of crisis.","English",40.9,32.72,"940.53/1853862","104 pp.","https://greenhavenpublishing.com/9781534560543",null,{"$f":"Table1[[#This Row],['# of Books]]*Table1[[#This Row],[QTY]]","v":0},{"$f":"Table1[[#This Row],[QTY]]*Table1[[#This Row],[School & Library Price]]","v":0}]
[null,null,23,null,null,"World History","World History","The Horrors of Auschwitz","978-1-5345-6055-0",{"$f":"HYPERLINK(Table1[[#This Row],[eCommerce Hyperlink]],\"Book Weblink\")","v":"Book Weblink"},null,"Lucent Press","eBook",1,"2017","January 2017",null,null,"Author, Author","Jennifer Lombardo, David Robson",null,null,null,null,"Z","1150L","Grade 7","Grade 7 - 10","The Nazi campaign against Jewish people living in their territories began slowly, with the gradual erosion of their rights to own property, hold a job, or marry non-Jews. These indignities intensified over time, eventually culminating in the establishment of work camps, also known as concentration or death camps such as Auschwitz. Full-color photographs, a detailed timeline, and excerpts from primary sources offer an in-depth look at the Nazis’ rise to power, allowing readers to think critically about the warning signs of a society on the brink of crisis.","English",40.9,32.72,"940.53/1853862","104 pp.","https://greenhavenpublishing.com/9781534560550",null,{"$f":"Table1[[#This Row],['# of Books]]*Table1[[#This Row],[QTY]]","v":0},{"$f":"Table1[[#This Row],[QTY]]*Table1[[#This Row],[School & Library Price]]","v":0}]
[null,null,23,null,null,"World History","World History","The Inquisition: The Quest for Absolute Religious Power","978-1-5345-6049-9",{"$f":"HYPERLINK(Table1[[#This Row],[eCommerce Hyperlink]],\"Book Weblink\")","v":"Book Weblink"},null,"Lucent Press","Library Bound Book",1,"2017","January 2017","Library","7.000 X 9.000","Author","Kenneth L. Bartolotta",null,null,null,null,"Z","1200L","Grade 7","Grade 7 - 10","Religion can be a force for good, but when those in command seek to increase their control, it can become a dangerous tool. This volume explores the political power the Catholic Church possessed in medieval Europe and the lengths it went to in order to keep and expand that influence. Full-color photographs, quotes from primary sources, and a timeline of important events supplement the main narrative to give readers a better understanding of the perils that can occur when an institution abuses its power.","English",40.9,32.72,"272'.20946--dc23","104 pp.","https://greenhavenpublishing.com/9781534560499",null,{"$f":"Table1[[#This Row],['# of Books]]*Table1[[#This Row],[QTY]]","v":0},{"$f":"Table1[[#This Row],[QTY]]*Table1[[#This Row],[School & Library Price]]","v":0}]
[null,null,23,null,null,"World History","World History","The Inquisition: The Quest for Absolute Religious Power","978-1-5345-6050-5",{"$f":"HYPERLINK(Table1[[#This Row],[eCommerce Hyperlink]],\"Book Weblink\")","v":"Book Weblink"},null,"Lucent Press","eBook",1,"2017","January 2017",null,null,"Author","Kenneth L. Bartolotta",null,null,null,null,"Z","1200L","Grade 7","Grade 7 - 10","Religion can be a force for good, but when those in command seek to increase their control, it can become a dangerous tool. This volume explores the political power the Catholic Church possessed in medieval Europe and the lengths it went to in order to keep and expand that influence. Full-color photographs, quotes from primary sources, and a timeline of important events supplement the main narrative to give readers a better understanding of the perils that can occur when an institution abuses its power.","English",40.9,32.72,"272'.20946--dc23","104 pp.","https://greenhavenpublishing.com/9781534560505",null,{"$f":"Table1[[#This Row],['# of Books]]*Table1[[#This Row],[QTY]]","v":0},{"$f":"Table1[[#This Row],[QTY]]*Table1[[#This Row],[School & Library Price]]","v":0}]
[null,null,23,null,null,"World History","World History","The Rise of ISIS: The Modern Age of Terrorism","978-1-5345-6056-7",{"$f":"HYPERLINK(Table1[[#This Row],[eCommerce Hyperlink]],\"Book Weblink\")","v":"Book Weblink"},null,"Lucent Press","Library Bound Book",1,"2017","January 2017","Library","7.000 X 9.000","Author","Caroline Kennon",null,null,null,null,"Z","1130L","Grade 7","Grade 7 - 10","ISIS is a significant threat to modern society. It has caused the deaths of thousands and the rise of anti-Muslim sentiment around the world, despite the fact that prominent Muslim leaders have denounced the group’s actions. Understanding ISIS is vital to defeating it. Readers learn about the creation of this terrorist group, its rise to power, and what is being done by nations around the world to stop its members from taking more lives. Full-color photographs and a timeline of key events contribute to a comprehensive overview of this chapter in the story of modern terrorism.","English",40.9,32.72,"956.054--dc23","104 pp.","https://greenhavenpublishing.com/9781534560567",null,{"$f":"Table1[[#This Row],['# of Books]]*Table1[[#This Row],[QTY]]","v":0},{"$f":"Table1[[#This Row],[QTY]]*Table1[[#This Row],[School & Library Price]]","v":0}]
[null,null,23,null,null,"World History","World History","The Rise of ISIS: The Modern Age of Terrorism","978-1-5345-6057-4",{"$f":"HYPERLINK(Table1[[#This Row],[eCommerce Hyperlink]],\"Book Weblink\")","v":"Book Weblink"},null,"Lucent Press","eBook",1,"2017","January 2017",null,null,"Author","Caroline Kennon",null,null,null,null,"Z","1130L","Grade 7","Grade 7 - 10","ISIS is a significant threat to modern society. It has caused the deaths of thousands and the rise of anti-Muslim sentiment around the world, despite the fact that prominent Muslim leaders have denounced the group’s actions. Understanding ISIS is vital to defeating it. Readers learn about the creation of this terrorist group, its rise to power, and what is being done by nations around the world to stop its members from taking more lives. Full-color photographs and a timeline of key events contribute to a comprehensive overview of this chapter in the story of modern terrorism.","English",40.9,32.72,"956.054--dc23","104 pp.","https://greenhavenpublishing.com/9781534560574",null,{"$f":"Table1[[#This Row],['# of Books]]*Table1[[#This Row],[QTY]]","v":0},{"$f":"Table1[[#This Row],[QTY]]*Table1[[#This Row],[School & Library Price]]","v":0}]
[null,null,23,null,null,"World History","World History","World War I and the Rise of Global Conflict","978-1-5345-6058-1",{"$f":"HYPERLINK(Table1[[#This Row],[eCommerce Hyperlink]],\"Book Weblink\")","v":"Book Weblink"},null,"Lucent Press","Library Bound Book",1,"2017","January 2017","Library","7.000 X 9.000","Author, Author","Elizabeth Morgan, Robert Green",null,null,null,null,"Z","1190L","Grade 7","Grade 7 - 10","World War I forever changed how nations engage in warfare. Airplanes, tanks, and submarines were used on a larger scale than ever before. This volume examines the root causes of World War I, which escalated from a small political incident into a massive global crisis. It also details the impact of this war in its immediate aftermath and in the decades that followed. Readers will be engaged by the accessible text, which is enhanced with historical photographs, primary sources, and in-depth sidebars.","English",40.9,32.72,"940.4","104 pp.","https://greenhavenpublishing.com/9781534560581",null,{"$f":"Table1[[#This Row],['# of Books]]*Table1[[#This Row],[QTY]]","v":0},{"$f":"Table1[[#This Row],[QTY]]*Table1[[#This Row],[School & Library Price]]","v":0}]
[null,null,23,null,null,"World History","World History","World War I and the Rise of Global Conflict","978-1-5345-6053-6",{"$f":"HYPERLINK(Table1[[#This Row],[eCommerce Hyperlink]],\"Book Weblink\")","v":"Book Weblink"},null,"Lucent Press","eBook",1,"2017","January 2017",null,null,"Author, Author","Elizabeth Morgan, Robert Green",null,null,null,null,"Z","1190L","Grade 7","Grade 7 - 10","World War I forever changed how nations engage in warfare. Airplanes, tanks, and submarines were used on a larger scale than ever before. This volume examines the root causes of World War I, which escalated from a small political incident into a massive global crisis. It also details the impact of this war in its immediate aftermath and in the decades that followed. Readers will be engaged by the accessible text, which is enhanced with historical photographs, primary sources, and in-depth sidebars.","English",40.9,32.72,"940.4","104 pp.","https://greenhavenpublishing.com/9781534560536",null,{"$f":"Table1[[#This Row],['# of Books]]*Table1[[#This Row],[QTY]]","v":0},{"$f":"Table1[[#This Row],[QTY]]*Table1[[#This Row],[School & Library Price]]","v":0}]
[null,null,23,null,null,"World History","World History","World History: Set 2","978-1-5345-6261-5",{"$f":"HYPERLINK(Table1[[#This Row],[eCommerce Hyperlink]],\"Book Weblink\")","v":"Book Weblink"},null,"Lucent Press","Library Set",6,"2018","January 2018","Library","7.000 X 9.000",null,null,null,null,null,null,null,null,"Grade 7","Grade 7 - 10","The study of world history is so much more than the study of names and dates. It is the study of stories of fascinating people, civilizations that rose and fell in dramatic fashion, and conflicts that have played out over hundreds of years. As readers take a closer look at these stories, they develop a deeper understanding of and appreciation for history. They are aided in their journey through history by fact-filled main texts and sidebars, annotated quotations from historical figures and contemporary historians, primary sources, and timelines. Features include: Engaging design featuring historical and contemporary images encourages readers to see history as a vibrant subject. Wide range of diverse topics takes readers around the world and through time, from ancient Egypt to contemporary Russia. Comprehensive texts ask readers to think critically about the past and examine recurring patterns in history to find lessons we can take into the future.","English",245.4,196.32,null,"104 pp.","https://greenhavenpublishing.com/9781534562615",null,{"$f":"Table1[[#This Row],['# of Books]]*Table1[[#This Row],[QTY]]","v":0},{"$f":"Table1[[#This Row],[QTY]]*Table1[[#This Row],[School & Library Price]]","v":0}]
[null,null,23,null,null,"World History","World History","World History (Spring 2018)","978-1-5345-6322-3",{"$f":"HYPERLINK(Table1[[#This Row],[eCommerce Hyperlink]],\"Book Weblink\")","v":"Book Weblink"},null,"Lucent Press","Single Copy Set",6,"2018","January 2018","Paperback","7.000 X 9.000",null,null,null,null,null,null,null,null,"Grade 7","Grade 7 - 10","The study of world history is so much more than the study of names and dates. It is the study of stories of fascinating people, civilizations that rose and fell in dramatic fashion, and conflicts that have played out over hundreds of years. As readers take a closer look at these stories, they develop a deeper understanding of and appreciation for history. They are aided in their journey through history by fact-filled main texts and sidebars, annotated quotations from historical figures and contemporary historians, primary sources, and timelines. Features include: Engaging design featuring historical and contemporary images encourages readers to see history as a vibrant subject. Wide range of diverse topics takes readers around the world and through time, from ancient Egypt to contemporary Russia. Comprehensive texts ask readers to think critically about the past and examine recurring patterns in history to find lessons we can take into the future.","English",125.94,107.1,null,"104 pp.","https://greenhavenpublishing.com/9781534563223",null,{"$f":"Table1[[#This Row],['# of Books]]*Table1[[#This Row],[QTY]]","v":0},{"$f":"Table1[[#This Row],[QTY]]*Table1[[#This Row],[School & Library Price]]","v":0}]
[null,null,23,null,null,"World History","World History","Ancient Egypt: The Land of Pyramids and Pharaohs","978-1-5345-6246-2",{"$f":"HYPERLINK(Table1[[#This Row],[eCommerce Hyperlink]],\"Book Weblink\")","v":"Book Weblink"},null,"Lucent Press","Library Bound Book",1,"2018","January 2018","Library","7.000 X 9.000","Author","Nicole Horning",null,null,null,null,"Z","1200L","Grade 7","Grade 7 - 10","Ancient Egypt is one of the most widely studied historical civilizations. Readers are introduced to important facts about ancient Egypt and the ways ancient Egyptians influenced the world for thousands of years. Readers explore this complex culture through accessible text, annotated quotations from historians, vibrant photographs and historical images, and enlightening sidebars. Readers may know about Egypt’s pyramids and pharaohs from their history classes, but they will enjoy learning lesser-known stories of this amazing part of the ancient world.","English",40.9,32.72,"932/.01--dc23","104 pp.","https://greenhavenpublishing.com/9781534562462",null,{"$f":"Table1[[#This Row],['# of Books]]*Table1[[#This Row],[QTY]]","v":0},{"$f":"Table1[[#This Row],[QTY]]*Table1[[#This Row],[School & Library Price]]","v":0}]
[null,null,23,null,null,"World History","World History","Ancient Egypt: The Land of Pyramids and Pharaohs","978-1-5345-6247-9",{"$f":"HYPERLINK(Table1[[#This Row],[eCommerce Hyperlink]],\"Book Weblink\")","v":"Book Weblink"},null,"Lucent Press","eBook",1,"2018","January 2018",null,null,"Author","Nicole Horning",null,null,null,null,"Z","1200L","Grade 7","Grade 7 - 10","Ancient Egypt is one of the most widely studied historical civilizations. Readers are introduced to important facts about ancient Egypt and the ways ancient Egyptians influenced the world for thousands of years. Readers explore this complex culture through accessible text, annotated quotations from historians, vibrant photographs and historical images, and enlightening sidebars. Readers may know about Egypt’s pyramids and pharaohs from their history classes, but they will enjoy learning lesser-known stories of this amazing part of the ancient world.","English",40.9,32.72,"932/.01--dc23","104 pp.","https://greenhavenpublishing.com/9781534562479",null,{"$f":"Table1[[#This Row],['# of Books]]*Table1[[#This Row],[QTY]]","v":0},{"$f":"Table1[[#This Row],[QTY]]*Table1[[#This Row],[School & Library Price]]","v":0}]
[null,null,23,null,null,"World History","World History","Ancient Egypt: The Land of Pyramids and Pharaohs","978-1-5345-6306-3",{"$f":"HYPERLINK(Table1[[#This Row],[eCommerce Hyperlink]],\"Book Weblink\")","v":"Book Weblink"},null,"Lucent Press","Paperback Book",1,"2018","January 2018","Paperback","7.000 X 9.000","Author","Nicole Horning",null,null,null,null,"Z","1200L","Grade 7","Grade 7 - 10","Ancient Egypt is one of the most widely studied historical civilizations. Readers are introduced to important facts about ancient Egypt and the ways ancient Egyptians influenced the world for thousands of years. Readers explore this complex culture through accessible text, annotated quotations from historians, vibrant photographs and historical images, and enlightening sidebars. Readers may know about Egypt’s pyramids and pharaohs from their history classes, but they will enjoy learning lesser-known stories of this amazing part of the ancient world.","English",20.99,17.850000000000001,"932/.01--dc23","104 pp.","https://greenhavenpublishing.com/9781534563063",null,{"$f":"Table1[[#This Row],['# of Books]]*Table1[[#This Row],[QTY]]","v":0},{"$f":"Table1[[#This Row],[QTY]]*Table1[[#This Row],[School & Library Price]]","v":0}]
[null,null,23,null,null,"World History","World History","Genghis Khan: Creating the Mongol Empire","978-1-5345-6248-6",{"$f":"HYPERLINK(Table1[[#This Row],[eCommerce Hyperlink]],\"Book Weblink\")","v":"Book Weblink"},null,"Lucent Press","Library Bound Book",1,"2018","January 2018","Library","7.000 X 9.000","Author","Barbara M. Linde",null,null,null,null,"Z","1210L","Grade 7","Grade 7 - 10","Throughout history, there have been few conquerors more prominent than Genghis Khan, the first ruler of what would become the Mongol Empire. Readers learn about the humble beginnings of his life, as he rose from anonymity to become one of the most famous rulers in history. They also explore his life as he handled the challenges of leading an empire of millions. Through comprehensive text, informative sidebars, historical images, and vibrant photographs, readers are given the opportunity to explore the world of 13th-century Asia, enhancing their knowledge of this common social studies curriculum topic.","English",40.9,32.72,"950/.21092--dc23","104 pp.","https://greenhavenpublishing.com/9781534562486",null,{"$f":"Table1[[#This Row],['# of Books]]*Table1[[#This Row],[QTY]]","v":0},{"$f":"Table1[[#This Row],[QTY]]*Table1[[#This Row],[School & Library Price]]","v":0}]
[null,null,23,null,null,"World History","World History","Genghis Khan: Creating the Mongol Empire","978-1-5345-6249-3",{"$f":"HYPERLINK(Table1[[#This Row],[eCommerce Hyperlink]],\"Book Weblink\")","v":"Book Weblink"},null,"Lucent Press","eBook",1,"2018","January 2018",null,null,"Author","Barbara M. Linde",null,null,null,null,"Z","1210L","Grade 7","Grade 7 - 10","Throughout history, there have been few conquerors more prominent than Genghis Khan, the first ruler of what would become the Mongol Empire. Readers learn about the humble beginnings of his life, as he rose from anonymity to become one of the most famous rulers in history. They also explore his life as he handled the challenges of leading an empire of millions. Through comprehensive text, informative sidebars, historical images, and vibrant photographs, readers are given the opportunity to explore the world of 13th-century Asia, enhancing their knowledge of this common social studies curriculum topic.","English",40.9,32.72,"950/.21092--dc23","104 pp.","https://greenhavenpublishing.com/9781534562493",null,{"$f":"Table1[[#This Row],['# of Books]]*Table1[[#This Row],[QTY]]","v":0},{"$f":"Table1[[#This Row],[QTY]]*Table1[[#This Row],[School & Library Price]]","v":0}]
[null,null,23,null,null,"World History","World History","Genghis Khan: Creating the Mongol Empire","978-1-5345-6307-0",{"$f":"HYPERLINK(Table1[[#This Row],[eCommerce Hyperlink]],\"Book Weblink\")","v":"Book Weblink"},null,"Lucent Press","Paperback Book",1,"2018","January 2018","Paperback","7.000 X 9.000","Author","Barbara M. Linde",null,null,null,null,"Z","1210L","Grade 7","Grade 7 - 10","Throughout history, there have been few conquerors more prominent than Genghis Khan, the first ruler of what would become the Mongol Empire. Readers learn about the humble beginnings of his life, as he rose from anonymity to become one of the most famous rulers in history. They also explore his life as he handled the challenges of leading an empire of millions. Through comprehensive text, informative sidebars, historical images, and vibrant photographs, readers are given the opportunity to explore the world of 13th-century Asia, enhancing their knowledge of this common social studies curriculum topic.","English",20.99,17.850000000000001,"950/.21092--dc23","104 pp.","https://greenhavenpublishing.com/9781534563070",null,{"$f":"Table1[[#This Row],['# of Books]]*Table1[[#This Row],[QTY]]","v":0},{"$f":"Table1[[#This Row],[QTY]]*Table1[[#This Row],[School & Library Price]]","v":0}]
[null,null,23,null,null,"World History","World History","India in Ancient Times","978-1-5345-6182-3",{"$f":"HYPERLINK(Table1[[#This Row],[eCommerce Hyperlink]],\"Book Weblink\")","v":"Book Weblink"},null,"Lucent Press","Library Bound Book",1,"2018","January 2018","Library","7.000 X 9.000","Author","Cecilia Jennings",null,null,null,null,"Z","1230L","Grade 7","Grade 7 - 10","The history and culture of ancient India is rich and complex. However, most history classes only touch on the most prominent aspects of ancient Indian culture, such as Hinduism. Readers experience the full breadth of this ancient society through detailed text, insightful quotes from historians, and fascinating sidebars. Vivid photographs and historical images are included to enhance the reading experience. From the lives of powerful historical figures to the stories of mythological heroes, ancient India comes to life in a way that strongly supplements standard social studies curricula.","English",40.9,32.72,"934--dc23","104 pp.","https://greenhavenpublishing.com/9781534561823",null,{"$f":"Table1[[#This Row],['# of Books]]*Table1[[#This Row],[QTY]]","v":0},{"$f":"Table1[[#This Row],[QTY]]*Table1[[#This Row],[School & Library Price]]","v":0}]
[null,null,23,null,null,"World History","World History","India in Ancient Times","978-1-5345-6181-6",{"$f":"HYPERLINK(Table1[[#This Row],[eCommerce Hyperlink]],\"Book Weblink\")","v":"Book Weblink"},null,"Lucent Press","eBook",1,"2018","January 2018",null,null,"Author","Cecilia Jennings",null,null,null,null,"Z","1230L","Grade 7","Grade 7 - 10","The history and culture of ancient India is rich and complex. However, most history classes only touch on the most prominent aspects of ancient Indian culture, such as Hinduism. Readers experience the full breadth of this ancient society through detailed text, insightful quotes from historians, and fascinating sidebars. Vivid photographs and historical images are included to enhance the reading experience. From the lives of powerful historical figures to the stories of mythological heroes, ancient India comes to life in a way that strongly supplements standard social studies curricula.","English",40.9,32.72,"934--dc23","104 pp.","https://greenhavenpublishing.com/9781534561816",null,{"$f":"Table1[[#This Row],['# of Books]]*Table1[[#This Row],[QTY]]","v":0},{"$f":"Table1[[#This Row],[QTY]]*Table1[[#This Row],[School & Library Price]]","v":0}]
[null,null,23,null,null,"World History","World History","India in Ancient Times","978-1-5345-6308-7",{"$f":"HYPERLINK(Table1[[#This Row],[eCommerce Hyperlink]],\"Book Weblink\")","v":"Book Weblink"},null,"Lucent Press","Paperback Book",1,"2018","January 2018","Paperback","7.000 X 9.000","Author","Cecilia Jennings",null,null,null,null,"Z","1230L","Grade 7","Grade 7 - 10","The history and culture of ancient India is rich and complex. However, most history classes only touch on the most prominent aspects of ancient Indian culture, such as Hinduism. Readers experience the full breadth of this ancient society through detailed text, insightful quotes from historians, and fascinating sidebars. Vivid photographs and historical images are included to enhance the reading experience. From the lives of powerful historical figures to the stories of mythological heroes, ancient India comes to life in a way that strongly supplements standard social studies curricula.","English",20.99,17.850000000000001,"934--dc23","104 pp.","https://greenhavenpublishing.com/9781534563087",null,{"$f":"Table1[[#This Row],['# of Books]]*Table1[[#This Row],[QTY]]","v":0},{"$f":"Table1[[#This Row],[QTY]]*Table1[[#This Row],[School & Library Price]]","v":0}]
[null,null,23,null,null,"World History","World History","The Mysterious Maya Civilization","978-1-5345-6186-1",{"$f":"HYPERLINK(Table1[[#This Row],[eCommerce Hyperlink]],\"Book Weblink\")","v":"Book Weblink"},null,"Lucent Press","Library Bound Book",1,"2018","January 2018","Library","7.000 X 9.000","Author","Emily Mahoney",null,null,null,null,"Z",null,"Grade 7","Grade 7 - 10","Though Mayan culture has existed for more than 3,500 years, researchers and historians have only recently started unlocking some of the mysteries behind this Central American society. Thoroughly researched text guides readers through the gripping history of the Maya, including a detailed description of Maya culture. The main text is supplemented with engaging sidebars, full-color photographs, historical images, and expert, annotated analysis from leading scholars.","English",40.9,32.72,"972.81/016--dc23","104 pp.","https://greenhavenpublishing.com/9781534561861",null,{"$f":"Table1[[#This Row],['# of Books]]*Table1[[#This Row],[QTY]]","v":0},{"$f":"Table1[[#This Row],[QTY]]*Table1[[#This Row],[School & Library Price]]","v":0}]
[null,null,23,null,null,"World History","World History","The Mysterious Maya Civilization","978-1-5345-6185-4",{"$f":"HYPERLINK(Table1[[#This Row],[eCommerce Hyperlink]],\"Book Weblink\")","v":"Book Weblink"},null,"Lucent Press","eBook",1,"2018","January 2018",null,null,"Author","Emily Mahoney",null,null,null,null,"Z",null,"Grade 7","Grade 7 - 10","Though Mayan culture has existed for more than 3,500 years, researchers and historians have only recently started unlocking some of the mysteries behind this Central American society. Thoroughly researched text guides readers through the gripping history of the Maya, including a detailed description of Maya culture. The main text is supplemented with engaging sidebars, full-color photographs, historical images, and expert, annotated analysis from leading scholars.","English",40.9,32.72,"972.81/016--dc23","104 pp.","https://greenhavenpublishing.com/9781534561854",null,{"$f":"Table1[[#This Row],['# of Books]]*Table1[[#This Row],[QTY]]","v":0},{"$f":"Table1[[#This Row],[QTY]]*Table1[[#This Row],[School & Library Price]]","v":0}]
[null,null,23,null,null,"World History","World History","The Mysterious Maya Civilization","978-1-5345-6309-4",{"$f":"HYPERLINK(Table1[[#This Row],[eCommerce Hyperlink]],\"Book Weblink\")","v":"Book Weblink"},null,"Lucent Press","Paperback Book",1,"2018","January 2018","Paperback","7.000 X 9.000","Author","Emily Mahoney",null,null,null,null,"Z",null,"Grade 7","Grade 7 - 10","Though Mayan culture has existed for more than 3,500 years, researchers and historians have only recently started unlocking some of the mysteries behind this Central American society. Thoroughly researched text guides readers through the gripping history of the Maya, including a detailed description of Maya culture. The main text is supplemented with engaging sidebars, full-color photographs, historical images, and expert, annotated analysis from leading scholars.","English",20.99,17.850000000000001,"972.81/016--dc23","104 pp.","https://greenhavenpublishing.com/9781534563094",null,{"$f":"Table1[[#This Row],['# of Books]]*Table1[[#This Row],[QTY]]","v":0},{"$f":"Table1[[#This Row],[QTY]]*Table1[[#This Row],[School & Library Price]]","v":0}]
[null,null,23,null,null,"World History","World History","The Rise and Fall of the Aztec Empire","978-1-5345-6184-7",{"$f":"HYPERLINK(Table1[[#This Row],[eCommerce Hyperlink]],\"Book Weblink\")","v":"Book Weblink"},null,"Lucent Press","Library Bound Book",1,"2018","January 2018","Library","7.000 X 9.000","Author","Joan Stoltman",null,null,null,null,"Z",null,"Grade 7","Grade 7 - 10","Students are taught that the Aztecs were destroyed by Hernán Cortéz, the conqueror of Mexico. However, there is much to learn about who the Aztec people were before they were conquered. The native Mexicans were part of a rich and vibrant culture that spanned hundreds of years. To understand this complicated society, readers are provided with an engaging main text and colorful photographs and historical images. Informative sidebars throughout detail the long history, and sudden defeat, of the Aztec Empire.","English",40.9,32.72,"972--dc23","104 pp.","https://greenhavenpublishing.com/9781534561847",null,{"$f":"Table1[[#This Row],['# of Books]]*Table1[[#This Row],[QTY]]","v":0},{"$f":"Table1[[#This Row],[QTY]]*Table1[[#This Row],[School & Library Price]]","v":0}]
[null,null,23,null,null,"World History","World History","The Rise and Fall of the Aztec Empire","978-1-5345-6183-0",{"$f":"HYPERLINK(Table1[[#This Row],[eCommerce Hyperlink]],\"Book Weblink\")","v":"Book Weblink"},null,"Lucent Press","eBook",1,"2018","January 2018",null,null,"Author","Joan Stoltman",null,null,null,null,"Z",null,"Grade 7","Grade 7 - 10","Students are taught that the Aztecs were destroyed by Hernán Cortéz, the conqueror of Mexico. However, there is much to learn about who the Aztec people were before they were conquered. The native Mexicans were part of a rich and vibrant culture that spanned hundreds of years. To understand this complicated society, readers are provided with an engaging main text and colorful photographs and historical images. Informative sidebars throughout detail the long history, and sudden defeat, of the Aztec Empire.","English",40.9,32.72,"972--dc23","104 pp.","https://greenhavenpublishing.com/9781534561830",null,{"$f":"Table1[[#This Row],['# of Books]]*Table1[[#This Row],[QTY]]","v":0},{"$f":"Table1[[#This Row],[QTY]]*Table1[[#This Row],[School & Library Price]]","v":0}]
[null,null,23,null,null,"World History","World History","The Rise and Fall of the Aztec Empire","978-1-5345-6310-0",{"$f":"HYPERLINK(Table1[[#This Row],[eCommerce Hyperlink]],\"Book Weblink\")","v":"Book Weblink"},null,"Lucent Press","Paperback Book",1,"2018","January 2018","Paperback","7.000 X 9.000","Author","Joan Stoltman",null,null,null,null,"Z",null,"Grade 7","Grade 7 - 10","Students are taught that the Aztecs were destroyed by Hernán Cortéz, the conqueror of Mexico. However, there is much to learn about who the Aztec people were before they were conquered. The native Mexicans were part of a rich and vibrant culture that spanned hundreds of years. To understand this complicated society, readers are provided with an engaging main text and colorful photographs and historical images. Informative sidebars throughout detail the long history, and sudden defeat, of the Aztec Empire.","English",20.99,17.850000000000001,"972--dc23","104 pp.","https://greenhavenpublishing.com/9781534563100",null,{"$f":"Table1[[#This Row],['# of Books]]*Table1[[#This Row],[QTY]]","v":0},{"$f":"Table1[[#This Row],[QTY]]*Table1[[#This Row],[School & Library Price]]","v":0}]
[null,null,23,null,null,"World History","World History","The United States and Russia: A Cold and Complex History","978-1-5345-6245-5",{"$f":"HYPERLINK(Table1[[#This Row],[eCommerce Hyperlink]],\"Book Weblink\")","v":"Book Weblink"},null,"Lucent Press","Library Bound Book",1,"2018","January 2018","Library","7.000 X 9.000","Author","Gary Wiener",null,null,null,null,"Z","1250L","Grade 7","Grade 7 - 10","After the U.S.S.R. formed, the United States found itself in a rivalry that has persisted for nearly a century. Readers are introduced to the complex history between the United States and Russia, which, for many years, was a conflict between democracy and communism. However, after the dissolution of the U.S.S.R., the relationship between the two countries remains strained, and readers also explore the reasons for this continued tension. Quotes from powerful leaders of both countries, striking photographs, and thoroughly researched text help readers understand why these two competing nations have maintained a cold relationship for so many years.","English",40.9,32.72,"327.73047086--dc23","104 pp.","https://greenhavenpublishing.com/9781534562455",null,{"$f":"Table1[[#This Row],['# of Books]]*Table1[[#This Row],[QTY]]","v":0},{"$f":"Table1[[#This Row],[QTY]]*Table1[[#This Row],[School & Library Price]]","v":0}]
[null,null,23,null,null,"World History","World History","The United States and Russia: A Cold and Complex History","978-1-5345-6187-8",{"$f":"HYPERLINK(Table1[[#This Row],[eCommerce Hyperlink]],\"Book Weblink\")","v":"Book Weblink"},null,"Lucent Press","eBook",1,"2018","January 2018",null,null,"Author","Gary Wiener",null,null,null,null,"Z","1250L","Grade 7","Grade 7 - 10","After the U.S.S.R. formed, the United States found itself in a rivalry that has persisted for nearly a century. Readers are introduced to the complex history between the United States and Russia, which, for many years, was a conflict between democracy and communism. However, after the dissolution of the U.S.S.R., the relationship between the two countries remains strained, and readers also explore the reasons for this continued tension. Quotes from powerful leaders of both countries, striking photographs, and thoroughly researched text help readers understand why these two competing nations have maintained a cold relationship for so many years.","English",40.9,32.72,"327.73047086--dc23","104 pp.","https://greenhavenpublishing.com/9781534561878",null,{"$f":"Table1[[#This Row],['# of Books]]*Table1[[#This Row],[QTY]]","v":0},{"$f":"Table1[[#This Row],[QTY]]*Table1[[#This Row],[School & Library Price]]","v":0}]
[null,null,23,null,null,"World History","World History","The United States and Russia: A Cold and Complex History","978-1-5345-6311-7",{"$f":"HYPERLINK(Table1[[#This Row],[eCommerce Hyperlink]],\"Book Weblink\")","v":"Book Weblink"},null,"Lucent Press","Paperback Book",1,"2018","January 2018","Paperback","7.000 X 9.000","Author","Gary Wiener",null,null,null,null,"Z","1250L","Grade 7","Grade 7 - 10","After the U.S.S.R. formed, the United States found itself in a rivalry that has persisted for nearly a century. Readers are introduced to the complex history between the United States and Russia, which, for many years, was a conflict between democracy and communism. However, after the dissolution of the U.S.S.R., the relationship between the two countries remains strained, and readers also explore the reasons for this continued tension. Quotes from powerful leaders of both countries, striking photographs, and thoroughly researched text help readers understand why these two competing nations have maintained a cold relationship for so many years.","English",20.99,17.850000000000001,"327.73047086--dc23","104 pp.","https://greenhavenpublishing.com/9781534563117",null,{"$f":"Table1[[#This Row],['# of Books]]*Table1[[#This Row],[QTY]]","v":0},{"$f":"Table1[[#This Row],[QTY]]*Table1[[#This Row],[School & Library Price]]","v":0}]
[null,null,23,null,null,"World History","World History","World History: Set 3","978-1-5345-6458-9",{"$f":"HYPERLINK(Table1[[#This Row],[eCommerce Hyperlink]],\"Book Weblink\")","v":"Book Weblink"},null,"Lucent Press","Library Set",6,"2019","August 2018","Library","7.000 X 9.000",null,null,null,null,null,null,null,null,"Grade 7","Grade 7 - 10","World history has no shortage of fascinating incidents and episodes. From fighting great wars to fighting for social justice, the greatest trials and triumphs of humanity are fully on display. Readers engage with a wide range of historical topics through meticulously researched main text, annotated quotes, primary sources, and interesting sidebars. From the distant past of the Scientific Revolution to the cutting-edge technology of digital piracy, readers are guided through accounts of global events and social movements by detailed photographs and expert testimony and analysis. Features include: Differing perspectives offer readers the chance to see every side of a historical moment, showing that there is rarely a simple distinction between \"good\" and \"bad.\" Extensive timelines illuminate the context of important world events, which contributes to a robust understanding of each topic. Topics were carefully selected to show readers how historical periods relate to current events, such as refugee crises, the global fight for women's rights, and the current \"Golden Age\" of television.","English",245.4,196.32,null,"104 pp.","https://greenhavenpublishing.com/9781534564589",null,{"$f":"Table1[[#This Row],['# of Books]]*Table1[[#This Row],[QTY]]","v":0},{"$f":"Table1[[#This Row],[QTY]]*Table1[[#This Row],[School & Library Price]]","v":0}]
[null,null,23,null,null,"World History","World History","World History (Fall 2018)","978-1-5345-6473-2",{"$f":"HYPERLINK(Table1[[#This Row],[eCommerce Hyperlink]],\"Book Weblink\")","v":"Book Weblink"},null,"Lucent Press","Single Copy Set",6,"2019","August 2018","Paperback","7.000 X 9.000",null,null,null,null,null,null,null,null,"Grade 7","Grade 7 - 10","World history has no shortage of fascinating incidents and episodes. From fighting great wars to fighting for social justice, the greatest trials and triumphs of humanity are fully on display. Readers engage with a wide range of historical topics through meticulously researched main text, annotated quotes, primary sources, and interesting sidebars. From the distant past of the Scientific Revolution to the cutting-edge technology of digital piracy, readers are guided through accounts of global events and social movements by detailed photographs and expert testimony and analysis. Features include: Differing perspectives offer readers the chance to see every side of a historical moment, showing that there is rarely a simple distinction between \"good\" and \"bad.\" Extensive timelines illuminate the context of important world events, which contributes to a robust understanding of each topic. Topics were carefully selected to show readers how historical periods relate to current events, such as refugee crises, the global fight for women's rights, and the current \"Golden Age\" of television.","English",125.94,107.1,null,"104 pp.","https://greenhavenpublishing.com/9781534564732",null,{"$f":"Table1[[#This Row],['# of Books]]*Table1[[#This Row],[QTY]]","v":0},{"$f":"Table1[[#This Row],[QTY]]*Table1[[#This Row],[School & Library Price]]","v":0}]
[null,null,23,null,null,"World History","World History","Piracy: From the High Seas to the Digital Age","978-1-5345-6382-7",{"$f":"HYPERLINK(Table1[[#This Row],[eCommerce Hyperlink]],\"Book Weblink\")","v":"Book Weblink"},null,"Lucent Press","Library Bound Book",1,"2019","August 2018","Library","7.000 X 9.000","Author","Jennifer Lombardo",null,null,null,null,"Z","1220L","Grade 7","Grade 7 - 10","When most people think of pirates, they think of buccaneers sailing the seas in search of treasure. However, piracy has changed over time, and many of today's most fearsome pirates work behind computer screens. Readers will be captivated by this exciting look at the history of piracy, from the legendary Blackbeard to the pirates who still hijack ships today, as well as the kinds of piracy unique to the digital age. Their reading experience is heightened through the use of relevant primary sources, annotated quotes, detailed sidebars, and a thoroughly researched timeline of piracy.","English",40.9,32.72,"509--dc23","104 pp.","https://greenhavenpublishing.com/9781534563827",null,{"$f":"Table1[[#This Row],['# of Books]]*Table1[[#This Row],[QTY]]","v":0},{"$f":"Table1[[#This Row],[QTY]]*Table1[[#This Row],[School & Library Price]]","v":0}]
[null,null,23,null,null,"World History","World History","Piracy: From the High Seas to the Digital Age","978-1-5345-6383-4",{"$f":"HYPERLINK(Table1[[#This Row],[eCommerce Hyperlink]],\"Book Weblink\")","v":"Book Weblink"},null,"Lucent Press","eBook",1,"2019","August 2018",null,null,"Author","Jennifer Lombardo",null,null,null,null,"Z","1220L","Grade 7","Grade 7 - 10","When most people think of pirates, they think of buccaneers sailing the seas in search of treasure. However, piracy has changed over time, and many of today's most fearsome pirates work behind computer screens. Readers will be captivated by this exciting look at the history of piracy, from the legendary Blackbeard to the pirates who still hijack ships today, as well as the kinds of piracy unique to the digital age. Their reading experience is heightened through the use of relevant primary sources, annotated quotes, detailed sidebars, and a thoroughly researched timeline of piracy.","English",40.9,32.72,"509--dc23","104 pp.","https://greenhavenpublishing.com/9781534563834",null,{"$f":"Table1[[#This Row],['# of Books]]*Table1[[#This Row],[QTY]]","v":0},{"$f":"Table1[[#This Row],[QTY]]*Table1[[#This Row],[School & Library Price]]","v":0}]
[null,null,23,null,null,"World History","World History","Piracy: From the High Seas to the Digital Age","978-1-5345-6384-1",{"$f":"HYPERLINK(Table1[[#This Row],[eCommerce Hyperlink]],\"Book Weblink\")","v":"Book Weblink"},null,"Lucent Press","Paperback Book",1,"2019","August 2018","Paperback","7.000 X 9.000","Author","Jennifer Lombardo",null,null,null,null,"Z","1220L","Grade 7","Grade 7 - 10","When most people think of pirates, they think of buccaneers sailing the seas in search of treasure. However, piracy has changed over time, and many of today's most fearsome pirates work behind computer screens. Readers will be captivated by this exciting look at the history of piracy, from the legendary Blackbeard to the pirates who still hijack ships today, as well as the kinds of piracy unique to the digital age. Their reading experience is heightened through the use of relevant primary sources, annotated quotes, detailed sidebars, and a thoroughly researched timeline of piracy.","English",20.99,17.850000000000001,"509--dc23","104 pp.","https://greenhavenpublishing.com/9781534563841",null,{"$f":"Table1[[#This Row],['# of Books]]*Table1[[#This Row],[QTY]]","v":0},{"$f":"Table1[[#This Row],[QTY]]*Table1[[#This Row],[School & Library Price]]","v":0}]
[null,null,23,null,null,"World History","World History","Refugees Throughout History: Searching for Safety","978-1-5345-6391-9",{"$f":"HYPERLINK(Table1[[#This Row],[eCommerce Hyperlink]],\"Book Weblink\")","v":"Book Weblink"},null,"Lucent Press","Library Bound Book",1,"2019","August 2018","Library","7.000 X 9.000","Author","Gary Wiener",null,null,null,null,"Z",null,"Grade 7","Grade 7 - 10","Refugees search for safety in new countries after they are forced to leave home, but some people are afraid of them and treat them poorly in the countries they escape to. Learning about the history of refugees increases readers' sense of empathy for those who have been left with no choice but to flee their homes. This sensitive topic is addressed through fact-filled main text and sidebars, annotated quotes, primary sources, and a thorough timeline. Refugee issues are often in the news, and this volume presents readers with the facts they need to think critically about this topic.","English",40.9,32.72,"305.9'06914--dc23","104 pp.","https://greenhavenpublishing.com/9781534563919",null,{"$f":"Table1[[#This Row],['# of Books]]*Table1[[#This Row],[QTY]]","v":0},{"$f":"Table1[[#This Row],[QTY]]*Table1[[#This Row],[School & Library Price]]","v":0}]
[null,null,23,null,null,"World History","World History","Refugees Throughout History: Searching for Safety","978-1-5345-6392-6",{"$f":"HYPERLINK(Table1[[#This Row],[eCommerce Hyperlink]],\"Book Weblink\")","v":"Book Weblink"},null,"Lucent Press","eBook",1,"2019","August 2018",null,null,"Author","Gary Wiener",null,null,null,null,"Z",null,"Grade 7","Grade 7 - 10","Refugees search for safety in new countries after they are forced to leave home, but some people are afraid of them and treat them poorly in the countries they escape to. Learning about the history of refugees increases readers' sense of empathy for those who have been left with no choice but to flee their homes. This sensitive topic is addressed through fact-filled main text and sidebars, annotated quotes, primary sources, and a thorough timeline. Refugee issues are often in the news, and this volume presents readers with the facts they need to think critically about this topic.","English",40.9,32.72,"305.9'06914--dc23","104 pp.","https://greenhavenpublishing.com/9781534563926",null,{"$f":"Table1[[#This Row],['# of Books]]*Table1[[#This Row],[QTY]]","v":0},{"$f":"Table1[[#This Row],[QTY]]*Table1[[#This Row],[School & Library Price]]","v":0}]
[null,null,23,null,null,"World History","World History","Refugees Throughout History: Searching for Safety","978-1-5345-6393-3",{"$f":"HYPERLINK(Table1[[#This Row],[eCommerce Hyperlink]],\"Book Weblink\")","v":"Book Weblink"},null,"Lucent Press","Paperback Book",1,"2019","August 2018","Paperback","7.000 X 9.000","Author","Gary Wiener",null,null,null,null,"Z",null,"Grade 7","Grade 7 - 10","Refugees search for safety in new countries after they are forced to leave home, but some people are afraid of them and treat them poorly in the countries they escape to. Learning about the history of refugees increases readers' sense of empathy for those who have been left with no choice but to flee their homes. This sensitive topic is addressed through fact-filled main text and sidebars, annotated quotes, primary sources, and a thorough timeline. Refugee issues are often in the news, and this volume presents readers with the facts they need to think critically about this topic.","English",20.99,17.850000000000001,"305.9'06914--dc23","104 pp.","https://greenhavenpublishing.com/9781534563933",null,{"$f":"Table1[[#This Row],['# of Books]]*Table1[[#This Row],[QTY]]","v":0},{"$f":"Table1[[#This Row],[QTY]]*Table1[[#This Row],[School & Library Price]]","v":0}]
[null,null,23,null,null,"World History","World History","Religion and World Conflict: Holy Wars Throughout History","978-1-5345-6385-8",{"$f":"HYPERLINK(Table1[[#This Row],[eCommerce Hyperlink]],\"Book Weblink\")","v":"Book Weblink"},null,"Lucent Press","Library Bound Book",1,"2019","August 2018","Library","7.000 X 9.000","Author","Caroline Kennon",null,null,null,null,"Z","1240L","Grade 7","Grade 7 - 10","Religion has been at the heart of many wars and acts of violence throughout history. Why is this such a deep-rooted source of conflict around the world, and what can be done to foster peace between people of different religions instead? Readers are presented with these questions and more to challenge their critical-thinking skills as they learn about the relationship between religion and conflict, from ancient history to the Crusades to the rise of ISIS. Facts and opposing viewpoints are presented in the main text and sidebars, which are enhanced by the use of annotated quotations and primary sources.","English",40.9,32.72,"201'.7273--dc23","104 pp.","https://greenhavenpublishing.com/9781534563858",null,{"$f":"Table1[[#This Row],['# of Books]]*Table1[[#This Row],[QTY]]","v":0},{"$f":"Table1[[#This Row],[QTY]]*Table1[[#This Row],[School & Library Price]]","v":0}]
[null,null,23,null,null,"World History","World History","Religion and World Conflict: Holy Wars Throughout History","978-1-5345-6386-5",{"$f":"HYPERLINK(Table1[[#This Row],[eCommerce Hyperlink]],\"Book Weblink\")","v":"Book Weblink"},null,"Lucent Press","eBook",1,"2019","August 2018",null,null,"Author","Caroline Kennon",null,null,null,null,"Z","1240L","Grade 7","Grade 7 - 10","Religion has been at the heart of many wars and acts of violence throughout history. Why is this such a deep-rooted source of conflict around the world, and what can be done to foster peace between people of different religions instead? Readers are presented with these questions and more to challenge their critical-thinking skills as they learn about the relationship between religion and conflict, from ancient history to the Crusades to the rise of ISIS. Facts and opposing viewpoints are presented in the main text and sidebars, which are enhanced by the use of annotated quotations and primary sources.","English",40.9,32.72,"201'.7273--dc23","104 pp.","https://greenhavenpublishing.com/9781534563865",null,{"$f":"Table1[[#This Row],['# of Books]]*Table1[[#This Row],[QTY]]","v":0},{"$f":"Table1[[#This Row],[QTY]]*Table1[[#This Row],[School & Library Price]]","v":0}]
[null,null,23,null,null,"World History","World History","Religion and World Conflict: Holy Wars Throughout History","978-1-5345-6387-2",{"$f":"HYPERLINK(Table1[[#This Row],[eCommerce Hyperlink]],\"Book Weblink\")","v":"Book Weblink"},null,"Lucent Press","Paperback Book",1,"2019","August 2018","Paperback","7.000 X 9.000","Author","Caroline Kennon",null,null,null,null,"Z","1240L","Grade 7","Grade 7 - 10","Religion has been at the heart of many wars and acts of violence throughout history. Why is this such a deep-rooted source of conflict around the world, and what can be done to foster peace between people of different religions instead? Readers are presented with these questions and more to challenge their critical-thinking skills as they learn about the relationship between religion and conflict, from ancient history to the Crusades to the rise of ISIS. Facts and opposing viewpoints are presented in the main text and sidebars, which are enhanced by the use of annotated quotations and primary sources.","English",20.99,17.850000000000001,"201'.7273--dc23","104 pp.","https://greenhavenpublishing.com/9781534563872",null,{"$f":"Table1[[#This Row],['# of Books]]*Table1[[#This Row],[QTY]]","v":0},{"$f":"Table1[[#This Row],[QTY]]*Table1[[#This Row],[School & Library Price]]","v":0}]
[null,null,23,null,null,"World History","World History","Television: The Small Box That Changed the World","978-1-5345-6379-7",{"$f":"HYPERLINK(Table1[[#This Row],[eCommerce Hyperlink]],\"Book Weblink\")","v":"Book Weblink"},null,"Lucent Press","Library Bound Book",1,"2019","August 2018","Library","7.000 X 9.000","Author","Katie Kawa",null,null,null,null,"Z","1260L","Grade 7","Grade 7 - 10","It is sometimes said that we are living in a Golden Age of television. What does that mean, and how did we get there? Readers find the answers as they trace the history of television, from its invention to the current age of \"Peak TV.\" This fascinating story is presented to readers through informative main text, annotated quotations, detailed sidebars, primary sources, and a comprehensive timeline. Television has changed nearly every aspect of life in many countries, and readers are sure to be excited by this fun and fact-filled look at how history and television have influenced each other.","English",40.9,32.72,"621.388--dc23","104 pp.","https://greenhavenpublishing.com/9781534563797",null,{"$f":"Table1[[#This Row],['# of Books]]*Table1[[#This Row],[QTY]]","v":0},{"$f":"Table1[[#This Row],[QTY]]*Table1[[#This Row],[School & Library Price]]","v":0}]
[null,null,23,null,null,"World History","World History","Television: The Small Box That Changed the World","978-1-5345-6380-3",{"$f":"HYPERLINK(Table1[[#This Row],[eCommerce Hyperlink]],\"Book Weblink\")","v":"Book Weblink"},null,"Lucent Press","eBook",1,"2019","August 2018",null,null,"Author","Katie Kawa",null,null,null,null,"Z","1260L","Grade 7","Grade 7 - 10","It is sometimes said that we are living in a Golden Age of television. What does that mean, and how did we get there? Readers find the answers as they trace the history of television, from its invention to the current age of \"Peak TV.\" This fascinating story is presented to readers through informative main text, annotated quotations, detailed sidebars, primary sources, and a comprehensive timeline. Television has changed nearly every aspect of life in many countries, and readers are sure to be excited by this fun and fact-filled look at how history and television have influenced each other.","English",40.9,32.72,"621.388--dc23","104 pp.","https://greenhavenpublishing.com/9781534563803",null,{"$f":"Table1[[#This Row],['# of Books]]*Table1[[#This Row],[QTY]]","v":0},{"$f":"Table1[[#This Row],[QTY]]*Table1[[#This Row],[School & Library Price]]","v":0}]
[null,null,23,null,null,"World History","World History","Television: The Small Box That Changed the World","978-1-5345-6381-0",{"$f":"HYPERLINK(Table1[[#This Row],[eCommerce Hyperlink]],\"Book Weblink\")","v":"Book Weblink"},null,"Lucent Press","Paperback Book",1,"2019","August 2018","Paperback","7.000 X 9.000","Author","Katie Kawa",null,null,null,null,"Z","1260L","Grade 7","Grade 7 - 10","It is sometimes said that we are living in a Golden Age of television. What does that mean, and how did we get there? Readers find the answers as they trace the history of television, from its invention to the current age of \"Peak TV.\" This fascinating story is presented to readers through informative main text, annotated quotations, detailed sidebars, primary sources, and a comprehensive timeline. Television has changed nearly every aspect of life in many countries, and readers are sure to be excited by this fun and fact-filled look at how history and television have influenced each other.","English",20.99,17.850000000000001,"621.388--dc23","104 pp.","https://greenhavenpublishing.com/9781534563810",null,{"$f":"Table1[[#This Row],['# of Books]]*Table1[[#This Row],[QTY]]","v":0},{"$f":"Table1[[#This Row],[QTY]]*Table1[[#This Row],[School & Library Price]]","v":0}]
[null,null,23,null,null,"World History","World History","The Scientific Revolution: How Science and Technology Shaped the World","978-1-5345-6388-9",{"$f":"HYPERLINK(Table1[[#This Row],[eCommerce Hyperlink]],\"Book Weblink\")","v":"Book Weblink"},null,"Lucent Press","Library Bound Book",1,"2019","August 2018","Library","7.000 X 9.000","Author","Caroline Kennon",null,null,null,null,"Z","1210L","Grade 7","Grade 7 - 10","The Scientific Revolution is known as the time period when modern science was born. Without the people who made discoveries, theories, and inventions during this time, the world as we know it today would not exist. Readers are introduced to the figures, discoveries, and events that defined the Scientific Revolution through annotated quotes from historians and historical documents, primary sources, fact-filled sidebars, and a detailed timeline. As readers explore this essential social studies topic, they also learn the important connections that can be made between history and STEM, broadening their view of each topic.","English",40.9,32.72,"509--dc23","104 pp.","https://greenhavenpublishing.com/9781534563889",null,{"$f":"Table1[[#This Row],['# of Books]]*Table1[[#This Row],[QTY]]","v":0},{"$f":"Table1[[#This Row],[QTY]]*Table1[[#This Row],[School & Library Price]]","v":0}]
[null,null,23,null,null,"World History","World History","The Scientific Revolution: How Science and Technology Shaped the World","978-1-5345-6389-6",{"$f":"HYPERLINK(Table1[[#This Row],[eCommerce Hyperlink]],\"Book Weblink\")","v":"Book Weblink"},null,"Lucent Press","eBook",1,"2019","August 2018",null,null,"Author","Caroline Kennon",null,null,null,null,"Z","1210L","Grade 7","Grade 7 - 10","The Scientific Revolution is known as the time period when modern science was born. Without the people who made discoveries, theories, and inventions during this time, the world as we know it today would not exist. Readers are introduced to the figures, discoveries, and events that defined the Scientific Revolution through annotated quotes from historians and historical documents, primary sources, fact-filled sidebars, and a detailed timeline. As readers explore this essential social studies topic, they also learn the important connections that can be made between history and STEM, broadening their view of each topic.","English",40.9,32.72,"509--dc23","104 pp.","https://greenhavenpublishing.com/9781534563896",null,{"$f":"Table1[[#This Row],['# of Books]]*Table1[[#This Row],[QTY]]","v":0},{"$f":"Table1[[#This Row],[QTY]]*Table1[[#This Row],[School & Library Price]]","v":0}]
[null,null,23,null,null,"World History","World History","The Scientific Revolution: How Science and Technology Shaped the World","978-1-5345-6390-2",{"$f":"HYPERLINK(Table1[[#This Row],[eCommerce Hyperlink]],\"Book Weblink\")","v":"Book Weblink"},null,"Lucent Press","Paperback Book",1,"2019","August 2018","Paperback","7.000 X 9.000","Author","Caroline Kennon",null,null,null,null,"Z","1210L","Grade 7","Grade 7 - 10","The Scientific Revolution is known as the time period when modern science was born. Without the people who made discoveries, theories, and inventions during this time, the world as we know it today would not exist. Readers are introduced to the figures, discoveries, and events that defined the Scientific Revolution through annotated quotes from historians and historical documents, primary sources, fact-filled sidebars, and a detailed timeline. As readers explore this essential social studies topic, they also learn the important connections that can be made between history and STEM, broadening their view of each topic.","English",20.99,17.850000000000001,"509--dc23","104 pp.","https://greenhavenpublishing.com/9781534563902",null,{"$f":"Table1[[#This Row],['# of Books]]*Table1[[#This Row],[QTY]]","v":0},{"$f":"Table1[[#This Row],[QTY]]*Table1[[#This Row],[School & Library Price]]","v":0}]
[null,null,23,null,null,"World History","World History","The Women's Movement and the Rise of Feminism","978-1-5345-6376-6",{"$f":"HYPERLINK(Table1[[#This Row],[eCommerce Hyperlink]],\"Book Weblink\")","v":"Book Weblink"},null,"Lucent Press","Library Bound Book",1,"2019","August 2018","Library","7.000 X 9.000","Author","Nicole Horning",null,null,null,null,"Z",null,"Grade 7","Grade 7 - 10","What is feminism? How has the global fight for women's rights changed from the time of suffragettes to the women's marches held around the world in 2017? As readers explore the answers to these questions, they discover the challenges women have faced in their quest for equality. With annotated quotes, sidebars, and primary sources enhancing the engaging main text, readers are given a comprehensive look at how women in various countries have fought for equal rights. A detailed timeline highlights crucial dates in feminist history, helping provide context as readers gain a deeper appreciation for this timely topic.","English",40.9,32.72,"305.420973--dc23","104 pp.","https://greenhavenpublishing.com/9781534563766",null,{"$f":"Table1[[#This Row],['# of Books]]*Table1[[#This Row],[QTY]]","v":0},{"$f":"Table1[[#This Row],[QTY]]*Table1[[#This Row],[School & Library Price]]","v":0}]
[null,null,23,null,null,"World History","World History","The Women's Movement and the Rise of Feminism","978-1-5345-6377-3",{"$f":"HYPERLINK(Table1[[#This Row],[eCommerce Hyperlink]],\"Book Weblink\")","v":"Book Weblink"},null,"Lucent Press","eBook",1,"2019","August 2018",null,null,"Author","Nicole Horning",null,null,null,null,"Z",null,"Grade 7","Grade 7 - 10","What is feminism? How has the global fight for women's rights changed from the time of suffragettes to the women's marches held around the world in 2017? As readers explore the answers to these questions, they discover the challenges women have faced in their quest for equality. With annotated quotes, sidebars, and primary sources enhancing the engaging main text, readers are given a comprehensive look at how women in various countries have fought for equal rights. A detailed timeline highlights crucial dates in feminist history, helping provide context as readers gain a deeper appreciation for this timely topic.","English",40.9,32.72,"305.420973--dc23","104 pp.","https://greenhavenpublishing.com/9781534563773",null,{"$f":"Table1[[#This Row],['# of Books]]*Table1[[#This Row],[QTY]]","v":0},{"$f":"Table1[[#This Row],[QTY]]*Table1[[#This Row],[School & Library Price]]","v":0}]
[null,null,23,null,null,"World History","World History","The Women's Movement and the Rise of Feminism","978-1-5345-6378-0",{"$f":"HYPERLINK(Table1[[#This Row],[eCommerce Hyperlink]],\"Book Weblink\")","v":"Book Weblink"},null,"Lucent Press","Paperback Book",1,"2019","August 2018","Paperback","7.000 X 9.000","Author","Nicole Horning",null,null,null,null,"Z",null,"Grade 7","Grade 7 - 10","What is feminism? How has the global fight for women's rights changed from the time of suffragettes to the women's marches held around the world in 2017? As readers explore the answers to these questions, they discover the challenges women have faced in their quest for equality. With annotated quotes, sidebars, and primary sources enhancing the engaging main text, readers are given a comprehensive look at how women in various countries have fought for equal rights. A detailed timeline highlights crucial dates in feminist history, helping provide context as readers gain a deeper appreciation for this timely topic.","English",20.99,17.850000000000001,"305.420973--dc23","104 pp.","https://greenhavenpublishing.com/9781534563780",null,{"$f":"Table1[[#This Row],['# of Books]]*Table1[[#This Row],[QTY]]","v":0},{"$f":"Table1[[#This Row],[QTY]]*Table1[[#This Row],[School & Library Price]]","v":0}]
[null,null,23,null,null,"World History","World History","World History: Set 4","978-1-5345-6718-4",{"$f":"HYPERLINK(Table1[[#This Row],[eCommerce Hyperlink]],\"Book Weblink\")","v":"Book Weblink"},null,"Lucent Press","Library Set",6,"2020","August 2019","Library","7.000 X 9.000",null,null,null,null,null,null,null,null,"Grade 7","Grade 7 - 10","The events shaping the world today, such as royal weddings and technological advances have their roots in things that happened long ago. Discovering the past is often the key to understanding the present and building a better future, and that's exactly what readers are inspired to do as they explore fascinating world history topics. These topics are described in comprehensive detail through informative main text, helpful timelines, and well-researched sidebars. In addition, historical and contemporary photographs, including primary source images, add an exciting visual element to this essential reading experience. Features include: Quotations provide unique perspectives and are cited to provide resources for further research. Presents a balanced view of controversial historical events, such as the Israeli-Palestinian conflict and the Vietnam War, to strengthen critical thinking skills. Topics supplement what students learn in history classes to help them make meaningful connections between the past and present.","English",245.4,196.32,null,"104 pp.","https://greenhavenpublishing.com/9781534567184",null,{"$f":"Table1[[#This Row],['# of Books]]*Table1[[#This Row],[QTY]]","v":0},{"$f":"Table1[[#This Row],[QTY]]*Table1[[#This Row],[School & Library Price]]","v":0}]
[null,null,23,null,null,"World History","World History","World History (Fall 2019)","978-1-5345-6808-2",{"$f":"HYPERLINK(Table1[[#This Row],[eCommerce Hyperlink]],\"Book Weblink\")","v":"Book Weblink"},null,"Lucent Press","Single Copy Set",6,"2020","August 2019","Paperback","7.000 X 9.000",null,null,null,null,null,null,null,null,"Grade 7","Grade 7 - 10","The events shaping the world today, such as royal weddings and technological advances have their roots in things that happened long ago. Discovering the past is often the key to understanding the present and building a better future, and that's exactly what readers are inspired to do as they explore fascinating world history topics. These topics are described in comprehensive detail through informative main text, helpful timelines, and well-researched sidebars. In addition, historical and contemporary photographs, including primary source images, add an exciting visual element to this essential reading experience. Features include: Quotations provide unique perspectives and are cited to provide resources for further research. Presents a balanced view of controversial historical events, such as the Israeli-Palestinian conflict and the Vietnam War, to strengthen critical thinking skills. Topics supplement what students learn in history classes to help them make meaningful connections between the past and present.","English",125.94,107.1,null,"104 pp.","https://greenhavenpublishing.com/9781534568082",null,{"$f":"Table1[[#This Row],['# of Books]]*Table1[[#This Row],[QTY]]","v":0},{"$f":"Table1[[#This Row],[QTY]]*Table1[[#This Row],[School & Library Price]]","v":0}]
[null,null,23,null,null,"World History","World History","North Korea: A Closer Look at the Secret State","978-1-5345-6717-7",{"$f":"HYPERLINK(Table1[[#This Row],[eCommerce Hyperlink]],\"Book Weblink\")","v":"Book Weblink"},null,"Lucent Press","Library Bound Book",1,"2020","August 2019","Library","7.000 X 9.000","Author","Eleanor Bradshaw",null,null,null,null,"Z",null,"Grade 7","Grade 7 - 10","North Korea strictly limits contact between its citizens and the outside world. Rare occasions, such as the North Korean Mass Games, offer a glimpse of what's often called the secret state. The country typically broadcasts an image of a strong and unified people, but what is the daily reality of life in North Korea? In this look at a major current events topic, state propaganda, defector's accounts, and other annotated quotes highlight conflicting reports. The country's political, economic, and military history is presented through detailed main text, fascinating sidebars, and historical and contemporary images.","English",40.9,32.72,"951.93--dc23","104 pp.","https://greenhavenpublishing.com/9781534567177",null,{"$f":"Table1[[#This Row],['# of Books]]*Table1[[#This Row],[QTY]]","v":0},{"$f":"Table1[[#This Row],[QTY]]*Table1[[#This Row],[School & Library Price]]","v":0}]
[null,null,23,null,null,"World History","World History","North Korea: A Closer Look at the Secret State","978-1-5345-6790-0",{"$f":"HYPERLINK(Table1[[#This Row],[eCommerce Hyperlink]],\"Book Weblink\")","v":"Book Weblink"},null,"Lucent Press","eBook",1,"2020","August 2019",null,null,"Author","Eleanor Bradshaw",null,null,null,null,"Z",null,"Grade 7","Grade 7 - 10","North Korea strictly limits contact between its citizens and the outside world. Rare occasions, such as the North Korean Mass Games, offer a glimpse of what's often called the secret state. The country typically broadcasts an image of a strong and unified people, but what is the daily reality of life in North Korea? In this look at a major current events topic, state propaganda, defector's accounts, and other annotated quotes highlight conflicting reports. The country's political, economic, and military history is presented through detailed main text, fascinating sidebars, and historical and contemporary images.","English",40.9,32.72,"951.93--dc23","104 pp.","https://greenhavenpublishing.com/9781534567900",null,{"$f":"Table1[[#This Row],['# of Books]]*Table1[[#This Row],[QTY]]","v":0},{"$f":"Table1[[#This Row],[QTY]]*Table1[[#This Row],[School & Library Price]]","v":0}]
[null,null,23,null,null,"World History","World History","North Korea: A Closer Look at the Secret State","978-1-5345-6789-4",{"$f":"HYPERLINK(Table1[[#This Row],[eCommerce Hyperlink]],\"Book Weblink\")","v":"Book Weblink"},null,"Lucent Press","Paperback Book",1,"2020","August 2019","Paperback","7.000 X 9.000","Author","Eleanor Bradshaw",null,null,null,null,"Z",null,"Grade 7","Grade 7 - 10","North Korea strictly limits contact between its citizens and the outside world. Rare occasions, such as the North Korean Mass Games, offer a glimpse of what's often called the secret state. The country typically broadcasts an image of a strong and unified people, but what is the daily reality of life in North Korea? In this look at a major current events topic, state propaganda, defector's accounts, and other annotated quotes highlight conflicting reports. The country's political, economic, and military history is presented through detailed main text, fascinating sidebars, and historical and contemporary images.","English",20.99,17.850000000000001,"951.93--dc23","104 pp.","https://greenhavenpublishing.com/9781534567894",null,{"$f":"Table1[[#This Row],['# of Books]]*Table1[[#This Row],[QTY]]","v":0},{"$f":"Table1[[#This Row],[QTY]]*Table1[[#This Row],[School & Library Price]]","v":0}]
[null,null,23,null,null,"World History","World History","Space Exploration Throughout History: From Telescopes to Tourism","978-1-5345-6712-2",{"$f":"HYPERLINK(Table1[[#This Row],[eCommerce Hyperlink]],\"Book Weblink\")","v":"Book Weblink"},null,"Lucent Press","Library Bound Book",1,"2020","August 2019","Library","7.000 X 9.000","Author","Jennifer Lombardo",null,null,null,null,"Z","1250L","Grade 7","Grade 7 - 10","Humans have always been fascinated by the stars. The development of telescopes allowed them to learn more about the universe around them, and as technology advanced, they were able to travel into space and make plans for an entire space tourism industry. Through accessible main text, informative sidebars, and annotated quotes, readers learn about the scientists who have made space exploration possible and the amazing things they have discovered over the centuries. Readers will be inspired by the exciting possibilities the future may hold. In addition, historical and contemporary images present the history of space exploration in an exciting visual way.","English",40.9,32.72,"629.43/5--dc23","104 pp.","https://greenhavenpublishing.com/9781534567122",null,{"$f":"Table1[[#This Row],['# of Books]]*Table1[[#This Row],[QTY]]","v":0},{"$f":"Table1[[#This Row],[QTY]]*Table1[[#This Row],[School & Library Price]]","v":0}]
[null,null,23,null,null,"World History","World History","Space Exploration Throughout History: From Telescopes to Tourism","978-1-5345-6780-1",{"$f":"HYPERLINK(Table1[[#This Row],[eCommerce Hyperlink]],\"Book Weblink\")","v":"Book Weblink"},null,"Lucent Press","eBook",1,"2020","August 2019",null,null,"Author","Jennifer Lombardo",null,null,null,null,"Z","1250L","Grade 7","Grade 7 - 10","Humans have always been fascinated by the stars. The development of telescopes allowed them to learn more about the universe around them, and as technology advanced, they were able to travel into space and make plans for an entire space tourism industry. Through accessible main text, informative sidebars, and annotated quotes, readers learn about the scientists who have made space exploration possible and the amazing things they have discovered over the centuries. Readers will be inspired by the exciting possibilities the future may hold. In addition, historical and contemporary images present the history of space exploration in an exciting visual way.","English",40.9,32.72,"629.43/5--dc23","104 pp.","https://greenhavenpublishing.com/9781534567801",null,{"$f":"Table1[[#This Row],['# of Books]]*Table1[[#This Row],[QTY]]","v":0},{"$f":"Table1[[#This Row],[QTY]]*Table1[[#This Row],[School & Library Price]]","v":0}]
[null,null,23,null,null,"World History","World History","Space Exploration Throughout History: From Telescopes to Tourism","978-1-5345-6779-5",{"$f":"HYPERLINK(Table1[[#This Row],[eCommerce Hyperlink]],\"Book Weblink\")","v":"Book Weblink"},null,"Lucent Press","Paperback Book",1,"2020","August 2019","Paperback","7.000 X 9.000","Author","Jennifer Lombardo",null,null,null,null,"Z","1250L","Grade 7","Grade 7 - 10","Humans have always been fascinated by the stars. The development of telescopes allowed them to learn more about the universe around them, and as technology advanced, they were able to travel into space and make plans for an entire space tourism industry. Through accessible main text, informative sidebars, and annotated quotes, readers learn about the scientists who have made space exploration possible and the amazing things they have discovered over the centuries. Readers will be inspired by the exciting possibilities the future may hold. In addition, historical and contemporary images present the history of space exploration in an exciting visual way.","English",20.99,17.850000000000001,"629.43/5--dc23","104 pp.","https://greenhavenpublishing.com/9781534567795",null,{"$f":"Table1[[#This Row],['# of Books]]*Table1[[#This Row],[QTY]]","v":0},{"$f":"Table1[[#This Row],[QTY]]*Table1[[#This Row],[School & Library Price]]","v":0}]
[null,null,23,null,null,"World History","World History","The British Monarchy: The Changing Role of the Royal Family","978-1-5345-6713-9",{"$f":"HYPERLINK(Table1[[#This Row],[eCommerce Hyperlink]],\"Book Weblink\")","v":"Book Weblink"},null,"Lucent Press","Library Bound Book",1,"2020","August 2019","Library","7.000 X 9.000","Author","Nicole Horning",null,null,null,null,"Z",null,"Grade 7","Grade 7 - 10","The British monarchy has long been a subject of fascination for many people. Television shows and films have been created to tell the history of influential, long-reigning monarchs such as Queen Elizabeth II, and royal weddings are televised worldwide. This engaging look at British history examines past and present monarchs, how marriages such as the one between Prince Harry and Meghan Markle broke tradition, and the controversy over whether or not Britain needs a monarchy. Through sidebars, annotated quotations, maps, and full-color photographs, readers will gain a deeper understanding of this popular historical topic.","English",40.9,32.72,"941.009'9--dc23","104 pp.","https://greenhavenpublishing.com/9781534567139",null,{"$f":"Table1[[#This Row],['# of Books]]*Table1[[#This Row],[QTY]]","v":0},{"$f":"Table1[[#This Row],[QTY]]*Table1[[#This Row],[School & Library Price]]","v":0}]
[null,null,23,null,null,"World History","World History","The British Monarchy: The Changing Role of the Royal Family","978-1-5345-6782-5",{"$f":"HYPERLINK(Table1[[#This Row],[eCommerce Hyperlink]],\"Book Weblink\")","v":"Book Weblink"},null,"Lucent Press","eBook",1,"2020","August 2019",null,null,"Author","Nicole Horning",null,null,null,null,"Z",null,"Grade 7","Grade 7 - 10","The British monarchy has long been a subject of fascination for many people. Television shows and films have been created to tell the history of influential, long-reigning monarchs such as Queen Elizabeth II, and royal weddings are televised worldwide. This engaging look at British history examines past and present monarchs, how marriages such as the one between Prince Harry and Meghan Markle broke tradition, and the controversy over whether or not Britain needs a monarchy. Through sidebars, annotated quotations, maps, and full-color photographs, readers will gain a deeper understanding of this popular historical topic.","English",40.9,32.72,"941.009'9--dc23","104 pp.","https://greenhavenpublishing.com/9781534567825",null,{"$f":"Table1[[#This Row],['# of Books]]*Table1[[#This Row],[QTY]]","v":0},{"$f":"Table1[[#This Row],[QTY]]*Table1[[#This Row],[School & Library Price]]","v":0}]
[null,null,23,null,null,"World History","World History","The British Monarchy: The Changing Role of the Royal Family","978-1-5345-6781-8",{"$f":"HYPERLINK(Table1[[#This Row],[eCommerce Hyperlink]],\"Book Weblink\")","v":"Book Weblink"},null,"Lucent Press","Paperback Book",1,"2020","August 2019","Paperback","7.000 X 9.000","Author","Nicole Horning",null,null,null,null,"Z",null,"Grade 7","Grade 7 - 10","The British monarchy has long been a subject of fascination for many people. Television shows and films have been created to tell the history of influential, long-reigning monarchs such as Queen Elizabeth II, and royal weddings are televised worldwide. This engaging look at British history examines past and present monarchs, how marriages such as the one between Prince Harry and Meghan Markle broke tradition, and the controversy over whether or not Britain needs a monarchy. Through sidebars, annotated quotations, maps, and full-color photographs, readers will gain a deeper understanding of this popular historical topic.","English",20.99,17.850000000000001,"941.009'9--dc23","104 pp.","https://greenhavenpublishing.com/9781534567818",null,{"$f":"Table1[[#This Row],['# of Books]]*Table1[[#This Row],[QTY]]","v":0},{"$f":"Table1[[#This Row],[QTY]]*Table1[[#This Row],[School & Library Price]]","v":0}]
[null,null,23,null,null,"World History","World History","The Information Revolution: Transforming the World Through Technology","978-1-5345-6715-3",{"$f":"HYPERLINK(Table1[[#This Row],[eCommerce Hyperlink]],\"Book Weblink\")","v":"Book Weblink"},null,"Lucent Press","Library Bound Book",1,"2020","August 2019","Library","7.000 X 9.000","Author","Tamra B. Orr",null,null,null,null,"Z",null,"Grade 7","Grade 7 - 10","Young people growing up today don't know a life without social media, smartphones, and other internet-driven technology. However, it wasn't that long ago that computers were still the size of an entire room. As it became easier and cheaper to quickly share information through computer technology, an Information Revolution began taking place. As readers explore this revolution through accessible main text, informative sidebars, and annotated quotes, they discover the people and inventions that created the digital world they know today. Historical and contemporary images give readers a deeper sense of how the ideas of the past have shaped their present.","English",40.9,32.72,"004--dc23","104 pp.","https://greenhavenpublishing.com/9781534567153",null,{"$f":"Table1[[#This Row],['# of Books]]*Table1[[#This Row],[QTY]]","v":0},{"$f":"Table1[[#This Row],[QTY]]*Table1[[#This Row],[School & Library Price]]","v":0}]
[null,null,23,null,null,"World History","World History","The Information Revolution: Transforming the World Through Technology","978-1-5345-6786-3",{"$f":"HYPERLINK(Table1[[#This Row],[eCommerce Hyperlink]],\"Book Weblink\")","v":"Book Weblink"},null,"Lucent Press","eBook",1,"2020","August 2019",null,null,"Author","Tamra B. Orr",null,null,null,null,"Z",null,"Grade 7","Grade 7 - 10","Young people growing up today don't know a life without social media, smartphones, and other internet-driven technology. However, it wasn't that long ago that computers were still the size of an entire room. As it became easier and cheaper to quickly share information through computer technology, an Information Revolution began taking place. As readers explore this revolution through accessible main text, informative sidebars, and annotated quotes, they discover the people and inventions that created the digital world they know today. Historical and contemporary images give readers a deeper sense of how the ideas of the past have shaped their present.","English",40.9,32.72,"004--dc23","104 pp.","https://greenhavenpublishing.com/9781534567863",null,{"$f":"Table1[[#This Row],['# of Books]]*Table1[[#This Row],[QTY]]","v":0},{"$f":"Table1[[#This Row],[QTY]]*Table1[[#This Row],[School & Library Price]]","v":0}]
[null,null,23,null,null,"World History","World History","The Information Revolution: Transforming the World Through Technology","978-1-5345-6785-6",{"$f":"HYPERLINK(Table1[[#This Row],[eCommerce Hyperlink]],\"Book Weblink\")","v":"Book Weblink"},null,"Lucent Press","Paperback Book",1,"2020","August 2019","Paperback","7.000 X 9.000","Author","Tamra B. Orr",null,null,null,null,"Z",null,"Grade 7","Grade 7 - 10","Young people growing up today don't know a life without social media, smartphones, and other internet-driven technology. However, it wasn't that long ago that computers were still the size of an entire room. As it became easier and cheaper to quickly share information through computer technology, an Information Revolution began taking place. As readers explore this revolution through accessible main text, informative sidebars, and annotated quotes, they discover the people and inventions that created the digital world they know today. Historical and contemporary images give readers a deeper sense of how the ideas of the past have shaped their present.","English",20.99,17.850000000000001,"004--dc23","104 pp.","https://greenhavenpublishing.com/9781534567856",null,{"$f":"Table1[[#This Row],['# of Books]]*Table1[[#This Row],[QTY]]","v":0},{"$f":"Table1[[#This Row],[QTY]]*Table1[[#This Row],[School & Library Price]]","v":0}]
[null,null,23,null,null,"World History","World History","The Israeli-Palestinian Conflict: The Struggle for Middle East Peace","978-1-5345-6716-0",{"$f":"HYPERLINK(Table1[[#This Row],[eCommerce Hyperlink]],\"Book Weblink\")","v":"Book Weblink"},null,"Lucent Press","Library Bound Book",1,"2020","August 2019","Library","7.000 X 9.000","Author","Tamra B. Orr",null,null,null,null,"Z",null,"Grade 7","Grade 7 - 10","Peace in the Middle East has been a focus for politicians and activists for many years, but deadly conflicts still ravage this region. At the center of this struggle is the Israeli-Palestinian conflict, which has deep historical roots. These roots are presented through objective main text filled with annotated quotes from historians and people who have been affected by this conflict. Featuring sidebars and images from both the past and present, this comprehensive look at a region in constant conflict gives young people a stronger sense of how current events connect to what they've learned in history classes.","English",40.9,32.72,"956.9405/5--dc23","104 pp.","https://greenhavenpublishing.com/9781534567160",null,{"$f":"Table1[[#This Row],['# of Books]]*Table1[[#This Row],[QTY]]","v":0},{"$f":"Table1[[#This Row],[QTY]]*Table1[[#This Row],[School & Library Price]]","v":0}]
[null,null,23,null,null,"World History","World History","The Israeli-Palestinian Conflict: The Struggle for Middle East Peace","978-1-5345-6788-7",{"$f":"HYPERLINK(Table1[[#This Row],[eCommerce Hyperlink]],\"Book Weblink\")","v":"Book Weblink"},null,"Lucent Press","eBook",1,"2020","August 2019",null,null,"Author","Tamra B. Orr",null,null,null,null,"Z",null,"Grade 7","Grade 7 - 10","Peace in the Middle East has been a focus for politicians and activists for many years, but deadly conflicts still ravage this region. At the center of this struggle is the Israeli-Palestinian conflict, which has deep historical roots. These roots are presented through objective main text filled with annotated quotes from historians and people who have been affected by this conflict. Featuring sidebars and images from both the past and present, this comprehensive look at a region in constant conflict gives young people a stronger sense of how current events connect to what they've learned in history classes.","English",40.9,32.72,"956.9405/5--dc23","104 pp.","https://greenhavenpublishing.com/9781534567887",null,{"$f":"Table1[[#This Row],['# of Books]]*Table1[[#This Row],[QTY]]","v":0},{"$f":"Table1[[#This Row],[QTY]]*Table1[[#This Row],[School & Library Price]]","v":0}]
[null,null,23,null,null,"World History","World History","The Israeli-Palestinian Conflict: The Struggle for Middle East Peace","978-1-5345-6787-0",{"$f":"HYPERLINK(Table1[[#This Row],[eCommerce Hyperlink]],\"Book Weblink\")","v":"Book Weblink"},null,"Lucent Press","Paperback Book",1,"2020","August 2019","Paperback","7.000 X 9.000","Author","Tamra B. Orr",null,null,null,null,"Z",null,"Grade 7","Grade 7 - 10","Peace in the Middle East has been a focus for politicians and activists for many years, but deadly conflicts still ravage this region. At the center of this struggle is the Israeli-Palestinian conflict, which has deep historical roots. These roots are presented through objective main text filled with annotated quotes from historians and people who have been affected by this conflict. Featuring sidebars and images from both the past and present, this comprehensive look at a region in constant conflict gives young people a stronger sense of how current events connect to what they've learned in history classes.","English",20.99,17.850000000000001,"956.9405/5--dc23","104 pp.","https://greenhavenpublishing.com/9781534567870",null,{"$f":"Table1[[#This Row],['# of Books]]*Table1[[#This Row],[QTY]]","v":0},{"$f":"Table1[[#This Row],[QTY]]*Table1[[#This Row],[School & Library Price]]","v":0}]
[null,null,23,null,null,"World History","World History","The Vietnam War: A Controversial Conflict","978-1-5345-6714-6",{"$f":"HYPERLINK(Table1[[#This Row],[eCommerce Hyperlink]],\"Book Weblink\")","v":"Book Weblink"},null,"Lucent Press","Library Bound Book",1,"2020","August 2019","Library","7.000 X 9.000","Author","Tamra B. Orr",null,null,null,null,"Z",null,"Grade 7","Grade 7 - 10","For many Americans, the Vietnam War was particularly painful because, for the first time, the battles and bombs, the danger and death, and the POWs and protesters were all right in front of them on television. This international conflict had a lasting impact on the entire world, and readers discover both the roots and the reach of the Vietnam War as they explore objective main text, fascinating sidebars, and annotated quotes from those with firsthand knowledge of this controversial conflict. Maps and photographs from the front lines help young readers gain a deeper understanding of this major historical event.","English",40.9,32.72,"959.704/3--dc23","104 pp.","https://greenhavenpublishing.com/9781534567146",null,{"$f":"Table1[[#This Row],['# of Books]]*Table1[[#This Row],[QTY]]","v":0},{"$f":"Table1[[#This Row],[QTY]]*Table1[[#This Row],[School & Library Price]]","v":0}]
[null,null,23,null,null,"World History","World History","The Vietnam War: A Controversial Conflict","978-1-5345-6784-9",{"$f":"HYPERLINK(Table1[[#This Row],[eCommerce Hyperlink]],\"Book Weblink\")","v":"Book Weblink"},null,"Lucent Press","eBook",1,"2020","August 2019",null,null,"Author","Tamra B. Orr",null,null,null,null,"Z",null,"Grade 7","Grade 7 - 10","For many Americans, the Vietnam War was particularly painful because, for the first time, the battles and bombs, the danger and death, and the POWs and protesters were all right in front of them on television. This international conflict had a lasting impact on the entire world, and readers discover both the roots and the reach of the Vietnam War as they explore objective main text, fascinating sidebars, and annotated quotes from those with firsthand knowledge of this controversial conflict. Maps and photographs from the front lines help young readers gain a deeper understanding of this major historical event.","English",40.9,32.72,"959.704/3--dc23","104 pp.","https://greenhavenpublishing.com/9781534567849",null,{"$f":"Table1[[#This Row],['# of Books]]*Table1[[#This Row],[QTY]]","v":0},{"$f":"Table1[[#This Row],[QTY]]*Table1[[#This Row],[School & Library Price]]","v":0}]
[null,null,23,null,null,"World History","World History","The Vietnam War: A Controversial Conflict","978-1-5345-6783-2",{"$f":"HYPERLINK(Table1[[#This Row],[eCommerce Hyperlink]],\"Book Weblink\")","v":"Book Weblink"},null,"Lucent Press","Paperback Book",1,"2020","August 2019","Paperback","7.000 X 9.000","Author","Tamra B. Orr",null,null,null,null,"Z",null,"Grade 7","Grade 7 - 10","For many Americans, the Vietnam War was particularly painful because, for the first time, the battles and bombs, the danger and death, and the POWs and protesters were all right in front of them on television. This international conflict had a lasting impact on the entire world, and readers discover both the roots and the reach of the Vietnam War as they explore objective main text, fascinating sidebars, and annotated quotes from those with firsthand knowledge of this controversial conflict. Maps and photographs from the front lines help young readers gain a deeper understanding of this major historical event.","English",20.99,17.850000000000001,"959.704/3--dc23","104 pp.","https://greenhavenpublishing.com/9781534567832",null,{"$f":"Table1[[#This Row],['# of Books]]*Table1[[#This Row],[QTY]]","v":0},{"$f":"Table1[[#This Row],[QTY]]*Table1[[#This Row],[School & Library Price]]","v":0}]
[null,null,null,4,6,"Social Studies","Show Me","Show Me: Geography & Science","978-1-5345-3944-0",{"$f":"HYPERLINK(Table1[[#This Row],[eCommerce Hyperlink]],\"Book Weblink\")","v":"Book Weblink"},null,"KidHaven Publishing","Library Set",8,"2022","January 2022","Library","8.500 X 8.500",null,null,null,null,null,null,null,null,"Grade 2 - 3","Grade 2 - 4","Young readers are given a unique look at the world around them in these helpful guides to geography and science. Simple and clear text explains important elementary curriculum concepts—from the science behind electricity to the weather around the world. Additional information is presented in eye-catching fact boxes that further break down these topics using accessible language. Colorful illustrations present each concept in a creative way, making these explorations of common classroom topics feel fresh and fun. These bright and bold introductions to essential subjects show young people just how exciting learning can be!","English",204.8,163.84,null,"24 pp.","https://greenhavenpublishing.com/9781534539440",null,{"$f":"Table1[[#This Row],['# of Books]]*Table1[[#This Row],[QTY]]","v":0},{"$f":"Table1[[#This Row],[QTY]]*Table1[[#This Row],[School & Library Price]]","v":0}]
[null,null,null,4,6,"Social Studies","Show Me Science","Show Me Science","978-1-5345-3943-3",{"$f":"HYPERLINK(Table1[[#This Row],[eCommerce Hyperlink]],\"Book Weblink\")","v":"Book Weblink"},null,"KidHaven Publishing","Library Set",4,"2022","January 2022","Library","8.500 X 8.500",null,null,null,null,null,null,null,null,"Grade 2 - 3","Grade 2 - 4","Essential elementary science curriculum concepts—from light and sound to electricity and magnets—are presented to readers in a vibrant way through helpful guides designed to make learning fun. Charming illustrations fill the pages and are paired with simple, clear text and fact boxes that break down complicated concepts using language young readers can understand. These concepts are connected to the real world through relatable examples that encourage young people to apply what they learn in the classroom to their everyday lives. Using a captivating design, these volumes aim to show readers science in a fresh, fun way.","English",102.4,81.92,null,"24 pp.","https://greenhavenpublishing.com/9781534539433",null,{"$f":"Table1[[#This Row],['# of Books]]*Table1[[#This Row],[QTY]]","v":0},{"$f":"Table1[[#This Row],[QTY]]*Table1[[#This Row],[School & Library Price]]","v":0}]
[null,null,null,4,6,"Social Studies","Show Me Science","Electricity","978-1-5345-3913-6",{"$f":"HYPERLINK(Table1[[#This Row],[eCommerce Hyperlink]],\"Book Weblink\")","v":"Book Weblink"},null,"KidHaven Publishing","Library Bound Book",1,"2022","January 2022","Library","8.500 X 8.500","Author","Emilie Dufresne",null,null,null,null,"L",null,"Grade 2 - 3","Grade 2 - 4","We need electricity to turn on the lights, charge our phones, and watch TV. Where does electricity come from, and how does it make all these things work? The answers to these questions and more are shown to readers in this handy guide to an essential early science curriculum topic. Age-appropriate text and eye-catching fact boxes present information in a clear and concise way. They’re paired with charming illustrations that feature helpful labels to enhance this educational experience. In addition, simple diagrams break down STEM topics in a way that is sure to appeal to visual learners and creative thinkers.","English",25.6,20.48,"537--dc23","24 pp.","https://greenhavenpublishing.com/9781534539136",null,{"$f":"Table1[[#This Row],['# of Books]]*Table1[[#This Row],[QTY]]","v":0},{"$f":"Table1[[#This Row],[QTY]]*Table1[[#This Row],[School & Library Price]]","v":0}]
[null,null,null,4,6,"Social Studies","Show Me Science","Electricity","978-1-5345-3914-3",{"$f":"HYPERLINK(Table1[[#This Row],[eCommerce Hyperlink]],\"Book Weblink\")","v":"Book Weblink"},{"$f":"HYPERLINK(Table1[[#This Row],[EPP Hyperlink]],\"EPP Weblink\")","v":"EPP Weblink"},"KidHaven Publishing","eBook",1,"2022","January 2022",null,null,"Author","Emilie Dufresne",null,null,null,null,"L",null,"Grade 2 - 3","Grade 2 - 4","We need electricity to turn on the lights, charge our phones, and watch TV. Where does electricity come from, and how does it make all these things work? The answers to these questions and more are shown to readers in this handy guide to an essential early science curriculum topic. Age-appropriate text and eye-catching fact boxes present information in a clear and concise way. They’re paired with charming illustrations that feature helpful labels to enhance this educational experience. In addition, simple diagrams break down STEM topics in a way that is sure to appeal to visual learners and creative thinkers.","English",25.6,20.48,"537--dc23","24 pp.","https://greenhavenpublishing.com/9781534539143","http://www.epointplus.com/embed/9781534539143/?login=cyberrep&password=cyberrep",{"$f":"Table1[[#This Row],['# of Books]]*Table1[[#This Row],[QTY]]","v":0},{"$f":"Table1[[#This Row],[QTY]]*Table1[[#This Row],[School & Library Price]]","v":0}]
[null,null,null,4,6,"Social Studies","Show Me Science","Light","978-1-5345-3917-4",{"$f":"HYPERLINK(Table1[[#This Row],[eCommerce Hyperlink]],\"Book Weblink\")","v":"Book Weblink"},null,"KidHaven Publishing","Library Bound Book",1,"2022","January 2022","Library","8.500 X 8.500","Author","Emilie Dufresne",null,null,null,null,"L",null,"Grade 2 - 3","Grade 2 - 4","Young readers discover that the science behind light is fun in this colorful and creative look at an essential elementary curriculum topic. Bright illustrations fill the pages, helping readers visualize what’s explained in the accessible and engaging text. Relatable examples show readers how the science of light is in action all around them, and these examples are paired with easy-to-follow diagrams that feature clear labels and an eye-catching design. Readers are sure to see the light as they develop a deeper understanding of STEM concepts and a sense of curiosity about the world around them.","English",25.6,20.48,"535--dc23","24 pp.","https://greenhavenpublishing.com/9781534539174",null,{"$f":"Table1[[#This Row],['# of Books]]*Table1[[#This Row],[QTY]]","v":0},{"$f":"Table1[[#This Row],[QTY]]*Table1[[#This Row],[School & Library Price]]","v":0}]
[null,null,null,4,6,"Social Studies","Show Me Science","Light","978-1-5345-3918-1",{"$f":"HYPERLINK(Table1[[#This Row],[eCommerce Hyperlink]],\"Book Weblink\")","v":"Book Weblink"},{"$f":"HYPERLINK(Table1[[#This Row],[EPP Hyperlink]],\"EPP Weblink\")","v":"EPP Weblink"},"KidHaven Publishing","eBook",1,"2022","January 2022",null,null,"Author","Emilie Dufresne",null,null,null,null,"L",null,"Grade 2 - 3","Grade 2 - 4","Young readers discover that the science behind light is fun in this colorful and creative look at an essential elementary curriculum topic. Bright illustrations fill the pages, helping readers visualize what’s explained in the accessible and engaging text. Relatable examples show readers how the science of light is in action all around them, and these examples are paired with easy-to-follow diagrams that feature clear labels and an eye-catching design. Readers are sure to see the light as they develop a deeper understanding of STEM concepts and a sense of curiosity about the world around them.","English",25.6,20.48,"535--dc23","24 pp.","https://greenhavenpublishing.com/9781534539181","http://www.epointplus.com/embed/9781534539181/?login=cyberrep&password=cyberrep",{"$f":"Table1[[#This Row],['# of Books]]*Table1[[#This Row],[QTY]]","v":0},{"$f":"Table1[[#This Row],[QTY]]*Table1[[#This Row],[School & Library Price]]","v":0}]
[null,null,null,4,6,"Social Studies","Show Me Science","Magnets","978-1-5345-3921-1",{"$f":"HYPERLINK(Table1[[#This Row],[eCommerce Hyperlink]],\"Book Weblink\")","v":"Book Weblink"},null,"KidHaven Publishing","Library Bound Book",1,"2022","January 2022","Library","8.500 X 8.500","Author","Emilie Dufresne",null,null,null,null,"L",null,"Grade 2 - 3","Grade 2 - 4","The science of magnets is explained in an exciting and unique way as readers encounter colorful illustrations that are paired with achievable text and eye-catching fact boxes. The bright and bold design of this helpful guide to an important STEM topic features concise and clear labels that add context and clarity to the illustrated fun. Additional visual elements include diagrams and infographics that allow readers to practice obtaining information from a variety of sources. With relatable examples and a fresh approach, this twist on the typical elementary guide to magnets shows readers how much fun science can be.","English",25.6,20.48,"538--dc23","24 pp.","https://greenhavenpublishing.com/9781534539211",null,{"$f":"Table1[[#This Row],['# of Books]]*Table1[[#This Row],[QTY]]","v":0},{"$f":"Table1[[#This Row],[QTY]]*Table1[[#This Row],[School & Library Price]]","v":0}]
[null,null,null,4,6,"Social Studies","Show Me Science","Magnets","978-1-5345-3922-8",{"$f":"HYPERLINK(Table1[[#This Row],[eCommerce Hyperlink]],\"Book Weblink\")","v":"Book Weblink"},{"$f":"HYPERLINK(Table1[[#This Row],[EPP Hyperlink]],\"EPP Weblink\")","v":"EPP Weblink"},"KidHaven Publishing","eBook",1,"2022","January 2022",null,null,"Author","Emilie Dufresne",null,null,null,null,"L",null,"Grade 2 - 3","Grade 2 - 4","The science of magnets is explained in an exciting and unique way as readers encounter colorful illustrations that are paired with achievable text and eye-catching fact boxes. The bright and bold design of this helpful guide to an important STEM topic features concise and clear labels that add context and clarity to the illustrated fun. Additional visual elements include diagrams and infographics that allow readers to practice obtaining information from a variety of sources. With relatable examples and a fresh approach, this twist on the typical elementary guide to magnets shows readers how much fun science can be.","English",25.6,20.48,"538--dc23","24 pp.","https://greenhavenpublishing.com/9781534539228","http://www.epointplus.com/embed/9781534539228/?login=cyberrep&password=cyberrep",{"$f":"Table1[[#This Row],['# of Books]]*Table1[[#This Row],[QTY]]","v":0},{"$f":"Table1[[#This Row],[QTY]]*Table1[[#This Row],[School & Library Price]]","v":0}]
[null,null,null,4,6,"Social Studies","Show Me Science","Sound","978-1-5345-3925-9",{"$f":"HYPERLINK(Table1[[#This Row],[eCommerce Hyperlink]],\"Book Weblink\")","v":"Book Weblink"},null,"KidHaven Publishing","Library Bound Book",1,"2022","January 2022","Library","8.500 X 8.500","Author","Emilie Dufresne",null,null,null,null,"L",null,"Grade 2 - 3","Grade 2 - 4","We’re all familiar with sounds—quiet sounds, loud sounds, high sounds, and low sounds. But how do those sounds reach our ears? Readers explore the science behind sounds in this delightful illustrated guide. The bright and bold illustrations are paired with simple text that breaks down complicated science curriculum concepts and provides readers with relatable examples of the science of sound at work in the real world. These important lessons are further explained in clearly labeled diagrams and useful infographics that present a visual approach to STEM topics that’s both educational and entertaining.","English",25.6,20.48,"534--dc23","24 pp.","https://greenhavenpublishing.com/9781534539259",null,{"$f":"Table1[[#This Row],['# of Books]]*Table1[[#This Row],[QTY]]","v":0},{"$f":"Table1[[#This Row],[QTY]]*Table1[[#This Row],[School & Library Price]]","v":0}]
[null,null,null,4,6,"Social Studies","Show Me Science","Sound","978-1-5345-3926-6",{"$f":"HYPERLINK(Table1[[#This Row],[eCommerce Hyperlink]],\"Book Weblink\")","v":"Book Weblink"},{"$f":"HYPERLINK(Table1[[#This Row],[EPP Hyperlink]],\"EPP Weblink\")","v":"EPP Weblink"},"KidHaven Publishing","eBook",1,"2022","January 2022",null,null,"Author","Emilie Dufresne",null,null,null,null,"L",null,"Grade 2 - 3","Grade 2 - 4","We’re all familiar with sounds—quiet sounds, loud sounds, high sounds, and low sounds. But how do those sounds reach our ears? Readers explore the science behind sounds in this delightful illustrated guide. The bright and bold illustrations are paired with simple text that breaks down complicated science curriculum concepts and provides readers with relatable examples of the science of sound at work in the real world. These important lessons are further explained in clearly labeled diagrams and useful infographics that present a visual approach to STEM topics that’s both educational and entertaining.","English",25.6,20.48,"534--dc23","24 pp.","https://greenhavenpublishing.com/9781534539266","http://www.epointplus.com/embed/9781534539266/?login=cyberrep&password=cyberrep",{"$f":"Table1[[#This Row],['# of Books]]*Table1[[#This Row],[QTY]]","v":0},{"$f":"Table1[[#This Row],[QTY]]*Table1[[#This Row],[School & Library Price]]","v":0}]
[null,null,null,5,7,"Social Studies","Show Me Geography","Show Me Geography","978-1-5345-3909-9",{"$f":"HYPERLINK(Table1[[#This Row],[eCommerce Hyperlink]],\"Book Weblink\")","v":"Book Weblink"},null,"KidHaven Publishing","Library Set",4,"2022","August 2021","Library","8.500 X 8.500",null,null,null,null,null,null,null,null,"Grade 2 - 3","Grade 2 - 4","Learning about world geography and weather is an essential part of elementary school social studies and science curricula. Through accessible language and clear explanations, this set introduces young readers to mountains and valleys, oceans, rivers, and weather. The colorful, engaging design draws in reluctant readers as well as keeps curious minds turning pages to find out more about famous examples of each landform and wildlife likely found there. Helpful diagrams and labels highlight and expound on key concepts found throughout the text.","English",102.4,81.92,null,"24 pp.","https://greenhavenpublishing.com/9781534539099",null,{"$f":"Table1[[#This Row],['# of Books]]*Table1[[#This Row],[QTY]]","v":0},{"$f":"Table1[[#This Row],[QTY]]*Table1[[#This Row],[School & Library Price]]","v":0}]
[null,null,null,5,7,"Social Studies","Show Me Geography","Mountains and Valleys","978-1-5345-3820-7",{"$f":"HYPERLINK(Table1[[#This Row],[eCommerce Hyperlink]],\"Book Weblink\")","v":"Book Weblink"},null,"KidHaven Publishing","Library Bound Book",1,"2022","August 2021","Library","8.500 X 8.500","Author","Emilie Dufresne","4.4","0.5",null,null,"L",null,"Grade 2 - 3","Grade 2 - 4","One is high and one is low—but mountains and valleys have a lot in common as one forms when the other does! Covering parts of mountains and valleys, how they form, common wildlife, and even famous examples of them on Earth, this book offers a comprehensive introduction to these landforms in an age-appropriate, accessible way. A colorful design, complete with diagrams and labeled images, engages readers with the subject matter as activities and a final quiz encourage applying what they’ve read.","English",25.6,20.48,"551.43’2--dc23","24 pp.","https://greenhavenpublishing.com/9781534538207",null,{"$f":"Table1[[#This Row],['# of Books]]*Table1[[#This Row],[QTY]]","v":0},{"$f":"Table1[[#This Row],[QTY]]*Table1[[#This Row],[School & Library Price]]","v":0}]
[null,null,null,5,7,"Social Studies","Show Me Geography","Mountains and Valleys","978-1-5345-3821-4",{"$f":"HYPERLINK(Table1[[#This Row],[eCommerce Hyperlink]],\"Book Weblink\")","v":"Book Weblink"},null,"KidHaven Publishing","eBook",1,"2022","August 2021",null,null,"Author","Emilie Dufresne","4.4","0.5",null,null,"L",null,"Grade 2 - 3","Grade 2 - 4","One is high and one is low—but mountains and valleys have a lot in common as one forms when the other does! Covering parts of mountains and valleys, how they form, common wildlife, and even famous examples of them on Earth, this book offers a comprehensive introduction to these landforms in an age-appropriate, accessible way. A colorful design, complete with diagrams and labeled images, engages readers with the subject matter as activities and a final quiz encourage applying what they’ve read.","English",25.6,20.48,"551.43’2--dc23","24 pp.","https://greenhavenpublishing.com/9781534538214",null,{"$f":"Table1[[#This Row],['# of Books]]*Table1[[#This Row],[QTY]]","v":0},{"$f":"Table1[[#This Row],[QTY]]*Table1[[#This Row],[School & Library Price]]","v":0}]
[null,null,null,5,7,"Social Studies","Show Me Geography","Oceans","978-1-5345-3824-5",{"$f":"HYPERLINK(Table1[[#This Row],[eCommerce Hyperlink]],\"Book Weblink\")","v":"Book Weblink"},null,"KidHaven Publishing","Library Bound Book",1,"2022","August 2021","Library","8.500 X 8.500","Author","Emilie Dufresne","4.3","0.5",null,null,"L",null,"Grade 2 - 3","Grade 2 - 4","About 71 percent of Earth is covered by water, and most of that is found in the oceans! How did these huge bodies of water come to be? And what can be found beneath their vast surface? In this book, readers find a wonderful introduction to Earth’s oceans. From where they are found, their parts, and the wildlife that can be found in the many marine habitats of the oceans, the main content gives a comprehensive, but age-appropriate overview of the oceans. Full-color images with helpful labels aid readers’ understanding.","English",25.6,20.48,"551.46--dc23","24 pp.","https://greenhavenpublishing.com/9781534538245",null,{"$f":"Table1[[#This Row],['# of Books]]*Table1[[#This Row],[QTY]]","v":0},{"$f":"Table1[[#This Row],[QTY]]*Table1[[#This Row],[School & Library Price]]","v":0}]
[null,null,null,5,7,"Social Studies","Show Me Geography","Oceans","978-1-5345-3825-2",{"$f":"HYPERLINK(Table1[[#This Row],[eCommerce Hyperlink]],\"Book Weblink\")","v":"Book Weblink"},null,"KidHaven Publishing","eBook",1,"2022","August 2021",null,null,"Author","Emilie Dufresne","4.3","0.5",null,null,"L",null,"Grade 2 - 3","Grade 2 - 4","About 71 percent of Earth is covered by water, and most of that is found in the oceans! How did these huge bodies of water come to be? And what can be found beneath their vast surface? In this book, readers find a wonderful introduction to Earth’s oceans. From where they are found, their parts, and the wildlife that can be found in the many marine habitats of the oceans, the main content gives a comprehensive, but age-appropriate overview of the oceans. Full-color images with helpful labels aid readers’ understanding.","English",25.6,20.48,"551.46--dc23","24 pp.","https://greenhavenpublishing.com/9781534538252",null,{"$f":"Table1[[#This Row],['# of Books]]*Table1[[#This Row],[QTY]]","v":0},{"$f":"Table1[[#This Row],[QTY]]*Table1[[#This Row],[School & Library Price]]","v":0}]
[null,null,null,5,7,"Social Studies","Show Me Geography","Rivers","978-1-5345-3828-3",{"$f":"HYPERLINK(Table1[[#This Row],[eCommerce Hyperlink]],\"Book Weblink\")","v":"Book Weblink"},null,"KidHaven Publishing","Library Bound Book",1,"2022","August 2021","Library","8.500 X 8.500","Author","Emilie Dufresne","4.2","0.5",null,null,"L",null,"Grade 2 - 3","Grade 2 - 4","Where do rivers start? This answer and more can be found within the pages of this colorful, engaging introduction to the world’s rivers! Readers explore how rivers form and how they affect other geography around them, as well as what parts of a river are called and how humans use and change rivers from their natural state. The main content highlights famous rivers, such as the Ganges, showing them on simple globes to engage readers’ in map reading, an essential social studies skill.","English",25.6,20.48,"551.48’3--dc23","24 pp.","https://greenhavenpublishing.com/9781534538283",null,{"$f":"Table1[[#This Row],['# of Books]]*Table1[[#This Row],[QTY]]","v":0},{"$f":"Table1[[#This Row],[QTY]]*Table1[[#This Row],[School & Library Price]]","v":0}]
[null,null,null,5,7,"Social Studies","Show Me Geography","Rivers","978-1-5345-3829-0",{"$f":"HYPERLINK(Table1[[#This Row],[eCommerce Hyperlink]],\"Book Weblink\")","v":"Book Weblink"},null,"KidHaven Publishing","eBook",1,"2022","August 2021",null,null,"Author","Emilie Dufresne","4.2","0.5",null,null,"L",null,"Grade 2 - 3","Grade 2 - 4","Where do rivers start? This answer and more can be found within the pages of this colorful, engaging introduction to the world’s rivers! Readers explore how rivers form and how they affect other geography around them, as well as what parts of a river are called and how humans use and change rivers from their natural state. The main content highlights famous rivers, such as the Ganges, showing them on simple globes to engage readers’ in map reading, an essential social studies skill.","English",25.6,20.48,"551.48’3--dc23","24 pp.","https://greenhavenpublishing.com/9781534538290",null,{"$f":"Table1[[#This Row],['# of Books]]*Table1[[#This Row],[QTY]]","v":0},{"$f":"Table1[[#This Row],[QTY]]*Table1[[#This Row],[School & Library Price]]","v":0}]
[null,null,null,5,7,"Social Studies","Show Me Geography","Weather Around the World","978-1-5345-3832-0",{"$f":"HYPERLINK(Table1[[#This Row],[eCommerce Hyperlink]],\"Book Weblink\")","v":"Book Weblink"},null,"KidHaven Publishing","Library Bound Book",1,"2022","August 2021","Library","8.500 X 8.500","Author","Emilie Dufresne","4","0.5",null,null,"L",null,"Grade 2 - 3","Grade 2 - 4","No matter where you are on Earth, weather matters! It tells us how to dress, what materials are best to build homes out of, and even how to best care for our animals. Readers of this colorful, interesting volume are given a fun, informative overview of weather. How it forms and affects human’s and wildlife are covered in accessible language. Activities at the end of the book encourage readers to explore weather further and a quiz aids in memory and comprehension of the topic.","English",25.6,20.48,"551.5--dc23","24 pp.","https://greenhavenpublishing.com/9781534538320",null,{"$f":"Table1[[#This Row],['# of Books]]*Table1[[#This Row],[QTY]]","v":0},{"$f":"Table1[[#This Row],[QTY]]*Table1[[#This Row],[School & Library Price]]","v":0}]
[null,null,null,5,7,"Social Studies","Show Me Geography","Weather Around the World","978-1-5345-3833-7",{"$f":"HYPERLINK(Table1[[#This Row],[eCommerce Hyperlink]],\"Book Weblink\")","v":"Book Weblink"},null,"KidHaven Publishing","eBook",1,"2022","August 2021",null,null,"Author","Emilie Dufresne","4","0.5",null,null,"L",null,"Grade 2 - 3","Grade 2 - 4","No matter where you are on Earth, weather matters! It tells us how to dress, what materials are best to build homes out of, and even how to best care for our animals. Readers of this colorful, interesting volume are given a fun, informative overview of weather. How it forms and affects human’s and wildlife are covered in accessible language. Activities at the end of the book encourage readers to explore weather further and a quiz aids in memory and comprehension of the topic.","English",25.6,20.48,"551.5--dc23","24 pp.","https://greenhavenpublishing.com/9781534538337",null,{"$f":"Table1[[#This Row],['# of Books]]*Table1[[#This Row],[QTY]]","v":0},{"$f":"Table1[[#This Row],[QTY]]*Table1[[#This Row],[School & Library Price]]","v":0}]
[null,null,null,null,8,"Animals","Bug Patrol","Bug Patrol","978-1-5345-4236-5",null,null,"KidHaven Publishing","Library Set",4,"2023","August 2022","Library","8.500 X 8.500",null,null,null,null,null,null,null,null,"Grade 1 - 2","Grade K - 2","The insect kingdom is an essential part of Earth’s ecological communities. Certain bugs are ideal creatures for young scientists to study because they coexist with people and are easy to observe. Ants, spiders, bees, and butterflies are the appealing subjects of these delightfully designed volumes. Readers are introduced to essential life-science concepts, such as animal camouflage and habitats, through at-level facts about each creature. Beautiful photographs support key points in the text, allowing readers to see these fascinating animals up close.","English",102.4,81.92,null,"24 pp.","https://greenhavenpublishing.com/9781534542365",null,{"$f":"Table1[[#This Row],['# of Books]]*Table1[[#This Row],[QTY]]","v":0},{"$f":"Table1[[#This Row],[QTY]]*Table1[[#This Row],[School & Library Price]]","v":0}]
[null,null,null,null,8,"Animals","Bug Patrol","Looking for Ants","978-1-5345-4115-3",null,null,"KidHaven Publishing","Library Bound Book",1,"2023","August 2022","Library","8.500 X 8.500","Author","Emilie Dufresne",null,null,null,null,"H",null,"Grade 1 - 2","Grade K - 2","Nature is full of amazing creatures. Anyone who has watched an ant colony in action will agree. These busy bugs work together for the survival of their community. Depending on the kind of ant, they perform amazing feats too, like carrying objects 50 times heavier than they are and forming bridges with their bodies! This high-interest book, a great addition to any elementary science collection, will attract bug lovers with its remarkable images of ants at work. Readers will learn about different species, such as army ants, and the best way to spot them and others in the wild.","English",25.6,20.48,"595.79’6--dc23","24 pp.","https://greenhavenpublishing.com/9781534541153",null,{"$f":"Table1[[#This Row],['# of Books]]*Table1[[#This Row],[QTY]]","v":0},{"$f":"Table1[[#This Row],[QTY]]*Table1[[#This Row],[School & Library Price]]","v":0}]
[null,null,null,null,8,"Animals","Bug Patrol","Looking for Ants","978-1-5345-4116-0",null,null,"KidHaven Publishing","eBook",1,"2023","August 2022",null,null,"Author","Emilie Dufresne",null,null,null,null,"H",null,"Grade 1 - 2","Grade K - 2","Nature is full of amazing creatures. Anyone who has watched an ant colony in action will agree. These busy bugs work together for the survival of their community. Depending on the kind of ant, they perform amazing feats too, like carrying objects 50 times heavier than they are and forming bridges with their bodies! This high-interest book, a great addition to any elementary science collection, will attract bug lovers with its remarkable images of ants at work. Readers will learn about different species, such as army ants, and the best way to spot them and others in the wild.","English",25.6,20.48,"595.79’6--dc23","24 pp.","https://greenhavenpublishing.com/9781534541160","http://www.epointplus.com/embed/9781534541160/?login=cyberrep&password=cyberrep",{"$f":"Table1[[#This Row],['# of Books]]*Table1[[#This Row],[QTY]]","v":0},{"$f":"Table1[[#This Row],[QTY]]*Table1[[#This Row],[School & Library Price]]","v":0}]
[null,null,null,null,8,"Animals","Bug Patrol","Looking for Bees","978-1-5345-4119-1",null,null,"KidHaven Publishing","Library Bound Book",1,"2023","August 2022","Library","8.500 X 8.500","Author","Emilie Dufresne",null,null,null,null,"H",null,"Grade 1 - 2","Grade K - 2","Books are wonderful places to learn about bugs, but sometimes going outside to watch insects in their ecosystem is an even more powerful way to discover more about them. This valuable volume encourages bug lovers to learn from nature (from a respectful and safe distance), but first arms them with need-to-know information about different kinds of bees, their habitats, and their special adaptations. Readers will also learn how to tell the difference between a bee and a hornet. Science vocabulary and concepts are explained in inviting, at-level text with stunning, up-close photographs of these essential insects.","English",25.6,20.48,"595.79’9--dc23","24 pp.","https://greenhavenpublishing.com/9781534541191",null,{"$f":"Table1[[#This Row],['# of Books]]*Table1[[#This Row],[QTY]]","v":0},{"$f":"Table1[[#This Row],[QTY]]*Table1[[#This Row],[School & Library Price]]","v":0}]
[null,null,null,null,8,"Animals","Bug Patrol","Looking for Bees","978-1-5345-4120-7",null,null,"KidHaven Publishing","eBook",1,"2023","August 2022",null,null,"Author","Emilie Dufresne",null,null,null,null,"H",null,"Grade 1 - 2","Grade K - 2","Books are wonderful places to learn about bugs, but sometimes going outside to watch insects in their ecosystem is an even more powerful way to discover more about them. This valuable volume encourages bug lovers to learn from nature (from a respectful and safe distance), but first arms them with need-to-know information about different kinds of bees, their habitats, and their special adaptations. Readers will also learn how to tell the difference between a bee and a hornet. Science vocabulary and concepts are explained in inviting, at-level text with stunning, up-close photographs of these essential insects.","English",25.6,20.48,"595.79’9--dc23","24 pp.","https://greenhavenpublishing.com/9781534541207","http://www.epointplus.com/embed/9781534541207/?login=cyberrep&password=cyberrep",{"$f":"Table1[[#This Row],['# of Books]]*Table1[[#This Row],[QTY]]","v":0},{"$f":"Table1[[#This Row],[QTY]]*Table1[[#This Row],[School & Library Price]]","v":0}]
[null,null,null,null,8,"Animals","Bug Patrol","Looking for Butterflies","978-1-5345-4123-8",null,null,"KidHaven Publishing","Library Bound Book",1,"2023","August 2022","Library","8.500 X 8.500","Author","Emilie Dufresne",null,null,null,null,"H",null,"Grade 1 - 2","Grade K - 2","Butterflies have always been eye-catching insects for young entomologists. Readers of this inviting and accessible volume are introduced to several kinds of butterflies and the unique markings and vivid colorings that have helped them adapt to their different habitats. After learning the rules of a responsible wildlife observer (including “keep your distance”), readers are encouraged to become field scientists by heading out into nature with a magnifying glass to see these bugs for themselves. Beautiful photographs and a vibrant design make the science content especially fun and lively.","English",25.6,20.48,"595.78’9--dc23","24 pp.","https://greenhavenpublishing.com/9781534541238",null,{"$f":"Table1[[#This Row],['# of Books]]*Table1[[#This Row],[QTY]]","v":0},{"$f":"Table1[[#This Row],[QTY]]*Table1[[#This Row],[School & Library Price]]","v":0}]
[null,null,null,null,8,"Animals","Bug Patrol","Looking for Butterflies","978-1-5345-4124-5",null,null,"KidHaven Publishing","eBook",1,"2023","August 2022",null,null,"Author","Emilie Dufresne",null,null,null,null,"H",null,"Grade 1 - 2","Grade K - 2","Butterflies have always been eye-catching insects for young entomologists. Readers of this inviting and accessible volume are introduced to several kinds of butterflies and the unique markings and vivid colorings that have helped them adapt to their different habitats. After learning the rules of a responsible wildlife observer (including “keep your distance”), readers are encouraged to become field scientists by heading out into nature with a magnifying glass to see these bugs for themselves. Beautiful photographs and a vibrant design make the science content especially fun and lively.","English",25.6,20.48,"595.78’9--dc23","24 pp.","https://greenhavenpublishing.com/9781534541245","http://www.epointplus.com/embed/9781534541245/?login=cyberrep&password=cyberrep",{"$f":"Table1[[#This Row],['# of Books]]*Table1[[#This Row],[QTY]]","v":0},{"$f":"Table1[[#This Row],[QTY]]*Table1[[#This Row],[School & Library Price]]","v":0}]
[null,null,null,null,8,"Animals","Bug Patrol","Looking for Spiders","978-1-5345-4127-6",null,null,"KidHaven Publishing","Library Bound Book",1,"2023","August 2022","Library","8.500 X 8.500","Author","Emilie Dufresne",null,null,null,null,"H",null,"Grade 1 - 2","Grade K - 2","Let’s head outside with the Bug Patrol! The mission is to spot spiders. This motivating book encourages readers to learn key elementary science concepts in the most fun way possible, outside with real, fascinating creatures. Budding entomologists are introduced to several interesting spider species with close-up images as well as actual size photographs. Through at-level text, beautiful images, and a clever design, they’ll learn about these arachnids’ cool adaptations, such as their web-building skills and special body parts.","English",25.6,20.48,"595.4’4--dc23","24 pp.","https://greenhavenpublishing.com/9781534541276",null,{"$f":"Table1[[#This Row],['# of Books]]*Table1[[#This Row],[QTY]]","v":0},{"$f":"Table1[[#This Row],[QTY]]*Table1[[#This Row],[School & Library Price]]","v":0}]
[null,null,null,null,8,"Animals","Bug Patrol","Looking for Spiders","978-1-5345-4128-3",null,null,"KidHaven Publishing","eBook",1,"2023","August 2022",null,null,"Author","Emilie Dufresne",null,null,null,null,"H",null,"Grade 1 - 2","Grade K - 2","Let’s head outside with the Bug Patrol! The mission is to spot spiders. This motivating book encourages readers to learn key elementary science concepts in the most fun way possible, outside with real, fascinating creatures. Budding entomologists are introduced to several interesting spider species with close-up images as well as actual size photographs. Through at-level text, beautiful images, and a clever design, they’ll learn about these arachnids’ cool adaptations, such as their web-building skills and special body parts.","English",25.6,20.48,"595.4’4--dc23","24 pp.","https://greenhavenpublishing.com/9781534541283","http://www.epointplus.com/embed/9781534541283/?login=cyberrep&password=cyberrep",{"$f":"Table1[[#This Row],['# of Books]]*Table1[[#This Row],[QTY]]","v":0},{"$f":"Table1[[#This Row],[QTY]]*Table1[[#This Row],[School & Library Price]]","v":0}]
[null,null,null,null,9,"Animals","Animal Champions","Animal Champions","978-1-5345-4235-8",null,null,"KidHaven Publishing","Library Set",4,"2023","August 2022","Library","8.500 X 8.500",null,null,null,null,null,null,null,null,"Grade 2","Grade 2 - 4","Who would have thought to crown the vampire bat the \"champion of sucking blood\"? Or the monarch butterfly the \"champion of tasting gross\"? This book engages readers with all kinds of animals—and highlights their amazing adaptations with funny awards! At-level text describes the bodies and behavior of animals that live in certain places, including the jungle, mountains, ocean, and sky, complementing science classroom learning about habitats and animal life cycles. Full-color photographs with labels complement the science content and bring these animal champions into clear focus.","English",102.4,81.92,null,"24 pp.","https://greenhavenpublishing.com/9781534542358",null,{"$f":"Table1[[#This Row],['# of Books]]*Table1[[#This Row],[QTY]]","v":0},{"$f":"Table1[[#This Row],[QTY]]*Table1[[#This Row],[School & Library Price]]","v":0}]
[null,null,null,null,9,"Animals","Animal Champions","Animal Champions of the Jungle","978-1-5345-4147-4",null,null,"KidHaven Publishing","Library Bound Book",1,"2023","August 2022","Library","8.500 X 8.500","Author","Madeline Taylor",null,null,null,null,"L",null,"Grade 2","Grade 2 - 4","Let’s celebrate what’s great about animals that live in the jungle! From the champion of the big bite, the jaguar, to the champion of the longest nap, the sloth, the animals featured in this book have some pretty amazing adaptations! Readers meet many jungle animals, including the green anaconda and orangutan, and find out what makes them special: how the eat, how they hunt, how they hide, or simply what their body is like. At-level language and content is complemented by full-color, up-close photographs of each animal in its habitat.","English",25.6,20.48,"591.734--dc23","24 pp.","https://greenhavenpublishing.com/9781534541474",null,{"$f":"Table1[[#This Row],['# of Books]]*Table1[[#This Row],[QTY]]","v":0},{"$f":"Table1[[#This Row],[QTY]]*Table1[[#This Row],[School & Library Price]]","v":0}]
[null,null,null,null,9,"Animals","Animal Champions","Animal Champions of the Jungle","978-1-5345-4148-1",null,null,"KidHaven Publishing","eBook",1,"2023","August 2022",null,null,"Author","Madeline Taylor",null,null,null,null,"L",null,"Grade 2","Grade 2 - 4","Let’s celebrate what’s great about animals that live in the jungle! From the champion of the big bite, the jaguar, to the champion of the longest nap, the sloth, the animals featured in this book have some pretty amazing adaptations! Readers meet many jungle animals, including the green anaconda and orangutan, and find out what makes them special: how the eat, how they hunt, how they hide, or simply what their body is like. At-level language and content is complemented by full-color, up-close photographs of each animal in its habitat.","English",25.6,20.48,"591.734--dc23","24 pp.","https://greenhavenpublishing.com/9781534541481","http://www.epointplus.com/embed/9781534541481/?login=cyberrep&password=cyberrep",{"$f":"Table1[[#This Row],['# of Books]]*Table1[[#This Row],[QTY]]","v":0},{"$f":"Table1[[#This Row],[QTY]]*Table1[[#This Row],[School & Library Price]]","v":0}]
[null,null,null,null,9,"Animals","Animal Champions","Animal Champions of the Mountains","978-1-5345-4151-1",null,null,"KidHaven Publishing","Library Bound Book",1,"2023","August 2022","Library","8.500 X 8.500","Author","Mignonne Gunasekara",null,null,null,null,"L",null,"Grade 2","Grade 2 - 4","Alpacas, snow leopards, and wild yaks seem like they are very different. But, they all make their home in the mountains! So do animals readers might not know yet, including kiangs and the Eurasian lynx. This book not only introduces readers to these fascinating animals, but also describes their coolest adaptations, awarding each animal a champion nickname! Full-color photographs complement the at-level text and information while a playful tone engages readers with facts about habitats, animal behavior, and animal bodies.","English",25.6,20.48,"591--dc23","24 pp.","https://greenhavenpublishing.com/9781534541511",null,{"$f":"Table1[[#This Row],['# of Books]]*Table1[[#This Row],[QTY]]","v":0},{"$f":"Table1[[#This Row],[QTY]]*Table1[[#This Row],[School & Library Price]]","v":0}]
[null,null,null,null,9,"Animals","Animal Champions","Animal Champions of the Mountains","978-1-5345-4152-8",null,null,"KidHaven Publishing","eBook",1,"2023","August 2022",null,null,"Author","Mignonne Gunasekara",null,null,null,null,"L",null,"Grade 2","Grade 2 - 4","Alpacas, snow leopards, and wild yaks seem like they are very different. But, they all make their home in the mountains! So do animals readers might not know yet, including kiangs and the Eurasian lynx. This book not only introduces readers to these fascinating animals, but also describes their coolest adaptations, awarding each animal a champion nickname! Full-color photographs complement the at-level text and information while a playful tone engages readers with facts about habitats, animal behavior, and animal bodies.","English",25.6,20.48,"591--dc23","24 pp.","https://greenhavenpublishing.com/9781534541528","http://www.epointplus.com/embed/9781534541528/?login=cyberrep&password=cyberrep",{"$f":"Table1[[#This Row],['# of Books]]*Table1[[#This Row],[QTY]]","v":0},{"$f":"Table1[[#This Row],[QTY]]*Table1[[#This Row],[School & Library Price]]","v":0}]
[null,null,null,null,9,"Animals","Animal Champions","Animal Champions of the Ocean","978-1-5345-4155-9",null,null,"KidHaven Publishing","Library Bound Book",1,"2023","August 2022","Library","8.500 X 8.500","Author","William Anthony",null,null,null,null,"L",null,"Grade 2","Grade 2 - 4","Some animals in the ocean are large, like the leatherback sea turtle. Some are tiny, like the leafy sea dragon. But all those featured in this book are champions of something! The great white shark is crowned the “champion of chomping,” and the amazing giant Pacific octopus is the “champion of challenges.” How did they earn these nicknames? That’s what readers find out in this engaging, fact-filled book! Full-color photographs of these ocean animals complement the fun science information, including curriculum-supporting topics of adaptations and habitats.","English",25.6,20.48,"591.77--dc23","24 pp.","https://greenhavenpublishing.com/9781534541559",null,{"$f":"Table1[[#This Row],['# of Books]]*Table1[[#This Row],[QTY]]","v":0},{"$f":"Table1[[#This Row],[QTY]]*Table1[[#This Row],[School & Library Price]]","v":0}]
[null,null,null,null,9,"Animals","Animal Champions","Animal Champions of the Ocean","978-1-5345-4156-6",null,null,"KidHaven Publishing","eBook",1,"2023","August 2022",null,null,"Author","William Anthony",null,null,null,null,"L",null,"Grade 2","Grade 2 - 4","Some animals in the ocean are large, like the leatherback sea turtle. Some are tiny, like the leafy sea dragon. But all those featured in this book are champions of something! The great white shark is crowned the “champion of chomping,” and the amazing giant Pacific octopus is the “champion of challenges.” How did they earn these nicknames? That’s what readers find out in this engaging, fact-filled book! Full-color photographs of these ocean animals complement the fun science information, including curriculum-supporting topics of adaptations and habitats.","English",25.6,20.48,"591.77--dc23","24 pp.","https://greenhavenpublishing.com/9781534541566","http://www.epointplus.com/embed/9781534541566/?login=cyberrep&password=cyberrep",{"$f":"Table1[[#This Row],['# of Books]]*Table1[[#This Row],[QTY]]","v":0},{"$f":"Table1[[#This Row],[QTY]]*Table1[[#This Row],[School & Library Price]]","v":0}]
[null,null,null,null,9,"Animals","Animal Champions","Animal Champions of the Sky","978-1-5345-4159-7",null,null,"KidHaven Publishing","Library Bound Book",1,"2023","August 2022","Library","8.500 X 8.500","Author","Madeline Taylor",null,null,null,null,"L",null,"Grade 2","Grade 2 - 4","Birds, butterflies, and bats. These are the animals that soar above and around all over the world. How do they stay aloft? And why? This book highlights the adaptations that make the albatross, monarch butterfly, and common kestrel successful in the sky and their habitat. From body parts to behaviors, these adaptations are fascinating and engage readers with science content in a fun, fact-filled way. Age-appropriate language and detail are supported by close up photographs of the animals featured.","English",25.6,20.48,"591.47’9--dc23","24 pp.","https://greenhavenpublishing.com/9781534541597",null,{"$f":"Table1[[#This Row],['# of Books]]*Table1[[#This Row],[QTY]]","v":0},{"$f":"Table1[[#This Row],[QTY]]*Table1[[#This Row],[School & Library Price]]","v":0}]
[null,null,null,null,9,"Animals","Animal Champions","Animal Champions of the Sky","978-1-5345-4160-3",null,null,"KidHaven Publishing","eBook",1,"2023","August 2022",null,null,"Author","Madeline Taylor",null,null,null,null,"L",null,"Grade 2","Grade 2 - 4","Birds, butterflies, and bats. These are the animals that soar above and around all over the world. How do they stay aloft? And why? This book highlights the adaptations that make the albatross, monarch butterfly, and common kestrel successful in the sky and their habitat. From body parts to behaviors, these adaptations are fascinating and engage readers with science content in a fun, fact-filled way. Age-appropriate language and detail are supported by close up photographs of the animals featured.","English",25.6,20.48,"591.47’9--dc23","24 pp.","https://greenhavenpublishing.com/9781534541603","http://www.epointplus.com/embed/9781534541603/?login=cyberrep&password=cyberrep",{"$f":"Table1[[#This Row],['# of Books]]*Table1[[#This Row],[QTY]]","v":0},{"$f":"Table1[[#This Row],[QTY]]*Table1[[#This Row],[School & Library Price]]","v":0}]
[null,null,null,6,10,"Animals","All About Dinosaurs","All About Dinosaurs: Sets 1 – 3","978-1-5345-3902-0",{"$f":"HYPERLINK(Table1[[#This Row],[eCommerce Hyperlink]],\"Book Weblink\")","v":"Book Weblink"},null,"KidHaven Publishing","Library Set",12,"2022","January 2022","Library","8.500 X 8.500",null,null,null,null,null,null,null,null,"Grade 2","Grade 1 - 3","Dinosaurs and other prehistoric creatures—from the Tyrannosaurus Rex and Pteranodon to the Allosaurus and Velociraptor—have always fascinated young readers. They provide a high-interest lens through which elementary learners can discover essential science concepts, such as predator-prey relationships, habitats, and physical adaptations. As readers explore the age-appropriate main text and fascinating fact boxes, they become prehistoric experts, discovering a wealth of information about what these creatures ate, where they lived, and what they looked like. In addition, colorful illustrations show these creatures—and the world in which they lived—in captivating detail.","English",307.2,245.76,null,"24 pp.","https://greenhavenpublishing.com/9781534539020",null,{"$f":"Table1[[#This Row],['# of Books]]*Table1[[#This Row],[QTY]]","v":0},{"$f":"Table1[[#This Row],[QTY]]*Table1[[#This Row],[School & Library Price]]","v":0}]
[null,null,null,6,10,"Animals","All About Dinosaurs","All About Dinosaurs: Set 3","978-1-5345-3901-3",{"$f":"HYPERLINK(Table1[[#This Row],[eCommerce Hyperlink]],\"Book Weblink\")","v":"Book Weblink"},null,"KidHaven Publishing","Library Set",4,"2022","January 2022","Library","8.500 X 8.500",null,null,null,null,null,null,null,null,"Grade 2","Grade 1 - 3","Dinosaurs are so different than any animals we see around us that they continue to hold a deep fascination for all. This eye-catching series is aimed at young dinosaur enthusiasts and has all the information they need to become experts. The volumes, which focus on Allosaurus, Brachiosaurus, Iguanodon, and Pteranodon, are impressively designed, highlighting the characteristics of each reptile. Helpful labels, useful maps, and easy-to-read tables emphasize and reinforce dinosaur facts, such as size, habitat, and behavior. Each book is sure to keep the attention of budding paleontologists!","English",102.4,81.92,null,"24 pp.","https://greenhavenpublishing.com/9781534539013",null,{"$f":"Table1[[#This Row],['# of Books]]*Table1[[#This Row],[QTY]]","v":0},{"$f":"Table1[[#This Row],[QTY]]*Table1[[#This Row],[School & Library Price]]","v":0}]
[null,null,null,6,10,"Animals","All About Dinosaurs","Allosaurus","978-1-5345-3854-2",{"$f":"HYPERLINK(Table1[[#This Row],[eCommerce Hyperlink]],\"Book Weblink\")","v":"Book Weblink"},null,"KidHaven Publishing","Library Bound Book",1,"2022","January 2022","Library","8.500 X 8.500","Author","Mignonne Gunasekara",null,null,null,null,"K",null,"Grade 2","Grade 1 - 3","Allosaurus was a large dinosaur that lived during the Late Jurassic Period, more than 145 million years ago. This carnivore, with its sharp teeth and hooked claws, was a terror to its prey. Readers of this enlightening volume will learn where these meat eaters roamed, what they hunted, and how their terrifying teeth compared to the teeth of the mighty T. rex! Well-organized and appealing information in tables, maps, and images will aid young paleontologists in their understanding of this reptile as well as the environment in which it lived.","English",25.6,20.48,"567.912--dc23","24 pp.","https://greenhavenpublishing.com/9781534538542",null,{"$f":"Table1[[#This Row],['# of Books]]*Table1[[#This Row],[QTY]]","v":0},{"$f":"Table1[[#This Row],[QTY]]*Table1[[#This Row],[School & Library Price]]","v":0}]
[null,null,null,6,10,"Animals","All About Dinosaurs","Allosaurus","978-1-5345-3855-9",{"$f":"HYPERLINK(Table1[[#This Row],[eCommerce Hyperlink]],\"Book Weblink\")","v":"Book Weblink"},{"$f":"HYPERLINK(Table1[[#This Row],[EPP Hyperlink]],\"EPP Weblink\")","v":"EPP Weblink"},"KidHaven Publishing","eBook",1,"2022","January 2022",null,null,"Author","Mignonne Gunasekara",null,null,null,null,"K",null,"Grade 2","Grade 1 - 3","Allosaurus was a large dinosaur that lived during the Late Jurassic Period, more than 145 million years ago. This carnivore, with its sharp teeth and hooked claws, was a terror to its prey. Readers of this enlightening volume will learn where these meat eaters roamed, what they hunted, and how their terrifying teeth compared to the teeth of the mighty T. rex! Well-organized and appealing information in tables, maps, and images will aid young paleontologists in their understanding of this reptile as well as the environment in which it lived.","English",25.6,20.48,"567.912--dc23","24 pp.","https://greenhavenpublishing.com/9781534538559","http://www.epointplus.com/embed/9781534538559/?login=cyberrep&password=cyberrep",{"$f":"Table1[[#This Row],['# of Books]]*Table1[[#This Row],[QTY]]","v":0},{"$f":"Table1[[#This Row],[QTY]]*Table1[[#This Row],[School & Library Price]]","v":0}]
[null,null,null,6,10,"Animals","All About Dinosaurs","Brachiosaurus","978-1-5345-3858-0",{"$f":"HYPERLINK(Table1[[#This Row],[eCommerce Hyperlink]],\"Book Weblink\")","v":"Book Weblink"},null,"KidHaven Publishing","Library Bound Book",1,"2022","January 2022","Library","8.500 X 8.500","Author","Mignonne Gunasekara",null,null,null,null,"K",null,"Grade 2","Grade 1 - 3","Brachiosaurus means “arm lizard” because this reptile (not lizard!) had longer front legs than back legs. But when readers see the spectacular images featured in this book, they’ll be much more impressed by the dinosaur’s very, very long neck. They’ll also learn about scientists’ evolving understanding of how Brachiosaurus lived, including what this plant eater ate and how much (hint: a lot!). Significant science concepts are presented using at-level vocabulary and visual elements throughout the text, such as maps and labeled pictures, which are especially helpful to visual learners.","English",25.6,20.48,"567.913--dc23","24 pp.","https://greenhavenpublishing.com/9781534538580",null,{"$f":"Table1[[#This Row],['# of Books]]*Table1[[#This Row],[QTY]]","v":0},{"$f":"Table1[[#This Row],[QTY]]*Table1[[#This Row],[School & Library Price]]","v":0}]
[null,null,null,6,10,"Animals","All About Dinosaurs","Brachiosaurus","978-1-5345-3859-7",{"$f":"HYPERLINK(Table1[[#This Row],[eCommerce Hyperlink]],\"Book Weblink\")","v":"Book Weblink"},{"$f":"HYPERLINK(Table1[[#This Row],[EPP Hyperlink]],\"EPP Weblink\")","v":"EPP Weblink"},"KidHaven Publishing","eBook",1,"2022","January 2022",null,null,"Author","Mignonne Gunasekara",null,null,null,null,"K",null,"Grade 2","Grade 1 - 3","Brachiosaurus means “arm lizard” because this reptile (not lizard!) had longer front legs than back legs. But when readers see the spectacular images featured in this book, they’ll be much more impressed by the dinosaur’s very, very long neck. They’ll also learn about scientists’ evolving understanding of how Brachiosaurus lived, including what this plant eater ate and how much (hint: a lot!). Significant science concepts are presented using at-level vocabulary and visual elements throughout the text, such as maps and labeled pictures, which are especially helpful to visual learners.","English",25.6,20.48,"567.913--dc23","24 pp.","https://greenhavenpublishing.com/9781534538597","http://www.epointplus.com/embed/9781534538597/?login=cyberrep&password=cyberrep",{"$f":"Table1[[#This Row],['# of Books]]*Table1[[#This Row],[QTY]]","v":0},{"$f":"Table1[[#This Row],[QTY]]*Table1[[#This Row],[School & Library Price]]","v":0}]
[null,null,null,6,10,"Animals","All About Dinosaurs","Iguanodon","978-1-5345-3862-7",{"$f":"HYPERLINK(Table1[[#This Row],[eCommerce Hyperlink]],\"Book Weblink\")","v":"Book Weblink"},null,"KidHaven Publishing","Library Bound Book",1,"2022","January 2022","Library","8.500 X 8.500","Author","Mignonne Gunasekara",null,null,null,null,"K",null,"Grade 2","Grade 1 - 3","Iguanodon got its name because its discoverer thought its teeth looked like the teeth of an iguana—but much bigger! This plant-eating reptile was just the second dinosaur ever discovered. Scientists have learned a lot about Iguanodon since then. Besides presenting many fascinating facts about the big creature, this volume provides valuable information about Earth at the time of the dinosaurs as well as how paleontologists figure out how dinosaurs looked and lived. Readers will gain a better understanding of the prehistoric world through the many fossil photographs, Iguanodon images, and graphic elements—including a final fun activity.","English",25.6,20.48,"567.914--dc23","24 pp.","https://greenhavenpublishing.com/9781534538627",null,{"$f":"Table1[[#This Row],['# of Books]]*Table1[[#This Row],[QTY]]","v":0},{"$f":"Table1[[#This Row],[QTY]]*Table1[[#This Row],[School & Library Price]]","v":0}]
[null,null,null,6,10,"Animals","All About Dinosaurs","Iguanodon","978-1-5345-3863-4",{"$f":"HYPERLINK(Table1[[#This Row],[eCommerce Hyperlink]],\"Book Weblink\")","v":"Book Weblink"},{"$f":"HYPERLINK(Table1[[#This Row],[EPP Hyperlink]],\"EPP Weblink\")","v":"EPP Weblink"},"KidHaven Publishing","eBook",1,"2022","January 2022",null,null,"Author","Mignonne Gunasekara",null,null,null,null,"K",null,"Grade 2","Grade 1 - 3","Iguanodon got its name because its discoverer thought its teeth looked like the teeth of an iguana—but much bigger! This plant-eating reptile was just the second dinosaur ever discovered. Scientists have learned a lot about Iguanodon since then. Besides presenting many fascinating facts about the big creature, this volume provides valuable information about Earth at the time of the dinosaurs as well as how paleontologists figure out how dinosaurs looked and lived. Readers will gain a better understanding of the prehistoric world through the many fossil photographs, Iguanodon images, and graphic elements—including a final fun activity.","English",25.6,20.48,"567.914--dc23","24 pp.","https://greenhavenpublishing.com/9781534538634","http://www.epointplus.com/embed/9781534538634/?login=cyberrep&password=cyberrep",{"$f":"Table1[[#This Row],['# of Books]]*Table1[[#This Row],[QTY]]","v":0},{"$f":"Table1[[#This Row],[QTY]]*Table1[[#This Row],[School & Library Price]]","v":0}]
[null,null,null,6,10,"Animals","All About Dinosaurs","Pteranodon","978-1-5345-3866-5",{"$f":"HYPERLINK(Table1[[#This Row],[eCommerce Hyperlink]],\"Book Weblink\")","v":"Book Weblink"},null,"KidHaven Publishing","Library Bound Book",1,"2022","January 2022","Library","8.500 X 8.500","Author","Mignonne Gunasekara",null,null,null,null,"K",null,"Grade 2","Grade 1 - 3","The first thing a young dinosaur expert needs to know about Pteranodon is that it isn’t a dinosaur! It’s a flying reptile that lived during the time of the dinosaurs. The creature’s wingspan is much wider than any modern bird’s wingspan—and its wings were attached to a finger on each hand. This incredible carnivorous reptile likely soared for hundreds of miles over water. Pteranodon’s most fascinating facts are showcased in this accessible text, which uses graphic elements such as labeled pictures and maps to reinforce key points. A concluding activity asks readers to spot the reptile in a prehistoric scene.","English",25.6,20.48,"567.918--dc23","24 pp.","https://greenhavenpublishing.com/9781534538665",null,{"$f":"Table1[[#This Row],['# of Books]]*Table1[[#This Row],[QTY]]","v":0},{"$f":"Table1[[#This Row],[QTY]]*Table1[[#This Row],[School & Library Price]]","v":0}]
[null,null,null,6,10,"Animals","All About Dinosaurs","Pteranodon","978-1-5345-3867-2",{"$f":"HYPERLINK(Table1[[#This Row],[eCommerce Hyperlink]],\"Book Weblink\")","v":"Book Weblink"},{"$f":"HYPERLINK(Table1[[#This Row],[EPP Hyperlink]],\"EPP Weblink\")","v":"EPP Weblink"},"KidHaven Publishing","eBook",1,"2022","January 2022",null,null,"Author","Mignonne Gunasekara",null,null,null,null,"K",null,"Grade 2","Grade 1 - 3","The first thing a young dinosaur expert needs to know about Pteranodon is that it isn’t a dinosaur! It’s a flying reptile that lived during the time of the dinosaurs. The creature’s wingspan is much wider than any modern bird’s wingspan—and its wings were attached to a finger on each hand. This incredible carnivorous reptile likely soared for hundreds of miles over water. Pteranodon’s most fascinating facts are showcased in this accessible text, which uses graphic elements such as labeled pictures and maps to reinforce key points. A concluding activity asks readers to spot the reptile in a prehistoric scene.","English",25.6,20.48,"567.918--dc23","24 pp.","https://greenhavenpublishing.com/9781534538672","http://www.epointplus.com/embed/9781534538672/?login=cyberrep&password=cyberrep",{"$f":"Table1[[#This Row],['# of Books]]*Table1[[#This Row],[QTY]]","v":0},{"$f":"Table1[[#This Row],[QTY]]*Table1[[#This Row],[School & Library Price]]","v":0}]
[null,null,null,7,11,"Animals","All About Dinosaurs","Diplodocus","978-1-5345-2173-5",{"$f":"HYPERLINK(Table1[[#This Row],[eCommerce Hyperlink]],\"Book Weblink\")","v":"Book Weblink"},null,"KidHaven Publishing","Library Bound Book",1,"2018","August 2017","Library","8.500 X 8.500","Author","Amy Allatson","4.3","0.5",null,null,"K",null,"Grade 2","Grade 1 - 3","Diplodocus was one of the longest dinosaurs to walk the earth during prehistoric times. Readers learn many fun facts about this giant kind of dinosaur, including how it behaved, what it ate, and what it looked like. This essential information is presented through accessible main text designed to enhance a common curriculum topic. Readers discover additional information in eye-catching fact boxes and clearly labeled diagrams. Computer-generated illustrations of these dinosaurs keep readers entertained as they learn.","English",25.6,20.48,"567.913--dc23","24 pp.","https://greenhavenpublishing.com/9781534521735",null,{"$f":"Table1[[#This Row],['# of Books]]*Table1[[#This Row],[QTY]]","v":0},{"$f":"Table1[[#This Row],[QTY]]*Table1[[#This Row],[School & Library Price]]","v":0}]
[null,null,null,7,11,"Animals","All About Dinosaurs","Diplodocus","978-1-5345-2169-8",{"$f":"HYPERLINK(Table1[[#This Row],[eCommerce Hyperlink]],\"Book Weblink\")","v":"Book Weblink"},null,"KidHaven Publishing","eBook",1,"2018","August 2017",null,null,"Author","Amy Allatson","4.3","0.5",null,null,"K",null,"Grade 2","Grade 1 - 3","Diplodocus was one of the longest dinosaurs to walk the earth during prehistoric times. Readers learn many fun facts about this giant kind of dinosaur, including how it behaved, what it ate, and what it looked like. This essential information is presented through accessible main text designed to enhance a common curriculum topic. Readers discover additional information in eye-catching fact boxes and clearly labeled diagrams. Computer-generated illustrations of these dinosaurs keep readers entertained as they learn.","English",25.6,20.48,"567.913--dc23","24 pp.","https://greenhavenpublishing.com/9781534521698",null,{"$f":"Table1[[#This Row],['# of Books]]*Table1[[#This Row],[QTY]]","v":0},{"$f":"Table1[[#This Row],[QTY]]*Table1[[#This Row],[School & Library Price]]","v":0}]
[null,null,null,7,11,"Animals","All About Dinosaurs","Pterodactyl","978-1-5345-2175-9",{"$f":"HYPERLINK(Table1[[#This Row],[eCommerce Hyperlink]],\"Book Weblink\")","v":"Book Weblink"},null,"KidHaven Publishing","Library Bound Book",1,"2018","August 2017","Library","8.500 X 8.500","Author","Amy Allatson","3.8","0.5",null,null,"K",null,"Grade 2","Grade 1 - 3","A pterodactyl is a popular prehistoric creature because it was able to fly. Although it is not a dinosaur, it is commonly grouped with dinosaurs because of their many shared characteristics. Readers take a closer look at pterodactyls through clear main text, fun fact boxes, and helpful diagrams. As they read, they discover important information about pterodactyls’ behavior, appearance, and habitat. These fun facts help support elementary curriculum topics. Colorful computer-generated images fill each page, helping readers immerse themselves in a prehistoric world. This is sure to be a reading adventure early learners will want to experience again and again.","English",25.6,20.48,"567.918--dc23","24 pp.","https://greenhavenpublishing.com/9781534521759",null,{"$f":"Table1[[#This Row],['# of Books]]*Table1[[#This Row],[QTY]]","v":0},{"$f":"Table1[[#This Row],[QTY]]*Table1[[#This Row],[School & Library Price]]","v":0}]
[null,null,null,7,11,"Animals","All About Dinosaurs","Pterodactyl","978-1-5345-2171-1",{"$f":"HYPERLINK(Table1[[#This Row],[eCommerce Hyperlink]],\"Book Weblink\")","v":"Book Weblink"},null,"KidHaven Publishing","eBook",1,"2018","August 2017",null,null,"Author","Amy Allatson","3.8","0.5",null,null,"K",null,"Grade 2","Grade 1 - 3","A pterodactyl is a popular prehistoric creature because it was able to fly. Although it is not a dinosaur, it is commonly grouped with dinosaurs because of their many shared characteristics. Readers take a closer look at pterodactyls through clear main text, fun fact boxes, and helpful diagrams. As they read, they discover important information about pterodactyls’ behavior, appearance, and habitat. These fun facts help support elementary curriculum topics. Colorful computer-generated images fill each page, helping readers immerse themselves in a prehistoric world. This is sure to be a reading adventure early learners will want to experience again and again.","English",25.6,20.48,"567.918--dc23","24 pp.","https://greenhavenpublishing.com/9781534521711",null,{"$f":"Table1[[#This Row],['# of Books]]*Table1[[#This Row],[QTY]]","v":0},{"$f":"Table1[[#This Row],[QTY]]*Table1[[#This Row],[School & Library Price]]","v":0}]
[null,null,null,7,11,"Animals","All About Dinosaurs","Triceratops","978-1-5345-2176-6",{"$f":"HYPERLINK(Table1[[#This Row],[eCommerce Hyperlink]],\"Book Weblink\")","v":"Book Weblink"},null,"KidHaven Publishing","Library Bound Book",1,"2018","August 2017","Library","8.500 X 8.500","Author","Amy Allatson","4.3","0.5",null,null,"K",null,"Grade 2","Grade 1 - 3","What did a Triceratops eat? How did it get its name? What kind of habitat did it live in? Readers find the answers to these questions and many more as they explore the exciting world of the Triceratops. Vibrant computer-generated images take readers back in time, helping them visualize these popular dinosaurs and their surroundings. These detailed images accompany simple, accessible text filled with fun facts about a common curriculum topic. Informative fact boxes and diagrams provide additional information for readers who want to become Triceratops experts.","English",25.6,20.48,"567.915’8--dc23","24 pp.","https://greenhavenpublishing.com/9781534521766",null,{"$f":"Table1[[#This Row],['# of Books]]*Table1[[#This Row],[QTY]]","v":0},{"$f":"Table1[[#This Row],[QTY]]*Table1[[#This Row],[School & Library Price]]","v":0}]
[null,null,null,7,11,"Animals","All About Dinosaurs","Triceratops","978-1-5345-2172-8",{"$f":"HYPERLINK(Table1[[#This Row],[eCommerce Hyperlink]],\"Book Weblink\")","v":"Book Weblink"},null,"KidHaven Publishing","eBook",1,"2018","August 2017",null,null,"Author","Amy Allatson","4.3","0.5",null,null,"K",null,"Grade 2","Grade 1 - 3","What did a Triceratops eat? How did it get its name? What kind of habitat did it live in? Readers find the answers to these questions and many more as they explore the exciting world of the Triceratops. Vibrant computer-generated images take readers back in time, helping them visualize these popular dinosaurs and their surroundings. These detailed images accompany simple, accessible text filled with fun facts about a common curriculum topic. Informative fact boxes and diagrams provide additional information for readers who want to become Triceratops experts.","English",25.6,20.48,"567.915’8--dc23","24 pp.","https://greenhavenpublishing.com/9781534521728",null,{"$f":"Table1[[#This Row],['# of Books]]*Table1[[#This Row],[QTY]]","v":0},{"$f":"Table1[[#This Row],[QTY]]*Table1[[#This Row],[School & Library Price]]","v":0}]
[null,null,null,7,11,"Animals","All About Dinosaurs","Tyrannosaurus Rex","978-1-5345-2174-2",{"$f":"HYPERLINK(Table1[[#This Row],[eCommerce Hyperlink]],\"Book Weblink\")","v":"Book Weblink"},null,"KidHaven Publishing","Library Bound Book",1,"2018","August 2017","Library","8.500 X 8.500","Author","Amy Allatson","4.5","0.5",null,null,"K",null,"Grade 2","Grade 1 - 3","Readers enjoy learning about dinosaurs, and Tyrannosaurus rex is one of the most popular dinosaurs for early learners to read about. Readers explore the fascinating details of what life may have been like for a Tyrannosaurus rex, with beautiful computer-generated images to help them visualize these creatures and the world they inhabited. Age-appropriate text allows them to explore this high-interest topic and common part of elementary curricula on their own. The main text is supported by fact boxes and detailed diagrams. How did Tyrannosaurus rex catch and kill its prey? The answer is waiting for readers to discover!","English",25.6,20.48,"567.912’9--dc23","24 pp.","https://greenhavenpublishing.com/9781534521742",null,{"$f":"Table1[[#This Row],['# of Books]]*Table1[[#This Row],[QTY]]","v":0},{"$f":"Table1[[#This Row],[QTY]]*Table1[[#This Row],[School & Library Price]]","v":0}]
[null,null,null,7,11,"Animals","All About Dinosaurs","Tyrannosaurus Rex","978-1-5345-2170-4",{"$f":"HYPERLINK(Table1[[#This Row],[eCommerce Hyperlink]],\"Book Weblink\")","v":"Book Weblink"},null,"KidHaven Publishing","eBook",1,"2018","August 2017",null,null,"Author","Amy Allatson","4.5","0.5",null,null,"K",null,"Grade 2","Grade 1 - 3","Readers enjoy learning about dinosaurs, and Tyrannosaurus rex is one of the most popular dinosaurs for early learners to read about. Readers explore the fascinating details of what life may have been like for a Tyrannosaurus rex, with beautiful computer-generated images to help them visualize these creatures and the world they inhabited. Age-appropriate text allows them to explore this high-interest topic and common part of elementary curricula on their own. The main text is supported by fact boxes and detailed diagrams. How did Tyrannosaurus rex catch and kill its prey? The answer is waiting for readers to discover!","English",25.6,20.48,"567.912’9--dc23","24 pp.","https://greenhavenpublishing.com/9781534521704",null,{"$f":"Table1[[#This Row],['# of Books]]*Table1[[#This Row],[QTY]]","v":0},{"$f":"Table1[[#This Row],[QTY]]*Table1[[#This Row],[School & Library Price]]","v":0}]
[null,null,null,7,11,"Animals","All About Dinosaurs","Parasaurolophus","978-1-5345-2352-4",{"$f":"HYPERLINK(Table1[[#This Row],[eCommerce Hyperlink]],\"Book Weblink\")","v":"Book Weblink"},null,"KidHaven Publishing","Library Bound Book",1,"2018","January 2018","Library","8.500 X 8.500","Author","Mike Clark","4","0.5",null,null,"K",null,"Grade 2","Grade 1 - 3","Parasaurolophus is known for the trumpet-shaped crest on its head, which makes a low sound similar to the one elephants or whales make when communicating among their species. Readers learn this and other interesting facts about this dinosaur, such as what it ate, the places it called home, and how it survived among predators. This compelling material is presented through an age-appropriate text to enhance students’ knowledge of these prehistoric creatures. Readers uncover additional information in captivating fact boxes, colorful illustrations, and well-organized diagrams. This text keeps readers entertained while also aligning with a fundamental science curriculum topic.","English",25.6,20.48,"567.914--dc23","24 pp.","https://greenhavenpublishing.com/9781534523524",null,{"$f":"Table1[[#This Row],['# of Books]]*Table1[[#This Row],[QTY]]","v":0},{"$f":"Table1[[#This Row],[QTY]]*Table1[[#This Row],[School & Library Price]]","v":0}]
[null,null,null,7,11,"Animals","All About Dinosaurs","Parasaurolophus","978-1-5345-2353-1",{"$f":"HYPERLINK(Table1[[#This Row],[eCommerce Hyperlink]],\"Book Weblink\")","v":"Book Weblink"},null,"KidHaven Publishing","eBook",1,"2018","January 2018",null,null,"Author","Mike Clark","4","0.5",null,null,"K",null,"Grade 2","Grade 1 - 3","Parasaurolophus is known for the trumpet-shaped crest on its head, which makes a low sound similar to the one elephants or whales make when communicating among their species. Readers learn this and other interesting facts about this dinosaur, such as what it ate, the places it called home, and how it survived among predators. This compelling material is presented through an age-appropriate text to enhance students’ knowledge of these prehistoric creatures. Readers uncover additional information in captivating fact boxes, colorful illustrations, and well-organized diagrams. This text keeps readers entertained while also aligning with a fundamental science curriculum topic.","English",25.6,20.48,"567.914--dc23","24 pp.","https://greenhavenpublishing.com/9781534523531",null,{"$f":"Table1[[#This Row],['# of Books]]*Table1[[#This Row],[QTY]]","v":0},{"$f":"Table1[[#This Row],[QTY]]*Table1[[#This Row],[School & Library Price]]","v":0}]
[null,null,null,7,11,"Animals","All About Dinosaurs","Spinosaurus","978-1-5345-2355-5",{"$f":"HYPERLINK(Table1[[#This Row],[eCommerce Hyperlink]],\"Book Weblink\")","v":"Book Weblink"},null,"KidHaven Publishing","Library Bound Book",1,"2018","January 2018","Library","8.500 X 8.500","Author","Mike Clark","4.4","0.5",null,null,"K",null,"Grade 2","Grade 1 - 3","The Spinosaurus, with its huge sail on its back, is the largest known carnivorous dinosaur. Early readers learn interesting facts such as these through the informative main text about these prehistoric creatures. In addition, eye-catching fact boxes and detailed diagrams are included throughout the text to provide extra insight about this popular science curriculum topic. Vibrant computer-generated illustrations help readers visualize what this dinosaur looked like and its surroundings. What did a Spinosaurus eat? How did it catch its prey? These answers are waiting to be discovered in the text.","English",25.6,20.48,"567.912--dc23","24 pp.","https://greenhavenpublishing.com/9781534523555",null,{"$f":"Table1[[#This Row],['# of Books]]*Table1[[#This Row],[QTY]]","v":0},{"$f":"Table1[[#This Row],[QTY]]*Table1[[#This Row],[School & Library Price]]","v":0}]
[null,null,null,7,11,"Animals","All About Dinosaurs","Spinosaurus","978-1-5345-2356-2",{"$f":"HYPERLINK(Table1[[#This Row],[eCommerce Hyperlink]],\"Book Weblink\")","v":"Book Weblink"},null,"KidHaven Publishing","eBook",1,"2018","January 2018",null,null,"Author","Mike Clark","4.4","0.5",null,null,"K",null,"Grade 2","Grade 1 - 3","The Spinosaurus, with its huge sail on its back, is the largest known carnivorous dinosaur. Early readers learn interesting facts such as these through the informative main text about these prehistoric creatures. In addition, eye-catching fact boxes and detailed diagrams are included throughout the text to provide extra insight about this popular science curriculum topic. Vibrant computer-generated illustrations help readers visualize what this dinosaur looked like and its surroundings. What did a Spinosaurus eat? How did it catch its prey? These answers are waiting to be discovered in the text.","English",25.6,20.48,"567.912--dc23","24 pp.","https://greenhavenpublishing.com/9781534523562",null,{"$f":"Table1[[#This Row],['# of Books]]*Table1[[#This Row],[QTY]]","v":0},{"$f":"Table1[[#This Row],[QTY]]*Table1[[#This Row],[School & Library Price]]","v":0}]
[null,null,null,7,11,"Animals","All About Dinosaurs","Stegosaurus","978-1-5345-2358-6",{"$f":"HYPERLINK(Table1[[#This Row],[eCommerce Hyperlink]],\"Book Weblink\")","v":"Book Weblink"},null,"KidHaven Publishing","Library Bound Book",1,"2018","January 2018","Library","8.500 X 8.500","Author","Mike Clark","4.5","0.5",null,null,"K",null,"Grade 2","Grade 1 - 3","How did Stegosaurus get its name? What did it eat? Where did it live? Readers find these answers and much more thanks to age-appropriate text about a high-interest topic and common part of elementary science curricula. Colorful illustrations present examples of what this plant-eating dinosaur looked like with its spiked tail and plated back. These plates are said to have had many possible uses, such as defending against predators or attracting mates. Other fun facts are packed into this accessible text with additional fact boxes and diagrams for readers who want to become Stegosaurus experts.","English",25.6,20.48,"567.915'3--dc23","24 pp.","https://greenhavenpublishing.com/9781534523586",null,{"$f":"Table1[[#This Row],['# of Books]]*Table1[[#This Row],[QTY]]","v":0},{"$f":"Table1[[#This Row],[QTY]]*Table1[[#This Row],[School & Library Price]]","v":0}]
[null,null,null,7,11,"Animals","All About Dinosaurs","Stegosaurus","978-1-5345-2359-3",{"$f":"HYPERLINK(Table1[[#This Row],[eCommerce Hyperlink]],\"Book Weblink\")","v":"Book Weblink"},null,"KidHaven Publishing","eBook",1,"2018","January 2018",null,null,"Author","Mike Clark","4.5","0.5",null,null,"K",null,"Grade 2","Grade 1 - 3","How did Stegosaurus get its name? What did it eat? Where did it live? Readers find these answers and much more thanks to age-appropriate text about a high-interest topic and common part of elementary science curricula. Colorful illustrations present examples of what this plant-eating dinosaur looked like with its spiked tail and plated back. These plates are said to have had many possible uses, such as defending against predators or attracting mates. Other fun facts are packed into this accessible text with additional fact boxes and diagrams for readers who want to become Stegosaurus experts.","English",25.6,20.48,"567.915'3--dc23","24 pp.","https://greenhavenpublishing.com/9781534523593",null,{"$f":"Table1[[#This Row],['# of Books]]*Table1[[#This Row],[QTY]]","v":0},{"$f":"Table1[[#This Row],[QTY]]*Table1[[#This Row],[School & Library Price]]","v":0}]
[null,null,null,7,11,"Animals","All About Dinosaurs","Velociraptor","978-1-5345-2360-9",{"$f":"HYPERLINK(Table1[[#This Row],[eCommerce Hyperlink]],\"Book Weblink\")","v":"Book Weblink"},null,"KidHaven Publishing","Library Bound Book",1,"2018","January 2018","Library","8.500 X 8.500","Author","Mike Clark","4.5","0.5",null,null,"K",null,"Grade 2","Grade 1 - 3","The Velociraptor is one of the most popular dinosaurs for young readers to learn about. In this captivating text, readers learn about the similarities this dinosaur shares with birds. These dinosaurs had hollow bones and tended to nests of eggs, although they were not known to fly. These and other fascinating facts about the Velociraptor are included in the age-appropriate main text that supports a major science curriculum topic. Additional information is included in well-organized fact boxes and detailed diagrams. Colorful computer-generated illustrations of the Velociraptor add a creative visual element for readers looking to expand their knowledge of dinosaurs.","English",25.6,20.48,"567.912--dc23","24 pp.","https://greenhavenpublishing.com/9781534523609",null,{"$f":"Table1[[#This Row],['# of Books]]*Table1[[#This Row],[QTY]]","v":0},{"$f":"Table1[[#This Row],[QTY]]*Table1[[#This Row],[School & Library Price]]","v":0}]
[null,null,null,7,11,"Animals","All About Dinosaurs","Velociraptor","978-1-5345-2361-6",{"$f":"HYPERLINK(Table1[[#This Row],[eCommerce Hyperlink]],\"Book Weblink\")","v":"Book Weblink"},null,"KidHaven Publishing","eBook",1,"2018","January 2018",null,null,"Author","Mike Clark","4.5","0.5",null,null,"K",null,"Grade 2","Grade 1 - 3","The Velociraptor is one of the most popular dinosaurs for young readers to learn about. In this captivating text, readers learn about the similarities this dinosaur shares with birds. These dinosaurs had hollow bones and tended to nests of eggs, although they were not known to fly. These and other fascinating facts about the Velociraptor are included in the age-appropriate main text that supports a major science curriculum topic. Additional information is included in well-organized fact boxes and detailed diagrams. Colorful computer-generated illustrations of the Velociraptor add a creative visual element for readers looking to expand their knowledge of dinosaurs.","English",25.6,20.48,"567.912--dc23","24 pp.","https://greenhavenpublishing.com/9781534523616",null,{"$f":"Table1[[#This Row],['# of Books]]*Table1[[#This Row],[QTY]]","v":0},{"$f":"Table1[[#This Row],[QTY]]*Table1[[#This Row],[School & Library Price]]","v":0}]
[null,null,null,9,12,"Animals","Animals with Superpowers!","Animals with Superpowers!","978-1-5345-3600-5",{"$f":"HYPERLINK(Table1[[#This Row],[eCommerce Hyperlink]],\"Book Weblink\")","v":"Book Weblink"},null,"KidHaven Publishing","Library Set",4,"2022","August 2021","Library","8.500 X 8.500",null,null,null,null,null,null,null,null,"Grade 2","Grade 2 - 4","Readers go on an exciting journey with animals that have amazing adaptations with this look at superpowers in the natural world. Through age-appropriate narratives, readers learn about animals that have exceptional abilities, such as invisibility, seeing in the dark, body parts used as weapons, and the power of regeneration. The exciting comic book design highlights essential science curriculum topics and biology concepts. Insightful fact boxes, detailed glossaries, and dazzling, full-color photographs and illustrations add to this fun-filled, adventurous reading experience. Give your developing readers and budding biologists something to love reading and learning about. Features include: Appealing design elements presented in comic book format. Exciting examples of animals' extraordinary abilities that bring high-interest superhero concepts to the world of science. Animal fact files that list basic information in an eye-catching way.","English",102.4,81.92,null,"24 pp.","https://greenhavenpublishing.com/9781534536005",null,{"$f":"Table1[[#This Row],['# of Books]]*Table1[[#This Row],[QTY]]","v":0},{"$f":"Table1[[#This Row],[QTY]]*Table1[[#This Row],[School & Library Price]]","v":0}]
[null,null,null,9,12,"Animals","Animals with Superpowers!","Defend and Attack!","978-1-5345-3507-7",{"$f":"HYPERLINK(Table1[[#This Row],[eCommerce Hyperlink]],\"Book Weblink\")","v":"Book Weblink"},null,"KidHaven Publishing","Library Bound Book",1,"2022","August 2021","Library","8.500 X 8.500","Author","Emilie Dufresne",null,null,null,null,"J",null,"Grade 2","Grade 2 - 4","Several animals use parts of their bodies as weapons to protect themselves from predators or attack their prey. Through the exciting narrative in this creative guide to animal adaptations, readers discover how animals such as skunks, narwhals, and scorpions use their bodies as weapons and how this helps them survive in the wild. This book will broaden their knowledge of science curriculum concepts and help them become more aware of diversity in the natural world. Attention-grabbing design elements including creative illustrations, fact boxes, and captivating, full-color photographs make this an enjoyable reading experience for all animal enthusiasts.","English",25.6,20.48,"591.47--dc23","24 pp.","https://greenhavenpublishing.com/9781534535077",null,{"$f":"Table1[[#This Row],['# of Books]]*Table1[[#This Row],[QTY]]","v":0},{"$f":"Table1[[#This Row],[QTY]]*Table1[[#This Row],[School & Library Price]]","v":0}]
[null,null,null,9,12,"Animals","Animals with Superpowers!","Defend and Attack!","978-1-5345-3508-4",{"$f":"HYPERLINK(Table1[[#This Row],[eCommerce Hyperlink]],\"Book Weblink\")","v":"Book Weblink"},null,"KidHaven Publishing","eBook",1,"2022","August 2021",null,null,"Author","Emilie Dufresne",null,null,null,null,"J",null,"Grade 2","Grade 2 - 4","Several animals use parts of their bodies as weapons to protect themselves from predators or attack their prey. Through the exciting narrative in this creative guide to animal adaptations, readers discover how animals such as skunks, narwhals, and scorpions use their bodies as weapons and how this helps them survive in the wild. This book will broaden their knowledge of science curriculum concepts and help them become more aware of diversity in the natural world. Attention-grabbing design elements including creative illustrations, fact boxes, and captivating, full-color photographs make this an enjoyable reading experience for all animal enthusiasts.","English",25.6,20.48,"591.47--dc23","24 pp.","https://greenhavenpublishing.com/9781534535084",null,{"$f":"Table1[[#This Row],['# of Books]]*Table1[[#This Row],[QTY]]","v":0},{"$f":"Table1[[#This Row],[QTY]]*Table1[[#This Row],[School & Library Price]]","v":0}]
[null,null,null,9,12,"Animals","Animals with Superpowers!","Invisibility!","978-1-5345-3495-7",{"$f":"HYPERLINK(Table1[[#This Row],[eCommerce Hyperlink]],\"Book Weblink\")","v":"Book Weblink"},null,"KidHaven Publishing","Library Bound Book",1,"2022","August 2021","Library","8.500 X 8.500","Author","Emilie Dufresne",null,null,null,null,"J",null,"Grade 2","Grade 2 - 4","Have you ever wondered how animals protect themselves in the wild? One way they do this is through the power of invisibility. Readers discover this fun fact as they explore different ways animals such as lions, polar bears, sloths, and glass frogs transform to look invisible in order to survive. Through this well-researched text presented to look like an exciting comic book, readers develop a better understanding of the natural world and its inhabitants. Useful fact boxes, a helpful glossary, imaginative illustrations, and bright, full-color photographs make it fun to learn about this fundamental science topic.","English",25.6,20.48,"591.47'2--dc23","24 pp.","https://greenhavenpublishing.com/9781534534957",null,{"$f":"Table1[[#This Row],['# of Books]]*Table1[[#This Row],[QTY]]","v":0},{"$f":"Table1[[#This Row],[QTY]]*Table1[[#This Row],[School & Library Price]]","v":0}]
[null,null,null,9,12,"Animals","Animals with Superpowers!","Invisibility!","978-1-5345-3496-4",{"$f":"HYPERLINK(Table1[[#This Row],[eCommerce Hyperlink]],\"Book Weblink\")","v":"Book Weblink"},null,"KidHaven Publishing","eBook",1,"2022","August 2021",null,null,"Author","Emilie Dufresne",null,null,null,null,"J",null,"Grade 2","Grade 2 - 4","Have you ever wondered how animals protect themselves in the wild? One way they do this is through the power of invisibility. Readers discover this fun fact as they explore different ways animals such as lions, polar bears, sloths, and glass frogs transform to look invisible in order to survive. Through this well-researched text presented to look like an exciting comic book, readers develop a better understanding of the natural world and its inhabitants. Useful fact boxes, a helpful glossary, imaginative illustrations, and bright, full-color photographs make it fun to learn about this fundamental science topic.","English",25.6,20.48,"591.47'2--dc23","24 pp.","https://greenhavenpublishing.com/9781534534964",null,{"$f":"Table1[[#This Row],['# of Books]]*Table1[[#This Row],[QTY]]","v":0},{"$f":"Table1[[#This Row],[QTY]]*Table1[[#This Row],[School & Library Price]]","v":0}]
[null,null,null,9,12,"Animals","Animals with Superpowers!","Regenerate!","978-1-5345-3499-5",{"$f":"HYPERLINK(Table1[[#This Row],[eCommerce Hyperlink]],\"Book Weblink\")","v":"Book Weblink"},null,"KidHaven Publishing","Library Bound Book",1,"2022","August 2021","Library","8.500 X 8.500","Author","Emilie Dufresne",null,null,null,null,"J",null,"Grade 2","Grade 2 - 4","Some animals have astonishing abilities, such as the power to regrow different parts of their bodies or to make a copy of their entire body. Your spell-bound readers will learn about this incredible phenomenon called regeneration through this fascinating volume that looks like an action-packed comic book. The age-appropriate and accessible main text translates complex science curriculum topics to make them more relatable for developing readers and early learners. Creative design elements, including eye-catching illustrations, fact boxes, and vibrant, full-color photographs, make this reading experience fun and educational for all.","English",25.6,20.48,"591.5--dc23","24 pp.","https://greenhavenpublishing.com/9781534534995",null,{"$f":"Table1[[#This Row],['# of Books]]*Table1[[#This Row],[QTY]]","v":0},{"$f":"Table1[[#This Row],[QTY]]*Table1[[#This Row],[School & Library Price]]","v":0}]
[null,null,null,9,12,"Animals","Animals with Superpowers!","Regenerate!","978-1-5345-3500-8",{"$f":"HYPERLINK(Table1[[#This Row],[eCommerce Hyperlink]],\"Book Weblink\")","v":"Book Weblink"},null,"KidHaven Publishing","eBook",1,"2022","August 2021",null,null,"Author","Emilie Dufresne",null,null,null,null,"J",null,"Grade 2","Grade 2 - 4","Some animals have astonishing abilities, such as the power to regrow different parts of their bodies or to make a copy of their entire body. Your spell-bound readers will learn about this incredible phenomenon called regeneration through this fascinating volume that looks like an action-packed comic book. The age-appropriate and accessible main text translates complex science curriculum topics to make them more relatable for developing readers and early learners. Creative design elements, including eye-catching illustrations, fact boxes, and vibrant, full-color photographs, make this reading experience fun and educational for all.","English",25.6,20.48,"591.5--dc23","24 pp.","https://greenhavenpublishing.com/9781534535008",null,{"$f":"Table1[[#This Row],['# of Books]]*Table1[[#This Row],[QTY]]","v":0},{"$f":"Table1[[#This Row],[QTY]]*Table1[[#This Row],[School & Library Price]]","v":0}]
[null,null,null,9,12,"Animals","Animals with Superpowers!","See in the Dark!","978-1-5345-3503-9",{"$f":"HYPERLINK(Table1[[#This Row],[eCommerce Hyperlink]],\"Book Weblink\")","v":"Book Weblink"},null,"KidHaven Publishing","Library Bound Book",1,"2022","August 2021","Library","8.500 X 8.500","Author","Emilie Dufresne",null,null,null,null,"J",null,"Grade 2","Grade 2 - 4","Have you ever imagined what it would be like to have night vision? Readers discover how this natural superpower works as they learn about various animals, such as foxes, owls, and cats, which have the amazing ability to see in the dark. Through accessible main text, readers learn how animals use their night vision to pinpoint their prey and also stay safe from predators. Helpful fact boxes, a detailed glossary, striking illustrations, and dramatic, full-color photographs provide extra insight into this interesting science curriculum topic. The creative design of this guide will intrigue young readers.","English",25.6,20.48,"591.5'18--dc23","24 pp.","https://greenhavenpublishing.com/9781534535039",null,{"$f":"Table1[[#This Row],['# of Books]]*Table1[[#This Row],[QTY]]","v":0},{"$f":"Table1[[#This Row],[QTY]]*Table1[[#This Row],[School & Library Price]]","v":0}]
[null,null,null,9,12,"Animals","Animals with Superpowers!","See in the Dark!","978-1-5345-3504-6",{"$f":"HYPERLINK(Table1[[#This Row],[eCommerce Hyperlink]],\"Book Weblink\")","v":"Book Weblink"},null,"KidHaven Publishing","eBook",1,"2022","August 2021",null,null,"Author","Emilie Dufresne",null,null,null,null,"J",null,"Grade 2","Grade 2 - 4","Have you ever imagined what it would be like to have night vision? Readers discover how this natural superpower works as they learn about various animals, such as foxes, owls, and cats, which have the amazing ability to see in the dark. Through accessible main text, readers learn how animals use their night vision to pinpoint their prey and also stay safe from predators. Helpful fact boxes, a detailed glossary, striking illustrations, and dramatic, full-color photographs provide extra insight into this interesting science curriculum topic. The creative design of this guide will intrigue young readers.","English",25.6,20.48,"591.5'18--dc23","24 pp.","https://greenhavenpublishing.com/9781534535046",null,{"$f":"Table1[[#This Row],['# of Books]]*Table1[[#This Row],[QTY]]","v":0},{"$f":"Table1[[#This Row],[QTY]]*Table1[[#This Row],[School & Library Price]]","v":0}]
[null,null,null,8,12,"Animals","Bugs","Bugs","978-1-5345-3904-4",{"$f":"HYPERLINK(Table1[[#This Row],[eCommerce Hyperlink]],\"Book Weblink\")","v":"Book Weblink"},null,"KidHaven Publishing","Library Set",6,"2022","August 2021","Library","8.500 X 8.500",null,null,null,null,null,null,null,null,"Grade 2","Grade 1 - 3","Get ready to explore the world of bugs! From body parts to predators, the facts about common backyard bugs can be found in this set all about ants, bees and wasps, beetles, crickets, flies, and moths. Written and designed with young readers in mind, each book covers what the animal eats, where it lives, what it looks like, and its life cycle. Up-close, full-color photographs bring readers into the world of bugs that’s just outside their back door. An engaging, conversational style draws in budding etymologists and curious nature lovers alike.","English",153.6,122.88,null,"24 pp.","https://greenhavenpublishing.com/9781534539044",null,{"$f":"Table1[[#This Row],['# of Books]]*Table1[[#This Row],[QTY]]","v":0},{"$f":"Table1[[#This Row],[QTY]]*Table1[[#This Row],[School & Library Price]]","v":0}]
[null,null,null,8,12,"Animals","Bugs","Ants","978-1-5345-3752-1",{"$f":"HYPERLINK(Table1[[#This Row],[eCommerce Hyperlink]],\"Book Weblink\")","v":"Book Weblink"},null,"KidHaven Publishing","Library Bound Book",1,"2022","August 2021","Library","8.500 X 8.500","Author","William Anthony",null,null,null,null,"K",null,"Grade 2","Grade 1 - 3","One of the most interesting groups in the animal kingdom is the any colony. In this book, readers are trained to explore the world of ants, including their fascinating groups, body parts, life cycle, and more. Up-close photographs take readers where they wouldn’t otherwise be able to go and see the body of the ant in incredible detail. Simple language and age-appropriate information engages new readers through understanding how ants find food, how they become food, and even how they communicate.","English",25.6,20.48,"595.79’6--dc23","24 pp.","https://greenhavenpublishing.com/9781534537521",null,{"$f":"Table1[[#This Row],['# of Books]]*Table1[[#This Row],[QTY]]","v":0},{"$f":"Table1[[#This Row],[QTY]]*Table1[[#This Row],[School & Library Price]]","v":0}]
[null,null,null,8,12,"Animals","Bugs","Ants","978-1-5345-3753-8",{"$f":"HYPERLINK(Table1[[#This Row],[eCommerce Hyperlink]],\"Book Weblink\")","v":"Book Weblink"},null,"KidHaven Publishing","eBook",1,"2022","August 2021",null,null,"Author","William Anthony",null,null,null,null,"K",null,"Grade 2","Grade 1 - 3","One of the most interesting groups in the animal kingdom is the any colony. In this book, readers are trained to explore the world of ants, including their fascinating groups, body parts, life cycle, and more. Up-close photographs take readers where they wouldn’t otherwise be able to go and see the body of the ant in incredible detail. Simple language and age-appropriate information engages new readers through understanding how ants find food, how they become food, and even how they communicate.","English",25.6,20.48,"595.79’6--dc23","24 pp.","https://greenhavenpublishing.com/9781534537538",null,{"$f":"Table1[[#This Row],['# of Books]]*Table1[[#This Row],[QTY]]","v":0},{"$f":"Table1[[#This Row],[QTY]]*Table1[[#This Row],[School & Library Price]]","v":0}]
[null,null,null,8,12,"Animals","Bugs","Bees and Wasps","978-1-5345-3756-9",{"$f":"HYPERLINK(Table1[[#This Row],[eCommerce Hyperlink]],\"Book Weblink\")","v":"Book Weblink"},null,"KidHaven Publishing","Library Bound Book",1,"2022","August 2021","Library","8.500 X 8.500","Author","William Anthony",null,null,null,null,"K",null,"Grade 2","Grade 1 - 3","Bees and wasps are different bugs. But, they’re often grouped together because they look and act similarly. This book guides readers through bug explorer training with an emphasis on the exciting world of bees and wasps. Among the accessible content is where these creatures are found, what their bodies are like, their life cycles, and much more. Detailed photographs bring these bugs closer than readers will likely get in their own backyard, allowing for a long, up-close look at body structures and features. Engaging, accessible content keeps young readers enjoying each page of text.","English",25.6,20.48,"595.79’9--dc23","24 pp.","https://greenhavenpublishing.com/9781534537569",null,{"$f":"Table1[[#This Row],['# of Books]]*Table1[[#This Row],[QTY]]","v":0},{"$f":"Table1[[#This Row],[QTY]]*Table1[[#This Row],[School & Library Price]]","v":0}]
[null,null,null,8,12,"Animals","Bugs","Bees and Wasps","978-1-5345-3757-6",{"$f":"HYPERLINK(Table1[[#This Row],[eCommerce Hyperlink]],\"Book Weblink\")","v":"Book Weblink"},null,"KidHaven Publishing","eBook",1,"2022","August 2021",null,null,"Author","William Anthony",null,null,null,null,"K",null,"Grade 2","Grade 1 - 3","Bees and wasps are different bugs. But, they’re often grouped together because they look and act similarly. This book guides readers through bug explorer training with an emphasis on the exciting world of bees and wasps. Among the accessible content is where these creatures are found, what their bodies are like, their life cycles, and much more. Detailed photographs bring these bugs closer than readers will likely get in their own backyard, allowing for a long, up-close look at body structures and features. Engaging, accessible content keeps young readers enjoying each page of text.","English",25.6,20.48,"595.79’9--dc23","24 pp.","https://greenhavenpublishing.com/9781534537576",null,{"$f":"Table1[[#This Row],['# of Books]]*Table1[[#This Row],[QTY]]","v":0},{"$f":"Table1[[#This Row],[QTY]]*Table1[[#This Row],[School & Library Price]]","v":0}]
[null,null,null,8,12,"Animals","Bugs","Beetles","978-1-5345-3764-4",{"$f":"HYPERLINK(Table1[[#This Row],[eCommerce Hyperlink]],\"Book Weblink\")","v":"Book Weblink"},null,"KidHaven Publishing","Library Bound Book",1,"2022","August 2021","Library","8.500 X 8.500","Author","William Anthony",null,null,null,null,"K",null,"Grade 2","Grade 1 - 3","There are hundreds of thousands of kinds of beetles on Earth! Some of these, like the ladybug, can be found in many backyards. Readers of this informative volume get up-close and personal with beetles they might not otherwise meet while learning about where beetles are found, what their bodies are like, what they eat, and what eats them! Told in the style of an explorer training guide, the age-appropriate content engages young readers and complements science classroom learning about predator-prey relationships and animal life cycles, among other topics.","English",25.6,20.48,"595.76--dc23","24 pp.","https://greenhavenpublishing.com/9781534537644",null,{"$f":"Table1[[#This Row],['# of Books]]*Table1[[#This Row],[QTY]]","v":0},{"$f":"Table1[[#This Row],[QTY]]*Table1[[#This Row],[School & Library Price]]","v":0}]
[null,null,null,8,12,"Animals","Bugs","Beetles","978-1-5345-3765-1",{"$f":"HYPERLINK(Table1[[#This Row],[eCommerce Hyperlink]],\"Book Weblink\")","v":"Book Weblink"},null,"KidHaven Publishing","eBook",1,"2022","August 2021",null,null,"Author","William Anthony",null,null,null,null,"K",null,"Grade 2","Grade 1 - 3","There are hundreds of thousands of kinds of beetles on Earth! Some of these, like the ladybug, can be found in many backyards. Readers of this informative volume get up-close and personal with beetles they might not otherwise meet while learning about where beetles are found, what their bodies are like, what they eat, and what eats them! Told in the style of an explorer training guide, the age-appropriate content engages young readers and complements science classroom learning about predator-prey relationships and animal life cycles, among other topics.","English",25.6,20.48,"595.76--dc23","24 pp.","https://greenhavenpublishing.com/9781534537651",null,{"$f":"Table1[[#This Row],['# of Books]]*Table1[[#This Row],[QTY]]","v":0},{"$f":"Table1[[#This Row],[QTY]]*Table1[[#This Row],[School & Library Price]]","v":0}]
[null,null,null,8,12,"Animals","Bugs","Crickets","978-1-5345-3768-2",{"$f":"HYPERLINK(Table1[[#This Row],[eCommerce Hyperlink]],\"Book Weblink\")","v":"Book Weblink"},null,"KidHaven Publishing","Library Bound Book",1,"2022","August 2021","Library","8.500 X 8.500","Author","William Anthony",null,null,null,null,"K",null,"Grade 2","Grade 1 - 3","It’s dusk during the summer and the backyard seems quiet—but not if there are crickets around! These jumping, noisy bugs might be a familiar sight to curious bug explorers, and this engaging book can bring crickets even closer through beautiful full-color photographs and accessible content. Including facts about the cricket life cycle, what they eat, where they are found, and what predators hunt them, this volume keeps young readers in mind with simple language and clearly labeled diagrams and photographs.","English",25.6,20.48,"595.7’26--dc23","24 pp.","https://greenhavenpublishing.com/9781534537682",null,{"$f":"Table1[[#This Row],['# of Books]]*Table1[[#This Row],[QTY]]","v":0},{"$f":"Table1[[#This Row],[QTY]]*Table1[[#This Row],[School & Library Price]]","v":0}]
[null,null,null,8,12,"Animals","Bugs","Crickets","978-1-5345-3769-9",{"$f":"HYPERLINK(Table1[[#This Row],[eCommerce Hyperlink]],\"Book Weblink\")","v":"Book Weblink"},null,"KidHaven Publishing","eBook",1,"2022","August 2021",null,null,"Author","William Anthony",null,null,null,null,"K",null,"Grade 2","Grade 1 - 3","It’s dusk during the summer and the backyard seems quiet—but not if there are crickets around! These jumping, noisy bugs might be a familiar sight to curious bug explorers, and this engaging book can bring crickets even closer through beautiful full-color photographs and accessible content. Including facts about the cricket life cycle, what they eat, where they are found, and what predators hunt them, this volume keeps young readers in mind with simple language and clearly labeled diagrams and photographs.","English",25.6,20.48,"595.7’26--dc23","24 pp.","https://greenhavenpublishing.com/9781534537699",null,{"$f":"Table1[[#This Row],['# of Books]]*Table1[[#This Row],[QTY]]","v":0},{"$f":"Table1[[#This Row],[QTY]]*Table1[[#This Row],[School & Library Price]]","v":0}]
[null,null,null,8,12,"Animals","Bugs","Flies","978-1-5345-3772-9",{"$f":"HYPERLINK(Table1[[#This Row],[eCommerce Hyperlink]],\"Book Weblink\")","v":"Book Weblink"},null,"KidHaven Publishing","Library Bound Book",1,"2022","August 2021","Library","8.500 X 8.500","Author","William Anthony",null,null,null,null,"K",null,"Grade 2","Grade 1 - 3","No one likes to see flies investigating their picnic and so they are often shooed away. But how do flies find food? And do they really eat picnic leavings and other trash? Time to call in the bug explorers! In this book, readers begin their explorer training by finding out about flies’ body features, where they’re found, what they eat, and what their life cycle is like. Up-close photographs showcase features unable to be seen by the naked eye and complement the accessible text.","English",25.6,20.48,"595.77--dc23","24 pp.","https://greenhavenpublishing.com/9781534537729",null,{"$f":"Table1[[#This Row],['# of Books]]*Table1[[#This Row],[QTY]]","v":0},{"$f":"Table1[[#This Row],[QTY]]*Table1[[#This Row],[School & Library Price]]","v":0}]
[null,null,null,8,12,"Animals","Bugs","Flies","978-1-5345-3773-6",{"$f":"HYPERLINK(Table1[[#This Row],[eCommerce Hyperlink]],\"Book Weblink\")","v":"Book Weblink"},null,"KidHaven Publishing","eBook",1,"2022","August 2021",null,null,"Author","William Anthony",null,null,null,null,"K",null,"Grade 2","Grade 1 - 3","No one likes to see flies investigating their picnic and so they are often shooed away. But how do flies find food? And do they really eat picnic leavings and other trash? Time to call in the bug explorers! In this book, readers begin their explorer training by finding out about flies’ body features, where they’re found, what they eat, and what their life cycle is like. Up-close photographs showcase features unable to be seen by the naked eye and complement the accessible text.","English",25.6,20.48,"595.77--dc23","24 pp.","https://greenhavenpublishing.com/9781534537736",null,{"$f":"Table1[[#This Row],['# of Books]]*Table1[[#This Row],[QTY]]","v":0},{"$f":"Table1[[#This Row],[QTY]]*Table1[[#This Row],[School & Library Price]]","v":0}]
[null,null,null,8,12,"Animals","Bugs","Moths","978-1-5345-3776-7",{"$f":"HYPERLINK(Table1[[#This Row],[eCommerce Hyperlink]],\"Book Weblink\")","v":"Book Weblink"},null,"KidHaven Publishing","Library Bound Book",1,"2022","August 2021","Library","8.500 X 8.500","Author","William Anthony",null,null,null,null,"K",null,"Grade 2","Grade 1 - 3","Moths can be beautiful, but they are often overshadowed by their flying friend, the butterfly. This book introduces the amazing moth to curious bug explorers in clear, simple language perfect for beginning readers. A great supplement to science classroom learning, this book includes where moths are found, their body features, predators, and their life cycle. Readers are drawn in by full-color, up-close photographs of moths in their many varieties, sparking curiosity, wonder, and a sense of exploration even just in the backyard!","English",25.6,20.48,"595.78--dc23","24 pp.","https://greenhavenpublishing.com/9781534537767",null,{"$f":"Table1[[#This Row],['# of Books]]*Table1[[#This Row],[QTY]]","v":0},{"$f":"Table1[[#This Row],[QTY]]*Table1[[#This Row],[School & Library Price]]","v":0}]
[null,null,null,8,12,"Animals","Bugs","Moths","978-1-5345-3777-4",{"$f":"HYPERLINK(Table1[[#This Row],[eCommerce Hyperlink]],\"Book Weblink\")","v":"Book Weblink"},null,"KidHaven Publishing","eBook",1,"2022","August 2021",null,null,"Author","William Anthony",null,null,null,null,"K",null,"Grade 2","Grade 1 - 3","Moths can be beautiful, but they are often overshadowed by their flying friend, the butterfly. This book introduces the amazing moth to curious bug explorers in clear, simple language perfect for beginning readers. A great supplement to science classroom learning, this book includes where moths are found, their body features, predators, and their life cycle. Readers are drawn in by full-color, up-close photographs of moths in their many varieties, sparking curiosity, wonder, and a sense of exploration even just in the backyard!","English",25.6,20.48,"595.78--dc23","24 pp.","https://greenhavenpublishing.com/9781534537774",null,{"$f":"Table1[[#This Row],['# of Books]]*Table1[[#This Row],[QTY]]","v":0},{"$f":"Table1[[#This Row],[QTY]]*Table1[[#This Row],[School & Library Price]]","v":0}]
[null,null,null,null,13,"Animals","Animal Classification","Animal Classification: Set 1","978-1-5345-2117-9",{"$f":"HYPERLINK(Table1[[#This Row],[eCommerce Hyperlink]],\"Book Weblink\")","v":"Book Weblink"},null,"KidHaven Publishing","Library Set",6,"2017","January 2017","Library","8.500 X 11.00",null,null,null,null,null,null,null,null,"Grade 3 - 4","Grade 3 - 5","More than 8 million animal species call our planet home. Readers discover how these species are classified based on common characteristics as they learn amazing facts about different groups of animals; from amphibians and reptiles to mammals and insects. The accessible text supports essential science curriculum topics, and eye-catching fact boxes provide additional information on some of the world's most unique creatures. With vibrant, full-color photographs of a wide variety of animals in their natural habitats, this is a reading adventure animal lovers will want to take again and again. Features include: Graphic organizers and diagrams that relay important information visually. Supports an effortless introduction into scientific methods of classification.","English",169.5,135.6,null,"32 pp.","https://greenhavenpublishing.com/9781534521179",null,{"$f":"Table1[[#This Row],['# of Books]]*Table1[[#This Row],[QTY]]","v":0},{"$f":"Table1[[#This Row],[QTY]]*Table1[[#This Row],[School & Library Price]]","v":0}]
[null,null,null,null,13,"Animals","Animal Classification","Amphibians","978-1-5345-2004-2",{"$f":"HYPERLINK(Table1[[#This Row],[eCommerce Hyperlink]],\"Book Weblink\")","v":"Book Weblink"},null,"KidHaven Publishing","Library Bound Book",1,"2017","January 2017","Library","8.500 X 11.00","Author","Charlie Ogden",null,null,null,null,"P","1110L","Grade 3 - 4","Grade 3 - 5","What makes a frog an amphibian and not a reptile or a mammal? Readers discover the answer to this important question as they learn to classify animals based on common characteristics. This essential science curriculum topic is presented in an engaging way, through fun facts about amphibians and the characteristics that separate them from other animals. Eye-catching fact boxes and helpful graphic organizers, including detailed diagrams provide additional information. Readers also find vibrant photographs of amazing amphibians in their natural habitats with each turn of the page.","English",28.25,22.6,"597.8--dc23","32 pp.","https://greenhavenpublishing.com/9781534520042",null,{"$f":"Table1[[#This Row],['# of Books]]*Table1[[#This Row],[QTY]]","v":0},{"$f":"Table1[[#This Row],[QTY]]*Table1[[#This Row],[School & Library Price]]","v":0}]
[null,null,null,null,13,"Animals","Animal Classification","Amphibians","978-1-5345-2005-9",{"$f":"HYPERLINK(Table1[[#This Row],[eCommerce Hyperlink]],\"Book Weblink\")","v":"Book Weblink"},null,"KidHaven Publishing","eBook",1,"2017","January 2017",null,null,"Author","Charlie Ogden",null,null,null,null,"P","1110L","Grade 3 - 4","Grade 3 - 5","What makes a frog an amphibian and not a reptile or a mammal? Readers discover the answer to this important question as they learn to classify animals based on common characteristics. This essential science curriculum topic is presented in an engaging way, through fun facts about amphibians and the characteristics that separate them from other animals. Eye-catching fact boxes and helpful graphic organizers, including detailed diagrams provide additional information. Readers also find vibrant photographs of amazing amphibians in their natural habitats with each turn of the page.","English",28.25,22.6,"597.8--dc23","32 pp.","https://greenhavenpublishing.com/9781534520059",null,{"$f":"Table1[[#This Row],['# of Books]]*Table1[[#This Row],[QTY]]","v":0},{"$f":"Table1[[#This Row],[QTY]]*Table1[[#This Row],[School & Library Price]]","v":0}]
[null,null,null,null,13,"Animals","Animal Classification","Birds","978-1-5345-2007-3",{"$f":"HYPERLINK(Table1[[#This Row],[eCommerce Hyperlink]],\"Book Weblink\")","v":"Book Weblink"},null,"KidHaven Publishing","Library Bound Book",1,"2017","January 2017","Library","8.500 X 11.00","Author","Charlie Ogden",null,null,null,null,"P","970L","Grade 3 - 4","Grade 3 - 5","Some of the most unique animals on the planet are classified as birds. As readers explore this amazing animal group, they discover fun facts about a wide variety of birds. They also learn the essential scientific skill of classifying animals by common characteristics. Important information is presented to readers through engaging text, fact boxes, and detailed graphic organizers such as diagrams. Colorful photographs of familiar and exotic birds seem to fly off the page, creating a memorable learning experience that enhances common science curriculum topics.","English",28.25,22.6,"598--dc23","32 pp.","https://greenhavenpublishing.com/9781534520073",null,{"$f":"Table1[[#This Row],['# of Books]]*Table1[[#This Row],[QTY]]","v":0},{"$f":"Table1[[#This Row],[QTY]]*Table1[[#This Row],[School & Library Price]]","v":0}]
[null,null,null,null,13,"Animals","Animal Classification","Birds","978-1-5345-2008-0",{"$f":"HYPERLINK(Table1[[#This Row],[eCommerce Hyperlink]],\"Book Weblink\")","v":"Book Weblink"},null,"KidHaven Publishing","eBook",1,"2017","January 2017",null,null,"Author","Charlie Ogden",null,null,null,null,"P","970L","Grade 3 - 4","Grade 3 - 5","Some of the most unique animals on the planet are classified as birds. As readers explore this amazing animal group, they discover fun facts about a wide variety of birds. They also learn the essential scientific skill of classifying animals by common characteristics. Important information is presented to readers through engaging text, fact boxes, and detailed graphic organizers such as diagrams. Colorful photographs of familiar and exotic birds seem to fly off the page, creating a memorable learning experience that enhances common science curriculum topics.","English",28.25,22.6,"598--dc23","32 pp.","https://greenhavenpublishing.com/9781534520080",null,{"$f":"Table1[[#This Row],['# of Books]]*Table1[[#This Row],[QTY]]","v":0},{"$f":"Table1[[#This Row],[QTY]]*Table1[[#This Row],[School & Library Price]]","v":0}]
[null,null,null,null,13,"Animals","Animal Classification","Fish","978-1-5345-2011-0",{"$f":"HYPERLINK(Table1[[#This Row],[eCommerce Hyperlink]],\"Book Weblink\")","v":"Book Weblink"},null,"KidHaven Publishing","Library Bound Book",1,"2017","January 2017","Library","8.500 X 11.00","Author","Steffi Cavell-Clarke",null,null,null,null,"P","940L","Grade 3 - 4","Grade 3 - 5","Readers travel to the depths of the ocean as they learn fascinating facts about what makes fish different from other animals. As readers develop their ability to classify animals based on shared characteristics, they also learn about fish life cycles, habitats, and other common science curriculum topics. Fact boxes filled with exciting information and detailed diagrams and other graphic organizers present readers with additional information about these cool creatures. Vivid photographs give readers an up-close view of some of the world’s most interesting fish species, creating a reading experience they won’t soon forget!","English",28.25,22.6,"597","32 pp.","https://greenhavenpublishing.com/9781534520110",null,{"$f":"Table1[[#This Row],['# of Books]]*Table1[[#This Row],[QTY]]","v":0},{"$f":"Table1[[#This Row],[QTY]]*Table1[[#This Row],[School & Library Price]]","v":0}]
[null,null,null,null,13,"Animals","Animal Classification","Fish","978-1-5345-2012-7",{"$f":"HYPERLINK(Table1[[#This Row],[eCommerce Hyperlink]],\"Book Weblink\")","v":"Book Weblink"},null,"KidHaven Publishing","eBook",1,"2017","January 2017",null,null,"Author","Steffi Cavell-Clarke",null,null,null,null,"P","940L","Grade 3 - 4","Grade 3 - 5","Readers travel to the depths of the ocean as they learn fascinating facts about what makes fish different from other animals. As readers develop their ability to classify animals based on shared characteristics, they also learn about fish life cycles, habitats, and other common science curriculum topics. Fact boxes filled with exciting information and detailed diagrams and other graphic organizers present readers with additional information about these cool creatures. Vivid photographs give readers an up-close view of some of the world’s most interesting fish species, creating a reading experience they won’t soon forget!","English",28.25,22.6,"597","32 pp.","https://greenhavenpublishing.com/9781534520127",null,{"$f":"Table1[[#This Row],['# of Books]]*Table1[[#This Row],[QTY]]","v":0},{"$f":"Table1[[#This Row],[QTY]]*Table1[[#This Row],[School & Library Price]]","v":0}]
[null,null,null,null,13,"Animals","Animal Classification","Insects","978-1-5345-2015-8",{"$f":"HYPERLINK(Table1[[#This Row],[eCommerce Hyperlink]],\"Book Weblink\")","v":"Book Weblink"},null,"KidHaven Publishing","Library Bound Book",1,"2017","January 2017","Library","8.500 X 11.00","Author","Charlie Ogden",null,null,null,null,"P","1050L","Grade 3 - 4","Grade 3 - 5","Insects can be very different, but they all have some important characteristics in common. Readers discover that these shared characteristics are what help scientists classify certain creatures as insects. As readers explore the basics of animal classification, they also discover freaky and fun facts about a variety of insects. These facts are presented alongside colorful photographs showing insects in amazing detail. Readers obtain additional insect information from helpful fact boxes, as well as clear diagrams and other graphic organizers. Focusing on these creepy and cool creatures makes learning basic science curriculum topics fun!","English",28.25,22.6,"595.4’4","32 pp.","https://greenhavenpublishing.com/9781534520158",null,{"$f":"Table1[[#This Row],['# of Books]]*Table1[[#This Row],[QTY]]","v":0},{"$f":"Table1[[#This Row],[QTY]]*Table1[[#This Row],[School & Library Price]]","v":0}]
[null,null,null,null,13,"Animals","Animal Classification","Insects","978-1-5345-2016-5",{"$f":"HYPERLINK(Table1[[#This Row],[eCommerce Hyperlink]],\"Book Weblink\")","v":"Book Weblink"},null,"KidHaven Publishing","eBook",1,"2017","January 2017",null,null,"Author","Charlie Ogden",null,null,null,null,"P","1050L","Grade 3 - 4","Grade 3 - 5","Insects can be very different, but they all have some important characteristics in common. Readers discover that these shared characteristics are what help scientists classify certain creatures as insects. As readers explore the basics of animal classification, they also discover freaky and fun facts about a variety of insects. These facts are presented alongside colorful photographs showing insects in amazing detail. Readers obtain additional insect information from helpful fact boxes, as well as clear diagrams and other graphic organizers. Focusing on these creepy and cool creatures makes learning basic science curriculum topics fun!","English",28.25,22.6,"595.4’4","32 pp.","https://greenhavenpublishing.com/9781534520165",null,{"$f":"Table1[[#This Row],['# of Books]]*Table1[[#This Row],[QTY]]","v":0},{"$f":"Table1[[#This Row],[QTY]]*Table1[[#This Row],[School & Library Price]]","v":0}]
[null,null,null,null,13,"Animals","Animal Classification","Mammals","978-1-5345-2019-6",{"$f":"HYPERLINK(Table1[[#This Row],[eCommerce Hyperlink]],\"Book Weblink\")","v":"Book Weblink"},null,"KidHaven Publishing","Library Bound Book",1,"2017","January 2017","Library","8.500 X 11.00","Author","Charlie Ogden",null,null,null,null,"P","1030L","Grade 3 - 4","Grade 3 - 5","Lions, elephants, and people may seem very different, and they are in many ways. However, they are also similar in enough ways to classify them all as mammals. Readers learn what common characteristics these and other mammals share as they develop their animal classification skills. Through accessible text, fact boxes, and detailed graphic organizers, readers discover amazing things about some of the world’s most impressive and unusual mammals. Vibrant, full-color photographs of these amazing animals add to the engaging reading experience, making common science curriculum topics feel fresh and fun for readers.","English",28.25,22.6,"599","32 pp.","https://greenhavenpublishing.com/9781534520196",null,{"$f":"Table1[[#This Row],['# of Books]]*Table1[[#This Row],[QTY]]","v":0},{"$f":"Table1[[#This Row],[QTY]]*Table1[[#This Row],[School & Library Price]]","v":0}]
[null,null,null,null,13,"Animals","Animal Classification","Mammals","978-1-5345-2020-2",{"$f":"HYPERLINK(Table1[[#This Row],[eCommerce Hyperlink]],\"Book Weblink\")","v":"Book Weblink"},null,"KidHaven Publishing","eBook",1,"2017","January 2017",null,null,"Author","Charlie Ogden",null,null,null,null,"P","1030L","Grade 3 - 4","Grade 3 - 5","Lions, elephants, and people may seem very different, and they are in many ways. However, they are also similar in enough ways to classify them all as mammals. Readers learn what common characteristics these and other mammals share as they develop their animal classification skills. Through accessible text, fact boxes, and detailed graphic organizers, readers discover amazing things about some of the world’s most impressive and unusual mammals. Vibrant, full-color photographs of these amazing animals add to the engaging reading experience, making common science curriculum topics feel fresh and fun for readers.","English",28.25,22.6,"599","32 pp.","https://greenhavenpublishing.com/9781534520202",null,{"$f":"Table1[[#This Row],['# of Books]]*Table1[[#This Row],[QTY]]","v":0},{"$f":"Table1[[#This Row],[QTY]]*Table1[[#This Row],[School & Library Price]]","v":0}]
[null,null,null,null,13,"Animals","Animal Classification","Reptiles","978-1-5345-2023-3",{"$f":"HYPERLINK(Table1[[#This Row],[eCommerce Hyperlink]],\"Book Weblink\")","v":"Book Weblink"},null,"KidHaven Publishing","Library Bound Book",1,"2017","January 2017","Library","8.500 X 11.00","Author","Steffi Cavell-Clarke",null,null,null,null,"P","1000L","Grade 3 - 4","Grade 3 - 5","Alligators, crocodiles, and lizards are all amazing animals, and they are also all reptiles. Why are these cool creatures classified as reptiles and not amphibians, fish, or birds? Readers find the answer as they learn fascinating facts about what makes reptiles unique. The engaging main text is enhanced by eye-catching fact boxes and vibrant, full-color photographs of reptiles in their natural habitats. Readers also obtain information from helpful graphic organizers, including accessible diagrams. As readers explore a variety of valuable science curriculum topics and scientific skills, they are introduced to some of the most exotic reptiles on Earth.","English",28.25,22.6,"597.9--dc23","32 pp.","https://greenhavenpublishing.com/9781534520233",null,{"$f":"Table1[[#This Row],['# of Books]]*Table1[[#This Row],[QTY]]","v":0},{"$f":"Table1[[#This Row],[QTY]]*Table1[[#This Row],[School & Library Price]]","v":0}]
[null,null,null,null,13,"Animals","Animal Classification","Reptiles","978-1-5345-2024-0",{"$f":"HYPERLINK(Table1[[#This Row],[eCommerce Hyperlink]],\"Book Weblink\")","v":"Book Weblink"},null,"KidHaven Publishing","eBook",1,"2017","January 2017",null,null,"Author","Steffi Cavell-Clarke",null,null,null,null,"P","1000L","Grade 3 - 4","Grade 3 - 5","Alligators, crocodiles, and lizards are all amazing animals, and they are also all reptiles. Why are these cool creatures classified as reptiles and not amphibians, fish, or birds? Readers find the answer as they learn fascinating facts about what makes reptiles unique. The engaging main text is enhanced by eye-catching fact boxes and vibrant, full-color photographs of reptiles in their natural habitats. Readers also obtain information from helpful graphic organizers, including accessible diagrams. As readers explore a variety of valuable science curriculum topics and scientific skills, they are introduced to some of the most exotic reptiles on Earth.","English",28.25,22.6,"597.9--dc23","32 pp.","https://greenhavenpublishing.com/9781534520240",null,{"$f":"Table1[[#This Row],['# of Books]]*Table1[[#This Row],[QTY]]","v":0},{"$f":"Table1[[#This Row],[QTY]]*Table1[[#This Row],[School & Library Price]]","v":0}]
[null,null,null,null,13,"Animals","Animal Classification","Animal Classification: Set 2","978-1-5345-3040-9",{"$f":"HYPERLINK(Table1[[#This Row],[eCommerce Hyperlink]],\"Book Weblink\")","v":"Book Weblink"},null,"KidHaven Publishing","Library Set",6,"2020","August 2019","Library","8.500 X 11.00",null,null,null,null,null,null,null,null,"Grade 3 - 4","Grade 3 - 5","Readers will learn about the diversity of the animal kingdom as they discover essential information about a wide variety of living things. Marsupials, mollusks, arachnids, crustaceans, echinoderms, and protozoa are explored in depth, giving young readers an introduction to creatures they might not be familiar with. Basic biology concepts are introduced through the age-appropriate main texts. Eager animal lovers will expand their knowledge of this fascinating topic through supplementary content, such as engaging fact boxes and detailed diagrams. Bright, full-color photographs show these amazing animals in incredible detail. Features include: Creative focus on unique creatures provides an exciting take on an essential science curriculum topic. Fun facts about obscure species encourage readers to learn more about animals beyond those that are considered the most popular, broadening their understanding of the natural world. Impressive design elements that help readers learn to get information from different visual sources, such as charts and diagrams.","English",169.5,135.6,null,"32 pp.","https://greenhavenpublishing.com/9781534530409",null,{"$f":"Table1[[#This Row],['# of Books]]*Table1[[#This Row],[QTY]]","v":0},{"$f":"Table1[[#This Row],[QTY]]*Table1[[#This Row],[School & Library Price]]","v":0}]
[null,null,null,null,13,"Animals","Animal Classification","Arachnids","978-1-5345-3029-4",{"$f":"HYPERLINK(Table1[[#This Row],[eCommerce Hyperlink]],\"Book Weblink\")","v":"Book Weblink"},null,"KidHaven Publishing","Library Bound Book",1,"2020","August 2019","Library","8.500 X 11.00","Author","Joanna Brundle",null,null,null,null,"P",null,"Grade 3 - 4","Grade 3 - 5","While some people are afraid of spiders and scorpions, others are fascinated by these cool creatures, which are both part of the arachnid family. Readers broaden their knowledge of essential early biology concepts through captivating, well-researched, and accessible main text that is also age-appropriate. They learn about the habitats, life cycles, and eating habits of the creepy crawly creatures known scientifically as arachnids. In addition to stimulating fact boxes, more information is provided in detailed graphic organizers, informational diagrams, a helpful glossary, and bright, full-color photographs.","English",28.25,22.6,"595.4'03--dc23","32 pp.","https://greenhavenpublishing.com/9781534530294",null,{"$f":"Table1[[#This Row],['# of Books]]*Table1[[#This Row],[QTY]]","v":0},{"$f":"Table1[[#This Row],[QTY]]*Table1[[#This Row],[School & Library Price]]","v":0}]
[null,null,null,null,13,"Animals","Animal Classification","Arachnids","978-1-5345-3052-2",{"$f":"HYPERLINK(Table1[[#This Row],[eCommerce Hyperlink]],\"Book Weblink\")","v":"Book Weblink"},null,"KidHaven Publishing","eBook",1,"2020","August 2019",null,null,"Author","Joanna Brundle",null,null,null,null,"P",null,"Grade 3 - 4","Grade 3 - 5","While some people are afraid of spiders and scorpions, others are fascinated by these cool creatures, which are both part of the arachnid family. Readers broaden their knowledge of essential early biology concepts through captivating, well-researched, and accessible main text that is also age-appropriate. They learn about the habitats, life cycles, and eating habits of the creepy crawly creatures known scientifically as arachnids. In addition to stimulating fact boxes, more information is provided in detailed graphic organizers, informational diagrams, a helpful glossary, and bright, full-color photographs.","English",28.25,22.6,"595.4'03--dc23","32 pp.","https://greenhavenpublishing.com/9781534530522",null,{"$f":"Table1[[#This Row],['# of Books]]*Table1[[#This Row],[QTY]]","v":0},{"$f":"Table1[[#This Row],[QTY]]*Table1[[#This Row],[School & Library Price]]","v":0}]
[null,null,null,null,13,"Animals","Animal Classification","Crustaceans","978-1-5345-3028-7",{"$f":"HYPERLINK(Table1[[#This Row],[eCommerce Hyperlink]],\"Book Weblink\")","v":"Book Weblink"},null,"KidHaven Publishing","Library Bound Book",1,"2020","August 2019","Library","8.500 X 11.00","Author","Joanna Brundle",null,null,null,null,"P",null,"Grade 3 - 4","Grade 3 - 5","There are several different types of creatures that live in the sea, including crustaceans. These amazing animals include crabs, lobsters, and shrimp. Through age-appropriate and accessible main text, readers learn about different crustacean habitats, how they reproduce, their eating habits, and life cycles. Animal lovers are presented with engaging facts that expand their knowledge of this fun biology topic. A detailed glossary, informational graphic organizers, helpful diagrams, and vibrant, full-color photographs enhance this learning experience for readers eager to learn about these fascinating creatures.","English",28.25,22.6,"595.3'03--dc23","32 pp.","https://greenhavenpublishing.com/9781534530287",null,{"$f":"Table1[[#This Row],['# of Books]]*Table1[[#This Row],[QTY]]","v":0},{"$f":"Table1[[#This Row],[QTY]]*Table1[[#This Row],[School & Library Price]]","v":0}]
[null,null,null,null,13,"Animals","Animal Classification","Crustaceans","978-1-5345-3049-2",{"$f":"HYPERLINK(Table1[[#This Row],[eCommerce Hyperlink]],\"Book Weblink\")","v":"Book Weblink"},null,"KidHaven Publishing","eBook",1,"2020","August 2019",null,null,"Author","Joanna Brundle",null,null,null,null,"P",null,"Grade 3 - 4","Grade 3 - 5","There are several different types of creatures that live in the sea, including crustaceans. These amazing animals include crabs, lobsters, and shrimp. Through age-appropriate and accessible main text, readers learn about different crustacean habitats, how they reproduce, their eating habits, and life cycles. Animal lovers are presented with engaging facts that expand their knowledge of this fun biology topic. A detailed glossary, informational graphic organizers, helpful diagrams, and vibrant, full-color photographs enhance this learning experience for readers eager to learn about these fascinating creatures.","English",28.25,22.6,"595.3'03--dc23","32 pp.","https://greenhavenpublishing.com/9781534530492",null,{"$f":"Table1[[#This Row],['# of Books]]*Table1[[#This Row],[QTY]]","v":0},{"$f":"Table1[[#This Row],[QTY]]*Table1[[#This Row],[School & Library Price]]","v":0}]
[null,null,null,null,13,"Animals","Animal Classification","Echinoderms","978-1-5345-3030-0",{"$f":"HYPERLINK(Table1[[#This Row],[eCommerce Hyperlink]],\"Book Weblink\")","v":"Book Weblink"},null,"KidHaven Publishing","Library Bound Book",1,"2020","August 2019","Library","8.500 X 11.00","Author","Joanna Brundle",null,null,null,null,"P",null,"Grade 3 - 4","Grade 3 - 5","There are many kinds of marine creatures living in the sea, many of which may be unfamiliar to young readers. This age-appropriate, accessible main text puts the focus on echinoderms, which include starfish, sea cucumbers, and sea urchins. Readers learn about the different life cycles, habitats, eating habits, and behaviors of these interesting sea creatures. Colorful and creative design elements draw readers in, giving them a detailed look at these unique organisms. Fun fact boxes, useful graphic organizers, and a detailed glossary provide additional information that supplements basic science curriculum topics.","English",28.25,22.6,"593.9--dc23","32 pp.","https://greenhavenpublishing.com/9781534530300",null,{"$f":"Table1[[#This Row],['# of Books]]*Table1[[#This Row],[QTY]]","v":0},{"$f":"Table1[[#This Row],[QTY]]*Table1[[#This Row],[School & Library Price]]","v":0}]
[null,null,null,null,13,"Animals","Animal Classification","Echinoderms","978-1-5345-3051-5",{"$f":"HYPERLINK(Table1[[#This Row],[eCommerce Hyperlink]],\"Book Weblink\")","v":"Book Weblink"},null,"KidHaven Publishing","eBook",1,"2020","August 2019",null,null,"Author","Joanna Brundle",null,null,null,null,"P",null,"Grade 3 - 4","Grade 3 - 5","There are many kinds of marine creatures living in the sea, many of which may be unfamiliar to young readers. This age-appropriate, accessible main text puts the focus on echinoderms, which include starfish, sea cucumbers, and sea urchins. Readers learn about the different life cycles, habitats, eating habits, and behaviors of these interesting sea creatures. Colorful and creative design elements draw readers in, giving them a detailed look at these unique organisms. Fun fact boxes, useful graphic organizers, and a detailed glossary provide additional information that supplements basic science curriculum topics.","English",28.25,22.6,"593.9--dc23","32 pp.","https://greenhavenpublishing.com/9781534530515",null,{"$f":"Table1[[#This Row],['# of Books]]*Table1[[#This Row],[QTY]]","v":0},{"$f":"Table1[[#This Row],[QTY]]*Table1[[#This Row],[School & Library Price]]","v":0}]
[null,null,null,null,13,"Animals","Animal Classification","Marsupials","978-1-5345-3026-3",{"$f":"HYPERLINK(Table1[[#This Row],[eCommerce Hyperlink]],\"Book Weblink\")","v":"Book Weblink"},null,"KidHaven Publishing","Library Bound Book",1,"2020","August 2019","Library","8.500 X 11.00","Author","Madeline Tyler",null,null,null,null,"P",null,"Grade 3 - 4","Grade 3 - 5","Do kangaroos really carry their babies in pouches? Do koalas really sleep in trees? The answers to these questions are included in this interesting narrative introducing readers to various kinds of marsupials, such as kangaroos, koalas, and possums. They will learn about the types of habitats these mammals live in, their life cycles, and eating habits. Stimulating fact boxes, informational diagrams, useful graphic organizers, a helpful glossary, and eye-catching, full-color photographs enhance this essential science curriculum topic. Animal lovers will thoroughly enjoy this book while also being able to use it as a valuable learning resource.","English",28.25,22.6,"599.2--dc23","32 pp.","https://greenhavenpublishing.com/9781534530263",null,{"$f":"Table1[[#This Row],['# of Books]]*Table1[[#This Row],[QTY]]","v":0},{"$f":"Table1[[#This Row],[QTY]]*Table1[[#This Row],[School & Library Price]]","v":0}]
[null,null,null,null,13,"Animals","Animal Classification","Marsupials","978-1-5345-3048-5",{"$f":"HYPERLINK(Table1[[#This Row],[eCommerce Hyperlink]],\"Book Weblink\")","v":"Book Weblink"},null,"KidHaven Publishing","eBook",1,"2020","August 2019",null,null,"Author","Madeline Tyler",null,null,null,null,"P",null,"Grade 3 - 4","Grade 3 - 5","Do kangaroos really carry their babies in pouches? Do koalas really sleep in trees? The answers to these questions are included in this interesting narrative introducing readers to various kinds of marsupials, such as kangaroos, koalas, and possums. They will learn about the types of habitats these mammals live in, their life cycles, and eating habits. Stimulating fact boxes, informational diagrams, useful graphic organizers, a helpful glossary, and eye-catching, full-color photographs enhance this essential science curriculum topic. Animal lovers will thoroughly enjoy this book while also being able to use it as a valuable learning resource.","English",28.25,22.6,"599.2--dc23","32 pp.","https://greenhavenpublishing.com/9781534530485",null,{"$f":"Table1[[#This Row],['# of Books]]*Table1[[#This Row],[QTY]]","v":0},{"$f":"Table1[[#This Row],[QTY]]*Table1[[#This Row],[School & Library Price]]","v":0}]
[null,null,null,null,13,"Animals","Animal Classification","Mollusks","978-1-5345-3027-0",{"$f":"HYPERLINK(Table1[[#This Row],[eCommerce Hyperlink]],\"Book Weblink\")","v":"Book Weblink"},null,"KidHaven Publishing","Library Bound Book",1,"2020","August 2019","Library","8.500 X 11.00","Author","Madeline Tyler",null,null,null,null,"P",null,"Grade 3 - 4","Grade 3 - 5","Readers interested in expanding their knowledge of the animal world are introduced to the different types of mollusks in this accessible and engaging text that complements science curriculum topics. Basic facts about these fascinating sea creatures, which include snails, clams, mussels, squid, and octopi, are explored as readers learn about their nutrition needs, reproductive stages, and their life cycles. Creative design elements give readers a better idea of exactly what each kind of mollusk looks like. Helpful graphic organizers and fun fact boxes also add extra insight into this subject.","English",28.25,22.6,"594.147'7--dc23","32 pp.","https://greenhavenpublishing.com/9781534530270",null,{"$f":"Table1[[#This Row],['# of Books]]*Table1[[#This Row],[QTY]]","v":0},{"$f":"Table1[[#This Row],[QTY]]*Table1[[#This Row],[School & Library Price]]","v":0}]
[null,null,null,null,13,"Animals","Animal Classification","Mollusks","978-1-5345-3050-8",{"$f":"HYPERLINK(Table1[[#This Row],[eCommerce Hyperlink]],\"Book Weblink\")","v":"Book Weblink"},null,"KidHaven Publishing","eBook",1,"2020","August 2019",null,null,"Author","Madeline Tyler",null,null,null,null,"P",null,"Grade 3 - 4","Grade 3 - 5","Readers interested in expanding their knowledge of the animal world are introduced to the different types of mollusks in this accessible and engaging text that complements science curriculum topics. Basic facts about these fascinating sea creatures, which include snails, clams, mussels, squid, and octopi, are explored as readers learn about their nutrition needs, reproductive stages, and their life cycles. Creative design elements give readers a better idea of exactly what each kind of mollusk looks like. Helpful graphic organizers and fun fact boxes also add extra insight into this subject.","English",28.25,22.6,"594.147'7--dc23","32 pp.","https://greenhavenpublishing.com/9781534530508",null,{"$f":"Table1[[#This Row],['# of Books]]*Table1[[#This Row],[QTY]]","v":0},{"$f":"Table1[[#This Row],[QTY]]*Table1[[#This Row],[School & Library Price]]","v":0}]
[null,null,null,null,13,"Animals","Animal Classification","Protozoa","978-1-5345-3031-7",{"$f":"HYPERLINK(Table1[[#This Row],[eCommerce Hyperlink]],\"Book Weblink\")","v":"Book Weblink"},null,"KidHaven Publishing","Library Bound Book",1,"2020","August 2019","Library","8.500 X 11.00","Author","Joanna Brundle",null,null,null,null,"P",null,"Grade 3 - 4","Grade 3 - 5","Many mammals, insects, and other animals are easily recognizable. However, there are other creatures that are less well known, such as protozoa, which are single-celled living things that are neither plants nor animals. These tiny organisms can only be seen by looking through a microscope. They live in various habitats and even inside animals. This age-appropriate and well-researched text simplifies this complex biology topic to make it more easily understandable for young readers. Detailed graphic organizers, informational diagrams, engaging fact boxes, and vibrant, full-color photographs enhance this essential science curriculum topic.","English",28.25,22.6,"579--dc23","32 pp.","https://greenhavenpublishing.com/9781534530317",null,{"$f":"Table1[[#This Row],['# of Books]]*Table1[[#This Row],[QTY]]","v":0},{"$f":"Table1[[#This Row],[QTY]]*Table1[[#This Row],[School & Library Price]]","v":0}]
[null,null,null,null,13,"Animals","Animal Classification","Protozoa","978-1-5345-3047-8",{"$f":"HYPERLINK(Table1[[#This Row],[eCommerce Hyperlink]],\"Book Weblink\")","v":"Book Weblink"},null,"KidHaven Publishing","eBook",1,"2020","August 2019",null,null,"Author","Joanna Brundle",null,null,null,null,"P",null,"Grade 3 - 4","Grade 3 - 5","Many mammals, insects, and other animals are easily recognizable. However, there are other creatures that are less well known, such as protozoa, which are single-celled living things that are neither plants nor animals. These tiny organisms can only be seen by looking through a microscope. They live in various habitats and even inside animals. This age-appropriate and well-researched text simplifies this complex biology topic to make it more easily understandable for young readers. Detailed graphic organizers, informational diagrams, engaging fact boxes, and vibrant, full-color photographs enhance this essential science curriculum topic.","English",28.25,22.6,"579--dc23","32 pp.","https://greenhavenpublishing.com/9781534530478",null,{"$f":"Table1[[#This Row],['# of Books]]*Table1[[#This Row],[QTY]]","v":0},{"$f":"Table1[[#This Row],[QTY]]*Table1[[#This Row],[School & Library Price]]","v":0}]
[null,null,null,null,13,"Animals","Me and My Pet","Me and My Pet","978-1-5345-3385-1",{"$f":"HYPERLINK(Table1[[#This Row],[eCommerce Hyperlink]],\"Book Weblink\")","v":"Book Weblink"},null,"KidHaven Publishing","Library Set",8,"2020","January 2020","Library","8.500 X 8.500",null,null,null,null,null,null,null,null,"Grade 2","Grade 2 - 4","Taking care of a pet is a lot of work, but it can also be a lot of fun. There are many types of pets to choose from, such as dogs, cats, fish, birds, and even snakes. As readers explore helpful guides to these animals, they also learn that having a pet is a big responsibility and commitment. They discover how to make sure their pets are getting the food and water they need, as well as plenty of fun tips for playing with their pets. Vibrant, full-color photographs of these adorable pets fill each page to delight and educate readers. Features include: Colorful and cute design engages young animal lovers. Informative texts teach readers responsibility and the value of caring for another living thing. High-interest topic and age-appropriate narratives appeal to developing readers.","English",204.8,163.84,null,"24 pp.","https://greenhavenpublishing.com/9781534533851",null,{"$f":"Table1[[#This Row],['# of Books]]*Table1[[#This Row],[QTY]]","v":0},{"$f":"Table1[[#This Row],[QTY]]*Table1[[#This Row],[School & Library Price]]","v":0}]
[null,null,null,null,13,"Animals","Me and My Pet","My Bird","978-1-5345-3331-8",{"$f":"HYPERLINK(Table1[[#This Row],[eCommerce Hyperlink]],\"Book Weblink\")","v":"Book Weblink"},null,"KidHaven Publishing","Library Bound Book",1,"2020","January 2020","Library","8.500 X 8.500","Author","William Anthony","3.6","0.5",null,null,"J",null,"Grade 2","Grade 2 - 4","There are thousands of species of birds in the world. Many of them live in the wild, but many people also keep birds as pets. Some birds kept as pets include parrots, cockatiels, finches, doves, and lovebirds. Through this accessible and age-appropriate narrative, readers learn how to take on the responsibility of being an owner of a pet bird. They discover what birds eat, how to play with them, and many other aspects of caring for a bird.","English",25.6,20.48,"636.6'8--dc23","24 pp.","https://greenhavenpublishing.com/9781534533318",null,{"$f":"Table1[[#This Row],['# of Books]]*Table1[[#This Row],[QTY]]","v":0},{"$f":"Table1[[#This Row],[QTY]]*Table1[[#This Row],[School & Library Price]]","v":0}]
[null,null,null,null,13,"Animals","Me and My Pet","My Bird","978-1-5345-3332-5",{"$f":"HYPERLINK(Table1[[#This Row],[eCommerce Hyperlink]],\"Book Weblink\")","v":"Book Weblink"},null,"KidHaven Publishing","eBook",1,"2020","January 2020",null,null,"Author","William Anthony","3.6","0.5",null,null,"J",null,"Grade 2","Grade 2 - 4","There are thousands of species of birds in the world. Many of them live in the wild, but many people also keep birds as pets. Some birds kept as pets include parrots, cockatiels, finches, doves, and lovebirds. Through this accessible and age-appropriate narrative, readers learn how to take on the responsibility of being an owner of a pet bird. They discover what birds eat, how to play with them, and many other aspects of caring for a bird.","English",25.6,20.48,"636.6'8--dc23","24 pp.","https://greenhavenpublishing.com/9781534533325",null,{"$f":"Table1[[#This Row],['# of Books]]*Table1[[#This Row],[QTY]]","v":0},{"$f":"Table1[[#This Row],[QTY]]*Table1[[#This Row],[School & Library Price]]","v":0}]
[null,null,null,null,13,"Animals","Me and My Pet","My Cat","978-1-5345-3335-6",{"$f":"HYPERLINK(Table1[[#This Row],[eCommerce Hyperlink]],\"Book Weblink\")","v":"Book Weblink"},null,"KidHaven Publishing","Library Bound Book",1,"2020","January 2020","Library","8.500 X 8.500","Author","William Anthony","3.4","0.5",null,null,"J",null,"Grade 2","Grade 2 - 4","Cats are beloved members of many people's families. Some people adopt cats when they are kittens, while others adopt them when they are older. Both young and old feline friends need love and care. This age-appropriate guide teaches readers how to take care of a cat and the level of commitment it requires. They are given tips, such as how to feed and play with their cat. In addition to the engaging main text, readers discover new vocabulary through the informative glossary and will be delighted by cute and colorful photographs of kittens and cats.","English",25.6,20.48,"636.8--dc23","24 pp.","https://greenhavenpublishing.com/9781534533356",null,{"$f":"Table1[[#This Row],['# of Books]]*Table1[[#This Row],[QTY]]","v":0},{"$f":"Table1[[#This Row],[QTY]]*Table1[[#This Row],[School & Library Price]]","v":0}]
[null,null,null,null,13,"Animals","Me and My Pet","My Cat","978-1-5345-3336-3",{"$f":"HYPERLINK(Table1[[#This Row],[eCommerce Hyperlink]],\"Book Weblink\")","v":"Book Weblink"},null,"KidHaven Publishing","eBook",1,"2020","January 2020",null,null,"Author","William Anthony","3.4","0.5",null,null,"J",null,"Grade 2","Grade 2 - 4","Cats are beloved members of many people's families. Some people adopt cats when they are kittens, while others adopt them when they are older. Both young and old feline friends need love and care. This age-appropriate guide teaches readers how to take care of a cat and the level of commitment it requires. They are given tips, such as how to feed and play with their cat. In addition to the engaging main text, readers discover new vocabulary through the informative glossary and will be delighted by cute and colorful photographs of kittens and cats.","English",25.6,20.48,"636.8--dc23","24 pp.","https://greenhavenpublishing.com/9781534533363",null,{"$f":"Table1[[#This Row],['# of Books]]*Table1[[#This Row],[QTY]]","v":0},{"$f":"Table1[[#This Row],[QTY]]*Table1[[#This Row],[School & Library Price]]","v":0}]
[null,null,null,null,13,"Animals","Me and My Pet","My Dog","978-1-5345-3339-4",{"$f":"HYPERLINK(Table1[[#This Row],[eCommerce Hyperlink]],\"Book Weblink\")","v":"Book Weblink"},null,"KidHaven Publishing","Library Bound Book",1,"2020","January 2020","Library","8.500 X 8.500","Author","William Anthony","3.4","0.5",null,null,"J",null,"Grade 2","Grade 2 - 4","Many kids own or want to own a dog. Young readers learn what it takes to care for a dog of their own in this helpful guide that presents a high-interest topic in a deeply engaging way. They are given tips on how to make sure their dog is getting enough food and water, what kinds of toys dogs like to play with, and how to make sure a dog is getting enough exercise. Adorable photographs of puppies and dogs fill each page, keeping readers engaged as they learn about developing a sense of responsibility through caring for a pet.","English",25.6,20.48,"636.7--dc23","24 pp.","https://greenhavenpublishing.com/9781534533394",null,{"$f":"Table1[[#This Row],['# of Books]]*Table1[[#This Row],[QTY]]","v":0},{"$f":"Table1[[#This Row],[QTY]]*Table1[[#This Row],[School & Library Price]]","v":0}]
[null,null,null,null,13,"Animals","Me and My Pet","My Dog","978-1-5345-3340-0",{"$f":"HYPERLINK(Table1[[#This Row],[eCommerce Hyperlink]],\"Book Weblink\")","v":"Book Weblink"},null,"KidHaven Publishing","eBook",1,"2020","January 2020",null,null,"Author","William Anthony","3.4","0.5",null,null,"J",null,"Grade 2","Grade 2 - 4","Many kids own or want to own a dog. Young readers learn what it takes to care for a dog of their own in this helpful guide that presents a high-interest topic in a deeply engaging way. They are given tips on how to make sure their dog is getting enough food and water, what kinds of toys dogs like to play with, and how to make sure a dog is getting enough exercise. Adorable photographs of puppies and dogs fill each page, keeping readers engaged as they learn about developing a sense of responsibility through caring for a pet.","English",25.6,20.48,"636.7--dc23","24 pp.","https://greenhavenpublishing.com/9781534533400",null,{"$f":"Table1[[#This Row],['# of Books]]*Table1[[#This Row],[QTY]]","v":0},{"$f":"Table1[[#This Row],[QTY]]*Table1[[#This Row],[School & Library Price]]","v":0}]
[null,null,null,null,13,"Animals","Me and My Pet","My Fish","978-1-5345-3343-1",{"$f":"HYPERLINK(Table1[[#This Row],[eCommerce Hyperlink]],\"Book Weblink\")","v":"Book Weblink"},null,"KidHaven Publishing","Library Bound Book",1,"2020","January 2020","Library","8.500 X 8.500","Author","William Anthony","3.5","0.5",null,null,"J",null,"Grade 2","Grade 2 - 4","Fish make great pets, especially for children with allergies to fur and dander. Goldfish, guppies, mollies, zebrafish, and other kinds of fish are found in homes around the world. How do you take care of a pet fish? Readers discover the answer as they learn how to feed their fish and clean their fishbowls or tanks. In addition to the informative narrative, a glossary helps readers develop strong vocabulary skills. This exciting topic is enhanced through the inclusion of stunning, full-color photographs of fish on every page.","English",25.6,20.48,"636--dc23","24 pp.","https://greenhavenpublishing.com/9781534533431",null,{"$f":"Table1[[#This Row],['# of Books]]*Table1[[#This Row],[QTY]]","v":0},{"$f":"Table1[[#This Row],[QTY]]*Table1[[#This Row],[School & Library Price]]","v":0}]
[null,null,null,null,13,"Animals","Me and My Pet","My Fish","978-1-5345-3344-8",{"$f":"HYPERLINK(Table1[[#This Row],[eCommerce Hyperlink]],\"Book Weblink\")","v":"Book Weblink"},null,"KidHaven Publishing","eBook",1,"2020","January 2020",null,null,"Author","William Anthony","3.5","0.5",null,null,"J",null,"Grade 2","Grade 2 - 4","Fish make great pets, especially for children with allergies to fur and dander. Goldfish, guppies, mollies, zebrafish, and other kinds of fish are found in homes around the world. How do you take care of a pet fish? Readers discover the answer as they learn how to feed their fish and clean their fishbowls or tanks. In addition to the informative narrative, a glossary helps readers develop strong vocabulary skills. This exciting topic is enhanced through the inclusion of stunning, full-color photographs of fish on every page.","English",25.6,20.48,"636--dc23","24 pp.","https://greenhavenpublishing.com/9781534533448",null,{"$f":"Table1[[#This Row],['# of Books]]*Table1[[#This Row],[QTY]]","v":0},{"$f":"Table1[[#This Row],[QTY]]*Table1[[#This Row],[School & Library Price]]","v":0}]
[null,null,null,null,13,"Animals","Me and My Pet","My Guinea Pig","978-1-5345-3347-9",{"$f":"HYPERLINK(Table1[[#This Row],[eCommerce Hyperlink]],\"Book Weblink\")","v":"Book Weblink"},null,"KidHaven Publishing","Library Bound Book",1,"2020","January 2020","Library","8.500 X 8.500","Author","William Anthony","3.8","0.5",null,null,"J",null,"Grade 2","Grade 2 - 4","Readers learn fun facts about these adorable animals as they explore this accessible and age-appropriate guide to caring for guinea pigs. They learn what kind of food they like to eat, how to feed them, how to clean their cage, and other useful information. Additional features include vibrant, full-color photographs of these animals and a helpful glossary of new words for readers to discover. As readers deepen their understanding of what it means to be a responsible pet owner, they also enhance their knowledge of animals.","English",25.6,20.48,"636.935'92--dc23","24 pp.","https://greenhavenpublishing.com/9781534533479",null,{"$f":"Table1[[#This Row],['# of Books]]*Table1[[#This Row],[QTY]]","v":0},{"$f":"Table1[[#This Row],[QTY]]*Table1[[#This Row],[School & Library Price]]","v":0}]
[null,null,null,null,13,"Animals","Me and My Pet","My Guinea Pig","978-1-5345-3348-6",{"$f":"HYPERLINK(Table1[[#This Row],[eCommerce Hyperlink]],\"Book Weblink\")","v":"Book Weblink"},null,"KidHaven Publishing","eBook",1,"2020","January 2020",null,null,"Author","William Anthony","3.8","0.5",null,null,"J",null,"Grade 2","Grade 2 - 4","Readers learn fun facts about these adorable animals as they explore this accessible and age-appropriate guide to caring for guinea pigs. They learn what kind of food they like to eat, how to feed them, how to clean their cage, and other useful information. Additional features include vibrant, full-color photographs of these animals and a helpful glossary of new words for readers to discover. As readers deepen their understanding of what it means to be a responsible pet owner, they also enhance their knowledge of animals.","English",25.6,20.48,"636.935'92--dc23","24 pp.","https://greenhavenpublishing.com/9781534533486",null,{"$f":"Table1[[#This Row],['# of Books]]*Table1[[#This Row],[QTY]]","v":0},{"$f":"Table1[[#This Row],[QTY]]*Table1[[#This Row],[School & Library Price]]","v":0}]
[null,null,null,null,13,"Animals","Me and My Pet","My Hamster","978-1-5345-3351-6",{"$f":"HYPERLINK(Table1[[#This Row],[eCommerce Hyperlink]],\"Book Weblink\")","v":"Book Weblink"},null,"KidHaven Publishing","Library Bound Book",1,"2020","January 2020","Library","8.500 X 8.500","Author","William Anthony","4","0.5",null,null,"J",null,"Grade 2","Grade 2 - 4","Taking care of a hamster is a big responsibility, but it can also be a lot of fun. Young readers learn about the hard work that goes into taking care of a pet. They receive age-appropriate tips on how to feed their hamster and clean its cage, among other important jobs they can do themselves. In addition, a helpful glossary builds young readers' vocabulary skills, and bright, full-color photographs of these cute creatures will appeal to young animal lovers.","English",25.6,20.48,"636.935'6--dc23","24 pp.","https://greenhavenpublishing.com/9781534533516",null,{"$f":"Table1[[#This Row],['# of Books]]*Table1[[#This Row],[QTY]]","v":0},{"$f":"Table1[[#This Row],[QTY]]*Table1[[#This Row],[School & Library Price]]","v":0}]
[null,null,null,null,13,"Animals","Me and My Pet","My Hamster","978-1-5345-3352-3",{"$f":"HYPERLINK(Table1[[#This Row],[eCommerce Hyperlink]],\"Book Weblink\")","v":"Book Weblink"},null,"KidHaven Publishing","eBook",1,"2020","January 2020",null,null,"Author","William Anthony","4","0.5",null,null,"J",null,"Grade 2","Grade 2 - 4","Taking care of a hamster is a big responsibility, but it can also be a lot of fun. Young readers learn about the hard work that goes into taking care of a pet. They receive age-appropriate tips on how to feed their hamster and clean its cage, among other important jobs they can do themselves. In addition, a helpful glossary builds young readers' vocabulary skills, and bright, full-color photographs of these cute creatures will appeal to young animal lovers.","English",25.6,20.48,"636.935'6--dc23","24 pp.","https://greenhavenpublishing.com/9781534533523",null,{"$f":"Table1[[#This Row],['# of Books]]*Table1[[#This Row],[QTY]]","v":0},{"$f":"Table1[[#This Row],[QTY]]*Table1[[#This Row],[School & Library Price]]","v":0}]
[null,null,null,null,13,"Animals","Me and My Pet","My Rabbit","978-1-5345-3355-4",{"$f":"HYPERLINK(Table1[[#This Row],[eCommerce Hyperlink]],\"Book Weblink\")","v":"Book Weblink"},null,"KidHaven Publishing","Library Bound Book",1,"2020","January 2020","Library","8.500 X 8.500","Author","William Anthony","3.7","0.5",null,null,"J",null,"Grade 2","Grade 2 - 4","Many people have rabbits as pets. These cute animals make great companions, but having a rabbit for a pet is a big responsibility. With this accessible and age-appropriate guide to pet care, young readers learn tips on how to take care of a rabbit. They discover how much food and water to give their rabbit and how to clean its living space. A helpful glossary gives readers the tools to strengthen their vocabulary skills as they explore this high-interest topic. Full-color photographs of these furry friends appeal to developing readers, encouraging exploration of the text.","English",25.6,20.48,"636.9'322--dc23","24 pp.","https://greenhavenpublishing.com/9781534533554",null,{"$f":"Table1[[#This Row],['# of Books]]*Table1[[#This Row],[QTY]]","v":0},{"$f":"Table1[[#This Row],[QTY]]*Table1[[#This Row],[School & Library Price]]","v":0}]
[null,null,null,null,13,"Animals","Me and My Pet","My Rabbit","978-1-5345-3356-1",{"$f":"HYPERLINK(Table1[[#This Row],[eCommerce Hyperlink]],\"Book Weblink\")","v":"Book Weblink"},null,"KidHaven Publishing","eBook",1,"2020","January 2020",null,null,"Author","William Anthony","3.7","0.5",null,null,"J",null,"Grade 2","Grade 2 - 4","Many people have rabbits as pets. These cute animals make great companions, but having a rabbit for a pet is a big responsibility. With this accessible and age-appropriate guide to pet care, young readers learn tips on how to take care of a rabbit. They discover how much food and water to give their rabbit and how to clean its living space. A helpful glossary gives readers the tools to strengthen their vocabulary skills as they explore this high-interest topic. Full-color photographs of these furry friends appeal to developing readers, encouraging exploration of the text.","English",25.6,20.48,"636.9'322--dc23","24 pp.","https://greenhavenpublishing.com/9781534533561",null,{"$f":"Table1[[#This Row],['# of Books]]*Table1[[#This Row],[QTY]]","v":0},{"$f":"Table1[[#This Row],[QTY]]*Table1[[#This Row],[School & Library Price]]","v":0}]
[null,null,null,null,13,"Animals","Me and My Pet","My Snake","978-1-5345-3359-2",{"$f":"HYPERLINK(Table1[[#This Row],[eCommerce Hyperlink]],\"Book Weblink\")","v":"Book Weblink"},null,"KidHaven Publishing","Library Bound Book",1,"2020","January 2020","Library","8.500 X 8.500","Author","William Anthony","3.8","0.5",null,null,"J",null,"Grade 2","Grade 2 - 4","Some people are afraid of snakes, but other people fondly adore them as pets. Young readers learn about the food, water, living space, and other things pet snakes need to be healthy and happy. Having a snake as a pet may seem intimidating, but this helpful narrative prepares readers by showing them how to safely own a pet snake. Readers who already have a pet snake will find the examples and captivating, full-color photographs fun and relatable.","English",25.6,20.48,"636--dc23","24 pp.","https://greenhavenpublishing.com/9781534533592",null,{"$f":"Table1[[#This Row],['# of Books]]*Table1[[#This Row],[QTY]]","v":0},{"$f":"Table1[[#This Row],[QTY]]*Table1[[#This Row],[School & Library Price]]","v":0}]
[null,null,null,null,13,"Animals","Me and My Pet","My Snake","978-1-5345-3360-8",{"$f":"HYPERLINK(Table1[[#This Row],[eCommerce Hyperlink]],\"Book Weblink\")","v":"Book Weblink"},null,"KidHaven Publishing","eBook",1,"2020","January 2020",null,null,"Author","William Anthony","3.8","0.5",null,null,"J",null,"Grade 2","Grade 2 - 4","Some people are afraid of snakes, but other people fondly adore them as pets. Young readers learn about the food, water, living space, and other things pet snakes need to be healthy and happy. Having a snake as a pet may seem intimidating, but this helpful narrative prepares readers by showing them how to safely own a pet snake. Readers who already have a pet snake will find the examples and captivating, full-color photographs fun and relatable.","English",25.6,20.48,"636--dc23","24 pp.","https://greenhavenpublishing.com/9781534533608",null,{"$f":"Table1[[#This Row],['# of Books]]*Table1[[#This Row],[QTY]]","v":0},{"$f":"Table1[[#This Row],[QTY]]*Table1[[#This Row],[School & Library Price]]","v":0}]
[null,null,null,null,13,"Animals","Teeth to Tail","Teeth to Tail","978-1-5345-3393-6",{"$f":"HYPERLINK(Table1[[#This Row],[eCommerce Hyperlink]],\"Book Weblink\")","v":"Book Weblink"},null,"KidHaven Publishing","Library Set",4,"2020","January 2020","Library","8.500 X 8.500",null,null,null,null,null,null,null,null,"Grade 2","Grade 2 - 5","Sharks are some of the most fascinating fish in the ocean. Some people are afraid of these creatures, but readers learn about a variety of sharks, such as great white sharks, hammerhead sharks, tiger sharks, and whale sharks, putting the focus on facts rather than fear. Stimulating narratives are paired with engaging fact boxes, helpful glossaries, and eye-catching, full-color photographs that make it appear as if these sharks are swimming off of the page. Readers will thoroughly enjoy this introduction to the exciting world of sharks. Features include: Essential science curriculum topics, such as animal habitats and adaptations, are presented in a creative way. Clean and accessible design appeals to young animal lovers and budding marine biologists. Subject encourages a deeper appreciation for marine life and a stronger understanding of biodiversity.","English",102.4,81.92,null,"24 pp.","https://greenhavenpublishing.com/9781534533936",null,{"$f":"Table1[[#This Row],['# of Books]]*Table1[[#This Row],[QTY]]","v":0},{"$f":"Table1[[#This Row],[QTY]]*Table1[[#This Row],[School & Library Price]]","v":0}]
[null,null,null,null,13,"Animals","Teeth to Tail","Great White Shark","978-1-5345-3299-1",{"$f":"HYPERLINK(Table1[[#This Row],[eCommerce Hyperlink]],\"Book Weblink\")","v":"Book Weblink"},null,"KidHaven Publishing","Library Bound Book",1,"2020","January 2020","Library","8.500 X 8.500","Author","Robin Twiddy","4.7","0.5",null,null,"K",null,"Grade 2","Grade 2 - 5","Great white sharks are some of the most captivating creatures of the sea. These sharks can be scary, but this engaging book helps young readers focus on fun facts rather than fears. While young readers gain a deeper appreciation for marine life and a stronger understanding of science concepts, they also discover vibrant, full-color photographs of these impressive sharks. Informative fact boxes help them gain additional insight. It is not a good idea to get too close to a great white shark, but this exciting reading experience provides a safe, up-close look that animal lovers are sure to enjoy.","English",25.6,20.48,"597.3'3--dc23","24 pp.","https://greenhavenpublishing.com/9781534532991",null,{"$f":"Table1[[#This Row],['# of Books]]*Table1[[#This Row],[QTY]]","v":0},{"$f":"Table1[[#This Row],[QTY]]*Table1[[#This Row],[School & Library Price]]","v":0}]
[null,null,null,null,13,"Animals","Teeth to Tail","Great White Shark","978-1-5345-3300-4",{"$f":"HYPERLINK(Table1[[#This Row],[eCommerce Hyperlink]],\"Book Weblink\")","v":"Book Weblink"},null,"KidHaven Publishing","eBook",1,"2020","January 2020",null,null,"Author","Robin Twiddy","4.7","0.5",null,null,"K",null,"Grade 2","Grade 2 - 5","Great white sharks are some of the most captivating creatures of the sea. These sharks can be scary, but this engaging book helps young readers focus on fun facts rather than fears. While young readers gain a deeper appreciation for marine life and a stronger understanding of science concepts, they also discover vibrant, full-color photographs of these impressive sharks. Informative fact boxes help them gain additional insight. It is not a good idea to get too close to a great white shark, but this exciting reading experience provides a safe, up-close look that animal lovers are sure to enjoy.","English",25.6,20.48,"597.3'3--dc23","24 pp.","https://greenhavenpublishing.com/9781534533004",null,{"$f":"Table1[[#This Row],['# of Books]]*Table1[[#This Row],[QTY]]","v":0},{"$f":"Table1[[#This Row],[QTY]]*Table1[[#This Row],[School & Library Price]]","v":0}]
[null,null,null,null,13,"Animals","Teeth to Tail","Hammerhead Shark","978-1-5345-3303-5",{"$f":"HYPERLINK(Table1[[#This Row],[eCommerce Hyperlink]],\"Book Weblink\")","v":"Book Weblink"},null,"KidHaven Publishing","Library Bound Book",1,"2020","January 2020","Library","8.500 X 8.500","Author","Robin Twiddy","4.9","0.5",null,null,"K",null,"Grade 2","Grade 2 - 5","Have you ever wondered why hammerhead sharks have such unique heads? Readers discover the answer as they dive into this engaging text, which is filled with intriguing facts that will stimulate the minds of young animal lovers and budding marine biologists. They gain deeper insight on essential science curriculum topics and are encouraged to learn more about marine life. Fact boxes and bright, full-color photographs enhance their reading experience and provide a detailed look at one of the coolest creatures in the sea.","English",25.6,20.48,"597.3'3--dc23","24 pp.","https://greenhavenpublishing.com/9781534533035",null,{"$f":"Table1[[#This Row],['# of Books]]*Table1[[#This Row],[QTY]]","v":0},{"$f":"Table1[[#This Row],[QTY]]*Table1[[#This Row],[School & Library Price]]","v":0}]
[null,null,null,null,13,"Animals","Teeth to Tail","Hammerhead Shark","978-1-5345-3304-2",{"$f":"HYPERLINK(Table1[[#This Row],[eCommerce Hyperlink]],\"Book Weblink\")","v":"Book Weblink"},null,"KidHaven Publishing","eBook",1,"2020","January 2020",null,null,"Author","Robin Twiddy","4.9","0.5",null,null,"K",null,"Grade 2","Grade 2 - 5","Have you ever wondered why hammerhead sharks have such unique heads? Readers discover the answer as they dive into this engaging text, which is filled with intriguing facts that will stimulate the minds of young animal lovers and budding marine biologists. They gain deeper insight on essential science curriculum topics and are encouraged to learn more about marine life. Fact boxes and bright, full-color photographs enhance their reading experience and provide a detailed look at one of the coolest creatures in the sea.","English",25.6,20.48,"597.3'3--dc23","24 pp.","https://greenhavenpublishing.com/9781534533042",null,{"$f":"Table1[[#This Row],['# of Books]]*Table1[[#This Row],[QTY]]","v":0},{"$f":"Table1[[#This Row],[QTY]]*Table1[[#This Row],[School & Library Price]]","v":0}]
[null,null,null,null,13,"Animals","Teeth to Tail","Tiger Shark","978-1-5345-3307-3",{"$f":"HYPERLINK(Table1[[#This Row],[eCommerce Hyperlink]],\"Book Weblink\")","v":"Book Weblink"},null,"KidHaven Publishing","Library Bound Book",1,"2020","January 2020","Library","8.500 X 8.500","Author","Robin Twiddy","4.9","0.5",null,null,"K",null,"Grade 2","Grade 2 - 5","There are many different types of sharks that live in the ocean, one of which is the tiger shark. These sharks get their name from their tiger-like, dark stripes on their bodies. Young readers will learn about the habitats and adaptations of these sea creatures through exploring an accessible and fact-filled narrative. Fact boxes are included to help them gain a better understanding of how tiger sharks live and how their lives connect to beginner biology concepts. Eye-catching, full-color photographs of these amazing animals fill the pages, creating a unique learning experience animal lovers won't soon forget.","English",25.6,20.48,"597.3'3--dc23","24 pp.","https://greenhavenpublishing.com/9781534533073",null,{"$f":"Table1[[#This Row],['# of Books]]*Table1[[#This Row],[QTY]]","v":0},{"$f":"Table1[[#This Row],[QTY]]*Table1[[#This Row],[School & Library Price]]","v":0}]
[null,null,null,null,13,"Animals","Teeth to Tail","Tiger Shark","978-1-5345-3308-0",{"$f":"HYPERLINK(Table1[[#This Row],[eCommerce Hyperlink]],\"Book Weblink\")","v":"Book Weblink"},null,"KidHaven Publishing","eBook",1,"2020","January 2020",null,null,"Author","Robin Twiddy","4.9","0.5",null,null,"K",null,"Grade 2","Grade 2 - 5","There are many different types of sharks that live in the ocean, one of which is the tiger shark. These sharks get their name from their tiger-like, dark stripes on their bodies. Young readers will learn about the habitats and adaptations of these sea creatures through exploring an accessible and fact-filled narrative. Fact boxes are included to help them gain a better understanding of how tiger sharks live and how their lives connect to beginner biology concepts. Eye-catching, full-color photographs of these amazing animals fill the pages, creating a unique learning experience animal lovers won't soon forget.","English",25.6,20.48,"597.3'3--dc23","24 pp.","https://greenhavenpublishing.com/9781534533080",null,{"$f":"Table1[[#This Row],['# of Books]]*Table1[[#This Row],[QTY]]","v":0},{"$f":"Table1[[#This Row],[QTY]]*Table1[[#This Row],[School & Library Price]]","v":0}]
[null,null,null,null,13,"Animals","Teeth to Tail","Whale Shark","978-1-5345-3311-0",{"$f":"HYPERLINK(Table1[[#This Row],[eCommerce Hyperlink]],\"Book Weblink\")","v":"Book Weblink"},null,"KidHaven Publishing","Library Bound Book",1,"2020","January 2020","Library","8.500 X 8.500","Author","Robin Twiddy","4.5","0.5",null,null,"K",null,"Grade 2","Grade 2 - 5","Some people are afraid of sharks because of their big sharp teeth. Whale sharks, which are the largest known fish on the planet, do not use their teeth to eat. Instead, they are filter-feeders who feed on plankton. Young readers will discover this and other interesting facts through exploring a detailed narrative and fun fact boxes. This exciting learning experience enhances readers' knowledge of essential science curriculum topics, such as adaptations and marine ecosystems. Creative design elements that excite readers include full-color photographs of massive whale sharks in their natural habitats.","English",25.6,20.48,"597.3'3--dc23","24 pp.","https://greenhavenpublishing.com/9781534533110",null,{"$f":"Table1[[#This Row],['# of Books]]*Table1[[#This Row],[QTY]]","v":0},{"$f":"Table1[[#This Row],[QTY]]*Table1[[#This Row],[School & Library Price]]","v":0}]
[null,null,null,null,13,"Animals","Teeth to Tail","Whale Shark","978-1-5345-3312-7",{"$f":"HYPERLINK(Table1[[#This Row],[eCommerce Hyperlink]],\"Book Weblink\")","v":"Book Weblink"},null,"KidHaven Publishing","eBook",1,"2020","January 2020",null,null,"Author","Robin Twiddy","4.5","0.5",null,null,"K",null,"Grade 2","Grade 2 - 5","Some people are afraid of sharks because of their big sharp teeth. Whale sharks, which are the largest known fish on the planet, do not use their teeth to eat. Instead, they are filter-feeders who feed on plankton. Young readers will discover this and other interesting facts through exploring a detailed narrative and fun fact boxes. This exciting learning experience enhances readers' knowledge of essential science curriculum topics, such as adaptations and marine ecosystems. Creative design elements that excite readers include full-color photographs of massive whale sharks in their natural habitats.","English",25.6,20.48,"597.3'3--dc23","24 pp.","https://greenhavenpublishing.com/9781534533127",null,{"$f":"Table1[[#This Row],['# of Books]]*Table1[[#This Row],[QTY]]","v":0},{"$f":"Table1[[#This Row],[QTY]]*Table1[[#This Row],[School & Library Price]]","v":0}]
[null,null,null,null,13,"Animals","Tiny Things, Big Impacts","Tiny Things, Big Impacts","978-1-5345-3397-4",{"$f":"HYPERLINK(Table1[[#This Row],[eCommerce Hyperlink]],\"Book Weblink\")","v":"Book Weblink"},null,"KidHaven Publishing","Library Set",4,"2020","January 2020","Library","8.500 X 11.00",null,null,null,null,null,null,null,null,"Grade 3 - 4","Grade 3 - 5","Sometimes the smallest organisms can have the biggest impact on their surroundings. Readers discover this by looking into the lives of bees, plankton, spiders, and worms. While they may be tiny, these organisms play valuable roles in their environments. The main texts present this basic science curriculum topic in a way that is easily understandable and engaging for readers. Fun fact boxes, detailed glossaries, and vibrant, full-color photographs draw readers into this fascinating topic. Readers are sure to enjoy getting an up-close look at some of the world's smallest living things. Features include: Carefully chosen topics encourage young readers to broaden their understanding of biodiversity. Creative design elements appeal to visual learners. Age-appropriate narratives help young readers see the value in creatures they may have previously thought of as gross or scary, such as bees and spiders.","English",113,90.4,null,"32 pp.","https://greenhavenpublishing.com/9781534533974",null,{"$f":"Table1[[#This Row],['# of Books]]*Table1[[#This Row],[QTY]]","v":0},{"$f":"Table1[[#This Row],[QTY]]*Table1[[#This Row],[School & Library Price]]","v":0}]
[null,null,null,null,13,"Animals","Tiny Things, Big Impacts","Bees","978-1-5345-3283-0",{"$f":"HYPERLINK(Table1[[#This Row],[eCommerce Hyperlink]],\"Book Weblink\")","v":"Book Weblink"},null,"KidHaven Publishing","Library Bound Book",1,"2020","January 2020","Library","8.500 X 11.00","Author","John Wood","4.9","0.5",null,null,"O",null,"Grade 3 - 4","Grade 3 - 5","Some people are afraid of bees, but bees are actually very important parts of ecosystems around the world. Readers learn about these small, buzzing insects and their valuable roles in the environments around them with this stimulating science guide. The accessible narrative discusses basic science curriculum topics and encourages an appreciation for all living things. Readers gain extra insight into this fascinating subject through fun fact boxes and vibrant, full-color photographs that make the bees appear as if they are buzzing off each page!","English",28.25,22.6,"595.79'9--dc23","32 pp.","https://greenhavenpublishing.com/9781534532830",null,{"$f":"Table1[[#This Row],['# of Books]]*Table1[[#This Row],[QTY]]","v":0},{"$f":"Table1[[#This Row],[QTY]]*Table1[[#This Row],[School & Library Price]]","v":0}]
[null,null,null,null,13,"Animals","Tiny Things, Big Impacts","Bees","978-1-5345-3284-7",{"$f":"HYPERLINK(Table1[[#This Row],[eCommerce Hyperlink]],\"Book Weblink\")","v":"Book Weblink"},null,"KidHaven Publishing","eBook",1,"2020","January 2020",null,null,"Author","John Wood","4.9","0.5",null,null,"O",null,"Grade 3 - 4","Grade 3 - 5","Some people are afraid of bees, but bees are actually very important parts of ecosystems around the world. Readers learn about these small, buzzing insects and their valuable roles in the environments around them with this stimulating science guide. The accessible narrative discusses basic science curriculum topics and encourages an appreciation for all living things. Readers gain extra insight into this fascinating subject through fun fact boxes and vibrant, full-color photographs that make the bees appear as if they are buzzing off each page!","English",28.25,22.6,"595.79'9--dc23","32 pp.","https://greenhavenpublishing.com/9781534532847",null,{"$f":"Table1[[#This Row],['# of Books]]*Table1[[#This Row],[QTY]]","v":0},{"$f":"Table1[[#This Row],[QTY]]*Table1[[#This Row],[School & Library Price]]","v":0}]
[null,null,null,null,13,"Animals","Tiny Things, Big Impacts","Plankton","978-1-5345-3287-8",{"$f":"HYPERLINK(Table1[[#This Row],[eCommerce Hyperlink]],\"Book Weblink\")","v":"Book Weblink"},null,"KidHaven Publishing","Library Bound Book",1,"2020","January 2020","Library","8.500 X 11.00","Author","John Wood","5.4","0.5",null,null,"O",null,"Grade 3 - 4","Grade 3 - 5","Plankton are microscopic organisms living in large bodies of water. They are a major food source for several kinds of sea creatures, and although they are tiny, they have a major impact on many other living things. Accessible explanations of marine life, food chains, and other essential science curriculum topics enhance readers' knowledge of the natural world and the part every living thing plays in it. Additional features, such as fact boxes and full-color photographs deepen readers' understanding of these tiny yet hugely important creatures.","English",28.25,22.6,"578.76--dc23","32 pp.","https://greenhavenpublishing.com/9781534532878",null,{"$f":"Table1[[#This Row],['# of Books]]*Table1[[#This Row],[QTY]]","v":0},{"$f":"Table1[[#This Row],[QTY]]*Table1[[#This Row],[School & Library Price]]","v":0}]
[null,null,null,null,13,"Animals","Tiny Things, Big Impacts","Plankton","978-1-5345-3288-5",{"$f":"HYPERLINK(Table1[[#This Row],[eCommerce Hyperlink]],\"Book Weblink\")","v":"Book Weblink"},null,"KidHaven Publishing","eBook",1,"2020","January 2020",null,null,"Author","John Wood","5.4","0.5",null,null,"O",null,"Grade 3 - 4","Grade 3 - 5","Plankton are microscopic organisms living in large bodies of water. They are a major food source for several kinds of sea creatures, and although they are tiny, they have a major impact on many other living things. Accessible explanations of marine life, food chains, and other essential science curriculum topics enhance readers' knowledge of the natural world and the part every living thing plays in it. Additional features, such as fact boxes and full-color photographs deepen readers' understanding of these tiny yet hugely important creatures.","English",28.25,22.6,"578.76--dc23","32 pp.","https://greenhavenpublishing.com/9781534532885",null,{"$f":"Table1[[#This Row],['# of Books]]*Table1[[#This Row],[QTY]]","v":0},{"$f":"Table1[[#This Row],[QTY]]*Table1[[#This Row],[School & Library Price]]","v":0}]
[null,null,null,null,13,"Animals","Tiny Things, Big Impacts","Spiders","978-1-5345-3291-5",{"$f":"HYPERLINK(Table1[[#This Row],[eCommerce Hyperlink]],\"Book Weblink\")","v":"Book Weblink"},null,"KidHaven Publishing","Library Bound Book",1,"2020","January 2020","Library","8.500 X 11.00","Author","John Wood","5.2","0.5",null,null,"O",null,"Grade 3 - 4","Grade 3 - 5","When you see a spider, does it scare you? Many people are afraid of spiders, but what they may not know is how valuable spiders are to the environment. These tiny creatures are important because they eat many other insects that can be harmful to humans, animals, and other crops. This engaging and age-appropriate text gives readers the tools to see that most spiders are helpful. Fun-filled fact boxes and striking, full-color photographs add excitement to this guide that presents basic science curriculum topics such as ecosystems and food chains.","English",28.25,22.6,"595.4'4--dc23","32 pp.","https://greenhavenpublishing.com/9781534532915",null,{"$f":"Table1[[#This Row],['# of Books]]*Table1[[#This Row],[QTY]]","v":0},{"$f":"Table1[[#This Row],[QTY]]*Table1[[#This Row],[School & Library Price]]","v":0}]
[null,null,null,null,13,"Animals","Tiny Things, Big Impacts","Spiders","978-1-5345-3292-2",{"$f":"HYPERLINK(Table1[[#This Row],[eCommerce Hyperlink]],\"Book Weblink\")","v":"Book Weblink"},null,"KidHaven Publishing","eBook",1,"2020","January 2020",null,null,"Author","John Wood","5.2","0.5",null,null,"O",null,"Grade 3 - 4","Grade 3 - 5","When you see a spider, does it scare you? Many people are afraid of spiders, but what they may not know is how valuable spiders are to the environment. These tiny creatures are important because they eat many other insects that can be harmful to humans, animals, and other crops. This engaging and age-appropriate text gives readers the tools to see that most spiders are helpful. Fun-filled fact boxes and striking, full-color photographs add excitement to this guide that presents basic science curriculum topics such as ecosystems and food chains.","English",28.25,22.6,"595.4'4--dc23","32 pp.","https://greenhavenpublishing.com/9781534532922",null,{"$f":"Table1[[#This Row],['# of Books]]*Table1[[#This Row],[QTY]]","v":0},{"$f":"Table1[[#This Row],[QTY]]*Table1[[#This Row],[School & Library Price]]","v":0}]
[null,null,null,null,13,"Animals","Tiny Things, Big Impacts","Worms","978-1-5345-3295-3",{"$f":"HYPERLINK(Table1[[#This Row],[eCommerce Hyperlink]],\"Book Weblink\")","v":"Book Weblink"},null,"KidHaven Publishing","Library Bound Book",1,"2020","January 2020","Library","8.500 X 11.00","Author","John Wood","5.2","0.5",null,null,"O",null,"Grade 3 - 4","Grade 3 - 5","Worms are small organisms that have a valuable role in their surrounding environments. Readers learn about all the important ways in which worms contribute to their ecosystems, proving that no creature is too small to make a difference. Creative design elements, including eye-catching fact boxes and colorful photographs, draw readers in to the weird and wonderful world of worms. As readers explore essential science curriculum topics, such as ecosystems and food chains, they also learn fun facts about creatures they see often but most likely know little about.","English",28.25,22.6,"592'.3--dc23","32 pp.","https://greenhavenpublishing.com/9781534532953",null,{"$f":"Table1[[#This Row],['# of Books]]*Table1[[#This Row],[QTY]]","v":0},{"$f":"Table1[[#This Row],[QTY]]*Table1[[#This Row],[School & Library Price]]","v":0}]
[null,null,null,null,13,"Animals","Tiny Things, Big Impacts","Worms","978-1-5345-3296-0",{"$f":"HYPERLINK(Table1[[#This Row],[eCommerce Hyperlink]],\"Book Weblink\")","v":"Book Weblink"},null,"KidHaven Publishing","eBook",1,"2020","January 2020",null,null,"Author","John Wood","5.2","0.5",null,null,"O",null,"Grade 3 - 4","Grade 3 - 5","Worms are small organisms that have a valuable role in their surrounding environments. Readers learn about all the important ways in which worms contribute to their ecosystems, proving that no creature is too small to make a difference. Creative design elements, including eye-catching fact boxes and colorful photographs, draw readers in to the weird and wonderful world of worms. As readers explore essential science curriculum topics, such as ecosystems and food chains, they also learn fun facts about creatures they see often but most likely know little about.","English",28.25,22.6,"592'.3--dc23","32 pp.","https://greenhavenpublishing.com/9781534532960",null,{"$f":"Table1[[#This Row],['# of Books]]*Table1[[#This Row],[QTY]]","v":0},{"$f":"Table1[[#This Row],[QTY]]*Table1[[#This Row],[School & Library Price]]","v":0}]
[null,null,null,null,14,"Biographies","People Who Make a Difference","People Who Make a Difference: Sets 1 – 3","978-1-5345-4240-2",null,null,"KidHaven Publishing","Library Set",18,"2023","August 2022","Library","8.500 X 8.500",null,null,null,null,null,null,null,null,"Grade 3","Grade 3 - 5","Everyone has the ability to make a difference in the lives of the people around them. Readers discover this through the inspiring stories of people who use their talents and fame to make the world a better place. From the groundbreaking stories told by Lin-Manuel Miranda and the music of BTS to the leadership of Joe Biden from the White House and Megan Rapinoe on the soccer field, readers dive deep into some of today’s most prominent public figures and the ways they help others. The biographical text is paired with vibrant photographs of these famous faces.","English",460.8,368.64,null,"24 pp.","https://greenhavenpublishing.com/9781534542402",null,{"$f":"Table1[[#This Row],['# of Books]]*Table1[[#This Row],[QTY]]","v":0},{"$f":"Table1[[#This Row],[QTY]]*Table1[[#This Row],[School & Library Price]]","v":0}]
[null,null,null,11,14,"Biographies","People Who Make a Difference","People Who Make a Difference: Set 3","978-1-5345-4239-6",null,null,"KidHaven Publishing","Library Set",6,"2023","August 2022","Library","8.500 X 8.500",null,null,null,null,null,null,null,null,"Grade 3","Grade 3 - 5","Presidents, poets, and football players can all make a difference in the world around them, and readers discover exactly how in these engaging biographies of some of the world’s most famous faces. From Joe and Jill Biden and Amanda Gorman to Chris Evans, Russell Wilson, and the members of BTS, readers are introduced to a wide variety of men and women whose stories can inspire them to make a difference using their own unique talents and passions. Full-color photographs are paired with achievable text to entertain, inform, and inspire young readers.","English",153.6,122.88,null,"24 pp.","https://greenhavenpublishing.com/9781534542396",null,{"$f":"Table1[[#This Row],['# of Books]]*Table1[[#This Row],[QTY]]","v":0},{"$f":"Table1[[#This Row],[QTY]]*Table1[[#This Row],[School & Library Price]]","v":0}]
[null,null,null,11,14,"Biographies","People Who Make a Difference","Amanda Gorman: Making a Difference with Her Words","978-1-5345-4163-4",null,null,"KidHaven Publishing","Library Bound Book",1,"2023","August 2022","Library","8.500 X 8.500","Author","Katie Kawa",null,null,null,null,"N",null,"Grade 3","Grade 3 - 5","Words matter, and they can make a big difference in big moments. Amanda Gorman reminded us of this when she read her poem “The Hill We Climb” at Joe Biden’s presidential inauguration in 2021. Readers look closely at the impact of this moment, but they also come to see that Amanda has been inspiring people through her writing for many years. Quote boxes highlight some of her most powerful words, and full-color photographs and a timeline help readers trace her journey. Readers are also encouraged to see how their words can make a difference too.","English",25.6,20.48,"811/.6--dc23","24 pp.","https://greenhavenpublishing.com/9781534541634",null,{"$f":"Table1[[#This Row],['# of Books]]*Table1[[#This Row],[QTY]]","v":0},{"$f":"Table1[[#This Row],[QTY]]*Table1[[#This Row],[School & Library Price]]","v":0}]
[null,null,null,11,14,"Biographies","People Who Make a Difference","Amanda Gorman: Making a Difference with Her Words","978-1-5345-4164-1",null,null,"KidHaven Publishing","eBook",1,"2023","August 2022",null,null,"Author","Katie Kawa",null,null,null,null,"N",null,"Grade 3","Grade 3 - 5","Words matter, and they can make a big difference in big moments. Amanda Gorman reminded us of this when she read her poem “The Hill We Climb” at Joe Biden’s presidential inauguration in 2021. Readers look closely at the impact of this moment, but they also come to see that Amanda has been inspiring people through her writing for many years. Quote boxes highlight some of her most powerful words, and full-color photographs and a timeline help readers trace her journey. Readers are also encouraged to see how their words can make a difference too.","English",25.6,20.48,"811/.6--dc23","24 pp.","https://greenhavenpublishing.com/9781534541641","http://www.epointplus.com/embed/9781534541641/?login=cyberrep&password=cyberrep",{"$f":"Table1[[#This Row],['# of Books]]*Table1[[#This Row],[QTY]]","v":0},{"$f":"Table1[[#This Row],[QTY]]*Table1[[#This Row],[School & Library Price]]","v":0}]
[null,null,null,11,14,"Biographies","People Who Make a Difference","BTS: Making a Difference as a Band","978-1-5345-4167-2",null,null,"KidHaven Publishing","Library Bound Book",1,"2023","August 2022","Library","8.500 X 8.500","Author","Katie Kawa",null,null,null,null,"N",null,"Grade 3","Grade 3 - 5","How did a group from South Korea become one of the most popular—and most inspiring—bands on the planet? Readers find out as they take a deep dive into the rise of BTS—the K-pop band that’s changing the world with their message of self-love. Engaging text is paired with full-color photographs of the band’s seven members: Jin, Suga, J-Hope, RM, Jimin, V, and Jung Kook. In addition, quote boxes highlight inspiring words, and a timeline breaks down their biggest accomplishments. A list of ways readers can be like BTS encourages them to be creative and kind.","English",25.6,20.48,"782.4216/3095195--dc23","24 pp.","https://greenhavenpublishing.com/9781534541672",null,{"$f":"Table1[[#This Row],['# of Books]]*Table1[[#This Row],[QTY]]","v":0},{"$f":"Table1[[#This Row],[QTY]]*Table1[[#This Row],[School & Library Price]]","v":0}]
[null,null,null,11,14,"Biographies","People Who Make a Difference","BTS: Making a Difference as a Band","978-1-5345-4168-9",null,null,"KidHaven Publishing","eBook",1,"2023","August 2022",null,null,"Author","Katie Kawa",null,null,null,null,"N",null,"Grade 3","Grade 3 - 5","How did a group from South Korea become one of the most popular—and most inspiring—bands on the planet? Readers find out as they take a deep dive into the rise of BTS—the K-pop band that’s changing the world with their message of self-love. Engaging text is paired with full-color photographs of the band’s seven members: Jin, Suga, J-Hope, RM, Jimin, V, and Jung Kook. In addition, quote boxes highlight inspiring words, and a timeline breaks down their biggest accomplishments. A list of ways readers can be like BTS encourages them to be creative and kind.","English",25.6,20.48,"782.4216/3095195--dc23","24 pp.","https://greenhavenpublishing.com/9781534541689","http://www.epointplus.com/embed/9781534541689/?login=cyberrep&password=cyberrep",{"$f":"Table1[[#This Row],['# of Books]]*Table1[[#This Row],[QTY]]","v":0},{"$f":"Table1[[#This Row],[QTY]]*Table1[[#This Row],[School & Library Price]]","v":0}]
[null,null,null,11,14,"Biographies","People Who Make a Difference","Chris Evans: Making a Difference as an Actor","978-1-5345-4171-9",null,null,"KidHaven Publishing","Library Bound Book",1,"2023","August 2022","Library","8.500 X 8.500","Author","Katie Kawa",null,null,null,null,"N",null,"Grade 3","Grade 3 - 5","Chris Evans has played multiple superheroes on the big screen—first as the Human Torch in the Fantastic Four films and then as Captain America in the Marvel Cinematic Universe. He’s also a hero to many for his kindness and honesty in real life too. Readers discover his inspiring words about mental health and doing the right thing through quote boxes that add to the biographical main text. A timeline of his life and suggestions for ways readers can help others are also included. In addition, full-color photographs of one of Hollywood’s most famous faces fill the pages.","English",25.6,20.48,"791.4302’8092--dc23","24 pp.","https://greenhavenpublishing.com/9781534541719",null,{"$f":"Table1[[#This Row],['# of Books]]*Table1[[#This Row],[QTY]]","v":0},{"$f":"Table1[[#This Row],[QTY]]*Table1[[#This Row],[School & Library Price]]","v":0}]
[null,null,null,11,14,"Biographies","People Who Make a Difference","Chris Evans: Making a Difference as an Actor","978-1-5345-4172-6",null,null,"KidHaven Publishing","eBook",1,"2023","August 2022",null,null,"Author","Katie Kawa",null,null,null,null,"N",null,"Grade 3","Grade 3 - 5","Chris Evans has played multiple superheroes on the big screen—first as the Human Torch in the Fantastic Four films and then as Captain America in the Marvel Cinematic Universe. He’s also a hero to many for his kindness and honesty in real life too. Readers discover his inspiring words about mental health and doing the right thing through quote boxes that add to the biographical main text. A timeline of his life and suggestions for ways readers can help others are also included. In addition, full-color photographs of one of Hollywood’s most famous faces fill the pages.","English",25.6,20.48,"791.4302’8092--dc23","24 pp.","https://greenhavenpublishing.com/9781534541726","http://www.epointplus.com/embed/9781534541726/?login=cyberrep&password=cyberrep",{"$f":"Table1[[#This Row],['# of Books]]*Table1[[#This Row],[QTY]]","v":0},{"$f":"Table1[[#This Row],[QTY]]*Table1[[#This Row],[School & Library Price]]","v":0}]
[null,null,null,11,14,"Biographies","People Who Make a Difference","Jill Biden: Making a Difference as First Lady","978-1-5345-4175-7",null,null,"KidHaven Publishing","Library Bound Book",1,"2023","August 2022","Library","8.500 X 8.500","Author","Katie Kawa",null,null,null,null,"N",null,"Grade 3","Grade 3 - 5","Jill Biden has been making a difference for many years—first as a teacher, then as the wife of Vice President Joe Biden, and now as First Lady of the United States. Readers are inspired to follow in her footsteps and use their own skills and passions to help others as they learn about her life and see suggestions for what they can do to make a difference in their own communities. A clear and concise timeline and full-color photographs add to this reading experience, and quote boxes highlight some of Jill Biden’s best advice for young people.","English",25.6,20.48,"973.934092--dc23","24 pp.","https://greenhavenpublishing.com/9781534541757",null,{"$f":"Table1[[#This Row],['# of Books]]*Table1[[#This Row],[QTY]]","v":0},{"$f":"Table1[[#This Row],[QTY]]*Table1[[#This Row],[School & Library Price]]","v":0}]
[null,null,null,11,14,"Biographies","People Who Make a Difference","Jill Biden: Making a Difference as First Lady","978-1-5345-4176-4",null,null,"KidHaven Publishing","eBook",1,"2023","August 2022",null,null,"Author","Katie Kawa",null,null,null,null,"N",null,"Grade 3","Grade 3 - 5","Jill Biden has been making a difference for many years—first as a teacher, then as the wife of Vice President Joe Biden, and now as First Lady of the United States. Readers are inspired to follow in her footsteps and use their own skills and passions to help others as they learn about her life and see suggestions for what they can do to make a difference in their own communities. A clear and concise timeline and full-color photographs add to this reading experience, and quote boxes highlight some of Jill Biden’s best advice for young people.","English",25.6,20.48,"973.934092--dc23","24 pp.","https://greenhavenpublishing.com/9781534541764","http://www.epointplus.com/embed/9781534541764/?login=cyberrep&password=cyberrep",{"$f":"Table1[[#This Row],['# of Books]]*Table1[[#This Row],[QTY]]","v":0},{"$f":"Table1[[#This Row],[QTY]]*Table1[[#This Row],[School & Library Price]]","v":0}]
[null,null,null,11,14,"Biographies","People Who Make a Difference","Joe Biden: Making a Difference as President","978-1-5345-4179-5",null,null,"KidHaven Publishing","Library Bound Book",1,"2023","August 2022","Library","8.500 X 8.500","Author","Katie Kawa",null,null,null,null,"N",null,"Grade 3","Grade 3 - 5","The president can make a big difference in the lives of Americans, but Joe Biden’s life story shows us that he’s been helping others long before he moved into the White House. As readers explore his journey through hard times and loss to leadership on the biggest stage, they’re inspired to find their own ways to make a difference—from running for student government to helping out around the house. Quote boxes, a timeline, and full-color photographs enhance the biographical text and create an engaging educational experience.","English",25.6,20.48,"973.934092--dc23","24 pp.","https://greenhavenpublishing.com/9781534541795",null,{"$f":"Table1[[#This Row],['# of Books]]*Table1[[#This Row],[QTY]]","v":0},{"$f":"Table1[[#This Row],[QTY]]*Table1[[#This Row],[School & Library Price]]","v":0}]
[null,null,null,11,14,"Biographies","People Who Make a Difference","Joe Biden: Making a Difference as President","978-1-5345-4180-1",null,null,"KidHaven Publishing","eBook",1,"2023","August 2022",null,null,"Author","Katie Kawa",null,null,null,null,"N",null,"Grade 3","Grade 3 - 5","The president can make a big difference in the lives of Americans, but Joe Biden’s life story shows us that he’s been helping others long before he moved into the White House. As readers explore his journey through hard times and loss to leadership on the biggest stage, they’re inspired to find their own ways to make a difference—from running for student government to helping out around the house. Quote boxes, a timeline, and full-color photographs enhance the biographical text and create an engaging educational experience.","English",25.6,20.48,"973.934092--dc23","24 pp.","https://greenhavenpublishing.com/9781534541801","http://www.epointplus.com/embed/9781534541801/?login=cyberrep&password=cyberrep",{"$f":"Table1[[#This Row],['# of Books]]*Table1[[#This Row],[QTY]]","v":0},{"$f":"Table1[[#This Row],[QTY]]*Table1[[#This Row],[School & Library Price]]","v":0}]
[null,null,null,11,14,"Biographies","People Who Make a Difference","Russell Wilson: Making a Difference as a Quarterback","978-1-5345-4183-2",null,null,"KidHaven Publishing","Library Bound Book",1,"2023","August 2022","Library","8.500 X 8.500","Author","Katie Kawa",null,null,null,null,"N",null,"Grade 3","Grade 3 - 5","Russell Wilson is known for making big plays on the football field, but he’s also known for making a big difference off the field too. His work helping children in his community has made him just as beloved as his big plays and Super Bowl success. Readers trace his NFL career and his charity work through biographical text that is supplemented by a focused timeline and quote boxes that highlight inspiring words from this popular quarterback. Photographs of Russell Wilson in action accompany the text, and a graphic organizer provides suggestions for how readers can follow in his philanthropical footsteps.","English",25.6,20.48,"796.332092--dc23","24 pp.","https://greenhavenpublishing.com/9781534541832",null,{"$f":"Table1[[#This Row],['# of Books]]*Table1[[#This Row],[QTY]]","v":0},{"$f":"Table1[[#This Row],[QTY]]*Table1[[#This Row],[School & Library Price]]","v":0}]
[null,null,null,11,14,"Biographies","People Who Make a Difference","Russell Wilson: Making a Difference as a Quarterback","978-1-5345-4184-9",null,null,"KidHaven Publishing","eBook",1,"2023","August 2022",null,null,"Author","Katie Kawa",null,null,null,null,"N",null,"Grade 3","Grade 3 - 5","Russell Wilson is known for making big plays on the football field, but he’s also known for making a big difference off the field too. His work helping children in his community has made him just as beloved as his big plays and Super Bowl success. Readers trace his NFL career and his charity work through biographical text that is supplemented by a focused timeline and quote boxes that highlight inspiring words from this popular quarterback. Photographs of Russell Wilson in action accompany the text, and a graphic organizer provides suggestions for how readers can follow in his philanthropical footsteps.","English",25.6,20.48,"796.332092--dc23","24 pp.","https://greenhavenpublishing.com/9781534541849","http://www.epointplus.com/embed/9781534541849/?login=cyberrep&password=cyberrep",{"$f":"Table1[[#This Row],['# of Books]]*Table1[[#This Row],[QTY]]","v":0},{"$f":"Table1[[#This Row],[QTY]]*Table1[[#This Row],[School & Library Price]]","v":0}]
[null,null,null,11,15,"Biographies","People Who Make a Difference","Alexandria Ocasio-Cortez: Making a Difference in Politics","978-1-5345-3470-4",{"$f":"HYPERLINK(Table1[[#This Row],[eCommerce Hyperlink]],\"Book Weblink\")","v":"Book Weblink"},null,"KidHaven Publishing","Library Bound Book",1,"2021","August 2020","Library","8.500 X 8.500","Author","Katie Kawa",null,null,null,null,"O",null,"Grade 3","Grade 3 - 5","Alexandria Ocasio-Cortez is a rising star in the world of politics, and she is working hard to use her position as a lawmaker to speak up for what she believes is right and to help people who need someone to stand up for them. Through an engaging narrative, colorful photographs, and eye-catching quote boxes that highlight empowering words spoken by the woman many call \"AOC,\" readers discover her story. They'll be inspired to think about ways they can be more like her as they work to make a difference in their own communities.","English",25.6,20.48,"328.73/092--dc23","24 pp.","https://greenhavenpublishing.com/9781534534704",null,{"$f":"Table1[[#This Row],['# of Books]]*Table1[[#This Row],[QTY]]","v":0},{"$f":"Table1[[#This Row],[QTY]]*Table1[[#This Row],[School & Library Price]]","v":0}]
[null,null,null,11,15,"Biographies","People Who Make a Difference","Alexandria Ocasio-Cortez: Making a Difference in Politics","978-1-5345-3471-1",{"$f":"HYPERLINK(Table1[[#This Row],[eCommerce Hyperlink]],\"Book Weblink\")","v":"Book Weblink"},null,"KidHaven Publishing","eBook",1,"2021","August 2020",null,null,"Author","Katie Kawa",null,null,null,null,"O",null,"Grade 3","Grade 3 - 5","Alexandria Ocasio-Cortez is a rising star in the world of politics, and she is working hard to use her position as a lawmaker to speak up for what she believes is right and to help people who need someone to stand up for them. Through an engaging narrative, colorful photographs, and eye-catching quote boxes that highlight empowering words spoken by the woman many call \"AOC,\" readers discover her story. They'll be inspired to think about ways they can be more like her as they work to make a difference in their own communities.","English",25.6,20.48,"328.73/092--dc23","24 pp.","https://greenhavenpublishing.com/9781534534711",null,{"$f":"Table1[[#This Row],['# of Books]]*Table1[[#This Row],[QTY]]","v":0},{"$f":"Table1[[#This Row],[QTY]]*Table1[[#This Row],[School & Library Price]]","v":0}]
[null,null,null,11,15,"Biographies","People Who Make a Difference","Elon Musk: Making a Difference Through Technology","978-1-5345-3482-7",{"$f":"HYPERLINK(Table1[[#This Row],[eCommerce Hyperlink]],\"Book Weblink\")","v":"Book Weblink"},null,"KidHaven Publishing","Library Bound Book",1,"2021","August 2020","Library","8.500 X 8.500","Author","Katie Kawa",null,null,null,null,"O",null,"Grade 3","Grade 3 - 5","Technology can change the world in important ways, and Elon Musk is an innovator whose ideas are already making a difference in the lives of many people. From space travel to electric cars, Musk's many technological advancements are highlighted in this accessible look at his life and work. As readers explore fascinating biographical text, informative quotes, and full-color photographs, they will be inspired to think about technology topics in a new way. By viewing STEM subjects through a biographical lens, readers are able to see how they can someday apply what they learn in science class to the world around them.","English",25.6,20.48,"338.092--dc23","24 pp.","https://greenhavenpublishing.com/9781534534827",null,{"$f":"Table1[[#This Row],['# of Books]]*Table1[[#This Row],[QTY]]","v":0},{"$f":"Table1[[#This Row],[QTY]]*Table1[[#This Row],[School & Library Price]]","v":0}]
[null,null,null,11,15,"Biographies","People Who Make a Difference","Elon Musk: Making a Difference Through Technology","978-1-5345-3483-4",{"$f":"HYPERLINK(Table1[[#This Row],[eCommerce Hyperlink]],\"Book Weblink\")","v":"Book Weblink"},null,"KidHaven Publishing","eBook",1,"2021","August 2020",null,null,"Author","Katie Kawa",null,null,null,null,"O",null,"Grade 3","Grade 3 - 5","Technology can change the world in important ways, and Elon Musk is an innovator whose ideas are already making a difference in the lives of many people. From space travel to electric cars, Musk's many technological advancements are highlighted in this accessible look at his life and work. As readers explore fascinating biographical text, informative quotes, and full-color photographs, they will be inspired to think about technology topics in a new way. By viewing STEM subjects through a biographical lens, readers are able to see how they can someday apply what they learn in science class to the world around them.","English",25.6,20.48,"338.092--dc23","24 pp.","https://greenhavenpublishing.com/9781534534834",null,{"$f":"Table1[[#This Row],['# of Books]]*Table1[[#This Row],[QTY]]","v":0},{"$f":"Table1[[#This Row],[QTY]]*Table1[[#This Row],[School & Library Price]]","v":0}]
[null,null,null,11,15,"Biographies","People Who Make a Difference","Lady Gaga: Making a Difference as a Musician","978-1-5345-3478-0",{"$f":"HYPERLINK(Table1[[#This Row],[eCommerce Hyperlink]],\"Book Weblink\")","v":"Book Weblink"},null,"KidHaven Publishing","Library Bound Book",1,"2021","August 2020","Library","8.500 X 8.500","Author","Katie Kawa",null,null,null,null,"O",null,"Grade 3","Grade 3 - 5","From the earliest days of her career, Lady Gaga has used her music to inspire people to love themselves for who they are. Your readers will discover the years of bullying that pushed Lady Gaga to become a force for positivity and inclusivity in show business. They'll see how musicians can create songs that really do make a difference in people's lives. The insightful biographical text and quotes from Lady Gaga highlight the ways she's used her fame to speak out about body positivity, the LGBTQ community, mental health, and bullying prevention.","English",25.6,20.48,"782.42164092--dc23","24 pp.","https://greenhavenpublishing.com/9781534534780",null,{"$f":"Table1[[#This Row],['# of Books]]*Table1[[#This Row],[QTY]]","v":0},{"$f":"Table1[[#This Row],[QTY]]*Table1[[#This Row],[School & Library Price]]","v":0}]
[null,null,null,11,15,"Biographies","People Who Make a Difference","Lady Gaga: Making a Difference as a Musician","978-1-5345-3479-7",{"$f":"HYPERLINK(Table1[[#This Row],[eCommerce Hyperlink]],\"Book Weblink\")","v":"Book Weblink"},null,"KidHaven Publishing","eBook",1,"2021","August 2020",null,null,"Author","Katie Kawa",null,null,null,null,"O",null,"Grade 3","Grade 3 - 5","From the earliest days of her career, Lady Gaga has used her music to inspire people to love themselves for who they are. Your readers will discover the years of bullying that pushed Lady Gaga to become a force for positivity and inclusivity in show business. They'll see how musicians can create songs that really do make a difference in people's lives. The insightful biographical text and quotes from Lady Gaga highlight the ways she's used her fame to speak out about body positivity, the LGBTQ community, mental health, and bullying prevention.","English",25.6,20.48,"782.42164092--dc23","24 pp.","https://greenhavenpublishing.com/9781534534797",null,{"$f":"Table1[[#This Row],['# of Books]]*Table1[[#This Row],[QTY]]","v":0},{"$f":"Table1[[#This Row],[QTY]]*Table1[[#This Row],[School & Library Price]]","v":0}]
[null,null,null,11,15,"Biographies","People Who Make a Difference","Lin-Manuel Miranda: Making a Difference as a Writer","978-1-5345-3466-7",{"$f":"HYPERLINK(Table1[[#This Row],[eCommerce Hyperlink]],\"Book Weblink\")","v":"Book Weblink"},null,"KidHaven Publishing","Library Bound Book",1,"2021","August 2020","Library","8.500 X 8.500","Author","Katie Kawa",null,null,null,null,"O",null,"Grade 3","Grade 3 - 5","Writers can make a huge impact on the world, and Lin-Manuel Miranda's life and work is a perfect example of how a writer can make the world a better place with their words. As readers learn Lin-Manuel Miranda's story, they'll discover that there's power in the written word and in creating a space for everyone to feel welcome and empowered through works of art. Colorful photographs of one of the most famous faces in entertainment today accompany the detailed narrative, helpful timeline, and inspiring quotes from Miranda himself.","English",25.6,20.48,"782.1'4092--dc23","24 pp.","https://greenhavenpublishing.com/9781534534667",null,{"$f":"Table1[[#This Row],['# of Books]]*Table1[[#This Row],[QTY]]","v":0},{"$f":"Table1[[#This Row],[QTY]]*Table1[[#This Row],[School & Library Price]]","v":0}]
[null,null,null,11,15,"Biographies","People Who Make a Difference","Lin-Manuel Miranda: Making a Difference as a Writer","978-1-5345-3467-4",{"$f":"HYPERLINK(Table1[[#This Row],[eCommerce Hyperlink]],\"Book Weblink\")","v":"Book Weblink"},null,"KidHaven Publishing","eBook",1,"2021","August 2020",null,null,"Author","Katie Kawa",null,null,null,null,"O",null,"Grade 3","Grade 3 - 5","Writers can make a huge impact on the world, and Lin-Manuel Miranda's life and work is a perfect example of how a writer can make the world a better place with their words. As readers learn Lin-Manuel Miranda's story, they'll discover that there's power in the written word and in creating a space for everyone to feel welcome and empowered through works of art. Colorful photographs of one of the most famous faces in entertainment today accompany the detailed narrative, helpful timeline, and inspiring quotes from Miranda himself.","English",25.6,20.48,"782.1'4092--dc23","24 pp.","https://greenhavenpublishing.com/9781534534674",null,{"$f":"Table1[[#This Row],['# of Books]]*Table1[[#This Row],[QTY]]","v":0},{"$f":"Table1[[#This Row],[QTY]]*Table1[[#This Row],[School & Library Price]]","v":0}]
[null,null,null,11,15,"Biographies","People Who Make a Difference","Megan Rapinoe: Making a Difference as an Athlete","978-1-5345-3474-2",{"$f":"HYPERLINK(Table1[[#This Row],[eCommerce Hyperlink]],\"Book Weblink\")","v":"Book Weblink"},null,"KidHaven Publishing","Library Bound Book",1,"2021","August 2020","Library","8.500 X 8.500","Author","Katie Kawa",null,null,null,null,"O",null,"Grade 3","Grade 3 - 5","Athletes inspire people both on and off the field, and Megan Rapinoe understands her responsibility to use her fame and visibility to push for positive changes in her sport and in the world as a whole. Young sports fans will be captivated by stories of Rapinoe's soccer stardom, but as they learn about her game-winning goals, they'll also learn about her advocacy for equal pay, racial equality, and LGBTQ+ rights. These topics are presented in an age-appropriate way, with the help of Rapinoe's own words highlighted in quote boxes and bright photographs of this superstar in action.","English",25.6,20.48,"796.3340922--dc23","24 pp.","https://greenhavenpublishing.com/9781534534742",null,{"$f":"Table1[[#This Row],['# of Books]]*Table1[[#This Row],[QTY]]","v":0},{"$f":"Table1[[#This Row],[QTY]]*Table1[[#This Row],[School & Library Price]]","v":0}]
[null,null,null,11,15,"Biographies","People Who Make a Difference","Megan Rapinoe: Making a Difference as an Athlete","978-1-5345-3475-9",{"$f":"HYPERLINK(Table1[[#This Row],[eCommerce Hyperlink]],\"Book Weblink\")","v":"Book Weblink"},null,"KidHaven Publishing","eBook",1,"2021","August 2020",null,null,"Author","Katie Kawa",null,null,null,null,"O",null,"Grade 3","Grade 3 - 5","Athletes inspire people both on and off the field, and Megan Rapinoe understands her responsibility to use her fame and visibility to push for positive changes in her sport and in the world as a whole. Young sports fans will be captivated by stories of Rapinoe's soccer stardom, but as they learn about her game-winning goals, they'll also learn about her advocacy for equal pay, racial equality, and LGBTQ+ rights. These topics are presented in an age-appropriate way, with the help of Rapinoe's own words highlighted in quote boxes and bright photographs of this superstar in action.","English",25.6,20.48,"796.3340922--dc23","24 pp.","https://greenhavenpublishing.com/9781534534759",null,{"$f":"Table1[[#This Row],['# of Books]]*Table1[[#This Row],[QTY]]","v":0},{"$f":"Table1[[#This Row],[QTY]]*Table1[[#This Row],[School & Library Price]]","v":0}]
[null,null,null,11,15,"Biographies","People Who Make a Difference","Meghan Markle: Making a Difference as a Duchess","978-1-5345-3486-5",{"$f":"HYPERLINK(Table1[[#This Row],[eCommerce Hyperlink]],\"Book Weblink\")","v":"Book Weblink"},null,"KidHaven Publishing","Library Bound Book",1,"2021","August 2020","Library","8.500 X 8.500","Author","Katie Kawa",null,null,null,null,"O",null,"Grade 3","Grade 3 - 5","Meghan Markle is using the power of the British monarchy for good, and your readers will discover exactly how through this inspiring look at her life before and after marrying Prince Harry. Through detailed main text and age-appropriate quotes, readers are shown how Meghan Markle went from being an actress with a passion for activism to a member of the Royal Family who has used her new platform to empower people around the world. Stunning, full-color photographs add to this inspirational reading experience.","English",25.6,20.48,"941.086092--dc23","24 pp.","https://greenhavenpublishing.com/9781534534865",null,{"$f":"Table1[[#This Row],['# of Books]]*Table1[[#This Row],[QTY]]","v":0},{"$f":"Table1[[#This Row],[QTY]]*Table1[[#This Row],[School & Library Price]]","v":0}]
[null,null,null,11,15,"Biographies","People Who Make a Difference","Meghan Markle: Making a Difference as a Duchess","978-1-5345-3487-2",{"$f":"HYPERLINK(Table1[[#This Row],[eCommerce Hyperlink]],\"Book Weblink\")","v":"Book Weblink"},null,"KidHaven Publishing","eBook",1,"2021","August 2020",null,null,"Author","Katie Kawa",null,null,null,null,"O",null,"Grade 3","Grade 3 - 5","Meghan Markle is using the power of the British monarchy for good, and your readers will discover exactly how through this inspiring look at her life before and after marrying Prince Harry. Through detailed main text and age-appropriate quotes, readers are shown how Meghan Markle went from being an actress with a passion for activism to a member of the Royal Family who has used her new platform to empower people around the world. Stunning, full-color photographs add to this inspirational reading experience.","English",25.6,20.48,"941.086092--dc23","24 pp.","https://greenhavenpublishing.com/9781534534872",null,{"$f":"Table1[[#This Row],['# of Books]]*Table1[[#This Row],[QTY]]","v":0},{"$f":"Table1[[#This Row],[QTY]]*Table1[[#This Row],[School & Library Price]]","v":0}]
[null,null,null,10,15,"Biographies","People Who Make a Difference","Beyoncé: Making a Difference Through Music","978-1-5345-3703-3",{"$f":"HYPERLINK(Table1[[#This Row],[eCommerce Hyperlink]],\"Book Weblink\")","v":"Book Weblink"},null,"KidHaven Publishing","Library Bound Book",1,"2022","January 2022","Library","8.500 X 8.500","Author","Katie Kawa","5.3","0.5",null,null,"O",null,"Grade 3","Grade 3 - 5","Some people are so famous they need only one name. Beyonce has achieved this level of fame through her music career, her acting roles, and her activism. Her music has become a powerful form of representation for women of color. Readers will discover this aspect of her life and career in great detail as they discover what makes her a role model for many people around the world. Full-color photographs, age-appropriate quote boxes, and graphic organizers help readers gain a deeper understanding of what it means to truly make a difference.","English",25.6,20.48,"782.42164092--dc23","24 pp.","https://greenhavenpublishing.com/9781534537033",null,{"$f":"Table1[[#This Row],['# of Books]]*Table1[[#This Row],[QTY]]","v":0},{"$f":"Table1[[#This Row],[QTY]]*Table1[[#This Row],[School & Library Price]]","v":0}]
[null,null,null,10,15,"Biographies","People Who Make a Difference","Beyoncé: Making a Difference Through Music","978-1-5345-3704-0",{"$f":"HYPERLINK(Table1[[#This Row],[eCommerce Hyperlink]],\"Book Weblink\")","v":"Book Weblink"},{"$f":"HYPERLINK(Table1[[#This Row],[EPP Hyperlink]],\"EPP Weblink\")","v":"EPP Weblink"},"KidHaven Publishing","eBook",1,"2022","January 2022",null,null,"Author","Katie Kawa","5.3","0.5",null,null,"O",null,"Grade 3","Grade 3 - 5","Some people are so famous they need only one name. Beyonce has achieved this level of fame through her music career, her acting roles, and her activism. Her music has become a powerful form of representation for women of color. Readers will discover this aspect of her life and career in great detail as they discover what makes her a role model for many people around the world. Full-color photographs, age-appropriate quote boxes, and graphic organizers help readers gain a deeper understanding of what it means to truly make a difference.","English",25.6,20.48,"782.42164092--dc23","24 pp.","https://greenhavenpublishing.com/9781534537040","http://www.epointplus.com/embed/9781534537040/?login=cyberrep&password=cyberrep",{"$f":"Table1[[#This Row],['# of Books]]*Table1[[#This Row],[QTY]]","v":0},{"$f":"Table1[[#This Row],[QTY]]*Table1[[#This Row],[School & Library Price]]","v":0}]
[null,null,null,10,15,"Biographies","People Who Make a Difference","Brie Larson: Making a Difference as a Superhero","978-1-5345-3695-1",{"$f":"HYPERLINK(Table1[[#This Row],[eCommerce Hyperlink]],\"Book Weblink\")","v":"Book Weblink"},null,"KidHaven Publishing","Library Bound Book",1,"2022","January 2022","Library","8.500 X 8.500","Author","Katie Kawa","5.4","0.5",null,null,"O",null,"Grade 3","Grade 3 - 5","Brie Larson plays a superhero on the big screen, but she's also done many heroic things in her real life. Readers explore this exciting biography, from Brie's casting as Captain Marvel to her work on behalf of women's rights and equality. This inspiring information is shared through a narrative that's supplemented with full-color photographs of this popular performer throughout her career. Detailed graphic organizers and a timeline share interesting facts. Quote boxes highlight empowering words and advice from Brie Larson, which will inspire young readers to make a difference in their world.","English",25.6,20.48,"791.4302/8092--dc23","24 pp.","https://greenhavenpublishing.com/9781534536951",null,{"$f":"Table1[[#This Row],['# of Books]]*Table1[[#This Row],[QTY]]","v":0},{"$f":"Table1[[#This Row],[QTY]]*Table1[[#This Row],[School & Library Price]]","v":0}]
[null,null,null,10,15,"Biographies","People Who Make a Difference","Brie Larson: Making a Difference as a Superhero","978-1-5345-3696-8",{"$f":"HYPERLINK(Table1[[#This Row],[eCommerce Hyperlink]],\"Book Weblink\")","v":"Book Weblink"},{"$f":"HYPERLINK(Table1[[#This Row],[EPP Hyperlink]],\"EPP Weblink\")","v":"EPP Weblink"},"KidHaven Publishing","eBook",1,"2022","January 2022",null,null,"Author","Katie Kawa","5.4","0.5",null,null,"O",null,"Grade 3","Grade 3 - 5","Brie Larson plays a superhero on the big screen, but she's also done many heroic things in her real life. Readers explore this exciting biography, from Brie's casting as Captain Marvel to her work on behalf of women's rights and equality. This inspiring information is shared through a narrative that's supplemented with full-color photographs of this popular performer throughout her career. Detailed graphic organizers and a timeline share interesting facts. Quote boxes highlight empowering words and advice from Brie Larson, which will inspire young readers to make a difference in their world.","English",25.6,20.48,"791.4302/8092--dc23","24 pp.","https://greenhavenpublishing.com/9781534536968","http://www.epointplus.com/embed/9781534536968/?login=cyberrep&password=cyberrep",{"$f":"Table1[[#This Row],['# of Books]]*Table1[[#This Row],[QTY]]","v":0},{"$f":"Table1[[#This Row],[QTY]]*Table1[[#This Row],[School & Library Price]]","v":0}]
[null,null,null,10,15,"Biographies","People Who Make a Difference","Chance the Rapper: Making a Difference in Hip-Hop","978-1-5345-3699-9",{"$f":"HYPERLINK(Table1[[#This Row],[eCommerce Hyperlink]],\"Book Weblink\")","v":"Book Weblink"},null,"KidHaven Publishing","Library Bound Book",1,"2022","January 2022","Library","8.500 X 8.500","Author","Katie Kawa","5.2","0.5",null,null,"O",null,"Grade 3","Grade 3 - 5","Chance the Rapper is one of the most famous figures in the world of hip-hop, and his desire to help people, especially young people, has helped him become a role model for many. His early life, career achievements, and the many ways he makes a difference are explored through a fun and fact-filled narrative and a graphic organizer that encourage young people to look for their own ways to help in their communities. Full-color photographs, eye-catching quote boxes, and a detailed timeline of Chance the Rapper's life add engaging visual elements to this empowering reading experience.","English",25.6,20.48,"782.4216491--dc23","24 pp.","https://greenhavenpublishing.com/9781534536999",null,{"$f":"Table1[[#This Row],['# of Books]]*Table1[[#This Row],[QTY]]","v":0},{"$f":"Table1[[#This Row],[QTY]]*Table1[[#This Row],[School & Library Price]]","v":0}]
[null,null,null,10,15,"Biographies","People Who Make a Difference","Chance the Rapper: Making a Difference in Hip-Hop","978-1-5345-3700-2",{"$f":"HYPERLINK(Table1[[#This Row],[eCommerce Hyperlink]],\"Book Weblink\")","v":"Book Weblink"},{"$f":"HYPERLINK(Table1[[#This Row],[EPP Hyperlink]],\"EPP Weblink\")","v":"EPP Weblink"},"KidHaven Publishing","eBook",1,"2022","January 2022",null,null,"Author","Katie Kawa","5.2","0.5",null,null,"O",null,"Grade 3","Grade 3 - 5","Chance the Rapper is one of the most famous figures in the world of hip-hop, and his desire to help people, especially young people, has helped him become a role model for many. His early life, career achievements, and the many ways he makes a difference are explored through a fun and fact-filled narrative and a graphic organizer that encourage young people to look for their own ways to help in their communities. Full-color photographs, eye-catching quote boxes, and a detailed timeline of Chance the Rapper's life add engaging visual elements to this empowering reading experience.","English",25.6,20.48,"782.4216491--dc23","24 pp.","https://greenhavenpublishing.com/9781534537002","http://www.epointplus.com/embed/9781534537002/?login=cyberrep&password=cyberrep",{"$f":"Table1[[#This Row],['# of Books]]*Table1[[#This Row],[QTY]]","v":0},{"$f":"Table1[[#This Row],[QTY]]*Table1[[#This Row],[School & Library Price]]","v":0}]
[null,null,null,10,15,"Biographies","People Who Make a Difference","LeBron James: Making a Difference as a Sports Superstar","978-1-5345-3687-6",{"$f":"HYPERLINK(Table1[[#This Row],[eCommerce Hyperlink]],\"Book Weblink\")","v":"Book Weblink"},null,"KidHaven Publishing","Library Bound Book",1,"2022","January 2022","Library","8.500 X 8.500","Author","Katie Kawa","5.3","0.5",null,null,"O",null,"Grade 3","Grade 3 - 5","LeBron James is known as one of the best basketball players of all time. He makes a difference every time he steps on the court, but he also makes a big difference off the court. From speaking out on social issues to starting a school to help kids in need find a path to success, he's become a role model that young people can look up to. His inspiring life story is presented to readers through empowering content, quote boxes with words from King James himself, full-color photographs, and graphic organizers.","English",25.6,20.48,"796.323092--dc23","24 pp.","https://greenhavenpublishing.com/9781534536876",null,{"$f":"Table1[[#This Row],['# of Books]]*Table1[[#This Row],[QTY]]","v":0},{"$f":"Table1[[#This Row],[QTY]]*Table1[[#This Row],[School & Library Price]]","v":0}]
[null,null,null,10,15,"Biographies","People Who Make a Difference","LeBron James: Making a Difference as a Sports Superstar","978-1-5345-3688-3",{"$f":"HYPERLINK(Table1[[#This Row],[eCommerce Hyperlink]],\"Book Weblink\")","v":"Book Weblink"},{"$f":"HYPERLINK(Table1[[#This Row],[EPP Hyperlink]],\"EPP Weblink\")","v":"EPP Weblink"},"KidHaven Publishing","eBook",1,"2022","January 2022",null,null,"Author","Katie Kawa","5.3","0.5",null,null,"O",null,"Grade 3","Grade 3 - 5","LeBron James is known as one of the best basketball players of all time. He makes a difference every time he steps on the court, but he also makes a big difference off the court. From speaking out on social issues to starting a school to help kids in need find a path to success, he's become a role model that young people can look up to. His inspiring life story is presented to readers through empowering content, quote boxes with words from King James himself, full-color photographs, and graphic organizers.","English",25.6,20.48,"796.323092--dc23","24 pp.","https://greenhavenpublishing.com/9781534536883","http://www.epointplus.com/embed/9781534536883/?login=cyberrep&password=cyberrep",{"$f":"Table1[[#This Row],['# of Books]]*Table1[[#This Row],[QTY]]","v":0},{"$f":"Table1[[#This Row],[QTY]]*Table1[[#This Row],[School & Library Price]]","v":0}]
[null,null,null,10,15,"Biographies","People Who Make a Difference","Misty Copeland: Making a Difference as a Dancer","978-1-5345-3691-3",{"$f":"HYPERLINK(Table1[[#This Row],[eCommerce Hyperlink]],\"Book Weblink\")","v":"Book Weblink"},null,"KidHaven Publishing","Library Bound Book",1,"2022","January 2022","Library","8.500 X 8.500","Author","Katie Kawa","5.4","0.5",null,null,"O",null,"Grade 3","Grade 3 - 5","Young people in dance classes around the world look up to Misty Copeland. She's changed the way people define who can be a successful ballerina, and she's become a vocal ambassador for healthy body image and strengthening support for African Americans in the world of ballet. Readers discover her engaging and empowering story through an age-appropriate narrative that encourages them to use their own unique talents to make a difference in the world. Quote boxes, full-color photographs, and graphic organizers add to this fun and fact-filled look at the life of one of the most famous dancers in the world.","English",25.6,20.48,"792.8092--dc23","24 pp.","https://greenhavenpublishing.com/9781534536913",null,{"$f":"Table1[[#This Row],['# of Books]]*Table1[[#This Row],[QTY]]","v":0},{"$f":"Table1[[#This Row],[QTY]]*Table1[[#This Row],[School & Library Price]]","v":0}]
[null,null,null,10,15,"Biographies","People Who Make a Difference","Misty Copeland: Making a Difference as a Dancer","978-1-5345-3692-0",{"$f":"HYPERLINK(Table1[[#This Row],[eCommerce Hyperlink]],\"Book Weblink\")","v":"Book Weblink"},{"$f":"HYPERLINK(Table1[[#This Row],[EPP Hyperlink]],\"EPP Weblink\")","v":"EPP Weblink"},"KidHaven Publishing","eBook",1,"2022","January 2022",null,null,"Author","Katie Kawa","5.4","0.5",null,null,"O",null,"Grade 3","Grade 3 - 5","Young people in dance classes around the world look up to Misty Copeland. She's changed the way people define who can be a successful ballerina, and she's become a vocal ambassador for healthy body image and strengthening support for African Americans in the world of ballet. Readers discover her engaging and empowering story through an age-appropriate narrative that encourages them to use their own unique talents to make a difference in the world. Quote boxes, full-color photographs, and graphic organizers add to this fun and fact-filled look at the life of one of the most famous dancers in the world.","English",25.6,20.48,"792.8092--dc23","24 pp.","https://greenhavenpublishing.com/9781534536920","http://www.epointplus.com/embed/9781534536920/?login=cyberrep&password=cyberrep",{"$f":"Table1[[#This Row],['# of Books]]*Table1[[#This Row],[QTY]]","v":0},{"$f":"Table1[[#This Row],[QTY]]*Table1[[#This Row],[School & Library Price]]","v":0}]
[null,null,null,10,15,"Biographies","People Who Make a Difference","Taylor Swift: Making a Difference as a Songwriter","978-1-5345-3707-1",{"$f":"HYPERLINK(Table1[[#This Row],[eCommerce Hyperlink]],\"Book Weblink\")","v":"Book Weblink"},null,"KidHaven Publishing","Library Bound Book",1,"2022","January 2022","Library","8.500 X 8.500","Author","Katie Kawa","5.3","0.5",null,null,"O",null,"Grade 3","Grade 3 - 5","Taylor Swift first made a name for herself by writing love songs. However, she's become more outspoken in both her music and her public statements concerning feminism, political issues, and her place as a woman in the music industry. This change in her life and her music is documented in an age-appropriate narrative that is supplemented with quote boxes featuring empowering words from this famous singer. Vibrant and informative design elements include full-color photographs, a comprehensive timeline, and a list of ways young people can follow Swift's example and help make the world a better place.","English",25.6,20.48,"782.4216409--dc23","24 pp.","https://greenhavenpublishing.com/9781534537071",null,{"$f":"Table1[[#This Row],['# of Books]]*Table1[[#This Row],[QTY]]","v":0},{"$f":"Table1[[#This Row],[QTY]]*Table1[[#This Row],[School & Library Price]]","v":0}]
[null,null,null,10,15,"Biographies","People Who Make a Difference","Taylor Swift: Making a Difference as a Songwriter","978-1-5345-3708-8",{"$f":"HYPERLINK(Table1[[#This Row],[eCommerce Hyperlink]],\"Book Weblink\")","v":"Book Weblink"},{"$f":"HYPERLINK(Table1[[#This Row],[EPP Hyperlink]],\"EPP Weblink\")","v":"EPP Weblink"},"KidHaven Publishing","eBook",1,"2022","January 2022",null,null,"Author","Katie Kawa","5.3","0.5",null,null,"O",null,"Grade 3","Grade 3 - 5","Taylor Swift first made a name for herself by writing love songs. However, she's become more outspoken in both her music and her public statements concerning feminism, political issues, and her place as a woman in the music industry. This change in her life and her music is documented in an age-appropriate narrative that is supplemented with quote boxes featuring empowering words from this famous singer. Vibrant and informative design elements include full-color photographs, a comprehensive timeline, and a list of ways young people can follow Swift's example and help make the world a better place.","English",25.6,20.48,"782.4216409--dc23","24 pp.","https://greenhavenpublishing.com/9781534537088","http://www.epointplus.com/embed/9781534537088/?login=cyberrep&password=cyberrep",{"$f":"Table1[[#This Row],['# of Books]]*Table1[[#This Row],[QTY]]","v":0},{"$f":"Table1[[#This Row],[QTY]]*Table1[[#This Row],[School & Library Price]]","v":0}]
[null,null,null,12,16,"Current Issues","Points of View","Points of View: Sets 1 – 9","978-1-5345-4243-3",null,null,"KidHaven Publishing","Library Set",54,"2023","August 2022","Library","8.500 X 8.500",null,null,null,null,null,null,null,null,"Grade 3","Grade 3 - 5","Should students learn about racism in school? Should all children get vaccines? Who should see what you’re doing online? Readers dive into these timely debates as they explore all the sides of hot-button issues ranging from paying student-athletes to police reform. Featuring full-color photographs and graphic organizers to help readers visualize what they’re learning, these guides to respectful debating help readers develop informed opinions about issues that affect them now and will affect them in the future. Each topic is broken down using age-appropriate language and examples that young readers can relate to.","English",1382.4,1105.92,null,"24 pp.","https://greenhavenpublishing.com/9781534542433",null,{"$f":"Table1[[#This Row],['# of Books]]*Table1[[#This Row],[QTY]]","v":0},{"$f":"Table1[[#This Row],[QTY]]*Table1[[#This Row],[School & Library Price]]","v":0}]
[null,null,null,12,16,"Current Issues","Points of View","Points of View: Set 9","978-1-5345-4242-6",null,null,"KidHaven Publishing","Library Set",6,"2023","August 2022","Library","8.500 X 8.500",null,null,null,null,null,null,null,null,"Grade 3","Grade 3 - 5","Critical thinking is an essential life skill. Students must learn to be able to look at both sides of an argument. They should know how to recognize reliable information and use their own experiences to inform their opinion. This series offers engaging and timely topics—from police reform to public health—to allow readers to practice critical thinking. Accessible explanations of the arguments, backed up by fact boxes and a graphic organizer, will allow readers to connect to the topic and discover their own informed argument.","English",153.6,122.88,null,"24 pp.","https://greenhavenpublishing.com/9781534542426",null,{"$f":"Table1[[#This Row],['# of Books]]*Table1[[#This Row],[QTY]]","v":0},{"$f":"Table1[[#This Row],[QTY]]*Table1[[#This Row],[School & Library Price]]","v":0}]
[null,null,null,12,16,"Current Issues","Points of View","Can Police Reform Be Helpful?","978-1-5345-4187-0",null,null,"KidHaven Publishing","Library Bound Book",1,"2023","August 2022","Library","8.500 X 8.500","Author","Layla Owens",null,null,null,null,"N",null,"Grade 3","Grade 3 - 5","The topic of police reform is a major issue in the United States today. Some people say that police should have fewer deadly weapons, smaller budgets, and punishments for wrongdoing. Others say that police are invaluable community helpers who need more support to do their jobs. This book looks at both sides of the police reform debate in an age-appropriate way. Through engaging text, facts, and recent statistics, readers will gain the information they need to work on the important skill of critical thinking.","English",25.6,20.48,"363.20973--dc23","24 pp.","https://greenhavenpublishing.com/9781534541870",null,{"$f":"Table1[[#This Row],['# of Books]]*Table1[[#This Row],[QTY]]","v":0},{"$f":"Table1[[#This Row],[QTY]]*Table1[[#This Row],[School & Library Price]]","v":0}]
[null,null,null,12,16,"Current Issues","Points of View","Can Police Reform Be Helpful?","978-1-5345-4188-7",null,null,"KidHaven Publishing","eBook",1,"2023","August 2022",null,null,"Author","Layla Owens",null,null,null,null,"N",null,"Grade 3","Grade 3 - 5","The topic of police reform is a major issue in the United States today. Some people say that police should have fewer deadly weapons, smaller budgets, and punishments for wrongdoing. Others say that police are invaluable community helpers who need more support to do their jobs. This book looks at both sides of the police reform debate in an age-appropriate way. Through engaging text, facts, and recent statistics, readers will gain the information they need to work on the important skill of critical thinking.","English",25.6,20.48,"363.20973--dc23","24 pp.","https://greenhavenpublishing.com/9781534541887","http://www.epointplus.com/embed/9781534541887/?login=cyberrep&password=cyberrep",{"$f":"Table1[[#This Row],['# of Books]]*Table1[[#This Row],[QTY]]","v":0},{"$f":"Table1[[#This Row],[QTY]]*Table1[[#This Row],[School & Library Price]]","v":0}]
[null,null,null,12,16,"Current Issues","Points of View","Is Public Health More Important Than Personal Freedom?","978-1-5345-4191-7",null,null,"KidHaven Publishing","Library Bound Book",1,"2023","August 2022","Library","8.500 X 8.500","Author","Layla Owens",null,null,null,null,"N",null,"Grade 3","Grade 3 - 5","The topic of public health versus personal freedom has never been more important. The COVID-19 pandemic brought heated arguments into the national spotlight, and many of them affect young people today. This book looks at both sides of the debate. Readers will learn why some people favor vaccine mandates, masks in public, and quarantines. They’ll also see why other people oppose such mandates and value personal freedoms. Through familiar situations, facts, and statistics, readers will learn how to apply critical thinking skills to this timely debate.","English",25.6,20.48,"362.1--dc23","24 pp.","https://greenhavenpublishing.com/9781534541917",null,{"$f":"Table1[[#This Row],['# of Books]]*Table1[[#This Row],[QTY]]","v":0},{"$f":"Table1[[#This Row],[QTY]]*Table1[[#This Row],[School & Library Price]]","v":0}]
[null,null,null,12,16,"Current Issues","Points of View","Is Public Health More Important Than Personal Freedom?","978-1-5345-4192-4",null,null,"KidHaven Publishing","eBook",1,"2023","August 2022",null,null,"Author","Layla Owens",null,null,null,null,"N",null,"Grade 3","Grade 3 - 5","The topic of public health versus personal freedom has never been more important. The COVID-19 pandemic brought heated arguments into the national spotlight, and many of them affect young people today. This book looks at both sides of the debate. Readers will learn why some people favor vaccine mandates, masks in public, and quarantines. They’ll also see why other people oppose such mandates and value personal freedoms. Through familiar situations, facts, and statistics, readers will learn how to apply critical thinking skills to this timely debate.","English",25.6,20.48,"362.1--dc23","24 pp.","https://greenhavenpublishing.com/9781534541924","http://www.epointplus.com/embed/9781534541924/?login=cyberrep&password=cyberrep",{"$f":"Table1[[#This Row],['# of Books]]*Table1[[#This Row],[QTY]]","v":0},{"$f":"Table1[[#This Row],[QTY]]*Table1[[#This Row],[School & Library Price]]","v":0}]
[null,null,null,12,16,"Current Issues","Points of View","Is Virtual Learning Good for Students?","978-1-5345-4195-5",null,null,"KidHaven Publishing","Library Bound Book",1,"2023","August 2022","Library","8.500 X 8.500","Author","Layla Owens",null,null,null,null,"N",null,"Grade 3","Grade 3 - 5","Virtual learning became the reality for most students during the COVID-19 pandemic. The debate over virtual learning has many strong arguments on both sides. While one side argues that virtual learning provides a flexible schedule and comfortable home environment for students, the other side argues that students from low-income households and with special needs can fall behind. This book explores several arguments on both sides of the virtual learning debate. Readers are encouraged to think for themselves using facts and their own experience. This timely topic gives readers a chance to exercise the important life skill of critical thinking.","English",25.6,20.48,"371.35’8--dc23","24 pp.","https://greenhavenpublishing.com/9781534541955",null,{"$f":"Table1[[#This Row],['# of Books]]*Table1[[#This Row],[QTY]]","v":0},{"$f":"Table1[[#This Row],[QTY]]*Table1[[#This Row],[School & Library Price]]","v":0}]
[null,null,null,12,16,"Current Issues","Points of View","Is Virtual Learning Good for Students?","978-1-5345-4196-2",null,null,"KidHaven Publishing","eBook",1,"2023","August 2022",null,null,"Author","Layla Owens",null,null,null,null,"N",null,"Grade 3","Grade 3 - 5","Virtual learning became the reality for most students during the COVID-19 pandemic. The debate over virtual learning has many strong arguments on both sides. While one side argues that virtual learning provides a flexible schedule and comfortable home environment for students, the other side argues that students from low-income households and with special needs can fall behind. This book explores several arguments on both sides of the virtual learning debate. Readers are encouraged to think for themselves using facts and their own experience. This timely topic gives readers a chance to exercise the important life skill of critical thinking.","English",25.6,20.48,"371.35’8--dc23","24 pp.","https://greenhavenpublishing.com/9781534541962","http://www.epointplus.com/embed/9781534541962/?login=cyberrep&password=cyberrep",{"$f":"Table1[[#This Row],['# of Books]]*Table1[[#This Row],[QTY]]","v":0},{"$f":"Table1[[#This Row],[QTY]]*Table1[[#This Row],[School & Library Price]]","v":0}]
[null,null,null,12,16,"Current Issues","Points of View","Should Students Learn About Racism?","978-1-5345-4207-5",null,null,"KidHaven Publishing","Library Bound Book",1,"2023","August 2022","Library","8.500 X 8.500","Author","Layla Owens",null,null,null,null,"N",null,"Grade 3","Grade 3 - 5","Racism is woven into the history of the United States. But while some people think that it’s just history and isn’t necessary in today’s schools, other people believe racism is still a big issue in the United States and should be taught in schools. While some people think learning about racism will only sow more divisions, other people say it is necessary to teach anti-racism to prevent racism in the future. This book covers this important topic in a relatable and age-appropriate way for young students. Readers will be able to read arguments on both sides of the debate and consider the facts. Then, they are encouraged to use those facts and their own experience to inform their point of view. This book will teach essential critical thinking skills through the lens of a hot issue in America today.","English",25.6,20.48,"305.800973--dc23","24 pp.","https://greenhavenpublishing.com/9781534542075",null,{"$f":"Table1[[#This Row],['# of Books]]*Table1[[#This Row],[QTY]]","v":0},{"$f":"Table1[[#This Row],[QTY]]*Table1[[#This Row],[School & Library Price]]","v":0}]
[null,null,null,12,16,"Current Issues","Points of View","Should Students Learn About Racism?","978-1-5345-4208-2",null,null,"KidHaven Publishing","eBook",1,"2023","August 2022",null,null,"Author","Layla Owens",null,null,null,null,"N",null,"Grade 3","Grade 3 - 5","Racism is woven into the history of the United States. But while some people think that it’s just history and isn’t necessary in today’s schools, other people believe racism is still a big issue in the United States and should be taught in schools. While some people think learning about racism will only sow more divisions, other people say it is necessary to teach anti-racism to prevent racism in the future. This book covers this important topic in a relatable and age-appropriate way for young students. Readers will be able to read arguments on both sides of the debate and consider the facts. Then, they are encouraged to use those facts and their own experience to inform their point of view. This book will teach essential critical thinking skills through the lens of a hot issue in America today.","English",25.6,20.48,"305.800973--dc23","24 pp.","https://greenhavenpublishing.com/9781534542082","http://www.epointplus.com/embed/9781534542082/?login=cyberrep&password=cyberrep",{"$f":"Table1[[#This Row],['# of Books]]*Table1[[#This Row],[QTY]]","v":0},{"$f":"Table1[[#This Row],[QTY]]*Table1[[#This Row],[School & Library Price]]","v":0}]
[null,null,null,12,16,"Current Issues","Points of View","Should the Driving Age Be Raised?","978-1-5345-4199-3",null,null,"KidHaven Publishing","Library Bound Book",1,"2023","August 2022","Library","8.500 X 8.500","Author","Layla Owens",null,null,null,null,"N",null,"Grade 3","Grade 3 - 5","Earning a driver’s license is a big moment for a teen. Many kids look forward to this life milestone. However, some people say that the minimum driving age should be raised. This would give teens more time to mature and gain life experience. Other people feel that the current minimum driving age allows teens more time to practice driving skills. This book delves into arguments on both sides of this hot topic. Readers will be able to look at each argument and supporting facts to make an opinion of their own. This book is sure to excite readers and allow them to practice essential critical thinking skills.","English",25.6,20.48,"629.28’30835--dc23","24 pp.","https://greenhavenpublishing.com/9781534541993",null,{"$f":"Table1[[#This Row],['# of Books]]*Table1[[#This Row],[QTY]]","v":0},{"$f":"Table1[[#This Row],[QTY]]*Table1[[#This Row],[School & Library Price]]","v":0}]
[null,null,null,12,16,"Current Issues","Points of View","Should the Driving Age Be Raised?","978-1-5345-4200-6",null,null,"KidHaven Publishing","eBook",1,"2023","August 2022",null,null,"Author","Layla Owens",null,null,null,null,"N",null,"Grade 3","Grade 3 - 5","Earning a driver’s license is a big moment for a teen. Many kids look forward to this life milestone. However, some people say that the minimum driving age should be raised. This would give teens more time to mature and gain life experience. Other people feel that the current minimum driving age allows teens more time to practice driving skills. This book delves into arguments on both sides of this hot topic. Readers will be able to look at each argument and supporting facts to make an opinion of their own. This book is sure to excite readers and allow them to practice essential critical thinking skills.","English",25.6,20.48,"629.28’30835--dc23","24 pp.","https://greenhavenpublishing.com/9781534542006","http://www.epointplus.com/embed/9781534542006/?login=cyberrep&password=cyberrep",{"$f":"Table1[[#This Row],['# of Books]]*Table1[[#This Row],[QTY]]","v":0},{"$f":"Table1[[#This Row],[QTY]]*Table1[[#This Row],[School & Library Price]]","v":0}]
[null,null,null,12,16,"Current Issues","Points of View","Should the Minimum Wage Be Raised?","978-1-5345-4203-7",null,null,"KidHaven Publishing","Library Bound Book",1,"2023","August 2022","Library","8.500 X 8.500","Author","Layla Owens",null,null,null,null,"N",null,"Grade 3","Grade 3 - 5","Even though readers may be too young to earn a wage, the issue of minimum wage affects many Americans to some extent. This book introduces readers to the hot topic of minimum wage increases, which is often in the news. While some people think that the federal minimum wage should be raised to $15 to help lift people out of poverty and pay for rising rents, other people think that it will hurt business and lead to higher consumer prices. This tough topic is tackled with familiar language and relatable situations so young readers can comprehend arguments on either side. Readers will embrace critical thinking skills as they weigh both sides and check out the facts.","English",25.6,20.48,"331.2/30973--dc23","24 pp.","https://greenhavenpublishing.com/9781534542037",null,{"$f":"Table1[[#This Row],['# of Books]]*Table1[[#This Row],[QTY]]","v":0},{"$f":"Table1[[#This Row],[QTY]]*Table1[[#This Row],[School & Library Price]]","v":0}]
[null,null,null,12,16,"Current Issues","Points of View","Should the Minimum Wage Be Raised?","978-1-5345-4204-4",null,null,"KidHaven Publishing","eBook",1,"2023","August 2022",null,null,"Author","Layla Owens",null,null,null,null,"N",null,"Grade 3","Grade 3 - 5","Even though readers may be too young to earn a wage, the issue of minimum wage affects many Americans to some extent. This book introduces readers to the hot topic of minimum wage increases, which is often in the news. While some people think that the federal minimum wage should be raised to $15 to help lift people out of poverty and pay for rising rents, other people think that it will hurt business and lead to higher consumer prices. This tough topic is tackled with familiar language and relatable situations so young readers can comprehend arguments on either side. Readers will embrace critical thinking skills as they weigh both sides and check out the facts.","English",25.6,20.48,"331.2/30973--dc23","24 pp.","https://greenhavenpublishing.com/9781534542044","http://www.epointplus.com/embed/9781534542044/?login=cyberrep&password=cyberrep",{"$f":"Table1[[#This Row],['# of Books]]*Table1[[#This Row],[QTY]]","v":0},{"$f":"Table1[[#This Row],[QTY]]*Table1[[#This Row],[School & Library Price]]","v":0}]
[null,null,null,13,16,"Current Issues","Points of View","Are School Uniforms Good for Students?","978-1-5345-2342-5",{"$f":"HYPERLINK(Table1[[#This Row],[eCommerce Hyperlink]],\"Book Weblink\")","v":"Book Weblink"},null,"KidHaven Publishing","Library Bound Book",1,"2018","August 2017","Library","8.500 X 8.500","Author","Katie Kawa",null,null,null,null,"N","960L","Grade 3","Grade 3 - 5","Some students wear uniforms to school each day. Others do not wear uniforms. Is one approach better than the other? Readers are immersed in the debate surrounding school uniforms through the use of informative text that presents multiple points of view. Eye-catching fact boxes, detailed graphic organizers, and full-color photographs enhance this engaging reading experience. Readers are encouraged to keep an open mind and developed an informed opinion as they explore the many sides of an issue that would directly affect them.","English",25.6,20.48,"371.5'1--dc23","24 pp.","https://greenhavenpublishing.com/9781534523425",null,{"$f":"Table1[[#This Row],['# of Books]]*Table1[[#This Row],[QTY]]","v":0},{"$f":"Table1[[#This Row],[QTY]]*Table1[[#This Row],[School & Library Price]]","v":0}]
[null,null,null,13,16,"Current Issues","Points of View","Are School Uniforms Good for Students?","978-1-5345-2343-2",{"$f":"HYPERLINK(Table1[[#This Row],[eCommerce Hyperlink]],\"Book Weblink\")","v":"Book Weblink"},null,"KidHaven Publishing","eBook",1,"2018","August 2017",null,null,"Author","Katie Kawa",null,null,null,null,"N","960L","Grade 3","Grade 3 - 5","Some students wear uniforms to school each day. Others do not wear uniforms. Is one approach better than the other? Readers are immersed in the debate surrounding school uniforms through the use of informative text that presents multiple points of view. Eye-catching fact boxes, detailed graphic organizers, and full-color photographs enhance this engaging reading experience. Readers are encouraged to keep an open mind and developed an informed opinion as they explore the many sides of an issue that would directly affect them.","English",25.6,20.48,"371.5'1--dc23","24 pp.","https://greenhavenpublishing.com/9781534523432",null,{"$f":"Table1[[#This Row],['# of Books]]*Table1[[#This Row],[QTY]]","v":0},{"$f":"Table1[[#This Row],[QTY]]*Table1[[#This Row],[School & Library Price]]","v":0}]
[null,null,null,13,16,"Current Issues","Points of View","Are Video Games Too Violent?","978-1-5345-2425-5",{"$f":"HYPERLINK(Table1[[#This Row],[eCommerce Hyperlink]],\"Book Weblink\")","v":"Book Weblink"},null,"KidHaven Publishing","Library Bound Book",1,"2018","January 2018","Library","8.500 X 8.500","Author","Nick Christopher","5.8","0.5",null,null,"N",null,"Grade 3","Grade 3 - 5","Violence in the media is a major topic of debate, and video games are often at the center of these debates. Are they too violent? Does playing a violent video game have any impact on a young person becoming violent themselves? Readers are encouraged to form their own answers to these challenging questions and to back them up with facts from the enlightening text. A detailed graphic organizer, vivid photographs, and helpful fact boxes are also included to guide readers as they explore the many facets of this controversial issue.","English",25.6,20.48,"794.8--dc23","24 pp.","https://greenhavenpublishing.com/9781534524255",null,{"$f":"Table1[[#This Row],['# of Books]]*Table1[[#This Row],[QTY]]","v":0},{"$f":"Table1[[#This Row],[QTY]]*Table1[[#This Row],[School & Library Price]]","v":0}]
[null,null,null,13,16,"Current Issues","Points of View","Are Video Games Too Violent?","978-1-5345-2426-2",{"$f":"HYPERLINK(Table1[[#This Row],[eCommerce Hyperlink]],\"Book Weblink\")","v":"Book Weblink"},null,"KidHaven Publishing","eBook",1,"2018","January 2018",null,null,"Author","Nick Christopher","5.8","0.5",null,null,"N",null,"Grade 3","Grade 3 - 5","Violence in the media is a major topic of debate, and video games are often at the center of these debates. Are they too violent? Does playing a violent video game have any impact on a young person becoming violent themselves? Readers are encouraged to form their own answers to these challenging questions and to back them up with facts from the enlightening text. A detailed graphic organizer, vivid photographs, and helpful fact boxes are also included to guide readers as they explore the many facets of this controversial issue.","English",25.6,20.48,"794.8--dc23","24 pp.","https://greenhavenpublishing.com/9781534524262",null,{"$f":"Table1[[#This Row],['# of Books]]*Table1[[#This Row],[QTY]]","v":0},{"$f":"Table1[[#This Row],[QTY]]*Table1[[#This Row],[School & Library Price]]","v":0}]
[null,null,null,13,16,"Current Issues","Points of View","Are Some Sports Too Dangerous for Kids?","978-1-5345-2559-7",{"$f":"HYPERLINK(Table1[[#This Row],[eCommerce Hyperlink]],\"Book Weblink\")","v":"Book Weblink"},null,"KidHaven Publishing","Library Bound Book",1,"2019","August 2018","Library","8.500 X 8.500","Author","Amy B. Rogers","5.8","0.5",null,null,"N",null,"Grade 3","Grade 3 - 5","Sports are fun, but they can be dangerous, too. As more information becomes available about concussions and other injuries, many people have wondered if certain sports, such as football, are too dangerous for kids to play. People often have strong opinions about this topic, and readers are introduced to these opinions in a way that enhances their critical-thinking skills. The facts readers need to develop their own informed opinion are included in the thoroughly researched main text and accompanying fact boxes. A graphic organizer and full-color photographs help readers visualize the many parts of this complex issue.","English",25.6,20.48,"796.028/9--dc23","24 pp.","https://greenhavenpublishing.com/9781534525597",null,{"$f":"Table1[[#This Row],['# of Books]]*Table1[[#This Row],[QTY]]","v":0},{"$f":"Table1[[#This Row],[QTY]]*Table1[[#This Row],[School & Library Price]]","v":0}]
[null,null,null,13,16,"Current Issues","Points of View","Are Some Sports Too Dangerous for Kids?","978-1-5345-2562-7",{"$f":"HYPERLINK(Table1[[#This Row],[eCommerce Hyperlink]],\"Book Weblink\")","v":"Book Weblink"},null,"KidHaven Publishing","eBook",1,"2019","August 2018",null,null,"Author","Amy B. Rogers","5.8","0.5",null,null,"N",null,"Grade 3","Grade 3 - 5","Sports are fun, but they can be dangerous, too. As more information becomes available about concussions and other injuries, many people have wondered if certain sports, such as football, are too dangerous for kids to play. People often have strong opinions about this topic, and readers are introduced to these opinions in a way that enhances their critical-thinking skills. The facts readers need to develop their own informed opinion are included in the thoroughly researched main text and accompanying fact boxes. A graphic organizer and full-color photographs help readers visualize the many parts of this complex issue.","English",25.6,20.48,"796.028/9--dc23","24 pp.","https://greenhavenpublishing.com/9781534525627",null,{"$f":"Table1[[#This Row],['# of Books]]*Table1[[#This Row],[QTY]]","v":0},{"$f":"Table1[[#This Row],[QTY]]*Table1[[#This Row],[School & Library Price]]","v":0}]
[null,null,null,13,16,"Current Issues","Points of View","Are Students Given Too Much Homework?","978-1-5345-2779-9",{"$f":"HYPERLINK(Table1[[#This Row],[eCommerce Hyperlink]],\"Book Weblink\")","v":"Book Weblink"},null,"KidHaven Publishing","Library Bound Book",1,"2019","January 2019","Library","8.500 X 8.500","Author","Katie Kawa",null,null,null,null,"N",null,"Grade 3","Grade 3 - 5","Students have always complained about the amount of homework they've been given, but informed debates about homework and its impact on students' lives and mental health have become more common in recent years. Readers are encouraged to understand both sides of the debate and to form their own opinion as they explore informative main text and fact boxes featuring relevant statistics. A detailed graphic organizer and full-color photographs work with the unbiased text to create a relatable reading experience that challenges readers to strengthen their critical-thinking skills as they study different ways to view a topic that directly affects them.","English",25.6,20.48,"371.3028'1--dc23","24 pp.","https://greenhavenpublishing.com/9781534527799",null,{"$f":"Table1[[#This Row],['# of Books]]*Table1[[#This Row],[QTY]]","v":0},{"$f":"Table1[[#This Row],[QTY]]*Table1[[#This Row],[School & Library Price]]","v":0}]
[null,null,null,13,16,"Current Issues","Points of View","Are Students Given Too Much Homework?","978-1-5345-2780-5",{"$f":"HYPERLINK(Table1[[#This Row],[eCommerce Hyperlink]],\"Book Weblink\")","v":"Book Weblink"},null,"KidHaven Publishing","eBook",1,"2019","January 2019",null,null,"Author","Katie Kawa",null,null,null,null,"N",null,"Grade 3","Grade 3 - 5","Students have always complained about the amount of homework they've been given, but informed debates about homework and its impact on students' lives and mental health have become more common in recent years. Readers are encouraged to understand both sides of the debate and to form their own opinion as they explore informative main text and fact boxes featuring relevant statistics. A detailed graphic organizer and full-color photographs work with the unbiased text to create a relatable reading experience that challenges readers to strengthen their critical-thinking skills as they study different ways to view a topic that directly affects them.","English",25.6,20.48,"371.3028'1--dc23","24 pp.","https://greenhavenpublishing.com/9781534527805",null,{"$f":"Table1[[#This Row],['# of Books]]*Table1[[#This Row],[QTY]]","v":0},{"$f":"Table1[[#This Row],[QTY]]*Table1[[#This Row],[School & Library Price]]","v":0}]
[null,null,null,13,16,"Current Issues","Points of View","Do Kids Need Recess?","978-1-5345-2787-4",{"$f":"HYPERLINK(Table1[[#This Row],[eCommerce Hyperlink]],\"Book Weblink\")","v":"Book Weblink"},null,"KidHaven Publishing","Library Bound Book",1,"2019","January 2019","Library","8.500 X 8.500","Author","Amy B. Rogers",null,null,null,null,"N",null,"Grade 3","Grade 3 - 5","Many young students enjoy recess, but some schools have started to phase out this period of playtime in favor of test preparation and more time in the classroom. Is this helping or harming children? Readers learn how to answer that question for themselves in an informed way with the help of balanced text that shows both sides of this debate. Fact boxes provide additional statistics and other essential information, while a helpful graphic organizer presents a creative way to develop critical-thinking skills. Relatable full-color photographs create a deeper sense of engagement as readers learn to respect other points of view.","English",25.6,20.48,"371.2'42--dc23","24 pp.","https://greenhavenpublishing.com/9781534527874",null,{"$f":"Table1[[#This Row],['# of Books]]*Table1[[#This Row],[QTY]]","v":0},{"$f":"Table1[[#This Row],[QTY]]*Table1[[#This Row],[School & Library Price]]","v":0}]
[null,null,null,13,16,"Current Issues","Points of View","Do Kids Need Recess?","978-1-5345-2788-1",{"$f":"HYPERLINK(Table1[[#This Row],[eCommerce Hyperlink]],\"Book Weblink\")","v":"Book Weblink"},null,"KidHaven Publishing","eBook",1,"2019","January 2019",null,null,"Author","Amy B. Rogers",null,null,null,null,"N",null,"Grade 3","Grade 3 - 5","Many young students enjoy recess, but some schools have started to phase out this period of playtime in favor of test preparation and more time in the classroom. Is this helping or harming children? Readers learn how to answer that question for themselves in an informed way with the help of balanced text that shows both sides of this debate. Fact boxes provide additional statistics and other essential information, while a helpful graphic organizer presents a creative way to develop critical-thinking skills. Relatable full-color photographs create a deeper sense of engagement as readers learn to respect other points of view.","English",25.6,20.48,"371.2'42--dc23","24 pp.","https://greenhavenpublishing.com/9781534527881",null,{"$f":"Table1[[#This Row],['# of Books]]*Table1[[#This Row],[QTY]]","v":0},{"$f":"Table1[[#This Row],[QTY]]*Table1[[#This Row],[School & Library Price]]","v":0}]
[null,null,null,13,16,"Current Issues","Points of View","Are Humans Causing Climate Change?","978-1-5345-3196-3",{"$f":"HYPERLINK(Table1[[#This Row],[eCommerce Hyperlink]],\"Book Weblink\")","v":"Book Weblink"},null,"KidHaven Publishing","Library Bound Book",1,"2020","January 2020","Library","8.500 X 8.500","Author","Naomi Osborne",null,null,null,null,"N",null,"Grade 3","Grade 3 - 5","The topic of climate change often inspires very strong feelings, and it can sometimes be difficult to sort through the feelings to find the facts. That's exactly what readers are able to do in this helpful guide to this important debate. Balanced, unbiased text and fact boxes filled with relevant data and statistics help readers develop an intelligent opinion about climate change, and they're also encouraged to examine why others might hold an opposing viewpoint. With the help of an engaging graphic organizer and full-color photographs, readers are able to sharpen their critical thinking skills and their science knowledge.","English",25.6,20.48,"363.738'74--dc23","24 pp.","https://greenhavenpublishing.com/9781534531963",null,{"$f":"Table1[[#This Row],['# of Books]]*Table1[[#This Row],[QTY]]","v":0},{"$f":"Table1[[#This Row],[QTY]]*Table1[[#This Row],[School & Library Price]]","v":0}]
[null,null,null,13,16,"Current Issues","Points of View","Are Humans Causing Climate Change?","978-1-5345-3202-1",{"$f":"HYPERLINK(Table1[[#This Row],[eCommerce Hyperlink]],\"Book Weblink\")","v":"Book Weblink"},null,"KidHaven Publishing","eBook",1,"2020","January 2020",null,null,"Author","Naomi Osborne",null,null,null,null,"N",null,"Grade 3","Grade 3 - 5","The topic of climate change often inspires very strong feelings, and it can sometimes be difficult to sort through the feelings to find the facts. That's exactly what readers are able to do in this helpful guide to this important debate. Balanced, unbiased text and fact boxes filled with relevant data and statistics help readers develop an intelligent opinion about climate change, and they're also encouraged to examine why others might hold an opposing viewpoint. With the help of an engaging graphic organizer and full-color photographs, readers are able to sharpen their critical thinking skills and their science knowledge.","English",25.6,20.48,"363.738'74--dc23","24 pp.","https://greenhavenpublishing.com/9781534532021",null,{"$f":"Table1[[#This Row],['# of Books]]*Table1[[#This Row],[QTY]]","v":0},{"$f":"Table1[[#This Row],[QTY]]*Table1[[#This Row],[School & Library Price]]","v":0}]
[null,null,null,13,17,"Current Issues","Points of View","Should School Lunches Be Free?","978-1-5345-2334-0",{"$f":"HYPERLINK(Table1[[#This Row],[eCommerce Hyperlink]],\"Book Weblink\")","v":"Book Weblink"},null,"KidHaven Publishing","Library Bound Book",1,"2018","August 2017","Library","8.500 X 8.500","Author","David Anthony",null,null,null,null,"N",null,"Grade 3","Grade 3 - 5","School lunches should be free for all students. Some people might strongly agree with this statement, while others might strongly disagree. In order to engage in a debate about this topic that affects readers' everyday lives, readers first need to understand both sides. They are able to do this with the help of balanced main text, fact boxes, and graphic organizers. Different points of view are clearly presented to readers, who are encouraged to think critically about an issue that would impact them and their families. This valuable reading experience is enhanced through the use of colorful photographs.","English",25.6,20.48,"371.7'16--dc23","24 pp.","https://greenhavenpublishing.com/9781534523340",null,{"$f":"Table1[[#This Row],['# of Books]]*Table1[[#This Row],[QTY]]","v":0},{"$f":"Table1[[#This Row],[QTY]]*Table1[[#This Row],[School & Library Price]]","v":0}]
[null,null,null,13,17,"Current Issues","Points of View","Should School Lunches Be Free?","978-1-5345-2335-7",{"$f":"HYPERLINK(Table1[[#This Row],[eCommerce Hyperlink]],\"Book Weblink\")","v":"Book Weblink"},null,"KidHaven Publishing","eBook",1,"2018","August 2017",null,null,"Author","David Anthony",null,null,null,null,"N",null,"Grade 3","Grade 3 - 5","School lunches should be free for all students. Some people might strongly agree with this statement, while others might strongly disagree. In order to engage in a debate about this topic that affects readers' everyday lives, readers first need to understand both sides. They are able to do this with the help of balanced main text, fact boxes, and graphic organizers. Different points of view are clearly presented to readers, who are encouraged to think critically about an issue that would impact them and their families. This valuable reading experience is enhanced through the use of colorful photographs.","English",25.6,20.48,"371.7'16--dc23","24 pp.","https://greenhavenpublishing.com/9781534523357",null,{"$f":"Table1[[#This Row],['# of Books]]*Table1[[#This Row],[QTY]]","v":0},{"$f":"Table1[[#This Row],[QTY]]*Table1[[#This Row],[School & Library Price]]","v":0}]
[null,null,null,13,17,"Current Issues","Points of View","Should Students Have to Take Tests?","978-1-5345-2346-3",{"$f":"HYPERLINK(Table1[[#This Row],[eCommerce Hyperlink]],\"Book Weblink\")","v":"Book Weblink"},null,"KidHaven Publishing","Library Bound Book",1,"2018","August 2017","Library","8.500 X 8.500","Author","Robert M. Hamilton ",null,null,null,null,"N",null,"Grade 3","Grade 3 - 5","Most students would gladly stop taking tests, but is that really the best thing for them? Through enlightening main text, detailed fact boxes, colorful photographs, and helpful graphic organizers, readers are presented with opposing points of view on the importance of testing students. Readers are encouraged to use the information they discover to form their own opinions and back those opinions up with relevant facts. By exposing readers to multiple points of view, this text instills in them an appreciation for respectful debate and vital critical thinking skills.","English",25.6,20.48,"371.26--dc23","24 pp.","https://greenhavenpublishing.com/9781534523463",null,{"$f":"Table1[[#This Row],['# of Books]]*Table1[[#This Row],[QTY]]","v":0},{"$f":"Table1[[#This Row],[QTY]]*Table1[[#This Row],[School & Library Price]]","v":0}]
[null,null,null,13,17,"Current Issues","Points of View","Should Students Have to Take Tests?","978-1-5345-2347-0",{"$f":"HYPERLINK(Table1[[#This Row],[eCommerce Hyperlink]],\"Book Weblink\")","v":"Book Weblink"},null,"KidHaven Publishing","eBook",1,"2018","August 2017",null,null,"Author","Robert M. Hamilton ",null,null,null,null,"N",null,"Grade 3","Grade 3 - 5","Most students would gladly stop taking tests, but is that really the best thing for them? Through enlightening main text, detailed fact boxes, colorful photographs, and helpful graphic organizers, readers are presented with opposing points of view on the importance of testing students. Readers are encouraged to use the information they discover to form their own opinions and back those opinions up with relevant facts. By exposing readers to multiple points of view, this text instills in them an appreciation for respectful debate and vital critical thinking skills.","English",25.6,20.48,"371.26--dc23","24 pp.","https://greenhavenpublishing.com/9781534523470",null,{"$f":"Table1[[#This Row],['# of Books]]*Table1[[#This Row],[QTY]]","v":0},{"$f":"Table1[[#This Row],[QTY]]*Table1[[#This Row],[School & Library Price]]","v":0}]
[null,null,null,13,17,"Current Issues","Points of View","Does Voting Matter?","978-1-5345-2429-3",{"$f":"HYPERLINK(Table1[[#This Row],[eCommerce Hyperlink]],\"Book Weblink\")","v":"Book Weblink"},null,"KidHaven Publishing","Library Bound Book",1,"2018","January 2018","Library","8.500 X 8.500","Author","Leslie Beckett","5.8","0.5","30",null,"N","1010L","Grade 3","Grade 3 - 5","Society can be cynical at times, and this can lead to apathy. One example of this is the question of whether or not a person’s individual vote in an election actually matters. Readers are exposed to the different points of view about this hot-button topic, and they learn to develop their own viewpoint about the democratic process and to back it up with relevant facts. They discover those facts in the engaging main text, eye-catching fact boxes, and helpful graphic organizers. Colorful, relatable photographs also help readers see how this debate is reflected in the world around them.","English",25.6,20.48,"323.60973--dc23","24 pp.","https://greenhavenpublishing.com/9781534524293",null,{"$f":"Table1[[#This Row],['# of Books]]*Table1[[#This Row],[QTY]]","v":0},{"$f":"Table1[[#This Row],[QTY]]*Table1[[#This Row],[School & Library Price]]","v":0}]
[null,null,null,13,17,"Current Issues","Points of View","Does Voting Matter?","978-1-5345-2430-9",{"$f":"HYPERLINK(Table1[[#This Row],[eCommerce Hyperlink]],\"Book Weblink\")","v":"Book Weblink"},null,"KidHaven Publishing","eBook",1,"2018","January 2018",null,null,"Author","Leslie Beckett","5.8","0.5","30",null,"N","1010L","Grade 3","Grade 3 - 5","Society can be cynical at times, and this can lead to apathy. One example of this is the question of whether or not a person’s individual vote in an election actually matters. Readers are exposed to the different points of view about this hot-button topic, and they learn to develop their own viewpoint about the democratic process and to back it up with relevant facts. They discover those facts in the engaging main text, eye-catching fact boxes, and helpful graphic organizers. Colorful, relatable photographs also help readers see how this debate is reflected in the world around them.","English",25.6,20.48,"323.60973--dc23","24 pp.","https://greenhavenpublishing.com/9781534524309",null,{"$f":"Table1[[#This Row],['# of Books]]*Table1[[#This Row],[QTY]]","v":0},{"$f":"Table1[[#This Row],[QTY]]*Table1[[#This Row],[School & Library Price]]","v":0}]
[null,null,null,13,17,"Current Issues","Points of View","Is It Wrong to Ban Books?","978-1-5345-2427-9",{"$f":"HYPERLINK(Table1[[#This Row],[eCommerce Hyperlink]],\"Book Weblink\")","v":"Book Weblink"},null,"KidHaven Publishing","Library Bound Book",1,"2018","January 2018","Library","8.500 X 8.500","Author","Mary Austen","5.5","0.5",null,null,"N",null,"Grade 3","Grade 3 - 5","When people discuss the idea of banning books, they are also discussing much broader concepts, including censorship, basic freedoms, and the power of religious and political institutions. These challenging topics are presented in accessible ways as readers explore the debate surrounding banned books. As they immerse themselves in many viewpoints surrounding this debate through engaging text, fact boxes, vibrant photographs, and graphic organizers, they discover the importance of developing an informed, independent opinion about issues that affect their lives.","English",25.6,20.48,"344.7305/31--dc23","24 pp.","https://greenhavenpublishing.com/9781534524279",null,{"$f":"Table1[[#This Row],['# of Books]]*Table1[[#This Row],[QTY]]","v":0},{"$f":"Table1[[#This Row],[QTY]]*Table1[[#This Row],[School & Library Price]]","v":0}]
[null,null,null,13,17,"Current Issues","Points of View","Is It Wrong to Ban Books?","978-1-5345-2428-6",{"$f":"HYPERLINK(Table1[[#This Row],[eCommerce Hyperlink]],\"Book Weblink\")","v":"Book Weblink"},null,"KidHaven Publishing","eBook",1,"2018","January 2018",null,null,"Author","Mary Austen","5.5","0.5",null,null,"N",null,"Grade 3","Grade 3 - 5","When people discuss the idea of banning books, they are also discussing much broader concepts, including censorship, basic freedoms, and the power of religious and political institutions. These challenging topics are presented in accessible ways as readers explore the debate surrounding banned books. As they immerse themselves in many viewpoints surrounding this debate through engaging text, fact boxes, vibrant photographs, and graphic organizers, they discover the importance of developing an informed, independent opinion about issues that affect their lives.","English",25.6,20.48,"344.7305/31--dc23","24 pp.","https://greenhavenpublishing.com/9781534524286",null,{"$f":"Table1[[#This Row],['# of Books]]*Table1[[#This Row],[QTY]]","v":0},{"$f":"Table1[[#This Row],[QTY]]*Table1[[#This Row],[School & Library Price]]","v":0}]
[null,null,null,13,17,"Current Issues","Points of View","Should Girls Play Sports with Boys?","978-1-5345-2421-7",{"$f":"HYPERLINK(Table1[[#This Row],[eCommerce Hyperlink]],\"Book Weblink\")","v":"Book Weblink"},null,"KidHaven Publishing","Library Bound Book",1,"2018","January 2018","Library","8.500 X 8.500","Author","Amy B. Rogers","4.9","0.5",null,null,"N",null,"Grade 3","Grade 3 - 5","Why do boys and girls often play on separate sports teams? Some might argue that biological differences play a part in separating genders on the athletic field. Others might say that sexist mindsets are the main reason for the division of genders in sports. These points of view, along with others, are presented to readers through informative, engaging main text, fact boxes, and graphic organizers. As readers study these different perspectives on the same issue, they develop their own informed opinions and gain a deeper understanding of gender and its role in everyday life.","English",25.6,20.48,"344.73'099--dc23","24 pp.","https://greenhavenpublishing.com/9781534524217",null,{"$f":"Table1[[#This Row],['# of Books]]*Table1[[#This Row],[QTY]]","v":0},{"$f":"Table1[[#This Row],[QTY]]*Table1[[#This Row],[School & Library Price]]","v":0}]
[null,null,null,13,17,"Current Issues","Points of View","Should Girls Play Sports with Boys?","978-1-5345-2422-4",{"$f":"HYPERLINK(Table1[[#This Row],[eCommerce Hyperlink]],\"Book Weblink\")","v":"Book Weblink"},null,"KidHaven Publishing","eBook",1,"2018","January 2018",null,null,"Author","Amy B. Rogers","4.9","0.5",null,null,"N",null,"Grade 3","Grade 3 - 5","Why do boys and girls often play on separate sports teams? Some might argue that biological differences play a part in separating genders on the athletic field. Others might say that sexist mindsets are the main reason for the division of genders in sports. These points of view, along with others, are presented to readers through informative, engaging main text, fact boxes, and graphic organizers. As readers study these different perspectives on the same issue, they develop their own informed opinions and gain a deeper understanding of gender and its role in everyday life.","English",25.6,20.48,"344.73'099--dc23","24 pp.","https://greenhavenpublishing.com/9781534524224",null,{"$f":"Table1[[#This Row],['# of Books]]*Table1[[#This Row],[QTY]]","v":0},{"$f":"Table1[[#This Row],[QTY]]*Table1[[#This Row],[School & Library Price]]","v":0}]
[null,null,null,13,17,"Current Issues","Points of View","Should Junk Food Be Banned in Schools?","978-1-5345-2419-4",{"$f":"HYPERLINK(Table1[[#This Row],[eCommerce Hyperlink]],\"Book Weblink\")","v":"Book Weblink"},null,"KidHaven Publishing","Library Bound Book",1,"2018","January 2018","Library","8.500 X 8.500","Author","Riley Lawrence","5.5","0.5",null,null,"N",null,"Grade 3","Grade 3 - 5","The debate over junk food in schools brings up important points about childhood obesity, public health, and personal choice. All these issues are addressed as readers view arguments both for and against banning junk food in school cafeterias. The balanced, fact-filled text encourages readers to develop their own informed opinions about this issue that directly affects their lives. Colorful photographs, a detailed graphic organizer, and additional fact boxes enhance the main text to give readers a comprehensive understanding of this ongoing debate.","English",25.6,20.48,"371.7'160973--dc23","24 pp.","https://greenhavenpublishing.com/9781534524194",null,{"$f":"Table1[[#This Row],['# of Books]]*Table1[[#This Row],[QTY]]","v":0},{"$f":"Table1[[#This Row],[QTY]]*Table1[[#This Row],[School & Library Price]]","v":0}]
[null,null,null,13,17,"Current Issues","Points of View","Should Junk Food Be Banned in Schools?","978-1-5345-2420-0",{"$f":"HYPERLINK(Table1[[#This Row],[eCommerce Hyperlink]],\"Book Weblink\")","v":"Book Weblink"},null,"KidHaven Publishing","eBook",1,"2018","January 2018",null,null,"Author","Riley Lawrence","5.5","0.5",null,null,"N",null,"Grade 3","Grade 3 - 5","The debate over junk food in schools brings up important points about childhood obesity, public health, and personal choice. All these issues are addressed as readers view arguments both for and against banning junk food in school cafeterias. The balanced, fact-filled text encourages readers to develop their own informed opinions about this issue that directly affects their lives. Colorful photographs, a detailed graphic organizer, and additional fact boxes enhance the main text to give readers a comprehensive understanding of this ongoing debate.","English",25.6,20.48,"371.7'160973--dc23","24 pp.","https://greenhavenpublishing.com/9781534524200",null,{"$f":"Table1[[#This Row],['# of Books]]*Table1[[#This Row],[QTY]]","v":0},{"$f":"Table1[[#This Row],[QTY]]*Table1[[#This Row],[School & Library Price]]","v":0}]
[null,null,null,13,17,"Current Issues","Points of View","Do Music and Art Classes Matter?","978-1-5345-2567-2",{"$f":"HYPERLINK(Table1[[#This Row],[eCommerce Hyperlink]],\"Book Weblink\")","v":"Book Weblink"},null,"KidHaven Publishing","Library Bound Book",1,"2019","August 2018","Library","8.500 X 8.500","Author","Robert M. Hamilton","5.7","0.5",null,null,"N",null,"Grade 3","Grade 3 - 5","When schools need to cut their budgets, music and art classes are often some of the first things to go. Why do some people feel these classes are unnecessary? Why do others feel they're essential? These two questions are at the heart of what readers will find as they explore this essential education debate. The engaging text challenges them to understand why people have different points of view and to form their own point of view using facts, which they find in accessible fact boxes. With graphic organizers and colorful photographs filling the pages, readers will enjoy this critical-thinking exercise.","English",25.6,20.48,"700--dc23","24 pp.","https://greenhavenpublishing.com/9781534525672",null,{"$f":"Table1[[#This Row],['# of Books]]*Table1[[#This Row],[QTY]]","v":0},{"$f":"Table1[[#This Row],[QTY]]*Table1[[#This Row],[School & Library Price]]","v":0}]
[null,null,null,13,17,"Current Issues","Points of View","Do Music and Art Classes Matter?","978-1-5345-2570-2",{"$f":"HYPERLINK(Table1[[#This Row],[eCommerce Hyperlink]],\"Book Weblink\")","v":"Book Weblink"},null,"KidHaven Publishing","eBook",1,"2019","August 2018",null,null,"Author","Robert M. Hamilton","5.7","0.5",null,null,"N",null,"Grade 3","Grade 3 - 5","When schools need to cut their budgets, music and art classes are often some of the first things to go. Why do some people feel these classes are unnecessary? Why do others feel they're essential? These two questions are at the heart of what readers will find as they explore this essential education debate. The engaging text challenges them to understand why people have different points of view and to form their own point of view using facts, which they find in accessible fact boxes. With graphic organizers and colorful photographs filling the pages, readers will enjoy this critical-thinking exercise.","English",25.6,20.48,"700--dc23","24 pp.","https://greenhavenpublishing.com/9781534525702",null,{"$f":"Table1[[#This Row],['# of Books]]*Table1[[#This Row],[QTY]]","v":0},{"$f":"Table1[[#This Row],[QTY]]*Table1[[#This Row],[School & Library Price]]","v":0}]
[null,null,null,13,17,"Current Issues","Points of View","Does Technology Make People Lazy?","978-1-5345-2563-4",{"$f":"HYPERLINK(Table1[[#This Row],[eCommerce Hyperlink]],\"Book Weblink\")","v":"Book Weblink"},null,"KidHaven Publishing","Library Bound Book",1,"2019","August 2018","Library","8.500 X 8.500","Author","Katie Kawa","5.5","0.5",null,null,"N",null,"Grade 3","Grade 3 - 5","Technology has made life easier for people around the world, but is that necessarily a good thing? Some people believe technology has made people lazier, but others believe it actually makes people more productive. Readers deepen their understanding of this debate through detailed main text, concise fact boxes, a helpful graphic organizer, and relatable photographs. As they read, they're asked to challenge their own beliefs and develop their own informed opinion that they can back up with relevant facts. This reading experience engages critical-thinking skills and encourages a healthy respect for opposing viewpoints.","English",25.6,20.48,"303.48'3--dc23","24 pp.","https://greenhavenpublishing.com/9781534525634",null,{"$f":"Table1[[#This Row],['# of Books]]*Table1[[#This Row],[QTY]]","v":0},{"$f":"Table1[[#This Row],[QTY]]*Table1[[#This Row],[School & Library Price]]","v":0}]
[null,null,null,13,17,"Current Issues","Points of View","Does Technology Make People Lazy?","978-1-5345-2566-5",{"$f":"HYPERLINK(Table1[[#This Row],[eCommerce Hyperlink]],\"Book Weblink\")","v":"Book Weblink"},null,"KidHaven Publishing","eBook",1,"2019","August 2018",null,null,"Author","Katie Kawa","5.5","0.5",null,null,"N",null,"Grade 3","Grade 3 - 5","Technology has made life easier for people around the world, but is that necessarily a good thing? Some people believe technology has made people lazier, but others believe it actually makes people more productive. Readers deepen their understanding of this debate through detailed main text, concise fact boxes, a helpful graphic organizer, and relatable photographs. As they read, they're asked to challenge their own beliefs and develop their own informed opinion that they can back up with relevant facts. This reading experience engages critical-thinking skills and encourages a healthy respect for opposing viewpoints.","English",25.6,20.48,"303.48'3--dc23","24 pp.","https://greenhavenpublishing.com/9781534525665",null,{"$f":"Table1[[#This Row],['# of Books]]*Table1[[#This Row],[QTY]]","v":0},{"$f":"Table1[[#This Row],[QTY]]*Table1[[#This Row],[School & Library Price]]","v":0}]
[null,null,null,13,17,"Current Issues","Points of View","Is It Our Job to Protect the Environment?","978-1-5345-2571-9",{"$f":"HYPERLINK(Table1[[#This Row],[eCommerce Hyperlink]],\"Book Weblink\")","v":"Book Weblink"},null,"KidHaven Publishing","Library Bound Book",1,"2019","August 2018","Library","8.500 X 8.500","Author","David Anthony","5.5","0.5",null,null,"N",null,"Grade 3","Grade 3 - 5","Many people believe humans have a responsibility to take care of the planet. However, other people believe it isn't their job to protect the environment. Readers discover the facts behind these two opposing points of view and how those points of view determine people's actions. Along the way, they examine their own opinion on this topic, which aligns with common science curricula, and learn to use facts to back up their opinion. Fact boxes, graphic organizers, and vibrant photographs come together to create an eye-catching design that enhances this exploration of critical-thinking skills.","English",25.6,20.48,"363.7--dc23","24 pp.","https://greenhavenpublishing.com/9781534525719",null,{"$f":"Table1[[#This Row],['# of Books]]*Table1[[#This Row],[QTY]]","v":0},{"$f":"Table1[[#This Row],[QTY]]*Table1[[#This Row],[School & Library Price]]","v":0}]
[null,null,null,13,17,"Current Issues","Points of View","Is It Our Job to Protect the Environment?","978-1-5345-2574-0",{"$f":"HYPERLINK(Table1[[#This Row],[eCommerce Hyperlink]],\"Book Weblink\")","v":"Book Weblink"},null,"KidHaven Publishing","eBook",1,"2019","August 2018",null,null,"Author","David Anthony","5.5","0.5",null,null,"N",null,"Grade 3","Grade 3 - 5","Many people believe humans have a responsibility to take care of the planet. However, other people believe it isn't their job to protect the environment. Readers discover the facts behind these two opposing points of view and how those points of view determine people's actions. Along the way, they examine their own opinion on this topic, which aligns with common science curricula, and learn to use facts to back up their opinion. Fact boxes, graphic organizers, and vibrant photographs come together to create an eye-catching design that enhances this exploration of critical-thinking skills.","English",25.6,20.48,"363.7--dc23","24 pp.","https://greenhavenpublishing.com/9781534525740",null,{"$f":"Table1[[#This Row],['# of Books]]*Table1[[#This Row],[QTY]]","v":0},{"$f":"Table1[[#This Row],[QTY]]*Table1[[#This Row],[School & Library Price]]","v":0}]
[null,null,null,13,17,"Current Issues","Points of View","Is It Wrong to Eat Meat?","978-1-5345-2575-7",{"$f":"HYPERLINK(Table1[[#This Row],[eCommerce Hyperlink]],\"Book Weblink\")","v":"Book Weblink"},null,"KidHaven Publishing","Library Bound Book",1,"2019","August 2018","Library","8.500 X 8.500","Author","Kate Rogers","5","0.5",null,null,"N",null,"Grade 3","Grade 3 - 5","Why do some people choose not to eat meat? Is it wrong to eat an animal that was once alive? These questions are complex and challenge young people's critical-thinking skills, and they form the backbone of this inside look at the debates surrounding vegetarianism, veganism, and eating meat. As readers explore this topic through engaging main text, accessible fact boxes, a detailed graphic organizer, and colorful photographs, they're introduced to different points of view and the facts used to support these differing viewpoints. This teaches young readers the importance of understanding differing perspectives and using facts to inform an opinion.","English",25.6,20.48,"338.1'76--dc23","24 pp.","https://greenhavenpublishing.com/9781534525757",null,{"$f":"Table1[[#This Row],['# of Books]]*Table1[[#This Row],[QTY]]","v":0},{"$f":"Table1[[#This Row],[QTY]]*Table1[[#This Row],[School & Library Price]]","v":0}]
[null,null,null,13,17,"Current Issues","Points of View","Is It Wrong to Eat Meat?","978-1-5345-2578-8",{"$f":"HYPERLINK(Table1[[#This Row],[eCommerce Hyperlink]],\"Book Weblink\")","v":"Book Weblink"},null,"KidHaven Publishing","eBook",1,"2019","August 2018",null,null,"Author","Kate Rogers","5","0.5",null,null,"N",null,"Grade 3","Grade 3 - 5","Why do some people choose not to eat meat? Is it wrong to eat an animal that was once alive? These questions are complex and challenge young people's critical-thinking skills, and they form the backbone of this inside look at the debates surrounding vegetarianism, veganism, and eating meat. As readers explore this topic through engaging main text, accessible fact boxes, a detailed graphic organizer, and colorful photographs, they're introduced to different points of view and the facts used to support these differing viewpoints. This teaches young readers the importance of understanding differing perspectives and using facts to inform an opinion.","English",25.6,20.48,"338.1'76--dc23","24 pp.","https://greenhavenpublishing.com/9781534525788",null,{"$f":"Table1[[#This Row],['# of Books]]*Table1[[#This Row],[QTY]]","v":0},{"$f":"Table1[[#This Row],[QTY]]*Table1[[#This Row],[School & Library Price]]","v":0}]
[null,null,null,13,17,"Current Issues","Points of View","Should Students Go to School All Year Round?","978-1-5345-2555-9",{"$f":"HYPERLINK(Table1[[#This Row],[eCommerce Hyperlink]],\"Book Weblink\")","v":"Book Weblink"},null,"KidHaven Publishing","Library Bound Book",1,"2019","August 2018","Library","8.500 X 8.500","Author","Elizabeth Morgan","5.1","0.5",null,null,"N",null,"Grade 3","Grade 3 - 5","In some parts of the world, students go to school all year. Is this a good idea? Readers ask themselves this question as they explore different arguments for and against year-round schooling. As they discover these different points of view, they learn the importance of respecting other opinions. The informative main text is supplemented by fact boxes, which readers can use to develop their own informed opinion on this topic. Full-color photographs and a helpful graphic organizer enhance the reading experience, keeping young readers engaged as they develop essential critical-thinking skills.","English",25.6,20.48,"371.2'36--dc23","24 pp.","https://greenhavenpublishing.com/9781534525559",null,{"$f":"Table1[[#This Row],['# of Books]]*Table1[[#This Row],[QTY]]","v":0},{"$f":"Table1[[#This Row],[QTY]]*Table1[[#This Row],[School & Library Price]]","v":0}]
[null,null,null,13,17,"Current Issues","Points of View","Should Students Go to School All Year Round?","978-1-5345-2558-0",{"$f":"HYPERLINK(Table1[[#This Row],[eCommerce Hyperlink]],\"Book Weblink\")","v":"Book Weblink"},null,"KidHaven Publishing","eBook",1,"2019","August 2018",null,null,"Author","Elizabeth Morgan","5.1","0.5",null,null,"N",null,"Grade 3","Grade 3 - 5","In some parts of the world, students go to school all year. Is this a good idea? Readers ask themselves this question as they explore different arguments for and against year-round schooling. As they discover these different points of view, they learn the importance of respecting other opinions. The informative main text is supplemented by fact boxes, which readers can use to develop their own informed opinion on this topic. Full-color photographs and a helpful graphic organizer enhance the reading experience, keeping young readers engaged as they develop essential critical-thinking skills.","English",25.6,20.48,"371.2'36--dc23","24 pp.","https://greenhavenpublishing.com/9781534525580",null,{"$f":"Table1[[#This Row],['# of Books]]*Table1[[#This Row],[QTY]]","v":0},{"$f":"Table1[[#This Row],[QTY]]*Table1[[#This Row],[School & Library Price]]","v":0}]
[null,null,null,13,17,"Current Issues","Points of View","Should a College Education Be Free?","978-1-5345-2783-6",{"$f":"HYPERLINK(Table1[[#This Row],[eCommerce Hyperlink]],\"Book Weblink\")","v":"Book Weblink"},null,"KidHaven Publishing","Library Bound Book",1,"2019","January 2019","Library","8.500 X 8.500","Author","Robert M. Hamilton",null,null,null,null,"N",null,"Grade 3","Grade 3 - 5","Some politicians have gained fame in recent years for promoting the idea that a college education should be free. Is this a good idea? How could it be achieved? Readers discover different approaches to the concept of a free college education through fact-filled main text supplemented with full-color photographs that allows them to develop their own informed opinion on this issue, which could impact their future. Fact boxes and a helpful graphic organizer provide additional information to help readers understand people on both sides of the debate over the cost of a college education.","English",25.6,20.48,"378.3'8--dc23","24 pp.","https://greenhavenpublishing.com/9781534527836",null,{"$f":"Table1[[#This Row],['# of Books]]*Table1[[#This Row],[QTY]]","v":0},{"$f":"Table1[[#This Row],[QTY]]*Table1[[#This Row],[School & Library Price]]","v":0}]
[null,null,null,13,17,"Current Issues","Points of View","Should a College Education Be Free?","978-1-5345-2784-3",{"$f":"HYPERLINK(Table1[[#This Row],[eCommerce Hyperlink]],\"Book Weblink\")","v":"Book Weblink"},null,"KidHaven Publishing","eBook",1,"2019","January 2019",null,null,"Author","Robert M. Hamilton",null,null,null,null,"N",null,"Grade 3","Grade 3 - 5","Some politicians have gained fame in recent years for promoting the idea that a college education should be free. Is this a good idea? How could it be achieved? Readers discover different approaches to the concept of a free college education through fact-filled main text supplemented with full-color photographs that allows them to develop their own informed opinion on this issue, which could impact their future. Fact boxes and a helpful graphic organizer provide additional information to help readers understand people on both sides of the debate over the cost of a college education.","English",25.6,20.48,"378.3'8--dc23","24 pp.","https://greenhavenpublishing.com/9781534527843",null,{"$f":"Table1[[#This Row],['# of Books]]*Table1[[#This Row],[QTY]]","v":0},{"$f":"Table1[[#This Row],[QTY]]*Table1[[#This Row],[School & Library Price]]","v":0}]
[null,null,null,13,17,"Current Issues","Points of View","Should Animal Testing Be Banned?","978-1-5345-2791-1",{"$f":"HYPERLINK(Table1[[#This Row],[eCommerce Hyperlink]],\"Book Weblink\")","v":"Book Weblink"},null,"KidHaven Publishing","Library Bound Book",1,"2019","January 2019","Library","8.500 X 8.500","Author","Riley Lawrence",null,null,null,null,"N",null,"Grade 3","Grade 3 - 5","Animal testing is a controversial practice, and many people have strong feelings about it. Understanding both sides of the debate about animal testing is crucial for the development of an informed opinion about this issue. Through unbiased main text and fact boxes, readers are presented with information and statistics used by those who support and oppose animal testing, and they are encouraged to use what they learn to decide where they stand. This critical-thinking exercise is enhanced through the use of full-color photographs and a well-designed graphic organizer.","English",25.6,20.48,"179/.4--dc23","24 pp.","https://greenhavenpublishing.com/9781534527911",null,{"$f":"Table1[[#This Row],['# of Books]]*Table1[[#This Row],[QTY]]","v":0},{"$f":"Table1[[#This Row],[QTY]]*Table1[[#This Row],[School & Library Price]]","v":0}]
[null,null,null,13,17,"Current Issues","Points of View","Should Animal Testing Be Banned?","978-1-5345-2792-8",{"$f":"HYPERLINK(Table1[[#This Row],[eCommerce Hyperlink]],\"Book Weblink\")","v":"Book Weblink"},null,"KidHaven Publishing","eBook",1,"2019","January 2019",null,null,"Author","Riley Lawrence",null,null,null,null,"N",null,"Grade 3","Grade 3 - 5","Animal testing is a controversial practice, and many people have strong feelings about it. Understanding both sides of the debate about animal testing is crucial for the development of an informed opinion about this issue. Through unbiased main text and fact boxes, readers are presented with information and statistics used by those who support and oppose animal testing, and they are encouraged to use what they learn to decide where they stand. This critical-thinking exercise is enhanced through the use of full-color photographs and a well-designed graphic organizer.","English",25.6,20.48,"179/.4--dc23","24 pp.","https://greenhavenpublishing.com/9781534527928",null,{"$f":"Table1[[#This Row],['# of Books]]*Table1[[#This Row],[QTY]]","v":0},{"$f":"Table1[[#This Row],[QTY]]*Table1[[#This Row],[School & Library Price]]","v":0}]
[null,null,null,13,17,"Current Issues","Points of View","Should Cell Phones Be Allowed in Classrooms?","978-1-5345-2775-1",{"$f":"HYPERLINK(Table1[[#This Row],[eCommerce Hyperlink]],\"Book Weblink\")","v":"Book Weblink"},null,"KidHaven Publishing","Library Bound Book",1,"2019","January 2019","Library","8.500 X 8.500","Author","Lorraine Harrison",null,null,null,null,"N",null,"Grade 3","Grade 3 - 5","Many young people have their own cell phones, and they use them to connect with family and friends and to easily find information. This can pose a problem in schools, as cell phones become a distraction or a tool used to cheat on tests and quizzes. Many people have strong opinions on cell phone use in schools, and this debate opens up important questions about students' rights. Readers are introduced to this debate through balanced text and a graphic organizer that clearly present the arguments on both sides. Fact boxes and full-color photographs enhance this crucial critical-thinking exercise.","English",25.6,20.48,"371.33--dc23","24 pp.","https://greenhavenpublishing.com/9781534527751",null,{"$f":"Table1[[#This Row],['# of Books]]*Table1[[#This Row],[QTY]]","v":0},{"$f":"Table1[[#This Row],[QTY]]*Table1[[#This Row],[School & Library Price]]","v":0}]
[null,null,null,13,17,"Current Issues","Points of View","Should Cell Phones Be Allowed in Classrooms?","978-1-5345-2776-8",{"$f":"HYPERLINK(Table1[[#This Row],[eCommerce Hyperlink]],\"Book Weblink\")","v":"Book Weblink"},null,"KidHaven Publishing","eBook",1,"2019","January 2019",null,null,"Author","Lorraine Harrison",null,null,null,null,"N",null,"Grade 3","Grade 3 - 5","Many young people have their own cell phones, and they use them to connect with family and friends and to easily find information. This can pose a problem in schools, as cell phones become a distraction or a tool used to cheat on tests and quizzes. Many people have strong opinions on cell phone use in schools, and this debate opens up important questions about students' rights. Readers are introduced to this debate through balanced text and a graphic organizer that clearly present the arguments on both sides. Fact boxes and full-color photographs enhance this crucial critical-thinking exercise.","English",25.6,20.48,"371.33--dc23","24 pp.","https://greenhavenpublishing.com/9781534527768",null,{"$f":"Table1[[#This Row],['# of Books]]*Table1[[#This Row],[QTY]]","v":0},{"$f":"Table1[[#This Row],[QTY]]*Table1[[#This Row],[School & Library Price]]","v":0}]
[null,null,null,13,17,"Current Issues","Points of View","Should Citizens Be Required to Vote?","978-1-5345-2771-3",{"$f":"HYPERLINK(Table1[[#This Row],[eCommerce Hyperlink]],\"Book Weblink\")","v":"Book Weblink"},null,"KidHaven Publishing","Library Bound Book",1,"2019","January 2019","Library","8.500 X 8.500","Author","Leslie Beckett",null,null,null,null,"N",null,"Grade 3","Grade 3 - 5","In some countries, citizens are required to vote in elections, but in the United States, citizens are free to choose not to vote. This had led to low voter turnout in many elections, and some people think making voting mandatory for American citizens would help the democratic process. Why do they believe this, and why do others strongly disagree with them? Readers explore these opposing points of view through unbiased main text, fact boxes, vibrant photographs, and a helpful graphic organizer. This creative look at democracy around the world encourages the development of informed opinions and critical-thinking skills.","English",25.6,20.48,"323.60973--dc23","24 pp.","https://greenhavenpublishing.com/9781534527713",null,{"$f":"Table1[[#This Row],['# of Books]]*Table1[[#This Row],[QTY]]","v":0},{"$f":"Table1[[#This Row],[QTY]]*Table1[[#This Row],[School & Library Price]]","v":0}]
[null,null,null,13,17,"Current Issues","Points of View","Should Citizens Be Required to Vote?","978-1-5345-2772-0",{"$f":"HYPERLINK(Table1[[#This Row],[eCommerce Hyperlink]],\"Book Weblink\")","v":"Book Weblink"},null,"KidHaven Publishing","eBook",1,"2019","January 2019",null,null,"Author","Leslie Beckett",null,null,null,null,"N",null,"Grade 3","Grade 3 - 5","In some countries, citizens are required to vote in elections, but in the United States, citizens are free to choose not to vote. This had led to low voter turnout in many elections, and some people think making voting mandatory for American citizens would help the democratic process. Why do they believe this, and why do others strongly disagree with them? Readers explore these opposing points of view through unbiased main text, fact boxes, vibrant photographs, and a helpful graphic organizer. This creative look at democracy around the world encourages the development of informed opinions and critical-thinking skills.","English",25.6,20.48,"323.60973--dc23","24 pp.","https://greenhavenpublishing.com/9781534527720",null,{"$f":"Table1[[#This Row],['# of Books]]*Table1[[#This Row],[QTY]]","v":0},{"$f":"Table1[[#This Row],[QTY]]*Table1[[#This Row],[School & Library Price]]","v":0}]
[null,null,null,13,17,"Current Issues","Points of View","Should Boys and Girls Go to Separate Schools?","978-1-5345-6721-4",{"$f":"HYPERLINK(Table1[[#This Row],[eCommerce Hyperlink]],\"Book Weblink\")","v":"Book Weblink"},null,"KidHaven Publishing","Library Bound Book",1,"2020","August 2019","Library","8.500 X 8.500","Author","Amy B. Rogers","5.7","0.5",null,null,"N",null,"Grade 3","Grade 3 - 5","Some people strongly believe boys and girls should go to separate schools. Others believe this separation isn't good for students. People on each side of this debate use different facts to support their point of view. Readers discover these facts and how they're used to support opinions in this engaging critical thinking exercise. As the main text encourages respect for other opinions, fact boxes, graphic organizers, and vibrant photographs provide additional information and exciting visual elements. Gender equality is an important issue, and this look at gender and education provides an accessible introduction to this topic for elementary readers.","English",25.6,20.48,"371.822--dc23","24 pp.","https://greenhavenpublishing.com/9781534567214",null,{"$f":"Table1[[#This Row],['# of Books]]*Table1[[#This Row],[QTY]]","v":0},{"$f":"Table1[[#This Row],[QTY]]*Table1[[#This Row],[School & Library Price]]","v":0}]
[null,null,null,13,17,"Current Issues","Points of View","Should Boys and Girls Go to Separate Schools?","978-1-5345-2993-9",{"$f":"HYPERLINK(Table1[[#This Row],[eCommerce Hyperlink]],\"Book Weblink\")","v":"Book Weblink"},null,"KidHaven Publishing","eBook",1,"2020","August 2019",null,null,"Author","Amy B. Rogers","5.7","0.5",null,null,"N",null,"Grade 3","Grade 3 - 5","Some people strongly believe boys and girls should go to separate schools. Others believe this separation isn't good for students. People on each side of this debate use different facts to support their point of view. Readers discover these facts and how they're used to support opinions in this engaging critical thinking exercise. As the main text encourages respect for other opinions, fact boxes, graphic organizers, and vibrant photographs provide additional information and exciting visual elements. Gender equality is an important issue, and this look at gender and education provides an accessible introduction to this topic for elementary readers.","English",25.6,20.48,"371.822--dc23","24 pp.","https://greenhavenpublishing.com/9781534529939",null,{"$f":"Table1[[#This Row],['# of Books]]*Table1[[#This Row],[QTY]]","v":0},{"$f":"Table1[[#This Row],[QTY]]*Table1[[#This Row],[School & Library Price]]","v":0}]
[null,null,null,13,17,"Current Issues","Points of View","Should Every Community Have a Library?","978-1-5345-6724-5",{"$f":"HYPERLINK(Table1[[#This Row],[eCommerce Hyperlink]],\"Book Weblink\")","v":"Book Weblink"},null,"KidHaven Publishing","Library Bound Book",1,"2020","August 2019","Library","8.500 X 8.500","Author","Mary Austen","5.3","0.5",null,null,"N",null,"Grade 3","Grade 3 - 5","Libraries are an important part of many communities, but some people have argued that they're not as necessary as they once were. Budget cuts and the rise of the internet have led some to question the need for libraries. As readers explore this point of view, they also find compelling reasons why many still consider a library in every community a necessity. These reasons are presented through accessible main text that is enhanced by fact boxes, full-color photographs, and a detailed graphic organizer. This critical thinking exercise promotes a love of reading and respect for other opinions.","English",25.6,20.48,"027--dc23","24 pp.","https://greenhavenpublishing.com/9781534567245",null,{"$f":"Table1[[#This Row],['# of Books]]*Table1[[#This Row],[QTY]]","v":0},{"$f":"Table1[[#This Row],[QTY]]*Table1[[#This Row],[School & Library Price]]","v":0}]
[null,null,null,13,17,"Current Issues","Points of View","Should Every Community Have a Library?","978-1-5345-6729-0",{"$f":"HYPERLINK(Table1[[#This Row],[eCommerce Hyperlink]],\"Book Weblink\")","v":"Book Weblink"},null,"KidHaven Publishing","eBook",1,"2020","August 2019",null,null,"Author","Mary Austen","5.3","0.5",null,null,"N",null,"Grade 3","Grade 3 - 5","Libraries are an important part of many communities, but some people have argued that they're not as necessary as they once were. Budget cuts and the rise of the internet have led some to question the need for libraries. As readers explore this point of view, they also find compelling reasons why many still consider a library in every community a necessity. These reasons are presented through accessible main text that is enhanced by fact boxes, full-color photographs, and a detailed graphic organizer. This critical thinking exercise promotes a love of reading and respect for other opinions.","English",25.6,20.48,"027--dc23","24 pp.","https://greenhavenpublishing.com/9781534567290",null,{"$f":"Table1[[#This Row],['# of Books]]*Table1[[#This Row],[QTY]]","v":0},{"$f":"Table1[[#This Row],[QTY]]*Table1[[#This Row],[School & Library Price]]","v":0}]
[null,null,null,13,17,"Current Issues","Points of View","Should the Government Pay for Health Care?","978-1-5345-6725-2",{"$f":"HYPERLINK(Table1[[#This Row],[eCommerce Hyperlink]],\"Book Weblink\")","v":"Book Weblink"},null,"KidHaven Publishing","Library Bound Book",1,"2020","August 2019","Library","8.500 X 8.500","Author","Robert M. Hamilton","5.8","0.5",null,null,"N",null,"Grade 3","Grade 3 - 5","What is universal health care, and why do people have such strong feelings about it? As readers discover the answers to these questions, they strengthen their critical thinking skills. The objective main text asks readers to form their own opinions about health care and who should pay for it. Fact boxes provide readers with statistics to back up their opinion, no matter what side of the debate it falls on. With a detailed graphic organizer and full-color photographs filling the pages, this creative look at current events is sure to help inform the next generation of active citizens.","English",25.6,20.48,"362.10973--dc23","24 pp.","https://greenhavenpublishing.com/9781534567252",null,{"$f":"Table1[[#This Row],['# of Books]]*Table1[[#This Row],[QTY]]","v":0},{"$f":"Table1[[#This Row],[QTY]]*Table1[[#This Row],[School & Library Price]]","v":0}]
[null,null,null,13,17,"Current Issues","Points of View","Should the Government Pay for Health Care?","978-1-5345-6730-6",{"$f":"HYPERLINK(Table1[[#This Row],[eCommerce Hyperlink]],\"Book Weblink\")","v":"Book Weblink"},null,"KidHaven Publishing","eBook",1,"2020","August 2019",null,null,"Author","Robert M. Hamilton","5.8","0.5",null,null,"N",null,"Grade 3","Grade 3 - 5","What is universal health care, and why do people have such strong feelings about it? As readers discover the answers to these questions, they strengthen their critical thinking skills. The objective main text asks readers to form their own opinions about health care and who should pay for it. Fact boxes provide readers with statistics to back up their opinion, no matter what side of the debate it falls on. With a detailed graphic organizer and full-color photographs filling the pages, this creative look at current events is sure to help inform the next generation of active citizens.","English",25.6,20.48,"362.10973--dc23","24 pp.","https://greenhavenpublishing.com/9781534567306",null,{"$f":"Table1[[#This Row],['# of Books]]*Table1[[#This Row],[QTY]]","v":0},{"$f":"Table1[[#This Row],[QTY]]*Table1[[#This Row],[School & Library Price]]","v":0}]
[null,null,null,13,17,"Current Issues","Points of View","Should the School Day Start Later?","978-1-5345-6720-7",{"$f":"HYPERLINK(Table1[[#This Row],[eCommerce Hyperlink]],\"Book Weblink\")","v":"Book Weblink"},null,"KidHaven Publishing","Library Bound Book",1,"2020","August 2019","Library","8.500 X 8.500","Author","Riley Lawrence","5.1","0.5",null,null,"N",null,"Grade 3","Grade 3 - 5","Debates over what time to start the school day are happening in many communities. Because this decision affects students, it's helpful for them to understand the arguments used on both sides and to form their own opinion about this issue. They're able to do so after exploring this debate through accessible main text, eye-catching fact boxes, and a detailed graphic organizer. Relatable full-color photographs enhance this crucial critical thinking exercise. Is there a scientific reason why teenagers hate waking up early for school? The answer is waiting for readers to discover.","English",25.6,20.48,"370--dc23","24 pp.","https://greenhavenpublishing.com/9781534567207",null,{"$f":"Table1[[#This Row],['# of Books]]*Table1[[#This Row],[QTY]]","v":0},{"$f":"Table1[[#This Row],[QTY]]*Table1[[#This Row],[School & Library Price]]","v":0}]
[null,null,null,13,17,"Current Issues","Points of View","Should the School Day Start Later?","978-1-5345-2991-5",{"$f":"HYPERLINK(Table1[[#This Row],[eCommerce Hyperlink]],\"Book Weblink\")","v":"Book Weblink"},null,"KidHaven Publishing","eBook",1,"2020","August 2019",null,null,"Author","Riley Lawrence","5.1","0.5",null,null,"N",null,"Grade 3","Grade 3 - 5","Debates over what time to start the school day are happening in many communities. Because this decision affects students, it's helpful for them to understand the arguments used on both sides and to form their own opinion about this issue. They're able to do so after exploring this debate through accessible main text, eye-catching fact boxes, and a detailed graphic organizer. Relatable full-color photographs enhance this crucial critical thinking exercise. Is there a scientific reason why teenagers hate waking up early for school? The answer is waiting for readers to discover.","English",25.6,20.48,"370--dc23","24 pp.","https://greenhavenpublishing.com/9781534529915",null,{"$f":"Table1[[#This Row],['# of Books]]*Table1[[#This Row],[QTY]]","v":0},{"$f":"Table1[[#This Row],[QTY]]*Table1[[#This Row],[School & Library Price]]","v":0}]
[null,null,null,13,17,"Current Issues","Points of View","Should the Voting Age Be Lowered?","978-1-5345-6722-1",{"$f":"HYPERLINK(Table1[[#This Row],[eCommerce Hyperlink]],\"Book Weblink\")","v":"Book Weblink"},null,"KidHaven Publishing","Library Bound Book",1,"2020","August 2019","Library","8.500 X 8.500","Author","Leslie Beckett","6.1","0.5",null,null,"N",null,"Grade 3","Grade 3 - 5","As young people are becoming louder voices for change, the idea of lowering the voting age has been brought up more often. While some people believe this would encourage teenagers to become more active citizens, others believe there are good reasons to keep the voting age at 18. As readers explore both sides of this debate, they learn essential facts to form and back up their own informed opinion on this topic, which has real implications for their future. Fact boxes, graphic organizers, and full-color photographs enhance the objective main text, creating a reading experience that enhances critical thinking skills.","English",25.6,20.48,"324.6/208350973--dc23","24 pp.","https://greenhavenpublishing.com/9781534567221",null,{"$f":"Table1[[#This Row],['# of Books]]*Table1[[#This Row],[QTY]]","v":0},{"$f":"Table1[[#This Row],[QTY]]*Table1[[#This Row],[School & Library Price]]","v":0}]
[null,null,null,13,17,"Current Issues","Points of View","Should the Voting Age Be Lowered?","978-1-5345-6727-6",{"$f":"HYPERLINK(Table1[[#This Row],[eCommerce Hyperlink]],\"Book Weblink\")","v":"Book Weblink"},null,"KidHaven Publishing","eBook",1,"2020","August 2019",null,null,"Author","Leslie Beckett","6.1","0.5",null,null,"N",null,"Grade 3","Grade 3 - 5","As young people are becoming louder voices for change, the idea of lowering the voting age has been brought up more often. While some people believe this would encourage teenagers to become more active citizens, others believe there are good reasons to keep the voting age at 18. As readers explore both sides of this debate, they learn essential facts to form and back up their own informed opinion on this topic, which has real implications for their future. Fact boxes, graphic organizers, and full-color photographs enhance the objective main text, creating a reading experience that enhances critical thinking skills.","English",25.6,20.48,"324.6/208350973--dc23","24 pp.","https://greenhavenpublishing.com/9781534567276",null,{"$f":"Table1[[#This Row],['# of Books]]*Table1[[#This Row],[QTY]]","v":0},{"$f":"Table1[[#This Row],[QTY]]*Table1[[#This Row],[School & Library Price]]","v":0}]
[null,null,null,13,17,"Current Issues","Points of View","Should We Trust the News?","978-1-5345-6723-8",{"$f":"HYPERLINK(Table1[[#This Row],[eCommerce Hyperlink]],\"Book Weblink\")","v":"Book Weblink"},null,"KidHaven Publishing","Library Bound Book",1,"2020","August 2019","Library","8.500 X 8.500","Author","Katie Kawa","5.9","0.5",null,null,"N",null,"Grade 3","Grade 3 - 5","\"Fake news\" is a term used by politicians and on social media. It can be difficult to know what news sources to trust, or if any can be trusted. The question of whether or not we should trust the news is at the center of this critical thinking exercise, which is also an accessible introduction to media literacy. As the informative main text details each side of this debate, fact boxes present statistics readers can use to back up their point of view. In addition, a helpful graphic organizer and full-color photographs act as engaging visual learning tools.","English",25.6,20.48,"302.23--dc23","24 pp.","https://greenhavenpublishing.com/9781534567238",null,{"$f":"Table1[[#This Row],['# of Books]]*Table1[[#This Row],[QTY]]","v":0},{"$f":"Table1[[#This Row],[QTY]]*Table1[[#This Row],[School & Library Price]]","v":0}]
[null,null,null,13,17,"Current Issues","Points of View","Should We Trust the News?","978-1-5345-2996-0",{"$f":"HYPERLINK(Table1[[#This Row],[eCommerce Hyperlink]],\"Book Weblink\")","v":"Book Weblink"},null,"KidHaven Publishing","eBook",1,"2020","August 2019",null,null,"Author","Katie Kawa","5.9","0.5",null,null,"N",null,"Grade 3","Grade 3 - 5","\"Fake news\" is a term used by politicians and on social media. It can be difficult to know what news sources to trust, or if any can be trusted. The question of whether or not we should trust the news is at the center of this critical thinking exercise, which is also an accessible introduction to media literacy. As the informative main text details each side of this debate, fact boxes present statistics readers can use to back up their point of view. In addition, a helpful graphic organizer and full-color photographs act as engaging visual learning tools.","English",25.6,20.48,"302.23--dc23","24 pp.","https://greenhavenpublishing.com/9781534529960",null,{"$f":"Table1[[#This Row],['# of Books]]*Table1[[#This Row],[QTY]]","v":0},{"$f":"Table1[[#This Row],[QTY]]*Table1[[#This Row],[School & Library Price]]","v":0}]
[null,null,null,13,17,"Current Issues","Points of View","Is Television Bad for Kids?","978-1-5345-3192-5",{"$f":"HYPERLINK(Table1[[#This Row],[eCommerce Hyperlink]],\"Book Weblink\")","v":"Book Weblink"},null,"KidHaven Publishing","Library Bound Book",1,"2020","January 2020","Library","8.500 X 8.500","Author","Katie Kawa",null,null,null,null,"N",null,"Grade 3","Grade 3 - 5","Is television bad for kids? This question has been asked by parents, scientists, and more ever since television sets first entered people's homes, and different people have come up with different answers. As readers are challenged to form their own opinions about the effects of television on young people like them, they strengthen their critical thinking skills and learn to respect a variety of viewpoints. The unbiased main narrative is presented alongside fact boxes that help readers find relevant data to back up their opinions. In addition, a comprehensive graphic organizer and full-color photographs enhance the reading experience.","English",25.6,20.48,"302.23/45083--dc23","24 pp.","https://greenhavenpublishing.com/9781534531925",null,{"$f":"Table1[[#This Row],['# of Books]]*Table1[[#This Row],[QTY]]","v":0},{"$f":"Table1[[#This Row],[QTY]]*Table1[[#This Row],[School & Library Price]]","v":0}]
[null,null,null,13,17,"Current Issues","Points of View","Is Television Bad for Kids?","978-1-5345-3198-7",{"$f":"HYPERLINK(Table1[[#This Row],[eCommerce Hyperlink]],\"Book Weblink\")","v":"Book Weblink"},null,"KidHaven Publishing","eBook",1,"2020","January 2020",null,null,"Author","Katie Kawa",null,null,null,null,"N",null,"Grade 3","Grade 3 - 5","Is television bad for kids? This question has been asked by parents, scientists, and more ever since television sets first entered people's homes, and different people have come up with different answers. As readers are challenged to form their own opinions about the effects of television on young people like them, they strengthen their critical thinking skills and learn to respect a variety of viewpoints. The unbiased main narrative is presented alongside fact boxes that help readers find relevant data to back up their opinions. In addition, a comprehensive graphic organizer and full-color photographs enhance the reading experience.","English",25.6,20.48,"302.23/45083--dc23","24 pp.","https://greenhavenpublishing.com/9781534531987",null,{"$f":"Table1[[#This Row],['# of Books]]*Table1[[#This Row],[QTY]]","v":0},{"$f":"Table1[[#This Row],[QTY]]*Table1[[#This Row],[School & Library Price]]","v":0}]
[null,null,null,13,17,"Current Issues","Points of View","Should All Children Get Vaccines?","978-1-5345-3191-8",{"$f":"HYPERLINK(Table1[[#This Row],[eCommerce Hyperlink]],\"Book Weblink\")","v":"Book Weblink"},null,"KidHaven Publishing","Library Bound Book",1,"2020","January 2020","Library","8.500 X 8.500","Author","Naomi Osborne",null,null,null,null,"N",null,"Grade 3","Grade 3 - 5","The vaccination debate has made headlines across the United States in recent years, but news outlets often sensationalize this important health topic, leaving people with more questions than answers. As readers explore the arguments used by people on both sides of this debate, they also learn essential information about health and science through age-appropriate explanations and helpful fact boxes. Eye-catching design elements including full-color photographs and a detailed graphic organizer keep readers engaged as they learn to think critically about issues that affect them and learn to support their opinions with facts.","English",25.6,20.48,"615.3'72--dc23","24 pp.","https://greenhavenpublishing.com/9781534531918",null,{"$f":"Table1[[#This Row],['# of Books]]*Table1[[#This Row],[QTY]]","v":0},{"$f":"Table1[[#This Row],[QTY]]*Table1[[#This Row],[School & Library Price]]","v":0}]
[null,null,null,13,17,"Current Issues","Points of View","Should All Children Get Vaccines?","978-1-5345-3197-0",{"$f":"HYPERLINK(Table1[[#This Row],[eCommerce Hyperlink]],\"Book Weblink\")","v":"Book Weblink"},null,"KidHaven Publishing","eBook",1,"2020","January 2020",null,null,"Author","Naomi Osborne",null,null,null,null,"N",null,"Grade 3","Grade 3 - 5","The vaccination debate has made headlines across the United States in recent years, but news outlets often sensationalize this important health topic, leaving people with more questions than answers. As readers explore the arguments used by people on both sides of this debate, they also learn essential information about health and science through age-appropriate explanations and helpful fact boxes. Eye-catching design elements including full-color photographs and a detailed graphic organizer keep readers engaged as they learn to think critically about issues that affect them and learn to support their opinions with facts.","English",25.6,20.48,"615.3'72--dc23","24 pp.","https://greenhavenpublishing.com/9781534531970",null,{"$f":"Table1[[#This Row],['# of Books]]*Table1[[#This Row],[QTY]]","v":0},{"$f":"Table1[[#This Row],[QTY]]*Table1[[#This Row],[School & Library Price]]","v":0}]
[null,null,null,13,17,"Current Issues","Points of View","Should Bullying Be a Crime?","978-1-5345-3195-6",{"$f":"HYPERLINK(Table1[[#This Row],[eCommerce Hyperlink]],\"Book Weblink\")","v":"Book Weblink"},null,"KidHaven Publishing","Library Bound Book",1,"2020","January 2020","Library","8.500 X 8.500","Author","Emma Jones",null,null,null,null,"N",null,"Grade 3","Grade 3 - 5","Bullying is a serious problem, and some people believe it should be considered a crime. However, others believe that takes things too far. These different viewpoints can affect antibullying policies, so it's important for readers to understand why people hold these opposing points of view. As readers explore this debate in depth, they're aided by accessible text, eye-catching fact boxes, and a detailed graphic organizer. Full-color photographs help readers register this important issue, which directly affects them. As readers sharpen their critical thinking skills by exploring a controversial issue, they're encouraged to develop their own informed opinions about bullying.","English",25.6,20.48,"302.34'3--dc23","24 pp.","https://greenhavenpublishing.com/9781534531956",null,{"$f":"Table1[[#This Row],['# of Books]]*Table1[[#This Row],[QTY]]","v":0},{"$f":"Table1[[#This Row],[QTY]]*Table1[[#This Row],[School & Library Price]]","v":0}]
[null,null,null,13,17,"Current Issues","Points of View","Should Bullying Be a Crime?","978-1-5345-3201-4",{"$f":"HYPERLINK(Table1[[#This Row],[eCommerce Hyperlink]],\"Book Weblink\")","v":"Book Weblink"},null,"KidHaven Publishing","eBook",1,"2020","January 2020",null,null,"Author","Emma Jones",null,null,null,null,"N",null,"Grade 3","Grade 3 - 5","Bullying is a serious problem, and some people believe it should be considered a crime. However, others believe that takes things too far. These different viewpoints can affect antibullying policies, so it's important for readers to understand why people hold these opposing points of view. As readers explore this debate in depth, they're aided by accessible text, eye-catching fact boxes, and a detailed graphic organizer. Full-color photographs help readers register this important issue, which directly affects them. As readers sharpen their critical thinking skills by exploring a controversial issue, they're encouraged to develop their own informed opinions about bullying.","English",25.6,20.48,"302.34'3--dc23","24 pp.","https://greenhavenpublishing.com/9781534532014",null,{"$f":"Table1[[#This Row],['# of Books]]*Table1[[#This Row],[QTY]]","v":0},{"$f":"Table1[[#This Row],[QTY]]*Table1[[#This Row],[School & Library Price]]","v":0}]
[null,null,null,13,17,"Current Issues","Points of View","Should Kids Get an Allowance?","978-1-5345-3193-2",{"$f":"HYPERLINK(Table1[[#This Row],[eCommerce Hyperlink]],\"Book Weblink\")","v":"Book Weblink"},null,"KidHaven Publishing","Library Bound Book",1,"2020","January 2020","Library","8.500 X 8.500","Author","Sophie Washburne",null,null,null,null,"N",null,"Grade 3","Grade 3 - 5","Both kids and adults often have strong feelings about children being given an allowance. Before young people take a side, it's important for them to learn the basic arguments and facts on both sides of this debate. They're able to do this with the help of balanced text that carefully presents opposing viewpoints and fact boxes that highlight information that can support an informed opinion. Featuring a detailed graphic organizer that summarizes this debate in an accessible way and vibrant, full-color photographs, this is an essential critical thinking exercise for young readers.","English",25.6,20.48,"332.0240083--dc23","24 pp.","https://greenhavenpublishing.com/9781534531932",null,{"$f":"Table1[[#This Row],['# of Books]]*Table1[[#This Row],[QTY]]","v":0},{"$f":"Table1[[#This Row],[QTY]]*Table1[[#This Row],[School & Library Price]]","v":0}]
[null,null,null,13,17,"Current Issues","Points of View","Should Kids Get an Allowance?","978-1-5345-3199-4",{"$f":"HYPERLINK(Table1[[#This Row],[eCommerce Hyperlink]],\"Book Weblink\")","v":"Book Weblink"},null,"KidHaven Publishing","eBook",1,"2020","January 2020",null,null,"Author","Sophie Washburne",null,null,null,null,"N",null,"Grade 3","Grade 3 - 5","Both kids and adults often have strong feelings about children being given an allowance. Before young people take a side, it's important for them to learn the basic arguments and facts on both sides of this debate. They're able to do this with the help of balanced text that carefully presents opposing viewpoints and fact boxes that highlight information that can support an informed opinion. Featuring a detailed graphic organizer that summarizes this debate in an accessible way and vibrant, full-color photographs, this is an essential critical thinking exercise for young readers.","English",25.6,20.48,"332.0240083--dc23","24 pp.","https://greenhavenpublishing.com/9781534531994",null,{"$f":"Table1[[#This Row],['# of Books]]*Table1[[#This Row],[QTY]]","v":0},{"$f":"Table1[[#This Row],[QTY]]*Table1[[#This Row],[School & Library Price]]","v":0}]
[null,null,null,13,17,"Current Issues","Points of View","Should Plastic Bags Be Banned?","978-1-5345-3194-9",{"$f":"HYPERLINK(Table1[[#This Row],[eCommerce Hyperlink]],\"Book Weblink\")","v":"Book Weblink"},null,"KidHaven Publishing","Library Bound Book",1,"2020","January 2020","Library","8.500 X 8.500","Author","Jennifer Lombardo",null,null,null,null,"N",null,"Grade 3","Grade 3 - 5","Plastic bags are being banned in many places, but is this the right thing to do? Readers will be able to answer this question for themselves in an informed way after they explore the environmental, economic, and legal sides to the debate surrounding plastic bag bans. The enlightening main text is presented alongside full-color photographs. A detailed graphic organizer allows readers to compare different viewpoints. Fact boxes help readers support their opinions with relevant, age-appropriate data and statistics. These fun features work together to create a critical thinking exercise that educates readers about current events.","English",25.6,20.48,"363.7--dc23","24 pp.","https://greenhavenpublishing.com/9781534531949",null,{"$f":"Table1[[#This Row],['# of Books]]*Table1[[#This Row],[QTY]]","v":0},{"$f":"Table1[[#This Row],[QTY]]*Table1[[#This Row],[School & Library Price]]","v":0}]
[null,null,null,13,17,"Current Issues","Points of View","Should Plastic Bags Be Banned?","978-1-5345-3200-7",{"$f":"HYPERLINK(Table1[[#This Row],[eCommerce Hyperlink]],\"Book Weblink\")","v":"Book Weblink"},null,"KidHaven Publishing","eBook",1,"2020","January 2020",null,null,"Author","Jennifer Lombardo",null,null,null,null,"N",null,"Grade 3","Grade 3 - 5","Plastic bags are being banned in many places, but is this the right thing to do? Readers will be able to answer this question for themselves in an informed way after they explore the environmental, economic, and legal sides to the debate surrounding plastic bag bans. The enlightening main text is presented alongside full-color photographs. A detailed graphic organizer allows readers to compare different viewpoints. Fact boxes help readers support their opinions with relevant, age-appropriate data and statistics. These fun features work together to create a critical thinking exercise that educates readers about current events.","English",25.6,20.48,"363.7--dc23","24 pp.","https://greenhavenpublishing.com/9781534532007",null,{"$f":"Table1[[#This Row],['# of Books]]*Table1[[#This Row],[QTY]]","v":0},{"$f":"Table1[[#This Row],[QTY]]*Table1[[#This Row],[School & Library Price]]","v":0}]
[null,null,null,13,17,"Current Issues","Points of View","Is It Important to Buy American Goods?","978-1-5345-3434-6",{"$f":"HYPERLINK(Table1[[#This Row],[eCommerce Hyperlink]],\"Book Weblink\")","v":"Book Weblink"},null,"KidHaven Publishing","Library Bound Book",1,"2021","August 2020","Library","8.500 X 8.500","Author","Donna Reynolds",null,null,null,null,"N",null,"Grade 3","Grade 3 - 5","Some people believe Americans should make an effort to buy goods made in the United States. Others think that it doesn't matter where something is made. Thanks to allowances, many children are consumers in their own right. They should strive to make ethical decisions about where their money is spent. Through alternating viewpoints, complemented by fact boxes and a graphic organizer, this objective narrative explores both sides of the argument so readers can develop their own intelligent opinions and make informed choices about how they spend their money.","English",25.6,20.48,"339.4/70973--dc23","24 pp.","https://greenhavenpublishing.com/9781534534346",null,{"$f":"Table1[[#This Row],['# of Books]]*Table1[[#This Row],[QTY]]","v":0},{"$f":"Table1[[#This Row],[QTY]]*Table1[[#This Row],[School & Library Price]]","v":0}]
[null,null,null,13,17,"Current Issues","Points of View","Is It Important to Buy American Goods?","978-1-5345-3435-3",{"$f":"HYPERLINK(Table1[[#This Row],[eCommerce Hyperlink]],\"Book Weblink\")","v":"Book Weblink"},null,"KidHaven Publishing","eBook",1,"2021","August 2020",null,null,"Author","Donna Reynolds",null,null,null,null,"N",null,"Grade 3","Grade 3 - 5","Some people believe Americans should make an effort to buy goods made in the United States. Others think that it doesn't matter where something is made. Thanks to allowances, many children are consumers in their own right. They should strive to make ethical decisions about where their money is spent. Through alternating viewpoints, complemented by fact boxes and a graphic organizer, this objective narrative explores both sides of the argument so readers can develop their own intelligent opinions and make informed choices about how they spend their money.","English",25.6,20.48,"339.4/70973--dc23","24 pp.","https://greenhavenpublishing.com/9781534534353",null,{"$f":"Table1[[#This Row],['# of Books]]*Table1[[#This Row],[QTY]]","v":0},{"$f":"Table1[[#This Row],[QTY]]*Table1[[#This Row],[School & Library Price]]","v":0}]
[null,null,null,13,17,"Current Issues","Points of View","Is Social Media Helpful or Harmful?","978-1-5345-3418-6",{"$f":"HYPERLINK(Table1[[#This Row],[eCommerce Hyperlink]],\"Book Weblink\")","v":"Book Weblink"},null,"KidHaven Publishing","Library Bound Book",1,"2021","August 2020","Library","8.500 X 8.500","Author","Jennifer Lombardo",null,null,null,null,"N",null,"Grade 3","Grade 3 - 5","Social media is pervasive in today's culture. It is nearly impossible to avoid it completely. Opinions are divided on whether this has made life better or worse. Young people today are the first generations to grow up with this new form of communication and entertainment. Will it be helpful or harmful to them? Augmented by full-color photographs and informative fact boxes, this engaging narrative explores this question so readers understand both sides of the issue. This is a key element of being able to form intelligent opinions, helping your readers make informed decisions about their social media use.","English",25.6,20.48,"302.23'1--dc23","24 pp.","https://greenhavenpublishing.com/9781534534186",null,{"$f":"Table1[[#This Row],['# of Books]]*Table1[[#This Row],[QTY]]","v":0},{"$f":"Table1[[#This Row],[QTY]]*Table1[[#This Row],[School & Library Price]]","v":0}]
[null,null,null,13,17,"Current Issues","Points of View","Is Social Media Helpful or Harmful?","978-1-5345-3419-3",{"$f":"HYPERLINK(Table1[[#This Row],[eCommerce Hyperlink]],\"Book Weblink\")","v":"Book Weblink"},null,"KidHaven Publishing","eBook",1,"2021","August 2020",null,null,"Author","Jennifer Lombardo",null,null,null,null,"N",null,"Grade 3","Grade 3 - 5","Social media is pervasive in today's culture. It is nearly impossible to avoid it completely. Opinions are divided on whether this has made life better or worse. Young people today are the first generations to grow up with this new form of communication and entertainment. Will it be helpful or harmful to them? Augmented by full-color photographs and informative fact boxes, this engaging narrative explores this question so readers understand both sides of the issue. This is a key element of being able to form intelligent opinions, helping your readers make informed decisions about their social media use.","English",25.6,20.48,"302.23'1--dc23","24 pp.","https://greenhavenpublishing.com/9781534534193",null,{"$f":"Table1[[#This Row],['# of Books]]*Table1[[#This Row],[QTY]]","v":0},{"$f":"Table1[[#This Row],[QTY]]*Table1[[#This Row],[School & Library Price]]","v":0}]
[null,null,null,13,17,"Current Issues","Points of View","Is the Electoral College Necessary?","978-1-5345-3426-1",{"$f":"HYPERLINK(Table1[[#This Row],[eCommerce Hyperlink]],\"Book Weblink\")","v":"Book Weblink"},null,"KidHaven Publishing","Library Bound Book",1,"2021","August 2020","Library","8.500 X 8.500","Author","Meghan Green",null,null,null,null,"N",null,"Grade 3","Grade 3 - 5","Every four years, presidential elections renew the longstanding debate about whether the Electoral College is a beneficial or detrimental part of the voting process. Some people believe the popular vote should be sufficient. Others fear this would result in a president being elected without a clear majority. Understanding how the Electoral College works and formulating an opinion about it is a key part of becoming an informed voter. With the help of full-color photographs and informative fact boxes, this volume allows the next generation of voters to form and support their own opinions about this prominent system.","English",25.6,20.48,"324.6/3--dc23","24 pp.","https://greenhavenpublishing.com/9781534534261",null,{"$f":"Table1[[#This Row],['# of Books]]*Table1[[#This Row],[QTY]]","v":0},{"$f":"Table1[[#This Row],[QTY]]*Table1[[#This Row],[School & Library Price]]","v":0}]
[null,null,null,13,17,"Current Issues","Points of View","Is the Electoral College Necessary?","978-1-5345-3427-8",{"$f":"HYPERLINK(Table1[[#This Row],[eCommerce Hyperlink]],\"Book Weblink\")","v":"Book Weblink"},null,"KidHaven Publishing","eBook",1,"2021","August 2020",null,null,"Author","Meghan Green",null,null,null,null,"N",null,"Grade 3","Grade 3 - 5","Every four years, presidential elections renew the longstanding debate about whether the Electoral College is a beneficial or detrimental part of the voting process. Some people believe the popular vote should be sufficient. Others fear this would result in a president being elected without a clear majority. Understanding how the Electoral College works and formulating an opinion about it is a key part of becoming an informed voter. With the help of full-color photographs and informative fact boxes, this volume allows the next generation of voters to form and support their own opinions about this prominent system.","English",25.6,20.48,"324.6/3--dc23","24 pp.","https://greenhavenpublishing.com/9781534534278",null,{"$f":"Table1[[#This Row],['# of Books]]*Table1[[#This Row],[QTY]]","v":0},{"$f":"Table1[[#This Row],[QTY]]*Table1[[#This Row],[School & Library Price]]","v":0}]
[null,null,null,13,17,"Current Issues","Points of View","Should Gun Control Laws Be Stronger?","978-1-5345-3438-4",{"$f":"HYPERLINK(Table1[[#This Row],[eCommerce Hyperlink]],\"Book Weblink\")","v":"Book Weblink"},null,"KidHaven Publishing","Library Bound Book",1,"2021","August 2020","Library","8.500 X 8.500","Author","Judy Thorpe",null,null,null,null,"N",null,"Grade 3","Grade 3 - 5","With the tragic rise in school shootings in recent decades, gun control is increasingly becoming a matter on which children are qualified to weigh in. However, without an understanding of what gun control measures are being proposed and debated, it is impossible to formulate an informed opinion. Full-color photographs and engaging fact boxes augment this informative narrative, which provides readers with a deeper understanding of why the gun control debate is so divisive. A list of resources provides a starting point for readers to gain additional insight as they form their own intelligent opinions on gun control laws.","English",25.6,20.48,"363.330973--dc23","24 pp.","https://greenhavenpublishing.com/9781534534384",null,{"$f":"Table1[[#This Row],['# of Books]]*Table1[[#This Row],[QTY]]","v":0},{"$f":"Table1[[#This Row],[QTY]]*Table1[[#This Row],[School & Library Price]]","v":0}]
[null,null,null,13,17,"Current Issues","Points of View","Should Gun Control Laws Be Stronger?","978-1-5345-3439-1",{"$f":"HYPERLINK(Table1[[#This Row],[eCommerce Hyperlink]],\"Book Weblink\")","v":"Book Weblink"},null,"KidHaven Publishing","eBook",1,"2021","August 2020",null,null,"Author","Judy Thorpe",null,null,null,null,"N",null,"Grade 3","Grade 3 - 5","With the tragic rise in school shootings in recent decades, gun control is increasingly becoming a matter on which children are qualified to weigh in. However, without an understanding of what gun control measures are being proposed and debated, it is impossible to formulate an informed opinion. Full-color photographs and engaging fact boxes augment this informative narrative, which provides readers with a deeper understanding of why the gun control debate is so divisive. A list of resources provides a starting point for readers to gain additional insight as they form their own intelligent opinions on gun control laws.","English",25.6,20.48,"363.330973--dc23","24 pp.","https://greenhavenpublishing.com/9781534534391",null,{"$f":"Table1[[#This Row],['# of Books]]*Table1[[#This Row],[QTY]]","v":0},{"$f":"Table1[[#This Row],[QTY]]*Table1[[#This Row],[School & Library Price]]","v":0}]
[null,null,null,13,17,"Current Issues","Points of View","Should Student-Athletes Be Paid?","978-1-5345-3422-3",{"$f":"HYPERLINK(Table1[[#This Row],[eCommerce Hyperlink]],\"Book Weblink\")","v":"Book Weblink"},null,"KidHaven Publishing","Library Bound Book",1,"2021","August 2020","Library","8.500 X 8.500","Author","Anna Collins",null,null,null,null,"N",null,"Grade 3","Grade 3 - 5","Most people agree that student-athletes work hard at their sports and their studies, but opinions differ about whether they should be paid. Is playing a sport just like any other job, or is it an extracurricular activity? Do athletes deserve monetary compensation for putting their bodies on the line, or is a scholarship reward enough? These and other issues are explored through alternating viewpoints and fact boxes. A list of resources gives readers a starting point for further research. By gaining a deeper understanding of both sides, young student-athletes can decide for themselves whether they should be paid.","English",25.6,20.48,"796.04/3--dc23","24 pp.","https://greenhavenpublishing.com/9781534534223",null,{"$f":"Table1[[#This Row],['# of Books]]*Table1[[#This Row],[QTY]]","v":0},{"$f":"Table1[[#This Row],[QTY]]*Table1[[#This Row],[School & Library Price]]","v":0}]
[null,null,null,13,17,"Current Issues","Points of View","Should Student-Athletes Be Paid?","978-1-5345-3423-0",{"$f":"HYPERLINK(Table1[[#This Row],[eCommerce Hyperlink]],\"Book Weblink\")","v":"Book Weblink"},null,"KidHaven Publishing","eBook",1,"2021","August 2020",null,null,"Author","Anna Collins",null,null,null,null,"N",null,"Grade 3","Grade 3 - 5","Most people agree that student-athletes work hard at their sports and their studies, but opinions differ about whether they should be paid. Is playing a sport just like any other job, or is it an extracurricular activity? Do athletes deserve monetary compensation for putting their bodies on the line, or is a scholarship reward enough? These and other issues are explored through alternating viewpoints and fact boxes. A list of resources gives readers a starting point for further research. By gaining a deeper understanding of both sides, young student-athletes can decide for themselves whether they should be paid.","English",25.6,20.48,"796.04/3--dc23","24 pp.","https://greenhavenpublishing.com/9781534534230",null,{"$f":"Table1[[#This Row],['# of Books]]*Table1[[#This Row],[QTY]]","v":0},{"$f":"Table1[[#This Row],[QTY]]*Table1[[#This Row],[School & Library Price]]","v":0}]
[null,null,null,13,17,"Current Issues","Points of View","Should the United States Have Open Borders?","978-1-5345-3430-8",{"$f":"HYPERLINK(Table1[[#This Row],[eCommerce Hyperlink]],\"Book Weblink\")","v":"Book Weblink"},null,"KidHaven Publishing","Library Bound Book",1,"2021","August 2020","Library","8.500 X 8.500","Author","Amy Holt",null,null,null,null,"N",null,"Grade 3","Grade 3 - 5","As immigration becomes an increasingly important and controversial issue, it is important for everyone living in the United States to understand the opinions surrounding it. What does it mean for a country to have open borders? Should the United States adopt this policy or a different one? Readers learn the basics of immigration with this engaging volume that presents both sides of the debate surrounding border security and open borders. Intriguing fact boxes and striking photographs enhance the informative text, giving readers a foundation upon which to build their own intelligent views on this crucial topic.","English",25.6,20.48,"325.73--dc23","24 pp.","https://greenhavenpublishing.com/9781534534308",null,{"$f":"Table1[[#This Row],['# of Books]]*Table1[[#This Row],[QTY]]","v":0},{"$f":"Table1[[#This Row],[QTY]]*Table1[[#This Row],[School & Library Price]]","v":0}]
[null,null,null,13,17,"Current Issues","Points of View","Should the United States Have Open Borders?","978-1-5345-3431-5",{"$f":"HYPERLINK(Table1[[#This Row],[eCommerce Hyperlink]],\"Book Weblink\")","v":"Book Weblink"},null,"KidHaven Publishing","eBook",1,"2021","August 2020",null,null,"Author","Amy Holt",null,null,null,null,"N",null,"Grade 3","Grade 3 - 5","As immigration becomes an increasingly important and controversial issue, it is important for everyone living in the United States to understand the opinions surrounding it. What does it mean for a country to have open borders? Should the United States adopt this policy or a different one? Readers learn the basics of immigration with this engaging volume that presents both sides of the debate surrounding border security and open borders. Intriguing fact boxes and striking photographs enhance the informative text, giving readers a foundation upon which to build their own intelligent views on this crucial topic.","English",25.6,20.48,"325.73--dc23","24 pp.","https://greenhavenpublishing.com/9781534534315",null,{"$f":"Table1[[#This Row],['# of Books]]*Table1[[#This Row],[QTY]]","v":0},{"$f":"Table1[[#This Row],[QTY]]*Table1[[#This Row],[School & Library Price]]","v":0}]
[null,null,null,12,17,"Current Issues","Points of View","Is Safety More Important Than Privacy?","978-1-5345-3659-3",{"$f":"HYPERLINK(Table1[[#This Row],[eCommerce Hyperlink]],\"Book Weblink\")","v":"Book Weblink"},null,"KidHaven Publishing","Library Bound Book",1,"2022","August 2021","Library","8.500 X 8.500","Author","Menna Landon",null,null,null,null,"N",null,"Grade 3","Grade 3 - 5","Fears about terrorism and other safety concerns have been prevalent for decades, but recent advancements in technology have given law enforcement and national security officials the ability to monitor suspected criminals. Some people believe this is not only desirable, but necessary. Others worry about the ways this power could potentially be abused. The many angles of conflict between safety and privacy are presented to readers through compelling photographs and fascinating fact boxes that supplement the neutral main text. This informative reading experience allows readers to gain a deeper understanding of the arguments and formulate their own opinions.","English",25.6,20.48,"364.4--dc23","24 pp.","https://greenhavenpublishing.com/9781534536593",null,{"$f":"Table1[[#This Row],['# of Books]]*Table1[[#This Row],[QTY]]","v":0},{"$f":"Table1[[#This Row],[QTY]]*Table1[[#This Row],[School & Library Price]]","v":0}]
[null,null,null,12,17,"Current Issues","Points of View","Is Safety More Important Than Privacy?","978-1-5345-3660-9",{"$f":"HYPERLINK(Table1[[#This Row],[eCommerce Hyperlink]],\"Book Weblink\")","v":"Book Weblink"},null,"KidHaven Publishing","eBook",1,"2022","August 2021",null,null,"Author","Menna Landon",null,null,null,null,"N",null,"Grade 3","Grade 3 - 5","Fears about terrorism and other safety concerns have been prevalent for decades, but recent advancements in technology have given law enforcement and national security officials the ability to monitor suspected criminals. Some people believe this is not only desirable, but necessary. Others worry about the ways this power could potentially be abused. The many angles of conflict between safety and privacy are presented to readers through compelling photographs and fascinating fact boxes that supplement the neutral main text. This informative reading experience allows readers to gain a deeper understanding of the arguments and formulate their own opinions.","English",25.6,20.48,"364.4--dc23","24 pp.","https://greenhavenpublishing.com/9781534536609",null,{"$f":"Table1[[#This Row],['# of Books]]*Table1[[#This Row],[QTY]]","v":0},{"$f":"Table1[[#This Row],[QTY]]*Table1[[#This Row],[School & Library Price]]","v":0}]
[null,null,null,12,17,"Current Issues","Points of View","Is Technology Becoming Too Smart?","978-1-5345-3647-0",{"$f":"HYPERLINK(Table1[[#This Row],[eCommerce Hyperlink]],\"Book Weblink\")","v":"Book Weblink"},null,"KidHaven Publishing","Library Bound Book",1,"2022","August 2021","Library","8.500 X 8.500","Author","Theo McDunn",null,null,null,null,"N",null,"Grade 3","Grade 3 - 5","As technology continues to advance at an exponential rate, people have begun to express fears about the abilities of smart devices. While these people worry about job security, data security, and the implications for law enforcement, others point out benefits such as streamlined production and exciting new inventions. Through fascinating fact boxes and an informative graphic organizer that enhance the main text, readers learn about the various points of view surrounding this STEM issue. Objective text encourages critical thinking to help the next generation of innovators come to their own conclusions about technology.","English",25.6,20.48,"303.48/3--dc23","24 pp.","https://greenhavenpublishing.com/9781534536470",null,{"$f":"Table1[[#This Row],['# of Books]]*Table1[[#This Row],[QTY]]","v":0},{"$f":"Table1[[#This Row],[QTY]]*Table1[[#This Row],[School & Library Price]]","v":0}]
[null,null,null,12,17,"Current Issues","Points of View","Is Technology Becoming Too Smart?","978-1-5345-3648-7",{"$f":"HYPERLINK(Table1[[#This Row],[eCommerce Hyperlink]],\"Book Weblink\")","v":"Book Weblink"},null,"KidHaven Publishing","eBook",1,"2022","August 2021",null,null,"Author","Theo McDunn",null,null,null,null,"N",null,"Grade 3","Grade 3 - 5","As technology continues to advance at an exponential rate, people have begun to express fears about the abilities of smart devices. While these people worry about job security, data security, and the implications for law enforcement, others point out benefits such as streamlined production and exciting new inventions. Through fascinating fact boxes and an informative graphic organizer that enhance the main text, readers learn about the various points of view surrounding this STEM issue. Objective text encourages critical thinking to help the next generation of innovators come to their own conclusions about technology.","English",25.6,20.48,"303.48/3--dc23","24 pp.","https://greenhavenpublishing.com/9781534536487",null,{"$f":"Table1[[#This Row],['# of Books]]*Table1[[#This Row],[QTY]]","v":0},{"$f":"Table1[[#This Row],[QTY]]*Table1[[#This Row],[School & Library Price]]","v":0}]
[null,null,null,12,17,"Current Issues","Points of View","Should Peanuts Be Banned in Schools?","978-1-5345-3639-5",{"$f":"HYPERLINK(Table1[[#This Row],[eCommerce Hyperlink]],\"Book Weblink\")","v":"Book Weblink"},null,"KidHaven Publishing","Library Bound Book",1,"2022","August 2021","Library","8.500 X 8.500","Author","Simon Pierce",null,null,null,null,"N",null,"Grade 3","Grade 3 - 5","Peanuts are one of the most common—and most deadly—allergens around the world, and the rates of peanut allergies have been on the rise in the 21st century. Fears about exposure to peanuts as well as the large number of people who are affected by them have prompted some schools to ban peanut products. Are these bans effective? Are they fair to the people whose lunch options are thus restricted? This objective text, augmented with engaging fact boxes and vibrant photographs, examines arguments on both sides of this relatable issue for young students.","English",25.6,20.48,"613.2083--dc23","24 pp.","https://greenhavenpublishing.com/9781534536395",null,{"$f":"Table1[[#This Row],['# of Books]]*Table1[[#This Row],[QTY]]","v":0},{"$f":"Table1[[#This Row],[QTY]]*Table1[[#This Row],[School & Library Price]]","v":0}]
[null,null,null,12,17,"Current Issues","Points of View","Should Peanuts Be Banned in Schools?","978-1-5345-3640-1",{"$f":"HYPERLINK(Table1[[#This Row],[eCommerce Hyperlink]],\"Book Weblink\")","v":"Book Weblink"},null,"KidHaven Publishing","eBook",1,"2022","August 2021",null,null,"Author","Simon Pierce",null,null,null,null,"N",null,"Grade 3","Grade 3 - 5","Peanuts are one of the most common—and most deadly—allergens around the world, and the rates of peanut allergies have been on the rise in the 21st century. Fears about exposure to peanuts as well as the large number of people who are affected by them have prompted some schools to ban peanut products. Are these bans effective? Are they fair to the people whose lunch options are thus restricted? This objective text, augmented with engaging fact boxes and vibrant photographs, examines arguments on both sides of this relatable issue for young students.","English",25.6,20.48,"613.2083--dc23","24 pp.","https://greenhavenpublishing.com/9781534536401",null,{"$f":"Table1[[#This Row],['# of Books]]*Table1[[#This Row],[QTY]]","v":0},{"$f":"Table1[[#This Row],[QTY]]*Table1[[#This Row],[School & Library Price]]","v":0}]
[null,null,null,12,17,"Current Issues","Points of View","Should Schools Have Dress Codes?","978-1-5345-3643-2",{"$f":"HYPERLINK(Table1[[#This Row],[eCommerce Hyperlink]],\"Book Weblink\")","v":"Book Weblink"},null,"KidHaven Publishing","Library Bound Book",1,"2022","August 2021","Library","8.500 X 8.500","Author","Layla Owens",null,null,null,null,"N",null,"Grade 3","Grade 3 - 5","Most schools have at least some form of a dress code. However, some people believe dress codes are restrictive and unnecessary. Is one approach better than the other? Readers are immersed in the debate surrounding school dress codes through the use of informative text that presents multiple points of view. Eye-catching fact boxes, detailed graphic organizers, and full-color photographs enhance this engaging reading experience. Readers are encouraged to keep an open mind and develop an informed opinion as they explore the many sides of an issue that directly affects them.","English",25.6,20.48,"371.8--dc23","24 pp.","https://greenhavenpublishing.com/9781534536432",null,{"$f":"Table1[[#This Row],['# of Books]]*Table1[[#This Row],[QTY]]","v":0},{"$f":"Table1[[#This Row],[QTY]]*Table1[[#This Row],[School & Library Price]]","v":0}]
[null,null,null,12,17,"Current Issues","Points of View","Should Schools Have Dress Codes?","978-1-5345-3644-9",{"$f":"HYPERLINK(Table1[[#This Row],[eCommerce Hyperlink]],\"Book Weblink\")","v":"Book Weblink"},null,"KidHaven Publishing","eBook",1,"2022","August 2021",null,null,"Author","Layla Owens",null,null,null,null,"N",null,"Grade 3","Grade 3 - 5","Most schools have at least some form of a dress code. However, some people believe dress codes are restrictive and unnecessary. Is one approach better than the other? Readers are immersed in the debate surrounding school dress codes through the use of informative text that presents multiple points of view. Eye-catching fact boxes, detailed graphic organizers, and full-color photographs enhance this engaging reading experience. Readers are encouraged to keep an open mind and develop an informed opinion as they explore the many sides of an issue that directly affects them.","English",25.6,20.48,"371.8--dc23","24 pp.","https://greenhavenpublishing.com/9781534536449",null,{"$f":"Table1[[#This Row],['# of Books]]*Table1[[#This Row],[QTY]]","v":0},{"$f":"Table1[[#This Row],[QTY]]*Table1[[#This Row],[School & Library Price]]","v":0}]
[null,null,null,12,17,"Current Issues","Points of View","Should Students Be Allowed to Protest at School?","978-1-5345-3651-7",{"$f":"HYPERLINK(Table1[[#This Row],[eCommerce Hyperlink]],\"Book Weblink\")","v":"Book Weblink"},null,"KidHaven Publishing","Library Bound Book",1,"2022","August 2021","Library","8.500 X 8.500","Author","Emma Tunney",null,null,null,null,"N",null,"Grade 3","Grade 3 - 5","In the wake of the school shooting at Marjory Stoneman Douglas High School in Parkland, Florida, the number of student walkouts and other kinds of protests have risen dramatically. Gun control is not the only subject students protest, but as it made headlines across the country, adults debated how effective these walkouts were and how permissible they should be. Vivid photographs, intriguing fact boxes, and an informative graphic organizer help readers gain a deeper understanding of the issue of school protests to help readers make their own decisions about a topic that has huge effects on their own lives.","English",25.6,20.48,"371.8/1--dc23","24 pp.","https://greenhavenpublishing.com/9781534536517",null,{"$f":"Table1[[#This Row],['# of Books]]*Table1[[#This Row],[QTY]]","v":0},{"$f":"Table1[[#This Row],[QTY]]*Table1[[#This Row],[School & Library Price]]","v":0}]
[null,null,null,12,17,"Current Issues","Points of View","Should Students Be Allowed to Protest at School?","978-1-5345-3652-4",{"$f":"HYPERLINK(Table1[[#This Row],[eCommerce Hyperlink]],\"Book Weblink\")","v":"Book Weblink"},null,"KidHaven Publishing","eBook",1,"2022","August 2021",null,null,"Author","Emma Tunney",null,null,null,null,"N",null,"Grade 3","Grade 3 - 5","In the wake of the school shooting at Marjory Stoneman Douglas High School in Parkland, Florida, the number of student walkouts and other kinds of protests have risen dramatically. Gun control is not the only subject students protest, but as it made headlines across the country, adults debated how effective these walkouts were and how permissible they should be. Vivid photographs, intriguing fact boxes, and an informative graphic organizer help readers gain a deeper understanding of the issue of school protests to help readers make their own decisions about a topic that has huge effects on their own lives.","English",25.6,20.48,"371.8/1--dc23","24 pp.","https://greenhavenpublishing.com/9781534536524",null,{"$f":"Table1[[#This Row],['# of Books]]*Table1[[#This Row],[QTY]]","v":0},{"$f":"Table1[[#This Row],[QTY]]*Table1[[#This Row],[School & Library Price]]","v":0}]
[null,null,null,12,17,"Current Issues","Points of View","Should the United States Help Other Countries?","978-1-5345-3655-5",{"$f":"HYPERLINK(Table1[[#This Row],[eCommerce Hyperlink]],\"Book Weblink\")","v":"Book Weblink"},null,"KidHaven Publishing","Library Bound Book",1,"2022","August 2021","Library","8.500 X 8.500","Author","Maya Morrison",null,null,null,null,"N",null,"Grade 3","Grade 3 - 5","Foreign aid is a controversial topic that has only grown more heated since the 2016 U.S. presidential election. Some people believe it’s necessary for the United States to help other countries. Others say giving away financial aid hurts the United States and doesn’t help the countries receiving it in the long run. Full-color photographs and engaging fact boxes enhance the objective main text as it explores all sides of this delicate issue. A graphic organizer is also included to help readers compare these arguments as they learn to think critically and become more informed citizens.","English",25.6,20.48,"327.1/11--dc23","24 pp.","https://greenhavenpublishing.com/9781534536555",null,{"$f":"Table1[[#This Row],['# of Books]]*Table1[[#This Row],[QTY]]","v":0},{"$f":"Table1[[#This Row],[QTY]]*Table1[[#This Row],[School & Library Price]]","v":0}]
[null,null,null,12,17,"Current Issues","Points of View","Should the United States Help Other Countries?","978-1-5345-3656-2",{"$f":"HYPERLINK(Table1[[#This Row],[eCommerce Hyperlink]],\"Book Weblink\")","v":"Book Weblink"},null,"KidHaven Publishing","eBook",1,"2022","August 2021",null,null,"Author","Maya Morrison",null,null,null,null,"N",null,"Grade 3","Grade 3 - 5","Foreign aid is a controversial topic that has only grown more heated since the 2016 U.S. presidential election. Some people believe it’s necessary for the United States to help other countries. Others say giving away financial aid hurts the United States and doesn’t help the countries receiving it in the long run. Full-color photographs and engaging fact boxes enhance the objective main text as it explores all sides of this delicate issue. A graphic organizer is also included to help readers compare these arguments as they learn to think critically and become more informed citizens.","English",25.6,20.48,"327.1/11--dc23","24 pp.","https://greenhavenpublishing.com/9781534536562",null,{"$f":"Table1[[#This Row],['# of Books]]*Table1[[#This Row],[QTY]]","v":0},{"$f":"Table1[[#This Row],[QTY]]*Table1[[#This Row],[School & Library Price]]","v":0}]
[null,null,null,15,18,"Current Issues","What's the Issue?","What's the Issue?: Sets 1 – 7","978-1-5345-3712-5",null,null,"KidHaven Publishing","Library Set",42,"2023","August 2022","Library","8.500 X 8.500",null,null,null,null,null,null,null,null,"Grade 3","Grade 3 - 5","Although children are frequently aware of what’s happening around them, they don’t always get all the information they need to form a clear picture of the situation that leaves them feeling empowered rather than afraid or unsure. Understanding issues such as hacking, impeachment, and trade wars is crucial to creating an informed opinion about current events. Engaging text, enhanced with full-color photographs and accessible graphic organizers, gives readers information about all facets of today’s most important issues. Knowing the facts is the first step toward becoming active, informed citizens and making a difference in the world.\n","English",1075.2,860.16,null,"24 pp.","https://greenhavenpublishing.com/9781534537125",null,{"$f":"Table1[[#This Row],['# of Books]]*Table1[[#This Row],[QTY]]","v":0},{"$f":"Table1[[#This Row],[QTY]]*Table1[[#This Row],[School & Library Price]]","v":0}]
[null,null,null,15,18,"Current Issues","What's the Issue?","What's the Issue?: Set 7","978-1-5345-3711-8",null,null,"KidHaven Publishing","Library Set",6,"2023","August 2022","Library","8.500 X 8.500",null,null,null,null,null,null,null,null,"Grade 3","Grade 3 - 5","In today’s society, young adults are increasingly at the forefront of social change. Giving children an age-appropriate introduction to today’s toughest topics is an important part of preparing them to take an active role in the world around them. Augmented with colorful graphic organizers and eye-catching fact boxes, these volumes explore some of the most pressing issues of the 21st century, such as impeachment, vaccines, and food insecurity, using language that readers can understand and relate to. Readers learn not only what’s happening around them but also what they can do about it.","English",153.6,122.88,null,"24 pp.","https://greenhavenpublishing.com/9781534537118",null,{"$f":"Table1[[#This Row],['# of Books]]*Table1[[#This Row],[QTY]]","v":0},{"$f":"Table1[[#This Row],[QTY]]*Table1[[#This Row],[School & Library Price]]","v":0}]
[null,null,null,15,18,"Current Issues","What's the Issue?","What Are Microaggressions?","978-1-5345-4211-2",null,null,"KidHaven Publishing","Library Bound Book",1,"2023","August 2022","Library","8.500 X 8.500","Author","Meghan Green",null,null,null,null,"N",null,"Grade 3","Grade 3 - 5","Microaggressions are brief, commonplace interactions with marginalized groups that convey a sense of hostility or disrespect toward that group. They may be small, but they can be upsetting, and they add up over time to have a cumulative negative effect on a person’s mental health. Microaggressions are different for different groups, so it’s difficult to make blanket statements about them; this is why an overview of all angles of this issue is so important. An age-appropriate and comprehensive look at this complex topic is presented to readers through relatable examples, full-color photographs, intriguing fact boxes, and eye-catching graphic organizers.","English",25.6,20.48,"303.3/85--dc23","24 pp.","https://greenhavenpublishing.com/9781534542112",null,{"$f":"Table1[[#This Row],['# of Books]]*Table1[[#This Row],[QTY]]","v":0},{"$f":"Table1[[#This Row],[QTY]]*Table1[[#This Row],[School & Library Price]]","v":0}]
[null,null,null,15,18,"Current Issues","What's the Issue?","What Are Microaggressions?","978-1-5345-4212-9",null,null,"KidHaven Publishing","eBook",1,"2023","August 2022",null,null,"Author","Meghan Green",null,null,null,null,"N",null,"Grade 3","Grade 3 - 5","Microaggressions are brief, commonplace interactions with marginalized groups that convey a sense of hostility or disrespect toward that group. They may be small, but they can be upsetting, and they add up over time to have a cumulative negative effect on a person’s mental health. Microaggressions are different for different groups, so it’s difficult to make blanket statements about them; this is why an overview of all angles of this issue is so important. An age-appropriate and comprehensive look at this complex topic is presented to readers through relatable examples, full-color photographs, intriguing fact boxes, and eye-catching graphic organizers.","English",25.6,20.48,"303.3/85--dc23","24 pp.","https://greenhavenpublishing.com/9781534542129","http://www.epointplus.com/embed/9781534542129/?login=cyberrep&password=cyberrep",{"$f":"Table1[[#This Row],['# of Books]]*Table1[[#This Row],[QTY]]","v":0},{"$f":"Table1[[#This Row],[QTY]]*Table1[[#This Row],[School & Library Price]]","v":0}]
[null,null,null,15,18,"Current Issues","What's the Issue?","What Are Vaccines?","978-1-5345-4215-0",null,null,"KidHaven Publishing","Library Bound Book",1,"2023","August 2022","Library","8.500 X 8.500","Author","Simon Pierce",null,null,null,null,"N",null,"Grade 3","Grade 3 - 5","Some people have vocally opposed vaccines ever since they were first invented. In the 20th century, the anti-vax movement gained steam as celebrities such as Jenny McCarthy spread false information about their link to autism. The COVID-19 pandemic thrust the issue into the spotlight, and misinformation spread on social media helped turn many people against vaccination. This volume examines the scientific facts about vaccines, dispelling the myths and rumors about their efficacy and safety. In-depth fact boxes, detailed graphic organizers, and a glossary of new terms give readers a deeper understanding of this crucial issue.","English",25.6,20.48,"615.3/72--dc23","24 pp.","https://greenhavenpublishing.com/9781534542150",null,{"$f":"Table1[[#This Row],['# of Books]]*Table1[[#This Row],[QTY]]","v":0},{"$f":"Table1[[#This Row],[QTY]]*Table1[[#This Row],[School & Library Price]]","v":0}]
[null,null,null,15,18,"Current Issues","What's the Issue?","What Are Vaccines?","978-1-5345-4216-7",null,null,"KidHaven Publishing","eBook",1,"2023","August 2022",null,null,"Author","Simon Pierce",null,null,null,null,"N",null,"Grade 3","Grade 3 - 5","Some people have vocally opposed vaccines ever since they were first invented. In the 20th century, the anti-vax movement gained steam as celebrities such as Jenny McCarthy spread false information about their link to autism. The COVID-19 pandemic thrust the issue into the spotlight, and misinformation spread on social media helped turn many people against vaccination. This volume examines the scientific facts about vaccines, dispelling the myths and rumors about their efficacy and safety. In-depth fact boxes, detailed graphic organizers, and a glossary of new terms give readers a deeper understanding of this crucial issue.","English",25.6,20.48,"615.3/72--dc23","24 pp.","https://greenhavenpublishing.com/9781534542167","http://www.epointplus.com/embed/9781534542167/?login=cyberrep&password=cyberrep",{"$f":"Table1[[#This Row],['# of Books]]*Table1[[#This Row],[QTY]]","v":0},{"$f":"Table1[[#This Row],[QTY]]*Table1[[#This Row],[School & Library Price]]","v":0}]
[null,null,null,15,18,"Current Issues","What's the Issue?","What's a Pandemic?","978-1-5345-4227-3",null,null,"KidHaven Publishing","Library Bound Book",1,"2023","August 2022","Library","8.500 X 8.500","Author","Simon Pierce",null,null,null,null,"N",null,"Grade 3","Grade 3 - 5","The COVID-19 pandemic has completely altered the way people participate in society. Some of these changes are temporary, while others may end up being permanent. While children have certainly heard the word, they may struggle to understand exactly how a pandemic affects them specifically as well as society at large. The engaging main text, enhanced with full-color photographs and informative fact boxes, break down the complex issues surrounding pandemics. A list of age-appropriate ways to get involved give young readers a sense of agency to combat feelings of helplessness that often accompany major world events.","English",25.6,20.48,"614.4--dc23","24 pp.","https://greenhavenpublishing.com/9781534542273",null,{"$f":"Table1[[#This Row],['# of Books]]*Table1[[#This Row],[QTY]]","v":0},{"$f":"Table1[[#This Row],[QTY]]*Table1[[#This Row],[School & Library Price]]","v":0}]
[null,null,null,15,18,"Current Issues","What's the Issue?","What's a Pandemic?","978-1-5345-4228-0",null,null,"KidHaven Publishing","eBook",1,"2023","August 2022",null,null,"Author","Simon Pierce",null,null,null,null,"N",null,"Grade 3","Grade 3 - 5","The COVID-19 pandemic has completely altered the way people participate in society. Some of these changes are temporary, while others may end up being permanent. While children have certainly heard the word, they may struggle to understand exactly how a pandemic affects them specifically as well as society at large. The engaging main text, enhanced with full-color photographs and informative fact boxes, break down the complex issues surrounding pandemics. A list of age-appropriate ways to get involved give young readers a sense of agency to combat feelings of helplessness that often accompany major world events.","English",25.6,20.48,"614.4--dc23","24 pp.","https://greenhavenpublishing.com/9781534542280","http://www.epointplus.com/embed/9781534542280/?login=cyberrep&password=cyberrep",{"$f":"Table1[[#This Row],['# of Books]]*Table1[[#This Row],[QTY]]","v":0},{"$f":"Table1[[#This Row],[QTY]]*Table1[[#This Row],[School & Library Price]]","v":0}]
[null,null,null,15,18,"Current Issues","What's the Issue?","What's Food Insecurity?","978-1-5345-4219-8",null,null,"KidHaven Publishing","Library Bound Book",1,"2023","August 2022","Library","8.500 X 8.500","Author","Anna Collins",null,null,null,null,"N",null,"Grade 3","Grade 3 - 5","Throughout the world, millions of people face food insecurity every day. Although the United States is a prosperous country, it is not immune to this problem. Concerns about where their next meal is coming from plague hundreds of thousands of Americans. Understanding what food insecurity means is the first step toward solving it. Informative text and engaging fact boxes give readers a better understanding of the facts surrounding this often complex issue. A list of ways young people can become more involved in combating food insecurity is also included to help them take a more active role in their community.","English",25.6,20.48,"338.1’9--dc23","24 pp.","https://greenhavenpublishing.com/9781534542198",null,{"$f":"Table1[[#This Row],['# of Books]]*Table1[[#This Row],[QTY]]","v":0},{"$f":"Table1[[#This Row],[QTY]]*Table1[[#This Row],[School & Library Price]]","v":0}]
[null,null,null,15,18,"Current Issues","What's the Issue?","What's Food Insecurity?","978-1-5345-4220-4",null,null,"KidHaven Publishing","eBook",1,"2023","August 2022",null,null,"Author","Anna Collins",null,null,null,null,"N",null,"Grade 3","Grade 3 - 5","Throughout the world, millions of people face food insecurity every day. Although the United States is a prosperous country, it is not immune to this problem. Concerns about where their next meal is coming from plague hundreds of thousands of Americans. Understanding what food insecurity means is the first step toward solving it. Informative text and engaging fact boxes give readers a better understanding of the facts surrounding this often complex issue. A list of ways young people can become more involved in combating food insecurity is also included to help them take a more active role in their community.","English",25.6,20.48,"338.1’9--dc23","24 pp.","https://greenhavenpublishing.com/9781534542204","http://www.epointplus.com/embed/9781534542204/?login=cyberrep&password=cyberrep",{"$f":"Table1[[#This Row],['# of Books]]*Table1[[#This Row],[QTY]]","v":0},{"$f":"Table1[[#This Row],[QTY]]*Table1[[#This Row],[School & Library Price]]","v":0}]
[null,null,null,15,18,"Current Issues","What's the Issue?","What's Impeachment?","978-1-5345-4223-5",null,null,"KidHaven Publishing","Library Bound Book",1,"2023","August 2022","Library","8.500 X 8.500","Author","Amy Holt",null,null,null,null,"N",null,"Grade 3","Grade 3 - 5","As Donald Trump’s impeachment dominated the news for months, children have likely been hearing the term “impeachment” with little to no concept of what it means. Even many adults have found that they have misconceptions about what impeachment is. As this process is meant to safeguard the integrity of not just the presidency but many civic offices, it’s important for all informed citizens to understand it. Full-color photographs and engaging fact boxes enhance readers’ understanding of this complex yet crucial political process, giving them the tools they need to think critically about the responsibilities of our elected officials.","English",25.6,20.48,"328.3453--dc23","24 pp.","https://greenhavenpublishing.com/9781534542235",null,{"$f":"Table1[[#This Row],['# of Books]]*Table1[[#This Row],[QTY]]","v":0},{"$f":"Table1[[#This Row],[QTY]]*Table1[[#This Row],[School & Library Price]]","v":0}]
[null,null,null,15,18,"Current Issues","What's the Issue?","What's Impeachment?","978-1-5345-4224-2",null,null,"KidHaven Publishing","eBook",1,"2023","August 2022",null,null,"Author","Amy Holt",null,null,null,null,"N",null,"Grade 3","Grade 3 - 5","As Donald Trump’s impeachment dominated the news for months, children have likely been hearing the term “impeachment” with little to no concept of what it means. Even many adults have found that they have misconceptions about what impeachment is. As this process is meant to safeguard the integrity of not just the presidency but many civic offices, it’s important for all informed citizens to understand it. Full-color photographs and engaging fact boxes enhance readers’ understanding of this complex yet crucial political process, giving them the tools they need to think critically about the responsibilities of our elected officials.","English",25.6,20.48,"328.3453--dc23","24 pp.","https://greenhavenpublishing.com/9781534542242","http://www.epointplus.com/embed/9781534542242/?login=cyberrep&password=cyberrep",{"$f":"Table1[[#This Row],['# of Books]]*Table1[[#This Row],[QTY]]","v":0},{"$f":"Table1[[#This Row],[QTY]]*Table1[[#This Row],[School & Library Price]]","v":0}]
[null,null,null,15,18,"Current Issues","What's the Issue?","What's Social Media?","978-1-5345-4231-0",null,null,"KidHaven Publishing","Library Bound Book",1,"2023","August 2022","Library","8.500 X 8.500","Author","Sophie Washburne",null,null,null,null,"N",null,"Grade 3","Grade 3 - 5","Social media has undeniably changed the world. While people disagree about whether this change is mostly good or mostly bad, it’s clear that it will continue to influence our lives. This is why it’s imperative to give children an introduction to this new, influential form of social connection long before they’re old enough to make their first social media account. Vivid photographs, graphic organizers, and intriguing fact boxes augment the engaging text, giving readers a deeper understanding of what social media is and how to use it safely and responsibly.","English",25.6,20.48,"302.23--dc23","24 pp.","https://greenhavenpublishing.com/9781534542310",null,{"$f":"Table1[[#This Row],['# of Books]]*Table1[[#This Row],[QTY]]","v":0},{"$f":"Table1[[#This Row],[QTY]]*Table1[[#This Row],[School & Library Price]]","v":0}]
[null,null,null,15,18,"Current Issues","What's the Issue?","What's Social Media?","978-1-5345-4232-7",null,null,"KidHaven Publishing","eBook",1,"2023","August 2022",null,null,"Author","Sophie Washburne",null,null,null,null,"N",null,"Grade 3","Grade 3 - 5","Social media has undeniably changed the world. While people disagree about whether this change is mostly good or mostly bad, it’s clear that it will continue to influence our lives. This is why it’s imperative to give children an introduction to this new, influential form of social connection long before they’re old enough to make their first social media account. Vivid photographs, graphic organizers, and intriguing fact boxes augment the engaging text, giving readers a deeper understanding of what social media is and how to use it safely and responsibly.","English",25.6,20.48,"302.23--dc23","24 pp.","https://greenhavenpublishing.com/9781534542327","http://www.epointplus.com/embed/9781534542327/?login=cyberrep&password=cyberrep",{"$f":"Table1[[#This Row],['# of Books]]*Table1[[#This Row],[QTY]]","v":0},{"$f":"Table1[[#This Row],[QTY]]*Table1[[#This Row],[School & Library Price]]","v":0}]
[null,null,null,15,19,"Current Issues","What's the Issue?","What's Climate Change?","978-1-5345-2431-6",{"$f":"HYPERLINK(Table1[[#This Row],[eCommerce Hyperlink]],\"Book Weblink\")","v":"Book Weblink"},null,"KidHaven Publishing","Library Bound Book",1,"2018","January 2018","Library","8.500 X 8.500","Author","Robert M. Hamilton ","5.1","0.5",null,null,"N","940L","Grade 3","Grade 3 - 5","Climate change is an issue that affects all living things on Earth, but the specifics of the issue are often spoken and written about using complex scientific language, making it difficult for young people to fully grasp why it is such a critical problem. When presented in an accessible way, however, readers are able to gain a deeper understanding of the causes and effects of climate change, as well as why they should care about this issue. Striking, full-color photographs, detailed fact boxes, and informative graphic organizers help readers as they explore this hot topic.","English",25.6,20.48,"363.738/74--dc23","24 pp.","https://greenhavenpublishing.com/9781534524316",null,{"$f":"Table1[[#This Row],['# of Books]]*Table1[[#This Row],[QTY]]","v":0},{"$f":"Table1[[#This Row],[QTY]]*Table1[[#This Row],[School & Library Price]]","v":0}]
[null,null,null,15,19,"Current Issues","What's the Issue?","What's Climate Change?","978-1-5345-2432-3",{"$f":"HYPERLINK(Table1[[#This Row],[eCommerce Hyperlink]],\"Book Weblink\")","v":"Book Weblink"},null,"KidHaven Publishing","eBook",1,"2018","January 2018",null,null,"Author","Robert M. Hamilton ","5.1","0.5",null,null,"N","940L","Grade 3","Grade 3 - 5","Climate change is an issue that affects all living things on Earth, but the specifics of the issue are often spoken and written about using complex scientific language, making it difficult for young people to fully grasp why it is such a critical problem. When presented in an accessible way, however, readers are able to gain a deeper understanding of the causes and effects of climate change, as well as why they should care about this issue. Striking, full-color photographs, detailed fact boxes, and informative graphic organizers help readers as they explore this hot topic.","English",25.6,20.48,"363.738/74--dc23","24 pp.","https://greenhavenpublishing.com/9781534524323",null,{"$f":"Table1[[#This Row],['# of Books]]*Table1[[#This Row],[QTY]]","v":0},{"$f":"Table1[[#This Row],[QTY]]*Table1[[#This Row],[School & Library Price]]","v":0}]
[null,null,null,15,19,"Current Issues","What's the Issue?","What's Racism?","978-1-5345-2437-8",{"$f":"HYPERLINK(Table1[[#This Row],[eCommerce Hyperlink]],\"Book Weblink\")","v":"Book Weblink"},null,"KidHaven Publishing","Library Bound Book",1,"2018","January 2018","Library","8.500 X 8.500","Author","Amy B. Rogers","5.9","0.5",null,null,"N",null,"Grade 3","Grade 3 - 5","Racism is a difficult issue to face, but people must confront it if they hope to move beyond it. Confronting challenging social issues such as racism often begins with education. As readers discover the roots of racism in America and how it still isolates people from one another, they learn what their generation can do to combat racism create a more inclusive society. This sensitive topic is presented in an age-appropriate an informative way, using fact boxes, graphic organizers, and full-color photographs enhance the reading experience.","English",25.6,20.48,"305.800973--dc23","24 pp.","https://greenhavenpublishing.com/9781534524378",null,{"$f":"Table1[[#This Row],['# of Books]]*Table1[[#This Row],[QTY]]","v":0},{"$f":"Table1[[#This Row],[QTY]]*Table1[[#This Row],[School & Library Price]]","v":0}]
[null,null,null,15,19,"Current Issues","What's the Issue?","What's Racism?","978-1-5345-2438-5",{"$f":"HYPERLINK(Table1[[#This Row],[eCommerce Hyperlink]],\"Book Weblink\")","v":"Book Weblink"},null,"KidHaven Publishing","eBook",1,"2018","January 2018",null,null,"Author","Amy B. Rogers","5.9","0.5",null,null,"N",null,"Grade 3","Grade 3 - 5","Racism is a difficult issue to face, but people must confront it if they hope to move beyond it. Confronting challenging social issues such as racism often begins with education. As readers discover the roots of racism in America and how it still isolates people from one another, they learn what their generation can do to combat racism create a more inclusive society. This sensitive topic is presented in an age-appropriate an informative way, using fact boxes, graphic organizers, and full-color photographs enhance the reading experience.","English",25.6,20.48,"305.800973--dc23","24 pp.","https://greenhavenpublishing.com/9781534524385",null,{"$f":"Table1[[#This Row],['# of Books]]*Table1[[#This Row],[QTY]]","v":0},{"$f":"Table1[[#This Row],[QTY]]*Table1[[#This Row],[School & Library Price]]","v":0}]
[null,null,null,15,19,"Current Issues","What's the Issue?","What’s Gender Equality?","978-1-5345-2435-4",{"$f":"HYPERLINK(Table1[[#This Row],[eCommerce Hyperlink]],\"Book Weblink\")","v":"Book Weblink"},null,"KidHaven Publishing","Library Bound Book",1,"2018","January 2018","Library","8.500 X 8.500","Author","Katie Kawa","5.5","0.5",null,null,"N",null,"Grade 3","Grade 3 - 5","The fight for gender equality has its roots in the past, affects the lives of all people in the present, and will shape the future in important ways. However, before young people can begin to join the fight for gender equality, they first have to understand it. What is feminism? Why are women still fighting for equal pay for equal work? As readers discover the answers to these questions, they become more familiar with this newsworthy topic. Their critical-thinking skills are strengthened through informative main text and fact boxes, as well as vibrant photographs and graphic organizers.","English",25.6,20.48,"305.42--dc23","24 pp.","https://greenhavenpublishing.com/9781534524354",null,{"$f":"Table1[[#This Row],['# of Books]]*Table1[[#This Row],[QTY]]","v":0},{"$f":"Table1[[#This Row],[QTY]]*Table1[[#This Row],[School & Library Price]]","v":0}]
[null,null,null,15,19,"Current Issues","What's the Issue?","What’s Gender Equality?","978-1-5345-2436-1",{"$f":"HYPERLINK(Table1[[#This Row],[eCommerce Hyperlink]],\"Book Weblink\")","v":"Book Weblink"},null,"KidHaven Publishing","eBook",1,"2018","January 2018",null,null,"Author","Katie Kawa","5.5","0.5",null,null,"N",null,"Grade 3","Grade 3 - 5","The fight for gender equality has its roots in the past, affects the lives of all people in the present, and will shape the future in important ways. However, before young people can begin to join the fight for gender equality, they first have to understand it. What is feminism? Why are women still fighting for equal pay for equal work? As readers discover the answers to these questions, they become more familiar with this newsworthy topic. Their critical-thinking skills are strengthened through informative main text and fact boxes, as well as vibrant photographs and graphic organizers.","English",25.6,20.48,"305.42--dc23","24 pp.","https://greenhavenpublishing.com/9781534524361",null,{"$f":"Table1[[#This Row],['# of Books]]*Table1[[#This Row],[QTY]]","v":0},{"$f":"Table1[[#This Row],[QTY]]*Table1[[#This Row],[School & Library Price]]","v":0}]
[null,null,null,15,19,"Current Issues","What's the Issue?","What’s Gun Control?","978-1-5345-2441-5",{"$f":"HYPERLINK(Table1[[#This Row],[eCommerce Hyperlink]],\"Book Weblink\")","v":"Book Weblink"},null,"KidHaven Publishing","Library Bound Book",1,"2018","January 2018","Library","8.500 X 8.500","Author","Kate Rogers","6","0.5",null,null,"N",null,"Grade 3","Grade 3 - 5","Gun control is a popular topic of debate on news programs and online, but these debates are sensationalized and often do not fully explain the issue and the points of view of people on both sides of it. Readers are given a clearer picture of what gun control means and why people support and oppose it through fact-filled text and relevant, full-color photographs. Fact boxes and graphic organizers supply readers with additional details to help them develop their own informed opinion on this topic and understand those whose opinion differs from theirs.","English",25.6,20.48,"323.4'3--dc23","24 pp.","https://greenhavenpublishing.com/9781534524415",null,{"$f":"Table1[[#This Row],['# of Books]]*Table1[[#This Row],[QTY]]","v":0},{"$f":"Table1[[#This Row],[QTY]]*Table1[[#This Row],[School & Library Price]]","v":0}]
[null,null,null,15,19,"Current Issues","What's the Issue?","What’s Gun Control?","978-1-5345-2442-2",{"$f":"HYPERLINK(Table1[[#This Row],[eCommerce Hyperlink]],\"Book Weblink\")","v":"Book Weblink"},null,"KidHaven Publishing","eBook",1,"2018","January 2018",null,null,"Author","Kate Rogers","6","0.5",null,null,"N",null,"Grade 3","Grade 3 - 5","Gun control is a popular topic of debate on news programs and online, but these debates are sensationalized and often do not fully explain the issue and the points of view of people on both sides of it. Readers are given a clearer picture of what gun control means and why people support and oppose it through fact-filled text and relevant, full-color photographs. Fact boxes and graphic organizers supply readers with additional details to help them develop their own informed opinion on this topic and understand those whose opinion differs from theirs.","English",25.6,20.48,"323.4'3--dc23","24 pp.","https://greenhavenpublishing.com/9781534524422",null,{"$f":"Table1[[#This Row],['# of Books]]*Table1[[#This Row],[QTY]]","v":0},{"$f":"Table1[[#This Row],[QTY]]*Table1[[#This Row],[School & Library Price]]","v":0}]
[null,null,null,15,19,"Current Issues","What's the Issue?","What’s Intolerance?","978-1-5345-2439-2",{"$f":"HYPERLINK(Table1[[#This Row],[eCommerce Hyperlink]],\"Book Weblink\")","v":"Book Weblink"},null,"KidHaven Publishing","Library Bound Book",1,"2018","January 2018","Library","8.500 X 8.500","Author","Richard Alexander","6","0.5",null,null,"N","990L","Grade 3","Grade 3 - 5","Intolerance is a complex issue, but readers are introduced to it in a way that leaves them feeling enlightened and not overwhelmed. Informative, accessible text presents a basic definition of intolerance as well as relatable examples that readers could see in their daily lives and on the news. The main text is enhanced by the use of fact boxes, graphic organizers, and eye-catching photographs. These engaging elements come together to give readers a clear picture of what intolerance is, who it affects, and how they can fight against it.","English",25.6,20.48,"305--dc23","24 pp.","https://greenhavenpublishing.com/9781534524392",null,{"$f":"Table1[[#This Row],['# of Books]]*Table1[[#This Row],[QTY]]","v":0},{"$f":"Table1[[#This Row],[QTY]]*Table1[[#This Row],[School & Library Price]]","v":0}]
[null,null,null,15,19,"Current Issues","What's the Issue?","What’s Intolerance?","978-1-5345-2440-8",{"$f":"HYPERLINK(Table1[[#This Row],[eCommerce Hyperlink]],\"Book Weblink\")","v":"Book Weblink"},null,"KidHaven Publishing","eBook",1,"2018","January 2018",null,null,"Author","Richard Alexander","6","0.5",null,null,"N","990L","Grade 3","Grade 3 - 5","Intolerance is a complex issue, but readers are introduced to it in a way that leaves them feeling enlightened and not overwhelmed. Informative, accessible text presents a basic definition of intolerance as well as relatable examples that readers could see in their daily lives and on the news. The main text is enhanced by the use of fact boxes, graphic organizers, and eye-catching photographs. These engaging elements come together to give readers a clear picture of what intolerance is, who it affects, and how they can fight against it.","English",25.6,20.48,"305--dc23","24 pp.","https://greenhavenpublishing.com/9781534524408",null,{"$f":"Table1[[#This Row],['# of Books]]*Table1[[#This Row],[QTY]]","v":0},{"$f":"Table1[[#This Row],[QTY]]*Table1[[#This Row],[School & Library Price]]","v":0}]
[null,null,null,15,19,"Current Issues","What's the Issue?","Who Are Refugees?","978-1-5345-2433-0",{"$f":"HYPERLINK(Table1[[#This Row],[eCommerce Hyperlink]],\"Book Weblink\")","v":"Book Weblink"},null,"KidHaven Publishing","Library Bound Book",1,"2018","January 2018","Library","8.500 X 8.500","Author","Joyce Jeffries","5.6","0.5",null,null,"N",null,"Grade 3","Grade 3 - 5","How do refugees differ from immigrants? Why do they leave their country, and what do they hope to find in a new place? These questions and more are answered as readers are given an in-depth look at refugees and their struggle to build a better life. This important topic is addressed using accessible text, enlightening fact boxes, full-color photographs and helpful graphic organizers. The relatable tone presents this issue to readers without condescension, fostering in them a deeper sense of social justice and empathy.","English",25.6,20.48,"305.9/06914--dc23","24 pp.","https://greenhavenpublishing.com/9781534524330",null,{"$f":"Table1[[#This Row],['# of Books]]*Table1[[#This Row],[QTY]]","v":0},{"$f":"Table1[[#This Row],[QTY]]*Table1[[#This Row],[School & Library Price]]","v":0}]
[null,null,null,15,19,"Current Issues","What's the Issue?","Who Are Refugees?","978-1-5345-2434-7",{"$f":"HYPERLINK(Table1[[#This Row],[eCommerce Hyperlink]],\"Book Weblink\")","v":"Book Weblink"},null,"KidHaven Publishing","eBook",1,"2018","January 2018",null,null,"Author","Joyce Jeffries","5.6","0.5",null,null,"N",null,"Grade 3","Grade 3 - 5","How do refugees differ from immigrants? Why do they leave their country, and what do they hope to find in a new place? These questions and more are answered as readers are given an in-depth look at refugees and their struggle to build a better life. This important topic is addressed using accessible text, enlightening fact boxes, full-color photographs and helpful graphic organizers. The relatable tone presents this issue to readers without condescension, fostering in them a deeper sense of social justice and empathy.","English",25.6,20.48,"305.9/06914--dc23","24 pp.","https://greenhavenpublishing.com/9781534524347",null,{"$f":"Table1[[#This Row],['# of Books]]*Table1[[#This Row],[QTY]]","v":0},{"$f":"Table1[[#This Row],[QTY]]*Table1[[#This Row],[School & Library Price]]","v":0}]
[null,null,null,15,19,"Current Issues","What's the Issue?","What's Fake News?","978-1-5345-2583-2",{"$f":"HYPERLINK(Table1[[#This Row],[eCommerce Hyperlink]],\"Book Weblink\")","v":"Book Weblink"},null,"KidHaven Publishing","Library Bound Book",1,"2019","August 2018","Library","8.500 X 8.500","Author","Joyce Jeffries",null,null,null,null,"N",null,"Grade 3","Grade 3 - 5","\"Fake news\" is a term that is used and often misused by politicians, in the news, and on social media. What does it really mean? Readers discover the answer to this question as they explore the realities of false news stories, misinformation, and bias. Through unbiased main text, detailed graphic organizers, full-color photographs, and helpful fact boxes, readers expand their understanding of this timely topic and engage their critical-thinking skills in the process. They also learn how they can become smarter media consumers, which is an essential life skill in today's world.","English",25.6,20.48,"070.4/3--dc23","24 pp.","https://greenhavenpublishing.com/9781534525832",null,{"$f":"Table1[[#This Row],['# of Books]]*Table1[[#This Row],[QTY]]","v":0},{"$f":"Table1[[#This Row],[QTY]]*Table1[[#This Row],[School & Library Price]]","v":0}]
[null,null,null,15,19,"Current Issues","What's the Issue?","What's Fake News?","978-1-5345-2586-3",{"$f":"HYPERLINK(Table1[[#This Row],[eCommerce Hyperlink]],\"Book Weblink\")","v":"Book Weblink"},null,"KidHaven Publishing","eBook",1,"2019","August 2018",null,null,"Author","Joyce Jeffries",null,null,null,null,"N",null,"Grade 3","Grade 3 - 5","\"Fake news\" is a term that is used and often misused by politicians, in the news, and on social media. What does it really mean? Readers discover the answer to this question as they explore the realities of false news stories, misinformation, and bias. Through unbiased main text, detailed graphic organizers, full-color photographs, and helpful fact boxes, readers expand their understanding of this timely topic and engage their critical-thinking skills in the process. They also learn how they can become smarter media consumers, which is an essential life skill in today's world.","English",25.6,20.48,"070.4/3--dc23","24 pp.","https://greenhavenpublishing.com/9781534525863",null,{"$f":"Table1[[#This Row],['# of Books]]*Table1[[#This Row],[QTY]]","v":0},{"$f":"Table1[[#This Row],[QTY]]*Table1[[#This Row],[School & Library Price]]","v":0}]
[null,null,null,15,19,"Current Issues","What's the Issue?","What’s Cyberbullying?","978-1-5345-2591-7",{"$f":"HYPERLINK(Table1[[#This Row],[eCommerce Hyperlink]],\"Book Weblink\")","v":"Book Weblink"},null,"KidHaven Publishing","Library Bound Book",1,"2019","August 2018","Library","8.500 X 8.500","Author","Emma Jones",null,null,null,null,"N",null,"Grade 3","Grade 3 - 5","Cyberbullying is a new issue that adults might be unfamiliar with, so young readers need a helpful, fact-filled resource to guide them through this challenging aspect of growing up in the digital age. As young readers explore this informative book on a sensitive issue, they're provided with facts about this problem and advice for what to do if they or someone they know is being cyberbullied. Fact boxes provide relevant, up-to-date statistics on this issue, graphic organizers engage critical-thinking skills in a creative way, and relatable photographs help readers feel less alone.","English",25.6,20.48,"302.34/302854678--dc23","24 pp.","https://greenhavenpublishing.com/9781534525917",null,{"$f":"Table1[[#This Row],['# of Books]]*Table1[[#This Row],[QTY]]","v":0},{"$f":"Table1[[#This Row],[QTY]]*Table1[[#This Row],[School & Library Price]]","v":0}]
[null,null,null,15,19,"Current Issues","What's the Issue?","What’s Cyberbullying?","978-1-5345-2594-8",{"$f":"HYPERLINK(Table1[[#This Row],[eCommerce Hyperlink]],\"Book Weblink\")","v":"Book Weblink"},null,"KidHaven Publishing","eBook",1,"2019","August 2018",null,null,"Author","Emma Jones",null,null,null,null,"N",null,"Grade 3","Grade 3 - 5","Cyberbullying is a new issue that adults might be unfamiliar with, so young readers need a helpful, fact-filled resource to guide them through this challenging aspect of growing up in the digital age. As young readers explore this informative book on a sensitive issue, they're provided with facts about this problem and advice for what to do if they or someone they know is being cyberbullied. Fact boxes provide relevant, up-to-date statistics on this issue, graphic organizers engage critical-thinking skills in a creative way, and relatable photographs help readers feel less alone.","English",25.6,20.48,"302.34/302854678--dc23","24 pp.","https://greenhavenpublishing.com/9781534525948",null,{"$f":"Table1[[#This Row],['# of Books]]*Table1[[#This Row],[QTY]]","v":0},{"$f":"Table1[[#This Row],[QTY]]*Table1[[#This Row],[School & Library Price]]","v":0}]
[null,null,null,15,19,"Current Issues","What's the Issue?","What’s Free Speech?","978-1-5345-2599-3",{"$f":"HYPERLINK(Table1[[#This Row],[eCommerce Hyperlink]],\"Book Weblink\")","v":"Book Weblink"},null,"KidHaven Publishing","Library Bound Book",1,"2019","August 2018","Library","8.500 X 8.500","Author","Katie Kawa",null,null,null,null,"N",null,"Grade 3","Grade 3 - 5","Some people believe free speech means you can say whatever you want and no one can get mad at you or punish you for it. Readers learn this isn't exactly the truth as they explore one of the most important aspects of any free society. The concept of free speech and what it means has been debated for centuries, and as readers take a closer look at all sides of this debate, they sharpen their critical-thinking skills. Fact boxes, colorful photographs, and detailed graphic organizers enhance the main text to give readers a stronger understanding of this essential civics concept.","English",25.6,20.48,"342.7308/53--dc23","24 pp.","https://greenhavenpublishing.com/9781534525993",null,{"$f":"Table1[[#This Row],['# of Books]]*Table1[[#This Row],[QTY]]","v":0},{"$f":"Table1[[#This Row],[QTY]]*Table1[[#This Row],[School & Library Price]]","v":0}]
[null,null,null,15,19,"Current Issues","What's the Issue?","What’s Free Speech?","978-1-5345-2602-0",{"$f":"HYPERLINK(Table1[[#This Row],[eCommerce Hyperlink]],\"Book Weblink\")","v":"Book Weblink"},null,"KidHaven Publishing","eBook",1,"2019","August 2018",null,null,"Author","Katie Kawa",null,null,null,null,"N",null,"Grade 3","Grade 3 - 5","Some people believe free speech means you can say whatever you want and no one can get mad at you or punish you for it. Readers learn this isn't exactly the truth as they explore one of the most important aspects of any free society. The concept of free speech and what it means has been debated for centuries, and as readers take a closer look at all sides of this debate, they sharpen their critical-thinking skills. Fact boxes, colorful photographs, and detailed graphic organizers enhance the main text to give readers a stronger understanding of this essential civics concept.","English",25.6,20.48,"342.7308/53--dc23","24 pp.","https://greenhavenpublishing.com/9781534526020",null,{"$f":"Table1[[#This Row],['# of Books]]*Table1[[#This Row],[QTY]]","v":0},{"$f":"Table1[[#This Row],[QTY]]*Table1[[#This Row],[School & Library Price]]","v":0}]
[null,null,null,15,19,"Current Issues","What's the Issue?","What’s Income Inequality?","978-1-5345-2587-0",{"$f":"HYPERLINK(Table1[[#This Row],[eCommerce Hyperlink]],\"Book Weblink\")","v":"Book Weblink"},null,"KidHaven Publishing","Library Bound Book",1,"2019","August 2018","Library","8.500 X 8.500","Author","Joseph Stanley",null,null,null,null,"N",null,"Grade 3","Grade 3 - 5","Income inequality is a complex topic, but readers are able to explore this issue using language and examples they can easily understand. The economic, social, and political realities of income inequality are explained through simple main text, fact boxes filled with helpful statistics, and accessible graphic organizers. Detailed photographs are included to give readers a clearer picture of this important issue. Young people are also introduced to ways they can do their part to take on this issue and make the world a more fair place.","English",25.6,20.48,"339.2/2--dc23","24 pp.","https://greenhavenpublishing.com/9781534525870",null,{"$f":"Table1[[#This Row],['# of Books]]*Table1[[#This Row],[QTY]]","v":0},{"$f":"Table1[[#This Row],[QTY]]*Table1[[#This Row],[School & Library Price]]","v":0}]
[null,null,null,15,19,"Current Issues","What's the Issue?","What’s Income Inequality?","978-1-5345-2590-0",{"$f":"HYPERLINK(Table1[[#This Row],[eCommerce Hyperlink]],\"Book Weblink\")","v":"Book Weblink"},null,"KidHaven Publishing","eBook",1,"2019","August 2018",null,null,"Author","Joseph Stanley",null,null,null,null,"N",null,"Grade 3","Grade 3 - 5","Income inequality is a complex topic, but readers are able to explore this issue using language and examples they can easily understand. The economic, social, and political realities of income inequality are explained through simple main text, fact boxes filled with helpful statistics, and accessible graphic organizers. Detailed photographs are included to give readers a clearer picture of this important issue. Young people are also introduced to ways they can do their part to take on this issue and make the world a more fair place.","English",25.6,20.48,"339.2/2--dc23","24 pp.","https://greenhavenpublishing.com/9781534525900",null,{"$f":"Table1[[#This Row],['# of Books]]*Table1[[#This Row],[QTY]]","v":0},{"$f":"Table1[[#This Row],[QTY]]*Table1[[#This Row],[School & Library Price]]","v":0}]
[null,null,null,15,19,"Current Issues","What's the Issue?","What’s Universal Health Care?","978-1-5345-2595-5",{"$f":"HYPERLINK(Table1[[#This Row],[eCommerce Hyperlink]],\"Book Weblink\")","v":"Book Weblink"},null,"KidHaven Publishing","Library Bound Book",1,"2019","August 2018","Library","8.500 X 8.500","Author","Lorraine Harrison",null,null,null,null,"N",null,"Grade 3","Grade 3 - 5","Health care is a complicated topic that many adults struggle to understand. However, young readers need to know the facts about an issue that directly affects them now and will continue to directly affect them throughout their lives. This volume was designed to give young readers a basic understanding of the concept of universal health care and why people support and oppose it. Readers are presented with concise, unbiased information about both sides of the universal health care debate. The accessible main text is accompanied by informative fact boxes, graphic organizers, and full-color photographs.","English",25.6,20.48,"368.3'8'00973--dc23","24 pp.","https://greenhavenpublishing.com/9781534525955",null,{"$f":"Table1[[#This Row],['# of Books]]*Table1[[#This Row],[QTY]]","v":0},{"$f":"Table1[[#This Row],[QTY]]*Table1[[#This Row],[School & Library Price]]","v":0}]
[null,null,null,15,19,"Current Issues","What's the Issue?","What’s Universal Health Care?","978-1-5345-2598-6",{"$f":"HYPERLINK(Table1[[#This Row],[eCommerce Hyperlink]],\"Book Weblink\")","v":"Book Weblink"},null,"KidHaven Publishing","eBook",1,"2019","August 2018",null,null,"Author","Lorraine Harrison",null,null,null,null,"N",null,"Grade 3","Grade 3 - 5","Health care is a complicated topic that many adults struggle to understand. However, young readers need to know the facts about an issue that directly affects them now and will continue to directly affect them throughout their lives. This volume was designed to give young readers a basic understanding of the concept of universal health care and why people support and oppose it. Readers are presented with concise, unbiased information about both sides of the universal health care debate. The accessible main text is accompanied by informative fact boxes, graphic organizers, and full-color photographs.","English",25.6,20.48,"368.3'8'00973--dc23","24 pp.","https://greenhavenpublishing.com/9781534525986",null,{"$f":"Table1[[#This Row],['# of Books]]*Table1[[#This Row],[QTY]]","v":0},{"$f":"Table1[[#This Row],[QTY]]*Table1[[#This Row],[School & Library Price]]","v":0}]
[null,null,null,15,19,"Current Issues","What's the Issue?","Who Are Immigrants?","978-1-5345-2579-5",{"$f":"HYPERLINK(Table1[[#This Row],[eCommerce Hyperlink]],\"Book Weblink\")","v":"Book Weblink"},null,"KidHaven Publishing","Library Bound Book",1,"2019","August 2018","Library","8.500 X 8.500","Author","Riley Lawrence",null,null,null,null,"N",null,"Grade 3","Grade 3 - 5","Immigration is a topic that is often debated on television shows, on social media, and even among family members and friends. Young people might only get a biased view of this topic through these channels, but as they explore this informative book, they're presented with a comprehensive look at the facts surrounding immigration. Detailed main text, eye-catching fact boxes, graphic organizers, and vibrant photographs come together to help readers understand who immigrants are, why they come to other countries, and what people can do to help them feel at home.","English",25.6,20.48,"305.9/06912--dc23","24 pp.","https://greenhavenpublishing.com/9781534525795",null,{"$f":"Table1[[#This Row],['# of Books]]*Table1[[#This Row],[QTY]]","v":0},{"$f":"Table1[[#This Row],[QTY]]*Table1[[#This Row],[School & Library Price]]","v":0}]
[null,null,null,15,19,"Current Issues","What's the Issue?","Who Are Immigrants?","978-1-5345-2582-5",{"$f":"HYPERLINK(Table1[[#This Row],[eCommerce Hyperlink]],\"Book Weblink\")","v":"Book Weblink"},null,"KidHaven Publishing","eBook",1,"2019","August 2018",null,null,"Author","Riley Lawrence",null,null,null,null,"N",null,"Grade 3","Grade 3 - 5","Immigration is a topic that is often debated on television shows, on social media, and even among family members and friends. Young people might only get a biased view of this topic through these channels, but as they explore this informative book, they're presented with a comprehensive look at the facts surrounding immigration. Detailed main text, eye-catching fact boxes, graphic organizers, and vibrant photographs come together to help readers understand who immigrants are, why they come to other countries, and what people can do to help them feel at home.","English",25.6,20.48,"305.9/06912--dc23","24 pp.","https://greenhavenpublishing.com/9781534525825",null,{"$f":"Table1[[#This Row],['# of Books]]*Table1[[#This Row],[QTY]]","v":0},{"$f":"Table1[[#This Row],[QTY]]*Table1[[#This Row],[School & Library Price]]","v":0}]
[null,null,null,15,19,"Current Issues","What's the Issue?","What Are Political Parties?","978-1-5345-2815-4",{"$f":"HYPERLINK(Table1[[#This Row],[eCommerce Hyperlink]],\"Book Weblink\")","v":"Book Weblink"},null,"KidHaven Publishing","Library Bound Book",1,"2019","January 2019","Library","8.500 X 8.500","Author","Joyce Jeffries","6.1","0.5",null,null,"N",null,"Grade 3","Grade 3 - 5","Division along political party lines has become an issue that concerns many in the United States, but it is not a new problem. As readers explore the history and current landscape of political parties, they learn the reasons why political parties formed, what different parties stand for, and what can bring people from different parties together. The detailed main text, which is enhanced by fun fact boxes and full-color photographs, supports social studies curriculum topics. A detailed graphic organizer encourages young people to look beyond political differences and to embrace ways to become active citizens.","English",25.6,20.48,"324.273--dc23","24 pp.","https://greenhavenpublishing.com/9781534528154",null,{"$f":"Table1[[#This Row],['# of Books]]*Table1[[#This Row],[QTY]]","v":0},{"$f":"Table1[[#This Row],[QTY]]*Table1[[#This Row],[School & Library Price]]","v":0}]
[null,null,null,15,19,"Current Issues","What's the Issue?","What Are Political Parties?","978-1-5345-2816-1",{"$f":"HYPERLINK(Table1[[#This Row],[eCommerce Hyperlink]],\"Book Weblink\")","v":"Book Weblink"},null,"KidHaven Publishing","eBook",1,"2019","January 2019",null,null,"Author","Joyce Jeffries","6.1","0.5",null,null,"N",null,"Grade 3","Grade 3 - 5","Division along political party lines has become an issue that concerns many in the United States, but it is not a new problem. As readers explore the history and current landscape of political parties, they learn the reasons why political parties formed, what different parties stand for, and what can bring people from different parties together. The detailed main text, which is enhanced by fun fact boxes and full-color photographs, supports social studies curriculum topics. A detailed graphic organizer encourages young people to look beyond political differences and to embrace ways to become active citizens.","English",25.6,20.48,"324.273--dc23","24 pp.","https://greenhavenpublishing.com/9781534528161",null,{"$f":"Table1[[#This Row],['# of Books]]*Table1[[#This Row],[QTY]]","v":0},{"$f":"Table1[[#This Row],[QTY]]*Table1[[#This Row],[School & Library Price]]","v":0}]
[null,null,null,15,19,"Current Issues","What's the Issue?","What Are Protests?","978-1-5345-2811-6",{"$f":"HYPERLINK(Table1[[#This Row],[eCommerce Hyperlink]],\"Book Weblink\")","v":"Book Weblink"},null,"KidHaven Publishing","Library Bound Book",1,"2019","January 2019","Library","8.500 X 8.500","Author","Katie Kawa","6.1","0.5",null,null,"N",null,"Grade 3","Grade 3 - 5","Young people have always played a part in protests, from the American Revolution to the civil rights movement to the Never Again movement, and it is important for the students of today to understand this method of fighting for change. Through detailed main text that draws on historical and contemporary examples, readers are presented with essential information about protests, including what laws protect the right to protest and what actions break the law. Fact boxes, full-color photographs, and a graphic organizer support the text to inspire a new generation of activists.","English",25.6,20.48,"302.34082--dc23","24 pp.","https://greenhavenpublishing.com/9781534528116",null,{"$f":"Table1[[#This Row],['# of Books]]*Table1[[#This Row],[QTY]]","v":0},{"$f":"Table1[[#This Row],[QTY]]*Table1[[#This Row],[School & Library Price]]","v":0}]
[null,null,null,15,19,"Current Issues","What's the Issue?","What Are Protests?","978-1-5345-2812-3",{"$f":"HYPERLINK(Table1[[#This Row],[eCommerce Hyperlink]],\"Book Weblink\")","v":"Book Weblink"},null,"KidHaven Publishing","eBook",1,"2019","January 2019",null,null,"Author","Katie Kawa","6.1","0.5",null,null,"N",null,"Grade 3","Grade 3 - 5","Young people have always played a part in protests, from the American Revolution to the civil rights movement to the Never Again movement, and it is important for the students of today to understand this method of fighting for change. Through detailed main text that draws on historical and contemporary examples, readers are presented with essential information about protests, including what laws protect the right to protest and what actions break the law. Fact boxes, full-color photographs, and a graphic organizer support the text to inspire a new generation of activists.","English",25.6,20.48,"302.34082--dc23","24 pp.","https://greenhavenpublishing.com/9781534528123",null,{"$f":"Table1[[#This Row],['# of Books]]*Table1[[#This Row],[QTY]]","v":0},{"$f":"Table1[[#This Row],[QTY]]*Table1[[#This Row],[School & Library Price]]","v":0}]
[null,null,null,15,19,"Current Issues","What's the Issue?","What’s Border Security?","978-1-5345-2806-2",{"$f":"HYPERLINK(Table1[[#This Row],[eCommerce Hyperlink]],\"Book Weblink\")","v":"Book Weblink"},null,"KidHaven Publishing","Library Bound Book",1,"2019","January 2019","Library","8.500 X 8.500","Author","Emma Jones",null,null,null,null,"N",null,"Grade 3","Grade 3 - 5","Border security is a topic that's often talked about by politicians, on the news, and on social media, but what does it mean? Readers discover the answer as they explore the heated debates surrounding this controversial issue. The unbiased main text enhances critical-thinking skills by encouraging readers to understand the many different points of view people have about border security. Full-color photographs and fact boxes create a unique and informative reading experience, and a helpful graphic organizer makes this crucial current events topic feel more accessible to young readers.","English",25.6,20.48,"363.28'502373--dc23","24 pp.","https://greenhavenpublishing.com/9781534528062",null,{"$f":"Table1[[#This Row],['# of Books]]*Table1[[#This Row],[QTY]]","v":0},{"$f":"Table1[[#This Row],[QTY]]*Table1[[#This Row],[School & Library Price]]","v":0}]
[null,null,null,15,19,"Current Issues","What's the Issue?","What’s Border Security?","978-1-5345-2807-9",{"$f":"HYPERLINK(Table1[[#This Row],[eCommerce Hyperlink]],\"Book Weblink\")","v":"Book Weblink"},null,"KidHaven Publishing","eBook",1,"2019","January 2019",null,null,"Author","Emma Jones",null,null,null,null,"N",null,"Grade 3","Grade 3 - 5","Border security is a topic that's often talked about by politicians, on the news, and on social media, but what does it mean? Readers discover the answer as they explore the heated debates surrounding this controversial issue. The unbiased main text enhances critical-thinking skills by encouraging readers to understand the many different points of view people have about border security. Full-color photographs and fact boxes create a unique and informative reading experience, and a helpful graphic organizer makes this crucial current events topic feel more accessible to young readers.","English",25.6,20.48,"363.28'502373--dc23","24 pp.","https://greenhavenpublishing.com/9781534528079",null,{"$f":"Table1[[#This Row],['# of Books]]*Table1[[#This Row],[QTY]]","v":0},{"$f":"Table1[[#This Row],[QTY]]*Table1[[#This Row],[School & Library Price]]","v":0}]
[null,null,null,15,19,"Current Issues","What's the Issue?","What’s Diversity?","978-1-5345-2802-4",{"$f":"HYPERLINK(Table1[[#This Row],[eCommerce Hyperlink]],\"Book Weblink\")","v":"Book Weblink"},null,"KidHaven Publishing","Library Bound Book",1,"2019","January 2019","Library","8.500 X 8.500","Author","David Anthony",null,null,null,null,"N",null,"Grade 3","Grade 3 - 5","Why are some people afraid of those who are different from them, and why do others believe diversity so important? As readers explore the answers to these and other questions about diversity, they're encouraged to form their own opinions about the world around them. The engaging main text provides new information to young people without talking down to them, and additional knowledge is gained through eye-catching fact boxes. Vibrant full-color photographs and a detailed graphic organizer encourage young people to appreciate diversity and respect everyone, no matter how different they may seem.","English",25.6,20.48,"305.8--dc23","24 pp.","https://greenhavenpublishing.com/9781534528024",null,{"$f":"Table1[[#This Row],['# of Books]]*Table1[[#This Row],[QTY]]","v":0},{"$f":"Table1[[#This Row],[QTY]]*Table1[[#This Row],[School & Library Price]]","v":0}]
[null,null,null,15,19,"Current Issues","What's the Issue?","What’s Diversity?","978-1-5345-2803-1",{"$f":"HYPERLINK(Table1[[#This Row],[eCommerce Hyperlink]],\"Book Weblink\")","v":"Book Weblink"},null,"KidHaven Publishing","eBook",1,"2019","January 2019",null,null,"Author","David Anthony",null,null,null,null,"N",null,"Grade 3","Grade 3 - 5","Why are some people afraid of those who are different from them, and why do others believe diversity so important? As readers explore the answers to these and other questions about diversity, they're encouraged to form their own opinions about the world around them. The engaging main text provides new information to young people without talking down to them, and additional knowledge is gained through eye-catching fact boxes. Vibrant full-color photographs and a detailed graphic organizer encourage young people to appreciate diversity and respect everyone, no matter how different they may seem.","English",25.6,20.48,"305.8--dc23","24 pp.","https://greenhavenpublishing.com/9781534528031",null,{"$f":"Table1[[#This Row],['# of Books]]*Table1[[#This Row],[QTY]]","v":0},{"$f":"Table1[[#This Row],[QTY]]*Table1[[#This Row],[School & Library Price]]","v":0}]
[null,null,null,15,19,"Current Issues","What's the Issue?","What’s Drug Abuse?","978-1-5345-2798-0",{"$f":"HYPERLINK(Table1[[#This Row],[eCommerce Hyperlink]],\"Book Weblink\")","v":"Book Weblink"},null,"KidHaven Publishing","Library Bound Book",1,"2019","January 2019","Library","8.500 X 8.500","Author","Richard Alexander","5.9","0.5",null,null,"N",null,"Grade 3","Grade 3 - 5","As the opioid epidemic continues to spread throughout the United States, words such as \"addiction\" and \"overdose\" are often in the news. These words may be unfamiliar and frightening to young people, but readers are given the tools to better understand what they mean in this exploration of the causes and effects of drug abuse, as well as various plans to combat this growing problem. This difficult topic is presented in a sensitive way, with important information provided through accessible main text and fact boxes. Carefully chosen photographs and a helpful graphic organizer enhance this essential reading experience.","English",25.6,20.48,"362.290973--dc23","24 pp.","https://greenhavenpublishing.com/9781534527980",null,{"$f":"Table1[[#This Row],['# of Books]]*Table1[[#This Row],[QTY]]","v":0},{"$f":"Table1[[#This Row],[QTY]]*Table1[[#This Row],[School & Library Price]]","v":0}]
[null,null,null,15,19,"Current Issues","What's the Issue?","What’s Drug Abuse?","978-1-5345-2799-7",{"$f":"HYPERLINK(Table1[[#This Row],[eCommerce Hyperlink]],\"Book Weblink\")","v":"Book Weblink"},null,"KidHaven Publishing","eBook",1,"2019","January 2019",null,null,"Author","Richard Alexander","5.9","0.5",null,null,"N",null,"Grade 3","Grade 3 - 5","As the opioid epidemic continues to spread throughout the United States, words such as \"addiction\" and \"overdose\" are often in the news. These words may be unfamiliar and frightening to young people, but readers are given the tools to better understand what they mean in this exploration of the causes and effects of drug abuse, as well as various plans to combat this growing problem. This difficult topic is presented in a sensitive way, with important information provided through accessible main text and fact boxes. Carefully chosen photographs and a helpful graphic organizer enhance this essential reading experience.","English",25.6,20.48,"362.290973--dc23","24 pp.","https://greenhavenpublishing.com/9781534527997",null,{"$f":"Table1[[#This Row],['# of Books]]*Table1[[#This Row],[QTY]]","v":0},{"$f":"Table1[[#This Row],[QTY]]*Table1[[#This Row],[School & Library Price]]","v":0}]
[null,null,null,15,19,"Current Issues","What's the Issue?","What’s Freedom of Religion?","978-1-5345-2795-9",{"$f":"HYPERLINK(Table1[[#This Row],[eCommerce Hyperlink]],\"Book Weblink\")","v":"Book Weblink"},null,"KidHaven Publishing","Library Bound Book",1,"2019","January 2019","Library","8.500 X 8.500","Author","Joseph Stanley","6.3","0.5",null,null,"N",null,"Grade 3","Grade 3 - 5","Freedom of religion is an important part of life in the United States. What does religious freedom actually entail, and why is it a controversial issue? Readers explore the answers to these questions as they learn about the history of religious freedom in the United States and how it compares to other countries. The fact-filled main text addresses this sensitive issue in an unbiased way, and full-color photographs encourage readers to appreciate religious diversity. Eye-catching fact boxes provide additional information about this current events topic, and a graphic organizer provides examples of how to practice tolerance.","English",25.6,20.48,"342.7308'53--dc23","24 pp.","https://greenhavenpublishing.com/9781534527959",null,{"$f":"Table1[[#This Row],['# of Books]]*Table1[[#This Row],[QTY]]","v":0},{"$f":"Table1[[#This Row],[QTY]]*Table1[[#This Row],[School & Library Price]]","v":0}]
[null,null,null,15,19,"Current Issues","What's the Issue?","What’s Freedom of Religion?","978-1-5345-2808-6",{"$f":"HYPERLINK(Table1[[#This Row],[eCommerce Hyperlink]],\"Book Weblink\")","v":"Book Weblink"},null,"KidHaven Publishing","eBook",1,"2019","January 2019",null,null,"Author","Joseph Stanley","6.3","0.5",null,null,"N",null,"Grade 3","Grade 3 - 5","Freedom of religion is an important part of life in the United States. What does religious freedom actually entail, and why is it a controversial issue? Readers explore the answers to these questions as they learn about the history of religious freedom in the United States and how it compares to other countries. The fact-filled main text addresses this sensitive issue in an unbiased way, and full-color photographs encourage readers to appreciate religious diversity. Eye-catching fact boxes provide additional information about this current events topic, and a graphic organizer provides examples of how to practice tolerance.","English",25.6,20.48,"342.7308'53--dc23","24 pp.","https://greenhavenpublishing.com/9781534528086",null,{"$f":"Table1[[#This Row],['# of Books]]*Table1[[#This Row],[QTY]]","v":0},{"$f":"Table1[[#This Row],[QTY]]*Table1[[#This Row],[School & Library Price]]","v":0}]
[null,null,null,15,19,"Current Issues","What's the Issue?","What Are Human Rights?","978-1-5345-6737-5",{"$f":"HYPERLINK(Table1[[#This Row],[eCommerce Hyperlink]],\"Book Weblink\")","v":"Book Weblink"},null,"KidHaven Publishing","Library Bound Book",1,"2020","August 2019","Library","8.500 X 8.500","Author","Amy B. Rogers","5.8","0.5",null,null,"N",null,"Grade 3","Grade 3 - 5","What are human rights? This is a complex question, and the way people answer it affects government policies, laws, and even wars around the world. Readers are introduced to the concept of human rights in an accessible way that features concrete statistics presented in fact boxes and full-color photographs that depict this issue in a global setting. Graphic organizers provide additional information as well as ideas for how young people can respect the rights of others and support the work of human rights organizations around the world.","English",25.6,20.48,"323--dc23","24 pp.","https://greenhavenpublishing.com/9781534567375",null,{"$f":"Table1[[#This Row],['# of Books]]*Table1[[#This Row],[QTY]]","v":0},{"$f":"Table1[[#This Row],[QTY]]*Table1[[#This Row],[School & Library Price]]","v":0}]
[null,null,null,15,19,"Current Issues","What's the Issue?","What Are Human Rights?","978-1-5345-3002-7",{"$f":"HYPERLINK(Table1[[#This Row],[eCommerce Hyperlink]],\"Book Weblink\")","v":"Book Weblink"},null,"KidHaven Publishing","eBook",1,"2020","August 2019",null,null,"Author","Amy B. Rogers","5.8","0.5",null,null,"N",null,"Grade 3","Grade 3 - 5","What are human rights? This is a complex question, and the way people answer it affects government policies, laws, and even wars around the world. Readers are introduced to the concept of human rights in an accessible way that features concrete statistics presented in fact boxes and full-color photographs that depict this issue in a global setting. Graphic organizers provide additional information as well as ideas for how young people can respect the rights of others and support the work of human rights organizations around the world.","English",25.6,20.48,"323--dc23","24 pp.","https://greenhavenpublishing.com/9781534530027",null,{"$f":"Table1[[#This Row],['# of Books]]*Table1[[#This Row],[QTY]]","v":0},{"$f":"Table1[[#This Row],[QTY]]*Table1[[#This Row],[School & Library Price]]","v":0}]
[null,null,null,15,19,"Current Issues","What's the Issue?","What Are Natural Disasters?","978-1-5345-6734-4",{"$f":"HYPERLINK(Table1[[#This Row],[eCommerce Hyperlink]],\"Book Weblink\")","v":"Book Weblink"},null,"KidHaven Publishing","Library Bound Book",1,"2020","August 2019","Library","8.500 X 8.500","Author","Joyce Jeffries","5.5","0.5",null,null,"N",null,"Grade 3","Grade 3 - 5","When natural disasters such as hurricanes and wildfires strike, it can be frightening, not just for people living through the event, but also for young people watching coverage on television or social media. By giving elementary readers objective information presented in a sensitive way, this guide to natural disasters aims to empower young people to protect themselves and help others. Additional information is presented through fact boxes and graphic organizers, and full-color photographs present natural disasters and their aftermath in an age-appropriate way. How can young people play a part in disaster relief? They'll find the answer inside.","English",25.6,20.48,"363.34--dc23","24 pp.","https://greenhavenpublishing.com/9781534567344",null,{"$f":"Table1[[#This Row],['# of Books]]*Table1[[#This Row],[QTY]]","v":0},{"$f":"Table1[[#This Row],[QTY]]*Table1[[#This Row],[School & Library Price]]","v":0}]
[null,null,null,15,19,"Current Issues","What's the Issue?","What Are Natural Disasters?","978-1-5345-6735-1",{"$f":"HYPERLINK(Table1[[#This Row],[eCommerce Hyperlink]],\"Book Weblink\")","v":"Book Weblink"},null,"KidHaven Publishing","eBook",1,"2020","August 2019",null,null,"Author","Joyce Jeffries","5.5","0.5",null,null,"N",null,"Grade 3","Grade 3 - 5","When natural disasters such as hurricanes and wildfires strike, it can be frightening, not just for people living through the event, but also for young people watching coverage on television or social media. By giving elementary readers objective information presented in a sensitive way, this guide to natural disasters aims to empower young people to protect themselves and help others. Additional information is presented through fact boxes and graphic organizers, and full-color photographs present natural disasters and their aftermath in an age-appropriate way. How can young people play a part in disaster relief? They'll find the answer inside.","English",25.6,20.48,"363.34--dc23","24 pp.","https://greenhavenpublishing.com/9781534567351",null,{"$f":"Table1[[#This Row],['# of Books]]*Table1[[#This Row],[QTY]]","v":0},{"$f":"Table1[[#This Row],[QTY]]*Table1[[#This Row],[School & Library Price]]","v":0}]
[null,null,null,15,19,"Current Issues","What's the Issue?","What Are Taxes?","978-1-5345-6731-3",{"$f":"HYPERLINK(Table1[[#This Row],[eCommerce Hyperlink]],\"Book Weblink\")","v":"Book Weblink"},null,"KidHaven Publishing","Library Bound Book",1,"2020","August 2019","Library","8.500 X 8.500","Author","Joseph Stanley","5.8","0.5",null,null,"N",null,"Grade 3","Grade 3 - 5","Young people often hear adults complaining about taxes at home and on the news, but the facts about taxes aren't always easy for them to understand. However, this guide to an essential civics topic introduces elementary readers to the basic facts about taxes: what they are, what they're used for, and who pays them. Helpful graphic organizers, eye-catching fact boxes, and full-color photographs complement the informative narrative. Even though it may be many years before readers have to start paying their own taxes, it is never too early to learn about this important part of life.","English",25.6,20.48,"336.200973--dc23","24 pp.","https://greenhavenpublishing.com/9781534567313",null,{"$f":"Table1[[#This Row],['# of Books]]*Table1[[#This Row],[QTY]]","v":0},{"$f":"Table1[[#This Row],[QTY]]*Table1[[#This Row],[School & Library Price]]","v":0}]
[null,null,null,15,19,"Current Issues","What's the Issue?","What Are Taxes?","978-1-5345-6732-0",{"$f":"HYPERLINK(Table1[[#This Row],[eCommerce Hyperlink]],\"Book Weblink\")","v":"Book Weblink"},null,"KidHaven Publishing","eBook",1,"2020","August 2019",null,null,"Author","Joseph Stanley","5.8","0.5",null,null,"N",null,"Grade 3","Grade 3 - 5","Young people often hear adults complaining about taxes at home and on the news, but the facts about taxes aren't always easy for them to understand. However, this guide to an essential civics topic introduces elementary readers to the basic facts about taxes: what they are, what they're used for, and who pays them. Helpful graphic organizers, eye-catching fact boxes, and full-color photographs complement the informative narrative. Even though it may be many years before readers have to start paying their own taxes, it is never too early to learn about this important part of life.","English",25.6,20.48,"336.200973--dc23","24 pp.","https://greenhavenpublishing.com/9781534567320",null,{"$f":"Table1[[#This Row],['# of Books]]*Table1[[#This Row],[QTY]]","v":0},{"$f":"Table1[[#This Row],[QTY]]*Table1[[#This Row],[School & Library Price]]","v":0}]
[null,null,null,15,19,"Current Issues","What's the Issue?","What's Activism?","978-1-5345-6741-2",{"$f":"HYPERLINK(Table1[[#This Row],[eCommerce Hyperlink]],\"Book Weblink\")","v":"Book Weblink"},null,"KidHaven Publishing","Library Bound Book",1,"2020","August 2019","Library","8.500 X 8.500","Author","Leslie Beckett","6","0.5",null,null,"N",null,"Grade 3","Grade 3 - 5","Activism is ageless; you're never too young to try to make the world a better place. That's the lesson readers take away from this accessible guide to activism. Realistic ideas for making a difference and making your voice heard are included in both the main text and detailed graphic organizers. Fact boxes and full-color photographs are also included to enhance the reading experience. Examples of famous activists from the past and present are included to give readers role models, but they're also encouraged to find their own path to age-appropriate activism.","English",25.6,20.48,"320.083--dc23","24 pp.","https://greenhavenpublishing.com/9781534567412",null,{"$f":"Table1[[#This Row],['# of Books]]*Table1[[#This Row],[QTY]]","v":0},{"$f":"Table1[[#This Row],[QTY]]*Table1[[#This Row],[School & Library Price]]","v":0}]
[null,null,null,15,19,"Current Issues","What's the Issue?","What's Activism?","978-1-5345-6742-9",{"$f":"HYPERLINK(Table1[[#This Row],[eCommerce Hyperlink]],\"Book Weblink\")","v":"Book Weblink"},null,"KidHaven Publishing","eBook",1,"2020","August 2019",null,null,"Author","Leslie Beckett","6","0.5",null,null,"N",null,"Grade 3","Grade 3 - 5","Activism is ageless; you're never too young to try to make the world a better place. That's the lesson readers take away from this accessible guide to activism. Realistic ideas for making a difference and making your voice heard are included in both the main text and detailed graphic organizers. Fact boxes and full-color photographs are also included to enhance the reading experience. Examples of famous activists from the past and present are included to give readers role models, but they're also encouraged to find their own path to age-appropriate activism.","English",25.6,20.48,"320.083--dc23","24 pp.","https://greenhavenpublishing.com/9781534567429",null,{"$f":"Table1[[#This Row],['# of Books]]*Table1[[#This Row],[QTY]]","v":0},{"$f":"Table1[[#This Row],[QTY]]*Table1[[#This Row],[School & Library Price]]","v":0}]
[null,null,null,15,19,"Current Issues","What's the Issue?","What's Freedom of the Press?","978-1-5345-6738-2",{"$f":"HYPERLINK(Table1[[#This Row],[eCommerce Hyperlink]],\"Book Weblink\")","v":"Book Weblink"},null,"KidHaven Publishing","Library Bound Book",1,"2020","August 2019","Library","8.500 X 8.500","Author","Katie Kawa","6.1","0.5",null,null,"N",null,"Grade 3","Grade 3 - 5","Freedom of the press is an issue that's often in the spotlight. Some people believe it's an essential part of a democracy, while others believe the press has too much freedom. Before readers can join in this debate about the press and the factors threatening its freedom, they need to know the facts about this topic. Facts are presented using accessible language and fact boxes that simplify complicated data and statistics. Readers deepen their understanding of this important civics and media literacy topic through relevant photographs and graphic organizers that encourage the development of critical thinking skills.","English",25.6,20.48,"323.445--dc23","24 pp.","https://greenhavenpublishing.com/9781534567382",null,{"$f":"Table1[[#This Row],['# of Books]]*Table1[[#This Row],[QTY]]","v":0},{"$f":"Table1[[#This Row],[QTY]]*Table1[[#This Row],[School & Library Price]]","v":0}]
[null,null,null,15,19,"Current Issues","What's the Issue?","What's Freedom of the Press?","978-1-5345-6739-9",{"$f":"HYPERLINK(Table1[[#This Row],[eCommerce Hyperlink]],\"Book Weblink\")","v":"Book Weblink"},null,"KidHaven Publishing","eBook",1,"2020","August 2019",null,null,"Author","Katie Kawa","6.1","0.5",null,null,"N",null,"Grade 3","Grade 3 - 5","Freedom of the press is an issue that's often in the spotlight. Some people believe it's an essential part of a democracy, while others believe the press has too much freedom. Before readers can join in this debate about the press and the factors threatening its freedom, they need to know the facts about this topic. Facts are presented using accessible language and fact boxes that simplify complicated data and statistics. Readers deepen their understanding of this important civics and media literacy topic through relevant photographs and graphic organizers that encourage the development of critical thinking skills.","English",25.6,20.48,"323.445--dc23","24 pp.","https://greenhavenpublishing.com/9781534567399",null,{"$f":"Table1[[#This Row],['# of Books]]*Table1[[#This Row],[QTY]]","v":0},{"$f":"Table1[[#This Row],[QTY]]*Table1[[#This Row],[School & Library Price]]","v":0}]
[null,null,null,15,19,"Current Issues","What's the Issue?","Who Are Veterans?","978-1-5345-2999-1",{"$f":"HYPERLINK(Table1[[#This Row],[eCommerce Hyperlink]],\"Book Weblink\")","v":"Book Weblink"},null,"KidHaven Publishing","Library Bound Book",1,"2020","August 2019","Library","8.500 X 8.500","Author","Emma Jones","5.8","0.5",null,null,"N",null,"Grade 3","Grade 3 - 5","Many brave men and women have served their country in the armed forces. Although these veterans are often praised as heroes, life isn't always easy for them when they return home. Veterans' issues, such as education, employment, mental health, and homelessness are important issues for all Americans to understand. As readers discover the truth about these issues through age-appropriate main text, full-color photographs, graphic organizers, and fact boxes, they also discover the ways they can show veterans they're thankful for their service. This sensitive text also provides support for readers with a veteran in their family.","English",25.6,20.48,"305.9/06970973--dc23","24 pp.","https://greenhavenpublishing.com/9781534529991",null,{"$f":"Table1[[#This Row],['# of Books]]*Table1[[#This Row],[QTY]]","v":0},{"$f":"Table1[[#This Row],[QTY]]*Table1[[#This Row],[School & Library Price]]","v":0}]
[null,null,null,15,19,"Current Issues","What's the Issue?","Who Are Veterans?","978-1-5345-3000-3",{"$f":"HYPERLINK(Table1[[#This Row],[eCommerce Hyperlink]],\"Book Weblink\")","v":"Book Weblink"},null,"KidHaven Publishing","eBook",1,"2020","August 2019",null,null,"Author","Emma Jones","5.8","0.5",null,null,"N",null,"Grade 3","Grade 3 - 5","Many brave men and women have served their country in the armed forces. Although these veterans are often praised as heroes, life isn't always easy for them when they return home. Veterans' issues, such as education, employment, mental health, and homelessness are important issues for all Americans to understand. As readers discover the truth about these issues through age-appropriate main text, full-color photographs, graphic organizers, and fact boxes, they also discover the ways they can show veterans they're thankful for their service. This sensitive text also provides support for readers with a veteran in their family.","English",25.6,20.48,"305.9/06970973--dc23","24 pp.","https://greenhavenpublishing.com/9781534530003",null,{"$f":"Table1[[#This Row],['# of Books]]*Table1[[#This Row],[QTY]]","v":0},{"$f":"Table1[[#This Row],[QTY]]*Table1[[#This Row],[School & Library Price]]","v":0}]
[null,null,null,15,19,"Current Issues","What's the Issue?","What Are Student Rights?","978-1-5345-3219-9",{"$f":"HYPERLINK(Table1[[#This Row],[eCommerce Hyperlink]],\"Book Weblink\")","v":"Book Weblink"},null,"KidHaven Publishing","Library Bound Book",1,"2020","January 2020","Library","8.500 X 8.500","Author","Amy B. Rogers","6.1","0.5",null,null,"N",null,"Grade 3","Grade 3 - 5","What rights do students have, and how do they differ from the rights of adults? Readers are challenged to think deeply and critically about these questions as they explore their rights as students. The informative main text provides essential historical context and explains legal rulings in accessible language. Fact boxes and graphic organizers enhance readers' knowledge of this important topic. Full-color photographs provide relatable examples of students exercising their rights. This helpful introduction to student rights encourages activism, informed citizenship, and a deeper understanding of the relationship between rights and responsibilities.","English",25.6,20.48,"344.73'0793--dc23","24 pp.","https://greenhavenpublishing.com/9781534532199",null,{"$f":"Table1[[#This Row],['# of Books]]*Table1[[#This Row],[QTY]]","v":0},{"$f":"Table1[[#This Row],[QTY]]*Table1[[#This Row],[School & Library Price]]","v":0}]
[null,null,null,15,19,"Current Issues","What's the Issue?","What Are Student Rights?","978-1-5345-3228-1",{"$f":"HYPERLINK(Table1[[#This Row],[eCommerce Hyperlink]],\"Book Weblink\")","v":"Book Weblink"},null,"KidHaven Publishing","eBook",1,"2020","January 2020",null,null,"Author","Amy B. Rogers","6.1","0.5",null,null,"N",null,"Grade 3","Grade 3 - 5","What rights do students have, and how do they differ from the rights of adults? Readers are challenged to think deeply and critically about these questions as they explore their rights as students. The informative main text provides essential historical context and explains legal rulings in accessible language. Fact boxes and graphic organizers enhance readers' knowledge of this important topic. Full-color photographs provide relatable examples of students exercising their rights. This helpful introduction to student rights encourages activism, informed citizenship, and a deeper understanding of the relationship between rights and responsibilities.","English",25.6,20.48,"344.73'0793--dc23","24 pp.","https://greenhavenpublishing.com/9781534532281",null,{"$f":"Table1[[#This Row],['# of Books]]*Table1[[#This Row],[QTY]]","v":0},{"$f":"Table1[[#This Row],[QTY]]*Table1[[#This Row],[School & Library Price]]","v":0}]
[null,null,null,15,19,"Current Issues","What's the Issue?","What Are Trade Wars?","978-1-5345-3222-9",{"$f":"HYPERLINK(Table1[[#This Row],[eCommerce Hyperlink]],\"Book Weblink\")","v":"Book Weblink"},null,"KidHaven Publishing","Library Bound Book",1,"2020","January 2020","Library","8.500 X 8.500","Author","Sophie Washburne","5.7","0.5",null,null,"N",null,"Grade 3","Grade 3 - 5","Trade wars affect everyone from world leaders to young people shopping at the mall. Because of this, it's important for people to have a basic understanding of why trade wars happen and how ordinary citizens can deal with their effects. Readers develop this understanding as they explore this age-appropriate and unbiased introduction to the concept of trade wars. Featuring historical examples that supplement social studies curricula and modern examples that encourage critical thinking about current events, this helpful guide enhances readers' understanding of basic economics. Fact boxes, graphic organizers, and full-color photographs make this an engaging reading experience.","English",25.6,20.48,"382'.73--dc23","24 pp.","https://greenhavenpublishing.com/9781534532229",null,{"$f":"Table1[[#This Row],['# of Books]]*Table1[[#This Row],[QTY]]","v":0},{"$f":"Table1[[#This Row],[QTY]]*Table1[[#This Row],[School & Library Price]]","v":0}]
[null,null,null,15,19,"Current Issues","What's the Issue?","What Are Trade Wars?","978-1-5345-3225-0",{"$f":"HYPERLINK(Table1[[#This Row],[eCommerce Hyperlink]],\"Book Weblink\")","v":"Book Weblink"},null,"KidHaven Publishing","eBook",1,"2020","January 2020",null,null,"Author","Sophie Washburne","5.7","0.5",null,null,"N",null,"Grade 3","Grade 3 - 5","Trade wars affect everyone from world leaders to young people shopping at the mall. Because of this, it's important for people to have a basic understanding of why trade wars happen and how ordinary citizens can deal with their effects. Readers develop this understanding as they explore this age-appropriate and unbiased introduction to the concept of trade wars. Featuring historical examples that supplement social studies curricula and modern examples that encourage critical thinking about current events, this helpful guide enhances readers' understanding of basic economics. Fact boxes, graphic organizers, and full-color photographs make this an engaging reading experience.","English",25.6,20.48,"382'.73--dc23","24 pp.","https://greenhavenpublishing.com/9781534532250",null,{"$f":"Table1[[#This Row],['# of Books]]*Table1[[#This Row],[QTY]]","v":0},{"$f":"Table1[[#This Row],[QTY]]*Table1[[#This Row],[School & Library Price]]","v":0}]
[null,null,null,15,19,"Current Issues","What's the Issue?","What's Fracking?","978-1-5345-3217-5",{"$f":"HYPERLINK(Table1[[#This Row],[eCommerce Hyperlink]],\"Book Weblink\")","v":"Book Weblink"},null,"KidHaven Publishing","Library Bound Book",1,"2020","January 2020","Library","8.500 X 8.500","Author","David Anthony","5.9","0.5",null,null,"N",null,"Grade 3","Grade 3 - 5","The practice of hydraulic fracturing has become a prominent issue as countries such as the United States strive for energy independence. What is fracking, and why is it such a controversial topic? Readers discover the answers to these questions and more through balanced text that presents multiple viewpoints about fracking. Fact boxes and graphic organizers provide additional information, and full-color photographs help readers better understand how fracking works and its effects on the environment. As readers explore this current events issue, they're also introduced to important information about natural resources, fossil fuels, and alternative energy sources.","English",25.6,20.48,"622/.338--dc23","24 pp.","https://greenhavenpublishing.com/9781534532175",null,{"$f":"Table1[[#This Row],['# of Books]]*Table1[[#This Row],[QTY]]","v":0},{"$f":"Table1[[#This Row],[QTY]]*Table1[[#This Row],[School & Library Price]]","v":0}]
[null,null,null,15,19,"Current Issues","What's the Issue?","What's Fracking?","978-1-5345-3230-4",{"$f":"HYPERLINK(Table1[[#This Row],[eCommerce Hyperlink]],\"Book Weblink\")","v":"Book Weblink"},null,"KidHaven Publishing","eBook",1,"2020","January 2020",null,null,"Author","David Anthony","5.9","0.5",null,null,"N",null,"Grade 3","Grade 3 - 5","The practice of hydraulic fracturing has become a prominent issue as countries such as the United States strive for energy independence. What is fracking, and why is it such a controversial topic? Readers discover the answers to these questions and more through balanced text that presents multiple viewpoints about fracking. Fact boxes and graphic organizers provide additional information, and full-color photographs help readers better understand how fracking works and its effects on the environment. As readers explore this current events issue, they're also introduced to important information about natural resources, fossil fuels, and alternative energy sources.","English",25.6,20.48,"622/.338--dc23","24 pp.","https://greenhavenpublishing.com/9781534532304",null,{"$f":"Table1[[#This Row],['# of Books]]*Table1[[#This Row],[QTY]]","v":0},{"$f":"Table1[[#This Row],[QTY]]*Table1[[#This Row],[School & Library Price]]","v":0}]
[null,null,null,15,19,"Current Issues","What's the Issue?","What's Gender Identity?","978-1-5345-3218-2",{"$f":"HYPERLINK(Table1[[#This Row],[eCommerce Hyperlink]],\"Book Weblink\")","v":"Book Weblink"},null,"KidHaven Publishing","Library Bound Book",1,"2020","January 2020","Library","8.500 X 8.500","Author","Katie Kawa","5.8","0.5",null,null,"N",null,"Grade 3","Grade 3 - 5","Gender identity is a concept that young people are talking about in increasingly open ways, and they need resources to help them better understand this complex topic. This sensitive and age-appropriate overview of gender identity features helpful definitions and explanations, an introduction to the use of preferred pronouns, and tips for talking to both peers and adults about this topic. Fact boxes and graphic organizers supplement the carefully researched main text, and full-color photographs make this topic more accessible and relatable for young readers. As they explore the informative narrative, they're encouraged to develop empathy and an appreciation for diversity.","English",25.6,20.48,"305.3--dc23","24 pp.","https://greenhavenpublishing.com/9781534532182",null,{"$f":"Table1[[#This Row],['# of Books]]*Table1[[#This Row],[QTY]]","v":0},{"$f":"Table1[[#This Row],[QTY]]*Table1[[#This Row],[School & Library Price]]","v":0}]
[null,null,null,15,19,"Current Issues","What's the Issue?","What's Gender Identity?","978-1-5345-3229-8",{"$f":"HYPERLINK(Table1[[#This Row],[eCommerce Hyperlink]],\"Book Weblink\")","v":"Book Weblink"},null,"KidHaven Publishing","eBook",1,"2020","January 2020",null,null,"Author","Katie Kawa","5.8","0.5",null,null,"N",null,"Grade 3","Grade 3 - 5","Gender identity is a concept that young people are talking about in increasingly open ways, and they need resources to help them better understand this complex topic. This sensitive and age-appropriate overview of gender identity features helpful definitions and explanations, an introduction to the use of preferred pronouns, and tips for talking to both peers and adults about this topic. Fact boxes and graphic organizers supplement the carefully researched main text, and full-color photographs make this topic more accessible and relatable for young readers. As they explore the informative narrative, they're encouraged to develop empathy and an appreciation for diversity.","English",25.6,20.48,"305.3--dc23","24 pp.","https://greenhavenpublishing.com/9781534532298",null,{"$f":"Table1[[#This Row],['# of Books]]*Table1[[#This Row],[QTY]]","v":0},{"$f":"Table1[[#This Row],[QTY]]*Table1[[#This Row],[School & Library Price]]","v":0}]
[null,null,null,15,19,"Current Issues","What's the Issue?","What's Hacking?","978-1-5345-3221-2",{"$f":"HYPERLINK(Table1[[#This Row],[eCommerce Hyperlink]],\"Book Weblink\")","v":"Book Weblink"},null,"KidHaven Publishing","Library Bound Book",1,"2020","January 2020","Library","8.500 X 8.500","Author","Daniel Donato","5.9","0.5",null,null,"N",null,"Grade 3","Grade 3 - 5","Hacking is a major problem for individuals and governments around the world. Hackers can steal private citizens' identities, release government secrets, and even try to influence elections. However, many people are working to stop hackers and to protect information. Readers develop a strong understanding of hacking and the efforts to combat it through informative text that focuses on facts rather than fear. Graphic organizers, fact boxes, and full-color photographs provide additional information and examples. This accessible introduction to an important issue enhances critical thinking skills and gives young people tips to better protect themselves online.","English",25.6,20.48,"364.16'8--dc23","24 pp.","https://greenhavenpublishing.com/9781534532212",null,{"$f":"Table1[[#This Row],['# of Books]]*Table1[[#This Row],[QTY]]","v":0},{"$f":"Table1[[#This Row],[QTY]]*Table1[[#This Row],[School & Library Price]]","v":0}]
[null,null,null,15,19,"Current Issues","What's the Issue?","What's Hacking?","978-1-5345-3226-7",{"$f":"HYPERLINK(Table1[[#This Row],[eCommerce Hyperlink]],\"Book Weblink\")","v":"Book Weblink"},null,"KidHaven Publishing","eBook",1,"2020","January 2020",null,null,"Author","Daniel Donato","5.9","0.5",null,null,"N",null,"Grade 3","Grade 3 - 5","Hacking is a major problem for individuals and governments around the world. Hackers can steal private citizens' identities, release government secrets, and even try to influence elections. However, many people are working to stop hackers and to protect information. Readers develop a strong understanding of hacking and the efforts to combat it through informative text that focuses on facts rather than fear. Graphic organizers, fact boxes, and full-color photographs provide additional information and examples. This accessible introduction to an important issue enhances critical thinking skills and gives young people tips to better protect themselves online.","English",25.6,20.48,"364.16'8--dc23","24 pp.","https://greenhavenpublishing.com/9781534532267",null,{"$f":"Table1[[#This Row],['# of Books]]*Table1[[#This Row],[QTY]]","v":0},{"$f":"Table1[[#This Row],[QTY]]*Table1[[#This Row],[School & Library Price]]","v":0}]
[null,null,null,15,19,"Current Issues","What's the Issue?","What's Nationalism?","978-1-5345-3220-5",{"$f":"HYPERLINK(Table1[[#This Row],[eCommerce Hyperlink]],\"Book Weblink\")","v":"Book Weblink"},null,"KidHaven Publishing","Library Bound Book",1,"2020","January 2020","Library","8.500 X 8.500","Author","Joyce Jeffries","6.3","0.5",null,null,"N",null,"Grade 3","Grade 3 - 5","The concept of nationalism is often in the news, and it can be challenging to understand why it often leads to heated debates. However, it's important for people to think critically about nationalism and its effects. Readers are encouraged to do this as they explore historical and up-to-date examples of nationalism through accessible text and detailed fact boxes. Graphic organizers provide additional information and avenues for further engagement, and full-color photographs enhance this learning experience. As readers explore this divisive concept, they're able to connect what they've learned in social studies classes to current events.","English",25.6,20.48,"320.54--dc23","24 pp.","https://greenhavenpublishing.com/9781534532205",null,{"$f":"Table1[[#This Row],['# of Books]]*Table1[[#This Row],[QTY]]","v":0},{"$f":"Table1[[#This Row],[QTY]]*Table1[[#This Row],[School & Library Price]]","v":0}]
[null,null,null,15,19,"Current Issues","What's the Issue?","What's Nationalism?","978-1-5345-3227-4",{"$f":"HYPERLINK(Table1[[#This Row],[eCommerce Hyperlink]],\"Book Weblink\")","v":"Book Weblink"},null,"KidHaven Publishing","eBook",1,"2020","January 2020",null,null,"Author","Joyce Jeffries","6.3","0.5",null,null,"N",null,"Grade 3","Grade 3 - 5","The concept of nationalism is often in the news, and it can be challenging to understand why it often leads to heated debates. However, it's important for people to think critically about nationalism and its effects. Readers are encouraged to do this as they explore historical and up-to-date examples of nationalism through accessible text and detailed fact boxes. Graphic organizers provide additional information and avenues for further engagement, and full-color photographs enhance this learning experience. As readers explore this divisive concept, they're able to connect what they've learned in social studies classes to current events.","English",25.6,20.48,"320.54--dc23","24 pp.","https://greenhavenpublishing.com/9781534532274",null,{"$f":"Table1[[#This Row],['# of Books]]*Table1[[#This Row],[QTY]]","v":0},{"$f":"Table1[[#This Row],[QTY]]*Table1[[#This Row],[School & Library Price]]","v":0}]
[null,null,null,14,19,"Current Issues","What's the Issue?","What Are Political Campaigns?","978-1-5345-3462-9",{"$f":"HYPERLINK(Table1[[#This Row],[eCommerce Hyperlink]],\"Book Weblink\")","v":"Book Weblink"},null,"KidHaven Publishing","Library Bound Book",1,"2022","August 2021","Library","8.500 X 8.500","Author","Judy Thorpe",null,null,null,null,"N",null,"Grade 3","Grade 3 - 5","When it is time for local, state, and presidential elections, it is difficult for children to avoid political ads and conversations around them. It is likely that many kids are unsure of the point of it all. Gaining a better understanding of why people hold campaigns is an important part of becoming an active citizen. With the help of engaging fact boxes, full-color photographs, and a detailed narrative, readers learn what political campaigns are and how they affect average citizens. They'll survey various outcomes, reviewing the whole point of the process itself. A list of ways to get more involved fosters a spirit of age-appropriate political activism.","English",25.6,20.48,"324.70973--dc23","24 pp.","https://greenhavenpublishing.com/9781534534629",null,{"$f":"Table1[[#This Row],['# of Books]]*Table1[[#This Row],[QTY]]","v":0},{"$f":"Table1[[#This Row],[QTY]]*Table1[[#This Row],[School & Library Price]]","v":0}]
[null,null,null,14,19,"Current Issues","What's the Issue?","What Are Political Campaigns?","978-1-5345-3463-6",{"$f":"HYPERLINK(Table1[[#This Row],[eCommerce Hyperlink]],\"Book Weblink\")","v":"Book Weblink"},null,"KidHaven Publishing","eBook",1,"2022","August 2021",null,null,"Author","Judy Thorpe",null,null,null,null,"N",null,"Grade 3","Grade 3 - 5","When it is time for local, state, and presidential elections, it is difficult for children to avoid political ads and conversations around them. It is likely that many kids are unsure of the point of it all. Gaining a better understanding of why people hold campaigns is an important part of becoming an active citizen. With the help of engaging fact boxes, full-color photographs, and a detailed narrative, readers learn what political campaigns are and how they affect average citizens. They'll survey various outcomes, reviewing the whole point of the process itself. A list of ways to get more involved fosters a spirit of age-appropriate political activism.","English",25.6,20.48,"324.70973--dc23","24 pp.","https://greenhavenpublishing.com/9781534534636",null,{"$f":"Table1[[#This Row],['# of Books]]*Table1[[#This Row],[QTY]]","v":0},{"$f":"Table1[[#This Row],[QTY]]*Table1[[#This Row],[School & Library Price]]","v":0}]
[null,null,null,14,19,"Current Issues","What's the Issue?","What Are Voting Rights?","978-1-5345-3446-9",{"$f":"HYPERLINK(Table1[[#This Row],[eCommerce Hyperlink]],\"Book Weblink\")","v":"Book Weblink"},null,"KidHaven Publishing","Library Bound Book",1,"2022","August 2021","Library","8.500 X 8.500","Author","Jennifer Lombardo",null,null,null,null,"N",null,"Grade 3","Grade 3 - 5","Accusations of voter fraud and voter suppression have been widespread in the 21st century, but the facts are often obscured. How much of a problem is voter fraud and what should be done to combat it? Will proposed measures be helpful or harmful to most voters? Informative text and engaging fact boxes help readers explore voting rights issues. They'll gain a better understanding of the facts surrounding this politically charged topic. A list of ways young people can become more involved in voting rights activism is included to help them become ideal citizens.","English",25.6,20.48,"324.6/20973--dc23","24 pp.","https://greenhavenpublishing.com/9781534534469",null,{"$f":"Table1[[#This Row],['# of Books]]*Table1[[#This Row],[QTY]]","v":0},{"$f":"Table1[[#This Row],[QTY]]*Table1[[#This Row],[School & Library Price]]","v":0}]
[null,null,null,14,19,"Current Issues","What's the Issue?","What Are Voting Rights?","978-1-5345-3447-6",{"$f":"HYPERLINK(Table1[[#This Row],[eCommerce Hyperlink]],\"Book Weblink\")","v":"Book Weblink"},null,"KidHaven Publishing","eBook",1,"2022","August 2021",null,null,"Author","Jennifer Lombardo",null,null,null,null,"N",null,"Grade 3","Grade 3 - 5","Accusations of voter fraud and voter suppression have been widespread in the 21st century, but the facts are often obscured. How much of a problem is voter fraud and what should be done to combat it? Will proposed measures be helpful or harmful to most voters? Informative text and engaging fact boxes help readers explore voting rights issues. They'll gain a better understanding of the facts surrounding this politically charged topic. A list of ways young people can become more involved in voting rights activism is included to help them become ideal citizens.","English",25.6,20.48,"324.6/20973--dc23","24 pp.","https://greenhavenpublishing.com/9781534534476",null,{"$f":"Table1[[#This Row],['# of Books]]*Table1[[#This Row],[QTY]]","v":0},{"$f":"Table1[[#This Row],[QTY]]*Table1[[#This Row],[School & Library Price]]","v":0}]
[null,null,null,14,19,"Current Issues","What's the Issue?","What's Law and Order?","978-1-5345-3454-4",{"$f":"HYPERLINK(Table1[[#This Row],[eCommerce Hyperlink]],\"Book Weblink\")","v":"Book Weblink"},null,"KidHaven Publishing","Library Bound Book",1,"2022","August 2021","Library","8.500 X 8.500","Author","Amy Holt",null,null,null,null,"N",null,"Grade 3","Grade 3 - 5","Many people associate the phrase \"law and order\" with popular television. Politicians and pundits in recent years have frequently used the phrase when discussing current issues and proposed solutions to problems. However, what does this phrase actually mean? Engaging fact boxes and full-color photographs augment the informative narrative, giving readers a better understanding of what \"law and order\" means and how it affects people. With this information, tomorrow's leaders are encouraged to become more active citizens and to engage with this issue with intelligence and well-informed opinions.","English",25.6,20.48,"363.2--dc23","24 pp.","https://greenhavenpublishing.com/9781534534544",null,{"$f":"Table1[[#This Row],['# of Books]]*Table1[[#This Row],[QTY]]","v":0},{"$f":"Table1[[#This Row],[QTY]]*Table1[[#This Row],[School & Library Price]]","v":0}]
[null,null,null,14,19,"Current Issues","What's the Issue?","What's Law and Order?","978-1-5345-3455-1",{"$f":"HYPERLINK(Table1[[#This Row],[eCommerce Hyperlink]],\"Book Weblink\")","v":"Book Weblink"},null,"KidHaven Publishing","eBook",1,"2022","August 2021",null,null,"Author","Amy Holt",null,null,null,null,"N",null,"Grade 3","Grade 3 - 5","Many people associate the phrase \"law and order\" with popular television. Politicians and pundits in recent years have frequently used the phrase when discussing current issues and proposed solutions to problems. However, what does this phrase actually mean? Engaging fact boxes and full-color photographs augment the informative narrative, giving readers a better understanding of what \"law and order\" means and how it affects people. With this information, tomorrow's leaders are encouraged to become more active citizens and to engage with this issue with intelligence and well-informed opinions.","English",25.6,20.48,"363.2--dc23","24 pp.","https://greenhavenpublishing.com/9781534534551",null,{"$f":"Table1[[#This Row],['# of Books]]*Table1[[#This Row],[QTY]]","v":0},{"$f":"Table1[[#This Row],[QTY]]*Table1[[#This Row],[School & Library Price]]","v":0}]
[null,null,null,14,19,"Current Issues","What's the Issue?","What's Mental Health?","978-1-5345-3450-6",{"$f":"HYPERLINK(Table1[[#This Row],[eCommerce Hyperlink]],\"Book Weblink\")","v":"Book Weblink"},null,"KidHaven Publishing","Library Bound Book",1,"2022","August 2021","Library","8.500 X 8.500","Author","Jennifer Lombardo",null,null,null,null,"N",null,"Grade 3","Grade 3 - 5","In the past, mental health was rarely discussed. It was seen as a private or even embarrassing issue, and anyone with a mental illness was generally expected to keep it a secret. Today, however, many people have recognized the benefits of being open and honest about mental health. Through informative fact boxes, helpful graphic organizers, and engaging text, readers learn the basics about what mental health means. This allows them to become cognizant of the state of their own mental health, and helps them to effectively support loved ones who may be dealing with serious issues.","English",25.6,20.48,"616.89--dc23","24 pp.","https://greenhavenpublishing.com/9781534534506",null,{"$f":"Table1[[#This Row],['# of Books]]*Table1[[#This Row],[QTY]]","v":0},{"$f":"Table1[[#This Row],[QTY]]*Table1[[#This Row],[School & Library Price]]","v":0}]
[null,null,null,14,19,"Current Issues","What's the Issue?","What's Mental Health?","978-1-5345-3451-3",{"$f":"HYPERLINK(Table1[[#This Row],[eCommerce Hyperlink]],\"Book Weblink\")","v":"Book Weblink"},null,"KidHaven Publishing","eBook",1,"2022","August 2021",null,null,"Author","Jennifer Lombardo",null,null,null,null,"N",null,"Grade 3","Grade 3 - 5","In the past, mental health was rarely discussed. It was seen as a private or even embarrassing issue, and anyone with a mental illness was generally expected to keep it a secret. Today, however, many people have recognized the benefits of being open and honest about mental health. Through informative fact boxes, helpful graphic organizers, and engaging text, readers learn the basics about what mental health means. This allows them to become cognizant of the state of their own mental health, and helps them to effectively support loved ones who may be dealing with serious issues.","English",25.6,20.48,"616.89--dc23","24 pp.","https://greenhavenpublishing.com/9781534534513",null,{"$f":"Table1[[#This Row],['# of Books]]*Table1[[#This Row],[QTY]]","v":0},{"$f":"Table1[[#This Row],[QTY]]*Table1[[#This Row],[School & Library Price]]","v":0}]
[null,null,null,14,19,"Current Issues","What's the Issue?","What's Renewable Energy?","978-1-5345-3442-1",{"$f":"HYPERLINK(Table1[[#This Row],[eCommerce Hyperlink]],\"Book Weblink\")","v":"Book Weblink"},null,"KidHaven Publishing","Library Bound Book",1,"2022","August 2021","Library","8.500 X 8.500","Author","Jennifer Lombardo",null,null,null,null,"N",null,"Grade 3","Grade 3 - 5","Due to increasingly dire warnings about the effects of fossil fuels on climate change, businesses and governments have begun looking into switching to renewable energy for power. What is renewable energy? How feasible is it for the United States to switch to it? Will this change actually help the environment? Readers learn the answers to these questions and more with this engaging volume. The information-packed narrative is augmented with striking photographs, graphic organizers, and fascinating fact boxes. By understanding more about this issue, tomorrow's leaders are in a better position to make informed choices and solutions.","English",25.6,20.48,"333.79'4--dc23","24 pp.","https://greenhavenpublishing.com/9781534534421",null,{"$f":"Table1[[#This Row],['# of Books]]*Table1[[#This Row],[QTY]]","v":0},{"$f":"Table1[[#This Row],[QTY]]*Table1[[#This Row],[School & Library Price]]","v":0}]
[null,null,null,14,19,"Current Issues","What's the Issue?","What's Renewable Energy?","978-1-5345-3443-8",{"$f":"HYPERLINK(Table1[[#This Row],[eCommerce Hyperlink]],\"Book Weblink\")","v":"Book Weblink"},null,"KidHaven Publishing","eBook",1,"2022","August 2021",null,null,"Author","Jennifer Lombardo",null,null,null,null,"N",null,"Grade 3","Grade 3 - 5","Due to increasingly dire warnings about the effects of fossil fuels on climate change, businesses and governments have begun looking into switching to renewable energy for power. What is renewable energy? How feasible is it for the United States to switch to it? Will this change actually help the environment? Readers learn the answers to these questions and more with this engaging volume. The information-packed narrative is augmented with striking photographs, graphic organizers, and fascinating fact boxes. By understanding more about this issue, tomorrow's leaders are in a better position to make informed choices and solutions.","English",25.6,20.48,"333.79'4--dc23","24 pp.","https://greenhavenpublishing.com/9781534534438",null,{"$f":"Table1[[#This Row],['# of Books]]*Table1[[#This Row],[QTY]]","v":0},{"$f":"Table1[[#This Row],[QTY]]*Table1[[#This Row],[School & Library Price]]","v":0}]
[null,null,null,14,19,"Current Issues","What's the Issue?","What's the Economy?","978-1-5345-3458-2",{"$f":"HYPERLINK(Table1[[#This Row],[eCommerce Hyperlink]],\"Book Weblink\")","v":"Book Weblink"},null,"KidHaven Publishing","Library Bound Book",1,"2022","August 2021","Library","8.500 X 8.500","Author","Simon Pierce",null,null,null,null,"N",null,"Grade 3","Grade 3 - 5","The economy affects nearly every aspect of a person's life, yet many find it confusing or boring. This outlook can cause people to ignore changes in economic policy that have a profound effect on them. By gaining a deeper understanding of what the economy is and how it affects people, budding activists are more equipped to advocate for themselves and others. Full-color photographs, graphic organizers, and informative fact boxes give readers a basic introduction to the economy and how to get more involved in economic issues. A list of resources gives them a jumping-off point for more in-depth research.","English",25.6,20.48,"330--dc23","24 pp.","https://greenhavenpublishing.com/9781534534582",null,{"$f":"Table1[[#This Row],['# of Books]]*Table1[[#This Row],[QTY]]","v":0},{"$f":"Table1[[#This Row],[QTY]]*Table1[[#This Row],[School & Library Price]]","v":0}]
[null,null,null,14,19,"Current Issues","What's the Issue?","What's the Economy?","978-1-5345-3459-9",{"$f":"HYPERLINK(Table1[[#This Row],[eCommerce Hyperlink]],\"Book Weblink\")","v":"Book Weblink"},null,"KidHaven Publishing","eBook",1,"2022","August 2021",null,null,"Author","Simon Pierce",null,null,null,null,"N",null,"Grade 3","Grade 3 - 5","The economy affects nearly every aspect of a person's life, yet many find it confusing or boring. This outlook can cause people to ignore changes in economic policy that have a profound effect on them. By gaining a deeper understanding of what the economy is and how it affects people, budding activists are more equipped to advocate for themselves and others. Full-color photographs, graphic organizers, and informative fact boxes give readers a basic introduction to the economy and how to get more involved in economic issues. A list of resources gives them a jumping-off point for more in-depth research.","English",25.6,20.48,"330--dc23","24 pp.","https://greenhavenpublishing.com/9781534534599",null,{"$f":"Table1[[#This Row],['# of Books]]*Table1[[#This Row],[QTY]]","v":0},{"$f":"Table1[[#This Row],[QTY]]*Table1[[#This Row],[School & Library Price]]","v":0}]
[null,null,null,16,20,"Health & Guidance","A Different World","A Different World","978-1-5345-3900-6",{"$f":"HYPERLINK(Table1[[#This Row],[eCommerce Hyperlink]],\"Book Weblink\")","v":"Book Weblink"},null,"KidHaven Publishing","Library Set",4,"2022","August 2021","Library","8.500 X 8.500",null,null,null,null,null,null,null,null,"Grade 2","Grade 2 - 4","Everyone experiences the world in a different way. Some people live with color blindness. Others deal with dyslexia. People who are deaf find helpful ways to navigate the world around them, as do people who use a wheelchair to get around. Their stories are presented to readers through compelling narratives and full-color photographs. These stories help readers who are dealing with these specific experiences feel less alone, and they also allow other readers to see the world through a different lens. This encourages empathy and a deeper appreciation for and understanding of diversity.","English",102.4,81.92,null,"24 pp.","https://greenhavenpublishing.com/9781534539006",null,{"$f":"Table1[[#This Row],['# of Books]]*Table1[[#This Row],[QTY]]","v":0},{"$f":"Table1[[#This Row],[QTY]]*Table1[[#This Row],[School & Library Price]]","v":0}]
[null,null,null,16,20,"Health & Guidance","A Different World","Color Blindness","978-1-5345-3838-2",{"$f":"HYPERLINK(Table1[[#This Row],[eCommerce Hyperlink]],\"Book Weblink\")","v":"Book Weblink"},null,"KidHaven Publishing","Library Bound Book",1,"2022","August 2021","Library","8.500 X 8.500","Author","Robin Twiddy",null,null,null,null,"K",null,"Grade 2","Grade 2 - 4","What is color blindness, and how does it affect a person’s everyday life? Readers discover the answers to these questions and more as they follow a narrative about what it’s like to live with color blindness and what it’s like to have a friend who has this condition. Clear and concise text provides relatable examples, and fact boxes add helpful information. In addition, full-color photographs enhance this reading experience, which provides a valuable exercise in developing empathy and understanding different perspectives. The sensitive tone and age-appropriate language make this a valuable resource for young readers.","English",25.6,20.48,"612.8’4--dc23","24 pp.","https://greenhavenpublishing.com/9781534538382",null,{"$f":"Table1[[#This Row],['# of Books]]*Table1[[#This Row],[QTY]]","v":0},{"$f":"Table1[[#This Row],[QTY]]*Table1[[#This Row],[School & Library Price]]","v":0}]
[null,null,null,16,20,"Health & Guidance","A Different World","Color Blindness","978-1-5345-3839-9",{"$f":"HYPERLINK(Table1[[#This Row],[eCommerce Hyperlink]],\"Book Weblink\")","v":"Book Weblink"},null,"KidHaven Publishing","eBook",1,"2022","August 2021",null,null,"Author","Robin Twiddy",null,null,null,null,"K",null,"Grade 2","Grade 2 - 4","What is color blindness, and how does it affect a person’s everyday life? Readers discover the answers to these questions and more as they follow a narrative about what it’s like to live with color blindness and what it’s like to have a friend who has this condition. Clear and concise text provides relatable examples, and fact boxes add helpful information. In addition, full-color photographs enhance this reading experience, which provides a valuable exercise in developing empathy and understanding different perspectives. The sensitive tone and age-appropriate language make this a valuable resource for young readers.","English",25.6,20.48,"612.8’4--dc23","24 pp.","https://greenhavenpublishing.com/9781534538399",null,{"$f":"Table1[[#This Row],['# of Books]]*Table1[[#This Row],[QTY]]","v":0},{"$f":"Table1[[#This Row],[QTY]]*Table1[[#This Row],[School & Library Price]]","v":0}]
[null,null,null,16,20,"Health & Guidance","A Different World","Deafness","978-1-5345-3842-9",{"$f":"HYPERLINK(Table1[[#This Row],[eCommerce Hyperlink]],\"Book Weblink\")","v":"Book Weblink"},null,"KidHaven Publishing","Library Bound Book",1,"2022","August 2021","Library","8.500 X 8.500","Author","Robin Twiddy",null,null,null,null,"K",null,"Grade 2","Grade 2 - 4","Readers discover what it’s like to live with deafness in this thoughtful look at one different way of interacting with the world. Important facts about deafness are presented through simple text and eye-catching fact boxes that are paired with colorful photographs. These facts supplement a compelling narrative that gives readers a chance to examine different points of view and see the world from the perspective of a person who is deaf. This helps young readers who are deaf or facing hearing difficulties feel less alone and helps others develop a stronger sense of empathy.","English",25.6,20.48,"362.4’2--dc23","24 pp.","https://greenhavenpublishing.com/9781534538429",null,{"$f":"Table1[[#This Row],['# of Books]]*Table1[[#This Row],[QTY]]","v":0},{"$f":"Table1[[#This Row],[QTY]]*Table1[[#This Row],[School & Library Price]]","v":0}]
[null,null,null,16,20,"Health & Guidance","A Different World","Deafness","978-1-5345-3843-6",{"$f":"HYPERLINK(Table1[[#This Row],[eCommerce Hyperlink]],\"Book Weblink\")","v":"Book Weblink"},null,"KidHaven Publishing","eBook",1,"2022","August 2021",null,null,"Author","Robin Twiddy",null,null,null,null,"K",null,"Grade 2","Grade 2 - 4","Readers discover what it’s like to live with deafness in this thoughtful look at one different way of interacting with the world. Important facts about deafness are presented through simple text and eye-catching fact boxes that are paired with colorful photographs. These facts supplement a compelling narrative that gives readers a chance to examine different points of view and see the world from the perspective of a person who is deaf. This helps young readers who are deaf or facing hearing difficulties feel less alone and helps others develop a stronger sense of empathy.","English",25.6,20.48,"362.4’2--dc23","24 pp.","https://greenhavenpublishing.com/9781534538436",null,{"$f":"Table1[[#This Row],['# of Books]]*Table1[[#This Row],[QTY]]","v":0},{"$f":"Table1[[#This Row],[QTY]]*Table1[[#This Row],[School & Library Price]]","v":0}]
[null,null,null,16,20,"Health & Guidance","A Different World","Dyslexia","978-1-5345-3846-7",{"$f":"HYPERLINK(Table1[[#This Row],[eCommerce Hyperlink]],\"Book Weblink\")","v":"Book Weblink"},null,"KidHaven Publishing","Library Bound Book",1,"2022","August 2021","Library","8.500 X 8.500","Author","Robin Twiddy",null,null,null,null,"K",null,"Grade 2","Grade 2 - 4","Dyslexia is a common learning disorder that affects many people. It’s important for those who are living with it to feel understood, so this essential look at life with dyslexia was created to help those with this disorder feel less alone and to help others better understand what dyslexia is. Presented using age-appropriate language, full-color photographs, and informative fact boxes, this empathetic guide educates without talking down to young readers. Instead, it presents them with a relatable narrative structure that introduces different viewpoints and encourages acceptance, empathy, and inclusivity.","English",25.6,20.48,"618.92’8553--dc23","24 pp.","https://greenhavenpublishing.com/9781534538467",null,{"$f":"Table1[[#This Row],['# of Books]]*Table1[[#This Row],[QTY]]","v":0},{"$f":"Table1[[#This Row],[QTY]]*Table1[[#This Row],[School & Library Price]]","v":0}]
[null,null,null,16,20,"Health & Guidance","A Different World","Dyslexia","978-1-5345-3847-4",{"$f":"HYPERLINK(Table1[[#This Row],[eCommerce Hyperlink]],\"Book Weblink\")","v":"Book Weblink"},null,"KidHaven Publishing","eBook",1,"2022","August 2021",null,null,"Author","Robin Twiddy",null,null,null,null,"K",null,"Grade 2","Grade 2 - 4","Dyslexia is a common learning disorder that affects many people. It’s important for those who are living with it to feel understood, so this essential look at life with dyslexia was created to help those with this disorder feel less alone and to help others better understand what dyslexia is. Presented using age-appropriate language, full-color photographs, and informative fact boxes, this empathetic guide educates without talking down to young readers. Instead, it presents them with a relatable narrative structure that introduces different viewpoints and encourages acceptance, empathy, and inclusivity.","English",25.6,20.48,"618.92’8553--dc23","24 pp.","https://greenhavenpublishing.com/9781534538474",null,{"$f":"Table1[[#This Row],['# of Books]]*Table1[[#This Row],[QTY]]","v":0},{"$f":"Table1[[#This Row],[QTY]]*Table1[[#This Row],[School & Library Price]]","v":0}]
[null,null,null,16,20,"Health & Guidance","A Different World","Using a Wheelchair","978-1-5345-3850-4",{"$f":"HYPERLINK(Table1[[#This Row],[eCommerce Hyperlink]],\"Book Weblink\")","v":"Book Weblink"},null,"KidHaven Publishing","Library Bound Book",1,"2022","August 2021","Library","8.500 X 8.500","Author","Robin Twiddy",null,null,null,null,"K",null,"Grade 2","Grade 2 - 4","People use wheelchairs for a variety of reasons, and it’s important to see the person first and not just the tool they’re using to help them get around. This empathetic look at what life is like for someone who uses a wheelchair encourages readers to think about how they can be more accepting of people who experience the world in a different way. Text that presents this sensitive subject in a relatable way, colorful photographs, and fact boxes work together to create a reading experience that is helpful for those who use a wheelchair and eye-opening for those who don't.","English",25.6,20.48,"305.9’08083--dc23","24 pp.","https://greenhavenpublishing.com/9781534538504",null,{"$f":"Table1[[#This Row],['# of Books]]*Table1[[#This Row],[QTY]]","v":0},{"$f":"Table1[[#This Row],[QTY]]*Table1[[#This Row],[School & Library Price]]","v":0}]
[null,null,null,16,20,"Health & Guidance","A Different World","Using a Wheelchair","978-1-5345-3851-1",{"$f":"HYPERLINK(Table1[[#This Row],[eCommerce Hyperlink]],\"Book Weblink\")","v":"Book Weblink"},null,"KidHaven Publishing","eBook",1,"2022","August 2021",null,null,"Author","Robin Twiddy",null,null,null,null,"K",null,"Grade 2","Grade 2 - 4","People use wheelchairs for a variety of reasons, and it’s important to see the person first and not just the tool they’re using to help them get around. This empathetic look at what life is like for someone who uses a wheelchair encourages readers to think about how they can be more accepting of people who experience the world in a different way. Text that presents this sensitive subject in a relatable way, colorful photographs, and fact boxes work together to create a reading experience that is helpful for those who use a wheelchair and eye-opening for those who don't.","English",25.6,20.48,"305.9’08083--dc23","24 pp.","https://greenhavenpublishing.com/9781534538511",null,{"$f":"Table1[[#This Row],['# of Books]]*Table1[[#This Row],[QTY]]","v":0},{"$f":"Table1[[#This Row],[QTY]]*Table1[[#This Row],[School & Library Price]]","v":0}]
[null,null,null,17,21,"Health & Guidance","My First Aid Guide to…","My First Aid Guide to…","978-1-5345-3907-5",{"$f":"HYPERLINK(Table1[[#This Row],[eCommerce Hyperlink]],\"Book Weblink\")","v":"Book Weblink"},null,"KidHaven Publishing","Library Set",4,"2022","August 2021","Library","8.500 X 8.500",null,null,null,null,null,null,null,null,"Grade 2 - 3","Grade 2 - 4","Accidents and illnesses happen, no matter how careful kids are. From a not-so-serious scraped knee to a potentially life-threatening seizure, the range of what can happen is vast—but being prepared can help make each situation less scary and even save a life! In this important set, readers are introduced to common childhood injuries and illnesses and how to handle them if they occur. With straightforward, clear explanations, the main text invites readers to remain calm and feel ready for whatever comes their way, be it an asthma attack of their own or a friend breaking a bone.","English",102.4,81.92,null,"24 pp.","https://greenhavenpublishing.com/9781534539075",null,{"$f":"Table1[[#This Row],['# of Books]]*Table1[[#This Row],[QTY]]","v":0},{"$f":"Table1[[#This Row],[QTY]]*Table1[[#This Row],[School & Library Price]]","v":0}]
[null,null,null,17,21,"Health & Guidance","My First Aid Guide to…","Asthma and Allergies","978-1-5345-3804-7",{"$f":"HYPERLINK(Table1[[#This Row],[eCommerce Hyperlink]],\"Book Weblink\")","v":"Book Weblink"},null,"KidHaven Publishing","Library Bound Book",1,"2022","August 2021","Library","8.500 X 8.500","Author","Joanna Brundle",null,null,null,null,"L",null,"Grade 2 - 3","Grade 2 - 4","Asthma and allergies are very common childhood ailments. Sometimes, kids grow out of them, but others might have very serious situations occur before that happens, if they occur the condition at all. In this book, readers are introduced to what causes asthma and allergies and what to look for if they or a friend is experiencing them. Helpful diagrams and labels on full-color photographs complement the age-appropriate explanations and directions given to young readers, who will be ready to act should someone around them have a serious heath situation arise.","English",25.6,20.48,"616.2’38--dc23","24 pp.","https://greenhavenpublishing.com/9781534538047",null,{"$f":"Table1[[#This Row],['# of Books]]*Table1[[#This Row],[QTY]]","v":0},{"$f":"Table1[[#This Row],[QTY]]*Table1[[#This Row],[School & Library Price]]","v":0}]
[null,null,null,17,21,"Health & Guidance","My First Aid Guide to…","Asthma and Allergies","978-1-5345-3805-4",{"$f":"HYPERLINK(Table1[[#This Row],[eCommerce Hyperlink]],\"Book Weblink\")","v":"Book Weblink"},null,"KidHaven Publishing","eBook",1,"2022","August 2021",null,null,"Author","Joanna Brundle",null,null,null,null,"L",null,"Grade 2 - 3","Grade 2 - 4","Asthma and allergies are very common childhood ailments. Sometimes, kids grow out of them, but others might have very serious situations occur before that happens, if they occur the condition at all. In this book, readers are introduced to what causes asthma and allergies and what to look for if they or a friend is experiencing them. Helpful diagrams and labels on full-color photographs complement the age-appropriate explanations and directions given to young readers, who will be ready to act should someone around them have a serious heath situation arise.","English",25.6,20.48,"616.2’38--dc23","24 pp.","https://greenhavenpublishing.com/9781534538054",null,{"$f":"Table1[[#This Row],['# of Books]]*Table1[[#This Row],[QTY]]","v":0},{"$f":"Table1[[#This Row],[QTY]]*Table1[[#This Row],[School & Library Price]]","v":0}]
[null,null,null,17,21,"Health & Guidance","My First Aid Guide to…","Bumps and Breaks","978-1-5345-3808-5",{"$f":"HYPERLINK(Table1[[#This Row],[eCommerce Hyperlink]],\"Book Weblink\")","v":"Book Weblink"},null,"KidHaven Publishing","Library Bound Book",1,"2022","August 2021","Library","8.500 X 8.500","Author","Joanna Brundle",null,null,null,null,"L",null,"Grade 2 - 3","Grade 2 - 4","Sometimes accidents happen and people get hurt. But that’s no reason to panic! In this book, young readers are given the information to deal with and even help in a situation where they or a friend have a bump or break a bone. Simple, age-appropriate explanations of what has happened and how to help aim to prepare, not scare, kids as they encounter injuries in their world. Full-color photographs with helpful labels aid reading comprehension and depict realistic situations.","English",25.6,20.48,"355.54--dc23","24 pp.","https://greenhavenpublishing.com/9781534538085",null,{"$f":"Table1[[#This Row],['# of Books]]*Table1[[#This Row],[QTY]]","v":0},{"$f":"Table1[[#This Row],[QTY]]*Table1[[#This Row],[School & Library Price]]","v":0}]
[null,null,null,17,21,"Health & Guidance","My First Aid Guide to…","Bumps and Breaks","978-1-5345-3809-2",{"$f":"HYPERLINK(Table1[[#This Row],[eCommerce Hyperlink]],\"Book Weblink\")","v":"Book Weblink"},null,"KidHaven Publishing","eBook",1,"2022","August 2021",null,null,"Author","Joanna Brundle",null,null,null,null,"L",null,"Grade 2 - 3","Grade 2 - 4","Sometimes accidents happen and people get hurt. But that’s no reason to panic! In this book, young readers are given the information to deal with and even help in a situation where they or a friend have a bump or break a bone. Simple, age-appropriate explanations of what has happened and how to help aim to prepare, not scare, kids as they encounter injuries in their world. Full-color photographs with helpful labels aid reading comprehension and depict realistic situations.","English",25.6,20.48,"355.54--dc23","24 pp.","https://greenhavenpublishing.com/9781534538092",null,{"$f":"Table1[[#This Row],['# of Books]]*Table1[[#This Row],[QTY]]","v":0},{"$f":"Table1[[#This Row],[QTY]]*Table1[[#This Row],[School & Library Price]]","v":0}]
[null,null,null,17,21,"Health & Guidance","My First Aid Guide to…","Cuts and Bleeding","978-1-5345-3812-2",{"$f":"HYPERLINK(Table1[[#This Row],[eCommerce Hyperlink]],\"Book Weblink\")","v":"Book Weblink"},null,"KidHaven Publishing","Library Bound Book",1,"2022","August 2021","Library","8.500 X 8.500","Author","Joanna Brundle",null,null,null,null,"L",null,"Grade 2 - 3","Grade 2 - 4","The sight of blood can be scary, and it may cause some people to feel sick. But many cuts that occur are easy to treat, even for kids. This book guides young readers through simple first aid for cut and scrapes that don’t require much more than pressure, a cleaning, and a bandage. Additionally, it demystifies bloodier situations, like nosebleeds, to make readers feel prepared should something more serious than a scrape occur. With straightforward, age-appropriate language and examples, the main text is important for anyone to read—and emphasizes calling 911 or getting an adult to help when needed.","English",25.6,20.48,"617.1’1--dc23","24 pp.","https://greenhavenpublishing.com/9781534538122",null,{"$f":"Table1[[#This Row],['# of Books]]*Table1[[#This Row],[QTY]]","v":0},{"$f":"Table1[[#This Row],[QTY]]*Table1[[#This Row],[School & Library Price]]","v":0}]
[null,null,null,17,21,"Health & Guidance","My First Aid Guide to…","Cuts and Bleeding","978-1-5345-3813-9",{"$f":"HYPERLINK(Table1[[#This Row],[eCommerce Hyperlink]],\"Book Weblink\")","v":"Book Weblink"},null,"KidHaven Publishing","eBook",1,"2022","August 2021",null,null,"Author","Joanna Brundle",null,null,null,null,"L",null,"Grade 2 - 3","Grade 2 - 4","The sight of blood can be scary, and it may cause some people to feel sick. But many cuts that occur are easy to treat, even for kids. This book guides young readers through simple first aid for cut and scrapes that don’t require much more than pressure, a cleaning, and a bandage. Additionally, it demystifies bloodier situations, like nosebleeds, to make readers feel prepared should something more serious than a scrape occur. With straightforward, age-appropriate language and examples, the main text is important for anyone to read—and emphasizes calling 911 or getting an adult to help when needed.","English",25.6,20.48,"617.1’1--dc23","24 pp.","https://greenhavenpublishing.com/9781534538139",null,{"$f":"Table1[[#This Row],['# of Books]]*Table1[[#This Row],[QTY]]","v":0},{"$f":"Table1[[#This Row],[QTY]]*Table1[[#This Row],[School & Library Price]]","v":0}]
[null,null,null,17,21,"Health & Guidance","My First Aid Guide to…","Fainting and Seizures","978-1-5345-3816-0",{"$f":"HYPERLINK(Table1[[#This Row],[eCommerce Hyperlink]],\"Book Weblink\")","v":"Book Weblink"},null,"KidHaven Publishing","Library Bound Book",1,"2022","August 2021","Library","8.500 X 8.500","Author","Joanna Brundle",null,null,null,null,"L",null,"Grade 2 - 3","Grade 2 - 4","What leads to one fainting or having a seizure can be quite serious. Witnessing or experiencing either of these health issues can also be very scary. In this book, young readers are introduced to why someone might faint or have a seizure and what to do should that occur. Age-appropriate, clear explanations ready kids for anything, in addition to emphasizing getting an adult’s help or calling 911. Full-color photographs depict realistic situations and diagrams and labels aid in reading comprehension.","English",25.6,20.48,"616.02’5--dc23","24 pp.","https://greenhavenpublishing.com/9781534538160",null,{"$f":"Table1[[#This Row],['# of Books]]*Table1[[#This Row],[QTY]]","v":0},{"$f":"Table1[[#This Row],[QTY]]*Table1[[#This Row],[School & Library Price]]","v":0}]
[null,null,null,17,21,"Health & Guidance","My First Aid Guide to…","Fainting and Seizures","978-1-5345-3817-7",{"$f":"HYPERLINK(Table1[[#This Row],[eCommerce Hyperlink]],\"Book Weblink\")","v":"Book Weblink"},null,"KidHaven Publishing","eBook",1,"2022","August 2021",null,null,"Author","Joanna Brundle",null,null,null,null,"L",null,"Grade 2 - 3","Grade 2 - 4","What leads to one fainting or having a seizure can be quite serious. Witnessing or experiencing either of these health issues can also be very scary. In this book, young readers are introduced to why someone might faint or have a seizure and what to do should that occur. Age-appropriate, clear explanations ready kids for anything, in addition to emphasizing getting an adult’s help or calling 911. Full-color photographs depict realistic situations and diagrams and labels aid in reading comprehension.","English",25.6,20.48,"616.02’5--dc23","24 pp.","https://greenhavenpublishing.com/9781534538177",null,{"$f":"Table1[[#This Row],['# of Books]]*Table1[[#This Row],[QTY]]","v":0},{"$f":"Table1[[#This Row],[QTY]]*Table1[[#This Row],[School & Library Price]]","v":0}]
[null,null,null,null,22,"Health & Guidance","A Kid's Guide to Feelings","A Kid's Guide to Feelings","978-1-5345-2735-5",{"$f":"HYPERLINK(Table1[[#This Row],[eCommerce Hyperlink]],\"Book Weblink\")","v":"Book Weblink"},null,"KidHaven Publishing","Library Set",8,"2019","August 2018","Library","8.500 X 8.500",null,null,null,null,null,null,null,null,"Grade 1 - 2","Grade K - 2","Young readers are introduced to several colorful characters as they learn about a wide range of emotions. Each book features a different animal personality expressing a certain feeling, such as anger, sadness, happiness, excitement, jealousy, embarrassment, loneliness, or fear. While learning about these various emotions, the fun, relatable characters encourage readers to recognize when they are experiencing these feelings in their own lives. Eye-catching illustrations, colorful photographs, and concise text navigate readers through the basics of their emotions, what can cause them, and how to approach dealing with each one in a healthy and positive way. Features include: Comic-book style design, which combines photographs and illustrations, is visually appealing to young readers. Engaging, age-appropriate text encourages readers to embrace their emotions and express them in a constructive way, not suppress them. The subject matter brings up important topics for discussion, allowing readers to share their own feelings as they explore relatable situations.","English",204.8,163.84,null,"24 pp.","https://greenhavenpublishing.com/9781534527355",null,{"$f":"Table1[[#This Row],['# of Books]]*Table1[[#This Row],[QTY]]","v":0},{"$f":"Table1[[#This Row],[QTY]]*Table1[[#This Row],[School & Library Price]]","v":0}]
[null,null,null,null,22,"Health & Guidance","A Kid's Guide to Feelings","Feeling Afraid","978-1-5345-2683-9",{"$f":"HYPERLINK(Table1[[#This Row],[eCommerce Hyperlink]],\"Book Weblink\")","v":"Book Weblink"},null,"KidHaven Publishing","Library Bound Book",1,"2019","August 2018","Library","8.500 X 8.500","Author","Kirsty Holmes",null,null,null,null,"H",null,"Grade 1 - 2","Grade K - 2","Young readers explore the complex feeling of fear in this age-appropriate and accessible volume. They meet the colorful character Agent Afraid, who displays fearful emotions throughout the relatable main text. Readers are able to connect with the material easily and pinpoint things that cause their own feelings of fear. Through recognizing these feelings, they also learn ways to navigate them to help them feel safe and secure. The dazzling comic book style, cute illustrations, and full-color photographs engage readers as they learn more about this challenging emotion and how to handle feelings of fear and anxiety in a healthy way.","English",25.6,20.48,"155.4'1246--dc23","24 pp.","https://greenhavenpublishing.com/9781534526839",null,{"$f":"Table1[[#This Row],['# of Books]]*Table1[[#This Row],[QTY]]","v":0},{"$f":"Table1[[#This Row],[QTY]]*Table1[[#This Row],[School & Library Price]]","v":0}]
[null,null,null,null,22,"Health & Guidance","A Kid's Guide to Feelings","Feeling Afraid","978-1-5345-2686-0",{"$f":"HYPERLINK(Table1[[#This Row],[eCommerce Hyperlink]],\"Book Weblink\")","v":"Book Weblink"},null,"KidHaven Publishing","eBook",1,"2019","August 2018",null,null,"Author","Kirsty Holmes",null,null,null,null,"H",null,"Grade 1 - 2","Grade K - 2","Young readers explore the complex feeling of fear in this age-appropriate and accessible volume. They meet the colorful character Agent Afraid, who displays fearful emotions throughout the relatable main text. Readers are able to connect with the material easily and pinpoint things that cause their own feelings of fear. Through recognizing these feelings, they also learn ways to navigate them to help them feel safe and secure. The dazzling comic book style, cute illustrations, and full-color photographs engage readers as they learn more about this challenging emotion and how to handle feelings of fear and anxiety in a healthy way.","English",25.6,20.48,"155.4'1246--dc23","24 pp.","https://greenhavenpublishing.com/9781534526860",null,{"$f":"Table1[[#This Row],['# of Books]]*Table1[[#This Row],[QTY]]","v":0},{"$f":"Table1[[#This Row],[QTY]]*Table1[[#This Row],[School & Library Price]]","v":0}]
[null,null,null,null,22,"Health & Guidance","A Kid's Guide to Feelings","Feeling Embarrassed","978-1-5345-2699-0",{"$f":"HYPERLINK(Table1[[#This Row],[eCommerce Hyperlink]],\"Book Weblink\")","v":"Book Weblink"},null,"KidHaven Publishing","Library Bound Book",1,"2019","August 2018","Library","8.500 X 8.500","Author","Kirsty Holmes",null,null,null,null,"H",null,"Grade 1 - 2","Grade K - 2","Embarrassment is a difficult but common emotion for children to deal with, so it is important for readers to learn about being embarrassed and how to handle it in a healthy way. They are given the tools to do so through the cute illustrated character Shrinking Violet, who displays elements of embarrassment and how this affects her. The main text is presented in a fun comic book style that combines full-color photographs and charming illustrations. Readers tap into their own emotions as they read the text and relate the situations to their own lives.","English",25.6,20.48,"152.4'4--dc23","24 pp.","https://greenhavenpublishing.com/9781534526990",null,{"$f":"Table1[[#This Row],['# of Books]]*Table1[[#This Row],[QTY]]","v":0},{"$f":"Table1[[#This Row],[QTY]]*Table1[[#This Row],[School & Library Price]]","v":0}]
[null,null,null,null,22,"Health & Guidance","A Kid's Guide to Feelings","Feeling Embarrassed","978-1-5345-2702-7",{"$f":"HYPERLINK(Table1[[#This Row],[eCommerce Hyperlink]],\"Book Weblink\")","v":"Book Weblink"},null,"KidHaven Publishing","eBook",1,"2019","August 2018",null,null,"Author","Kirsty Holmes",null,null,null,null,"H",null,"Grade 1 - 2","Grade K - 2","Embarrassment is a difficult but common emotion for children to deal with, so it is important for readers to learn about being embarrassed and how to handle it in a healthy way. They are given the tools to do so through the cute illustrated character Shrinking Violet, who displays elements of embarrassment and how this affects her. The main text is presented in a fun comic book style that combines full-color photographs and charming illustrations. Readers tap into their own emotions as they read the text and relate the situations to their own lives.","English",25.6,20.48,"152.4'4--dc23","24 pp.","https://greenhavenpublishing.com/9781534527027",null,{"$f":"Table1[[#This Row],['# of Books]]*Table1[[#This Row],[QTY]]","v":0},{"$f":"Table1[[#This Row],[QTY]]*Table1[[#This Row],[School & Library Price]]","v":0}]
[null,null,null,null,22,"Health & Guidance","A Kid's Guide to Feelings","Feeling Excited","978-1-5345-2691-4",{"$f":"HYPERLINK(Table1[[#This Row],[eCommerce Hyperlink]],\"Book Weblink\")","v":"Book Weblink"},null,"KidHaven Publishing","Library Bound Book",1,"2019","August 2018","Library","8.500 X 8.500","Author","Kirsty Holmes",null,null,null,null,"H",null,"Grade 1 - 2","Grade K - 2","Young learners are introduced to the colorful and charismatic Can't-Wait A-Gator in this age-appropriate and accessible book about experiencing feelings of excitement. Through this essential material they learn how to connect with and embrace their own feelings of excitement and express themselves in a healthy manner. This fun look at feelings features a unique comic book design, vibrant photographs, and adorable illustrations, that draw in readers to relate to the important subject matter. Readers recognize how to understand and express their own feelings through this exciting text.","English",25.6,20.48,"152.4--dc23","24 pp.","https://greenhavenpublishing.com/9781534526914",null,{"$f":"Table1[[#This Row],['# of Books]]*Table1[[#This Row],[QTY]]","v":0},{"$f":"Table1[[#This Row],[QTY]]*Table1[[#This Row],[School & Library Price]]","v":0}]
[null,null,null,null,22,"Health & Guidance","A Kid's Guide to Feelings","Feeling Excited","978-1-5345-2694-5",{"$f":"HYPERLINK(Table1[[#This Row],[eCommerce Hyperlink]],\"Book Weblink\")","v":"Book Weblink"},null,"KidHaven Publishing","eBook",1,"2019","August 2018",null,null,"Author","Kirsty Holmes",null,null,null,null,"H",null,"Grade 1 - 2","Grade K - 2","Young learners are introduced to the colorful and charismatic Can't-Wait A-Gator in this age-appropriate and accessible book about experiencing feelings of excitement. Through this essential material they learn how to connect with and embrace their own feelings of excitement and express themselves in a healthy manner. This fun look at feelings features a unique comic book design, vibrant photographs, and adorable illustrations, that draw in readers to relate to the important subject matter. Readers recognize how to understand and express their own feelings through this exciting text.","English",25.6,20.48,"152.4--dc23","24 pp.","https://greenhavenpublishing.com/9781534526945",null,{"$f":"Table1[[#This Row],['# of Books]]*Table1[[#This Row],[QTY]]","v":0},{"$f":"Table1[[#This Row],[QTY]]*Table1[[#This Row],[School & Library Price]]","v":0}]
[null,null,null,null,22,"Health & Guidance","A Kid's Guide to Feelings","Feeling Happy","978-1-5345-2679-2",{"$f":"HYPERLINK(Table1[[#This Row],[eCommerce Hyperlink]],\"Book Weblink\")","v":"Book Weblink"},null,"KidHaven Publishing","Library Bound Book",1,"2019","August 2018","Library","8.500 X 8.500","Author","Kirsty Holmes",null,null,null,null,"H",null,"Grade 1 - 2","Grade K - 2","This fun-filled and age-appropriate book explores the ways in which we experience happiness. Young readers are introduced to the colorfully charismatic character Captain Cheerful, who exhibits happiness throughout the main text. The compelling comic book style, illustrations, and appealing, full-color photographs draw readers in, allowing them to relate more easily to this essential subject matter. They are also encouraged through the simple and accessible text to explore what causes emotional responses and how to embrace them with positivity. Readers are sure to have a smile on their face after engaging with this joyful text.","English",25.6,20.48,"152.4'2--dc23","24 pp.","https://greenhavenpublishing.com/9781534526792",null,{"$f":"Table1[[#This Row],['# of Books]]*Table1[[#This Row],[QTY]]","v":0},{"$f":"Table1[[#This Row],[QTY]]*Table1[[#This Row],[School & Library Price]]","v":0}]
[null,null,null,null,22,"Health & Guidance","A Kid's Guide to Feelings","Feeling Happy","978-1-5345-2682-2",{"$f":"HYPERLINK(Table1[[#This Row],[eCommerce Hyperlink]],\"Book Weblink\")","v":"Book Weblink"},null,"KidHaven Publishing","eBook",1,"2019","August 2018",null,null,"Author","Kirsty Holmes",null,null,null,null,"H",null,"Grade 1 - 2","Grade K - 2","This fun-filled and age-appropriate book explores the ways in which we experience happiness. Young readers are introduced to the colorfully charismatic character Captain Cheerful, who exhibits happiness throughout the main text. The compelling comic book style, illustrations, and appealing, full-color photographs draw readers in, allowing them to relate more easily to this essential subject matter. They are also encouraged through the simple and accessible text to explore what causes emotional responses and how to embrace them with positivity. Readers are sure to have a smile on their face after engaging with this joyful text.","English",25.6,20.48,"152.4'2--dc23","24 pp.","https://greenhavenpublishing.com/9781534526822",null,{"$f":"Table1[[#This Row],['# of Books]]*Table1[[#This Row],[QTY]]","v":0},{"$f":"Table1[[#This Row],[QTY]]*Table1[[#This Row],[School & Library Price]]","v":0}]
[null,null,null,null,22,"Health & Guidance","A Kid's Guide to Feelings","Feeling Jealous","978-1-5345-2695-2",{"$f":"HYPERLINK(Table1[[#This Row],[eCommerce Hyperlink]],\"Book Weblink\")","v":"Book Weblink"},null,"KidHaven Publishing","Library Bound Book",1,"2019","August 2018","Library","8.500 X 8.500","Author","Kirsty Holmes",null,null,null,null,"H",null,"Grade 1 - 2","Grade K - 2","Why do we get jealous? What certain things do we get jealous about? These questions and more are addressed in this important text about having feelings of jealousy. Young readers are introduced to Green Eyed Bunny, who helps them navigate such a complex emotion. In this age-appropriate and relatable main text, readers learn to recognize and evaluate their own instances of jealousy. The fun, comic book design, creative illustrations, and full-color photographs add an appealing artistic element to this important topic, which teaches readers how to become more aware of their own feelings and how they express them.","English",25.6,20.48,"155.4'1248--dc23","24 pp.","https://greenhavenpublishing.com/9781534526952",null,{"$f":"Table1[[#This Row],['# of Books]]*Table1[[#This Row],[QTY]]","v":0},{"$f":"Table1[[#This Row],[QTY]]*Table1[[#This Row],[School & Library Price]]","v":0}]
[null,null,null,null,22,"Health & Guidance","A Kid's Guide to Feelings","Feeling Jealous","978-1-5345-2698-3",{"$f":"HYPERLINK(Table1[[#This Row],[eCommerce Hyperlink]],\"Book Weblink\")","v":"Book Weblink"},null,"KidHaven Publishing","eBook",1,"2019","August 2018",null,null,"Author","Kirsty Holmes",null,null,null,null,"H",null,"Grade 1 - 2","Grade K - 2","Why do we get jealous? What certain things do we get jealous about? These questions and more are addressed in this important text about having feelings of jealousy. Young readers are introduced to Green Eyed Bunny, who helps them navigate such a complex emotion. In this age-appropriate and relatable main text, readers learn to recognize and evaluate their own instances of jealousy. The fun, comic book design, creative illustrations, and full-color photographs add an appealing artistic element to this important topic, which teaches readers how to become more aware of their own feelings and how they express them.","English",25.6,20.48,"155.4'1248--dc23","24 pp.","https://greenhavenpublishing.com/9781534526983",null,{"$f":"Table1[[#This Row],['# of Books]]*Table1[[#This Row],[QTY]]","v":0},{"$f":"Table1[[#This Row],[QTY]]*Table1[[#This Row],[School & Library Price]]","v":0}]
[null,null,null,null,22,"Health & Guidance","A Kid's Guide to Feelings","Feeling Lonely","978-1-5345-2687-7",{"$f":"HYPERLINK(Table1[[#This Row],[eCommerce Hyperlink]],\"Book Weblink\")","v":"Book Weblink"},null,"KidHaven Publishing","Library Bound Book",1,"2019","August 2018","Library","8.500 X 8.500","Author","Kirsty Holmes",null,null,null,null,"H",null,"Grade 1 - 2","Grade K - 2","Readers will learn about experiencing feelings of loneliness and how to deal with them in a healthy way. As they are introduced to the colorful, adorable character The Lone Furball, they find tips on dealing with loneliness through this relatable and age-appropriate main text. Readers uncover strategies for approaching their own lonely emotions in a constructive way to turn gloomy feelings into positive ones. The eye-catching comic book style, engaging illustrations, and full-color photographs invite readers to connect with this material that helps them develop their understanding of their feelings.","English",25.6,20.48,"152.4--dc23","24 pp.","https://greenhavenpublishing.com/9781534526877",null,{"$f":"Table1[[#This Row],['# of Books]]*Table1[[#This Row],[QTY]]","v":0},{"$f":"Table1[[#This Row],[QTY]]*Table1[[#This Row],[School & Library Price]]","v":0}]
[null,null,null,null,22,"Health & Guidance","A Kid's Guide to Feelings","Feeling Lonely","978-1-5345-2690-7",{"$f":"HYPERLINK(Table1[[#This Row],[eCommerce Hyperlink]],\"Book Weblink\")","v":"Book Weblink"},null,"KidHaven Publishing","eBook",1,"2019","August 2018",null,null,"Author","Kirsty Holmes",null,null,null,null,"H",null,"Grade 1 - 2","Grade K - 2","Readers will learn about experiencing feelings of loneliness and how to deal with them in a healthy way. As they are introduced to the colorful, adorable character The Lone Furball, they find tips on dealing with loneliness through this relatable and age-appropriate main text. Readers uncover strategies for approaching their own lonely emotions in a constructive way to turn gloomy feelings into positive ones. The eye-catching comic book style, engaging illustrations, and full-color photographs invite readers to connect with this material that helps them develop their understanding of their feelings.","English",25.6,20.48,"152.4--dc23","24 pp.","https://greenhavenpublishing.com/9781534526907",null,{"$f":"Table1[[#This Row],['# of Books]]*Table1[[#This Row],[QTY]]","v":0},{"$f":"Table1[[#This Row],[QTY]]*Table1[[#This Row],[School & Library Price]]","v":0}]
[null,null,null,null,22,"Health & Guidance","A Kid's Guide to Feelings","Feeling Mad","978-1-5345-2671-6",{"$f":"HYPERLINK(Table1[[#This Row],[eCommerce Hyperlink]],\"Book Weblink\")","v":"Book Weblink"},null,"KidHaven Publishing","Library Bound Book",1,"2019","August 2018","Library","8.500 X 8.500","Author","Kirsty Holmes",null,null,null,null,"H",null,"Grade 1 - 2","Grade K - 2","Young readers are introduced to healthy ways to deal with anger in this engaging book, which explores the feelings one gets when they get mad. They meet a colorful character named Raging Raccoon, who helps them understand this emotion. Through the engaging main text, eye-catching comic book design, and full-color photographs and illustrations, they learn what causes anger and how to properly approach dealing with those feelings. This important subject matter encourages kids to be in touch with their feelings, to express them in a healthy and functional way, and not to suppress them.","English",25.6,20.48,"152.4'7--dc23","24 pp.","https://greenhavenpublishing.com/9781534526716",null,{"$f":"Table1[[#This Row],['# of Books]]*Table1[[#This Row],[QTY]]","v":0},{"$f":"Table1[[#This Row],[QTY]]*Table1[[#This Row],[School & Library Price]]","v":0}]
[null,null,null,null,22,"Health & Guidance","A Kid's Guide to Feelings","Feeling Mad","978-1-5345-2674-7",{"$f":"HYPERLINK(Table1[[#This Row],[eCommerce Hyperlink]],\"Book Weblink\")","v":"Book Weblink"},null,"KidHaven Publishing","eBook",1,"2019","August 2018",null,null,"Author","Kirsty Holmes",null,null,null,null,"H",null,"Grade 1 - 2","Grade K - 2","Young readers are introduced to healthy ways to deal with anger in this engaging book, which explores the feelings one gets when they get mad. They meet a colorful character named Raging Raccoon, who helps them understand this emotion. Through the engaging main text, eye-catching comic book design, and full-color photographs and illustrations, they learn what causes anger and how to properly approach dealing with those feelings. This important subject matter encourages kids to be in touch with their feelings, to express them in a healthy and functional way, and not to suppress them.","English",25.6,20.48,"152.4'7--dc23","24 pp.","https://greenhavenpublishing.com/9781534526747",null,{"$f":"Table1[[#This Row],['# of Books]]*Table1[[#This Row],[QTY]]","v":0},{"$f":"Table1[[#This Row],[QTY]]*Table1[[#This Row],[School & Library Price]]","v":0}]
[null,null,null,null,22,"Health & Guidance","A Kid's Guide to Feelings","Feeling Sad","978-1-5345-2675-4",{"$f":"HYPERLINK(Table1[[#This Row],[eCommerce Hyperlink]],\"Book Weblink\")","v":"Book Weblink"},null,"KidHaven Publishing","Library Bound Book",1,"2019","August 2018","Library","8.500 X 8.500","Author","Kirsty Holmes",null,null,null,null,"H",null,"Grade 1 - 2","Grade K - 2","Many things cause us to become sad, but what's important is to know how to deal with sad feelings in a healthy way. In this charming, age-appropriate book, young learners have the pleasure of meeting the colorful character Dr. Gloom. They are taken on a journey alongside Dr. Gloom through the captivating main text, which is presented in a fun comic book design that is filled with vibrant, full-color photographs and illustrations. While learning about what makes us experience feelings of sadness and how we express those feelings, readers expand their understanding of their own emotions.","English",25.6,20.48,"155.4'124--dc23","24 pp.","https://greenhavenpublishing.com/9781534526754",null,{"$f":"Table1[[#This Row],['# of Books]]*Table1[[#This Row],[QTY]]","v":0},{"$f":"Table1[[#This Row],[QTY]]*Table1[[#This Row],[School & Library Price]]","v":0}]
[null,null,null,null,22,"Health & Guidance","A Kid's Guide to Feelings","Feeling Sad","978-1-5345-2678-5",{"$f":"HYPERLINK(Table1[[#This Row],[eCommerce Hyperlink]],\"Book Weblink\")","v":"Book Weblink"},null,"KidHaven Publishing","eBook",1,"2019","August 2018",null,null,"Author","Kirsty Holmes",null,null,null,null,"H",null,"Grade 1 - 2","Grade K - 2","Many things cause us to become sad, but what's important is to know how to deal with sad feelings in a healthy way. In this charming, age-appropriate book, young learners have the pleasure of meeting the colorful character Dr. Gloom. They are taken on a journey alongside Dr. Gloom through the captivating main text, which is presented in a fun comic book design that is filled with vibrant, full-color photographs and illustrations. While learning about what makes us experience feelings of sadness and how we express those feelings, readers expand their understanding of their own emotions.","English",25.6,20.48,"155.4'124--dc23","24 pp.","https://greenhavenpublishing.com/9781534526785",null,{"$f":"Table1[[#This Row],['# of Books]]*Table1[[#This Row],[QTY]]","v":0},{"$f":"Table1[[#This Row],[QTY]]*Table1[[#This Row],[School & Library Price]]","v":0}]
[null,null,null,null,22,"Health & Guidance","Human Body Helpers","Human Body Helpers: Set 1","978-1-5345-2964-9",{"$f":"HYPERLINK(Table1[[#This Row],[eCommerce Hyperlink]],\"Book Weblink\")","v":"Book Weblink"},null,"KidHaven Publishing","Library Set",4,"2019","January 2019","Library","8.500 X 8.500",null,null,null,null,null,null,null,null,"Grade 2 - 3","Grade 2 - 4","How do we straighten our teeth if they are crooked? Why do some people need a wheelchair? How do glasses help people see? Readers will discover the answers to these questions and others through volumes that introduce them to different devices people sometimes use to help them see, hear, move around, and do other important tasks. They will learn about how braces, glasses, hearing aids, and wheelchairs work through age-appropriate text that is supplemented with interesting fact boxes and charming illustrations. These features work together to create a reading experience that is relatable, educational, and entertaining for young readers. Features include: Illustrated characters including \"Millie Molar\" and \"Bertie Bracket\" are friendly faces that are used to explain how each device works. Science and technology concepts are presented to readers in a creative and fun way. Sensitive tone helps readers become more empathetic toward people who need to use these devices and also resonates with readers who use these devices or who are nervous about their first pair of glasses or wearing braces.","English",102.4,81.92,null,"24 pp.","https://greenhavenpublishing.com/9781534529649",null,{"$f":"Table1[[#This Row],['# of Books]]*Table1[[#This Row],[QTY]]","v":0},{"$f":"Table1[[#This Row],[QTY]]*Table1[[#This Row],[School & Library Price]]","v":0}]
[null,null,null,null,22,"Health & Guidance","Human Body Helpers","Using a Wheelchair","978-1-5345-2957-1",{"$f":"HYPERLINK(Table1[[#This Row],[eCommerce Hyperlink]],\"Book Weblink\")","v":"Book Weblink"},null,"KidHaven Publishing","Library Bound Book",1,"2019","January 2019","Library","8.500 X 8.500","Author","Harriet Brundle","4.2","0.5",null,null,"M",null,"Grade 2 - 3","Grade 2 - 4","Colorful illustrated characters serve as friendly guides in this exploration of what life is like for someone who uses a wheelchair. The age-appropriate text encourages readers to develop empathy for people with disabilities and people who have been injured and need the use of a wheelchair. The text also serves as an important resource for young people who use a wheelchair and want to understand more about how the device works. Educational fact boxes and a detailed glossary of important terms provide additional understanding to help young learners grasp the science and technology behind this topic.","English",25.6,20.48,"617'.033--dc23","24 pp.","https://greenhavenpublishing.com/9781534529571",null,{"$f":"Table1[[#This Row],['# of Books]]*Table1[[#This Row],[QTY]]","v":0},{"$f":"Table1[[#This Row],[QTY]]*Table1[[#This Row],[School & Library Price]]","v":0}]
[null,null,null,null,22,"Health & Guidance","Human Body Helpers","Using a Wheelchair","978-1-5345-2958-8",{"$f":"HYPERLINK(Table1[[#This Row],[eCommerce Hyperlink]],\"Book Weblink\")","v":"Book Weblink"},null,"KidHaven Publishing","eBook",1,"2019","January 2019",null,null,"Author","Harriet Brundle","4.2","0.5",null,null,"M",null,"Grade 2 - 3","Grade 2 - 4","Colorful illustrated characters serve as friendly guides in this exploration of what life is like for someone who uses a wheelchair. The age-appropriate text encourages readers to develop empathy for people with disabilities and people who have been injured and need the use of a wheelchair. The text also serves as an important resource for young people who use a wheelchair and want to understand more about how the device works. Educational fact boxes and a detailed glossary of important terms provide additional understanding to help young learners grasp the science and technology behind this topic.","English",25.6,20.48,"617'.033--dc23","24 pp.","https://greenhavenpublishing.com/9781534529588",null,{"$f":"Table1[[#This Row],['# of Books]]*Table1[[#This Row],[QTY]]","v":0},{"$f":"Table1[[#This Row],[QTY]]*Table1[[#This Row],[School & Library Price]]","v":0}]
[null,null,null,null,22,"Health & Guidance","Human Body Helpers","Using Hearing Aids","978-1-5345-2953-3",{"$f":"HYPERLINK(Table1[[#This Row],[eCommerce Hyperlink]],\"Book Weblink\")","v":"Book Weblink"},null,"KidHaven Publishing","Library Bound Book",1,"2019","January 2019","Library","8.500 X 8.500","Author","Harriet Brundle","4.1","0.5",null,null,"M",null,"Grade 2 - 3","Grade 2 - 4","Many people are born with or develop hearing problems, which leads them to wear hearing aids. Readers learn about how these devices help those with hearing problems through accessible text and fact boxes that focus on science, technology, and guidance. The sensitive tone promotes self-acceptance for those who wear hearing aids, provides answers for those who may need them, and fosters a sense of empathy among readers who may know people with hearing problems. The imaginative illustrations, including colorful characters, make this an educational and entertaining learning experience for young readers.","English",25.6,20.48,"617.8'9--dc23","24 pp.","https://greenhavenpublishing.com/9781534529533",null,{"$f":"Table1[[#This Row],['# of Books]]*Table1[[#This Row],[QTY]]","v":0},{"$f":"Table1[[#This Row],[QTY]]*Table1[[#This Row],[School & Library Price]]","v":0}]
[null,null,null,null,22,"Health & Guidance","Human Body Helpers","Using Hearing Aids","978-1-5345-2954-0",{"$f":"HYPERLINK(Table1[[#This Row],[eCommerce Hyperlink]],\"Book Weblink\")","v":"Book Weblink"},null,"KidHaven Publishing","eBook",1,"2019","January 2019",null,null,"Author","Harriet Brundle","4.1","0.5",null,null,"M",null,"Grade 2 - 3","Grade 2 - 4","Many people are born with or develop hearing problems, which leads them to wear hearing aids. Readers learn about how these devices help those with hearing problems through accessible text and fact boxes that focus on science, technology, and guidance. The sensitive tone promotes self-acceptance for those who wear hearing aids, provides answers for those who may need them, and fosters a sense of empathy among readers who may know people with hearing problems. The imaginative illustrations, including colorful characters, make this an educational and entertaining learning experience for young readers.","English",25.6,20.48,"617.8'9--dc23","24 pp.","https://greenhavenpublishing.com/9781534529540",null,{"$f":"Table1[[#This Row],['# of Books]]*Table1[[#This Row],[QTY]]","v":0},{"$f":"Table1[[#This Row],[QTY]]*Table1[[#This Row],[School & Library Price]]","v":0}]
[null,null,null,null,22,"Health & Guidance","Human Body Helpers","Wearing Braces","978-1-5345-2945-8",{"$f":"HYPERLINK(Table1[[#This Row],[eCommerce Hyperlink]],\"Book Weblink\")","v":"Book Weblink"},null,"KidHaven Publishing","Library Bound Book",1,"2019","January 2019","Library","8.500 X 8.500","Author","Harriet Brundle","4.5","0.5",null,null,"M",null,"Grade 2 - 3","Grade 2 - 4","Why do some people wear braces? How do braces work? Questions such as these are answered in this accessible text, which explains this common part of growing up in a creative way. It resonates with those who already wear braces and prepares those who may be nervous about having to wear braces. Illustrated characters, such as \"Millie Molar\" and \"Bertie Bracket\" are fun and friendly faces used to explain the basics of braces and encourage empathy toward those who wear them. In addition, informative fact boxes and a detailed glossary enhance understanding of the science and technology of braces.","English",25.6,20.48,"617.643--dc23","24 pp.","https://greenhavenpublishing.com/9781534529458",null,{"$f":"Table1[[#This Row],['# of Books]]*Table1[[#This Row],[QTY]]","v":0},{"$f":"Table1[[#This Row],[QTY]]*Table1[[#This Row],[School & Library Price]]","v":0}]
[null,null,null,null,22,"Health & Guidance","Human Body Helpers","Wearing Braces","978-1-5345-2946-5",{"$f":"HYPERLINK(Table1[[#This Row],[eCommerce Hyperlink]],\"Book Weblink\")","v":"Book Weblink"},null,"KidHaven Publishing","eBook",1,"2019","January 2019",null,null,"Author","Harriet Brundle","4.5","0.5",null,null,"M",null,"Grade 2 - 3","Grade 2 - 4","Why do some people wear braces? How do braces work? Questions such as these are answered in this accessible text, which explains this common part of growing up in a creative way. It resonates with those who already wear braces and prepares those who may be nervous about having to wear braces. Illustrated characters, such as \"Millie Molar\" and \"Bertie Bracket\" are fun and friendly faces used to explain the basics of braces and encourage empathy toward those who wear them. In addition, informative fact boxes and a detailed glossary enhance understanding of the science and technology of braces.","English",25.6,20.48,"617.643--dc23","24 pp.","https://greenhavenpublishing.com/9781534529465",null,{"$f":"Table1[[#This Row],['# of Books]]*Table1[[#This Row],[QTY]]","v":0},{"$f":"Table1[[#This Row],[QTY]]*Table1[[#This Row],[School & Library Price]]","v":0}]
[null,null,null,null,22,"Health & Guidance","Human Body Helpers","Wearing Glasses","978-1-5345-2949-6",{"$f":"HYPERLINK(Table1[[#This Row],[eCommerce Hyperlink]],\"Book Weblink\")","v":"Book Weblink"},null,"KidHaven Publishing","Library Bound Book",1,"2019","January 2019","Library","8.500 X 8.500","Author","Harriet Brundle","4.5","0.5",null,null,"M",null,"Grade 2 - 3","Grade 2 - 4","Wearing glasses for the first time doesn't have to be scary. Readers learn what it's like to wear glasses and how it helps improve one's vision. The sensitive tone promotes acceptance and understanding of those who wear glasses, helping young readers become more empathetic toward their peers. It is also relatable for those who already wear glasses and is comforting to those preparing to receive their first pair of glasses. The illustrated characters, such as \"Ernie Eyeball\" and \"Lucy Lens,\" educational fact boxes, and an informative glossary enhance this volume and make learning about everyday science and technology topics fun.","English",25.6,20.48,"617.7'522--dc23","24 pp.","https://greenhavenpublishing.com/9781534529496",null,{"$f":"Table1[[#This Row],['# of Books]]*Table1[[#This Row],[QTY]]","v":0},{"$f":"Table1[[#This Row],[QTY]]*Table1[[#This Row],[School & Library Price]]","v":0}]
[null,null,null,null,22,"Health & Guidance","Human Body Helpers","Wearing Glasses","978-1-5345-2950-2",{"$f":"HYPERLINK(Table1[[#This Row],[eCommerce Hyperlink]],\"Book Weblink\")","v":"Book Weblink"},null,"KidHaven Publishing","eBook",1,"2019","January 2019",null,null,"Author","Harriet Brundle","4.5","0.5",null,null,"M",null,"Grade 2 - 3","Grade 2 - 4","Wearing glasses for the first time doesn't have to be scary. Readers learn what it's like to wear glasses and how it helps improve one's vision. The sensitive tone promotes acceptance and understanding of those who wear glasses, helping young readers become more empathetic toward their peers. It is also relatable for those who already wear glasses and is comforting to those preparing to receive their first pair of glasses. The illustrated characters, such as \"Ernie Eyeball\" and \"Lucy Lens,\" educational fact boxes, and an informative glossary enhance this volume and make learning about everyday science and technology topics fun.","English",25.6,20.48,"617.7'522--dc23","24 pp.","https://greenhavenpublishing.com/9781534529502",null,{"$f":"Table1[[#This Row],['# of Books]]*Table1[[#This Row],[QTY]]","v":0},{"$f":"Table1[[#This Row],[QTY]]*Table1[[#This Row],[School & Library Price]]","v":0}]
[null,null,null,null,22,"Health & Guidance","Human Body Helpers","Human Body Helpers: Set 2","978-1-5345-3602-9",{"$f":"HYPERLINK(Table1[[#This Row],[eCommerce Hyperlink]],\"Book Weblink\")","v":"Book Weblink"},null,"KidHaven Publishing","Library Set",6,"2021","August 2020","Library","8.500 X 8.500",null,null,null,null,null,null,null,null,"Grade 2 - 3","Grade 2 - 4","Sometimes our bodies need a little help. Whether someone has asthma, allergies, or a heart condition, devices and technology can be used to help people deal with medical conditions and health problems. Treatment and devices such as artificial limbs and colostomy bags are explained. Through accessible and age-appropriate narratives, readers learn about the human body, the obstacles it may go through, and what tools can make it feel and function better. Informative fact boxes supply extra information. Charming illustrations make this an enjoyable reading experience about a topic that builds empathy and understanding. Features include: Lighthearted but empathetic tone helps young readers process information about sensitive topics. Body parts and devices used to help the body are given fun names, character traits, and dialogue. Simple language guides readers who are dealing with health issues themselves or who want to support a family member or friend.","English",153.6,122.88,null,"24 pp.","https://greenhavenpublishing.com/9781534536029",null,{"$f":"Table1[[#This Row],['# of Books]]*Table1[[#This Row],[QTY]]","v":0},{"$f":"Table1[[#This Row],[QTY]]*Table1[[#This Row],[School & Library Price]]","v":0}]
[null,null,null,null,22,"Health & Guidance","Human Body Helpers","Having a Pacemaker","978-1-5345-3538-1",{"$f":"HYPERLINK(Table1[[#This Row],[eCommerce Hyperlink]],\"Book Weblink\")","v":"Book Weblink"},null,"KidHaven Publishing","Library Bound Book",1,"2021","August 2020","Library","8.500 X 8.500","Author","Harriet Brundle",null,null,null,null,"M",null,"Grade 2 - 3","Grade 2 - 4","Each year, about 200,000 pacemakers are implanted in the United States. This volume teaches young readers about the importance of pacemakers and how they help those who are suffering from heart conditions. The accessible narrative and fact boxes present this sensitive subject in a way that is easily understandable for early learners. They'll learn how people with pacemakers can live normal and healthy lives. Eye-catching illustrations of colorful characters, such as the heart and a pacemaker, create a fun-filled reading experience that makes a tough topic seem less scary.","English",25.6,20.48,"617.4'120592--dc23","24 pp.","https://greenhavenpublishing.com/9781534535381",null,{"$f":"Table1[[#This Row],['# of Books]]*Table1[[#This Row],[QTY]]","v":0},{"$f":"Table1[[#This Row],[QTY]]*Table1[[#This Row],[School & Library Price]]","v":0}]
[null,null,null,null,22,"Health & Guidance","Human Body Helpers","Having a Pacemaker","978-1-5345-3539-8",{"$f":"HYPERLINK(Table1[[#This Row],[eCommerce Hyperlink]],\"Book Weblink\")","v":"Book Weblink"},null,"KidHaven Publishing","eBook",1,"2021","August 2020",null,null,"Author","Harriet Brundle",null,null,null,null,"M",null,"Grade 2 - 3","Grade 2 - 4","Each year, about 200,000 pacemakers are implanted in the United States. This volume teaches young readers about the importance of pacemakers and how they help those who are suffering from heart conditions. The accessible narrative and fact boxes present this sensitive subject in a way that is easily understandable for early learners. They'll learn how people with pacemakers can live normal and healthy lives. Eye-catching illustrations of colorful characters, such as the heart and a pacemaker, create a fun-filled reading experience that makes a tough topic seem less scary.","English",25.6,20.48,"617.4'120592--dc23","24 pp.","https://greenhavenpublishing.com/9781534535398",null,{"$f":"Table1[[#This Row],['# of Books]]*Table1[[#This Row],[QTY]]","v":0},{"$f":"Table1[[#This Row],[QTY]]*Table1[[#This Row],[School & Library Price]]","v":0}]
[null,null,null,null,22,"Health & Guidance","Human Body Helpers","Using an Auto-Injector","978-1-5345-3542-8",{"$f":"HYPERLINK(Table1[[#This Row],[eCommerce Hyperlink]],\"Book Weblink\")","v":"Book Weblink"},null,"KidHaven Publishing","Library Bound Book",1,"2021","August 2020","Library","8.500 X 8.500","Author","Harriet Brundle",null,null,null,null,"M",null,"Grade 2 - 3","Grade 2 - 4","Some people have allergic reactions to certain foods and substances, and these reactions can be serious and scary. However, help is on the way when someone uses an auto-injector. Your readers will learn about the importance of auto-injectors and how they help people who suffer an allergic reaction known as anaphylaxis. This subject matter, which can seem frightening to some, is presented in a lighthearted way that favors facts over fear. Charming illustrations are presented of auto-injectors and parts of the body serving as helpful characters that guide readers through this informative reading experience.","English",25.6,20.48,"615'.6--dc23","24 pp.","https://greenhavenpublishing.com/9781534535428",null,{"$f":"Table1[[#This Row],['# of Books]]*Table1[[#This Row],[QTY]]","v":0},{"$f":"Table1[[#This Row],[QTY]]*Table1[[#This Row],[School & Library Price]]","v":0}]
[null,null,null,null,22,"Health & Guidance","Human Body Helpers","Using an Auto-Injector","978-1-5345-3543-5",{"$f":"HYPERLINK(Table1[[#This Row],[eCommerce Hyperlink]],\"Book Weblink\")","v":"Book Weblink"},null,"KidHaven Publishing","eBook",1,"2021","August 2020",null,null,"Author","Harriet Brundle",null,null,null,null,"M",null,"Grade 2 - 3","Grade 2 - 4","Some people have allergic reactions to certain foods and substances, and these reactions can be serious and scary. However, help is on the way when someone uses an auto-injector. Your readers will learn about the importance of auto-injectors and how they help people who suffer an allergic reaction known as anaphylaxis. This subject matter, which can seem frightening to some, is presented in a lighthearted way that favors facts over fear. Charming illustrations are presented of auto-injectors and parts of the body serving as helpful characters that guide readers through this informative reading experience.","English",25.6,20.48,"615'.6--dc23","24 pp.","https://greenhavenpublishing.com/9781534535435",null,{"$f":"Table1[[#This Row],['# of Books]]*Table1[[#This Row],[QTY]]","v":0},{"$f":"Table1[[#This Row],[QTY]]*Table1[[#This Row],[School & Library Price]]","v":0}]
[null,null,null,null,22,"Health & Guidance","Human Body Helpers","Using an Inhaler","978-1-5345-3546-6",{"$f":"HYPERLINK(Table1[[#This Row],[eCommerce Hyperlink]],\"Book Weblink\")","v":"Book Weblink"},null,"KidHaven Publishing","Library Bound Book",1,"2021","August 2020","Library","8.500 X 8.500","Author","Harriet Brundle",null,null,null,null,"M",null,"Grade 2 - 3","Grade 2 - 4","When someone has an asthma attack, it is difficult for them to breathe, but using an inhaler can help them breathe easy again. Through the age-appropriate narrative and delightful illustrations, readers are introduced to colorful characters that explain asthma and inhalers in a charming and informative way. Fact boxes further explain this sensitive subject matter so that it is compelling and comprehensive for young readers. This creative approach to learning about the human body is an excellent resource for children with asthma and for readers who want to learn more about this disorder.","English",25.6,20.48,"615.8'36--dc23","24 pp.","https://greenhavenpublishing.com/9781534535466",null,{"$f":"Table1[[#This Row],['# of Books]]*Table1[[#This Row],[QTY]]","v":0},{"$f":"Table1[[#This Row],[QTY]]*Table1[[#This Row],[School & Library Price]]","v":0}]
[null,null,null,null,22,"Health & Guidance","Human Body Helpers","Using an Inhaler","978-1-5345-3547-3",{"$f":"HYPERLINK(Table1[[#This Row],[eCommerce Hyperlink]],\"Book Weblink\")","v":"Book Weblink"},null,"KidHaven Publishing","eBook",1,"2021","August 2020",null,null,"Author","Harriet Brundle",null,null,null,null,"M",null,"Grade 2 - 3","Grade 2 - 4","When someone has an asthma attack, it is difficult for them to breathe, but using an inhaler can help them breathe easy again. Through the age-appropriate narrative and delightful illustrations, readers are introduced to colorful characters that explain asthma and inhalers in a charming and informative way. Fact boxes further explain this sensitive subject matter so that it is compelling and comprehensive for young readers. This creative approach to learning about the human body is an excellent resource for children with asthma and for readers who want to learn more about this disorder.","English",25.6,20.48,"615.8'36--dc23","24 pp.","https://greenhavenpublishing.com/9781534535473",null,{"$f":"Table1[[#This Row],['# of Books]]*Table1[[#This Row],[QTY]]","v":0},{"$f":"Table1[[#This Row],[QTY]]*Table1[[#This Row],[School & Library Price]]","v":0}]
[null,null,null,null,22,"Health & Guidance","Human Body Helpers","Using Insulin","978-1-5345-3550-3",{"$f":"HYPERLINK(Table1[[#This Row],[eCommerce Hyperlink]],\"Book Weblink\")","v":"Book Weblink"},null,"KidHaven Publishing","Library Bound Book",1,"2021","August 2020","Library","8.500 X 8.500","Author","Harriet Brundle",null,null,null,null,"M",null,"Grade 2 - 3","Grade 2 - 4","Some people have diabetes, which causes their bodies to have trouble making or using insulin. How can people with diabetes get the insulin they need? Readers find the answer with this relatable and engaging look at life with diabetes. They will discover how visiting the doctor is important when your body is not functioning properly. Charming illustrations and colorful characters enhance the reading experience and present information in a relatable and creative way. Informative fact boxes and a detailed glossary provide extra insight into this essential health topic that affects many families.","English",25.6,20.48,"616.4'62--dc23","24 pp.","https://greenhavenpublishing.com/9781534535503",null,{"$f":"Table1[[#This Row],['# of Books]]*Table1[[#This Row],[QTY]]","v":0},{"$f":"Table1[[#This Row],[QTY]]*Table1[[#This Row],[School & Library Price]]","v":0}]
[null,null,null,null,22,"Health & Guidance","Human Body Helpers","Using Insulin","978-1-5345-3551-0",{"$f":"HYPERLINK(Table1[[#This Row],[eCommerce Hyperlink]],\"Book Weblink\")","v":"Book Weblink"},null,"KidHaven Publishing","eBook",1,"2021","August 2020",null,null,"Author","Harriet Brundle",null,null,null,null,"M",null,"Grade 2 - 3","Grade 2 - 4","Some people have diabetes, which causes their bodies to have trouble making or using insulin. How can people with diabetes get the insulin they need? Readers find the answer with this relatable and engaging look at life with diabetes. They will discover how visiting the doctor is important when your body is not functioning properly. Charming illustrations and colorful characters enhance the reading experience and present information in a relatable and creative way. Informative fact boxes and a detailed glossary provide extra insight into this essential health topic that affects many families.","English",25.6,20.48,"616.4'62--dc23","24 pp.","https://greenhavenpublishing.com/9781534535510",null,{"$f":"Table1[[#This Row],['# of Books]]*Table1[[#This Row],[QTY]]","v":0},{"$f":"Table1[[#This Row],[QTY]]*Table1[[#This Row],[School & Library Price]]","v":0}]
[null,null,null,null,22,"Health & Guidance","Human Body Helpers","Wearing a Colostomy Bag","978-1-5345-3558-9",{"$f":"HYPERLINK(Table1[[#This Row],[eCommerce Hyperlink]],\"Book Weblink\")","v":"Book Weblink"},null,"KidHaven Publishing","Library Bound Book",1,"2021","August 2020","Library","8.500 X 8.500","Author","Harriet Brundle",null,null,null,null,"M",null,"Grade 2 - 3","Grade 2 - 4","Wearing a colostomy bag may seem like a difficult thing to talk about, but with the support of charming illustrated characters and simple text, this health topic is made accessible for young readers. It is especially perfect for those looking for resources about their own use of a colostomy bag. The helpful main text gives readers the facts needed to be respectful and informed about this health topic. Readers discover the importance of colostomy bags, why people need them, and how they are used. Fact boxes and a glossary provide supplementary information. Colorful illustrations make this an enjoyable learning experience.","English",25.6,20.48,"617.5'547--dc23","24 pp.","https://greenhavenpublishing.com/9781534535589",null,{"$f":"Table1[[#This Row],['# of Books]]*Table1[[#This Row],[QTY]]","v":0},{"$f":"Table1[[#This Row],[QTY]]*Table1[[#This Row],[School & Library Price]]","v":0}]
[null,null,null,null,22,"Health & Guidance","Human Body Helpers","Wearing a Colostomy Bag","978-1-5345-3559-6",{"$f":"HYPERLINK(Table1[[#This Row],[eCommerce Hyperlink]],\"Book Weblink\")","v":"Book Weblink"},null,"KidHaven Publishing","eBook",1,"2021","August 2020",null,null,"Author","Harriet Brundle",null,null,null,null,"M",null,"Grade 2 - 3","Grade 2 - 4","Wearing a colostomy bag may seem like a difficult thing to talk about, but with the support of charming illustrated characters and simple text, this health topic is made accessible for young readers. It is especially perfect for those looking for resources about their own use of a colostomy bag. The helpful main text gives readers the facts needed to be respectful and informed about this health topic. Readers discover the importance of colostomy bags, why people need them, and how they are used. Fact boxes and a glossary provide supplementary information. Colorful illustrations make this an enjoyable learning experience.","English",25.6,20.48,"617.5'547--dc23","24 pp.","https://greenhavenpublishing.com/9781534535596",null,{"$f":"Table1[[#This Row],['# of Books]]*Table1[[#This Row],[QTY]]","v":0},{"$f":"Table1[[#This Row],[QTY]]*Table1[[#This Row],[School & Library Price]]","v":0}]
[null,null,null,null,22,"Health & Guidance","Human Body Helpers","Wearing an Artificial Limb","978-1-5345-3554-1",{"$f":"HYPERLINK(Table1[[#This Row],[eCommerce Hyperlink]],\"Book Weblink\")","v":"Book Weblink"},null,"KidHaven Publishing","Library Bound Book",1,"2021","August 2020","Library","8.500 X 8.500","Author","Harriet Brundle",null,null,null,null,"M",null,"Grade 2 - 3","Grade 2 - 4","Some people are not born with all of their limbs or lose a limb from an illness or injury. They sometimes wear an artificial limb. Readers learn about how artificial limbs help people accomplish basic tasks. This sensitive topic is conveyed in an empathetic, informative, and lighthearted way so readers can relate to the subject matter. Useful fact boxes, a detailed glossary, and vibrant illustrations enhance readers' understanding of how artificial limbs work. This resource is helpful for all readers and especially for those who wear artificial limbs themselves.","English",25.6,20.48,"617.5'8--dc23","24 pp.","https://greenhavenpublishing.com/9781534535541",null,{"$f":"Table1[[#This Row],['# of Books]]*Table1[[#This Row],[QTY]]","v":0},{"$f":"Table1[[#This Row],[QTY]]*Table1[[#This Row],[School & Library Price]]","v":0}]
[null,null,null,null,22,"Health & Guidance","Human Body Helpers","Wearing an Artificial Limb","978-1-5345-3555-8",{"$f":"HYPERLINK(Table1[[#This Row],[eCommerce Hyperlink]],\"Book Weblink\")","v":"Book Weblink"},null,"KidHaven Publishing","eBook",1,"2021","August 2020",null,null,"Author","Harriet Brundle",null,null,null,null,"M",null,"Grade 2 - 3","Grade 2 - 4","Some people are not born with all of their limbs or lose a limb from an illness or injury. They sometimes wear an artificial limb. Readers learn about how artificial limbs help people accomplish basic tasks. This sensitive topic is conveyed in an empathetic, informative, and lighthearted way so readers can relate to the subject matter. Useful fact boxes, a detailed glossary, and vibrant illustrations enhance readers' understanding of how artificial limbs work. This resource is helpful for all readers and especially for those who wear artificial limbs themselves.","English",25.6,20.48,"617.5'8--dc23","24 pp.","https://greenhavenpublishing.com/9781534535558",null,{"$f":"Table1[[#This Row],['# of Books]]*Table1[[#This Row],[QTY]]","v":0},{"$f":"Table1[[#This Row],[QTY]]*Table1[[#This Row],[School & Library Price]]","v":0}]
[null,null,null,null,22,"Health & Guidance","The KidHaven Health Library","The KidHaven Health Library","978-1-5345-3249-6",{"$f":"HYPERLINK(Table1[[#This Row],[eCommerce Hyperlink]],\"Book Weblink\")","v":"Book Weblink"},null,"KidHaven Publishing","Library Set",6,"2020","January 2020","Library","8.500 X 11.00",null,null,null,null,null,null,null,null,"Grade 4","Grade 3 - 5","Can someone with asthma get better? Why do some people have allergies? How can someone help a friend with anxiety? These are just some of the many questions young people might have about health problems they or people they know are facing. The answers are waiting for them in this accessible look at common health conditions. Medical terminology is explained to readers using language they can understand and examples they can relate to. Detailed sidebars, graphic organizers, diagrams, and full-color photographs help readers understand these essential science and health topics. Features include: Age-appropriate tone informs readers about serious health problems, such as depression and autism, without talking down to them or scaring them. Detailed descriptions of causes, symptoms, and treatments make this a valuable resource for young people living with a health problem or who want to know more about what a friend or family member is going through. Suggestions for how to support someone living with a medical condition encourage readers to look beyond the stigma surrounding health problems and develop a deeper sense of empathy.","English",169.5,135.6,null,"32 pp.","https://greenhavenpublishing.com/9781534532496",null,{"$f":"Table1[[#This Row],['# of Books]]*Table1[[#This Row],[QTY]]","v":0},{"$f":"Table1[[#This Row],[QTY]]*Table1[[#This Row],[School & Library Price]]","v":0}]
[null,null,null,null,22,"Health & Guidance","The KidHaven Health Library","What Happens When Someone Has ADHD?","978-1-5345-3244-1",{"$f":"HYPERLINK(Table1[[#This Row],[eCommerce Hyperlink]],\"Book Weblink\")","v":"Book Weblink"},null,"KidHaven Publishing","Library Bound Book",1,"2020","January 2020","Library","8.500 X 11.00","Author","Katie Kawa",null,null,null,null,"R",null,"Grade 4","Grade 3 - 5","Attention-deficit/hyperactivity disorder or ADHD is a relatively common disorder, but many misconceptions about it still exist. Readers discover the truth about ADHD as they explore this fact-filled guide. Information about causes, symptoms, and treatment is presented in a way that simplifies medical jargon, and sidebars, diagrams, and graphic organizers further explain science concepts. Along with relatable, full-color photographs, these engaging elements work together to help readers better understand ADHD, which is crucial for readers living with this disorder. This knowledge also helps readers support family members or friends with ADHD.","English",28.25,22.6,"618.92'8589--dc23","32 pp.","https://greenhavenpublishing.com/9781534532441",null,{"$f":"Table1[[#This Row],['# of Books]]*Table1[[#This Row],[QTY]]","v":0},{"$f":"Table1[[#This Row],[QTY]]*Table1[[#This Row],[School & Library Price]]","v":0}]
[null,null,null,null,22,"Health & Guidance","The KidHaven Health Library","What Happens When Someone Has ADHD?","978-1-5345-3254-0",{"$f":"HYPERLINK(Table1[[#This Row],[eCommerce Hyperlink]],\"Book Weblink\")","v":"Book Weblink"},null,"KidHaven Publishing","eBook",1,"2020","January 2020",null,null,"Author","Katie Kawa",null,null,null,null,"R",null,"Grade 4","Grade 3 - 5","Attention-deficit/hyperactivity disorder or ADHD is a relatively common disorder, but many misconceptions about it still exist. Readers discover the truth about ADHD as they explore this fact-filled guide. Information about causes, symptoms, and treatment is presented in a way that simplifies medical jargon, and sidebars, diagrams, and graphic organizers further explain science concepts. Along with relatable, full-color photographs, these engaging elements work together to help readers better understand ADHD, which is crucial for readers living with this disorder. This knowledge also helps readers support family members or friends with ADHD.","English",28.25,22.6,"618.92'8589--dc23","32 pp.","https://greenhavenpublishing.com/9781534532540",null,{"$f":"Table1[[#This Row],['# of Books]]*Table1[[#This Row],[QTY]]","v":0},{"$f":"Table1[[#This Row],[QTY]]*Table1[[#This Row],[School & Library Price]]","v":0}]
[null,null,null,null,22,"Health & Guidance","The KidHaven Health Library","What Happens When Someone Has Allergies?","978-1-5345-3246-5",{"$f":"HYPERLINK(Table1[[#This Row],[eCommerce Hyperlink]],\"Book Weblink\")","v":"Book Weblink"},null,"KidHaven Publishing","Library Bound Book",1,"2020","January 2020","Library","8.500 X 11.00","Author","Katie Kawa",null,null,null,null,"R",null,"Grade 4","Grade 3 - 5","Some people are allergic to pollen while others have a food allergy. Cats might make someone sneeze, and dogs might make someone else break out in hives. Allergies affect people in many different ways, and sometimes they can be deadly. Knowing the facts about different kinds of allergies can help young people understand their own body better and can also help them support people they know who have allergies. Diagrams, sidebars, full-color photographs, and graphic organizers work with the accessible main text to provide detailed information about what allergies are, how they're diagnosed, and how they can be treated.","English",28.25,22.6,"616.97--dc23","32 pp.","https://greenhavenpublishing.com/9781534532465",null,{"$f":"Table1[[#This Row],['# of Books]]*Table1[[#This Row],[QTY]]","v":0},{"$f":"Table1[[#This Row],[QTY]]*Table1[[#This Row],[School & Library Price]]","v":0}]
[null,null,null,null,22,"Health & Guidance","The KidHaven Health Library","What Happens When Someone Has Allergies?","978-1-5345-3252-6",{"$f":"HYPERLINK(Table1[[#This Row],[eCommerce Hyperlink]],\"Book Weblink\")","v":"Book Weblink"},null,"KidHaven Publishing","eBook",1,"2020","January 2020",null,null,"Author","Katie Kawa",null,null,null,null,"R",null,"Grade 4","Grade 3 - 5","Some people are allergic to pollen while others have a food allergy. Cats might make someone sneeze, and dogs might make someone else break out in hives. Allergies affect people in many different ways, and sometimes they can be deadly. Knowing the facts about different kinds of allergies can help young people understand their own body better and can also help them support people they know who have allergies. Diagrams, sidebars, full-color photographs, and graphic organizers work with the accessible main text to provide detailed information about what allergies are, how they're diagnosed, and how they can be treated.","English",28.25,22.6,"616.97--dc23","32 pp.","https://greenhavenpublishing.com/9781534532526",null,{"$f":"Table1[[#This Row],['# of Books]]*Table1[[#This Row],[QTY]]","v":0},{"$f":"Table1[[#This Row],[QTY]]*Table1[[#This Row],[School & Library Price]]","v":0}]
[null,null,null,null,22,"Health & Guidance","The KidHaven Health Library","What Happens When Someone Has Anxiety?","978-1-5345-3245-8",{"$f":"HYPERLINK(Table1[[#This Row],[eCommerce Hyperlink]],\"Book Weblink\")","v":"Book Weblink"},null,"KidHaven Publishing","Library Bound Book",1,"2020","January 2020","Library","8.500 X 11.00","Author","Katie Kawa",null,null,null,null,"R",null,"Grade 4","Grade 3 - 5","It's normal to feel anxious before a big test, but for some people, anxiety is part of their daily lives. Anxiety disorders are a serious mental health concern for millions of people, including children. Readers who know a friend or family member who struggles with anxiety or who deal with anxiety in their own life can find suggestions for support and helpful facts in this age-appropriate overview of anxiety disorders. Detailed sidebars, graphic organizers, and diagrams are presented along with full-color photographs to create an enlightening reading experience that focuses on empowerment and education rather than fear.","English",28.25,22.6,"152.4'6--dc23","32 pp.","https://greenhavenpublishing.com/9781534532458",null,{"$f":"Table1[[#This Row],['# of Books]]*Table1[[#This Row],[QTY]]","v":0},{"$f":"Table1[[#This Row],[QTY]]*Table1[[#This Row],[School & Library Price]]","v":0}]
[null,null,null,null,22,"Health & Guidance","The KidHaven Health Library","What Happens When Someone Has Anxiety?","978-1-5345-3253-3",{"$f":"HYPERLINK(Table1[[#This Row],[eCommerce Hyperlink]],\"Book Weblink\")","v":"Book Weblink"},null,"KidHaven Publishing","eBook",1,"2020","January 2020",null,null,"Author","Katie Kawa",null,null,null,null,"R",null,"Grade 4","Grade 3 - 5","It's normal to feel anxious before a big test, but for some people, anxiety is part of their daily lives. Anxiety disorders are a serious mental health concern for millions of people, including children. Readers who know a friend or family member who struggles with anxiety or who deal with anxiety in their own life can find suggestions for support and helpful facts in this age-appropriate overview of anxiety disorders. Detailed sidebars, graphic organizers, and diagrams are presented along with full-color photographs to create an enlightening reading experience that focuses on empowerment and education rather than fear.","English",28.25,22.6,"152.4'6--dc23","32 pp.","https://greenhavenpublishing.com/9781534532533",null,{"$f":"Table1[[#This Row],['# of Books]]*Table1[[#This Row],[QTY]]","v":0},{"$f":"Table1[[#This Row],[QTY]]*Table1[[#This Row],[School & Library Price]]","v":0}]
[null,null,null,null,22,"Health & Guidance","The KidHaven Health Library","What Happens When Someone Has Asthma?","978-1-5345-3247-2",{"$f":"HYPERLINK(Table1[[#This Row],[eCommerce Hyperlink]],\"Book Weblink\")","v":"Book Weblink"},null,"KidHaven Publishing","Library Bound Book",1,"2020","January 2020","Library","8.500 X 11.00","Author","Katie Kawa",null,null,null,null,"R",null,"Grade 4","Grade 3 - 5","An asthma attack can be a frightening thing to experience or to witness, but knowing the facts about asthma can help people prepare themselves as thoroughly as possible. These facts include detailed information about what causes asthma and what can be done to treat it, which readers learn through exploring detailed main text, sidebars, and graphic organizers. Diagrams and full-color photographs help readers visualize the biological processes affected by asthma. Readers discover that people with asthma can still lead active and exciting lives, which helps to erase the stigma surrounding this medical condition.","English",28.25,22.6,"618.92/238--dc23","32 pp.","https://greenhavenpublishing.com/9781534532472",null,{"$f":"Table1[[#This Row],['# of Books]]*Table1[[#This Row],[QTY]]","v":0},{"$f":"Table1[[#This Row],[QTY]]*Table1[[#This Row],[School & Library Price]]","v":0}]
[null,null,null,null,22,"Health & Guidance","The KidHaven Health Library","What Happens When Someone Has Asthma?","978-1-5345-3251-9",{"$f":"HYPERLINK(Table1[[#This Row],[eCommerce Hyperlink]],\"Book Weblink\")","v":"Book Weblink"},null,"KidHaven Publishing","eBook",1,"2020","January 2020",null,null,"Author","Katie Kawa",null,null,null,null,"R",null,"Grade 4","Grade 3 - 5","An asthma attack can be a frightening thing to experience or to witness, but knowing the facts about asthma can help people prepare themselves as thoroughly as possible. These facts include detailed information about what causes asthma and what can be done to treat it, which readers learn through exploring detailed main text, sidebars, and graphic organizers. Diagrams and full-color photographs help readers visualize the biological processes affected by asthma. Readers discover that people with asthma can still lead active and exciting lives, which helps to erase the stigma surrounding this medical condition.","English",28.25,22.6,"618.92/238--dc23","32 pp.","https://greenhavenpublishing.com/9781534532519",null,{"$f":"Table1[[#This Row],['# of Books]]*Table1[[#This Row],[QTY]]","v":0},{"$f":"Table1[[#This Row],[QTY]]*Table1[[#This Row],[School & Library Price]]","v":0}]
[null,null,null,null,22,"Health & Guidance","The KidHaven Health Library","What Happens When Someone Has Autism?","978-1-5345-3248-9",{"$f":"HYPERLINK(Table1[[#This Row],[eCommerce Hyperlink]],\"Book Weblink\")","v":"Book Weblink"},null,"KidHaven Publishing","Library Bound Book",1,"2020","January 2020","Library","8.500 X 11.00","Author","Katie Kawa",null,null,null,null,"R",null,"Grade 4","Grade 3 - 5","Autism doesn't have one simple definition. It covers a spectrum of symptoms, which is why many people now call it autism spectrum disorder, as it affects people in many different ways. Many young people know someone with autism or are personally living with autism spectrum disorder, and they can benefit in important ways from this comprehensive look at life with autism. Presented alongside sidebars, diagrams, graphic organizers, and full-color photographs, the educational and empathetic narrative encourages readers to understand the challenges those with autism face while also looking to the future with hope.","English",28.25,22.6,"616.85'882--dc23","32 pp.","https://greenhavenpublishing.com/9781534532489",null,{"$f":"Table1[[#This Row],['# of Books]]*Table1[[#This Row],[QTY]]","v":0},{"$f":"Table1[[#This Row],[QTY]]*Table1[[#This Row],[School & Library Price]]","v":0}]
[null,null,null,null,22,"Health & Guidance","The KidHaven Health Library","What Happens When Someone Has Autism?","978-1-5345-3250-2",{"$f":"HYPERLINK(Table1[[#This Row],[eCommerce Hyperlink]],\"Book Weblink\")","v":"Book Weblink"},null,"KidHaven Publishing","eBook",1,"2020","January 2020",null,null,"Author","Katie Kawa",null,null,null,null,"R",null,"Grade 4","Grade 3 - 5","Autism doesn't have one simple definition. It covers a spectrum of symptoms, which is why many people now call it autism spectrum disorder, as it affects people in many different ways. Many young people know someone with autism or are personally living with autism spectrum disorder, and they can benefit in important ways from this comprehensive look at life with autism. Presented alongside sidebars, diagrams, graphic organizers, and full-color photographs, the educational and empathetic narrative encourages readers to understand the challenges those with autism face while also looking to the future with hope.","English",28.25,22.6,"616.85'882--dc23","32 pp.","https://greenhavenpublishing.com/9781534532502",null,{"$f":"Table1[[#This Row],['# of Books]]*Table1[[#This Row],[QTY]]","v":0},{"$f":"Table1[[#This Row],[QTY]]*Table1[[#This Row],[School & Library Price]]","v":0}]
[null,null,null,null,22,"Health & Guidance","The KidHaven Health Library","What Happens When Someone Has Depression?","978-1-5345-3243-4",{"$f":"HYPERLINK(Table1[[#This Row],[eCommerce Hyperlink]],\"Book Weblink\")","v":"Book Weblink"},null,"KidHaven Publishing","Library Bound Book",1,"2020","January 2020","Library","8.500 X 11.00","Author","Katie Kawa",null,null,null,null,"R",null,"Grade 4","Grade 3 - 5","Depression affects many people, and it can be confusing and sometimes scary for a young person to see a family member or friend suffering from it, or to find themselves struggling with symptoms of depression. However, knowing the facts about this mental illness can empower them to provide support for others and to take charge of their own health. They discover these facts through age-appropriate text and sidebars that provide scientific information, relatable examples, and advice. Graphic organizers, diagrams, and full-color photographs work with the text to give readers an empathetic and educational overview of this important mental health topic.","English",28.25,22.6,"616.85/27--dc23","32 pp.","https://greenhavenpublishing.com/9781534532434",null,{"$f":"Table1[[#This Row],['# of Books]]*Table1[[#This Row],[QTY]]","v":0},{"$f":"Table1[[#This Row],[QTY]]*Table1[[#This Row],[School & Library Price]]","v":0}]
[null,null,null,null,22,"Health & Guidance","The KidHaven Health Library","What Happens When Someone Has Depression?","978-1-5345-3255-7",{"$f":"HYPERLINK(Table1[[#This Row],[eCommerce Hyperlink]],\"Book Weblink\")","v":"Book Weblink"},null,"KidHaven Publishing","eBook",1,"2020","January 2020",null,null,"Author","Katie Kawa",null,null,null,null,"R",null,"Grade 4","Grade 3 - 5","Depression affects many people, and it can be confusing and sometimes scary for a young person to see a family member or friend suffering from it, or to find themselves struggling with symptoms of depression. However, knowing the facts about this mental illness can empower them to provide support for others and to take charge of their own health. They discover these facts through age-appropriate text and sidebars that provide scientific information, relatable examples, and advice. Graphic organizers, diagrams, and full-color photographs work with the text to give readers an empathetic and educational overview of this important mental health topic.","English",28.25,22.6,"616.85/27--dc23","32 pp.","https://greenhavenpublishing.com/9781534532557",null,{"$f":"Table1[[#This Row],['# of Books]]*Table1[[#This Row],[QTY]]","v":0},{"$f":"Table1[[#This Row],[QTY]]*Table1[[#This Row],[School & Library Price]]","v":0}]
[null,null,null,null,22,"Health & Guidance","Topics to Talk About","Topics to Talk About","978-1-5345-2737-9",{"$f":"HYPERLINK(Table1[[#This Row],[eCommerce Hyperlink]],\"Book Weblink\")","v":"Book Weblink"},null,"KidHaven Publishing","Library Set",6,"2019","August 2018","Library","8.500 X 8.500",null,null,null,null,null,null,null,null,"Grade 2 - 3","Grade 2 - 4","Young readers are exposed to many complex topics in their own lives and the lives of people they know, including losing a family member, dealing with bullying, and coping with a disability. They often have questions about these topics, which they will find answered with sensitivity and care as they explore each volume. Readers also explore different living situations, such as having same-sex parents or stepparents, as well as living with just their mom or just their dad. Relatable text and full-color photographs encourage empathy, and helpful fact boxes provide extra insight into these important topics. Features include: Unique scrapbook-inspired design elements make the topics in these books more personal for young readers. Readers expand their knowledge of contemporary social issues through accessible and age-appropriate text and examples. Each volume is meant to provide an opening for thoughtful discussion.","English",153.6,122.88,null,"24 pp.","https://greenhavenpublishing.com/9781534527379",null,{"$f":"Table1[[#This Row],['# of Books]]*Table1[[#This Row],[QTY]]","v":0},{"$f":"Table1[[#This Row],[QTY]]*Table1[[#This Row],[School & Library Price]]","v":0}]
[null,null,null,null,22,"Health & Guidance","Topics to Talk About","Coping with a Disability","978-1-5345-2667-9",{"$f":"HYPERLINK(Table1[[#This Row],[eCommerce Hyperlink]],\"Book Weblink\")","v":"Book Weblink"},null,"KidHaven Publishing","Library Bound Book",1,"2019","August 2018","Library","8.500 X 8.500","Author","Holly Duhig","3.5","0.5",null,null,"K",null,"Grade 2 - 3","Grade 2 - 4","Coping with a disability impacts life for many people, from the person with the disability to their friends and family. Readers are introduced to the struggles that may come with having a disability and how people with disabilities handle these possible hardships. They also learn it is important to have patience, respect, and compassion toward those with disabilities. The concise main text is enhanced by helpful fact boxes, and vibrant, full-color photographs presented in a scrapbook-style design. Readers who have a disability or who know someone who does will find relatable guidance with each turn of the page.","English",25.6,20.48,"613.087--dc23","24 pp.","https://greenhavenpublishing.com/9781534526679",null,{"$f":"Table1[[#This Row],['# of Books]]*Table1[[#This Row],[QTY]]","v":0},{"$f":"Table1[[#This Row],[QTY]]*Table1[[#This Row],[School & Library Price]]","v":0}]
[null,null,null,null,22,"Health & Guidance","Topics to Talk About","Coping with a Disability","978-1-5345-2670-9",{"$f":"HYPERLINK(Table1[[#This Row],[eCommerce Hyperlink]],\"Book Weblink\")","v":"Book Weblink"},null,"KidHaven Publishing","eBook",1,"2019","August 2018",null,null,"Author","Holly Duhig","3.5","0.5",null,null,"K",null,"Grade 2 - 3","Grade 2 - 4","Coping with a disability impacts life for many people, from the person with the disability to their friends and family. Readers are introduced to the struggles that may come with having a disability and how people with disabilities handle these possible hardships. They also learn it is important to have patience, respect, and compassion toward those with disabilities. The concise main text is enhanced by helpful fact boxes, and vibrant, full-color photographs presented in a scrapbook-style design. Readers who have a disability or who know someone who does will find relatable guidance with each turn of the page.","English",25.6,20.48,"613.087--dc23","24 pp.","https://greenhavenpublishing.com/9781534526709",null,{"$f":"Table1[[#This Row],['# of Books]]*Table1[[#This Row],[QTY]]","v":0},{"$f":"Table1[[#This Row],[QTY]]*Table1[[#This Row],[School & Library Price]]","v":0}]
[null,null,null,null,22,"Health & Guidance","Topics to Talk About","Dealing with Bullying","978-1-5345-2663-1",{"$f":"HYPERLINK(Table1[[#This Row],[eCommerce Hyperlink]],\"Book Weblink\")","v":"Book Weblink"},null,"KidHaven Publishing","Library Bound Book",1,"2019","August 2018","Library","8.500 X 8.500","Author","Holly Duhig","3.5","0.5",null,null,"K",null,"Grade 2 - 3","Grade 2 - 4","What does it feel like to be bullied? If you're being bullied, who can you talk to, and what can you do to make the situation better? Using a relatable, scrapbook-style format, this volume helps readers answer these and other common questions about dealing with bullying. The accessible text sheds light on the dangers of bullying and how these social issues affect everyone involved. Full-color photographs and fact boxes make this text guide readers through this sensitive examination of a difficult struggle that many young readers face.","English",25.6,20.48,"302.34'3--dc23","24 pp.","https://greenhavenpublishing.com/9781534526631",null,{"$f":"Table1[[#This Row],['# of Books]]*Table1[[#This Row],[QTY]]","v":0},{"$f":"Table1[[#This Row],[QTY]]*Table1[[#This Row],[School & Library Price]]","v":0}]
[null,null,null,null,22,"Health & Guidance","Topics to Talk About","Dealing with Bullying","978-1-5345-2666-2",{"$f":"HYPERLINK(Table1[[#This Row],[eCommerce Hyperlink]],\"Book Weblink\")","v":"Book Weblink"},null,"KidHaven Publishing","eBook",1,"2019","August 2018",null,null,"Author","Holly Duhig","3.5","0.5",null,null,"K",null,"Grade 2 - 3","Grade 2 - 4","What does it feel like to be bullied? If you're being bullied, who can you talk to, and what can you do to make the situation better? Using a relatable, scrapbook-style format, this volume helps readers answer these and other common questions about dealing with bullying. The accessible text sheds light on the dangers of bullying and how these social issues affect everyone involved. Full-color photographs and fact boxes make this text guide readers through this sensitive examination of a difficult struggle that many young readers face.","English",25.6,20.48,"302.34'3--dc23","24 pp.","https://greenhavenpublishing.com/9781534526662",null,{"$f":"Table1[[#This Row],['# of Books]]*Table1[[#This Row],[QTY]]","v":0},{"$f":"Table1[[#This Row],[QTY]]*Table1[[#This Row],[School & Library Price]]","v":0}]
[null,null,null,null,22,"Health & Guidance","Topics to Talk About","Living with Mom, Living with Dad","978-1-5345-2651-8",{"$f":"HYPERLINK(Table1[[#This Row],[eCommerce Hyperlink]],\"Book Weblink\")","v":"Book Weblink"},null,"KidHaven Publishing","Library Bound Book",1,"2019","August 2018","Library","8.500 X 8.500","Author","Holly Duhig","3.3","0.5",null,null,"K",null,"Grade 2 - 3","Grade 2 - 4","Through accessible and relatable text, readers are exposed to what it's like to live with a single parent. Topics such as single parenting, separation, and divorce must be handled with care, and this volume addresses these issues with sensitivity and compassion. Readers expand their knowledge of social issues and are made aware of how to handle possible changes in a family dynamic. Full-color photographs, scrapbook-inspired design elements, and fact boxes provide extra insight into this topic. For readers looking for advice on living with a single parent or looking to better understand different family situations, this is an essential volume.","English",25.6,20.48,"306.89--dc23","24 pp.","https://greenhavenpublishing.com/9781534526518",null,{"$f":"Table1[[#This Row],['# of Books]]*Table1[[#This Row],[QTY]]","v":0},{"$f":"Table1[[#This Row],[QTY]]*Table1[[#This Row],[School & Library Price]]","v":0}]
[null,null,null,null,22,"Health & Guidance","Topics to Talk About","Living with Mom, Living with Dad","978-1-5345-2654-9",{"$f":"HYPERLINK(Table1[[#This Row],[eCommerce Hyperlink]],\"Book Weblink\")","v":"Book Weblink"},null,"KidHaven Publishing","eBook",1,"2019","August 2018",null,null,"Author","Holly Duhig","3.3","0.5",null,null,"K",null,"Grade 2 - 3","Grade 2 - 4","Through accessible and relatable text, readers are exposed to what it's like to live with a single parent. Topics such as single parenting, separation, and divorce must be handled with care, and this volume addresses these issues with sensitivity and compassion. Readers expand their knowledge of social issues and are made aware of how to handle possible changes in a family dynamic. Full-color photographs, scrapbook-inspired design elements, and fact boxes provide extra insight into this topic. For readers looking for advice on living with a single parent or looking to better understand different family situations, this is an essential volume.","English",25.6,20.48,"306.89--dc23","24 pp.","https://greenhavenpublishing.com/9781534526549",null,{"$f":"Table1[[#This Row],['# of Books]]*Table1[[#This Row],[QTY]]","v":0},{"$f":"Table1[[#This Row],[QTY]]*Table1[[#This Row],[School & Library Price]]","v":0}]
[null,null,null,null,22,"Health & Guidance","Topics to Talk About","Losing a Family Member","978-1-5345-2647-1",{"$f":"HYPERLINK(Table1[[#This Row],[eCommerce Hyperlink]],\"Book Weblink\")","v":"Book Weblink"},null,"KidHaven Publishing","Library Bound Book",1,"2019","August 2018","Library","8.500 X 8.500","Author","Holly Duhig","3.2","0.5",null,null,"K",null,"Grade 2 - 3","Grade 2 - 4","Young readers are introduced to the important and sensitive topic of losing a family member in this age-appropriate and accessible book. The struggles of dealing with a loved one's death, including the grieving process and the difficult questions asked during it, are addressed within this relatable narrative. The carefully crafted text inspires thoughtful discussion about life, death, and grief. Helpful fact boxes, vibrant, full-color photographs, and scrapbook-inspired design elements guide readers through this important resource for young people working through their own grief or looking to help a friend who is dealing with loss.","English",25.6,20.48,"155.9'37083--dc23","24 pp.","https://greenhavenpublishing.com/9781534526471",null,{"$f":"Table1[[#This Row],['# of Books]]*Table1[[#This Row],[QTY]]","v":0},{"$f":"Table1[[#This Row],[QTY]]*Table1[[#This Row],[School & Library Price]]","v":0}]
[null,null,null,null,22,"Health & Guidance","Topics to Talk About","Losing a Family Member","978-1-5345-2650-1",{"$f":"HYPERLINK(Table1[[#This Row],[eCommerce Hyperlink]],\"Book Weblink\")","v":"Book Weblink"},null,"KidHaven Publishing","eBook",1,"2019","August 2018",null,null,"Author","Holly Duhig","3.2","0.5",null,null,"K",null,"Grade 2 - 3","Grade 2 - 4","Young readers are introduced to the important and sensitive topic of losing a family member in this age-appropriate and accessible book. The struggles of dealing with a loved one's death, including the grieving process and the difficult questions asked during it, are addressed within this relatable narrative. The carefully crafted text inspires thoughtful discussion about life, death, and grief. Helpful fact boxes, vibrant, full-color photographs, and scrapbook-inspired design elements guide readers through this important resource for young people working through their own grief or looking to help a friend who is dealing with loss.","English",25.6,20.48,"155.9'37083--dc23","24 pp.","https://greenhavenpublishing.com/9781534526501",null,{"$f":"Table1[[#This Row],['# of Books]]*Table1[[#This Row],[QTY]]","v":0},{"$f":"Table1[[#This Row],[QTY]]*Table1[[#This Row],[School & Library Price]]","v":0}]
[null,null,null,null,22,"Health & Guidance","Topics to Talk About","Same-Sex Parents","978-1-5345-2655-6",{"$f":"HYPERLINK(Table1[[#This Row],[eCommerce Hyperlink]],\"Book Weblink\")","v":"Book Weblink"},null,"KidHaven Publishing","Library Bound Book",1,"2019","August 2018","Library","8.500 X 8.500","Author","Holly Duhig","2.9","0.5",null,null,"K",null,"Grade 2 - 3","Grade 2 - 4","The experience of having same-sex parents is highlighted in this age-appropriate book. Readers will be exposed to what it's like to live with either two moms or two dads, and readers who live with same-sex parents will enjoy seeing a relatable narrative about their family dynamic. This inside look at the loving families anchored by same-sex parents gives young readers the understanding needed to fight intolerant attitudes. This sensitive and important subject is further explained throughout the text's supplemental material, which includes useful fact boxes, a detailed glossary, and charming, full-color photographs presented in a creative scrapbook-style design.","English",25.6,20.48,"306.874086'64--dc23","24 pp.","https://greenhavenpublishing.com/9781534526556",null,{"$f":"Table1[[#This Row],['# of Books]]*Table1[[#This Row],[QTY]]","v":0},{"$f":"Table1[[#This Row],[QTY]]*Table1[[#This Row],[School & Library Price]]","v":0}]
[null,null,null,null,22,"Health & Guidance","Topics to Talk About","Same-Sex Parents","978-1-5345-2658-7",{"$f":"HYPERLINK(Table1[[#This Row],[eCommerce Hyperlink]],\"Book Weblink\")","v":"Book Weblink"},null,"KidHaven Publishing","eBook",1,"2019","August 2018",null,null,"Author","Holly Duhig","2.9","0.5",null,null,"K",null,"Grade 2 - 3","Grade 2 - 4","The experience of having same-sex parents is highlighted in this age-appropriate book. Readers will be exposed to what it's like to live with either two moms or two dads, and readers who live with same-sex parents will enjoy seeing a relatable narrative about their family dynamic. This inside look at the loving families anchored by same-sex parents gives young readers the understanding needed to fight intolerant attitudes. This sensitive and important subject is further explained throughout the text's supplemental material, which includes useful fact boxes, a detailed glossary, and charming, full-color photographs presented in a creative scrapbook-style design.","English",25.6,20.48,"306.874086'64--dc23","24 pp.","https://greenhavenpublishing.com/9781534526587",null,{"$f":"Table1[[#This Row],['# of Books]]*Table1[[#This Row],[QTY]]","v":0},{"$f":"Table1[[#This Row],[QTY]]*Table1[[#This Row],[School & Library Price]]","v":0}]
[null,null,null,null,22,"Health & Guidance","Topics to Talk About","Stepparents","978-1-5345-2659-4",{"$f":"HYPERLINK(Table1[[#This Row],[eCommerce Hyperlink]],\"Book Weblink\")","v":"Book Weblink"},null,"KidHaven Publishing","Library Bound Book",1,"2019","August 2018","Library","8.500 X 8.500","Author","Holly Duhig","3.2","0.5",null,null,"K",null,"Grade 2 - 3","Grade 2 - 4","When parents get divorced or lose a spouse, eventually, they may get remarried, and the people they marry can become stepparents. Young readers learn about how to accept a new person who comes into their life after another parent's departure in this simple and compassionate text. This volume touches on all the changes that may occur in a child's life during the transitional period of welcoming a stepparent and approaches it with sensitivity and care. This important subject is enhanced through an age-appropriate glossary, helpful fact boxes, scrapbook-inspired design elements, and vibrant, full-color photographs.","English",25.6,20.48,"306.874'7--dc23","24 pp.","https://greenhavenpublishing.com/9781534526594",null,{"$f":"Table1[[#This Row],['# of Books]]*Table1[[#This Row],[QTY]]","v":0},{"$f":"Table1[[#This Row],[QTY]]*Table1[[#This Row],[School & Library Price]]","v":0}]
[null,null,null,null,22,"Health & Guidance","Topics to Talk About","Stepparents","978-1-5345-2662-4",{"$f":"HYPERLINK(Table1[[#This Row],[eCommerce Hyperlink]],\"Book Weblink\")","v":"Book Weblink"},null,"KidHaven Publishing","eBook",1,"2019","August 2018",null,null,"Author","Holly Duhig","3.2","0.5",null,null,"K",null,"Grade 2 - 3","Grade 2 - 4","When parents get divorced or lose a spouse, eventually, they may get remarried, and the people they marry can become stepparents. Young readers learn about how to accept a new person who comes into their life after another parent's departure in this simple and compassionate text. This volume touches on all the changes that may occur in a child's life during the transitional period of welcoming a stepparent and approaches it with sensitivity and care. This important subject is enhanced through an age-appropriate glossary, helpful fact boxes, scrapbook-inspired design elements, and vibrant, full-color photographs.","English",25.6,20.48,"306.874'7--dc23","24 pp.","https://greenhavenpublishing.com/9781534526624",null,{"$f":"Table1[[#This Row],['# of Books]]*Table1[[#This Row],[QTY]]","v":0},{"$f":"Table1[[#This Row],[QTY]]*Table1[[#This Row],[School & Library Price]]","v":0}]
[null,null,null,null,22,"Health & Guidance","Under Your Skin","Under Your Skin","978-1-5345-3605-0",{"$f":"HYPERLINK(Table1[[#This Row],[eCommerce Hyperlink]],\"Book Weblink\")","v":"Book Weblink"},null,"KidHaven Publishing","Library Set",4,"2021","August 2020","Library","8.500 X 11.00",null,null,null,null,null,null,null,null,"Grade 4 - 5","Grade 4 - 6","The human body has so much going on beneath the surface, from the circulation of blood and oxygen to the muscles and bones that allow us to move. Through accessible narratives, readers follow along with helpful cartoon guides as they learn about what is under our skin. Helpful diagrams display science curriculum concepts in a vibrant visual manner. Informative fact boxes, detailed glossaries, eye-catching illustrations, and full-color photographs enhance the learning experience. This set will get under readers' skin in a way they'll never forget. Features include: Charming illustrated characters that guide readers through the body, placing readers in the middle of the microscopic action. Simple and conversational language is balanced with important biology terminology. Colorful and creative design elements capture readers' attention and make learning about biology fun.","English",113,90.4,null,"32 pp.","https://greenhavenpublishing.com/9781534536050",null,{"$f":"Table1[[#This Row],['# of Books]]*Table1[[#This Row],[QTY]]","v":0},{"$f":"Table1[[#This Row],[QTY]]*Table1[[#This Row],[School & Library Price]]","v":0}]
[null,null,null,null,22,"Health & Guidance","Under Your Skin","Cells","978-1-5345-3586-2",{"$f":"HYPERLINK(Table1[[#This Row],[eCommerce Hyperlink]],\"Book Weblink\")","v":"Book Weblink"},null,"KidHaven Publishing","Library Bound Book",1,"2021","August 2020","Library","8.500 X 11.00","Author","John Wood",null,null,null,null,"T",null,"Grade 4 - 5","Grade 4 - 6","How many cells are in the human body? Questions like this are answered in this engaging look at cells. Readers learn that they are the building blocks of the human body. They'll go on an adventure with Dr. Seymour Skinless, who travels under the skin to investigate how our bodies work. Dr. Seymour Skinless explains how cells function, the structure of cells, and many useful facts on this essential science curriculum topic. Stimulating fact boxes, a thorough glossary, eye-catching illustrations and diagrams, and full-color photographs add to this exciting trip inside the human body.","English",28.25,22.6,"571.6--dc23","32 pp.","https://greenhavenpublishing.com/9781534535862",null,{"$f":"Table1[[#This Row],['# of Books]]*Table1[[#This Row],[QTY]]","v":0},{"$f":"Table1[[#This Row],[QTY]]*Table1[[#This Row],[School & Library Price]]","v":0}]
[null,null,null,null,22,"Health & Guidance","Under Your Skin","Cells","978-1-5345-3587-9",{"$f":"HYPERLINK(Table1[[#This Row],[eCommerce Hyperlink]],\"Book Weblink\")","v":"Book Weblink"},null,"KidHaven Publishing","eBook",1,"2021","August 2020",null,null,"Author","John Wood",null,null,null,null,"T",null,"Grade 4 - 5","Grade 4 - 6","How many cells are in the human body? Questions like this are answered in this engaging look at cells. Readers learn that they are the building blocks of the human body. They'll go on an adventure with Dr. Seymour Skinless, who travels under the skin to investigate how our bodies work. Dr. Seymour Skinless explains how cells function, the structure of cells, and many useful facts on this essential science curriculum topic. Stimulating fact boxes, a thorough glossary, eye-catching illustrations and diagrams, and full-color photographs add to this exciting trip inside the human body.","English",28.25,22.6,"571.6--dc23","32 pp.","https://greenhavenpublishing.com/9781534535879",null,{"$f":"Table1[[#This Row],['# of Books]]*Table1[[#This Row],[QTY]]","v":0},{"$f":"Table1[[#This Row],[QTY]]*Table1[[#This Row],[School & Library Price]]","v":0}]
[null,null,null,null,22,"Health & Guidance","Under Your Skin","Circulation","978-1-5345-3590-9",{"$f":"HYPERLINK(Table1[[#This Row],[eCommerce Hyperlink]],\"Book Weblink\")","v":"Book Weblink"},null,"KidHaven Publishing","Library Bound Book",1,"2021","August 2020","Library","8.500 X 11.00","Author","John Wood",null,null,null,null,"T",null,"Grade 4 - 5","Grade 4 - 6","Readers go on a journey through the human body with Dr. Seymour Skinless as he goes under the skin to investigate the circulatory system. Adventurous readers learn about how blood is pumped throughout the body, how the heart beats, and other interesting facts about how the human body works. Simplified language throughout makes this complex science curriculum topic easier to understand. A detailed glossary, useful fact boxes, helpful diagrams, fun illustrations, and full-color photographs provide further information about the circulatory system.","English",28.25,22.6,"612.1'1--dc23","32 pp.","https://greenhavenpublishing.com/9781534535909",null,{"$f":"Table1[[#This Row],['# of Books]]*Table1[[#This Row],[QTY]]","v":0},{"$f":"Table1[[#This Row],[QTY]]*Table1[[#This Row],[School & Library Price]]","v":0}]
[null,null,null,null,22,"Health & Guidance","Under Your Skin","Circulation","978-1-5345-3591-6",{"$f":"HYPERLINK(Table1[[#This Row],[eCommerce Hyperlink]],\"Book Weblink\")","v":"Book Weblink"},null,"KidHaven Publishing","eBook",1,"2021","August 2020",null,null,"Author","John Wood",null,null,null,null,"T",null,"Grade 4 - 5","Grade 4 - 6","Readers go on a journey through the human body with Dr. Seymour Skinless as he goes under the skin to investigate the circulatory system. Adventurous readers learn about how blood is pumped throughout the body, how the heart beats, and other interesting facts about how the human body works. Simplified language throughout makes this complex science curriculum topic easier to understand. A detailed glossary, useful fact boxes, helpful diagrams, fun illustrations, and full-color photographs provide further information about the circulatory system.","English",28.25,22.6,"612.1'1--dc23","32 pp.","https://greenhavenpublishing.com/9781534535916",null,{"$f":"Table1[[#This Row],['# of Books]]*Table1[[#This Row],[QTY]]","v":0},{"$f":"Table1[[#This Row],[QTY]]*Table1[[#This Row],[School & Library Price]]","v":0}]
[null,null,null,null,22,"Health & Guidance","Under Your Skin","Muscles","978-1-5345-3594-7",{"$f":"HYPERLINK(Table1[[#This Row],[eCommerce Hyperlink]],\"Book Weblink\")","v":"Book Weblink"},null,"KidHaven Publishing","Library Bound Book",1,"2021","August 2020","Library","8.500 X 11.00","Author","John Wood",null,null,null,null,"T",null,"Grade 4 - 5","Grade 4 - 6","There are three different kinds of muscles that all help our bodies function. They are the skeletal muscles, smooth muscles, and cardiac muscles. Within this fun and fact-filled volume, readers learn about each kind of muscle, how it works, and where muscles are located in the body. The engaging narrative presents this essential science curriculum topic in an easy-to-understand and entertaining way as Dr. Seymour Skinless takes readers under the skin to venture through the muscular system. Additional features include informative fact boxes and diagrams, a detailed glossary, charming illustrations, and vibrant, full-color photographs of the muscular system in action.","English",28.25,22.6,"612.7'4--dc23","32 pp.","https://greenhavenpublishing.com/9781534535947",null,{"$f":"Table1[[#This Row],['# of Books]]*Table1[[#This Row],[QTY]]","v":0},{"$f":"Table1[[#This Row],[QTY]]*Table1[[#This Row],[School & Library Price]]","v":0}]
[null,null,null,null,22,"Health & Guidance","Under Your Skin","Muscles","978-1-5345-3595-4",{"$f":"HYPERLINK(Table1[[#This Row],[eCommerce Hyperlink]],\"Book Weblink\")","v":"Book Weblink"},null,"KidHaven Publishing","eBook",1,"2021","August 2020",null,null,"Author","John Wood",null,null,null,null,"T",null,"Grade 4 - 5","Grade 4 - 6","There are three different kinds of muscles that all help our bodies function. They are the skeletal muscles, smooth muscles, and cardiac muscles. Within this fun and fact-filled volume, readers learn about each kind of muscle, how it works, and where muscles are located in the body. The engaging narrative presents this essential science curriculum topic in an easy-to-understand and entertaining way as Dr. Seymour Skinless takes readers under the skin to venture through the muscular system. Additional features include informative fact boxes and diagrams, a detailed glossary, charming illustrations, and vibrant, full-color photographs of the muscular system in action.","English",28.25,22.6,"612.7'4--dc23","32 pp.","https://greenhavenpublishing.com/9781534535954",null,{"$f":"Table1[[#This Row],['# of Books]]*Table1[[#This Row],[QTY]]","v":0},{"$f":"Table1[[#This Row],[QTY]]*Table1[[#This Row],[School & Library Price]]","v":0}]
[null,null,null,null,22,"Health & Guidance","Under Your Skin","The Skeleton","978-1-5345-3598-5",{"$f":"HYPERLINK(Table1[[#This Row],[eCommerce Hyperlink]],\"Book Weblink\")","v":"Book Weblink"},null,"KidHaven Publishing","Library Bound Book",1,"2021","August 2020","Library","8.500 X 11.00","Author, Author","John Wood, Harriet Brundle",null,null,null,null,"T",null,"Grade 4 - 5","Grade 4 - 6","Dr. Seymour Skinless takes readers on an adventure under the skin in this exciting look at the skeletal system. Through comprehensive main text, readers are presented with interesting facts on the different types of bones in our bodies, what bones are made of, and how they help us to move. Additional information is relayed through eye-catching fact boxes, a thorough glossary full of helpful terms, and detailed diagrams. Charming illustrations and vivid, full-color photographs add an exciting visual component to this introduction on a basic science curriculum topic.","English",28.25,22.6,"612.7'51--dc23","32 pp.","https://greenhavenpublishing.com/9781534535985",null,{"$f":"Table1[[#This Row],['# of Books]]*Table1[[#This Row],[QTY]]","v":0},{"$f":"Table1[[#This Row],[QTY]]*Table1[[#This Row],[School & Library Price]]","v":0}]
[null,null,null,null,22,"Health & Guidance","Under Your Skin","The Skeleton","978-1-5345-3599-2",{"$f":"HYPERLINK(Table1[[#This Row],[eCommerce Hyperlink]],\"Book Weblink\")","v":"Book Weblink"},null,"KidHaven Publishing","eBook",1,"2021","August 2020",null,null,"Author, Author","John Wood, Harriet Brundle",null,null,null,null,"T",null,"Grade 4 - 5","Grade 4 - 6","Dr. Seymour Skinless takes readers on an adventure under the skin in this exciting look at the skeletal system. Through comprehensive main text, readers are presented with interesting facts on the different types of bones in our bodies, what bones are made of, and how they help us to move. Additional information is relayed through eye-catching fact boxes, a thorough glossary full of helpful terms, and detailed diagrams. Charming illustrations and vivid, full-color photographs add an exciting visual component to this introduction on a basic science curriculum topic.","English",28.25,22.6,"612.7'51--dc23","32 pp.","https://greenhavenpublishing.com/9781534535992",null,{"$f":"Table1[[#This Row],['# of Books]]*Table1[[#This Row],[QTY]]","v":0},{"$f":"Table1[[#This Row],[QTY]]*Table1[[#This Row],[School & Library Price]]","v":0}]
[null,null,null,18,23,"Math","First Math","First Math: Sets 1 – 2","978-1-5345-3906-8",{"$f":"HYPERLINK(Table1[[#This Row],[eCommerce Hyperlink]],\"Book Weblink\")","v":"Book Weblink"},null,"KidHaven Publishing","Library Set",8,"2022","August 2021","Library","11.00 X 8.500",null,null,null,null,null,null,null,null,"Grade K","Grade Pre-K - 1","Early math concepts such as counting, shapes, measuring, adding, and subtracting are important for young readers to understand. They can also be fun to learn! These charming and colorful volumes explain basic beginner math topics in a way that feels fresh and relatable for early learners. Through the use of clear examples, concise text, and full-color photographs, readers gain a deeper understanding of all the ways math can be used in the world around them. This exciting exploration of important curriculum topics fosters a lifelong love of learning about numbers.\n","English",204.8,163.84,null,"24 pp.","https://greenhavenpublishing.com/9781534539068",null,{"$f":"Table1[[#This Row],['# of Books]]*Table1[[#This Row],[QTY]]","v":0},{"$f":"Table1[[#This Row],[QTY]]*Table1[[#This Row],[School & Library Price]]","v":0}]
[null,null,null,19,23,"Math","First Math","Counting","978-1-5345-2189-6",{"$f":"HYPERLINK(Table1[[#This Row],[eCommerce Hyperlink]],\"Book Weblink\")","v":"Book Weblink"},null,"KidHaven Publishing","Library Bound Book",1,"2018","August 2017","Library","11.00 X 8.500","Author","Joanna Brundle",null,null,null,null,"A","NP","Grade K","Grade Pre-K - 1","Counting is an important beginning math skill for early learners to master. Through simple, clear text, they are introduced to this basic concept and given the tools they need to practice it. Colorful photographs of things young readers are familiar with help them see how this essential skill can be applied in the world around them. Beginning readers will enjoy exploring this counting lesson on their own or with the help of an adult.","English",25.6,20.48,"513.2’1--dc23","24 pp.","https://greenhavenpublishing.com/9781534521896",null,{"$f":"Table1[[#This Row],['# of Books]]*Table1[[#This Row],[QTY]]","v":0},{"$f":"Table1[[#This Row],[QTY]]*Table1[[#This Row],[School & Library Price]]","v":0}]
[null,null,null,19,23,"Math","First Math","Counting","978-1-5345-2185-8",{"$f":"HYPERLINK(Table1[[#This Row],[eCommerce Hyperlink]],\"Book Weblink\")","v":"Book Weblink"},null,"KidHaven Publishing","eBook",1,"2018","August 2017",null,null,"Author","Joanna Brundle",null,null,null,null,"A","NP","Grade K","Grade Pre-K - 1","Counting is an important beginning math skill for early learners to master. Through simple, clear text, they are introduced to this basic concept and given the tools they need to practice it. Colorful photographs of things young readers are familiar with help them see how this essential skill can be applied in the world around them. Beginning readers will enjoy exploring this counting lesson on their own or with the help of an adult.","English",25.6,20.48,"513.2’1--dc23","24 pp.","https://greenhavenpublishing.com/9781534521858",null,{"$f":"Table1[[#This Row],['# of Books]]*Table1[[#This Row],[QTY]]","v":0},{"$f":"Table1[[#This Row],[QTY]]*Table1[[#This Row],[School & Library Price]]","v":0}]
[null,null,null,19,23,"Math","First Math","Measuring","978-1-5345-2191-9",{"$f":"HYPERLINK(Table1[[#This Row],[eCommerce Hyperlink]],\"Book Weblink\")","v":"Book Weblink"},null,"KidHaven Publishing","Library Bound Book",1,"2018","August 2017","Library","11.00 X 8.500","Author","Joanna Brundle",null,null,null,null,"A","520L","Grade K","Grade Pre-K - 1","Measuring is a challenging math skill, but it is also an important one. Early learners are introduced to basic measurement concepts that they can explore on their own or with an adult. Simple, clear text explains different units of measurement, supporting essential math curriculum topics. Familiar examples presented with full-color photographs help readers understand how to apply what they have learned in the world around them. Young readers will become measuring masters in no time thanks to these engaging and relatable examples.","English",25.6,20.48,"530.8--dc23","24 pp.","https://greenhavenpublishing.com/9781534521919",null,{"$f":"Table1[[#This Row],['# of Books]]*Table1[[#This Row],[QTY]]","v":0},{"$f":"Table1[[#This Row],[QTY]]*Table1[[#This Row],[School & Library Price]]","v":0}]
[null,null,null,19,23,"Math","First Math","Measuring","978-1-5345-2187-2",{"$f":"HYPERLINK(Table1[[#This Row],[eCommerce Hyperlink]],\"Book Weblink\")","v":"Book Weblink"},null,"KidHaven Publishing","eBook",1,"2018","August 2017",null,null,"Author","Joanna Brundle",null,null,null,null,"A","520L","Grade K","Grade Pre-K - 1","Measuring is a challenging math skill, but it is also an important one. Early learners are introduced to basic measurement concepts that they can explore on their own or with an adult. Simple, clear text explains different units of measurement, supporting essential math curriculum topics. Familiar examples presented with full-color photographs help readers understand how to apply what they have learned in the world around them. Young readers will become measuring masters in no time thanks to these engaging and relatable examples.","English",25.6,20.48,"530.8--dc23","24 pp.","https://greenhavenpublishing.com/9781534521872",null,{"$f":"Table1[[#This Row],['# of Books]]*Table1[[#This Row],[QTY]]","v":0},{"$f":"Table1[[#This Row],[QTY]]*Table1[[#This Row],[School & Library Price]]","v":0}]
[null,null,null,19,23,"Math","First Math","Patterns","978-1-5345-2192-6",{"$f":"HYPERLINK(Table1[[#This Row],[eCommerce Hyperlink]],\"Book Weblink\")","v":"Book Weblink"},null,"KidHaven Publishing","Library Bound Book",1,"2018","August 2017","Library","11.00 X 8.500","Author","Joanna Brundle",null,null,null,null,"A","440L","Grade K","Grade Pre-K - 1","What comes next? This is a common question when dealing with patterns, and readers learn how to find out the answer as they explore fresh and fun examples of patterns. Age-appropriate text is presented in a simple way, allowing early learners to discover this essential information independently or with an adult’s assistance. Vibrant photographs fill each page, making this common math curriculum topic enjoyable for young readers. With each turn of the page and each colorful and creative pattern, early learners will discover that math can be engaging and fun.","English",25.6,20.48,"516.15--dc23","24 pp.","https://greenhavenpublishing.com/9781534521926",null,{"$f":"Table1[[#This Row],['# of Books]]*Table1[[#This Row],[QTY]]","v":0},{"$f":"Table1[[#This Row],[QTY]]*Table1[[#This Row],[School & Library Price]]","v":0}]
[null,null,null,19,23,"Math","First Math","Patterns","978-1-5345-2188-9",{"$f":"HYPERLINK(Table1[[#This Row],[eCommerce Hyperlink]],\"Book Weblink\")","v":"Book Weblink"},null,"KidHaven Publishing","eBook",1,"2018","August 2017",null,null,"Author","Joanna Brundle",null,null,null,null,"A","440L","Grade K","Grade Pre-K - 1","What comes next? This is a common question when dealing with patterns, and readers learn how to find out the answer as they explore fresh and fun examples of patterns. Age-appropriate text is presented in a simple way, allowing early learners to discover this essential information independently or with an adult’s assistance. Vibrant photographs fill each page, making this common math curriculum topic enjoyable for young readers. With each turn of the page and each colorful and creative pattern, early learners will discover that math can be engaging and fun.","English",25.6,20.48,"516.15--dc23","24 pp.","https://greenhavenpublishing.com/9781534521889",null,{"$f":"Table1[[#This Row],['# of Books]]*Table1[[#This Row],[QTY]]","v":0},{"$f":"Table1[[#This Row],[QTY]]*Table1[[#This Row],[School & Library Price]]","v":0}]
[null,null,null,19,23,"Math","First Math","Shapes","978-1-5345-2190-2",{"$f":"HYPERLINK(Table1[[#This Row],[eCommerce Hyperlink]],\"Book Weblink\")","v":"Book Weblink"},null,"KidHaven Publishing","Library Bound Book",1,"2018","August 2017","Library","11.00 X 8.500","Author","Joanna Brundle",null,null,null,null,"A","350L","Grade K","Grade Pre-K - 1","Geometry is an essential math concept, and it is important for early learners to develop an understanding of it from a young age. Through age-appropriate and achievable text, young readers are introduced to basic shapes and familiar real-world examples of those shapes. Early learners can explore this text independently or with the help of an adult. They will also be captivated by the vibrant, full-color photographs they will find with each turn of the page.","English",25.6,20.48,"516.15--dc23","24 pp.","https://greenhavenpublishing.com/9781534521902",null,{"$f":"Table1[[#This Row],['# of Books]]*Table1[[#This Row],[QTY]]","v":0},{"$f":"Table1[[#This Row],[QTY]]*Table1[[#This Row],[School & Library Price]]","v":0}]
[null,null,null,19,23,"Math","First Math","Shapes","978-1-5345-2186-5",{"$f":"HYPERLINK(Table1[[#This Row],[eCommerce Hyperlink]],\"Book Weblink\")","v":"Book Weblink"},null,"KidHaven Publishing","eBook",1,"2018","August 2017",null,null,"Author","Joanna Brundle",null,null,null,null,"A","350L","Grade K","Grade Pre-K - 1","Geometry is an essential math concept, and it is important for early learners to develop an understanding of it from a young age. Through age-appropriate and achievable text, young readers are introduced to basic shapes and familiar real-world examples of those shapes. Early learners can explore this text independently or with the help of an adult. They will also be captivated by the vibrant, full-color photographs they will find with each turn of the page.","English",25.6,20.48,"516.15--dc23","24 pp.","https://greenhavenpublishing.com/9781534521865",null,{"$f":"Table1[[#This Row],['# of Books]]*Table1[[#This Row],[QTY]]","v":0},{"$f":"Table1[[#This Row],[QTY]]*Table1[[#This Row],[School & Library Price]]","v":0}]
[null,null,null,18,23,"Math","First Math","Adding","978-1-5345-3886-3",{"$f":"HYPERLINK(Table1[[#This Row],[eCommerce Hyperlink]],\"Book Weblink\")","v":"Book Weblink"},null,"KidHaven Publishing","Library Bound Book",1,"2022","August 2021","Library","11.00 X 8.500","Author","Brenda McHale",null,null,null,null,"B",null,"Grade K","Grade Pre-K - 1","Adding is something people do every day at school, at work, at the store, and at home. Relatable examples of adding are presented to young readers through accessible text that gets kids excited to learn about math. As readers explore the simple and clear text, they find themselves solving beginner addition problems independently. This helpful supplement to basic math curricula contains easy-to-follow questions that provide a fun interactive element. Featuring full-color photographs and a vibrant design, this essential introduction to adding shows readers how to have fun with math.","English",25.6,20.48,"513.2’11--dc23","24 pp.","https://greenhavenpublishing.com/9781534538863",null,{"$f":"Table1[[#This Row],['# of Books]]*Table1[[#This Row],[QTY]]","v":0},{"$f":"Table1[[#This Row],[QTY]]*Table1[[#This Row],[School & Library Price]]","v":0}]
[null,null,null,18,23,"Math","First Math","Adding","978-1-5345-3887-0",{"$f":"HYPERLINK(Table1[[#This Row],[eCommerce Hyperlink]],\"Book Weblink\")","v":"Book Weblink"},null,"KidHaven Publishing","eBook",1,"2022","August 2021",null,null,"Author","Brenda McHale",null,null,null,null,"B",null,"Grade K","Grade Pre-K - 1","Adding is something people do every day at school, at work, at the store, and at home. Relatable examples of adding are presented to young readers through accessible text that gets kids excited to learn about math. As readers explore the simple and clear text, they find themselves solving beginner addition problems independently. This helpful supplement to basic math curricula contains easy-to-follow questions that provide a fun interactive element. Featuring full-color photographs and a vibrant design, this essential introduction to adding shows readers how to have fun with math.","English",25.6,20.48,"513.2’11--dc23","24 pp.","https://greenhavenpublishing.com/9781534538870",null,{"$f":"Table1[[#This Row],['# of Books]]*Table1[[#This Row],[QTY]]","v":0},{"$f":"Table1[[#This Row],[QTY]]*Table1[[#This Row],[School & Library Price]]","v":0}]
[null,null,null,18,23,"Math","First Math","Same and Different","978-1-5345-3890-0",{"$f":"HYPERLINK(Table1[[#This Row],[eCommerce Hyperlink]],\"Book Weblink\")","v":"Book Weblink"},null,"KidHaven Publishing","Library Bound Book",1,"2022","August 2021","Library","11.00 X 8.500","Author","Brenda McHale",null,null,null,null,"B",null,"Grade K","Grade Pre-K - 1","Finding similarities and differences is an important early math skill to master. It is a building block for understanding more complex concepts such as patterns and shapes, and readers are given a helpful introduction to this topic through clear and concise text that provides relatable examples of objects that are the same and those that are different. Early learners are guided in this enjoyable math journey by interactive questions that challenge them to test their skills and full-color photographs that illustrate this concept in a concrete way.","English",25.6,20.48,"516’.15--dc23","24 pp.","https://greenhavenpublishing.com/9781534538900",null,{"$f":"Table1[[#This Row],['# of Books]]*Table1[[#This Row],[QTY]]","v":0},{"$f":"Table1[[#This Row],[QTY]]*Table1[[#This Row],[School & Library Price]]","v":0}]
[null,null,null,18,23,"Math","First Math","Same and Different","978-1-5345-3891-7",{"$f":"HYPERLINK(Table1[[#This Row],[eCommerce Hyperlink]],\"Book Weblink\")","v":"Book Weblink"},null,"KidHaven Publishing","eBook",1,"2022","August 2021",null,null,"Author","Brenda McHale",null,null,null,null,"B",null,"Grade K","Grade Pre-K - 1","Finding similarities and differences is an important early math skill to master. It is a building block for understanding more complex concepts such as patterns and shapes, and readers are given a helpful introduction to this topic through clear and concise text that provides relatable examples of objects that are the same and those that are different. Early learners are guided in this enjoyable math journey by interactive questions that challenge them to test their skills and full-color photographs that illustrate this concept in a concrete way.","English",25.6,20.48,"516’.15--dc23","24 pp.","https://greenhavenpublishing.com/9781534538917",null,{"$f":"Table1[[#This Row],['# of Books]]*Table1[[#This Row],[QTY]]","v":0},{"$f":"Table1[[#This Row],[QTY]]*Table1[[#This Row],[School & Library Price]]","v":0}]
[null,null,null,18,23,"Math","First Math","Subtracting","978-1-5345-3894-8",{"$f":"HYPERLINK(Table1[[#This Row],[eCommerce Hyperlink]],\"Book Weblink\")","v":"Book Weblink"},null,"KidHaven Publishing","Library Bound Book",1,"2022","August 2021","Library","11.00 X 8.500","Author","Brenda McHale",null,null,null,null,"B",null,"Grade K","Grade Pre-K - 1","Subtraction can be a challenging concept for young readers to master, but through the use of relatable problems, clear text, and helpful visual examples, early learners are given the tools to become subtracting superstars. The conversational tone and vibrant design make this common math curriculum topic feel less intimidating, and the full-color photographs that fill the pages help visual learners better understand subtraction. Age-appropriate subtraction questions are presented to help readers independently practice their skills, and everyday examples allow readers to apply what they’ve learned about subtraction to their own lives.","English",25.6,20.48,"513.2’12--dc23","24 pp.","https://greenhavenpublishing.com/9781534538948",null,{"$f":"Table1[[#This Row],['# of Books]]*Table1[[#This Row],[QTY]]","v":0},{"$f":"Table1[[#This Row],[QTY]]*Table1[[#This Row],[School & Library Price]]","v":0}]
[null,null,null,18,23,"Math","First Math","Subtracting","978-1-5345-3895-5",{"$f":"HYPERLINK(Table1[[#This Row],[eCommerce Hyperlink]],\"Book Weblink\")","v":"Book Weblink"},null,"KidHaven Publishing","eBook",1,"2022","August 2021",null,null,"Author","Brenda McHale",null,null,null,null,"B",null,"Grade K","Grade Pre-K - 1","Subtraction can be a challenging concept for young readers to master, but through the use of relatable problems, clear text, and helpful visual examples, early learners are given the tools to become subtracting superstars. The conversational tone and vibrant design make this common math curriculum topic feel less intimidating, and the full-color photographs that fill the pages help visual learners better understand subtraction. Age-appropriate subtraction questions are presented to help readers independently practice their skills, and everyday examples allow readers to apply what they’ve learned about subtraction to their own lives.","English",25.6,20.48,"513.2’12--dc23","24 pp.","https://greenhavenpublishing.com/9781534538955",null,{"$f":"Table1[[#This Row],['# of Books]]*Table1[[#This Row],[QTY]]","v":0},{"$f":"Table1[[#This Row],[QTY]]*Table1[[#This Row],[School & Library Price]]","v":0}]
[null,null,null,18,23,"Math","First Math","Time","978-1-5345-3898-6",{"$f":"HYPERLINK(Table1[[#This Row],[eCommerce Hyperlink]],\"Book Weblink\")","v":"Book Weblink"},null,"KidHaven Publishing","Library Bound Book",1,"2022","August 2021","Library","11.00 X 8.500","Author","Brenda McHale",null,null,null,null,"B",null,"Grade K","Grade Pre-K - 1","Telling time is an important life skill and a common part of elementary math curricula. Readers are able to practice this skill with the help of accessible text that breaks down this concept, which can be challenging for early learners, in a simple and clear way. Relatable examples, including colorful visual cues, allow readers to better understand that math is at work around them all the time. Vibrant, full-color photographs and a conversational tone keep readers engaged as they learn, and guided activities, such as answering basic questions about time, aid in independent learning.","English",25.6,20.48,"529’.7--dc23","24 pp.","https://greenhavenpublishing.com/9781534538986",null,{"$f":"Table1[[#This Row],['# of Books]]*Table1[[#This Row],[QTY]]","v":0},{"$f":"Table1[[#This Row],[QTY]]*Table1[[#This Row],[School & Library Price]]","v":0}]
[null,null,null,18,23,"Math","First Math","Time","978-1-5345-3899-3",{"$f":"HYPERLINK(Table1[[#This Row],[eCommerce Hyperlink]],\"Book Weblink\")","v":"Book Weblink"},null,"KidHaven Publishing","eBook",1,"2022","August 2021",null,null,"Author","Brenda McHale",null,null,null,null,"B",null,"Grade K","Grade Pre-K - 1","Telling time is an important life skill and a common part of elementary math curricula. Readers are able to practice this skill with the help of accessible text that breaks down this concept, which can be challenging for early learners, in a simple and clear way. Relatable examples, including colorful visual cues, allow readers to better understand that math is at work around them all the time. Vibrant, full-color photographs and a conversational tone keep readers engaged as they learn, and guided activities, such as answering basic questions about time, aid in independent learning.","English",25.6,20.48,"529’.7--dc23","24 pp.","https://greenhavenpublishing.com/9781534538993",null,{"$f":"Table1[[#This Row],['# of Books]]*Table1[[#This Row],[QTY]]","v":0},{"$f":"Table1[[#This Row],[QTY]]*Table1[[#This Row],[School & Library Price]]","v":0}]
[null,null,null,20,24,"Animals","Life Cycles","Life Cycles: Sets 1 – 3","978-1-5345-4019-4",{"$f":"HYPERLINK(Table1[[#This Row],[eCommerce Hyperlink]],\"Book Weblink\")","v":"Book Weblink"},null,"KidHaven Publishing","Library Set",18,"2022","January 2022","Library","8.500 X 8.500",null,null,null,null,null,null,null,null,"Grade 1 - 2","Grade 1 - 3","It may seem as if butterflies, sunflowers, and kangaroos have nothing in common. However, they all go through stages as they grow. These stages make up a life cycle, and readers are introduced to a wide variety of life cycles in the natural world in this exciting look at basic biology concepts. Accessible text and a helpful glossary allow readers to independently explore the wild world of life science. In addition, fact boxes provide fun pieces of information about the many different ways plants and animals live and grow, and full-color photographs captivate young nature lovers.","English",460.8,368.64,null,"24 pp.","https://greenhavenpublishing.com/9781534540194",null,{"$f":"Table1[[#This Row],['# of Books]]*Table1[[#This Row],[QTY]]","v":0},{"$f":"Table1[[#This Row],[QTY]]*Table1[[#This Row],[School & Library Price]]","v":0}]
[null,null,null,20,24,"Animals","Life Cycles","Life Cycles: Set 3","978-1-5345-4018-7",{"$f":"HYPERLINK(Table1[[#This Row],[eCommerce Hyperlink]],\"Book Weblink\")","v":"Book Weblink"},null,"KidHaven Publishing","Library Set",6,"2022","January 2022","Library","8.500 X 8.500",null,null,null,null,null,null,null,null,"Grade 1 - 2","Grade 1 - 3","All living things go through a life cycle. Puppies grow into dogs, kittens become cats, and even plants like sunflowers start their lives as seeds. As readers explore the stages of various life cycles—from adorable pets and farm animals to spiders, fish, and even plants—they learn essential early life science concepts. Their knowledge of beginner biology is further enhanced through the use of eye-catching fact boxes and a glossary of important terms. With colorful photographs to guide them through this engaging learning experience, even reluctant readers will enjoy this introduction to life cycles.","English",153.6,122.88,null,"24 pp.","https://greenhavenpublishing.com/9781534540187",null,{"$f":"Table1[[#This Row],['# of Books]]*Table1[[#This Row],[QTY]]","v":0},{"$f":"Table1[[#This Row],[QTY]]*Table1[[#This Row],[School & Library Price]]","v":0}]
[null,null,null,21,24,"Animals","Life Cycles","Life Cycle of a Butterfly","978-1-5345-2731-7",{"$f":"HYPERLINK(Table1[[#This Row],[eCommerce Hyperlink]],\"Book Weblink\")","v":"Book Weblink"},null,"KidHaven Publishing","Library Bound Book",1,"2019","August 2018","Library","8.500 X 8.500","Author","Kirsty Holmes","4.2","0.5",null,null,"J",null,"Grade 1 - 2","Grade 1 - 3","How long does it take for a caterpillar to transform into a butterfly? What happens inside a cocoon? Questions such as these and more are answered in this exciting book about the life cycle of a butterfly, which addresses current science curriculum topics. The simple text is supplemented with vibrant, full-color photographs, helpful fact boxes, and informative diagrams to give readers a strong understanding of this essential elementary topic. The life cycle of a butterfly is a popular life cycle to study, and this book presents this familiar topic in a creative and fresh way.","English",25.6,20.48,"595.789--dc23","24 pp.","https://greenhavenpublishing.com/9781534527317",null,{"$f":"Table1[[#This Row],['# of Books]]*Table1[[#This Row],[QTY]]","v":0},{"$f":"Table1[[#This Row],[QTY]]*Table1[[#This Row],[School & Library Price]]","v":0}]
[null,null,null,21,24,"Animals","Life Cycles","Life Cycle of a Butterfly","978-1-5345-2734-8",{"$f":"HYPERLINK(Table1[[#This Row],[eCommerce Hyperlink]],\"Book Weblink\")","v":"Book Weblink"},null,"KidHaven Publishing","eBook",1,"2019","August 2018",null,null,"Author","Kirsty Holmes","4.2","0.5",null,null,"J",null,"Grade 1 - 2","Grade 1 - 3","How long does it take for a caterpillar to transform into a butterfly? What happens inside a cocoon? Questions such as these and more are answered in this exciting book about the life cycle of a butterfly, which addresses current science curriculum topics. The simple text is supplemented with vibrant, full-color photographs, helpful fact boxes, and informative diagrams to give readers a strong understanding of this essential elementary topic. The life cycle of a butterfly is a popular life cycle to study, and this book presents this familiar topic in a creative and fresh way.","English",25.6,20.48,"595.789--dc23","24 pp.","https://greenhavenpublishing.com/9781534527348",null,{"$f":"Table1[[#This Row],['# of Books]]*Table1[[#This Row],[QTY]]","v":0},{"$f":"Table1[[#This Row],[QTY]]*Table1[[#This Row],[School & Library Price]]","v":0}]
[null,null,null,21,24,"Animals","Life Cycles","Life Cycle of a Chicken","978-1-5345-2631-0",{"$f":"HYPERLINK(Table1[[#This Row],[eCommerce Hyperlink]],\"Book Weblink\")","v":"Book Weblink"},null,"KidHaven Publishing","Library Bound Book",1,"2019","August 2018","Library","8.500 X 8.500","Author","Kirsty Holmes","3.9","0.5",null,null,"J",null,"Grade 1 - 2","Grade 1 - 3","Readers will take an exciting journey to the farm to learn about the life cycle of a chicken in this charming and informative book. Through the age-appropriate and accessible main text, young learners will expand their knowledge of critical science curriculum topics. They will also be exposed to the similarities and differences between the life cycle of a chicken and those of other living things, allowing them to compare and contrast. Colorful design elements, including vibrant photographs, informative diagrams, and useful fact boxes, work together to give additional information about this essential topic and to create an engaging reading experience.","English",25.6,20.48,"636.5--dc23","24 pp.","https://greenhavenpublishing.com/9781534526310",null,{"$f":"Table1[[#This Row],['# of Books]]*Table1[[#This Row],[QTY]]","v":0},{"$f":"Table1[[#This Row],[QTY]]*Table1[[#This Row],[School & Library Price]]","v":0}]
[null,null,null,21,24,"Animals","Life Cycles","Life Cycle of a Chicken","978-1-5345-2634-1",{"$f":"HYPERLINK(Table1[[#This Row],[eCommerce Hyperlink]],\"Book Weblink\")","v":"Book Weblink"},null,"KidHaven Publishing","eBook",1,"2019","August 2018",null,null,"Author","Kirsty Holmes","3.9","0.5",null,null,"J",null,"Grade 1 - 2","Grade 1 - 3","Readers will take an exciting journey to the farm to learn about the life cycle of a chicken in this charming and informative book. Through the age-appropriate and accessible main text, young learners will expand their knowledge of critical science curriculum topics. They will also be exposed to the similarities and differences between the life cycle of a chicken and those of other living things, allowing them to compare and contrast. Colorful design elements, including vibrant photographs, informative diagrams, and useful fact boxes, work together to give additional information about this essential topic and to create an engaging reading experience.","English",25.6,20.48,"636.5--dc23","24 pp.","https://greenhavenpublishing.com/9781534526341",null,{"$f":"Table1[[#This Row],['# of Books]]*Table1[[#This Row],[QTY]]","v":0},{"$f":"Table1[[#This Row],[QTY]]*Table1[[#This Row],[School & Library Price]]","v":0}]
[null,null,null,21,24,"Animals","Life Cycles","Life Cycle of a Crab","978-1-5345-3780-4",{"$f":"HYPERLINK(Table1[[#This Row],[eCommerce Hyperlink]],\"Book Weblink\")","v":"Book Weblink"},null,"KidHaven Publishing","Library Bound Book",1,"2022","August 2021","Library","8.500 X 8.500","Author","Kirsty Holmes",null,null,null,null,"J",null,"Grade 1 - 2","Grade 1 - 3","Crabs are fascinating animals that grow and develop in unique ways. How do they mature from an egg to the creatures seen on beaches around the world? Readers explore the life cycle of a crab through accessible main text that presents basic biology facts in a fresh way. As readers discover essential information about each life cycle stage, they’re presented with vibrant, full-color photographs and helpful diagrams that introduce them to the physical differences between the stages. Fun fact boxes present additional information about crabs, and the colorful design keeps readers engaged as they learn about life science.","English",25.6,20.48,"595.3’86--dc23","24 pp.","https://greenhavenpublishing.com/9781534537804",null,{"$f":"Table1[[#This Row],['# of Books]]*Table1[[#This Row],[QTY]]","v":0},{"$f":"Table1[[#This Row],[QTY]]*Table1[[#This Row],[School & Library Price]]","v":0}]
[null,null,null,21,24,"Animals","Life Cycles","Life Cycle of a Crab","978-1-5345-3781-1",{"$f":"HYPERLINK(Table1[[#This Row],[eCommerce Hyperlink]],\"Book Weblink\")","v":"Book Weblink"},null,"KidHaven Publishing","eBook",1,"2022","August 2021",null,null,"Author","Kirsty Holmes",null,null,null,null,"J",null,"Grade 1 - 2","Grade 1 - 3","Crabs are fascinating animals that grow and develop in unique ways. How do they mature from an egg to the creatures seen on beaches around the world? Readers explore the life cycle of a crab through accessible main text that presents basic biology facts in a fresh way. As readers discover essential information about each life cycle stage, they’re presented with vibrant, full-color photographs and helpful diagrams that introduce them to the physical differences between the stages. Fun fact boxes present additional information about crabs, and the colorful design keeps readers engaged as they learn about life science.","English",25.6,20.48,"595.3’86--dc23","24 pp.","https://greenhavenpublishing.com/9781534537811",null,{"$f":"Table1[[#This Row],['# of Books]]*Table1[[#This Row],[QTY]]","v":0},{"$f":"Table1[[#This Row],[QTY]]*Table1[[#This Row],[School & Library Price]]","v":0}]
[null,null,null,21,24,"Animals","Life Cycles","Life Cycle of a Duck","978-1-5345-3784-2",{"$f":"HYPERLINK(Table1[[#This Row],[eCommerce Hyperlink]],\"Book Weblink\")","v":"Book Weblink"},null,"KidHaven Publishing","Library Bound Book",1,"2022","August 2021","Library","8.500 X 8.500","Author","Kirsty Holmes",null,null,null,null,"J",null,"Grade 1 - 2","Grade 1 - 3","Ducklings and ducks are common sights in parks, neighborhoods, and many other places around the world. Readers are introduced to the life cycle of a duck as it grows from egg to duckling to adult through enlightening main text that presents elementary science concepts in a fun and fact-filled way. Fact boxes expand on this basic biology topic, and diagrams with clear labels help readers visualize the various life cycle stages they’re learning about. Full-color photographs of ducks throughout their life cycle inspire readers to see how examples of science concepts can be found all around them.","English",25.6,20.48,"598.4’1--dc23","24 pp.","https://greenhavenpublishing.com/9781534537842",null,{"$f":"Table1[[#This Row],['# of Books]]*Table1[[#This Row],[QTY]]","v":0},{"$f":"Table1[[#This Row],[QTY]]*Table1[[#This Row],[School & Library Price]]","v":0}]
[null,null,null,21,24,"Animals","Life Cycles","Life Cycle of a Duck","978-1-5345-3785-9",{"$f":"HYPERLINK(Table1[[#This Row],[eCommerce Hyperlink]],\"Book Weblink\")","v":"Book Weblink"},null,"KidHaven Publishing","eBook",1,"2022","August 2021",null,null,"Author","Kirsty Holmes",null,null,null,null,"J",null,"Grade 1 - 2","Grade 1 - 3","Ducklings and ducks are common sights in parks, neighborhoods, and many other places around the world. Readers are introduced to the life cycle of a duck as it grows from egg to duckling to adult through enlightening main text that presents elementary science concepts in a fun and fact-filled way. Fact boxes expand on this basic biology topic, and diagrams with clear labels help readers visualize the various life cycle stages they’re learning about. Full-color photographs of ducks throughout their life cycle inspire readers to see how examples of science concepts can be found all around them.","English",25.6,20.48,"598.4’1--dc23","24 pp.","https://greenhavenpublishing.com/9781534537859",null,{"$f":"Table1[[#This Row],['# of Books]]*Table1[[#This Row],[QTY]]","v":0},{"$f":"Table1[[#This Row],[QTY]]*Table1[[#This Row],[School & Library Price]]","v":0}]
[null,null,null,20,24,"Animals","Life Cycles","Life Cycle of a Cat","978-1-5345-4012-5",{"$f":"HYPERLINK(Table1[[#This Row],[eCommerce Hyperlink]],\"Book Weblink\")","v":"Book Weblink"},null,"KidHaven Publishing","Library Bound Book",1,"2022","January 2022","Library","8.500 X 8.500","Author","Kirsty Holmes",null,null,null,null,"J",null,"Grade 1 - 2","Grade 1 - 3","Cute kittens grow up to be cool cats, and readers follow along on this journey of growth and development as they learn about the essential science topic of life cycles. They discover facts about this popular pet with the help of text that presents beginner biology concepts in a way that’s easy for early learners to understand. In addition, fact boxes give readers extra insight into the ways cats live, grow, and play. Clearly-labeled diagrams of the life cycle of both humans and cats encourage readers to compare and contrast, and full-color photographs of these adorable animals fill the pages.","English",25.6,20.48,"636.8--dc23","24 pp.","https://greenhavenpublishing.com/9781534540125",null,{"$f":"Table1[[#This Row],['# of Books]]*Table1[[#This Row],[QTY]]","v":0},{"$f":"Table1[[#This Row],[QTY]]*Table1[[#This Row],[School & Library Price]]","v":0}]
[null,null,null,20,24,"Animals","Life Cycles","Life Cycle of a Cat","978-1-5345-4013-2",{"$f":"HYPERLINK(Table1[[#This Row],[eCommerce Hyperlink]],\"Book Weblink\")","v":"Book Weblink"},{"$f":"HYPERLINK(Table1[[#This Row],[EPP Hyperlink]],\"EPP Weblink\")","v":"EPP Weblink"},"KidHaven Publishing","eBook",1,"2022","January 2022",null,null,"Author","Kirsty Holmes",null,null,null,null,"J",null,"Grade 1 - 2","Grade 1 - 3","Cute kittens grow up to be cool cats, and readers follow along on this journey of growth and development as they learn about the essential science topic of life cycles. They discover facts about this popular pet with the help of text that presents beginner biology concepts in a way that’s easy for early learners to understand. In addition, fact boxes give readers extra insight into the ways cats live, grow, and play. Clearly-labeled diagrams of the life cycle of both humans and cats encourage readers to compare and contrast, and full-color photographs of these adorable animals fill the pages.","English",25.6,20.48,"636.8--dc23","24 pp.","https://greenhavenpublishing.com/9781534540132","http://www.epointplus.com/embed/9781534540132/?login=cyberrep&password=cyberrep",{"$f":"Table1[[#This Row],['# of Books]]*Table1[[#This Row],[QTY]]","v":0},{"$f":"Table1[[#This Row],[QTY]]*Table1[[#This Row],[School & Library Price]]","v":0}]
[null,null,null,20,24,"Animals","Life Cycles","Life Cycle of a Dog","978-1-5345-3996-9",{"$f":"HYPERLINK(Table1[[#This Row],[eCommerce Hyperlink]],\"Book Weblink\")","v":"Book Weblink"},null,"KidHaven Publishing","Library Bound Book",1,"2022","January 2022","Library","8.500 X 8.500","Author","Kirsty Holmes",null,null,null,null,"J",null,"Grade 1 - 2","Grade 1 - 3","Dogs are beloved members of many families around the world, but how much do young readers really know about how they live and grow? With the help of clear and concise text and fun fact boxes, they discover essential details about dogs at every stage of their life cycle. From puppies to older dogs, full-color photographs show these adorable pets in action, and detailed diagrams with helpful labels break down the life cycle of man’s best friend. This introduction to an important beginner biology topic is sure to charm even reluctant readers with its high-interest focus!","English",25.6,20.48,"599.77’2156--dc23","24 pp.","https://greenhavenpublishing.com/9781534539969",null,{"$f":"Table1[[#This Row],['# of Books]]*Table1[[#This Row],[QTY]]","v":0},{"$f":"Table1[[#This Row],[QTY]]*Table1[[#This Row],[School & Library Price]]","v":0}]
[null,null,null,20,24,"Animals","Life Cycles","Life Cycle of a Dog","978-1-5345-3997-6",{"$f":"HYPERLINK(Table1[[#This Row],[eCommerce Hyperlink]],\"Book Weblink\")","v":"Book Weblink"},{"$f":"HYPERLINK(Table1[[#This Row],[EPP Hyperlink]],\"EPP Weblink\")","v":"EPP Weblink"},"KidHaven Publishing","eBook",1,"2022","January 2022",null,null,"Author","Kirsty Holmes",null,null,null,null,"J",null,"Grade 1 - 2","Grade 1 - 3","Dogs are beloved members of many families around the world, but how much do young readers really know about how they live and grow? With the help of clear and concise text and fun fact boxes, they discover essential details about dogs at every stage of their life cycle. From puppies to older dogs, full-color photographs show these adorable pets in action, and detailed diagrams with helpful labels break down the life cycle of man’s best friend. This introduction to an important beginner biology topic is sure to charm even reluctant readers with its high-interest focus!","English",25.6,20.48,"599.77’2156--dc23","24 pp.","https://greenhavenpublishing.com/9781534539976","http://www.epointplus.com/embed/9781534539976/?login=cyberrep&password=cyberrep",{"$f":"Table1[[#This Row],['# of Books]]*Table1[[#This Row],[QTY]]","v":0},{"$f":"Table1[[#This Row],[QTY]]*Table1[[#This Row],[School & Library Price]]","v":0}]
[null,null,null,20,24,"Animals","Life Cycles","Life Cycle of Salmon","978-1-5345-4016-3",{"$f":"HYPERLINK(Table1[[#This Row],[eCommerce Hyperlink]],\"Book Weblink\")","v":"Book Weblink"},null,"KidHaven Publishing","Library Bound Book",1,"2022","January 2022","Library","8.500 X 8.500","Author","Kirsty Holmes",null,null,null,null,"J",null,"Grade 1 - 2","Grade 1 - 3","Where does the salmon we eat come from? A salmon’s life starts as an egg, and the journey only gets more exciting from there! Readers are able to follow along with the many stages of a salmon’s life cycle thanks to engaging text that breaks down this essential biology topic in a clear and concise way. Helpful fact boxes provide additional information about this popular fish. These important facts are presented alongside vibrant, full-color photographs of salmon at every stage of their life cycle and diagrams that invite readers to compare and contrast a person’s life cycle and a salmon’s.","English",25.6,20.48,"597.5’6156--dc23","24 pp.","https://greenhavenpublishing.com/9781534540163",null,{"$f":"Table1[[#This Row],['# of Books]]*Table1[[#This Row],[QTY]]","v":0},{"$f":"Table1[[#This Row],[QTY]]*Table1[[#This Row],[School & Library Price]]","v":0}]
[null,null,null,20,24,"Animals","Life Cycles","Life Cycle of Salmon","978-1-5345-4017-0",{"$f":"HYPERLINK(Table1[[#This Row],[eCommerce Hyperlink]],\"Book Weblink\")","v":"Book Weblink"},{"$f":"HYPERLINK(Table1[[#This Row],[EPP Hyperlink]],\"EPP Weblink\")","v":"EPP Weblink"},"KidHaven Publishing","eBook",1,"2022","January 2022",null,null,"Author","Kirsty Holmes",null,null,null,null,"J",null,"Grade 1 - 2","Grade 1 - 3","Where does the salmon we eat come from? A salmon’s life starts as an egg, and the journey only gets more exciting from there! Readers are able to follow along with the many stages of a salmon’s life cycle thanks to engaging text that breaks down this essential biology topic in a clear and concise way. Helpful fact boxes provide additional information about this popular fish. These important facts are presented alongside vibrant, full-color photographs of salmon at every stage of their life cycle and diagrams that invite readers to compare and contrast a person’s life cycle and a salmon’s.","English",25.6,20.48,"597.5’6156--dc23","24 pp.","https://greenhavenpublishing.com/9781534540170","http://www.epointplus.com/embed/9781534540170/?login=cyberrep&password=cyberrep",{"$f":"Table1[[#This Row],['# of Books]]*Table1[[#This Row],[QTY]]","v":0},{"$f":"Table1[[#This Row],[QTY]]*Table1[[#This Row],[School & Library Price]]","v":0}]
[null,null,null,20,24,"Animals","Life Cycles","Life Cycle of a Sheep","978-1-5345-4000-2",{"$f":"HYPERLINK(Table1[[#This Row],[eCommerce Hyperlink]],\"Book Weblink\")","v":"Book Weblink"},null,"KidHaven Publishing","Library Bound Book",1,"2022","January 2022","Library","8.500 X 8.500","Author","Kirsty Holmes",null,null,null,null,"J",null,"Grade 1 - 2","Grade 1 - 3","Readers trace the life cycle of a sheep from its birth to old age in this fun and fact-filled guide to an essential beginner biology topic. As readers explore the age-appropriate text that explains important science concepts and provides cool facts about this popular animal, they also discover full-color photographs of cute lambs and fluffy sheep. This engaging look at life science features fact boxes that enhance the learning experience and clearly-labeled diagrams that help readers visualize the many stages in the growth and development of this favorite farm animal.","English",25.6,20.48,"636.3--dc23","24 pp.","https://greenhavenpublishing.com/9781534540002",null,{"$f":"Table1[[#This Row],['# of Books]]*Table1[[#This Row],[QTY]]","v":0},{"$f":"Table1[[#This Row],[QTY]]*Table1[[#This Row],[School & Library Price]]","v":0}]
[null,null,null,20,24,"Animals","Life Cycles","Life Cycle of a Sheep","978-1-5345-4001-9",{"$f":"HYPERLINK(Table1[[#This Row],[eCommerce Hyperlink]],\"Book Weblink\")","v":"Book Weblink"},{"$f":"HYPERLINK(Table1[[#This Row],[EPP Hyperlink]],\"EPP Weblink\")","v":"EPP Weblink"},"KidHaven Publishing","eBook",1,"2022","January 2022",null,null,"Author","Kirsty Holmes",null,null,null,null,"J",null,"Grade 1 - 2","Grade 1 - 3","Readers trace the life cycle of a sheep from its birth to old age in this fun and fact-filled guide to an essential beginner biology topic. As readers explore the age-appropriate text that explains important science concepts and provides cool facts about this popular animal, they also discover full-color photographs of cute lambs and fluffy sheep. This engaging look at life science features fact boxes that enhance the learning experience and clearly-labeled diagrams that help readers visualize the many stages in the growth and development of this favorite farm animal.","English",25.6,20.48,"636.3--dc23","24 pp.","https://greenhavenpublishing.com/9781534540019","http://www.epointplus.com/embed/9781534540019/?login=cyberrep&password=cyberrep",{"$f":"Table1[[#This Row],['# of Books]]*Table1[[#This Row],[QTY]]","v":0},{"$f":"Table1[[#This Row],[QTY]]*Table1[[#This Row],[School & Library Price]]","v":0}]
[null,null,null,20,24,"Animals","Life Cycles","Life Cycle of a Spider","978-1-5345-4004-0",{"$f":"HYPERLINK(Table1[[#This Row],[eCommerce Hyperlink]],\"Book Weblink\")","v":"Book Weblink"},null,"KidHaven Publishing","Library Bound Book",1,"2022","January 2022","Library","8.500 X 8.500","Author","Kirsty Holmes",null,null,null,null,"J",null,"Grade 1 - 2","Grade 1 - 3","Spiders may seem like scary creatures, but they live amazing lives! Readers learn all about the life of a spider—from egg to adulthood—through this age-appropriate guide to life cycles. The simple, achievable main text is paired with fun fact boxes that enhance the learning experience. In addition, diagrams with helpful labels allow readers to visualize the concepts they’re reading about and compare the life cycle of a spider with a person’s life cycle. Vivid, full-color photographs of a variety of spiders are sure to capture the attention of readers who love all things creepy and crawly!","English",25.6,20.48,"595.4’4--dc23","24 pp.","https://greenhavenpublishing.com/9781534540040",null,{"$f":"Table1[[#This Row],['# of Books]]*Table1[[#This Row],[QTY]]","v":0},{"$f":"Table1[[#This Row],[QTY]]*Table1[[#This Row],[School & Library Price]]","v":0}]
[null,null,null,20,24,"Animals","Life Cycles","Life Cycle of a Spider","978-1-5345-4005-7",{"$f":"HYPERLINK(Table1[[#This Row],[eCommerce Hyperlink]],\"Book Weblink\")","v":"Book Weblink"},{"$f":"HYPERLINK(Table1[[#This Row],[EPP Hyperlink]],\"EPP Weblink\")","v":"EPP Weblink"},"KidHaven Publishing","eBook",1,"2022","January 2022",null,null,"Author","Kirsty Holmes",null,null,null,null,"J",null,"Grade 1 - 2","Grade 1 - 3","Spiders may seem like scary creatures, but they live amazing lives! Readers learn all about the life of a spider—from egg to adulthood—through this age-appropriate guide to life cycles. The simple, achievable main text is paired with fun fact boxes that enhance the learning experience. In addition, diagrams with helpful labels allow readers to visualize the concepts they’re reading about and compare the life cycle of a spider with a person’s life cycle. Vivid, full-color photographs of a variety of spiders are sure to capture the attention of readers who love all things creepy and crawly!","English",25.6,20.48,"595.4’4--dc23","24 pp.","https://greenhavenpublishing.com/9781534540057","http://www.epointplus.com/embed/9781534540057/?login=cyberrep&password=cyberrep",{"$f":"Table1[[#This Row],['# of Books]]*Table1[[#This Row],[QTY]]","v":0},{"$f":"Table1[[#This Row],[QTY]]*Table1[[#This Row],[School & Library Price]]","v":0}]
[null,null,null,20,24,"Animals","Life Cycles","Life Cycle of a Sunflower","978-1-5345-4008-8",{"$f":"HYPERLINK(Table1[[#This Row],[eCommerce Hyperlink]],\"Book Weblink\")","v":"Book Weblink"},null,"KidHaven Publishing","Library Bound Book",1,"2022","January 2022","Library","8.500 X 8.500","Author","Kirsty Holmes",null,null,null,null,"J",null,"Grade 1 - 2","Grade 1 - 3","Flowers have life cycles too! One of the most popular and recognizable flowers is a sunflower, and readers study its life cycle with the help of achievable text that breaks down essential biology concepts. As they learn about the parts of a plant and how each part grows and develops, full-color photographs and diagrams with clear labels help visual learners process the information. Fun fact boxes present additional information about the journey from seed to sunflower and what happens at the end of the flower’s life. What do people use sunflowers for? The answer is waiting for readers to discover!","English",25.6,20.48,"583’.983--dc23","24 pp.","https://greenhavenpublishing.com/9781534540088",null,{"$f":"Table1[[#This Row],['# of Books]]*Table1[[#This Row],[QTY]]","v":0},{"$f":"Table1[[#This Row],[QTY]]*Table1[[#This Row],[School & Library Price]]","v":0}]
[null,null,null,20,24,"Animals","Life Cycles","Life Cycle of a Sunflower","978-1-5345-4009-5",{"$f":"HYPERLINK(Table1[[#This Row],[eCommerce Hyperlink]],\"Book Weblink\")","v":"Book Weblink"},{"$f":"HYPERLINK(Table1[[#This Row],[EPP Hyperlink]],\"EPP Weblink\")","v":"EPP Weblink"},"KidHaven Publishing","eBook",1,"2022","January 2022",null,null,"Author","Kirsty Holmes",null,null,null,null,"J",null,"Grade 1 - 2","Grade 1 - 3","Flowers have life cycles too! One of the most popular and recognizable flowers is a sunflower, and readers study its life cycle with the help of achievable text that breaks down essential biology concepts. As they learn about the parts of a plant and how each part grows and develops, full-color photographs and diagrams with clear labels help visual learners process the information. Fun fact boxes present additional information about the journey from seed to sunflower and what happens at the end of the flower’s life. What do people use sunflowers for? The answer is waiting for readers to discover!","English",25.6,20.48,"583’.983--dc23","24 pp.","https://greenhavenpublishing.com/9781534540095","http://www.epointplus.com/embed/9781534540095/?login=cyberrep&password=cyberrep",{"$f":"Table1[[#This Row],['# of Books]]*Table1[[#This Row],[QTY]]","v":0},{"$f":"Table1[[#This Row],[QTY]]*Table1[[#This Row],[School & Library Price]]","v":0}]
[null,null,null,21,25,"Animals","Life Cycles","Life Cycle of a Frog","978-1-5345-2635-8",{"$f":"HYPERLINK(Table1[[#This Row],[eCommerce Hyperlink]],\"Book Weblink\")","v":"Book Weblink"},null,"KidHaven Publishing","Library Bound Book",1,"2019","August 2018","Library","8.500 X 8.500","Author","Kirsty Holmes","3.6","0.5",null,null,"J",null,"Grade 1 - 2","Grade 1 - 3","How long does it take for a tadpole to transform into a frog? What does a frog look like at each stage of its life cycle? Common questions such as these and more are answered in this age-appropriate text on the life cycle of a frog. Helpful fact boxes, educational diagrams, and stunning, full-color photographs provide additional insight into this essential elementary science curriculum topic. As readers discover each stage of a frog's life cycle, they see corresponding images to help them visualize the changes this creature goes through from egg to adult.","English",25.6,20.48,"597.89--dc23","24 pp.","https://greenhavenpublishing.com/9781534526358",null,{"$f":"Table1[[#This Row],['# of Books]]*Table1[[#This Row],[QTY]]","v":0},{"$f":"Table1[[#This Row],[QTY]]*Table1[[#This Row],[School & Library Price]]","v":0}]
[null,null,null,21,25,"Animals","Life Cycles","Life Cycle of a Frog","978-1-5345-2638-9",{"$f":"HYPERLINK(Table1[[#This Row],[eCommerce Hyperlink]],\"Book Weblink\")","v":"Book Weblink"},null,"KidHaven Publishing","eBook",1,"2019","August 2018",null,null,"Author","Kirsty Holmes","3.6","0.5",null,null,"J",null,"Grade 1 - 2","Grade 1 - 3","How long does it take for a tadpole to transform into a frog? What does a frog look like at each stage of its life cycle? Common questions such as these and more are answered in this age-appropriate text on the life cycle of a frog. Helpful fact boxes, educational diagrams, and stunning, full-color photographs provide additional insight into this essential elementary science curriculum topic. As readers discover each stage of a frog's life cycle, they see corresponding images to help them visualize the changes this creature goes through from egg to adult.","English",25.6,20.48,"597.89--dc23","24 pp.","https://greenhavenpublishing.com/9781534526389",null,{"$f":"Table1[[#This Row],['# of Books]]*Table1[[#This Row],[QTY]]","v":0},{"$f":"Table1[[#This Row],[QTY]]*Table1[[#This Row],[School & Library Price]]","v":0}]
[null,null,null,21,25,"Animals","Life Cycles","Life Cycle of a Honeybee","978-1-5345-2727-0",{"$f":"HYPERLINK(Table1[[#This Row],[eCommerce Hyperlink]],\"Book Weblink\")","v":"Book Weblink"},null,"KidHaven Publishing","Library Bound Book",1,"2019","August 2018","Library","8.500 X 8.500","Author","Kirsty Holmes","3.8","0.5",null,null,"J",null,"Grade 1 - 2","Grade 1 - 3","Young readers are exposed to the life cycle of a honeybee in this charming and engaging book. In reading this age-appropriate and accessible main text, they will gain essential knowledge of current science curriculum topics and develop a deeper appreciation for the world of living things around them. Informative fact boxes, instructional diagrams, and eye-catching photographs provide extra insight and present this familiar elementary topic in a fresh and creative light for young readers. Bees are an important part of the natural world, and readers are sure to enjoy discovering fun facts about their life cycle.","English",25.6,20.48,"595.79'9--dc23","24 pp.","https://greenhavenpublishing.com/9781534527270",null,{"$f":"Table1[[#This Row],['# of Books]]*Table1[[#This Row],[QTY]]","v":0},{"$f":"Table1[[#This Row],[QTY]]*Table1[[#This Row],[School & Library Price]]","v":0}]
[null,null,null,21,25,"Animals","Life Cycles","Life Cycle of a Honeybee","978-1-5345-2730-0",{"$f":"HYPERLINK(Table1[[#This Row],[eCommerce Hyperlink]],\"Book Weblink\")","v":"Book Weblink"},null,"KidHaven Publishing","eBook",1,"2019","August 2018",null,null,"Author","Kirsty Holmes","3.8","0.5",null,null,"J",null,"Grade 1 - 2","Grade 1 - 3","Young readers are exposed to the life cycle of a honeybee in this charming and engaging book. In reading this age-appropriate and accessible main text, they will gain essential knowledge of current science curriculum topics and develop a deeper appreciation for the world of living things around them. Informative fact boxes, instructional diagrams, and eye-catching photographs provide extra insight and present this familiar elementary topic in a fresh and creative light for young readers. Bees are an important part of the natural world, and readers are sure to enjoy discovering fun facts about their life cycle.","English",25.6,20.48,"595.79'9--dc23","24 pp.","https://greenhavenpublishing.com/9781534527300",null,{"$f":"Table1[[#This Row],['# of Books]]*Table1[[#This Row],[QTY]]","v":0},{"$f":"Table1[[#This Row],[QTY]]*Table1[[#This Row],[School & Library Price]]","v":0}]
[null,null,null,21,25,"Animals","Life Cycles","Life Cycle of a Shark","978-1-5345-2639-6",{"$f":"HYPERLINK(Table1[[#This Row],[eCommerce Hyperlink]],\"Book Weblink\")","v":"Book Weblink"},null,"KidHaven Publishing","Library Bound Book",1,"2019","August 2018","Library","8.500 X 8.500","Author","Kirsty Holmes","3.7","0.5",null,null,"J",null,"Grade 1 - 2","Grade 1 - 3","Sharks are fascinating sea creatures. These cool and complex living things are a species of fish with a unique life cycle. In this accessible and engaging volume, young readers will learn about the life cycle of a shark and how it compares and contrasts with the life cycles of other animals living in oceans around the world. As they deepen their knowledge of the natural world and of these popular predators, they also expand their understanding of essential science curriculum concepts. In addition to the informative main text, useful fact boxes, instructional diagrams, and vibrant photographs enhance the reading experience.","English",25.6,20.48,"597.3--dc23","24 pp.","https://greenhavenpublishing.com/9781534526396",null,{"$f":"Table1[[#This Row],['# of Books]]*Table1[[#This Row],[QTY]]","v":0},{"$f":"Table1[[#This Row],[QTY]]*Table1[[#This Row],[School & Library Price]]","v":0}]
[null,null,null,21,25,"Animals","Life Cycles","Life Cycle of a Shark","978-1-5345-2642-6",{"$f":"HYPERLINK(Table1[[#This Row],[eCommerce Hyperlink]],\"Book Weblink\")","v":"Book Weblink"},null,"KidHaven Publishing","eBook",1,"2019","August 2018",null,null,"Author","Kirsty Holmes","3.7","0.5",null,null,"J",null,"Grade 1 - 2","Grade 1 - 3","Sharks are fascinating sea creatures. These cool and complex living things are a species of fish with a unique life cycle. In this accessible and engaging volume, young readers will learn about the life cycle of a shark and how it compares and contrasts with the life cycles of other animals living in oceans around the world. As they deepen their knowledge of the natural world and of these popular predators, they also expand their understanding of essential science curriculum concepts. In addition to the informative main text, useful fact boxes, instructional diagrams, and vibrant photographs enhance the reading experience.","English",25.6,20.48,"597.3--dc23","24 pp.","https://greenhavenpublishing.com/9781534526426",null,{"$f":"Table1[[#This Row],['# of Books]]*Table1[[#This Row],[QTY]]","v":0},{"$f":"Table1[[#This Row],[QTY]]*Table1[[#This Row],[School & Library Price]]","v":0}]
[null,null,null,21,25,"Animals","Life Cycles","Life Cycle of a Tree","978-1-5345-2643-3",{"$f":"HYPERLINK(Table1[[#This Row],[eCommerce Hyperlink]],\"Book Weblink\")","v":"Book Weblink"},null,"KidHaven Publishing","Library Bound Book",1,"2019","August 2018","Library","8.500 X 8.500","Author","Kirsty Holmes","3.8","0.5",null,null,"J",null,"Grade 1 - 2","Grade 1 - 3","How fast do trees grow? How do trees begin their lives? Do all trees have the same life cycle? These questions and more are answered in this accessible look at the life cycle of a tree. Young readers will be exposed to the various stages of plant growth and development in this volume, which touches upon critical science curriculum topics. They will also gain a deeper appreciation for other living things and environmental concerns. Vivid, full-color photographs, accessible diagrams, and useful fact boxes add depth to readers' understanding of this important topic.","English",25.6,20.48,"582.16--dc23","24 pp.","https://greenhavenpublishing.com/9781534526433",null,{"$f":"Table1[[#This Row],['# of Books]]*Table1[[#This Row],[QTY]]","v":0},{"$f":"Table1[[#This Row],[QTY]]*Table1[[#This Row],[School & Library Price]]","v":0}]
[null,null,null,21,25,"Animals","Life Cycles","Life Cycle of a Tree","978-1-5345-2646-4",{"$f":"HYPERLINK(Table1[[#This Row],[eCommerce Hyperlink]],\"Book Weblink\")","v":"Book Weblink"},null,"KidHaven Publishing","eBook",1,"2019","August 2018",null,null,"Author","Kirsty Holmes","3.8","0.5",null,null,"J",null,"Grade 1 - 2","Grade 1 - 3","How fast do trees grow? How do trees begin their lives? Do all trees have the same life cycle? These questions and more are answered in this accessible look at the life cycle of a tree. Young readers will be exposed to the various stages of plant growth and development in this volume, which touches upon critical science curriculum topics. They will also gain a deeper appreciation for other living things and environmental concerns. Vivid, full-color photographs, accessible diagrams, and useful fact boxes add depth to readers' understanding of this important topic.","English",25.6,20.48,"582.16--dc23","24 pp.","https://greenhavenpublishing.com/9781534526464",null,{"$f":"Table1[[#This Row],['# of Books]]*Table1[[#This Row],[QTY]]","v":0},{"$f":"Table1[[#This Row],[QTY]]*Table1[[#This Row],[School & Library Price]]","v":0}]
[null,null,null,21,25,"Animals","Life Cycles","Life Cycle of a Jellyfish","978-1-5345-3788-0",{"$f":"HYPERLINK(Table1[[#This Row],[eCommerce Hyperlink]],\"Book Weblink\")","v":"Book Weblink"},null,"KidHaven Publishing","Library Bound Book",1,"2022","August 2021","Library","8.500 X 8.500","Author","Kirsty Holmes",null,null,null,null,"J",null,"Grade 1 - 2","Grade 1 - 3","Jellyfish have a very unique and complex life cycle that is explained to young readers in this age-appropriate and achievable look at beginner biology concepts. Through clear and concise main text and fun fact boxes, readers explore each stage of a jellyfish’s life cycle and learn new vocabulary words along the way. Additional science terms are introduced in colorful diagrams that have clear labels and correspond closely to the text. Featuring full-color photographs of these amazing animals, this introduction to common science curriculum topics takes readers under the sea for a learning experience they won’t soon forget!","English",25.6,20.48,"593.5’3156--dc23","24 pp.","https://greenhavenpublishing.com/9781534537880",null,{"$f":"Table1[[#This Row],['# of Books]]*Table1[[#This Row],[QTY]]","v":0},{"$f":"Table1[[#This Row],[QTY]]*Table1[[#This Row],[School & Library Price]]","v":0}]
[null,null,null,21,25,"Animals","Life Cycles","Life Cycle of a Jellyfish","978-1-5345-3789-7",{"$f":"HYPERLINK(Table1[[#This Row],[eCommerce Hyperlink]],\"Book Weblink\")","v":"Book Weblink"},null,"KidHaven Publishing","eBook",1,"2022","August 2021",null,null,"Author","Kirsty Holmes",null,null,null,null,"J",null,"Grade 1 - 2","Grade 1 - 3","Jellyfish have a very unique and complex life cycle that is explained to young readers in this age-appropriate and achievable look at beginner biology concepts. Through clear and concise main text and fun fact boxes, readers explore each stage of a jellyfish’s life cycle and learn new vocabulary words along the way. Additional science terms are introduced in colorful diagrams that have clear labels and correspond closely to the text. Featuring full-color photographs of these amazing animals, this introduction to common science curriculum topics takes readers under the sea for a learning experience they won’t soon forget!","English",25.6,20.48,"593.5’3156--dc23","24 pp.","https://greenhavenpublishing.com/9781534537897",null,{"$f":"Table1[[#This Row],['# of Books]]*Table1[[#This Row],[QTY]]","v":0},{"$f":"Table1[[#This Row],[QTY]]*Table1[[#This Row],[School & Library Price]]","v":0}]
[null,null,null,21,25,"Animals","Life Cycles","Life Cycle of a Kangaroo","978-1-5345-3792-7",{"$f":"HYPERLINK(Table1[[#This Row],[eCommerce Hyperlink]],\"Book Weblink\")","v":"Book Weblink"},null,"KidHaven Publishing","Library Bound Book",1,"2022","August 2021","Library","8.500 X 8.500","Author","Kirsty Holmes",null,null,null,null,"J",null,"Grade 1 - 2","Grade 1 - 3","What is a baby kangaroo called? Why does a kangaroo live in its mother’s pouch? When can it come out? The answers to these questions and more are found in this helpful guide to a kangaroo’s life cycle. This engaging and essential life science topic is presented to readers through concise main text that clarifies complex concepts. Fact boxes provide additional information in an eye-catching way, and diagrams with clear and informative labels enhance readers’ understanding of how kangaroos live, grow, and develop. The vibrant and colorful design features full-color photographs of adorable joeys and cool kangaroos.","English",25.6,20.48,"599.2’22156--dc23","24 pp.","https://greenhavenpublishing.com/9781534537927",null,{"$f":"Table1[[#This Row],['# of Books]]*Table1[[#This Row],[QTY]]","v":0},{"$f":"Table1[[#This Row],[QTY]]*Table1[[#This Row],[School & Library Price]]","v":0}]
[null,null,null,21,25,"Animals","Life Cycles","Life Cycle of a Kangaroo","978-1-5345-3793-4",{"$f":"HYPERLINK(Table1[[#This Row],[eCommerce Hyperlink]],\"Book Weblink\")","v":"Book Weblink"},null,"KidHaven Publishing","eBook",1,"2022","August 2021",null,null,"Author","Kirsty Holmes",null,null,null,null,"J",null,"Grade 1 - 2","Grade 1 - 3","What is a baby kangaroo called? Why does a kangaroo live in its mother’s pouch? When can it come out? The answers to these questions and more are found in this helpful guide to a kangaroo’s life cycle. This engaging and essential life science topic is presented to readers through concise main text that clarifies complex concepts. Fact boxes provide additional information in an eye-catching way, and diagrams with clear and informative labels enhance readers’ understanding of how kangaroos live, grow, and develop. The vibrant and colorful design features full-color photographs of adorable joeys and cool kangaroos.","English",25.6,20.48,"599.2’22156--dc23","24 pp.","https://greenhavenpublishing.com/9781534537934",null,{"$f":"Table1[[#This Row],['# of Books]]*Table1[[#This Row],[QTY]]","v":0},{"$f":"Table1[[#This Row],[QTY]]*Table1[[#This Row],[School & Library Price]]","v":0}]
[null,null,null,21,25,"Animals","Life Cycles","Life Cycle of a Ladybug","978-1-5345-3796-5",{"$f":"HYPERLINK(Table1[[#This Row],[eCommerce Hyperlink]],\"Book Weblink\")","v":"Book Weblink"},null,"KidHaven Publishing","Library Bound Book",1,"2022","August 2021","Library","8.500 X 8.500","Author","Kirsty Holmes",null,null,null,null,"J",null,"Grade 1 - 2","Grade 1 - 3","Life as a ladybug involves a lot of growing and changing! These changes are part of the ladybug’s life cycle, and readers explore its unique stages through accessible main text and full-color photographs of these vibrant insects throughout their lives. Fact boxes help readers dive even deeper into this beginner biology topic, which is a basic part of science curricula. In addition, diagrams with simple and clear labels help readers learn and visualize new vocabulary terms. This fun and factual reading experience is sure to captivate backyard explorers, bug lovers, and budding biologists.","English",25.6,20.48,"595.76’9--dc23","24 pp.","https://greenhavenpublishing.com/9781534537965",null,{"$f":"Table1[[#This Row],['# of Books]]*Table1[[#This Row],[QTY]]","v":0},{"$f":"Table1[[#This Row],[QTY]]*Table1[[#This Row],[School & Library Price]]","v":0}]
[null,null,null,21,25,"Animals","Life Cycles","Life Cycle of a Ladybug","978-1-5345-3797-2",{"$f":"HYPERLINK(Table1[[#This Row],[eCommerce Hyperlink]],\"Book Weblink\")","v":"Book Weblink"},null,"KidHaven Publishing","eBook",1,"2022","August 2021",null,null,"Author","Kirsty Holmes",null,null,null,null,"J",null,"Grade 1 - 2","Grade 1 - 3","Life as a ladybug involves a lot of growing and changing! These changes are part of the ladybug’s life cycle, and readers explore its unique stages through accessible main text and full-color photographs of these vibrant insects throughout their lives. Fact boxes help readers dive even deeper into this beginner biology topic, which is a basic part of science curricula. In addition, diagrams with simple and clear labels help readers learn and visualize new vocabulary terms. This fun and factual reading experience is sure to captivate backyard explorers, bug lovers, and budding biologists.","English",25.6,20.48,"595.76’9--dc23","24 pp.","https://greenhavenpublishing.com/9781534537972",null,{"$f":"Table1[[#This Row],['# of Books]]*Table1[[#This Row],[QTY]]","v":0},{"$f":"Table1[[#This Row],[QTY]]*Table1[[#This Row],[School & Library Price]]","v":0}]
[null,null,null,21,25,"Animals","Life Cycles","Life Cycle of a Rabbit","978-1-5345-3800-9",{"$f":"HYPERLINK(Table1[[#This Row],[eCommerce Hyperlink]],\"Book Weblink\")","v":"Book Weblink"},null,"KidHaven Publishing","Library Bound Book",1,"2022","August 2021","Library","8.500 X 8.500","Author","Kirsty Holmes",null,null,null,null,"J",null,"Grade 1 - 2","Grade 1 - 3","Rabbits are adorable animals, but how do they grow from baby bunnies to the adults seen hopping around our backyards and parks? Readers find the answer through this age-appropriate guide to a rabbit’s life cycle. Using simple and accessible terminology, elementary readers are introduced to the life cycle stages every rabbit goes through, helping them gain a stronger understanding of essential life science concepts. As they read, full-color photographs and diagrams provide visual references, and fact boxes present additional information about these familiar creatures and the amazing ways they grow and change throughout their lives.","English",25.6,20.48,"599.32--dc23","24 pp.","https://greenhavenpublishing.com/9781534538009",null,{"$f":"Table1[[#This Row],['# of Books]]*Table1[[#This Row],[QTY]]","v":0},{"$f":"Table1[[#This Row],[QTY]]*Table1[[#This Row],[School & Library Price]]","v":0}]
[null,null,null,21,25,"Animals","Life Cycles","Life Cycle of a Rabbit","978-1-5345-3801-6",{"$f":"HYPERLINK(Table1[[#This Row],[eCommerce Hyperlink]],\"Book Weblink\")","v":"Book Weblink"},null,"KidHaven Publishing","eBook",1,"2022","August 2021",null,null,"Author","Kirsty Holmes",null,null,null,null,"J",null,"Grade 1 - 2","Grade 1 - 3","Rabbits are adorable animals, but how do they grow from baby bunnies to the adults seen hopping around our backyards and parks? Readers find the answer through this age-appropriate guide to a rabbit’s life cycle. Using simple and accessible terminology, elementary readers are introduced to the life cycle stages every rabbit goes through, helping them gain a stronger understanding of essential life science concepts. As they read, full-color photographs and diagrams provide visual references, and fact boxes present additional information about these familiar creatures and the amazing ways they grow and change throughout their lives.","English",25.6,20.48,"599.32--dc23","24 pp.","https://greenhavenpublishing.com/9781534538016",null,{"$f":"Table1[[#This Row],['# of Books]]*Table1[[#This Row],[QTY]]","v":0},{"$f":"Table1[[#This Row],[QTY]]*Table1[[#This Row],[School & Library Price]]","v":0}]
[null,null,null,3,26,"Science and Nature","Seasons and You","Seasons and You","978-1-5345-4244-0",null,null,"KidHaven Publishing","Library Set",4,"2023","August 2022","Library","8.500 X 8.500",null,null,null,null,null,null,null,null,"Grade 1 - 2","Grade 1 - 3","Many places in the world have four seasons: winter, spring, summer, and autumn. Young readers may have a sense of what happens during these seasons—Christmas, gardening, pool parties, and Halloween for example—but not what really distinguishes one season from another. This set introduces the weather of each season as well as what we wear, and how it affects the plants and animals in our world. Full-color photographs complement the simple science information included in the at-level main text.","English",102.4,81.92,null,"24 pp.","https://greenhavenpublishing.com/9781534542440",null,{"$f":"Table1[[#This Row],['# of Books]]*Table1[[#This Row],[QTY]]","v":0},{"$f":"Table1[[#This Row],[QTY]]*Table1[[#This Row],[School & Library Price]]","v":0}]
[null,null,null,3,26,"Science and Nature","Seasons and You","Autumn","978-1-5345-4131-3",null,null,"KidHaven Publishing","Library Bound Book",1,"2023","August 2022","Library","8.500 X 8.500","Author","Shalini Vallepur",null,null,null,null,"H",null,"Grade 1 - 2","Grade 1 - 3","In many parts of the United States, the leaves change color and the air grows cooler in autumn. Other parts of the world see autumn happen in this way too! Animals collect food for winter and make their homes ready for hibernation or simply a place to shelter when it’s colder. Emerging readers will love this simple introduction to the many facets of the fall season. From what to wear to what the weather will be like, the main content covers it all in age-appropriate detail and language.","English",25.6,20.48,"508.2--dc23","24 pp.","https://greenhavenpublishing.com/9781534541313",null,{"$f":"Table1[[#This Row],['# of Books]]*Table1[[#This Row],[QTY]]","v":0},{"$f":"Table1[[#This Row],[QTY]]*Table1[[#This Row],[School & Library Price]]","v":0}]
[null,null,null,3,26,"Science and Nature","Seasons and You","Autumn","978-1-5345-4132-0",null,null,"KidHaven Publishing","eBook",1,"2023","August 2022",null,null,"Author","Shalini Vallepur",null,null,null,null,"H",null,"Grade 1 - 2","Grade 1 - 3","In many parts of the United States, the leaves change color and the air grows cooler in autumn. Other parts of the world see autumn happen in this way too! Animals collect food for winter and make their homes ready for hibernation or simply a place to shelter when it’s colder. Emerging readers will love this simple introduction to the many facets of the fall season. From what to wear to what the weather will be like, the main content covers it all in age-appropriate detail and language.","English",25.6,20.48,"508.2--dc23","24 pp.","https://greenhavenpublishing.com/9781534541320","http://www.epointplus.com/embed/9781534541320/?login=cyberrep&password=cyberrep",{"$f":"Table1[[#This Row],['# of Books]]*Table1[[#This Row],[QTY]]","v":0},{"$f":"Table1[[#This Row],[QTY]]*Table1[[#This Row],[School & Library Price]]","v":0}]
[null,null,null,3,26,"Science and Nature","Seasons and You","Spring","978-1-5345-4135-1",null,null,"KidHaven Publishing","Library Bound Book",1,"2023","August 2022","Library","8.500 X 8.500","Author","Shalini Vallepur",null,null,null,null,"H",null,"Grade 1 - 2","Grade 1 - 3","When the days start to get longer and the sun shines a little warmer, we know spring is on the way! Sometimes rainy and cool, sometimes warm and sunny, spring is the time when baby animals are born and when plants start to reach from the soil to the sky. Readers ready to come out of hibernation find out all about how to dress in spring, holidays celebrated then, and what weather to expect, among other interesting facts about the season. Written with emerging readers in mind, the science content is simply explained to complement elementary science curricula.","English",25.6,20.48,"508.2--dc23","24 pp.","https://greenhavenpublishing.com/9781534541351",null,{"$f":"Table1[[#This Row],['# of Books]]*Table1[[#This Row],[QTY]]","v":0},{"$f":"Table1[[#This Row],[QTY]]*Table1[[#This Row],[School & Library Price]]","v":0}]
[null,null,null,3,26,"Science and Nature","Seasons and You","Spring","978-1-5345-4136-8",null,null,"KidHaven Publishing","eBook",1,"2023","August 2022",null,null,"Author","Shalini Vallepur",null,null,null,null,"H",null,"Grade 1 - 2","Grade 1 - 3","When the days start to get longer and the sun shines a little warmer, we know spring is on the way! Sometimes rainy and cool, sometimes warm and sunny, spring is the time when baby animals are born and when plants start to reach from the soil to the sky. Readers ready to come out of hibernation find out all about how to dress in spring, holidays celebrated then, and what weather to expect, among other interesting facts about the season. Written with emerging readers in mind, the science content is simply explained to complement elementary science curricula.","English",25.6,20.48,"508.2--dc23","24 pp.","https://greenhavenpublishing.com/9781534541368","http://www.epointplus.com/embed/9781534541368/?login=cyberrep&password=cyberrep",{"$f":"Table1[[#This Row],['# of Books]]*Table1[[#This Row],[QTY]]","v":0},{"$f":"Table1[[#This Row],[QTY]]*Table1[[#This Row],[School & Library Price]]","v":0}]
[null,null,null,3,26,"Science and Nature","Seasons and You","Summer","978-1-5345-4139-9",null,null,"KidHaven Publishing","Library Bound Book",1,"2023","August 2022","Library","8.500 X 8.500","Author","Shalini Vallepur",null,null,null,null,"H",null,"Grade 1 - 2","Grade 1 - 3","What makes kids think of summer? Hot weather, swimming pools, and no school! But the season of summer is more than that! It’s the time of the year in which many fruits and vegetables grow ripe and ready to harvest. It’s when many trees and flowers fully blossom. In this book, readers learn about the heat and thunderstorms of summer in addition to other basics about the season. Full-color photographs illustrate the seasonal concepts and at-level text engages emerging readers.","English",25.6,20.48,"508.2--dc23","24 pp.","https://greenhavenpublishing.com/9781534541399",null,{"$f":"Table1[[#This Row],['# of Books]]*Table1[[#This Row],[QTY]]","v":0},{"$f":"Table1[[#This Row],[QTY]]*Table1[[#This Row],[School & Library Price]]","v":0}]
[null,null,null,3,26,"Science and Nature","Seasons and You","Summer","978-1-5345-4140-5",null,null,"KidHaven Publishing","eBook",1,"2023","August 2022",null,null,"Author","Shalini Vallepur",null,null,null,null,"H",null,"Grade 1 - 2","Grade 1 - 3","What makes kids think of summer? Hot weather, swimming pools, and no school! But the season of summer is more than that! It’s the time of the year in which many fruits and vegetables grow ripe and ready to harvest. It’s when many trees and flowers fully blossom. In this book, readers learn about the heat and thunderstorms of summer in addition to other basics about the season. Full-color photographs illustrate the seasonal concepts and at-level text engages emerging readers.","English",25.6,20.48,"508.2--dc23","24 pp.","https://greenhavenpublishing.com/9781534541405","http://www.epointplus.com/embed/9781534541405/?login=cyberrep&password=cyberrep",{"$f":"Table1[[#This Row],['# of Books]]*Table1[[#This Row],[QTY]]","v":0},{"$f":"Table1[[#This Row],[QTY]]*Table1[[#This Row],[School & Library Price]]","v":0}]
[null,null,null,3,26,"Science and Nature","Seasons and You","Winter","978-1-5345-4143-6",null,null,"KidHaven Publishing","Library Bound Book",1,"2023","August 2022","Library","8.500 X 8.500","Author","Shalini Vallepur",null,null,null,null,"H",null,"Grade 1 - 2","Grade 1 - 3","Playing outside in the winter can be a challenge. It’s cold, so kids need hats, scarves, gloves, and coats in many parts of the world. But there’s almost nothing more beautiful than a crisp, cold, winter day when the snowing is lightly falling! Readers learn to appreciate the winter season in this book, which covers winter weather and how it affects plants and animals, as well as people. Accessible language and simple science content is perfect for new readers.","English",25.6,20.48,"508.2--dc23","24 pp.","https://greenhavenpublishing.com/9781534541436",null,{"$f":"Table1[[#This Row],['# of Books]]*Table1[[#This Row],[QTY]]","v":0},{"$f":"Table1[[#This Row],[QTY]]*Table1[[#This Row],[School & Library Price]]","v":0}]
[null,null,null,3,26,"Science and Nature","Seasons and You","Winter","978-1-5345-4144-3",null,null,"KidHaven Publishing","eBook",1,"2023","August 2022",null,null,"Author","Shalini Vallepur",null,null,null,null,"H",null,"Grade 1 - 2","Grade 1 - 3","Playing outside in the winter can be a challenge. It’s cold, so kids need hats, scarves, gloves, and coats in many parts of the world. But there’s almost nothing more beautiful than a crisp, cold, winter day when the snowing is lightly falling! Readers learn to appreciate the winter season in this book, which covers winter weather and how it affects plants and animals, as well as people. Accessible language and simple science content is perfect for new readers.","English",25.6,20.48,"508.2--dc23","24 pp.","https://greenhavenpublishing.com/9781534541443","http://www.epointplus.com/embed/9781534541443/?login=cyberrep&password=cyberrep",{"$f":"Table1[[#This Row],['# of Books]]*Table1[[#This Row],[QTY]]","v":0},{"$f":"Table1[[#This Row],[QTY]]*Table1[[#This Row],[School & Library Price]]","v":0}]
[null,null,null,3,27,"Science and Nature","Coast Explorer","Coast Explorer","978-1-5345-3945-7",null,null,"KidHaven Publishing","Library Set",4,"2023","August 2022","Library","8.500 X 8.500",null,null,null,null,null,null,null,null,"Grade 2","Grade 1 - 3","The coast is an exciting place to visit, and readers take an engaging and educational trip there in this guide to life in a coastal habitat. The animals, water, and other natural features found on the coast are presented to young readers through simple and informative text and vibrant, full-color photographs. In addition, eye-catching fact boxes give readers helpful information that they can put to use while exploring the coast. This focused and fun look at common elementary curriculum topics enhances readers’ understanding of habitats, landforms, biodiversity, and adaptations while feeling like a fun travel guide for budding scientists.","English",102.4,81.92,null,"24 pp.","https://greenhavenpublishing.com/9781534539457",null,{"$f":"Table1[[#This Row],['# of Books]]*Table1[[#This Row],[QTY]]","v":0},{"$f":"Table1[[#This Row],[QTY]]*Table1[[#This Row],[School & Library Price]]","v":0}]
[null,null,null,3,27,"Science and Nature","Coast Explorer","Birds","978-1-5345-3929-7",null,null,"KidHaven Publishing","Library Bound Book",1,"2023","August 2022","Library","8.500 X 8.500","Author","Robin Twiddy",null,null,null,null,"K",null,"Grade 2","Grade 1 - 3","Coastal birds are often found high in the sky, walking on the sand, and perched on rocks. These cool creatures have adapted to their coastal habitats, and readers explore these adaptations and much more about the lives of birds on the coast in this fun and fact-filled guide. Fact boxes alert readers to important information, and the clear and concise main text supplements elementary science curriculum topics. Colorful photographs with helpful captions and labels allow readers to identify a variety of species in their natural habitat. This reading experience gives young explorers a bird’s-eye view of the coast.","English",25.6,20.48,"598.177--dc23","24 pp.","https://greenhavenpublishing.com/9781534539297",null,{"$f":"Table1[[#This Row],['# of Books]]*Table1[[#This Row],[QTY]]","v":0},{"$f":"Table1[[#This Row],[QTY]]*Table1[[#This Row],[School & Library Price]]","v":0}]
[null,null,null,3,27,"Science and Nature","Coast Explorer","Birds","978-1-5345-3930-3",null,null,"KidHaven Publishing","eBook",1,"2023","August 2022",null,null,"Author","Robin Twiddy",null,null,null,null,"K",null,"Grade 2","Grade 1 - 3","Coastal birds are often found high in the sky, walking on the sand, and perched on rocks. These cool creatures have adapted to their coastal habitats, and readers explore these adaptations and much more about the lives of birds on the coast in this fun and fact-filled guide. Fact boxes alert readers to important information, and the clear and concise main text supplements elementary science curriculum topics. Colorful photographs with helpful captions and labels allow readers to identify a variety of species in their natural habitat. This reading experience gives young explorers a bird’s-eye view of the coast.","English",25.6,20.48,"598.177--dc23","24 pp.","https://greenhavenpublishing.com/9781534539303","http://www.epointplus.com/embed/9781534539303/?login=cyberrep&password=cyberrep",{"$f":"Table1[[#This Row],['# of Books]]*Table1[[#This Row],[QTY]]","v":0},{"$f":"Table1[[#This Row],[QTY]]*Table1[[#This Row],[School & Library Price]]","v":0}]
[null,null,null,3,27,"Science and Nature","Coast Explorer","Coastal Creatures","978-1-5345-3933-4",null,null,"KidHaven Publishing","Library Bound Book",1,"2023","August 2022","Library","8.500 X 8.500","Author","Robin Twiddy",null,null,null,null,"K",null,"Grade 2","Grade 1 - 3","Readers are introduced to crabs, seals, turtles, sharks, and more in this colorful look at coastal creatures. Vibrant full-color photographs show a wide variety of animals in impressive detail, and cool facts about each creature are presented through age-appropriate text. Readers are also taught about the importance of coastal conservation and developing respect for the natural world. Safety tips are shown in an eye-catching way, alerting readers to the potential dangers of interacting with these animals in their natural habitats. This engaging guide to coastal creatures also prompts readers to take notes about what they’ve seen.","English",25.6,20.48,"551.45’7--dc23","24 pp.","https://greenhavenpublishing.com/9781534539334",null,{"$f":"Table1[[#This Row],['# of Books]]*Table1[[#This Row],[QTY]]","v":0},{"$f":"Table1[[#This Row],[QTY]]*Table1[[#This Row],[School & Library Price]]","v":0}]
[null,null,null,3,27,"Science and Nature","Coast Explorer","Coastal Creatures","978-1-5345-3934-1",null,null,"KidHaven Publishing","eBook",1,"2023","August 2022",null,null,"Author","Robin Twiddy",null,null,null,null,"K",null,"Grade 2","Grade 1 - 3","Readers are introduced to crabs, seals, turtles, sharks, and more in this colorful look at coastal creatures. Vibrant full-color photographs show a wide variety of animals in impressive detail, and cool facts about each creature are presented through age-appropriate text. Readers are also taught about the importance of coastal conservation and developing respect for the natural world. Safety tips are shown in an eye-catching way, alerting readers to the potential dangers of interacting with these animals in their natural habitats. This engaging guide to coastal creatures also prompts readers to take notes about what they’ve seen.","English",25.6,20.48,"551.45’7--dc23","24 pp.","https://greenhavenpublishing.com/9781534539341","http://www.epointplus.com/embed/9781534539341/?login=cyberrep&password=cyberrep",{"$f":"Table1[[#This Row],['# of Books]]*Table1[[#This Row],[QTY]]","v":0},{"$f":"Table1[[#This Row],[QTY]]*Table1[[#This Row],[School & Library Price]]","v":0}]
[null,null,null,3,27,"Science and Nature","Coast Explorer","Dunes","978-1-5345-3937-2",null,null,"KidHaven Publishing","Library Bound Book",1,"2023","August 2022","Library","8.500 X 8.500","Author","Robin Twiddy",null,null,null,null,"K",null,"Grade 2","Grade 1 - 3","Readers explore the dunes along the coast through this focused and fun look at habitats, landforms, and other essential elementary science concepts. The informative text takes on a conversational tone, giving young readers the feeling of going on an adventure. As readers learn memorable facts about dunes, they also see examples of them thanks to detailed, full-color photographs. Helpful fact boxes add to the reading experience, guiding readers along as they discover all there is to learn from a walk among the dunes. This engaging guide to nature helps foster a deeper appreciation for the environment.","English",25.6,20.48,"551.3’75--dc23","24 pp.","https://greenhavenpublishing.com/9781534539372",null,{"$f":"Table1[[#This Row],['# of Books]]*Table1[[#This Row],[QTY]]","v":0},{"$f":"Table1[[#This Row],[QTY]]*Table1[[#This Row],[School & Library Price]]","v":0}]
[null,null,null,3,27,"Science and Nature","Coast Explorer","Dunes","978-1-5345-3938-9",null,null,"KidHaven Publishing","eBook",1,"2023","August 2022",null,null,"Author","Robin Twiddy",null,null,null,null,"K",null,"Grade 2","Grade 1 - 3","Readers explore the dunes along the coast through this focused and fun look at habitats, landforms, and other essential elementary science concepts. The informative text takes on a conversational tone, giving young readers the feeling of going on an adventure. As readers learn memorable facts about dunes, they also see examples of them thanks to detailed, full-color photographs. Helpful fact boxes add to the reading experience, guiding readers along as they discover all there is to learn from a walk among the dunes. This engaging guide to nature helps foster a deeper appreciation for the environment.","English",25.6,20.48,"551.3’75--dc23","24 pp.","https://greenhavenpublishing.com/9781534539389","http://www.epointplus.com/embed/9781534539389/?login=cyberrep&password=cyberrep",{"$f":"Table1[[#This Row],['# of Books]]*Table1[[#This Row],[QTY]]","v":0},{"$f":"Table1[[#This Row],[QTY]]*Table1[[#This Row],[School & Library Price]]","v":0}]
[null,null,null,3,27,"Science and Nature","Coast Explorer","Rock Pools","978-1-5345-3941-9",null,null,"KidHaven Publishing","Library Bound Book",1,"2023","August 2022","Library","8.500 X 8.500","Author","Robin Twiddy",null,null,null,null,"K",null,"Grade 2","Grade 1 - 3","What kinds of creatures call rock pools home? What’s life like in these pools of water? Readers discover the answers to these questions and many more as they explore the fun and fascinating world of coastal tide pools. This colorful and creatively focused guide helps readers enhance their understanding of elementary science curriculum topics such as habitats, conservation, biodiversity, and making observations about the natural world. The clear and concise text is paired with bright and beautiful photographs that take readers on a tour of this cool part of coastal environments.","English",25.6,20.48,"577.69’9--dc23","24 pp.","https://greenhavenpublishing.com/9781534539419",null,{"$f":"Table1[[#This Row],['# of Books]]*Table1[[#This Row],[QTY]]","v":0},{"$f":"Table1[[#This Row],[QTY]]*Table1[[#This Row],[School & Library Price]]","v":0}]
[null,null,null,3,27,"Science and Nature","Coast Explorer","Rock Pools","978-1-5345-3942-6",null,null,"KidHaven Publishing","eBook",1,"2023","August 2022",null,null,"Author","Robin Twiddy",null,null,null,null,"K",null,"Grade 2","Grade 1 - 3","What kinds of creatures call rock pools home? What’s life like in these pools of water? Readers discover the answers to these questions and many more as they explore the fun and fascinating world of coastal tide pools. This colorful and creatively focused guide helps readers enhance their understanding of elementary science curriculum topics such as habitats, conservation, biodiversity, and making observations about the natural world. The clear and concise text is paired with bright and beautiful photographs that take readers on a tour of this cool part of coastal environments.","English",25.6,20.48,"577.69’9--dc23","24 pp.","https://greenhavenpublishing.com/9781534539426","http://www.epointplus.com/embed/9781534539426/?login=cyberrep&password=cyberrep",{"$f":"Table1[[#This Row],['# of Books]]*Table1[[#This Row],[QTY]]","v":0},{"$f":"Table1[[#This Row],[QTY]]*Table1[[#This Row],[School & Library Price]]","v":0}]
[null,null,null,3,28,"Science and Nature","Horse Power","Horse Power","978-1-5345-4238-9",null,null,"KidHaven Publishing","Library Set",6,"2023","August 2022","Library","8.500 X 8.500",null,null,null,null,null,null,null,null,"Grade 2","Grade 1 - 3","Kids love vehicles. From mail trucks to monster trucks, and from race cars to Jeeps, there’s a young person simply obsessed with them! This set uses that obsession to connect readers with STEM content including how engines work, how loads are moved, and even how a tank’s caterpillar tracks move. What’s more, a colorful design and friendly narrator engage readers who’d like to drive a motorcycle, tank, or digger someday! Both safety and stunts—like wheelies!—are addressed in each title, balancing fun and practicality.","English",153.6,122.88,null,"24 pp.","https://greenhavenpublishing.com/9781534542389",null,{"$f":"Table1[[#This Row],['# of Books]]*Table1[[#This Row],[QTY]]","v":0},{"$f":"Table1[[#This Row],[QTY]]*Table1[[#This Row],[School & Library Price]]","v":0}]
[null,null,null,3,28,"Science and Nature","Horse Power","Sparky's STEM Guide to Cars","978-1-5345-4027-9",null,null,"KidHaven Publishing","Library Bound Book",1,"2023","August 2022","Library","8.500 X 8.500","Author","Kirsty Holmes",null,null,null,null,"L",null,"Grade 2","Grade 1 - 3","Even though it will be many years until elementary readers can drive a car, that doesn’t stop many from being absolutely obsessed with them! Muscle cars, off-road cars, and racers are some of the most popular. But kids may not realize that it doesn’t matter what a car is used for: there are many commonalities between all cars. In this book, readers learn the different parts of cars, including the dashboard. STEM content, such as how engines work, is seamlessly incorporated with car-focused information for the most auto-obsessed readers. A colorful design and friendly narrator guides readers from beginning to end.","English",25.6,20.48,"629.222--dc23","24 pp.","https://greenhavenpublishing.com/9781534540279",null,{"$f":"Table1[[#This Row],['# of Books]]*Table1[[#This Row],[QTY]]","v":0},{"$f":"Table1[[#This Row],[QTY]]*Table1[[#This Row],[School & Library Price]]","v":0}]
[null,null,null,3,28,"Science and Nature","Horse Power","Sparky's STEM Guide to Cars","978-1-5345-4028-6",null,null,"KidHaven Publishing","eBook",1,"2023","August 2022",null,null,"Author","Kirsty Holmes",null,null,null,null,"L",null,"Grade 2","Grade 1 - 3","Even though it will be many years until elementary readers can drive a car, that doesn’t stop many from being absolutely obsessed with them! Muscle cars, off-road cars, and racers are some of the most popular. But kids may not realize that it doesn’t matter what a car is used for: there are many commonalities between all cars. In this book, readers learn the different parts of cars, including the dashboard. STEM content, such as how engines work, is seamlessly incorporated with car-focused information for the most auto-obsessed readers. A colorful design and friendly narrator guides readers from beginning to end.","English",25.6,20.48,"629.222--dc23","24 pp.","https://greenhavenpublishing.com/9781534540286","http://www.epointplus.com/embed/9781534540286/?login=cyberrep&password=cyberrep",{"$f":"Table1[[#This Row],['# of Books]]*Table1[[#This Row],[QTY]]","v":0},{"$f":"Table1[[#This Row],[QTY]]*Table1[[#This Row],[School & Library Price]]","v":0}]
[null,null,null,3,28,"Science and Nature","Horse Power","Sparky's STEM Guide to Diggers","978-1-5345-4031-6",null,null,"KidHaven Publishing","Library Bound Book",1,"2023","August 2022","Library","8.500 X 8.500","Author","Kirsty Holmes",null,null,null,null,"L",null,"Grade 2","Grade 1 - 3","Many young children cheer at the sight of a digger. Diggers, or excavators, are construction vehicles that dig and lift heavy things. They are huge machines and seem like lots of fun to drive! In this book, readers can fulfill their dream of learning to drive one long before they’re actually old enough. From the parts of the vehicle to how the controls work, the main content of this book covers everything a vehicle enthusiast could want to know. STEM ideas are incorporated throughout, written simply just for emerging readers.","English",25.6,20.48,"621.8’65--dc23","24 pp.","https://greenhavenpublishing.com/9781534540316",null,{"$f":"Table1[[#This Row],['# of Books]]*Table1[[#This Row],[QTY]]","v":0},{"$f":"Table1[[#This Row],[QTY]]*Table1[[#This Row],[School & Library Price]]","v":0}]
[null,null,null,3,28,"Science and Nature","Horse Power","Sparky's STEM Guide to Diggers","978-1-5345-4032-3",null,null,"KidHaven Publishing","eBook",1,"2023","August 2022",null,null,"Author","Kirsty Holmes",null,null,null,null,"L",null,"Grade 2","Grade 1 - 3","Many young children cheer at the sight of a digger. Diggers, or excavators, are construction vehicles that dig and lift heavy things. They are huge machines and seem like lots of fun to drive! In this book, readers can fulfill their dream of learning to drive one long before they’re actually old enough. From the parts of the vehicle to how the controls work, the main content of this book covers everything a vehicle enthusiast could want to know. STEM ideas are incorporated throughout, written simply just for emerging readers.","English",25.6,20.48,"621.8’65--dc23","24 pp.","https://greenhavenpublishing.com/9781534540323","http://www.epointplus.com/embed/9781534540323/?login=cyberrep&password=cyberrep",{"$f":"Table1[[#This Row],['# of Books]]*Table1[[#This Row],[QTY]]","v":0},{"$f":"Table1[[#This Row],[QTY]]*Table1[[#This Row],[School & Library Price]]","v":0}]
[null,null,null,3,28,"Science and Nature","Horse Power","Sparky's STEM Guide to Motorcycles","978-1-5345-4035-4",null,null,"KidHaven Publishing","Library Bound Book",1,"2023","August 2022","Library","8.500 X 8.500","Author","Kirsty Holmes",null,null,null,null,"L",null,"Grade 2","Grade 1 - 3","There is nothing more important when driving a motorcycle than staying safe and wearing the right gear. These vehicles can be very dangerous. So, when a kid is interested in driving one someday, a book all about their parts, how they work, and more, is a perfect fit! This fun, colorful title introduces young readers to the specifics of motorcycles and motorcycle driving in age-appropriate detail, incorporating STEM content along the way. A friendly guide sees readers through each lesson.","English",25.6,20.48,"629.227’5--dc23","24 pp.","https://greenhavenpublishing.com/9781534540354",null,{"$f":"Table1[[#This Row],['# of Books]]*Table1[[#This Row],[QTY]]","v":0},{"$f":"Table1[[#This Row],[QTY]]*Table1[[#This Row],[School & Library Price]]","v":0}]
[null,null,null,3,28,"Science and Nature","Horse Power","Sparky's STEM Guide to Motorcycles","978-1-5345-4036-1",null,null,"KidHaven Publishing","eBook",1,"2023","August 2022",null,null,"Author","Kirsty Holmes",null,null,null,null,"L",null,"Grade 2","Grade 1 - 3","There is nothing more important when driving a motorcycle than staying safe and wearing the right gear. These vehicles can be very dangerous. So, when a kid is interested in driving one someday, a book all about their parts, how they work, and more, is a perfect fit! This fun, colorful title introduces young readers to the specifics of motorcycles and motorcycle driving in age-appropriate detail, incorporating STEM content along the way. A friendly guide sees readers through each lesson.","English",25.6,20.48,"629.227’5--dc23","24 pp.","https://greenhavenpublishing.com/9781534540361","http://www.epointplus.com/embed/9781534540361/?login=cyberrep&password=cyberrep",{"$f":"Table1[[#This Row],['# of Books]]*Table1[[#This Row],[QTY]]","v":0},{"$f":"Table1[[#This Row],[QTY]]*Table1[[#This Row],[School & Library Price]]","v":0}]
[null,null,null,3,28,"Science and Nature","Horse Power","Sparky's STEM Guide to Tanks","978-1-5345-4039-2",null,null,"KidHaven Publishing","Library Bound Book",1,"2023","August 2022","Library","8.500 X 8.500","Author","Kirsty Holmes",null,null,null,null,"L",null,"Grade 2","Grade 1 - 3","When tanks were first used, they changed how wars were fought. Today, tanks are getting more and more high-tech. But the main parts—turrets, caterpillar tracks, periscope—are as visible on today’s tanks as on those of the past. Readers learn all about these parts as well as how one drives a tank in this book. A friendly character guides readers through the age-appropriate content, including STEM content like how caterpillar tracks work. A colorful design engages readers throughout.","English",25.6,20.48,"623.74’752--dc23","24 pp.","https://greenhavenpublishing.com/9781534540392",null,{"$f":"Table1[[#This Row],['# of Books]]*Table1[[#This Row],[QTY]]","v":0},{"$f":"Table1[[#This Row],[QTY]]*Table1[[#This Row],[School & Library Price]]","v":0}]
[null,null,null,3,28,"Science and Nature","Horse Power","Sparky's STEM Guide to Tanks","978-1-5345-4040-8",null,null,"KidHaven Publishing","eBook",1,"2023","August 2022",null,null,"Author","Kirsty Holmes",null,null,null,null,"L",null,"Grade 2","Grade 1 - 3","When tanks were first used, they changed how wars were fought. Today, tanks are getting more and more high-tech. But the main parts—turrets, caterpillar tracks, periscope—are as visible on today’s tanks as on those of the past. Readers learn all about these parts as well as how one drives a tank in this book. A friendly character guides readers through the age-appropriate content, including STEM content like how caterpillar tracks work. A colorful design engages readers throughout.","English",25.6,20.48,"623.74’752--dc23","24 pp.","https://greenhavenpublishing.com/9781534540408","http://www.epointplus.com/embed/9781534540408/?login=cyberrep&password=cyberrep",{"$f":"Table1[[#This Row],['# of Books]]*Table1[[#This Row],[QTY]]","v":0},{"$f":"Table1[[#This Row],[QTY]]*Table1[[#This Row],[School & Library Price]]","v":0}]
[null,null,null,3,28,"Science and Nature","Horse Power","Sparky's STEM Guide to Trains","978-1-5345-4043-9",null,null,"KidHaven Publishing","Library Bound Book",1,"2023","August 2022","Library","8.500 X 8.500","Author","Kirsty Holmes",null,null,null,null,"L",null,"Grade 2","Grade 1 - 3","Today, there are many kinds of trains. From steam engines to maglev trains, they’re all amazing pieces of technology that many kids love to learn about. They may carry passengers or freight, but trains have many of the same parts. This title takes young readers right into a train’s engine to learn how to drive one! Including interesting STEM content and a friendly narrator, this title caters to elementary readers with carefully written language and age-appropriate detail perfect for the most train-obsessed kid!","English",25.6,20.48,"625.2--dc23","24 pp.","https://greenhavenpublishing.com/9781534540439",null,{"$f":"Table1[[#This Row],['# of Books]]*Table1[[#This Row],[QTY]]","v":0},{"$f":"Table1[[#This Row],[QTY]]*Table1[[#This Row],[School & Library Price]]","v":0}]
[null,null,null,3,28,"Science and Nature","Horse Power","Sparky's STEM Guide to Trains","978-1-5345-4044-6",null,null,"KidHaven Publishing","eBook",1,"2023","August 2022",null,null,"Author","Kirsty Holmes",null,null,null,null,"L",null,"Grade 2","Grade 1 - 3","Today, there are many kinds of trains. From steam engines to maglev trains, they’re all amazing pieces of technology that many kids love to learn about. They may carry passengers or freight, but trains have many of the same parts. This title takes young readers right into a train’s engine to learn how to drive one! Including interesting STEM content and a friendly narrator, this title caters to elementary readers with carefully written language and age-appropriate detail perfect for the most train-obsessed kid!","English",25.6,20.48,"625.2--dc23","24 pp.","https://greenhavenpublishing.com/9781534540446","http://www.epointplus.com/embed/9781534540446/?login=cyberrep&password=cyberrep",{"$f":"Table1[[#This Row],['# of Books]]*Table1[[#This Row],[QTY]]","v":0},{"$f":"Table1[[#This Row],[QTY]]*Table1[[#This Row],[School & Library Price]]","v":0}]
[null,null,null,3,28,"Science and Nature","Horse Power","Sparky's STEM Guide to Trucks","978-1-5345-4047-7",null,null,"KidHaven Publishing","Library Bound Book",1,"2023","August 2022","Library","8.500 X 8.500","Author","Kirsty Holmes",null,null,null,null,"L",null,"Grade 2","Grade 1 - 3","Trucks are often made with a job to do. Fire engines are a kind of truck; so are garbage and recycling vehicles. But, of course, some people just like to drive pick-up trucks for no other reason than how they drive and how they look! Elementary readers are introduced to these many trucks, their common parts and how one drives a truck in this colorful title. STEM content is imparted throughout, including how loads are moved, as a friendly narrator guides truck lovers through this title.","English",25.6,20.48,"629.224--dc23","24 pp.","https://greenhavenpublishing.com/9781534540477",null,{"$f":"Table1[[#This Row],['# of Books]]*Table1[[#This Row],[QTY]]","v":0},{"$f":"Table1[[#This Row],[QTY]]*Table1[[#This Row],[School & Library Price]]","v":0}]
[null,null,null,3,28,"Science and Nature","Horse Power","Sparky's STEM Guide to Trucks","978-1-5345-4048-4",null,null,"KidHaven Publishing","eBook",1,"2023","August 2022",null,null,"Author","Kirsty Holmes",null,null,null,null,"L",null,"Grade 2","Grade 1 - 3","Trucks are often made with a job to do. Fire engines are a kind of truck; so are garbage and recycling vehicles. But, of course, some people just like to drive pick-up trucks for no other reason than how they drive and how they look! Elementary readers are introduced to these many trucks, their common parts and how one drives a truck in this colorful title. STEM content is imparted throughout, including how loads are moved, as a friendly narrator guides truck lovers through this title.","English",25.6,20.48,"629.224--dc23","24 pp.","https://greenhavenpublishing.com/9781534540484","http://www.epointplus.com/embed/9781534540484/?login=cyberrep&password=cyberrep",{"$f":"Table1[[#This Row],['# of Books]]*Table1[[#This Row],[QTY]]","v":0},{"$f":"Table1[[#This Row],[QTY]]*Table1[[#This Row],[School & Library Price]]","v":0}]
[null,null,null,3,29,"Science and Nature","Planet Earth Helpers","Planet Earth Helpers","978-1-5345-4241-9",null,null,"KidHaven Publishing","Library Set",4,"2023","August 2022","Library","8.500 X 8.500",null,null,null,null,null,null,null,null,"Grade 2","Grade 1 - 3","Earth is the only planet we have—and for hundreds of years, people haven’t treated it very well. Even when it became clear that human activities harmed the water, air, and animals on Earth, people didn’t stop! However, there’s still ways we can help Earth. What’s more, many of the habits involved—recycling, reusing items, and not polluting—can be done by small children! In age-appropriate detail and language, this set introduces readers to the problems Earth has, but also ways they can help. Adorable, illustrated guides in each book talk directly to readers and keep the tone playful.","English",102.4,81.92,null,"24 pp.","https://greenhavenpublishing.com/9781534542419",null,{"$f":"Table1[[#This Row],['# of Books]]*Table1[[#This Row],[QTY]]","v":0},{"$f":"Table1[[#This Row],[QTY]]*Table1[[#This Row],[School & Library Price]]","v":0}]
[null,null,null,3,29,"Science and Nature","Planet Earth Helpers","Habitat Conservation","978-1-5345-4051-4",null,null,"KidHaven Publishing","Library Bound Book",1,"2023","August 2022","Library","8.500 X 8.500","Author","Harriet Brundle",null,null,null,null,"K",null,"Grade 2","Grade 1 - 3","Human actions affect the world around us. From pollution in the oceans to deforestation, many of these actions are harmful. In this book a friendly guide takes readers through what happens to habitats when they are affected by harmful activities—animals become endangered, ecosystems fall out of balance, and Earth is cared for. There’s a bright side: In this book, readers learn all about what conservation is in age-appropriate detail as well as ways they may be able to help habitats in danger.","English",25.6,20.48,"333.95’16--dc23","24 pp.","https://greenhavenpublishing.com/9781534540514",null,{"$f":"Table1[[#This Row],['# of Books]]*Table1[[#This Row],[QTY]]","v":0},{"$f":"Table1[[#This Row],[QTY]]*Table1[[#This Row],[School & Library Price]]","v":0}]
[null,null,null,3,29,"Science and Nature","Planet Earth Helpers","Habitat Conservation","978-1-5345-4052-1",null,null,"KidHaven Publishing","eBook",1,"2023","August 2022",null,null,"Author","Harriet Brundle",null,null,null,null,"K",null,"Grade 2","Grade 1 - 3","Human actions affect the world around us. From pollution in the oceans to deforestation, many of these actions are harmful. In this book a friendly guide takes readers through what happens to habitats when they are affected by harmful activities—animals become endangered, ecosystems fall out of balance, and Earth is cared for. There’s a bright side: In this book, readers learn all about what conservation is in age-appropriate detail as well as ways they may be able to help habitats in danger.","English",25.6,20.48,"333.95’16--dc23","24 pp.","https://greenhavenpublishing.com/9781534540521","http://www.epointplus.com/embed/9781534540521/?login=cyberrep&password=cyberrep",{"$f":"Table1[[#This Row],['# of Books]]*Table1[[#This Row],[QTY]]","v":0},{"$f":"Table1[[#This Row],[QTY]]*Table1[[#This Row],[School & Library Price]]","v":0}]
[null,null,null,3,29,"Science and Nature","Planet Earth Helpers","Recycling","978-1-5345-4055-2",null,null,"KidHaven Publishing","Library Bound Book",1,"2023","August 2022","Library","8.500 X 8.500","Author","Harriet Brundle",null,null,null,null,"K",null,"Grade 2","Grade 1 - 3","Recycling seems like an easy way to do good for planet Earth. Reusing items more than once is another practice many households can adopt to reduce what they use. But, there are some rules to recycling it’s important to know. A friendly guide helps readers through an introduction to recycling as well as what can be recycled. The main text is written in accessible language and gives age-appropriate details that complement elementary science curricula. A bright, colorful design keeps readers turning the pages.","English",25.6,20.48,"363.72’82--dc23","24 pp.","https://greenhavenpublishing.com/9781534540552",null,{"$f":"Table1[[#This Row],['# of Books]]*Table1[[#This Row],[QTY]]","v":0},{"$f":"Table1[[#This Row],[QTY]]*Table1[[#This Row],[School & Library Price]]","v":0}]
[null,null,null,3,29,"Science and Nature","Planet Earth Helpers","Recycling","978-1-5345-4056-9",null,null,"KidHaven Publishing","eBook",1,"2023","August 2022",null,null,"Author","Harriet Brundle",null,null,null,null,"K",null,"Grade 2","Grade 1 - 3","Recycling seems like an easy way to do good for planet Earth. Reusing items more than once is another practice many households can adopt to reduce what they use. But, there are some rules to recycling it’s important to know. A friendly guide helps readers through an introduction to recycling as well as what can be recycled. The main text is written in accessible language and gives age-appropriate details that complement elementary science curricula. A bright, colorful design keeps readers turning the pages.","English",25.6,20.48,"363.72’82--dc23","24 pp.","https://greenhavenpublishing.com/9781534540569","http://www.epointplus.com/embed/9781534540569/?login=cyberrep&password=cyberrep",{"$f":"Table1[[#This Row],['# of Books]]*Table1[[#This Row],[QTY]]","v":0},{"$f":"Table1[[#This Row],[QTY]]*Table1[[#This Row],[School & Library Price]]","v":0}]
[null,null,null,3,29,"Science and Nature","Planet Earth Helpers","Renewable Energy","978-1-5345-4059-0",null,null,"KidHaven Publishing","Library Bound Book",1,"2023","August 2022","Library","8.500 X 8.500","Author","Harriet Brundle",null,null,null,null,"K",null,"Grade 2","Grade 1 - 3","From wind power to solar power, there are so many renewable energy sources available today. Yet, fossil fuels are still the way most power is generated. This book tackles that fact by introducing readers to key concepts such as the definition of renewable energy and the problems with continued use of fossil fuels. Readers are introduced to alternative energy generation methods in age-appropriate detail guided by friendly narrators. A cute, colorful design complements the at-level text.","English",25.6,20.48,"333.79’4--dc23","24 pp.","https://greenhavenpublishing.com/9781534540590",null,{"$f":"Table1[[#This Row],['# of Books]]*Table1[[#This Row],[QTY]]","v":0},{"$f":"Table1[[#This Row],[QTY]]*Table1[[#This Row],[School & Library Price]]","v":0}]
[null,null,null,3,29,"Science and Nature","Planet Earth Helpers","Renewable Energy","978-1-5345-4060-6",null,null,"KidHaven Publishing","eBook",1,"2023","August 2022",null,null,"Author","Harriet Brundle",null,null,null,null,"K",null,"Grade 2","Grade 1 - 3","From wind power to solar power, there are so many renewable energy sources available today. Yet, fossil fuels are still the way most power is generated. This book tackles that fact by introducing readers to key concepts such as the definition of renewable energy and the problems with continued use of fossil fuels. Readers are introduced to alternative energy generation methods in age-appropriate detail guided by friendly narrators. A cute, colorful design complements the at-level text.","English",25.6,20.48,"333.79’4--dc23","24 pp.","https://greenhavenpublishing.com/9781534540606","http://www.epointplus.com/embed/9781534540606/?login=cyberrep&password=cyberrep",{"$f":"Table1[[#This Row],['# of Books]]*Table1[[#This Row],[QTY]]","v":0},{"$f":"Table1[[#This Row],[QTY]]*Table1[[#This Row],[School & Library Price]]","v":0}]
[null,null,null,3,29,"Science and Nature","Planet Earth Helpers","Sustainable Living","978-1-5345-4063-7",null,null,"KidHaven Publishing","Library Bound Book",1,"2023","August 2022","Library","8.500 X 8.500","Author","Harriet Brundle",null,null,null,null,"K",null,"Grade 2","Grade 1 - 3","What exactly is sustainable living? People who aim to live in this way try to limit pollution, take care of water and air, and make choices—like biking instead of driving—that are generally better for the planet. Many of these habits are easy for young people to adopt! In this book, readers are able to learn all about how to live sustainably and ways they can help their planet through their choices. The information is age-appropriate, presented by friendly guides and in a colorful, fun design.","English",25.6,20.48,"304.2--dc23","24 pp.","https://greenhavenpublishing.com/9781534540637",null,{"$f":"Table1[[#This Row],['# of Books]]*Table1[[#This Row],[QTY]]","v":0},{"$f":"Table1[[#This Row],[QTY]]*Table1[[#This Row],[School & Library Price]]","v":0}]
[null,null,null,3,29,"Science and Nature","Planet Earth Helpers","Sustainable Living","978-1-5345-4064-4",null,null,"KidHaven Publishing","eBook",1,"2023","August 2022",null,null,"Author","Harriet Brundle",null,null,null,null,"K",null,"Grade 2","Grade 1 - 3","What exactly is sustainable living? People who aim to live in this way try to limit pollution, take care of water and air, and make choices—like biking instead of driving—that are generally better for the planet. Many of these habits are easy for young people to adopt! In this book, readers are able to learn all about how to live sustainably and ways they can help their planet through their choices. The information is age-appropriate, presented by friendly guides and in a colorful, fun design.","English",25.6,20.48,"304.2--dc23","24 pp.","https://greenhavenpublishing.com/9781534540644","http://www.epointplus.com/embed/9781534540644/?login=cyberrep&password=cyberrep",{"$f":"Table1[[#This Row],['# of Books]]*Table1[[#This Row],[QTY]]","v":0},{"$f":"Table1[[#This Row],[QTY]]*Table1[[#This Row],[School & Library Price]]","v":0}]
[null,null,null,3,30,"Science and Nature","Tell Me How","Tell Me How","978-1-5345-4245-7",null,null,"KidHaven Publishing","Library Set",4,"2023","August 2022","Library","8.500 X 8.500",null,null,null,null,null,null,null,null,"Grade 2","Grade 1 - 3","Imagine being able to live in the darkest depths of the ocean, or in parched desert conditions that can reach around 158 degrees Fahrenheit (70 degrees Celsius). There are many animals that call these dangerous environments home. They are called extremophiles. This series allows students to explore the treacherous habitats and unique adaptations of creatures who have learned to survive in their severe surroundings. These include the Rüppell’s fox that can live in one of the hottest deserts in the world thanks to special fur on the pads of its paws and the deep-dwelling giant squid with eyes the size of soccer balls! This series offers young readers a range of unique facts about creatures that can help humans understand the most intense conditions under which life is possible on Earth.","English",102.4,81.92,null,"24 pp.","https://greenhavenpublishing.com/9781534542457",null,{"$f":"Table1[[#This Row],['# of Books]]*Table1[[#This Row],[QTY]]","v":0},{"$f":"Table1[[#This Row],[QTY]]*Table1[[#This Row],[School & Library Price]]","v":0}]
[null,null,null,3,30,"Science and Nature","Tell Me How","How Cold?","978-1-5345-4083-5",null,null,"KidHaven Publishing","Library Bound Book",1,"2023","August 2022","Library","8.500 X 8.500","Author","Azra Limbada",null,null,null,null,"K",null,"Grade 2","Grade 1 - 3","Temperatures that can drop to -144 degrees Fahrenheit (-98 degrees Celsius) certainly are too harsh for most humans. However, some animals are right at home with this intense cold. Young readers will learn about how these creatures known as extremophiles have adapted to these conditions with this exciting title. It explores not only the most frigid habitats on Earth, but also the extraordinary animals that call them home, from polar bears with insulating blubber to emperor penguins with ice shielding feathers. This book features compelling full-color photographs of animals expertly adapted to their frozen habitats, stimulating questions, and an imagination-building coloring activity to help students learn important content following life sciences curricula.","English",25.6,20.48,"590.911--dc23","24 pp.","https://greenhavenpublishing.com/9781534540835",null,{"$f":"Table1[[#This Row],['# of Books]]*Table1[[#This Row],[QTY]]","v":0},{"$f":"Table1[[#This Row],[QTY]]*Table1[[#This Row],[School & Library Price]]","v":0}]
[null,null,null,3,30,"Science and Nature","Tell Me How","How Cold?","978-1-5345-4084-2",null,null,"KidHaven Publishing","eBook",1,"2023","August 2022",null,null,"Author","Azra Limbada",null,null,null,null,"K",null,"Grade 2","Grade 1 - 3","Temperatures that can drop to -144 degrees Fahrenheit (-98 degrees Celsius) certainly are too harsh for most humans. However, some animals are right at home with this intense cold. Young readers will learn about how these creatures known as extremophiles have adapted to these conditions with this exciting title. It explores not only the most frigid habitats on Earth, but also the extraordinary animals that call them home, from polar bears with insulating blubber to emperor penguins with ice shielding feathers. This book features compelling full-color photographs of animals expertly adapted to their frozen habitats, stimulating questions, and an imagination-building coloring activity to help students learn important content following life sciences curricula.","English",25.6,20.48,"590.911--dc23","24 pp.","https://greenhavenpublishing.com/9781534540842","http://www.epointplus.com/embed/9781534540842/?login=cyberrep&password=cyberrep",{"$f":"Table1[[#This Row],['# of Books]]*Table1[[#This Row],[QTY]]","v":0},{"$f":"Table1[[#This Row],[QTY]]*Table1[[#This Row],[School & Library Price]]","v":0}]
[null,null,null,3,30,"Science and Nature","Tell Me How","How Deep?","978-1-5345-4087-3",null,null,"KidHaven Publishing","Library Bound Book",1,"2023","August 2022","Library","8.500 X 8.500","Author","Azra Limbada",null,null,null,null,"K",null,"Grade 2","Grade 1 - 3","The ocean fascinates readers of all ages. While young students may have an understanding of what oceans are, they may not be familiar with the adaptations creatures need to survive in these watery worlds. This title engages students in learning about ways animals have adapted to living in the extreme conditions of the ocean depths. These animals known as extremophiles include the giant squid which sports eight arms and two long tentacles for feeding and the fangtooth fish that has a dark coloring to blend into its surroundings. This title includes fact boxes and questions that motivate readers to make connections, vivid full-color photographs of astonishing aquatic life, and an interactive drawing activity to spur creativity. Complete with a glossary to enhance reader vocabularies, this title is sure to keep young readers enthralled in content that aligns with elementary life sciences curricula.","English",25.6,20.48,"591.77--dc23","24 pp.","https://greenhavenpublishing.com/9781534540873",null,{"$f":"Table1[[#This Row],['# of Books]]*Table1[[#This Row],[QTY]]","v":0},{"$f":"Table1[[#This Row],[QTY]]*Table1[[#This Row],[School & Library Price]]","v":0}]
[null,null,null,3,30,"Science and Nature","Tell Me How","How Deep?","978-1-5345-4088-0",null,null,"KidHaven Publishing","eBook",1,"2023","August 2022",null,null,"Author","Azra Limbada",null,null,null,null,"K",null,"Grade 2","Grade 1 - 3","The ocean fascinates readers of all ages. While young students may have an understanding of what oceans are, they may not be familiar with the adaptations creatures need to survive in these watery worlds. This title engages students in learning about ways animals have adapted to living in the extreme conditions of the ocean depths. These animals known as extremophiles include the giant squid which sports eight arms and two long tentacles for feeding and the fangtooth fish that has a dark coloring to blend into its surroundings. This title includes fact boxes and questions that motivate readers to make connections, vivid full-color photographs of astonishing aquatic life, and an interactive drawing activity to spur creativity. Complete with a glossary to enhance reader vocabularies, this title is sure to keep young readers enthralled in content that aligns with elementary life sciences curricula.","English",25.6,20.48,"591.77--dc23","24 pp.","https://greenhavenpublishing.com/9781534540880","http://www.epointplus.com/embed/9781534540880/?login=cyberrep&password=cyberrep",{"$f":"Table1[[#This Row],['# of Books]]*Table1[[#This Row],[QTY]]","v":0},{"$f":"Table1[[#This Row],[QTY]]*Table1[[#This Row],[School & Library Price]]","v":0}]
[null,null,null,3,30,"Science and Nature","Tell Me How","How High?","978-1-5345-4091-0",null,null,"KidHaven Publishing","Library Bound Book",1,"2023","August 2022","Library","8.500 X 8.500","Author","Azra Limbada",null,null,null,null,"K",null,"Grade 2","Grade 1 - 3","Life on the snowy slopes of the world’s tallest mountains isn’t always easy. However, some animals have learned how to thrive in this challenging environment. This exciting title will help young readers learn about these unusual animals including the Himalayan tahr and Himalayan marmot that have made mountain peaks their home. Following life sciences curricula, readers will gain an understanding of how these creatures have adapted to the dangers of their habitats. This title includes features to enhance young reader engagement such as lively full-color photographs, questions to encourage connections, a vocabulary-building glossary, and a drawing activity to boost ingenuity.","English",25.6,20.48,"591.75’3--dc23","24 pp.","https://greenhavenpublishing.com/9781534540910",null,{"$f":"Table1[[#This Row],['# of Books]]*Table1[[#This Row],[QTY]]","v":0},{"$f":"Table1[[#This Row],[QTY]]*Table1[[#This Row],[School & Library Price]]","v":0}]
[null,null,null,3,30,"Science and Nature","Tell Me How","How High?","978-1-5345-4092-7",null,null,"KidHaven Publishing","eBook",1,"2023","August 2022",null,null,"Author","Azra Limbada",null,null,null,null,"K",null,"Grade 2","Grade 1 - 3","Life on the snowy slopes of the world’s tallest mountains isn’t always easy. However, some animals have learned how to thrive in this challenging environment. This exciting title will help young readers learn about these unusual animals including the Himalayan tahr and Himalayan marmot that have made mountain peaks their home. Following life sciences curricula, readers will gain an understanding of how these creatures have adapted to the dangers of their habitats. This title includes features to enhance young reader engagement such as lively full-color photographs, questions to encourage connections, a vocabulary-building glossary, and a drawing activity to boost ingenuity.","English",25.6,20.48,"591.75’3--dc23","24 pp.","https://greenhavenpublishing.com/9781534540927","http://www.epointplus.com/embed/9781534540927/?login=cyberrep&password=cyberrep",{"$f":"Table1[[#This Row],['# of Books]]*Table1[[#This Row],[QTY]]","v":0},{"$f":"Table1[[#This Row],[QTY]]*Table1[[#This Row],[School & Library Price]]","v":0}]
[null,null,null,3,30,"Science and Nature","Tell Me How","How Hot?","978-1-5345-4095-8",null,null,"KidHaven Publishing","Library Bound Book",1,"2023","August 2022","Library","8.500 X 8.500","Author","Azra Limbada",null,null,null,null,"K",null,"Grade 2","Grade 1 - 3","Extreme heat can be deadly for humans. However, it isn’t a problem for many desert creatures! Young readers will learn about animals that have adapted to living in conditions that can reach 158 degrees Fahrenheit (70 degrees Celsius) with this lively title that enhances elementary life sciences curricula. It features captivating descriptions, intriguing fact-boxes, and appealing full-color photos of desert habitats and the astonishing animals adapted to them. These animals include the desert tortoise that has learned to dig holes in the sand to escape the heat and dung beetles that have evolved to navigate using the stars. An interactive activity at the end of the book challenges young readers to make connections and use their imaginations to draw their own creature adapted to desert habitats.","English",25.6,20.48,"591.754--dc23","24 pp.","https://greenhavenpublishing.com/9781534540958",null,{"$f":"Table1[[#This Row],['# of Books]]*Table1[[#This Row],[QTY]]","v":0},{"$f":"Table1[[#This Row],[QTY]]*Table1[[#This Row],[School & Library Price]]","v":0}]
[null,null,null,3,30,"Science and Nature","Tell Me How","How Hot?","978-1-5345-4096-5",null,null,"KidHaven Publishing","eBook",1,"2023","August 2022",null,null,"Author","Azra Limbada",null,null,null,null,"K",null,"Grade 2","Grade 1 - 3","Extreme heat can be deadly for humans. However, it isn’t a problem for many desert creatures! Young readers will learn about animals that have adapted to living in conditions that can reach 158 degrees Fahrenheit (70 degrees Celsius) with this lively title that enhances elementary life sciences curricula. It features captivating descriptions, intriguing fact-boxes, and appealing full-color photos of desert habitats and the astonishing animals adapted to them. These animals include the desert tortoise that has learned to dig holes in the sand to escape the heat and dung beetles that have evolved to navigate using the stars. An interactive activity at the end of the book challenges young readers to make connections and use their imaginations to draw their own creature adapted to desert habitats.","English",25.6,20.48,"591.754--dc23","24 pp.","https://greenhavenpublishing.com/9781534540965","http://www.epointplus.com/embed/9781534540965/?login=cyberrep&password=cyberrep",{"$f":"Table1[[#This Row],['# of Books]]*Table1[[#This Row],[QTY]]","v":0},{"$f":"Table1[[#This Row],[QTY]]*Table1[[#This Row],[School & Library Price]]","v":0}]
[null,null,null,3,31,"Science and Nature","What's the Weather?","What's the Weather?","978-1-5345-4246-4",null,null,"KidHaven Publishing","Library Set",4,"2023","August 2022","Library","8.500 X 8.500",null,null,null,null,null,null,null,null,"Grade 2","Grade 1 - 3","Young children have a curiosity about the world around them, and nothing inspires wonder quite like the weather. They may have questions about the many types of weather that can shape their lives, from the rain that may keep them indoors to the wind that lifts their kites. This exciting set is here to help them understand these different weather phenomena and the impacts each can have on the world around them.","English",102.4,81.92,null,"24 pp.","https://greenhavenpublishing.com/9781534542464",null,{"$f":"Table1[[#This Row],['# of Books]]*Table1[[#This Row],[QTY]]","v":0},{"$f":"Table1[[#This Row],[QTY]]*Table1[[#This Row],[School & Library Price]]","v":0}]
[null,null,null,3,31,"Science and Nature","What's the Weather?","It's Raining","978-1-5345-4067-5",null,null,"KidHaven Publishing","Library Bound Book",1,"2023","August 2022","Library","8.500 X 8.500","Author","William Anthony",null,null,null,null,"K",null,"Grade 2","Grade 1 - 3","Rain can be both one of the most important and the most damaging weather events on Earth. Young readers are likely familiar with rain from splashing in puddles, but they may wonder why it happens. This exciting title features a fun illustrated character that guides young learners through a journey of learning not only about how rain is formed but also the impact it has on people worldwide. This includes the role of rain in the water cycle, how it is necessary for growing important crops such as rice, and how it can cause serious damage when part of weather events such as flooding and monsoons. All of this content aims to enhance early elementary Earth Science curricula. This relatable and engaging title is complete with eye-catching full-color photos, questions that stimulate reader connections, a diagram of what to wear in the rain, and a vocabulary-building glossary.","English",25.6,20.48,"551.57’7--dc23","24 pp.","https://greenhavenpublishing.com/9781534540675",null,{"$f":"Table1[[#This Row],['# of Books]]*Table1[[#This Row],[QTY]]","v":0},{"$f":"Table1[[#This Row],[QTY]]*Table1[[#This Row],[School & Library Price]]","v":0}]
[null,null,null,3,31,"Science and Nature","What's the Weather?","It's Raining","978-1-5345-4068-2",null,null,"KidHaven Publishing","eBook",1,"2023","August 2022",null,null,"Author","William Anthony",null,null,null,null,"K",null,"Grade 2","Grade 1 - 3","Rain can be both one of the most important and the most damaging weather events on Earth. Young readers are likely familiar with rain from splashing in puddles, but they may wonder why it happens. This exciting title features a fun illustrated character that guides young learners through a journey of learning not only about how rain is formed but also the impact it has on people worldwide. This includes the role of rain in the water cycle, how it is necessary for growing important crops such as rice, and how it can cause serious damage when part of weather events such as flooding and monsoons. All of this content aims to enhance early elementary Earth Science curricula. This relatable and engaging title is complete with eye-catching full-color photos, questions that stimulate reader connections, a diagram of what to wear in the rain, and a vocabulary-building glossary.","English",25.6,20.48,"551.57’7--dc23","24 pp.","https://greenhavenpublishing.com/9781534540682","http://www.epointplus.com/embed/9781534540682/?login=cyberrep&password=cyberrep",{"$f":"Table1[[#This Row],['# of Books]]*Table1[[#This Row],[QTY]]","v":0},{"$f":"Table1[[#This Row],[QTY]]*Table1[[#This Row],[School & Library Price]]","v":0}]
[null,null,null,3,31,"Science and Nature","What's the Weather?","It's Snowy","978-1-5345-4071-2",null,null,"KidHaven Publishing","Library Bound Book",1,"2023","August 2022","Library","8.500 X 8.500","Author","Azra Limbada",null,null,null,null,"K",null,"Grade 2","Grade 1 - 3","Few things can be quite as delightful to children as the first snow of the season. However, curious kids might wonder why snow happens. This title featuring the lively illustrated character Snowy the snowball is here to help! Snowy and vivid photographs on every page will captivate young readers as they learn about conditions for forming snow, the season in which it forms, what to wear when playing in the snow, and animals adapted to survive snow’s frigid temperatures. A brief overview of snow’s role in the water cycle and a glossary of weather-related terms are just a few of the additional features this title offers to stimulate young reader interest in concepts related to Earth Science curricula.","English",25.6,20.48,"551.57’84--dc23","24 pp.","https://greenhavenpublishing.com/9781534540712",null,{"$f":"Table1[[#This Row],['# of Books]]*Table1[[#This Row],[QTY]]","v":0},{"$f":"Table1[[#This Row],[QTY]]*Table1[[#This Row],[School & Library Price]]","v":0}]
[null,null,null,3,31,"Science and Nature","What's the Weather?","It's Snowy","978-1-5345-4072-9",null,null,"KidHaven Publishing","eBook",1,"2023","August 2022",null,null,"Author","Azra Limbada",null,null,null,null,"K",null,"Grade 2","Grade 1 - 3","Few things can be quite as delightful to children as the first snow of the season. However, curious kids might wonder why snow happens. This title featuring the lively illustrated character Snowy the snowball is here to help! Snowy and vivid photographs on every page will captivate young readers as they learn about conditions for forming snow, the season in which it forms, what to wear when playing in the snow, and animals adapted to survive snow’s frigid temperatures. A brief overview of snow’s role in the water cycle and a glossary of weather-related terms are just a few of the additional features this title offers to stimulate young reader interest in concepts related to Earth Science curricula.","English",25.6,20.48,"551.57’84--dc23","24 pp.","https://greenhavenpublishing.com/9781534540729","http://www.epointplus.com/embed/9781534540729/?login=cyberrep&password=cyberrep",{"$f":"Table1[[#This Row],['# of Books]]*Table1[[#This Row],[QTY]]","v":0},{"$f":"Table1[[#This Row],[QTY]]*Table1[[#This Row],[School & Library Price]]","v":0}]
[null,null,null,3,31,"Science and Nature","What's the Weather?","It's Sunny","978-1-5345-4075-0",null,null,"KidHaven Publishing","Library Bound Book",1,"2023","August 2022","Library","8.500 X 8.500","Author","William Anthony",null,null,null,null,"K",null,"Grade 2","Grade 1 - 3","A summer day spent playing in the sunshine easily inspires smiles for young children. Early readers are at an age when they may just begin wondering why some days are sunny and others are rainy or cloudy. In this stimulating title, the illustrated sun-shaped character Ray guides readers through not only learning about what weather is, but also how sunshine affects people, plants, and animals. This title also reveals to young readers what the sun is made from and what they can wear to stay protected from its pleasant but powerful rays. Brilliant full-color photos, a diagram showing the four seasons, and a glossary with weather-related terms are all additional elements to strengthen young reader engagement in content aligned with Earth Science curricula.","English",25.6,20.48,"551.5’271--dc23","24 pp.","https://greenhavenpublishing.com/9781534540750",null,{"$f":"Table1[[#This Row],['# of Books]]*Table1[[#This Row],[QTY]]","v":0},{"$f":"Table1[[#This Row],[QTY]]*Table1[[#This Row],[School & Library Price]]","v":0}]
[null,null,null,3,31,"Science and Nature","What's the Weather?","It's Sunny","978-1-5345-4076-7",null,null,"KidHaven Publishing","eBook",1,"2023","August 2022",null,null,"Author","William Anthony",null,null,null,null,"K",null,"Grade 2","Grade 1 - 3","A summer day spent playing in the sunshine easily inspires smiles for young children. Early readers are at an age when they may just begin wondering why some days are sunny and others are rainy or cloudy. In this stimulating title, the illustrated sun-shaped character Ray guides readers through not only learning about what weather is, but also how sunshine affects people, plants, and animals. This title also reveals to young readers what the sun is made from and what they can wear to stay protected from its pleasant but powerful rays. Brilliant full-color photos, a diagram showing the four seasons, and a glossary with weather-related terms are all additional elements to strengthen young reader engagement in content aligned with Earth Science curricula.","English",25.6,20.48,"551.5’271--dc23","24 pp.","https://greenhavenpublishing.com/9781534540767","http://www.epointplus.com/embed/9781534540767/?login=cyberrep&password=cyberrep",{"$f":"Table1[[#This Row],['# of Books]]*Table1[[#This Row],[QTY]]","v":0},{"$f":"Table1[[#This Row],[QTY]]*Table1[[#This Row],[School & Library Price]]","v":0}]
[null,null,null,3,31,"Science and Nature","What's the Weather?","It's Windy","978-1-5345-4079-8",null,null,"KidHaven Publishing","Library Bound Book",1,"2023","August 2022","Library","8.500 X 8.500","Author","Azra Limbada",null,null,null,null,"K",null,"Grade 2","Grade 1 - 3","When a storm blows in, young children may wonder what is going on. Early readers can find answers that spark continued curiosity with the help of the illustrated character Will the wind cloud in this intriguing title. It begins by challenging young readers to look out their windows to help them connect the topic of weather to their everyday lives. Will the wind cloud then accompanies readers as they continue to learn about the seasons, where wind comes from, and the effects powerful winds can have on people, plants, and animals. This title’s content that enhances Kindergarten Earth Science curricula continues to capture reader engagement with striking full-color photos, a glossary with weather-related terms, and ideas to help children embrace gentler winds on mild days.","English",25.6,20.48,"551.51’8--dc23","24 pp.","https://greenhavenpublishing.com/9781534540798",null,{"$f":"Table1[[#This Row],['# of Books]]*Table1[[#This Row],[QTY]]","v":0},{"$f":"Table1[[#This Row],[QTY]]*Table1[[#This Row],[School & Library Price]]","v":0}]
[null,null,null,3,31,"Science and Nature","What's the Weather?","It's Windy","978-1-5345-4080-4",null,null,"KidHaven Publishing","eBook",1,"2023","August 2022",null,null,"Author","Azra Limbada",null,null,null,null,"K",null,"Grade 2","Grade 1 - 3","When a storm blows in, young children may wonder what is going on. Early readers can find answers that spark continued curiosity with the help of the illustrated character Will the wind cloud in this intriguing title. It begins by challenging young readers to look out their windows to help them connect the topic of weather to their everyday lives. Will the wind cloud then accompanies readers as they continue to learn about the seasons, where wind comes from, and the effects powerful winds can have on people, plants, and animals. This title’s content that enhances Kindergarten Earth Science curricula continues to capture reader engagement with striking full-color photos, a glossary with weather-related terms, and ideas to help children embrace gentler winds on mild days.","English",25.6,20.48,"551.51’8--dc23","24 pp.","https://greenhavenpublishing.com/9781534540804","http://www.epointplus.com/embed/9781534540804/?login=cyberrep&password=cyberrep",{"$f":"Table1[[#This Row],['# of Books]]*Table1[[#This Row],[QTY]]","v":0},{"$f":"Table1[[#This Row],[QTY]]*Table1[[#This Row],[School & Library Price]]","v":0}]
[null,null,null,null,32,"Science and Technology","Food Webs","Food Webs","978-1-5345-3601-2",{"$f":"HYPERLINK(Table1[[#This Row],[eCommerce Hyperlink]],\"Book Weblink\")","v":"Book Weblink"},null,"KidHaven Publishing","Library Set",6,"2021","January 2021","Library","8.500 X 8.500",null,null,null,null,null,null,null,null,"Grade 2","Grade 2 - 4","There are many types of food webs in the animal kingdom, whether it is in the desert, forest, grasslands, mountains, oceans, or rivers. Each ecosystem has its own set of apex predators, carnivores, omnivores, and herbivores. Readers will enter a world where they explore basic food webs and the relationships between predators, prey, and their environment, while learning essential facts about animals. Informative charts, graphic organizers, and tables support comprehension. Eye-catching, full-color photographs enhance this exploration of science curriculum topics. Features include: A charming tone that introduces readers to animals in different food webs as if that animal were talking directly to readers. Detailed examples of food webs that fill the pages, helping readers visualize this concept. Charts that present basic facts about common animals in each ecosystem.","English",153.6,122.88,null,"24 pp.","https://greenhavenpublishing.com/9781534536012",null,{"$f":"Table1[[#This Row],['# of Books]]*Table1[[#This Row],[QTY]]","v":0},{"$f":"Table1[[#This Row],[QTY]]*Table1[[#This Row],[School & Library Price]]","v":0}]
[null,null,null,null,32,"Science and Technology","Food Webs","Desert Food Webs","978-1-5345-3511-4",{"$f":"HYPERLINK(Table1[[#This Row],[eCommerce Hyperlink]],\"Book Weblink\")","v":"Book Weblink"},null,"KidHaven Publishing","Library Bound Book",1,"2021","January 2021","Library","8.500 X 8.500","Author","William Anthony",null,null,null,null,"K",null,"Grade 2","Grade 2 - 4","Young readers will discover many different animals that live in the desert through this engaging look at desert food webs. The creative approach and conversational tone presents the various members of desert food webs to readers as colorful characters with their own unique voices. These characters provide readers with facts about their place in the desert ecosystem. Readers learn about the relationships between predators and prey, in addition to other basic science curriculum topics. Helpful graphic organizers add extra facts about these animals. Vibrant, full-color photographs encourage readers to dive deeper into the exciting world of desert food webs.","English",25.6,20.48,"577.54--dc23","24 pp.","https://greenhavenpublishing.com/9781534535114",null,{"$f":"Table1[[#This Row],['# of Books]]*Table1[[#This Row],[QTY]]","v":0},{"$f":"Table1[[#This Row],[QTY]]*Table1[[#This Row],[School & Library Price]]","v":0}]
[null,null,null,null,32,"Science and Technology","Food Webs","Desert Food Webs","978-1-5345-3512-1",{"$f":"HYPERLINK(Table1[[#This Row],[eCommerce Hyperlink]],\"Book Weblink\")","v":"Book Weblink"},null,"KidHaven Publishing","eBook",1,"2021","January 2021",null,null,"Author","William Anthony",null,null,null,null,"K",null,"Grade 2","Grade 2 - 4","Young readers will discover many different animals that live in the desert through this engaging look at desert food webs. The creative approach and conversational tone presents the various members of desert food webs to readers as colorful characters with their own unique voices. These characters provide readers with facts about their place in the desert ecosystem. Readers learn about the relationships between predators and prey, in addition to other basic science curriculum topics. Helpful graphic organizers add extra facts about these animals. Vibrant, full-color photographs encourage readers to dive deeper into the exciting world of desert food webs.","English",25.6,20.48,"577.54--dc23","24 pp.","https://greenhavenpublishing.com/9781534535121",null,{"$f":"Table1[[#This Row],['# of Books]]*Table1[[#This Row],[QTY]]","v":0},{"$f":"Table1[[#This Row],[QTY]]*Table1[[#This Row],[School & Library Price]]","v":0}]
[null,null,null,null,32,"Science and Technology","Food Webs","Forest Food Webs","978-1-5345-3518-3",{"$f":"HYPERLINK(Table1[[#This Row],[eCommerce Hyperlink]],\"Book Weblink\")","v":"Book Weblink"},null,"KidHaven Publishing","Library Bound Book",1,"2021","January 2021","Library","8.500 X 8.500","Author","William Anthony",null,null,null,null,"K",null,"Grade 2","Grade 2 - 4","The animal kingdom contains several food webs linking all different animals to one another, such as apex predators, carnivores, and herbivores. Your readers will learn about forest food webs as they discover fun facts about animals that call the forest home. As they learn about this essential science curriculum topic, they'll find fun visualizations of food webs and helpful graphic organizers. Full-color photographs of forest animals provide an engaging look at this ecosystem, and the conversational tone makes learning about animals and their relationships fun and educational.","English",25.6,20.48,"577.3--dc23","24 pp.","https://greenhavenpublishing.com/9781534535183",null,{"$f":"Table1[[#This Row],['# of Books]]*Table1[[#This Row],[QTY]]","v":0},{"$f":"Table1[[#This Row],[QTY]]*Table1[[#This Row],[School & Library Price]]","v":0}]
[null,null,null,null,32,"Science and Technology","Food Webs","Forest Food Webs","978-1-5345-3519-0",{"$f":"HYPERLINK(Table1[[#This Row],[eCommerce Hyperlink]],\"Book Weblink\")","v":"Book Weblink"},null,"KidHaven Publishing","eBook",1,"2021","January 2021",null,null,"Author","William Anthony",null,null,null,null,"K",null,"Grade 2","Grade 2 - 4","The animal kingdom contains several food webs linking all different animals to one another, such as apex predators, carnivores, and herbivores. Your readers will learn about forest food webs as they discover fun facts about animals that call the forest home. As they learn about this essential science curriculum topic, they'll find fun visualizations of food webs and helpful graphic organizers. Full-color photographs of forest animals provide an engaging look at this ecosystem, and the conversational tone makes learning about animals and their relationships fun and educational.","English",25.6,20.48,"577.3--dc23","24 pp.","https://greenhavenpublishing.com/9781534535190",null,{"$f":"Table1[[#This Row],['# of Books]]*Table1[[#This Row],[QTY]]","v":0},{"$f":"Table1[[#This Row],[QTY]]*Table1[[#This Row],[School & Library Price]]","v":0}]
[null,null,null,null,32,"Science and Technology","Food Webs","Grassland Food Webs","978-1-5345-3522-0",{"$f":"HYPERLINK(Table1[[#This Row],[eCommerce Hyperlink]],\"Book Weblink\")","v":"Book Weblink"},null,"KidHaven Publishing","Library Bound Book",1,"2021","January 2021","Library","8.500 X 8.500","Author","William Anthony",null,null,null,null,"K",null,"Grade 2","Grade 2 - 4","How do animals in the grasslands eat? Readers discover the answer to this question while learning many other fun facts related to this exciting science curriculum topic. In every ecosystem, including the grasslands, there are a number of different animals, such as carnivores, omnivores, and herbivores. Each animal is part of a specific food web, and these food webs are presented to readers in an accessible visual style and conversational tone. Informative graphic organizers and bright, full-color photographs add to this reading experience for animal lovers.","English",25.6,20.48,"577.4--dc23","24 pp.","https://greenhavenpublishing.com/9781534535220",null,{"$f":"Table1[[#This Row],['# of Books]]*Table1[[#This Row],[QTY]]","v":0},{"$f":"Table1[[#This Row],[QTY]]*Table1[[#This Row],[School & Library Price]]","v":0}]
[null,null,null,null,32,"Science and Technology","Food Webs","Grassland Food Webs","978-1-5345-3523-7",{"$f":"HYPERLINK(Table1[[#This Row],[eCommerce Hyperlink]],\"Book Weblink\")","v":"Book Weblink"},null,"KidHaven Publishing","eBook",1,"2021","January 2021",null,null,"Author","William Anthony",null,null,null,null,"K",null,"Grade 2","Grade 2 - 4","How do animals in the grasslands eat? Readers discover the answer to this question while learning many other fun facts related to this exciting science curriculum topic. In every ecosystem, including the grasslands, there are a number of different animals, such as carnivores, omnivores, and herbivores. Each animal is part of a specific food web, and these food webs are presented to readers in an accessible visual style and conversational tone. Informative graphic organizers and bright, full-color photographs add to this reading experience for animal lovers.","English",25.6,20.48,"577.4--dc23","24 pp.","https://greenhavenpublishing.com/9781534535237",null,{"$f":"Table1[[#This Row],['# of Books]]*Table1[[#This Row],[QTY]]","v":0},{"$f":"Table1[[#This Row],[QTY]]*Table1[[#This Row],[School & Library Price]]","v":0}]
[null,null,null,null,32,"Science and Technology","Food Webs","Mountain Food Webs","978-1-5345-3526-8",{"$f":"HYPERLINK(Table1[[#This Row],[eCommerce Hyperlink]],\"Book Weblink\")","v":"Book Weblink"},null,"KidHaven Publishing","Library Bound Book",1,"2021","January 2021","Library","8.500 X 8.500","Author","William Anthony",null,null,null,null,"K",null,"Grade 2","Grade 2 - 4","There are numerous food webs linking different animals that live in the mountains to one another. Some animals are predators and others are prey, and understanding this kind of animal relationship is an essential part of early science curricula. In addition to learning interesting facts related to this basic science curriculum topic, readers discover additional information about various mountain animals. The captivating, full-color photographs, vibrant food webs, graphic organizers help readers visualize this topic. The engaging tone presents information in a conversational and charming way that readers will enjoy.","English",25.6,20.48,"577.5'3--dc23","24 pp.","https://greenhavenpublishing.com/9781534535268",null,{"$f":"Table1[[#This Row],['# of Books]]*Table1[[#This Row],[QTY]]","v":0},{"$f":"Table1[[#This Row],[QTY]]*Table1[[#This Row],[School & Library Price]]","v":0}]
[null,null,null,null,32,"Science and Technology","Food Webs","Mountain Food Webs","978-1-5345-3527-5",{"$f":"HYPERLINK(Table1[[#This Row],[eCommerce Hyperlink]],\"Book Weblink\")","v":"Book Weblink"},null,"KidHaven Publishing","eBook",1,"2021","January 2021",null,null,"Author","William Anthony",null,null,null,null,"K",null,"Grade 2","Grade 2 - 4","There are numerous food webs linking different animals that live in the mountains to one another. Some animals are predators and others are prey, and understanding this kind of animal relationship is an essential part of early science curricula. In addition to learning interesting facts related to this basic science curriculum topic, readers discover additional information about various mountain animals. The captivating, full-color photographs, vibrant food webs, graphic organizers help readers visualize this topic. The engaging tone presents information in a conversational and charming way that readers will enjoy.","English",25.6,20.48,"577.5'3--dc23","24 pp.","https://greenhavenpublishing.com/9781534535275",null,{"$f":"Table1[[#This Row],['# of Books]]*Table1[[#This Row],[QTY]]","v":0},{"$f":"Table1[[#This Row],[QTY]]*Table1[[#This Row],[School & Library Price]]","v":0}]
[null,null,null,null,32,"Science and Technology","Food Webs","Ocean Food Webs","978-1-5345-3530-5",{"$f":"HYPERLINK(Table1[[#This Row],[eCommerce Hyperlink]],\"Book Weblink\")","v":"Book Weblink"},null,"KidHaven Publishing","Library Bound Book",1,"2021","January 2021","Library","8.500 X 8.500","Author","William Anthony",null,null,null,null,"K",null,"Grade 2","Grade 2 - 4","The ocean is full of complex food webs made up of many different animals fighting to stay alive within this massive ecosystem. Carnivores, herbivores, and other classified creatures are introduced within the accessible and age-appropriate narrative, which is presented in a conversational tone and creative way. Popular creatures are categorized separately and given detailed descriptions, which allows readers to expand their knowledge of each animal. Helpful graphic organizers provide additional information. Full-color photographs make this an exciting learning experience for all those interested in expanding their knowledge of the science and webs of marine life.","English",25.6,20.48,"577.7--dc23","24 pp.","https://greenhavenpublishing.com/9781534535305",null,{"$f":"Table1[[#This Row],['# of Books]]*Table1[[#This Row],[QTY]]","v":0},{"$f":"Table1[[#This Row],[QTY]]*Table1[[#This Row],[School & Library Price]]","v":0}]
[null,null,null,null,32,"Science and Technology","Food Webs","Ocean Food Webs","978-1-5345-3531-2",{"$f":"HYPERLINK(Table1[[#This Row],[eCommerce Hyperlink]],\"Book Weblink\")","v":"Book Weblink"},null,"KidHaven Publishing","eBook",1,"2021","January 2021",null,null,"Author","William Anthony",null,null,null,null,"K",null,"Grade 2","Grade 2 - 4","The ocean is full of complex food webs made up of many different animals fighting to stay alive within this massive ecosystem. Carnivores, herbivores, and other classified creatures are introduced within the accessible and age-appropriate narrative, which is presented in a conversational tone and creative way. Popular creatures are categorized separately and given detailed descriptions, which allows readers to expand their knowledge of each animal. Helpful graphic organizers provide additional information. Full-color photographs make this an exciting learning experience for all those interested in expanding their knowledge of the science and webs of marine life.","English",25.6,20.48,"577.7--dc23","24 pp.","https://greenhavenpublishing.com/9781534535312",null,{"$f":"Table1[[#This Row],['# of Books]]*Table1[[#This Row],[QTY]]","v":0},{"$f":"Table1[[#This Row],[QTY]]*Table1[[#This Row],[School & Library Price]]","v":0}]
[null,null,null,null,32,"Science and Technology","Food Webs","River Food Webs","978-1-5345-3534-3",{"$f":"HYPERLINK(Table1[[#This Row],[eCommerce Hyperlink]],\"Book Weblink\")","v":"Book Weblink"},null,"KidHaven Publishing","Library Bound Book",1,"2021","January 2021","Library","8.500 X 8.500","Author","William Anthony",null,null,null,null,"K",null,"Grade 2","Grade 2 - 4","There are many food webs connecting different types of animals in river ecosystems. Within this accessible and engaging book, popular animals are categorized and given in-depth descriptions. Readers gain an understanding of an animal's needs for survival and broaden their knowledge of this essential science curriculum topic. An informative glossary and detailed graphic organizers provide extra insight. Compelling design elements including full-color photographs of animals in their natural habitats and visual representations of food webs add to this fun and fact-filled reading experience.","English",25.6,20.48,"577.6'4--dc23","24 pp.","https://greenhavenpublishing.com/9781534535343",null,{"$f":"Table1[[#This Row],['# of Books]]*Table1[[#This Row],[QTY]]","v":0},{"$f":"Table1[[#This Row],[QTY]]*Table1[[#This Row],[School & Library Price]]","v":0}]
[null,null,null,null,32,"Science and Technology","Food Webs","River Food Webs","978-1-5345-3535-0",{"$f":"HYPERLINK(Table1[[#This Row],[eCommerce Hyperlink]],\"Book Weblink\")","v":"Book Weblink"},null,"KidHaven Publishing","eBook",1,"2021","January 2021",null,null,"Author","William Anthony",null,null,null,null,"K",null,"Grade 2","Grade 2 - 4","There are many food webs connecting different types of animals in river ecosystems. Within this accessible and engaging book, popular animals are categorized and given in-depth descriptions. Readers gain an understanding of an animal's needs for survival and broaden their knowledge of this essential science curriculum topic. An informative glossary and detailed graphic organizers provide extra insight. Compelling design elements including full-color photographs of animals in their natural habitats and visual representations of food webs add to this fun and fact-filled reading experience.","English",25.6,20.48,"577.6'4--dc23","24 pp.","https://greenhavenpublishing.com/9781534535350",null,{"$f":"Table1[[#This Row],['# of Books]]*Table1[[#This Row],[QTY]]","v":0},{"$f":"Table1[[#This Row],[QTY]]*Table1[[#This Row],[School & Library Price]]","v":0}]
[null,null,null,22,33,"Science and Technology","My First Experiments","My First Experiments","978-1-5345-3908-2",{"$f":"HYPERLINK(Table1[[#This Row],[eCommerce Hyperlink]],\"Book Weblink\")","v":"Book Weblink"},null,"KidHaven Publishing","Library Set",4,"2022","August 2021","Library","8.500 X 8.500",null,null,null,null,null,null,null,null,"Grade 2 - 3","Grade 2 - 4","This exciting guide to elementary science gives young readers the tools to take a hands-on approach to learning about electricity, light, materials, and weather. Age-appropriate text and relatable examples break down essential curriculum concepts in a way that’s easy for elementary learners to understand. Additional assistance is provided in the form of clearly-labeled photographs and simple diagrams. As readers explore each topic, they’re presented with guided experiments that allow them to put their new knowledge into action and to have fun with science. This fresh approach to common STEM concepts is designed to inspire the next generation of scientists.","English",102.4,81.92,null,"24 pp.","https://greenhavenpublishing.com/9781534539082",null,{"$f":"Table1[[#This Row],['# of Books]]*Table1[[#This Row],[QTY]]","v":0},{"$f":"Table1[[#This Row],[QTY]]*Table1[[#This Row],[School & Library Price]]","v":0}]
[null,null,null,22,33,"Science and Technology","My First Experiments","Experiments with Electricity","978-1-5345-3870-2",{"$f":"HYPERLINK(Table1[[#This Row],[eCommerce Hyperlink]],\"Book Weblink\")","v":"Book Weblink"},null,"KidHaven Publishing","Library Bound Book",1,"2022","August 2021","Library","8.500 X 8.500","Author","Mignonne Gunasekara",null,null,null,null,"M",null,"Grade 2 - 3","Grade 2 - 4","How does an electrical circuit work? What’s a conductor? Where does static electricity come from? The answers to these questions and more are waiting for readers to discover in this engaging and educational guide to electricity. This essential science curriculum topic is presented through clear, concise text that’s paired with photographs, illustrations, and diagrams with clear labels. In addition, readers are encouraged to follow along with simple instructions to complete experiments that further enhance the learning experience. A reward awaits budding scientists who complete these experiments!","English",25.6,20.48,"535.078--dc23","24 pp.","https://greenhavenpublishing.com/9781534538702",null,{"$f":"Table1[[#This Row],['# of Books]]*Table1[[#This Row],[QTY]]","v":0},{"$f":"Table1[[#This Row],[QTY]]*Table1[[#This Row],[School & Library Price]]","v":0}]
[null,null,null,22,33,"Science and Technology","My First Experiments","Experiments with Electricity","978-1-5345-3871-9",{"$f":"HYPERLINK(Table1[[#This Row],[eCommerce Hyperlink]],\"Book Weblink\")","v":"Book Weblink"},null,"KidHaven Publishing","eBook",1,"2022","August 2021",null,null,"Author","Mignonne Gunasekara",null,null,null,null,"M",null,"Grade 2 - 3","Grade 2 - 4","How does an electrical circuit work? What’s a conductor? Where does static electricity come from? The answers to these questions and more are waiting for readers to discover in this engaging and educational guide to electricity. This essential science curriculum topic is presented through clear, concise text that’s paired with photographs, illustrations, and diagrams with clear labels. In addition, readers are encouraged to follow along with simple instructions to complete experiments that further enhance the learning experience. A reward awaits budding scientists who complete these experiments!","English",25.6,20.48,"535.078--dc23","24 pp.","https://greenhavenpublishing.com/9781534538719",null,{"$f":"Table1[[#This Row],['# of Books]]*Table1[[#This Row],[QTY]]","v":0},{"$f":"Table1[[#This Row],[QTY]]*Table1[[#This Row],[School & Library Price]]","v":0}]
[null,null,null,22,33,"Science and Technology","My First Experiments","Experiments with Light","978-1-5345-3874-0",{"$f":"HYPERLINK(Table1[[#This Row],[eCommerce Hyperlink]],\"Book Weblink\")","v":"Book Weblink"},null,"KidHaven Publishing","Library Bound Book",1,"2022","August 2021","Library","8.500 X 8.500","Author","Mignonne Gunasekara",null,null,null,null,"M",null,"Grade 2 - 3","Grade 2 - 4","The science of light is presented to readers in a fun and fact-filled way in this guide to conducting simple experiments. Essential background information is given to readers through age-appropriate text and helpful diagrams. Readers are then encouraged to take what they’ve learned and apply it in a hands-on way. Step-by-step instructions, vibrant photographs, and colorful illustrations take readers through each experiment as they work to earn a colorful badge in the end that reflects their new role as light experiment experts.","English",25.6,20.48,"535.078--dc23","24 pp.","https://greenhavenpublishing.com/9781534538740",null,{"$f":"Table1[[#This Row],['# of Books]]*Table1[[#This Row],[QTY]]","v":0},{"$f":"Table1[[#This Row],[QTY]]*Table1[[#This Row],[School & Library Price]]","v":0}]
[null,null,null,22,33,"Science and Technology","My First Experiments","Experiments with Light","978-1-5345-3875-7",{"$f":"HYPERLINK(Table1[[#This Row],[eCommerce Hyperlink]],\"Book Weblink\")","v":"Book Weblink"},null,"KidHaven Publishing","eBook",1,"2022","August 2021",null,null,"Author","Mignonne Gunasekara",null,null,null,null,"M",null,"Grade 2 - 3","Grade 2 - 4","The science of light is presented to readers in a fun and fact-filled way in this guide to conducting simple experiments. Essential background information is given to readers through age-appropriate text and helpful diagrams. Readers are then encouraged to take what they’ve learned and apply it in a hands-on way. Step-by-step instructions, vibrant photographs, and colorful illustrations take readers through each experiment as they work to earn a colorful badge in the end that reflects their new role as light experiment experts.","English",25.6,20.48,"535.078--dc23","24 pp.","https://greenhavenpublishing.com/9781534538757",null,{"$f":"Table1[[#This Row],['# of Books]]*Table1[[#This Row],[QTY]]","v":0},{"$f":"Table1[[#This Row],[QTY]]*Table1[[#This Row],[School & Library Price]]","v":0}]
[null,null,null,22,33,"Science and Technology","My First Experiments","Experiments with Materials","978-1-5345-3878-8",{"$f":"HYPERLINK(Table1[[#This Row],[eCommerce Hyperlink]],\"Book Weblink\")","v":"Book Weblink"},null,"KidHaven Publishing","Library Bound Book",1,"2022","August 2021","Library","8.500 X 8.500","Author","Mignonne Gunasekara",null,null,null,null,"M",null,"Grade 2 - 3","Grade 2 - 4","Readers learn about many different materials in a creative and interactive way as they conduct experiments that give them a new look at science at work in the world around them. By following simple instructions, readers are able to make their own lava lamp and discover which kinds of materials can keep an egg from cracking. These exciting experiments supplement important facts. When readers finish the fun tasks, they’re able to earn a badge to show everyone they’re masters of materials. This fresh take on a familiar topic is presented with the help of colorful photographs and illustrations.","English",25.6,20.48,"620.1’1--dc23","24 pp.","https://greenhavenpublishing.com/9781534538788",null,{"$f":"Table1[[#This Row],['# of Books]]*Table1[[#This Row],[QTY]]","v":0},{"$f":"Table1[[#This Row],[QTY]]*Table1[[#This Row],[School & Library Price]]","v":0}]
[null,null,null,22,33,"Science and Technology","My First Experiments","Experiments with Materials","978-1-5345-3879-5",{"$f":"HYPERLINK(Table1[[#This Row],[eCommerce Hyperlink]],\"Book Weblink\")","v":"Book Weblink"},null,"KidHaven Publishing","eBook",1,"2022","August 2021",null,null,"Author","Mignonne Gunasekara",null,null,null,null,"M",null,"Grade 2 - 3","Grade 2 - 4","Readers learn about many different materials in a creative and interactive way as they conduct experiments that give them a new look at science at work in the world around them. By following simple instructions, readers are able to make their own lava lamp and discover which kinds of materials can keep an egg from cracking. These exciting experiments supplement important facts. When readers finish the fun tasks, they’re able to earn a badge to show everyone they’re masters of materials. This fresh take on a familiar topic is presented with the help of colorful photographs and illustrations.","English",25.6,20.48,"620.1’1--dc23","24 pp.","https://greenhavenpublishing.com/9781534538795",null,{"$f":"Table1[[#This Row],['# of Books]]*Table1[[#This Row],[QTY]]","v":0},{"$f":"Table1[[#This Row],[QTY]]*Table1[[#This Row],[School & Library Price]]","v":0}]
[null,null,null,22,33,"Science and Technology","My First Experiments","Experiments with Weather","978-1-5345-3882-5",{"$f":"HYPERLINK(Table1[[#This Row],[eCommerce Hyperlink]],\"Book Weblink\")","v":"Book Weblink"},null,"KidHaven Publishing","Library Bound Book",1,"2022","August 2021","Library","8.500 X 8.500","Author","Mignonne Gunasekara",null,null,null,null,"M",null,"Grade 2 - 3","Grade 2 - 4","Weather is an essential elementary science topic, and it’s explained to readers in this exciting guide that encourages a hands-on approach to learning. Helpful facts are presented through achievable text, but the focal point of this reading experience is the use of experiments to enhance readers’ understanding of this topic. Step-by-step instructions guide readers through each experiment, and they’re presented with a badge at the end to show off their success. The design of this cool look at a common curriculum concept draws readers in with relatable photographs, clear labels, bright illustrations, and helpful diagrams.","English",25.6,20.48,"551.5078--dc23","24 pp.","https://greenhavenpublishing.com/9781534538825",null,{"$f":"Table1[[#This Row],['# of Books]]*Table1[[#This Row],[QTY]]","v":0},{"$f":"Table1[[#This Row],[QTY]]*Table1[[#This Row],[School & Library Price]]","v":0}]
[null,null,null,22,33,"Science and Technology","My First Experiments","Experiments with Weather","978-1-5345-3883-2",{"$f":"HYPERLINK(Table1[[#This Row],[eCommerce Hyperlink]],\"Book Weblink\")","v":"Book Weblink"},null,"KidHaven Publishing","eBook",1,"2022","August 2021",null,null,"Author","Mignonne Gunasekara",null,null,null,null,"M",null,"Grade 2 - 3","Grade 2 - 4","Weather is an essential elementary science topic, and it’s explained to readers in this exciting guide that encourages a hands-on approach to learning. Helpful facts are presented through achievable text, but the focal point of this reading experience is the use of experiments to enhance readers’ understanding of this topic. Step-by-step instructions guide readers through each experiment, and they’re presented with a badge at the end to show off their success. The design of this cool look at a common curriculum concept draws readers in with relatable photographs, clear labels, bright illustrations, and helpful diagrams.","English",25.6,20.48,"551.5078--dc23","24 pp.","https://greenhavenpublishing.com/9781534538832",null,{"$f":"Table1[[#This Row],['# of Books]]*Table1[[#This Row],[QTY]]","v":0},{"$f":"Table1[[#This Row],[QTY]]*Table1[[#This Row],[School & Library Price]]","v":0}]
[null,null,null,null,34,"Science and Technology","Play Smart","Play Smart","978-1-5345-3604-3",{"$f":"HYPERLINK(Table1[[#This Row],[eCommerce Hyperlink]],\"Book Weblink\")","v":"Book Weblink"},null,"KidHaven Publishing","Library Set",6,"2021","January 2021","Library","8.000 X 10.00",null,null,null,null,null,null,null,null,"Grade 2 - 3","Grade 2 - 5","Professional athletes make shooting hoops, throwing a baseball, or hitting a hockey puck while gliding on ice look easy. What is wrapped up in those smooth moves is practice, dedication, skill, and sensational science. Readers will learn about the science behind several sports with this high-interest look at common curriculum topics. Through the detailed narratives, they will learn about the physics at play in specific sports and how science helps athletes perform. Thorough diagrams, helpful fact boxes, useful graphic organizers, and full-color photographs make it seem like readers are part of the action as they learn how basic science lessons can help them become sports superstars. Features include: Encourages struggling readers to become more interested in science curriculum topics. Detailed diagrams that help simplify science concepts so they are easier to understand. Readers learn tips for how to use science concepts to maximize their athletic performance.","English",153.6,122.88,null,"24 pp.","https://greenhavenpublishing.com/9781534536043",null,{"$f":"Table1[[#This Row],['# of Books]]*Table1[[#This Row],[QTY]]","v":0},{"$f":"Table1[[#This Row],[QTY]]*Table1[[#This Row],[School & Library Price]]","v":0}]
[null,null,null,null,34,"Science and Technology","Play Smart","The Science of Baseball","978-1-5345-3562-6",{"$f":"HYPERLINK(Table1[[#This Row],[eCommerce Hyperlink]],\"Book Weblink\")","v":"Book Weblink"},null,"KidHaven Publishing","Library Bound Book",1,"2021","January 2021","Library","8.000 X 10.00","Author","William Anthony",null,null,null,null,"M",null,"Grade 2 - 3","Grade 2 - 5","Readers learn about the science behind throwing the perfect curveball in this exciting look at baseball. They'll discover how momentum is used by players when throwing a baseball and hitting a baseball with a bat. These examples of science in action, along with many others, are presented alongside helpful diagrams. Informative fact boxes, graphic organizers, and a detailed glossary add extra insight into this high-interest topic. Vibrant, full-color photographs help readers visualize the science of playing baseball and add an exciting element to this guide on basic physics concepts.","English",25.6,20.48,"796.357--dc23","24 pp.","https://greenhavenpublishing.com/9781534535626",null,{"$f":"Table1[[#This Row],['# of Books]]*Table1[[#This Row],[QTY]]","v":0},{"$f":"Table1[[#This Row],[QTY]]*Table1[[#This Row],[School & Library Price]]","v":0}]
[null,null,null,null,34,"Science and Technology","Play Smart","The Science of Baseball","978-1-5345-3563-3",{"$f":"HYPERLINK(Table1[[#This Row],[eCommerce Hyperlink]],\"Book Weblink\")","v":"Book Weblink"},null,"KidHaven Publishing","eBook",1,"2021","January 2021",null,null,"Author","William Anthony",null,null,null,null,"M",null,"Grade 2 - 3","Grade 2 - 5","Readers learn about the science behind throwing the perfect curveball in this exciting look at baseball. They'll discover how momentum is used by players when throwing a baseball and hitting a baseball with a bat. These examples of science in action, along with many others, are presented alongside helpful diagrams. Informative fact boxes, graphic organizers, and a detailed glossary add extra insight into this high-interest topic. Vibrant, full-color photographs help readers visualize the science of playing baseball and add an exciting element to this guide on basic physics concepts.","English",25.6,20.48,"796.357--dc23","24 pp.","https://greenhavenpublishing.com/9781534535633",null,{"$f":"Table1[[#This Row],['# of Books]]*Table1[[#This Row],[QTY]]","v":0},{"$f":"Table1[[#This Row],[QTY]]*Table1[[#This Row],[School & Library Price]]","v":0}]
[null,null,null,null,34,"Science and Technology","Play Smart","The Science of Basketball","978-1-5345-3566-4",{"$f":"HYPERLINK(Table1[[#This Row],[eCommerce Hyperlink]],\"Book Weblink\")","v":"Book Weblink"},null,"KidHaven Publishing","Library Bound Book",1,"2021","January 2021","Library","8.000 X 10.00","Author","William Anthony",null,null,null,null,"M",null,"Grade 2 - 3","Grade 2 - 5","Have you ever wondered how a basketball player is able to masterfully dribble the ball or skillfully shoot it into the hoop? Science gives us the answers. Readers will see how science is at play, in basketball and in the real world. Through the detailed main text, they will enhance their appreciation for the sport and the dedication it takes to master the movements required to win games. Fact boxes, detailed diagrams, and graphic organizers provide more information about this exciting topic. The bright, full-color photographs make readers feel like they're part of the action.","English",25.6,20.48,"796.323--dc23","24 pp.","https://greenhavenpublishing.com/9781534535664",null,{"$f":"Table1[[#This Row],['# of Books]]*Table1[[#This Row],[QTY]]","v":0},{"$f":"Table1[[#This Row],[QTY]]*Table1[[#This Row],[School & Library Price]]","v":0}]
[null,null,null,null,34,"Science and Technology","Play Smart","The Science of Basketball","978-1-5345-3567-1",{"$f":"HYPERLINK(Table1[[#This Row],[eCommerce Hyperlink]],\"Book Weblink\")","v":"Book Weblink"},null,"KidHaven Publishing","eBook",1,"2021","January 2021",null,null,"Author","William Anthony",null,null,null,null,"M",null,"Grade 2 - 3","Grade 2 - 5","Have you ever wondered how a basketball player is able to masterfully dribble the ball or skillfully shoot it into the hoop? Science gives us the answers. Readers will see how science is at play, in basketball and in the real world. Through the detailed main text, they will enhance their appreciation for the sport and the dedication it takes to master the movements required to win games. Fact boxes, detailed diagrams, and graphic organizers provide more information about this exciting topic. The bright, full-color photographs make readers feel like they're part of the action.","English",25.6,20.48,"796.323--dc23","24 pp.","https://greenhavenpublishing.com/9781534535671",null,{"$f":"Table1[[#This Row],['# of Books]]*Table1[[#This Row],[QTY]]","v":0},{"$f":"Table1[[#This Row],[QTY]]*Table1[[#This Row],[School & Library Price]]","v":0}]
[null,null,null,null,34,"Science and Technology","Play Smart","The Science of Ice Hockey","978-1-5345-3570-1",{"$f":"HYPERLINK(Table1[[#This Row],[eCommerce Hyperlink]],\"Book Weblink\")","v":"Book Weblink"},null,"KidHaven Publishing","Library Bound Book",1,"2021","January 2021","Library","8.000 X 10.00","Author","Emilie Dufresne",null,null,null,null,"M",null,"Grade 2 - 3","Grade 2 - 5","Readers learn how to pass the puck to teammates and shoot a slap shot with this fun and fact-filled guide to the science of ice hockey. There are many scientific forces at work in the game of hockey, such as momentum and gravity. The basics of ice hockey and how science makes certain plays possible are presented throughout this accessible text. Helpful diagrams and graphic organizers display these concepts in a comprehensible way, while the detailed glossary gives explanations of scientific language. Captivating, full-color photographs will thrill young sports fans and budding scientists.","English",25.6,20.48,"796.962--dc23","24 pp.","https://greenhavenpublishing.com/9781534535701",null,{"$f":"Table1[[#This Row],['# of Books]]*Table1[[#This Row],[QTY]]","v":0},{"$f":"Table1[[#This Row],[QTY]]*Table1[[#This Row],[School & Library Price]]","v":0}]
[null,null,null,null,34,"Science and Technology","Play Smart","The Science of Ice Hockey","978-1-5345-3571-8",{"$f":"HYPERLINK(Table1[[#This Row],[eCommerce Hyperlink]],\"Book Weblink\")","v":"Book Weblink"},null,"KidHaven Publishing","eBook",1,"2021","January 2021",null,null,"Author","Emilie Dufresne",null,null,null,null,"M",null,"Grade 2 - 3","Grade 2 - 5","Readers learn how to pass the puck to teammates and shoot a slap shot with this fun and fact-filled guide to the science of ice hockey. There are many scientific forces at work in the game of hockey, such as momentum and gravity. The basics of ice hockey and how science makes certain plays possible are presented throughout this accessible text. Helpful diagrams and graphic organizers display these concepts in a comprehensible way, while the detailed glossary gives explanations of scientific language. Captivating, full-color photographs will thrill young sports fans and budding scientists.","English",25.6,20.48,"796.962--dc23","24 pp.","https://greenhavenpublishing.com/9781534535718",null,{"$f":"Table1[[#This Row],['# of Books]]*Table1[[#This Row],[QTY]]","v":0},{"$f":"Table1[[#This Row],[QTY]]*Table1[[#This Row],[School & Library Price]]","v":0}]
[null,null,null,null,34,"Science and Technology","Play Smart","The Science of Swimming","978-1-5345-3574-9",{"$f":"HYPERLINK(Table1[[#This Row],[eCommerce Hyperlink]],\"Book Weblink\")","v":"Book Weblink"},null,"KidHaven Publishing","Library Bound Book",1,"2021","January 2021","Library","8.000 X 10.00","Author","Emilie Dufresne",null,null,null,null,"M",null,"Grade 2 - 3","Grade 2 - 5","In swimming, there are multiple scientific concepts at play, such as density, gravity, momentum, and buoyancy. Readers learn about these concepts and more with this engaging guide to the science behind swimming. Useful diagrams display how to execute the perfect push-off from the wall of a pool, how to swim successful strokes, and how to do a cannonball. Informative fact boxes, helpful graphic organizers, and full-color photographs provide additional information. Readers will be thrilled by visual examples of science concepts in action. This high-interest approach to science curriculum topics will resonate with young readers.","English",25.6,20.48,"797.2--dc23","24 pp.","https://greenhavenpublishing.com/9781534535749",null,{"$f":"Table1[[#This Row],['# of Books]]*Table1[[#This Row],[QTY]]","v":0},{"$f":"Table1[[#This Row],[QTY]]*Table1[[#This Row],[School & Library Price]]","v":0}]
[null,null,null,null,34,"Science and Technology","Play Smart","The Science of Swimming","978-1-5345-3575-6",{"$f":"HYPERLINK(Table1[[#This Row],[eCommerce Hyperlink]],\"Book Weblink\")","v":"Book Weblink"},null,"KidHaven Publishing","eBook",1,"2021","January 2021",null,null,"Author","Emilie Dufresne",null,null,null,null,"M",null,"Grade 2 - 3","Grade 2 - 5","In swimming, there are multiple scientific concepts at play, such as density, gravity, momentum, and buoyancy. Readers learn about these concepts and more with this engaging guide to the science behind swimming. Useful diagrams display how to execute the perfect push-off from the wall of a pool, how to swim successful strokes, and how to do a cannonball. Informative fact boxes, helpful graphic organizers, and full-color photographs provide additional information. Readers will be thrilled by visual examples of science concepts in action. This high-interest approach to science curriculum topics will resonate with young readers.","English",25.6,20.48,"797.2--dc23","24 pp.","https://greenhavenpublishing.com/9781534535756",null,{"$f":"Table1[[#This Row],['# of Books]]*Table1[[#This Row],[QTY]]","v":0},{"$f":"Table1[[#This Row],[QTY]]*Table1[[#This Row],[School & Library Price]]","v":0}]
[null,null,null,null,34,"Science and Technology","Play Smart","The Science of Tennis","978-1-5345-3578-7",{"$f":"HYPERLINK(Table1[[#This Row],[eCommerce Hyperlink]],\"Book Weblink\")","v":"Book Weblink"},null,"KidHaven Publishing","Library Bound Book",1,"2021","January 2021","Library","8.000 X 10.00","Author","Emilie Dufresne",null,null,null,null,"M",null,"Grade 2 - 3","Grade 2 - 5","How is a tennis player is able to hit the ball and have control over it? Questions such as this are answered in this exciting look at the science behind tennis. Readers learn how to execute certain serves, such as a forehand serve and backhand serve, using a deeper understanding of physics. Detailed diagrams explain the science behind what happens before and after the tennis ball is hit with the racket. This creative guide to science curriculum topics includes graphic organizers, a thorough glossary, and delightful, full-color photographs that depict the thrilling intersection of science and sports.","English",25.6,20.48,"796.342--dc23","24 pp.","https://greenhavenpublishing.com/9781534535787",null,{"$f":"Table1[[#This Row],['# of Books]]*Table1[[#This Row],[QTY]]","v":0},{"$f":"Table1[[#This Row],[QTY]]*Table1[[#This Row],[School & Library Price]]","v":0}]
[null,null,null,null,34,"Science and Technology","Play Smart","The Science of Tennis","978-1-5345-3579-4",{"$f":"HYPERLINK(Table1[[#This Row],[eCommerce Hyperlink]],\"Book Weblink\")","v":"Book Weblink"},null,"KidHaven Publishing","eBook",1,"2021","January 2021",null,null,"Author","Emilie Dufresne",null,null,null,null,"M",null,"Grade 2 - 3","Grade 2 - 5","How is a tennis player is able to hit the ball and have control over it? Questions such as this are answered in this exciting look at the science behind tennis. Readers learn how to execute certain serves, such as a forehand serve and backhand serve, using a deeper understanding of physics. Detailed diagrams explain the science behind what happens before and after the tennis ball is hit with the racket. This creative guide to science curriculum topics includes graphic organizers, a thorough glossary, and delightful, full-color photographs that depict the thrilling intersection of science and sports.","English",25.6,20.48,"796.342--dc23","24 pp.","https://greenhavenpublishing.com/9781534535794",null,{"$f":"Table1[[#This Row],['# of Books]]*Table1[[#This Row],[QTY]]","v":0},{"$f":"Table1[[#This Row],[QTY]]*Table1[[#This Row],[School & Library Price]]","v":0}]
[null,null,null,null,34,"Science and Technology","Play Smart","The Science of Track and Field","978-1-5345-3582-4",{"$f":"HYPERLINK(Table1[[#This Row],[eCommerce Hyperlink]],\"Book Weblink\")","v":"Book Weblink"},null,"KidHaven Publishing","Library Bound Book",1,"2021","January 2021","Library","8.000 X 10.00","Author","Emilie Dufresne",null,null,null,null,"M",null,"Grade 2 - 3","Grade 2 - 5","There are many events in track and field, such as running, jumping over hurdles, and throwing the discus. The science behind these activities is explained in this high-interest guide. Supporting the engaging and educational narrative are diagrams that display concepts such as runners' starting angles, which help them prepare to execute a sprint. Momentum and gravity are explained in the context of these activities. Helpful fact boxes, graphic organizers, and full-color photographs supply extra information. Readers will understand how science can be applied in the real world.","English",25.6,20.48,"796.42--dc23","24 pp.","https://greenhavenpublishing.com/9781534535824",null,{"$f":"Table1[[#This Row],['# of Books]]*Table1[[#This Row],[QTY]]","v":0},{"$f":"Table1[[#This Row],[QTY]]*Table1[[#This Row],[School & Library Price]]","v":0}]
[null,null,null,null,34,"Science and Technology","Play Smart","The Science of Track and Field","978-1-5345-3583-1",{"$f":"HYPERLINK(Table1[[#This Row],[eCommerce Hyperlink]],\"Book Weblink\")","v":"Book Weblink"},null,"KidHaven Publishing","eBook",1,"2021","January 2021",null,null,"Author","Emilie Dufresne",null,null,null,null,"M",null,"Grade 2 - 3","Grade 2 - 5","There are many events in track and field, such as running, jumping over hurdles, and throwing the discus. The science behind these activities is explained in this high-interest guide. Supporting the engaging and educational narrative are diagrams that display concepts such as runners' starting angles, which help them prepare to execute a sprint. Momentum and gravity are explained in the context of these activities. Helpful fact boxes, graphic organizers, and full-color photographs supply extra information. Readers will understand how science can be applied in the real world.","English",25.6,20.48,"796.42--dc23","24 pp.","https://greenhavenpublishing.com/9781534535831",null,{"$f":"Table1[[#This Row],['# of Books]]*Table1[[#This Row],[QTY]]","v":0},{"$f":"Table1[[#This Row],[QTY]]*Table1[[#This Row],[School & Library Price]]","v":0}]
[null,null,null,null,35,"Science and Technology","Computers and Coding","Computers and Coding","978-1-5345-2736-2",{"$f":"HYPERLINK(Table1[[#This Row],[eCommerce Hyperlink]],\"Book Weblink\")","v":"Book Weblink"},null,"KidHaven Publishing","Library Set",6,"2019","August 2018","Library","8.500 X 8.500",null,null,null,null,null,null,null,null,"Grade 2 - 3","Grade 2 - 4","Readers are introduced to the engaging world of computer technology in this set. A wide range of basic computer topics presented in an age-appropriate way expands their knowledge of how computers work, how to stay safe online, coding, digital technology, databases, and computer languages. This series simplifies subjects related to computers that may otherwise seem complex, and defines them in a way that's more easily understandable for young readers. In addition to the concise main text, there are informative diagrams, helpful fact boxes, instructional graphic organizers, and colorful illustrations, which provide extra insight. Features include: Topics cover a variety of essential computer skills and concepts, which are important parts of elementary curricula and important life skills in the digital age. Simple text informs young readers without overwhelming them with complicated computer terminology. Eye-catching design includes labeled diagrams to help visual learners.","English",153.6,122.88,null,"24 pp.","https://greenhavenpublishing.com/9781534527362",null,{"$f":"Table1[[#This Row],['# of Books]]*Table1[[#This Row],[QTY]]","v":0},{"$f":"Table1[[#This Row],[QTY]]*Table1[[#This Row],[School & Library Price]]","v":0}]
[null,null,null,null,35,"Science and Technology","Computers and Coding","How Computers Work","978-1-5345-2707-2",{"$f":"HYPERLINK(Table1[[#This Row],[eCommerce Hyperlink]],\"Book Weblink\")","v":"Book Weblink"},null,"KidHaven Publishing","Library Bound Book",1,"2019","August 2018","Library","8.500 X 8.500","Author, Author","Steffi Cavell-Clarke, Thomas Welch",null,null,null,null,"L",null,"Grade 2 - 3","Grade 2 - 4","How many different parts does a computer have? Where do computers get their power? Questions such as these and more answered in this engaging book about how computers function. Readers learn about crucial computer skills and concepts within this concise text, which is necessary in today's technological landscape. Colorful illustrations, instructional diagrams, informative fact boxes, and helpful graphic organizers are included to provide extra insight and enrich readers' understanding of this essential topic. Basic facts are presented in a creative way that's sure to keep readers entertained as they learn.","English",25.6,20.48,"004--dc23","24 pp.","https://greenhavenpublishing.com/9781534527072",null,{"$f":"Table1[[#This Row],['# of Books]]*Table1[[#This Row],[QTY]]","v":0},{"$f":"Table1[[#This Row],[QTY]]*Table1[[#This Row],[School & Library Price]]","v":0}]
[null,null,null,null,35,"Science and Technology","Computers and Coding","How Computers Work","978-1-5345-2710-2",{"$f":"HYPERLINK(Table1[[#This Row],[eCommerce Hyperlink]],\"Book Weblink\")","v":"Book Weblink"},null,"KidHaven Publishing","eBook",1,"2019","August 2018",null,null,"Author, Author","Steffi Cavell-Clarke, Thomas Welch",null,null,null,null,"L",null,"Grade 2 - 3","Grade 2 - 4","How many different parts does a computer have? Where do computers get their power? Questions such as these and more answered in this engaging book about how computers function. Readers learn about crucial computer skills and concepts within this concise text, which is necessary in today's technological landscape. Colorful illustrations, instructional diagrams, informative fact boxes, and helpful graphic organizers are included to provide extra insight and enrich readers' understanding of this essential topic. Basic facts are presented in a creative way that's sure to keep readers entertained as they learn.","English",25.6,20.48,"004--dc23","24 pp.","https://greenhavenpublishing.com/9781534527102",null,{"$f":"Table1[[#This Row],['# of Books]]*Table1[[#This Row],[QTY]]","v":0},{"$f":"Table1[[#This Row],[QTY]]*Table1[[#This Row],[School & Library Price]]","v":0}]
[null,null,null,null,35,"Science and Technology","Computers and Coding","Staying Safe Online","978-1-5345-2711-9",{"$f":"HYPERLINK(Table1[[#This Row],[eCommerce Hyperlink]],\"Book Weblink\")","v":"Book Weblink"},null,"KidHaven Publishing","Library Bound Book",1,"2019","August 2018","Library","8.500 X 8.500","Author, Author","Steffi Cavell-Clarke, Thomas Welch",null,null,null,null,"L",null,"Grade 2 - 3","Grade 2 - 4","The Internet can be an overwhelming and threatening place for young people to explore in the modern world. This age-appropriate and educational text provides them with the necessary information on how to stay safe online. In learning about suspicious threats from viruses and hackers, their critical-thinking skills are enhanced to prepare them to be face potential attacks online. In addition to the simple text, useful fact boxes, instructional diagrams, and informative graphic organizers capture readers' attention. Bright and colorful illustrations are included on each page to make this serious topic feel less scary for young readers.","English",25.6,20.48,"004.67'8083--dc23","24 pp.","https://greenhavenpublishing.com/9781534527119",null,{"$f":"Table1[[#This Row],['# of Books]]*Table1[[#This Row],[QTY]]","v":0},{"$f":"Table1[[#This Row],[QTY]]*Table1[[#This Row],[School & Library Price]]","v":0}]
[null,null,null,null,35,"Science and Technology","Computers and Coding","Staying Safe Online","978-1-5345-2714-0",{"$f":"HYPERLINK(Table1[[#This Row],[eCommerce Hyperlink]],\"Book Weblink\")","v":"Book Weblink"},null,"KidHaven Publishing","eBook",1,"2019","August 2018",null,null,"Author, Author","Steffi Cavell-Clarke, Thomas Welch",null,null,null,null,"L",null,"Grade 2 - 3","Grade 2 - 4","The Internet can be an overwhelming and threatening place for young people to explore in the modern world. This age-appropriate and educational text provides them with the necessary information on how to stay safe online. In learning about suspicious threats from viruses and hackers, their critical-thinking skills are enhanced to prepare them to be face potential attacks online. In addition to the simple text, useful fact boxes, instructional diagrams, and informative graphic organizers capture readers' attention. Bright and colorful illustrations are included on each page to make this serious topic feel less scary for young readers.","English",25.6,20.48,"004.67'8083--dc23","24 pp.","https://greenhavenpublishing.com/9781534527140",null,{"$f":"Table1[[#This Row],['# of Books]]*Table1[[#This Row],[QTY]]","v":0},{"$f":"Table1[[#This Row],[QTY]]*Table1[[#This Row],[School & Library Price]]","v":0}]
[null,null,null,null,35,"Science and Technology","Computers and Coding","Using Digital Technology","978-1-5345-2715-7",{"$f":"HYPERLINK(Table1[[#This Row],[eCommerce Hyperlink]],\"Book Weblink\")","v":"Book Weblink"},null,"KidHaven Publishing","Library Bound Book",1,"2019","August 2018","Library","8.500 X 8.500","Author, Author","Steffi Cavell-Clarke, Thomas Welch",null,null,null,null,"L",null,"Grade 2 - 3","Grade 2 - 4","How many different kinds of digital devices are there? What can you use digital technology to do? Questions such as these and more can be answered in this age-appropriate book on the use of digital technology. Readers are introduced to the numerous types of digital devices people use every day, such as smartphones, laptops, cameras, tablets, apps, and more. In learning about these devices, they learn how STEM concepts are applied in the world around them. Instructional graphic organizers, helpful fact boxes, and colorful illustrations are provided alongside focused text to make this exciting subject accessible for young readers.","English",25.6,20.48,"004.67'8--dc23","24 pp.","https://greenhavenpublishing.com/9781534527157",null,{"$f":"Table1[[#This Row],['# of Books]]*Table1[[#This Row],[QTY]]","v":0},{"$f":"Table1[[#This Row],[QTY]]*Table1[[#This Row],[School & Library Price]]","v":0}]
[null,null,null,null,35,"Science and Technology","Computers and Coding","Using Digital Technology","978-1-5345-2718-8",{"$f":"HYPERLINK(Table1[[#This Row],[eCommerce Hyperlink]],\"Book Weblink\")","v":"Book Weblink"},null,"KidHaven Publishing","eBook",1,"2019","August 2018",null,null,"Author, Author","Steffi Cavell-Clarke, Thomas Welch",null,null,null,null,"L",null,"Grade 2 - 3","Grade 2 - 4","How many different kinds of digital devices are there? What can you use digital technology to do? Questions such as these and more can be answered in this age-appropriate book on the use of digital technology. Readers are introduced to the numerous types of digital devices people use every day, such as smartphones, laptops, cameras, tablets, apps, and more. In learning about these devices, they learn how STEM concepts are applied in the world around them. Instructional graphic organizers, helpful fact boxes, and colorful illustrations are provided alongside focused text to make this exciting subject accessible for young readers.","English",25.6,20.48,"004.67'8--dc23","24 pp.","https://greenhavenpublishing.com/9781534527188",null,{"$f":"Table1[[#This Row],['# of Books]]*Table1[[#This Row],[QTY]]","v":0},{"$f":"Table1[[#This Row],[QTY]]*Table1[[#This Row],[School & Library Price]]","v":0}]
[null,null,null,null,35,"Science and Technology","Computers and Coding","What Is a Database?","978-1-5345-2719-5",{"$f":"HYPERLINK(Table1[[#This Row],[eCommerce Hyperlink]],\"Book Weblink\")","v":"Book Weblink"},null,"KidHaven Publishing","Library Bound Book",1,"2019","August 2018","Library","8.500 X 8.500","Author","Kirsty Holmes",null,null,null,null,"L",null,"Grade 2 - 3","Grade 2 - 4","Young readers are introduced to the world of databases in this informative book. They will be presented with the foundational elements of databases, as well as what they are used for and how they work. As they learn about this essential computer skills concept, it will strengthen their knowledge of computer systems, managing data, and modern problem-solving skills. Along with the age-appropriate and concise text, readers will gain additional insight through educational diagrams, helpful fact boxes, instructional graphic organizers, and vibrant illustrations. The creative design allows readers to have fun while they learn.","English",25.6,20.48,"005.74--dc23","24 pp.","https://greenhavenpublishing.com/9781534527195",null,{"$f":"Table1[[#This Row],['# of Books]]*Table1[[#This Row],[QTY]]","v":0},{"$f":"Table1[[#This Row],[QTY]]*Table1[[#This Row],[School & Library Price]]","v":0}]
[null,null,null,null,35,"Science and Technology","Computers and Coding","What Is a Database?","978-1-5345-2722-5",{"$f":"HYPERLINK(Table1[[#This Row],[eCommerce Hyperlink]],\"Book Weblink\")","v":"Book Weblink"},null,"KidHaven Publishing","eBook",1,"2019","August 2018",null,null,"Author","Kirsty Holmes",null,null,null,null,"L",null,"Grade 2 - 3","Grade 2 - 4","Young readers are introduced to the world of databases in this informative book. They will be presented with the foundational elements of databases, as well as what they are used for and how they work. As they learn about this essential computer skills concept, it will strengthen their knowledge of computer systems, managing data, and modern problem-solving skills. Along with the age-appropriate and concise text, readers will gain additional insight through educational diagrams, helpful fact boxes, instructional graphic organizers, and vibrant illustrations. The creative design allows readers to have fun while they learn.","English",25.6,20.48,"005.74--dc23","24 pp.","https://greenhavenpublishing.com/9781534527225",null,{"$f":"Table1[[#This Row],['# of Books]]*Table1[[#This Row],[QTY]]","v":0},{"$f":"Table1[[#This Row],[QTY]]*Table1[[#This Row],[School & Library Price]]","v":0}]
[null,null,null,null,35,"Science and Technology","Computers and Coding","What Is Coding?","978-1-5345-2703-4",{"$f":"HYPERLINK(Table1[[#This Row],[eCommerce Hyperlink]],\"Book Weblink\")","v":"Book Weblink"},null,"KidHaven Publishing","Library Bound Book",1,"2019","August 2018","Library","8.500 X 8.500","Author, Author","Steffi Cavell-Clarke, Thomas Welch",null,null,null,null,"L",null,"Grade 2 - 3","Grade 2 - 4","Young readers are exposed to the exciting world of coding. They will be given an introduction to the basics of key computer programming markup languages, such as HTML and CSS. In learning about these essential computer skills and subjects, readers will improve their problem-solving skills and prepare to make their own website or even pursue a career in coding. In addition to the age-appropriate text, there are informative diagrams, helpful fact boxes, instructional graphic organizers, and eye-catching illustrations, which make this topic to make even more interesting and engaging for young readers.","English",25.6,20.48,"005.13'3--dc23","24 pp.","https://greenhavenpublishing.com/9781534527034",null,{"$f":"Table1[[#This Row],['# of Books]]*Table1[[#This Row],[QTY]]","v":0},{"$f":"Table1[[#This Row],[QTY]]*Table1[[#This Row],[School & Library Price]]","v":0}]
[null,null,null,null,35,"Science and Technology","Computers and Coding","What Is Coding?","978-1-5345-2706-5",{"$f":"HYPERLINK(Table1[[#This Row],[eCommerce Hyperlink]],\"Book Weblink\")","v":"Book Weblink"},null,"KidHaven Publishing","eBook",1,"2019","August 2018",null,null,"Author, Author","Steffi Cavell-Clarke, Thomas Welch",null,null,null,null,"L",null,"Grade 2 - 3","Grade 2 - 4","Young readers are exposed to the exciting world of coding. They will be given an introduction to the basics of key computer programming markup languages, such as HTML and CSS. In learning about these essential computer skills and subjects, readers will improve their problem-solving skills and prepare to make their own website or even pursue a career in coding. In addition to the age-appropriate text, there are informative diagrams, helpful fact boxes, instructional graphic organizers, and eye-catching illustrations, which make this topic to make even more interesting and engaging for young readers.","English",25.6,20.48,"005.13'3--dc23","24 pp.","https://greenhavenpublishing.com/9781534527065",null,{"$f":"Table1[[#This Row],['# of Books]]*Table1[[#This Row],[QTY]]","v":0},{"$f":"Table1[[#This Row],[QTY]]*Table1[[#This Row],[School & Library Price]]","v":0}]
[null,null,null,null,35,"Science and Technology","Computers and Coding","Why Are There Different Computer Languages?","978-1-5345-2723-2",{"$f":"HYPERLINK(Table1[[#This Row],[eCommerce Hyperlink]],\"Book Weblink\")","v":"Book Weblink"},null,"KidHaven Publishing","Library Bound Book",1,"2019","August 2018","Library","8.500 X 8.500","Author","Kirsty Holmes",null,null,null,null,"L",null,"Grade 2 - 3","Grade 2 - 4","A computer is a complex piece of technology that has its own languages. Readers learn about these multiple languages in this informative and engaging text, which clearly explains select programming languages, such as Python and Scratch. Readers enrich their knowledge of essential computer skills and concepts in a way that's easily understandable. In addition to the age-appropriate text, creative illustrations, useful fact boxes, instructional graphic organizers, and educational diagrams are included to provide further depth to the text. Readers will find themselves captivated by the charming design as they are introduced to a foundational computer science concept.","English",25.6,20.48,"005.26'2--dc23","24 pp.","https://greenhavenpublishing.com/9781534527232",null,{"$f":"Table1[[#This Row],['# of Books]]*Table1[[#This Row],[QTY]]","v":0},{"$f":"Table1[[#This Row],[QTY]]*Table1[[#This Row],[School & Library Price]]","v":0}]
[null,null,null,null,35,"Science and Technology","Computers and Coding","Why Are There Different Computer Languages?","978-1-5345-2726-3",{"$f":"HYPERLINK(Table1[[#This Row],[eCommerce Hyperlink]],\"Book Weblink\")","v":"Book Weblink"},null,"KidHaven Publishing","eBook",1,"2019","August 2018",null,null,"Author","Kirsty Holmes",null,null,null,null,"L",null,"Grade 2 - 3","Grade 2 - 4","A computer is a complex piece of technology that has its own languages. Readers learn about these multiple languages in this informative and engaging text, which clearly explains select programming languages, such as Python and Scratch. Readers enrich their knowledge of essential computer skills and concepts in a way that's easily understandable. In addition to the age-appropriate text, creative illustrations, useful fact boxes, instructional graphic organizers, and educational diagrams are included to provide further depth to the text. Readers will find themselves captivated by the charming design as they are introduced to a foundational computer science concept.","English",25.6,20.48,"005.26'2--dc23","24 pp.","https://greenhavenpublishing.com/9781534527263",null,{"$f":"Table1[[#This Row],['# of Books]]*Table1[[#This Row],[QTY]]","v":0},{"$f":"Table1[[#This Row],[QTY]]*Table1[[#This Row],[School & Library Price]]","v":0}]
[null,null,null,null,35,"Science and Technology","Environmental Issues","Environmental Issues: Set 1","978-1-5345-2125-4",{"$f":"HYPERLINK(Table1[[#This Row],[eCommerce Hyperlink]],\"Book Weblink\")","v":"Book Weblink"},null,"KidHaven Publishing","Library Set",4,"2017","January 2017","Library","8.500 X 8.500",null,null,null,null,null,null,null,null,"Grade 2 - 3","Grade 2 - 4","Humans have a lasting impact on the natural world around them. Young readers explore the relationship between people and the environment as they learn about pollution, recycling, conserving water, and endangered animals. The accessible main texts and additional fact boxes allow early learners to begin to develop a deeper understanding of ecology and environmental science. Colorful photographs of a variety of environments take readers from busy recycling plants to the ocean floor. It is never too early to introduce readers to ways they can care for the planet. Features include: Topical environmental concerns are presented in simple language geared toward early learners. Readers are encouraged to discover their own ways to help protect the natural world. Young readers develop valuable critical thinking skills by examining the ways people can both positively and negatively affect the environment.","English",102.4,81.92,null,"24 pp.","https://greenhavenpublishing.com/9781534521254",null,{"$f":"Table1[[#This Row],['# of Books]]*Table1[[#This Row],[QTY]]","v":0},{"$f":"Table1[[#This Row],[QTY]]*Table1[[#This Row],[School & Library Price]]","v":0}]
[null,null,null,null,35,"Science and Technology","Environmental Issues","Animals in Danger","978-1-5345-2043-1",{"$f":"HYPERLINK(Table1[[#This Row],[eCommerce Hyperlink]],\"Book Weblink\")","v":"Book Weblink"},null,"KidHaven Publishing","Library Bound Book",1,"2017","January 2017","Library","8.500 X 8.500","Author","Gemma McMullen","4.9","0.5",null,null,"L","860L","Grade 2 - 3","Grade 2 - 4","How does human behavior affect animals, and what can we do to help animals that are endangered? Readers find the answers to these and other important questions about protecting animals as they learn about this topical environmental issue. Accessible, age-appropriate text gives young readers a clear sense of why animals are currently in danger and what can be done to help them. Fun fact boxes provide additional information about animals and their habitats, and colorful photographs fill each page. The captivating presentation of such an important ecological topic is sure to inspire early learners, especially young animal lovers.","English",25.6,20.48,"333.95’42--dc23","24 pp.","https://greenhavenpublishing.com/9781534520431",null,{"$f":"Table1[[#This Row],['# of Books]]*Table1[[#This Row],[QTY]]","v":0},{"$f":"Table1[[#This Row],[QTY]]*Table1[[#This Row],[School & Library Price]]","v":0}]
[null,null,null,null,35,"Science and Technology","Environmental Issues","Animals in Danger","978-1-5345-2044-8",{"$f":"HYPERLINK(Table1[[#This Row],[eCommerce Hyperlink]],\"Book Weblink\")","v":"Book Weblink"},null,"KidHaven Publishing","eBook",1,"2017","January 2017",null,null,"Author","Gemma McMullen","4.9","0.5",null,null,"L","860L","Grade 2 - 3","Grade 2 - 4","How does human behavior affect animals, and what can we do to help animals that are endangered? Readers find the answers to these and other important questions about protecting animals as they learn about this topical environmental issue. Accessible, age-appropriate text gives young readers a clear sense of why animals are currently in danger and what can be done to help them. Fun fact boxes provide additional information about animals and their habitats, and colorful photographs fill each page. The captivating presentation of such an important ecological topic is sure to inspire early learners, especially young animal lovers.","English",25.6,20.48,"333.95’42--dc23","24 pp.","https://greenhavenpublishing.com/9781534520448",null,{"$f":"Table1[[#This Row],['# of Books]]*Table1[[#This Row],[QTY]]","v":0},{"$f":"Table1[[#This Row],[QTY]]*Table1[[#This Row],[School & Library Price]]","v":0}]
[null,null,null,null,35,"Science and Technology","Environmental Issues","Polluting Our World","978-1-5345-2047-9",{"$f":"HYPERLINK(Table1[[#This Row],[eCommerce Hyperlink]],\"Book Weblink\")","v":"Book Weblink"},null,"KidHaven Publishing","Library Bound Book",1,"2017","January 2017","Library","8.500 X 8.500","Author","Gemma McMullen","4.9","0.5",null,null,"L","890L","Grade 2 - 3","Grade 2 - 4","Oil spills can spread for hundreds of miles in water. Animals can die if they ingest litter. These are just two of the many ways pollution can damage the environment. Readers discover the dangers of pollution, as well as some of the ways people, including your readers, can do their part to clean up the planet. This essential environmental lesson is presented in clear language geared toward early learners. Additional information is highlighted in fact boxes. Vivid photographs provide a closer look at the harm pollution can do, as well as the beauty of the natural world we must protect.","English",25.6,20.48,"363.73--dc23","24 pp.","https://greenhavenpublishing.com/9781534520479",null,{"$f":"Table1[[#This Row],['# of Books]]*Table1[[#This Row],[QTY]]","v":0},{"$f":"Table1[[#This Row],[QTY]]*Table1[[#This Row],[School & Library Price]]","v":0}]
[null,null,null,null,35,"Science and Technology","Environmental Issues","Polluting Our World","978-1-5345-2048-6",{"$f":"HYPERLINK(Table1[[#This Row],[eCommerce Hyperlink]],\"Book Weblink\")","v":"Book Weblink"},null,"KidHaven Publishing","eBook",1,"2017","January 2017",null,null,"Author","Gemma McMullen","4.9","0.5",null,null,"L","890L","Grade 2 - 3","Grade 2 - 4","Oil spills can spread for hundreds of miles in water. Animals can die if they ingest litter. These are just two of the many ways pollution can damage the environment. Readers discover the dangers of pollution, as well as some of the ways people, including your readers, can do their part to clean up the planet. This essential environmental lesson is presented in clear language geared toward early learners. Additional information is highlighted in fact boxes. Vivid photographs provide a closer look at the harm pollution can do, as well as the beauty of the natural world we must protect.","English",25.6,20.48,"363.73--dc23","24 pp.","https://greenhavenpublishing.com/9781534520486",null,{"$f":"Table1[[#This Row],['# of Books]]*Table1[[#This Row],[QTY]]","v":0},{"$f":"Table1[[#This Row],[QTY]]*Table1[[#This Row],[School & Library Price]]","v":0}]
[null,null,null,null,35,"Science and Technology","Environmental Issues","Recycling Materials","978-1-5345-2051-6",{"$f":"HYPERLINK(Table1[[#This Row],[eCommerce Hyperlink]],\"Book Weblink\")","v":"Book Weblink"},null,"KidHaven Publishing","Library Bound Book",1,"2017","January 2017","Library","8.500 X 8.500","Author","Gemma McMullen","4.3","0.5",null,null,"L","640L","Grade 2 - 3","Grade 2 - 4","Recycling is an easy way to help protect the planet. Young readers learn the basics of recycling, including what materials are most commonly recycled and how the process of recycling works. This valuable information is presented through age-appropriate text, including eye-catching fact boxes. Full-color photographs keep readers engaged as they explore this essential environmental concern. Early learners will become budding environmentalists, discovering for themselves how they can do their part to help the environment, one trip to the recycling bin at a time.","English",25.6,20.48,"363.72'82--dc23","24 pp.","https://greenhavenpublishing.com/9781534520516",null,{"$f":"Table1[[#This Row],['# of Books]]*Table1[[#This Row],[QTY]]","v":0},{"$f":"Table1[[#This Row],[QTY]]*Table1[[#This Row],[School & Library Price]]","v":0}]
[null,null,null,null,35,"Science and Technology","Environmental Issues","Recycling Materials","978-1-5345-2052-3",{"$f":"HYPERLINK(Table1[[#This Row],[eCommerce Hyperlink]],\"Book Weblink\")","v":"Book Weblink"},null,"KidHaven Publishing","eBook",1,"2017","January 2017",null,null,"Author","Gemma McMullen","4.3","0.5",null,null,"L","640L","Grade 2 - 3","Grade 2 - 4","Recycling is an easy way to help protect the planet. Young readers learn the basics of recycling, including what materials are most commonly recycled and how the process of recycling works. This valuable information is presented through age-appropriate text, including eye-catching fact boxes. Full-color photographs keep readers engaged as they explore this essential environmental concern. Early learners will become budding environmentalists, discovering for themselves how they can do their part to help the environment, one trip to the recycling bin at a time.","English",25.6,20.48,"363.72'82--dc23","24 pp.","https://greenhavenpublishing.com/9781534520523",null,{"$f":"Table1[[#This Row],['# of Books]]*Table1[[#This Row],[QTY]]","v":0},{"$f":"Table1[[#This Row],[QTY]]*Table1[[#This Row],[School & Library Price]]","v":0}]
[null,null,null,null,35,"Science and Technology","Environmental Issues","Water Around the World","978-1-5345-2055-4",{"$f":"HYPERLINK(Table1[[#This Row],[eCommerce Hyperlink]],\"Book Weblink\")","v":"Book Weblink"},null,"KidHaven Publishing","Library Bound Book",1,"2017","January 2017","Library","8.500 X 8.500","Author","Gemma McMullen","3.8","0.5",null,null,"L","760L","Grade 2 - 3","Grade 2 - 4","Water is a precious natural resource that we all must work hard to protect. As readers discover where the world’s water comes from, they also learn why we need to take care of it. Accessible text and fun fact boxes present this current conservation topic in a way that’s easy for early learners to understand. As young readers explore the problems facing water supplies around the world, they also begin to see solutions, such as ways they can help conserve water and keep it clean. Vibrant photographs of water around the world make this an engaging learning experience.","English",25.6,20.48,"333.91","24 pp.","https://greenhavenpublishing.com/9781534520554",null,{"$f":"Table1[[#This Row],['# of Books]]*Table1[[#This Row],[QTY]]","v":0},{"$f":"Table1[[#This Row],[QTY]]*Table1[[#This Row],[School & Library Price]]","v":0}]
[null,null,null,null,35,"Science and Technology","Environmental Issues","Water Around the World","978-1-5345-2056-1",{"$f":"HYPERLINK(Table1[[#This Row],[eCommerce Hyperlink]],\"Book Weblink\")","v":"Book Weblink"},null,"KidHaven Publishing","eBook",1,"2017","January 2017",null,null,"Author","Gemma McMullen","3.8","0.5",null,null,"L","760L","Grade 2 - 3","Grade 2 - 4","Water is a precious natural resource that we all must work hard to protect. As readers discover where the world’s water comes from, they also learn why we need to take care of it. Accessible text and fun fact boxes present this current conservation topic in a way that’s easy for early learners to understand. As young readers explore the problems facing water supplies around the world, they also begin to see solutions, such as ways they can help conserve water and keep it clean. Vibrant photographs of water around the world make this an engaging learning experience.","English",25.6,20.48,"333.91","24 pp.","https://greenhavenpublishing.com/9781534520561",null,{"$f":"Table1[[#This Row],['# of Books]]*Table1[[#This Row],[QTY]]","v":0},{"$f":"Table1[[#This Row],[QTY]]*Table1[[#This Row],[School & Library Price]]","v":0}]
[null,null,null,null,35,"Science and Technology","Environmental Issues","Environmental Issues: Set 2","978-1-5345-3042-3",{"$f":"HYPERLINK(Table1[[#This Row],[eCommerce Hyperlink]],\"Book Weblink\")","v":"Book Weblink"},null,"KidHaven Publishing","Library Set",8,"2020","August 2019","Library","8.500 X 8.500",null,null,null,null,null,null,null,null,"Grade 2 - 3","Grade 2 - 4","There are many issues facing the environment that are affected by human actions. As technology continues to progress, more solutions are offered for decreasing the damage done to the earth. However, some of this technological progress contributes to that damage as well. Readers discover this struggle between helpful and harmful technological advances as they study climate change, fossil fuels, renewable energy sources, environmental disasters, sustainable living, and more. Informational fact boxes, detailed glossaries, and eye-catching full-color photographs are presented alongside the age-appropriate main texts, giving readers valuable insight into each important topic. Features include: Critical-thinking exercises are introduced as readers compare humankind’s positive and negative influence on the natural world. This set supports science curriculum topics and helps readers understand current events that are connected to the environment. Tips are provided to help young readers make choices to benefit the environment, encouraging them to take an active role in the world around them.","English",204.8,163.84,null,"24 pp.","https://greenhavenpublishing.com/9781534530423",null,{"$f":"Table1[[#This Row],['# of Books]]*Table1[[#This Row],[QTY]]","v":0},{"$f":"Table1[[#This Row],[QTY]]*Table1[[#This Row],[School & Library Price]]","v":0}]
[null,null,null,null,35,"Science and Technology","Environmental Issues","Agriculture and Land Use","978-1-5345-3032-4",{"$f":"HYPERLINK(Table1[[#This Row],[eCommerce Hyperlink]],\"Book Weblink\")","v":"Book Weblink"},null,"KidHaven Publishing","Library Bound Book",1,"2020","August 2019","Library","8.500 X 8.500","Author","Emilie Dufresne",null,null,null,null,"L",null,"Grade 2 - 3","Grade 2 - 4","Feeding the growing population is causing serious problems for the environment. However, people still need to eat. How can people strike a balance between using the land for food and protecting the planet? This accessible and age-appropriate main text provides essential information about this problem and potential solutions. Detailed fact boxes, a helpful glossary, and vibrant, full-color photographs add extra insight into this crucial topic that allows readers to connect what they've learned about in science classes with issues that are currently in the news.","English",25.6,20.48,"630--dc23","24 pp.","https://greenhavenpublishing.com/9781534530324",null,{"$f":"Table1[[#This Row],['# of Books]]*Table1[[#This Row],[QTY]]","v":0},{"$f":"Table1[[#This Row],[QTY]]*Table1[[#This Row],[School & Library Price]]","v":0}]
[null,null,null,null,35,"Science and Technology","Environmental Issues","Agriculture and Land Use","978-1-5345-3059-1",{"$f":"HYPERLINK(Table1[[#This Row],[eCommerce Hyperlink]],\"Book Weblink\")","v":"Book Weblink"},null,"KidHaven Publishing","eBook",1,"2020","August 2019",null,null,"Author","Emilie Dufresne",null,null,null,null,"L",null,"Grade 2 - 3","Grade 2 - 4","Feeding the growing population is causing serious problems for the environment. However, people still need to eat. How can people strike a balance between using the land for food and protecting the planet? This accessible and age-appropriate main text provides essential information about this problem and potential solutions. Detailed fact boxes, a helpful glossary, and vibrant, full-color photographs add extra insight into this crucial topic that allows readers to connect what they've learned about in science classes with issues that are currently in the news.","English",25.6,20.48,"630--dc23","24 pp.","https://greenhavenpublishing.com/9781534530591",null,{"$f":"Table1[[#This Row],['# of Books]]*Table1[[#This Row],[QTY]]","v":0},{"$f":"Table1[[#This Row],[QTY]]*Table1[[#This Row],[School & Library Price]]","v":0}]
[null,null,null,null,35,"Science and Technology","Environmental Issues","Climate Change","978-1-5345-3033-1",{"$f":"HYPERLINK(Table1[[#This Row],[eCommerce Hyperlink]],\"Book Weblink\")","v":"Book Weblink"},null,"KidHaven Publishing","Library Bound Book",1,"2020","August 2019","Library","8.500 X 8.500","Author","Harriet Brundle",null,null,null,null,"L",null,"Grade 2 - 3","Grade 2 - 4","Some people are skeptical about climate change. According to many scientists, this threat to the environment is real. Readers explore the ways in which humans contribute to the problem of climate change, but they also learn how humans can work to stop this environmental crisis. Eye-catching fact boxes, a detailed glossary, and full-color photographs enhance readers' understanding of this important science curriculum topic and how it connects to current events. The age-appropriate tone introduces this serious issue in an accessible way that encourages young readers to think critically about their impact on the natural world.","English",25.6,20.48,"363.738'74--dc23","24 pp.","https://greenhavenpublishing.com/9781534530331",null,{"$f":"Table1[[#This Row],['# of Books]]*Table1[[#This Row],[QTY]]","v":0},{"$f":"Table1[[#This Row],[QTY]]*Table1[[#This Row],[School & Library Price]]","v":0}]
[null,null,null,null,35,"Science and Technology","Environmental Issues","Climate Change","978-1-5345-3066-9",{"$f":"HYPERLINK(Table1[[#This Row],[eCommerce Hyperlink]],\"Book Weblink\")","v":"Book Weblink"},null,"KidHaven Publishing","eBook",1,"2020","August 2019",null,null,"Author","Harriet Brundle",null,null,null,null,"L",null,"Grade 2 - 3","Grade 2 - 4","Some people are skeptical about climate change. According to many scientists, this threat to the environment is real. Readers explore the ways in which humans contribute to the problem of climate change, but they also learn how humans can work to stop this environmental crisis. Eye-catching fact boxes, a detailed glossary, and full-color photographs enhance readers' understanding of this important science curriculum topic and how it connects to current events. The age-appropriate tone introduces this serious issue in an accessible way that encourages young readers to think critically about their impact on the natural world.","English",25.6,20.48,"363.738'74--dc23","24 pp.","https://greenhavenpublishing.com/9781534530669",null,{"$f":"Table1[[#This Row],['# of Books]]*Table1[[#This Row],[QTY]]","v":0},{"$f":"Table1[[#This Row],[QTY]]*Table1[[#This Row],[School & Library Price]]","v":0}]
[null,null,null,null,35,"Science and Technology","Environmental Issues","Environmental Disasters","978-1-5345-3034-8",{"$f":"HYPERLINK(Table1[[#This Row],[eCommerce Hyperlink]],\"Book Weblink\")","v":"Book Weblink"},null,"KidHaven Publishing","Library Bound Book",1,"2020","August 2019","Library","8.500 X 8.500","Author","Emilie Dufresne",null,null,null,null,"L",null,"Grade 2 - 3","Grade 2 - 4","Throughout history, there have been many environmental disasters, such as oil spills, chemical catastrophes, and nuclear explosions, which were all caused by human actions leading to dire consequences for the natural world. Readers learn about the causes and effects of major environmental disasters through age-appropriate main text, interesting fact boxes, bright full-color photographs, and a detailed glossary. They also discover the process of cleaning up after these events and what can be done to keep them from happening in the future. This important environmental issue connects science curriculum topics and critical thinking about the world in an engaging way.","English",25.6,20.48,"363.7'02--dc23","24 pp.","https://greenhavenpublishing.com/9781534530348",null,{"$f":"Table1[[#This Row],['# of Books]]*Table1[[#This Row],[QTY]]","v":0},{"$f":"Table1[[#This Row],[QTY]]*Table1[[#This Row],[School & Library Price]]","v":0}]
[null,null,null,null,35,"Science and Technology","Environmental Issues","Environmental Disasters","978-1-5345-3065-2",{"$f":"HYPERLINK(Table1[[#This Row],[eCommerce Hyperlink]],\"Book Weblink\")","v":"Book Weblink"},null,"KidHaven Publishing","eBook",1,"2020","August 2019",null,null,"Author","Emilie Dufresne",null,null,null,null,"L",null,"Grade 2 - 3","Grade 2 - 4","Throughout history, there have been many environmental disasters, such as oil spills, chemical catastrophes, and nuclear explosions, which were all caused by human actions leading to dire consequences for the natural world. Readers learn about the causes and effects of major environmental disasters through age-appropriate main text, interesting fact boxes, bright full-color photographs, and a detailed glossary. They also discover the process of cleaning up after these events and what can be done to keep them from happening in the future. This important environmental issue connects science curriculum topics and critical thinking about the world in an engaging way.","English",25.6,20.48,"363.7'02--dc23","24 pp.","https://greenhavenpublishing.com/9781534530652",null,{"$f":"Table1[[#This Row],['# of Books]]*Table1[[#This Row],[QTY]]","v":0},{"$f":"Table1[[#This Row],[QTY]]*Table1[[#This Row],[School & Library Price]]","v":0}]
[null,null,null,null,35,"Science and Technology","Environmental Issues","Fossil Fuels","978-1-5345-3035-5",{"$f":"HYPERLINK(Table1[[#This Row],[eCommerce Hyperlink]],\"Book Weblink\")","v":"Book Weblink"},null,"KidHaven Publishing","Library Bound Book",1,"2020","August 2019","Library","8.500 X 8.500","Author","Emilie Dufresne",null,null,null,null,"L",null,"Grade 2 - 3","Grade 2 - 4","Readers discover essential facts about the environment as they expand their knowledge of fossil fuels such as coal, oil, and natural gas. As the human population grows and technology advances, more energy is needed to power different products, such as cars, machines, and household appliances. The use of excessive fossil fuels is detrimental for the environment, whereas using renewable energy sources, such as sunlight, wind, and geothermal heat causes less destruction to the natural world. Readers learn these and other important facts with the help of a compelling, fact-filled narrative, detailed glossary, fact boxes, and creative design elements.","English",25.6,20.48,"333.8'2--dc23","24 pp.","https://greenhavenpublishing.com/9781534530355",null,{"$f":"Table1[[#This Row],['# of Books]]*Table1[[#This Row],[QTY]]","v":0},{"$f":"Table1[[#This Row],[QTY]]*Table1[[#This Row],[School & Library Price]]","v":0}]
[null,null,null,null,35,"Science and Technology","Environmental Issues","Fossil Fuels","978-1-5345-3060-7",{"$f":"HYPERLINK(Table1[[#This Row],[eCommerce Hyperlink]],\"Book Weblink\")","v":"Book Weblink"},null,"KidHaven Publishing","eBook",1,"2020","August 2019",null,null,"Author","Emilie Dufresne",null,null,null,null,"L",null,"Grade 2 - 3","Grade 2 - 4","Readers discover essential facts about the environment as they expand their knowledge of fossil fuels such as coal, oil, and natural gas. As the human population grows and technology advances, more energy is needed to power different products, such as cars, machines, and household appliances. The use of excessive fossil fuels is detrimental for the environment, whereas using renewable energy sources, such as sunlight, wind, and geothermal heat causes less destruction to the natural world. Readers learn these and other important facts with the help of a compelling, fact-filled narrative, detailed glossary, fact boxes, and creative design elements.","English",25.6,20.48,"333.8'2--dc23","24 pp.","https://greenhavenpublishing.com/9781534530607",null,{"$f":"Table1[[#This Row],['# of Books]]*Table1[[#This Row],[QTY]]","v":0},{"$f":"Table1[[#This Row],[QTY]]*Table1[[#This Row],[School & Library Price]]","v":0}]
[null,null,null,null,35,"Science and Technology","Environmental Issues","Mining and Deforestation","978-1-5345-3036-2",{"$f":"HYPERLINK(Table1[[#This Row],[eCommerce Hyperlink]],\"Book Weblink\")","v":"Book Weblink"},null,"KidHaven Publishing","Library Bound Book",1,"2020","August 2019","Library","8.500 X 8.500","Author","Emilie Dufresne",null,null,null,null,"L",null,"Grade 2 - 3","Grade 2 - 4","Mining and deforestation help people obtain resources such as coal, gems, and wood, but these practices also contribute to environmental problems. Over time, these practices can affect the lives of humans, plants, animals, and other organisms. Readers are introduced to these negative environmental factors and are encouraged to think critically about sustainable living solutions to prevent further damage to the natural world. Additional information is provided through interesting fact boxes and a helpful glossary. Vivid, full-color photographs give an up-close and detailed look into this environmental issue.","English",25.6,20.48,"333.75'13--dc23","24 pp.","https://greenhavenpublishing.com/9781534530362",null,{"$f":"Table1[[#This Row],['# of Books]]*Table1[[#This Row],[QTY]]","v":0},{"$f":"Table1[[#This Row],[QTY]]*Table1[[#This Row],[School & Library Price]]","v":0}]
[null,null,null,null,35,"Science and Technology","Environmental Issues","Mining and Deforestation","978-1-5345-3062-1",{"$f":"HYPERLINK(Table1[[#This Row],[eCommerce Hyperlink]],\"Book Weblink\")","v":"Book Weblink"},null,"KidHaven Publishing","eBook",1,"2020","August 2019",null,null,"Author","Emilie Dufresne",null,null,null,null,"L",null,"Grade 2 - 3","Grade 2 - 4","Mining and deforestation help people obtain resources such as coal, gems, and wood, but these practices also contribute to environmental problems. Over time, these practices can affect the lives of humans, plants, animals, and other organisms. Readers are introduced to these negative environmental factors and are encouraged to think critically about sustainable living solutions to prevent further damage to the natural world. Additional information is provided through interesting fact boxes and a helpful glossary. Vivid, full-color photographs give an up-close and detailed look into this environmental issue.","English",25.6,20.48,"333.75'13--dc23","24 pp.","https://greenhavenpublishing.com/9781534530621",null,{"$f":"Table1[[#This Row],['# of Books]]*Table1[[#This Row],[QTY]]","v":0},{"$f":"Table1[[#This Row],[QTY]]*Table1[[#This Row],[School & Library Price]]","v":0}]
[null,null,null,null,35,"Science and Technology","Environmental Issues","Renewable Energy Sources","978-1-5345-3037-9",{"$f":"HYPERLINK(Table1[[#This Row],[eCommerce Hyperlink]],\"Book Weblink\")","v":"Book Weblink"},null,"KidHaven Publishing","Library Bound Book",1,"2020","August 2019","Library","8.500 X 8.500","Author","Emilie Dufresne",null,null,null,null,"L",null,"Grade 2 - 3","Grade 2 - 4","As the human population increases and technology advances, new solutions are being found for the problems caused by our growing need for energy. While some people continue to believe fossil fuels are the best source of energy, others have begun to use renewable energy sources that are better for the environment. Through the accessible and age-appropriate main text, readers are introduced to renewable energy sources, such as solar power, wind power, and geothermal power. Engaging fact boxes and a helpful glossary provide additional information, while full-color photographs enhance the reading experience.","English",25.6,20.48,"333.79'4--dc23","24 pp.","https://greenhavenpublishing.com/9781534530379",null,{"$f":"Table1[[#This Row],['# of Books]]*Table1[[#This Row],[QTY]]","v":0},{"$f":"Table1[[#This Row],[QTY]]*Table1[[#This Row],[School & Library Price]]","v":0}]
[null,null,null,null,35,"Science and Technology","Environmental Issues","Renewable Energy Sources","978-1-5345-3061-4",{"$f":"HYPERLINK(Table1[[#This Row],[eCommerce Hyperlink]],\"Book Weblink\")","v":"Book Weblink"},null,"KidHaven Publishing","eBook",1,"2020","August 2019",null,null,"Author","Emilie Dufresne",null,null,null,null,"L",null,"Grade 2 - 3","Grade 2 - 4","As the human population increases and technology advances, new solutions are being found for the problems caused by our growing need for energy. While some people continue to believe fossil fuels are the best source of energy, others have begun to use renewable energy sources that are better for the environment. Through the accessible and age-appropriate main text, readers are introduced to renewable energy sources, such as solar power, wind power, and geothermal power. Engaging fact boxes and a helpful glossary provide additional information, while full-color photographs enhance the reading experience.","English",25.6,20.48,"333.79'4--dc23","24 pp.","https://greenhavenpublishing.com/9781534530614",null,{"$f":"Table1[[#This Row],['# of Books]]*Table1[[#This Row],[QTY]]","v":0},{"$f":"Table1[[#This Row],[QTY]]*Table1[[#This Row],[School & Library Price]]","v":0}]
[null,null,null,null,35,"Science and Technology","Environmental Issues","Sea Levels and Ice Caps","978-1-5345-3038-6",{"$f":"HYPERLINK(Table1[[#This Row],[eCommerce Hyperlink]],\"Book Weblink\")","v":"Book Weblink"},null,"KidHaven Publishing","Library Bound Book",1,"2020","August 2019","Library","8.500 X 8.500","Author","Emilie Dufresne",null,null,null,null,"L",null,"Grade 2 - 3","Grade 2 - 4","As climate change continues to affect the earth, issues such as ice caps melting and sea levels rising have been in the spotlight more often. These changes in geography negatively impact humans, sea creatures, and other parts of the natural world. Through the well-researched main text on this science curriculum topic, readers are exposed to these effects of climate change and what is being done to keep the problems from getting worse. A helpful glossary, detailed fact boxes, and eye-catching, full-color photographs add extra insight to this valuable resource for readers. They will be inspired to take part in preserving the environment for generations to come.","English",25.6,20.48,"551.45'8--dc23","24 pp.","https://greenhavenpublishing.com/9781534530386",null,{"$f":"Table1[[#This Row],['# of Books]]*Table1[[#This Row],[QTY]]","v":0},{"$f":"Table1[[#This Row],[QTY]]*Table1[[#This Row],[School & Library Price]]","v":0}]
[null,null,null,null,35,"Science and Technology","Environmental Issues","Sea Levels and Ice Caps","978-1-5345-3064-5",{"$f":"HYPERLINK(Table1[[#This Row],[eCommerce Hyperlink]],\"Book Weblink\")","v":"Book Weblink"},null,"KidHaven Publishing","eBook",1,"2020","August 2019",null,null,"Author","Emilie Dufresne",null,null,null,null,"L",null,"Grade 2 - 3","Grade 2 - 4","As climate change continues to affect the earth, issues such as ice caps melting and sea levels rising have been in the spotlight more often. These changes in geography negatively impact humans, sea creatures, and other parts of the natural world. Through the well-researched main text on this science curriculum topic, readers are exposed to these effects of climate change and what is being done to keep the problems from getting worse. A helpful glossary, detailed fact boxes, and eye-catching, full-color photographs add extra insight to this valuable resource for readers. They will be inspired to take part in preserving the environment for generations to come.","English",25.6,20.48,"551.45'8--dc23","24 pp.","https://greenhavenpublishing.com/9781534530645",null,{"$f":"Table1[[#This Row],['# of Books]]*Table1[[#This Row],[QTY]]","v":0},{"$f":"Table1[[#This Row],[QTY]]*Table1[[#This Row],[School & Library Price]]","v":0}]
[null,null,null,null,35,"Science and Technology","Environmental Issues","Sustainable Living","978-1-5345-3039-3",{"$f":"HYPERLINK(Table1[[#This Row],[eCommerce Hyperlink]],\"Book Weblink\")","v":"Book Weblink"},null,"KidHaven Publishing","Library Bound Book",1,"2020","August 2019","Library","8.500 X 8.500","Author","Harriet Brundle",null,null,null,null,"L",null,"Grade 2 - 3","Grade 2 - 4","What is sustainable living, and how does it benefit our environment? These questions and more are answered in this volume about living an environmentally friendly life. Young readers will learn how to think critically about their own carbon footprint. They'll be inspired to use and re-use recycled materials, and choose renewable energy sources instead of fossil fuels. Interesting fact boxes, a detailed glossary, and bright, full-color photographs provide additional information about this essential environmental topic. Young readers who are passionate about environmental conservation will enjoy this engaging resource.","English",25.6,20.48,"333.79--dc23","24 pp.","https://greenhavenpublishing.com/9781534530393",null,{"$f":"Table1[[#This Row],['# of Books]]*Table1[[#This Row],[QTY]]","v":0},{"$f":"Table1[[#This Row],[QTY]]*Table1[[#This Row],[School & Library Price]]","v":0}]
[null,null,null,null,35,"Science and Technology","Environmental Issues","Sustainable Living","978-1-5345-3063-8",{"$f":"HYPERLINK(Table1[[#This Row],[eCommerce Hyperlink]],\"Book Weblink\")","v":"Book Weblink"},null,"KidHaven Publishing","eBook",1,"2020","August 2019",null,null,"Author","Harriet Brundle",null,null,null,null,"L",null,"Grade 2 - 3","Grade 2 - 4","What is sustainable living, and how does it benefit our environment? These questions and more are answered in this volume about living an environmentally friendly life. Young readers will learn how to think critically about their own carbon footprint. They'll be inspired to use and re-use recycled materials, and choose renewable energy sources instead of fossil fuels. Interesting fact boxes, a detailed glossary, and bright, full-color photographs provide additional information about this essential environmental topic. Young readers who are passionate about environmental conservation will enjoy this engaging resource.","English",25.6,20.48,"333.79--dc23","24 pp.","https://greenhavenpublishing.com/9781534530638",null,{"$f":"Table1[[#This Row],['# of Books]]*Table1[[#This Row],[QTY]]","v":0},{"$f":"Table1[[#This Row],[QTY]]*Table1[[#This Row],[School & Library Price]]","v":0}]
[null,null,null,null,35,"Science and Technology","Forest Explorer","Forest Explorer","978-1-5345-2965-6",{"$f":"HYPERLINK(Table1[[#This Row],[eCommerce Hyperlink]],\"Book Weblink\")","v":"Book Weblink"},null,"KidHaven Publishing","Library Set",8,"2019","January 2019","Library","8.500 X 8.500",null,null,null,null,null,null,null,null,"Grade 2","Grade 1 - 3","Readers are transported to exciting forest environments as they are exposed to a wide variety of ecosystems in the natural world. Not only will they learn about popular animals, insects, and birds, but they will also be introduced to forest plant life, fungi, and mold. In addition to the well-researched main text, captivating, full-color photographs show forest scenes in stunning detail, while informative fact boxes provide extra insight into this common science curriculum topic. These fun and fact-filled guides to the forest are sure to inspire nature lovers and budding biologists. Features include: Detailed focus on a familiar environment for many readers encourages them to see learning opportunities in the natural world around them. Text and images introduce readers to the concept of biodiversity within forests. Engaging tone fosters an appreciation for nature and is meant to spark an interest in environmental conservation among young readers.","English",204.8,163.84,null,"24 pp.","https://greenhavenpublishing.com/9781534529656",null,{"$f":"Table1[[#This Row],['# of Books]]*Table1[[#This Row],[QTY]]","v":0},{"$f":"Table1[[#This Row],[QTY]]*Table1[[#This Row],[School & Library Price]]","v":0}]
[null,null,null,null,35,"Science and Technology","Forest Explorer","Birds","978-1-5345-2857-4",{"$f":"HYPERLINK(Table1[[#This Row],[eCommerce Hyperlink]],\"Book Weblink\")","v":"Book Weblink"},null,"KidHaven Publishing","Library Bound Book",1,"2019","January 2019","Library","8.500 X 8.500","Author","Robin Twiddy",null,null,null,null,"K",null,"Grade 2","Grade 1 - 3","There are many different kinds of birds that live in forest environments. Readers will learn about what these birds eat, where in forests they can be found, and more interesting facts about these winged creatures. Through age-appropriate, well-researched text, they are exposed to common elementary science curriculum topics presented in a creative way that encourages them to develop an appreciation for nature. Informative fact boxes, a helpful glossary, and vibrant, full-color photographs serve as additional features to captivate those interested in biodiversity and the wonders of the natural world.","English",25.6,20.48,"598--dc23","24 pp.","https://greenhavenpublishing.com/9781534528574",null,{"$f":"Table1[[#This Row],['# of Books]]*Table1[[#This Row],[QTY]]","v":0},{"$f":"Table1[[#This Row],[QTY]]*Table1[[#This Row],[School & Library Price]]","v":0}]
[null,null,null,null,35,"Science and Technology","Forest Explorer","Birds","978-1-5345-2858-1",{"$f":"HYPERLINK(Table1[[#This Row],[eCommerce Hyperlink]],\"Book Weblink\")","v":"Book Weblink"},null,"KidHaven Publishing","eBook",1,"2019","January 2019",null,null,"Author","Robin Twiddy",null,null,null,null,"K",null,"Grade 2","Grade 1 - 3","There are many different kinds of birds that live in forest environments. Readers will learn about what these birds eat, where in forests they can be found, and more interesting facts about these winged creatures. Through age-appropriate, well-researched text, they are exposed to common elementary science curriculum topics presented in a creative way that encourages them to develop an appreciation for nature. Informative fact boxes, a helpful glossary, and vibrant, full-color photographs serve as additional features to captivate those interested in biodiversity and the wonders of the natural world.","English",25.6,20.48,"598--dc23","24 pp.","https://greenhavenpublishing.com/9781534528581",null,{"$f":"Table1[[#This Row],['# of Books]]*Table1[[#This Row],[QTY]]","v":0},{"$f":"Table1[[#This Row],[QTY]]*Table1[[#This Row],[School & Library Price]]","v":0}]
[null,null,null,null,35,"Science and Technology","Forest Explorer","Forest Creatures","978-1-5345-2861-1",{"$f":"HYPERLINK(Table1[[#This Row],[eCommerce Hyperlink]],\"Book Weblink\")","v":"Book Weblink"},null,"KidHaven Publishing","Library Bound Book",1,"2019","January 2019","Library","8.500 X 8.500","Author","Robin Twiddy",null,null,null,null,"K",null,"Grade 2","Grade 1 - 3","How many different kinds of creatures live in the forest? Where do they make their homes within the forest? What kinds of things do they eat? Questions such as these are answered in this age-appropriate text about the biodiversity that exists in forests. This common science curriculum topic is clearly communicated to help inform young readers about this common biome and all the living creatures within it. Helpful fact boxes, a detailed glossary, and eye-catching, full-color photographs add extra insight into this educational and engaging topic, which is sure to spark an interest in nature and conservation.","English",25.6,20.48,"591.73--dc23","24 pp.","https://greenhavenpublishing.com/9781534528611",null,{"$f":"Table1[[#This Row],['# of Books]]*Table1[[#This Row],[QTY]]","v":0},{"$f":"Table1[[#This Row],[QTY]]*Table1[[#This Row],[School & Library Price]]","v":0}]
[null,null,null,null,35,"Science and Technology","Forest Explorer","Forest Creatures","978-1-5345-2862-8",{"$f":"HYPERLINK(Table1[[#This Row],[eCommerce Hyperlink]],\"Book Weblink\")","v":"Book Weblink"},null,"KidHaven Publishing","eBook",1,"2019","January 2019",null,null,"Author","Robin Twiddy",null,null,null,null,"K",null,"Grade 2","Grade 1 - 3","How many different kinds of creatures live in the forest? Where do they make their homes within the forest? What kinds of things do they eat? Questions such as these are answered in this age-appropriate text about the biodiversity that exists in forests. This common science curriculum topic is clearly communicated to help inform young readers about this common biome and all the living creatures within it. Helpful fact boxes, a detailed glossary, and eye-catching, full-color photographs add extra insight into this educational and engaging topic, which is sure to spark an interest in nature and conservation.","English",25.6,20.48,"591.73--dc23","24 pp.","https://greenhavenpublishing.com/9781534528628",null,{"$f":"Table1[[#This Row],['# of Books]]*Table1[[#This Row],[QTY]]","v":0},{"$f":"Table1[[#This Row],[QTY]]*Table1[[#This Row],[School & Library Price]]","v":0}]
[null,null,null,null,35,"Science and Technology","Forest Explorer","Insects and More","978-1-5345-2865-9",{"$f":"HYPERLINK(Table1[[#This Row],[eCommerce Hyperlink]],\"Book Weblink\")","v":"Book Weblink"},null,"KidHaven Publishing","Library Bound Book",1,"2019","January 2019","Library","8.500 X 8.500","Author","Robin Twiddy",null,null,null,null,"K",null,"Grade 2","Grade 1 - 3","Some forest bugs may be freaky, but they're also fascinating! Readers are introduced to creepy crawling critters and bugs in this volume about insects that live in forest environments. They learn the specific roles various insects play in a forest ecosystem. This elementary science curriculum topic is clearly explained through age-appropriate, well-researched text that encourages an appreciation for biodiversity. In addition, a helpful glossary and informative fact boxes help readers learn more about this fun topic. Full-color photographs show forest environments and the bugs that live there in impressive detail.","English",25.6,20.48,"595.7--dc23","24 pp.","https://greenhavenpublishing.com/9781534528659",null,{"$f":"Table1[[#This Row],['# of Books]]*Table1[[#This Row],[QTY]]","v":0},{"$f":"Table1[[#This Row],[QTY]]*Table1[[#This Row],[School & Library Price]]","v":0}]
[null,null,null,null,35,"Science and Technology","Forest Explorer","Insects and More","978-1-5345-2866-6",{"$f":"HYPERLINK(Table1[[#This Row],[eCommerce Hyperlink]],\"Book Weblink\")","v":"Book Weblink"},null,"KidHaven Publishing","eBook",1,"2019","January 2019",null,null,"Author","Robin Twiddy",null,null,null,null,"K",null,"Grade 2","Grade 1 - 3","Some forest bugs may be freaky, but they're also fascinating! Readers are introduced to creepy crawling critters and bugs in this volume about insects that live in forest environments. They learn the specific roles various insects play in a forest ecosystem. This elementary science curriculum topic is clearly explained through age-appropriate, well-researched text that encourages an appreciation for biodiversity. In addition, a helpful glossary and informative fact boxes help readers learn more about this fun topic. Full-color photographs show forest environments and the bugs that live there in impressive detail.","English",25.6,20.48,"595.7--dc23","24 pp.","https://greenhavenpublishing.com/9781534528666",null,{"$f":"Table1[[#This Row],['# of Books]]*Table1[[#This Row],[QTY]]","v":0},{"$f":"Table1[[#This Row],[QTY]]*Table1[[#This Row],[School & Library Price]]","v":0}]
[null,null,null,null,35,"Science and Technology","Forest Explorer","Mushrooms and Fungi","978-1-5345-2873-4",{"$f":"HYPERLINK(Table1[[#This Row],[eCommerce Hyperlink]],\"Book Weblink\")","v":"Book Weblink"},null,"KidHaven Publishing","Library Bound Book",1,"2019","January 2019","Library","8.500 X 8.500","Author","Robin Twiddy",null,null,null,null,"K",null,"Grade 2","Grade 1 - 3","Many different organisms live in forest environments, including mushrooms and other kinds of fungi. These are common sights in the forest, but how much do young readers really know about fungi? This elementary science curriculum topic is explained through accessible text to provide a better understanding of these complex life forms. Readers discover how other organisms, such as plants, benefit from certain fungi, while other organisms can be harmed by them. Informative fact boxes, an accessible glossary of science terms, and detailed, full-color photographs work together to give readers a deeper appreciation for all organisms that call the forest home.","English",25.6,20.48,"579.6--dc23","24 pp.","https://greenhavenpublishing.com/9781534528734",null,{"$f":"Table1[[#This Row],['# of Books]]*Table1[[#This Row],[QTY]]","v":0},{"$f":"Table1[[#This Row],[QTY]]*Table1[[#This Row],[School & Library Price]]","v":0}]
[null,null,null,null,35,"Science and Technology","Forest Explorer","Mushrooms and Fungi","978-1-5345-2874-1",{"$f":"HYPERLINK(Table1[[#This Row],[eCommerce Hyperlink]],\"Book Weblink\")","v":"Book Weblink"},null,"KidHaven Publishing","eBook",1,"2019","January 2019",null,null,"Author","Robin Twiddy",null,null,null,null,"K",null,"Grade 2","Grade 1 - 3","Many different organisms live in forest environments, including mushrooms and other kinds of fungi. These are common sights in the forest, but how much do young readers really know about fungi? This elementary science curriculum topic is explained through accessible text to provide a better understanding of these complex life forms. Readers discover how other organisms, such as plants, benefit from certain fungi, while other organisms can be harmed by them. Informative fact boxes, an accessible glossary of science terms, and detailed, full-color photographs work together to give readers a deeper appreciation for all organisms that call the forest home.","English",25.6,20.48,"579.6--dc23","24 pp.","https://greenhavenpublishing.com/9781534528741",null,{"$f":"Table1[[#This Row],['# of Books]]*Table1[[#This Row],[QTY]]","v":0},{"$f":"Table1[[#This Row],[QTY]]*Table1[[#This Row],[School & Library Price]]","v":0}]
[null,null,null,null,35,"Science and Technology","Forest Explorer","Rocks, Sticks, and the Forest Floor","978-1-5345-2869-7",{"$f":"HYPERLINK(Table1[[#This Row],[eCommerce Hyperlink]],\"Book Weblink\")","v":"Book Weblink"},null,"KidHaven Publishing","Library Bound Book",1,"2019","January 2019","Library","8.500 X 8.500","Author","Robin Twiddy",null,null,null,null,"K",null,"Grade 2","Grade 1 - 3","The forest floor is its own amazing ecosystem with much to explore! What kinds of rocks are found in the forest? How are sticks used by animals and insects? Questions such as these are answered as readers explore the hidden world of the forest floor. Through age-appropriate text, common science curriculum topics are made accessible to young readers. Budding forest explorers are aided by helpful fact boxes, a detailed glossary, and full-color photographs that show the details of an exciting ecosystem found right under their feet.","English",25.6,20.48,"577.3--dc23","24 pp.","https://greenhavenpublishing.com/9781534528697",null,{"$f":"Table1[[#This Row],['# of Books]]*Table1[[#This Row],[QTY]]","v":0},{"$f":"Table1[[#This Row],[QTY]]*Table1[[#This Row],[School & Library Price]]","v":0}]
[null,null,null,null,35,"Science and Technology","Forest Explorer","Rocks, Sticks, and the Forest Floor","978-1-5345-2870-3",{"$f":"HYPERLINK(Table1[[#This Row],[eCommerce Hyperlink]],\"Book Weblink\")","v":"Book Weblink"},null,"KidHaven Publishing","eBook",1,"2019","January 2019",null,null,"Author","Robin Twiddy",null,null,null,null,"K",null,"Grade 2","Grade 1 - 3","The forest floor is its own amazing ecosystem with much to explore! What kinds of rocks are found in the forest? How are sticks used by animals and insects? Questions such as these are answered as readers explore the hidden world of the forest floor. Through age-appropriate text, common science curriculum topics are made accessible to young readers. Budding forest explorers are aided by helpful fact boxes, a detailed glossary, and full-color photographs that show the details of an exciting ecosystem found right under their feet.","English",25.6,20.48,"577.3--dc23","24 pp.","https://greenhavenpublishing.com/9781534528703",null,{"$f":"Table1[[#This Row],['# of Books]]*Table1[[#This Row],[QTY]]","v":0},{"$f":"Table1[[#This Row],[QTY]]*Table1[[#This Row],[School & Library Price]]","v":0}]
[null,null,null,null,35,"Science and Technology","Forest Explorer","Rot and Mold","978-1-5345-2885-7",{"$f":"HYPERLINK(Table1[[#This Row],[eCommerce Hyperlink]],\"Book Weblink\")","v":"Book Weblink"},null,"KidHaven Publishing","Library Bound Book",1,"2019","January 2019","Library","8.500 X 8.500","Author","Robin Twiddy",null,null,null,null,"K",null,"Grade 2","Grade 1 - 3","Why do things start to rot? Is mold dangerous? Questions such as these are answered as readers explore the fascinating process of forest decay through accessible text and full-color photographs that help readers understand this important natural process. Readers learn what types of organisms in forests cause trees to rot and mold to grow, along with how these processes affect the entire forest ecosystem. Fun fact boxes and an age-appropriate glossary expand on this essential elementary curriculum topic that is sure to appeal to nature lovers and budding scientists.","English",25.6,20.48,"581.7'14--dc23","24 pp.","https://greenhavenpublishing.com/9781534528857",null,{"$f":"Table1[[#This Row],['# of Books]]*Table1[[#This Row],[QTY]]","v":0},{"$f":"Table1[[#This Row],[QTY]]*Table1[[#This Row],[School & Library Price]]","v":0}]
[null,null,null,null,35,"Science and Technology","Forest Explorer","Rot and Mold","978-1-5345-2886-4",{"$f":"HYPERLINK(Table1[[#This Row],[eCommerce Hyperlink]],\"Book Weblink\")","v":"Book Weblink"},null,"KidHaven Publishing","eBook",1,"2019","January 2019",null,null,"Author","Robin Twiddy",null,null,null,null,"K",null,"Grade 2","Grade 1 - 3","Why do things start to rot? Is mold dangerous? Questions such as these are answered as readers explore the fascinating process of forest decay through accessible text and full-color photographs that help readers understand this important natural process. Readers learn what types of organisms in forests cause trees to rot and mold to grow, along with how these processes affect the entire forest ecosystem. Fun fact boxes and an age-appropriate glossary expand on this essential elementary curriculum topic that is sure to appeal to nature lovers and budding scientists.","English",25.6,20.48,"581.7'14--dc23","24 pp.","https://greenhavenpublishing.com/9781534528864",null,{"$f":"Table1[[#This Row],['# of Books]]*Table1[[#This Row],[QTY]]","v":0},{"$f":"Table1[[#This Row],[QTY]]*Table1[[#This Row],[School & Library Price]]","v":0}]
[null,null,null,null,35,"Science and Technology","Forest Explorer","Trees","978-1-5345-2881-9",{"$f":"HYPERLINK(Table1[[#This Row],[eCommerce Hyperlink]],\"Book Weblink\")","v":"Book Weblink"},null,"KidHaven Publishing","Library Bound Book",1,"2019","January 2019","Library","8.500 X 8.500","Author","Robin Twiddy",null,null,null,null,"K",null,"Grade 2","Grade 1 - 3","Forests are filled with trees, but they're not all the same. How many different trees can be found in the forest, and how can you tell them apart? Questions such as these are answered as readers discover the various trees found in forest environments. This essential elementary science curriculum topic is presented to readers in a way that encourages them to explore the biodiversity of forests and the scientific wonders around them in the natural world. Additional resources, such as helpful fact boxes, a detailed glossary, and eye-catching, full-color photographs assist readers as they become forest explorers.","English",25.6,20.48,"582.16--dc23","24 pp.","https://greenhavenpublishing.com/9781534528819",null,{"$f":"Table1[[#This Row],['# of Books]]*Table1[[#This Row],[QTY]]","v":0},{"$f":"Table1[[#This Row],[QTY]]*Table1[[#This Row],[School & Library Price]]","v":0}]
[null,null,null,null,35,"Science and Technology","Forest Explorer","Trees","978-1-5345-2882-6",{"$f":"HYPERLINK(Table1[[#This Row],[eCommerce Hyperlink]],\"Book Weblink\")","v":"Book Weblink"},null,"KidHaven Publishing","eBook",1,"2019","January 2019",null,null,"Author","Robin Twiddy",null,null,null,null,"K",null,"Grade 2","Grade 1 - 3","Forests are filled with trees, but they're not all the same. How many different trees can be found in the forest, and how can you tell them apart? Questions such as these are answered as readers discover the various trees found in forest environments. This essential elementary science curriculum topic is presented to readers in a way that encourages them to explore the biodiversity of forests and the scientific wonders around them in the natural world. Additional resources, such as helpful fact boxes, a detailed glossary, and eye-catching, full-color photographs assist readers as they become forest explorers.","English",25.6,20.48,"582.16--dc23","24 pp.","https://greenhavenpublishing.com/9781534528826",null,{"$f":"Table1[[#This Row],['# of Books]]*Table1[[#This Row],[QTY]]","v":0},{"$f":"Table1[[#This Row],[QTY]]*Table1[[#This Row],[School & Library Price]]","v":0}]
[null,null,null,null,35,"Science and Technology","Forest Explorer","Water and Soil","978-1-5345-2877-2",{"$f":"HYPERLINK(Table1[[#This Row],[eCommerce Hyperlink]],\"Book Weblink\")","v":"Book Weblink"},null,"KidHaven Publishing","Library Bound Book",1,"2019","January 2019","Library","8.500 X 8.500","Author","Robin Twiddy",null,null,null,null,"K",null,"Grade 2","Grade 1 - 3","Water and soil serve as important parts of the natural world, and without them, forests would cease to exist. How do these two essential parts of nature work together to keep animals and plants alive in forests? This elementary science curriculum topic is explained through age-appropriate, accessible text, which highlights the importance of water and soil and how they help maintain the biodiversity of forests. A detailed glossary and informative fact boxes provide readers with more scientific background on these two common parts of ecosystems, and full-color photographs show forest environments in exciting detail.","English",25.6,20.48,"428.1--dc23","24 pp.","https://greenhavenpublishing.com/9781534528772",null,{"$f":"Table1[[#This Row],['# of Books]]*Table1[[#This Row],[QTY]]","v":0},{"$f":"Table1[[#This Row],[QTY]]*Table1[[#This Row],[School & Library Price]]","v":0}]
[null,null,null,null,35,"Science and Technology","Forest Explorer","Water and Soil","978-1-5345-2878-9",{"$f":"HYPERLINK(Table1[[#This Row],[eCommerce Hyperlink]],\"Book Weblink\")","v":"Book Weblink"},null,"KidHaven Publishing","eBook",1,"2019","January 2019",null,null,"Author","Robin Twiddy",null,null,null,null,"K",null,"Grade 2","Grade 1 - 3","Water and soil serve as important parts of the natural world, and without them, forests would cease to exist. How do these two essential parts of nature work together to keep animals and plants alive in forests? This elementary science curriculum topic is explained through age-appropriate, accessible text, which highlights the importance of water and soil and how they help maintain the biodiversity of forests. A detailed glossary and informative fact boxes provide readers with more scientific background on these two common parts of ecosystems, and full-color photographs show forest environments in exciting detail.","English",25.6,20.48,"428.1--dc23","24 pp.","https://greenhavenpublishing.com/9781534528789",null,{"$f":"Table1[[#This Row],['# of Books]]*Table1[[#This Row],[QTY]]","v":0},{"$f":"Table1[[#This Row],[QTY]]*Table1[[#This Row],[School & Library Price]]","v":0}]
[null,null,null,null,35,"Science and Technology","Making Things Work","Making Things Work","978-1-5345-2963-2",{"$f":"HYPERLINK(Table1[[#This Row],[eCommerce Hyperlink]],\"Book Weblink\")","v":"Book Weblink"},null,"KidHaven Publishing","Library Set",6,"2019","January 2019","Library","8.500 X 8.500",null,null,null,null,null,null,null,null,"Grade 2 - 3","Grade 2 - 4","What makes a lamp, a car, or a doorbell work? Readers will be able to answer this question after discovering fun and fascinating facts about the science behind everyday machines, including bells, circuits, motors, batteries, levers, and wheels. Readers enhance their understanding of these science curriculum topics insight through informational main text, eye-catching fact boxes, helpful diagrams, full-color photographs, and a detailed glossary. With each turn of the page, they will develop a deeper appreciation for how scientific concepts are at work in the world around us. Features include: Simple explanations of STEM concepts help make science, technology, engineering, and math topics more accessible to young readers. Clearly labeled diagrams and photographs give readers concrete visual depictions of the concepts explained in the text. Relatable examples using familiar objects help readers see how science can be applied to their lives in fun and important ways.","English",153.6,122.88,null,"24 pp.","https://greenhavenpublishing.com/9781534529632",null,{"$f":"Table1[[#This Row],['# of Books]]*Table1[[#This Row],[QTY]]","v":0},{"$f":"Table1[[#This Row],[QTY]]*Table1[[#This Row],[School & Library Price]]","v":0}]
[null,null,null,null,35,"Science and Technology","Making Things Work","Axles and Wheels","978-1-5345-2941-0",{"$f":"HYPERLINK(Table1[[#This Row],[eCommerce Hyperlink]],\"Book Weblink\")","v":"Book Weblink"},null,"KidHaven Publishing","Library Bound Book",1,"2019","January 2019","Library","8.500 X 8.500","Author","Robin Twiddy","3.5","0.5",null,null,"L",null,"Grade 2 - 3","Grade 2 - 4","What is an axle, and how does it work with a wheel? Readers are introduced to this STEM concept through clear and accessible main text, which encourages curiosity. The workings of a wheel and axle is an essential physical science curriculum topic, and it is presented to readers in a creative and relatable way that is meant to appeal to budding scientists and mechanics while also engaging developing readers. In addition, helpful diagrams, informative fact boxes, and vibrant, full-color photographs enhance this exciting reading experience.","English",25.6,20.48,"621.8--dc23","24 pp.","https://greenhavenpublishing.com/9781534529410",null,{"$f":"Table1[[#This Row],['# of Books]]*Table1[[#This Row],[QTY]]","v":0},{"$f":"Table1[[#This Row],[QTY]]*Table1[[#This Row],[School & Library Price]]","v":0}]
[null,null,null,null,35,"Science and Technology","Making Things Work","Axles and Wheels","978-1-5345-2942-7",{"$f":"HYPERLINK(Table1[[#This Row],[eCommerce Hyperlink]],\"Book Weblink\")","v":"Book Weblink"},null,"KidHaven Publishing","eBook",1,"2019","January 2019",null,null,"Author","Robin Twiddy","3.5","0.5",null,null,"L",null,"Grade 2 - 3","Grade 2 - 4","What is an axle, and how does it work with a wheel? Readers are introduced to this STEM concept through clear and accessible main text, which encourages curiosity. The workings of a wheel and axle is an essential physical science curriculum topic, and it is presented to readers in a creative and relatable way that is meant to appeal to budding scientists and mechanics while also engaging developing readers. In addition, helpful diagrams, informative fact boxes, and vibrant, full-color photographs enhance this exciting reading experience.","English",25.6,20.48,"621.8--dc23","24 pp.","https://greenhavenpublishing.com/9781534529427",null,{"$f":"Table1[[#This Row],['# of Books]]*Table1[[#This Row],[QTY]]","v":0},{"$f":"Table1[[#This Row],[QTY]]*Table1[[#This Row],[School & Library Price]]","v":0}]
[null,null,null,null,35,"Science and Technology","Making Things Work","Batteries and Bulbs","978-1-5345-2937-3",{"$f":"HYPERLINK(Table1[[#This Row],[eCommerce Hyperlink]],\"Book Weblink\")","v":"Book Weblink"},null,"KidHaven Publishing","Library Bound Book",1,"2019","January 2019","Library","8.500 X 8.500","Author","Robin Twiddy","3.4","0.5",null,null,"L",null,"Grade 2 - 3","Grade 2 - 4","Batteries and bulbs are found in many household devices, such as radios, lamps, portable video games, and other everyday objects. How do they work? This age-appropriate and accessible main text helps readers to develop a deeper understanding of the science of batteries and bulbs. These STEM concepts are presented to readers in a way that encourages their interest in common science curriculum topics. Eye-catching, full-color photographs, informative fact boxes, and detailed diagrams work together to appeal to those who are inquisitive about how the objects work in the world around them.","English",25.6,20.48,"621.31'242--dc23","24 pp.","https://greenhavenpublishing.com/9781534529373",null,{"$f":"Table1[[#This Row],['# of Books]]*Table1[[#This Row],[QTY]]","v":0},{"$f":"Table1[[#This Row],[QTY]]*Table1[[#This Row],[School & Library Price]]","v":0}]
[null,null,null,null,35,"Science and Technology","Making Things Work","Batteries and Bulbs","978-1-5345-2938-0",{"$f":"HYPERLINK(Table1[[#This Row],[eCommerce Hyperlink]],\"Book Weblink\")","v":"Book Weblink"},null,"KidHaven Publishing","eBook",1,"2019","January 2019",null,null,"Author","Robin Twiddy","3.4","0.5",null,null,"L",null,"Grade 2 - 3","Grade 2 - 4","Batteries and bulbs are found in many household devices, such as radios, lamps, portable video games, and other everyday objects. How do they work? This age-appropriate and accessible main text helps readers to develop a deeper understanding of the science of batteries and bulbs. These STEM concepts are presented to readers in a way that encourages their interest in common science curriculum topics. Eye-catching, full-color photographs, informative fact boxes, and detailed diagrams work together to appeal to those who are inquisitive about how the objects work in the world around them.","English",25.6,20.48,"621.31'242--dc23","24 pp.","https://greenhavenpublishing.com/9781534529380",null,{"$f":"Table1[[#This Row],['# of Books]]*Table1[[#This Row],[QTY]]","v":0},{"$f":"Table1[[#This Row],[QTY]]*Table1[[#This Row],[School & Library Price]]","v":0}]
[null,null,null,null,35,"Science and Technology","Making Things Work","Bells and Buzzers","978-1-5345-2921-2",{"$f":"HYPERLINK(Table1[[#This Row],[eCommerce Hyperlink]],\"Book Weblink\")","v":"Book Weblink"},null,"KidHaven Publishing","Library Bound Book",1,"2019","January 2019","Library","8.500 X 8.500","Author","Alex Brinded","4","0.5",null,null,"L",null,"Grade 2 - 3","Grade 2 - 4","When a bell rings or a buzzer goes off, it often serves as a reminder to complete a certain task or directs our attention to something that needs to be done. Readers learn about the various functions of bells and buzzers and how they operate throughout this detailed main text, which explores essential science curriculum topics. In addition, informative fact boxes, comprehensive diagrams, and eye-catching, full-color photographs encourage young learners to become interested in STEM concepts and develop a deeper appreciation for the science at work all around us.","English",25.6,20.48,"621.386--dc23","24 pp.","https://greenhavenpublishing.com/9781534529212",null,{"$f":"Table1[[#This Row],['# of Books]]*Table1[[#This Row],[QTY]]","v":0},{"$f":"Table1[[#This Row],[QTY]]*Table1[[#This Row],[School & Library Price]]","v":0}]
[null,null,null,null,35,"Science and Technology","Making Things Work","Bells and Buzzers","978-1-5345-2922-9",{"$f":"HYPERLINK(Table1[[#This Row],[eCommerce Hyperlink]],\"Book Weblink\")","v":"Book Weblink"},null,"KidHaven Publishing","eBook",1,"2019","January 2019",null,null,"Author","Alex Brinded","4","0.5",null,null,"L",null,"Grade 2 - 3","Grade 2 - 4","When a bell rings or a buzzer goes off, it often serves as a reminder to complete a certain task or directs our attention to something that needs to be done. Readers learn about the various functions of bells and buzzers and how they operate throughout this detailed main text, which explores essential science curriculum topics. In addition, informative fact boxes, comprehensive diagrams, and eye-catching, full-color photographs encourage young learners to become interested in STEM concepts and develop a deeper appreciation for the science at work all around us.","English",25.6,20.48,"621.386--dc23","24 pp.","https://greenhavenpublishing.com/9781534529229",null,{"$f":"Table1[[#This Row],['# of Books]]*Table1[[#This Row],[QTY]]","v":0},{"$f":"Table1[[#This Row],[QTY]]*Table1[[#This Row],[School & Library Price]]","v":0}]
[null,null,null,null,35,"Science and Technology","Making Things Work","Levers and Pulleys","978-1-5345-2933-5",{"$f":"HYPERLINK(Table1[[#This Row],[eCommerce Hyperlink]],\"Book Weblink\")","v":"Book Weblink"},null,"KidHaven Publishing","Library Bound Book",1,"2019","January 2019","Library","8.500 X 8.500","Author","Alex Brinded","4.2","0.5",null,null,"L",null,"Grade 2 - 3","Grade 2 - 4","What kinds of everyday objects use levers? What do pulleys do? Questions such as these are answered in this age-appropriate text about the science behind levers and pulleys, which is a essential physical science concept. Fact boxes, informative diagrams, and vivid, full-color photographs add extra insight, appealing to budding scientists who are curious about machines and the parts that make them function. Readers are exposed to STEM topics in a fun and relatable way as they are encouraged to see science in action in their everyday lives.","English",25.6,20.48,"621.8--dc23","24 pp.","https://greenhavenpublishing.com/9781534529335",null,{"$f":"Table1[[#This Row],['# of Books]]*Table1[[#This Row],[QTY]]","v":0},{"$f":"Table1[[#This Row],[QTY]]*Table1[[#This Row],[School & Library Price]]","v":0}]
[null,null,null,null,35,"Science and Technology","Making Things Work","Levers and Pulleys","978-1-5345-2934-2",{"$f":"HYPERLINK(Table1[[#This Row],[eCommerce Hyperlink]],\"Book Weblink\")","v":"Book Weblink"},null,"KidHaven Publishing","eBook",1,"2019","January 2019",null,null,"Author","Alex Brinded","4.2","0.5",null,null,"L",null,"Grade 2 - 3","Grade 2 - 4","What kinds of everyday objects use levers? What do pulleys do? Questions such as these are answered in this age-appropriate text about the science behind levers and pulleys, which is a essential physical science concept. Fact boxes, informative diagrams, and vivid, full-color photographs add extra insight, appealing to budding scientists who are curious about machines and the parts that make them function. Readers are exposed to STEM topics in a fun and relatable way as they are encouraged to see science in action in their everyday lives.","English",25.6,20.48,"621.8--dc23","24 pp.","https://greenhavenpublishing.com/9781534529342",null,{"$f":"Table1[[#This Row],['# of Books]]*Table1[[#This Row],[QTY]]","v":0},{"$f":"Table1[[#This Row],[QTY]]*Table1[[#This Row],[School & Library Price]]","v":0}]
[null,null,null,null,35,"Science and Technology","Making Things Work","Motors and Gears","978-1-5345-2929-8",{"$f":"HYPERLINK(Table1[[#This Row],[eCommerce Hyperlink]],\"Book Weblink\")","v":"Book Weblink"},null,"KidHaven Publishing","Library Bound Book",1,"2019","January 2019","Library","8.500 X 8.500","Author","Alex Brinded","4","0.5",null,null,"L",null,"Grade 2 - 3","Grade 2 - 4","Several different modes of transportation, such as trains, planes, and cars, need motors and gears to properly run. Motors and gears also power many other machines. Throughout this age-appropriate text, which places emphasis on common science curriculum topics, readers are exposed to various devices that utilize motors and gears and are given a stronger sense of how these parts work. Bold, full-color photographs and diagrams are included to help young learners visualize the STEM concepts presented within the text. Informative fact boxes also provide extra insight into this fun topic that explains the science behind everyday machines.","English",25.6,20.48,"621.46--dc23","24 pp.","https://greenhavenpublishing.com/9781534529298",null,{"$f":"Table1[[#This Row],['# of Books]]*Table1[[#This Row],[QTY]]","v":0},{"$f":"Table1[[#This Row],[QTY]]*Table1[[#This Row],[School & Library Price]]","v":0}]
[null,null,null,null,35,"Science and Technology","Making Things Work","Motors and Gears","978-1-5345-2930-4",{"$f":"HYPERLINK(Table1[[#This Row],[eCommerce Hyperlink]],\"Book Weblink\")","v":"Book Weblink"},null,"KidHaven Publishing","eBook",1,"2019","January 2019",null,null,"Author","Alex Brinded","4","0.5",null,null,"L",null,"Grade 2 - 3","Grade 2 - 4","Several different modes of transportation, such as trains, planes, and cars, need motors and gears to properly run. Motors and gears also power many other machines. Throughout this age-appropriate text, which places emphasis on common science curriculum topics, readers are exposed to various devices that utilize motors and gears and are given a stronger sense of how these parts work. Bold, full-color photographs and diagrams are included to help young learners visualize the STEM concepts presented within the text. Informative fact boxes also provide extra insight into this fun topic that explains the science behind everyday machines.","English",25.6,20.48,"621.46--dc23","24 pp.","https://greenhavenpublishing.com/9781534529304",null,{"$f":"Table1[[#This Row],['# of Books]]*Table1[[#This Row],[QTY]]","v":0},{"$f":"Table1[[#This Row],[QTY]]*Table1[[#This Row],[School & Library Price]]","v":0}]
[null,null,null,null,35,"Science and Technology","Making Things Work","Switches and Circuits","978-1-5345-2925-0",{"$f":"HYPERLINK(Table1[[#This Row],[eCommerce Hyperlink]],\"Book Weblink\")","v":"Book Weblink"},null,"KidHaven Publishing","Library Bound Book",1,"2019","January 2019","Library","8.500 X 8.500","Author","Alex Brinded","4.7","0.5",null,null,"L",null,"Grade 2 - 3","Grade 2 - 4","What are switches used for on specific machines? Why are circuits needed to power certain devices? Questions such as these are answered as readers explore the science behind switches and circuits. Readers are given basic examples of these devices, along with simple scientific explanations of how they work. The well-researched text, detailed diagrams, and helpful fact boxes contribute to making this common science curriculum topic easily understandable for young learners. The vibrant, full-color photographs also give sharp visual depictions of the STEM concepts mentioned in the text.","English",25.6,20.48,"621.319'2--dc23","24 pp.","https://greenhavenpublishing.com/9781534529250",null,{"$f":"Table1[[#This Row],['# of Books]]*Table1[[#This Row],[QTY]]","v":0},{"$f":"Table1[[#This Row],[QTY]]*Table1[[#This Row],[School & Library Price]]","v":0}]
[null,null,null,null,35,"Science and Technology","Making Things Work","Switches and Circuits","978-1-5345-2926-7",{"$f":"HYPERLINK(Table1[[#This Row],[eCommerce Hyperlink]],\"Book Weblink\")","v":"Book Weblink"},null,"KidHaven Publishing","eBook",1,"2019","January 2019",null,null,"Author","Alex Brinded","4.7","0.5",null,null,"L",null,"Grade 2 - 3","Grade 2 - 4","What are switches used for on specific machines? Why are circuits needed to power certain devices? Questions such as these are answered as readers explore the science behind switches and circuits. Readers are given basic examples of these devices, along with simple scientific explanations of how they work. The well-researched text, detailed diagrams, and helpful fact boxes contribute to making this common science curriculum topic easily understandable for young learners. The vibrant, full-color photographs also give sharp visual depictions of the STEM concepts mentioned in the text.","English",25.6,20.48,"621.319'2--dc23","24 pp.","https://greenhavenpublishing.com/9781534529267",null,{"$f":"Table1[[#This Row],['# of Books]]*Table1[[#This Row],[QTY]]","v":0},{"$f":"Table1[[#This Row],[QTY]]*Table1[[#This Row],[School & Library Price]]","v":0}]
[null,null,null,null,35,"Science and Technology","Parts of a Plant","Parts of a Plant","978-1-5345-3389-9",{"$f":"HYPERLINK(Table1[[#This Row],[eCommerce Hyperlink]],\"Book Weblink\")","v":"Book Weblink"},null,"KidHaven Publishing","Library Set",6,"2020","January 2020","Library","8.500 X 8.500",null,null,null,null,null,null,null,null,"Grade 3","Grade 3 - 5","Plants need their many different parts to live and grow. From roots and stems to leaves and flowers, these parts aren't just helpful for plants; they're also used by people. Recipes provided in each book help readers understand this, providing an authentic learning exercise. Readers discover the basic science concepts behind how each part of a plant contributes to its growth and functioning, and they also learn how different plant parts are used by humans for medicine and other important things. Detailed glossaries and bold, full-color photographs provide extra insight into this interesting topic that will strengthen readers' knowledge of essential science curriculum topics. Features include: Creative design elements help visual learners better understand the function of various plant parts. Recipes allow readers to see how plant parts are used in their daily lives and encourage an appreciation for science in the kitchen. Additional activities foster a hands-on approach to science.","English",153.6,122.88,null,"24 pp.","https://greenhavenpublishing.com/9781534533899",null,{"$f":"Table1[[#This Row],['# of Books]]*Table1[[#This Row],[QTY]]","v":0},{"$f":"Table1[[#This Row],[QTY]]*Table1[[#This Row],[School & Library Price]]","v":0}]
[null,null,null,null,35,"Science and Technology","Parts of a Plant","A Look at Flowers","978-1-5345-3363-9",{"$f":"HYPERLINK(Table1[[#This Row],[eCommerce Hyperlink]],\"Book Weblink\")","v":"Book Weblink"},null,"KidHaven Publishing","Library Bound Book",1,"2020","January 2020","Library","8.500 X 8.500","Author","Lindsey Lowe","4","0.5",null,null,"N",null,"Grade 3","Grade 3 - 5","Readers discover a world of stunning flowers in this engaging examination of plant parts. They learn about the different functions of flowers and how they can be used for food, medicine, and other important things. Fun activities and recipes using flowers are included with step-by-step instructions. Eye-catching, full-color photographs make it appear as if the flowers are sprouting off of each page, reminding young readers that science can be beautiful and fun. This creative approach to biology encourages an appreciation for science in the world around us.","English",25.6,20.48,"582.13--dc23","24 pp.","https://greenhavenpublishing.com/9781534533639",null,{"$f":"Table1[[#This Row],['# of Books]]*Table1[[#This Row],[QTY]]","v":0},{"$f":"Table1[[#This Row],[QTY]]*Table1[[#This Row],[School & Library Price]]","v":0}]
[null,null,null,null,35,"Science and Technology","Parts of a Plant","A Look at Flowers","978-1-5345-3364-6",{"$f":"HYPERLINK(Table1[[#This Row],[eCommerce Hyperlink]],\"Book Weblink\")","v":"Book Weblink"},null,"KidHaven Publishing","eBook",1,"2020","January 2020",null,null,"Author","Lindsey Lowe","4","0.5",null,null,"N",null,"Grade 3","Grade 3 - 5","Readers discover a world of stunning flowers in this engaging examination of plant parts. They learn about the different functions of flowers and how they can be used for food, medicine, and other important things. Fun activities and recipes using flowers are included with step-by-step instructions. Eye-catching, full-color photographs make it appear as if the flowers are sprouting off of each page, reminding young readers that science can be beautiful and fun. This creative approach to biology encourages an appreciation for science in the world around us.","English",25.6,20.48,"582.13--dc23","24 pp.","https://greenhavenpublishing.com/9781534533646",null,{"$f":"Table1[[#This Row],['# of Books]]*Table1[[#This Row],[QTY]]","v":0},{"$f":"Table1[[#This Row],[QTY]]*Table1[[#This Row],[School & Library Price]]","v":0}]
[null,null,null,null,35,"Science and Technology","Parts of a Plant","A Look at Fruits","978-1-5345-3367-7",{"$f":"HYPERLINK(Table1[[#This Row],[eCommerce Hyperlink]],\"Book Weblink\")","v":"Book Weblink"},null,"KidHaven Publishing","Library Bound Book",1,"2020","January 2020","Library","8.500 X 8.500","Author","Lindsey Lowe","3.8","0.5",null,null,"N",null,"Grade 3","Grade 3 - 5","Readers will agree: fruits are some of the most popular and tastiest plant parts. Many people enjoy eating fruit, but they may not know how fruits function as plant parts before they make their way to our kitchens. Readers are introduced to fun facts about fruits as they enhance their knowledge of beginner biology concepts. They're also able to follow step-by-step instructions to take part in fun activities and try their hand at simple recipes. Vibrant, full-color photographs are included that make this learning experience a treat for young readers.","English",25.6,20.48,"581.4'64--dc23","24 pp.","https://greenhavenpublishing.com/9781534533677",null,{"$f":"Table1[[#This Row],['# of Books]]*Table1[[#This Row],[QTY]]","v":0},{"$f":"Table1[[#This Row],[QTY]]*Table1[[#This Row],[School & Library Price]]","v":0}]
[null,null,null,null,35,"Science and Technology","Parts of a Plant","A Look at Fruits","978-1-5345-3368-4",{"$f":"HYPERLINK(Table1[[#This Row],[eCommerce Hyperlink]],\"Book Weblink\")","v":"Book Weblink"},null,"KidHaven Publishing","eBook",1,"2020","January 2020",null,null,"Author","Lindsey Lowe","3.8","0.5",null,null,"N",null,"Grade 3","Grade 3 - 5","Readers will agree: fruits are some of the most popular and tastiest plant parts. Many people enjoy eating fruit, but they may not know how fruits function as plant parts before they make their way to our kitchens. Readers are introduced to fun facts about fruits as they enhance their knowledge of beginner biology concepts. They're also able to follow step-by-step instructions to take part in fun activities and try their hand at simple recipes. Vibrant, full-color photographs are included that make this learning experience a treat for young readers.","English",25.6,20.48,"581.4'64--dc23","24 pp.","https://greenhavenpublishing.com/9781534533684",null,{"$f":"Table1[[#This Row],['# of Books]]*Table1[[#This Row],[QTY]]","v":0},{"$f":"Table1[[#This Row],[QTY]]*Table1[[#This Row],[School & Library Price]]","v":0}]
[null,null,null,null,35,"Science and Technology","Parts of a Plant","A Look at Leaves","978-1-5345-3371-4",{"$f":"HYPERLINK(Table1[[#This Row],[eCommerce Hyperlink]],\"Book Weblink\")","v":"Book Weblink"},null,"KidHaven Publishing","Library Bound Book",1,"2020","January 2020","Library","8.500 X 8.500","Author","Lindsey Lowe","3.5","0.5",null,null,"N",null,"Grade 3","Grade 3 - 5","People are used to seeing leaves fall from the trees in autumn or add shades of green to parks and other natural areas through spring and summer. However, how often do people think about what leaves do for plants? Readers learn how leaves contribute to the growth and functioning of plants as they explore this introduction to basic biology concepts, such as photosynthesis. In addition to the accessible main text, there are recipes with step-by-step instructions, which encourage using science in the kitchen. Fun activities and bright, full-color photographs enhance this exciting look at science curriculum topics.","English",25.6,20.48,"581.4'8--dc23","24 pp.","https://greenhavenpublishing.com/9781534533714",null,{"$f":"Table1[[#This Row],['# of Books]]*Table1[[#This Row],[QTY]]","v":0},{"$f":"Table1[[#This Row],[QTY]]*Table1[[#This Row],[School & Library Price]]","v":0}]
[null,null,null,null,35,"Science and Technology","Parts of a Plant","A Look at Leaves","978-1-5345-3372-1",{"$f":"HYPERLINK(Table1[[#This Row],[eCommerce Hyperlink]],\"Book Weblink\")","v":"Book Weblink"},null,"KidHaven Publishing","eBook",1,"2020","January 2020",null,null,"Author","Lindsey Lowe","3.5","0.5",null,null,"N",null,"Grade 3","Grade 3 - 5","People are used to seeing leaves fall from the trees in autumn or add shades of green to parks and other natural areas through spring and summer. However, how often do people think about what leaves do for plants? Readers learn how leaves contribute to the growth and functioning of plants as they explore this introduction to basic biology concepts, such as photosynthesis. In addition to the accessible main text, there are recipes with step-by-step instructions, which encourage using science in the kitchen. Fun activities and bright, full-color photographs enhance this exciting look at science curriculum topics.","English",25.6,20.48,"581.4'8--dc23","24 pp.","https://greenhavenpublishing.com/9781534533721",null,{"$f":"Table1[[#This Row],['# of Books]]*Table1[[#This Row],[QTY]]","v":0},{"$f":"Table1[[#This Row],[QTY]]*Table1[[#This Row],[School & Library Price]]","v":0}]
[null,null,null,null,35,"Science and Technology","Parts of a Plant","A Look at Roots","978-1-5345-3375-2",{"$f":"HYPERLINK(Table1[[#This Row],[eCommerce Hyperlink]],\"Book Weblink\")","v":"Book Weblink"},null,"KidHaven Publishing","Library Bound Book",1,"2020","January 2020","Library","8.500 X 8.500","Author","Lindsey Lowe","3.8","0.5",null,null,"N",null,"Grade 3","Grade 3 - 5","Some of the vegetables we eat are actually roots. What are these root vegetables, and how do roots contribute to the functioning of people and plants beyond the kitchen? Readers discover the answers to these questions and more through the informative and accessible main narrative. Additional fun features include recipes and hands-on activities, which allow readers to get creative with science curriculum topics. Bold, full-color photographs give readers a detailed look at the vast underground world of roots. This engaging reading experience encourages readers to see plants in a fresh way.","English",25.6,20.48,"581.4'98--dc23","24 pp.","https://greenhavenpublishing.com/9781534533752",null,{"$f":"Table1[[#This Row],['# of Books]]*Table1[[#This Row],[QTY]]","v":0},{"$f":"Table1[[#This Row],[QTY]]*Table1[[#This Row],[School & Library Price]]","v":0}]
[null,null,null,null,35,"Science and Technology","Parts of a Plant","A Look at Roots","978-1-5345-3376-9",{"$f":"HYPERLINK(Table1[[#This Row],[eCommerce Hyperlink]],\"Book Weblink\")","v":"Book Weblink"},null,"KidHaven Publishing","eBook",1,"2020","January 2020",null,null,"Author","Lindsey Lowe","3.8","0.5",null,null,"N",null,"Grade 3","Grade 3 - 5","Some of the vegetables we eat are actually roots. What are these root vegetables, and how do roots contribute to the functioning of people and plants beyond the kitchen? Readers discover the answers to these questions and more through the informative and accessible main narrative. Additional fun features include recipes and hands-on activities, which allow readers to get creative with science curriculum topics. Bold, full-color photographs give readers a detailed look at the vast underground world of roots. This engaging reading experience encourages readers to see plants in a fresh way.","English",25.6,20.48,"581.4'98--dc23","24 pp.","https://greenhavenpublishing.com/9781534533769",null,{"$f":"Table1[[#This Row],['# of Books]]*Table1[[#This Row],[QTY]]","v":0},{"$f":"Table1[[#This Row],[QTY]]*Table1[[#This Row],[School & Library Price]]","v":0}]
[null,null,null,null,35,"Science and Technology","Parts of a Plant","A Look at Seeds and Beans","978-1-5345-3379-0",{"$f":"HYPERLINK(Table1[[#This Row],[eCommerce Hyperlink]],\"Book Weblink\")","v":"Book Weblink"},null,"KidHaven Publishing","Library Bound Book",1,"2020","January 2020","Library","8.500 X 8.500","Author","Lindsey Lowe","3.6","0.5",null,null,"N",null,"Grade 3","Grade 3 - 5","Once seeds are planted, they eventually grow into a plant. One special kind of seed, which humans often eat, is a bean. In this informative and age-appropriate guide to life science, readers gain knowledge of how seeds and beans are used by humans for food, medicine, and other important things. They also learn how to use seeds and beans themselves with recipes and activities presented through step-by-step instructions, allowing them to experience science in a hands-on way. Vibrant, full-color photographs help readers visualize different kinds of seeds and beans, how they're spread, and how they develop into plants.","English",25.6,20.48,"581.4'67--dc23","24 pp.","https://greenhavenpublishing.com/9781534533790",null,{"$f":"Table1[[#This Row],['# of Books]]*Table1[[#This Row],[QTY]]","v":0},{"$f":"Table1[[#This Row],[QTY]]*Table1[[#This Row],[School & Library Price]]","v":0}]
[null,null,null,null,35,"Science and Technology","Parts of a Plant","A Look at Seeds and Beans","978-1-5345-3380-6",{"$f":"HYPERLINK(Table1[[#This Row],[eCommerce Hyperlink]],\"Book Weblink\")","v":"Book Weblink"},null,"KidHaven Publishing","eBook",1,"2020","January 2020",null,null,"Author","Lindsey Lowe","3.6","0.5",null,null,"N",null,"Grade 3","Grade 3 - 5","Once seeds are planted, they eventually grow into a plant. One special kind of seed, which humans often eat, is a bean. In this informative and age-appropriate guide to life science, readers gain knowledge of how seeds and beans are used by humans for food, medicine, and other important things. They also learn how to use seeds and beans themselves with recipes and activities presented through step-by-step instructions, allowing them to experience science in a hands-on way. Vibrant, full-color photographs help readers visualize different kinds of seeds and beans, how they're spread, and how they develop into plants.","English",25.6,20.48,"581.4'67--dc23","24 pp.","https://greenhavenpublishing.com/9781534533806",null,{"$f":"Table1[[#This Row],['# of Books]]*Table1[[#This Row],[QTY]]","v":0},{"$f":"Table1[[#This Row],[QTY]]*Table1[[#This Row],[School & Library Price]]","v":0}]
[null,null,null,null,35,"Science and Technology","Parts of a Plant","A Look at Stems and Shoots","978-1-5345-3383-7",{"$f":"HYPERLINK(Table1[[#This Row],[eCommerce Hyperlink]],\"Book Weblink\")","v":"Book Weblink"},null,"KidHaven Publishing","Library Bound Book",1,"2020","January 2020","Library","8.500 X 8.500","Author","Lindsey Lowe","3.9","0.5",null,null,"N",null,"Grade 3","Grade 3 - 5","Stems and shoots are essential parts of plants. Readers learn how stems and shoots contribute to the growth and functioning of every plant as they explore this creative look at beginner biology concepts. They also gain appreciation for science in the kitchen through recipes with step-by-step instructions. Additional hands-on activities strengthen readers' knowledge of this basic science curriculum topic while also encouraging readers to have fun with science. Creative design elements including colorful photographs make this topic appealing for visual learners and young nature lovers.","English",25.6,20.48,"581.4'95--dc23","24 pp.","https://greenhavenpublishing.com/9781534533837",null,{"$f":"Table1[[#This Row],['# of Books]]*Table1[[#This Row],[QTY]]","v":0},{"$f":"Table1[[#This Row],[QTY]]*Table1[[#This Row],[School & Library Price]]","v":0}]
[null,null,null,null,35,"Science and Technology","Parts of a Plant","A Look at Stems and Shoots","978-1-5345-3384-4",{"$f":"HYPERLINK(Table1[[#This Row],[eCommerce Hyperlink]],\"Book Weblink\")","v":"Book Weblink"},null,"KidHaven Publishing","eBook",1,"2020","January 2020",null,null,"Author","Lindsey Lowe","3.9","0.5",null,null,"N",null,"Grade 3","Grade 3 - 5","Stems and shoots are essential parts of plants. Readers learn how stems and shoots contribute to the growth and functioning of every plant as they explore this creative look at beginner biology concepts. They also gain appreciation for science in the kitchen through recipes with step-by-step instructions. Additional hands-on activities strengthen readers' knowledge of this basic science curriculum topic while also encouraging readers to have fun with science. Creative design elements including colorful photographs make this topic appealing for visual learners and young nature lovers.","English",25.6,20.48,"581.4'95--dc23","24 pp.","https://greenhavenpublishing.com/9781534533844",null,{"$f":"Table1[[#This Row],['# of Books]]*Table1[[#This Row],[QTY]]","v":0},{"$f":"Table1[[#This Row],[QTY]]*Table1[[#This Row],[School & Library Price]]","v":0}]
[null,null,null,null,35,"Science and Technology","Science in Action","Science in Action","978-1-5345-3046-1",{"$f":"HYPERLINK(Table1[[#This Row],[eCommerce Hyperlink]],\"Book Weblink\")","v":"Book Weblink"},null,"KidHaven Publishing","Library Set",8,"2020","August 2019","Library","8.500 X 11.00",null,null,null,null,null,null,null,null,"Grade 4 - 5","Grade 3 - 5","Young readers will be captivated by this creative look at different forms of science in action. Fascinating topics, such as magnetism, genetics, forces, space, and electricity, are presented in an educational and engaging way. The age-appropriate and accessible main texts highlight basic science curriculum topics that are important for young readers to learn and encourages curiosity. Insightful fact boxes, detailed sidebars, helpful glossaries, and vibrant, full-color photographs enhance the reading experience for those interested in science and how it can be applied to many aspects of everyday life. Features include: Concise language that simplifies complex concepts in a way that is easy for young readers to understand. Eye-catching design elements that grab the attention of readers, reminding them that science is fun. Exciting tone encourages readers to ask questions about how things work in the world around them.","English",226,180.8,null,"32 pp.","https://greenhavenpublishing.com/9781534530461",null,{"$f":"Table1[[#This Row],['# of Books]]*Table1[[#This Row],[QTY]]","v":0},{"$f":"Table1[[#This Row],[QTY]]*Table1[[#This Row],[School & Library Price]]","v":0}]
[null,null,null,null,35,"Science and Technology","Science in Action","Electricity","978-1-5345-3015-7",{"$f":"HYPERLINK(Table1[[#This Row],[eCommerce Hyperlink]],\"Book Weblink\")","v":"Book Weblink"},null,"KidHaven Publishing","Library Bound Book",1,"2020","August 2019","Library","8.500 X 11.00","Author","Joanna Brundle","6.1","1",null,null,"S",null,"Grade 4 - 5","Grade 3 - 5","What makes the lights turn on in the house? Why do the television, washing machine, and vacuum only work after plugging them into a power outlet? Electricity powers our world, and readers are sure to enjoy this creative look at a basic science curriculum topic. The accessible and age appropriate main text provides them with useful examples of how we apply the science of electricity to everyday life. Fact boxes, sidebars, a detailed glossary, and vibrant, full-color photographs present additional information in an engaging layout.","English",28.25,22.6,"537--dc23","32 pp.","https://greenhavenpublishing.com/9781534530157",null,{"$f":"Table1[[#This Row],['# of Books]]*Table1[[#This Row],[QTY]]","v":0},{"$f":"Table1[[#This Row],[QTY]]*Table1[[#This Row],[School & Library Price]]","v":0}]
[null,null,null,null,35,"Science and Technology","Science in Action","Electricity","978-1-5345-3078-2",{"$f":"HYPERLINK(Table1[[#This Row],[eCommerce Hyperlink]],\"Book Weblink\")","v":"Book Weblink"},null,"KidHaven Publishing","eBook",1,"2020","August 2019",null,null,"Author","Joanna Brundle","6.1","1",null,null,"S",null,"Grade 4 - 5","Grade 3 - 5","What makes the lights turn on in the house? Why do the television, washing machine, and vacuum only work after plugging them into a power outlet? Electricity powers our world, and readers are sure to enjoy this creative look at a basic science curriculum topic. The accessible and age appropriate main text provides them with useful examples of how we apply the science of electricity to everyday life. Fact boxes, sidebars, a detailed glossary, and vibrant, full-color photographs present additional information in an engaging layout.","English",28.25,22.6,"537--dc23","32 pp.","https://greenhavenpublishing.com/9781534530782",null,{"$f":"Table1[[#This Row],['# of Books]]*Table1[[#This Row],[QTY]]","v":0},{"$f":"Table1[[#This Row],[QTY]]*Table1[[#This Row],[School & Library Price]]","v":0}]
[null,null,null,null,35,"Science and Technology","Science in Action","Forces","978-1-5345-3016-4",{"$f":"HYPERLINK(Table1[[#This Row],[eCommerce Hyperlink]],\"Book Weblink\")","v":"Book Weblink"},null,"KidHaven Publishing","Library Bound Book",1,"2020","August 2019","Library","8.500 X 11.00","Author","Joanna Brundle","5.7","1",null,null,"S",null,"Grade 4 - 5","Grade 3 - 5","Help your readers discover the powerful science behind force. Various forces, such as gravitational force and applied force, explain how and why objects move the way they do. Through informative and concise main text, readers expand their knowledge of this essential science curriculum topic. Creative, full-color design elements, useful sidebars, thought-provoking fact boxes, and a helpful glossary add extra insight to give readers a better understanding of how force is applied to the world around us.","English",28.25,22.6,"530--dc23","32 pp.","https://greenhavenpublishing.com/9781534530164",null,{"$f":"Table1[[#This Row],['# of Books]]*Table1[[#This Row],[QTY]]","v":0},{"$f":"Table1[[#This Row],[QTY]]*Table1[[#This Row],[School & Library Price]]","v":0}]
[null,null,null,null,35,"Science and Technology","Science in Action","Forces","978-1-5345-3082-9",{"$f":"HYPERLINK(Table1[[#This Row],[eCommerce Hyperlink]],\"Book Weblink\")","v":"Book Weblink"},null,"KidHaven Publishing","eBook",1,"2020","August 2019",null,null,"Author","Joanna Brundle","5.7","1",null,null,"S",null,"Grade 4 - 5","Grade 3 - 5","Help your readers discover the powerful science behind force. Various forces, such as gravitational force and applied force, explain how and why objects move the way they do. Through informative and concise main text, readers expand their knowledge of this essential science curriculum topic. Creative, full-color design elements, useful sidebars, thought-provoking fact boxes, and a helpful glossary add extra insight to give readers a better understanding of how force is applied to the world around us.","English",28.25,22.6,"530--dc23","32 pp.","https://greenhavenpublishing.com/9781534530829",null,{"$f":"Table1[[#This Row],['# of Books]]*Table1[[#This Row],[QTY]]","v":0},{"$f":"Table1[[#This Row],[QTY]]*Table1[[#This Row],[School & Library Price]]","v":0}]
[null,null,null,null,35,"Science and Technology","Science in Action","Genetics","978-1-5345-3017-1",{"$f":"HYPERLINK(Table1[[#This Row],[eCommerce Hyperlink]],\"Book Weblink\")","v":"Book Weblink"},null,"KidHaven Publishing","Library Bound Book",1,"2020","August 2019","Library","8.500 X 11.00","Author","Joanna Brundle","6.7","1",null,null,"S",null,"Grade 4 - 5","Grade 3 - 5","What factors determine a person's hair color and eye color? Why are some people short and some tall? These questions and others similar to them are answered in this engaging guide to the science of genetics. Through this accessible resource, readers learn about the inherited traits parents can pass down to their children. Clear and concise language is used to simplify this complex science curriculum topic. A helpful glossary, detailed sidebars, interesting fact boxes, and striking, full-color photographs enhance the main text and provide even more details about the fascinating world of genetics.","English",28.25,22.6,"572.8--dc23","32 pp.","https://greenhavenpublishing.com/9781534530171",null,{"$f":"Table1[[#This Row],['# of Books]]*Table1[[#This Row],[QTY]]","v":0},{"$f":"Table1[[#This Row],[QTY]]*Table1[[#This Row],[School & Library Price]]","v":0}]
[null,null,null,null,35,"Science and Technology","Science in Action","Genetics","978-1-5345-3075-1",{"$f":"HYPERLINK(Table1[[#This Row],[eCommerce Hyperlink]],\"Book Weblink\")","v":"Book Weblink"},null,"KidHaven Publishing","eBook",1,"2020","August 2019",null,null,"Author","Joanna Brundle","6.7","1",null,null,"S",null,"Grade 4 - 5","Grade 3 - 5","What factors determine a person's hair color and eye color? Why are some people short and some tall? These questions and others similar to them are answered in this engaging guide to the science of genetics. Through this accessible resource, readers learn about the inherited traits parents can pass down to their children. Clear and concise language is used to simplify this complex science curriculum topic. A helpful glossary, detailed sidebars, interesting fact boxes, and striking, full-color photographs enhance the main text and provide even more details about the fascinating world of genetics.","English",28.25,22.6,"572.8--dc23","32 pp.","https://greenhavenpublishing.com/9781534530751",null,{"$f":"Table1[[#This Row],['# of Books]]*Table1[[#This Row],[QTY]]","v":0},{"$f":"Table1[[#This Row],[QTY]]*Table1[[#This Row],[School & Library Price]]","v":0}]
[null,null,null,null,35,"Science and Technology","Science in Action","Light","978-1-5345-3013-3",{"$f":"HYPERLINK(Table1[[#This Row],[eCommerce Hyperlink]],\"Book Weblink\")","v":"Book Weblink"},null,"KidHaven Publishing","Library Bound Book",1,"2020","August 2019","Library","8.500 X 11.00","Author","Joanna Brundle","6.2","1",null,null,"S",null,"Grade 4 - 5","Grade 3 - 5","The science of light is fascinating, and this illuminating topic is presented to readers in this fun and fresh guide to science. Readers learn basic scientific facts about light and are given relatable examples of how this physical science concept is at work in the world around them. This accessible and age-appropriate main text encourages readers to think deeply about how they can apply what they've learned to their own lives. Creative, full-color design elements, interesting fact boxes, a detailed glossary, and useful sidebars add extra insight into this important science curriculum topic.","English",28.25,22.6,"535--dc23","32 pp.","https://greenhavenpublishing.com/9781534530133",null,{"$f":"Table1[[#This Row],['# of Books]]*Table1[[#This Row],[QTY]]","v":0},{"$f":"Table1[[#This Row],[QTY]]*Table1[[#This Row],[School & Library Price]]","v":0}]
[null,null,null,null,35,"Science and Technology","Science in Action","Light","978-1-5345-3081-2",{"$f":"HYPERLINK(Table1[[#This Row],[eCommerce Hyperlink]],\"Book Weblink\")","v":"Book Weblink"},null,"KidHaven Publishing","eBook",1,"2020","August 2019",null,null,"Author","Joanna Brundle","6.2","1",null,null,"S",null,"Grade 4 - 5","Grade 3 - 5","The science of light is fascinating, and this illuminating topic is presented to readers in this fun and fresh guide to science. Readers learn basic scientific facts about light and are given relatable examples of how this physical science concept is at work in the world around them. This accessible and age-appropriate main text encourages readers to think deeply about how they can apply what they've learned to their own lives. Creative, full-color design elements, interesting fact boxes, a detailed glossary, and useful sidebars add extra insight into this important science curriculum topic.","English",28.25,22.6,"535--dc23","32 pp.","https://greenhavenpublishing.com/9781534530812",null,{"$f":"Table1[[#This Row],['# of Books]]*Table1[[#This Row],[QTY]]","v":0},{"$f":"Table1[[#This Row],[QTY]]*Table1[[#This Row],[School & Library Price]]","v":0}]
[null,null,null,null,35,"Science and Technology","Science in Action","Magnetism","978-1-5345-3018-8",{"$f":"HYPERLINK(Table1[[#This Row],[eCommerce Hyperlink]],\"Book Weblink\")","v":"Book Weblink"},null,"KidHaven Publishing","Library Bound Book",1,"2020","August 2019","Library","8.500 X 11.00","Author","Joanna Brundle","6.8","1",null,null,"S",null,"Grade 4 - 5","Grade 3 - 5","From an early age, children are often fascinated by magnets on their refrigerator or in toys they play with. However, do they know how those magnets actually work? They will after reading this volume. Readers expand their knowledge of magnets as they learn how magnets work and what magnets can be used for in everyday life. The accessible and age-appropriate main text is presented alongside extra features, such as detailed sidebars, informative fact boxes, a comprehensive glossary, and bold, full-color photographs. These elements work together to create an exciting reading and learning experience.","English",28.25,22.6,"538--dc23","32 pp.","https://greenhavenpublishing.com/9781534530188",null,{"$f":"Table1[[#This Row],['# of Books]]*Table1[[#This Row],[QTY]]","v":0},{"$f":"Table1[[#This Row],[QTY]]*Table1[[#This Row],[School & Library Price]]","v":0}]
[null,null,null,null,35,"Science and Technology","Science in Action","Magnetism","978-1-5345-3080-5",{"$f":"HYPERLINK(Table1[[#This Row],[eCommerce Hyperlink]],\"Book Weblink\")","v":"Book Weblink"},null,"KidHaven Publishing","eBook",1,"2020","August 2019",null,null,"Author","Joanna Brundle","6.8","1",null,null,"S",null,"Grade 4 - 5","Grade 3 - 5","From an early age, children are often fascinated by magnets on their refrigerator or in toys they play with. However, do they know how those magnets actually work? They will after reading this volume. Readers expand their knowledge of magnets as they learn how magnets work and what magnets can be used for in everyday life. The accessible and age-appropriate main text is presented alongside extra features, such as detailed sidebars, informative fact boxes, a comprehensive glossary, and bold, full-color photographs. These elements work together to create an exciting reading and learning experience.","English",28.25,22.6,"538--dc23","32 pp.","https://greenhavenpublishing.com/9781534530805",null,{"$f":"Table1[[#This Row],['# of Books]]*Table1[[#This Row],[QTY]]","v":0},{"$f":"Table1[[#This Row],[QTY]]*Table1[[#This Row],[School & Library Price]]","v":0}]
[null,null,null,null,35,"Science and Technology","Science in Action","Materials","978-1-5345-3012-6",{"$f":"HYPERLINK(Table1[[#This Row],[eCommerce Hyperlink]],\"Book Weblink\")","v":"Book Weblink"},null,"KidHaven Publishing","Library Bound Book",1,"2020","August 2019","Library","8.500 X 11.00","Author","Joanna Brundle","5.7","1",null,null,"S",null,"Grade 4 - 5","Grade 3 - 5","There are many different materials on Earth that can be utilized in a variety of ways. In this insightful volume, readers will learn about the basic properties of several types of materials, from wood to plastic. The accessible and concise text encourages readers' curiosity and deepens their knowledge of this basic science curriculum topic. In addition, eye-catching fact boxes, engaging sidebars, a detailed glossary, and vibrant, full-color photographs enhance this learning experience about the properties of various materials. Readers learn how this science concept can be applied in many aspects of everyday life.","English",28.25,22.6,"620--dc23","32 pp.","https://greenhavenpublishing.com/9781534530126",null,{"$f":"Table1[[#This Row],['# of Books]]*Table1[[#This Row],[QTY]]","v":0},{"$f":"Table1[[#This Row],[QTY]]*Table1[[#This Row],[School & Library Price]]","v":0}]
[null,null,null,null,35,"Science and Technology","Science in Action","Materials","978-1-5345-3077-5",{"$f":"HYPERLINK(Table1[[#This Row],[eCommerce Hyperlink]],\"Book Weblink\")","v":"Book Weblink"},null,"KidHaven Publishing","eBook",1,"2020","August 2019",null,null,"Author","Joanna Brundle","5.7","1",null,null,"S",null,"Grade 4 - 5","Grade 3 - 5","There are many different materials on Earth that can be utilized in a variety of ways. In this insightful volume, readers will learn about the basic properties of several types of materials, from wood to plastic. The accessible and concise text encourages readers' curiosity and deepens their knowledge of this basic science curriculum topic. In addition, eye-catching fact boxes, engaging sidebars, a detailed glossary, and vibrant, full-color photographs enhance this learning experience about the properties of various materials. Readers learn how this science concept can be applied in many aspects of everyday life.","English",28.25,22.6,"620--dc23","32 pp.","https://greenhavenpublishing.com/9781534530775",null,{"$f":"Table1[[#This Row],['# of Books]]*Table1[[#This Row],[QTY]]","v":0},{"$f":"Table1[[#This Row],[QTY]]*Table1[[#This Row],[School & Library Price]]","v":0}]
[null,null,null,null,35,"Science and Technology","Science in Action","Sound","978-1-5345-3014-0",{"$f":"HYPERLINK(Table1[[#This Row],[eCommerce Hyperlink]],\"Book Weblink\")","v":"Book Weblink"},null,"KidHaven Publishing","Library Bound Book",1,"2020","August 2019","Library","8.500 X 11.00","Author","Joanna Brundle","6.5","1",null,null,"S",null,"Grade 4 - 5","Grade 3 - 5","Readers explore the science of sound in this engaging and accessible text. What makes a sound higher or lower, or louder or softer? How do our ears register sounds? These questions and more are answered in this fun and fresh take on a common science curriculum topic. Informative sidebars, detailed fact boxes, a useful glossary, and eye-catching, full-color photographs spark readers, interest in this essential physical science concept. Relatable examples help readers understand how the science of sound is in action all around us.","English",28.25,22.6,"534--dc23","32 pp.","https://greenhavenpublishing.com/9781534530140",null,{"$f":"Table1[[#This Row],['# of Books]]*Table1[[#This Row],[QTY]]","v":0},{"$f":"Table1[[#This Row],[QTY]]*Table1[[#This Row],[School & Library Price]]","v":0}]
[null,null,null,null,35,"Science and Technology","Science in Action","Sound","978-1-5345-3076-8",{"$f":"HYPERLINK(Table1[[#This Row],[eCommerce Hyperlink]],\"Book Weblink\")","v":"Book Weblink"},null,"KidHaven Publishing","eBook",1,"2020","August 2019",null,null,"Author","Joanna Brundle","6.5","1",null,null,"S",null,"Grade 4 - 5","Grade 3 - 5","Readers explore the science of sound in this engaging and accessible text. What makes a sound higher or lower, or louder or softer? How do our ears register sounds? These questions and more are answered in this fun and fresh take on a common science curriculum topic. Informative sidebars, detailed fact boxes, a useful glossary, and eye-catching, full-color photographs spark readers, interest in this essential physical science concept. Relatable examples help readers understand how the science of sound is in action all around us.","English",28.25,22.6,"534--dc23","32 pp.","https://greenhavenpublishing.com/9781534530768",null,{"$f":"Table1[[#This Row],['# of Books]]*Table1[[#This Row],[QTY]]","v":0},{"$f":"Table1[[#This Row],[QTY]]*Table1[[#This Row],[School & Library Price]]","v":0}]
[null,null,null,null,35,"Science and Technology","Science in Action","Space","978-1-5345-3019-5",{"$f":"HYPERLINK(Table1[[#This Row],[eCommerce Hyperlink]],\"Book Weblink\")","v":"Book Weblink"},null,"KidHaven Publishing","Library Bound Book",1,"2020","August 2019","Library","8.500 X 11.00","Author","Joanna Brundle","6.2","1",null,null,"S",null,"Grade 4 - 5","Grade 3 - 5","The science of space can be exciting, but it can also be overwhelming, especially for young readers. In this age-appropriate look at the study of space, complex ideas are simplified with concise language. Eye-catching, full-color design elements transport readers to the visually stunning world beyond Earth's atmosphere. Fun fact boxes, detailed sidebars, and an accessible glossary also aid readers in their journey through outer space. This engaging guide to an essential elementary science curriculum topic is sure to be an unforgettable reading experience.","English",28.25,22.6,"520--dc23","32 pp.","https://greenhavenpublishing.com/9781534530195",null,{"$f":"Table1[[#This Row],['# of Books]]*Table1[[#This Row],[QTY]]","v":0},{"$f":"Table1[[#This Row],[QTY]]*Table1[[#This Row],[School & Library Price]]","v":0}]
[null,null,null,null,35,"Science and Technology","Science in Action","Space","978-1-5345-3079-9",{"$f":"HYPERLINK(Table1[[#This Row],[eCommerce Hyperlink]],\"Book Weblink\")","v":"Book Weblink"},null,"KidHaven Publishing","eBook",1,"2020","August 2019",null,null,"Author","Joanna Brundle","6.2","1",null,null,"S",null,"Grade 4 - 5","Grade 3 - 5","The science of space can be exciting, but it can also be overwhelming, especially for young readers. In this age-appropriate look at the study of space, complex ideas are simplified with concise language. Eye-catching, full-color design elements transport readers to the visually stunning world beyond Earth's atmosphere. Fun fact boxes, detailed sidebars, and an accessible glossary also aid readers in their journey through outer space. This engaging guide to an essential elementary science curriculum topic is sure to be an unforgettable reading experience.","English",28.25,22.6,"520--dc23","32 pp.","https://greenhavenpublishing.com/9781534530799",null,{"$f":"Table1[[#This Row],['# of Books]]*Table1[[#This Row],[QTY]]","v":0},{"$f":"Table1[[#This Row],[QTY]]*Table1[[#This Row],[School & Library Price]]","v":0}]
[null,null,null,null,35,"Science and Technology","Transforming Earth's Geography","Transforming Earth's Geography: Set 1","978-1-5345-2457-6",{"$f":"HYPERLINK(Table1[[#This Row],[eCommerce Hyperlink]],\"Book Weblink\")","v":"Book Weblink"},null,"KidHaven Publishing","Library Set",4,"2018","January 2018","Library","8.500 X 11.00",null,null,null,null,null,null,null,null,"Grade 4 - 5","Grade 3 - 6","Earth's geography can be transformed in a variety of ways. The formation of mountains and rivers over thousands of years can change how the planet looks. Hurricanes and tornadoes can alter a landscape in moments. Famine and drought have lasting effects not just on the land but also on the animals and people who depend on it. Readers explore these and other dramatic ways that Earth's geography can change through informative main text and eye-catching fact boxes. Full-color photographs are also included, placing readers in the center of the action as dramatic storms, earthquakes, and other natural events unfold.","English",113,90.4,null,"32 pp.","https://greenhavenpublishing.com/9781534524576",null,{"$f":"Table1[[#This Row],['# of Books]]*Table1[[#This Row],[QTY]]","v":0},{"$f":"Table1[[#This Row],[QTY]]*Table1[[#This Row],[School & Library Price]]","v":0}]
[null,null,null,null,35,"Science and Technology","Transforming Earth's Geography","Famine and Drought","978-1-5345-2412-5",{"$f":"HYPERLINK(Table1[[#This Row],[eCommerce Hyperlink]],\"Book Weblink\")","v":"Book Weblink"},null,"KidHaven Publishing","Library Bound Book",1,"2018","January 2018","Library","8.500 X 11.00","Author","Joanna Brundle","6.1","0.5",null,null,"T","1000L","Grade 4 - 5","Grade 3 - 6","Readers are introduced to the perils of famine and drought and the lasting effects they have on Earth’s geography and human population. This captivating text brings forth how famine and drought happen, what measures are taken to avoid them, and how they have impacted different parts of the world. Additional information is provided through enlightening fact boxes and simple diagrams to enhance readers’ knowledge of these crucial subjects. Illuminating, full-color photographs are also included in this educational and age-appropriate text, which supports common science curriculum topics.","English",28.25,22.6,"363.8--dc23","32 pp.","https://greenhavenpublishing.com/9781534524125",null,{"$f":"Table1[[#This Row],['# of Books]]*Table1[[#This Row],[QTY]]","v":0},{"$f":"Table1[[#This Row],[QTY]]*Table1[[#This Row],[School & Library Price]]","v":0}]
[null,null,null,null,35,"Science and Technology","Transforming Earth's Geography","Famine and Drought","978-1-5345-2413-2",{"$f":"HYPERLINK(Table1[[#This Row],[eCommerce Hyperlink]],\"Book Weblink\")","v":"Book Weblink"},null,"KidHaven Publishing","eBook",1,"2018","January 2018",null,null,"Author","Joanna Brundle","6.1","0.5",null,null,"T","1000L","Grade 4 - 5","Grade 3 - 6","Readers are introduced to the perils of famine and drought and the lasting effects they have on Earth’s geography and human population. This captivating text brings forth how famine and drought happen, what measures are taken to avoid them, and how they have impacted different parts of the world. Additional information is provided through enlightening fact boxes and simple diagrams to enhance readers’ knowledge of these crucial subjects. Illuminating, full-color photographs are also included in this educational and age-appropriate text, which supports common science curriculum topics.","English",28.25,22.6,"363.8--dc23","32 pp.","https://greenhavenpublishing.com/9781534524132",null,{"$f":"Table1[[#This Row],['# of Books]]*Table1[[#This Row],[QTY]]","v":0},{"$f":"Table1[[#This Row],[QTY]]*Table1[[#This Row],[School & Library Price]]","v":0}]
[null,null,null,null,35,"Science and Technology","Transforming Earth's Geography","Hurricanes and Tornadoes","978-1-5345-2414-9",{"$f":"HYPERLINK(Table1[[#This Row],[eCommerce Hyperlink]],\"Book Weblink\")","v":"Book Weblink"},null,"KidHaven Publishing","Library Bound Book",1,"2018","January 2018","Library","8.500 X 11.00","Author","Joanna Brundle","6.4","1",null,null,"T",null,"Grade 4 - 5","Grade 3 - 6","What is it like getting caught in a hurricane or a tornado? How does Earth’s geography recover after enduring such disastrous weather? Questions such as these are answered in this engaging text that supports common areas of science curricula. Scenarios involving getting caught in dangerous weather are described, giving readers a glimpse of what it’s like to experience a hurricane or tornado. The text is supplemented with informative fact boxes, well-organized diagrams, and breathtaking, full-color photographs. This is sure to be a thrilling read for those interested in extreme weather and the destruction it causes.","English",28.25,22.6,"551.55'2--dc23","32 pp.","https://greenhavenpublishing.com/9781534524149",null,{"$f":"Table1[[#This Row],['# of Books]]*Table1[[#This Row],[QTY]]","v":0},{"$f":"Table1[[#This Row],[QTY]]*Table1[[#This Row],[School & Library Price]]","v":0}]
[null,null,null,null,35,"Science and Technology","Transforming Earth's Geography","Hurricanes and Tornadoes","978-1-5345-2415-6",{"$f":"HYPERLINK(Table1[[#This Row],[eCommerce Hyperlink]],\"Book Weblink\")","v":"Book Weblink"},null,"KidHaven Publishing","eBook",1,"2018","January 2018",null,null,"Author","Joanna Brundle","6.4","1",null,null,"T",null,"Grade 4 - 5","Grade 3 - 6","What is it like getting caught in a hurricane or a tornado? How does Earth’s geography recover after enduring such disastrous weather? Questions such as these are answered in this engaging text that supports common areas of science curricula. Scenarios involving getting caught in dangerous weather are described, giving readers a glimpse of what it’s like to experience a hurricane or tornado. The text is supplemented with informative fact boxes, well-organized diagrams, and breathtaking, full-color photographs. This is sure to be a thrilling read for those interested in extreme weather and the destruction it causes.","English",28.25,22.6,"551.55'2--dc23","32 pp.","https://greenhavenpublishing.com/9781534524156",null,{"$f":"Table1[[#This Row],['# of Books]]*Table1[[#This Row],[QTY]]","v":0},{"$f":"Table1[[#This Row],[QTY]]*Table1[[#This Row],[School & Library Price]]","v":0}]
[null,null,null,null,35,"Science and Technology","Transforming Earth's Geography","Rivers and Mountains","978-1-5345-2456-9",{"$f":"HYPERLINK(Table1[[#This Row],[eCommerce Hyperlink]],\"Book Weblink\")","v":"Book Weblink"},null,"KidHaven Publishing","Library Bound Book",1,"2018","January 2018","Library","8.500 X 11.00","Author","Joanna Brundle","6","1",null,null,"T",null,"Grade 4 - 5","Grade 3 - 6","Rivers and mountains are both critical parts of Earth’s geography. This accessible text discusses how rivers and mountains form, how they interact with the weather, how they change over time, and how civilizations benefit from them. Informative fact boxes, simple diagrams, and vibrant, full-color photographs support the compelling main text. This introduction to rivers and mountains is sure to expand young learners’ minds, as they enhance their knowledge of Earth science and other crucial parts of science curricula.","English",28.25,22.6,"551.48'3--dc23","32 pp.","https://greenhavenpublishing.com/9781534524569",null,{"$f":"Table1[[#This Row],['# of Books]]*Table1[[#This Row],[QTY]]","v":0},{"$f":"Table1[[#This Row],[QTY]]*Table1[[#This Row],[School & Library Price]]","v":0}]
[null,null,null,null,35,"Science and Technology","Transforming Earth's Geography","Rivers and Mountains","978-1-5345-2461-3",{"$f":"HYPERLINK(Table1[[#This Row],[eCommerce Hyperlink]],\"Book Weblink\")","v":"Book Weblink"},null,"KidHaven Publishing","eBook",1,"2018","January 2018",null,null,"Author","Joanna Brundle","6","1",null,null,"T",null,"Grade 4 - 5","Grade 3 - 6","Rivers and mountains are both critical parts of Earth’s geography. This accessible text discusses how rivers and mountains form, how they interact with the weather, how they change over time, and how civilizations benefit from them. Informative fact boxes, simple diagrams, and vibrant, full-color photographs support the compelling main text. This introduction to rivers and mountains is sure to expand young learners’ minds, as they enhance their knowledge of Earth science and other crucial parts of science curricula.","English",28.25,22.6,"551.48'3--dc23","32 pp.","https://greenhavenpublishing.com/9781534524613",null,{"$f":"Table1[[#This Row],['# of Books]]*Table1[[#This Row],[QTY]]","v":0},{"$f":"Table1[[#This Row],[QTY]]*Table1[[#This Row],[School & Library Price]]","v":0}]
[null,null,null,null,35,"Science and Technology","Transforming Earth's Geography","Volcanoes and Earthquakes","978-1-5345-2417-0",{"$f":"HYPERLINK(Table1[[#This Row],[eCommerce Hyperlink]],\"Book Weblink\")","v":"Book Weblink"},null,"KidHaven Publishing","Library Bound Book",1,"2018","January 2018","Library","8.500 X 11.00","Author","Joanna Brundle","6","0.5",null,null,"T",null,"Grade 4 - 5","Grade 3 - 6","Readers are introduced to the world of volcanoes and earthquakes in this explosive text, which supports current science curriculum topics. Exciting main text explains why the earth shifts beneath our feet and how this has contributed to altering Earth’s geography. Detailed fact boxes, simple diagrams, and eye-catching, full-color photographs provide additional information alongside the text. Young learners will become experts on volcanoes and earthquakes after exploring some of Earth’s worst natural disasters.","English",28.25,22.6,"551.2--dc23","32 pp.","https://greenhavenpublishing.com/9781534524170",null,{"$f":"Table1[[#This Row],['# of Books]]*Table1[[#This Row],[QTY]]","v":0},{"$f":"Table1[[#This Row],[QTY]]*Table1[[#This Row],[School & Library Price]]","v":0}]
[null,null,null,null,35,"Science and Technology","Transforming Earth's Geography","Volcanoes and Earthquakes","978-1-5345-2418-7",{"$f":"HYPERLINK(Table1[[#This Row],[eCommerce Hyperlink]],\"Book Weblink\")","v":"Book Weblink"},null,"KidHaven Publishing","eBook",1,"2018","January 2018",null,null,"Author","Joanna Brundle","6","0.5",null,null,"T",null,"Grade 4 - 5","Grade 3 - 6","Readers are introduced to the world of volcanoes and earthquakes in this explosive text, which supports current science curriculum topics. Exciting main text explains why the earth shifts beneath our feet and how this has contributed to altering Earth’s geography. Detailed fact boxes, simple diagrams, and eye-catching, full-color photographs provide additional information alongside the text. Young learners will become experts on volcanoes and earthquakes after exploring some of Earth’s worst natural disasters.","English",28.25,22.6,"551.2--dc23","32 pp.","https://greenhavenpublishing.com/9781534524187",null,{"$f":"Table1[[#This Row],['# of Books]]*Table1[[#This Row],[QTY]]","v":0},{"$f":"Table1[[#This Row],[QTY]]*Table1[[#This Row],[School & Library Price]]","v":0}]
[null,null,null,null,35,"Science and Technology","Transforming Earth's Geography","Transforming Earth's Geography: Set 2","978-1-5345-2959-5",{"$f":"HYPERLINK(Table1[[#This Row],[eCommerce Hyperlink]],\"Book Weblink\")","v":"Book Weblink"},null,"KidHaven Publishing","Library Set",4,"2019","January 2019","Library","8.500 X 11.00",null,null,null,null,null,null,null,null,"Grade 4 - 5","Grade 3 - 6","What causes heat waves and wildfires? How do sinkholes form? How much destruction do avalanches cause? These and other questions are answered in this series covering topics concerning Earth's geography and how it transforms through natural events. This topic is presented in a clear and concise fashion for readers and will spark their interest in examining earth science, and the natural world around them. They will explore the causes and effects these events have on plants, animals, and the human population through well-researched text, detailed diagrams, informational fact boxes, full-color photographs, and helpful glossaries. Features include: Relevant and current topics inform young readers about natural disasters that are often in the news, such as wildfires and floods. Text encourages readers to support ways to protect the environment and guard against these catastrophic events. Factual, age-appropriate text allows readers to connect with common science curriculum topics.","English",113,90.4,null,"32 pp.","https://greenhavenpublishing.com/9781534529595",null,{"$f":"Table1[[#This Row],['# of Books]]*Table1[[#This Row],[QTY]]","v":0},{"$f":"Table1[[#This Row],[QTY]]*Table1[[#This Row],[School & Library Price]]","v":0}]
[null,null,null,null,35,"Science and Technology","Transforming Earth's Geography","Erosion and Sinkholes","978-1-5345-2893-2",{"$f":"HYPERLINK(Table1[[#This Row],[eCommerce Hyperlink]],\"Book Weblink\")","v":"Book Weblink"},null,"KidHaven Publishing","Library Bound Book",1,"2019","January 2019","Library","8.500 X 11.00","Author","Joanna Brundle","6.2","1",null,null,"T",null,"Grade 4 - 5","Grade 3 - 6","What parts of the environment are affected by erosion? Where do sinkholes most typically form? Questions such as these are answered in this thrilling look at natural processes that shape and reshape earth's geography. Readers will discover how erosion and sinkholes affect plants, animals, and the human population through well-researched main text, which touches on common earth science curriculum topics. Informational fact boxes provide extra insight into this interesting subject, and exciting design elements include accessible diagrams and full-color photographs of the aftermath of these dangerous parts of the natural world.","English",28.25,22.6,"551.3'02--dc23","32 pp.","https://greenhavenpublishing.com/9781534528932",null,{"$f":"Table1[[#This Row],['# of Books]]*Table1[[#This Row],[QTY]]","v":0},{"$f":"Table1[[#This Row],[QTY]]*Table1[[#This Row],[School & Library Price]]","v":0}]
[null,null,null,null,35,"Science and Technology","Transforming Earth's Geography","Erosion and Sinkholes","978-1-5345-2894-9",{"$f":"HYPERLINK(Table1[[#This Row],[eCommerce Hyperlink]],\"Book Weblink\")","v":"Book Weblink"},null,"KidHaven Publishing","eBook",1,"2019","January 2019",null,null,"Author","Joanna Brundle","6.2","1",null,null,"T",null,"Grade 4 - 5","Grade 3 - 6","What parts of the environment are affected by erosion? Where do sinkholes most typically form? Questions such as these are answered in this thrilling look at natural processes that shape and reshape earth's geography. Readers will discover how erosion and sinkholes affect plants, animals, and the human population through well-researched main text, which touches on common earth science curriculum topics. Informational fact boxes provide extra insight into this interesting subject, and exciting design elements include accessible diagrams and full-color photographs of the aftermath of these dangerous parts of the natural world.","English",28.25,22.6,"551.3'02--dc23","32 pp.","https://greenhavenpublishing.com/9781534528949",null,{"$f":"Table1[[#This Row],['# of Books]]*Table1[[#This Row],[QTY]]","v":0},{"$f":"Table1[[#This Row],[QTY]]*Table1[[#This Row],[School & Library Price]]","v":0}]
[null,null,null,null,35,"Science and Technology","Transforming Earth's Geography","Heat Waves and Wildfires","978-1-5345-2889-5",{"$f":"HYPERLINK(Table1[[#This Row],[eCommerce Hyperlink]],\"Book Weblink\")","v":"Book Weblink"},null,"KidHaven Publishing","Library Bound Book",1,"2019","January 2019","Library","8.500 X 11.00","Author","Joanna Brundle","6","0.5",null,null,"T",null,"Grade 4 - 5","Grade 3 - 6","Heat waves and wildfires occur around the world and have devastating effects, which are often documented on the news. Scientists claim climate change is a major factor in the rise of these damaging natural events that can dramatically transform the earth's geography. Readers are introduced to the causes and effects of heat waves and wildfires through concise main text filled with scientific facts. In addition, helpful fact boxes, informative diagrams, and eye-catching, full-color photographs are sure to spark an interest in earth science and the impact of natural disasters on the planet.","English",28.25,22.6,"363.34'92--dc23","32 pp.","https://greenhavenpublishing.com/9781534528895",null,{"$f":"Table1[[#This Row],['# of Books]]*Table1[[#This Row],[QTY]]","v":0},{"$f":"Table1[[#This Row],[QTY]]*Table1[[#This Row],[School & Library Price]]","v":0}]
[null,null,null,null,35,"Science and Technology","Transforming Earth's Geography","Heat Waves and Wildfires","978-1-5345-2890-1",{"$f":"HYPERLINK(Table1[[#This Row],[eCommerce Hyperlink]],\"Book Weblink\")","v":"Book Weblink"},null,"KidHaven Publishing","eBook",1,"2019","January 2019",null,null,"Author","Joanna Brundle","6","0.5",null,null,"T",null,"Grade 4 - 5","Grade 3 - 6","Heat waves and wildfires occur around the world and have devastating effects, which are often documented on the news. Scientists claim climate change is a major factor in the rise of these damaging natural events that can dramatically transform the earth's geography. Readers are introduced to the causes and effects of heat waves and wildfires through concise main text filled with scientific facts. In addition, helpful fact boxes, informative diagrams, and eye-catching, full-color photographs are sure to spark an interest in earth science and the impact of natural disasters on the planet.","English",28.25,22.6,"363.34'92--dc23","32 pp.","https://greenhavenpublishing.com/9781534528901",null,{"$f":"Table1[[#This Row],['# of Books]]*Table1[[#This Row],[QTY]]","v":0},{"$f":"Table1[[#This Row],[QTY]]*Table1[[#This Row],[School & Library Price]]","v":0}]
[null,null,null,null,35,"Science and Technology","Transforming Earth's Geography","Landslides and Avalanches","978-1-5345-2897-0",{"$f":"HYPERLINK(Table1[[#This Row],[eCommerce Hyperlink]],\"Book Weblink\")","v":"Book Weblink"},null,"KidHaven Publishing","Library Bound Book",1,"2019","January 2019","Library","8.500 X 11.00","Author","Joanna Brundle","6.3","1",null,null,"T",null,"Grade 4 - 5","Grade 3 - 6","When landslides and avalanches happen, they leave a trail of destruction in their paths. Readers get a front row seat to these natural disasters and learn how they affect wildlife, plant life, and humans. Essential earth science topics are made accessible through this engaging and educational look at two natural disasters that can drastically change the way the earth looks. Intense, full-color photographs add a thrilling element to this exploration of earth science, and informative fact boxes and helpful diagrams are also included to deepen readers' understanding of dangerous landslides and avalanches.","English",28.25,22.6,"363.34'9--dc23","32 pp.","https://greenhavenpublishing.com/9781534528970",null,{"$f":"Table1[[#This Row],['# of Books]]*Table1[[#This Row],[QTY]]","v":0},{"$f":"Table1[[#This Row],[QTY]]*Table1[[#This Row],[School & Library Price]]","v":0}]
[null,null,null,null,35,"Science and Technology","Transforming Earth's Geography","Landslides and Avalanches","978-1-5345-2898-7",{"$f":"HYPERLINK(Table1[[#This Row],[eCommerce Hyperlink]],\"Book Weblink\")","v":"Book Weblink"},null,"KidHaven Publishing","eBook",1,"2019","January 2019",null,null,"Author","Joanna Brundle","6.3","1",null,null,"T",null,"Grade 4 - 5","Grade 3 - 6","When landslides and avalanches happen, they leave a trail of destruction in their paths. Readers get a front row seat to these natural disasters and learn how they affect wildlife, plant life, and humans. Essential earth science topics are made accessible through this engaging and educational look at two natural disasters that can drastically change the way the earth looks. Intense, full-color photographs add a thrilling element to this exploration of earth science, and informative fact boxes and helpful diagrams are also included to deepen readers' understanding of dangerous landslides and avalanches.","English",28.25,22.6,"363.34'9--dc23","32 pp.","https://greenhavenpublishing.com/9781534528987",null,{"$f":"Table1[[#This Row],['# of Books]]*Table1[[#This Row],[QTY]]","v":0},{"$f":"Table1[[#This Row],[QTY]]*Table1[[#This Row],[School & Library Price]]","v":0}]
[null,null,null,null,35,"Science and Technology","Transforming Earth's Geography","Tsunamis and Floods","978-1-5345-2901-4",{"$f":"HYPERLINK(Table1[[#This Row],[eCommerce Hyperlink]],\"Book Weblink\")","v":"Book Weblink"},null,"KidHaven Publishing","Library Bound Book",1,"2019","January 2019","Library","8.500 X 11.00","Author","Joanna Brundle","6.2","1",null,null,"T",null,"Grade 4 - 5","Grade 3 - 6","The destruction caused by tsunamis and floods not only affects Earth's geography, but also the people, plants, and animals present in the areas directly affected. Why do these natural disasters happen, and how can areas recover from them? These questions are explored through well-researched main text to clearly provide young people with scientific facts about natural disasters. Bold and exciting design elements, such as intense photographs and detailed diagrams, make readers feel as if they are experiencing these events firsthand. Informative fact boxes provide additional information to give readers a deeper understanding of this common science curriculum topic.","English",28.25,22.6,"551.46'37--dc23","32 pp.","https://greenhavenpublishing.com/9781534529014",null,{"$f":"Table1[[#This Row],['# of Books]]*Table1[[#This Row],[QTY]]","v":0},{"$f":"Table1[[#This Row],[QTY]]*Table1[[#This Row],[School & Library Price]]","v":0}]
[null,null,null,null,35,"Science and Technology","Transforming Earth's Geography","Tsunamis and Floods","978-1-5345-2902-1",{"$f":"HYPERLINK(Table1[[#This Row],[eCommerce Hyperlink]],\"Book Weblink\")","v":"Book Weblink"},null,"KidHaven Publishing","eBook",1,"2019","January 2019",null,null,"Author","Joanna Brundle","6.2","1",null,null,"T",null,"Grade 4 - 5","Grade 3 - 6","The destruction caused by tsunamis and floods not only affects Earth's geography, but also the people, plants, and animals present in the areas directly affected. Why do these natural disasters happen, and how can areas recover from them? These questions are explored through well-researched main text to clearly provide young people with scientific facts about natural disasters. Bold and exciting design elements, such as intense photographs and detailed diagrams, make readers feel as if they are experiencing these events firsthand. Informative fact boxes provide additional information to give readers a deeper understanding of this common science curriculum topic.","English",28.25,22.6,"551.46'37--dc23","32 pp.","https://greenhavenpublishing.com/9781534529021",null,{"$f":"Table1[[#This Row],['# of Books]]*Table1[[#This Row],[QTY]]","v":0},{"$f":"Table1[[#This Row],[QTY]]*Table1[[#This Row],[School & Library Price]]","v":0}]
[null,null,null,null,35,"Science and Technology","Under the Microscope","Under the Microscope","978-1-5345-3401-8",{"$f":"HYPERLINK(Table1[[#This Row],[eCommerce Hyperlink]],\"Book Weblink\")","v":"Book Weblink"},null,"KidHaven Publishing","Library Set",4,"2020","January 2020","Library","8.500 X 8.500",null,null,null,null,null,null,null,null,"Grade 2","Grade 2 - 5","Microscopes are scientific instruments often used to look at very small organisms, such as bacteria, fungi, and parasites, as well as viruses. While many people are aware of the dangerous forms of these organisms and viruses, there are helpful kinds too. Readers get an up-close look at what they can find under the microscope, enhancing their science knowledge in the process. In addition to the accessible and age-appropriate narratives, eye-catching fact boxes, detailed glossaries, and bright, full-color photographs help readers find the fun in this essential science curriculum topic. Features include: Engaging design and fresh spin on a familiar science concept introduce readers to the important skill of using a microscope in a creative way. Encourages young readers to think critically about nature as they examine the benefits and dangers of microscopic creatures. Relatable texts helps readers see how science is an active part of the world around them.","English",102.4,81.92,null,"24 pp.","https://greenhavenpublishing.com/9781534534018",null,{"$f":"Table1[[#This Row],['# of Books]]*Table1[[#This Row],[QTY]]","v":0},{"$f":"Table1[[#This Row],[QTY]]*Table1[[#This Row],[School & Library Price]]","v":0}]
[null,null,null,null,35,"Science and Technology","Under the Microscope","Bacteria in Our World","978-1-5345-3315-8",{"$f":"HYPERLINK(Table1[[#This Row],[eCommerce Hyperlink]],\"Book Weblink\")","v":"Book Weblink"},null,"KidHaven Publishing","Library Bound Book",1,"2020","January 2020","Library","8.500 X 8.500","Author","John Wood","4.5","0.5",null,null,"K",null,"Grade 2","Grade 2 - 5","Many people know the dangers of coming in contact with different types of bacteria, but what they may not be familiar with are the good types of bacteria. This accessible text explains the various types of good and bad bacteria and their value to different ecosystems. Readers will deepen their understanding of these organisms after seeing what they look like under a microscope. Informative fact boxes and bright, full-color photographs presented as part of an engaging design add extra insight into this interesting science curriculum topic, and help make learning about science fun.","English",25.6,20.48,"579.3--dc23","24 pp.","https://greenhavenpublishing.com/9781534533158",null,{"$f":"Table1[[#This Row],['# of Books]]*Table1[[#This Row],[QTY]]","v":0},{"$f":"Table1[[#This Row],[QTY]]*Table1[[#This Row],[School & Library Price]]","v":0}]
[null,null,null,null,35,"Science and Technology","Under the Microscope","Bacteria in Our World","978-1-5345-3316-5",{"$f":"HYPERLINK(Table1[[#This Row],[eCommerce Hyperlink]],\"Book Weblink\")","v":"Book Weblink"},null,"KidHaven Publishing","eBook",1,"2020","January 2020",null,null,"Author","John Wood","4.5","0.5",null,null,"K",null,"Grade 2","Grade 2 - 5","Many people know the dangers of coming in contact with different types of bacteria, but what they may not be familiar with are the good types of bacteria. This accessible text explains the various types of good and bad bacteria and their value to different ecosystems. Readers will deepen their understanding of these organisms after seeing what they look like under a microscope. Informative fact boxes and bright, full-color photographs presented as part of an engaging design add extra insight into this interesting science curriculum topic, and help make learning about science fun.","English",25.6,20.48,"579.3--dc23","24 pp.","https://greenhavenpublishing.com/9781534533165",null,{"$f":"Table1[[#This Row],['# of Books]]*Table1[[#This Row],[QTY]]","v":0},{"$f":"Table1[[#This Row],[QTY]]*Table1[[#This Row],[School & Library Price]]","v":0}]
[null,null,null,null,35,"Science and Technology","Under the Microscope","Fungi in Our World","978-1-5345-3319-6",{"$f":"HYPERLINK(Table1[[#This Row],[eCommerce Hyperlink]],\"Book Weblink\")","v":"Book Weblink"},null,"KidHaven Publishing","Library Bound Book",1,"2020","January 2020","Library","8.500 X 8.500","Author","John Wood","4.4","0.5",null,null,"K",null,"Grade 2","Grade 2 - 5","Fungi play an important part in our world. Some fungi are mushrooms that can be cooked into delicious meals, but others are poisonous. It's important to be able to tell them apart before eating them. Readers gain this valuable knowledge as they explore what fungi look like to the human eye and under the microscope. The engaging and educational text broadens their understanding of essential science curriculum topics. Informative fact boxes and eye-catching, full-color photographs enhance this fascinating exploration of fungi that budding scientists are sure to love.","English",25.6,20.48,"579.5--dc23","24 pp.","https://greenhavenpublishing.com/9781534533196",null,{"$f":"Table1[[#This Row],['# of Books]]*Table1[[#This Row],[QTY]]","v":0},{"$f":"Table1[[#This Row],[QTY]]*Table1[[#This Row],[School & Library Price]]","v":0}]
[null,null,null,null,35,"Science and Technology","Under the Microscope","Fungi in Our World","978-1-5345-3320-2",{"$f":"HYPERLINK(Table1[[#This Row],[eCommerce Hyperlink]],\"Book Weblink\")","v":"Book Weblink"},null,"KidHaven Publishing","eBook",1,"2020","January 2020",null,null,"Author","John Wood","4.4","0.5",null,null,"K",null,"Grade 2","Grade 2 - 5","Fungi play an important part in our world. Some fungi are mushrooms that can be cooked into delicious meals, but others are poisonous. It's important to be able to tell them apart before eating them. Readers gain this valuable knowledge as they explore what fungi look like to the human eye and under the microscope. The engaging and educational text broadens their understanding of essential science curriculum topics. Informative fact boxes and eye-catching, full-color photographs enhance this fascinating exploration of fungi that budding scientists are sure to love.","English",25.6,20.48,"579.5--dc23","24 pp.","https://greenhavenpublishing.com/9781534533202",null,{"$f":"Table1[[#This Row],['# of Books]]*Table1[[#This Row],[QTY]]","v":0},{"$f":"Table1[[#This Row],[QTY]]*Table1[[#This Row],[School & Library Price]]","v":0}]
[null,null,null,null,35,"Science and Technology","Under the Microscope","Parasites in Our World","978-1-5345-3323-3",{"$f":"HYPERLINK(Table1[[#This Row],[eCommerce Hyperlink]],\"Book Weblink\")","v":"Book Weblink"},null,"KidHaven Publishing","Library Bound Book",1,"2020","January 2020","Library","8.500 X 8.500","Author","John Wood","4.1","0.5",null,null,"K",null,"Grade 2","Grade 2 - 5","What do different parasites look like under the microscope? Readers find out with this engaging look at a fascinating group of living things. The comprehensive main text discusses the different kinds of parasites that exist in the world and their specific functions within ecosystems. As readers explore the creative design, which features helpful fact boxes and full-color photographs, they enhance their knowledge of biology and how science is at work in the world around us. This complex topic is presented to young readers through accessible language that makes complicated science concepts easy to understand and fun to learn about.","English",25.6,20.48,"591.6'5--dc23","24 pp.","https://greenhavenpublishing.com/9781534533233",null,{"$f":"Table1[[#This Row],['# of Books]]*Table1[[#This Row],[QTY]]","v":0},{"$f":"Table1[[#This Row],[QTY]]*Table1[[#This Row],[School & Library Price]]","v":0}]
[null,null,null,null,35,"Science and Technology","Under the Microscope","Parasites in Our World","978-1-5345-3324-0",{"$f":"HYPERLINK(Table1[[#This Row],[eCommerce Hyperlink]],\"Book Weblink\")","v":"Book Weblink"},null,"KidHaven Publishing","eBook",1,"2020","January 2020",null,null,"Author","John Wood","4.1","0.5",null,null,"K",null,"Grade 2","Grade 2 - 5","What do different parasites look like under the microscope? Readers find out with this engaging look at a fascinating group of living things. The comprehensive main text discusses the different kinds of parasites that exist in the world and their specific functions within ecosystems. As readers explore the creative design, which features helpful fact boxes and full-color photographs, they enhance their knowledge of biology and how science is at work in the world around us. This complex topic is presented to young readers through accessible language that makes complicated science concepts easy to understand and fun to learn about.","English",25.6,20.48,"591.6'5--dc23","24 pp.","https://greenhavenpublishing.com/9781534533240",null,{"$f":"Table1[[#This Row],['# of Books]]*Table1[[#This Row],[QTY]]","v":0},{"$f":"Table1[[#This Row],[QTY]]*Table1[[#This Row],[School & Library Price]]","v":0}]
[null,null,null,null,35,"Science and Technology","Under the Microscope","Viruses in Our World","978-1-5345-3327-1",{"$f":"HYPERLINK(Table1[[#This Row],[eCommerce Hyperlink]],\"Book Weblink\")","v":"Book Weblink"},null,"KidHaven Publishing","Library Bound Book",1,"2020","January 2020","Library","8.500 X 8.500","Author","John Wood","4.7","0.5",null,null,"K",null,"Grade 2","Grade 2 - 5","Viruses aren't like anything else you can see under a microscope. Is a virus a living thing or something else? Readers explore the answer to this question as they examine viruses, learning what they look like and how they affect us. As readers discover important facts about how viruses multiply and what sicknesses they cause, they expand their knowledge of essential parts of science curricula, including beginner biology concepts. In addition to the informative narrative, fun fact boxes, vibrant, full-color photographs, and a creative design hold readers' interest as they learn more about this important topic.","English",25.6,20.48,"579.2--dc23","24 pp.","https://greenhavenpublishing.com/9781534533271",null,{"$f":"Table1[[#This Row],['# of Books]]*Table1[[#This Row],[QTY]]","v":0},{"$f":"Table1[[#This Row],[QTY]]*Table1[[#This Row],[School & Library Price]]","v":0}]
[null,null,null,null,35,"Science and Technology","Under the Microscope","Viruses in Our World","978-1-5345-3328-8",{"$f":"HYPERLINK(Table1[[#This Row],[eCommerce Hyperlink]],\"Book Weblink\")","v":"Book Weblink"},null,"KidHaven Publishing","eBook",1,"2020","January 2020",null,null,"Author","John Wood","4.7","0.5",null,null,"K",null,"Grade 2","Grade 2 - 5","Viruses aren't like anything else you can see under a microscope. Is a virus a living thing or something else? Readers explore the answer to this question as they examine viruses, learning what they look like and how they affect us. As readers discover important facts about how viruses multiply and what sicknesses they cause, they expand their knowledge of essential parts of science curricula, including beginner biology concepts. In addition to the informative narrative, fun fact boxes, vibrant, full-color photographs, and a creative design hold readers' interest as they learn more about this important topic.","English",25.6,20.48,"579.2--dc23","24 pp.","https://greenhavenpublishing.com/9781534533288",null,{"$f":"Table1[[#This Row],['# of Books]]*Table1[[#This Row],[QTY]]","v":0},{"$f":"Table1[[#This Row],[QTY]]*Table1[[#This Row],[School & Library Price]]","v":0}]
[null,null,null,3,36,"Social Studies","Community Helpers and Builders","Community Helpers and Builders","978-1-5345-4237-2",null,null,"KidHaven Publishing","Library Set",4,"2023","August 2022","Library","8.500 X 8.500",null,null,null,null,null,null,null,null,"Grade 2","Grade 1 - 3","Successful communities can look different, but all fulfill certain needs of their inhabitants. This high-interest series encourages young readers to consider essential parts of their community as they read about a fictional town being built with input from young community members. They’ll learn about the value of places to explore like museums, places to learn like music schools, places to play like parks, and places to shop like art stores. Friendly illustrated characters add a motivating element to the at-level text, which makes reading about key social studies concepts achievable—and fun!","English",102.4,81.92,null,"24 pp.","https://greenhavenpublishing.com/9781534542372",null,{"$f":"Table1[[#This Row],['# of Books]]*Table1[[#This Row],[QTY]]","v":0},{"$f":"Table1[[#This Row],[QTY]]*Table1[[#This Row],[School & Library Price]]","v":0}]
[null,null,null,3,36,"Social Studies","Community Helpers and Builders","Building Places to Explore","978-1-5345-4099-6",null,null,"KidHaven Publishing","Library Bound Book",1,"2023","August 2022","Library","8.500 X 8.500","Author","William Anthony",null,null,null,null,"H",null,"Grade 2","Grade 1 - 3","The Local Area Builders are ready to create new places in their community, specifically places that young learners love to explore. Readers are invited along as the builders plan to plant a forest, construct a museum, make a beach, and much more. After each location is built and its important components considered and described, a map of the town is updated. Young builders and planners will love learning how community helpers improve their communities. A concluding activity encourages them to make a map of their own town or city—or even a made-up community with their favorite sites to explore.","English",25.6,20.48,"069--dc23","24 pp.","https://greenhavenpublishing.com/9781534540996",null,{"$f":"Table1[[#This Row],['# of Books]]*Table1[[#This Row],[QTY]]","v":0},{"$f":"Table1[[#This Row],[QTY]]*Table1[[#This Row],[School & Library Price]]","v":0}]
[null,null,null,3,36,"Social Studies","Community Helpers and Builders","Building Places to Explore","978-1-5345-4100-9",null,null,"KidHaven Publishing","eBook",1,"2023","August 2022",null,null,"Author","William Anthony",null,null,null,null,"H",null,"Grade 2","Grade 1 - 3","The Local Area Builders are ready to create new places in their community, specifically places that young learners love to explore. Readers are invited along as the builders plan to plant a forest, construct a museum, make a beach, and much more. After each location is built and its important components considered and described, a map of the town is updated. Young builders and planners will love learning how community helpers improve their communities. A concluding activity encourages them to make a map of their own town or city—or even a made-up community with their favorite sites to explore.","English",25.6,20.48,"069--dc23","24 pp.","https://greenhavenpublishing.com/9781534541009","http://www.epointplus.com/embed/9781534541009/?login=cyberrep&password=cyberrep",{"$f":"Table1[[#This Row],['# of Books]]*Table1[[#This Row],[QTY]]","v":0},{"$f":"Table1[[#This Row],[QTY]]*Table1[[#This Row],[School & Library Price]]","v":0}]
[null,null,null,3,36,"Social Studies","Community Helpers and Builders","Building Places to Learn","978-1-5345-4103-0",null,null,"KidHaven Publishing","Library Bound Book",1,"2023","August 2022","Library","8.500 X 8.500","Author","William Anthony",null,null,null,null,"H",null,"Grade 2","Grade 1 - 3","The community of Learnville needs new places for its inhabitants to—you guessed it—learn, and readers of this entertaining and informative book are on the planning board! They’ll follow along as young community members work with the Local Area Builders to create different places to learn, including a music school, a sports club, and more. They’ll discover what happens in these facilities and consider how they’re a valuable part of communities. A final activity asks readers to make a map of their own community with the locations of places to learn nearest to them.","English",25.6,20.48,"371--dc23","24 pp.","https://greenhavenpublishing.com/9781534541030",null,{"$f":"Table1[[#This Row],['# of Books]]*Table1[[#This Row],[QTY]]","v":0},{"$f":"Table1[[#This Row],[QTY]]*Table1[[#This Row],[School & Library Price]]","v":0}]
[null,null,null,3,36,"Social Studies","Community Helpers and Builders","Building Places to Learn","978-1-5345-4104-7",null,null,"KidHaven Publishing","eBook",1,"2023","August 2022",null,null,"Author","William Anthony",null,null,null,null,"H",null,"Grade 2","Grade 1 - 3","The community of Learnville needs new places for its inhabitants to—you guessed it—learn, and readers of this entertaining and informative book are on the planning board! They’ll follow along as young community members work with the Local Area Builders to create different places to learn, including a music school, a sports club, and more. They’ll discover what happens in these facilities and consider how they’re a valuable part of communities. A final activity asks readers to make a map of their own community with the locations of places to learn nearest to them.","English",25.6,20.48,"371--dc23","24 pp.","https://greenhavenpublishing.com/9781534541047","http://www.epointplus.com/embed/9781534541047/?login=cyberrep&password=cyberrep",{"$f":"Table1[[#This Row],['# of Books]]*Table1[[#This Row],[QTY]]","v":0},{"$f":"Table1[[#This Row],[QTY]]*Table1[[#This Row],[School & Library Price]]","v":0}]
[null,null,null,3,36,"Social Studies","Community Helpers and Builders","Building Places to Play","978-1-5345-4107-8",null,null,"KidHaven Publishing","Library Bound Book",1,"2023","August 2022","Library","8.500 X 8.500","Author","William Anthony",null,null,null,null,"H",null,"Grade 2","Grade 1 - 3","Welcome to Playtown, where the Local Area Builders are planning places to have fun in their community. In this cheerfully designed volume, young community members suggest new facilities that would improve their neighborhood. Readers follow along, considering what a park, playground, sports club, and more add to their area. They also practice map skills and learn community-centered vocabulary as the town grows. A final activity suggests that readers create a map of places to play in their own community. This entertaining book with accessible language and fun illustrations is a great companion to the early elementary social studies curriculum.","English",25.6,20.48,"711’.558--dc23","24 pp.","https://greenhavenpublishing.com/9781534541078",null,{"$f":"Table1[[#This Row],['# of Books]]*Table1[[#This Row],[QTY]]","v":0},{"$f":"Table1[[#This Row],[QTY]]*Table1[[#This Row],[School & Library Price]]","v":0}]
[null,null,null,3,36,"Social Studies","Community Helpers and Builders","Building Places to Play","978-1-5345-4108-5",null,null,"KidHaven Publishing","eBook",1,"2023","August 2022",null,null,"Author","William Anthony",null,null,null,null,"H",null,"Grade 2","Grade 1 - 3","Welcome to Playtown, where the Local Area Builders are planning places to have fun in their community. In this cheerfully designed volume, young community members suggest new facilities that would improve their neighborhood. Readers follow along, considering what a park, playground, sports club, and more add to their area. They also practice map skills and learn community-centered vocabulary as the town grows. A final activity suggests that readers create a map of places to play in their own community. This entertaining book with accessible language and fun illustrations is a great companion to the early elementary social studies curriculum.","English",25.6,20.48,"711’.558--dc23","24 pp.","https://greenhavenpublishing.com/9781534541085","http://www.epointplus.com/embed/9781534541085/?login=cyberrep&password=cyberrep",{"$f":"Table1[[#This Row],['# of Books]]*Table1[[#This Row],[QTY]]","v":0},{"$f":"Table1[[#This Row],[QTY]]*Table1[[#This Row],[School & Library Price]]","v":0}]
[null,null,null,3,36,"Social Studies","Community Helpers and Builders","Building Places to Shop","978-1-5345-4111-5",null,null,"KidHaven Publishing","Library Bound Book",1,"2023","August 2022","Library","8.500 X 8.500","Author","William Anthony",null,null,null,null,"H",null,"Grade 2","Grade 1 - 3","Welcome to Shoppington! In this friendly community, the Local Area Builders are open to ideas about new places where people can buy the goods they need. Readers can join along on the journey as community members who look just like them request places to get clothing, food, art supplies, toys, and more. They discuss the roles these locations fulfill. As the town’s shops are built, they’re added to a colorful map. Readers are encouraged through a concluding activity to consider their community and the places where they shop by creating their own map.","English",25.6,20.48,"381’.1--dc23","24 pp.","https://greenhavenpublishing.com/9781534541115",null,{"$f":"Table1[[#This Row],['# of Books]]*Table1[[#This Row],[QTY]]","v":0},{"$f":"Table1[[#This Row],[QTY]]*Table1[[#This Row],[School & Library Price]]","v":0}]
[null,null,null,3,36,"Social Studies","Community Helpers and Builders","Building Places to Shop","978-1-5345-4112-2",null,null,"KidHaven Publishing","eBook",1,"2023","August 2022",null,null,"Author","William Anthony",null,null,null,null,"H",null,"Grade 2","Grade 1 - 3","Welcome to Shoppington! In this friendly community, the Local Area Builders are open to ideas about new places where people can buy the goods they need. Readers can join along on the journey as community members who look just like them request places to get clothing, food, art supplies, toys, and more. They discuss the roles these locations fulfill. As the town’s shops are built, they’re added to a colorful map. Readers are encouraged through a concluding activity to consider their community and the places where they shop by creating their own map.","English",25.6,20.48,"381’.1--dc23","24 pp.","https://greenhavenpublishing.com/9781534541122","http://www.epointplus.com/embed/9781534541122/?login=cyberrep&password=cyberrep",{"$f":"Table1[[#This Row],['# of Books]]*Table1[[#This Row],[QTY]]","v":0},{"$f":"Table1[[#This Row],[QTY]]*Table1[[#This Row],[School & Library Price]]","v":0}]
[null,null,null,null,37,"Social Studies","A Look at Life Around the World","A Look at Life Around the World","978-1-5345-2966-3",{"$f":"HYPERLINK(Table1[[#This Row],[eCommerce Hyperlink]],\"Book Weblink\")","v":"Book Weblink"},null,"KidHaven Publishing","Library Set",6,"2019","January 2019","Library","8.500 X 8.500",null,null,null,null,null,null,null,null,"Grade 2","Grade 1 - 3","What is it like to be a student at a school in Finland? In China, what kinds of celebrations are held each year? Questions such as these are answered as readers discover what life is like for people in different countries around the world. Readers will be exposed to everyday life in foreign countries through volumes that focus on school, celebrations, jobs, family life, and other relatable topics. Engaging fact boxes and vibrant, full-color photographs of people around the world supplement this age-appropriate text that encourages the development of a more expansive worldview. Features include: Readers are encouraged to compare and contrast their own lives with the lives of others around the world, sharpening their critical-thinking skills. Educational and exciting tone helps readers appreciate diversity. Social studies curriculum topics are presented in a fun and relatable way for young readers.","English",153.6,122.88,null,"24 pp.","https://greenhavenpublishing.com/9781534529663",null,{"$f":"Table1[[#This Row],['# of Books]]*Table1[[#This Row],[QTY]]","v":0},{"$f":"Table1[[#This Row],[QTY]]*Table1[[#This Row],[School & Library Price]]","v":0}]
[null,null,null,null,37,"Social Studies","A Look at Life Around the World","Celebrations","978-1-5345-2845-1",{"$f":"HYPERLINK(Table1[[#This Row],[eCommerce Hyperlink]],\"Book Weblink\")","v":"Book Weblink"},null,"KidHaven Publishing","Library Bound Book",1,"2019","January 2019","Library","8.500 X 8.500","Author","Joanna Brundle","5.1","0.5",null,null,"J",null,"Grade 2","Grade 1 - 3","Readers are introduced to the different annual festivals, holidays, and events held around the world as they learn what it's like to celebrate other cultures. This exploration of celebrations in other countries teaches the traditions and values of different groups of people, helping young readers broaden their worldview. The importance of various celebrations is explained in this engaging, age-appropriate text that encourages a deeper appreciation of diversity. Detailed fact boxes, a concise glossary, and striking, full-color photographs enrich the content, which encourages readers to look beyond the curriculum and develop critical-thinking skills.","English",25.6,20.48,"394.26--dc23","24 pp.","https://greenhavenpublishing.com/9781534528451",null,{"$f":"Table1[[#This Row],['# of Books]]*Table1[[#This Row],[QTY]]","v":0},{"$f":"Table1[[#This Row],[QTY]]*Table1[[#This Row],[School & Library Price]]","v":0}]
[null,null,null,null,37,"Social Studies","A Look at Life Around the World","Celebrations","978-1-5345-2846-8",{"$f":"HYPERLINK(Table1[[#This Row],[eCommerce Hyperlink]],\"Book Weblink\")","v":"Book Weblink"},null,"KidHaven Publishing","eBook",1,"2019","January 2019",null,null,"Author","Joanna Brundle","5.1","0.5",null,null,"J",null,"Grade 2","Grade 1 - 3","Readers are introduced to the different annual festivals, holidays, and events held around the world as they learn what it's like to celebrate other cultures. This exploration of celebrations in other countries teaches the traditions and values of different groups of people, helping young readers broaden their worldview. The importance of various celebrations is explained in this engaging, age-appropriate text that encourages a deeper appreciation of diversity. Detailed fact boxes, a concise glossary, and striking, full-color photographs enrich the content, which encourages readers to look beyond the curriculum and develop critical-thinking skills.","English",25.6,20.48,"394.26--dc23","24 pp.","https://greenhavenpublishing.com/9781534528468",null,{"$f":"Table1[[#This Row],['# of Books]]*Table1[[#This Row],[QTY]]","v":0},{"$f":"Table1[[#This Row],[QTY]]*Table1[[#This Row],[School & Library Price]]","v":0}]
[null,null,null,null,37,"Social Studies","A Look at Life Around the World","Families","978-1-5345-2833-8",{"$f":"HYPERLINK(Table1[[#This Row],[eCommerce Hyperlink]],\"Book Weblink\")","v":"Book Weblink"},null,"KidHaven Publishing","Library Bound Book",1,"2019","January 2019","Library","8.500 X 8.500","Author","Joanna Brundle","4.8","0.5",null,null,"J",null,"Grade 2","Grade 1 - 3","Families living in different countries have unique cultural traditions and customs setting them apart based on what area of the world they live in. Readers expand their knowledge of the many family dynamics that can be seen around the world and how family members from various nations interact in their everyday lives. In addition to the well-researched and age-appropriate text, engaging fact boxes, a helpful glossary, and vibrant, full-color photographs provide extra insight into this essential elementary curriculum topic. Readers develop a more global point of view as they compare and contrast their own families with families around the world.","English",25.6,20.48,"306.85--dc23","24 pp.","https://greenhavenpublishing.com/9781534528338",null,{"$f":"Table1[[#This Row],['# of Books]]*Table1[[#This Row],[QTY]]","v":0},{"$f":"Table1[[#This Row],[QTY]]*Table1[[#This Row],[School & Library Price]]","v":0}]
[null,null,null,null,37,"Social Studies","A Look at Life Around the World","Families","978-1-5345-2834-5",{"$f":"HYPERLINK(Table1[[#This Row],[eCommerce Hyperlink]],\"Book Weblink\")","v":"Book Weblink"},null,"KidHaven Publishing","eBook",1,"2019","January 2019",null,null,"Author","Joanna Brundle","4.8","0.5",null,null,"J",null,"Grade 2","Grade 1 - 3","Families living in different countries have unique cultural traditions and customs setting them apart based on what area of the world they live in. Readers expand their knowledge of the many family dynamics that can be seen around the world and how family members from various nations interact in their everyday lives. In addition to the well-researched and age-appropriate text, engaging fact boxes, a helpful glossary, and vibrant, full-color photographs provide extra insight into this essential elementary curriculum topic. Readers develop a more global point of view as they compare and contrast their own families with families around the world.","English",25.6,20.48,"306.85--dc23","24 pp.","https://greenhavenpublishing.com/9781534528345",null,{"$f":"Table1[[#This Row],['# of Books]]*Table1[[#This Row],[QTY]]","v":0},{"$f":"Table1[[#This Row],[QTY]]*Table1[[#This Row],[School & Library Price]]","v":0}]
[null,null,null,null,37,"Social Studies","A Look at Life Around the World","Homes","978-1-5345-2853-6",{"$f":"HYPERLINK(Table1[[#This Row],[eCommerce Hyperlink]],\"Book Weblink\")","v":"Book Weblink"},null,"KidHaven Publishing","Library Bound Book",1,"2019","January 2019","Library","8.500 X 8.500","Author","Joanna Brundle","4.5","0.5",null,null,"J",null,"Grade 2","Grade 1 - 3","The way a home is constructed can be determined by the climate conditions, the amount of people living in it, and what materials are available in an area. As readers are exposed to different living environments of people around the world, they develop an expanded worldview. They also learn to compare and contrast their homes with those of people in other countries. Captivating, full-color photographs, insightful fact boxes, and a detailed glossary provide extra insight for readers looking to take a trip around the world with each turn of the page.","English",25.6,20.48,"392.3'6--dc23","24 pp.","https://greenhavenpublishing.com/9781534528536",null,{"$f":"Table1[[#This Row],['# of Books]]*Table1[[#This Row],[QTY]]","v":0},{"$f":"Table1[[#This Row],[QTY]]*Table1[[#This Row],[School & Library Price]]","v":0}]
[null,null,null,null,37,"Social Studies","A Look at Life Around the World","Homes","978-1-5345-2854-3",{"$f":"HYPERLINK(Table1[[#This Row],[eCommerce Hyperlink]],\"Book Weblink\")","v":"Book Weblink"},null,"KidHaven Publishing","eBook",1,"2019","January 2019",null,null,"Author","Joanna Brundle","4.5","0.5",null,null,"J",null,"Grade 2","Grade 1 - 3","The way a home is constructed can be determined by the climate conditions, the amount of people living in it, and what materials are available in an area. As readers are exposed to different living environments of people around the world, they develop an expanded worldview. They also learn to compare and contrast their homes with those of people in other countries. Captivating, full-color photographs, insightful fact boxes, and a detailed glossary provide extra insight for readers looking to take a trip around the world with each turn of the page.","English",25.6,20.48,"392.3'6--dc23","24 pp.","https://greenhavenpublishing.com/9781534528543",null,{"$f":"Table1[[#This Row],['# of Books]]*Table1[[#This Row],[QTY]]","v":0},{"$f":"Table1[[#This Row],[QTY]]*Table1[[#This Row],[School & Library Price]]","v":0}]
[null,null,null,null,37,"Social Studies","A Look at Life Around the World","Jobs","978-1-5345-2849-9",{"$f":"HYPERLINK(Table1[[#This Row],[eCommerce Hyperlink]],\"Book Weblink\")","v":"Book Weblink"},null,"KidHaven Publishing","Library Bound Book",1,"2019","January 2019","Library","8.500 X 8.500","Author","Joanna Brundle","4.4","0.5",null,null,"J",null,"Grade 2","Grade 1 - 3","People are presented with different career opportunities depending on the area of the world they live in. Some regions employ farmers, while others are filled with office workers. Readers are exposed to the similarities and differences in the kinds of jobs available around the world. They are encouraged through the well-researched main text, engaging fact boxes, and full-color photographs to compare and contrast life in different countries, which sharpens crucial critical-thinking skills. This multicultural text also enhances important elementary curriculum topics and strengthens readers' appreciation of global diversity.","English",25.6,20.48,"331.702--dc23","24 pp.","https://greenhavenpublishing.com/9781534528499",null,{"$f":"Table1[[#This Row],['# of Books]]*Table1[[#This Row],[QTY]]","v":0},{"$f":"Table1[[#This Row],[QTY]]*Table1[[#This Row],[School & Library Price]]","v":0}]
[null,null,null,null,37,"Social Studies","A Look at Life Around the World","Jobs","978-1-5345-2850-5",{"$f":"HYPERLINK(Table1[[#This Row],[eCommerce Hyperlink]],\"Book Weblink\")","v":"Book Weblink"},null,"KidHaven Publishing","eBook",1,"2019","January 2019",null,null,"Author","Joanna Brundle","4.4","0.5",null,null,"J",null,"Grade 2","Grade 1 - 3","People are presented with different career opportunities depending on the area of the world they live in. Some regions employ farmers, while others are filled with office workers. Readers are exposed to the similarities and differences in the kinds of jobs available around the world. They are encouraged through the well-researched main text, engaging fact boxes, and full-color photographs to compare and contrast life in different countries, which sharpens crucial critical-thinking skills. This multicultural text also enhances important elementary curriculum topics and strengthens readers' appreciation of global diversity.","English",25.6,20.48,"331.702--dc23","24 pp.","https://greenhavenpublishing.com/9781534528505",null,{"$f":"Table1[[#This Row],['# of Books]]*Table1[[#This Row],[QTY]]","v":0},{"$f":"Table1[[#This Row],[QTY]]*Table1[[#This Row],[School & Library Price]]","v":0}]
[null,null,null,null,37,"Social Studies","A Look at Life Around the World","Play","978-1-5345-2841-3",{"$f":"HYPERLINK(Table1[[#This Row],[eCommerce Hyperlink]],\"Book Weblink\")","v":"Book Weblink"},null,"KidHaven Publishing","Library Bound Book",1,"2019","January 2019","Library","8.500 X 8.500","Author","Joanna Brundle","4.2","0.5",null,null,"J",null,"Grade 2","Grade 1 - 3","All children love to play. How does playtime differ for children from different countries? How is it the same? Readers are exposed to a wide range of interesting sports and games played in various countries around the world. Learning about these activities enhances knowledge of other cultures and encourages readers to appreciate differences but also look for common ground. This relevant critical-thinking exercise also complements elementary curricula and is enhanced by fact boxes and relatable, full-color photographs of children at play around the world.","English",25.6,20.48,"790.1--dc23","24 pp.","https://greenhavenpublishing.com/9781534528413",null,{"$f":"Table1[[#This Row],['# of Books]]*Table1[[#This Row],[QTY]]","v":0},{"$f":"Table1[[#This Row],[QTY]]*Table1[[#This Row],[School & Library Price]]","v":0}]
[null,null,null,null,37,"Social Studies","A Look at Life Around the World","Play","978-1-5345-2842-0",{"$f":"HYPERLINK(Table1[[#This Row],[eCommerce Hyperlink]],\"Book Weblink\")","v":"Book Weblink"},null,"KidHaven Publishing","eBook",1,"2019","January 2019",null,null,"Author","Joanna Brundle","4.2","0.5",null,null,"J",null,"Grade 2","Grade 1 - 3","All children love to play. How does playtime differ for children from different countries? How is it the same? Readers are exposed to a wide range of interesting sports and games played in various countries around the world. Learning about these activities enhances knowledge of other cultures and encourages readers to appreciate differences but also look for common ground. This relevant critical-thinking exercise also complements elementary curricula and is enhanced by fact boxes and relatable, full-color photographs of children at play around the world.","English",25.6,20.48,"790.1--dc23","24 pp.","https://greenhavenpublishing.com/9781534528420",null,{"$f":"Table1[[#This Row],['# of Books]]*Table1[[#This Row],[QTY]]","v":0},{"$f":"Table1[[#This Row],[QTY]]*Table1[[#This Row],[School & Library Price]]","v":0}]
[null,null,null,null,37,"Social Studies","A Look at Life Around the World","Schools","978-1-5345-2837-6",{"$f":"HYPERLINK(Table1[[#This Row],[eCommerce Hyperlink]],\"Book Weblink\")","v":"Book Weblink"},null,"KidHaven Publishing","Library Bound Book",1,"2019","January 2019","Library","8.500 X 8.500","Author","Joanna Brundle","4.6","0.5",null,null,"J",null,"Grade 2","Grade 1 - 3","What is a regular day like at school in Japan? At what age do children start going to school in Finland? Questions such as these are answered for readers curious about the ways kids learn in different countries. This volume allows students to sharpen their critical-thinking skills, as they are invited to compare and contrast their own lives as students to the lives of students from other parts of the world. Insightful fact boxes, an accessible glossary, and eye-catching, full-color photographs work with the age-appropriate text to enhance multicultural curriculum topics.","English",25.6,20.48,"371--dc23","24 pp.","https://greenhavenpublishing.com/9781534528376",null,{"$f":"Table1[[#This Row],['# of Books]]*Table1[[#This Row],[QTY]]","v":0},{"$f":"Table1[[#This Row],[QTY]]*Table1[[#This Row],[School & Library Price]]","v":0}]
[null,null,null,null,37,"Social Studies","A Look at Life Around the World","Schools","978-1-5345-2838-3",{"$f":"HYPERLINK(Table1[[#This Row],[eCommerce Hyperlink]],\"Book Weblink\")","v":"Book Weblink"},null,"KidHaven Publishing","eBook",1,"2019","January 2019",null,null,"Author","Joanna Brundle","4.6","0.5",null,null,"J",null,"Grade 2","Grade 1 - 3","What is a regular day like at school in Japan? At what age do children start going to school in Finland? Questions such as these are answered for readers curious about the ways kids learn in different countries. This volume allows students to sharpen their critical-thinking skills, as they are invited to compare and contrast their own lives as students to the lives of students from other parts of the world. Insightful fact boxes, an accessible glossary, and eye-catching, full-color photographs work with the age-appropriate text to enhance multicultural curriculum topics.","English",25.6,20.48,"371--dc23","24 pp.","https://greenhavenpublishing.com/9781534528383",null,{"$f":"Table1[[#This Row],['# of Books]]*Table1[[#This Row],[QTY]]","v":0},{"$f":"Table1[[#This Row],[QTY]]*Table1[[#This Row],[School & Library Price]]","v":0}]
[null,null,null,null,37,"Social Studies","Maps and Mapping","Maps and Mapping","978-1-5345-3044-7",{"$f":"HYPERLINK(Table1[[#This Row],[eCommerce Hyperlink]],\"Book Weblink\")","v":"Book Weblink"},null,"KidHaven Publishing","Library Set",6,"2020","August 2019","Library","8.500 X 11.00",null,null,null,null,null,null,null,null,"Grade 4","Grade 3 - 5","Maps are most commonly used to display specific towns and cities, geographic landmarks, and vast oceans. However, they can also show other important features, such as weather patterns, populations, and trade. Readers discover the value in learning how to utilize maps to find useful information as they explore many clear examples of different kinds of maps. The accessible main text encourages readers to remain curious about world geography and other essential areas of knowledge. Helpful diagrams, detailed graphic organizers, insightful fact boxes, and full-color photographs guide readers as they learn the important life skill of understanding maps. Features include: Supports social studies and science curriculum topics. Design elements and colorful maps grab readers' attention and appeal to visual learners. Carefully chosen topics with global focus help expand readers' knowledge of the world.","English",169.5,135.6,null,"32 pp.","https://greenhavenpublishing.com/9781534530447",null,{"$f":"Table1[[#This Row],['# of Books]]*Table1[[#This Row],[QTY]]","v":0},{"$f":"Table1[[#This Row],[QTY]]*Table1[[#This Row],[School & Library Price]]","v":0}]
[null,null,null,null,37,"Social Studies","Maps and Mapping","Mapping Money and Trade","978-1-5345-3023-2",{"$f":"HYPERLINK(Table1[[#This Row],[eCommerce Hyperlink]],\"Book Weblink\")","v":"Book Weblink"},null,"KidHaven Publishing","Library Bound Book",1,"2020","August 2019","Library","8.500 X 11.00","Author","Madeline Tyler",null,null,null,null,"R",null,"Grade 4","Grade 3 - 5","Learning how to read all different kinds of maps is a valuable skill. There are maps that depict different natural landforms, groups of people, weather patterns, and towns and cities. Money and trade can also be shown on maps. Readers gain knowledge about economics through this creative look at maps that deal with these concepts. Concise text makes this subject easy to understand. The detailed glossary, helpful fact boxes, useful diagrams and graphic organizers, and bright, full-color examples of maps enhance this reading experience.","English",28.25,22.6,"382'.09--dc23","32 pp.","https://greenhavenpublishing.com/9781534530232",null,{"$f":"Table1[[#This Row],['# of Books]]*Table1[[#This Row],[QTY]]","v":0},{"$f":"Table1[[#This Row],[QTY]]*Table1[[#This Row],[School & Library Price]]","v":0}]
[null,null,null,null,37,"Social Studies","Maps and Mapping","Mapping Money and Trade","978-1-5345-3106-2",{"$f":"HYPERLINK(Table1[[#This Row],[eCommerce Hyperlink]],\"Book Weblink\")","v":"Book Weblink"},null,"KidHaven Publishing","eBook",1,"2020","August 2019",null,null,"Author","Madeline Tyler",null,null,null,null,"R",null,"Grade 4","Grade 3 - 5","Learning how to read all different kinds of maps is a valuable skill. There are maps that depict different natural landforms, groups of people, weather patterns, and towns and cities. Money and trade can also be shown on maps. Readers gain knowledge about economics through this creative look at maps that deal with these concepts. Concise text makes this subject easy to understand. The detailed glossary, helpful fact boxes, useful diagrams and graphic organizers, and bright, full-color examples of maps enhance this reading experience.","English",28.25,22.6,"382'.09--dc23","32 pp.","https://greenhavenpublishing.com/9781534531062",null,{"$f":"Table1[[#This Row],['# of Books]]*Table1[[#This Row],[QTY]]","v":0},{"$f":"Table1[[#This Row],[QTY]]*Table1[[#This Row],[School & Library Price]]","v":0}]
[null,null,null,null,37,"Social Studies","Maps and Mapping","Mapping Oceans","978-1-5345-3025-6",{"$f":"HYPERLINK(Table1[[#This Row],[eCommerce Hyperlink]],\"Book Weblink\")","v":"Book Weblink"},null,"KidHaven Publishing","Library Bound Book",1,"2020","August 2019","Library","8.500 X 11.00","Author","Alex Brinded",null,null,null,null,"R",null,"Grade 4","Grade 3 - 5","Readers learn the value of knowing how to read maps in this resourceful text about a fascinating subject. Maps of oceans reveal important details about a part of the planet humans still know so little about. As readers learn about the creation and interpretation of maps of the ocean, they're introduced to essential science curriculum topics in a fun way. In addition to the accessible and age-appropriate main text, useful diagrams and graphic organizers, informational fact boxes, a detailed glossary, and stunning visual examples of maps spark readers' interest in looking more closely at the world's oceans.","English",28.25,22.6,"551.46--dc23","32 pp.","https://greenhavenpublishing.com/9781534530256",null,{"$f":"Table1[[#This Row],['# of Books]]*Table1[[#This Row],[QTY]]","v":0},{"$f":"Table1[[#This Row],[QTY]]*Table1[[#This Row],[School & Library Price]]","v":0}]
[null,null,null,null,37,"Social Studies","Maps and Mapping","Mapping Oceans","978-1-5345-3108-6",{"$f":"HYPERLINK(Table1[[#This Row],[eCommerce Hyperlink]],\"Book Weblink\")","v":"Book Weblink"},null,"KidHaven Publishing","eBook",1,"2020","August 2019",null,null,"Author","Alex Brinded",null,null,null,null,"R",null,"Grade 4","Grade 3 - 5","Readers learn the value of knowing how to read maps in this resourceful text about a fascinating subject. Maps of oceans reveal important details about a part of the planet humans still know so little about. As readers learn about the creation and interpretation of maps of the ocean, they're introduced to essential science curriculum topics in a fun way. In addition to the accessible and age-appropriate main text, useful diagrams and graphic organizers, informational fact boxes, a detailed glossary, and stunning visual examples of maps spark readers' interest in looking more closely at the world's oceans.","English",28.25,22.6,"551.46--dc23","32 pp.","https://greenhavenpublishing.com/9781534531086",null,{"$f":"Table1[[#This Row],['# of Books]]*Table1[[#This Row],[QTY]]","v":0},{"$f":"Table1[[#This Row],[QTY]]*Table1[[#This Row],[School & Library Price]]","v":0}]
[null,null,null,null,37,"Social Studies","Maps and Mapping","Mapping People","978-1-5345-3022-5",{"$f":"HYPERLINK(Table1[[#This Row],[eCommerce Hyperlink]],\"Book Weblink\")","v":"Book Weblink"},null,"KidHaven Publishing","Library Bound Book",1,"2020","August 2019","Library","8.500 X 11.00","Author","Madeline Tyler",null,null,null,null,"R",null,"Grade 4","Grade 3 - 5","Some maps only show us where different locations are, but others also deal with the population in these locations. In this resourceful guide to mapping people, readers learn how to decipher and create these kinds of maps. Helpful diagrams, informational fact boxes, a detailed glossary, useful graphic organizers, and vivid, full-color examples of maps further expand readers' understanding of this essential social studies curriculum topic. The focus of this volume is also meant to help young readers gain more knowledge about diversity and the many ways that it can be shown.","English",28.25,22.6,"300.22'3--dc23","32 pp.","https://greenhavenpublishing.com/9781534530225",null,{"$f":"Table1[[#This Row],['# of Books]]*Table1[[#This Row],[QTY]]","v":0},{"$f":"Table1[[#This Row],[QTY]]*Table1[[#This Row],[School & Library Price]]","v":0}]
[null,null,null,null,37,"Social Studies","Maps and Mapping","Mapping People","978-1-5345-3105-5",{"$f":"HYPERLINK(Table1[[#This Row],[eCommerce Hyperlink]],\"Book Weblink\")","v":"Book Weblink"},null,"KidHaven Publishing","eBook",1,"2020","August 2019",null,null,"Author","Madeline Tyler",null,null,null,null,"R",null,"Grade 4","Grade 3 - 5","Some maps only show us where different locations are, but others also deal with the population in these locations. In this resourceful guide to mapping people, readers learn how to decipher and create these kinds of maps. Helpful diagrams, informational fact boxes, a detailed glossary, useful graphic organizers, and vivid, full-color examples of maps further expand readers' understanding of this essential social studies curriculum topic. The focus of this volume is also meant to help young readers gain more knowledge about diversity and the many ways that it can be shown.","English",28.25,22.6,"300.22'3--dc23","32 pp.","https://greenhavenpublishing.com/9781534531055",null,{"$f":"Table1[[#This Row],['# of Books]]*Table1[[#This Row],[QTY]]","v":0},{"$f":"Table1[[#This Row],[QTY]]*Table1[[#This Row],[School & Library Price]]","v":0}]
[null,null,null,null,37,"Social Studies","Maps and Mapping","Mapping Physical Geography","978-1-5345-3021-8",{"$f":"HYPERLINK(Table1[[#This Row],[eCommerce Hyperlink]],\"Book Weblink\")","v":"Book Weblink"},null,"KidHaven Publishing","Library Bound Book",1,"2020","August 2019","Library","8.500 X 11.00","Author","Alex Brinded",null,null,null,null,"R",null,"Grade 4","Grade 3 - 5","Physical geography is a common feature shown on maps, and it's important for readers to know how to interpret maps that depict the natural world around them. From the informational main text, they gain knowledge of what various symbols mean on a map and how to both read and create maps that show physical geography. Eye-catching design elements and colorful map examples enhance this learning experience for readers. Fun fact boxes, detailed graphic organizers, useful diagrams, and a helpful glossary also add extra insight into this topic that reflects aspects of both social studies and science curricula.","English",28.25,22.6,"551.43'2--dc23","32 pp.","https://greenhavenpublishing.com/9781534530218",null,{"$f":"Table1[[#This Row],['# of Books]]*Table1[[#This Row],[QTY]]","v":0},{"$f":"Table1[[#This Row],[QTY]]*Table1[[#This Row],[School & Library Price]]","v":0}]
[null,null,null,null,37,"Social Studies","Maps and Mapping","Mapping Physical Geography","978-1-5345-3104-8",{"$f":"HYPERLINK(Table1[[#This Row],[eCommerce Hyperlink]],\"Book Weblink\")","v":"Book Weblink"},null,"KidHaven Publishing","eBook",1,"2020","August 2019",null,null,"Author","Alex Brinded",null,null,null,null,"R",null,"Grade 4","Grade 3 - 5","Physical geography is a common feature shown on maps, and it's important for readers to know how to interpret maps that depict the natural world around them. From the informational main text, they gain knowledge of what various symbols mean on a map and how to both read and create maps that show physical geography. Eye-catching design elements and colorful map examples enhance this learning experience for readers. Fun fact boxes, detailed graphic organizers, useful diagrams, and a helpful glossary also add extra insight into this topic that reflects aspects of both social studies and science curricula.","English",28.25,22.6,"551.43'2--dc23","32 pp.","https://greenhavenpublishing.com/9781534531048",null,{"$f":"Table1[[#This Row],['# of Books]]*Table1[[#This Row],[QTY]]","v":0},{"$f":"Table1[[#This Row],[QTY]]*Table1[[#This Row],[School & Library Price]]","v":0}]
[null,null,null,null,37,"Social Studies","Maps and Mapping","Mapping the Weather","978-1-5345-3024-9",{"$f":"HYPERLINK(Table1[[#This Row],[eCommerce Hyperlink]],\"Book Weblink\")","v":"Book Weblink"},null,"KidHaven Publishing","Library Bound Book",1,"2020","August 2019","Library","8.500 X 11.00","Author","John Wood",null,null,null,null,"R",null,"Grade 4","Grade 3 - 5","Many maps present weather patterns, which can aid in helping people predict hurricanes, tornadoes, tsunamis, and other forms of extreme weather. These maps can help people understand the normal patterns of everyday weather as well. Readers are introduced to these kinds of weather maps through accessible main text. Detailed diagrams, useful graphic organizers, interesting fact boxes, and full-color examples of maps serve as additional resources to help readers understand this science and social studies curriculum topic.","English",28.25,22.6,"551.5--dc23","32 pp.","https://greenhavenpublishing.com/9781534530249",null,{"$f":"Table1[[#This Row],['# of Books]]*Table1[[#This Row],[QTY]]","v":0},{"$f":"Table1[[#This Row],[QTY]]*Table1[[#This Row],[School & Library Price]]","v":0}]
[null,null,null,null,37,"Social Studies","Maps and Mapping","Mapping the Weather","978-1-5345-3107-9",{"$f":"HYPERLINK(Table1[[#This Row],[eCommerce Hyperlink]],\"Book Weblink\")","v":"Book Weblink"},null,"KidHaven Publishing","eBook",1,"2020","August 2019",null,null,"Author","John Wood",null,null,null,null,"R",null,"Grade 4","Grade 3 - 5","Many maps present weather patterns, which can aid in helping people predict hurricanes, tornadoes, tsunamis, and other forms of extreme weather. These maps can help people understand the normal patterns of everyday weather as well. Readers are introduced to these kinds of weather maps through accessible main text. Detailed diagrams, useful graphic organizers, interesting fact boxes, and full-color examples of maps serve as additional resources to help readers understand this science and social studies curriculum topic.","English",28.25,22.6,"551.5--dc23","32 pp.","https://greenhavenpublishing.com/9781534531079",null,{"$f":"Table1[[#This Row],['# of Books]]*Table1[[#This Row],[QTY]]","v":0},{"$f":"Table1[[#This Row],[QTY]]*Table1[[#This Row],[School & Library Price]]","v":0}]
[null,null,null,null,37,"Social Studies","Maps and Mapping","Mapping Towns and Cities","978-1-5345-3020-1",{"$f":"HYPERLINK(Table1[[#This Row],[eCommerce Hyperlink]],\"Book Weblink\")","v":"Book Weblink"},null,"KidHaven Publishing","Library Bound Book",1,"2020","August 2019","Library","8.500 X 11.00","Author, Author","Holly Duhig, Madeline Tyler",null,null,null,null,"R",null,"Grade 4","Grade 3 - 5","Maps are used to help guide us to where we want to go and to help us learn about new places. Readers learn how to utilize maps of towns and cities in this age-appropriate and accessible resource. They discover the value of learning how to read a map and gain confidence from practicing that essential life skill. In addition to the useful main text, detailed diagrams, interesting fact boxes, helpful graphic organizers, a full glossary, and vibrant, full-color examples of maps aid readers in understanding this important social studies curriculum topic.","English",28.25,22.6,"307.76--dc23","32 pp.","https://greenhavenpublishing.com/9781534530201",null,{"$f":"Table1[[#This Row],['# of Books]]*Table1[[#This Row],[QTY]]","v":0},{"$f":"Table1[[#This Row],[QTY]]*Table1[[#This Row],[School & Library Price]]","v":0}]
[null,null,null,null,37,"Social Studies","Maps and Mapping","Mapping Towns and Cities","978-1-5345-3103-1",{"$f":"HYPERLINK(Table1[[#This Row],[eCommerce Hyperlink]],\"Book Weblink\")","v":"Book Weblink"},null,"KidHaven Publishing","eBook",1,"2020","August 2019",null,null,"Author, Author","Holly Duhig, Madeline Tyler",null,null,null,null,"R",null,"Grade 4","Grade 3 - 5","Maps are used to help guide us to where we want to go and to help us learn about new places. Readers learn how to utilize maps of towns and cities in this age-appropriate and accessible resource. They discover the value of learning how to read a map and gain confidence from practicing that essential life skill. In addition to the useful main text, detailed diagrams, interesting fact boxes, helpful graphic organizers, a full glossary, and vibrant, full-color examples of maps aid readers in understanding this important social studies curriculum topic.","English",28.25,22.6,"307.76--dc23","32 pp.","https://greenhavenpublishing.com/9781534531031",null,{"$f":"Table1[[#This Row],['# of Books]]*Table1[[#This Row],[QTY]]","v":0},{"$f":"Table1[[#This Row],[QTY]]*Table1[[#This Row],[School & Library Price]]","v":0}]
[null,null,null,null,37,"Sports","Play Like a Girl","Play Like a Girl","978-1-5345-3045-4",{"$f":"HYPERLINK(Table1[[#This Row],[eCommerce Hyperlink]],\"Book Weblink\")","v":"Book Weblink"},null,"KidHaven Publishing","Library Set",6,"2020","August 2019","Library","8.500 X 11.00",null,null,null,null,null,null,null,null,"Grade 3 - 4","Grade 2 - 5","As the number of girls playing sports continues to rise, young female athletes are in need of empowering and informational content created with them in mind. Young readers can dive into the fast-paced world of sports as they learn basic rules and fun facts about soccer, basketball, tennis, volleyball, hockey, and track and field. In addition, informational diagrams, helpful graphic organizers, and eye-catching, full-color photographs are meant to spark an interest in young athletes, especially girls who enjoy playing sports and want to learn more about this fun topic. Features include: Encourages acceptance of female athletes among both boys and girls. Helps readers decide what sports would be right for them to try based on their own interests and talents. Supports an active and healthy lifestyle. Appeals to visual learners and allows readers to become better athletes and more informed sports fans.","English",169.5,135.6,null,"32 pp.","https://greenhavenpublishing.com/9781534530454",null,{"$f":"Table1[[#This Row],['# of Books]]*Table1[[#This Row],[QTY]]","v":0},{"$f":"Table1[[#This Row],[QTY]]*Table1[[#This Row],[School & Library Price]]","v":0}]
[null,null,null,null,37,"Sports","Play Like a Girl","Basketball","978-1-5345-3007-2",{"$f":"HYPERLINK(Table1[[#This Row],[eCommerce Hyperlink]],\"Book Weblink\")","v":"Book Weblink"},null,"KidHaven Publishing","Library Bound Book",1,"2020","August 2019","Library","8.500 X 11.00","Author","Emilie Dufresne","5.9","0.5",null,null,"O",null,"Grade 3 - 4","Grade 2 - 5","There has been a rise in young female athletes showing an interest in playing particular sports, such as basketball. This comprehensive guide, created specifically for them, presents the basic rules of the sport, different positions on the court, safety tips, and other beneficial information to help them become a successful team player. This age-appropriate and accessible text also promotes acceptance of female athletes among both boys and girls. Helpful diagrams, a thorough glossary, detailed graphic organizers, and bright, full-color photographs enhance this fun topic for avid sports fans.","English",28.25,22.6,"796.323--dc23","32 pp.","https://greenhavenpublishing.com/9781534530072",null,{"$f":"Table1[[#This Row],['# of Books]]*Table1[[#This Row],[QTY]]","v":0},{"$f":"Table1[[#This Row],[QTY]]*Table1[[#This Row],[School & Library Price]]","v":0}]
[null,null,null,null,37,"Sports","Play Like a Girl","Basketball","978-1-5345-3092-8",{"$f":"HYPERLINK(Table1[[#This Row],[eCommerce Hyperlink]],\"Book Weblink\")","v":"Book Weblink"},null,"KidHaven Publishing","eBook",1,"2020","August 2019",null,null,"Author","Emilie Dufresne","5.9","0.5",null,null,"O",null,"Grade 3 - 4","Grade 2 - 5","There has been a rise in young female athletes showing an interest in playing particular sports, such as basketball. This comprehensive guide, created specifically for them, presents the basic rules of the sport, different positions on the court, safety tips, and other beneficial information to help them become a successful team player. This age-appropriate and accessible text also promotes acceptance of female athletes among both boys and girls. Helpful diagrams, a thorough glossary, detailed graphic organizers, and bright, full-color photographs enhance this fun topic for avid sports fans.","English",28.25,22.6,"796.323--dc23","32 pp.","https://greenhavenpublishing.com/9781534530928",null,{"$f":"Table1[[#This Row],['# of Books]]*Table1[[#This Row],[QTY]]","v":0},{"$f":"Table1[[#This Row],[QTY]]*Table1[[#This Row],[School & Library Price]]","v":0}]
[null,null,null,null,37,"Sports","Play Like a Girl","Field Hockey","978-1-5345-3009-6",{"$f":"HYPERLINK(Table1[[#This Row],[eCommerce Hyperlink]],\"Book Weblink\")","v":"Book Weblink"},null,"KidHaven Publishing","Library Bound Book",1,"2020","August 2019","Library","8.500 X 11.00","Author","Emilie Dufresne","6.1","0.5",null,null,"O",null,"Grade 3 - 4","Grade 2 - 5","There has been an increase in young girls playing hockey, and field hockey is a very popular version of this sport for girls to play. This essential guide introduces readers to important aspects of the game of field hockey, from the rules and positions to safety tips and other fun facts about this fast-paced sport and the people who play it. Informational diagrams, fact boxes, a detailed glossary, and vivid, full-color photographs help young readers discover all of the benefits that come with playing field hockey.","English",28.25,22.6,"796.355--dc23","32 pp.","https://greenhavenpublishing.com/9781534530096",null,{"$f":"Table1[[#This Row],['# of Books]]*Table1[[#This Row],[QTY]]","v":0},{"$f":"Table1[[#This Row],[QTY]]*Table1[[#This Row],[School & Library Price]]","v":0}]
[null,null,null,null,37,"Sports","Play Like a Girl","Field Hockey","978-1-5345-3094-2",{"$f":"HYPERLINK(Table1[[#This Row],[eCommerce Hyperlink]],\"Book Weblink\")","v":"Book Weblink"},null,"KidHaven Publishing","eBook",1,"2020","August 2019",null,null,"Author","Emilie Dufresne","6.1","0.5",null,null,"O",null,"Grade 3 - 4","Grade 2 - 5","There has been an increase in young girls playing hockey, and field hockey is a very popular version of this sport for girls to play. This essential guide introduces readers to important aspects of the game of field hockey, from the rules and positions to safety tips and other fun facts about this fast-paced sport and the people who play it. Informational diagrams, fact boxes, a detailed glossary, and vivid, full-color photographs help young readers discover all of the benefits that come with playing field hockey.","English",28.25,22.6,"796.355--dc23","32 pp.","https://greenhavenpublishing.com/9781534530942",null,{"$f":"Table1[[#This Row],['# of Books]]*Table1[[#This Row],[QTY]]","v":0},{"$f":"Table1[[#This Row],[QTY]]*Table1[[#This Row],[School & Library Price]]","v":0}]
[null,null,null,null,37,"Sports","Play Like a Girl","Soccer","978-1-5345-3006-5",{"$f":"HYPERLINK(Table1[[#This Row],[eCommerce Hyperlink]],\"Book Weblink\")","v":"Book Weblink"},null,"KidHaven Publishing","Library Bound Book",1,"2020","August 2019","Library","8.500 X 11.00","Author","Emilie Dufresne","6.1","0.5",null,null,"O",null,"Grade 3 - 4","Grade 2 - 5","As more girls are becoming interested in playing a variety of sports, these young female athletes are in need of a useful guide created with them in mind. This guide presents the basic rules of soccer, different player positions, safety tips, and other fun facts about this exciting sport. They will also learn the physical and mental benefits of playing a sport and the importance of being team players. A detailed glossary, helpful diagrams, eye-catching fact boxes, and vibrant, full-color photographs provide additional insight for young readers who dream of being professional soccer players.","English",28.25,22.6,"796.334--dc23","32 pp.","https://greenhavenpublishing.com/9781534530065",null,{"$f":"Table1[[#This Row],['# of Books]]*Table1[[#This Row],[QTY]]","v":0},{"$f":"Table1[[#This Row],[QTY]]*Table1[[#This Row],[School & Library Price]]","v":0}]
[null,null,null,null,37,"Sports","Play Like a Girl","Soccer","978-1-5345-3091-1",{"$f":"HYPERLINK(Table1[[#This Row],[eCommerce Hyperlink]],\"Book Weblink\")","v":"Book Weblink"},null,"KidHaven Publishing","eBook",1,"2020","August 2019",null,null,"Author","Emilie Dufresne","6.1","0.5",null,null,"O",null,"Grade 3 - 4","Grade 2 - 5","As more girls are becoming interested in playing a variety of sports, these young female athletes are in need of a useful guide created with them in mind. This guide presents the basic rules of soccer, different player positions, safety tips, and other fun facts about this exciting sport. They will also learn the physical and mental benefits of playing a sport and the importance of being team players. A detailed glossary, helpful diagrams, eye-catching fact boxes, and vibrant, full-color photographs provide additional insight for young readers who dream of being professional soccer players.","English",28.25,22.6,"796.334--dc23","32 pp.","https://greenhavenpublishing.com/9781534530911",null,{"$f":"Table1[[#This Row],['# of Books]]*Table1[[#This Row],[QTY]]","v":0},{"$f":"Table1[[#This Row],[QTY]]*Table1[[#This Row],[School & Library Price]]","v":0}]
[null,null,null,null,37,"Sports","Play Like a Girl","Tennis","978-1-5345-3011-9",{"$f":"HYPERLINK(Table1[[#This Row],[eCommerce Hyperlink]],\"Book Weblink\")","v":"Book Weblink"},null,"KidHaven Publishing","Library Bound Book",1,"2020","August 2019","Library","8.500 X 11.00","Author","Emilie Dufresne","5.9","0.5",null,null,"O",null,"Grade 3 - 4","Grade 2 - 5","Female tennis players such as Serena Williams have inspired many girls to learn more about this exciting sport. This guide allows them to do exactly that. With each turn of the page, they learn how the sport is played, how to stay safe on the court, and other fun facts about tennis. The age-appropriate main text allows them to discover how playing tennis promotes an active and healthy lifestyle and encourages the development of self-esteem. In addition, a detailed glossary, accessible graphic organizers, engaging fact boxes, and vibrant, full-color photographs provide extra insight into the fast-paced world of tennis.","English",28.25,22.6,"796.342--dc23","32 pp.","https://greenhavenpublishing.com/9781534530119",null,{"$f":"Table1[[#This Row],['# of Books]]*Table1[[#This Row],[QTY]]","v":0},{"$f":"Table1[[#This Row],[QTY]]*Table1[[#This Row],[School & Library Price]]","v":0}]
[null,null,null,null,37,"Sports","Play Like a Girl","Tennis","978-1-5345-3096-6",{"$f":"HYPERLINK(Table1[[#This Row],[eCommerce Hyperlink]],\"Book Weblink\")","v":"Book Weblink"},null,"KidHaven Publishing","eBook",1,"2020","August 2019",null,null,"Author","Emilie Dufresne","5.9","0.5",null,null,"O",null,"Grade 3 - 4","Grade 2 - 5","Female tennis players such as Serena Williams have inspired many girls to learn more about this exciting sport. This guide allows them to do exactly that. With each turn of the page, they learn how the sport is played, how to stay safe on the court, and other fun facts about tennis. The age-appropriate main text allows them to discover how playing tennis promotes an active and healthy lifestyle and encourages the development of self-esteem. In addition, a detailed glossary, accessible graphic organizers, engaging fact boxes, and vibrant, full-color photographs provide extra insight into the fast-paced world of tennis.","English",28.25,22.6,"796.342--dc23","32 pp.","https://greenhavenpublishing.com/9781534530966",null,{"$f":"Table1[[#This Row],['# of Books]]*Table1[[#This Row],[QTY]]","v":0},{"$f":"Table1[[#This Row],[QTY]]*Table1[[#This Row],[School & Library Price]]","v":0}]
[null,null,null,null,37,"Sports","Play Like a Girl","Track and Field","978-1-5345-3008-9",{"$f":"HYPERLINK(Table1[[#This Row],[eCommerce Hyperlink]],\"Book Weblink\")","v":"Book Weblink"},null,"KidHaven Publishing","Library Bound Book",1,"2020","August 2019","Library","8.500 X 11.00","Author","Emilie Dufresne","6.1","0.5",null,null,"O",null,"Grade 3 - 4","Grade 2 - 5","Over the years, female track and field stars have achieved great success and inspired young athletes to follow in their footsteps. This age-appropriate and accessible text covers the various activities included in track and field, the basic rules of each event, and useful tips on finding the event that is right for each athlete. Informative diagrams, helpful fact boxes, a detailed glossary, and creative design elements will spark young readers' interest in this fun topic, which encourages an appreciation for female athletes. Readers also learn the importance of hard work and what it means to be part of a team.","English",28.25,22.6,"796.42--dc23","32 pp.","https://greenhavenpublishing.com/9781534530089",null,{"$f":"Table1[[#This Row],['# of Books]]*Table1[[#This Row],[QTY]]","v":0},{"$f":"Table1[[#This Row],[QTY]]*Table1[[#This Row],[School & Library Price]]","v":0}]
[null,null,null,null,37,"Sports","Play Like a Girl","Track and Field","978-1-5345-3093-5",{"$f":"HYPERLINK(Table1[[#This Row],[eCommerce Hyperlink]],\"Book Weblink\")","v":"Book Weblink"},null,"KidHaven Publishing","eBook",1,"2020","August 2019",null,null,"Author","Emilie Dufresne","6.1","0.5",null,null,"O",null,"Grade 3 - 4","Grade 2 - 5","Over the years, female track and field stars have achieved great success and inspired young athletes to follow in their footsteps. This age-appropriate and accessible text covers the various activities included in track and field, the basic rules of each event, and useful tips on finding the event that is right for each athlete. Informative diagrams, helpful fact boxes, a detailed glossary, and creative design elements will spark young readers' interest in this fun topic, which encourages an appreciation for female athletes. Readers also learn the importance of hard work and what it means to be part of a team.","English",28.25,22.6,"796.42--dc23","32 pp.","https://greenhavenpublishing.com/9781534530935",null,{"$f":"Table1[[#This Row],['# of Books]]*Table1[[#This Row],[QTY]]","v":0},{"$f":"Table1[[#This Row],[QTY]]*Table1[[#This Row],[School & Library Price]]","v":0}]
[null,null,null,null,37,"Sports","Play Like a Girl","Volleyball","978-1-5345-3010-2",{"$f":"HYPERLINK(Table1[[#This Row],[eCommerce Hyperlink]],\"Book Weblink\")","v":"Book Weblink"},null,"KidHaven Publishing","Library Bound Book",1,"2020","August 2019","Library","8.500 X 11.00","Author","Emilie Dufresne","5.9","0.5",null,null,"O",null,"Grade 3 - 4","Grade 2 - 5","As the number of female athletes rises, the need for useful guides to empower and inform them also rises. This guide to the popular sport of volleyball teaches young readers the sport's rules, different player positions, safety tips, and other fun facts about this sport. Additional information is provided through interesting fact boxes, detailed graphic organizers, and a helpful glossary. Eye-catching, full-color photographs also enhance this fun topic. This exciting guide to a sport many girls play encourages the development of self-esteem, healthy habits, and teamwork on the volleyball court and off.","English",28.25,22.6,"796.325--dc23","32 pp.","https://greenhavenpublishing.com/9781534530102",null,{"$f":"Table1[[#This Row],['# of Books]]*Table1[[#This Row],[QTY]]","v":0},{"$f":"Table1[[#This Row],[QTY]]*Table1[[#This Row],[School & Library Price]]","v":0}]
[null,null,null,null,37,"Sports","Play Like a Girl","Volleyball","978-1-5345-3095-9",{"$f":"HYPERLINK(Table1[[#This Row],[eCommerce Hyperlink]],\"Book Weblink\")","v":"Book Weblink"},null,"KidHaven Publishing","eBook",1,"2020","August 2019",null,null,"Author","Emilie Dufresne","5.9","0.5",null,null,"O",null,"Grade 3 - 4","Grade 2 - 5","As the number of female athletes rises, the need for useful guides to empower and inform them also rises. This guide to the popular sport of volleyball teaches young readers the sport's rules, different player positions, safety tips, and other fun facts about this sport. Additional information is provided through interesting fact boxes, detailed graphic organizers, and a helpful glossary. Eye-catching, full-color photographs also enhance this fun topic. This exciting guide to a sport many girls play encourages the development of self-esteem, healthy habits, and teamwork on the volleyball court and off.","English",28.25,22.6,"796.325--dc23","32 pp.","https://greenhavenpublishing.com/9781534530959",null,{"$f":"Table1[[#This Row],['# of Books]]*Table1[[#This Row],[QTY]]","v":0},{"$f":"Table1[[#This Row],[QTY]]*Table1[[#This Row],[School & Library Price]]","v":0}]
[null,null,null,null,37,"Social Studies","Unlocking Ancient Civilizations","Unlocking Ancient Civilizations: Set 1","978-1-5345-2133-9",{"$f":"HYPERLINK(Table1[[#This Row],[eCommerce Hyperlink]],\"Book Weblink\")","v":"Book Weblink"},null,"KidHaven Publishing","Library Set",4,"2017","January 2017","Library","8.500 X 11.00",null,null,null,null,null,null,null,null,"Grade 4 - 5","Grade 4 - 6","The ancient civilizations that developed in Greece, Rome, Egypt, and China still hold great value for us today. For example, if you like watching the Olympic Games, you have the ancient Greeks to thank for that major world sporting event! Readers discover this and other exciting and unique aspects of ancient civilizations that helped shape the modern world. The informative text is presented in a dynamic way, with full-color photographs, as well as fact boxes and sidebars to provide additional information about life in ancient times. Readers are sure to enjoy this engaging approach to common social studies curriculum topics.","English",113,90.4,null,"32 pp.","https://greenhavenpublishing.com/9781534521339",null,{"$f":"Table1[[#This Row],['# of Books]]*Table1[[#This Row],[QTY]]","v":0},{"$f":"Table1[[#This Row],[QTY]]*Table1[[#This Row],[School & Library Price]]","v":0}]
[null,null,null,null,37,"Social Studies","Unlocking Ancient Civilizations","Ancient Egypt","978-1-5345-2027-1",{"$f":"HYPERLINK(Table1[[#This Row],[eCommerce Hyperlink]],\"Book Weblink\")","v":"Book Weblink"},null,"KidHaven Publishing","Library Bound Book",1,"2017","January 2017","Library","8.500 X 11.00","Author","George Cottrell",null,null,null,null,"R","1050L","Grade 4 - 5","Grade 4 - 6","There was more to life in ancient Egypt than building pyramids and mummifying bodies. Readers explore the complex and unique civilization that developed in ancient Egypt with a strong focus on the most exciting aspects of this common social studies curriculum topic. Engaging and informative text is presented in a fresh and fun way, featuring sidebars and fact boxes brimming with information about this important civilization. Detailed maps and colorful photographs are included to enhance readers’ experience of journeying into the past. Readers also discover the contributions made by ancient Egyptians that continue to impact our lives in the present.","English",28.25,22.6,"932","32 pp.","https://greenhavenpublishing.com/9781534520271",null,{"$f":"Table1[[#This Row],['# of Books]]*Table1[[#This Row],[QTY]]","v":0},{"$f":"Table1[[#This Row],[QTY]]*Table1[[#This Row],[School & Library Price]]","v":0}]
[null,null,null,null,37,"Social Studies","Unlocking Ancient Civilizations","Ancient Egypt","978-1-5345-2028-8",{"$f":"HYPERLINK(Table1[[#This Row],[eCommerce Hyperlink]],\"Book Weblink\")","v":"Book Weblink"},null,"KidHaven Publishing","eBook",1,"2017","January 2017",null,null,"Author","George Cottrell",null,null,null,null,"R","1050L","Grade 4 - 5","Grade 4 - 6","There was more to life in ancient Egypt than building pyramids and mummifying bodies. Readers explore the complex and unique civilization that developed in ancient Egypt with a strong focus on the most exciting aspects of this common social studies curriculum topic. Engaging and informative text is presented in a fresh and fun way, featuring sidebars and fact boxes brimming with information about this important civilization. Detailed maps and colorful photographs are included to enhance readers’ experience of journeying into the past. Readers also discover the contributions made by ancient Egyptians that continue to impact our lives in the present.","English",28.25,22.6,"932","32 pp.","https://greenhavenpublishing.com/9781534520288",null,{"$f":"Table1[[#This Row],['# of Books]]*Table1[[#This Row],[QTY]]","v":0},{"$f":"Table1[[#This Row],[QTY]]*Table1[[#This Row],[School & Library Price]]","v":0}]
[null,null,null,null,37,"Social Studies","Unlocking Ancient Civilizations","Ancient Greece","978-1-5345-2031-8",{"$f":"HYPERLINK(Table1[[#This Row],[eCommerce Hyperlink]],\"Book Weblink\")","v":"Book Weblink"},null,"KidHaven Publishing","Library Bound Book",1,"2017","January 2017","Library","8.500 X 11.00","Author","George Cottrell",null,null,"44",null,"R","1050L","Grade 4 - 5","Grade 4 - 6","Which civilization gave us the Olympic Games? It’s ancient Greece, and readers discover this and other fun facts as they explore one of the most influential ancient civilizations. As readers investigate the engaging main text, fact boxes, and sidebars, they uncover the Greek roots of theater, democracy, and philosophy, as well as many other contributions to the modern world made by the ancient Greeks. Detailed maps help readers develop their geography skills, and vivid photographs take readers into the heart of the ancient Greek world. This exciting look at a common social studies curriculum topic is sure to captivate readers.","English",28.25,22.6,"938","32 pp.","https://greenhavenpublishing.com/9781534520318",null,{"$f":"Table1[[#This Row],['# of Books]]*Table1[[#This Row],[QTY]]","v":0},{"$f":"Table1[[#This Row],[QTY]]*Table1[[#This Row],[School & Library Price]]","v":0}]
[null,null,null,null,37,"Social Studies","Unlocking Ancient Civilizations","Ancient Greece","978-1-5345-2032-5",{"$f":"HYPERLINK(Table1[[#This Row],[eCommerce Hyperlink]],\"Book Weblink\")","v":"Book Weblink"},null,"KidHaven Publishing","eBook",1,"2017","January 2017",null,null,"Author","George Cottrell",null,null,"44",null,"R","1050L","Grade 4 - 5","Grade 4 - 6","Which civilization gave us the Olympic Games? It’s ancient Greece, and readers discover this and other fun facts as they explore one of the most influential ancient civilizations. As readers investigate the engaging main text, fact boxes, and sidebars, they uncover the Greek roots of theater, democracy, and philosophy, as well as many other contributions to the modern world made by the ancient Greeks. Detailed maps help readers develop their geography skills, and vivid photographs take readers into the heart of the ancient Greek world. This exciting look at a common social studies curriculum topic is sure to captivate readers.","English",28.25,22.6,"938","32 pp.","https://greenhavenpublishing.com/9781534520325",null,{"$f":"Table1[[#This Row],['# of Books]]*Table1[[#This Row],[QTY]]","v":0},{"$f":"Table1[[#This Row],[QTY]]*Table1[[#This Row],[School & Library Price]]","v":0}]
[null,null,null,null,37,"Social Studies","Unlocking Ancient Civilizations","Ancient Rome","978-1-5345-2035-6",{"$f":"HYPERLINK(Table1[[#This Row],[eCommerce Hyperlink]],\"Book Weblink\")","v":"Book Weblink"},null,"KidHaven Publishing","Library Bound Book",1,"2017","January 2017","Library","8.500 X 11.00","Author","George Cottrell",null,null,"44",null,"R","980L","Grade 4 - 5","Grade 4 - 6","The ancient Romans developed a civilization unlike any other. Readers discover what made ancient Rome so unique and how its influence can still be felt in the world today. The exciting text and eye-catching design enhance social studies curricula in an engaging way. Readers will want to learn even more about this fascinating civilization, which is presented to them through clear main text, informative sidebars, fun fact boxes, and colorful maps. Vibrant photographs give readers a strong visual sense of what life was like in ancient Rome and what remnants of this great civilization can still be seen today.","English",28.25,22.6,"937","32 pp.","https://greenhavenpublishing.com/9781534520356",null,{"$f":"Table1[[#This Row],['# of Books]]*Table1[[#This Row],[QTY]]","v":0},{"$f":"Table1[[#This Row],[QTY]]*Table1[[#This Row],[School & Library Price]]","v":0}]
[null,null,null,null,37,"Social Studies","Unlocking Ancient Civilizations","Ancient Rome","978-1-5345-2036-3",{"$f":"HYPERLINK(Table1[[#This Row],[eCommerce Hyperlink]],\"Book Weblink\")","v":"Book Weblink"},null,"KidHaven Publishing","eBook",1,"2017","January 2017",null,null,"Author","George Cottrell",null,null,"44",null,"R","980L","Grade 4 - 5","Grade 4 - 6","The ancient Romans developed a civilization unlike any other. Readers discover what made ancient Rome so unique and how its influence can still be felt in the world today. The exciting text and eye-catching design enhance social studies curricula in an engaging way. Readers will want to learn even more about this fascinating civilization, which is presented to them through clear main text, informative sidebars, fun fact boxes, and colorful maps. Vibrant photographs give readers a strong visual sense of what life was like in ancient Rome and what remnants of this great civilization can still be seen today.","English",28.25,22.6,"937","32 pp.","https://greenhavenpublishing.com/9781534520363",null,{"$f":"Table1[[#This Row],['# of Books]]*Table1[[#This Row],[QTY]]","v":0},{"$f":"Table1[[#This Row],[QTY]]*Table1[[#This Row],[School & Library Price]]","v":0}]
[null,null,null,null,37,"Social Studies","Unlocking Ancient Civilizations","The Shang Dynasty","978-1-5345-2039-4",{"$f":"HYPERLINK(Table1[[#This Row],[eCommerce Hyperlink]],\"Book Weblink\")","v":"Book Weblink"},null,"KidHaven Publishing","Library Bound Book",1,"2017","January 2017","Library","8.500 X 11.00","Author","George Cottrell",null,null,null,null,"R","1130L","Grade 4 - 5","Grade 4 - 6","The Shang Dynasty marked the beginning of recorded history in China. This ancient civilization has been studied by historians and archaeologists around the world, and now readers can join their ranks in uncovering fascinating facts about this dynasty. The detailed main text, fact boxes, and sidebars focus on the most exciting and extraordinary aspects of the Shang Dynasty, providing a fresh take on a familiar part of social studies curricula. Readers also develop a strong sense of geography through the use of clear maps. Full-color photographs fill each page, giving readers an up-close look at life during the Shang Dynasty.","English",28.25,22.6,"931’.02","32 pp.","https://greenhavenpublishing.com/9781534520394",null,{"$f":"Table1[[#This Row],['# of Books]]*Table1[[#This Row],[QTY]]","v":0},{"$f":"Table1[[#This Row],[QTY]]*Table1[[#This Row],[School & Library Price]]","v":0}]
[null,null,null,null,37,"Social Studies","Unlocking Ancient Civilizations","The Shang Dynasty","978-1-5345-2040-0",{"$f":"HYPERLINK(Table1[[#This Row],[eCommerce Hyperlink]],\"Book Weblink\")","v":"Book Weblink"},null,"KidHaven Publishing","eBook",1,"2017","January 2017",null,null,"Author","George Cottrell",null,null,null,null,"R","1130L","Grade 4 - 5","Grade 4 - 6","The Shang Dynasty marked the beginning of recorded history in China. This ancient civilization has been studied by historians and archaeologists around the world, and now readers can join their ranks in uncovering fascinating facts about this dynasty. The detailed main text, fact boxes, and sidebars focus on the most exciting and extraordinary aspects of the Shang Dynasty, providing a fresh take on a familiar part of social studies curricula. Readers also develop a strong sense of geography through the use of clear maps. Full-color photographs fill each page, giving readers an up-close look at life during the Shang Dynasty.","English",28.25,22.6,"931’.02","32 pp.","https://greenhavenpublishing.com/9781534520400",null,{"$f":"Table1[[#This Row],['# of Books]]*Table1[[#This Row],[QTY]]","v":0},{"$f":"Table1[[#This Row],[QTY]]*Table1[[#This Row],[School & Library Price]]","v":0}]
[null,null,null,null,37,"Social Studies","Unlocking Ancient Civilizations","Unlocking Ancient Civilizations: Set 2","978-1-5345-2961-8",{"$f":"HYPERLINK(Table1[[#This Row],[eCommerce Hyperlink]],\"Book Weblink\")","v":"Book Weblink"},null,"KidHaven Publishing","Library Set",4,"2019","January 2019","Library","8.500 X 11.00",null,null,null,null,null,null,null,null,"Grade 4 - 5","Grade 4 - 6","Have you ever wondered how people in early civilizations went about their daily lives? How did they find food to feed their families? What did they do for fun? These engaging volumes unlock the mysteries behind ancient civilizations, such as the Maya, Incas, Mesopotamians, and inhabitants of the Indus Valley. Readers will be introduced to these civilizations through detailed text that allows them to compare and contrast these different cultures and to draw parallels to the modern world. These social studies curriculum topics are enhanced through vibrant full-color photographs, informational fact boxes, detailed timelines, and helpful sidebars. Features include: Accessible maps expand readers' understanding of geography and give them a clear picture of the ancient world. Carefully chosen topics introduce readers to a variety of ancient civilizations to encourage an appreciation for diversity. Detailed photographs of artifacts, ruins, and other physical evidence left behind by ancient civilizations give readers a deeper understanding of history.","English",113,90.4,null,"32 pp.","https://greenhavenpublishing.com/9781534529618",null,{"$f":"Table1[[#This Row],['# of Books]]*Table1[[#This Row],[QTY]]","v":0},{"$f":"Table1[[#This Row],[QTY]]*Table1[[#This Row],[School & Library Price]]","v":0}]
[null,null,null,null,37,"Social Studies","Unlocking Ancient Civilizations","Ancient Mesopotamia","978-1-5345-2913-7",{"$f":"HYPERLINK(Table1[[#This Row],[eCommerce Hyperlink]],\"Book Weblink\")","v":"Book Weblink"},null,"KidHaven Publishing","Library Bound Book",1,"2019","January 2019","Library","8.500 X 11.00","Author","Madeline Tyler",null,null,null,null,"R",null,"Grade 4 - 5","Grade 4 - 6","Where was Mesopotamia located? What did ancient Mesopotamian society look like? What did the people who lived there do for fun? As readers discover the answers to these and other questions about ancient Mesopotamia, they are encouraged to see the similarities and differences between this civilization and others of the past and present. The well-researched main text exposes young people to a different culture, which is further highlighted in fact boxes and sidebars. This essential social studies curriculum topic is presented in an engaging way through exciting design elements, including timelines, maps, and historical and contemporary images.","English",28.25,22.6,"935--dc23","32 pp.","https://greenhavenpublishing.com/9781534529137",null,{"$f":"Table1[[#This Row],['# of Books]]*Table1[[#This Row],[QTY]]","v":0},{"$f":"Table1[[#This Row],[QTY]]*Table1[[#This Row],[School & Library Price]]","v":0}]
[null,null,null,null,37,"Social Studies","Unlocking Ancient Civilizations","Ancient Mesopotamia","978-1-5345-2914-4",{"$f":"HYPERLINK(Table1[[#This Row],[eCommerce Hyperlink]],\"Book Weblink\")","v":"Book Weblink"},null,"KidHaven Publishing","eBook",1,"2019","January 2019",null,null,"Author","Madeline Tyler",null,null,null,null,"R",null,"Grade 4 - 5","Grade 4 - 6","Where was Mesopotamia located? What did ancient Mesopotamian society look like? What did the people who lived there do for fun? As readers discover the answers to these and other questions about ancient Mesopotamia, they are encouraged to see the similarities and differences between this civilization and others of the past and present. The well-researched main text exposes young people to a different culture, which is further highlighted in fact boxes and sidebars. This essential social studies curriculum topic is presented in an engaging way through exciting design elements, including timelines, maps, and historical and contemporary images.","English",28.25,22.6,"935--dc23","32 pp.","https://greenhavenpublishing.com/9781534529144",null,{"$f":"Table1[[#This Row],['# of Books]]*Table1[[#This Row],[QTY]]","v":0},{"$f":"Table1[[#This Row],[QTY]]*Table1[[#This Row],[School & Library Price]]","v":0}]
[null,null,null,null,37,"Social Studies","Unlocking Ancient Civilizations","The Ancient Incas","978-1-5345-2909-0",{"$f":"HYPERLINK(Table1[[#This Row],[eCommerce Hyperlink]],\"Book Weblink\")","v":"Book Weblink"},null,"KidHaven Publishing","Library Bound Book",1,"2019","January 2019","Library","8.500 X 11.00","Author","Madeline Tyler",null,null,null,null,"R",null,"Grade 4 - 5","Grade 4 - 6","Readers are introduced to what life was like for the Incas as they explore this ancient civilization. Through detailed text that closely aligns with social studies curriculum topics, they are able to strengthen their critical-thinking skills by comparing and contrasting the lifestyle of the Incas and other ancient and modern civilizations. Helpful maps, a detailed timeline, and full-color photographs encourage readers to appreciate the diversity of other cultures and expand their worldview. Readers also find additional historical information in fact boxes and sidebars that reveal captivating stories of this advanced ancient civilization.","English",28.25,22.6,"985'.01--dc23","32 pp.","https://greenhavenpublishing.com/9781534529090",null,{"$f":"Table1[[#This Row],['# of Books]]*Table1[[#This Row],[QTY]]","v":0},{"$f":"Table1[[#This Row],[QTY]]*Table1[[#This Row],[School & Library Price]]","v":0}]
[null,null,null,null,37,"Social Studies","Unlocking Ancient Civilizations","The Ancient Incas","978-1-5345-2910-6",{"$f":"HYPERLINK(Table1[[#This Row],[eCommerce Hyperlink]],\"Book Weblink\")","v":"Book Weblink"},null,"KidHaven Publishing","eBook",1,"2019","January 2019",null,null,"Author","Madeline Tyler",null,null,null,null,"R",null,"Grade 4 - 5","Grade 4 - 6","Readers are introduced to what life was like for the Incas as they explore this ancient civilization. Through detailed text that closely aligns with social studies curriculum topics, they are able to strengthen their critical-thinking skills by comparing and contrasting the lifestyle of the Incas and other ancient and modern civilizations. Helpful maps, a detailed timeline, and full-color photographs encourage readers to appreciate the diversity of other cultures and expand their worldview. Readers also find additional historical information in fact boxes and sidebars that reveal captivating stories of this advanced ancient civilization.","English",28.25,22.6,"985'.01--dc23","32 pp.","https://greenhavenpublishing.com/9781534529106",null,{"$f":"Table1[[#This Row],['# of Books]]*Table1[[#This Row],[QTY]]","v":0},{"$f":"Table1[[#This Row],[QTY]]*Table1[[#This Row],[School & Library Price]]","v":0}]
[null,null,null,null,37,"Social Studies","Unlocking Ancient Civilizations","The Ancient Maya","978-1-5345-2905-2",{"$f":"HYPERLINK(Table1[[#This Row],[eCommerce Hyperlink]],\"Book Weblink\")","v":"Book Weblink"},null,"KidHaven Publishing","Library Bound Book",1,"2019","January 2019","Library","8.500 X 11.00","Author","Madeline Tyler",null,null,null,null,"R",null,"Grade 4 - 5","Grade 4 - 6","How were the daily lives of the ancient Maya different from our daily lives today? What problems did they face as an early civilization in the Americas? Questions such as these are answered as readers examine the ancient Maya through a close study of their history, lifestyle, and traditions. Through well-researched main text, readers are able to compare and contrast this ancient culture with modern civilizations. In addition, accessible maps, informational fact boxes, interesting sidebars, a helpful timeline, and vibrant full-color photographs are included to further explain this essential social studies curriculum topic.","English",28.25,22.6,"972.81--dc23","32 pp.","https://greenhavenpublishing.com/9781534529052",null,{"$f":"Table1[[#This Row],['# of Books]]*Table1[[#This Row],[QTY]]","v":0},{"$f":"Table1[[#This Row],[QTY]]*Table1[[#This Row],[School & Library Price]]","v":0}]
[null,null,null,null,37,"Social Studies","Unlocking Ancient Civilizations","The Ancient Maya","978-1-5345-2906-9",{"$f":"HYPERLINK(Table1[[#This Row],[eCommerce Hyperlink]],\"Book Weblink\")","v":"Book Weblink"},null,"KidHaven Publishing","eBook",1,"2019","January 2019",null,null,"Author","Madeline Tyler",null,null,null,null,"R",null,"Grade 4 - 5","Grade 4 - 6","How were the daily lives of the ancient Maya different from our daily lives today? What problems did they face as an early civilization in the Americas? Questions such as these are answered as readers examine the ancient Maya through a close study of their history, lifestyle, and traditions. Through well-researched main text, readers are able to compare and contrast this ancient culture with modern civilizations. In addition, accessible maps, informational fact boxes, interesting sidebars, a helpful timeline, and vibrant full-color photographs are included to further explain this essential social studies curriculum topic.","English",28.25,22.6,"972.81--dc23","32 pp.","https://greenhavenpublishing.com/9781534529069",null,{"$f":"Table1[[#This Row],['# of Books]]*Table1[[#This Row],[QTY]]","v":0},{"$f":"Table1[[#This Row],[QTY]]*Table1[[#This Row],[School & Library Price]]","v":0}]
[null,null,null,null,37,"Social Studies","Unlocking Ancient Civilizations","The Indus Valley","978-1-5345-2917-5",{"$f":"HYPERLINK(Table1[[#This Row],[eCommerce Hyperlink]],\"Book Weblink\")","v":"Book Weblink"},null,"KidHaven Publishing","Library Bound Book",1,"2019","January 2019","Library","8.500 X 11.00","Author","Madeline Tyler",null,null,null,null,"R",null,"Grade 4 - 5","Grade 4 - 6","Readers take an exciting journey to the Indus Valley as they explore the ancient civilization that arose in this fascinating place. Through detailed main text, fact boxes, and sidebars, this common social studies curriculum topic is presented in a way that highlights the traditional customs of this group of people and their contributions to the modern world. Accessible maps, a helpful timeline, and vibrant photographs help to expand the knowledge of young people fascinated by ancient cultures and to encourage an appreciation for diversity in the past and present.","English",28.25,22.6,"934--dc23","32 pp.","https://greenhavenpublishing.com/9781534529175",null,{"$f":"Table1[[#This Row],['# of Books]]*Table1[[#This Row],[QTY]]","v":0},{"$f":"Table1[[#This Row],[QTY]]*Table1[[#This Row],[School & Library Price]]","v":0}]
[null,null,null,null,37,"Social Studies","Unlocking Ancient Civilizations","The Indus Valley","978-1-5345-2918-2",{"$f":"HYPERLINK(Table1[[#This Row],[eCommerce Hyperlink]],\"Book Weblink\")","v":"Book Weblink"},null,"KidHaven Publishing","eBook",1,"2019","January 2019",null,null,"Author","Madeline Tyler",null,null,null,null,"R",null,"Grade 4 - 5","Grade 4 - 6","Readers take an exciting journey to the Indus Valley as they explore the ancient civilization that arose in this fascinating place. Through detailed main text, fact boxes, and sidebars, this common social studies curriculum topic is presented in a way that highlights the traditional customs of this group of people and their contributions to the modern world. Accessible maps, a helpful timeline, and vibrant photographs help to expand the knowledge of young people fascinated by ancient cultures and to encourage an appreciation for diversity in the past and present.","English",28.25,22.6,"934--dc23","32 pp.","https://greenhavenpublishing.com/9781534529182",null,{"$f":"Table1[[#This Row],['# of Books]]*Table1[[#This Row],[QTY]]","v":0},{"$f":"Table1[[#This Row],[QTY]]*Table1[[#This Row],[School & Library Price]]","v":0}]
[null,null,null,null,37,"Social Studies","World Adventures","World Adventures: Set 1","978-1-5345-2460-6",{"$f":"HYPERLINK(Table1[[#This Row],[eCommerce Hyperlink]],\"Book Weblink\")","v":"Book Weblink"},null,"KidHaven Publishing","Library Set",6,"2018","January 2018","Library","8.500 X 8.500",null,null,null,null,null,null,null,null,"Grade 1 - 2","Grade K - 3","Readers take an adventure around the world as they explore what life is like in a variety of exciting countries, from Mexico and Egypt to China and Germany. On their adventure, they will deepen their understanding of common social studies curriculum topics, such as physical geography, world landmarks, and international cultures. Features include: Fact boxes and maps provide readers with even more information about each country. Vibrant, colorful photographs allow readers to immerse themselves in this globe-trotting experience.","English",153.6,122.88,null,"24 pp.","https://greenhavenpublishing.com/9781534524606",null,{"$f":"Table1[[#This Row],['# of Books]]*Table1[[#This Row],[QTY]]","v":0},{"$f":"Table1[[#This Row],[QTY]]*Table1[[#This Row],[School & Library Price]]","v":0}]
[null,null,null,null,37,"Social Studies","World Adventures","Australia","978-1-5345-2406-4",{"$f":"HYPERLINK(Table1[[#This Row],[eCommerce Hyperlink]],\"Book Weblink\")","v":"Book Weblink"},null,"KidHaven Publishing","Library Bound Book",1,"2018","January 2018","Library","8.500 X 8.500","Author","Steffi Cavell-Clarke","3.4","0.5",null,null,"H",null,"Grade 1 - 2","Grade K - 3","Are there kangaroos in Australia? Is Australia surrounded by water? What’s the Great Barrier Reef? Questions such as these are answered in this compelling text about the country of Australia. This accessible main text, which aligns with current social studies curricula, deepens readers’ understanding of this country’s geography, landmarks, and rich culture. Additional information is presented in enlightening fact boxes and maps. Bold, full-color photographs also help young learners visualize what everyday life looks like in Australia.","English",25.6,20.48,"994--dc23","24 pp.","https://greenhavenpublishing.com/9781534524064",null,{"$f":"Table1[[#This Row],['# of Books]]*Table1[[#This Row],[QTY]]","v":0},{"$f":"Table1[[#This Row],[QTY]]*Table1[[#This Row],[School & Library Price]]","v":0}]
[null,null,null,null,37,"Social Studies","World Adventures","Australia","978-1-5345-2407-1",{"$f":"HYPERLINK(Table1[[#This Row],[eCommerce Hyperlink]],\"Book Weblink\")","v":"Book Weblink"},null,"KidHaven Publishing","eBook",1,"2018","January 2018",null,null,"Author","Steffi Cavell-Clarke","3.4","0.5",null,null,"H",null,"Grade 1 - 2","Grade K - 3","Are there kangaroos in Australia? Is Australia surrounded by water? What’s the Great Barrier Reef? Questions such as these are answered in this compelling text about the country of Australia. This accessible main text, which aligns with current social studies curricula, deepens readers’ understanding of this country’s geography, landmarks, and rich culture. Additional information is presented in enlightening fact boxes and maps. Bold, full-color photographs also help young learners visualize what everyday life looks like in Australia.","English",25.6,20.48,"994--dc23","24 pp.","https://greenhavenpublishing.com/9781534524071",null,{"$f":"Table1[[#This Row],['# of Books]]*Table1[[#This Row],[QTY]]","v":0},{"$f":"Table1[[#This Row],[QTY]]*Table1[[#This Row],[School & Library Price]]","v":0}]
[null,null,null,null,37,"Social Studies","World Adventures","China","978-1-5345-2402-6",{"$f":"HYPERLINK(Table1[[#This Row],[eCommerce Hyperlink]],\"Book Weblink\")","v":"Book Weblink"},null,"KidHaven Publishing","Library Bound Book",1,"2018","January 2018","Library","8.500 X 8.500","Author","Steffi Cavell-Clarke","3.7","0.5",null,null,"H",null,"Grade 1 - 2","Grade K - 3","The Great Wall of China and Mount Everest are two of China’s most popular landmarks. Attractions such as these are explored in this captivating text designed to expose readers to everyday life in this Asian country. The main text, which supports common social studies curriculum topics and encourages a deeper appreciation of different cultures, touches upon the country’s geography, weather, food, and other interesting aspects of China’s culture. Educational fact boxes, maps, and striking, full-color photographs are included to provide additional information and enhance readers’ knowledge of China.","English",25.6,20.48,"951--dc23","24 pp.","https://greenhavenpublishing.com/9781534524026",null,{"$f":"Table1[[#This Row],['# of Books]]*Table1[[#This Row],[QTY]]","v":0},{"$f":"Table1[[#This Row],[QTY]]*Table1[[#This Row],[School & Library Price]]","v":0}]
[null,null,null,null,37,"Social Studies","World Adventures","China","978-1-5345-2404-0",{"$f":"HYPERLINK(Table1[[#This Row],[eCommerce Hyperlink]],\"Book Weblink\")","v":"Book Weblink"},null,"KidHaven Publishing","eBook",1,"2018","January 2018",null,null,"Author","Steffi Cavell-Clarke","3.7","0.5",null,null,"H",null,"Grade 1 - 2","Grade K - 3","The Great Wall of China and Mount Everest are two of China’s most popular landmarks. Attractions such as these are explored in this captivating text designed to expose readers to everyday life in this Asian country. The main text, which supports common social studies curriculum topics and encourages a deeper appreciation of different cultures, touches upon the country’s geography, weather, food, and other interesting aspects of China’s culture. Educational fact boxes, maps, and striking, full-color photographs are included to provide additional information and enhance readers’ knowledge of China.","English",25.6,20.48,"951--dc23","24 pp.","https://greenhavenpublishing.com/9781534524040",null,{"$f":"Table1[[#This Row],['# of Books]]*Table1[[#This Row],[QTY]]","v":0},{"$f":"Table1[[#This Row],[QTY]]*Table1[[#This Row],[School & Library Price]]","v":0}]
[null,null,null,null,37,"Social Studies","World Adventures","Egypt","978-1-5345-2399-9",{"$f":"HYPERLINK(Table1[[#This Row],[eCommerce Hyperlink]],\"Book Weblink\")","v":"Book Weblink"},null,"KidHaven Publishing","Library Bound Book",1,"2018","January 2018","Library","8.500 X 8.500","Author","Steffi Cavell-Clarke","3.4","0.5",null,null,"H",null,"Grade 1 - 2","Grade K - 3","As a country known for its pyramids, pharaohs, and ancient treasures, Egypt is a place filled with exciting history. However, modern life in Egypt is also worth studying. In this accessible text, which aligns with essential social studies curriculum topics, readers get a closer look at Egypt’s geography, landmarks, weather, and unique culture. Informative fact boxes and maps offer added insight into what everyday life is like for people living in Egypt today. Readers are also able to view historical Egyptian landmarks, such as the pyramids, and scenes of contemporary Egyptian life in stunning, full-color photographs.","English",25.6,20.48,"962--dc23","24 pp.","https://greenhavenpublishing.com/9781534523999",null,{"$f":"Table1[[#This Row],['# of Books]]*Table1[[#This Row],[QTY]]","v":0},{"$f":"Table1[[#This Row],[QTY]]*Table1[[#This Row],[School & Library Price]]","v":0}]
[null,null,null,null,37,"Social Studies","World Adventures","Egypt","978-1-5345-2400-2",{"$f":"HYPERLINK(Table1[[#This Row],[eCommerce Hyperlink]],\"Book Weblink\")","v":"Book Weblink"},null,"KidHaven Publishing","eBook",1,"2018","January 2018",null,null,"Author","Steffi Cavell-Clarke","3.4","0.5",null,null,"H",null,"Grade 1 - 2","Grade K - 3","As a country known for its pyramids, pharaohs, and ancient treasures, Egypt is a place filled with exciting history. However, modern life in Egypt is also worth studying. In this accessible text, which aligns with essential social studies curriculum topics, readers get a closer look at Egypt’s geography, landmarks, weather, and unique culture. Informative fact boxes and maps offer added insight into what everyday life is like for people living in Egypt today. Readers are also able to view historical Egyptian landmarks, such as the pyramids, and scenes of contemporary Egyptian life in stunning, full-color photographs.","English",25.6,20.48,"962--dc23","24 pp.","https://greenhavenpublishing.com/9781534524002",null,{"$f":"Table1[[#This Row],['# of Books]]*Table1[[#This Row],[QTY]]","v":0},{"$f":"Table1[[#This Row],[QTY]]*Table1[[#This Row],[School & Library Price]]","v":0}]
[null,null,null,null,37,"Social Studies","World Adventures","Germany","978-1-5345-2408-8",{"$f":"HYPERLINK(Table1[[#This Row],[eCommerce Hyperlink]],\"Book Weblink\")","v":"Book Weblink"},null,"KidHaven Publishing","Library Bound Book",1,"2018","January 2018","Library","8.500 X 8.500","Author","Emma Calway","3.6","0.5",null,null,"H",null,"Grade 1 - 2","Grade K - 3","Young readers are introduced to life in Germany in this informative book, which supports important social studies curriculum topics. This country’s landscape consists of forests, rivers, and mountain ranges. There are also heavily populated metropolis cities, such as Berlin, Hamburg, and Munich, which readers journey to through this clear text. Other topics they explore include Germany’s landmarks, food, language, and culture. Educational fact boxes, maps, and vivid, full-color photographs provide young learners with additional information about this European country, helping them develop a deeper sense of appreciation for the world beyond their own backyard.","English",25.6,20.48,"943--dc23","24 pp.","https://greenhavenpublishing.com/9781534524088",null,{"$f":"Table1[[#This Row],['# of Books]]*Table1[[#This Row],[QTY]]","v":0},{"$f":"Table1[[#This Row],[QTY]]*Table1[[#This Row],[School & Library Price]]","v":0}]
[null,null,null,null,37,"Social Studies","World Adventures","Germany","978-1-5345-2409-5",{"$f":"HYPERLINK(Table1[[#This Row],[eCommerce Hyperlink]],\"Book Weblink\")","v":"Book Weblink"},null,"KidHaven Publishing","eBook",1,"2018","January 2018",null,null,"Author","Emma Calway","3.6","0.5",null,null,"H",null,"Grade 1 - 2","Grade K - 3","Young readers are introduced to life in Germany in this informative book, which supports important social studies curriculum topics. This country’s landscape consists of forests, rivers, and mountain ranges. There are also heavily populated metropolis cities, such as Berlin, Hamburg, and Munich, which readers journey to through this clear text. Other topics they explore include Germany’s landmarks, food, language, and culture. Educational fact boxes, maps, and vivid, full-color photographs provide young learners with additional information about this European country, helping them develop a deeper sense of appreciation for the world beyond their own backyard.","English",25.6,20.48,"943--dc23","24 pp.","https://greenhavenpublishing.com/9781534524095",null,{"$f":"Table1[[#This Row],['# of Books]]*Table1[[#This Row],[QTY]]","v":0},{"$f":"Table1[[#This Row],[QTY]]*Table1[[#This Row],[School & Library Price]]","v":0}]
[null,null,null,null,37,"Social Studies","World Adventures","Japan","978-1-5345-2396-8",{"$f":"HYPERLINK(Table1[[#This Row],[eCommerce Hyperlink]],\"Book Weblink\")","v":"Book Weblink"},null,"KidHaven Publishing","Library Bound Book",1,"2018","January 2018","Library","8.500 X 8.500","Author","Harriet Brundle","3.4","0.5",null,null,"H",null,"Grade 1 - 2","Grade K - 3","How many people live in Japan? What’s Japan’s biggest city? Questions such as these are answered as readers take a journey to the country of Japan. The main text, which supports critical social studies curriculum topics, explores the weather, landscapes, and everyday life in this Asian country. Additional information is provided by detailed fact boxes and maps that work to expand readers’ understanding of Japanese life. Vibrant, full-color photographs also expose young learners to spectacular views of this country. Readers will develop a newfound appreciation for cultural diversity after reading this text.","English",25.6,20.48,"952--dc23","24 pp.","https://greenhavenpublishing.com/9781534523968",null,{"$f":"Table1[[#This Row],['# of Books]]*Table1[[#This Row],[QTY]]","v":0},{"$f":"Table1[[#This Row],[QTY]]*Table1[[#This Row],[School & Library Price]]","v":0}]
[null,null,null,null,37,"Social Studies","World Adventures","Japan","978-1-5345-2397-5",{"$f":"HYPERLINK(Table1[[#This Row],[eCommerce Hyperlink]],\"Book Weblink\")","v":"Book Weblink"},null,"KidHaven Publishing","eBook",1,"2018","January 2018",null,null,"Author","Harriet Brundle","3.4","0.5",null,null,"H",null,"Grade 1 - 2","Grade K - 3","How many people live in Japan? What’s Japan’s biggest city? Questions such as these are answered as readers take a journey to the country of Japan. The main text, which supports critical social studies curriculum topics, explores the weather, landscapes, and everyday life in this Asian country. Additional information is provided by detailed fact boxes and maps that work to expand readers’ understanding of Japanese life. Vibrant, full-color photographs also expose young learners to spectacular views of this country. Readers will develop a newfound appreciation for cultural diversity after reading this text.","English",25.6,20.48,"952--dc23","24 pp.","https://greenhavenpublishing.com/9781534523975",null,{"$f":"Table1[[#This Row],['# of Books]]*Table1[[#This Row],[QTY]]","v":0},{"$f":"Table1[[#This Row],[QTY]]*Table1[[#This Row],[School & Library Price]]","v":0}]
[null,null,null,null,37,"Social Studies","World Adventures","Mexico","978-1-5345-2459-0",{"$f":"HYPERLINK(Table1[[#This Row],[eCommerce Hyperlink]],\"Book Weblink\")","v":"Book Weblink"},null,"KidHaven Publishing","Library Bound Book",1,"2018","January 2018","Library","8.500 X 8.500","Author","Steffi Cavell-Clarke","3.4","0.5",null,null,"H",null,"Grade 1 - 2","Grade K - 3","Readers are transported to Mexico to learn about the country’s geography, landmarks, weather, clothing, food, and rich culture in this engaging text aligned with common social studies curriculum topics. The age-appropriate main text encourages young learners to appreciate diversity and have respect for all cultures. Informative fact boxes, maps, and bold, full-color photographs are included to help enhance readers’ knowledge about this North American country and what everyday life is like there.","English",25.6,20.48,"972--dc23","24 pp.","https://greenhavenpublishing.com/9781534524590",null,{"$f":"Table1[[#This Row],['# of Books]]*Table1[[#This Row],[QTY]]","v":0},{"$f":"Table1[[#This Row],[QTY]]*Table1[[#This Row],[School & Library Price]]","v":0}]
[null,null,null,null,37,"Social Studies","World Adventures","Mexico","978-1-5345-2462-0",{"$f":"HYPERLINK(Table1[[#This Row],[eCommerce Hyperlink]],\"Book Weblink\")","v":"Book Weblink"},null,"KidHaven Publishing","eBook",1,"2018","January 2018",null,null,"Author","Steffi Cavell-Clarke","3.4","0.5",null,null,"H",null,"Grade 1 - 2","Grade K - 3","Readers are transported to Mexico to learn about the country’s geography, landmarks, weather, clothing, food, and rich culture in this engaging text aligned with common social studies curriculum topics. The age-appropriate main text encourages young learners to appreciate diversity and have respect for all cultures. Informative fact boxes, maps, and bold, full-color photographs are included to help enhance readers’ knowledge about this North American country and what everyday life is like there.","English",25.6,20.48,"972--dc23","24 pp.","https://greenhavenpublishing.com/9781534524620",null,{"$f":"Table1[[#This Row],['# of Books]]*Table1[[#This Row],[QTY]]","v":0},{"$f":"Table1[[#This Row],[QTY]]*Table1[[#This Row],[School & Library Price]]","v":0}]
[null,null,null,null,37,"Social Studies","World Adventures","World Adventures: Set 2","978-1-5345-2739-3",{"$f":"HYPERLINK(Table1[[#This Row],[eCommerce Hyperlink]],\"Book Weblink\")","v":"Book Weblink"},null,"KidHaven Publishing","Library Set",6,"2019","August 2018","Library","8.500 X 8.500",null,null,null,null,null,null,null,null,"Grade 1 - 2","Grade K - 3","Readers take an exhilarating journey around the world as they learn about life in various countries, such as Canada, Russia, South Korea, and the United States. Students will deepen their knowledge of current social studies curriculum topics, which include the culture, famous landmarks, and geography of these countries. Readers will also be exposed to the everyday lives of people around the world and the diversity of their ways of life. The informative main text is presented alongside engaging fact boxes, vibrant full-color photographs, and useful maps. Features include: Text encourages readers to be more open-minded and curious about other cultures. Full-color photographs and maps provide readers with a detailed picture of what other countries look like. Simple text is accessible to a variety of reading levels.","English",153.6,122.88,null,"24 pp.","https://greenhavenpublishing.com/9781534527393",null,{"$f":"Table1[[#This Row],['# of Books]]*Table1[[#This Row],[QTY]]","v":0},{"$f":"Table1[[#This Row],[QTY]]*Table1[[#This Row],[School & Library Price]]","v":0}]
[null,null,null,null,37,"Social Studies","World Adventures","Canada","978-1-5345-2607-5",{"$f":"HYPERLINK(Table1[[#This Row],[eCommerce Hyperlink]],\"Book Weblink\")","v":"Book Weblink"},null,"KidHaven Publishing","Library Bound Book",1,"2019","August 2018","Library","8.500 X 8.500","Author","Steffi Cavell-Clarke",null,null,null,null,"H",null,"Grade 1 - 2","Grade K - 3","Where is Canada located? How many people live in Canada, and what languages do they speak? Questions such as these and many more are answered as readers take a trip to the Great White North, otherwise known as Canada. The detailed and accessible main text, which supports critical social studies curriculum topics, explores weather, landscapes, cultures, and other interesting aspects of life in Canada. Additional information on the country is included in the form of educational fact boxes and maps, striking photographs, and an age-appropriate glossary.","English",25.6,20.48,"971--dc23","24 pp.","https://greenhavenpublishing.com/9781534526075",null,{"$f":"Table1[[#This Row],['# of Books]]*Table1[[#This Row],[QTY]]","v":0},{"$f":"Table1[[#This Row],[QTY]]*Table1[[#This Row],[School & Library Price]]","v":0}]
[null,null,null,null,37,"Social Studies","World Adventures","Canada","978-1-5345-2610-5",{"$f":"HYPERLINK(Table1[[#This Row],[eCommerce Hyperlink]],\"Book Weblink\")","v":"Book Weblink"},null,"KidHaven Publishing","eBook",1,"2019","August 2018",null,null,"Author","Steffi Cavell-Clarke",null,null,null,null,"H",null,"Grade 1 - 2","Grade K - 3","Where is Canada located? How many people live in Canada, and what languages do they speak? Questions such as these and many more are answered as readers take a trip to the Great White North, otherwise known as Canada. The detailed and accessible main text, which supports critical social studies curriculum topics, explores weather, landscapes, cultures, and other interesting aspects of life in Canada. Additional information on the country is included in the form of educational fact boxes and maps, striking photographs, and an age-appropriate glossary.","English",25.6,20.48,"971--dc23","24 pp.","https://greenhavenpublishing.com/9781534526105",null,{"$f":"Table1[[#This Row],['# of Books]]*Table1[[#This Row],[QTY]]","v":0},{"$f":"Table1[[#This Row],[QTY]]*Table1[[#This Row],[School & Library Price]]","v":0}]
[null,null,null,null,37,"Social Studies","World Adventures","England","978-1-5345-2611-2",{"$f":"HYPERLINK(Table1[[#This Row],[eCommerce Hyperlink]],\"Book Weblink\")","v":"Book Weblink"},null,"KidHaven Publishing","Library Bound Book",1,"2019","August 2018","Library","8.500 X 8.500","Author","Steffi Cavell-Clarke",null,null,null,null,"H",null,"Grade 1 - 2","Grade K - 3","Stonehenge and the Tower of London are two of the most popular landmarks in England. Attractions such as these are explored in this exciting new text designed to expose readers to everyday life in this European country. Some of the topics covered in the main text, which align with current social studies curricula, include famous landmarks, geography, traditions, and weather. Captivating, full-color photographs, informative fact boxes and maps, and a detailed glossary provide additional information on the subject and help readers visualize what it's like to live in England.","English",25.6,20.48,"942--dc23","24 pp.","https://greenhavenpublishing.com/9781534526112",null,{"$f":"Table1[[#This Row],['# of Books]]*Table1[[#This Row],[QTY]]","v":0},{"$f":"Table1[[#This Row],[QTY]]*Table1[[#This Row],[School & Library Price]]","v":0}]
[null,null,null,null,37,"Social Studies","World Adventures","England","978-1-5345-2614-3",{"$f":"HYPERLINK(Table1[[#This Row],[eCommerce Hyperlink]],\"Book Weblink\")","v":"Book Weblink"},null,"KidHaven Publishing","eBook",1,"2019","August 2018",null,null,"Author","Steffi Cavell-Clarke",null,null,null,null,"H",null,"Grade 1 - 2","Grade K - 3","Stonehenge and the Tower of London are two of the most popular landmarks in England. Attractions such as these are explored in this exciting new text designed to expose readers to everyday life in this European country. Some of the topics covered in the main text, which align with current social studies curricula, include famous landmarks, geography, traditions, and weather. Captivating, full-color photographs, informative fact boxes and maps, and a detailed glossary provide additional information on the subject and help readers visualize what it's like to live in England.","English",25.6,20.48,"942--dc23","24 pp.","https://greenhavenpublishing.com/9781534526143",null,{"$f":"Table1[[#This Row],['# of Books]]*Table1[[#This Row],[QTY]]","v":0},{"$f":"Table1[[#This Row],[QTY]]*Table1[[#This Row],[School & Library Price]]","v":0}]
[null,null,null,null,37,"Social Studies","World Adventures","Russia","978-1-5345-2615-0",{"$f":"HYPERLINK(Table1[[#This Row],[eCommerce Hyperlink]],\"Book Weblink\")","v":"Book Weblink"},null,"KidHaven Publishing","Library Bound Book",1,"2019","August 2018","Library","8.500 X 8.500","Author","Harriet Brundle",null,null,null,null,"H",null,"Grade 1 - 2","Grade K - 3","Young readers are introduced to life in Russia in this informative text, which supports current social studies curriculum topics and encourages a more thorough understanding of global diversity. The accessible main text, which includes an inside look at this country's geography, weather, famous landmarks, and customs, allows readers to develop a deeper appreciation for other cultures. Educational fact boxes and maps, eye-catching, full-color photographs, and an informative glossary provide additional insight into what it's like to live an everyday life in the country of Russia.","English",25.6,20.48,"947--dc23","24 pp.","https://greenhavenpublishing.com/9781534526150",null,{"$f":"Table1[[#This Row],['# of Books]]*Table1[[#This Row],[QTY]]","v":0},{"$f":"Table1[[#This Row],[QTY]]*Table1[[#This Row],[School & Library Price]]","v":0}]
[null,null,null,null,37,"Social Studies","World Adventures","Russia","978-1-5345-2618-1",{"$f":"HYPERLINK(Table1[[#This Row],[eCommerce Hyperlink]],\"Book Weblink\")","v":"Book Weblink"},null,"KidHaven Publishing","eBook",1,"2019","August 2018",null,null,"Author","Harriet Brundle",null,null,null,null,"H",null,"Grade 1 - 2","Grade K - 3","Young readers are introduced to life in Russia in this informative text, which supports current social studies curriculum topics and encourages a more thorough understanding of global diversity. The accessible main text, which includes an inside look at this country's geography, weather, famous landmarks, and customs, allows readers to develop a deeper appreciation for other cultures. Educational fact boxes and maps, eye-catching, full-color photographs, and an informative glossary provide additional insight into what it's like to live an everyday life in the country of Russia.","English",25.6,20.48,"947--dc23","24 pp.","https://greenhavenpublishing.com/9781534526181",null,{"$f":"Table1[[#This Row],['# of Books]]*Table1[[#This Row],[QTY]]","v":0},{"$f":"Table1[[#This Row],[QTY]]*Table1[[#This Row],[School & Library Price]]","v":0}]
[null,null,null,null,37,"Social Studies","World Adventures","South Korea","978-1-5345-2619-8",{"$f":"HYPERLINK(Table1[[#This Row],[eCommerce Hyperlink]],\"Book Weblink\")","v":"Book Weblink"},null,"KidHaven Publishing","Library Bound Book",1,"2019","August 2018","Library","8.500 X 8.500","Author","Harriet Brundle",null,null,null,null,"H",null,"Grade 1 - 2","Grade K - 3","In South Korea, what languages do they speak? What's the biggest city in South Korea? What foods do South Koreans eat? Questions such as these and more are answered in this detailed text about this Asian country. The accessible main text, which aligns with essential elementary social studies curriculum topics, exposes readers to the famous landmarks, geography, weather, cultures, and traditions of South Korea. Informative fact boxes and maps, stunning, full-color photographs, and a detailed glossary also provide readers with additional knowledge of what life is like in this exciting country.","English",25.6,20.48,"951.95--dc23","24 pp.","https://greenhavenpublishing.com/9781534526198",null,{"$f":"Table1[[#This Row],['# of Books]]*Table1[[#This Row],[QTY]]","v":0},{"$f":"Table1[[#This Row],[QTY]]*Table1[[#This Row],[School & Library Price]]","v":0}]
[null,null,null,null,37,"Social Studies","World Adventures","South Korea","978-1-5345-2622-8",{"$f":"HYPERLINK(Table1[[#This Row],[eCommerce Hyperlink]],\"Book Weblink\")","v":"Book Weblink"},null,"KidHaven Publishing","eBook",1,"2019","August 2018",null,null,"Author","Harriet Brundle",null,null,null,null,"H",null,"Grade 1 - 2","Grade K - 3","In South Korea, what languages do they speak? What's the biggest city in South Korea? What foods do South Koreans eat? Questions such as these and more are answered in this detailed text about this Asian country. The accessible main text, which aligns with essential elementary social studies curriculum topics, exposes readers to the famous landmarks, geography, weather, cultures, and traditions of South Korea. Informative fact boxes and maps, stunning, full-color photographs, and a detailed glossary also provide readers with additional knowledge of what life is like in this exciting country.","English",25.6,20.48,"951.95--dc23","24 pp.","https://greenhavenpublishing.com/9781534526228",null,{"$f":"Table1[[#This Row],['# of Books]]*Table1[[#This Row],[QTY]]","v":0},{"$f":"Table1[[#This Row],[QTY]]*Table1[[#This Row],[School & Library Price]]","v":0}]
[null,null,null,null,37,"Social Studies","World Adventures","Spain","978-1-5345-2623-5",{"$f":"HYPERLINK(Table1[[#This Row],[eCommerce Hyperlink]],\"Book Weblink\")","v":"Book Weblink"},null,"KidHaven Publishing","Library Bound Book",1,"2019","August 2018","Library","8.500 X 8.500","Author","Steffi Cavell-Clarke",null,null,null,null,"H",null,"Grade 1 - 2","Grade K - 3","Young readers jet off to Spain in this exciting new text. In doing so, they learn about many unique aspects of this European country. Readers expand their knowledge of current social studies curriculum topics as they explore the country's famous landmarks, weather, geography, culture, and traditions. Vivid, full-color photographs, educational fact boxes, colorful maps, and a helpful glossary give additional insight into this exciting topic. This engaging and accessible look at life in Spain helps readers broaden their understanding of and appreciation for other cultures.","English",25.6,20.48,"946--dc23","24 pp.","https://greenhavenpublishing.com/9781534526235",null,{"$f":"Table1[[#This Row],['# of Books]]*Table1[[#This Row],[QTY]]","v":0},{"$f":"Table1[[#This Row],[QTY]]*Table1[[#This Row],[School & Library Price]]","v":0}]
[null,null,null,null,37,"Social Studies","World Adventures","Spain","978-1-5345-2626-6",{"$f":"HYPERLINK(Table1[[#This Row],[eCommerce Hyperlink]],\"Book Weblink\")","v":"Book Weblink"},null,"KidHaven Publishing","eBook",1,"2019","August 2018",null,null,"Author","Steffi Cavell-Clarke",null,null,null,null,"H",null,"Grade 1 - 2","Grade K - 3","Young readers jet off to Spain in this exciting new text. In doing so, they learn about many unique aspects of this European country. Readers expand their knowledge of current social studies curriculum topics as they explore the country's famous landmarks, weather, geography, culture, and traditions. Vivid, full-color photographs, educational fact boxes, colorful maps, and a helpful glossary give additional insight into this exciting topic. This engaging and accessible look at life in Spain helps readers broaden their understanding of and appreciation for other cultures.","English",25.6,20.48,"946--dc23","24 pp.","https://greenhavenpublishing.com/9781534526266",null,{"$f":"Table1[[#This Row],['# of Books]]*Table1[[#This Row],[QTY]]","v":0},{"$f":"Table1[[#This Row],[QTY]]*Table1[[#This Row],[School & Library Price]]","v":0}]
[null,null,null,null,37,"Social Studies","World Adventures","United States","978-1-5345-2603-7",{"$f":"HYPERLINK(Table1[[#This Row],[eCommerce Hyperlink]],\"Book Weblink\")","v":"Book Weblink"},null,"KidHaven Publishing","Library Bound Book",1,"2019","August 2018","Library","8.500 X 8.500","Author","Steffi Cavell-Clarke",null,null,null,null,"H",null,"Grade 1 - 2","Grade K - 3","Young readers are taken on a journey through the diverse country of the United States, a melting pot of many cultures. Through exploring the nation's geography, weather, famous landmarks, and multiple traditions using accessible text, they will expand their knowledge of current social studies curriculum topics. This book also delves into the everyday life of various Americans, showing readers how many different kinds of people live in America. Informative fact boxes, vibrant, full-color photographs, and accessible maps provide extra insight into this subject.","English",25.6,20.48,"973--dc23","24 pp.","https://greenhavenpublishing.com/9781534526037",null,{"$f":"Table1[[#This Row],['# of Books]]*Table1[[#This Row],[QTY]]","v":0},{"$f":"Table1[[#This Row],[QTY]]*Table1[[#This Row],[School & Library Price]]","v":0}]
[null,null,null,null,37,"Social Studies","World Adventures","United States","978-1-5345-2606-8",{"$f":"HYPERLINK(Table1[[#This Row],[eCommerce Hyperlink]],\"Book Weblink\")","v":"Book Weblink"},null,"KidHaven Publishing","eBook",1,"2019","August 2018",null,null,"Author","Steffi Cavell-Clarke",null,null,null,null,"H",null,"Grade 1 - 2","Grade K - 3","Young readers are taken on a journey through the diverse country of the United States, a melting pot of many cultures. Through exploring the nation's geography, weather, famous landmarks, and multiple traditions using accessible text, they will expand their knowledge of current social studies curriculum topics. This book also delves into the everyday life of various Americans, showing readers how many different kinds of people live in America. Informative fact boxes, vibrant, full-color photographs, and accessible maps provide extra insight into this subject.","English",25.6,20.48,"973--dc23","24 pp.","https://greenhavenpublishing.com/9781534526068",null,{"$f":"Table1[[#This Row],['# of Books]]*Table1[[#This Row],[QTY]]","v":0},{"$f":"Table1[[#This Row],[QTY]]*Table1[[#This Row],[School & Library Price]]","v":0}]
[null,6,null,null,null,"Current Issues","Opposing Viewpoints","Opposing Viewpoints (Spring 2022)","978-1-5345-0848-4",{"$f":"HYPERLINK(Table1[[#This Row],[eCommerce Hyperlink]],\"Book Weblink\")","v":"Book Weblink"},null,"Greenhaven Publishing","Library Set",6,"2022","January 2022","Library","6.000 X 9.000",null,null,null,null,null,null,null,null,"Grade 10 - 12","Grade 9 - 12","First introduced more than 40 years ago, Opposing Viewpoints still sets the standard for current-issue studies. With almost 300 volumes covering nearly every controversial contemporary topic, Opposing Viewpoints is the leading source of current-issue materials for libraries and classrooms. Each book delivers pro/con expert opinions selected from highly respected and often hard-to-find sources and publications.","English",298.8,239.04,null,"176–200 pp.","https://greenhavenpublishing.com/9781534508484",null,{"$f":"Table1[[#This Row],['# of Books]]*Table1[[#This Row],[QTY]]","v":0},{"$f":"Table1[[#This Row],[QTY]]*Table1[[#This Row],[School & Library Price]]","v":0}]
[null,6,null,null,null,"Current Issues","Opposing Viewpoints","Opposing Viewpoints (Spring 2022)","978-1-5345-0868-2",{"$f":"HYPERLINK(Table1[[#This Row],[eCommerce Hyperlink]],\"Book Weblink\")","v":"Book Weblink"},null,"Greenhaven Publishing","Single Copy Set",6,"2022","January 2022","Paperback","6.000 X 9.000",null,null,null,null,null,null,null,null,"Grade 10 - 12","Grade 9 - 12","First introduced more than 40 years ago, Opposing Viewpoints still sets the standard for current-issue studies. With almost 300 volumes covering nearly every controversial contemporary topic, Opposing Viewpoints is the leading source of current-issue materials for libraries and classrooms. Each book delivers pro/con expert opinions selected from highly respected and often hard-to-find sources and publications.","English",208.8,167.1,null,"176–200 pp.","https://greenhavenpublishing.com/9781534508682",null,{"$f":"Table1[[#This Row],['# of Books]]*Table1[[#This Row],[QTY]]","v":0},{"$f":"Table1[[#This Row],[QTY]]*Table1[[#This Row],[School & Library Price]]","v":0}]
[null,6,null,null,null,"Current Issues","Opposing Viewpoints","Opposing Viewpoints (Fall 2021)","978-1-5345-0826-2",{"$f":"HYPERLINK(Table1[[#This Row],[eCommerce Hyperlink]],\"Book Weblink\")","v":"Book Weblink"},null,"Greenhaven Publishing","Library Set",7,"2022","August 2021","Library","6.000 X 9.000",null,null,null,null,null,null,null,null,"Grade 10 - 12","Grade 9 - 12","Cancel culture is a powerful force, but can it go too far? What is being done to address racial discrimination within the criminal justice system? How is our right to personhood impacted by our complicated world? Fascinating topics are featured in this set, proving that Opposing Viewpoints still sets the standard for current-issue studies. Each book delivers pro and con expert opinions selected from highly respected and often hard to find sources and publications. Features include: Guided reading questions at the beginning of each viewpoint assist students in reading comprehension. Chapter prefaces provide context on the topics and debates presented in each chapter. Chapters summarize both sides of debates to present an impartial look at contemporary controversies.","English",348.6,278.88,null,"176–200 pp.","https://greenhavenpublishing.com/9781534508262",null,{"$f":"Table1[[#This Row],['# of Books]]*Table1[[#This Row],[QTY]]","v":0},{"$f":"Table1[[#This Row],[QTY]]*Table1[[#This Row],[School & Library Price]]","v":0}]
[null,6,null,null,null,"Current Issues","Opposing Viewpoints","Opposing Viewpoints (Fall 2021)","978-1-5345-0833-0",{"$f":"HYPERLINK(Table1[[#This Row],[eCommerce Hyperlink]],\"Book Weblink\")","v":"Book Weblink"},null,"Greenhaven Publishing","Single Copy Set",7,"2022","August 2021","Paperback","6.000 X 9.000",null,null,null,null,null,null,null,null,"Grade 10 - 12","Grade 9 - 12","Cancel culture is a powerful force, but can it go too far? What is being done to address racial discrimination within the criminal justice system? How is our right to personhood impacted by our complicated world? Fascinating topics are featured in this set, proving that Opposing Viewpoints still sets the standard for current-issue studies. Each book delivers pro and con expert opinions selected from highly respected and often hard to find sources and publications. Features include: Guided reading questions at the beginning of each viewpoint assist students in reading comprehension. Chapter prefaces provide context on the topics and debates presented in each chapter. Chapters summarize both sides of debates to present an impartial look at contemporary controversies.","English",243.6,194.95,null,"176–200 pp.","https://greenhavenpublishing.com/9781534508330",null,{"$f":"Table1[[#This Row],['# of Books]]*Table1[[#This Row],[QTY]]","v":0},{"$f":"Table1[[#This Row],[QTY]]*Table1[[#This Row],[School & Library Price]]","v":0}]
[null,12,null,null,null,"Current Issues","Current Controversies","Current Controversies (Spring 2022)","978-1-5345-0867-5",{"$f":"HYPERLINK(Table1[[#This Row],[eCommerce Hyperlink]],\"Book Weblink\")","v":"Book Weblink"},null,"Greenhaven Publishing","Library Set",6,"2022","January 2022","Library","6.000 X 9.000",null,null,null,null,null,null,null,null,"Grade 10 - 12","Grade 9 - 12","Each anthology in this set presents a diverse array of views from a wide spectrum of sources. Views are organized in a question-and-response format to encourage readers to view complex issues from multiple angles. This approach provides students with a concise view of divergent opinions on each topic.","English",284.39999999999998,227.52,null,"176–200 pp.","https://greenhavenpublishing.com/9781534508675",null,{"$f":"Table1[[#This Row],['# of Books]]*Table1[[#This Row],[QTY]]","v":0},{"$f":"Table1[[#This Row],[QTY]]*Table1[[#This Row],[School & Library Price]]","v":0}]
[null,12,null,null,null,"Current Issues","Current Controversies","Current Controversies (Spring 2022)","978-1-5345-0869-9",{"$f":"HYPERLINK(Table1[[#This Row],[eCommerce Hyperlink]],\"Book Weblink\")","v":"Book Weblink"},null,"Greenhaven Publishing","Single Copy Set",6,"2022","January 2022","Paperback","6.000 X 9.000",null,null,null,null,null,null,null,null,"Grade 10 - 12","Grade 9 - 12","Each anthology in this set presents a diverse array of views from a wide spectrum of sources. Views are organized in a question-and-response format to encourage readers to view complex issues from multiple angles. This approach provides students with a concise view of divergent opinions on each topic.","English",198,158.4,null,"176–200 pp.","https://greenhavenpublishing.com/9781534508699",null,{"$f":"Table1[[#This Row],['# of Books]]*Table1[[#This Row],[QTY]]","v":0},{"$f":"Table1[[#This Row],[QTY]]*Table1[[#This Row],[School & Library Price]]","v":0}]
[null,12,null,null,null,"Current Issues","Current Controversies","Current Controversies (Fall 2021)","978-1-5345-0828-6",{"$f":"HYPERLINK(Table1[[#This Row],[eCommerce Hyperlink]],\"Book Weblink\")","v":"Book Weblink"},null,"Greenhaven Publishing","Library Set",7,"2022","August 2021","Library","6.000 X 9.000",null,null,null,null,null,null,null,null,"Grade 10 - 12","Grade 9 - 12","This powerful set provides a diverse array of views from a wide spectrum of sources about topics such as attacks on science, hate groups, the internet of things, and sustainable consumption. Views are organized in a question-and-response format to encourage readers to view complex issues from multiple angles. This approach provides students with a concise view of divergent opinions on each topic, allowing them to form their own intelligent opinions. Features include: Question-and-answer format that offers a balanced approach to arguments on both sides of contemporary debates. Volume introductions provide the historical and political context necessary to engage with nuanced topics. Curated further reading and organizations to contact lists guide students in continued engagement with each topic.","English",331.8,265.44,null,"176–200 pp.","https://greenhavenpublishing.com/9781534508286",null,{"$f":"Table1[[#This Row],['# of Books]]*Table1[[#This Row],[QTY]]","v":0},{"$f":"Table1[[#This Row],[QTY]]*Table1[[#This Row],[School & Library Price]]","v":0}]
[null,12,null,null,null,"Current Issues","Current Controversies","Current Controversies (Fall 2021)","978-1-5345-0831-6",{"$f":"HYPERLINK(Table1[[#This Row],[eCommerce Hyperlink]],\"Book Weblink\")","v":"Book Weblink"},null,"Greenhaven Publishing","Single Copy Set",7,"2022","August 2021","Paperback","6.000 X 9.000",null,null,null,null,null,null,null,null,"Grade 10 - 12","Grade 9 - 12","This powerful set provides a diverse array of views from a wide spectrum of sources about topics such as attacks on science, hate groups, the internet of things, and sustainable consumption. Views are organized in a question-and-response format to encourage readers to view complex issues from multiple angles. This approach provides students with a concise view of divergent opinions on each topic, allowing them to form their own intelligent opinions. Features include: Question-and-answer format that offers a balanced approach to arguments on both sides of contemporary debates. Volume introductions provide the historical and political context necessary to engage with nuanced topics. Curated further reading and organizations to contact lists guide students in continued engagement with each topic.","English",231,184.8,null,"176–200 pp.","https://greenhavenpublishing.com/9781534508316",null,{"$f":"Table1[[#This Row],['# of Books]]*Table1[[#This Row],[QTY]]","v":0},{"$f":"Table1[[#This Row],[QTY]]*Table1[[#This Row],[School & Library Price]]","v":0}]
[null,null,null,10,null,"Biographies","People Who Make a Difference","People Who Make a Difference: Sets 1 – 2","978-1-5345-3714-9",{"$f":"HYPERLINK(Table1[[#This Row],[eCommerce Hyperlink]],\"Book Weblink\")","v":"Book Weblink"},null,"KidHaven Publishing","Library Set",12,"2022","January 2022","Library","8.500 X 8.500",null,null,null,null,null,null,null,null,"Grade 3","Grade 3 - 5","Actors, athletes, musicians, and other famous people are often in the news for their accomplishments, but some of them have also made headlines for the work they're doing to make the world a better place. Readers are introduced to the stories of these inspirational figures, from LeBron James to Lady Gaga. As they discover the work these people have done to make a difference, they're encouraged to make their own mark on the world using their unique talents. These engaging biographies are enhanced with graphic organizers and photographs of these role models in action. Features include: Quote boxes with inspirational words from the biographical subjects. Detailed lists of achievable ways young people can be more like these role models. Each figure is carefully chosen to appeal to a wide range of readers with interests in sports, pop music, government, hip-hop, movies, and technology.","English",307.2,245.76,null,"24 pp.","https://greenhavenpublishing.com/9781534537149",null,{"$f":"Table1[[#This Row],['# of Books]]*Table1[[#This Row],[QTY]]","v":0},{"$f":"Table1[[#This Row],[QTY]]*Table1[[#This Row],[School & Library Price]]","v":0}]
[null,null,null,10,null,"Biographies","People Who Make a Difference","People Who Make a Difference: Set 2","978-1-5345-3713-2",{"$f":"HYPERLINK(Table1[[#This Row],[eCommerce Hyperlink]],\"Book Weblink\")","v":"Book Weblink"},null,"KidHaven Publishing","Library Set",6,"2022","January 2022","Library","8.500 X 8.500",null,null,null,null,null,null,null,null,"Grade 3","Grade 3 - 5","What do Chance the Rapper, Brie Larson, and LeBron James have in common? They're all using their fame to make a difference in the world. Readers discover the fascinating stories behind these and other role models in the fields of sports, music, movies, and dance. As they explore the biographical narratives, they're inspired to follow the examples of these men and women to change the world for the better using their unique voice and abilities. This enlightening and empowering reading experience is made memorable through interesting full-color photographs of these famous faces throughout their careers. Features include: Detailed timelines featuring important career and humanitarian work moments. Suggestions for actions to take to be more like each role model, fostering a sense of active citizenship, respect, and care for others. Quote boxes that highlight age-appropriate advice and other inspirational messages.","English",153.6,122.88,null,"24 pp.","https://greenhavenpublishing.com/9781534537132",null,{"$f":"Table1[[#This Row],['# of Books]]*Table1[[#This Row],[QTY]]","v":0},{"$f":"Table1[[#This Row],[QTY]]*Table1[[#This Row],[School & Library Price]]","v":0}]
[null,null,null,12,null,"Current Issues","Points of View","Points of View: Sets 1 – 8","978-1-5345-3710-1",{"$f":"HYPERLINK(Table1[[#This Row],[eCommerce Hyperlink]],\"Book Weblink\")","v":"Book Weblink"},null,"KidHaven Publishing","Library Set",48,"2022","August 2021","Library","8.500 X 8.500",null,null,null,null,null,null,null,null,"Grade 3","Grade 3 - 5","It’s important to respect and listen to others’ viewpoints, but this skill seems to be disappearing in today’s landscape of cable news and social media. However, through a format that presents alternating points of view concerning some of today’s most pressing issues, devoting equal time to each side, young readers learn how to respectfully evaluate arguments and formulate their own opinions. Enhanced with full-color photographs and engaging fact boxes, the objective main text explores hot-button issues such as social media, the Electoral College, and plastic bag bans, allowing readers to draw their own conclusions.","English",1228.8,983.04,null,"24 pp.","https://greenhavenpublishing.com/9781534537101",null,{"$f":"Table1[[#This Row],['# of Books]]*Table1[[#This Row],[QTY]]","v":0},{"$f":"Table1[[#This Row],[QTY]]*Table1[[#This Row],[School & Library Price]]","v":0}]
[null,null,null,12,null,"Current Issues","Points of View","Points of View: Set 8","978-1-5345-3709-5",{"$f":"HYPERLINK(Table1[[#This Row],[eCommerce Hyperlink]],\"Book Weblink\")","v":"Book Weblink"},null,"KidHaven Publishing","Library Set",6,"2022","August 2021","Library","8.500 X 8.500",null,null,null,null,null,null,null,null,"Grade 3","Grade 3 - 5","Kids are often at the center of some of today’s most challenging debates. Should schools have dress codes? Should students be allowed to protest at school? The answers to these kinds of questions affect the daily lives of kids around the world. By focusing on the nuances behind different points of view, readers are able develop opinions based in fact. Through graphic organizers, balanced text, and full-color photographs, readers are introduced to different viewpoints and are encouraged to develop their own informed opinions on issues that affect them now and will affect them in the future.","English",153.6,122.88,null,"24 pp.","https://greenhavenpublishing.com/9781534537095",null,{"$f":"Table1[[#This Row],['# of Books]]*Table1[[#This Row],[QTY]]","v":0},{"$f":"Table1[[#This Row],[QTY]]*Table1[[#This Row],[School & Library Price]]","v":0}]
[null,null,null,13,null,"Current Issues","Points of View","Should We Keep Animals in Zoos?","978-1-5345-2327-2",{"$f":"HYPERLINK(Table1[[#This Row],[eCommerce Hyperlink]],\"Book Weblink\")","v":"Book Weblink"},null,"KidHaven Publishing","Library Bound Book",1,"2018","August 2017","Library","8.500 X 8.500","Author","Nick Christopher",null,null,null,null,"N",null,"Grade 3","Grade 3 - 5","Are zoos ethical? There is not one right answer to this challenging question. Readers discover the different arguments that can be made in favor of and against zoos. These different points of view are presented with relevant facts to support them, encouraging readers to understand the different sides of the debate surrounding zoos. Clear main text, eye-catching fact boxes, and detailed graphic organizers help readers make their own informed opinion. Full-color photographs are included to enhance a reading experience that sharpens essential critical thinking skills and encourages readers to approach controversial topics with an open mind.","English",25.6,20.48,"590.74--dc23","24 pp.","https://greenhavenpublishing.com/9781534523272",null,{"$f":"Table1[[#This Row],['# of Books]]*Table1[[#This Row],[QTY]]","v":0},{"$f":"Table1[[#This Row],[QTY]]*Table1[[#This Row],[School & Library Price]]","v":0}]
[null,null,null,13,null,"Current Issues","Points of View","Should We Keep Animals in Zoos?","978-1-5345-2328-9",{"$f":"HYPERLINK(Table1[[#This Row],[eCommerce Hyperlink]],\"Book Weblink\")","v":"Book Weblink"},null,"KidHaven Publishing","eBook",1,"2018","August 2017",null,null,"Author","Nick Christopher",null,null,null,null,"N",null,"Grade 3","Grade 3 - 5","Are zoos ethical? There is not one right answer to this challenging question. Readers discover the different arguments that can be made in favor of and against zoos. These different points of view are presented with relevant facts to support them, encouraging readers to understand the different sides of the debate surrounding zoos. Clear main text, eye-catching fact boxes, and detailed graphic organizers help readers make their own informed opinion. Full-color photographs are included to enhance a reading experience that sharpens essential critical thinking skills and encourages readers to approach controversial topics with an open mind.","English",25.6,20.48,"590.74--dc23","24 pp.","https://greenhavenpublishing.com/9781534523289",null,{"$f":"Table1[[#This Row],['# of Books]]*Table1[[#This Row],[QTY]]","v":0},{"$f":"Table1[[#This Row],[QTY]]*Table1[[#This Row],[School & Library Price]]","v":0}]
[null,null,null,13,null,"Current Issues","Points of View","Should We Pay for Water?","978-1-5345-2330-2",{"$f":"HYPERLINK(Table1[[#This Row],[eCommerce Hyperlink]],\"Book Weblink\")","v":"Book Weblink"},null,"KidHaven Publishing","Library Bound Book",1,"2018","August 2017","Library","8.500 X 8.500","Author","Robert M. Hamilton ",null,null,null,null,"N",null,"Grade 3","Grade 3 - 5","Water is a natural resource we need to survive. Knowing this, is it right that we have to pay for it? Readers explore the different ways this challenging question can be answered, developing strong critical thinking skills as they evaluate arguments for and against paying for water. Essential facts needed to understand each point of view are presented through age-appropriate text, informative fact boxes, and clear graphic organizers. Vivid photographs keep readers engaged as they learn the information necessary to develop their own informed opinion and to respect the opinions of others when discussing this important issue.","English",25.6,20.48,"333.91--dc23","24 pp.","https://greenhavenpublishing.com/9781534523302",null,{"$f":"Table1[[#This Row],['# of Books]]*Table1[[#This Row],[QTY]]","v":0},{"$f":"Table1[[#This Row],[QTY]]*Table1[[#This Row],[School & Library Price]]","v":0}]
[null,null,null,13,null,"Current Issues","Points of View","Should We Pay for Water?","978-1-5345-2331-9",{"$f":"HYPERLINK(Table1[[#This Row],[eCommerce Hyperlink]],\"Book Weblink\")","v":"Book Weblink"},null,"KidHaven Publishing","eBook",1,"2018","August 2017",null,null,"Author","Robert M. Hamilton ",null,null,null,null,"N",null,"Grade 3","Grade 3 - 5","Water is a natural resource we need to survive. Knowing this, is it right that we have to pay for it? Readers explore the different ways this challenging question can be answered, developing strong critical thinking skills as they evaluate arguments for and against paying for water. Essential facts needed to understand each point of view are presented through age-appropriate text, informative fact boxes, and clear graphic organizers. Vivid photographs keep readers engaged as they learn the information necessary to develop their own informed opinion and to respect the opinions of others when discussing this important issue.","English",25.6,20.48,"333.91--dc23","24 pp.","https://greenhavenpublishing.com/9781534523319",null,{"$f":"Table1[[#This Row],['# of Books]]*Table1[[#This Row],[QTY]]","v":0},{"$f":"Table1[[#This Row],[QTY]]*Table1[[#This Row],[School & Library Price]]","v":0}]
[null,null,null,13,null,"Current Issues","Points of View","Who Should See What You're Doing Online?","978-1-5345-2423-1",{"$f":"HYPERLINK(Table1[[#This Row],[eCommerce Hyperlink]],\"Book Weblink\")","v":"Book Weblink"},null,"KidHaven Publishing","Library Bound Book",1,"2018","January 2018","Library","8.500 X 8.500","Author","Emma Jones","5.8","0.5",null,null,"N",null,"Grade 3","Grade 3 - 5","Privacy has always been a major concern for young people, and with the rise of laptops, tablets, and smartphones, it is much easier for them to hide what they're doing from adults. However, there are still ways for parents, teachers, and even the government to see what young people are doing online. Is this ethical? Is it necessary? These questions and more are posed as readers explore the complex issue of privacy in the digital age. Balanced main text, informative fact boxes, and visual elements such as photographs and graphic organizers give readers a comprehensive understanding of this topical issue.","English",25.6,20.48,"004.67'8--dc23","24 pp.","https://greenhavenpublishing.com/9781534524231",null,{"$f":"Table1[[#This Row],['# of Books]]*Table1[[#This Row],[QTY]]","v":0},{"$f":"Table1[[#This Row],[QTY]]*Table1[[#This Row],[School & Library Price]]","v":0}]
[null,null,null,13,null,"Current Issues","Points of View","Who Should See What You're Doing Online?","978-1-5345-2424-8",{"$f":"HYPERLINK(Table1[[#This Row],[eCommerce Hyperlink]],\"Book Weblink\")","v":"Book Weblink"},null,"KidHaven Publishing","eBook",1,"2018","January 2018",null,null,"Author","Emma Jones","5.8","0.5",null,null,"N",null,"Grade 3","Grade 3 - 5","Privacy has always been a major concern for young people, and with the rise of laptops, tablets, and smartphones, it is much easier for them to hide what they're doing from adults. However, there are still ways for parents, teachers, and even the government to see what young people are doing online. Is this ethical? Is it necessary? These questions and more are posed as readers explore the complex issue of privacy in the digital age. Balanced main text, informative fact boxes, and visual elements such as photographs and graphic organizers give readers a comprehensive understanding of this topical issue.","English",25.6,20.48,"004.67'8--dc23","24 pp.","https://greenhavenpublishing.com/9781534524248",null,{"$f":"Table1[[#This Row],['# of Books]]*Table1[[#This Row],[QTY]]","v":0},{"$f":"Table1[[#This Row],[QTY]]*Table1[[#This Row],[School & Library Price]]","v":0}]
[null,null,null,13,null,"Current Issues","Points of View","Why Are Some People Homeless?","978-1-5345-2338-8",{"$f":"HYPERLINK(Table1[[#This Row],[eCommerce Hyperlink]],\"Book Weblink\")","v":"Book Weblink"},null,"KidHaven Publishing","Library Bound Book",1,"2018","August 2017","Library","8.500 X 8.500","Author","Emma Jones",null,null,null,null,"N","930L","Grade 3","Grade 3 - 5","Homelessness is a problem that affects millions of people around the world. When discussing important issues such as homelessness, it is important to understand the pertinent facts in order to form a solid argument. Readers are presented with those pertinent facts through enlightening main text and helpful text features, including fact boxes and graphic organizers. Full-color photographs accompany this vital information. People approach social issues such as homelessness from different points of view, and readers are introduced to new perspectives as they enhance their own critical thinking skills.","English",25.6,20.48,"362.5'92--dc23","24 pp.","https://greenhavenpublishing.com/9781534523388",null,{"$f":"Table1[[#This Row],['# of Books]]*Table1[[#This Row],[QTY]]","v":0},{"$f":"Table1[[#This Row],[QTY]]*Table1[[#This Row],[School & Library Price]]","v":0}]
[null,null,null,13,null,"Current Issues","Points of View","Why Are Some People Homeless?","978-1-5345-2339-5",{"$f":"HYPERLINK(Table1[[#This Row],[eCommerce Hyperlink]],\"Book Weblink\")","v":"Book Weblink"},null,"KidHaven Publishing","eBook",1,"2018","August 2017",null,null,"Author","Emma Jones",null,null,null,null,"N","930L","Grade 3","Grade 3 - 5","Homelessness is a problem that affects millions of people around the world. When discussing important issues such as homelessness, it is important to understand the pertinent facts in order to form a solid argument. Readers are presented with those pertinent facts through enlightening main text and helpful text features, including fact boxes and graphic organizers. Full-color photographs accompany this vital information. People approach social issues such as homelessness from different points of view, and readers are introduced to new perspectives as they enhance their own critical thinking skills.","English",25.6,20.48,"362.5'92--dc23","24 pp.","https://greenhavenpublishing.com/9781534523395",null,{"$f":"Table1[[#This Row],['# of Books]]*Table1[[#This Row],[QTY]]","v":0},{"$f":"Table1[[#This Row],[QTY]]*Table1[[#This Row],[School & Library Price]]","v":0}]
[null,null,null,14,null,"Current Issues","What's the Issue?","What's the Issue?: Sets 1 – 6","978-1-5345-3491-9",{"$f":"HYPERLINK(Table1[[#This Row],[eCommerce Hyperlink]],\"Book Weblink\")","v":"Book Weblink"},null,"KidHaven Publishing","Library Set",36,"2022","August 2021","Library","8.500 X 8.500",null,null,null,null,null,null,null,null,"Grade 3","Grade 3 - 5","Student rights, immigration, and gender identity are just a few important topics that are debated every day, and the results of these debates have very real effects on the lives of people around the world. However, the topics are complex, and children often receive a limited picture of the whole issue, which can cause confusion and distress. Through accessible texts supplemented by full-color photographs, graphic organizers, and fact boxes, young readers learn the facts about these issues. This collection will help them understand what is at stake and form their own opinions about current events and controversial topics. Features include: Objective narratives that give balanced views, allowing readers to develop critical thinking skills. Lists of age-appropriate ways to engage in activism alleviate fear by encouraging involvement. Historical context clarifies today's pressing issues, allowing readers to make connections between what they learn and what's happening today.","English",921.6,737.28,null,"24 pp.","https://greenhavenpublishing.com/9781534534919",null,{"$f":"Table1[[#This Row],['# of Books]]*Table1[[#This Row],[QTY]]","v":0},{"$f":"Table1[[#This Row],[QTY]]*Table1[[#This Row],[School & Library Price]]","v":0}]
[null,null,null,14,null,"Current Issues","What's the Issue?","What's the Issue?: Set 6","978-1-5345-3490-2",{"$f":"HYPERLINK(Table1[[#This Row],[eCommerce Hyperlink]],\"Book Weblink\")","v":"Book Weblink"},null,"KidHaven Publishing","Library Set",6,"2022","August 2021","Library","8.500 X 8.500",null,null,null,null,null,null,null,null,"Grade 3","Grade 3 - 5","Educating the next generation of voters and activists is crucial in the 21st century as pressing issues including switching to renewable energy and struggling with mental health, begin affecting people at a younger age than ever before. Understanding the facts surrounding such topics is an essential part of making informed decisions. Graphic organizers and full-color photographs provide a foundation for young readers to understand complex topics and formulate their own opinions. These augment the objective narratives, which present information in a neutral way that encourages critical thinking based on facts. Features include: Accessible language that gives young readers the vocabulary needed to engage with current events. Curriculum-based background information on each issue allows readers to make connections between what they learn in the classroom and what's happening in life. Lists of age-appropriate ways to get involved encourage active citizenship from a young age.","English",153.6,122.88,null,"24 pp.","https://greenhavenpublishing.com/9781534534902",null,{"$f":"Table1[[#This Row],['# of Books]]*Table1[[#This Row],[QTY]]","v":0},{"$f":"Table1[[#This Row],[QTY]]*Table1[[#This Row],[School & Library Price]]","v":0}]
[null,null,null,18,null,"Math","First Math","First Math: Set 2","978-1-5345-3905-1",{"$f":"HYPERLINK(Table1[[#This Row],[eCommerce Hyperlink]],\"Book Weblink\")","v":"Book Weblink"},null,"KidHaven Publishing","Library Set",4,"2022","August 2021","Library","11.00 X 8.500",null,null,null,null,null,null,null,null,"Grade K","Grade Pre-K - 1","Essential early math concepts are presented in a cute and captivating way in these fun guides to adding, subtracting, and more. Simple, clear text explains the basics of challenging curriculum topics, supplementing classroom lessons in a way that provides additional resources for those who need extra assistance and those who want to have more fun with math. Together with charming, colorful photographs, the relatable examples help beginning readers learn how to apply math concepts to their everyday lives in a way that’s accessible and enjoyable.","English",102.4,81.92,null,"24 pp.","https://greenhavenpublishing.com/9781534539051",null,{"$f":"Table1[[#This Row],['# of Books]]*Table1[[#This Row],[QTY]]","v":0},{"$f":"Table1[[#This Row],[QTY]]*Table1[[#This Row],[School & Library Price]]","v":0}]
[null,null,null,20,null,"Animals","Life Cycles","Life Cycles: Set 2","978-1-5345-3834-4",{"$f":"HYPERLINK(Table1[[#This Row],[eCommerce Hyperlink]],\"Book Weblink\")","v":"Book Weblink"},null,"KidHaven Publishing","Library Set",6,"2022","August 2021","Library","8.500 X 8.500",null,null,null,null,null,null,null,null,"Grade 1 - 2","Grade 1 - 3","What does a crab look like when it’s born? How is a duckling different from a duck? Do jellyfish change as they grow up? These are just some of the questions readers can find answers to as they explore these fun and fact-filled guides to life cycles. The age-appropriate main text provides both familiar and unique examples of life cycles of mammals, birds, insects, and other cool creatures. Fact boxes feature additional information in an eye-catching format, and colorful photographs help readers visualize each stage of the life cycles they’re reading about.","English",153.6,122.88,null,"24 pp.","https://greenhavenpublishing.com/9781534538344",null,{"$f":"Table1[[#This Row],['# of Books]]*Table1[[#This Row],[QTY]]","v":0},{"$f":"Table1[[#This Row],[QTY]]*Table1[[#This Row],[School & Library Price]]","v":0}]
[null,null,null,null,null,"Current Issues","Opposing Viewpoints","Artificial Intelligence and the Technological Singularity","978-1-5345-0027-3",{"$f":"HYPERLINK(Table1[[#This Row],[eCommerce Hyperlink]],\"Book Weblink\")","v":"Book Weblink"},null,"Greenhaven Publishing","Library Bound Book",1,"2017","January 2017","Library","6.000 X 9.000","Edited by","Anne C. Cunningham",null,null,null,null,"Z",null,"Grade 10 - 12","Grade 9 - 12","Will machines take over the world one day? Will they have human emotions? Will they be our friends or foes? Will they make our lives easier or will they wipe out the human labor force? Readers will come to their own conclusions after reading articles from leading experts forecasting how robots and machines will be integrated into our world, as well as their warnings about how it could all go horribly wrong. Aside from the obvious benefits, the development of artificial intelligence brings up a host of ethical considerations, which are being debated by the world's technology leaders before it's too late.","English",49.8,39.840000000000003,"006.3--dc23","192 pp.","https://greenhavenpublishing.com/9781534500273",null,{"$f":"Table1[[#This Row],['# of Books]]*Table1[[#This Row],[QTY]]","v":0},{"$f":"Table1[[#This Row],[QTY]]*Table1[[#This Row],[School & Library Price]]","v":0}]
[null,null,null,null,null,"Current Issues","Opposing Viewpoints","Artificial Intelligence and the Technological Singularity","978-1-5345-0029-7",{"$f":"HYPERLINK(Table1[[#This Row],[eCommerce Hyperlink]],\"Book Weblink\")","v":"Book Weblink"},null,"Greenhaven Publishing","Paperback Book",1,"2017","January 2017","Paperback","6.000 X 9.000","Edited by","Anne C. Cunningham",null,null,null,null,"Z",null,"Grade 10 - 12","Grade 9 - 12","Will machines take over the world one day? Will they have human emotions? Will they be our friends or foes? Will they make our lives easier or will they wipe out the human labor force? Readers will come to their own conclusions after reading articles from leading experts forecasting how robots and machines will be integrated into our world, as well as their warnings about how it could all go horribly wrong. Aside from the obvious benefits, the development of artificial intelligence brings up a host of ethical considerations, which are being debated by the world's technology leaders before it's too late.","English",34.799999999999997,27.85,"006.3--dc23","192 pp.","https://greenhavenpublishing.com/9781534500297",null,{"$f":"Table1[[#This Row],['# of Books]]*Table1[[#This Row],[QTY]]","v":0},{"$f":"Table1[[#This Row],[QTY]]*Table1[[#This Row],[School & Library Price]]","v":0}]
[null,null,null,null,null,"Current Issues","Opposing Viewpoints","Public Shaming","978-1-5345-0023-5",{"$f":"HYPERLINK(Table1[[#This Row],[eCommerce Hyperlink]],\"Book Weblink\")","v":"Book Weblink"},null,"Greenhaven Publishing","Library Bound Book",1,"2017","January 2017","Library","6.000 X 9.000","Edited by","Anne C. Cunningham",null,null,null,null,"Z",null,"Grade 10 - 12","Grade 9 - 12","Embarrassing others to correct their behavior is nothing new; stockades and tarring and feathering were favored methods in colonial America, after all. But today, individuals and the media can point out egregious behavior via social media and reach a wide audience. There are countless examples of people who have lost their jobs and received physical threats because of shaming that went viral. Did the punishment fit the crime? Through a multitude of viewpoints and examples, readers will examine the value of public shaming: Is it an effective disciplinary tool or simply a way for people to feel morally superior?","English",49.8,39.840000000000003,"303.3'8--dc23","188 pp.","https://greenhavenpublishing.com/9781534500235",null,{"$f":"Table1[[#This Row],['# of Books]]*Table1[[#This Row],[QTY]]","v":0},{"$f":"Table1[[#This Row],[QTY]]*Table1[[#This Row],[School & Library Price]]","v":0}]
[null,null,null,null,null,"Current Issues","Opposing Viewpoints","Public Shaming","978-1-5345-0033-4",{"$f":"HYPERLINK(Table1[[#This Row],[eCommerce Hyperlink]],\"Book Weblink\")","v":"Book Weblink"},null,"Greenhaven Publishing","Paperback Book",1,"2017","January 2017","Paperback","6.000 X 9.000","Edited by","Anne C. Cunningham",null,null,null,null,"Z",null,"Grade 10 - 12","Grade 9 - 12","Embarrassing others to correct their behavior is nothing new; stockades and tarring and feathering were favored methods in colonial America, after all. But today, individuals and the media can point out egregious behavior via social media and reach a wide audience. There are countless examples of people who have lost their jobs and received physical threats because of shaming that went viral. Did the punishment fit the crime? Through a multitude of viewpoints and examples, readers will examine the value of public shaming: Is it an effective disciplinary tool or simply a way for people to feel morally superior?","English",34.799999999999997,27.85,"303.3'8--dc23","188 pp.","https://greenhavenpublishing.com/9781534500334",null,{"$f":"Table1[[#This Row],['# of Books]]*Table1[[#This Row],[QTY]]","v":0},{"$f":"Table1[[#This Row],[QTY]]*Table1[[#This Row],[School & Library Price]]","v":0}]
[null,null,null,null,null,"Current Issues","Opposing Viewpoints","Race in America","978-1-5345-0022-8",{"$f":"HYPERLINK(Table1[[#This Row],[eCommerce Hyperlink]],\"Book Weblink\")","v":"Book Weblink"},null,"Greenhaven Publishing","Library Bound Book",1,"2017","January 2017","Library","6.000 X 9.000","Edited by","Susan Henneberg",null,null,null,null,"Z",null,"Grade 10 - 12","Grade 9 - 12","Many Americans believe they're living in a post-racial society, pointing to the election of Barack Obama to the presidency as evidence. Others believe that, despite the advances achieved by the civil rights movement, people of color are treated as second-class citizens. Is race overemphasized in America? Have government programs and policies done enough to level the playing field? Can the United States, a country that lives by the credo that all men are created equal, ever overcome its legacy of racism? Readers of this multifaceted anthology will be given the tools to form their own opinions about these complex issues.","English",49.8,39.840000000000003,"305.800973--dc23","208 pp.","https://greenhavenpublishing.com/9781534500228",null,{"$f":"Table1[[#This Row],['# of Books]]*Table1[[#This Row],[QTY]]","v":0},{"$f":"Table1[[#This Row],[QTY]]*Table1[[#This Row],[School & Library Price]]","v":0}]
[null,null,null,null,null,"Current Issues","Opposing Viewpoints","Race in America","978-1-5345-0028-0",{"$f":"HYPERLINK(Table1[[#This Row],[eCommerce Hyperlink]],\"Book Weblink\")","v":"Book Weblink"},null,"Greenhaven Publishing","Paperback Book",1,"2017","January 2017","Paperback","6.000 X 9.000","Edited by","Susan Henneberg",null,null,null,null,"Z",null,"Grade 10 - 12","Grade 9 - 12","Many Americans believe they're living in a post-racial society, pointing to the election of Barack Obama to the presidency as evidence. Others believe that, despite the advances achieved by the civil rights movement, people of color are treated as second-class citizens. Is race overemphasized in America? Have government programs and policies done enough to level the playing field? Can the United States, a country that lives by the credo that all men are created equal, ever overcome its legacy of racism? Readers of this multifaceted anthology will be given the tools to form their own opinions about these complex issues.","English",34.799999999999997,27.85,"305.800973--dc23","208 pp.","https://greenhavenpublishing.com/9781534500280",null,{"$f":"Table1[[#This Row],['# of Books]]*Table1[[#This Row],[QTY]]","v":0},{"$f":"Table1[[#This Row],[QTY]]*Table1[[#This Row],[School & Library Price]]","v":0}]
[null,null,null,null,null,"Current Issues","Opposing Viewpoints","Reparations","978-1-5345-0025-9",{"$f":"HYPERLINK(Table1[[#This Row],[eCommerce Hyperlink]],\"Book Weblink\")","v":"Book Weblink"},null,"Greenhaven Publishing","Library Bound Book",1,"2017","January 2017","Library","6.000 X 9.000","Edited by","Anne C. Cunningham",null,null,null,null,"Z",null,"Grade 10 - 12","Grade 9 - 12","Should descendants of slaves be compensated for the suffering their ancestors endured? Should the losing side in a war be forced to pay the victor? When modern-day states confront long-ago atrocities, is acknowledgement and an apology enough? This fascinating examination of reparations offers opinions by leading experts on such past injustices as the Holocaust, the slave trade, the Armenian genocide, the forced relocation of Native Americans, and the Imperial Japanese Army’s comfort women. An asset to any library, Reparations takes on the very uncomfortable issue of how governments and individuals can reckon with sins of the past.","English",49.8,39.840000000000003,"305.896’073--dc23","200 pp.","https://greenhavenpublishing.com/9781534500259",null,{"$f":"Table1[[#This Row],['# of Books]]*Table1[[#This Row],[QTY]]","v":0},{"$f":"Table1[[#This Row],[QTY]]*Table1[[#This Row],[School & Library Price]]","v":0}]
[null,null,null,null,null,"Current Issues","Opposing Viewpoints","Reparations","978-1-5345-0031-0",{"$f":"HYPERLINK(Table1[[#This Row],[eCommerce Hyperlink]],\"Book Weblink\")","v":"Book Weblink"},null,"Greenhaven Publishing","Paperback Book",1,"2017","January 2017","Paperback","6.000 X 9.000","Edited by","Anne C. Cunningham",null,null,null,null,"Z",null,"Grade 10 - 12","Grade 9 - 12","Should descendants of slaves be compensated for the suffering their ancestors endured? Should the losing side in a war be forced to pay the victor? When modern-day states confront long-ago atrocities, is acknowledgement and an apology enough? This fascinating examination of reparations offers opinions by leading experts on such past injustices as the Holocaust, the slave trade, the Armenian genocide, the forced relocation of Native Americans, and the Imperial Japanese Army’s comfort women. An asset to any library, Reparations takes on the very uncomfortable issue of how governments and individuals can reckon with sins of the past.","English",34.799999999999997,27.85,"305.896’073--dc23","200 pp.","https://greenhavenpublishing.com/9781534500310",null,{"$f":"Table1[[#This Row],['# of Books]]*Table1[[#This Row],[QTY]]","v":0},{"$f":"Table1[[#This Row],[QTY]]*Table1[[#This Row],[School & Library Price]]","v":0}]
[null,null,null,null,null,"Current Issues","Opposing Viewpoints","Virtual Reality","978-1-5345-0026-6",{"$f":"HYPERLINK(Table1[[#This Row],[eCommerce Hyperlink]],\"Book Weblink\")","v":"Book Weblink"},null,"Greenhaven Publishing","Library Bound Book",1,"2017","January 2017","Library","6.000 X 9.000","Edited by","Susan Henneberg",null,null,null,null,"Z",null,"Grade 10 - 12","Grade 9 - 12","Virtual reality might seem like the stuff of science fiction, but it has been in use in various forms since the 1950s. The technology is being developed for use in education, professional and military training, therapy, entertainment, and design. But is a simulated world a better world? Experts caution that virtual reality could be physically and emotionally debilitating. They predict that society could go into decline. Is this simply fear of progress, or is it something to take seriously? Readers will learn the hot-button issues associated with virtual reality and whether we should be excited or afraid of this incredible technology.","English",49.8,39.840000000000003,"006.8--dc23","200 pp.","https://greenhavenpublishing.com/9781534500266",null,{"$f":"Table1[[#This Row],['# of Books]]*Table1[[#This Row],[QTY]]","v":0},{"$f":"Table1[[#This Row],[QTY]]*Table1[[#This Row],[School & Library Price]]","v":0}]
[null,null,null,null,null,"Current Issues","Opposing Viewpoints","Virtual Reality","978-1-5345-0030-3",{"$f":"HYPERLINK(Table1[[#This Row],[eCommerce Hyperlink]],\"Book Weblink\")","v":"Book Weblink"},null,"Greenhaven Publishing","Paperback Book",1,"2017","January 2017","Paperback","6.000 X 9.000","Edited by","Susan Henneberg",null,null,null,null,"Z",null,"Grade 10 - 12","Grade 9 - 12","Virtual reality might seem like the stuff of science fiction, but it has been in use in various forms since the 1950s. The technology is being developed for use in education, professional and military training, therapy, entertainment, and design. But is a simulated world a better world? Experts caution that virtual reality could be physically and emotionally debilitating. They predict that society could go into decline. Is this simply fear of progress, or is it something to take seriously? Readers will learn the hot-button issues associated with virtual reality and whether we should be excited or afraid of this incredible technology.","English",34.799999999999997,27.85,"006.8--dc23","200 pp.","https://greenhavenpublishing.com/9781534500303",null,{"$f":"Table1[[#This Row],['# of Books]]*Table1[[#This Row],[QTY]]","v":0},{"$f":"Table1[[#This Row],[QTY]]*Table1[[#This Row],[School & Library Price]]","v":0}]
[null,null,null,null,null,"Current Issues","Opposing Viewpoints","The Wealth Gap","978-1-5345-0024-2",{"$f":"HYPERLINK(Table1[[#This Row],[eCommerce Hyperlink]],\"Book Weblink\")","v":"Book Weblink"},null,"Greenhaven Publishing","Library Bound Book",1,"2017","January 2017","Library","6.000 X 9.000","Edited by","Susan Henneberg",null,null,null,null,"Z",null,"Grade 10 - 12","Grade 9 - 12","Depending on whom you ask, the gap between rich and poor in the United States is widening. Is income inequality in America a cause for concern, or is it, as some experts assert, necessary for a functioning society? What is the government’s responsibility in attaining a more equitable distribution of wealth? This well-balanced anthology tackles big questions like “Is the American dream still attainable?” and “How should income inequality be addressed?” with articles from a variety of viewpoints that will help readers understand how we got to this point, what can be done to change things, and potential effects on our future.","English",49.8,39.840000000000003,"331.2’1530973--dc23","216 pp.","https://greenhavenpublishing.com/9781534500242",null,{"$f":"Table1[[#This Row],['# of Books]]*Table1[[#This Row],[QTY]]","v":0},{"$f":"Table1[[#This Row],[QTY]]*Table1[[#This Row],[School & Library Price]]","v":0}]
[null,null,null,null,null,"Current Issues","Opposing Viewpoints","The Wealth Gap","978-1-5345-0034-1",{"$f":"HYPERLINK(Table1[[#This Row],[eCommerce Hyperlink]],\"Book Weblink\")","v":"Book Weblink"},null,"Greenhaven Publishing","Paperback Book",1,"2017","January 2017","Paperback","6.000 X 9.000","Edited by","Susan Henneberg",null,null,null,null,"Z",null,"Grade 10 - 12","Grade 9 - 12","Depending on whom you ask, the gap between rich and poor in the United States is widening. Is income inequality in America a cause for concern, or is it, as some experts assert, necessary for a functioning society? What is the government’s responsibility in attaining a more equitable distribution of wealth? This well-balanced anthology tackles big questions like “Is the American dream still attainable?” and “How should income inequality be addressed?” with articles from a variety of viewpoints that will help readers understand how we got to this point, what can be done to change things, and potential effects on our future.","English",34.799999999999997,27.85,"331.2’1530973--dc23","216 pp.","https://greenhavenpublishing.com/9781534500341",null,{"$f":"Table1[[#This Row],['# of Books]]*Table1[[#This Row],[QTY]]","v":0},{"$f":"Table1[[#This Row],[QTY]]*Table1[[#This Row],[School & Library Price]]","v":0}]
[null,null,null,null,null,"Current Issues","Introducing Issues with Opposing Viewpoints","Introducing Issues with Opposing Viewpoints (Spring 2021)","978-1-5345-0747-0",{"$f":"HYPERLINK(Table1[[#This Row],[eCommerce Hyperlink]],\"Book Weblink\")","v":"Book Weblink"},null,"Greenhaven Publishing","Library Set",7,"2021","January 2021","Library","6.500 X 9.250",null,null,null,null,null,null,null,null,"Grade 7 - 10","Grade 7 - 12","Inspired by the highly acclaimed Opposing Viewpoints series, this set promotes issue awareness and the development of critical thinking skills. Extremely user-friendly and accessible, it offers a wealth of information at a lower reading level in a bright, engaging package. This appealing combination helps students grasp the controversies of our increasingly complex world. Features include: Fact boxes that provide students with statistical information. Photographs and graphics engage readers and assist in comprehension. Guided reading and critical-thinking questions for each viewpoint assist students in understanding how viewpoint authors develop arguments.","English",215,172,null,"120 pp.","https://greenhavenpublishing.com/9781534507470",null,{"$f":"Table1[[#This Row],['# of Books]]*Table1[[#This Row],[QTY]]","v":0},{"$f":"Table1[[#This Row],[QTY]]*Table1[[#This Row],[School & Library Price]]","v":0}]
[null,null,null,null,null,"Current Issues","Introducing Issues with Opposing Viewpoints","Introducing Issues with Opposing Viewpoints (Spring 2021)","978-1-5345-0749-4",{"$f":"HYPERLINK(Table1[[#This Row],[eCommerce Hyperlink]],\"Book Weblink\")","v":"Book Weblink"},null,"Greenhaven Publishing","Single Copy Set",7,"2021","January 2021","Paperback","6.500 X 9.250",null,null,null,null,null,null,null,null,"Grade 7 - 10","Grade 7 - 12","Inspired by the highly acclaimed Opposing Viewpoints series, this set promotes issue awareness and the development of critical thinking skills. Extremely user-friendly and accessible, it offers a wealth of information at a lower reading level in a bright, engaging package. This appealing combination helps students grasp the controversies of our increasingly complex world. Features include: Fact boxes that provide students with statistical information. Photographs and graphics engage readers and assist in comprehension. Guided reading and critical-thinking questions for each viewpoint assist students in understanding how viewpoint authors develop arguments.","English",146.5,117.25,null,"120 pp.","https://greenhavenpublishing.com/9781534507494",null,{"$f":"Table1[[#This Row],['# of Books]]*Table1[[#This Row],[QTY]]","v":0},{"$f":"Table1[[#This Row],[QTY]]*Table1[[#This Row],[School & Library Price]]","v":0}]
[null,null,null,null,null,"Current Issues","At Issue","At Issue (Spring 2021)","978-1-5345-0746-3",{"$f":"HYPERLINK(Table1[[#This Row],[eCommerce Hyperlink]],\"Book Weblink\")","v":"Book Weblink"},null,"Greenhaven Publishing","Library Set",7,"2021","January 2021","Library","6.000 X 9.000",null,null,null,null,null,null,null,null,"Grade 10 - 12","Grade 9 - 12","This analytical set provides a wide range of opinions on controversial subjects including nuclear anxiety, open borders, money laundering, and food security. Each volume includes primary and secondary sources from many perspectives and a variety of sources including journals, newspapers, books, websites, and government agencies. Features include: Curated selections of contemporary articles that guide students in considering all sides of controversial issues. Viewpoint introductions assist readers in understanding the key arguments made by each viewpoint. Volume introductions provide students with unbiased information about the topic's historical and political context.","English",202,161.6,null,"128 pp.","https://greenhavenpublishing.com/9781534507463",null,{"$f":"Table1[[#This Row],['# of Books]]*Table1[[#This Row],[QTY]]","v":0},{"$f":"Table1[[#This Row],[QTY]]*Table1[[#This Row],[School & Library Price]]","v":0}]
[null,null,null,null,null,"Current Issues","At Issue","At Issue (Spring 2021)","978-1-5345-0753-1",{"$f":"HYPERLINK(Table1[[#This Row],[eCommerce Hyperlink]],\"Book Weblink\")","v":"Book Weblink"},null,"Greenhaven Publishing","Single Copy Set",7,"2021","January 2021","Paperback","6.000 X 9.000",null,null,null,null,null,null,null,null,"Grade 10 - 12","Grade 9 - 12","This analytical set provides a wide range of opinions on controversial subjects including nuclear anxiety, open borders, money laundering, and food security. Each volume includes primary and secondary sources from many perspectives and a variety of sources including journals, newspapers, books, websites, and government agencies. Features include: Curated selections of contemporary articles that guide students in considering all sides of controversial issues. Viewpoint introductions assist readers in understanding the key arguments made by each viewpoint. Volume introductions provide students with unbiased information about the topic's historical and political context.","English",144,115.25,null,"128 pp.","https://greenhavenpublishing.com/9781534507531",null,{"$f":"Table1[[#This Row],['# of Books]]*Table1[[#This Row],[QTY]]","v":0},{"$f":"Table1[[#This Row],[QTY]]*Table1[[#This Row],[School & Library Price]]","v":0}]
[null,null,null,null,null,"Current Issues","Current Controversies","The Energy Industry","978-1-5345-0303-8",{"$f":"HYPERLINK(Table1[[#This Row],[eCommerce Hyperlink]],\"Book Weblink\")","v":"Book Weblink"},null,"Greenhaven Publishing","eBook",1,"2019","August 2018",null,null,"Edited by","Kristina Lyn Heitkamp",null,null,null,null,"Z",null,"Grade 10 - 12","Grade 9 - 12","The debate over how the energy industry should develop in the United States and beyond has reached a critical point. The search for cleaner and more sustainable fuel sources continues, but with the United States' proposed withdrawal from the Paris climate accord and the expansion of the Keystone XL pipeline approved by the Trump administration, the issue of how America's energy policy should develop in the coming years is more complicated than ever. Readers will gain a better understanding of the factual information on the energy industry and learn the key arguments in the debate surrounding it.","English",47.4,37.92,"333.79--dc23","200 pp.","https://greenhavenpublishing.com/9781534503038",null,{"$f":"Table1[[#This Row],['# of Books]]*Table1[[#This Row],[QTY]]","v":0},{"$f":"Table1[[#This Row],[QTY]]*Table1[[#This Row],[School & Library Price]]","v":0}]
[null,null,null,null,null,"Current Issues","Current Controversies","Executive Orders","978-1-5345-0306-9",{"$f":"HYPERLINK(Table1[[#This Row],[eCommerce Hyperlink]],\"Book Weblink\")","v":"Book Weblink"},null,"Greenhaven Publishing","eBook",1,"2019","August 2018",null,null,"Edited by","Marcia Amidon Lusted",null,null,null,null,"Z",null,"Grade 10 - 12","Grade 9 - 12","How much power should the president of the United States possess? This is the key question defining the debate over executive orders. While executive orders have played an important role in key policy changes throughout the United States' history, they can also be perceived as an abuse of power that allows the president to make important decisions without Congress's consent. Through the viewpoints included in this volume, readers will come to better understand what an executive order is and explore the key arguments for and against its usage.","English",47.4,37.92,"352.23/50973--dc23","200 pp.","https://greenhavenpublishing.com/9781534503069",null,{"$f":"Table1[[#This Row],['# of Books]]*Table1[[#This Row],[QTY]]","v":0},{"$f":"Table1[[#This Row],[QTY]]*Table1[[#This Row],[School & Library Price]]","v":0}]
[null,null,null,null,null,"Current Issues","Current Controversies","Freedom of Speech on Campus","978-1-5345-0309-0",{"$f":"HYPERLINK(Table1[[#This Row],[eCommerce Hyperlink]],\"Book Weblink\")","v":"Book Weblink"},null,"Greenhaven Publishing","eBook",1,"2019","August 2018",null,null,"Edited by","Eamon Doyle",null,null,null,null,"Z",null,"Grade 10 - 12","Grade 9 - 12","Freedom of speech is a fundamental aspect of American democracy, and university campuses have historically been central to the free speech debate through serving as protectors of this constitutional right. In recent years, campuses have returned to the center of this debate as our notion of what kinds of speech are acceptable and how speech should be controlled continues to develop. With the rise of trigger warnings, designated free-speech zones, and controversial speakers being disinvited from lecturing at universities, the question of whether campuses continue to represent the future of free speech or symbolize its repression has become progressively urgent.","English",47.4,37.92,"323.44/30973--dc23","176 pp.","https://greenhavenpublishing.com/9781534503090",null,{"$f":"Table1[[#This Row],['# of Books]]*Table1[[#This Row],[QTY]]","v":0},{"$f":"Table1[[#This Row],[QTY]]*Table1[[#This Row],[School & Library Price]]","v":0}]
[null,null,null,null,null,"Current Issues","Current Controversies","Political Extremism in the United States","978-1-5345-0312-0",{"$f":"HYPERLINK(Table1[[#This Row],[eCommerce Hyperlink]],\"Book Weblink\")","v":"Book Weblink"},null,"Greenhaven Publishing","eBook",1,"2019","August 2018",null,null,"Edited by","Eamon Doyle",null,null,null,null,"Z",null,"Grade 10 - 12","Grade 9 - 12","The 2016 presidential election brought to light the increasingly polarized nature of American politics. What brought about this political extremism, and can anything be done to curb it? This volume helps to define political extremism, explores the ways in which extremism manifests itself, including hate speech and domestic terrorism, and explains theories about how it can be counteracted. With partisanship in the United States showing no sign of decline without significant intervention, it is more essential than ever to try to understand what brought about this political division.","English",47.4,37.92,"303.48/4--dc23","200 pp.","https://greenhavenpublishing.com/9781534503120",null,{"$f":"Table1[[#This Row],['# of Books]]*Table1[[#This Row],[QTY]]","v":0},{"$f":"Table1[[#This Row],[QTY]]*Table1[[#This Row],[School & Library Price]]","v":0}]
[null,null,null,null,null,"Current Issues","Current Controversies","States' Rights and the Role of the Federal Government","978-1-5345-0315-1",{"$f":"HYPERLINK(Table1[[#This Row],[eCommerce Hyperlink]],\"Book Weblink\")","v":"Book Weblink"},null,"Greenhaven Publishing","eBook",1,"2019","August 2018",null,null,"Edited by","Marcia Amidon Lusted",null,null,null,null,"Z","1360L","Grade 10 - 12","Grade 9 - 12","The balance of power between states and the federal government has long been a point of contention. In an era when one political party controls the three branches of the federal government, the possibility to employ states' rights to resist objectionable federal policy has made it a highly contemporary issue. With states' rights at the center of issues like sanctuary cities, abortion, gun control, and LGBTQ rights, understanding the distribution of power between state and federal government is key to grasping the current political climate and the future of American politics.","English",47.4,37.92,"320.473/049--dc23","200 pp.","https://greenhavenpublishing.com/9781534503151",null,{"$f":"Table1[[#This Row],['# of Books]]*Table1[[#This Row],[QTY]]","v":0},{"$f":"Table1[[#This Row],[QTY]]*Table1[[#This Row],[School & Library Price]]","v":0}]
[null,null,null,null,null,"Current Issues","Current Controversies","Universal Health Care","978-1-5345-0318-2",{"$f":"HYPERLINK(Table1[[#This Row],[eCommerce Hyperlink]],\"Book Weblink\")","v":"Book Weblink"},null,"Greenhaven Publishing","eBook",1,"2019","August 2018",null,null,"Edited by","Kristina Lyn Heitkamp",null,null,null,null,"Z",null,"Grade 10 - 12","Grade 9 - 12","With the Affordable Care Act signed into law in 2010, the United States seemed closer than ever to achieving universal health care. However, repealing the act has been a key goal for the Trump administration and the Republican-controlled Congress, with the main arguments against it including the higher premiums for middle-class Americans and the abuse of government power through its control of the insurance industry. This volume helps define universal health care, explains the arguments for and against it, and discusses attempts to implement it on an international scale.","English",47.4,37.92,"362.10973--dc23","176 pp.","https://greenhavenpublishing.com/9781534503182",null,{"$f":"Table1[[#This Row],['# of Books]]*Table1[[#This Row],[QTY]]","v":0},{"$f":"Table1[[#This Row],[QTY]]*Table1[[#This Row],[School & Library Price]]","v":0}]
[null,null,null,null,null,"Current Issues","Global Viewpoints","Anti-Semitism and the Boycott, Divestment, and Sanctions Movement","978-1-5345-0390-8",{"$f":"HYPERLINK(Table1[[#This Row],[eCommerce Hyperlink]],\"Book Weblink\")","v":"Book Weblink"},null,"Greenhaven Publishing","Library Bound Book",1,"2019","January 2019","Library","6.000 X 9.000","Edited by","Gary Wiener",null,null,null,null,"Z",null,"Grade 10 - 12","Grade 9 - 12","Since its inception in 2005, the Boycott, Divestment, and Sanctions (BDS) movement has seen numerous boycotts against Israel in an effort to encourage withdrawal from what supporters of the movement consider to be occupied territories, along with recognition of the rights of Arab-Palestinian citizens and refugees. Supporters claim that Israel is an apartheid state, but this assertion is hotly contested. Many critics of BDS claim that the movement is anti-Semitic and promotes the delegitimization of Israel. This volume explores the varying perspectives on the movement, enabling readers to form their own opinions about its place in global politics.","English",47.2,37.76,"956.9405/5--dc23","176 pp.","https://greenhavenpublishing.com/9781534503908",null,{"$f":"Table1[[#This Row],['# of Books]]*Table1[[#This Row],[QTY]]","v":0},{"$f":"Table1[[#This Row],[QTY]]*Table1[[#This Row],[School & Library Price]]","v":0}]
[null,null,null,null,null,"Current Issues","Global Viewpoints","Anti-Semitism and the Boycott, Divestment, and Sanctions Movement","978-1-5345-0405-9",{"$f":"HYPERLINK(Table1[[#This Row],[eCommerce Hyperlink]],\"Book Weblink\")","v":"Book Weblink"},null,"Greenhaven Publishing","eBook",1,"2019","January 2019",null,null,"Edited by","Gary Wiener",null,null,null,null,"Z",null,"Grade 10 - 12","Grade 9 - 12","Since its inception in 2005, the Boycott, Divestment, and Sanctions (BDS) movement has seen numerous boycotts against Israel in an effort to encourage withdrawal from what supporters of the movement consider to be occupied territories, along with recognition of the rights of Arab-Palestinian citizens and refugees. Supporters claim that Israel is an apartheid state, but this assertion is hotly contested. Many critics of BDS claim that the movement is anti-Semitic and promotes the delegitimization of Israel. This volume explores the varying perspectives on the movement, enabling readers to form their own opinions about its place in global politics.","English",47.2,37.76,"956.9405/5--dc23","176 pp.","https://greenhavenpublishing.com/9781534504059",null,{"$f":"Table1[[#This Row],['# of Books]]*Table1[[#This Row],[QTY]]","v":0},{"$f":"Table1[[#This Row],[QTY]]*Table1[[#This Row],[School & Library Price]]","v":0}]
[null,null,null,null,null,"Current Issues","Global Viewpoints","Anti-Semitism and the Boycott, Divestment, and Sanctions Movement","978-1-5345-0467-7",{"$f":"HYPERLINK(Table1[[#This Row],[eCommerce Hyperlink]],\"Book Weblink\")","v":"Book Weblink"},null,"Greenhaven Publishing","Paperback Book",1,"2019","January 2019","Paperback","6.000 X 9.000","Edited by","Gary Wiener",null,null,null,null,"Z",null,"Grade 10 - 12","Grade 9 - 12","Since its inception in 2005, the Boycott, Divestment, and Sanctions (BDS) movement has seen numerous boycotts against Israel in an effort to encourage withdrawal from what supporters of the movement consider to be occupied territories, along with recognition of the rights of Arab-Palestinian citizens and refugees. Supporters claim that Israel is an apartheid state, but this assertion is hotly contested. Many critics of BDS claim that the movement is anti-Semitic and promotes the delegitimization of Israel. This volume explores the varying perspectives on the movement, enabling readers to form their own opinions about its place in global politics.","English",32.700000000000003,26.2,"956.9405/5--dc23","176 pp.","https://greenhavenpublishing.com/9781534504677",null,{"$f":"Table1[[#This Row],['# of Books]]*Table1[[#This Row],[QTY]]","v":0},{"$f":"Table1[[#This Row],[QTY]]*Table1[[#This Row],[School & Library Price]]","v":0}]
[null,null,null,null,null,"Current Issues","Global Viewpoints","Arms Sales, Treaties, and Violations","978-1-5345-0349-6",{"$f":"HYPERLINK(Table1[[#This Row],[eCommerce Hyperlink]],\"Book Weblink\")","v":"Book Weblink"},null,"Greenhaven Publishing","Library Bound Book",1,"2019","August 2018","Library","6.000 X 9.000","Edited by","Rita Santos",null,null,null,null,"Z",null,"Grade 10 - 12","Grade 9 - 12","The international weapons trade is a vast and lucrative machine, estimated at generating 70 billion dollars annually. In 2014, The Arms Trade Treaty, which regulates the international trade in conventional arms, was entered into force. But compliance is complicated, and even the most powerful nations have violated the treaty. Irresponsible arms transfers and ready availability can destabilize security and cause a host of problems among civilian populations in a region. The viewpoints in this resource examine the responsibility of nation states around the world to take accountability for their participation in weaponizing.","English",47.2,37.76,"382/.456234--dc23","200 pp.","https://greenhavenpublishing.com/9781534503496",null,{"$f":"Table1[[#This Row],['# of Books]]*Table1[[#This Row],[QTY]]","v":0},{"$f":"Table1[[#This Row],[QTY]]*Table1[[#This Row],[School & Library Price]]","v":0}]
[null,null,null,null,null,"Current Issues","Global Viewpoints","Arms Sales, Treaties, and Violations","978-1-5345-0351-9",{"$f":"HYPERLINK(Table1[[#This Row],[eCommerce Hyperlink]],\"Book Weblink\")","v":"Book Weblink"},null,"Greenhaven Publishing","eBook",1,"2019","August 2018",null,null,"Edited by","Rita Santos",null,null,null,null,"Z",null,"Grade 10 - 12","Grade 9 - 12","The international weapons trade is a vast and lucrative machine, estimated at generating 70 billion dollars annually. In 2014, The Arms Trade Treaty, which regulates the international trade in conventional arms, was entered into force. But compliance is complicated, and even the most powerful nations have violated the treaty. Irresponsible arms transfers and ready availability can destabilize security and cause a host of problems among civilian populations in a region. The viewpoints in this resource examine the responsibility of nation states around the world to take accountability for their participation in weaponizing.","English",47.2,37.76,"382/.456234--dc23","200 pp.","https://greenhavenpublishing.com/9781534503519",null,{"$f":"Table1[[#This Row],['# of Books]]*Table1[[#This Row],[QTY]]","v":0},{"$f":"Table1[[#This Row],[QTY]]*Table1[[#This Row],[School & Library Price]]","v":0}]
[null,null,null,null,null,"Current Issues","Global Viewpoints","Arms Sales, Treaties, and Violations","978-1-5345-0350-2",{"$f":"HYPERLINK(Table1[[#This Row],[eCommerce Hyperlink]],\"Book Weblink\")","v":"Book Weblink"},null,"Greenhaven Publishing","Paperback Book",1,"2019","August 2018","Paperback","6.000 X 9.000","Edited by","Rita Santos",null,null,null,null,"Z",null,"Grade 10 - 12","Grade 9 - 12","The international weapons trade is a vast and lucrative machine, estimated at generating 70 billion dollars annually. In 2014, The Arms Trade Treaty, which regulates the international trade in conventional arms, was entered into force. But compliance is complicated, and even the most powerful nations have violated the treaty. Irresponsible arms transfers and ready availability can destabilize security and cause a host of problems among civilian populations in a region. The viewpoints in this resource examine the responsibility of nation states around the world to take accountability for their participation in weaponizing.","English",32.700000000000003,26.2,"382/.456234--dc23","200 pp.","https://greenhavenpublishing.com/9781534503502",null,{"$f":"Table1[[#This Row],['# of Books]]*Table1[[#This Row],[QTY]]","v":0},{"$f":"Table1[[#This Row],[QTY]]*Table1[[#This Row],[School & Library Price]]","v":0}]
[null,null,null,null,null,"Current Issues","Global Viewpoints","Chemical and Biological Warfare","978-1-5345-0548-3",{"$f":"HYPERLINK(Table1[[#This Row],[eCommerce Hyperlink]],\"Book Weblink\")","v":"Book Weblink"},null,"Greenhaven Publishing","Library Bound Book",1,"2020","August 2019","Library","6.000 X 9.000","Edited by","Lisa Idzikowski",null,null,null,null,"Z",null,"Grade 10 - 12","Grade 9 - 12","The international community has pledged to curtail development and use of chemical and biological weapons in several agreements, beginning with the 1925 Geneva Protocol, but several nations are not honoring these pacts. Critics argue that chemical and biological weapons are crueler than traditional warfare methods and that they harm innocent civilians. Some experts say that they are less of a threat when compared to nuclear weapons. The authors of the viewpoints in this informative resource examine the use and efficacy of chemical and biological weapons, address who is using them, and suggest ways to prevent their use.","English",47.2,37.76,"358/.34--dc23","200 pp.","https://greenhavenpublishing.com/9781534505483",null,{"$f":"Table1[[#This Row],['# of Books]]*Table1[[#This Row],[QTY]]","v":0},{"$f":"Table1[[#This Row],[QTY]]*Table1[[#This Row],[School & Library Price]]","v":0}]
[null,null,null,null,null,"Current Issues","Global Viewpoints","Chemical and Biological Warfare","978-1-5345-0550-6",{"$f":"HYPERLINK(Table1[[#This Row],[eCommerce Hyperlink]],\"Book Weblink\")","v":"Book Weblink"},null,"Greenhaven Publishing","eBook",1,"2020","August 2019",null,null,"Edited by","Lisa Idzikowski",null,null,null,null,"Z",null,"Grade 10 - 12","Grade 9 - 12","The international community has pledged to curtail development and use of chemical and biological weapons in several agreements, beginning with the 1925 Geneva Protocol, but several nations are not honoring these pacts. Critics argue that chemical and biological weapons are crueler than traditional warfare methods and that they harm innocent civilians. Some experts say that they are less of a threat when compared to nuclear weapons. The authors of the viewpoints in this informative resource examine the use and efficacy of chemical and biological weapons, address who is using them, and suggest ways to prevent their use.","English",47.2,37.76,"358/.34--dc23","200 pp.","https://greenhavenpublishing.com/9781534505506",null,{"$f":"Table1[[#This Row],['# of Books]]*Table1[[#This Row],[QTY]]","v":0},{"$f":"Table1[[#This Row],[QTY]]*Table1[[#This Row],[School & Library Price]]","v":0}]
[null,null,null,null,null,"Current Issues","Global Viewpoints","Chemical and Biological Warfare","978-1-5345-0549-0",{"$f":"HYPERLINK(Table1[[#This Row],[eCommerce Hyperlink]],\"Book Weblink\")","v":"Book Weblink"},null,"Greenhaven Publishing","Paperback Book",1,"2020","August 2019","Paperback","6.000 X 9.000","Edited by","Lisa Idzikowski",null,null,null,null,"Z",null,"Grade 10 - 12","Grade 9 - 12","The international community has pledged to curtail development and use of chemical and biological weapons in several agreements, beginning with the 1925 Geneva Protocol, but several nations are not honoring these pacts. Critics argue that chemical and biological weapons are crueler than traditional warfare methods and that they harm innocent civilians. Some experts say that they are less of a threat when compared to nuclear weapons. The authors of the viewpoints in this informative resource examine the use and efficacy of chemical and biological weapons, address who is using them, and suggest ways to prevent their use.","English",32.700000000000003,26.2,"358/.34--dc23","200 pp.","https://greenhavenpublishing.com/9781534505490",null,{"$f":"Table1[[#This Row],['# of Books]]*Table1[[#This Row],[QTY]]","v":0},{"$f":"Table1[[#This Row],[QTY]]*Table1[[#This Row],[School & Library Price]]","v":0}]
[null,null,null,null,null,"Current Issues","Global Viewpoints","Citizenship in the 21st Century","978-1-5345-0551-3",{"$f":"HYPERLINK(Table1[[#This Row],[eCommerce Hyperlink]],\"Book Weblink\")","v":"Book Weblink"},null,"Greenhaven Publishing","Library Bound Book",1,"2020","August 2019","Library","6.000 X 9.000","Edited by","Martin Gitlin",null,null,null,null,"Z",null,"Grade 10 - 12","Grade 9 - 12","What does it mean to be a citizen in the 21st century? Globalization, the dominance of corporations, the influence of technology, massive immigration, and geopolitical shifts have changed our world considerably in just a few decades. How have these changes affected the responsibilities placed on us as citizens and also on governments and leaders around the world? Tackling a number of fascinating issues pertaining to our future, the viewpoints in this resource examine our place in the world today and predict the ways in which citizenship will continue to evolve.","English",47.2,37.76,"323.6/5--dc23","176 pp.","https://greenhavenpublishing.com/9781534505513",null,{"$f":"Table1[[#This Row],['# of Books]]*Table1[[#This Row],[QTY]]","v":0},{"$f":"Table1[[#This Row],[QTY]]*Table1[[#This Row],[School & Library Price]]","v":0}]
[null,null,null,null,null,"Current Issues","Global Viewpoints","Citizenship in the 21st Century","978-1-5345-0553-7",{"$f":"HYPERLINK(Table1[[#This Row],[eCommerce Hyperlink]],\"Book Weblink\")","v":"Book Weblink"},null,"Greenhaven Publishing","eBook",1,"2020","August 2019",null,null,"Edited by","Martin Gitlin",null,null,null,null,"Z",null,"Grade 10 - 12","Grade 9 - 12","What does it mean to be a citizen in the 21st century? Globalization, the dominance of corporations, the influence of technology, massive immigration, and geopolitical shifts have changed our world considerably in just a few decades. How have these changes affected the responsibilities placed on us as citizens and also on governments and leaders around the world? Tackling a number of fascinating issues pertaining to our future, the viewpoints in this resource examine our place in the world today and predict the ways in which citizenship will continue to evolve.","English",47.2,37.76,"323.6/5--dc23","176 pp.","https://greenhavenpublishing.com/9781534505537",null,{"$f":"Table1[[#This Row],['# of Books]]*Table1[[#This Row],[QTY]]","v":0},{"$f":"Table1[[#This Row],[QTY]]*Table1[[#This Row],[School & Library Price]]","v":0}]
[null,null,null,null,null,"Current Issues","Global Viewpoints","Citizenship in the 21st Century","978-1-5345-0552-0",{"$f":"HYPERLINK(Table1[[#This Row],[eCommerce Hyperlink]],\"Book Weblink\")","v":"Book Weblink"},null,"Greenhaven Publishing","Paperback Book",1,"2020","August 2019","Paperback","6.000 X 9.000","Edited by","Martin Gitlin",null,null,null,null,"Z",null,"Grade 10 - 12","Grade 9 - 12","What does it mean to be a citizen in the 21st century? Globalization, the dominance of corporations, the influence of technology, massive immigration, and geopolitical shifts have changed our world considerably in just a few decades. How have these changes affected the responsibilities placed on us as citizens and also on governments and leaders around the world? Tackling a number of fascinating issues pertaining to our future, the viewpoints in this resource examine our place in the world today and predict the ways in which citizenship will continue to evolve.","English",32.700000000000003,26.2,"323.6/5--dc23","176 pp.","https://greenhavenpublishing.com/9781534505520",null,{"$f":"Table1[[#This Row],['# of Books]]*Table1[[#This Row],[QTY]]","v":0},{"$f":"Table1[[#This Row],[QTY]]*Table1[[#This Row],[School & Library Price]]","v":0}]
[null,null,null,null,null,"Current Issues","Global Viewpoints","Civilian Casualties in War","978-1-5345-0337-3",{"$f":"HYPERLINK(Table1[[#This Row],[eCommerce Hyperlink]],\"Book Weblink\")","v":"Book Weblink"},null,"Greenhaven Publishing","Library Bound Book",1,"2019","August 2018","Library","6.000 X 9.000","Edited by","Barbara Krasner ",null,null,null,null,"Z","1370L","Grade 10 - 12","Grade 9 - 12","According to UNICEF, the number of civilian casualties in war climbed from 5 percent at the turn of the twentieth century to more than 90 percent at the end of that century. Additionally, the current war against ISIS has racked up a staggering number of civilian deaths, including children. The days when professional armies fought in contained areas are long gone, having been replaced by drone strikes, neighbors shooting at neighbors from apartment windows, and massacres in rural villages. The viewpoints in this resource examine this byproduct of modern war and explore strategies for reducing civilian casualties.","English",47.2,37.76,"172/.42--dc23","200 pp.","https://greenhavenpublishing.com/9781534503373",null,{"$f":"Table1[[#This Row],['# of Books]]*Table1[[#This Row],[QTY]]","v":0},{"$f":"Table1[[#This Row],[QTY]]*Table1[[#This Row],[School & Library Price]]","v":0}]
[null,null,null,null,null,"Current Issues","Global Viewpoints","Civilian Casualties in War","978-1-5345-0339-7",{"$f":"HYPERLINK(Table1[[#This Row],[eCommerce Hyperlink]],\"Book Weblink\")","v":"Book Weblink"},null,"Greenhaven Publishing","eBook",1,"2019","August 2018",null,null,"Edited by","Barbara Krasner ",null,null,null,null,"Z","1370L","Grade 10 - 12","Grade 9 - 12","According to UNICEF, the number of civilian casualties in war climbed from 5 percent at the turn of the twentieth century to more than 90 percent at the end of that century. Additionally, the current war against ISIS has racked up a staggering number of civilian deaths, including children. The days when professional armies fought in contained areas are long gone, having been replaced by drone strikes, neighbors shooting at neighbors from apartment windows, and massacres in rural villages. The viewpoints in this resource examine this byproduct of modern war and explore strategies for reducing civilian casualties.","English",47.2,37.76,"172/.42--dc23","200 pp.","https://greenhavenpublishing.com/9781534503397",null,{"$f":"Table1[[#This Row],['# of Books]]*Table1[[#This Row],[QTY]]","v":0},{"$f":"Table1[[#This Row],[QTY]]*Table1[[#This Row],[School & Library Price]]","v":0}]
[null,null,null,null,null,"Current Issues","Global Viewpoints","Civilian Casualties in War","978-1-5345-0338-0",{"$f":"HYPERLINK(Table1[[#This Row],[eCommerce Hyperlink]],\"Book Weblink\")","v":"Book Weblink"},null,"Greenhaven Publishing","Paperback Book",1,"2019","August 2018","Paperback","6.000 X 9.000","Edited by","Barbara Krasner ",null,null,null,null,"Z","1370L","Grade 10 - 12","Grade 9 - 12","According to UNICEF, the number of civilian casualties in war climbed from 5 percent at the turn of the twentieth century to more than 90 percent at the end of that century. Additionally, the current war against ISIS has racked up a staggering number of civilian deaths, including children. The days when professional armies fought in contained areas are long gone, having been replaced by drone strikes, neighbors shooting at neighbors from apartment windows, and massacres in rural villages. The viewpoints in this resource examine this byproduct of modern war and explore strategies for reducing civilian casualties.","English",32.700000000000003,26.2,"172/.42--dc23","200 pp.","https://greenhavenpublishing.com/9781534503380",null,{"$f":"Table1[[#This Row],['# of Books]]*Table1[[#This Row],[QTY]]","v":0},{"$f":"Table1[[#This Row],[QTY]]*Table1[[#This Row],[School & Library Price]]","v":0}]
[null,null,null,null,null,"Current Issues","Global Viewpoints","Climate Change and Population Displacement","978-1-5345-0554-4",{"$f":"HYPERLINK(Table1[[#This Row],[eCommerce Hyperlink]],\"Book Weblink\")","v":"Book Weblink"},null,"Greenhaven Publishing","Library Bound Book",1,"2020","August 2019","Library","6.000 X 9.000","Edited by","Marcia Amidon Lusted",null,null,null,null,"Z","1330L","Grade 10 - 12","Grade 9 - 12","While politicians debate whether or not climate change is real, extreme weather rages around the world. Whatever the cause, the effects are real, as evidenced by staggering numbers of displaced people. These climate refugees, through no fault of their own, have meaningful impacts on populations, economies, and even cultural makeup. How can world leaders adapt to these changes? In this fascinating resource, writers from around the world offer their takes on the current crises as well as predictions for the future.","English",47.2,37.76,"362.87--dc23","200 pp.","https://greenhavenpublishing.com/9781534505544",null,{"$f":"Table1[[#This Row],['# of Books]]*Table1[[#This Row],[QTY]]","v":0},{"$f":"Table1[[#This Row],[QTY]]*Table1[[#This Row],[School & Library Price]]","v":0}]
[null,null,null,null,null,"Current Issues","Global Viewpoints","Climate Change and Population Displacement","978-1-5345-0556-8",{"$f":"HYPERLINK(Table1[[#This Row],[eCommerce Hyperlink]],\"Book Weblink\")","v":"Book Weblink"},null,"Greenhaven Publishing","eBook",1,"2020","August 2019",null,null,"Edited by","Marcia Amidon Lusted",null,null,null,null,"Z","1330L","Grade 10 - 12","Grade 9 - 12","While politicians debate whether or not climate change is real, extreme weather rages around the world. Whatever the cause, the effects are real, as evidenced by staggering numbers of displaced people. These climate refugees, through no fault of their own, have meaningful impacts on populations, economies, and even cultural makeup. How can world leaders adapt to these changes? In this fascinating resource, writers from around the world offer their takes on the current crises as well as predictions for the future.","English",47.2,37.76,"362.87--dc23","200 pp.","https://greenhavenpublishing.com/9781534505568",null,{"$f":"Table1[[#This Row],['# of Books]]*Table1[[#This Row],[QTY]]","v":0},{"$f":"Table1[[#This Row],[QTY]]*Table1[[#This Row],[School & Library Price]]","v":0}]
[null,null,null,null,null,"Current Issues","Global Viewpoints","Climate Change and Population Displacement","978-1-5345-0555-1",{"$f":"HYPERLINK(Table1[[#This Row],[eCommerce Hyperlink]],\"Book Weblink\")","v":"Book Weblink"},null,"Greenhaven Publishing","Paperback Book",1,"2020","August 2019","Paperback","6.000 X 9.000","Edited by","Marcia Amidon Lusted",null,null,null,null,"Z","1330L","Grade 10 - 12","Grade 9 - 12","While politicians debate whether or not climate change is real, extreme weather rages around the world. Whatever the cause, the effects are real, as evidenced by staggering numbers of displaced people. These climate refugees, through no fault of their own, have meaningful impacts on populations, economies, and even cultural makeup. How can world leaders adapt to these changes? In this fascinating resource, writers from around the world offer their takes on the current crises as well as predictions for the future.","English",32.700000000000003,26.2,"362.87--dc23","200 pp.","https://greenhavenpublishing.com/9781534505551",null,{"$f":"Table1[[#This Row],['# of Books]]*Table1[[#This Row],[QTY]]","v":0},{"$f":"Table1[[#This Row],[QTY]]*Table1[[#This Row],[School & Library Price]]","v":0}]
[null,null,null,null,null,"Current Issues","Global Viewpoints","Collective Guilt: Slavery, the Holocaust, and Other Atrocities","978-1-5345-0391-5",{"$f":"HYPERLINK(Table1[[#This Row],[eCommerce Hyperlink]],\"Book Weblink\")","v":"Book Weblink"},null,"Greenhaven Publishing","Library Bound Book",1,"2019","January 2019","Library","6.000 X 9.000","Edited by","Avery Elizabeth Hurt",null,null,null,null,"Z",null,"Grade 10 - 12","Grade 9 - 12","The Holocaust came to an end in 1945, and slavery was abolished in the United States in 1865. Many of the individuals who directly experienced these horrific events are no longer living, but descendants of these victims claim to suffer lasting effects. However, these lingering traces of historical trauma extend even further: descendants of oppressors and perpetrators are often held to be responsible for the atrocities as well. Notions of collective guilt and punishment have been debated from the immediate aftermath of these atrocities to the present, with issues including reparations and admissions of guilt among the contentious topics. This compelling resource tackles this tough topic.","English",47.2,37.76,"305--dc23","176 pp.","https://greenhavenpublishing.com/9781534503915",null,{"$f":"Table1[[#This Row],['# of Books]]*Table1[[#This Row],[QTY]]","v":0},{"$f":"Table1[[#This Row],[QTY]]*Table1[[#This Row],[School & Library Price]]","v":0}]
[null,null,null,null,null,"Current Issues","Global Viewpoints","Collective Guilt: Slavery, the Holocaust, and Other Atrocities","978-1-5345-0406-6",{"$f":"HYPERLINK(Table1[[#This Row],[eCommerce Hyperlink]],\"Book Weblink\")","v":"Book Weblink"},null,"Greenhaven Publishing","eBook",1,"2019","January 2019",null,null,"Edited by","Avery Elizabeth Hurt",null,null,null,null,"Z",null,"Grade 10 - 12","Grade 9 - 12","The Holocaust came to an end in 1945, and slavery was abolished in the United States in 1865. Many of the individuals who directly experienced these horrific events are no longer living, but descendants of these victims claim to suffer lasting effects. However, these lingering traces of historical trauma extend even further: descendants of oppressors and perpetrators are often held to be responsible for the atrocities as well. Notions of collective guilt and punishment have been debated from the immediate aftermath of these atrocities to the present, with issues including reparations and admissions of guilt among the contentious topics. This compelling resource tackles this tough topic.","English",47.2,37.76,"305--dc23","176 pp.","https://greenhavenpublishing.com/9781534504066",null,{"$f":"Table1[[#This Row],['# of Books]]*Table1[[#This Row],[QTY]]","v":0},{"$f":"Table1[[#This Row],[QTY]]*Table1[[#This Row],[School & Library Price]]","v":0}]
[null,null,null,null,null,"Current Issues","Global Viewpoints","Collective Guilt: Slavery, the Holocaust, and Other Atrocities","978-1-5345-0469-1",{"$f":"HYPERLINK(Table1[[#This Row],[eCommerce Hyperlink]],\"Book Weblink\")","v":"Book Weblink"},null,"Greenhaven Publishing","Paperback Book",1,"2019","January 2019","Paperback","6.000 X 9.000","Edited by","Avery Elizabeth Hurt",null,null,null,null,"Z",null,"Grade 10 - 12","Grade 9 - 12","The Holocaust came to an end in 1945, and slavery was abolished in the United States in 1865. Many of the individuals who directly experienced these horrific events are no longer living, but descendants of these victims claim to suffer lasting effects. However, these lingering traces of historical trauma extend even further: descendants of oppressors and perpetrators are often held to be responsible for the atrocities as well. Notions of collective guilt and punishment have been debated from the immediate aftermath of these atrocities to the present, with issues including reparations and admissions of guilt among the contentious topics. This compelling resource tackles this tough topic.","English",32.700000000000003,26.2,"305--dc23","176 pp.","https://greenhavenpublishing.com/9781534504691",null,{"$f":"Table1[[#This Row],['# of Books]]*Table1[[#This Row],[QTY]]","v":0},{"$f":"Table1[[#This Row],[QTY]]*Table1[[#This Row],[School & Library Price]]","v":0}]
[null,null,null,null,null,"Current Issues","Global Viewpoints","Cyberterrorism and Ransomware Attacks","978-1-5345-0340-3",{"$f":"HYPERLINK(Table1[[#This Row],[eCommerce Hyperlink]],\"Book Weblink\")","v":"Book Weblink"},null,"Greenhaven Publishing","Library Bound Book",1,"2019","August 2018","Library","6.000 X 9.000","Edited by","Gary Wiener",null,null,null,null,"Z",null,"Grade 10 - 12","Grade 9 - 12","In this digital age, it is not only conventional weapons that are used to threaten and harm others. A new and terrifying avenue is cyberspace and ransomware. This malware encrypts a user's data and demands payment in exchange for unlocking the data. Such attacks are becoming more widespread: a 2017 cyber incident attacked more than 45,000 users in countries around the world. This anthology presents a collection of global perspectives on the topic that examines the potential of such attacks and how we can secure ourselves in the future.","English",47.2,37.76,"363.325--dc23","176 pp.","https://greenhavenpublishing.com/9781534503403",null,{"$f":"Table1[[#This Row],['# of Books]]*Table1[[#This Row],[QTY]]","v":0},{"$f":"Table1[[#This Row],[QTY]]*Table1[[#This Row],[School & Library Price]]","v":0}]
[null,null,null,null,null,"Current Issues","Global Viewpoints","Cyberterrorism and Ransomware Attacks","978-1-5345-0342-7",{"$f":"HYPERLINK(Table1[[#This Row],[eCommerce Hyperlink]],\"Book Weblink\")","v":"Book Weblink"},null,"Greenhaven Publishing","eBook",1,"2019","August 2018",null,null,"Edited by","Gary Wiener",null,null,null,null,"Z",null,"Grade 10 - 12","Grade 9 - 12","In this digital age, it is not only conventional weapons that are used to threaten and harm others. A new and terrifying avenue is cyberspace and ransomware. This malware encrypts a user's data and demands payment in exchange for unlocking the data. Such attacks are becoming more widespread: a 2017 cyber incident attacked more than 45,000 users in countries around the world. This anthology presents a collection of global perspectives on the topic that examines the potential of such attacks and how we can secure ourselves in the future.","English",47.2,37.76,"363.325--dc23","176 pp.","https://greenhavenpublishing.com/9781534503427",null,{"$f":"Table1[[#This Row],['# of Books]]*Table1[[#This Row],[QTY]]","v":0},{"$f":"Table1[[#This Row],[QTY]]*Table1[[#This Row],[School & Library Price]]","v":0}]
[null,null,null,null,null,"Current Issues","Global Viewpoints","Cyberterrorism and Ransomware Attacks","978-1-5345-0341-0",{"$f":"HYPERLINK(Table1[[#This Row],[eCommerce Hyperlink]],\"Book Weblink\")","v":"Book Weblink"},null,"Greenhaven Publishing","Paperback Book",1,"2019","August 2018","Paperback","6.000 X 9.000","Edited by","Gary Wiener",null,null,null,null,"Z",null,"Grade 10 - 12","Grade 9 - 12","In this digital age, it is not only conventional weapons that are used to threaten and harm others. A new and terrifying avenue is cyberspace and ransomware. This malware encrypts a user's data and demands payment in exchange for unlocking the data. Such attacks are becoming more widespread: a 2017 cyber incident attacked more than 45,000 users in countries around the world. This anthology presents a collection of global perspectives on the topic that examines the potential of such attacks and how we can secure ourselves in the future.","English",32.700000000000003,26.2,"363.325--dc23","176 pp.","https://greenhavenpublishing.com/9781534503410",null,{"$f":"Table1[[#This Row],['# of Books]]*Table1[[#This Row],[QTY]]","v":0},{"$f":"Table1[[#This Row],[QTY]]*Table1[[#This Row],[School & Library Price]]","v":0}]
[null,null,null,null,null,"Current Issues","Global Viewpoints","Economic Sanctions","978-1-5345-0343-4",{"$f":"HYPERLINK(Table1[[#This Row],[eCommerce Hyperlink]],\"Book Weblink\")","v":"Book Weblink"},null,"Greenhaven Publishing","Library Bound Book",1,"2019","August 2018","Library","6.000 X 9.000","Edited by","Kristina Lyn Heitkamp",null,null,null,null,"Z",null,"Grade 10 - 12","Grade 9 - 12","Economic sanctions, the withdrawal of established trade relations, have been used as a nonviolent strategy by governments around the world to varying success. The United States alone has twenty-six sanction programs in place today. Programs have recently shifted toward \"smart\" sanctions, with a goal of eliminating the suffering of civilians. The expert viewpoints in this enlightening resource examine, from an international perspective, whether or not economic sanctions are effective, in what situations they work best, and what other solutions might be more effective.","English",47.2,37.76,"327.1/17--dc23","200 pp.","https://greenhavenpublishing.com/9781534503434",null,{"$f":"Table1[[#This Row],['# of Books]]*Table1[[#This Row],[QTY]]","v":0},{"$f":"Table1[[#This Row],[QTY]]*Table1[[#This Row],[School & Library Price]]","v":0}]
[null,null,null,null,null,"Current Issues","Global Viewpoints","Economic Sanctions","978-1-5345-0345-8",{"$f":"HYPERLINK(Table1[[#This Row],[eCommerce Hyperlink]],\"Book Weblink\")","v":"Book Weblink"},null,"Greenhaven Publishing","eBook",1,"2019","August 2018",null,null,"Edited by","Kristina Lyn Heitkamp",null,null,null,null,"Z",null,"Grade 10 - 12","Grade 9 - 12","Economic sanctions, the withdrawal of established trade relations, have been used as a nonviolent strategy by governments around the world to varying success. The United States alone has twenty-six sanction programs in place today. Programs have recently shifted toward \"smart\" sanctions, with a goal of eliminating the suffering of civilians. The expert viewpoints in this enlightening resource examine, from an international perspective, whether or not economic sanctions are effective, in what situations they work best, and what other solutions might be more effective.","English",47.2,37.76,"327.1/17--dc23","200 pp.","https://greenhavenpublishing.com/9781534503458",null,{"$f":"Table1[[#This Row],['# of Books]]*Table1[[#This Row],[QTY]]","v":0},{"$f":"Table1[[#This Row],[QTY]]*Table1[[#This Row],[School & Library Price]]","v":0}]
[null,null,null,null,null,"Current Issues","Global Viewpoints","Economic Sanctions","978-1-5345-0344-1",{"$f":"HYPERLINK(Table1[[#This Row],[eCommerce Hyperlink]],\"Book Weblink\")","v":"Book Weblink"},null,"Greenhaven Publishing","Paperback Book",1,"2019","August 2018","Paperback","6.000 X 9.000","Edited by","Kristina Lyn Heitkamp",null,null,null,null,"Z",null,"Grade 10 - 12","Grade 9 - 12","Economic sanctions, the withdrawal of established trade relations, have been used as a nonviolent strategy by governments around the world to varying success. The United States alone has twenty-six sanction programs in place today. Programs have recently shifted toward \"smart\" sanctions, with a goal of eliminating the suffering of civilians. The expert viewpoints in this enlightening resource examine, from an international perspective, whether or not economic sanctions are effective, in what situations they work best, and what other solutions might be more effective.","English",32.700000000000003,26.2,"327.1/17--dc23","200 pp.","https://greenhavenpublishing.com/9781534503441",null,{"$f":"Table1[[#This Row],['# of Books]]*Table1[[#This Row],[QTY]]","v":0},{"$f":"Table1[[#This Row],[QTY]]*Table1[[#This Row],[School & Library Price]]","v":0}]
[null,null,null,null,null,"Current Issues","Global Viewpoints","Extreme Weather Events","978-1-5345-0114-0",{"$f":"HYPERLINK(Table1[[#This Row],[eCommerce Hyperlink]],\"Book Weblink\")","v":"Book Weblink"},null,"Greenhaven Publishing","Library Bound Book",1,"2018","August 2017","Library","6.000 X 9.000","Edited by","Marcia Amidon Lusted",null,null,null,null,"Z","1380L","Grade 10 - 12","Grade 9 - 12","In the wake of every killer hurricane, devastating wild fire, severe drought, or once-in-a-century flooding event, it has become commonplace for scientists, politicians, and ordinary citizens to debate whether or not these severe weather events can be tied directly to climate change and global warming. The scientific consensus generally indicates that we are beginning to see upticks in extreme weather due to warming and the resulting shift in weather patterns. Certain politicians, business interests, and energy executives, however, forcefully reject such connections as unproven and speculative. Where does the truth lie? This anthology collects the strongest viewpoints from across the ideological spectrum and the globe and allows readers to evaluate the arguments and evidence for themselves before forming an educated opinion.","English",47.2,37.76,"551.55--dc23","224 pp.","https://greenhavenpublishing.com/9781534501140",null,{"$f":"Table1[[#This Row],['# of Books]]*Table1[[#This Row],[QTY]]","v":0},{"$f":"Table1[[#This Row],[QTY]]*Table1[[#This Row],[School & Library Price]]","v":0}]
[null,null,null,null,null,"Current Issues","Global Viewpoints","Extreme Weather Events","978-1-5345-0122-5",{"$f":"HYPERLINK(Table1[[#This Row],[eCommerce Hyperlink]],\"Book Weblink\")","v":"Book Weblink"},null,"Greenhaven Publishing","eBook",1,"2018","August 2017",null,null,"Edited by","Marcia Amidon Lusted",null,null,null,null,"Z","1380L","Grade 10 - 12","Grade 9 - 12","In the wake of every killer hurricane, devastating wild fire, severe drought, or once-in-a-century flooding event, it has become commonplace for scientists, politicians, and ordinary citizens to debate whether or not these severe weather events can be tied directly to climate change and global warming. The scientific consensus generally indicates that we are beginning to see upticks in extreme weather due to warming and the resulting shift in weather patterns. Certain politicians, business interests, and energy executives, however, forcefully reject such connections as unproven and speculative. Where does the truth lie? This anthology collects the strongest viewpoints from across the ideological spectrum and the globe and allows readers to evaluate the arguments and evidence for themselves before forming an educated opinion.","English",47.2,37.76,"551.55--dc23","224 pp.","https://greenhavenpublishing.com/9781534501225",null,{"$f":"Table1[[#This Row],['# of Books]]*Table1[[#This Row],[QTY]]","v":0},{"$f":"Table1[[#This Row],[QTY]]*Table1[[#This Row],[School & Library Price]]","v":0}]
[null,null,null,null,null,"Current Issues","Global Viewpoints","Extreme Weather Events","978-1-5345-0112-6",{"$f":"HYPERLINK(Table1[[#This Row],[eCommerce Hyperlink]],\"Book Weblink\")","v":"Book Weblink"},null,"Greenhaven Publishing","Paperback Book",1,"2018","August 2017","Paperback","6.000 X 9.000","Edited by","Marcia Amidon Lusted",null,null,null,null,"Z","1380L","Grade 10 - 12","Grade 9 - 12","In the wake of every killer hurricane, devastating wild fire, severe drought, or once-in-a-century flooding event, it has become commonplace for scientists, politicians, and ordinary citizens to debate whether or not these severe weather events can be tied directly to climate change and global warming. The scientific consensus generally indicates that we are beginning to see upticks in extreme weather due to warming and the resulting shift in weather patterns. Certain politicians, business interests, and energy executives, however, forcefully reject such connections as unproven and speculative. Where does the truth lie? This anthology collects the strongest viewpoints from across the ideological spectrum and the globe and allows readers to evaluate the arguments and evidence for themselves before forming an educated opinion.","English",32.700000000000003,26.2,"551.55--dc23","224 pp.","https://greenhavenpublishing.com/9781534501126",null,{"$f":"Table1[[#This Row],['# of Books]]*Table1[[#This Row],[QTY]]","v":0},{"$f":"Table1[[#This Row],[QTY]]*Table1[[#This Row],[School & Library Price]]","v":0}]
[null,null,null,null,null,"Current Issues","Global Viewpoints","The Food Chain: Regulation, Inspection, and Supply","978-1-5345-0393-9",{"$f":"HYPERLINK(Table1[[#This Row],[eCommerce Hyperlink]],\"Book Weblink\")","v":"Book Weblink"},null,"Greenhaven Publishing","Library Bound Book",1,"2019","January 2019","Library","6.000 X 9.000","Edited by","Barbara Krasner ",null,null,null,null,"Z","1380L","Grade 10 - 12","Grade 9 - 12","Globalization has impacted many aspects of life, and the food chain is no exception. Approximately one-quarter of America's food supply is imported, and while food production and manufacturing companies financially benefit from sourcing food from other countries, regulating these food sources becomes increasingly difficult. How does food regulation and inspection differ between countries? What can be done to ensure food imported from other countries is safe for consumption, and how can we make sure people involved in the food production process around the world are treated ethically? Readers will explore the many considerations affecting the global food chain.","English",47.2,37.76,"664.0068/4--dc23","176 pp.","https://greenhavenpublishing.com/9781534503939",null,{"$f":"Table1[[#This Row],['# of Books]]*Table1[[#This Row],[QTY]]","v":0},{"$f":"Table1[[#This Row],[QTY]]*Table1[[#This Row],[School & Library Price]]","v":0}]
[null,null,null,null,null,"Current Issues","Global Viewpoints","The Food Chain: Regulation, Inspection, and Supply","978-1-5345-0408-0",{"$f":"HYPERLINK(Table1[[#This Row],[eCommerce Hyperlink]],\"Book Weblink\")","v":"Book Weblink"},null,"Greenhaven Publishing","eBook",1,"2019","January 2019",null,null,"Edited by","Barbara Krasner ",null,null,null,null,"Z","1380L","Grade 10 - 12","Grade 9 - 12","Globalization has impacted many aspects of life, and the food chain is no exception. Approximately one-quarter of America's food supply is imported, and while food production and manufacturing companies financially benefit from sourcing food from other countries, regulating these food sources becomes increasingly difficult. How does food regulation and inspection differ between countries? What can be done to ensure food imported from other countries is safe for consumption, and how can we make sure people involved in the food production process around the world are treated ethically? Readers will explore the many considerations affecting the global food chain.","English",47.2,37.76,"664.0068/4--dc23","176 pp.","https://greenhavenpublishing.com/9781534504080",null,{"$f":"Table1[[#This Row],['# of Books]]*Table1[[#This Row],[QTY]]","v":0},{"$f":"Table1[[#This Row],[QTY]]*Table1[[#This Row],[School & Library Price]]","v":0}]
[null,null,null,null,null,"Current Issues","Global Viewpoints","The Food Chain: Regulation, Inspection, and Supply","978-1-5345-0473-8",{"$f":"HYPERLINK(Table1[[#This Row],[eCommerce Hyperlink]],\"Book Weblink\")","v":"Book Weblink"},null,"Greenhaven Publishing","Paperback Book",1,"2019","January 2019","Paperback","6.000 X 9.000","Edited by","Barbara Krasner ",null,null,null,null,"Z","1380L","Grade 10 - 12","Grade 9 - 12","Globalization has impacted many aspects of life, and the food chain is no exception. Approximately one-quarter of America's food supply is imported, and while food production and manufacturing companies financially benefit from sourcing food from other countries, regulating these food sources becomes increasingly difficult. How does food regulation and inspection differ between countries? What can be done to ensure food imported from other countries is safe for consumption, and how can we make sure people involved in the food production process around the world are treated ethically? Readers will explore the many considerations affecting the global food chain.","English",32.700000000000003,26.2,"664.0068/4--dc23","176 pp.","https://greenhavenpublishing.com/9781534504738",null,{"$f":"Table1[[#This Row],['# of Books]]*Table1[[#This Row],[QTY]]","v":0},{"$f":"Table1[[#This Row],[QTY]]*Table1[[#This Row],[School & Library Price]]","v":0}]
[null,null,null,null,null,"Current Issues","Global Viewpoints","Gender Diversity in Government","978-1-5345-0557-5",{"$f":"HYPERLINK(Table1[[#This Row],[eCommerce Hyperlink]],\"Book Weblink\")","v":"Book Weblink"},null,"Greenhaven Publishing","Library Bound Book",1,"2020","August 2019","Library","6.000 X 9.000","Edited by","Avery Elizabeth Hurt",null,null,null,null,"Z","1330L","Grade 10 - 12","Grade 9 - 12","Opening the door to women for leadership positions in government and public institutions is critical in achieving fair and balanced policies. Yet only ten of the world's nations are led by democratically elected women. The United States ranks a shocking 100th in terms of women's representation in legislatures or parliaments. The viewpoints in this valuable resource examine the state of gender diversity in governments around the world, what factors are impeding a greater balance in diversity, the negative effects of this imbalance, and how more women can become involved in representation.","English",47.2,37.76,"320.082--dc23","200 pp.","https://greenhavenpublishing.com/9781534505575",null,{"$f":"Table1[[#This Row],['# of Books]]*Table1[[#This Row],[QTY]]","v":0},{"$f":"Table1[[#This Row],[QTY]]*Table1[[#This Row],[School & Library Price]]","v":0}]
[null,null,null,null,null,"Current Issues","Global Viewpoints","Gender Diversity in Government","978-1-5345-0559-9",{"$f":"HYPERLINK(Table1[[#This Row],[eCommerce Hyperlink]],\"Book Weblink\")","v":"Book Weblink"},null,"Greenhaven Publishing","eBook",1,"2020","August 2019",null,null,"Edited by","Avery Elizabeth Hurt",null,null,null,null,"Z","1330L","Grade 10 - 12","Grade 9 - 12","Opening the door to women for leadership positions in government and public institutions is critical in achieving fair and balanced policies. Yet only ten of the world's nations are led by democratically elected women. The United States ranks a shocking 100th in terms of women's representation in legislatures or parliaments. The viewpoints in this valuable resource examine the state of gender diversity in governments around the world, what factors are impeding a greater balance in diversity, the negative effects of this imbalance, and how more women can become involved in representation.","English",47.2,37.76,"320.082--dc23","200 pp.","https://greenhavenpublishing.com/9781534505599",null,{"$f":"Table1[[#This Row],['# of Books]]*Table1[[#This Row],[QTY]]","v":0},{"$f":"Table1[[#This Row],[QTY]]*Table1[[#This Row],[School & Library Price]]","v":0}]
[null,null,null,null,null,"Current Issues","Global Viewpoints","Gender Diversity in Government","978-1-5345-0558-2",{"$f":"HYPERLINK(Table1[[#This Row],[eCommerce Hyperlink]],\"Book Weblink\")","v":"Book Weblink"},null,"Greenhaven Publishing","Paperback Book",1,"2020","August 2019","Paperback","6.000 X 9.000","Edited by","Avery Elizabeth Hurt",null,null,null,null,"Z","1330L","Grade 10 - 12","Grade 9 - 12","Opening the door to women for leadership positions in government and public institutions is critical in achieving fair and balanced policies. Yet only ten of the world's nations are led by democratically elected women. The United States ranks a shocking 100th in terms of women's representation in legislatures or parliaments. The viewpoints in this valuable resource examine the state of gender diversity in governments around the world, what factors are impeding a greater balance in diversity, the negative effects of this imbalance, and how more women can become involved in representation.","English",32.700000000000003,26.2,"320.082--dc23","200 pp.","https://greenhavenpublishing.com/9781534505582",null,{"$f":"Table1[[#This Row],['# of Books]]*Table1[[#This Row],[QTY]]","v":0},{"$f":"Table1[[#This Row],[QTY]]*Table1[[#This Row],[School & Library Price]]","v":0}]
[null,null,null,null,null,"Current Issues","Global Viewpoints","Geoengineering: Counteracting Climate Change","978-1-5345-0346-5",{"$f":"HYPERLINK(Table1[[#This Row],[eCommerce Hyperlink]],\"Book Weblink\")","v":"Book Weblink"},null,"Greenhaven Publishing","Library Bound Book",1,"2019","August 2018","Library","6.000 X 9.000","Edited by","Rita Santos",null,null,null,null,"Z","1340L","Grade 10 - 12","Grade 9 - 12","Geoengineering is the deliberate manipulation of the environment in an attempt to counteract the harmful effects of human-influenced climate change. It's intended as a solution, but it also can create unintended consequences. When scientists and political leaders can't even agree on the extent of climate change, it can seem hopeless to think they will come together to work on solutions. This enlightening resource offers perspectives from experts in the field today, making clear why this topic attracts such controversy and what can be done in the future to help our planet.","English",47.2,37.76,"628--dc23","176 pp.","https://greenhavenpublishing.com/9781534503465",null,{"$f":"Table1[[#This Row],['# of Books]]*Table1[[#This Row],[QTY]]","v":0},{"$f":"Table1[[#This Row],[QTY]]*Table1[[#This Row],[School & Library Price]]","v":0}]
[null,null,null,null,null,"Current Issues","Global Viewpoints","Geoengineering: Counteracting Climate Change","978-1-5345-0348-9",{"$f":"HYPERLINK(Table1[[#This Row],[eCommerce Hyperlink]],\"Book Weblink\")","v":"Book Weblink"},null,"Greenhaven Publishing","eBook",1,"2019","August 2018",null,null,"Edited by","Rita Santos",null,null,null,null,"Z","1340L","Grade 10 - 12","Grade 9 - 12","Geoengineering is the deliberate manipulation of the environment in an attempt to counteract the harmful effects of human-influenced climate change. It's intended as a solution, but it also can create unintended consequences. When scientists and political leaders can't even agree on the extent of climate change, it can seem hopeless to think they will come together to work on solutions. This enlightening resource offers perspectives from experts in the field today, making clear why this topic attracts such controversy and what can be done in the future to help our planet.","English",47.2,37.76,"628--dc23","176 pp.","https://greenhavenpublishing.com/9781534503489",null,{"$f":"Table1[[#This Row],['# of Books]]*Table1[[#This Row],[QTY]]","v":0},{"$f":"Table1[[#This Row],[QTY]]*Table1[[#This Row],[School & Library Price]]","v":0}]
[null,null,null,null,null,"Current Issues","Global Viewpoints","Geoengineering: Counteracting Climate Change","978-1-5345-0347-2",{"$f":"HYPERLINK(Table1[[#This Row],[eCommerce Hyperlink]],\"Book Weblink\")","v":"Book Weblink"},null,"Greenhaven Publishing","Paperback Book",1,"2019","August 2018","Paperback","6.000 X 9.000","Edited by","Rita Santos",null,null,null,null,"Z","1340L","Grade 10 - 12","Grade 9 - 12","Geoengineering is the deliberate manipulation of the environment in an attempt to counteract the harmful effects of human-influenced climate change. It's intended as a solution, but it also can create unintended consequences. When scientists and political leaders can't even agree on the extent of climate change, it can seem hopeless to think they will come together to work on solutions. This enlightening resource offers perspectives from experts in the field today, making clear why this topic attracts such controversy and what can be done in the future to help our planet.","English",32.700000000000003,26.2,"628--dc23","176 pp.","https://greenhavenpublishing.com/9781534503472",null,{"$f":"Table1[[#This Row],['# of Books]]*Table1[[#This Row],[QTY]]","v":0},{"$f":"Table1[[#This Row],[QTY]]*Table1[[#This Row],[School & Library Price]]","v":0}]
[null,null,null,null,null,"Current Issues","Global Viewpoints","Hate Crimes","978-1-5345-0110-2",{"$f":"HYPERLINK(Table1[[#This Row],[eCommerce Hyperlink]],\"Book Weblink\")","v":"Book Weblink"},null,"Greenhaven Publishing","Library Bound Book",1,"2018","August 2017","Library","6.000 X 9.000","Edited by","Barbara Krasner ",null,null,null,null,"Z",null,"Grade 10 - 12","Grade 9 - 12","Few would argue that a violent attack motivated by negative feelings towards the victim’s race, ethnicity, religion, or sexual orientation is a hate crime. But should a hate-motivated crime be punished differently than the same crime committed for a different motive? What if the crime is verbal, a slur or a ranting blog post or a graffiti scrawl? These may be hateful, but are they hate crimes? And how should they be punished? Are hate crimes on the rise, or are media attention and greater sensitivity to the issue making it appear so? These and other questions are at the center of this thought-provoking collection of articles drawn from across the political spectrum and the globe.","English",47.2,37.76,"364.15--dc23","240 pp.","https://greenhavenpublishing.com/9781534501102",null,{"$f":"Table1[[#This Row],['# of Books]]*Table1[[#This Row],[QTY]]","v":0},{"$f":"Table1[[#This Row],[QTY]]*Table1[[#This Row],[School & Library Price]]","v":0}]
[null,null,null,null,null,"Current Issues","Global Viewpoints","Hate Crimes","978-1-5345-0111-9",{"$f":"HYPERLINK(Table1[[#This Row],[eCommerce Hyperlink]],\"Book Weblink\")","v":"Book Weblink"},null,"Greenhaven Publishing","eBook",1,"2018","August 2017",null,null,"Edited by","Barbara Krasner ",null,null,null,null,"Z",null,"Grade 10 - 12","Grade 9 - 12","Few would argue that a violent attack motivated by negative feelings towards the victim’s race, ethnicity, religion, or sexual orientation is a hate crime. But should a hate-motivated crime be punished differently than the same crime committed for a different motive? What if the crime is verbal, a slur or a ranting blog post or a graffiti scrawl? These may be hateful, but are they hate crimes? And how should they be punished? Are hate crimes on the rise, or are media attention and greater sensitivity to the issue making it appear so? These and other questions are at the center of this thought-provoking collection of articles drawn from across the political spectrum and the globe.","English",47.2,37.76,"364.15--dc23","240 pp.","https://greenhavenpublishing.com/9781534501119",null,{"$f":"Table1[[#This Row],['# of Books]]*Table1[[#This Row],[QTY]]","v":0},{"$f":"Table1[[#This Row],[QTY]]*Table1[[#This Row],[School & Library Price]]","v":0}]
[null,null,null,null,null,"Current Issues","Global Viewpoints","Hate Crimes","978-1-5345-0108-9",{"$f":"HYPERLINK(Table1[[#This Row],[eCommerce Hyperlink]],\"Book Weblink\")","v":"Book Weblink"},null,"Greenhaven Publishing","Paperback Book",1,"2018","August 2017","Paperback","6.000 X 9.000","Edited by","Barbara Krasner ",null,null,null,null,"Z",null,"Grade 10 - 12","Grade 9 - 12","Few would argue that a violent attack motivated by negative feelings towards the victim’s race, ethnicity, religion, or sexual orientation is a hate crime. But should a hate-motivated crime be punished differently than the same crime committed for a different motive? What if the crime is verbal, a slur or a ranting blog post or a graffiti scrawl? These may be hateful, but are they hate crimes? And how should they be punished? Are hate crimes on the rise, or are media attention and greater sensitivity to the issue making it appear so? These and other questions are at the center of this thought-provoking collection of articles drawn from across the political spectrum and the globe.","English",32.700000000000003,26.2,"364.15--dc23","240 pp.","https://greenhavenpublishing.com/9781534501089",null,{"$f":"Table1[[#This Row],['# of Books]]*Table1[[#This Row],[QTY]]","v":0},{"$f":"Table1[[#This Row],[QTY]]*Table1[[#This Row],[School & Library Price]]","v":0}]
[null,null,null,null,null,"Current Issues","Global Viewpoints","Honor Killings","978-1-5345-0133-1",{"$f":"HYPERLINK(Table1[[#This Row],[eCommerce Hyperlink]],\"Book Weblink\")","v":"Book Weblink"},null,"Greenhaven Publishing","Library Bound Book",1,"2018","August 2017","Library","6.000 X 9.000","Edited by","Lisa Idzikowski",null,null,null,null,"Z",null,"Grade 10 - 12","Grade 9 - 12","Honor killings are acts of vengeance committed by male relatives against female relatives who have brought “dishonor” upon the family. This “dishonor” can include refusal to enter into an arranged marriage, being the victim of sexual assault, seeking a divorce, or having social or professional interactions outside the community. These crimes often go unpunished or lightly punished in cultures in which the practice is enshrined and are often reported as suicides or accidents. Honor killings occur worldwide, including among immigrant communities within Western democracies. The articles in this volume provide multiple perspectives on how best to prevent, prosecute, and punish such crimes, how to safeguard women’s safety and freedom, and how to balance tradition, religion, and community standards against the protection of universal human rights.","English",47.2,37.76,"306.87--dc23","224 pp.","https://greenhavenpublishing.com/9781534501331",null,{"$f":"Table1[[#This Row],['# of Books]]*Table1[[#This Row],[QTY]]","v":0},{"$f":"Table1[[#This Row],[QTY]]*Table1[[#This Row],[School & Library Price]]","v":0}]
[null,null,null,null,null,"Current Issues","Global Viewpoints","Honor Killings","978-1-5345-0134-8",{"$f":"HYPERLINK(Table1[[#This Row],[eCommerce Hyperlink]],\"Book Weblink\")","v":"Book Weblink"},null,"Greenhaven Publishing","eBook",1,"2018","August 2017",null,null,"Edited by","Lisa Idzikowski",null,null,null,null,"Z",null,"Grade 10 - 12","Grade 9 - 12","Honor killings are acts of vengeance committed by male relatives against female relatives who have brought “dishonor” upon the family. This “dishonor” can include refusal to enter into an arranged marriage, being the victim of sexual assault, seeking a divorce, or having social or professional interactions outside the community. These crimes often go unpunished or lightly punished in cultures in which the practice is enshrined and are often reported as suicides or accidents. Honor killings occur worldwide, including among immigrant communities within Western democracies. The articles in this volume provide multiple perspectives on how best to prevent, prosecute, and punish such crimes, how to safeguard women’s safety and freedom, and how to balance tradition, religion, and community standards against the protection of universal human rights.","English",47.2,37.76,"306.87--dc23","224 pp.","https://greenhavenpublishing.com/9781534501348",null,{"$f":"Table1[[#This Row],['# of Books]]*Table1[[#This Row],[QTY]]","v":0},{"$f":"Table1[[#This Row],[QTY]]*Table1[[#This Row],[School & Library Price]]","v":0}]
[null,null,null,null,null,"Current Issues","Global Viewpoints","Honor Killings","978-1-5345-0131-7",{"$f":"HYPERLINK(Table1[[#This Row],[eCommerce Hyperlink]],\"Book Weblink\")","v":"Book Weblink"},null,"Greenhaven Publishing","Paperback Book",1,"2018","August 2017","Paperback","6.000 X 9.000","Edited by","Lisa Idzikowski",null,null,null,null,"Z",null,"Grade 10 - 12","Grade 9 - 12","Honor killings are acts of vengeance committed by male relatives against female relatives who have brought “dishonor” upon the family. This “dishonor” can include refusal to enter into an arranged marriage, being the victim of sexual assault, seeking a divorce, or having social or professional interactions outside the community. These crimes often go unpunished or lightly punished in cultures in which the practice is enshrined and are often reported as suicides or accidents. Honor killings occur worldwide, including among immigrant communities within Western democracies. The articles in this volume provide multiple perspectives on how best to prevent, prosecute, and punish such crimes, how to safeguard women’s safety and freedom, and how to balance tradition, religion, and community standards against the protection of universal human rights.","English",32.700000000000003,26.2,"306.87--dc23","224 pp.","https://greenhavenpublishing.com/9781534501317",null,{"$f":"Table1[[#This Row],['# of Books]]*Table1[[#This Row],[QTY]]","v":0},{"$f":"Table1[[#This Row],[QTY]]*Table1[[#This Row],[School & Library Price]]","v":0}]
[null,null,null,null,null,"Current Issues","Global Viewpoints","Human Trafficking","978-0-7377-5659-3",{"$f":"HYPERLINK(Table1[[#This Row],[eCommerce Hyperlink]],\"Book Weblink\")","v":"Book Weblink"},null,"Greenhaven Publishing","Paperback Book",1,"2012","January 2012","Paperback","6.000 X 9.000","Edited by","Margaret Haerens",null,null,null,null,"Z",null,"Grade 10 - 12","Grade 9 - 12","Human trafficking is a global issue, and this volume provides the necessary global perspectives about it. Readers will first examine global trends, including learning about trafficking in Europe, the Philippines, Iceland, Bosnia, South Africa, and Israel. Over the remaining chapters, readers will evaluate factors that contribute to it, strategies to reduce it, and how we can aid victims of trafficking. Essay sources include the United Nations Office on Drugs and Crime, Integrated Regional Information Networks, Alasdair Fotheringham, Paidamoyo Muzulu, and Asumpta Lattus.","English",32.700000000000003,26.2,"306.3/​62","216 pp.","https://greenhavenpublishing.com/9780737756593",null,{"$f":"Table1[[#This Row],['# of Books]]*Table1[[#This Row],[QTY]]","v":0},{"$f":"Table1[[#This Row],[QTY]]*Table1[[#This Row],[School & Library Price]]","v":0}]
[null,null,null,null,null,"Current Issues","Global Viewpoints","Islam in Society","978-1-5345-0419-6",{"$f":"HYPERLINK(Table1[[#This Row],[eCommerce Hyperlink]],\"Book Weblink\")","v":"Book Weblink"},null,"Greenhaven Publishing","Library Bound Book",1,"2019","January 2019","Library","6.000 X 9.000","Edited by","Eileen Lucas",null,null,null,null,"Z","1320L","Grade 10 - 12","Grade 9 - 12","Provide your readers with this essential guidebook about Islam and its role in society. As of 2015, approximately 1.8 billion people identified as Muslim, 24 percent of the global population. Islam's adherents are found throughout the world, but some question whether its values and practices are at odds with those of Western nations, with particular concerns about Muslim extremism and its connection to terrorism. This has prompted attempts to control or even prevent Muslims from entering Western countries. As the global Muslim population continues to rise and immigration increases, questions about the role of Islam and its adherents in society have become increasingly urgent.","English",47.2,37.76,"297--dc23","200 pp.","https://greenhavenpublishing.com/9781534504196",null,{"$f":"Table1[[#This Row],['# of Books]]*Table1[[#This Row],[QTY]]","v":0},{"$f":"Table1[[#This Row],[QTY]]*Table1[[#This Row],[School & Library Price]]","v":0}]
[null,null,null,null,null,"Current Issues","Global Viewpoints","Islam in Society","978-1-5345-0417-2",{"$f":"HYPERLINK(Table1[[#This Row],[eCommerce Hyperlink]],\"Book Weblink\")","v":"Book Weblink"},null,"Greenhaven Publishing","eBook",1,"2019","January 2019",null,null,"Edited by","Eileen Lucas",null,null,null,null,"Z","1320L","Grade 10 - 12","Grade 9 - 12","Provide your readers with this essential guidebook about Islam and its role in society. As of 2015, approximately 1.8 billion people identified as Muslim, 24 percent of the global population. Islam's adherents are found throughout the world, but some question whether its values and practices are at odds with those of Western nations, with particular concerns about Muslim extremism and its connection to terrorism. This has prompted attempts to control or even prevent Muslims from entering Western countries. As the global Muslim population continues to rise and immigration increases, questions about the role of Islam and its adherents in society have become increasingly urgent.","English",47.2,37.76,"297--dc23","200 pp.","https://greenhavenpublishing.com/9781534504172",null,{"$f":"Table1[[#This Row],['# of Books]]*Table1[[#This Row],[QTY]]","v":0},{"$f":"Table1[[#This Row],[QTY]]*Table1[[#This Row],[School & Library Price]]","v":0}]
[null,null,null,null,null,"Current Issues","Global Viewpoints","Islam in Society","978-1-5345-0475-2",{"$f":"HYPERLINK(Table1[[#This Row],[eCommerce Hyperlink]],\"Book Weblink\")","v":"Book Weblink"},null,"Greenhaven Publishing","Paperback Book",1,"2019","January 2019","Paperback","6.000 X 9.000","Edited by","Eileen Lucas",null,null,null,null,"Z","1320L","Grade 10 - 12","Grade 9 - 12","Provide your readers with this essential guidebook about Islam and its role in society. As of 2015, approximately 1.8 billion people identified as Muslim, 24 percent of the global population. Islam's adherents are found throughout the world, but some question whether its values and practices are at odds with those of Western nations, with particular concerns about Muslim extremism and its connection to terrorism. This has prompted attempts to control or even prevent Muslims from entering Western countries. As the global Muslim population continues to rise and immigration increases, questions about the role of Islam and its adherents in society have become increasingly urgent.","English",32.700000000000003,26.2,"297--dc23","200 pp.","https://greenhavenpublishing.com/9781534504752",null,{"$f":"Table1[[#This Row],['# of Books]]*Table1[[#This Row],[QTY]]","v":0},{"$f":"Table1[[#This Row],[QTY]]*Table1[[#This Row],[School & Library Price]]","v":0}]
[null,null,null,null,null,"Current Issues","Global Viewpoints","Life After Death?: Inheritance, Burial Practices, and Family Heirlooms","978-1-5345-0420-2",{"$f":"HYPERLINK(Table1[[#This Row],[eCommerce Hyperlink]],\"Book Weblink\")","v":"Book Weblink"},null,"Greenhaven Publishing","Library Bound Book",1,"2019","January 2019","Library","6.000 X 9.000","Edited by","Marcia Amidon Lusted",null,null,null,null,"Z",null,"Grade 10 - 12","Grade 9 - 12","While death is a universal experience, the traditions that surround it differ from culture to culture. How should the body of the deceased be laid to rest? What should be done with his or her belongings? How can a person's legacy live on through traditions and keepsakes? This volume explores practices around the world, addressing the practical and spiritual considerations that come with death and encouraging readers to keep an open mind toward the rituals and beliefs of other cultures and turn a critical eye toward their own.","English",47.2,37.76,"393--dc23","200 pp.","https://greenhavenpublishing.com/9781534504202",null,{"$f":"Table1[[#This Row],['# of Books]]*Table1[[#This Row],[QTY]]","v":0},{"$f":"Table1[[#This Row],[QTY]]*Table1[[#This Row],[School & Library Price]]","v":0}]
[null,null,null,null,null,"Current Issues","Global Viewpoints","Life After Death?: Inheritance, Burial Practices, and Family Heirlooms","978-1-5345-0418-9",{"$f":"HYPERLINK(Table1[[#This Row],[eCommerce Hyperlink]],\"Book Weblink\")","v":"Book Weblink"},null,"Greenhaven Publishing","eBook",1,"2019","January 2019",null,null,"Edited by","Marcia Amidon Lusted",null,null,null,null,"Z",null,"Grade 10 - 12","Grade 9 - 12","While death is a universal experience, the traditions that surround it differ from culture to culture. How should the body of the deceased be laid to rest? What should be done with his or her belongings? How can a person's legacy live on through traditions and keepsakes? This volume explores practices around the world, addressing the practical and spiritual considerations that come with death and encouraging readers to keep an open mind toward the rituals and beliefs of other cultures and turn a critical eye toward their own.","English",47.2,37.76,"393--dc23","200 pp.","https://greenhavenpublishing.com/9781534504189",null,{"$f":"Table1[[#This Row],['# of Books]]*Table1[[#This Row],[QTY]]","v":0},{"$f":"Table1[[#This Row],[QTY]]*Table1[[#This Row],[School & Library Price]]","v":0}]
[null,null,null,null,null,"Current Issues","Global Viewpoints","Life After Death?: Inheritance, Burial Practices, and Family Heirlooms","978-1-5345-0477-6",{"$f":"HYPERLINK(Table1[[#This Row],[eCommerce Hyperlink]],\"Book Weblink\")","v":"Book Weblink"},null,"Greenhaven Publishing","Paperback Book",1,"2019","January 2019","Paperback","6.000 X 9.000","Edited by","Marcia Amidon Lusted",null,null,null,null,"Z",null,"Grade 10 - 12","Grade 9 - 12","While death is a universal experience, the traditions that surround it differ from culture to culture. How should the body of the deceased be laid to rest? What should be done with his or her belongings? How can a person's legacy live on through traditions and keepsakes? This volume explores practices around the world, addressing the practical and spiritual considerations that come with death and encouraging readers to keep an open mind toward the rituals and beliefs of other cultures and turn a critical eye toward their own.","English",32.700000000000003,26.2,"393--dc23","200 pp.","https://greenhavenpublishing.com/9781534504776",null,{"$f":"Table1[[#This Row],['# of Books]]*Table1[[#This Row],[QTY]]","v":0},{"$f":"Table1[[#This Row],[QTY]]*Table1[[#This Row],[School & Library Price]]","v":0}]
[null,null,null,null,null,"Current Issues","Global Viewpoints","Migrants and Refugees","978-1-5345-0118-8",{"$f":"HYPERLINK(Table1[[#This Row],[eCommerce Hyperlink]],\"Book Weblink\")","v":"Book Weblink"},null,"Greenhaven Publishing","Library Bound Book",1,"2018","August 2017","Library","6.000 X 9.000","Edited by","M. M. Eboch",null,null,null,null,"Z",null,"Grade 10 - 12","Grade 9 - 12","The images are shocking and upsetting: drowned children washing up on beaches, dozens of dead bodies being pulled out of tractor trailers, a mass of humanity penned up in detention camps and tent cities, anti-immigrant rallies characterized by fearful and hate-filled invective. Yet there are also images of refugees being embraced by ordinary citizens and welcomed into their countries, their communities, even their homes. What to do about a growing and endemic refugee crisis and migrant labor population in an age of globalization, terrorism, and income inequality is a question with no simple answers. This volume presents the widest possible range of opinions from reputable sources across the political spectrum and encouragers readers to consider all viewpoints before formulating their own reasoned and informed perspective.","English",47.2,37.76,"305.9/0691--dc23","272 pp.","https://greenhavenpublishing.com/9781534501188",null,{"$f":"Table1[[#This Row],['# of Books]]*Table1[[#This Row],[QTY]]","v":0},{"$f":"Table1[[#This Row],[QTY]]*Table1[[#This Row],[School & Library Price]]","v":0}]
[null,null,null,null,null,"Current Issues","Global Viewpoints","Migrants and Refugees","978-1-5345-0119-5",{"$f":"HYPERLINK(Table1[[#This Row],[eCommerce Hyperlink]],\"Book Weblink\")","v":"Book Weblink"},null,"Greenhaven Publishing","eBook",1,"2018","August 2017",null,null,"Edited by","M. M. Eboch",null,null,null,null,"Z",null,"Grade 10 - 12","Grade 9 - 12","The images are shocking and upsetting: drowned children washing up on beaches, dozens of dead bodies being pulled out of tractor trailers, a mass of humanity penned up in detention camps and tent cities, anti-immigrant rallies characterized by fearful and hate-filled invective. Yet there are also images of refugees being embraced by ordinary citizens and welcomed into their countries, their communities, even their homes. What to do about a growing and endemic refugee crisis and migrant labor population in an age of globalization, terrorism, and income inequality is a question with no simple answers. This volume presents the widest possible range of opinions from reputable sources across the political spectrum and encouragers readers to consider all viewpoints before formulating their own reasoned and informed perspective.","English",47.2,37.76,"305.9/0691--dc23","272 pp.","https://greenhavenpublishing.com/9781534501195",null,{"$f":"Table1[[#This Row],['# of Books]]*Table1[[#This Row],[QTY]]","v":0},{"$f":"Table1[[#This Row],[QTY]]*Table1[[#This Row],[School & Library Price]]","v":0}]
[null,null,null,null,null,"Current Issues","Global Viewpoints","Migrants and Refugees","978-1-5345-0116-4",{"$f":"HYPERLINK(Table1[[#This Row],[eCommerce Hyperlink]],\"Book Weblink\")","v":"Book Weblink"},null,"Greenhaven Publishing","Paperback Book",1,"2018","August 2017","Paperback","6.000 X 9.000","Edited by","M. M. Eboch",null,null,null,null,"Z",null,"Grade 10 - 12","Grade 9 - 12","The images are shocking and upsetting: drowned children washing up on beaches, dozens of dead bodies being pulled out of tractor trailers, a mass of humanity penned up in detention camps and tent cities, anti-immigrant rallies characterized by fearful and hate-filled invective. Yet there are also images of refugees being embraced by ordinary citizens and welcomed into their countries, their communities, even their homes. What to do about a growing and endemic refugee crisis and migrant labor population in an age of globalization, terrorism, and income inequality is a question with no simple answers. This volume presents the widest possible range of opinions from reputable sources across the political spectrum and encouragers readers to consider all viewpoints before formulating their own reasoned and informed perspective.","English",32.700000000000003,26.2,"305.9/0691--dc23","272 pp.","https://greenhavenpublishing.com/9781534501164",null,{"$f":"Table1[[#This Row],['# of Books]]*Table1[[#This Row],[QTY]]","v":0},{"$f":"Table1[[#This Row],[QTY]]*Table1[[#This Row],[School & Library Price]]","v":0}]
[null,null,null,null,null,"Current Issues","Global Viewpoints","Religious Clothing in Public Spaces","978-1-5345-0352-6",{"$f":"HYPERLINK(Table1[[#This Row],[eCommerce Hyperlink]],\"Book Weblink\")","v":"Book Weblink"},null,"Greenhaven Publishing","Library Bound Book",1,"2019","August 2018","Library","6.000 X 9.000","Edited by","Pete Schauer",null,null,null,null,"Z",null,"Grade 10 - 12","Grade 9 - 12","We live in a global society, but that doesn't mean our attitudes toward other cultures have caught up. Debates about the wearing of religious apparel have raged in countries around the world, including the United States. The diverse viewpoints in this resource address topics such as how tolerance for the wearing of religious clothing differs around the world and whether or not religious clothing should be allowed in public schools. Readers will decide for themselves whether this is an issue of freedom of expression and religion or if it should be viewed as a threat.","English",47.2,37.76,"323.44/2--dc23","136 pp.","https://greenhavenpublishing.com/9781534503526",null,{"$f":"Table1[[#This Row],['# of Books]]*Table1[[#This Row],[QTY]]","v":0},{"$f":"Table1[[#This Row],[QTY]]*Table1[[#This Row],[School & Library Price]]","v":0}]
[null,null,null,null,null,"Current Issues","Global Viewpoints","Religious Clothing in Public Spaces","978-1-5345-0354-0",{"$f":"HYPERLINK(Table1[[#This Row],[eCommerce Hyperlink]],\"Book Weblink\")","v":"Book Weblink"},null,"Greenhaven Publishing","eBook",1,"2019","August 2018",null,null,"Edited by","Pete Schauer",null,null,null,null,"Z",null,"Grade 10 - 12","Grade 9 - 12","We live in a global society, but that doesn't mean our attitudes toward other cultures have caught up. Debates about the wearing of religious apparel have raged in countries around the world, including the United States. The diverse viewpoints in this resource address topics such as how tolerance for the wearing of religious clothing differs around the world and whether or not religious clothing should be allowed in public schools. Readers will decide for themselves whether this is an issue of freedom of expression and religion or if it should be viewed as a threat.","English",47.2,37.76,"323.44/2--dc23","136 pp.","https://greenhavenpublishing.com/9781534503540",null,{"$f":"Table1[[#This Row],['# of Books]]*Table1[[#This Row],[QTY]]","v":0},{"$f":"Table1[[#This Row],[QTY]]*Table1[[#This Row],[School & Library Price]]","v":0}]
[null,null,null,null,null,"Current Issues","Global Viewpoints","Religious Clothing in Public Spaces","978-1-5345-0353-3",{"$f":"HYPERLINK(Table1[[#This Row],[eCommerce Hyperlink]],\"Book Weblink\")","v":"Book Weblink"},null,"Greenhaven Publishing","Paperback Book",1,"2019","August 2018","Paperback","6.000 X 9.000","Edited by","Pete Schauer",null,null,null,null,"Z",null,"Grade 10 - 12","Grade 9 - 12","We live in a global society, but that doesn't mean our attitudes toward other cultures have caught up. Debates about the wearing of religious apparel have raged in countries around the world, including the United States. The diverse viewpoints in this resource address topics such as how tolerance for the wearing of religious clothing differs around the world and whether or not religious clothing should be allowed in public schools. Readers will decide for themselves whether this is an issue of freedom of expression and religion or if it should be viewed as a threat.","English",32.700000000000003,26.2,"323.44/2--dc23","136 pp.","https://greenhavenpublishing.com/9781534503533",null,{"$f":"Table1[[#This Row],['# of Books]]*Table1[[#This Row],[QTY]]","v":0},{"$f":"Table1[[#This Row],[QTY]]*Table1[[#This Row],[School & Library Price]]","v":0}]
[null,null,null,null,null,"Current Issues","Global Viewpoints","Reproductive Rights","978-1-5345-0560-5",{"$f":"HYPERLINK(Table1[[#This Row],[eCommerce Hyperlink]],\"Book Weblink\")","v":"Book Weblink"},null,"Greenhaven Publishing","Library Bound Book",1,"2020","August 2019","Library","6.000 X 9.000","Edited by","Kathryn Roberts",null,null,null,null,"Z",null,"Grade 10 - 12","Grade 9 - 12","Around the world, state legislatures have taken the liberty of policing women's bodies, suppressing women's rights and restricting or prohibiting access to health care, contraception, and abortion. In some countries, women have been banned from breastfeeding in public, are subject to forced sterilization, and are required to have spousal authorization for prenatal and obstetric treatments. Are reproductive rights human rights, and if so, how do we ensure them? This thought-provoking resource offers global perspectives on the need to expand reproductive health services to ensure the safety and agency of women around the world.","English",47.2,37.76,"323.3/4--dc23","176 pp.","https://greenhavenpublishing.com/9781534505605",null,{"$f":"Table1[[#This Row],['# of Books]]*Table1[[#This Row],[QTY]]","v":0},{"$f":"Table1[[#This Row],[QTY]]*Table1[[#This Row],[School & Library Price]]","v":0}]
[null,null,null,null,null,"Current Issues","Global Viewpoints","Reproductive Rights","978-1-5345-0562-9",{"$f":"HYPERLINK(Table1[[#This Row],[eCommerce Hyperlink]],\"Book Weblink\")","v":"Book Weblink"},null,"Greenhaven Publishing","eBook",1,"2020","August 2019",null,null,"Edited by","Kathryn Roberts",null,null,null,null,"Z",null,"Grade 10 - 12","Grade 9 - 12","Around the world, state legislatures have taken the liberty of policing women's bodies, suppressing women's rights and restricting or prohibiting access to health care, contraception, and abortion. In some countries, women have been banned from breastfeeding in public, are subject to forced sterilization, and are required to have spousal authorization for prenatal and obstetric treatments. Are reproductive rights human rights, and if so, how do we ensure them? This thought-provoking resource offers global perspectives on the need to expand reproductive health services to ensure the safety and agency of women around the world.","English",47.2,37.76,"323.3/4--dc23","176 pp.","https://greenhavenpublishing.com/9781534505629",null,{"$f":"Table1[[#This Row],['# of Books]]*Table1[[#This Row],[QTY]]","v":0},{"$f":"Table1[[#This Row],[QTY]]*Table1[[#This Row],[School & Library Price]]","v":0}]
[null,null,null,null,null,"Current Issues","Global Viewpoints","Reproductive Rights","978-1-5345-0561-2",{"$f":"HYPERLINK(Table1[[#This Row],[eCommerce Hyperlink]],\"Book Weblink\")","v":"Book Weblink"},null,"Greenhaven Publishing","Paperback Book",1,"2020","August 2019","Paperback","6.000 X 9.000","Edited by","Kathryn Roberts",null,null,null,null,"Z",null,"Grade 10 - 12","Grade 9 - 12","Around the world, state legislatures have taken the liberty of policing women's bodies, suppressing women's rights and restricting or prohibiting access to health care, contraception, and abortion. In some countries, women have been banned from breastfeeding in public, are subject to forced sterilization, and are required to have spousal authorization for prenatal and obstetric treatments. Are reproductive rights human rights, and if so, how do we ensure them? This thought-provoking resource offers global perspectives on the need to expand reproductive health services to ensure the safety and agency of women around the world.","English",32.700000000000003,26.2,"323.3/4--dc23","176 pp.","https://greenhavenpublishing.com/9781534505612",null,{"$f":"Table1[[#This Row],['# of Books]]*Table1[[#This Row],[QTY]]","v":0},{"$f":"Table1[[#This Row],[QTY]]*Table1[[#This Row],[School & Library Price]]","v":0}]
[null,null,null,null,null,"Current Issues","Global Viewpoints","Revisiting Nuclear Power","978-1-5345-0129-4",{"$f":"HYPERLINK(Table1[[#This Row],[eCommerce Hyperlink]],\"Book Weblink\")","v":"Book Weblink"},null,"Greenhaven Publishing","Library Bound Book",1,"2018","August 2017","Library","6.000 X 9.000","Edited by","Anne C. Cunningham",null,null,null,null,"Z",null,"Grade 10 - 12","Grade 9 - 12","In an era defined by anxiety over global warming and the search for alternative fuel sources, nuclear power is rarely part of the conversation. It promises limitless power and a drastic reduction in greenhouse gas emissions worldwide. Yet, it is by no means perfectly safe or “clean,” as Three Mile Island, Chernobyl, and Fukushima remind us. Even so, thirty countries are operating 444 reactors, accounting for almost 11 percent of the world’s electricity production. The debate over nuclear energy is a fierce and emotional one, and arguments, agendas, assumptions, and factual information must be scrutinized meticulously and carefully. This volume allows readers to do just that as they begin to form their own opinions on the viability of nuclear power.","English",47.2,37.76,"333.792'4--dc23","256 pp.","https://greenhavenpublishing.com/9781534501294",null,{"$f":"Table1[[#This Row],['# of Books]]*Table1[[#This Row],[QTY]]","v":0},{"$f":"Table1[[#This Row],[QTY]]*Table1[[#This Row],[School & Library Price]]","v":0}]
[null,null,null,null,null,"Current Issues","Global Viewpoints","Revisiting Nuclear Power","978-1-5345-0130-0",{"$f":"HYPERLINK(Table1[[#This Row],[eCommerce Hyperlink]],\"Book Weblink\")","v":"Book Weblink"},null,"Greenhaven Publishing","eBook",1,"2018","August 2017",null,null,"Edited by","Anne C. Cunningham",null,null,null,null,"Z",null,"Grade 10 - 12","Grade 9 - 12","In an era defined by anxiety over global warming and the search for alternative fuel sources, nuclear power is rarely part of the conversation. It promises limitless power and a drastic reduction in greenhouse gas emissions worldwide. Yet, it is by no means perfectly safe or “clean,” as Three Mile Island, Chernobyl, and Fukushima remind us. Even so, thirty countries are operating 444 reactors, accounting for almost 11 percent of the world’s electricity production. The debate over nuclear energy is a fierce and emotional one, and arguments, agendas, assumptions, and factual information must be scrutinized meticulously and carefully. This volume allows readers to do just that as they begin to form their own opinions on the viability of nuclear power.","English",47.2,37.76,"333.792'4--dc23","256 pp.","https://greenhavenpublishing.com/9781534501300",null,{"$f":"Table1[[#This Row],['# of Books]]*Table1[[#This Row],[QTY]]","v":0},{"$f":"Table1[[#This Row],[QTY]]*Table1[[#This Row],[School & Library Price]]","v":0}]
[null,null,null,null,null,"Current Issues","Global Viewpoints","Revisiting Nuclear Power","978-1-5345-0127-0",{"$f":"HYPERLINK(Table1[[#This Row],[eCommerce Hyperlink]],\"Book Weblink\")","v":"Book Weblink"},null,"Greenhaven Publishing","Paperback Book",1,"2018","August 2017","Paperback","6.000 X 9.000","Edited by","Anne C. Cunningham",null,null,null,null,"Z",null,"Grade 10 - 12","Grade 9 - 12","In an era defined by anxiety over global warming and the search for alternative fuel sources, nuclear power is rarely part of the conversation. It promises limitless power and a drastic reduction in greenhouse gas emissions worldwide. Yet, it is by no means perfectly safe or “clean,” as Three Mile Island, Chernobyl, and Fukushima remind us. Even so, thirty countries are operating 444 reactors, accounting for almost 11 percent of the world’s electricity production. The debate over nuclear energy is a fierce and emotional one, and arguments, agendas, assumptions, and factual information must be scrutinized meticulously and carefully. This volume allows readers to do just that as they begin to form their own opinions on the viability of nuclear power.","English",32.700000000000003,26.2,"333.792'4--dc23","256 pp.","https://greenhavenpublishing.com/9781534501270",null,{"$f":"Table1[[#This Row],['# of Books]]*Table1[[#This Row],[QTY]]","v":0},{"$f":"Table1[[#This Row],[QTY]]*Table1[[#This Row],[School & Library Price]]","v":0}]
[null,null,null,null,null,"Current Issues","Global Viewpoints","The Rise of Authoritarianism","978-1-5345-0563-6",{"$f":"HYPERLINK(Table1[[#This Row],[eCommerce Hyperlink]],\"Book Weblink\")","v":"Book Weblink"},null,"Greenhaven Publishing","Library Bound Book",1,"2020","August 2019","Library","6.000 X 9.000","Edited by","Gary Wiener",null,null,null,null,"Z",null,"Grade 10 - 12","Grade 9 - 12","Due to factors such as income inequality and multiculturalism, liberal democracies have weakened considerably in the last quarter century. Democratic ideals have retreated in Venezuela, the Philippines, Hungary, Russia, and Poland. Many worry that they're on the decline in such bastions of democracy as western Europe and the United States, where fear and distrust of the status quo has opened the door to authoritarian leaders. Is there any hope of getting back to the prosperity and freedom of the mid-twentieth century? The viewpoints in this enlightening resource tackle this complex topic from a broad range of perspectives.","English",47.2,37.76,"320.5/3--dc23","200 pp.","https://greenhavenpublishing.com/9781534505636",null,{"$f":"Table1[[#This Row],['# of Books]]*Table1[[#This Row],[QTY]]","v":0},{"$f":"Table1[[#This Row],[QTY]]*Table1[[#This Row],[School & Library Price]]","v":0}]
[null,null,null,null,null,"Current Issues","Global Viewpoints","The Rise of Authoritarianism","978-1-5345-0565-0",{"$f":"HYPERLINK(Table1[[#This Row],[eCommerce Hyperlink]],\"Book Weblink\")","v":"Book Weblink"},null,"Greenhaven Publishing","eBook",1,"2020","August 2019",null,null,"Edited by","Gary Wiener",null,null,null,null,"Z",null,"Grade 10 - 12","Grade 9 - 12","Due to factors such as income inequality and multiculturalism, liberal democracies have weakened considerably in the last quarter century. Democratic ideals have retreated in Venezuela, the Philippines, Hungary, Russia, and Poland. Many worry that they're on the decline in such bastions of democracy as western Europe and the United States, where fear and distrust of the status quo has opened the door to authoritarian leaders. Is there any hope of getting back to the prosperity and freedom of the mid-twentieth century? The viewpoints in this enlightening resource tackle this complex topic from a broad range of perspectives.","English",47.2,37.76,"320.5/3--dc23","200 pp.","https://greenhavenpublishing.com/9781534505650",null,{"$f":"Table1[[#This Row],['# of Books]]*Table1[[#This Row],[QTY]]","v":0},{"$f":"Table1[[#This Row],[QTY]]*Table1[[#This Row],[School & Library Price]]","v":0}]
[null,null,null,null,null,"Current Issues","Global Viewpoints","The Rise of Authoritarianism","978-1-5345-0564-3",{"$f":"HYPERLINK(Table1[[#This Row],[eCommerce Hyperlink]],\"Book Weblink\")","v":"Book Weblink"},null,"Greenhaven Publishing","Paperback Book",1,"2020","August 2019","Paperback","6.000 X 9.000","Edited by","Gary Wiener",null,null,null,null,"Z",null,"Grade 10 - 12","Grade 9 - 12","Due to factors such as income inequality and multiculturalism, liberal democracies have weakened considerably in the last quarter century. Democratic ideals have retreated in Venezuela, the Philippines, Hungary, Russia, and Poland. Many worry that they're on the decline in such bastions of democracy as western Europe and the United States, where fear and distrust of the status quo has opened the door to authoritarian leaders. Is there any hope of getting back to the prosperity and freedom of the mid-twentieth century? The viewpoints in this enlightening resource tackle this complex topic from a broad range of perspectives.","English",32.700000000000003,26.2,"320.5/3--dc23","200 pp.","https://greenhavenpublishing.com/9781534505643",null,{"$f":"Table1[[#This Row],['# of Books]]*Table1[[#This Row],[QTY]]","v":0},{"$f":"Table1[[#This Row],[QTY]]*Table1[[#This Row],[School & Library Price]]","v":0}]
[null,null,null,null,null,"Current Issues","Global Viewpoints","Tech Giants and Digital Domination","978-1-5345-0125-6",{"$f":"HYPERLINK(Table1[[#This Row],[eCommerce Hyperlink]],\"Book Weblink\")","v":"Book Weblink"},null,"Greenhaven Publishing","Library Bound Book",1,"2018","August 2017","Library","6.000 X 9.000","Edited by","Caleb Bissinger",null,null,null,null,"Z","1310L","Grade 10 - 12","Grade 9 - 12","Are tech giants the new robber barons of the digital age? Many governments and ordinary people are increasingly uncomfortable with the monopolistic might a small number of tech companies are amassing, the taxes they are avoiding, the data they are collecting, the privacy they are undermining, and the way they are functioning as “extraterritorial” powers beholden to no state and to no citizen or consumer. All sides of this super-charged debate are represented here, from those of the chieftains of Silicon Valley and EU regulators to FBI counterintelligence agents, scrappy open-source programmers, and ordinary computer users and digital consumers. Readers will understand the digital world we currently inhabit, the limits of its freedoms, and who owns and controls its future.","English",47.2,37.76,"338'.064--dc23","224 pp.","https://greenhavenpublishing.com/9781534501256",null,{"$f":"Table1[[#This Row],['# of Books]]*Table1[[#This Row],[QTY]]","v":0},{"$f":"Table1[[#This Row],[QTY]]*Table1[[#This Row],[School & Library Price]]","v":0}]
[null,null,null,null,null,"Current Issues","Global Viewpoints","Tech Giants and Digital Domination","978-1-5345-0126-3",{"$f":"HYPERLINK(Table1[[#This Row],[eCommerce Hyperlink]],\"Book Weblink\")","v":"Book Weblink"},null,"Greenhaven Publishing","eBook",1,"2018","August 2017",null,null,"Edited by","Caleb Bissinger",null,null,null,null,"Z","1310L","Grade 10 - 12","Grade 9 - 12","Are tech giants the new robber barons of the digital age? Many governments and ordinary people are increasingly uncomfortable with the monopolistic might a small number of tech companies are amassing, the taxes they are avoiding, the data they are collecting, the privacy they are undermining, and the way they are functioning as “extraterritorial” powers beholden to no state and to no citizen or consumer. All sides of this super-charged debate are represented here, from those of the chieftains of Silicon Valley and EU regulators to FBI counterintelligence agents, scrappy open-source programmers, and ordinary computer users and digital consumers. Readers will understand the digital world we currently inhabit, the limits of its freedoms, and who owns and controls its future.","English",47.2,37.76,"338'.064--dc23","224 pp.","https://greenhavenpublishing.com/9781534501263",null,{"$f":"Table1[[#This Row],['# of Books]]*Table1[[#This Row],[QTY]]","v":0},{"$f":"Table1[[#This Row],[QTY]]*Table1[[#This Row],[School & Library Price]]","v":0}]
[null,null,null,null,null,"Current Issues","Global Viewpoints","Tech Giants and Digital Domination","978-1-5345-0123-2",{"$f":"HYPERLINK(Table1[[#This Row],[eCommerce Hyperlink]],\"Book Weblink\")","v":"Book Weblink"},null,"Greenhaven Publishing","Paperback Book",1,"2018","August 2017","Paperback","6.000 X 9.000","Edited by","Caleb Bissinger",null,null,null,null,"Z","1310L","Grade 10 - 12","Grade 9 - 12","Are tech giants the new robber barons of the digital age? Many governments and ordinary people are increasingly uncomfortable with the monopolistic might a small number of tech companies are amassing, the taxes they are avoiding, the data they are collecting, the privacy they are undermining, and the way they are functioning as “extraterritorial” powers beholden to no state and to no citizen or consumer. All sides of this super-charged debate are represented here, from those of the chieftains of Silicon Valley and EU regulators to FBI counterintelligence agents, scrappy open-source programmers, and ordinary computer users and digital consumers. Readers will understand the digital world we currently inhabit, the limits of its freedoms, and who owns and controls its future.","English",32.700000000000003,26.2,"338'.064--dc23","224 pp.","https://greenhavenpublishing.com/9781534501232",null,{"$f":"Table1[[#This Row],['# of Books]]*Table1[[#This Row],[QTY]]","v":0},{"$f":"Table1[[#This Row],[QTY]]*Table1[[#This Row],[School & Library Price]]","v":0}]
[null,null,null,null,null,"Current Issues","Global Viewpoints","Violence Against Women","978-1-5345-0392-2",{"$f":"HYPERLINK(Table1[[#This Row],[eCommerce Hyperlink]],\"Book Weblink\")","v":"Book Weblink"},null,"Greenhaven Publishing","Library Bound Book",1,"2019","January 2019","Library","6.000 X 9.000","Edited by","Kathryn Roberts",null,null,null,null,"Z",null,"Grade 10 - 12","Grade 9 - 12","Annually, approximately 66,000 women are violently killed in countries around the world. While historically these crimes were grouped into the general category of homicide, femicide, the murder of women because of their gender, is now being recognized as a unique issue and a hate crime. However, some assert that the fact that 80 percent of murder victims are male suggests that the issue of femicide is being blown out of proportion. This volume explores the forms femicide takes around the world and potential means of combatting it, and discusses the varying perspectives on the usefulness of its categorization.","English",47.2,37.76,"362.88082--dc23","200 pp.","https://greenhavenpublishing.com/9781534503922",null,{"$f":"Table1[[#This Row],['# of Books]]*Table1[[#This Row],[QTY]]","v":0},{"$f":"Table1[[#This Row],[QTY]]*Table1[[#This Row],[School & Library Price]]","v":0}]
[null,null,null,null,null,"Current Issues","Global Viewpoints","Violence Against Women","978-1-5345-0407-3",{"$f":"HYPERLINK(Table1[[#This Row],[eCommerce Hyperlink]],\"Book Weblink\")","v":"Book Weblink"},null,"Greenhaven Publishing","eBook",1,"2019","January 2019",null,null,"Edited by","Kathryn Roberts",null,null,null,null,"Z",null,"Grade 10 - 12","Grade 9 - 12","Annually, approximately 66,000 women are violently killed in countries around the world. While historically these crimes were grouped into the general category of homicide, femicide, the murder of women because of their gender, is now being recognized as a unique issue and a hate crime. However, some assert that the fact that 80 percent of murder victims are male suggests that the issue of femicide is being blown out of proportion. This volume explores the forms femicide takes around the world and potential means of combatting it, and discusses the varying perspectives on the usefulness of its categorization.","English",47.2,37.76,"362.88082--dc23","200 pp.","https://greenhavenpublishing.com/9781534504073",null,{"$f":"Table1[[#This Row],['# of Books]]*Table1[[#This Row],[QTY]]","v":0},{"$f":"Table1[[#This Row],[QTY]]*Table1[[#This Row],[School & Library Price]]","v":0}]
[null,null,null,null,null,"Current Issues","Global Viewpoints","Violence Against Women","978-1-5345-0471-4",{"$f":"HYPERLINK(Table1[[#This Row],[eCommerce Hyperlink]],\"Book Weblink\")","v":"Book Weblink"},null,"Greenhaven Publishing","Paperback Book",1,"2019","January 2019","Paperback","6.000 X 9.000","Edited by","Kathryn Roberts",null,null,null,null,"Z",null,"Grade 10 - 12","Grade 9 - 12","Annually, approximately 66,000 women are violently killed in countries around the world. While historically these crimes were grouped into the general category of homicide, femicide, the murder of women because of their gender, is now being recognized as a unique issue and a hate crime. However, some assert that the fact that 80 percent of murder victims are male suggests that the issue of femicide is being blown out of proportion. This volume explores the forms femicide takes around the world and potential means of combatting it, and discusses the varying perspectives on the usefulness of its categorization.","English",32.700000000000003,26.2,"362.88082--dc23","200 pp.","https://greenhavenpublishing.com/9781534504714",null,{"$f":"Table1[[#This Row],['# of Books]]*Table1[[#This Row],[QTY]]","v":0},{"$f":"Table1[[#This Row],[QTY]]*Table1[[#This Row],[School & Library Price]]","v":0}]
[null,null,null,null,null,"Animals","Life Cycles","Life Cycles: Sets 1 – 2","978-1-5345-3835-1",{"$f":"HYPERLINK(Table1[[#This Row],[eCommerce Hyperlink]],\"Book Weblink\")","v":"Book Weblink"},null,"KidHaven Publishing","Library Set",12,"2022","August 2021","Library","8.500 X 8.500",null,null,null,null,null,null,null,null,"Grade 1 - 2","Grade 1 - 3","Every living thing changes as it grows up, and those changes are all part of its life cycle. As readers explore the life cycles of butterflies, trees, ducks, kangaroos, and many other living things, they enhance their understanding of basic biology concepts and their appreciation for the natural world. The age-appropriate and achievable content helps readers compare and contrast various life cycles and encourages them to identify life cycle stages in the world around them. Featuring fun fact boxes and full-color photographs, this exciting look at life science is sure to captivate early learners.","English",307.2,245.76,null,"24 pp.","https://greenhavenpublishing.com/9781534538351",null,{"$f":"Table1[[#This Row],['# of Books]]*Table1[[#This Row],[QTY]]","v":0},{"$f":"Table1[[#This Row],[QTY]]*Table1[[#This Row],[School & Library Price]]","v":0}]
[null,null,null,null,null,"Animals","Where Animals Live","Where Animals Live","978-1-5345-2381-4",{"$f":"HYPERLINK(Table1[[#This Row],[eCommerce Hyperlink]],\"Book Weblink\")","v":"Book Weblink"},null,"KidHaven Publishing","Library Set",6,"2018","January 2018","Library","8.500 X 8.500",null,null,null,null,null,null,null,null,"Grade 1 - 2","Grade K - 3","Animals make their homes in diverse habitats around the world; in dry deserts, lush rain forests, tall mountains, and even in the depths of the ocean. Readers get an up-close look at these and other habitats and the animals that can be found in them. Important science topics are explained using accessible language. Fun facts are presented alongside vibrant, full-color photographs of amazing animals and the beautiful places they inhabit. Readers are sure to enjoy taking a detailed journey around the world to discover the many places animals can live.","English",153.6,122.88,null,"24 pp.","https://greenhavenpublishing.com/9781534523814",null,{"$f":"Table1[[#This Row],['# of Books]]*Table1[[#This Row],[QTY]]","v":0},{"$f":"Table1[[#This Row],[QTY]]*Table1[[#This Row],[School & Library Price]]","v":0}]
[null,null,null,null,null,"Animals","Where Animals Live","Animals in the Arctic","978-1-5345-2380-7",{"$f":"HYPERLINK(Table1[[#This Row],[eCommerce Hyperlink]],\"Book Weblink\")","v":"Book Weblink"},null,"KidHaven Publishing","Library Bound Book",1,"2018","January 2018","Library","8.500 X 8.500","Author","John Wood","3.8","0.5",null,null,"I",null,"Grade 1 - 2","Grade K - 3","The Arctic is home to many different animal species. These animals make their habitats in this region’s chilly climate, which can sometimes be difficult to survive in because of the subzero temperatures and scarce amount of food. This accessible text provides readers with fun facts about life in the Arctic, along with eye-catching, full-color photographs. Animal lovers will be captivated by the creatures that call this extreme environment home, and their Arctic adventure will introduce them to essential science concepts, including the adaptations these animals developed to survive in the coldest places on Earth.","English",25.6,20.48,"591.9989--dc23","24 pp.","https://greenhavenpublishing.com/9781534523807",null,{"$f":"Table1[[#This Row],['# of Books]]*Table1[[#This Row],[QTY]]","v":0},{"$f":"Table1[[#This Row],[QTY]]*Table1[[#This Row],[School & Library Price]]","v":0}]
[null,null,null,null,null,"Animals","Where Animals Live","Animals in the Arctic","978-1-5345-2382-1",{"$f":"HYPERLINK(Table1[[#This Row],[eCommerce Hyperlink]],\"Book Weblink\")","v":"Book Weblink"},null,"KidHaven Publishing","eBook",1,"2018","January 2018",null,null,"Author","John Wood","3.8","0.5",null,null,"I",null,"Grade 1 - 2","Grade K - 3","The Arctic is home to many different animal species. These animals make their habitats in this region’s chilly climate, which can sometimes be difficult to survive in because of the subzero temperatures and scarce amount of food. This accessible text provides readers with fun facts about life in the Arctic, along with eye-catching, full-color photographs. Animal lovers will be captivated by the creatures that call this extreme environment home, and their Arctic adventure will introduce them to essential science concepts, including the adaptations these animals developed to survive in the coldest places on Earth.","English",25.6,20.48,"591.9989--dc23","24 pp.","https://greenhavenpublishing.com/9781534523821",null,{"$f":"Table1[[#This Row],['# of Books]]*Table1[[#This Row],[QTY]]","v":0},{"$f":"Table1[[#This Row],[QTY]]*Table1[[#This Row],[School & Library Price]]","v":0}]
[null,null,null,null,null,"Animals","Where Animals Live","Animals in the Desert","978-1-5345-2363-0",{"$f":"HYPERLINK(Table1[[#This Row],[eCommerce Hyperlink]],\"Book Weblink\")","v":"Book Weblink"},null,"KidHaven Publishing","Library Bound Book",1,"2018","January 2018","Library","8.500 X 8.500","Author","John Wood","4.1","0.5",null,null,"I",null,"Grade 1 - 2","Grade K - 3","The desert is home to many different animal species. These animals make their habitats in this dry climate, which can sometimes be difficult to survive in because of the hot temperatures and scarce food sources. Fun facts about desert animals are presented through age-appropriate text, which covers common science curriculum topics such as animal adaptations and biomes. Vibrant, full-color photographs provide readers with examples of what desert animals look like and how they appear in their natural habitats.","English",25.6,20.48,"591.754--dc23","24 pp.","https://greenhavenpublishing.com/9781534523630",null,{"$f":"Table1[[#This Row],['# of Books]]*Table1[[#This Row],[QTY]]","v":0},{"$f":"Table1[[#This Row],[QTY]]*Table1[[#This Row],[School & Library Price]]","v":0}]
[null,null,null,null,null,"Animals","Where Animals Live","Animals in the Desert","978-1-5345-2364-7",{"$f":"HYPERLINK(Table1[[#This Row],[eCommerce Hyperlink]],\"Book Weblink\")","v":"Book Weblink"},null,"KidHaven Publishing","eBook",1,"2018","January 2018",null,null,"Author","John Wood","4.1","0.5",null,null,"I",null,"Grade 1 - 2","Grade K - 3","The desert is home to many different animal species. These animals make their habitats in this dry climate, which can sometimes be difficult to survive in because of the hot temperatures and scarce food sources. Fun facts about desert animals are presented through age-appropriate text, which covers common science curriculum topics such as animal adaptations and biomes. Vibrant, full-color photographs provide readers with examples of what desert animals look like and how they appear in their natural habitats.","English",25.6,20.48,"591.754--dc23","24 pp.","https://greenhavenpublishing.com/9781534523647",null,{"$f":"Table1[[#This Row],['# of Books]]*Table1[[#This Row],[QTY]]","v":0},{"$f":"Table1[[#This Row],[QTY]]*Table1[[#This Row],[School & Library Price]]","v":0}]
[null,null,null,null,null,"Animals","Where Animals Live","Animals in the Forest","978-1-5345-2366-1",{"$f":"HYPERLINK(Table1[[#This Row],[eCommerce Hyperlink]],\"Book Weblink\")","v":"Book Weblink"},null,"KidHaven Publishing","Library Bound Book",1,"2018","January 2018","Library","8.500 X 8.500","Author","John Wood","3.7","0.5",null,null,"I",null,"Grade 1 - 2","Grade K - 3","Readers learn about the various animal species that live in the forest through this enlightening text. They discover what these animals eat, how they survive in the wild, and where they build their homes. This accessible and age-appropriate text captures what it’s like being an animal living in the forest and also supports elementary science curriculum topics, including habitats and adaptations. In addition, full-color photographs of these animals in their natural habitats provide readers with a clear and creative visual element. This text is sure to captivate students looking to expand their understanding of creatures living in the forest.","English",25.6,20.48,"591.73--dc23","24 pp.","https://greenhavenpublishing.com/9781534523661",null,{"$f":"Table1[[#This Row],['# of Books]]*Table1[[#This Row],[QTY]]","v":0},{"$f":"Table1[[#This Row],[QTY]]*Table1[[#This Row],[School & Library Price]]","v":0}]
[null,null,null,null,null,"Animals","Where Animals Live","Animals in the Forest","978-1-5345-2367-8",{"$f":"HYPERLINK(Table1[[#This Row],[eCommerce Hyperlink]],\"Book Weblink\")","v":"Book Weblink"},null,"KidHaven Publishing","eBook",1,"2018","January 2018",null,null,"Author","John Wood","3.7","0.5",null,null,"I",null,"Grade 1 - 2","Grade K - 3","Readers learn about the various animal species that live in the forest through this enlightening text. They discover what these animals eat, how they survive in the wild, and where they build their homes. This accessible and age-appropriate text captures what it’s like being an animal living in the forest and also supports elementary science curriculum topics, including habitats and adaptations. In addition, full-color photographs of these animals in their natural habitats provide readers with a clear and creative visual element. This text is sure to captivate students looking to expand their understanding of creatures living in the forest.","English",25.6,20.48,"591.73--dc23","24 pp.","https://greenhavenpublishing.com/9781534523678",null,{"$f":"Table1[[#This Row],['# of Books]]*Table1[[#This Row],[QTY]]","v":0},{"$f":"Table1[[#This Row],[QTY]]*Table1[[#This Row],[School & Library Price]]","v":0}]
[null,null,null,null,null,"Animals","Where Animals Live","Animals in the Mountains","978-1-5345-2369-2",{"$f":"HYPERLINK(Table1[[#This Row],[eCommerce Hyperlink]],\"Book Weblink\")","v":"Book Weblink"},null,"KidHaven Publishing","Library Bound Book",1,"2018","January 2018","Library","8.500 X 8.500","Author","John Wood","3.9","0.5",null,null,"I",null,"Grade 1 - 2","Grade K - 3","What do animals that live in the mountains eat? How do they escape from their predators? Where do they sleep at night? These questions and more are answered in this compelling text that aligns with common curriculum science topics such as biodiversity and ecology. Several animal species live in the mountains and face challenges that consistently test their survival instincts. Striking, full-color photographs support the text and add a creative visual component for readers as they deepen their knowledge of mountain habitats and the animals that live in them.","English",25.6,20.48,"591.74'6--dc23","24 pp.","https://greenhavenpublishing.com/9781534523692",null,{"$f":"Table1[[#This Row],['# of Books]]*Table1[[#This Row],[QTY]]","v":0},{"$f":"Table1[[#This Row],[QTY]]*Table1[[#This Row],[School & Library Price]]","v":0}]
[null,null,null,null,null,"Animals","Where Animals Live","Animals in the Mountains","978-1-5345-2370-8",{"$f":"HYPERLINK(Table1[[#This Row],[eCommerce Hyperlink]],\"Book Weblink\")","v":"Book Weblink"},null,"KidHaven Publishing","eBook",1,"2018","January 2018",null,null,"Author","John Wood","3.9","0.5",null,null,"I",null,"Grade 1 - 2","Grade K - 3","What do animals that live in the mountains eat? How do they escape from their predators? Where do they sleep at night? These questions and more are answered in this compelling text that aligns with common curriculum science topics such as biodiversity and ecology. Several animal species live in the mountains and face challenges that consistently test their survival instincts. Striking, full-color photographs support the text and add a creative visual component for readers as they deepen their knowledge of mountain habitats and the animals that live in them.","English",25.6,20.48,"591.74'6--dc23","24 pp.","https://greenhavenpublishing.com/9781534523708",null,{"$f":"Table1[[#This Row],['# of Books]]*Table1[[#This Row],[QTY]]","v":0},{"$f":"Table1[[#This Row],[QTY]]*Table1[[#This Row],[School & Library Price]]","v":0}]
[null,null,null,null,null,"Animals","Where Animals Live","Animals in the Ocean","978-1-5345-2372-2",{"$f":"HYPERLINK(Table1[[#This Row],[eCommerce Hyperlink]],\"Book Weblink\")","v":"Book Weblink"},null,"KidHaven Publishing","Library Bound Book",1,"2018","January 2018","Library","8.500 X 8.500","Author","John Wood","3.8","0.5",null,null,"I",null,"Grade 1 - 2","Grade K - 3","Readers will enjoy learning about marine life as they explore engaging text covering common science curriculum areas, such as ocean habitats and ecology. Where do marine animals catch and kill their prey? How do they stay safe and avoid predators? What animals have ventured to the deepest depths of the sea? Questions such as these are answered in the main text, which is accompanied by bold, full-color photographs. This is sure to be an educational and entertaining adventure for readers into the lives of animals in the ocean.","English",25.6,20.48,"591.77--dc23","24 pp.","https://greenhavenpublishing.com/9781534523722",null,{"$f":"Table1[[#This Row],['# of Books]]*Table1[[#This Row],[QTY]]","v":0},{"$f":"Table1[[#This Row],[QTY]]*Table1[[#This Row],[School & Library Price]]","v":0}]
[null,null,null,null,null,"Animals","Where Animals Live","Animals in the Ocean","978-1-5345-2373-9",{"$f":"HYPERLINK(Table1[[#This Row],[eCommerce Hyperlink]],\"Book Weblink\")","v":"Book Weblink"},null,"KidHaven Publishing","eBook",1,"2018","January 2018",null,null,"Author","John Wood","3.8","0.5",null,null,"I",null,"Grade 1 - 2","Grade K - 3","Readers will enjoy learning about marine life as they explore engaging text covering common science curriculum areas, such as ocean habitats and ecology. Where do marine animals catch and kill their prey? How do they stay safe and avoid predators? What animals have ventured to the deepest depths of the sea? Questions such as these are answered in the main text, which is accompanied by bold, full-color photographs. This is sure to be an educational and entertaining adventure for readers into the lives of animals in the ocean.","English",25.6,20.48,"591.77--dc23","24 pp.","https://greenhavenpublishing.com/9781534523739",null,{"$f":"Table1[[#This Row],['# of Books]]*Table1[[#This Row],[QTY]]","v":0},{"$f":"Table1[[#This Row],[QTY]]*Table1[[#This Row],[School & Library Price]]","v":0}]
[null,null,null,null,null,"Animals","Where Animals Live","Animals in the Rain Forest","978-1-5345-2375-3",{"$f":"HYPERLINK(Table1[[#This Row],[eCommerce Hyperlink]],\"Book Weblink\")","v":"Book Weblink"},null,"KidHaven Publishing","Library Bound Book",1,"2018","January 2018","Library","8.500 X 8.500","Author","John Wood","3.9","0.5",null,null,"I",null,"Grade 1 - 2","Grade K - 3","A wide variety of animals can be found in the rain forest. Through captivating, age-appropriate text, readers learn many interesting facts about these animals and the environment they call home. Vibrant, full-color photographs enhance the reading experience as young readers expand their knowledge of rain forest animals. Why do so many animals live in the rain forest, and what is happening to them as rain forests continue to shrink? These questions and more are answered in accessible ways, through text that supports elementary science curriculum topics, including ecology, adaptations, and biodiversity.","English",25.6,20.48,"591.734--dc23","24 pp.","https://greenhavenpublishing.com/9781534523753",null,{"$f":"Table1[[#This Row],['# of Books]]*Table1[[#This Row],[QTY]]","v":0},{"$f":"Table1[[#This Row],[QTY]]*Table1[[#This Row],[School & Library Price]]","v":0}]
[null,null,null,null,null,"Animals","Where Animals Live","Animals in the Rain Forest","978-1-5345-2376-0",{"$f":"HYPERLINK(Table1[[#This Row],[eCommerce Hyperlink]],\"Book Weblink\")","v":"Book Weblink"},null,"KidHaven Publishing","eBook",1,"2018","January 2018",null,null,"Author","John Wood","3.9","0.5",null,null,"I",null,"Grade 1 - 2","Grade K - 3","A wide variety of animals can be found in the rain forest. Through captivating, age-appropriate text, readers learn many interesting facts about these animals and the environment they call home. Vibrant, full-color photographs enhance the reading experience as young readers expand their knowledge of rain forest animals. Why do so many animals live in the rain forest, and what is happening to them as rain forests continue to shrink? These questions and more are answered in accessible ways, through text that supports elementary science curriculum topics, including ecology, adaptations, and biodiversity.","English",25.6,20.48,"591.734--dc23","24 pp.","https://greenhavenpublishing.com/9781534523760",null,{"$f":"Table1[[#This Row],['# of Books]]*Table1[[#This Row],[QTY]]","v":0},{"$f":"Table1[[#This Row],[QTY]]*Table1[[#This Row],[School & Library Price]]","v":0}]
[null,null,null,null,null,"Animals","All About Dinosaurs","All About Dinosaurs: Sets 1 – 2","978-1-5345-2379-1",{"$f":"HYPERLINK(Table1[[#This Row],[eCommerce Hyperlink]],\"Book Weblink\")","v":"Book Weblink"},null,"KidHaven Publishing","Library Set",8,"2018","January 2018","Library","8.500 X 8.500",null,null,null,null,null,null,null,null,"Grade 2","Grade 1 - 3","Tyrannosaurus rex, Triceratops, and Stegosaurus are just some of the popular dinosaurs readers will learn more about as they discover fun facts about prehistoric creatures and their habitats. Important information about dinosaurs is presented using clear, accessible language, helping young learners understand scientific concepts. Fun fact boxes are included to give readers additional sources of information. As readers explore this popular curriculum topic, they become immersed in the world of the dinosaurs through detailed, colorful illustrations. This engrossing, engaging reading experience will appeal to even the most reluctant readers.","English",196.8,157.44,null,"24 pp.","https://greenhavenpublishing.com/9781534523791",null,{"$f":"Table1[[#This Row],['# of Books]]*Table1[[#This Row],[QTY]]","v":0},{"$f":"Table1[[#This Row],[QTY]]*Table1[[#This Row],[School & Library Price]]","v":0}]
[null,null,null,null,null,"Animals","Animals of the Tundra","Animals of the Tundra","978-1-5345-2209-1",{"$f":"HYPERLINK(Table1[[#This Row],[eCommerce Hyperlink]],\"Book Weblink\")","v":"Book Weblink"},null,"KidHaven Publishing","Library Set",4,"2018","August 2017","Library","7.000 X 7.000",null,null,null,null,null,null,null,null,"Grade 1 - 2","Grade 1 - 3","The tundra is a treeless plain that is cold all year and often snowy. In such a harsh environment, it is amazing that some animals not only survive, but thrive. Animals that live in the tundra, such as wolves, owls, foxes, and caribou, are spotlighted with amazing facts about their habitats, diets, and behaviors. Among other fascinating information, readers discover the adaptations these incredible animals have developed over time that allow them to live in such an unwelcoming ecosystem. This informative, accessible text is presented alongside detailed, full-color photographs.","English",102.4,81.92,null,"24 pp.","https://greenhavenpublishing.com/9781534522091",null,{"$f":"Table1[[#This Row],['# of Books]]*Table1[[#This Row],[QTY]]","v":0},{"$f":"Table1[[#This Row],[QTY]]*Table1[[#This Row],[School & Library Price]]","v":0}]
[null,null,null,null,null,"Animals","Animals of the Tundra","Arctic Foxes of the Tundra","978-1-5345-2224-4",{"$f":"HYPERLINK(Table1[[#This Row],[eCommerce Hyperlink]],\"Book Weblink\")","v":"Book Weblink"},null,"KidHaven Publishing","Library Bound Book",1,"2018","August 2017","Library","7.000 X 7.000","Author","Joyce Jeffries","3.9","0.5",null,null,"G",null,"Grade 1 - 2","Grade 1 - 3","Arctic foxes have developed special adaptations that help them survive in the unwelcoming tundra. In the winter, their fur is white; in the summer, when the snow melts, they grow gray or brown fur. The furry bottoms of their feet and their large tails keep them warm all year round. Readers will enjoy discovering these and other facts about this marvelous animal. These facts enhance readers’ understanding of common science curriculum topics. Stunning photographs enhance the accessible text in a way that is sure to captivate young readers.","English",25.6,20.48,"599.776'4--dc23","24 pp.","https://greenhavenpublishing.com/9781534522244",null,{"$f":"Table1[[#This Row],['# of Books]]*Table1[[#This Row],[QTY]]","v":0},{"$f":"Table1[[#This Row],[QTY]]*Table1[[#This Row],[School & Library Price]]","v":0}]
[null,null,null,null,null,"Animals","Animals of the Tundra","Arctic Foxes of the Tundra","978-1-5345-2220-6",{"$f":"HYPERLINK(Table1[[#This Row],[eCommerce Hyperlink]],\"Book Weblink\")","v":"Book Weblink"},null,"KidHaven Publishing","eBook",1,"2018","August 2017",null,null,"Author","Joyce Jeffries","3.9","0.5",null,null,"G",null,"Grade 1 - 2","Grade 1 - 3","Arctic foxes have developed special adaptations that help them survive in the unwelcoming tundra. In the winter, their fur is white; in the summer, when the snow melts, they grow gray or brown fur. The furry bottoms of their feet and their large tails keep them warm all year round. Readers will enjoy discovering these and other facts about this marvelous animal. These facts enhance readers’ understanding of common science curriculum topics. Stunning photographs enhance the accessible text in a way that is sure to captivate young readers.","English",25.6,20.48,"599.776'4--dc23","24 pp.","https://greenhavenpublishing.com/9781534522206",null,{"$f":"Table1[[#This Row],['# of Books]]*Table1[[#This Row],[QTY]]","v":0},{"$f":"Table1[[#This Row],[QTY]]*Table1[[#This Row],[School & Library Price]]","v":0}]
[null,null,null,null,null,"Animals","Animals of the Tundra","Arctic Wolves of the Tundra","978-1-5345-2225-1",{"$f":"HYPERLINK(Table1[[#This Row],[eCommerce Hyperlink]],\"Book Weblink\")","v":"Book Weblink"},null,"KidHaven Publishing","Library Bound Book",1,"2018","August 2017","Library","7.000 X 7.000","Author","Nick Christopher","3.7","0.5",null,null,"H",null,"Grade 1 - 2","Grade 1 - 3","The tundra is very cold and difficult for animals to survive in. The ones who live there have developed special adaptations to help them stay warm and find food. For example, arctic wolves often have white fur to help them blend in with the snow, so they can sneak up on their prey. Readers learn this and many other fun facts about these powerful predators. Full-color photographs beautifully illustrate this informative text, which is designed to adhere to common science curriculum standards.","English",25.6,20.48,"599.776’4--dc23","24 pp.","https://greenhavenpublishing.com/9781534522251",null,{"$f":"Table1[[#This Row],['# of Books]]*Table1[[#This Row],[QTY]]","v":0},{"$f":"Table1[[#This Row],[QTY]]*Table1[[#This Row],[School & Library Price]]","v":0}]
[null,null,null,null,null,"Animals","Animals of the Tundra","Arctic Wolves of the Tundra","978-1-5345-2222-0",{"$f":"HYPERLINK(Table1[[#This Row],[eCommerce Hyperlink]],\"Book Weblink\")","v":"Book Weblink"},null,"KidHaven Publishing","eBook",1,"2018","August 2017",null,null,"Author","Nick Christopher","3.7","0.5",null,null,"H",null,"Grade 1 - 2","Grade 1 - 3","The tundra is very cold and difficult for animals to survive in. The ones who live there have developed special adaptations to help them stay warm and find food. For example, arctic wolves often have white fur to help them blend in with the snow, so they can sneak up on their prey. Readers learn this and many other fun facts about these powerful predators. Full-color photographs beautifully illustrate this informative text, which is designed to adhere to common science curriculum standards.","English",25.6,20.48,"599.776’4--dc23","24 pp.","https://greenhavenpublishing.com/9781534522220",null,{"$f":"Table1[[#This Row],['# of Books]]*Table1[[#This Row],[QTY]]","v":0},{"$f":"Table1[[#This Row],[QTY]]*Table1[[#This Row],[School & Library Price]]","v":0}]
[null,null,null,null,null,"Animals","Animals of the Tundra","Caribou of the Tundra","978-1-5345-2223-7",{"$f":"HYPERLINK(Table1[[#This Row],[eCommerce Hyperlink]],\"Book Weblink\")","v":"Book Weblink"},null,"KidHaven Publishing","Library Bound Book",1,"2018","August 2017","Library","7.000 X 7.000","Author","Amy B. Rogers","3.6","0.5",null,null,"H",null,"Grade 1 - 2","Grade 1 - 3","Caribou, which are also known as wild reindeer, live in the cold, snowy tundra, where food is scarce. Their specially shaped hoofs help them walk on snow and dig for the food underneath it. What do caribou eat? How do they avoid dangerous predators? Readers will find the answers to these and other questions in this engaging text, which supports basic elementary science curricula. Full-color photographs of caribou in their natural habitat make readers feel as if they are on their own expedition to the frozen tundra.","English",25.6,20.48,"599.65'8--dc23","24 pp.","https://greenhavenpublishing.com/9781534522237",null,{"$f":"Table1[[#This Row],['# of Books]]*Table1[[#This Row],[QTY]]","v":0},{"$f":"Table1[[#This Row],[QTY]]*Table1[[#This Row],[School & Library Price]]","v":0}]
[null,null,null,null,null,"Animals","Animals of the Tundra","Caribou of the Tundra","978-1-5345-2219-0",{"$f":"HYPERLINK(Table1[[#This Row],[eCommerce Hyperlink]],\"Book Weblink\")","v":"Book Weblink"},null,"KidHaven Publishing","eBook",1,"2018","August 2017",null,null,"Author","Amy B. Rogers","3.6","0.5",null,null,"H",null,"Grade 1 - 2","Grade 1 - 3","Caribou, which are also known as wild reindeer, live in the cold, snowy tundra, where food is scarce. Their specially shaped hoofs help them walk on snow and dig for the food underneath it. What do caribou eat? How do they avoid dangerous predators? Readers will find the answers to these and other questions in this engaging text, which supports basic elementary science curricula. Full-color photographs of caribou in their natural habitat make readers feel as if they are on their own expedition to the frozen tundra.","English",25.6,20.48,"599.65'8--dc23","24 pp.","https://greenhavenpublishing.com/9781534522190",null,{"$f":"Table1[[#This Row],['# of Books]]*Table1[[#This Row],[QTY]]","v":0},{"$f":"Table1[[#This Row],[QTY]]*Table1[[#This Row],[School & Library Price]]","v":0}]
[null,null,null,null,null,"Animals","Animals of the Tundra","Snowy Owls of the Tundra","978-1-5345-2226-8",{"$f":"HYPERLINK(Table1[[#This Row],[eCommerce Hyperlink]],\"Book Weblink\")","v":"Book Weblink"},null,"KidHaven Publishing","Library Bound Book",1,"2018","August 2017","Library","7.000 X 7.000","Author","Riley Lawrence","4","0.5",null,null,"H",null,"Grade 1 - 2","Grade 1 - 3","Unlike other owls, snowy owls have feathers that cover their legs and feet to keep them warm in the freezing tundra. They have sharp beaks and claws to help them catch lemmings, mice, and rabbits. Readers learn about the lives of these fascinating birds through engaging text and striking photographs. They explore common elementary science curriculum topics, including predator-prey relationships and adaptations, in an accessible, exciting way.","English",25.6,20.48,"598.9’7--dc23","24 pp.","https://greenhavenpublishing.com/9781534522268",null,{"$f":"Table1[[#This Row],['# of Books]]*Table1[[#This Row],[QTY]]","v":0},{"$f":"Table1[[#This Row],[QTY]]*Table1[[#This Row],[School & Library Price]]","v":0}]
[null,null,null,null,null,"Animals","Animals of the Tundra","Snowy Owls of the Tundra","978-1-5345-2221-3",{"$f":"HYPERLINK(Table1[[#This Row],[eCommerce Hyperlink]],\"Book Weblink\")","v":"Book Weblink"},null,"KidHaven Publishing","eBook",1,"2018","August 2017",null,null,"Author","Riley Lawrence","4","0.5",null,null,"H",null,"Grade 1 - 2","Grade 1 - 3","Unlike other owls, snowy owls have feathers that cover their legs and feet to keep them warm in the freezing tundra. They have sharp beaks and claws to help them catch lemmings, mice, and rabbits. Readers learn about the lives of these fascinating birds through engaging text and striking photographs. They explore common elementary science curriculum topics, including predator-prey relationships and adaptations, in an accessible, exciting way.","English",25.6,20.48,"598.9’7--dc23","24 pp.","https://greenhavenpublishing.com/9781534522213",null,{"$f":"Table1[[#This Row],['# of Books]]*Table1[[#This Row],[QTY]]","v":0},{"$f":"Table1[[#This Row],[QTY]]*Table1[[#This Row],[School & Library Price]]","v":0}]
[null,null,null,null,null,"Animals","Animal Classification","Animal Classification: Sets 1 – 2","978-1-5345-3041-6",{"$f":"HYPERLINK(Table1[[#This Row],[eCommerce Hyperlink]],\"Book Weblink\")","v":"Book Weblink"},null,"KidHaven Publishing","Library Set",12,"2020","August 2019","Library","8.500 X 11.00",null,null,null,null,null,null,null,null,"Grade 3 - 4","Grade 3 - 5","Young readers discover a diverse variety of animals, from mammals to mollusks, as they learn numerous fun facts with each turn of the page. They learn where these different creatures can be found on Earth, what they eat, and other common characteristics. This essential science curriculum topic is presented using age-appropriate, accessible language. In addition, the eye-catching, full-color photographs, informational graphic organizers, enlightening fact boxes, and useful glossaries offer readers extra insight into this fascinating topic. Animal lovers will enjoy learning new and exciting facts that expand their knowledge of familiar and exotic creatures. Features include: Accessible texts provide an engaging introduction to basic biology concepts. Essential information about various groups of animals allows readers to compare and contrast living things with ease. Immersive design encourages readers to get information from a variety of sources, including charts, photographs, and diagrams.","English",339,271.2,null,"32 pp.","https://greenhavenpublishing.com/9781534530416",null,{"$f":"Table1[[#This Row],['# of Books]]*Table1[[#This Row],[QTY]]","v":0},{"$f":"Table1[[#This Row],[QTY]]*Table1[[#This Row],[School & Library Price]]","v":0}]
[null,null,null,null,null,"Biographies","People Who Make a Difference","People Who Make a Difference: Set 1","978-1-5345-3492-6",{"$f":"HYPERLINK(Table1[[#This Row],[eCommerce Hyperlink]],\"Book Weblink\")","v":"Book Weblink"},null,"KidHaven Publishing","Library Set",6,"2021","August 2020","Library","8.500 X 8.500",null,null,null,null,null,null,null,null,"Grade 3","Grade 3 - 5","Anyone can use his or her unique talents to make a difference in the world. This is the lesson readers are shown through engaging and empowering stories about the lives of some of today's biggest stars and famous names including Lady Gaga, Lin-Manuel Miranda, Megan Rapinoe, and Alexandria Ocasio-Cortez. The accessible biographical narratives are supplemented with timelines, graphic organizers, and vibrant photographs of these men and women in action. Your readers will be inspired to think about how to follow in impressive footsteps by using their own strengths and skills to help people. Features include: Carefully selected variety of subjects includes athletes, musicians, actors, politicians, and technology innovators to appeal to a wide range of readers. Quote boxes highlight empowering messages from each subject. Suggestions are included for age-appropriate ways that readers can use their passions and skills to make a difference.","English",153.6,122.88,null,"24 pp.","https://greenhavenpublishing.com/9781534534926",null,{"$f":"Table1[[#This Row],['# of Books]]*Table1[[#This Row],[QTY]]","v":0},{"$f":"Table1[[#This Row],[QTY]]*Table1[[#This Row],[School & Library Price]]","v":0}]
[null,null,null,null,null,"Health & Guidance","Human Body Helpers","Human Body Helpers: Sets 1 – 2","978-1-5345-3603-6",{"$f":"HYPERLINK(Table1[[#This Row],[eCommerce Hyperlink]],\"Book Weblink\")","v":"Book Weblink"},null,"KidHaven Publishing","Library Set",10,"2021","August 2020","Library","8.500 X 8.500",null,null,null,null,null,null,null,null,"Grade 2 - 3","Grade 2 - 4","This helpful collection teaches readers about certain health conditions and how we use devices and technology to help us feel and function better. With the help of the accessible and conversational text and fact boxes, readers learn about various health problems, such as asthma, allergies, and heart conditions. Treatment and devices such as insulin pumps and inhalers are explained. This information is presented through charming characters, whose presence helps to encourage readers to view these challenges without apprehension. This creative look at the human body and conditions informs and entertains as it builds empathy. Features include: Simple language that translates medical terminology in a way that young readers are able to understand. Gentle, age-appropriate tone is ideal for young people who want to support a loved one who needs help. Eye-catching illustrations make these topics less intimidating for young readers.","English",256,204.8,null,"24 pp.","https://greenhavenpublishing.com/9781534536036",null,{"$f":"Table1[[#This Row],['# of Books]]*Table1[[#This Row],[QTY]]","v":0},{"$f":"Table1[[#This Row],[QTY]]*Table1[[#This Row],[School & Library Price]]","v":0}]
[null,null,null,null,null,"Science and Technology","First Science","First Science: Sets 1 – 2","978-1-5345-2453-8",{"$f":"HYPERLINK(Table1[[#This Row],[eCommerce Hyperlink]],\"Book Weblink\")","v":"Book Weblink"},null,"KidHaven Publishing","Library Set",8,"2018","January 2018","Library","8.500 X 8.500",null,null,null,null,null,null,null,null,"Grade 1","Grade K - 2","Science is at work all around us. This is a valuable lesson for young readers to discover, and they are able to do that through accessible text that explains basic science concepts they encounter in their everyday lives. Age-appropriate examples allow early learners to better understand how science is applied in the world around them, from the sounds they hear each day to the materials they come in contact with. These examples are presented alongside colorful, entertaining photographs, which help readers find the fun in science.","English",204.8,163.84,null,"24 pp.","https://greenhavenpublishing.com/9781534524538",null,{"$f":"Table1[[#This Row],['# of Books]]*Table1[[#This Row],[QTY]]","v":0},{"$f":"Table1[[#This Row],[QTY]]*Table1[[#This Row],[School & Library Price]]","v":0}]
[null,null,null,null,null,"Science and Technology","First Science","Electricity","978-1-5345-2384-5",{"$f":"HYPERLINK(Table1[[#This Row],[eCommerce Hyperlink]],\"Book Weblink\")","v":"Book Weblink"},null,"KidHaven Publishing","Library Bound Book",1,"2018","January 2018","Library","8.500 X 8.500","Author","Steffi Cavell-Clarke",null,null,null,null,"F",null,"Grade 1","Grade K - 2","Why does light appear after you flick on a light switch? Where does electricity come from? Questions such as these are answered in this age-appropriate and educational book all about electricity, which is a common part of elementary science curricula. This engaging text explains basic scientific concepts to young readers to teach them about how electricity works, where it comes from, and how we use it in our everyday lives. Vibrant, full-color photographs and simple diagrams provide additional, relatable information to expand readers’ knowledge of this electrifying topic.","English",25.6,20.48,"537--dc23","24 pp.","https://greenhavenpublishing.com/9781534523845",null,{"$f":"Table1[[#This Row],['# of Books]]*Table1[[#This Row],[QTY]]","v":0},{"$f":"Table1[[#This Row],[QTY]]*Table1[[#This Row],[School & Library Price]]","v":0}]
[null,null,null,null,null,"Science and Technology","First Science","Electricity","978-1-5345-2385-2",{"$f":"HYPERLINK(Table1[[#This Row],[eCommerce Hyperlink]],\"Book Weblink\")","v":"Book Weblink"},null,"KidHaven Publishing","eBook",1,"2018","January 2018",null,null,"Author","Steffi Cavell-Clarke",null,null,null,null,"F",null,"Grade 1","Grade K - 2","Why does light appear after you flick on a light switch? Where does electricity come from? Questions such as these are answered in this age-appropriate and educational book all about electricity, which is a common part of elementary science curricula. This engaging text explains basic scientific concepts to young readers to teach them about how electricity works, where it comes from, and how we use it in our everyday lives. Vibrant, full-color photographs and simple diagrams provide additional, relatable information to expand readers’ knowledge of this electrifying topic.","English",25.6,20.48,"537--dc23","24 pp.","https://greenhavenpublishing.com/9781534523852",null,{"$f":"Table1[[#This Row],['# of Books]]*Table1[[#This Row],[QTY]]","v":0},{"$f":"Table1[[#This Row],[QTY]]*Table1[[#This Row],[School & Library Price]]","v":0}]
[null,null,null,null,null,"Science and Technology","First Science","Hot and Cold","978-1-5345-2390-6",{"$f":"HYPERLINK(Table1[[#This Row],[eCommerce Hyperlink]],\"Book Weblink\")","v":"Book Weblink"},null,"KidHaven Publishing","Library Bound Book",1,"2018","January 2018","Library","8.500 X 8.500","Author","Steffi Cavell-Clarke",null,null,null,null,"F","500L","Grade 1","Grade K - 2","Young readers are introduced to the basic science concept of temperature and how to properly identify things that are hot and cold in this age-appropriate text. Fun facts, striking, full-color photographs, and diagrams provide insight into this essential elementary science curriculum topic. This accessible reading experience is sure to make early learners even more curious about the world around them, and it encourages them to experiment safely with the everyday objects to see science in action.","English",25.6,20.48,"536'.5--dc23","24 pp.","https://greenhavenpublishing.com/9781534523906",null,{"$f":"Table1[[#This Row],['# of Books]]*Table1[[#This Row],[QTY]]","v":0},{"$f":"Table1[[#This Row],[QTY]]*Table1[[#This Row],[School & Library Price]]","v":0}]
[null,null,null,null,null,"Science and Technology","First Science","Hot and Cold","978-1-5345-2463-7",{"$f":"HYPERLINK(Table1[[#This Row],[eCommerce Hyperlink]],\"Book Weblink\")","v":"Book Weblink"},null,"KidHaven Publishing","eBook",1,"2018","January 2018",null,null,"Author","Steffi Cavell-Clarke",null,null,null,null,"F","500L","Grade 1","Grade K - 2","Young readers are introduced to the basic science concept of temperature and how to properly identify things that are hot and cold in this age-appropriate text. Fun facts, striking, full-color photographs, and diagrams provide insight into this essential elementary science curriculum topic. This accessible reading experience is sure to make early learners even more curious about the world around them, and it encourages them to experiment safely with the everyday objects to see science in action.","English",25.6,20.48,"536'.5--dc23","24 pp.","https://greenhavenpublishing.com/9781534524637",null,{"$f":"Table1[[#This Row],['# of Books]]*Table1[[#This Row],[QTY]]","v":0},{"$f":"Table1[[#This Row],[QTY]]*Table1[[#This Row],[School & Library Price]]","v":0}]
[null,null,null,null,null,"Science and Technology","First Science","Light","978-1-5345-2074-5",{"$f":"HYPERLINK(Table1[[#This Row],[eCommerce Hyperlink]],\"Book Weblink\")","v":"Book Weblink"},null,"KidHaven Publishing","Library Bound Book",1,"2017","January 2017","Library","8.500 X 8.500","Author","Steffi Cavell-Clarke","2.4","0.5","12",null,"F","530L","Grade 1","Grade K - 2","Young readers discover what light is and where it comes from as they explore this essential early science concept through age-appropriate text and images. The basic ideas behind the science of light are explained to early learners using accessible language and relatable examples. Readers are also presented with simple diagrams designed to enhance their knowledge of this elementary science curriculum topic. Colorful photographs are also included on each page, making this first science lesson a fun and memorable one!","English",25.6,20.48,"535","24 pp.","https://greenhavenpublishing.com/9781534520745",null,{"$f":"Table1[[#This Row],['# of Books]]*Table1[[#This Row],[QTY]]","v":0},{"$f":"Table1[[#This Row],[QTY]]*Table1[[#This Row],[School & Library Price]]","v":0}]
[null,null,null,null,null,"Science and Technology","First Science","Light","978-1-5345-2075-2",{"$f":"HYPERLINK(Table1[[#This Row],[eCommerce Hyperlink]],\"Book Weblink\")","v":"Book Weblink"},null,"KidHaven Publishing","eBook",1,"2017","January 2017",null,null,"Author","Steffi Cavell-Clarke","2.4","0.5","12",null,"F","530L","Grade 1","Grade K - 2","Young readers discover what light is and where it comes from as they explore this essential early science concept through age-appropriate text and images. The basic ideas behind the science of light are explained to early learners using accessible language and relatable examples. Readers are also presented with simple diagrams designed to enhance their knowledge of this elementary science curriculum topic. Colorful photographs are also included on each page, making this first science lesson a fun and memorable one!","English",25.6,20.48,"535","24 pp.","https://greenhavenpublishing.com/9781534520752",null,{"$f":"Table1[[#This Row],['# of Books]]*Table1[[#This Row],[QTY]]","v":0},{"$f":"Table1[[#This Row],[QTY]]*Table1[[#This Row],[School & Library Price]]","v":0}]
[null,null,null,null,null,"Science and Technology","First Science","Magnets","978-1-5345-2078-3",{"$f":"HYPERLINK(Table1[[#This Row],[eCommerce Hyperlink]],\"Book Weblink\")","v":"Book Weblink"},null,"KidHaven Publishing","Library Bound Book",1,"2017","January 2017","Library","8.500 X 8.500","Author","Steffi Cavell-Clarke","3.1","0.5","8",null,"F","720L","Grade 1","Grade K - 2","Experimenting with magnets is a fun way for early learners to explore physical science. Readers are introduced to the basic facts that explain how magnets work, enhancing their understanding of this important part of elementary science curricula. Clear, age-appropriate language takes potentially abstract ideas and presents them in a way that is easy for early learners to understand. Detailed diagrams and full-color photographs also help readers gain a deeper understanding of the amazing science behind magnets.","English",25.6,20.48,"538","24 pp.","https://greenhavenpublishing.com/9781534520783",null,{"$f":"Table1[[#This Row],['# of Books]]*Table1[[#This Row],[QTY]]","v":0},{"$f":"Table1[[#This Row],[QTY]]*Table1[[#This Row],[School & Library Price]]","v":0}]
[null,null,null,null,null,"Science and Technology","First Science","Magnets","978-1-5345-2079-0",{"$f":"HYPERLINK(Table1[[#This Row],[eCommerce Hyperlink]],\"Book Weblink\")","v":"Book Weblink"},null,"KidHaven Publishing","eBook",1,"2017","January 2017",null,null,"Author","Steffi Cavell-Clarke","3.1","0.5","8",null,"F","720L","Grade 1","Grade K - 2","Experimenting with magnets is a fun way for early learners to explore physical science. Readers are introduced to the basic facts that explain how magnets work, enhancing their understanding of this important part of elementary science curricula. Clear, age-appropriate language takes potentially abstract ideas and presents them in a way that is easy for early learners to understand. Detailed diagrams and full-color photographs also help readers gain a deeper understanding of the amazing science behind magnets.","English",25.6,20.48,"538","24 pp.","https://greenhavenpublishing.com/9781534520790",null,{"$f":"Table1[[#This Row],['# of Books]]*Table1[[#This Row],[QTY]]","v":0},{"$f":"Table1[[#This Row],[QTY]]*Table1[[#This Row],[School & Library Price]]","v":0}]
[null,null,null,null,null,"Science and Technology","First Science","Materials","978-1-5345-2387-6",{"$f":"HYPERLINK(Table1[[#This Row],[eCommerce Hyperlink]],\"Book Weblink\")","v":"Book Weblink"},null,"KidHaven Publishing","Library Bound Book",1,"2018","January 2018","Library","8.500 X 8.500","Author","Steffi Cavell-Clarke",null,null,null,null,"F","520L","Grade 1","Grade K - 2","Understanding the properties of different materials is essential to developing basic scientific knowledge. Readers are introduced to this critical concept through accessible text that asks them to examine different everyday materials, such as glass and wood, and what they are used for. The main text includes interesting facts that enhance science curriculum topics. Eye-catching, full-color photographs and diagrams are also featured. This engaging text exposes young readers to a plethora of materials and shows them how they are used to create the objects we see and use every day.","English",25.6,20.48,"620.1'1--dc23","24 pp.","https://greenhavenpublishing.com/9781534523876",null,{"$f":"Table1[[#This Row],['# of Books]]*Table1[[#This Row],[QTY]]","v":0},{"$f":"Table1[[#This Row],[QTY]]*Table1[[#This Row],[School & Library Price]]","v":0}]
[null,null,null,null,null,"Science and Technology","First Science","Materials","978-1-5345-2388-3",{"$f":"HYPERLINK(Table1[[#This Row],[eCommerce Hyperlink]],\"Book Weblink\")","v":"Book Weblink"},null,"KidHaven Publishing","eBook",1,"2018","January 2018",null,null,"Author","Steffi Cavell-Clarke",null,null,null,null,"F","520L","Grade 1","Grade K - 2","Understanding the properties of different materials is essential to developing basic scientific knowledge. Readers are introduced to this critical concept through accessible text that asks them to examine different everyday materials, such as glass and wood, and what they are used for. The main text includes interesting facts that enhance science curriculum topics. Eye-catching, full-color photographs and diagrams are also featured. This engaging text exposes young readers to a plethora of materials and shows them how they are used to create the objects we see and use every day.","English",25.6,20.48,"620.1'1--dc23","24 pp.","https://greenhavenpublishing.com/9781534523883",null,{"$f":"Table1[[#This Row],['# of Books]]*Table1[[#This Row],[QTY]]","v":0},{"$f":"Table1[[#This Row],[QTY]]*Table1[[#This Row],[School & Library Price]]","v":0}]
[null,null,null,null,null,"Science and Technology","First Science","Pushes and Pulls","978-1-5345-2082-0",{"$f":"HYPERLINK(Table1[[#This Row],[eCommerce Hyperlink]],\"Book Weblink\")","v":"Book Weblink"},null,"KidHaven Publishing","Library Bound Book",1,"2017","January 2017","Library","8.500 X 8.500","Author","Steffi Cavell-Clarke","2.8","0.5",null,null,"F","550L","Grade 1","Grade K - 2","Pushing against a wall and pulling on a rope are examples of forces at work in the world around us. This age-appropriate way of discussing forces allows young readers to explore beginner physics using language and examples they can easily understand. The simple, accessible text and colorful diagrams present a basic science curriculum topic to early learners in a fresh and fun way. Vibrant photographs of young people experimenting with forces encourage aspiring scientists to keep learning more about this topic long after they turn the last page.","English",25.6,20.48,"531’.6","24 pp.","https://greenhavenpublishing.com/9781534520820",null,{"$f":"Table1[[#This Row],['# of Books]]*Table1[[#This Row],[QTY]]","v":0},{"$f":"Table1[[#This Row],[QTY]]*Table1[[#This Row],[School & Library Price]]","v":0}]
[null,null,null,null,null,"Science and Technology","First Science","Pushes and Pulls","978-1-5345-2083-7",{"$f":"HYPERLINK(Table1[[#This Row],[eCommerce Hyperlink]],\"Book Weblink\")","v":"Book Weblink"},null,"KidHaven Publishing","eBook",1,"2017","January 2017",null,null,"Author","Steffi Cavell-Clarke","2.8","0.5",null,null,"F","550L","Grade 1","Grade K - 2","Pushing against a wall and pulling on a rope are examples of forces at work in the world around us. This age-appropriate way of discussing forces allows young readers to explore beginner physics using language and examples they can easily understand. The simple, accessible text and colorful diagrams present a basic science curriculum topic to early learners in a fresh and fun way. Vibrant photographs of young people experimenting with forces encourage aspiring scientists to keep learning more about this topic long after they turn the last page.","English",25.6,20.48,"531’.6","24 pp.","https://greenhavenpublishing.com/9781534520837",null,{"$f":"Table1[[#This Row],['# of Books]]*Table1[[#This Row],[QTY]]","v":0},{"$f":"Table1[[#This Row],[QTY]]*Table1[[#This Row],[School & Library Price]]","v":0}]
[null,null,null,null,null,"Science and Technology","First Science","Sound","978-1-5345-2086-8",{"$f":"HYPERLINK(Table1[[#This Row],[eCommerce Hyperlink]],\"Book Weblink\")","v":"Book Weblink"},null,"KidHaven Publishing","Library Bound Book",1,"2017","January 2017","Library","8.500 X 8.500","Author","Steffi Cavell-Clarke","2.5","0.5",null,null,"F","510L","Grade 1","Grade K - 2","The science of sound can seem abstract and complicated to early learners. However, young readers will develop a strong understanding of this important science curriculum topic through the use of accessible text and detailed images. Age-appropriate content is explained using simple language and concrete examples, helping young readers understand where sounds come from and why we can hear them. This beginner science concept is further explained through helpful diagrams. Young readers will be captivated by this engaging approach to science that features vibrant, full-color photographs on each page.","English",25.6,20.48,"534","24 pp.","https://greenhavenpublishing.com/9781534520868",null,{"$f":"Table1[[#This Row],['# of Books]]*Table1[[#This Row],[QTY]]","v":0},{"$f":"Table1[[#This Row],[QTY]]*Table1[[#This Row],[School & Library Price]]","v":0}]
[null,null,null,null,null,"Science and Technology","First Science","Sound","978-1-5345-2087-5",{"$f":"HYPERLINK(Table1[[#This Row],[eCommerce Hyperlink]],\"Book Weblink\")","v":"Book Weblink"},null,"KidHaven Publishing","eBook",1,"2017","January 2017",null,null,"Author","Steffi Cavell-Clarke","2.5","0.5",null,null,"F","510L","Grade 1","Grade K - 2","The science of sound can seem abstract and complicated to early learners. However, young readers will develop a strong understanding of this important science curriculum topic through the use of accessible text and detailed images. Age-appropriate content is explained using simple language and concrete examples, helping young readers understand where sounds come from and why we can hear them. This beginner science concept is further explained through helpful diagrams. Young readers will be captivated by this engaging approach to science that features vibrant, full-color photographs on each page.","English",25.6,20.48,"534","24 pp.","https://greenhavenpublishing.com/9781534520875",null,{"$f":"Table1[[#This Row],['# of Books]]*Table1[[#This Row],[QTY]]","v":0},{"$f":"Table1[[#This Row],[QTY]]*Table1[[#This Row],[School & Library Price]]","v":0}]
[null,null,null,null,null,"Science and Technology","First Science","Weather","978-1-5345-2393-7",{"$f":"HYPERLINK(Table1[[#This Row],[eCommerce Hyperlink]],\"Book Weblink\")","v":"Book Weblink"},null,"KidHaven Publishing","Library Bound Book",1,"2018","January 2018","Library","8.500 X 8.500","Author","Steffi Cavell-Clarke",null,null,"12",null,"F","590L","Grade 1","Grade K - 2","One of the things we notice every day after looking out our windows is what the weather is like outside. Whether it’s snowing, it’s raining, or the sun is shining, weather affects many aspects of our daily lives. In this accessible text, young readers will get a closer look at the science behind weather and how it affects our world. The main text is supplemented with bold, full-color photographs, giving readers a better idea of what different kinds of weather look like. Informative diagrams also help early learners better understand this common science curriculum topic.","English",25.6,20.48,"551.5--dc23","24 pp.","https://greenhavenpublishing.com/9781534523937",null,{"$f":"Table1[[#This Row],['# of Books]]*Table1[[#This Row],[QTY]]","v":0},{"$f":"Table1[[#This Row],[QTY]]*Table1[[#This Row],[School & Library Price]]","v":0}]
[null,null,null,null,null,"Science and Technology","First Science","Weather","978-1-5345-2394-4",{"$f":"HYPERLINK(Table1[[#This Row],[eCommerce Hyperlink]],\"Book Weblink\")","v":"Book Weblink"},null,"KidHaven Publishing","eBook",1,"2018","January 2018",null,null,"Author","Steffi Cavell-Clarke",null,null,"12",null,"F","590L","Grade 1","Grade K - 2","One of the things we notice every day after looking out our windows is what the weather is like outside. Whether it’s snowing, it’s raining, or the sun is shining, weather affects many aspects of our daily lives. In this accessible text, young readers will get a closer look at the science behind weather and how it affects our world. The main text is supplemented with bold, full-color photographs, giving readers a better idea of what different kinds of weather look like. Informative diagrams also help early learners better understand this common science curriculum topic.","English",25.6,20.48,"551.5--dc23","24 pp.","https://greenhavenpublishing.com/9781534523944",null,{"$f":"Table1[[#This Row],['# of Books]]*Table1[[#This Row],[QTY]]","v":0},{"$f":"Table1[[#This Row],[QTY]]*Table1[[#This Row],[School & Library Price]]","v":0}]
[null,null,null,null,null,"Science and Technology","Journey Through Our Solar System","Journey Through Our Solar System","978-1-5345-2210-7",{"$f":"HYPERLINK(Table1[[#This Row],[eCommerce Hyperlink]],\"Book Weblink\")","v":"Book Weblink"},null,"KidHaven Publishing","Library Set",12,"2018","August 2017","Library","7.000 X 7.000",null,null,null,null,null,null,null,null,"Grade 1 - 2","Grade 1 - 3","Readers are sure to enjoy this fascinating look at the celestial bodies that make up our solar system. They will learn about each of the eight planets, as well as Earth's moon, asteroids, and dwarf planets such as Pluto. Each volume presents readers with fun facts about different parts of our solar system. Full-color photographs provide an astronaut's view of outer space as readers take their own journey through our solar system.","English",307.2,245.76,null,"24 pp.","https://greenhavenpublishing.com/9781534522107",null,{"$f":"Table1[[#This Row],['# of Books]]*Table1[[#This Row],[QTY]]","v":0},{"$f":"Table1[[#This Row],[QTY]]*Table1[[#This Row],[School & Library Price]]","v":0}]
[null,null,null,null,null,"Science and Technology","Journey Through Our Solar System","Exploring Comets and Asteroids","978-1-5345-2275-6",{"$f":"HYPERLINK(Table1[[#This Row],[eCommerce Hyperlink]],\"Book Weblink\")","v":"Book Weblink"},null,"KidHaven Publishing","Library Bound Book",1,"2018","August 2017","Library","7.000 X 7.000","Author","David Anthony","3.9","0.5",null,null,"I",null,"Grade 1 - 2","Grade 1 - 3","Many people think of space as being empty, but that isn't true. In addition to stars, planets, and moons, there are asteroids and comets. Readers learn that asteroids are rocks that orbit the sun. Comets are chunks of ice and dust that form on the edges of the solar system. This book takes readers on a fun journey into space so that they can see for themselves that space is full of fascinating matter.","English",25.6,20.48,"523.5'1--dc23","24 pp.","https://greenhavenpublishing.com/9781534522756",null,{"$f":"Table1[[#This Row],['# of Books]]*Table1[[#This Row],[QTY]]","v":0},{"$f":"Table1[[#This Row],[QTY]]*Table1[[#This Row],[School & Library Price]]","v":0}]
[null,null,null,null,null,"Science and Technology","Journey Through Our Solar System","Exploring Comets and Asteroids","978-1-5345-2268-8",{"$f":"HYPERLINK(Table1[[#This Row],[eCommerce Hyperlink]],\"Book Weblink\")","v":"Book Weblink"},null,"KidHaven Publishing","eBook",1,"2018","August 2017",null,null,"Author","David Anthony","3.9","0.5",null,null,"I",null,"Grade 1 - 2","Grade 1 - 3","Many people think of space as being empty, but that isn't true. In addition to stars, planets, and moons, there are asteroids and comets. Readers learn that asteroids are rocks that orbit the sun. Comets are chunks of ice and dust that form on the edges of the solar system. This book takes readers on a fun journey into space so that they can see for themselves that space is full of fascinating matter.","English",25.6,20.48,"523.5'1--dc23","24 pp.","https://greenhavenpublishing.com/9781534522688",null,{"$f":"Table1[[#This Row],['# of Books]]*Table1[[#This Row],[QTY]]","v":0},{"$f":"Table1[[#This Row],[QTY]]*Table1[[#This Row],[School & Library Price]]","v":0}]
[null,null,null,null,null,"Science and Technology","Journey Through Our Solar System","Exploring Earth","978-1-5345-2274-9",{"$f":"HYPERLINK(Table1[[#This Row],[eCommerce Hyperlink]],\"Book Weblink\")","v":"Book Weblink"},null,"KidHaven Publishing","Library Bound Book",1,"2018","August 2017","Library","7.000 X 7.000","Author","Mary Austen","3.5","0.5",null,null,"I",null,"Grade 1 - 2","Grade 1 - 3","Earth is the planet we know the most about because it’s our home, but we’re always learning more. Every day we find out something new about the animals that live in the oceans, the plants that grow in the forests, and what’s inside Earth’s crust. Readers will enjoy taking a closer look at some of the most fascinating things about the planet we call home, expanding their knowledge of common science curriculum topics. Through vivid photographs and clearly labeled diagrams, they will learn even more about our fascinating planet.","English",25.6,20.48,"525--dc23","24 pp.","https://greenhavenpublishing.com/9781534522749",null,{"$f":"Table1[[#This Row],['# of Books]]*Table1[[#This Row],[QTY]]","v":0},{"$f":"Table1[[#This Row],[QTY]]*Table1[[#This Row],[School & Library Price]]","v":0}]
[null,null,null,null,null,"Science and Technology","Journey Through Our Solar System","Exploring Earth","978-1-5345-2269-5",{"$f":"HYPERLINK(Table1[[#This Row],[eCommerce Hyperlink]],\"Book Weblink\")","v":"Book Weblink"},null,"KidHaven Publishing","eBook",1,"2018","August 2017",null,null,"Author","Mary Austen","3.5","0.5",null,null,"I",null,"Grade 1 - 2","Grade 1 - 3","Earth is the planet we know the most about because it’s our home, but we’re always learning more. Every day we find out something new about the animals that live in the oceans, the plants that grow in the forests, and what’s inside Earth’s crust. Readers will enjoy taking a closer look at some of the most fascinating things about the planet we call home, expanding their knowledge of common science curriculum topics. Through vivid photographs and clearly labeled diagrams, they will learn even more about our fascinating planet.","English",25.6,20.48,"525--dc23","24 pp.","https://greenhavenpublishing.com/9781534522695",null,{"$f":"Table1[[#This Row],['# of Books]]*Table1[[#This Row],[QTY]]","v":0},{"$f":"Table1[[#This Row],[QTY]]*Table1[[#This Row],[School & Library Price]]","v":0}]
[null,null,null,null,null,"Science and Technology","Journey Through Our Solar System","Exploring Jupiter","978-1-5345-2279-4",{"$f":"HYPERLINK(Table1[[#This Row],[eCommerce Hyperlink]],\"Book Weblink\")","v":"Book Weblink"},null,"KidHaven Publishing","Library Bound Book",1,"2018","August 2017","Library","7.000 X 7.000","Author","Richard Alexander","3.5","0.5",null,null,"I",null,"Grade 1 - 2","Grade 1 - 3","Did you know Jupiter is so big that all the other planets could fit inside it? You wouldn’t want to travel there, though! Jupiter’s atmosphere is poisonous to humans. Readers learn these and other intriguing facts about our solar system’s largest planet. Detailed diagrams and striking photographs support the informative text, which presents essential science curriculum topics in a fun way.","English",25.6,20.48,"523.45--dc23","24 pp.","https://greenhavenpublishing.com/9781534522794",null,{"$f":"Table1[[#This Row],['# of Books]]*Table1[[#This Row],[QTY]]","v":0},{"$f":"Table1[[#This Row],[QTY]]*Table1[[#This Row],[School & Library Price]]","v":0}]
[null,null,null,null,null,"Science and Technology","Journey Through Our Solar System","Exploring Jupiter","978-1-5345-2265-7",{"$f":"HYPERLINK(Table1[[#This Row],[eCommerce Hyperlink]],\"Book Weblink\")","v":"Book Weblink"},null,"KidHaven Publishing","eBook",1,"2018","August 2017",null,null,"Author","Richard Alexander","3.5","0.5",null,null,"I",null,"Grade 1 - 2","Grade 1 - 3","Did you know Jupiter is so big that all the other planets could fit inside it? You wouldn’t want to travel there, though! Jupiter’s atmosphere is poisonous to humans. Readers learn these and other intriguing facts about our solar system’s largest planet. Detailed diagrams and striking photographs support the informative text, which presents essential science curriculum topics in a fun way.","English",25.6,20.48,"523.45--dc23","24 pp.","https://greenhavenpublishing.com/9781534522657",null,{"$f":"Table1[[#This Row],['# of Books]]*Table1[[#This Row],[QTY]]","v":0},{"$f":"Table1[[#This Row],[QTY]]*Table1[[#This Row],[School & Library Price]]","v":0}]
[null,null,null,null,null,"Science and Technology","Journey Through Our Solar System","Exploring Mars","978-1-5345-2270-1",{"$f":"HYPERLINK(Table1[[#This Row],[eCommerce Hyperlink]],\"Book Weblink\")","v":"Book Weblink"},null,"KidHaven Publishing","Library Bound Book",1,"2018","August 2017","Library","7.000 X 7.000","Author","Nick Christopher","3.4","0.5",null,null,"I",null,"Grade 1 - 2","Grade 1 - 3","Scientists have spent a lot of time exploring Mars, so it’s one of the planets we know the most about. They believe it used to look a lot like Earth, with oceans and lakes on its surface. Today, it’s cold and rocky. Through clear diagrams and vivid photographs, readers explore the surface of Mars. Fun facts that supplement this common science curriculum topic allow readers to feel like space explorers, learning exciting new things about the Red Planet.","English",25.6,20.48,"523.43--dc23","24 pp.","https://greenhavenpublishing.com/9781534522701",null,{"$f":"Table1[[#This Row],['# of Books]]*Table1[[#This Row],[QTY]]","v":0},{"$f":"Table1[[#This Row],[QTY]]*Table1[[#This Row],[School & Library Price]]","v":0}]
[null,null,null,null,null,"Science and Technology","Journey Through Our Solar System","Exploring Mars","978-1-5345-2262-6",{"$f":"HYPERLINK(Table1[[#This Row],[eCommerce Hyperlink]],\"Book Weblink\")","v":"Book Weblink"},null,"KidHaven Publishing","eBook",1,"2018","August 2017",null,null,"Author","Nick Christopher","3.4","0.5",null,null,"I",null,"Grade 1 - 2","Grade 1 - 3","Scientists have spent a lot of time exploring Mars, so it’s one of the planets we know the most about. They believe it used to look a lot like Earth, with oceans and lakes on its surface. Today, it’s cold and rocky. Through clear diagrams and vivid photographs, readers explore the surface of Mars. Fun facts that supplement this common science curriculum topic allow readers to feel like space explorers, learning exciting new things about the Red Planet.","English",25.6,20.48,"523.43--dc23","24 pp.","https://greenhavenpublishing.com/9781534522626",null,{"$f":"Table1[[#This Row],['# of Books]]*Table1[[#This Row],[QTY]]","v":0},{"$f":"Table1[[#This Row],[QTY]]*Table1[[#This Row],[School & Library Price]]","v":0}]
[null,null,null,null,null,"Science and Technology","Journey Through Our Solar System","Exploring Mercury","978-1-5345-2271-8",{"$f":"HYPERLINK(Table1[[#This Row],[eCommerce Hyperlink]],\"Book Weblink\")","v":"Book Weblink"},null,"KidHaven Publishing","Library Bound Book",1,"2018","August 2017","Library","7.000 X 7.000","Author","Robert M. Hamilton ","3.8","0.5",null,null,"I",null,"Grade 1 - 2","Grade 1 - 3","Mercury is the smallest planet in our solar system and the closest one to the sun. It’s so hot that people would burn up if they tried to visit! Luckily, scientists have figured out ways to study Mercury from Earth. Readers discover many of the amazing things scientists have learned about this planet. Clearly labeled diagrams and striking photographs illustrate the educational text, which enhances common science curriculum topics in way that is designed to keep readers engaged.","English",25.6,20.48,"523.41--dc23","24 pp.","https://greenhavenpublishing.com/9781534522718",null,{"$f":"Table1[[#This Row],['# of Books]]*Table1[[#This Row],[QTY]]","v":0},{"$f":"Table1[[#This Row],[QTY]]*Table1[[#This Row],[School & Library Price]]","v":0}]
[null,null,null,null,null,"Science and Technology","Journey Through Our Solar System","Exploring Mercury","978-1-5345-2261-9",{"$f":"HYPERLINK(Table1[[#This Row],[eCommerce Hyperlink]],\"Book Weblink\")","v":"Book Weblink"},null,"KidHaven Publishing","eBook",1,"2018","August 2017",null,null,"Author","Robert M. Hamilton ","3.8","0.5",null,null,"I",null,"Grade 1 - 2","Grade 1 - 3","Mercury is the smallest planet in our solar system and the closest one to the sun. It’s so hot that people would burn up if they tried to visit! Luckily, scientists have figured out ways to study Mercury from Earth. Readers discover many of the amazing things scientists have learned about this planet. Clearly labeled diagrams and striking photographs illustrate the educational text, which enhances common science curriculum topics in way that is designed to keep readers engaged.","English",25.6,20.48,"523.41--dc23","24 pp.","https://greenhavenpublishing.com/9781534522619",null,{"$f":"Table1[[#This Row],['# of Books]]*Table1[[#This Row],[QTY]]","v":0},{"$f":"Table1[[#This Row],[QTY]]*Table1[[#This Row],[School & Library Price]]","v":0}]
[null,null,null,null,null,"Science and Technology","Journey Through Our Solar System","Exploring Neptune","978-1-5345-2272-5",{"$f":"HYPERLINK(Table1[[#This Row],[eCommerce Hyperlink]],\"Book Weblink\")","v":"Book Weblink"},null,"KidHaven Publishing","Library Bound Book",1,"2018","August 2017","Library","7.000 X 7.000","Author","Emma Jones","3.5","0.5",null,null,"I",null,"Grade 1 - 2","Grade 1 - 3","Neptune and Uranus are sometimes called \"sister planets\" because they are so similar. However, Neptune has stronger winds and more storms than Uranus, and it is not quite as cold. Readers will enjoy learning about what makes Neptune unique in this captivating volume. Detailed diagrams and impressive photographs help students visualize the fun facts they're taking in with each turn of the page, making this familiar part of science curricula feel exciting.","English",25.6,20.48,"523.48--dc23","24 pp.","https://greenhavenpublishing.com/9781534522725",null,{"$f":"Table1[[#This Row],['# of Books]]*Table1[[#This Row],[QTY]]","v":0},{"$f":"Table1[[#This Row],[QTY]]*Table1[[#This Row],[School & Library Price]]","v":0}]
[null,null,null,null,null,"Science and Technology","Journey Through Our Solar System","Exploring Neptune","978-1-5345-2260-2",{"$f":"HYPERLINK(Table1[[#This Row],[eCommerce Hyperlink]],\"Book Weblink\")","v":"Book Weblink"},null,"KidHaven Publishing","eBook",1,"2018","August 2017",null,null,"Author","Emma Jones","3.5","0.5",null,null,"I",null,"Grade 1 - 2","Grade 1 - 3","Neptune and Uranus are sometimes called \"sister planets\" because they are so similar. However, Neptune has stronger winds and more storms than Uranus, and it is not quite as cold. Readers will enjoy learning about what makes Neptune unique in this captivating volume. Detailed diagrams and impressive photographs help students visualize the fun facts they're taking in with each turn of the page, making this familiar part of science curricula feel exciting.","English",25.6,20.48,"523.48--dc23","24 pp.","https://greenhavenpublishing.com/9781534522602",null,{"$f":"Table1[[#This Row],['# of Books]]*Table1[[#This Row],[QTY]]","v":0},{"$f":"Table1[[#This Row],[QTY]]*Table1[[#This Row],[School & Library Price]]","v":0}]
[null,null,null,null,null,"Science and Technology","Journey Through Our Solar System","Exploring Pluto and Other Dwarf Planets","978-1-5345-2280-0",{"$f":"HYPERLINK(Table1[[#This Row],[eCommerce Hyperlink]],\"Book Weblink\")","v":"Book Weblink"},null,"KidHaven Publishing","Library Bound Book",1,"2018","August 2017","Library","7.000 X 7.000","Author","Riley Lawrence","3.8","0.5",null,null,"I",null,"Grade 1 - 2","Grade 1 - 3","Pluto is too big to be an asteroid and too small to be a planet, so scientists call it a dwarf planet. It’s so far away from the sun that it gets no warmth at all, so it’s covered in a thick layer of ice. Readers learn fun facts such as these as they explore the world of our solar system’s dwarf planets. Informative diagrams, full-color photographs, and accessible text help readers discover more about Pluto and the other dwarf planets in our solar system.","English",25.6,20.48,"523.48'2--dc23","24 pp.","https://greenhavenpublishing.com/9781534522800",null,{"$f":"Table1[[#This Row],['# of Books]]*Table1[[#This Row],[QTY]]","v":0},{"$f":"Table1[[#This Row],[QTY]]*Table1[[#This Row],[School & Library Price]]","v":0}]
[null,null,null,null,null,"Science and Technology","Journey Through Our Solar System","Exploring Pluto and Other Dwarf Planets","978-1-5345-2276-3",{"$f":"HYPERLINK(Table1[[#This Row],[eCommerce Hyperlink]],\"Book Weblink\")","v":"Book Weblink"},null,"KidHaven Publishing","eBook",1,"2018","August 2017",null,null,"Author","Riley Lawrence","3.8","0.5",null,null,"I",null,"Grade 1 - 2","Grade 1 - 3","Pluto is too big to be an asteroid and too small to be a planet, so scientists call it a dwarf planet. It’s so far away from the sun that it gets no warmth at all, so it’s covered in a thick layer of ice. Readers learn fun facts such as these as they explore the world of our solar system’s dwarf planets. Informative diagrams, full-color photographs, and accessible text help readers discover more about Pluto and the other dwarf planets in our solar system.","English",25.6,20.48,"523.48'2--dc23","24 pp.","https://greenhavenpublishing.com/9781534522763",null,{"$f":"Table1[[#This Row],['# of Books]]*Table1[[#This Row],[QTY]]","v":0},{"$f":"Table1[[#This Row],[QTY]]*Table1[[#This Row],[School & Library Price]]","v":0}]
[null,null,null,null,null,"Science and Technology","Journey Through Our Solar System","Exploring Saturn","978-1-5345-2282-4",{"$f":"HYPERLINK(Table1[[#This Row],[eCommerce Hyperlink]],\"Book Weblink\")","v":"Book Weblink"},null,"KidHaven Publishing","Library Bound Book",1,"2018","August 2017","Library","7.000 X 7.000","Author","Mary Austen","3.3","0.5",null,null,"I",null,"Grade 1 - 2","Grade 1 - 3","Saturn is easily recognized by its large rings, which can be seen from Earth with a telescope. These rings look solid but are actually clouds of ice and dust. They orbit the planet the way Saturn orbits the sun. However, readers discover these rings are not the only interesting thing about this gas giant. Through informative text that supports current science curriculum requirements, as well as stunning photographs and detailed diagrams, readers learn fun facts about our solar system’s second-largest planet.","English",25.6,20.48,"523.46--dc23","24 pp.","https://greenhavenpublishing.com/9781534522824",null,{"$f":"Table1[[#This Row],['# of Books]]*Table1[[#This Row],[QTY]]","v":0},{"$f":"Table1[[#This Row],[QTY]]*Table1[[#This Row],[School & Library Price]]","v":0}]
[null,null,null,null,null,"Science and Technology","Journey Through Our Solar System","Exploring Saturn","978-1-5345-2263-3",{"$f":"HYPERLINK(Table1[[#This Row],[eCommerce Hyperlink]],\"Book Weblink\")","v":"Book Weblink"},null,"KidHaven Publishing","eBook",1,"2018","August 2017",null,null,"Author","Mary Austen","3.3","0.5",null,null,"I",null,"Grade 1 - 2","Grade 1 - 3","Saturn is easily recognized by its large rings, which can be seen from Earth with a telescope. These rings look solid but are actually clouds of ice and dust. They orbit the planet the way Saturn orbits the sun. However, readers discover these rings are not the only interesting thing about this gas giant. Through informative text that supports current science curriculum requirements, as well as stunning photographs and detailed diagrams, readers learn fun facts about our solar system’s second-largest planet.","English",25.6,20.48,"523.46--dc23","24 pp.","https://greenhavenpublishing.com/9781534522633",null,{"$f":"Table1[[#This Row],['# of Books]]*Table1[[#This Row],[QTY]]","v":0},{"$f":"Table1[[#This Row],[QTY]]*Table1[[#This Row],[School & Library Price]]","v":0}]
[null,null,null,null,null,"Science and Technology","Journey Through Our Solar System","Exploring the Moon","978-1-5345-2277-0",{"$f":"HYPERLINK(Table1[[#This Row],[eCommerce Hyperlink]],\"Book Weblink\")","v":"Book Weblink"},null,"KidHaven Publishing","Library Bound Book",1,"2018","August 2017","Library","7.000 X 7.000","Author","Richard Alexander","3.2","0.5",null,null,"I","590L","Grade 1 - 2","Grade 1 - 3","Without our moon, Earth would be a very different place. Readers discover fun facts about our closest neighbor, including the way it controls the ocean tides and how long it took astronauts to get there. People have always been captivated by the idea of exploring the moon, and readers will enjoy exploring these interesting facts and stunning pictures, which support important science curriculum topics.","English",25.6,20.48,"523.3--dc23","24 pp.","https://greenhavenpublishing.com/9781534522770",null,{"$f":"Table1[[#This Row],['# of Books]]*Table1[[#This Row],[QTY]]","v":0},{"$f":"Table1[[#This Row],[QTY]]*Table1[[#This Row],[School & Library Price]]","v":0}]
[null,null,null,null,null,"Science and Technology","Journey Through Our Solar System","Exploring the Moon","978-1-5345-2267-1",{"$f":"HYPERLINK(Table1[[#This Row],[eCommerce Hyperlink]],\"Book Weblink\")","v":"Book Weblink"},null,"KidHaven Publishing","eBook",1,"2018","August 2017",null,null,"Author","Richard Alexander","3.2","0.5",null,null,"I","590L","Grade 1 - 2","Grade 1 - 3","Without our moon, Earth would be a very different place. Readers discover fun facts about our closest neighbor, including the way it controls the ocean tides and how long it took astronauts to get there. People have always been captivated by the idea of exploring the moon, and readers will enjoy exploring these interesting facts and stunning pictures, which support important science curriculum topics.","English",25.6,20.48,"523.3--dc23","24 pp.","https://greenhavenpublishing.com/9781534522671",null,{"$f":"Table1[[#This Row],['# of Books]]*Table1[[#This Row],[QTY]]","v":0},{"$f":"Table1[[#This Row],[QTY]]*Table1[[#This Row],[School & Library Price]]","v":0}]
[null,null,null,null,null,"Science and Technology","Journey Through Our Solar System","Exploring the Sun","978-1-5345-2278-7",{"$f":"HYPERLINK(Table1[[#This Row],[eCommerce Hyperlink]],\"Book Weblink\")","v":"Book Weblink"},null,"KidHaven Publishing","Library Bound Book",1,"2018","August 2017","Library","7.000 X 7.000","Author","Kate Rogers","3.5","0.5",null,null,"I","770L","Grade 1 - 2","Grade 1 - 3","The sun is the closest star to Earth. Not only does it give us warmth and light, its light becomes food for plants, helping them grow. Readers discover this and other fun facts about the center of our solar system through accessible text. What does the sun look like up close? Readers find out with the help of diagrams and full-color photographs in this engaging volume, which enhances current science curriculum requirements.","English",25.6,20.48,"523.7--dc23","24 pp.","https://greenhavenpublishing.com/9781534522787",null,{"$f":"Table1[[#This Row],['# of Books]]*Table1[[#This Row],[QTY]]","v":0},{"$f":"Table1[[#This Row],[QTY]]*Table1[[#This Row],[School & Library Price]]","v":0}]
[null,null,null,null,null,"Science and Technology","Journey Through Our Solar System","Exploring the Sun","978-1-5345-2266-4",{"$f":"HYPERLINK(Table1[[#This Row],[eCommerce Hyperlink]],\"Book Weblink\")","v":"Book Weblink"},null,"KidHaven Publishing","eBook",1,"2018","August 2017",null,null,"Author","Kate Rogers","3.5","0.5",null,null,"I","770L","Grade 1 - 2","Grade 1 - 3","The sun is the closest star to Earth. Not only does it give us warmth and light, its light becomes food for plants, helping them grow. Readers discover this and other fun facts about the center of our solar system through accessible text. What does the sun look like up close? Readers find out with the help of diagrams and full-color photographs in this engaging volume, which enhances current science curriculum requirements.","English",25.6,20.48,"523.7--dc23","24 pp.","https://greenhavenpublishing.com/9781534522664",null,{"$f":"Table1[[#This Row],['# of Books]]*Table1[[#This Row],[QTY]]","v":0},{"$f":"Table1[[#This Row],[QTY]]*Table1[[#This Row],[School & Library Price]]","v":0}]
[null,null,null,null,null,"Science and Technology","Journey Through Our Solar System","Exploring Uranus","978-1-5345-2281-7",{"$f":"HYPERLINK(Table1[[#This Row],[eCommerce Hyperlink]],\"Book Weblink\")","v":"Book Weblink"},null,"KidHaven Publishing","Library Bound Book",1,"2018","August 2017","Library","7.000 X 7.000","Author","Cody Keiser","3.5","0.5",null,null,"I",null,"Grade 1 - 2","Grade 1 - 3","Grab your parka and let's visit Uranus. This planet is the coldest one in our solar system; its atmosphere is made up of clouds of ice. Through accessible text, labeled diagrams, and full-color photographs, readers discover what makes Uranus unique, from its sideways rotation to its characteristic blue color. Readers are sure to enjoy this fresh and fun take on a familiar science curriculum topic.","English",25.6,20.48,"523.47--dc23","24 pp.","https://greenhavenpublishing.com/9781534522817",null,{"$f":"Table1[[#This Row],['# of Books]]*Table1[[#This Row],[QTY]]","v":0},{"$f":"Table1[[#This Row],[QTY]]*Table1[[#This Row],[School & Library Price]]","v":0}]
[null,null,null,null,null,"Science and Technology","Journey Through Our Solar System","Exploring Uranus","978-1-5345-2264-0",{"$f":"HYPERLINK(Table1[[#This Row],[eCommerce Hyperlink]],\"Book Weblink\")","v":"Book Weblink"},null,"KidHaven Publishing","eBook",1,"2018","August 2017",null,null,"Author","Cody Keiser","3.5","0.5",null,null,"I",null,"Grade 1 - 2","Grade 1 - 3","Grab your parka and let's visit Uranus. This planet is the coldest one in our solar system; its atmosphere is made up of clouds of ice. Through accessible text, labeled diagrams, and full-color photographs, readers discover what makes Uranus unique, from its sideways rotation to its characteristic blue color. Readers are sure to enjoy this fresh and fun take on a familiar science curriculum topic.","English",25.6,20.48,"523.47--dc23","24 pp.","https://greenhavenpublishing.com/9781534522640",null,{"$f":"Table1[[#This Row],['# of Books]]*Table1[[#This Row],[QTY]]","v":0},{"$f":"Table1[[#This Row],[QTY]]*Table1[[#This Row],[School & Library Price]]","v":0}]
[null,null,null,null,null,"Science and Technology","Journey Through Our Solar System","Exploring Venus","978-1-5345-2273-2",{"$f":"HYPERLINK(Table1[[#This Row],[eCommerce Hyperlink]],\"Book Weblink\")","v":"Book Weblink"},null,"KidHaven Publishing","Library Bound Book",1,"2018","August 2017","Library","7.000 X 7.000","Author","Leslie Beckett","3.7","0.5",null,null,"I",null,"Grade 1 - 2","Grade 1 - 3","Venus is the planet closest to us on Earth; in fact, it’s so close that it can be seen in the sky without a telescope! It looks just like a very bright star. This rocky planet is covered in clouds, but they’re not like the clouds in Earth’s atmosphere. They’re full of poisonous gases! What else makes Venus interesting? Readers will find out as they discover fascinating facts about Venus through text that supports common science curriculum topics. Readers are also presented with detailed images in the form of helpful diagrams and stunning photographs of space.","English",25.6,20.48,"523.42--dc23","24 pp.","https://greenhavenpublishing.com/9781534522732",null,{"$f":"Table1[[#This Row],['# of Books]]*Table1[[#This Row],[QTY]]","v":0},{"$f":"Table1[[#This Row],[QTY]]*Table1[[#This Row],[School & Library Price]]","v":0}]
[null,null,null,null,null,"Science and Technology","Journey Through Our Solar System","Exploring Venus","978-1-5345-2259-6",{"$f":"HYPERLINK(Table1[[#This Row],[eCommerce Hyperlink]],\"Book Weblink\")","v":"Book Weblink"},null,"KidHaven Publishing","eBook",1,"2018","August 2017",null,null,"Author","Leslie Beckett","3.7","0.5",null,null,"I",null,"Grade 1 - 2","Grade 1 - 3","Venus is the planet closest to us on Earth; in fact, it’s so close that it can be seen in the sky without a telescope! It looks just like a very bright star. This rocky planet is covered in clouds, but they’re not like the clouds in Earth’s atmosphere. They’re full of poisonous gases! What else makes Venus interesting? Readers will find out as they discover fascinating facts about Venus through text that supports common science curriculum topics. Readers are also presented with detailed images in the form of helpful diagrams and stunning photographs of space.","English",25.6,20.48,"523.42--dc23","24 pp.","https://greenhavenpublishing.com/9781534522596",null,{"$f":"Table1[[#This Row],['# of Books]]*Table1[[#This Row],[QTY]]","v":0},{"$f":"Table1[[#This Row],[QTY]]*Table1[[#This Row],[School & Library Price]]","v":0}]
[null,null,null,null,null,"Science and Technology","Learn About Plants!","Learn About Plants!","978-1-5345-2200-8",{"$f":"HYPERLINK(Table1[[#This Row],[eCommerce Hyperlink]],\"Book Weblink\")","v":"Book Weblink"},null,"KidHaven Publishing","Library Set",5,"2018","August 2017","Library","8.500 X 8.500",null,null,null,null,null,null,null,null,"Grade 2","Grade 1 - 3","Do all plants have flowers? How do seeds become plants? Why do plants need roots? Readers discover the answers to these and many more common questions as they explore the vibrant world of plants and their unique parts. Informative text guides readers as they learn important facts about stems, leaves, flowers, and other parts of a plant. The text is closely aligned with the vivid, full-color photographs that fill each page. Readers are sure to enjoy this colorful and creative introduction to an essential elementary biology topic.\n","English",128,102.4,null,"24 pp.","https://greenhavenpublishing.com/9781534522008",null,{"$f":"Table1[[#This Row],['# of Books]]*Table1[[#This Row],[QTY]]","v":0},{"$f":"Table1[[#This Row],[QTY]]*Table1[[#This Row],[School & Library Price]]","v":0}]
[null,null,null,null,null,"Science and Technology","Learn About Plants!","Flowers","978-1-5345-2239-8",{"$f":"HYPERLINK(Table1[[#This Row],[eCommerce Hyperlink]],\"Book Weblink\")","v":"Book Weblink"},null,"KidHaven Publishing","Library Bound Book",1,"2018","August 2017","Library","8.500 X 8.500","Author","Steffi Cavell-Clarke","2.9","0.5",null,null,"J","570L","Grade 2","Grade 1 - 3","Why do plants have flowers? Readers discover the answer to this question as they learn fascinating facts about flowers and why they are an important part of a plant. Essential information that supports common science curriculum topics is presented in an accessible way for young readers. This includes the use of simple, colorful diagrams to help young learners understand the purpose of a plant’s flowers. Vibrant photographs fill each page, allowing readers to clearly visualize what they are learning.","English",25.6,20.48,"580--dc23","24 pp.","https://greenhavenpublishing.com/9781534522398",null,{"$f":"Table1[[#This Row],['# of Books]]*Table1[[#This Row],[QTY]]","v":0},{"$f":"Table1[[#This Row],[QTY]]*Table1[[#This Row],[School & Library Price]]","v":0}]
[null,null,null,null,null,"Science and Technology","Learn About Plants!","Flowers","978-1-5345-2235-0",{"$f":"HYPERLINK(Table1[[#This Row],[eCommerce Hyperlink]],\"Book Weblink\")","v":"Book Weblink"},null,"KidHaven Publishing","eBook",1,"2018","August 2017",null,null,"Author","Steffi Cavell-Clarke","2.9","0.5",null,null,"J","570L","Grade 2","Grade 1 - 3","Why do plants have flowers? Readers discover the answer to this question as they learn fascinating facts about flowers and why they are an important part of a plant. Essential information that supports common science curriculum topics is presented in an accessible way for young readers. This includes the use of simple, colorful diagrams to help young learners understand the purpose of a plant’s flowers. Vibrant photographs fill each page, allowing readers to clearly visualize what they are learning.","English",25.6,20.48,"580--dc23","24 pp.","https://greenhavenpublishing.com/9781534522350",null,{"$f":"Table1[[#This Row],['# of Books]]*Table1[[#This Row],[QTY]]","v":0},{"$f":"Table1[[#This Row],[QTY]]*Table1[[#This Row],[School & Library Price]]","v":0}]
[null,null,null,null,null,"Science and Technology","Learn About Plants!","Leaves","978-1-5345-2242-8",{"$f":"HYPERLINK(Table1[[#This Row],[eCommerce Hyperlink]],\"Book Weblink\")","v":"Book Weblink"},null,"KidHaven Publishing","Library Bound Book",1,"2018","August 2017","Library","8.500 X 8.500","Author","Steffi Cavell-Clarke","2.5","0.5",null,null,"J","550L","Grade 2","Grade 1 - 3","Plants don’t eat like people do, but they still need food to live and grow. They make their own food using their leaves. Readers explore the process by which leaves create food for plants through accessible text geared toward early learners. They will enjoy learning fun facts about leaves and discovering detailed diagrams of this vital part of a plant. Vivid, full-color photographs and a charming design appeal to young readers. This engaging look at a basic science curriculum topic is sure to keep readers entertained as they learn.","English",25.6,20.48,"581.4’8--dc23","24 pp.","https://greenhavenpublishing.com/9781534522428",null,{"$f":"Table1[[#This Row],['# of Books]]*Table1[[#This Row],[QTY]]","v":0},{"$f":"Table1[[#This Row],[QTY]]*Table1[[#This Row],[School & Library Price]]","v":0}]
[null,null,null,null,null,"Science and Technology","Learn About Plants!","Leaves","978-1-5345-2238-1",{"$f":"HYPERLINK(Table1[[#This Row],[eCommerce Hyperlink]],\"Book Weblink\")","v":"Book Weblink"},null,"KidHaven Publishing","eBook",1,"2018","August 2017",null,null,"Author","Steffi Cavell-Clarke","2.5","0.5",null,null,"J","550L","Grade 2","Grade 1 - 3","Plants don’t eat like people do, but they still need food to live and grow. They make their own food using their leaves. Readers explore the process by which leaves create food for plants through accessible text geared toward early learners. They will enjoy learning fun facts about leaves and discovering detailed diagrams of this vital part of a plant. Vivid, full-color photographs and a charming design appeal to young readers. This engaging look at a basic science curriculum topic is sure to keep readers entertained as they learn.","English",25.6,20.48,"581.4’8--dc23","24 pp.","https://greenhavenpublishing.com/9781534522381",null,{"$f":"Table1[[#This Row],['# of Books]]*Table1[[#This Row],[QTY]]","v":0},{"$f":"Table1[[#This Row],[QTY]]*Table1[[#This Row],[School & Library Price]]","v":0}]
[null,null,null,null,null,"Science and Technology","Learn About Plants!","Roots","978-1-5345-2241-1",{"$f":"HYPERLINK(Table1[[#This Row],[eCommerce Hyperlink]],\"Book Weblink\")","v":"Book Weblink"},null,"KidHaven Publishing","Library Bound Book",1,"2018","August 2017","Library","8.500 X 8.500","Author","Steffi Cavell-Clarke","2.8","0.5",null,null,"J","510L","Grade 2","Grade 1 - 3","Roots anchor plants in the ground, and they take in water and minerals from the soil to help plants grow. There is a lot to learn about these important plant parts, and readers discover many fun facts about roots through simple, clear text and helpful diagrams. Detailed, full-color photographs are also included to help readers develop a strong understanding of an important elementary science curriculum topic.","English",25.6,20.48,"581.4’98--dc23","24 pp.","https://greenhavenpublishing.com/9781534522411",null,{"$f":"Table1[[#This Row],['# of Books]]*Table1[[#This Row],[QTY]]","v":0},{"$f":"Table1[[#This Row],[QTY]]*Table1[[#This Row],[School & Library Price]]","v":0}]
[null,null,null,null,null,"Science and Technology","Learn About Plants!","Roots","978-1-5345-2237-4",{"$f":"HYPERLINK(Table1[[#This Row],[eCommerce Hyperlink]],\"Book Weblink\")","v":"Book Weblink"},null,"KidHaven Publishing","eBook",1,"2018","August 2017",null,null,"Author","Steffi Cavell-Clarke","2.8","0.5",null,null,"J","510L","Grade 2","Grade 1 - 3","Roots anchor plants in the ground, and they take in water and minerals from the soil to help plants grow. There is a lot to learn about these important plant parts, and readers discover many fun facts about roots through simple, clear text and helpful diagrams. Detailed, full-color photographs are also included to help readers develop a strong understanding of an important elementary science curriculum topic.","English",25.6,20.48,"581.4’98--dc23","24 pp.","https://greenhavenpublishing.com/9781534522374",null,{"$f":"Table1[[#This Row],['# of Books]]*Table1[[#This Row],[QTY]]","v":0},{"$f":"Table1[[#This Row],[QTY]]*Table1[[#This Row],[School & Library Price]]","v":0}]
[null,null,null,null,null,"Science and Technology","Learn About Plants!","Seeds","978-1-5345-2240-4",{"$f":"HYPERLINK(Table1[[#This Row],[eCommerce Hyperlink]],\"Book Weblink\")","v":"Book Weblink"},null,"KidHaven Publishing","Library Bound Book",1,"2018","August 2017","Library","8.500 X 8.500","Author","Steffi Cavell-Clarke","2.7","0.5",null,null,"J","540L","Grade 2","Grade 1 - 3","Plants grow from seeds, so understanding basic facts about seeds helps readers understand the life cycle of a plant. Life cycles are just one of the important science curriculum topics readers explore as they turn each colorful page. Accessible text is accompanied by detailed photographs and diagrams of seeds and the plants they become. After reading, students will be eager to plant seeds of their own to see the lessons they’ve learned about plants in action.","English",25.6,20.48,"581.4’67--dc23","24 pp.","https://greenhavenpublishing.com/9781534522404",null,{"$f":"Table1[[#This Row],['# of Books]]*Table1[[#This Row],[QTY]]","v":0},{"$f":"Table1[[#This Row],[QTY]]*Table1[[#This Row],[School & Library Price]]","v":0}]
[null,null,null,null,null,"Science and Technology","Learn About Plants!","Seeds","978-1-5345-2236-7",{"$f":"HYPERLINK(Table1[[#This Row],[eCommerce Hyperlink]],\"Book Weblink\")","v":"Book Weblink"},null,"KidHaven Publishing","eBook",1,"2018","August 2017",null,null,"Author","Steffi Cavell-Clarke","2.7","0.5",null,null,"J","540L","Grade 2","Grade 1 - 3","Plants grow from seeds, so understanding basic facts about seeds helps readers understand the life cycle of a plant. Life cycles are just one of the important science curriculum topics readers explore as they turn each colorful page. Accessible text is accompanied by detailed photographs and diagrams of seeds and the plants they become. After reading, students will be eager to plant seeds of their own to see the lessons they’ve learned about plants in action.","English",25.6,20.48,"581.4’67--dc23","24 pp.","https://greenhavenpublishing.com/9781534522367",null,{"$f":"Table1[[#This Row],['# of Books]]*Table1[[#This Row],[QTY]]","v":0},{"$f":"Table1[[#This Row],[QTY]]*Table1[[#This Row],[School & Library Price]]","v":0}]
[null,null,null,null,null,"Science and Technology","Learn About Plants!","Stems","978-1-5345-2323-4",{"$f":"HYPERLINK(Table1[[#This Row],[eCommerce Hyperlink]],\"Book Weblink\")","v":"Book Weblink"},null,"KidHaven Publishing","Library Bound Book",1,"2018","August 2017","Library","8.500 X 8.500","Author","Steffi Cavell-Clarke","2.9","0.5",null,null,"J","550L","Grade 2","Grade 1 - 3","Different kinds of plants have different kinds of stems. Daisies have thin stems, while redwood trees have thick, woody stems. What do these stems do? Readers discover the answer with the help of clear, age-appropriate text that supports common science curriculum topics. Colorful diagrams enhance the main text, helping young readers visualize the concepts they are reading about. Detailed photographs of a variety of plants and their stems provide an up-close look at this topic, and the creative design of each page is sure to hold the interest of even reluctant readers.","English",25.6,20.48,"581.4’95--dc23","24 pp.","https://greenhavenpublishing.com/9781534523234",null,{"$f":"Table1[[#This Row],['# of Books]]*Table1[[#This Row],[QTY]]","v":0},{"$f":"Table1[[#This Row],[QTY]]*Table1[[#This Row],[School & Library Price]]","v":0}]
[null,null,null,null,null,"Science and Technology","Learn About Plants!","Stems","978-1-5345-2322-7",{"$f":"HYPERLINK(Table1[[#This Row],[eCommerce Hyperlink]],\"Book Weblink\")","v":"Book Weblink"},null,"KidHaven Publishing","eBook",1,"2018","August 2017",null,null,"Author","Steffi Cavell-Clarke","2.9","0.5",null,null,"J","550L","Grade 2","Grade 1 - 3","Different kinds of plants have different kinds of stems. Daisies have thin stems, while redwood trees have thick, woody stems. What do these stems do? Readers discover the answer with the help of clear, age-appropriate text that supports common science curriculum topics. Colorful diagrams enhance the main text, helping young readers visualize the concepts they are reading about. Detailed photographs of a variety of plants and their stems provide an up-close look at this topic, and the creative design of each page is sure to hold the interest of even reluctant readers.","English",25.6,20.48,"581.4’95--dc23","24 pp.","https://greenhavenpublishing.com/9781534523227",null,{"$f":"Table1[[#This Row],['# of Books]]*Table1[[#This Row],[QTY]]","v":0},{"$f":"Table1[[#This Row],[QTY]]*Table1[[#This Row],[School & Library Price]]","v":0}]
[null,null,null,null,null,"Science and Technology","Environmental Issues","Environmental Issues: Sets 1 – 2","978-1-5345-3043-0",{"$f":"HYPERLINK(Table1[[#This Row],[eCommerce Hyperlink]],\"Book Weblink\")","v":"Book Weblink"},null,"KidHaven Publishing","Library Set",12,"2020","August 2019","Library","8.500 X 8.500",null,null,null,null,null,null,null,null,"Grade 2 - 3","Grade 2 - 4","Many different human activities, such as pollution, mining and deforestation, and agriculture, affect the environment. These actions have consequences that include climate change, environmental disasters, and water scarcity. Readers explore the ways in which people negatively affect the natural world, but they are also introduced to ways they can help decrease the damage being done to the earth, from sustainable living to recycling materials. Vibrant photographs, detailed fact boxes, and accessible glossaries help readers as they explore the connection between people and the environment in a fresh, creative way. Features include: Simple main texts that help young readers comprehend complicated environmental topics that are often part of elementary science curriculums. Age-appropriate tone encourages readers to think critically about environmental problems and solutions. Helpful advice allows readers to evaluate their own everyday activities to see how they can contribute to helping the environment.","English",307.2,245.76,null,"24 pp.","https://greenhavenpublishing.com/9781534530430",null,{"$f":"Table1[[#This Row],['# of Books]]*Table1[[#This Row],[QTY]]","v":0},{"$f":"Table1[[#This Row],[QTY]]*Table1[[#This Row],[School & Library Price]]","v":0}]
[null,null,null,null,null,"Science and Technology","A Closer Look at Living Things","A Closer Look at Living Things","978-1-5345-2113-1",{"$f":"HYPERLINK(Table1[[#This Row],[eCommerce Hyperlink]],\"Book Weblink\")","v":"Book Weblink"},null,"KidHaven Publishing","Library Set",4,"2017","January 2017","Library","8.500 X 8.500",null,null,null,null,null,null,null,null,"Grade 2","Grade 2 - 4","How do plants get food? What do animals use a tail for? How do bugs grow? Young readers discover the answers to these questions and many more as they get an up-close view of the bodies of living things. They explore the many ways a living thing’s body parts work together. This creative approach to beginner biology is presented through simple, age-appropriate text. Vibrant, full-color photographs of a wide variety of animals, plants, people, and bugs fill each page. Readers will be amazed when they see how much they can learn by taking a closer look at living things.","English",102.4,81.92,null,"24 pp.","https://greenhavenpublishing.com/9781534521131",null,{"$f":"Table1[[#This Row],['# of Books]]*Table1[[#This Row],[QTY]]","v":0},{"$f":"Table1[[#This Row],[QTY]]*Table1[[#This Row],[School & Library Price]]","v":0}]
[null,null,null,null,null,"Science and Technology","A Closer Look at Living Things","Animal Body Parts","978-1-5345-2059-2",{"$f":"HYPERLINK(Table1[[#This Row],[eCommerce Hyperlink]],\"Book Weblink\")","v":"Book Weblink"},null,"KidHaven Publishing","Library Bound Book",1,"2017","January 2017","Library","8.500 X 8.500","Author","Steffi Cavell-Clarke","3.9","0.5",null,null,"K",null,"Grade 2","Grade 2 - 4","Animal body parts work together to help these living things move, eat, and stay safe. Readers discover different animal body parts and their jobs in this unique exploration of beginner biology. Through simple, clear text, young readers are introduced to many animals and the various body parts they use as they live and grow. Age-appropriate diagrams are also included to help early learners understand these basic science concepts. With vibrant, detailed photographs of animal body parts in action, young readers will be captivated by this unique look at familiar and exotic animals.","English",25.6,20.48,"591","24 pp.","https://greenhavenpublishing.com/9781534520592",null,{"$f":"Table1[[#This Row],['# of Books]]*Table1[[#This Row],[QTY]]","v":0},{"$f":"Table1[[#This Row],[QTY]]*Table1[[#This Row],[School & Library Price]]","v":0}]
[null,null,null,null,null,"Science and Technology","A Closer Look at Living Things","Animal Body Parts","978-1-5345-2060-8",{"$f":"HYPERLINK(Table1[[#This Row],[eCommerce Hyperlink]],\"Book Weblink\")","v":"Book Weblink"},null,"KidHaven Publishing","eBook",1,"2017","January 2017",null,null,"Author","Steffi Cavell-Clarke","3.9","0.5",null,null,"K",null,"Grade 2","Grade 2 - 4","Animal body parts work together to help these living things move, eat, and stay safe. Readers discover different animal body parts and their jobs in this unique exploration of beginner biology. Through simple, clear text, young readers are introduced to many animals and the various body parts they use as they live and grow. Age-appropriate diagrams are also included to help early learners understand these basic science concepts. With vibrant, detailed photographs of animal body parts in action, young readers will be captivated by this unique look at familiar and exotic animals.","English",25.6,20.48,"591","24 pp.","https://greenhavenpublishing.com/9781534520608",null,{"$f":"Table1[[#This Row],['# of Books]]*Table1[[#This Row],[QTY]]","v":0},{"$f":"Table1[[#This Row],[QTY]]*Table1[[#This Row],[School & Library Price]]","v":0}]
[null,null,null,null,null,"Science and Technology","A Closer Look at Living Things","Bug Body Parts","978-1-5345-2063-9",{"$f":"HYPERLINK(Table1[[#This Row],[eCommerce Hyperlink]],\"Book Weblink\")","v":"Book Weblink"},null,"KidHaven Publishing","Library Bound Book",1,"2017","January 2017","Library","8.500 X 8.500","Author","Steffi Cavell-Clarke","3.6","0.5",null,null,"K",null,"Grade 2","Grade 2 - 4","Young readers get an exciting, up-close look at bug bodies as they learn essential beginner biology topics in a fun and fresh way. They discover the many ways a bug’s body parts work together through the use of age-appropriate text and simple diagrams designed with early learners in mind. Vivid photographs show the body parts of the world’s coolest and creepiest bugs in amazing detail. This creative approach to a common part of science curricula is sure to keep young readers engaged as they learn big things about some of the world’s tiniest creatures.","English",25.6,20.48,"595.7","24 pp.","https://greenhavenpublishing.com/9781534520639",null,{"$f":"Table1[[#This Row],['# of Books]]*Table1[[#This Row],[QTY]]","v":0},{"$f":"Table1[[#This Row],[QTY]]*Table1[[#This Row],[School & Library Price]]","v":0}]
[null,null,null,null,null,"Science and Technology","A Closer Look at Living Things","Bug Body Parts","978-1-5345-2064-6",{"$f":"HYPERLINK(Table1[[#This Row],[eCommerce Hyperlink]],\"Book Weblink\")","v":"Book Weblink"},null,"KidHaven Publishing","eBook",1,"2017","January 2017",null,null,"Author","Steffi Cavell-Clarke","3.6","0.5",null,null,"K",null,"Grade 2","Grade 2 - 4","Young readers get an exciting, up-close look at bug bodies as they learn essential beginner biology topics in a fun and fresh way. They discover the many ways a bug’s body parts work together through the use of age-appropriate text and simple diagrams designed with early learners in mind. Vivid photographs show the body parts of the world’s coolest and creepiest bugs in amazing detail. This creative approach to a common part of science curricula is sure to keep young readers engaged as they learn big things about some of the world’s tiniest creatures.","English",25.6,20.48,"595.7","24 pp.","https://greenhavenpublishing.com/9781534520646",null,{"$f":"Table1[[#This Row],['# of Books]]*Table1[[#This Row],[QTY]]","v":0},{"$f":"Table1[[#This Row],[QTY]]*Table1[[#This Row],[School & Library Price]]","v":0}]
[null,null,null,null,null,"Science and Technology","A Closer Look at Living Things","Human Body Parts","978-1-5345-2067-7",{"$f":"HYPERLINK(Table1[[#This Row],[eCommerce Hyperlink]],\"Book Weblink\")","v":"Book Weblink"},null,"KidHaven Publishing","Library Bound Book",1,"2017","January 2017","Library","8.500 X 8.500","Author","Steffi Cavell-Clarke","3.8","0.5",null,null,"K",null,"Grade 2","Grade 2 - 4","The human body is a fascinating thing to study, and young readers get an age-appropriate overview of its parts as they explore the basics of beginner biology and anatomy. How do people see? What do they use to hear? They will be able to answer these questions and many more after learning the important ways human body parts work together. Accessible text is paired with colorful photographs and clear diagrams to ensure a thorough introduction to these essential science curriculum topics for early learners.","English",25.6,20.48,"612","24 pp.","https://greenhavenpublishing.com/9781534520677",null,{"$f":"Table1[[#This Row],['# of Books]]*Table1[[#This Row],[QTY]]","v":0},{"$f":"Table1[[#This Row],[QTY]]*Table1[[#This Row],[School & Library Price]]","v":0}]
[null,null,null,null,null,"Science and Technology","A Closer Look at Living Things","Human Body Parts","978-1-5345-2068-4",{"$f":"HYPERLINK(Table1[[#This Row],[eCommerce Hyperlink]],\"Book Weblink\")","v":"Book Weblink"},null,"KidHaven Publishing","eBook",1,"2017","January 2017",null,null,"Author","Steffi Cavell-Clarke","3.8","0.5",null,null,"K",null,"Grade 2","Grade 2 - 4","The human body is a fascinating thing to study, and young readers get an age-appropriate overview of its parts as they explore the basics of beginner biology and anatomy. How do people see? What do they use to hear? They will be able to answer these questions and many more after learning the important ways human body parts work together. Accessible text is paired with colorful photographs and clear diagrams to ensure a thorough introduction to these essential science curriculum topics for early learners.","English",25.6,20.48,"612","24 pp.","https://greenhavenpublishing.com/9781534520684",null,{"$f":"Table1[[#This Row],['# of Books]]*Table1[[#This Row],[QTY]]","v":0},{"$f":"Table1[[#This Row],[QTY]]*Table1[[#This Row],[School & Library Price]]","v":0}]
[null,null,null,null,null,"Science and Technology","A Closer Look at Living Things","Plant Parts","978-1-5345-2070-7",{"$f":"HYPERLINK(Table1[[#This Row],[eCommerce Hyperlink]],\"Book Weblink\")","v":"Book Weblink"},null,"KidHaven Publishing","Library Bound Book",1,"2017","January 2017","Library","8.500 X 8.500","Author","Steffi Cavell-Clarke","4.2","0.5","20",null,"K",null,"Grade 2","Grade 2 - 4","Roots, stems, and leaves are just some of a plant’s most important parts. Readers get a detailed look at these and other plant parts as they closely examine some of the world’s most interesting plants. Vibrant, full-color photographs of plants fill each page, and clear diagrams help readers gain a deeper understanding of the ways plant parts work together. These basic biology lessons are presented to early learners through age-appropriate text that is closely aligned with common science curriculum topics. What parts do plants use to make their own food? The answer is waiting for readers to discover!","English",25.6,20.48,"571.3’2","24 pp.","https://greenhavenpublishing.com/9781534520707",null,{"$f":"Table1[[#This Row],['# of Books]]*Table1[[#This Row],[QTY]]","v":0},{"$f":"Table1[[#This Row],[QTY]]*Table1[[#This Row],[School & Library Price]]","v":0}]
[null,null,null,null,null,"Science and Technology","A Closer Look at Living Things","Plant Parts","978-1-5345-2071-4",{"$f":"HYPERLINK(Table1[[#This Row],[eCommerce Hyperlink]],\"Book Weblink\")","v":"Book Weblink"},null,"KidHaven Publishing","eBook",1,"2017","January 2017",null,null,"Author","Steffi Cavell-Clarke","4.2","0.5","20",null,"K",null,"Grade 2","Grade 2 - 4","Roots, stems, and leaves are just some of a plant’s most important parts. Readers get a detailed look at these and other plant parts as they closely examine some of the world’s most interesting plants. Vibrant, full-color photographs of plants fill each page, and clear diagrams help readers gain a deeper understanding of the ways plant parts work together. These basic biology lessons are presented to early learners through age-appropriate text that is closely aligned with common science curriculum topics. What parts do plants use to make their own food? The answer is waiting for readers to discover!","English",25.6,20.48,"571.3’2","24 pp.","https://greenhavenpublishing.com/9781534520714",null,{"$f":"Table1[[#This Row],['# of Books]]*Table1[[#This Row],[QTY]]","v":0},{"$f":"Table1[[#This Row],[QTY]]*Table1[[#This Row],[School & Library Price]]","v":0}]
[null,null,null,null,null,"Science and Technology","The Glittering World of Gems","The Glittering World of Gems","978-1-5345-2214-5",{"$f":"HYPERLINK(Table1[[#This Row],[eCommerce Hyperlink]],\"Book Weblink\")","v":"Book Weblink"},null,"KidHaven Publishing","Library Set",5,"2018","August 2017","Library","8.500 X 8.500",null,null,null,null,null,null,null,null,"Grade 2 - 3","Grade 2 - 5","Gems have been used for centuries in all parts of the world to create jewelry and ornaments. Some are also used in modern tools, such as the diamonds used in drill tips and the rubies used in lasers. Readers learn intriguing details about where different gems can be found, how they are extracted from the ground, and the ways they are polished and shaped into the jewels we recognize in rings, necklaces, earrings, and more. Vibrant, full-color photographs illustrate the beauty of these sparkling gemstones. Where do diamonds come from? The answer is waiting for readers to discover!\n","English",128,102.4,null,"24 pp.","https://greenhavenpublishing.com/9781534522145",null,{"$f":"Table1[[#This Row],['# of Books]]*Table1[[#This Row],[QTY]]","v":0},{"$f":"Table1[[#This Row],[QTY]]*Table1[[#This Row],[School & Library Price]]","v":0}]
[null,null,null,null,null,"Science and Technology","The Glittering World of Gems","Awesome Opals","978-1-5345-2314-2",{"$f":"HYPERLINK(Table1[[#This Row],[eCommerce Hyperlink]],\"Book Weblink\")","v":"Book Weblink"},null,"KidHaven Publishing","Library Bound Book",1,"2018","August 2017","Library","8.500 X 8.500","Author","Joyce Jeffries","4.7","0.5",null,null,"M",null,"Grade 2 - 3","Grade 2 - 5","Opals emit a rainbow of colors, which makes them perfect gems to place in stunning pieces of jewelry. How do opals go from raw stones to beautiful gems? Readers discover the answer to this question as they learn the steps that must be taken and the technology that is used to find, cut, and polish opals. Clear main text and informative fact boxes help readers become experts on opals. Colorful photographs of these gems are sure to keep readers engaged as they learn.","English",25.6,20.48,"553.8'73--dc23","24 pp.","https://greenhavenpublishing.com/9781534523142",null,{"$f":"Table1[[#This Row],['# of Books]]*Table1[[#This Row],[QTY]]","v":0},{"$f":"Table1[[#This Row],[QTY]]*Table1[[#This Row],[School & Library Price]]","v":0}]
[null,null,null,null,null,"Science and Technology","The Glittering World of Gems","Awesome Opals","978-1-5345-2300-5",{"$f":"HYPERLINK(Table1[[#This Row],[eCommerce Hyperlink]],\"Book Weblink\")","v":"Book Weblink"},null,"KidHaven Publishing","eBook",1,"2018","August 2017",null,null,"Author","Joyce Jeffries","4.7","0.5",null,null,"M",null,"Grade 2 - 3","Grade 2 - 5","Opals emit a rainbow of colors, which makes them perfect gems to place in stunning pieces of jewelry. How do opals go from raw stones to beautiful gems? Readers discover the answer to this question as they learn the steps that must be taken and the technology that is used to find, cut, and polish opals. Clear main text and informative fact boxes help readers become experts on opals. Colorful photographs of these gems are sure to keep readers engaged as they learn.","English",25.6,20.48,"553.8'73--dc23","24 pp.","https://greenhavenpublishing.com/9781534523005",null,{"$f":"Table1[[#This Row],['# of Books]]*Table1[[#This Row],[QTY]]","v":0},{"$f":"Table1[[#This Row],[QTY]]*Table1[[#This Row],[School & Library Price]]","v":0}]
[null,null,null,null,null,"Science and Technology","The Glittering World of Gems","Dazzling Diamonds","978-1-5345-2305-0",{"$f":"HYPERLINK(Table1[[#This Row],[eCommerce Hyperlink]],\"Book Weblink\")","v":"Book Weblink"},null,"KidHaven Publishing","Library Bound Book",1,"2018","August 2017","Library","8.500 X 8.500","Author","Lorraine Harrison","5.1","0.5",null,null,"N",null,"Grade 2 - 3","Grade 2 - 5","How are diamonds formed? Where do they come from? The answers to these questions and more can be found in this exciting look at a popular gemstone. The science and technology involved in creating a sparkling gem from an uncut diamond is fully explored, giving readers an in-depth look at how diamond rings, bracelets, necklaces, and more are made. Fun fact boxes highlight additional information, and striking photographs illustrate the beauty of these natural jewels.","English",25.6,20.48,"553.8’2--dc23","24 pp.","https://greenhavenpublishing.com/9781534523050",null,{"$f":"Table1[[#This Row],['# of Books]]*Table1[[#This Row],[QTY]]","v":0},{"$f":"Table1[[#This Row],[QTY]]*Table1[[#This Row],[School & Library Price]]","v":0}]
[null,null,null,null,null,"Science and Technology","The Glittering World of Gems","Dazzling Diamonds","978-1-5345-2304-3",{"$f":"HYPERLINK(Table1[[#This Row],[eCommerce Hyperlink]],\"Book Weblink\")","v":"Book Weblink"},null,"KidHaven Publishing","eBook",1,"2018","August 2017",null,null,"Author","Lorraine Harrison","5.1","0.5",null,null,"N",null,"Grade 2 - 3","Grade 2 - 5","How are diamonds formed? Where do they come from? The answers to these questions and more can be found in this exciting look at a popular gemstone. The science and technology involved in creating a sparkling gem from an uncut diamond is fully explored, giving readers an in-depth look at how diamond rings, bracelets, necklaces, and more are made. Fun fact boxes highlight additional information, and striking photographs illustrate the beauty of these natural jewels.","English",25.6,20.48,"553.8’2--dc23","24 pp.","https://greenhavenpublishing.com/9781534523043",null,{"$f":"Table1[[#This Row],['# of Books]]*Table1[[#This Row],[QTY]]","v":0},{"$f":"Table1[[#This Row],[QTY]]*Table1[[#This Row],[School & Library Price]]","v":0}]
[null,null,null,null,null,"Science and Technology","The Glittering World of Gems","Incredible Emeralds","978-1-5345-2306-7",{"$f":"HYPERLINK(Table1[[#This Row],[eCommerce Hyperlink]],\"Book Weblink\")","v":"Book Weblink"},null,"KidHaven Publishing","Library Bound Book",1,"2018","August 2017","Library","8.500 X 8.500","Author","Amy B. Rogers","5.3","0.5",null,null,"N",null,"Grade 2 - 3","Grade 2 - 5","Due to their striking green color, emeralds are highly prized as a beautiful addition to all kinds of jewelry. They have been used for thousands of years, especially by the ancient Egyptians and Incas. Over time, technology has changed the way these gems are extracted from the earth and shaped into glittering jewels. Through accessible text and enlightening fact boxes, readers discover the process behind the creation of valuable pieces of emerald jewelry. Full-color photographs display the dazzling beauty of emeralds.","English",25.6,20.48,"553.8'6--dc23","24 pp.","https://greenhavenpublishing.com/9781534523067",null,{"$f":"Table1[[#This Row],['# of Books]]*Table1[[#This Row],[QTY]]","v":0},{"$f":"Table1[[#This Row],[QTY]]*Table1[[#This Row],[School & Library Price]]","v":0}]
[null,null,null,null,null,"Science and Technology","The Glittering World of Gems","Incredible Emeralds","978-1-5345-2303-6",{"$f":"HYPERLINK(Table1[[#This Row],[eCommerce Hyperlink]],\"Book Weblink\")","v":"Book Weblink"},null,"KidHaven Publishing","eBook",1,"2018","August 2017",null,null,"Author","Amy B. Rogers","5.3","0.5",null,null,"N",null,"Grade 2 - 3","Grade 2 - 5","Due to their striking green color, emeralds are highly prized as a beautiful addition to all kinds of jewelry. They have been used for thousands of years, especially by the ancient Egyptians and Incas. Over time, technology has changed the way these gems are extracted from the earth and shaped into glittering jewels. Through accessible text and enlightening fact boxes, readers discover the process behind the creation of valuable pieces of emerald jewelry. Full-color photographs display the dazzling beauty of emeralds.","English",25.6,20.48,"553.8'6--dc23","24 pp.","https://greenhavenpublishing.com/9781534523036",null,{"$f":"Table1[[#This Row],['# of Books]]*Table1[[#This Row],[QTY]]","v":0},{"$f":"Table1[[#This Row],[QTY]]*Table1[[#This Row],[School & Library Price]]","v":0}]
[null,null,null,null,null,"Science and Technology","The Glittering World of Gems","Radiant Rubies","978-1-5345-2308-1",{"$f":"HYPERLINK(Table1[[#This Row],[eCommerce Hyperlink]],\"Book Weblink\")","v":"Book Weblink"},null,"KidHaven Publishing","Library Bound Book",1,"2018","August 2017","Library","8.500 X 8.500","Author","Joseph Stanley","4.9","0.5",null,null,"N",null,"Grade 2 - 3","Grade 2 - 5","Rubies have many different uses. They have been used in beautiful jewelry, ancient armor, and even lasers! How do people get these useful and beautiful gems? Readers explore the intricate process of mining for rubies, cutting these gems, and polishing them until they look their best. These steps are explained through clear, accessible text. Fun fact boxes provide additional information about rubies. With each turn of the page, readers encounter beautiful, full-color photographs of these radiant gems.","English",25.6,20.48,"553.8'4--dc23","24 pp.","https://greenhavenpublishing.com/9781534523081",null,{"$f":"Table1[[#This Row],['# of Books]]*Table1[[#This Row],[QTY]]","v":0},{"$f":"Table1[[#This Row],[QTY]]*Table1[[#This Row],[School & Library Price]]","v":0}]
[null,null,null,null,null,"Science and Technology","The Glittering World of Gems","Radiant Rubies","978-1-5345-2301-2",{"$f":"HYPERLINK(Table1[[#This Row],[eCommerce Hyperlink]],\"Book Weblink\")","v":"Book Weblink"},null,"KidHaven Publishing","eBook",1,"2018","August 2017",null,null,"Author","Joseph Stanley","4.9","0.5",null,null,"N",null,"Grade 2 - 3","Grade 2 - 5","Rubies have many different uses. They have been used in beautiful jewelry, ancient armor, and even lasers! How do people get these useful and beautiful gems? Readers explore the intricate process of mining for rubies, cutting these gems, and polishing them until they look their best. These steps are explained through clear, accessible text. Fun fact boxes provide additional information about rubies. With each turn of the page, readers encounter beautiful, full-color photographs of these radiant gems.","English",25.6,20.48,"553.8'4--dc23","24 pp.","https://greenhavenpublishing.com/9781534523012",null,{"$f":"Table1[[#This Row],['# of Books]]*Table1[[#This Row],[QTY]]","v":0},{"$f":"Table1[[#This Row],[QTY]]*Table1[[#This Row],[School & Library Price]]","v":0}]
[null,null,null,null,null,"Science and Technology","The Glittering World of Gems","Sparkling Sapphires","978-1-5345-2307-4",{"$f":"HYPERLINK(Table1[[#This Row],[eCommerce Hyperlink]],\"Book Weblink\")","v":"Book Weblink"},null,"KidHaven Publishing","Library Bound Book",1,"2018","August 2017","Library","8.500 X 8.500","Author","Joyce Jeffries","5.1","0.5",null,null,"N",null,"Grade 2 - 3","Grade 2 - 5","Sapphires are known for their deep blue color, such as the color of the sapphire that famously sits at the center of Kate Middleton’s engagement ring. However, sapphires can actually come in any color but red. Readers discover this and other amazing facts about sapphires as they explore engaging text and eye-catching fact boxes. They also examine vibrant photographs chosen to highlight the beauty of this popular gem. What is a star sapphire? The answer is waiting for readers to find in this captivating volume.","English",25.6,20.48,"553.8'4--dc23","24 pp.","https://greenhavenpublishing.com/9781534523074",null,{"$f":"Table1[[#This Row],['# of Books]]*Table1[[#This Row],[QTY]]","v":0},{"$f":"Table1[[#This Row],[QTY]]*Table1[[#This Row],[School & Library Price]]","v":0}]
[null,null,null,null,null,"Science and Technology","The Glittering World of Gems","Sparkling Sapphires","978-1-5345-2302-9",{"$f":"HYPERLINK(Table1[[#This Row],[eCommerce Hyperlink]],\"Book Weblink\")","v":"Book Weblink"},null,"KidHaven Publishing","eBook",1,"2018","August 2017",null,null,"Author","Joyce Jeffries","5.1","0.5",null,null,"N",null,"Grade 2 - 3","Grade 2 - 5","Sapphires are known for their deep blue color, such as the color of the sapphire that famously sits at the center of Kate Middleton’s engagement ring. However, sapphires can actually come in any color but red. Readers discover this and other amazing facts about sapphires as they explore engaging text and eye-catching fact boxes. They also examine vibrant photographs chosen to highlight the beauty of this popular gem. What is a star sapphire? The answer is waiting for readers to find in this captivating volume.","English",25.6,20.48,"553.8'4--dc23","24 pp.","https://greenhavenpublishing.com/9781534523029",null,{"$f":"Table1[[#This Row],['# of Books]]*Table1[[#This Row],[QTY]]","v":0},{"$f":"Table1[[#This Row],[QTY]]*Table1[[#This Row],[School & Library Price]]","v":0}]
[null,null,null,null,null,"Science and Technology","Transforming Earth's Geography","Transforming Earth's Geography: Sets 1 – 2","978-1-5345-2960-1",{"$f":"HYPERLINK(Table1[[#This Row],[eCommerce Hyperlink]],\"Book Weblink\")","v":"Book Weblink"},null,"KidHaven Publishing","Library Set",8,"2019","January 2019","Library","8.500 X 11.00",null,null,null,null,null,null,null,null,"Grade 4 - 5","Grade 3 - 6","Young readers are introduced to the various ways Earth's geography is altered through this relevant and well-researched series, which incorporates common science curriculum topics. Through age-appropriate text, they learn how heat waves and wildfires are caused, how hurricanes form, how avalanches affect the environment, and the causes and affects of many other natural events. Eye-catching full-color photographs, a detailed glossary, instructional diagrams, and informational fact boxes provide additional information and exciting design elements to engage readers who are interested in these important subjects concerning the transformation of the natural world. Features include: Topics connect science and current events as readers learn about the processes that cause natural disasters. Concise text helps readers understand essential earth science concepts and how they are applied in the natural world around us. Immersive design gives readers a clear sense of each topic through the use of vivid photographs of nature at its most destructive.","English",226,180.8,null,"32 pp.","https://greenhavenpublishing.com/9781534529601",null,{"$f":"Table1[[#This Row],['# of Books]]*Table1[[#This Row],[QTY]]","v":0},{"$f":"Table1[[#This Row],[QTY]]*Table1[[#This Row],[School & Library Price]]","v":0}]
[null,null,null,null,null,"Science and Technology","Climate Change: Our Impact on Earth","Climate Change: Our Impact on Earth","978-1-5345-2451-4",{"$f":"HYPERLINK(Table1[[#This Row],[eCommerce Hyperlink]],\"Book Weblink\")","v":"Book Weblink"},null,"KidHaven Publishing","Library Set",4,"2018","January 2018","Library","8.500 X 11.00",null,null,null,null,null,null,null,null,"Grade 5","Grade 4 - 6","Climate change is an important issue that impacts everyone on Earth. Readers discover basic facts about climate change, including the effect people have had on the planet. These facts are presented through accessible, engaging language and a creative, original design. Full-color photographs fill each page, enhancing the reading experience. As readers explore this topic, they are introduced to the ways that humans have contributed to climate change through pollution and habitat destruction, but they are also introduced to the ways humans are using renewable energy sources and other methods to fight against climate change. Features include: Topic is relevant to today's current events and encourages readers to better understand things they hear on the news or issues they see discussed online. Text supports common science curriculum topics, including habitats, energy sources, weather, and ecology. Innovative design helps draw readers in and holds their interest.","English",113,90.4,null,"32 pp.","https://greenhavenpublishing.com/9781534524514",null,{"$f":"Table1[[#This Row],['# of Books]]*Table1[[#This Row],[QTY]]","v":0},{"$f":"Table1[[#This Row],[QTY]]*Table1[[#This Row],[School & Library Price]]","v":0}]
[null,null,null,null,null,"Science and Technology","Climate Change: Our Impact on Earth","Habitat Destruction","978-1-5345-2443-9",{"$f":"HYPERLINK(Table1[[#This Row],[eCommerce Hyperlink]],\"Book Weblink\")","v":"Book Weblink"},null,"KidHaven Publishing","Library Bound Book",1,"2018","January 2018","Library","8.500 X 11.00","Author","Harriet Brundle",null,null,null,null,"U",null,"Grade 5","Grade 4 - 6","Can you imagine if your house, neighborhood, or town was destroyed? The dangers of climate change threaten the habitats of living things all over the world. In this age-appropriate text, readers learn about habitat destruction, its impact on Earth, and what humans can do to minimize it. The text is filled with educational facts and striking full-color photographs to enhance young learners’ knowledge of climate change while supporting science curriculum topics. Readers will have a better idea of how to be environmentally responsible and work toward helping end habitat destruction.","English",28.25,22.6,"639.9'2--dc23","32 pp.","https://greenhavenpublishing.com/9781534524439",null,{"$f":"Table1[[#This Row],['# of Books]]*Table1[[#This Row],[QTY]]","v":0},{"$f":"Table1[[#This Row],[QTY]]*Table1[[#This Row],[School & Library Price]]","v":0}]
[null,null,null,null,null,"Science and Technology","Climate Change: Our Impact on Earth","Habitat Destruction","978-1-5345-2444-6",{"$f":"HYPERLINK(Table1[[#This Row],[eCommerce Hyperlink]],\"Book Weblink\")","v":"Book Weblink"},null,"KidHaven Publishing","eBook",1,"2018","January 2018",null,null,"Author","Harriet Brundle",null,null,null,null,"U",null,"Grade 5","Grade 4 - 6","Can you imagine if your house, neighborhood, or town was destroyed? The dangers of climate change threaten the habitats of living things all over the world. In this age-appropriate text, readers learn about habitat destruction, its impact on Earth, and what humans can do to minimize it. The text is filled with educational facts and striking full-color photographs to enhance young learners’ knowledge of climate change while supporting science curriculum topics. Readers will have a better idea of how to be environmentally responsible and work toward helping end habitat destruction.","English",28.25,22.6,"639.9'2--dc23","32 pp.","https://greenhavenpublishing.com/9781534524446",null,{"$f":"Table1[[#This Row],['# of Books]]*Table1[[#This Row],[QTY]]","v":0},{"$f":"Table1[[#This Row],[QTY]]*Table1[[#This Row],[School & Library Price]]","v":0}]
[null,null,null,null,null,"Science and Technology","Climate Change: Our Impact on Earth","Pollution","978-1-5345-2445-3",{"$f":"HYPERLINK(Table1[[#This Row],[eCommerce Hyperlink]],\"Book Weblink\")","v":"Book Weblink"},null,"KidHaven Publishing","Library Bound Book",1,"2018","January 2018","Library","8.500 X 11.00","Author","Harriet Brundle",null,null,null,null,"U","1060L","Grade 5","Grade 4 - 6","The dangers of pollution cannot be ignored. Most of us know what it’s like to breathe in fresh air, but what if our air was filled with contaminants? Air pollution is just one type of pollution readers learn about as they explore this essential ecological topic. Other forms of pollution include noise, heat, and light. Through main text that supports current science curricula, readers are informed about the different kinds of pollution, how pollution and climate change are linked, and how young people can reduce pollution in their daily lives. The text is supplemented with vibrant, full-color photographs.","English",28.25,22.6,"363.73--dc23","32 pp.","https://greenhavenpublishing.com/9781534524453",null,{"$f":"Table1[[#This Row],['# of Books]]*Table1[[#This Row],[QTY]]","v":0},{"$f":"Table1[[#This Row],[QTY]]*Table1[[#This Row],[School & Library Price]]","v":0}]
[null,null,null,null,null,"Science and Technology","Climate Change: Our Impact on Earth","Pollution","978-1-5345-2446-0",{"$f":"HYPERLINK(Table1[[#This Row],[eCommerce Hyperlink]],\"Book Weblink\")","v":"Book Weblink"},null,"KidHaven Publishing","eBook",1,"2018","January 2018",null,null,"Author","Harriet Brundle",null,null,null,null,"U","1060L","Grade 5","Grade 4 - 6","The dangers of pollution cannot be ignored. Most of us know what it’s like to breathe in fresh air, but what if our air was filled with contaminants? Air pollution is just one type of pollution readers learn about as they explore this essential ecological topic. Other forms of pollution include noise, heat, and light. Through main text that supports current science curricula, readers are informed about the different kinds of pollution, how pollution and climate change are linked, and how young people can reduce pollution in their daily lives. The text is supplemented with vibrant, full-color photographs.","English",28.25,22.6,"363.73--dc23","32 pp.","https://greenhavenpublishing.com/9781534524460",null,{"$f":"Table1[[#This Row],['# of Books]]*Table1[[#This Row],[QTY]]","v":0},{"$f":"Table1[[#This Row],[QTY]]*Table1[[#This Row],[School & Library Price]]","v":0}]
[null,null,null,null,null,"Science and Technology","Climate Change: Our Impact on Earth","Renewable Energy","978-1-5345-2447-7",{"$f":"HYPERLINK(Table1[[#This Row],[eCommerce Hyperlink]],\"Book Weblink\")","v":"Book Weblink"},null,"KidHaven Publishing","Library Bound Book",1,"2018","January 2018","Library","8.500 X 11.00","Author","Harriet Brundle",null,null,null,null,"U",null,"Grade 5","Grade 4 - 6","What is renewable energy? Why is using it good for the earth? Questions such as these are answered in this stimulating text supporting an essential elementary science curriculum topic. Young readers learn renewable energy is generated from renewable natural resources, including sunlight, wind, rain, tides, and geothermal heat. This accessible text also delves into how young people can make simple changes in their lives to help fight climate change by using forms of renewable energy. Full-color photographs alongside the text give readers a clear understanding of what renewable energy is and what it looks like in the world around us.","English",28.25,22.6,"333.79'4--dc23","32 pp.","https://greenhavenpublishing.com/9781534524477",null,{"$f":"Table1[[#This Row],['# of Books]]*Table1[[#This Row],[QTY]]","v":0},{"$f":"Table1[[#This Row],[QTY]]*Table1[[#This Row],[School & Library Price]]","v":0}]
[null,null,null,null,null,"Science and Technology","Climate Change: Our Impact on Earth","Renewable Energy","978-1-5345-2448-4",{"$f":"HYPERLINK(Table1[[#This Row],[eCommerce Hyperlink]],\"Book Weblink\")","v":"Book Weblink"},null,"KidHaven Publishing","eBook",1,"2018","January 2018",null,null,"Author","Harriet Brundle",null,null,null,null,"U",null,"Grade 5","Grade 4 - 6","What is renewable energy? Why is using it good for the earth? Questions such as these are answered in this stimulating text supporting an essential elementary science curriculum topic. Young readers learn renewable energy is generated from renewable natural resources, including sunlight, wind, rain, tides, and geothermal heat. This accessible text also delves into how young people can make simple changes in their lives to help fight climate change by using forms of renewable energy. Full-color photographs alongside the text give readers a clear understanding of what renewable energy is and what it looks like in the world around us.","English",28.25,22.6,"333.79'4--dc23","32 pp.","https://greenhavenpublishing.com/9781534524484",null,{"$f":"Table1[[#This Row],['# of Books]]*Table1[[#This Row],[QTY]]","v":0},{"$f":"Table1[[#This Row],[QTY]]*Table1[[#This Row],[School & Library Price]]","v":0}]
[null,null,null,null,null,"Science and Technology","Climate Change: Our Impact on Earth","Weather Patterns","978-1-5345-2449-1",{"$f":"HYPERLINK(Table1[[#This Row],[eCommerce Hyperlink]],\"Book Weblink\")","v":"Book Weblink"},null,"KidHaven Publishing","Library Bound Book",1,"2018","January 2018","Library","8.500 X 11.00","Author","Harriet Brundle",null,null,"60",null,"U",null,"Grade 5","Grade 4 - 6","Readers learn how weather patterns are affected by climate change in this comprehensive text, which aligns with current science curriculum topics and accessibly explores a concept readers are exposed to every day on the news. They discover how weather has changed over time because of factors such as greenhouse gases and the burning of fossil fuels. Information on how to minimize one’s carbon footprint and help battle the damage caused by climate change is also included. Full-color photographs provide a compelling visual element to enhance the readers’ learning experience.","English",28.25,22.6,"551.5--dc23","32 pp.","https://greenhavenpublishing.com/9781534524491",null,{"$f":"Table1[[#This Row],['# of Books]]*Table1[[#This Row],[QTY]]","v":0},{"$f":"Table1[[#This Row],[QTY]]*Table1[[#This Row],[School & Library Price]]","v":0}]
[null,null,null,null,null,"Science and Technology","Climate Change: Our Impact on Earth","Weather Patterns","978-1-5345-2450-7",{"$f":"HYPERLINK(Table1[[#This Row],[eCommerce Hyperlink]],\"Book Weblink\")","v":"Book Weblink"},null,"KidHaven Publishing","eBook",1,"2018","January 2018",null,null,"Author","Harriet Brundle",null,null,"60",null,"U",null,"Grade 5","Grade 4 - 6","Readers learn how weather patterns are affected by climate change in this comprehensive text, which aligns with current science curriculum topics and accessibly explores a concept readers are exposed to every day on the news. They discover how weather has changed over time because of factors such as greenhouse gases and the burning of fossil fuels. Information on how to minimize one’s carbon footprint and help battle the damage caused by climate change is also included. Full-color photographs provide a compelling visual element to enhance the readers’ learning experience.","English",28.25,22.6,"551.5--dc23","32 pp.","https://greenhavenpublishing.com/9781534524507",null,{"$f":"Table1[[#This Row],['# of Books]]*Table1[[#This Row],[QTY]]","v":0},{"$f":"Table1[[#This Row],[QTY]]*Table1[[#This Row],[School & Library Price]]","v":0}]
[null,null,null,null,null,"Social Studies","Jobs in Our Community","Jobs in Our Community","978-1-5345-2161-2",{"$f":"HYPERLINK(Table1[[#This Row],[eCommerce Hyperlink]],\"Book Weblink\")","v":"Book Weblink"},null,"KidHaven Publishing","Library Set",6,"2017","January 2017","Library","7.625 X 7.125",null,null,null,null,null,null,null,null,"Grade 1","Grade K - 2","How do veterinarians help keep our pets healthy? How do police officers and firefighters help us stay safe? Young readers find the answers to these and many other questions as they discover the important work done by community helpers. They are given an accessible look at what these important people do at work, creating a strong foundation of knowledge about popular careers. The clear text is closely matched to colorful photographs to strengthen reading comprehension skills while also keeping readers entertained.","English",153.6,122.88,null,"24 pp.","https://greenhavenpublishing.com/9781534521612",null,{"$f":"Table1[[#This Row],['# of Books]]*Table1[[#This Row],[QTY]]","v":0},{"$f":"Table1[[#This Row],[QTY]]*Table1[[#This Row],[School & Library Price]]","v":0}]
[null,null,null,null,null,"Social Studies","Jobs in Our Community","Doctors on the Job","978-1-5345-2139-1",{"$f":"HYPERLINK(Table1[[#This Row],[eCommerce Hyperlink]],\"Book Weblink\")","v":"Book Weblink"},null,"KidHaven Publishing","Library Bound Book",1,"2017","January 2017","Library","7.625 X 7.125","Author","Lorraine Harrison",null,null,null,null,"E","410L","Grade 1","Grade K - 2","Doctors have an important job to do, they help us stay healthy. Young readers discover the different things these community helpers do through simple text and colorful photographs of doctors at work. The close correlation between the pictures and text allows young readers to develop their reading comprehension skills while learning about a popular career. Vocabulary development is also aided by a detailed picture glossary. Readers will enjoy learning fun facts about this cool career, enhancing their understanding of a common elementary curriculum topic.","English",25.6,20.48,"610.69/5--dc23","24 pp.","https://greenhavenpublishing.com/9781534521391",null,{"$f":"Table1[[#This Row],['# of Books]]*Table1[[#This Row],[QTY]]","v":0},{"$f":"Table1[[#This Row],[QTY]]*Table1[[#This Row],[School & Library Price]]","v":0}]
[null,null,null,null,null,"Social Studies","Jobs in Our Community","Doctors on the Job","978-1-5345-2140-7",{"$f":"HYPERLINK(Table1[[#This Row],[eCommerce Hyperlink]],\"Book Weblink\")","v":"Book Weblink"},null,"KidHaven Publishing","eBook",1,"2017","January 2017",null,null,"Author","Lorraine Harrison",null,null,null,null,"E","410L","Grade 1","Grade K - 2","Doctors have an important job to do, they help us stay healthy. Young readers discover the different things these community helpers do through simple text and colorful photographs of doctors at work. The close correlation between the pictures and text allows young readers to develop their reading comprehension skills while learning about a popular career. Vocabulary development is also aided by a detailed picture glossary. Readers will enjoy learning fun facts about this cool career, enhancing their understanding of a common elementary curriculum topic.","English",25.6,20.48,"610.69/5--dc23","24 pp.","https://greenhavenpublishing.com/9781534521407",null,{"$f":"Table1[[#This Row],['# of Books]]*Table1[[#This Row],[QTY]]","v":0},{"$f":"Table1[[#This Row],[QTY]]*Table1[[#This Row],[School & Library Price]]","v":0}]
[null,null,null,null,null,"Social Studies","Jobs in Our Community","Firefighters on the Job","978-1-5345-2143-8",{"$f":"HYPERLINK(Table1[[#This Row],[eCommerce Hyperlink]],\"Book Weblink\")","v":"Book Weblink"},null,"KidHaven Publishing","Library Bound Book",1,"2017","January 2017","Library","7.625 X 7.125","Author","Lee Fitzgerald",null,null,null,null,"E","320L","Grade 1","Grade K - 2","How do firefighters help us stay safe? Readers explore the exciting world of firefighters, learning fun facts along the way about the brave men and women who've chosen this career. Vibrant photographs of firefighters in action are closely aligned to the age-appropriate text. This close relationship helps young readers develop strong comprehension skills. In addition, a colorful picture glossary is included to help early learners build their vocabulary. As readers learn about firefighters, they gain a deeper understanding of the role of a community helper, which is an essential part of curricula for early learners.","English",25.6,20.48,"363.37023","24 pp.","https://greenhavenpublishing.com/9781534521438",null,{"$f":"Table1[[#This Row],['# of Books]]*Table1[[#This Row],[QTY]]","v":0},{"$f":"Table1[[#This Row],[QTY]]*Table1[[#This Row],[School & Library Price]]","v":0}]
[null,null,null,null,null,"Social Studies","Jobs in Our Community","Firefighters on the Job","978-1-5345-2144-5",{"$f":"HYPERLINK(Table1[[#This Row],[eCommerce Hyperlink]],\"Book Weblink\")","v":"Book Weblink"},null,"KidHaven Publishing","eBook",1,"2017","January 2017",null,null,"Author","Lee Fitzgerald",null,null,null,null,"E","320L","Grade 1","Grade K - 2","How do firefighters help us stay safe? Readers explore the exciting world of firefighters, learning fun facts along the way about the brave men and women who've chosen this career. Vibrant photographs of firefighters in action are closely aligned to the age-appropriate text. This close relationship helps young readers develop strong comprehension skills. In addition, a colorful picture glossary is included to help early learners build their vocabulary. As readers learn about firefighters, they gain a deeper understanding of the role of a community helper, which is an essential part of curricula for early learners.","English",25.6,20.48,"363.37023","24 pp.","https://greenhavenpublishing.com/9781534521445",null,{"$f":"Table1[[#This Row],['# of Books]]*Table1[[#This Row],[QTY]]","v":0},{"$f":"Table1[[#This Row],[QTY]]*Table1[[#This Row],[School & Library Price]]","v":0}]
[null,null,null,null,null,"Social Studies","Jobs in Our Community","Librarians on the Job","978-1-5345-2159-9",{"$f":"HYPERLINK(Table1[[#This Row],[eCommerce Hyperlink]],\"Book Weblink\")","v":"Book Weblink"},null,"KidHaven Publishing","Library Bound Book",1,"2017","January 2017","Library","7.625 X 7.125","Author","Mary Austen",null,null,null,null,"E","420L","Grade 1","Grade K - 2","A library is a popular part of a community, and the people who work there are important community helpers. Young readers learn about the many ways librarians help people through clear, age-appropriate text. The facts they learn about librarians and libraries enhance their understanding of common curriculum topics about careers, community helpers, and places in the community. These facts are presented alongside full-color photographs of librarians at work. The close relationship between the pictures and text helps foster strong reading comprehension skills, and a picture glossary aids in vocabulary development.","English",25.6,20.48,"020.92","24 pp.","https://greenhavenpublishing.com/9781534521599",null,{"$f":"Table1[[#This Row],['# of Books]]*Table1[[#This Row],[QTY]]","v":0},{"$f":"Table1[[#This Row],[QTY]]*Table1[[#This Row],[School & Library Price]]","v":0}]
[null,null,null,null,null,"Social Studies","Jobs in Our Community","Librarians on the Job","978-1-5345-2158-2",{"$f":"HYPERLINK(Table1[[#This Row],[eCommerce Hyperlink]],\"Book Weblink\")","v":"Book Weblink"},null,"KidHaven Publishing","eBook",1,"2017","January 2017",null,null,"Author","Mary Austen",null,null,null,null,"E","420L","Grade 1","Grade K - 2","A library is a popular part of a community, and the people who work there are important community helpers. Young readers learn about the many ways librarians help people through clear, age-appropriate text. The facts they learn about librarians and libraries enhance their understanding of common curriculum topics about careers, community helpers, and places in the community. These facts are presented alongside full-color photographs of librarians at work. The close relationship between the pictures and text helps foster strong reading comprehension skills, and a picture glossary aids in vocabulary development.","English",25.6,20.48,"020.92","24 pp.","https://greenhavenpublishing.com/9781534521582",null,{"$f":"Table1[[#This Row],['# of Books]]*Table1[[#This Row],[QTY]]","v":0},{"$f":"Table1[[#This Row],[QTY]]*Table1[[#This Row],[School & Library Price]]","v":0}]
[null,null,null,null,null,"Social Studies","Jobs in Our Community","Police Officers on the Job","978-1-5345-2155-1",{"$f":"HYPERLINK(Table1[[#This Row],[eCommerce Hyperlink]],\"Book Weblink\")","v":"Book Weblink"},null,"KidHaven Publishing","Library Bound Book",1,"2017","January 2017","Library","7.625 X 7.125","Author","Kate Rogers",null,null,null,null,"E","440L","Grade 1","Grade K - 2","Police officers are brave community helpers. Young readers explore the basics of a police officer’s job through simple, clear text that supports common curriculum topics. Readers also discover vibrant photographs of these helpful men and women on the job. These photographs closely relate to the corresponding text to help early learners strengthen their reading comprehension skills. Readers can also use the helpful picture glossary to understand unfamiliar terms and build their vocabulary. This exciting career is sure to interest many young readers!","English",25.6,20.48,"363.2","24 pp.","https://greenhavenpublishing.com/9781534521551",null,{"$f":"Table1[[#This Row],['# of Books]]*Table1[[#This Row],[QTY]]","v":0},{"$f":"Table1[[#This Row],[QTY]]*Table1[[#This Row],[School & Library Price]]","v":0}]
[null,null,null,null,null,"Social Studies","Jobs in Our Community","Police Officers on the Job","978-1-5345-2156-8",{"$f":"HYPERLINK(Table1[[#This Row],[eCommerce Hyperlink]],\"Book Weblink\")","v":"Book Weblink"},null,"KidHaven Publishing","eBook",1,"2017","January 2017",null,null,"Author","Kate Rogers",null,null,null,null,"E","440L","Grade 1","Grade K - 2","Police officers are brave community helpers. Young readers explore the basics of a police officer’s job through simple, clear text that supports common curriculum topics. Readers also discover vibrant photographs of these helpful men and women on the job. These photographs closely relate to the corresponding text to help early learners strengthen their reading comprehension skills. Readers can also use the helpful picture glossary to understand unfamiliar terms and build their vocabulary. This exciting career is sure to interest many young readers!","English",25.6,20.48,"363.2","24 pp.","https://greenhavenpublishing.com/9781534521568",null,{"$f":"Table1[[#This Row],['# of Books]]*Table1[[#This Row],[QTY]]","v":0},{"$f":"Table1[[#This Row],[QTY]]*Table1[[#This Row],[School & Library Price]]","v":0}]
[null,null,null,null,null,"Social Studies","Jobs in Our Community","Teachers on the Job","978-1-5345-2147-6",{"$f":"HYPERLINK(Table1[[#This Row],[eCommerce Hyperlink]],\"Book Weblink\")","v":"Book Weblink"},null,"KidHaven Publishing","Library Bound Book",1,"2017","January 2017","Library","7.625 X 7.125","Author","David Anthony",null,null,"10",null,"E","380L","Grade 1","Grade K - 2","Teachers work hard to help their students learn. Young readers learn fun facts about these familiar community helpers and the work they do. The simple text provides valuable information about this popular career and supports common curriculum topics about community helpers. Each page of text is carefully paired with a vibrant photograph to help early learners build their reading comprehension skills. Young readers are also introduced to new vocabulary words through a detailed picture glossary of unfamiliar words. Readers will have a new appreciation for what teachers do after seeing a day at school from a teacher's perspective.","English",25.6,20.48,"371.1--dc23","24 pp.","https://greenhavenpublishing.com/9781534521476",null,{"$f":"Table1[[#This Row],['# of Books]]*Table1[[#This Row],[QTY]]","v":0},{"$f":"Table1[[#This Row],[QTY]]*Table1[[#This Row],[School & Library Price]]","v":0}]
[null,null,null,null,null,"Social Studies","Jobs in Our Community","Teachers on the Job","978-1-5345-2148-3",{"$f":"HYPERLINK(Table1[[#This Row],[eCommerce Hyperlink]],\"Book Weblink\")","v":"Book Weblink"},null,"KidHaven Publishing","eBook",1,"2017","January 2017",null,null,"Author","David Anthony",null,null,"10",null,"E","380L","Grade 1","Grade K - 2","Teachers work hard to help their students learn. Young readers learn fun facts about these familiar community helpers and the work they do. The simple text provides valuable information about this popular career and supports common curriculum topics about community helpers. Each page of text is carefully paired with a vibrant photograph to help early learners build their reading comprehension skills. Young readers are also introduced to new vocabulary words through a detailed picture glossary of unfamiliar words. Readers will have a new appreciation for what teachers do after seeing a day at school from a teacher's perspective.","English",25.6,20.48,"371.1--dc23","24 pp.","https://greenhavenpublishing.com/9781534521483",null,{"$f":"Table1[[#This Row],['# of Books]]*Table1[[#This Row],[QTY]]","v":0},{"$f":"Table1[[#This Row],[QTY]]*Table1[[#This Row],[School & Library Price]]","v":0}]
[null,null,null,null,null,"Social Studies","Jobs in Our Community","Veterinarians on the Job","978-1-5345-2151-3",{"$f":"HYPERLINK(Table1[[#This Row],[eCommerce Hyperlink]],\"Book Weblink\")","v":"Book Weblink"},null,"KidHaven Publishing","Library Bound Book",1,"2017","January 2017","Library","7.625 X 7.125","Author","Anne Forest",null,null,null,null,"E","370L","Grade 1","Grade K - 2","People see doctors when they don’t feel well, but who takes care of animals when they’re sick or hurt? Veterinarians help animals stay healthy, and readers discover fun facts about this cool career with each turn of the page. This exciting information supports common curriculum topics for early learners, and it encourages young readers to think about careers. The accessible text and detailed picture glossary help readers build their vocabulary. Reading comprehension skills are also supported through the close relationship between the photographs and text.","English",25.6,20.48,"636.089092","24 pp.","https://greenhavenpublishing.com/9781534521513",null,{"$f":"Table1[[#This Row],['# of Books]]*Table1[[#This Row],[QTY]]","v":0},{"$f":"Table1[[#This Row],[QTY]]*Table1[[#This Row],[School & Library Price]]","v":0}]
[null,null,null,null,null,"Social Studies","Jobs in Our Community","Veterinarians on the Job","978-1-5345-2152-0",{"$f":"HYPERLINK(Table1[[#This Row],[eCommerce Hyperlink]],\"Book Weblink\")","v":"Book Weblink"},null,"KidHaven Publishing","eBook",1,"2017","January 2017",null,null,"Author","Anne Forest",null,null,null,null,"E","370L","Grade 1","Grade K - 2","People see doctors when they don’t feel well, but who takes care of animals when they’re sick or hurt? Veterinarians help animals stay healthy, and readers discover fun facts about this cool career with each turn of the page. This exciting information supports common curriculum topics for early learners, and it encourages young readers to think about careers. The accessible text and detailed picture glossary help readers build their vocabulary. Reading comprehension skills are also supported through the close relationship between the photographs and text.","English",25.6,20.48,"636.089092","24 pp.","https://greenhavenpublishing.com/9781534521520",null,{"$f":"Table1[[#This Row],['# of Books]]*Table1[[#This Row],[QTY]]","v":0},{"$f":"Table1[[#This Row],[QTY]]*Table1[[#This Row],[School & Library Price]]","v":0}]
[null,null,null,null,null,"Social Studies","World Adventures","World Adventures: Sets 1 – 2","978-1-5345-2740-9",{"$f":"HYPERLINK(Table1[[#This Row],[eCommerce Hyperlink]],\"Book Weblink\")","v":"Book Weblink"},null,"KidHaven Publishing","Library Set",12,"2019","August 2018","Library","8.500 X 8.500",null,null,null,null,null,null,null,null,"Grade 1 - 2","Grade K - 3","For readers curious about other cultures in foreign countries, this series allows them to travel around the world to a number of places, such as Russia, South Korea, England, Canada, and Spain, as well as the United States. Taking an in-depth look at elementary social studies curriculum topics, they will gain insight into how people in other countries live their everyday lives. The informative text will also expose young readers to what types of weather, famous landmarks, and landscapes are present in different countries. Detailed full-color photographs, enlightening fact boxes, and useful maps will provide extra insight into these exciting locations. Features include: Full-color photographs and maps help reader enhance their knowledge of world geography. Text encourages readers to learn about other cultures in different countries. Engaging tone makes learning social studies concepts fun for young readers.","English",307.2,245.76,null,"24 pp.","https://greenhavenpublishing.com/9781534527409",null,{"$f":"Table1[[#This Row],['# of Books]]*Table1[[#This Row],[QTY]]","v":0},{"$f":"Table1[[#This Row],[QTY]]*Table1[[#This Row],[School & Library Price]]","v":0}]
[null,null,null,null,null,"Social Studies","Cooking Your Way Through American History","Cooking Your Way Through American History","978-1-5345-2121-6",{"$f":"HYPERLINK(Table1[[#This Row],[eCommerce Hyperlink]],\"Book Weblink\")","v":"Book Weblink"},null,"KidHaven Publishing","Library Set",6,"2017","January 2017","Library","8.500 X 8.500",null,null,null,null,null,null,null,null,"Grade 3","Grade 2 - 5","Readers discover a valuable link between the classroom and the kitchen as they learn about the foods made and eaten during important times in American history. Informative and engaging narratives present a fresh take on popular historical periods, from early Native American history through the Civil War. Readers explore the relationship between food and culture, geography, social class, the economy, and war. The reading experience is enhanced by recipes from each time period and a colorful combination of contemporary and historical images. This hands-on approach to history helps readers bring a taste of the past to the present. Features include: Recipes have simple lists of ingredients and detailed step-by-step instructions. Creative presentation of common social studies curriculum topics encourages readers to have fun while learning about history.","English",169.5,135.6,null,"24 pp.","https://greenhavenpublishing.com/9781534521216",null,{"$f":"Table1[[#This Row],['# of Books]]*Table1[[#This Row],[QTY]]","v":0},{"$f":"Table1[[#This Row],[QTY]]*Table1[[#This Row],[School & Library Price]]","v":0}]
[null,null,null,null,null,"Social Studies","Cooking Your Way Through American History","Native American Recipes","978-1-5345-2094-3",{"$f":"HYPERLINK(Table1[[#This Row],[eCommerce Hyperlink]],\"Book Weblink\")","v":"Book Weblink"},null,"KidHaven Publishing","Library Bound Book",1,"2017","January 2017","Library","8.500 X 8.500","Author","Leslie Beckett",null,null,null,null,"N","920L","Grade 3","Grade 2 - 5","Readers gain a deeper understanding of and appreciation for Native American history and culture through learning about popular Native American foods. As they explore the engaging text, colorful images, and primary sources, they find fascinating facts about early Native American life, including what Native Americans ate and how they prepared their food. This essential part of social studies curricula is given a fun twist with the addition of simple recipes. As readers follow each detailed set of instructions, they create their own Native American dishes, making history come alive in a dynamic and delicious way.","English",28.25,22.6,"641.597","24 pp.","https://greenhavenpublishing.com/9781534520943",null,{"$f":"Table1[[#This Row],['# of Books]]*Table1[[#This Row],[QTY]]","v":0},{"$f":"Table1[[#This Row],[QTY]]*Table1[[#This Row],[School & Library Price]]","v":0}]
[null,null,null,null,null,"Social Studies","Cooking Your Way Through American History","Native American Recipes","978-1-5345-2095-0",{"$f":"HYPERLINK(Table1[[#This Row],[eCommerce Hyperlink]],\"Book Weblink\")","v":"Book Weblink"},null,"KidHaven Publishing","eBook",1,"2017","January 2017",null,null,"Author","Leslie Beckett",null,null,null,null,"N","920L","Grade 3","Grade 2 - 5","Readers gain a deeper understanding of and appreciation for Native American history and culture through learning about popular Native American foods. As they explore the engaging text, colorful images, and primary sources, they find fascinating facts about early Native American life, including what Native Americans ate and how they prepared their food. This essential part of social studies curricula is given a fun twist with the addition of simple recipes. As readers follow each detailed set of instructions, they create their own Native American dishes, making history come alive in a dynamic and delicious way.","English",28.25,22.6,"641.597","24 pp.","https://greenhavenpublishing.com/9781534520950",null,{"$f":"Table1[[#This Row],['# of Books]]*Table1[[#This Row],[QTY]]","v":0},{"$f":"Table1[[#This Row],[QTY]]*Table1[[#This Row],[School & Library Price]]","v":0}]
[null,null,null,null,null,"Social Studies","Cooking Your Way Through American History","Recipes of the American Revolution","978-1-5345-2106-3",{"$f":"HYPERLINK(Table1[[#This Row],[eCommerce Hyperlink]],\"Book Weblink\")","v":"Book Weblink"},null,"KidHaven Publishing","Library Bound Book",1,"2017","January 2017","Library","8.500 X 8.500","Author","Robert M. Hamilton ",null,null,null,null,"N","880L","Grade 3","Grade 2 - 5","Beef stew and baked beans are foods eaten during the American Revolution that we still enjoy today. Readers learn how to make these and other foods from this time in American history as they explore the role food played in America’s fight for independence. Recipes are found throughout the text, encouraging readers to take a hands-on approach to learning about history. As readers explore the fact-filled text, they also discover vibrant contemporary and historical images, including primary sources. Common social studies curriculum topics become fun when readers take history out of the classroom and into the kitchen.","English",28.25,22.6,"641.5974’09’033","24 pp.","https://greenhavenpublishing.com/9781534521063",null,{"$f":"Table1[[#This Row],['# of Books]]*Table1[[#This Row],[QTY]]","v":0},{"$f":"Table1[[#This Row],[QTY]]*Table1[[#This Row],[School & Library Price]]","v":0}]
[null,null,null,null,null,"Social Studies","Cooking Your Way Through American History","Recipes of the American Revolution","978-1-5345-2107-0",{"$f":"HYPERLINK(Table1[[#This Row],[eCommerce Hyperlink]],\"Book Weblink\")","v":"Book Weblink"},null,"KidHaven Publishing","eBook",1,"2017","January 2017",null,null,"Author","Robert M. Hamilton ",null,null,null,null,"N","880L","Grade 3","Grade 2 - 5","Beef stew and baked beans are foods eaten during the American Revolution that we still enjoy today. Readers learn how to make these and other foods from this time in American history as they explore the role food played in America’s fight for independence. Recipes are found throughout the text, encouraging readers to take a hands-on approach to learning about history. As readers explore the fact-filled text, they also discover vibrant contemporary and historical images, including primary sources. Common social studies curriculum topics become fun when readers take history out of the classroom and into the kitchen.","English",28.25,22.6,"641.5974’09’033","24 pp.","https://greenhavenpublishing.com/9781534521070",null,{"$f":"Table1[[#This Row],['# of Books]]*Table1[[#This Row],[QTY]]","v":0},{"$f":"Table1[[#This Row],[QTY]]*Table1[[#This Row],[School & Library Price]]","v":0}]
[null,null,null,null,null,"Social Studies","Cooking Your Way Through American History","Recipes of the Civil War","978-1-5345-2090-5",{"$f":"HYPERLINK(Table1[[#This Row],[eCommerce Hyperlink]],\"Book Weblink\")","v":"Book Weblink"},null,"KidHaven Publishing","Library Bound Book",1,"2017","January 2017","Library","8.500 X 8.500","Author","Amy B. Rogers",null,null,null,null,"N","910L","Grade 3","Grade 2 - 5","Readers will enjoy making sweet potato pie, praline sauce, and other foods eaten during the Civil War as they learn about this important time in American history. Each recipe features step-by-step instructions presented in a clear way. Historical context is provided in the form of a captivating, fact-filled narrative about life during the Civil War. The accessible text is focused on food in this era, providing readers with a fresh perspective on a common social studies curriculum topic. Historical and contemporary images including primary sources add an exciting visual component to this reading experience.","English",28.25,22.6,"641.5973--dc23","24 pp.","https://greenhavenpublishing.com/9781534520905",null,{"$f":"Table1[[#This Row],['# of Books]]*Table1[[#This Row],[QTY]]","v":0},{"$f":"Table1[[#This Row],[QTY]]*Table1[[#This Row],[School & Library Price]]","v":0}]
[null,null,null,null,null,"Social Studies","Cooking Your Way Through American History","Recipes of the Civil War","978-1-5345-2091-2",{"$f":"HYPERLINK(Table1[[#This Row],[eCommerce Hyperlink]],\"Book Weblink\")","v":"Book Weblink"},null,"KidHaven Publishing","eBook",1,"2017","January 2017",null,null,"Author","Amy B. Rogers",null,null,null,null,"N","910L","Grade 3","Grade 2 - 5","Readers will enjoy making sweet potato pie, praline sauce, and other foods eaten during the Civil War as they learn about this important time in American history. Each recipe features step-by-step instructions presented in a clear way. Historical context is provided in the form of a captivating, fact-filled narrative about life during the Civil War. The accessible text is focused on food in this era, providing readers with a fresh perspective on a common social studies curriculum topic. Historical and contemporary images including primary sources add an exciting visual component to this reading experience.","English",28.25,22.6,"641.5973--dc23","24 pp.","https://greenhavenpublishing.com/9781534520912",null,{"$f":"Table1[[#This Row],['# of Books]]*Table1[[#This Row],[QTY]]","v":0},{"$f":"Table1[[#This Row],[QTY]]*Table1[[#This Row],[School & Library Price]]","v":0}]
[null,null,null,null,null,"Social Studies","Cooking Your Way Through American History","Recipes of the Pilgrims","978-1-5345-2098-1",{"$f":"HYPERLINK(Table1[[#This Row],[eCommerce Hyperlink]],\"Book Weblink\")","v":"Book Weblink"},null,"KidHaven Publishing","Library Bound Book",1,"2017","January 2017","Library","8.500 X 8.500","Author","Emma Jones",null,null,null,null,"N","790L","Grade 3","Grade 2 - 5","After arriving in the New World, the Pilgrims learned to cook with ingredients they'd never used before. Readers learn about the foods the Pilgrims made in their new home, and they even get the chance to make some of those foods. In addition to a charming narrative that presents important facts about Pilgrims and the meals they made, readers find recipes for various dishes made by the Pilgrims. They also discover captivating images, including relevant primary sources. This unique approach to a familiar social studies curriculum topic is sure to make readers excited to experience a taste of Pilgrim life.","English",28.25,22.6,"641.59744'09'032--dc23","24 pp.","https://greenhavenpublishing.com/9781534520981",null,{"$f":"Table1[[#This Row],['# of Books]]*Table1[[#This Row],[QTY]]","v":0},{"$f":"Table1[[#This Row],[QTY]]*Table1[[#This Row],[School & Library Price]]","v":0}]
[null,null,null,null,null,"Social Studies","Cooking Your Way Through American History","Recipes of the Pilgrims","978-1-5345-2099-8",{"$f":"HYPERLINK(Table1[[#This Row],[eCommerce Hyperlink]],\"Book Weblink\")","v":"Book Weblink"},null,"KidHaven Publishing","eBook",1,"2017","January 2017",null,null,"Author","Emma Jones",null,null,null,null,"N","790L","Grade 3","Grade 2 - 5","After arriving in the New World, the Pilgrims learned to cook with ingredients they'd never used before. Readers learn about the foods the Pilgrims made in their new home, and they even get the chance to make some of those foods. In addition to a charming narrative that presents important facts about Pilgrims and the meals they made, readers find recipes for various dishes made by the Pilgrims. They also discover captivating images, including relevant primary sources. This unique approach to a familiar social studies curriculum topic is sure to make readers excited to experience a taste of Pilgrim life.","English",28.25,22.6,"641.59744'09'032--dc23","24 pp.","https://greenhavenpublishing.com/9781534520998",null,{"$f":"Table1[[#This Row],['# of Books]]*Table1[[#This Row],[QTY]]","v":0},{"$f":"Table1[[#This Row],[QTY]]*Table1[[#This Row],[School & Library Price]]","v":0}]
[null,null,null,null,null,"Social Studies","Cooking Your Way Through American History","Recipes of the Thirteen Colonies","978-1-5345-2110-0",{"$f":"HYPERLINK(Table1[[#This Row],[eCommerce Hyperlink]],\"Book Weblink\")","v":"Book Weblink"},null,"KidHaven Publishing","Library Bound Book",1,"2017","January 2017","Library","8.500 X 8.500","Author","Joyce Jeffries",null,null,null,null,"N","920L","Grade 3","Grade 2 - 5","What did people living in the 13 colonies eat? Readers discover the answer to this question as they take a look inside colonial kitchens to learn about early American history. The focus on colonial food sheds a unique light on a common part of social studies curricula. As readers explore the engaging and educational text, they also take in information from colorful and detailed images, such as primary sources. In addition, readers find recipes that allow them to feel like colonial chefs. Each recipe features step-by-step instructions, creating a fresh and fun hands-on history lesson.","English",28.25,22.6,"641.5973’09032","24 pp.","https://greenhavenpublishing.com/9781534521100",null,{"$f":"Table1[[#This Row],['# of Books]]*Table1[[#This Row],[QTY]]","v":0},{"$f":"Table1[[#This Row],[QTY]]*Table1[[#This Row],[School & Library Price]]","v":0}]
[null,null,null,null,null,"Social Studies","Cooking Your Way Through American History","Recipes of the Thirteen Colonies","978-1-5345-2111-7",{"$f":"HYPERLINK(Table1[[#This Row],[eCommerce Hyperlink]],\"Book Weblink\")","v":"Book Weblink"},null,"KidHaven Publishing","eBook",1,"2017","January 2017",null,null,"Author","Joyce Jeffries",null,null,null,null,"N","920L","Grade 3","Grade 2 - 5","What did people living in the 13 colonies eat? Readers discover the answer to this question as they take a look inside colonial kitchens to learn about early American history. The focus on colonial food sheds a unique light on a common part of social studies curricula. As readers explore the engaging and educational text, they also take in information from colorful and detailed images, such as primary sources. In addition, readers find recipes that allow them to feel like colonial chefs. Each recipe features step-by-step instructions, creating a fresh and fun hands-on history lesson.","English",28.25,22.6,"641.5973’09032","24 pp.","https://greenhavenpublishing.com/9781534521117",null,{"$f":"Table1[[#This Row],['# of Books]]*Table1[[#This Row],[QTY]]","v":0},{"$f":"Table1[[#This Row],[QTY]]*Table1[[#This Row],[School & Library Price]]","v":0}]
[null,null,null,null,null,"Social Studies","Cooking Your Way Through American History","Recipes of the Westward Expansion","978-1-5345-2102-5",{"$f":"HYPERLINK(Table1[[#This Row],[eCommerce Hyperlink]],\"Book Weblink\")","v":"Book Weblink"},null,"KidHaven Publishing","Library Bound Book",1,"2017","January 2017","Library","8.500 X 8.500","Author","Katie Kawa",null,null,null,null,"N","810L","Grade 3","Grade 2 - 5","As Americans began to move west, many things changed, including the foods they ate and how they prepared their meals. An engaging narrative presents readers with fascinating facts about this crucial period of growth in the United States, with a unique emphasis on food. Detailed images, including primary sources, aid in setting the scene. Readers are then encouraged to bring a taste of this time to the present by making some of the foods they read about. These detailed recipes work with the text to create a history lesson readers won’t soon forget.","English",28.25,22.6,"641.5’0973’09034--dc23","24 pp.","https://greenhavenpublishing.com/9781534521025",null,{"$f":"Table1[[#This Row],['# of Books]]*Table1[[#This Row],[QTY]]","v":0},{"$f":"Table1[[#This Row],[QTY]]*Table1[[#This Row],[School & Library Price]]","v":0}]
[null,null,null,null,null,"Social Studies","Cooking Your Way Through American History","Recipes of the Westward Expansion","978-1-5345-2103-2",{"$f":"HYPERLINK(Table1[[#This Row],[eCommerce Hyperlink]],\"Book Weblink\")","v":"Book Weblink"},null,"KidHaven Publishing","eBook",1,"2017","January 2017",null,null,"Author","Katie Kawa",null,null,null,null,"N","810L","Grade 3","Grade 2 - 5","As Americans began to move west, many things changed, including the foods they ate and how they prepared their meals. An engaging narrative presents readers with fascinating facts about this crucial period of growth in the United States, with a unique emphasis on food. Detailed images, including primary sources, aid in setting the scene. Readers are then encouraged to bring a taste of this time to the present by making some of the foods they read about. These detailed recipes work with the text to create a history lesson readers won’t soon forget.","English",28.25,22.6,"641.5’0973’09034--dc23","24 pp.","https://greenhavenpublishing.com/9781534521032",null,{"$f":"Table1[[#This Row],['# of Books]]*Table1[[#This Row],[QTY]]","v":0},{"$f":"Table1[[#This Row],[QTY]]*Table1[[#This Row],[School & Library Price]]","v":0}]
[null,null,null,null,null,"Social Studies","Unlocking Ancient Civilizations","Unlocking Ancient Civilizations: Sets 1 – 2","978-1-5345-2962-5",{"$f":"HYPERLINK(Table1[[#This Row],[eCommerce Hyperlink]],\"Book Weblink\")","v":"Book Weblink"},null,"KidHaven Publishing","Library Set",8,"2019","January 2019","Library","8.500 X 11.00",null,null,null,null,null,null,null,null,"Grade 4 - 5","Grade 4 - 6","Readers are introduced to the ancient civilizations that shaped the world as we know it today as they explore this fresh and fact-filled look at history. Through age-appropriate text, they are transported to many destinations around the world to learn about the culture, customs, and traditions of various civilizations of the past. Some of these civilizations include the ancient Greeks, Romans, Egyptians, Maya, Incas, and Mesopotamians. In addition, readers gain more insight through detailed fact boxes, engaging sidebars, and bright, full-color photographs. Features include: Detailed timelines present a creative way to look at the most important events in ancient history. Colorful maps help readers develop essential geography skills. Detailed text enhances social studies curriculum topics and fosters a deeper appreciation for history.","English",226,180.8,null,"32 pp.","https://greenhavenpublishing.com/9781534529625",null,{"$f":"Table1[[#This Row],['# of Books]]*Table1[[#This Row],[QTY]]","v":0},{"$f":"Table1[[#This Row],[QTY]]*Table1[[#This Row],[School & Library Price]]","v":0}]

{"sheet":"Sheet2","index":2,"n_rows":27,"n_cols":10,"rows_kept":27,"cut":false,"hidden":false,"merged":[[4,1,4,2],[5,4,7,4],[10,5,10,6],[11,5,11,6],[0,4,3,6],[21,5,21,6],[22,5,22,6],[24,5,24,6],[13,5,13,6],[23,5,23,6],[18,5,18,6],[12,5,12,6],[15,1,15,2],[15,4,15,6],[16,5,16,6],[17,5,17,6]]}
[null,null,null,null,"Greenhaven Publishing\n29 East 21st Street • New York, NY 10010\nPhone: 844-317-7404 • Fax: 844-317-7405\ngreenhavenpublishing.com"]
[null,null,null,null,null,null,null,null,null,{"$f":"COUNT(I:I)","v":0}]
[]
[]
[null,"BILL TO:",null,null,null,null,null,null,null,"Visa"]
[null,"School/Library",{"$f":"Sheet1!P8","v":0},null,"For Credit card orders \nselect one:",null,null,null,null,"Mastercard"]
[null,"Attention",{"$f":"Sheet1!P9","v":0},null,null,null,"Select Card Type",null,null,"AMEX"]
[null,"Address",{"$f":"Sheet1!P11","v":0}]
[null,"City",{"$f":"Sheet1!P12","v":0}]
[null,"State",{"$f":"Sheet1!P13","v":0}]
[null,"Zip",{"$f":"Sheet1!P14","v":0},null,"Card Number"]
[null,"Phone",{"$f":"Sheet1!P16","v":0},null,"Name on Card"]
[null,"Fax",{"$f":"Sheet1!P17","v":0},null,"Exp. Date"]
[null,"email",{"$f":"Sheet1!P18","v":0},null,"CVV Code"]
[]
[null,"SHIP TO:",null,null,"SUMMARY"]
[null,"School/Library",{"$f":"Sheet1!H8","v":0},null,"Book Subtotal",{"$f":"Sheet1!AE11","v":0}]
[null,"Attention",{"$f":"Sheet1!H9","v":0},null,"Library Processing",{"$f":"Sheet1!AE12","v":0}]
[null,"Address",{"$f":"Sheet1!H11","v":0},null,"S&H",{"$f":"Sheet1!AE13","v":0}]
[null,"City",{"$f":"Sheet1!H12","v":0}]
[null,"State",{"$f":"Sheet1!H13","v":0}]
[null,"Zip",{"$f":"Sheet1!H14","v":0},null,"Tax",{"$f":"Sheet1!AE14","v":0},null,"Notes"]
[null,"Phone",{"$f":"Sheet1!H16","v":0},null,"GRAND TOTAL",{"$f":"Sheet1!AE15","v":0}]
[null,"Fax",{"$f":"Sheet1!H17","v":0},null,"Total # of Books Ordered",{"$f":"Sheet1!AA9+Sheet1!AC9","v":0}]
[null,"email",{"$f":"Sheet1!H18","v":0},null,"Purchase Order #",{"$f":"Sheet1!H20","v":0}]
[]
["QTY","ISBN","Title","Series","Product Type","# of Books","© Date","Price (ea.)","Total"]

{"sheet":"StandingOrder","index":3,"n_rows":33,"n_cols":8,"rows_kept":33,"cut":false,"hidden":false,"merged":[[17,2,17,3],[16,2,16,3],[10,4,10,6],[9,4,9,6],[10,2,10,3],[15,2,15,3],[14,2,14,3],[13,2,13,3],[12,2,12,3],[11,2,11,3],[9,2,9,3],[6,0,7,7],[19,4,19,6],[26,5,26,6],[11,4,11,6],[12,4,12,6],[13,4,13,6],[14,4,14,6],[15,4,15,6],[21,5,21,6],[22,5,22,6],[23,5,23,6],[24,5,24,6],[25,5,25,6],[17,4,17,6],[16,4,16,6],[8,2,8,3]]}
[null,null,null,"MAIL TO",null,"CALL  (toll-free)","FAX (toll-free)"]
[null,null,null,"Greenhaven Publishing",null," 844-317-7404","844-317-7405"]
[null,null,null,"29 East 21st Street"]
[null,null,null,"New York, NY 10010",null,"EMAIL"]
[null,null,null,null,null,"gh_custserv@greenhavenpub.com"]
[]
["Standing Order Plan"]
[]
[]
[null,null,"BILL TO",null,"SHIP TO"]
[null,"INSTITUTION:",{"$f":"Sheet1!P8","v":0},null,{"$f":"Sheet1!H8","v":0}]
[null,"ATTENTION/NAME:",{"$f":"Sheet1!P9","v":0},null,{"$f":"Sheet1!H9","v":0}]
[null,"ADDRESS:",{"$f":"Sheet1!P11","v":0},null,{"$f":"Sheet1!H11","v":0}]
[null,"CITY/STATE/PROVINCE:",{"$f":"Sheet1!P12&\", \"&Sheet1!P13","v":", "},null,{"$f":"Sheet1!H12&\", \"&Sheet1!H13","v":", "}]
[null,"ZIP/POSTAL CODE/COUNTRY:",{"$f":"Sheet1!P14","v":0},null,{"$f":"Sheet1!H14","v":0}]
[null,"TELEPHONE:",{"$f":"Sheet1!P16","v":0},null,{"$f":"Sheet1!H16","v":0}]
[null,"FAX:",{"$f":"Sheet1!P17","v":0},null,{"$f":"Sheet1!H17","v":0}]
[null,"EMAIL:",{"$f":"Sheet1!P18","v":0},null,{"$f":"Sheet1!H18","v":0}]
[]
[null,null,null,null,"PAYMENT METHOD"]
[null,null,null,null,null,null,"Select Card type"]
[null,null,null,null,"Card Number"]
[null,"**Go back to Order Form to see a complete listing of all available and upcoming titles for these Series",null,null,"Name on card"]
[null,null,null,null,"Expiration Date"]
[null,null,null,null,"CVV Code"]
[null,null,null,null,"Signature"]
[null,null,null,null,"Special Instructions"]
[]
["QTY:","IMPRINT","SERIES","BINDING","Per Title \nList Price","Standing \nOrder Price\n25% OFF!","Sign me up on \nSTANDING ORDER \n(please check)","I require notification in order to issue a new purchase order\nMUST CHOOSE ONE"]
[null,"Greenhaven Publishing","Current Controversies (NEW TITLES Coming August 2022!)","Library Bound",47.4,35.549999999999997]
[null,"Greenhaven Publishing","Current Controversies (NEW TITLES Coming August 2022!)","Paperback",33,24.75]
[null,"Greenhaven Publishing","Opposing Viewpoints (NEW TITLES Coming August 2022!)","Library Bound",49.8,37.35]
[null,"Greenhaven Publishing","Opposing Viewpoints (NEW TITLES Coming August 2022!)","Paperback",34.799999999999997,26.1]